{"text_format":"1","workbook":"xlsx","n_sheets":24,"sheets":["Cover Sheet","Model Structure","Change Log","Data Book","Check Summary","Model Information","Smoothed Prices","Unsmoothed Prices","Combined Annuity Prices CL","Combined Annuity Prices PL","CAPEX Annuity calcs","Corp Capex Annuity calcs","Revenue Nominal RAB","Capex Weighting","Opex Weighting","Building Block","Corporate OH","Inputs","Master Data","Volumes","Warehouse Pricing","Old Prices Indexed","Bracket Summary","Bracket Data"],"not_rendered":{"charts":0,"images":2,"macros":1,"external_links":2,"defined_names":85,"comments":7,"pivot_tables":1},"unopened":[],"bounds":{"document_bytes":16777216,"sheet_cells":100000,"rows_first":2000,"rows_last":500,"rows_between":2000,"halvings":0,"cell_chars":16384,"cell_head_chars":4096},"cells_cut":0,"cells_raw":0,"read":"whole","date_system":"1900"}

{"sheet":"Cover Sheet","index":0,"n_rows":4,"n_cols":4,"rows_kept":4,"cut":false,"hidden":false,"merged":[]}
[]
[null,null,"Model Details"]
[]
[null,null,"Model Name:","TasNetworks (Public Lighting Model)"]

{"sheet":"Model Structure","index":1,"n_rows":20,"n_cols":2,"rows_kept":20,"cut":false,"hidden":true,"merged":[]}
[]
[]
[]
[]
[]
[]
[]
[]
[null,"Model Overview"]
[]
[null,"Legend"]
[]
[]
[]
[]
[]
[]
[]
[]
[null,"Model Structure "]

{"sheet":"Change Log","index":2,"n_rows":17,"n_cols":13,"rows_kept":17,"cut":false,"hidden":true,"merged":[[13,6,13,12]]}
[]
[]
[null,null,"Change Log"]
[null,null,{"$f":"'Cover Sheet'!D4","v":"TasNetworks (Public Lighting Model)"}]
[]
[]
[]
[]
[]
[]
[]
[null,null,"Change Log"]
[]
[null,null,null,null,null,null,"Net Equity ['000']"]
[null,null,"Date","Filename","Nature of Change Made (Type below)","Analyst",{"$f":"2018","v":2018},{"$f":"G15+1","v":2019},2020,2021,2022,2023,2024]
[null,null,{"$f":"NOW()","v":"2016-01-18T11:44:18.680"},{"$f":"MID(CELL(\"filename\"), SEARCH(\"[\", CELL(\"filename\")) + 1, SEARCH(\"]\", CELL(\"filename\")) - SEARCH(\"[\", CELL(\"filename\")) - 1)","v":"TasNetworks Public Lighting Model AER Submission.xlsm"},null,"mahambreyd"]
[null,null,"2015-07-18T11:17:41.560","20150717_V10_Aurora Public Lighting Model(test databook).xlsm",null,"mahambreyd"]

{"sheet":"Data Book","index":3,"n_rows":10,"n_cols":9,"rows_kept":10,"cut":false,"hidden":true,"merged":[]}
[]
[null,null,"Assumptions Book"]
[null,null,{"$f":"'Cover Sheet'!D4","v":"TasNetworks (Public Lighting Model)"}]
[]
[]
[]
[]
[]
[]
[null,null,"Global Assumptions/Economic assumptions","Input","Units","Check","Data Owner","Supporting Document Reference","Notes"]

{"sheet":"Check Summary","index":4,"n_rows":28,"n_cols":4,"rows_kept":28,"cut":false,"hidden":false,"merged":[]}
[]
[null,"RAB Revenue Equals prices",{"$f":"'Revenue Nominal RAB'!G23","v":"2017-18"},{"$f":"'Revenue Nominal RAB'!H23","v":"2018-19"}]
[null,null,{"$f":"'Revenue Nominal RAB'!G86","v":true},{"$f":"'Revenue Nominal RAB'!H86","v":true}]
[null,null,{"$f":"'Revenue Nominal RAB'!G155","v":true},{"$f":"'Revenue Nominal RAB'!H155","v":true}]
[null,null,{"$f":"'Revenue Nominal RAB'!G224","v":true},{"$f":"'Revenue Nominal RAB'!H224","v":true}]
[]
[null,"UnSmoothed CL Volumes",{"$f":"'Unsmoothed Prices'!J68","v":true},{"$f":"'Unsmoothed Prices'!K68","v":true}]
[null,"UnSmoothed PL Volumes",{"$f":"'Unsmoothed Prices'!J129","v":true},{"$f":"'Unsmoothed Prices'!K129","v":true}]
[null,"UnSmoothed Total Volumes",{"$f":"'Unsmoothed Prices'!J131","v":true},{"$f":"'Unsmoothed Prices'!K131","v":true}]
[]
[null,"Smoothed CL Volumes",{"$f":"'Smoothed Prices'!J68","v":true},{"$f":"'Smoothed Prices'!K68","v":true}]
[null,"Smoothed PL Volumes",{"$f":"'Smoothed Prices'!J129","v":true},{"$f":"'Smoothed Prices'!K129","v":true}]
[null,"Smoothed Total Volumes",{"$f":"'Smoothed Prices'!J131","v":true},{"$f":"'Smoothed Prices'!K131","v":true}]
[]
[null,"Input Checks",{"$f":"Inputs!F26","v":true}]
[null,null,{"$f":"Inputs!F27","v":true}]
[null,null,{"$f":"Inputs!F28","v":true}]
[null,null,{"$f":"Inputs!F29","v":true}]
[null,null,{"$f":"Inputs!L40","v":true}]
[null,null,{"$f":"Inputs!L43","v":true}]
[null,null,{"$f":"Inputs!L47","v":true}]
[null,null,{"$f":"Inputs!F53","v":true}]
[null,null,{"$f":"Inputs!F54","v":true}]
[null,null,{"$f":"Inputs!F56","v":true}]
[null,null,{"$f":"Inputs!F57","v":true}]
[]
[]
[null,"build up check",{"$f":"'Combined Annuity Prices CL'!E5","v":6382.1813578945585},{"$f":"'Combined Annuity Prices CL'!F5","v":6382.1813578945585}]

{"sheet":"Model Information","index":5,"n_rows":74,"n_cols":2,"rows_kept":74,"cut":false,"hidden":false,"merged":[[2,1,3,10],[4,1,7,10],[32,1,32,10],[41,1,43,10],[33,1,35,10],[36,1,39,10],[8,1,10,10],[11,1,14,10],[15,1,17,10],[18,1,23,10],[24,1,28,10],[54,1,56,10],[57,1,59,10],[60,1,62,10],[64,1,66,10],[40,1,40,10],[46,1,46,10],[53,1,53,10],[63,1,63,10],[44,1,45,10],[47,1,49,10],[50,1,52,10],[67,1,69,10],[70,1,72,10],[73,1,75,10],[76,1,78,10],[79,1,81,10]]}
[]
[null,"Process information"]
[null,"Public lighting includes many parts that have different life cycles which also vary depending on the light type. The main parts in a light are as follow: "]
[]
[null," o Light Bracket - most lights have a bracket which allows the luminaire to be attached to a power pole, this is capital expenditure. There are some lights that are on private piles that do not require brackets, these poles and built in brackets are not the responsibility of TasNetworks. Brackets are assumed to have a life cycle of 40 years"]
[]
[]
[]
[null," o Luminaire - The luminaire is the light fitting that the lamp is within and is a capital expenditure. Luminaires are assumed to have a life cycle of 20 years"]
[]
[]
[null," o Lamp - Within the luminaire is a lamp that requires replacement depending on the light type. Normal lights have a life cycle of 4.5 years on average therefore the replacement program is every 4 years as opex expenditure. LED lights are the exception as they last 20 years and are replaced when the luminaire requires replacing."]
[]
[]
[]
[null," o PE Cell - Public lights are switched on and off using PE Cells which in the last 30 years have replaced overhead switch wires as a new technology. They are replaced either with the lamp on after 1o year as opex."]
[]
[]
[null," o  Installation Cost - The TasNetworks POW has inbuilt unit prices for both Opex and capex installation costs of public lights. These prices have been used for luminaire /Bracket capex installation excluding the material proportion plus actual materials from the warehouse prices. The same method has been used for Opex maintenance (Lamp & PE Cell replacement), using the POW unit rate net of materials plus actual materials for the individual light type. The 2 unit rates are determined using the Major/minor allocation of the light."]
[]
[]
[]
[]
[]
[null,"Public lighting prices have previously used the annuity method rather than a RAB method. The annuity method is more accurate and produces more cost reflective prices compared to the RAB method which has some unreliable data. The opening RAB data was estimated by the business therefore its accuracy is unknown, because of this the PTRM output is used as a indicator test for the Annuity method."]
[]
[]
[]
[]
[]
[]
[null,"Assumptions"]
[null,"Brackets"]
[null,"A sample base for brackets has been sourced from the thread leader which aligns the light type with bracket type and cost. This sample base of 10,000 out of a total of 40,000+ lights is assumed to represent the whole fleet of brackets."]
[]
[]
[null,"Of the 40,000+ public lights there are a number of private poles for the public light that do not require a bracket. The public lighting asset management plan has the total number of brackets in the fleet (not down to type assigned to light type for costing). Therefore the cost of the brackets is weighted so that only the total number of brackets are recovered."]
[]
[]
[]
[null,"Lamps"]
[null,"Lamps have a assumed life cycle of 4.5 years therefore they are replaced within the POW after 4 years. LEDs do not require a lamp replacement within the 20 year life cycle of the luminaire."]
[]
[]
[]
[]
[null,"PE Cells"]
[null,"There are two types of PE Cells and it is assumed that major lights have the more expensive cell installed while the minor lights have the smaller and cheaper PE Cell."]
[]
[]
[null,"PE Cells have a assumed 10 year life therefore to align with the 4 year lamp replacement program they are replaced after 8 years however with LED's they are replaced after 10 years. "]
[]
[]
[null,"Installation and maintenance cost"]
[null,"The POW assumption about what lights are major and minor for work to be completed is based on lights less than or greater than 100 watts. This results in a higher cost associated with the major lights due to higher costs performing maintenance and installation."]
[]
[]
[null,"It is assumed that the cost of performing a Lamp replacement is the same doing the PE Cell at the same time or only PE cell."]
[]
[]
[null,"It is assumed that the cost of performing a luminaire installation/replacement is the same doing the Brackett at the same time "]
[]
[]
[null,"Other assumptions"]
[null,"It is assumed that contract prices for materials are to remain consistent with the agrees 3% annual increase to remain the same."]
[]
[]
[null,"Where a warehouse price is not available due to the light type is obsolete the previous determination prices have been indexed."]
[]
[]
[null,"Indirect capex that is not included in the unit price build up is included in the annuity calculation and assumed to have a 40 year life given it is work on the street lights that have the same life."]
[]
[]
[null,"Private contract lights are owned by client and TasNetworks just performs maintenance on the light. Capital replacements are the responsibility of the owner."]

{"sheet":"Smoothed Prices","index":6,"n_rows":135,"n_cols":24,"rows_kept":135,"cut":false,"hidden":false,"merged":[[7,21,7,22],[68,21,68,22],[7,18,7,19],[68,18,68,19],[7,12,7,13],[7,15,7,16],[68,12,68,13],[68,15,68,16],[7,2,7,4],[7,9,7,10],[68,2,68,4],[68,9,68,10],[7,6,7,7],[68,6,68,7]]}
[]
[]
[]
[null,"Private Contract Lights"]
[]
[null,null,null,null,null,"Days",{"$f":"'Master Data'!I23","v":365},{"$f":"'Master Data'!J23","v":365}]
[null,null,null,null,null,"Indexation",{"$f":"'Master Data'!I32","v":1},{"$f":"'Master Data'!J32","v":1.0249999999999999},null,null,null,null,{"$f":"HLOOKUP(M9,'Master Data'!$B$20:$P$23,4,FALSE)","v":365},{"$f":"HLOOKUP(N9,'Master Data'!$B$20:$P$23,4,FALSE)","v":365},null,{"$f":"HLOOKUP(P9,'Master Data'!$B$20:$P$23,4,FALSE)","v":365},{"$f":"HLOOKUP(Q9,'Master Data'!$B$20:$P$23,4,FALSE)","v":365}]
[null,"Private Contract Lights","Price (cents) per Light per day Real 2017/18 Smoothed",null,null,null,"Price (cents) per Light per day Nominal Smoothed",null,null,"Volumes",null,null,"Smooth Real Cost Dollars Per Year",null,null,"Smooth Nominal Cost Dollars Per Year",null,null,"Revenue Nominal Dollars Per Year",null,null,"Revenue Real Dollars Per Year"]
[null,null,"Offered / No Longer Offered / NA",{"$f":"'Master Data'!I$29","v":"2017-18"},{"$f":"'Master Data'!J$29","v":"2018-19"},null,{"$f":"'Master Data'!I$29","v":"2017-18"},{"$f":"'Master Data'!J$29","v":"2018-19"},null,{"$f":"'Master Data'!I$29","v":"2017-18"},{"$f":"'Master Data'!J$29","v":"2018-19"},null,{"$f":"'Master Data'!I$29","v":"2017-18"},{"$f":"'Master Data'!J$29","v":"2018-19"},null,{"$f":"'Master Data'!I$29","v":"2017-18"},{"$f":"'Master Data'!J$29","v":"2018-19"},null,{"$f":"'Master Data'!I$29","v":"2017-18"},{"$f":"'Master Data'!J$29","v":"2018-19"},null,{"$f":"'Master Data'!I$29","v":"2017-18"},{"$f":"'Master Data'!J$29","v":"2018-19"}]
[null,{"$f":"Inputs!$C69","v":"32W Compact Fluorescent"},"Not Offered",{"$f":"IF($C10=\"NA\",\"\",ROUND('Unsmoothed Prices'!D10*'Unsmoothed Prices'!G$141,3))","v":18.690000000000001},{"$f":"IF($C10=\"NA\",\"\",ROUND('Unsmoothed Prices'!E10*'Unsmoothed Prices'!H$141,3))","v":18.451000000000001},null,{"$f":"IF($C10=\"NA\",\"\",ROUND(D10*G$7,3))","v":18.690000000000001},{"$f":"IF($C10=\"NA\",\"\",ROUND(E10*H$7,3))","v":18.911999999999999},null,{"$f":"IFERROR(VLOOKUP($B10,Volumes!$B$4:$F$32,MATCH(J$9,Volumes!$B$4:$F$4,0),FALSE),0)","v":0},{"$f":"IFERROR(VLOOKUP($B10,Volumes!$B$4:$F$32,MATCH(K$9,Volumes!$B$4:$F$4,0),FALSE),0)","v":0},null,{"$f":"IF($C10=\"NA\",\"\",(D10*M$7)/100)","v":68.218500000000006},{"$f":"IF($C10=\"NA\",\"\",(E10*N$7)/100)","v":67.346149999999994},null,{"$f":"IF($C10=\"NA\",\"\",ROUND((G10*P$7),2)/100)","v":68.218500000000006},{"$f":"IF($C10=\"NA\",\"\",ROUND((H10*Q$7),2)/100)","v":69.028800000000004},null,{"$f":"IFERROR(P10*J10,0)","v":0},{"$f":"IFERROR(Q10*K10,0)","v":0},null,{"$f":"IFERROR(M10*J10,0)","v":0},{"$f":"IFERROR(N10*K10,0)","v":0}]
[null,{"$f":"Inputs!$C70","v":"42W Compact Fluorescent"},"Offered",{"$f":"IF($C11=\"NA\",\"\",ROUND('Unsmoothed Prices'!D11*'Unsmoothed Prices'!G$141,3))","v":18.690000000000001},{"$f":"IF($C11=\"NA\",\"\",ROUND('Unsmoothed Prices'!E11*'Unsmoothed Prices'!H$141,3))","v":18.451000000000001},null,18.690000000000001,18.911999999999999,null,{"$f":"IFERROR(VLOOKUP($B11,Volumes!$B$4:$F$32,MATCH(J$9,Volumes!$B$4:$F$4,0),FALSE),0)","v":0},{"$f":"IFERROR(VLOOKUP($B11,Volumes!$B$4:$F$32,MATCH(K$9,Volumes!$B$4:$F$4,0),FALSE),0)","v":0},null,68.218500000000006,67.346149999999994,null,68.218500000000006,69.028800000000004,null,0,0,null,0,0]
[null,{"$f":"Inputs!$C71","v":"42W Compact Fluorescent - Bottom Pole Entry"},"Offered",{"$f":"IF($C12=\"NA\",\"\",ROUND('Unsmoothed Prices'!D12*'Unsmoothed Prices'!G$141,3))","v":18.690000000000001},{"$f":"IF($C12=\"NA\",\"\",ROUND('Unsmoothed Prices'!E12*'Unsmoothed Prices'!H$141,3))","v":18.451000000000001},null,18.690000000000001,18.911999999999999,null,{"$f":"IFERROR(VLOOKUP($B12,Volumes!$B$4:$F$32,MATCH(J$9,Volumes!$B$4:$F$4,0),FALSE),0)","v":0},{"$f":"IFERROR(VLOOKUP($B12,Volumes!$B$4:$F$32,MATCH(K$9,Volumes!$B$4:$F$4,0),FALSE),0)","v":0},null,68.218500000000006,67.346149999999994,null,68.218500000000006,69.028800000000004,null,0,0,null,0,0]
[null,{"$f":"Inputs!$C72","v":"2x24W Compact Fluorescent"},"Not Offered",{"$f":"IF($C13=\"NA\",\"\",ROUND('Unsmoothed Prices'!D13*'Unsmoothed Prices'!G$141,3))","v":18.992999999999999},{"$f":"IF($C13=\"NA\",\"\",ROUND('Unsmoothed Prices'!E13*'Unsmoothed Prices'!H$141,3))","v":18.75},null,18.992999999999999,19.219000000000001,null,{"$f":"IFERROR(VLOOKUP($B13,Volumes!$B$4:$F$32,MATCH(J$9,Volumes!$B$4:$F$4,0),FALSE),0)","v":0},{"$f":"IFERROR(VLOOKUP($B13,Volumes!$B$4:$F$32,MATCH(K$9,Volumes!$B$4:$F$4,0),FALSE),0)","v":0},null,69.324449999999999,68.4375,null,69.3245,70.1494,null,0,0,null,0,0]
[null,{"$f":"Inputs!$C73","v":"1x20W Fluorescent"},"Obsolete, no new Connections",{"$f":"IF($C14=\"NA\",\"\",ROUND('Unsmoothed Prices'!D14*'Unsmoothed Prices'!G$141,3))","v":18.68},{"$f":"IF($C14=\"NA\",\"\",ROUND('Unsmoothed Prices'!E14*'Unsmoothed Prices'!H$141,3))","v":18.440000000000001},null,18.68,18.901,null,{"$f":"IFERROR(VLOOKUP($B14,Volumes!$B$4:$F$32,MATCH(J$9,Volumes!$B$4:$F$4,0),FALSE),0)","v":0},{"$f":"IFERROR(VLOOKUP($B14,Volumes!$B$4:$F$32,MATCH(K$9,Volumes!$B$4:$F$4,0),FALSE),0)","v":0},null,68.182000000000002,67.305999999999997,null,68.182000000000002,68.988699999999994,null,0,0,null,0,0]
[null,{"$f":"Inputs!$C74","v":"1x40W Fluorescent"},"Obsolete, no new Connections",{"$f":"IF($C15=\"NA\",\"\",ROUND('Unsmoothed Prices'!D15*'Unsmoothed Prices'!G$141,3))","v":18.699000000000002},{"$f":"IF($C15=\"NA\",\"\",ROUND('Unsmoothed Prices'!E15*'Unsmoothed Prices'!H$141,3))","v":18.459},null,18.699000000000002,18.920000000000002,null,{"$f":"IFERROR(VLOOKUP($B15,Volumes!$B$4:$F$32,MATCH(J$9,Volumes!$B$4:$F$4,0),FALSE),0)","v":0},{"$f":"IFERROR(VLOOKUP($B15,Volumes!$B$4:$F$32,MATCH(K$9,Volumes!$B$4:$F$4,0),FALSE),0)","v":0},null,68.251350000000002,67.375349999999997,null,68.251400000000004,69.058000000000007,null,0,0,null,0,0]
[null,{"$f":"Inputs!$C75","v":"2x20W Fluorescent"},"Obsolete, no new Connections",{"$f":"IF($C16=\"NA\",\"\",ROUND('Unsmoothed Prices'!D16*'Unsmoothed Prices'!G$141,3))","v":18.972000000000001},{"$f":"IF($C16=\"NA\",\"\",ROUND('Unsmoothed Prices'!E16*'Unsmoothed Prices'!H$141,3))","v":18.728999999999999},null,18.972000000000001,19.196999999999999,null,{"$f":"IFERROR(VLOOKUP($B16,Volumes!$B$4:$F$32,MATCH(J$9,Volumes!$B$4:$F$4,0),FALSE),0)","v":0},{"$f":"IFERROR(VLOOKUP($B16,Volumes!$B$4:$F$32,MATCH(K$9,Volumes!$B$4:$F$4,0),FALSE),0)","v":0},null,69.247800000000012,68.360849999999999,null,69.247799999999998,70.069099999999992,null,0,0,null,0,0]
[null,{"$f":"Inputs!$C76","v":"2x24W Fluorescent"},"Obsolete, no new Connections",{"$f":"IF($C17=\"NA\",\"\",ROUND('Unsmoothed Prices'!D17*'Unsmoothed Prices'!G$141,3))","v":18.783999999999999},{"$f":"IF($C17=\"NA\",\"\",ROUND('Unsmoothed Prices'!E17*'Unsmoothed Prices'!H$141,3))","v":18.542000000000002},null,18.783999999999999,19.006,null,{"$f":"IFERROR(VLOOKUP($B17,Volumes!$B$4:$F$32,MATCH(J$9,Volumes!$B$4:$F$4,0),FALSE),0)","v":0},{"$f":"IFERROR(VLOOKUP($B17,Volumes!$B$4:$F$32,MATCH(K$9,Volumes!$B$4:$F$4,0),FALSE),0)","v":0},null,68.561599999999999,67.678300000000007,null,68.561599999999999,69.371899999999997,null,0,0,null,0,0]
[null,{"$f":"Inputs!$C77","v":"T5 Fluorescent 2 x 24W"},"Obsolete, no new Connections",{"$f":"IF($C18=\"NA\",\"\",ROUND('Unsmoothed Prices'!D18*'Unsmoothed Prices'!G$141,3))","v":18.972000000000001},{"$f":"IF($C18=\"NA\",\"\",ROUND('Unsmoothed Prices'!E18*'Unsmoothed Prices'!H$141,3))","v":18.728999999999999},null,18.972000000000001,19.196999999999999,null,{"$f":"IFERROR(VLOOKUP($B18,Volumes!$B$4:$F$32,MATCH(J$9,Volumes!$B$4:$F$4,0),FALSE),0)","v":0},{"$f":"IFERROR(VLOOKUP($B18,Volumes!$B$4:$F$32,MATCH(K$9,Volumes!$B$4:$F$4,0),FALSE),0)","v":0},null,69.247800000000012,68.360849999999999,null,69.247799999999998,70.069099999999992,null,0,0,null,0,0]
[null,{"$f":"Inputs!$C78","v":"20 Fluorescent 1X20FL"},"Obsolete, no new Connections",{"$f":"IF($C19=\"NA\",\"\",ROUND('Unsmoothed Prices'!D19*'Unsmoothed Prices'!G$141,3))","v":18.68},{"$f":"IF($C19=\"NA\",\"\",ROUND('Unsmoothed Prices'!E19*'Unsmoothed Prices'!H$141,3))","v":18.440000000000001},null,18.68,18.901,null,{"$f":"IFERROR(VLOOKUP($B19,Volumes!$B$4:$F$32,MATCH(J$9,Volumes!$B$4:$F$4,0),FALSE),0)","v":0},{"$f":"IFERROR(VLOOKUP($B19,Volumes!$B$4:$F$32,MATCH(K$9,Volumes!$B$4:$F$4,0),FALSE),0)","v":0},null,68.182000000000002,67.305999999999997,null,68.182000000000002,68.988699999999994,null,0,0,null,0,0]
[null,{"$f":"Inputs!$C79","v":"2x40W Fluorescent"},"Obsolete, no new Connections",{"$f":"IF($C20=\"NA\",\"\",ROUND('Unsmoothed Prices'!D20*'Unsmoothed Prices'!G$141,3))","v":19.010000000000002},{"$f":"IF($C20=\"NA\",\"\",ROUND('Unsmoothed Prices'!E20*'Unsmoothed Prices'!H$141,3))","v":18.765999999999998},null,19.010000000000002,19.234999999999999,null,{"$f":"IFERROR(VLOOKUP($B20,Volumes!$B$4:$F$32,MATCH(J$9,Volumes!$B$4:$F$4,0),FALSE),0)","v":0},{"$f":"IFERROR(VLOOKUP($B20,Volumes!$B$4:$F$32,MATCH(K$9,Volumes!$B$4:$F$4,0),FALSE),0)","v":0},null,69.386500000000012,68.495899999999992,null,69.386499999999998,70.207799999999992,null,0,0,null,0,0]
[null,{"$f":"Inputs!$C80","v":"3x40W Fluorescent"},"Obsolete, no new Connections",{"$f":"IF($C21=\"NA\",\"\",ROUND('Unsmoothed Prices'!D21*'Unsmoothed Prices'!G$141,3))","v":22.895},{"$f":"IF($C21=\"NA\",\"\",ROUND('Unsmoothed Prices'!E21*'Unsmoothed Prices'!H$141,3))","v":22.597000000000001},null,22.895,23.161999999999999,null,{"$f":"IFERROR(VLOOKUP($B21,Volumes!$B$4:$F$32,MATCH(J$9,Volumes!$B$4:$F$4,0),FALSE),0)","v":0},{"$f":"IFERROR(VLOOKUP($B21,Volumes!$B$4:$F$32,MATCH(K$9,Volumes!$B$4:$F$4,0),FALSE),0)","v":0},null,83.566749999999999,82.479050000000001,null,83.566800000000001,84.541299999999993,null,0,0,null,0,0]
[null,{"$f":"Inputs!$C81","v":"4x20 Fluorescent"},"Obsolete, no new Connections",{"$f":"IF($C22=\"NA\",\"\",ROUND('Unsmoothed Prices'!D22*'Unsmoothed Prices'!G$141,3))","v":19.556999999999999},{"$f":"IF($C22=\"NA\",\"\",ROUND('Unsmoothed Prices'!E22*'Unsmoothed Prices'!H$141,3))","v":19.306000000000001},null,19.556999999999999,19.789000000000001,null,{"$f":"IFERROR(VLOOKUP($B22,Volumes!$B$4:$F$32,MATCH(J$9,Volumes!$B$4:$F$4,0),FALSE),0)","v":0},{"$f":"IFERROR(VLOOKUP($B22,Volumes!$B$4:$F$32,MATCH(K$9,Volumes!$B$4:$F$4,0),FALSE),0)","v":0},null,71.383049999999997,70.46690000000001,null,71.383099999999999,72.229900000000001,null,0,0,null,0,0]
[null,{"$f":"Inputs!$C82","v":"4x40W Fluorescent"},"Obsolete, no new Connections",{"$f":"IF($C23=\"NA\",\"\",ROUND('Unsmoothed Prices'!D23*'Unsmoothed Prices'!G$141,3))","v":23.206},{"$f":"IF($C23=\"NA\",\"\",ROUND('Unsmoothed Prices'!E23*'Unsmoothed Prices'!H$141,3))","v":22.904},null,23.206,23.477,null,{"$f":"IFERROR(VLOOKUP($B23,Volumes!$B$4:$F$32,MATCH(J$9,Volumes!$B$4:$F$4,0),FALSE),0)","v":0},{"$f":"IFERROR(VLOOKUP($B23,Volumes!$B$4:$F$32,MATCH(K$9,Volumes!$B$4:$F$4,0),FALSE),0)","v":0},null,84.701900000000009,83.599599999999995,null,84.701900000000009,85.691100000000006,null,0,0,null,0,0]
[null,{"$f":"Inputs!$C83","v":"100W Sodium Vapour"},"Offered",{"$f":"IF($C24=\"NA\",\"\",ROUND('Unsmoothed Prices'!D24*'Unsmoothed Prices'!G$141,3))","v":22.969000000000001},{"$f":"IF($C24=\"NA\",\"\",ROUND('Unsmoothed Prices'!E24*'Unsmoothed Prices'!H$141,3))","v":22.67},null,22.969000000000001,23.236999999999998,null,{"$f":"IFERROR(VLOOKUP($B24,Volumes!$B$4:$F$32,MATCH(J$9,Volumes!$B$4:$F$4,0),FALSE),0)","v":5},{"$f":"IFERROR(VLOOKUP($B24,Volumes!$B$4:$F$32,MATCH(K$9,Volumes!$B$4:$F$4,0),FALSE),0)","v":5},null,83.836850000000013,82.745500000000007,null,83.8369,84.815100000000001,null,419.18450000000001,424.07550000000003,null,419.18425000000008,413.72750000000002]
[null,{"$f":"Inputs!$C84","v":0},"NA",{"$f":"IF($C25=\"NA\",\"\",ROUND('Unsmoothed Prices'!D25*'Unsmoothed Prices'!G$141,3))","v":""},{"$f":"IF($C25=\"NA\",\"\",ROUND('Unsmoothed Prices'!E25*'Unsmoothed Prices'!H$141,3))","v":""},null,"","",null,{"$f":"IFERROR(VLOOKUP($B25,Volumes!$B$4:$F$32,MATCH(J$9,Volumes!$B$4:$F$4,0),FALSE),0)","v":0},{"$f":"IFERROR(VLOOKUP($B25,Volumes!$B$4:$F$32,MATCH(K$9,Volumes!$B$4:$F$4,0),FALSE),0)","v":0},null,"","",null,"","",null,0,0,null,0,0]
[null,{"$f":"Inputs!$C85","v":"150W Sodium Vapour"},"Offered",{"$f":"IF($C26=\"NA\",\"\",ROUND('Unsmoothed Prices'!D26*'Unsmoothed Prices'!G$141,3))","v":22.965},{"$f":"IF($C26=\"NA\",\"\",ROUND('Unsmoothed Prices'!E26*'Unsmoothed Prices'!H$141,3))","v":22.666},null,22.965,23.233000000000001,null,{"$f":"IFERROR(VLOOKUP($B26,Volumes!$B$4:$F$32,MATCH(J$9,Volumes!$B$4:$F$4,0),FALSE),0)","v":163},{"$f":"IFERROR(VLOOKUP($B26,Volumes!$B$4:$F$32,MATCH(K$9,Volumes!$B$4:$F$4,0),FALSE),0)","v":163},null,83.822249999999997,82.730900000000005,null,83.822299999999998,84.8005,null,13663.034900000001,13822.4815,null,13663.026749999999,13485.136700000001]
[null,{"$f":"Inputs!$C86","v":0},"NA",{"$f":"IF($C27=\"NA\",\"\",ROUND('Unsmoothed Prices'!D27*'Unsmoothed Prices'!G$141,3))","v":""},{"$f":"IF($C27=\"NA\",\"\",ROUND('Unsmoothed Prices'!E27*'Unsmoothed Prices'!H$141,3))","v":""},null,"","",null,{"$f":"IFERROR(VLOOKUP($B27,Volumes!$B$4:$F$32,MATCH(J$9,Volumes!$B$4:$F$4,0),FALSE),0)","v":0},{"$f":"IFERROR(VLOOKUP($B27,Volumes!$B$4:$F$32,MATCH(K$9,Volumes!$B$4:$F$4,0),FALSE),0)","v":0},null,"","",null,"","",null,0,0,null,0,0]
[null,{"$f":"Inputs!$C87","v":0},"NA",{"$f":"IF($C28=\"NA\",\"\",ROUND('Unsmoothed Prices'!D28*'Unsmoothed Prices'!G$141,3))","v":""},{"$f":"IF($C28=\"NA\",\"\",ROUND('Unsmoothed Prices'!E28*'Unsmoothed Prices'!H$141,3))","v":""},null,"","",null,{"$f":"IFERROR(VLOOKUP($B28,Volumes!$B$4:$F$32,MATCH(J$9,Volumes!$B$4:$F$4,0),FALSE),0)","v":0},{"$f":"IFERROR(VLOOKUP($B28,Volumes!$B$4:$F$32,MATCH(K$9,Volumes!$B$4:$F$4,0),FALSE),0)","v":0},null,"","",null,"","",null,0,0,null,0,0]
[null,{"$f":"Inputs!$C88","v":0},"NA",{"$f":"IF($C29=\"NA\",\"\",ROUND('Unsmoothed Prices'!D29*'Unsmoothed Prices'!G$141,3))","v":""},{"$f":"IF($C29=\"NA\",\"\",ROUND('Unsmoothed Prices'!E29*'Unsmoothed Prices'!H$141,3))","v":""},null,"","",null,{"$f":"IFERROR(VLOOKUP($B29,Volumes!$B$4:$F$32,MATCH(J$9,Volumes!$B$4:$F$4,0),FALSE),0)","v":0},{"$f":"IFERROR(VLOOKUP($B29,Volumes!$B$4:$F$32,MATCH(K$9,Volumes!$B$4:$F$4,0),FALSE),0)","v":0},null,"","",null,"","",null,0,0,null,0,0]
[null,{"$f":"Inputs!$C89","v":"250W Sodium Vapour"},"Offered",{"$f":"IF($C30=\"NA\",\"\",ROUND('Unsmoothed Prices'!D30*'Unsmoothed Prices'!G$141,3))","v":23.09},{"$f":"IF($C30=\"NA\",\"\",ROUND('Unsmoothed Prices'!E30*'Unsmoothed Prices'!H$141,3))","v":22.789000000000001},null,23.09,23.359000000000002,null,{"$f":"IFERROR(VLOOKUP($B30,Volumes!$B$4:$F$32,MATCH(J$9,Volumes!$B$4:$F$4,0),FALSE),0)","v":165},{"$f":"IFERROR(VLOOKUP($B30,Volumes!$B$4:$F$32,MATCH(K$9,Volumes!$B$4:$F$4,0),FALSE),0)","v":165},null,84.278500000000008,83.179850000000002,null,84.278500000000008,85.260400000000004,null,13905.952500000001,14067.966,null,13905.952500000001,13724.67525]
[null,{"$f":"Inputs!$C90","v":0},"NA",{"$f":"IF($C31=\"NA\",\"\",ROUND('Unsmoothed Prices'!D31*'Unsmoothed Prices'!G$141,3))","v":""},{"$f":"IF($C31=\"NA\",\"\",ROUND('Unsmoothed Prices'!E31*'Unsmoothed Prices'!H$141,3))","v":""},null,"","",null,{"$f":"IFERROR(VLOOKUP($B31,Volumes!$B$4:$F$32,MATCH(J$9,Volumes!$B$4:$F$4,0),FALSE),0)","v":0},{"$f":"IFERROR(VLOOKUP($B31,Volumes!$B$4:$F$32,MATCH(K$9,Volumes!$B$4:$F$4,0),FALSE),0)","v":0},null,"","",null,"","",null,0,0,null,0,0]
[null,{"$f":"Inputs!$C91","v":0},"NA",{"$f":"IF($C32=\"NA\",\"\",ROUND('Unsmoothed Prices'!D32*'Unsmoothed Prices'!G$141,3))","v":""},{"$f":"IF($C32=\"NA\",\"\",ROUND('Unsmoothed Prices'!E32*'Unsmoothed Prices'!H$141,3))","v":""},null,"","",null,{"$f":"IFERROR(VLOOKUP($B32,Volumes!$B$4:$F$32,MATCH(J$9,Volumes!$B$4:$F$4,0),FALSE),0)","v":0},{"$f":"IFERROR(VLOOKUP($B32,Volumes!$B$4:$F$32,MATCH(K$9,Volumes!$B$4:$F$4,0),FALSE),0)","v":0},null,"","",null,"","",null,0,0,null,0,0]
[null,{"$f":"Inputs!$C92","v":0},"NA",{"$f":"IF($C33=\"NA\",\"\",ROUND('Unsmoothed Prices'!D33*'Unsmoothed Prices'!G$141,3))","v":""},{"$f":"IF($C33=\"NA\",\"\",ROUND('Unsmoothed Prices'!E33*'Unsmoothed Prices'!H$141,3))","v":""},null,"","",null,{"$f":"IFERROR(VLOOKUP($B33,Volumes!$B$4:$F$32,MATCH(J$9,Volumes!$B$4:$F$4,0),FALSE),0)","v":0},{"$f":"IFERROR(VLOOKUP($B33,Volumes!$B$4:$F$32,MATCH(K$9,Volumes!$B$4:$F$4,0),FALSE),0)","v":0},null,"","",null,"","",null,0,0,null,0,0]
[null,{"$f":"Inputs!$C93","v":"250W Sodium Vapour - Flood Light"},"Offered",{"$f":"IF($C34=\"NA\",\"\",ROUND('Unsmoothed Prices'!D34*'Unsmoothed Prices'!G$141,3))","v":23.09},{"$f":"IF($C34=\"NA\",\"\",ROUND('Unsmoothed Prices'!E34*'Unsmoothed Prices'!H$141,3))","v":22.789000000000001},null,23.09,23.359000000000002,null,{"$f":"IFERROR(VLOOKUP($B34,Volumes!$B$4:$F$32,MATCH(J$9,Volumes!$B$4:$F$4,0),FALSE),0)","v":0},{"$f":"IFERROR(VLOOKUP($B34,Volumes!$B$4:$F$32,MATCH(K$9,Volumes!$B$4:$F$4,0),FALSE),0)","v":0},null,84.278500000000008,83.179850000000002,null,84.278500000000008,85.260400000000004,null,0,0,null,0,0]
[null,{"$f":"Inputs!$C94","v":"400W Sodium Vapour"},"Offered",{"$f":"IF($C35=\"NA\",\"\",ROUND('Unsmoothed Prices'!D35*'Unsmoothed Prices'!G$141,3))","v":23.132000000000001},{"$f":"IF($C35=\"NA\",\"\",ROUND('Unsmoothed Prices'!E35*'Unsmoothed Prices'!H$141,3))","v":22.832000000000001},null,23.132000000000001,23.402999999999999,null,{"$f":"IFERROR(VLOOKUP($B35,Volumes!$B$4:$F$32,MATCH(J$9,Volumes!$B$4:$F$4,0),FALSE),0)","v":104},{"$f":"IFERROR(VLOOKUP($B35,Volumes!$B$4:$F$32,MATCH(K$9,Volumes!$B$4:$F$4,0),FALSE),0)","v":104},null,84.43180000000001,83.336799999999997,null,84.43180000000001,85.421000000000006,null,8780.9072000000015,8883.7840000000015,null,8780.9072000000015,8667.0272000000004]
[null,{"$f":"Inputs!$C95","v":0},"NA",{"$f":"IF($C36=\"NA\",\"\",ROUND('Unsmoothed Prices'!D36*'Unsmoothed Prices'!G$141,3))","v":""},{"$f":"IF($C36=\"NA\",\"\",ROUND('Unsmoothed Prices'!E36*'Unsmoothed Prices'!H$141,3))","v":""},null,"","",null,{"$f":"IFERROR(VLOOKUP($B36,Volumes!$B$4:$F$32,MATCH(J$9,Volumes!$B$4:$F$4,0),FALSE),0)","v":0},{"$f":"IFERROR(VLOOKUP($B36,Volumes!$B$4:$F$32,MATCH(K$9,Volumes!$B$4:$F$4,0),FALSE),0)","v":0},null,"","",null,"","",null,0,0,null,0,0]
[null,{"$f":"Inputs!$C96","v":"400W Sodium Vapour - Flood Light"},"Offered",{"$f":"IF($C37=\"NA\",\"\",ROUND('Unsmoothed Prices'!D37*'Unsmoothed Prices'!G$141,3))","v":23.132000000000001},{"$f":"IF($C37=\"NA\",\"\",ROUND('Unsmoothed Prices'!E37*'Unsmoothed Prices'!H$141,3))","v":22.832000000000001},null,23.132000000000001,23.402999999999999,null,{"$f":"IFERROR(VLOOKUP($B37,Volumes!$B$4:$F$32,MATCH(J$9,Volumes!$B$4:$F$4,0),FALSE),0)","v":0},{"$f":"IFERROR(VLOOKUP($B37,Volumes!$B$4:$F$32,MATCH(K$9,Volumes!$B$4:$F$4,0),FALSE),0)","v":0},null,84.43180000000001,83.336799999999997,null,84.43180000000001,85.421000000000006,null,0,0,null,0,0]
[null,{"$f":"Inputs!$C97","v":"70W Sodium Vapour"},"Offered",{"$f":"IF($C38=\"NA\",\"\",ROUND('Unsmoothed Prices'!D38*'Unsmoothed Prices'!G$141,3))","v":18.888999999999999},{"$f":"IF($C38=\"NA\",\"\",ROUND('Unsmoothed Prices'!E38*'Unsmoothed Prices'!H$141,3))","v":18.646999999999998},null,18.888999999999999,19.113,null,{"$f":"IFERROR(VLOOKUP($B38,Volumes!$B$4:$F$32,MATCH(J$9,Volumes!$B$4:$F$4,0),FALSE),0)","v":73},{"$f":"IFERROR(VLOOKUP($B38,Volumes!$B$4:$F$32,MATCH(K$9,Volumes!$B$4:$F$4,0),FALSE),0)","v":73},null,68.944850000000002,68.061549999999997,null,68.944900000000004,69.762500000000003,null,5032.9777000000004,5092.6625000000004,null,5032.9740499999998,4968.4931499999993]
[null,{"$f":"Inputs!$C98","v":0},"NA",{"$f":"IF($C39=\"NA\",\"\",ROUND('Unsmoothed Prices'!D39*'Unsmoothed Prices'!G$141,3))","v":""},{"$f":"IF($C39=\"NA\",\"\",ROUND('Unsmoothed Prices'!E39*'Unsmoothed Prices'!H$141,3))","v":""},null,"","",null,{"$f":"IFERROR(VLOOKUP($B39,Volumes!$B$4:$F$32,MATCH(J$9,Volumes!$B$4:$F$4,0),FALSE),0)","v":0},{"$f":"IFERROR(VLOOKUP($B39,Volumes!$B$4:$F$32,MATCH(K$9,Volumes!$B$4:$F$4,0),FALSE),0)","v":0},null,"","",null,"","",null,0,0,null,0,0]
[null,{"$f":"Inputs!$C99","v":"100W Incandescent"},"Obsolete, no new Connections",{"$f":"IF($C40=\"NA\",\"\",ROUND('Unsmoothed Prices'!D40*'Unsmoothed Prices'!G$141,3))","v":22.085999999999999},{"$f":"IF($C40=\"NA\",\"\",ROUND('Unsmoothed Prices'!E40*'Unsmoothed Prices'!H$141,3))","v":21.798999999999999},null,22.085999999999999,22.344000000000001,null,{"$f":"IFERROR(VLOOKUP($B40,Volumes!$B$4:$F$32,MATCH(J$9,Volumes!$B$4:$F$4,0),FALSE),0)","v":0},{"$f":"IFERROR(VLOOKUP($B40,Volumes!$B$4:$F$32,MATCH(K$9,Volumes!$B$4:$F$4,0),FALSE),0)","v":0},null,80.613900000000001,79.56635,null,80.613900000000001,81.555599999999998,null,0,0,null,0,0]
[null,{"$f":"Inputs!$C100","v":"60W Incandescent"},"Obsolete, no new Connections",{"$f":"IF($C41=\"NA\",\"\",ROUND('Unsmoothed Prices'!D41*'Unsmoothed Prices'!G$141,3))","v":18.512},{"$f":"IF($C41=\"NA\",\"\",ROUND('Unsmoothed Prices'!E41*'Unsmoothed Prices'!H$141,3))","v":18.274999999999999},null,18.512,18.731999999999999,null,{"$f":"IFERROR(VLOOKUP($B41,Volumes!$B$4:$F$32,MATCH(J$9,Volumes!$B$4:$F$4,0),FALSE),0)","v":0},{"$f":"IFERROR(VLOOKUP($B41,Volumes!$B$4:$F$32,MATCH(K$9,Volumes!$B$4:$F$4,0),FALSE),0)","v":0},null,67.568799999999996,66.703749999999985,null,67.568799999999996,68.371800000000007,null,0,0,null,0,0]
[null,{"$f":"Inputs!$C101","v":"18W LED"},"Offered",{"$f":"IF($C42=\"NA\",\"\",ROUND('Unsmoothed Prices'!D42*'Unsmoothed Prices'!G$141,3))","v":12.853},{"$f":"IF($C42=\"NA\",\"\",ROUND('Unsmoothed Prices'!E42*'Unsmoothed Prices'!H$141,3))","v":12.693},null,{"$f":"IF($C42=\"NA\",\"\",ROUND(D42*G$7,3))","v":12.853},{"$f":"IF($C42=\"NA\",\"\",ROUND(E42*H$7,3))","v":13.01},null,{"$f":"IFERROR(VLOOKUP($B42,Volumes!$B$4:$F$32,MATCH(J$9,Volumes!$B$4:$F$4,0),FALSE),0)","v":4762},{"$f":"IFERROR(VLOOKUP($B42,Volumes!$B$4:$F$32,MATCH(K$9,Volumes!$B$4:$F$4,0),FALSE),0)","v":4810},null,{"$f":"IF($C42=\"NA\",\"\",(D42*M$7)/100)","v":46.913450000000005},{"$f":"IF($C42=\"NA\",\"\",(E42*N$7)/100)","v":46.329449999999994},null,{"$f":"IF($C42=\"NA\",\"\",ROUND((G42*P$7),2)/100)","v":46.913500000000006},{"$f":"IF($C42=\"NA\",\"\",ROUND((H42*Q$7),2)/100)","v":47.486499999999999},null,{"$f":"IFERROR(P42*J42,0)","v":223402.08700000003},{"$f":"IFERROR(Q42*K42,0)","v":228410.065},null,{"$f":"IFERROR(M42*J42,0)","v":223401.84890000001},{"$f":"IFERROR(N42*K42,0)","v":222844.65449999998}]
[null,{"$f":"Inputs!$C102","v":"25W LED"},"Offered",{"$f":"IF($C43=\"NA\",\"\",ROUND('Unsmoothed Prices'!D43*'Unsmoothed Prices'!G$141,3))","v":12.853},{"$f":"IF($C43=\"NA\",\"\",ROUND('Unsmoothed Prices'!E43*'Unsmoothed Prices'!H$141,3))","v":12.693},null,12.853,13.01,null,{"$f":"IFERROR(VLOOKUP($B43,Volumes!$B$4:$F$32,MATCH(J$9,Volumes!$B$4:$F$4,0),FALSE),0)","v":29},{"$f":"IFERROR(VLOOKUP($B43,Volumes!$B$4:$F$32,MATCH(K$9,Volumes!$B$4:$F$4,0),FALSE),0)","v":29},null,46.913450000000005,46.329449999999994,null,46.913500000000006,47.486499999999999,null,1360.4915000000001,1377.1085,null,1360.4900500000001,1343.5540499999997]
[null,{"$f":"Inputs!$C103","v":"18W LED Decorative - Bottom Pole Entry"},"Offered",{"$f":"IF($C44=\"NA\",\"\",ROUND('Unsmoothed Prices'!D44*'Unsmoothed Prices'!G$141,3))","v":12.853},{"$f":"IF($C44=\"NA\",\"\",ROUND('Unsmoothed Prices'!E44*'Unsmoothed Prices'!H$141,3))","v":12.693},null,12.853,13.01,null,{"$f":"IFERROR(VLOOKUP($B44,Volumes!$B$4:$F$32,MATCH(J$9,Volumes!$B$4:$F$4,0),FALSE),0)","v":0},{"$f":"IFERROR(VLOOKUP($B44,Volumes!$B$4:$F$32,MATCH(K$9,Volumes!$B$4:$F$4,0),FALSE),0)","v":0},null,46.913450000000005,46.329449999999994,null,46.913500000000006,47.486499999999999,null,0,0,null,0,0]
[null,{"$f":"Inputs!$C104","v":"18W LED Decorative - Side Entry"},"Offered",{"$f":"IF($C45=\"NA\",\"\",ROUND('Unsmoothed Prices'!D45*'Unsmoothed Prices'!G$141,3))","v":12.853},{"$f":"IF($C45=\"NA\",\"\",ROUND('Unsmoothed Prices'!E45*'Unsmoothed Prices'!H$141,3))","v":12.693},null,12.853,13.01,null,{"$f":"IFERROR(VLOOKUP($B45,Volumes!$B$4:$F$32,MATCH(J$9,Volumes!$B$4:$F$4,0),FALSE),0)","v":0},{"$f":"IFERROR(VLOOKUP($B45,Volumes!$B$4:$F$32,MATCH(K$9,Volumes!$B$4:$F$4,0),FALSE),0)","v":0},null,46.913450000000005,46.329449999999994,null,46.913500000000006,47.486499999999999,null,0,0,null,0,0]
[null,{"$f":"Inputs!$C105","v":"18W LED Decorative - Top Entry"},"Offered",{"$f":"IF($C46=\"NA\",\"\",ROUND('Unsmoothed Prices'!D46*'Unsmoothed Prices'!G$141,3))","v":12.853},{"$f":"IF($C46=\"NA\",\"\",ROUND('Unsmoothed Prices'!E46*'Unsmoothed Prices'!H$141,3))","v":12.693},null,12.853,13.01,null,{"$f":"IFERROR(VLOOKUP($B46,Volumes!$B$4:$F$32,MATCH(J$9,Volumes!$B$4:$F$4,0),FALSE),0)","v":0},{"$f":"IFERROR(VLOOKUP($B46,Volumes!$B$4:$F$32,MATCH(K$9,Volumes!$B$4:$F$4,0),FALSE),0)","v":0},null,46.913450000000005,46.329449999999994,null,46.913500000000006,47.486499999999999,null,0,0,null,0,0]
[null,{"$f":"Inputs!$C106","v":"25W LED Decorative - Bottom Pole Entry"},"Offered",{"$f":"IF($C47=\"NA\",\"\",ROUND('Unsmoothed Prices'!D47*'Unsmoothed Prices'!G$141,3))","v":12.853},{"$f":"IF($C47=\"NA\",\"\",ROUND('Unsmoothed Prices'!E47*'Unsmoothed Prices'!H$141,3))","v":12.693},null,12.853,13.01,null,{"$f":"IFERROR(VLOOKUP($B47,Volumes!$B$4:$F$32,MATCH(J$9,Volumes!$B$4:$F$4,0),FALSE),0)","v":0},{"$f":"IFERROR(VLOOKUP($B47,Volumes!$B$4:$F$32,MATCH(K$9,Volumes!$B$4:$F$4,0),FALSE),0)","v":0},null,46.913450000000005,46.329449999999994,null,46.913500000000006,47.486499999999999,null,0,0,null,0,0]
[null,{"$f":"Inputs!$C107","v":"25W LED Decorative - Side Entry"},"Offered",{"$f":"IF($C48=\"NA\",\"\",ROUND('Unsmoothed Prices'!D48*'Unsmoothed Prices'!G$141,3))","v":12.853},{"$f":"IF($C48=\"NA\",\"\",ROUND('Unsmoothed Prices'!E48*'Unsmoothed Prices'!H$141,3))","v":12.693},null,12.853,13.01,null,{"$f":"IFERROR(VLOOKUP($B48,Volumes!$B$4:$F$32,MATCH(J$9,Volumes!$B$4:$F$4,0),FALSE),0)","v":0},{"$f":"IFERROR(VLOOKUP($B48,Volumes!$B$4:$F$32,MATCH(K$9,Volumes!$B$4:$F$4,0),FALSE),0)","v":0},null,46.913450000000005,46.329449999999994,null,46.913500000000006,47.486499999999999,null,0,0,null,0,0]
[null,{"$f":"Inputs!$C108","v":"25W LED Decorative - Top Entry"},"Offered",{"$f":"IF($C49=\"NA\",\"\",ROUND('Unsmoothed Prices'!D49*'Unsmoothed Prices'!G$141,3))","v":12.853},{"$f":"IF($C49=\"NA\",\"\",ROUND('Unsmoothed Prices'!E49*'Unsmoothed Prices'!H$141,3))","v":12.693},null,12.853,13.01,null,{"$f":"IFERROR(VLOOKUP($B49,Volumes!$B$4:$F$32,MATCH(J$9,Volumes!$B$4:$F$4,0),FALSE),0)","v":0},{"$f":"IFERROR(VLOOKUP($B49,Volumes!$B$4:$F$32,MATCH(K$9,Volumes!$B$4:$F$4,0),FALSE),0)","v":0},null,46.913450000000005,46.329449999999994,null,46.913500000000006,47.486499999999999,null,0,0,null,0,0]
[null,{"$f":"Inputs!$C109","v":"30W LED"},"Not Offered",{"$f":"IF($C50=\"NA\",\"\",ROUND('Unsmoothed Prices'!D50*'Unsmoothed Prices'!G$141,3))","v":12.853},{"$f":"IF($C50=\"NA\",\"\",ROUND('Unsmoothed Prices'!E50*'Unsmoothed Prices'!H$141,3))","v":12.693},null,12.853,13.01,null,{"$f":"IFERROR(VLOOKUP($B50,Volumes!$B$4:$F$32,MATCH(J$9,Volumes!$B$4:$F$4,0),FALSE),0)","v":32},{"$f":"IFERROR(VLOOKUP($B50,Volumes!$B$4:$F$32,MATCH(K$9,Volumes!$B$4:$F$4,0),FALSE),0)","v":32},null,46.913450000000005,46.329449999999994,null,46.913500000000006,47.486499999999999,null,1501.2320000000002,1519.568,null,1501.2304000000001,1482.5423999999998]
[null,{"$f":"Inputs!$C110","v":"88 LED Light"},"Not Offered",{"$f":"IF($C51=\"NA\",\"\",ROUND('Unsmoothed Prices'!D51*'Unsmoothed Prices'!G$141,3))","v":12.853},{"$f":"IF($C51=\"NA\",\"\",ROUND('Unsmoothed Prices'!E51*'Unsmoothed Prices'!H$141,3))","v":12.693},null,12.853,13.01,null,{"$f":"IFERROR(VLOOKUP($B51,Volumes!$B$4:$F$32,MATCH(J$9,Volumes!$B$4:$F$4,0),FALSE),0)","v":0},{"$f":"IFERROR(VLOOKUP($B51,Volumes!$B$4:$F$32,MATCH(K$9,Volumes!$B$4:$F$4,0),FALSE),0)","v":0},null,46.913450000000005,46.329449999999994,null,46.913500000000006,47.486499999999999,null,0,0,null,0,0]
[null,{"$f":"Inputs!$C111","v":"100W Metal Halide"},"Offered",{"$f":"IF($C52=\"NA\",\"\",ROUND('Unsmoothed Prices'!D52*'Unsmoothed Prices'!G$141,3))","v":22.965},{"$f":"IF($C52=\"NA\",\"\",ROUND('Unsmoothed Prices'!E52*'Unsmoothed Prices'!H$141,3))","v":22.667000000000002},null,22.965,23.234000000000002,null,{"$f":"IFERROR(VLOOKUP($B52,Volumes!$B$4:$F$32,MATCH(J$9,Volumes!$B$4:$F$4,0),FALSE),0)","v":5},{"$f":"IFERROR(VLOOKUP($B52,Volumes!$B$4:$F$32,MATCH(K$9,Volumes!$B$4:$F$4,0),FALSE),0)","v":5},null,83.822249999999997,82.734549999999999,null,83.822299999999998,84.804100000000005,null,419.11149999999998,424.02050000000003,null,419.11124999999998,413.67275000000001]
[null,{"$f":"Inputs!$C112","v":"150W Metal Halide"},"Offered",{"$f":"IF($C53=\"NA\",\"\",ROUND('Unsmoothed Prices'!D53*'Unsmoothed Prices'!G$141,3))","v":23.103999999999999},{"$f":"IF($C53=\"NA\",\"\",ROUND('Unsmoothed Prices'!E53*'Unsmoothed Prices'!H$141,3))","v":22.803000000000001},null,23.103999999999999,23.373000000000001,null,{"$f":"IFERROR(VLOOKUP($B53,Volumes!$B$4:$F$32,MATCH(J$9,Volumes!$B$4:$F$4,0),FALSE),0)","v":27},{"$f":"IFERROR(VLOOKUP($B53,Volumes!$B$4:$F$32,MATCH(K$9,Volumes!$B$4:$F$4,0),FALSE),0)","v":27},null,84.329599999999985,83.230950000000007,null,84.329599999999985,85.311499999999995,null,2276.8991999999994,2303.4105,null,2276.8991999999994,2247.2356500000001]
[null,{"$f":"Inputs!$C113","v":"250W Metal Halide"},"Offered",{"$f":"IF($C54=\"NA\",\"\",ROUND('Unsmoothed Prices'!D54*'Unsmoothed Prices'!G$141,3))","v":23.103999999999999},{"$f":"IF($C54=\"NA\",\"\",ROUND('Unsmoothed Prices'!E54*'Unsmoothed Prices'!H$141,3))","v":22.803000000000001},null,23.103999999999999,23.373000000000001,null,{"$f":"IFERROR(VLOOKUP($B54,Volumes!$B$4:$F$32,MATCH(J$9,Volumes!$B$4:$F$4,0),FALSE),0)","v":40},{"$f":"IFERROR(VLOOKUP($B54,Volumes!$B$4:$F$32,MATCH(K$9,Volumes!$B$4:$F$4,0),FALSE),0)","v":40},null,84.329599999999985,83.230950000000007,null,84.329599999999985,85.311499999999995,null,3373.1839999999993,3412.46,null,3373.1839999999993,3329.2380000000003]
[null,{"$f":"Inputs!$C114","v":"400W Metal Halide"},"Offered",{"$f":"IF($C55=\"NA\",\"\",ROUND('Unsmoothed Prices'!D55*'Unsmoothed Prices'!G$141,3))","v":23.765000000000001},{"$f":"IF($C55=\"NA\",\"\",ROUND('Unsmoothed Prices'!E55*'Unsmoothed Prices'!H$141,3))","v":23.456},null,23.765000000000001,24.042000000000002,null,{"$f":"IFERROR(VLOOKUP($B55,Volumes!$B$4:$F$32,MATCH(J$9,Volumes!$B$4:$F$4,0),FALSE),0)","v":9},{"$f":"IFERROR(VLOOKUP($B55,Volumes!$B$4:$F$32,MATCH(K$9,Volumes!$B$4:$F$4,0),FALSE),0)","v":9},null,86.742249999999999,85.614400000000003,null,86.7423,87.753299999999996,null,780.6807,789.77969999999993,null,780.68025,770.52960000000007]
[null,{"$f":"Inputs!$C115","v":"70W Metal Halide"},"Not Offered",{"$f":"IF($C56=\"NA\",\"\",ROUND('Unsmoothed Prices'!D56*'Unsmoothed Prices'!G$141,3))","v":19.373999999999999},{"$f":"IF($C56=\"NA\",\"\",ROUND('Unsmoothed Prices'!E56*'Unsmoothed Prices'!H$141,3))","v":19.125},null,19.373999999999999,19.603000000000002,null,{"$f":"IFERROR(VLOOKUP($B56,Volumes!$B$4:$F$32,MATCH(J$9,Volumes!$B$4:$F$4,0),FALSE),0)","v":0},{"$f":"IFERROR(VLOOKUP($B56,Volumes!$B$4:$F$32,MATCH(K$9,Volumes!$B$4:$F$4,0),FALSE),0)","v":0},null,70.715099999999993,69.806250000000006,null,70.715100000000007,71.551000000000002,null,0,0,null,0,0]
[null,{"$f":"Inputs!$C116","v":"250W Metal Halide - Flood Light"},"Offered",{"$f":"IF($C57=\"NA\",\"\",ROUND('Unsmoothed Prices'!D57*'Unsmoothed Prices'!G$141,3))","v":23.103999999999999},{"$f":"IF($C57=\"NA\",\"\",ROUND('Unsmoothed Prices'!E57*'Unsmoothed Prices'!H$141,3))","v":22.803000000000001},null,23.103999999999999,23.373000000000001,null,{"$f":"IFERROR(VLOOKUP($B57,Volumes!$B$4:$F$32,MATCH(J$9,Volumes!$B$4:$F$4,0),FALSE),0)","v":0},{"$f":"IFERROR(VLOOKUP($B57,Volumes!$B$4:$F$32,MATCH(K$9,Volumes!$B$4:$F$4,0),FALSE),0)","v":0},null,84.329599999999985,83.230950000000007,null,84.329599999999985,85.311499999999995,null,0,0,null,0,0]
[null,{"$f":"Inputs!$C117","v":"400W Metal Halide - Flood Light"},"Offered",{"$f":"IF($C58=\"NA\",\"\",ROUND('Unsmoothed Prices'!D58*'Unsmoothed Prices'!G$141,3))","v":23.765000000000001},{"$f":"IF($C58=\"NA\",\"\",ROUND('Unsmoothed Prices'!E58*'Unsmoothed Prices'!H$141,3))","v":23.456},null,23.765000000000001,24.042000000000002,null,{"$f":"IFERROR(VLOOKUP($B58,Volumes!$B$4:$F$32,MATCH(J$9,Volumes!$B$4:$F$4,0),FALSE),0)","v":0},{"$f":"IFERROR(VLOOKUP($B58,Volumes!$B$4:$F$32,MATCH(K$9,Volumes!$B$4:$F$4,0),FALSE),0)","v":0},null,86.742249999999999,85.614400000000003,null,86.7423,87.753299999999996,null,0,0,null,0,0]
[null,{"$f":"Inputs!$C118","v":"125W Mercury Vapour"},"Obsolete, no new Connections",{"$f":"IF($C59=\"NA\",\"\",ROUND('Unsmoothed Prices'!D59*'Unsmoothed Prices'!G$141,3))","v":22.111000000000001},{"$f":"IF($C59=\"NA\",\"\",ROUND('Unsmoothed Prices'!E59*'Unsmoothed Prices'!H$141,3))","v":21.824000000000002},null,22.111000000000001,22.37,null,{"$f":"IFERROR(VLOOKUP($B59,Volumes!$B$4:$F$32,MATCH(J$9,Volumes!$B$4:$F$4,0),FALSE),0)","v":327},{"$f":"IFERROR(VLOOKUP($B59,Volumes!$B$4:$F$32,MATCH(K$9,Volumes!$B$4:$F$4,0),FALSE),0)","v":320},null,80.705150000000003,79.657600000000002,null,80.705200000000005,81.650500000000008,null,26390.600400000003,26128.160000000003,null,26390.584050000001,25490.432000000001]
[null,{"$f":"Inputs!$C119","v":"250W Mercury Vapour"},"Obsolete, no new Connections",{"$f":"IF($C60=\"NA\",\"\",ROUND('Unsmoothed Prices'!D60*'Unsmoothed Prices'!G$141,3))","v":22.111000000000001},{"$f":"IF($C60=\"NA\",\"\",ROUND('Unsmoothed Prices'!E60*'Unsmoothed Prices'!H$141,3))","v":21.824000000000002},null,22.111000000000001,22.37,null,{"$f":"IFERROR(VLOOKUP($B60,Volumes!$B$4:$F$32,MATCH(J$9,Volumes!$B$4:$F$4,0),FALSE),0)","v":28},{"$f":"IFERROR(VLOOKUP($B60,Volumes!$B$4:$F$32,MATCH(K$9,Volumes!$B$4:$F$4,0),FALSE),0)","v":28},null,80.705150000000003,79.657600000000002,null,80.705200000000005,81.650500000000008,null,2259.7456000000002,2286.2140000000004,null,2259.7442000000001,2230.4128000000001]
[null,{"$f":"Inputs!$C120","v":0},"NA",{"$f":"IF($C61=\"NA\",\"\",ROUND('Unsmoothed Prices'!D61*'Unsmoothed Prices'!G$141,3))","v":""},{"$f":"IF($C61=\"NA\",\"\",ROUND('Unsmoothed Prices'!E61*'Unsmoothed Prices'!H$141,3))","v":""},null,"","",null,{"$f":"IFERROR(VLOOKUP($B61,Volumes!$B$4:$F$32,MATCH(J$9,Volumes!$B$4:$F$4,0),FALSE),0)","v":0},{"$f":"IFERROR(VLOOKUP($B61,Volumes!$B$4:$F$32,MATCH(K$9,Volumes!$B$4:$F$4,0),FALSE),0)","v":0},null,"","",null,"","",null,0,0,null,0,0]
[null,{"$f":"Inputs!$C121","v":"400W Mercury Vapour"},"Obsolete, no new Connections",{"$f":"IF($C62=\"NA\",\"\",ROUND('Unsmoothed Prices'!D62*'Unsmoothed Prices'!G$141,3))","v":22.256},{"$f":"IF($C62=\"NA\",\"\",ROUND('Unsmoothed Prices'!E62*'Unsmoothed Prices'!H$141,3))","v":21.966999999999999},null,22.256,22.515999999999998,null,{"$f":"IFERROR(VLOOKUP($B62,Volumes!$B$4:$F$32,MATCH(J$9,Volumes!$B$4:$F$4,0),FALSE),0)","v":22},{"$f":"IFERROR(VLOOKUP($B62,Volumes!$B$4:$F$32,MATCH(K$9,Volumes!$B$4:$F$4,0),FALSE),0)","v":21},null,81.234400000000008,80.179550000000006,null,81.234399999999994,82.183400000000006,null,1787.1567999999997,1725.8514,null,1787.1568000000002,1683.7705500000002]
[null,{"$f":"Inputs!$C122","v":"50W Mercury Vapour"},"Obsolete, no new Connections",{"$f":"IF($C63=\"NA\",\"\",ROUND('Unsmoothed Prices'!D63*'Unsmoothed Prices'!G$141,3))","v":18.564},{"$f":"IF($C63=\"NA\",\"\",ROUND('Unsmoothed Prices'!E63*'Unsmoothed Prices'!H$141,3))","v":18.327000000000002},null,18.564,18.785,null,{"$f":"IFERROR(VLOOKUP($B63,Volumes!$B$4:$F$32,MATCH(J$9,Volumes!$B$4:$F$4,0),FALSE),0)","v":188},{"$f":"IFERROR(VLOOKUP($B63,Volumes!$B$4:$F$32,MATCH(K$9,Volumes!$B$4:$F$4,0),FALSE),0)","v":184},null,67.758600000000001,66.893550000000005,null,67.758600000000001,68.565299999999993,null,12738.6168,12616.015199999998,null,12738.6168,12308.413200000001]
[null,{"$f":"Inputs!$C123","v":"80W Mercury Vapour Art decorative"},"Obsolete, no new Connections",{"$f":"IF($C64=\"NA\",\"\",ROUND('Unsmoothed Prices'!D64*'Unsmoothed Prices'!G$141,3))","v":18.535},{"$f":"IF($C64=\"NA\",\"\",ROUND('Unsmoothed Prices'!E64*'Unsmoothed Prices'!H$141,3))","v":18.297000000000001},null,18.535,18.754000000000001,null,{"$f":"IFERROR(VLOOKUP($B64,Volumes!$B$4:$F$32,MATCH(J$9,Volumes!$B$4:$F$4,0),FALSE),0)","v":0},{"$f":"IFERROR(VLOOKUP($B64,Volumes!$B$4:$F$32,MATCH(K$9,Volumes!$B$4:$F$4,0),FALSE),0)","v":0},null,67.652749999999997,66.784050000000008,null,67.652799999999999,68.452100000000002,null,0,0,null,0,0]
[null,{"$f":"Inputs!$C124","v":"80W Mercury Vapour"},"Obsolete, no new Connections",{"$f":"IF($C65=\"NA\",\"\",ROUND('Unsmoothed Prices'!D65*'Unsmoothed Prices'!G$141,3))","v":18.535},{"$f":"IF($C65=\"NA\",\"\",ROUND('Unsmoothed Prices'!E65*'Unsmoothed Prices'!H$141,3))","v":18.297000000000001},null,18.535,18.754000000000001,null,{"$f":"IFERROR(VLOOKUP($B65,Volumes!$B$4:$F$32,MATCH(J$9,Volumes!$B$4:$F$4,0),FALSE),0)","v":350},{"$f":"IFERROR(VLOOKUP($B65,Volumes!$B$4:$F$32,MATCH(K$9,Volumes!$B$4:$F$4,0),FALSE),0)","v":343},null,67.652749999999997,66.784050000000008,null,67.652799999999999,68.452100000000002,null,23678.48,23479.070299999999,null,23678.462499999998,22906.929150000004]
[null,null,null,null,null,null,null,null,null,null,null,null,null,null,null,null,null,null,0,0,null,0,0]
[null,null,null,null,null,null,null,null,null,{"$f":"SUM(J10:J66)","v":6329},6358]
[null,null,null,null,null,null,null,null,null,{"$f":"Volumes!E33=J67","v":true},{"$f":"Volumes!F33=K67","v":true}]
[null,"Public Road Lights",{"$f":"C8","v":"Price (cents) per Light per day Real 2017/18 Smoothed"},null,null,null,{"$f":"G8","v":"Price (cents) per Light per day Nominal Smoothed"},null,null,"Volumes",null,null,"Smooth Real Cost Dollars Per Day",null,null,"Smooth Nominal Cost Dollars Per Day",null,null,"Revenue Nominal Dollars Per Year",null,null,"Revenue Real Dollars Per Year"]
[null,null,"Offered / No Longer Offered / NA",{"$f":"'Master Data'!I$29","v":"2017-18"},{"$f":"'Master Data'!J$29","v":"2018-19"},null,{"$f":"G9","v":"2017-18"},"2018-19",null,{"$f":"J9","v":"2017-18"},"2018-19",null,{"$f":"'Master Data'!I$29","v":"2017-18"},{"$f":"'Master Data'!J$29","v":"2018-19"},null,{"$f":"'Master Data'!I$29","v":"2017-18"},{"$f":"'Master Data'!J$29","v":"2018-19"},null,{"$f":"'Master Data'!I$29","v":"2017-18"},{"$f":"'Master Data'!J$29","v":"2018-19"},null,{"$f":"'Master Data'!I$29","v":"2017-18"},{"$f":"'Master Data'!J$29","v":"2018-19"}]
[null,{"$f":"Inputs!$C69","v":"32W Compact Fluorescent"},"Not Offered",{"$f":"IF($C71=\"NA\",\"\",ROUND('Unsmoothed Prices'!D71*'Unsmoothed Prices'!G$141,3))","v":35.661000000000001},{"$f":"IF($C71=\"NA\",\"\",ROUND('Unsmoothed Prices'!E71*'Unsmoothed Prices'!H$141,3))","v":35.408999999999999},null,{"$f":"IF($C71=\"NA\",\"\",ROUND(D71*G$7,3))","v":35.661000000000001},{"$f":"IF($C71=\"NA\",\"\",ROUND(E71*H$7,3))","v":36.293999999999997},null,{"$f":"IFERROR(VLOOKUP($B71,Volumes!$B$38:$F$79,MATCH(J$9,Volumes!$B$4:$F$4,0),FALSE),0)","v":0},{"$f":"IFERROR(VLOOKUP($B71,Volumes!$B$38:$F$79,MATCH(K$9,Volumes!$B$4:$F$4,0),FALSE),0)","v":0},null,{"$f":"IF($C71=\"NA\",\"\",(D71*M$7)/100)","v":130.16265000000001},{"$f":"IF($C71=\"NA\",\"\",(E71*N$7)/100)","v":129.24285},null,{"$f":"IF($C71=\"NA\",\"\",ROUND((G71*P$7),2)/100)","v":130.1627},{"$f":"IF($C71=\"NA\",\"\",ROUND((H71*Q$7),2)/100)","v":132.47309999999999},null,{"$f":"IFERROR(P71*J71,0)","v":0},{"$f":"IFERROR(Q71*K71,0)","v":0},null,{"$f":"IFERROR(M71*J71,0)","v":0},{"$f":"IFERROR(N71*K71,0)","v":0}]
[null,{"$f":"Inputs!$C70","v":"42W Compact Fluorescent"},"Offered",{"$f":"IF($C72=\"NA\",\"\",ROUND('Unsmoothed Prices'!D72*'Unsmoothed Prices'!G$141,3))","v":35.685000000000002},{"$f":"IF($C72=\"NA\",\"\",ROUND('Unsmoothed Prices'!E72*'Unsmoothed Prices'!H$141,3))","v":35.433},null,35.685000000000002,36.319000000000003,null,{"$f":"IFERROR(VLOOKUP($B72,Volumes!$B$38:$F$79,MATCH(J$9,Volumes!$B$4:$F$4,0),FALSE),0)","v":5704},{"$f":"IFERROR(VLOOKUP($B72,Volumes!$B$38:$F$79,MATCH(K$9,Volumes!$B$4:$F$4,0),FALSE),0)","v":5419},null,130.25025000000002,129.33045000000001,null,130.25030000000001,132.56440000000001,null,742947.71120000002,718366.48360000004,null,742947.42600000009,700841.7085500001]
[null,{"$f":"Inputs!$C71","v":"42W Compact Fluorescent - Bottom Pole Entry"},"Offered",{"$f":"IF($C73=\"NA\",\"\",ROUND('Unsmoothed Prices'!D73*'Unsmoothed Prices'!G$141,3))","v":35.685000000000002},{"$f":"IF($C73=\"NA\",\"\",ROUND('Unsmoothed Prices'!E73*'Unsmoothed Prices'!H$141,3))","v":35.433},null,35.685000000000002,36.319000000000003,null,{"$f":"IFERROR(VLOOKUP($B73,Volumes!$B$38:$F$79,MATCH(J$9,Volumes!$B$4:$F$4,0),FALSE),0)","v":120},{"$f":"IFERROR(VLOOKUP($B73,Volumes!$B$38:$F$79,MATCH(K$9,Volumes!$B$4:$F$4,0),FALSE),0)","v":170},null,130.25025000000002,129.33045000000001,null,130.25030000000001,132.56440000000001,null,15630.036000000002,22535.948,null,15630.030000000002,21986.176500000001]
[null,{"$f":"Inputs!$C72","v":"2x24W Compact Fluorescent"},"Not Offered",{"$f":"IF($C74=\"NA\",\"\",ROUND('Unsmoothed Prices'!D74*'Unsmoothed Prices'!G$141,3))","v":35.988999999999997},{"$f":"IF($C74=\"NA\",\"\",ROUND('Unsmoothed Prices'!E74*'Unsmoothed Prices'!H$141,3))","v":35.731999999999999},null,35.988999999999997,36.625,null,{"$f":"IFERROR(VLOOKUP($B74,Volumes!$B$38:$F$79,MATCH(J$9,Volumes!$B$4:$F$4,0),FALSE),0)","v":0},{"$f":"IFERROR(VLOOKUP($B74,Volumes!$B$38:$F$79,MATCH(K$9,Volumes!$B$4:$F$4,0),FALSE),0)","v":0},null,131.35984999999999,130.42179999999999,null,131.35990000000001,133.68129999999999,null,0,0,null,0,0]
[null,{"$f":"Inputs!$C73","v":"1x20W Fluorescent"},"Obsolete, no new Connections",{"$f":"IF($C75=\"NA\",\"\",ROUND('Unsmoothed Prices'!D75*'Unsmoothed Prices'!G$141,3))","v":37.65},{"$f":"IF($C75=\"NA\",\"\",ROUND('Unsmoothed Prices'!E75*'Unsmoothed Prices'!H$141,3))","v":37.369999999999997},null,37.65,38.304000000000002,null,{"$f":"IFERROR(VLOOKUP($B75,Volumes!$B$38:$F$79,MATCH(J$9,Volumes!$B$4:$F$4,0),FALSE),0)","v":0},{"$f":"IFERROR(VLOOKUP($B75,Volumes!$B$38:$F$79,MATCH(K$9,Volumes!$B$4:$F$4,0),FALSE),0)","v":0},null,137.42250000000001,136.40049999999999,null,137.42250000000001,139.80959999999999,null,0,0,null,0,0]
[null,{"$f":"Inputs!$C74","v":"1x40W Fluorescent"},"Abolished",{"$f":"IF($C76=\"NA\",\"\",ROUND('Unsmoothed Prices'!D76*'Unsmoothed Prices'!G$141,3))","v":36.499000000000002},{"$f":"IF($C76=\"NA\",\"\",ROUND('Unsmoothed Prices'!E76*'Unsmoothed Prices'!H$141,3))","v":36.234999999999999},null,36.499000000000002,37.140999999999998,null,{"$f":"IFERROR(VLOOKUP($B76,Volumes!$B$38:$F$79,MATCH(J$9,Volumes!$B$4:$F$4,0),FALSE),0)","v":0},{"$f":"IFERROR(VLOOKUP($B76,Volumes!$B$38:$F$79,MATCH(K$9,Volumes!$B$4:$F$4,0),FALSE),0)","v":0},null,133.22135,132.25774999999999,null,133.22139999999999,135.56469999999999,null,0,0,null,0,0]
[null,{"$f":"Inputs!$C75","v":"2x20W Fluorescent"},"Abolished",{"$f":"IF($C77=\"NA\",\"\",ROUND('Unsmoothed Prices'!D77*'Unsmoothed Prices'!G$141,3))","v":37.942},{"$f":"IF($C77=\"NA\",\"\",ROUND('Unsmoothed Prices'!E77*'Unsmoothed Prices'!H$141,3))","v":37.658999999999999},null,37.942,38.6,null,{"$f":"IFERROR(VLOOKUP($B77,Volumes!$B$38:$F$79,MATCH(J$9,Volumes!$B$4:$F$4,0),FALSE),0)","v":0},{"$f":"IFERROR(VLOOKUP($B77,Volumes!$B$38:$F$79,MATCH(K$9,Volumes!$B$4:$F$4,0),FALSE),0)","v":0},null,138.48830000000001,137.45535000000001,null,138.48830000000001,140.88999999999999,null,0,0,null,0,0]
[null,{"$f":"Inputs!$C76","v":"2x24W Fluorescent"},"Obsolete, no new Connections",{"$f":"IF($C78=\"NA\",\"\",ROUND('Unsmoothed Prices'!D78*'Unsmoothed Prices'!G$141,3))","v":37.860999999999997},{"$f":"IF($C78=\"NA\",\"\",ROUND('Unsmoothed Prices'!E78*'Unsmoothed Prices'!H$141,3))","v":37.579000000000001},null,37.860999999999997,38.518000000000001,null,{"$f":"IFERROR(VLOOKUP($B78,Volumes!$B$38:$F$79,MATCH(J$9,Volumes!$B$4:$F$4,0),FALSE),0)","v":0},{"$f":"IFERROR(VLOOKUP($B78,Volumes!$B$38:$F$79,MATCH(K$9,Volumes!$B$4:$F$4,0),FALSE),0)","v":0},null,138.19264999999999,137.16335000000001,null,138.1927,140.5907,null,0,0,null,0,0]
[null,{"$f":"Inputs!$C77","v":"T5 Fluorescent 2 x 24W"},"Not Offered",{"$f":"IF($C79=\"NA\",\"\",ROUND('Unsmoothed Prices'!D79*'Unsmoothed Prices'!G$141,3))","v":37.942},{"$f":"IF($C79=\"NA\",\"\",ROUND('Unsmoothed Prices'!E79*'Unsmoothed Prices'!H$141,3))","v":37.658999999999999},null,37.942,38.6,null,{"$f":"IFERROR(VLOOKUP($B79,Volumes!$B$38:$F$79,MATCH(J$9,Volumes!$B$4:$F$4,0),FALSE),0)","v":83},{"$f":"IFERROR(VLOOKUP($B79,Volumes!$B$38:$F$79,MATCH(K$9,Volumes!$B$4:$F$4,0),FALSE),0)","v":83},null,138.48830000000001,137.45535000000001,null,138.48830000000001,140.88999999999999,null,11494.528900000001,11693.869999999999,null,11494.528900000001,11408.79405]
[null,{"$f":"Inputs!$C78","v":"20 Fluorescent 1X20FL"},"Not Offered",{"$f":"IF($C80=\"NA\",\"\",ROUND('Unsmoothed Prices'!D80*'Unsmoothed Prices'!G$141,3))","v":37.65},{"$f":"IF($C80=\"NA\",\"\",ROUND('Unsmoothed Prices'!E80*'Unsmoothed Prices'!H$141,3))","v":37.369999999999997},null,37.65,38.304000000000002,null,{"$f":"IFERROR(VLOOKUP($B80,Volumes!$B$38:$F$79,MATCH(J$9,Volumes!$B$4:$F$4,0),FALSE),0)","v":0},{"$f":"IFERROR(VLOOKUP($B80,Volumes!$B$38:$F$79,MATCH(K$9,Volumes!$B$4:$F$4,0),FALSE),0)","v":0},null,137.42250000000001,136.40049999999999,null,137.42250000000001,139.80959999999999,null,0,0,null,0,0]
[null,{"$f":"Inputs!$C79","v":"2x40W Fluorescent"},"Abolished",{"$f":"IF($C81=\"NA\",\"\",ROUND('Unsmoothed Prices'!D81*'Unsmoothed Prices'!G$141,3))","v":36.81},{"$f":"IF($C81=\"NA\",\"\",ROUND('Unsmoothed Prices'!E81*'Unsmoothed Prices'!H$141,3))","v":36.542999999999999},null,36.81,37.457000000000001,null,{"$f":"IFERROR(VLOOKUP($B81,Volumes!$B$38:$F$79,MATCH(J$9,Volumes!$B$4:$F$4,0),FALSE),0)","v":0},{"$f":"IFERROR(VLOOKUP($B81,Volumes!$B$38:$F$79,MATCH(K$9,Volumes!$B$4:$F$4,0),FALSE),0)","v":0},null,134.35650000000001,133.38194999999999,null,134.35649999999998,136.71809999999999,null,0,0,null,0,0]
[null,{"$f":"Inputs!$C80","v":"3x40W Fluorescent"},"Not Offered",{"$f":"IF($C82=\"NA\",\"\",ROUND('Unsmoothed Prices'!D82*'Unsmoothed Prices'!G$141,3))","v":43.222000000000001},{"$f":"IF($C82=\"NA\",\"\",ROUND('Unsmoothed Prices'!E82*'Unsmoothed Prices'!H$141,3))","v":42.866},null,43.222000000000001,43.938000000000002,null,{"$f":"IFERROR(VLOOKUP($B82,Volumes!$B$38:$F$79,MATCH(J$9,Volumes!$B$4:$F$4,0),FALSE),0)","v":0},{"$f":"IFERROR(VLOOKUP($B82,Volumes!$B$38:$F$79,MATCH(K$9,Volumes!$B$4:$F$4,0),FALSE),0)","v":0},null,157.7603,156.46090000000001,null,157.7603,160.37370000000001,null,0,0,null,0,0]
[null,{"$f":"Inputs!$C81","v":"4x20 Fluorescent"},"Abolished",{"$f":"IF($C83=\"NA\",\"\",ROUND('Unsmoothed Prices'!D83*'Unsmoothed Prices'!G$141,3))","v":38.527000000000001},{"$f":"IF($C83=\"NA\",\"\",ROUND('Unsmoothed Prices'!E83*'Unsmoothed Prices'!H$141,3))","v":38.235999999999997},null,38.527000000000001,39.192,null,{"$f":"IFERROR(VLOOKUP($B83,Volumes!$B$38:$F$79,MATCH(J$9,Volumes!$B$4:$F$4,0),FALSE),0)","v":0},{"$f":"IFERROR(VLOOKUP($B83,Volumes!$B$38:$F$79,MATCH(K$9,Volumes!$B$4:$F$4,0),FALSE),0)","v":0},null,140.62354999999999,139.56139999999999,null,140.62360000000001,143.05080000000001,null,0,0,null,0,0]
[null,{"$f":"Inputs!$C82","v":"4x40W Fluorescent"},"Abolished",{"$f":"IF($C84=\"NA\",\"\",ROUND('Unsmoothed Prices'!D84*'Unsmoothed Prices'!G$141,3))","v":47.671999999999997},{"$f":"IF($C84=\"NA\",\"\",ROUND('Unsmoothed Prices'!E84*'Unsmoothed Prices'!H$141,3))","v":47.255000000000003},null,47.671999999999997,48.436,null,{"$f":"IFERROR(VLOOKUP($B84,Volumes!$B$38:$F$79,MATCH(J$9,Volumes!$B$4:$F$4,0),FALSE),0)","v":0},{"$f":"IFERROR(VLOOKUP($B84,Volumes!$B$38:$F$79,MATCH(K$9,Volumes!$B$4:$F$4,0),FALSE),0)","v":0},null,174.00279999999998,172.48075,null,174.00279999999998,176.79139999999998,null,0,0,null,0,0]
[null,{"$f":"Inputs!$C83","v":"100W Sodium Vapour"},"Offered",{"$f":"IF($C85=\"NA\",\"\",ROUND('Unsmoothed Prices'!D85*'Unsmoothed Prices'!G$141,3))","v":45.039000000000001},{"$f":"IF($C85=\"NA\",\"\",ROUND('Unsmoothed Prices'!E85*'Unsmoothed Prices'!H$141,3))","v":44.656999999999996},null,45.039000000000001,45.773000000000003,null,{"$f":"IFERROR(VLOOKUP($B85,Volumes!$B$38:$F$79,MATCH(J$9,Volumes!$B$4:$F$4,0),FALSE),0)","v":403},{"$f":"IFERROR(VLOOKUP($B85,Volumes!$B$38:$F$79,MATCH(K$9,Volumes!$B$4:$F$4,0),FALSE),0)","v":423},null,164.39234999999999,162.99804999999998,null,164.39240000000001,167.07150000000001,null,66250.137199999997,70671.244500000001,null,66250.117050000001,68948.175149999995]
[null,{"$f":"Inputs!$C84","v":0},"NA",{"$f":"IF($C86=\"NA\",\"\",ROUND('Unsmoothed Prices'!D86*'Unsmoothed Prices'!G$141,3))","v":""},{"$f":"IF($C86=\"NA\",\"\",ROUND('Unsmoothed Prices'!E86*'Unsmoothed Prices'!H$141,3))","v":""},null,"","",null,{"$f":"IFERROR(VLOOKUP($B86,Volumes!$B$38:$F$79,MATCH(J$9,Volumes!$B$4:$F$4,0),FALSE),0)","v":0},{"$f":"IFERROR(VLOOKUP($B86,Volumes!$B$38:$F$79,MATCH(K$9,Volumes!$B$4:$F$4,0),FALSE),0)","v":0},null,"","",null,"","",null,0,0,null,0,0]
[null,{"$f":"Inputs!$C85","v":"150W Sodium Vapour"},"Offered",{"$f":"IF($C87=\"NA\",\"\",ROUND('Unsmoothed Prices'!D87*'Unsmoothed Prices'!G$141,3))","v":47.247999999999998},{"$f":"IF($C87=\"NA\",\"\",ROUND('Unsmoothed Prices'!E87*'Unsmoothed Prices'!H$141,3))","v":46.837000000000003},null,47.247999999999998,48.008000000000003,null,{"$f":"IFERROR(VLOOKUP($B87,Volumes!$B$38:$F$79,MATCH(J$9,Volumes!$B$4:$F$4,0),FALSE),0)","v":4827},{"$f":"IFERROR(VLOOKUP($B87,Volumes!$B$38:$F$79,MATCH(K$9,Volumes!$B$4:$F$4,0),FALSE),0)","v":5069},null,172.45519999999999,170.95505,null,172.45519999999999,175.22919999999999,null,832441.2503999999,888236.81479999993,null,832441.2503999999,866571.14844999998]
[null,{"$f":"Inputs!$C86","v":0},"NA",{"$f":"IF($C88=\"NA\",\"\",ROUND('Unsmoothed Prices'!D88*'Unsmoothed Prices'!G$141,3))","v":""},{"$f":"IF($C88=\"NA\",\"\",ROUND('Unsmoothed Prices'!E88*'Unsmoothed Prices'!H$141,3))","v":""},null,"","",null,{"$f":"IFERROR(VLOOKUP($B88,Volumes!$B$38:$F$79,MATCH(J$9,Volumes!$B$4:$F$4,0),FALSE),0)","v":0},{"$f":"IFERROR(VLOOKUP($B88,Volumes!$B$38:$F$79,MATCH(K$9,Volumes!$B$4:$F$4,0),FALSE),0)","v":0},null,"","",null,"","",null,0,0,null,0,0]
[null,{"$f":"Inputs!$C87","v":0},"NA",{"$f":"IF($C89=\"NA\",\"\",ROUND('Unsmoothed Prices'!D89*'Unsmoothed Prices'!G$141,3))","v":""},{"$f":"IF($C89=\"NA\",\"\",ROUND('Unsmoothed Prices'!E89*'Unsmoothed Prices'!H$141,3))","v":""},null,"","",null,{"$f":"IFERROR(VLOOKUP($B89,Volumes!$B$38:$F$79,MATCH(J$9,Volumes!$B$4:$F$4,0),FALSE),0)","v":0},{"$f":"IFERROR(VLOOKUP($B89,Volumes!$B$38:$F$79,MATCH(K$9,Volumes!$B$4:$F$4,0),FALSE),0)","v":0},null,"","",null,"","",null,0,0,null,0,0]
[null,{"$f":"Inputs!$C88","v":0},"NA",{"$f":"IF($C90=\"NA\",\"\",ROUND('Unsmoothed Prices'!D90*'Unsmoothed Prices'!G$141,3))","v":""},{"$f":"IF($C90=\"NA\",\"\",ROUND('Unsmoothed Prices'!E90*'Unsmoothed Prices'!H$141,3))","v":""},null,"","",null,{"$f":"IFERROR(VLOOKUP($B90,Volumes!$B$38:$F$79,MATCH(J$9,Volumes!$B$4:$F$4,0),FALSE),0)","v":0},{"$f":"IFERROR(VLOOKUP($B90,Volumes!$B$38:$F$79,MATCH(K$9,Volumes!$B$4:$F$4,0),FALSE),0)","v":0},null,"","",null,"","",null,0,0,null,0,0]
[null,{"$f":"Inputs!$C89","v":"250W Sodium Vapour"},"Offered",{"$f":"IF($C91=\"NA\",\"\",ROUND('Unsmoothed Prices'!D91*'Unsmoothed Prices'!G$141,3))","v":48.328000000000003},{"$f":"IF($C91=\"NA\",\"\",ROUND('Unsmoothed Prices'!E91*'Unsmoothed Prices'!H$141,3))","v":47.901000000000003},null,48.328000000000003,49.098999999999997,null,{"$f":"IFERROR(VLOOKUP($B91,Volumes!$B$38:$F$79,MATCH(J$9,Volumes!$B$4:$F$4,0),FALSE),0)","v":6000},{"$f":"IFERROR(VLOOKUP($B91,Volumes!$B$38:$F$79,MATCH(K$9,Volumes!$B$4:$F$4,0),FALSE),0)","v":6300},null,176.3972,174.83865000000003,null,176.3972,179.2114,null,1058383.2,1129031.82,null,1058383.2,1101483.4950000001]
[null,{"$f":"Inputs!$C90","v":0},"NA",{"$f":"IF($C92=\"NA\",\"\",ROUND('Unsmoothed Prices'!D92*'Unsmoothed Prices'!G$141,3))","v":""},{"$f":"IF($C92=\"NA\",\"\",ROUND('Unsmoothed Prices'!E92*'Unsmoothed Prices'!H$141,3))","v":""},null,"","",null,{"$f":"IFERROR(VLOOKUP($B92,Volumes!$B$38:$F$79,MATCH(J$9,Volumes!$B$4:$F$4,0),FALSE),0)","v":0},{"$f":"IFERROR(VLOOKUP($B92,Volumes!$B$38:$F$79,MATCH(K$9,Volumes!$B$4:$F$4,0),FALSE),0)","v":0},null,"","",null,"","",null,0,0,null,0,0]
[null,{"$f":"Inputs!$C91","v":0},"NA",{"$f":"IF($C93=\"NA\",\"\",ROUND('Unsmoothed Prices'!D93*'Unsmoothed Prices'!G$141,3))","v":""},{"$f":"IF($C93=\"NA\",\"\",ROUND('Unsmoothed Prices'!E93*'Unsmoothed Prices'!H$141,3))","v":""},null,"","",null,{"$f":"IFERROR(VLOOKUP($B93,Volumes!$B$38:$F$79,MATCH(J$9,Volumes!$B$4:$F$4,0),FALSE),0)","v":0},{"$f":"IFERROR(VLOOKUP($B93,Volumes!$B$38:$F$79,MATCH(K$9,Volumes!$B$4:$F$4,0),FALSE),0)","v":0},null,"","",null,"","",null,0,0,null,0,0]
[null,{"$f":"Inputs!$C92","v":0},"NA",{"$f":"IF($C94=\"NA\",\"\",ROUND('Unsmoothed Prices'!D94*'Unsmoothed Prices'!G$141,3))","v":""},{"$f":"IF($C94=\"NA\",\"\",ROUND('Unsmoothed Prices'!E94*'Unsmoothed Prices'!H$141,3))","v":""},null,"","",null,{"$f":"IFERROR(VLOOKUP($B94,Volumes!$B$38:$F$79,MATCH(J$9,Volumes!$B$4:$F$4,0),FALSE),0)","v":0},{"$f":"IFERROR(VLOOKUP($B94,Volumes!$B$38:$F$79,MATCH(K$9,Volumes!$B$4:$F$4,0),FALSE),0)","v":0},null,"","",null,"","",null,0,0,null,0,0]
[null,{"$f":"Inputs!$C93","v":"250W Sodium Vapour - Flood Light"},"Offered",{"$f":"IF($C95=\"NA\",\"\",ROUND('Unsmoothed Prices'!D95*'Unsmoothed Prices'!G$141,3))","v":52.119},{"$f":"IF($C95=\"NA\",\"\",ROUND('Unsmoothed Prices'!E95*'Unsmoothed Prices'!H$141,3))","v":51.640999999999998},null,52.119,52.932000000000002,null,{"$f":"IFERROR(VLOOKUP($B95,Volumes!$B$38:$F$79,MATCH(J$9,Volumes!$B$4:$F$4,0),FALSE),0)","v":33},{"$f":"IFERROR(VLOOKUP($B95,Volumes!$B$38:$F$79,MATCH(K$9,Volumes!$B$4:$F$4,0),FALSE),0)","v":35},null,190.23435000000001,188.48965000000001,null,190.23439999999999,193.20179999999999,null,6277.7352000000001,6762.0630000000001,null,6277.7335499999999,6597.1377500000008]
[null,{"$f":"Inputs!$C94","v":"400W Sodium Vapour"},"Offered",{"$f":"IF($C96=\"NA\",\"\",ROUND('Unsmoothed Prices'!D96*'Unsmoothed Prices'!G$141,3))","v":49.097999999999999},{"$f":"IF($C96=\"NA\",\"\",ROUND('Unsmoothed Prices'!E96*'Unsmoothed Prices'!H$141,3))","v":48.661000000000001},null,49.097999999999999,49.878,null,{"$f":"IFERROR(VLOOKUP($B96,Volumes!$B$38:$F$79,MATCH(J$9,Volumes!$B$4:$F$4,0),FALSE),0)","v":611},{"$f":"IFERROR(VLOOKUP($B96,Volumes!$B$38:$F$79,MATCH(K$9,Volumes!$B$4:$F$4,0),FALSE),0)","v":642},null,179.20770000000002,177.61265,null,179.20770000000002,182.05470000000003,null,109495.90470000001,116879.11740000002,null,109495.90470000001,114027.3213]
[null,{"$f":"Inputs!$C95","v":0},"NA",{"$f":"IF($C97=\"NA\",\"\",ROUND('Unsmoothed Prices'!D97*'Unsmoothed Prices'!G$141,3))","v":""},{"$f":"IF($C97=\"NA\",\"\",ROUND('Unsmoothed Prices'!E97*'Unsmoothed Prices'!H$141,3))","v":""},null,"","",null,{"$f":"IFERROR(VLOOKUP($B97,Volumes!$B$38:$F$79,MATCH(J$9,Volumes!$B$4:$F$4,0),FALSE),0)","v":0},{"$f":"IFERROR(VLOOKUP($B97,Volumes!$B$38:$F$79,MATCH(K$9,Volumes!$B$4:$F$4,0),FALSE),0)","v":0},null,"","",null,"","",null,0,0,null,0,0]
[null,{"$f":"Inputs!$C96","v":"400W Sodium Vapour - Flood Light"},"Offered",{"$f":"IF($C98=\"NA\",\"\",ROUND('Unsmoothed Prices'!D98*'Unsmoothed Prices'!G$141,3))","v":51.597999999999999},{"$f":"IF($C98=\"NA\",\"\",ROUND('Unsmoothed Prices'!E98*'Unsmoothed Prices'!H$141,3))","v":51.127000000000002},null,51.597999999999999,52.405000000000001,null,{"$f":"IFERROR(VLOOKUP($B98,Volumes!$B$38:$F$79,MATCH(J$9,Volumes!$B$4:$F$4,0),FALSE),0)","v":33},{"$f":"IFERROR(VLOOKUP($B98,Volumes!$B$38:$F$79,MATCH(K$9,Volumes!$B$4:$F$4,0),FALSE),0)","v":35},null,188.33270000000002,186.61355,null,188.33270000000002,191.27830000000003,null,6214.9791000000005,6694.7405000000008,null,6214.9791000000005,6531.4742500000002]
[null,{"$f":"Inputs!$C97","v":"70W Sodium Vapour"},"Offered",{"$f":"IF($C99=\"NA\",\"\",ROUND('Unsmoothed Prices'!D99*'Unsmoothed Prices'!G$141,3))","v":35.545999999999999},{"$f":"IF($C99=\"NA\",\"\",ROUND('Unsmoothed Prices'!E99*'Unsmoothed Prices'!H$141,3))","v":35.295000000000002},null,35.545999999999999,36.177,null,{"$f":"IFERROR(VLOOKUP($B99,Volumes!$B$38:$F$79,MATCH(J$9,Volumes!$B$4:$F$4,0),FALSE),0)","v":214},{"$f":"IFERROR(VLOOKUP($B99,Volumes!$B$38:$F$79,MATCH(K$9,Volumes!$B$4:$F$4,0),FALSE),0)","v":225},null,129.74289999999999,128.82675,null,129.74290000000002,132.0461,null,27764.980600000003,29710.372499999998,null,27764.980599999999,28986.018749999999]
[null,{"$f":"Inputs!$C98","v":0},"NA",{"$f":"IF($C100=\"NA\",\"\",ROUND('Unsmoothed Prices'!D100*'Unsmoothed Prices'!G$141,3))","v":""},{"$f":"IF($C100=\"NA\",\"\",ROUND('Unsmoothed Prices'!E100*'Unsmoothed Prices'!H$141,3))","v":""},null,"","",null,{"$f":"IFERROR(VLOOKUP($B100,Volumes!$B$38:$F$79,MATCH(J$9,Volumes!$B$4:$F$4,0),FALSE),0)","v":0},{"$f":"IFERROR(VLOOKUP($B100,Volumes!$B$38:$F$79,MATCH(K$9,Volumes!$B$4:$F$4,0),FALSE),0)","v":0},null,"","",null,"","",null,0,0,null,0,0]
[null,{"$f":"Inputs!$C99","v":"100W Incandescent"},"Abolished",{"$f":"IF($C101=\"NA\",\"\",ROUND('Unsmoothed Prices'!D101*'Unsmoothed Prices'!G$141,3))","v":41.83},{"$f":"IF($C101=\"NA\",\"\",ROUND('Unsmoothed Prices'!E101*'Unsmoothed Prices'!H$141,3))","v":41.493000000000002},null,41.83,42.53,null,{"$f":"IFERROR(VLOOKUP($B101,Volumes!$B$38:$F$79,MATCH(J$9,Volumes!$B$4:$F$4,0),FALSE),0)","v":0},{"$f":"IFERROR(VLOOKUP($B101,Volumes!$B$38:$F$79,MATCH(K$9,Volumes!$B$4:$F$4,0),FALSE),0)","v":0},null,152.67949999999999,151.44945000000001,null,152.67950000000002,155.2345,null,0,0,null,0,0]
[null,{"$f":"Inputs!$C100","v":"60W Incandescent"},"Abolished",{"$f":"IF($C102=\"NA\",\"\",ROUND('Unsmoothed Prices'!D102*'Unsmoothed Prices'!G$141,3))","v":32.76},{"$f":"IF($C102=\"NA\",\"\",ROUND('Unsmoothed Prices'!E102*'Unsmoothed Prices'!H$141,3))","v":32.548000000000002},null,32.76,33.362000000000002,null,{"$f":"IFERROR(VLOOKUP($B102,Volumes!$B$38:$F$79,MATCH(J$9,Volumes!$B$4:$F$4,0),FALSE),0)","v":0},{"$f":"IFERROR(VLOOKUP($B102,Volumes!$B$38:$F$79,MATCH(K$9,Volumes!$B$4:$F$4,0),FALSE),0)","v":0},null,119.574,118.8002,null,119.574,121.7713,null,0,0,null,0,0]
[null,{"$f":"Inputs!$C101","v":"18W LED"},"Offered",{"$f":"IF($C103=\"NA\",\"\",ROUND('Unsmoothed Prices'!D103*'Unsmoothed Prices'!G$141,3))","v":33.692999999999998},{"$f":"IF($C103=\"NA\",\"\",ROUND('Unsmoothed Prices'!E103*'Unsmoothed Prices'!H$141,3))","v":33.468000000000004},null,{"$f":"IF($C103=\"NA\",\"\",ROUND(D103*G$7,3))","v":33.692999999999998},{"$f":"IF($C103=\"NA\",\"\",ROUND(E103*H$7,3))","v":34.305},null,{"$f":"IFERROR(VLOOKUP($B103,Volumes!$B$38:$F$79,MATCH(J$9,Volumes!$B$4:$F$4,0),FALSE),0)","v":10110},{"$f":"IFERROR(VLOOKUP($B103,Volumes!$B$38:$F$79,MATCH(K$9,Volumes!$B$4:$F$4,0),FALSE),0)","v":14210},null,{"$f":"IF($C103=\"NA\",\"\",(D103*M$7)/100)","v":122.97945},{"$f":"IF($C103=\"NA\",\"\",(E103*N$7)/100)","v":122.15820000000002},null,{"$f":"IF($C103=\"NA\",\"\",ROUND((G103*P$7),2)/100)","v":122.9795},{"$f":"IF($C103=\"NA\",\"\",ROUND((H103*Q$7),2)/100)","v":125.2133},null,{"$f":"IFERROR(P103*J103,0)","v":1243322.7450000001},{"$f":"IFERROR(Q103*K103,0)","v":1779280.993},null,{"$f":"IFERROR(M103*J103,0)","v":1243322.2394999999},{"$f":"IFERROR(N103*K103,0)","v":1735868.0220000003}]
[null,{"$f":"Inputs!$C102","v":"25W LED"},"Offered",{"$f":"IF($C104=\"NA\",\"\",ROUND('Unsmoothed Prices'!D104*'Unsmoothed Prices'!G$141,3))","v":33.692999999999998},{"$f":"IF($C104=\"NA\",\"\",ROUND('Unsmoothed Prices'!E104*'Unsmoothed Prices'!H$141,3))","v":33.468000000000004},null,33.692999999999998,34.305,null,{"$f":"IFERROR(VLOOKUP($B104,Volumes!$B$38:$F$79,MATCH(J$9,Volumes!$B$4:$F$4,0),FALSE),0)","v":21},{"$f":"IFERROR(VLOOKUP($B104,Volumes!$B$38:$F$79,MATCH(K$9,Volumes!$B$4:$F$4,0),FALSE),0)","v":21},null,122.97945,122.15820000000002,null,122.9795,125.2133,null,2582.5695000000001,2629.4793,null,2582.5684500000002,2565.3222000000005]
[null,{"$f":"Inputs!$C103","v":"18W LED Decorative - Bottom Pole Entry"},"Offered",{"$f":"IF($C105=\"NA\",\"\",ROUND('Unsmoothed Prices'!D105*'Unsmoothed Prices'!G$141,3))","v":47.658999999999999},{"$f":"IF($C105=\"NA\",\"\",ROUND('Unsmoothed Prices'!E105*'Unsmoothed Prices'!H$141,3))","v":47.241999999999997},null,47.658999999999999,48.423000000000002,null,{"$f":"IFERROR(VLOOKUP($B105,Volumes!$B$38:$F$79,MATCH(J$9,Volumes!$B$4:$F$4,0),FALSE),0)","v":33},{"$f":"IFERROR(VLOOKUP($B105,Volumes!$B$38:$F$79,MATCH(K$9,Volumes!$B$4:$F$4,0),FALSE),0)","v":35},null,173.95535000000001,172.43329999999997,null,173.9554,176.74400000000003,null,5740.5281999999997,6186.0400000000009,null,5740.5265500000005,6035.1654999999992]
[null,{"$f":"Inputs!$C104","v":"18W LED Decorative - Side Entry"},"Offered",{"$f":"IF($C106=\"NA\",\"\",ROUND('Unsmoothed Prices'!D106*'Unsmoothed Prices'!G$141,3))","v":47.658999999999999},{"$f":"IF($C106=\"NA\",\"\",ROUND('Unsmoothed Prices'!E106*'Unsmoothed Prices'!H$141,3))","v":47.241999999999997},null,47.658999999999999,48.423000000000002,null,{"$f":"IFERROR(VLOOKUP($B106,Volumes!$B$38:$F$79,MATCH(J$9,Volumes!$B$4:$F$4,0),FALSE),0)","v":33},{"$f":"IFERROR(VLOOKUP($B106,Volumes!$B$38:$F$79,MATCH(K$9,Volumes!$B$4:$F$4,0),FALSE),0)","v":35},null,173.95535000000001,172.43329999999997,null,173.9554,176.74400000000003,null,5740.5281999999997,6186.0400000000009,null,5740.5265500000005,6035.1654999999992]
[null,{"$f":"Inputs!$C105","v":"18W LED Decorative - Top Entry"},"Offered",{"$f":"IF($C107=\"NA\",\"\",ROUND('Unsmoothed Prices'!D107*'Unsmoothed Prices'!G$141,3))","v":47.658999999999999},{"$f":"IF($C107=\"NA\",\"\",ROUND('Unsmoothed Prices'!E107*'Unsmoothed Prices'!H$141,3))","v":47.241999999999997},null,47.658999999999999,48.423000000000002,null,{"$f":"IFERROR(VLOOKUP($B107,Volumes!$B$38:$F$79,MATCH(J$9,Volumes!$B$4:$F$4,0),FALSE),0)","v":33},{"$f":"IFERROR(VLOOKUP($B107,Volumes!$B$38:$F$79,MATCH(K$9,Volumes!$B$4:$F$4,0),FALSE),0)","v":35},null,173.95535000000001,172.43329999999997,null,173.9554,176.74400000000003,null,5740.5281999999997,6186.0400000000009,null,5740.5265500000005,6035.1654999999992]
[null,{"$f":"Inputs!$C106","v":"25W LED Decorative - Bottom Pole Entry"},"Offered",{"$f":"IF($C108=\"NA\",\"\",ROUND('Unsmoothed Prices'!D108*'Unsmoothed Prices'!G$141,3))","v":47.658999999999999},{"$f":"IF($C108=\"NA\",\"\",ROUND('Unsmoothed Prices'!E108*'Unsmoothed Prices'!H$141,3))","v":47.241999999999997},null,47.658999999999999,48.423000000000002,null,{"$f":"IFERROR(VLOOKUP($B108,Volumes!$B$38:$F$79,MATCH(J$9,Volumes!$B$4:$F$4,0),FALSE),0)","v":33},{"$f":"IFERROR(VLOOKUP($B108,Volumes!$B$38:$F$79,MATCH(K$9,Volumes!$B$4:$F$4,0),FALSE),0)","v":35},null,173.95535000000001,172.43329999999997,null,173.9554,176.74400000000003,null,5740.5281999999997,6186.0400000000009,null,5740.5265500000005,6035.1654999999992]
[null,{"$f":"Inputs!$C107","v":"25W LED Decorative - Side Entry"},"Offered",{"$f":"IF($C109=\"NA\",\"\",ROUND('Unsmoothed Prices'!D109*'Unsmoothed Prices'!G$141,3))","v":47.658999999999999},{"$f":"IF($C109=\"NA\",\"\",ROUND('Unsmoothed Prices'!E109*'Unsmoothed Prices'!H$141,3))","v":47.241999999999997},null,47.658999999999999,48.423000000000002,null,{"$f":"IFERROR(VLOOKUP($B109,Volumes!$B$38:$F$79,MATCH(J$9,Volumes!$B$4:$F$4,0),FALSE),0)","v":33},{"$f":"IFERROR(VLOOKUP($B109,Volumes!$B$38:$F$79,MATCH(K$9,Volumes!$B$4:$F$4,0),FALSE),0)","v":35},null,173.95535000000001,172.43329999999997,null,173.9554,176.74400000000003,null,5740.5281999999997,6186.0400000000009,null,5740.5265500000005,6035.1654999999992]
[null,{"$f":"Inputs!$C108","v":"25W LED Decorative - Top Entry"},"Offered",{"$f":"IF($C110=\"NA\",\"\",ROUND('Unsmoothed Prices'!D110*'Unsmoothed Prices'!G$141,3))","v":47.658999999999999},{"$f":"IF($C110=\"NA\",\"\",ROUND('Unsmoothed Prices'!E110*'Unsmoothed Prices'!H$141,3))","v":47.241999999999997},null,47.658999999999999,48.423000000000002,null,{"$f":"IFERROR(VLOOKUP($B110,Volumes!$B$38:$F$79,MATCH(J$9,Volumes!$B$4:$F$4,0),FALSE),0)","v":33},{"$f":"IFERROR(VLOOKUP($B110,Volumes!$B$38:$F$79,MATCH(K$9,Volumes!$B$4:$F$4,0),FALSE),0)","v":35},null,173.95535000000001,172.43329999999997,null,173.9554,176.74400000000003,null,5740.5281999999997,6186.0400000000009,null,5740.5265500000005,6035.1654999999992]
[null,{"$f":"Inputs!$C109","v":"30W LED"},"Not Offered",{"$f":"IF($C111=\"NA\",\"\",ROUND('Unsmoothed Prices'!D111*'Unsmoothed Prices'!G$141,3))","v":33.692999999999998},{"$f":"IF($C111=\"NA\",\"\",ROUND('Unsmoothed Prices'!E111*'Unsmoothed Prices'!H$141,3))","v":33.468000000000004},null,33.692999999999998,34.305,null,{"$f":"IFERROR(VLOOKUP($B111,Volumes!$B$38:$F$79,MATCH(J$9,Volumes!$B$4:$F$4,0),FALSE),0)","v":0},{"$f":"IFERROR(VLOOKUP($B111,Volumes!$B$38:$F$79,MATCH(K$9,Volumes!$B$4:$F$4,0),FALSE),0)","v":0},null,122.97945,122.15820000000002,null,122.9795,125.2133,null,0,0,null,0,0]
[null,{"$f":"Inputs!$C110","v":"88 LED Light"},"Abolished",{"$f":"IF($C112=\"NA\",\"\",ROUND('Unsmoothed Prices'!D112*'Unsmoothed Prices'!G$141,3))","v":33.692999999999998},{"$f":"IF($C112=\"NA\",\"\",ROUND('Unsmoothed Prices'!E112*'Unsmoothed Prices'!H$141,3))","v":33.468000000000004},null,33.692999999999998,34.305,null,{"$f":"IFERROR(VLOOKUP($B112,Volumes!$B$38:$F$79,MATCH(J$9,Volumes!$B$4:$F$4,0),FALSE),0)","v":0},{"$f":"IFERROR(VLOOKUP($B112,Volumes!$B$38:$F$79,MATCH(K$9,Volumes!$B$4:$F$4,0),FALSE),0)","v":0},null,122.97945,122.15820000000002,null,122.9795,125.2133,null,0,0,null,0,0]
[null,{"$f":"Inputs!$C111","v":"100W Metal Halide"},"Offered",{"$f":"IF($C113=\"NA\",\"\",ROUND('Unsmoothed Prices'!D113*'Unsmoothed Prices'!G$141,3))","v":45.180999999999997},{"$f":"IF($C113=\"NA\",\"\",ROUND('Unsmoothed Prices'!E113*'Unsmoothed Prices'!H$141,3))","v":44.798999999999999},null,45.180999999999997,45.918999999999997,null,{"$f":"IFERROR(VLOOKUP($B113,Volumes!$B$38:$F$79,MATCH(J$9,Volumes!$B$4:$F$4,0),FALSE),0)","v":17},{"$f":"IFERROR(VLOOKUP($B113,Volumes!$B$38:$F$79,MATCH(K$9,Volumes!$B$4:$F$4,0),FALSE),0)","v":17},null,164.91064999999998,163.51634999999999,null,164.91069999999999,167.6044,null,2803.4818999999998,2849.2748000000001,null,2803.4810499999994,2779.7779499999997]
[null,{"$f":"Inputs!$C112","v":"150W Metal Halide"},"Offered",{"$f":"IF($C114=\"NA\",\"\",ROUND('Unsmoothed Prices'!D114*'Unsmoothed Prices'!G$141,3))","v":47.786999999999999},{"$f":"IF($C114=\"NA\",\"\",ROUND('Unsmoothed Prices'!E114*'Unsmoothed Prices'!H$141,3))","v":47.369},null,47.786999999999999,48.552999999999997,null,{"$f":"IFERROR(VLOOKUP($B114,Volumes!$B$38:$F$79,MATCH(J$9,Volumes!$B$4:$F$4,0),FALSE),0)","v":14},{"$f":"IFERROR(VLOOKUP($B114,Volumes!$B$38:$F$79,MATCH(K$9,Volumes!$B$4:$F$4,0),FALSE),0)","v":15},null,174.42255,172.89685,null,174.42259999999999,177.21849999999998,null,2441.9164000000001,2658.2774999999997,null,2441.9157,2593.4527499999999]
[null,{"$f":"Inputs!$C113","v":"250W Metal Halide"},"Offered",{"$f":"IF($C115=\"NA\",\"\",ROUND('Unsmoothed Prices'!D115*'Unsmoothed Prices'!G$141,3))","v":48.606999999999999},{"$f":"IF($C115=\"NA\",\"\",ROUND('Unsmoothed Prices'!E115*'Unsmoothed Prices'!H$141,3))","v":48.177},null,48.606999999999999,49.381,null,{"$f":"IFERROR(VLOOKUP($B115,Volumes!$B$38:$F$79,MATCH(J$9,Volumes!$B$4:$F$4,0),FALSE),0)","v":88},{"$f":"IFERROR(VLOOKUP($B115,Volumes!$B$38:$F$79,MATCH(K$9,Volumes!$B$4:$F$4,0),FALSE),0)","v":89},null,177.41555,175.84604999999999,null,177.41560000000001,180.2407,null,15612.572800000002,16041.4223,null,15612.5684,15650.298449999998]
[null,{"$f":"Inputs!$C114","v":"400W Metal Halide"},"Offered",{"$f":"IF($C116=\"NA\",\"\",ROUND('Unsmoothed Prices'!D116*'Unsmoothed Prices'!G$141,3))","v":53.578000000000003},{"$f":"IF($C116=\"NA\",\"\",ROUND('Unsmoothed Prices'!E116*'Unsmoothed Prices'!H$141,3))","v":53.08},null,53.578000000000003,54.406999999999996,null,{"$f":"IFERROR(VLOOKUP($B116,Volumes!$B$38:$F$79,MATCH(J$9,Volumes!$B$4:$F$4,0),FALSE),0)","v":17},{"$f":"IFERROR(VLOOKUP($B116,Volumes!$B$38:$F$79,MATCH(K$9,Volumes!$B$4:$F$4,0),FALSE),0)","v":17},null,195.55970000000002,193.74200000000002,null,195.55970000000002,198.5856,null,3324.5149000000001,3375.9551999999999,null,3324.5149000000001,3293.6140000000005]
[null,{"$f":"Inputs!$C115","v":"70W Metal Halide"},"Not Offered",{"$f":"IF($C117=\"NA\",\"\",ROUND('Unsmoothed Prices'!D117*'Unsmoothed Prices'!G$141,3))","v":34.561999999999998},{"$f":"IF($C117=\"NA\",\"\",ROUND('Unsmoothed Prices'!E117*'Unsmoothed Prices'!H$141,3))","v":34.325000000000003},null,34.561999999999998,35.183,null,{"$f":"IFERROR(VLOOKUP($B117,Volumes!$B$38:$F$79,MATCH(J$9,Volumes!$B$4:$F$4,0),FALSE),0)","v":0},{"$f":"IFERROR(VLOOKUP($B117,Volumes!$B$38:$F$79,MATCH(K$9,Volumes!$B$4:$F$4,0),FALSE),0)","v":0},null,126.15129999999999,125.28625000000002,null,126.15129999999999,128.41800000000001,null,0,0,null,0,0]
[null,{"$f":"Inputs!$C116","v":"250W Metal Halide - Flood Light"},"Offered",{"$f":"IF($C118=\"NA\",\"\",ROUND('Unsmoothed Prices'!D118*'Unsmoothed Prices'!G$141,3))","v":53.734000000000002},{"$f":"IF($C118=\"NA\",\"\",ROUND('Unsmoothed Prices'!E118*'Unsmoothed Prices'!H$141,3))","v":53.232999999999997},null,53.734000000000002,54.564,null,{"$f":"IFERROR(VLOOKUP($B118,Volumes!$B$38:$F$79,MATCH(J$9,Volumes!$B$4:$F$4,0),FALSE),0)","v":33},{"$f":"IFERROR(VLOOKUP($B118,Volumes!$B$38:$F$79,MATCH(K$9,Volumes!$B$4:$F$4,0),FALSE),0)","v":35},null,196.12909999999999,194.30044999999998,null,196.12909999999999,199.15860000000001,null,6472.2602999999999,6970.5510000000004,null,6472.2602999999999,6800.5157499999996]
[null,{"$f":"Inputs!$C117","v":"400W Metal Halide - Flood Light"},"Offered",{"$f":"IF($C119=\"NA\",\"\",ROUND('Unsmoothed Prices'!D119*'Unsmoothed Prices'!G$141,3))","v":53.578000000000003},{"$f":"IF($C119=\"NA\",\"\",ROUND('Unsmoothed Prices'!E119*'Unsmoothed Prices'!H$141,3))","v":53.08},null,53.578000000000003,54.406999999999996,null,{"$f":"IFERROR(VLOOKUP($B119,Volumes!$B$38:$F$79,MATCH(J$9,Volumes!$B$4:$F$4,0),FALSE),0)","v":33},{"$f":"IFERROR(VLOOKUP($B119,Volumes!$B$38:$F$79,MATCH(K$9,Volumes!$B$4:$F$4,0),FALSE),0)","v":35},null,195.55970000000002,193.74200000000002,null,195.55970000000002,198.5856,null,6453.4701000000005,6950.4960000000001,null,6453.4701000000005,6780.97]
[null,{"$f":"Inputs!$C118","v":"125W Mercury Vapour"},"Obsolete, no new Connections",{"$f":"IF($C120=\"NA\",\"\",ROUND('Unsmoothed Prices'!D120*'Unsmoothed Prices'!G$141,3))","v":45.143000000000001},{"$f":"IF($C120=\"NA\",\"\",ROUND('Unsmoothed Prices'!E120*'Unsmoothed Prices'!H$141,3))","v":44.761000000000003},null,45.143000000000001,45.88,null,{"$f":"IFERROR(VLOOKUP($B120,Volumes!$B$38:$F$79,MATCH(J$9,Volumes!$B$4:$F$4,0),FALSE),0)","v":0},{"$f":"IFERROR(VLOOKUP($B120,Volumes!$B$38:$F$79,MATCH(K$9,Volumes!$B$4:$F$4,0),FALSE),0)","v":0},null,164.77195,163.37765000000002,null,164.77200000000002,167.46200000000002,null,0,0,null,0,0]
[null,{"$f":"Inputs!$C119","v":"250W Mercury Vapour"},"Obsolete, no new Connections",{"$f":"IF($C121=\"NA\",\"\",ROUND('Unsmoothed Prices'!D121*'Unsmoothed Prices'!G$141,3))","v":45.615000000000002},{"$f":"IF($C121=\"NA\",\"\",ROUND('Unsmoothed Prices'!E121*'Unsmoothed Prices'!H$141,3))","v":45.226999999999997},null,45.615000000000002,46.357999999999997,null,{"$f":"IFERROR(VLOOKUP($B121,Volumes!$B$38:$F$79,MATCH(J$9,Volumes!$B$4:$F$4,0),FALSE),0)","v":427},{"$f":"IFERROR(VLOOKUP($B121,Volumes!$B$38:$F$79,MATCH(K$9,Volumes!$B$4:$F$4,0),FALSE),0)","v":406},null,166.49475000000001,165.07855000000001,null,166.4948,169.20669999999998,null,71093.279599999994,68697.920199999993,null,71093.258249999999,67021.891300000003]
[null,{"$f":"Inputs!$C120","v":0},"NA",{"$f":"IF($C122=\"NA\",\"\",ROUND('Unsmoothed Prices'!D122*'Unsmoothed Prices'!G$141,3))","v":""},{"$f":"IF($C122=\"NA\",\"\",ROUND('Unsmoothed Prices'!E122*'Unsmoothed Prices'!H$141,3))","v":""},null,"","",null,{"$f":"IFERROR(VLOOKUP($B122,Volumes!$B$38:$F$79,MATCH(J$9,Volumes!$B$4:$F$4,0),FALSE),0)","v":0},{"$f":"IFERROR(VLOOKUP($B122,Volumes!$B$38:$F$79,MATCH(K$9,Volumes!$B$4:$F$4,0),FALSE),0)","v":0},null,"","",null,"","",null,0,0,null,0,0]
[null,{"$f":"Inputs!$C121","v":"400W Mercury Vapour"},"Obsolete, no new Connections",{"$f":"IF($C123=\"NA\",\"\",ROUND('Unsmoothed Prices'!D123*'Unsmoothed Prices'!G$141,3))","v":47.74},{"$f":"IF($C123=\"NA\",\"\",ROUND('Unsmoothed Prices'!E123*'Unsmoothed Prices'!H$141,3))","v":47.320999999999998},null,47.74,48.503999999999998,null,{"$f":"IFERROR(VLOOKUP($B123,Volumes!$B$38:$F$79,MATCH(J$9,Volumes!$B$4:$F$4,0),FALSE),0)","v":32},{"$f":"IFERROR(VLOOKUP($B123,Volumes!$B$38:$F$79,MATCH(K$9,Volumes!$B$4:$F$4,0),FALSE),0)","v":31},null,174.25100000000003,172.72165000000001,null,174.25099999999998,177.03959999999998,null,5576.0319999999992,5488.2275999999993,null,5576.0320000000011,5354.3711499999999]
[null,{"$f":"Inputs!$C122","v":"50W Mercury Vapour"},"Obsolete, no new Connections",{"$f":"IF($C124=\"NA\",\"\",ROUND('Unsmoothed Prices'!D124*'Unsmoothed Prices'!G$141,3))","v":33.470999999999997},{"$f":"IF($C124=\"NA\",\"\",ROUND('Unsmoothed Prices'!E124*'Unsmoothed Prices'!H$141,3))","v":33.247999999999998},null,33.470999999999997,34.079000000000001,null,{"$f":"IFERROR(VLOOKUP($B124,Volumes!$B$38:$F$79,MATCH(J$9,Volumes!$B$4:$F$4,0),FALSE),0)","v":0},{"$f":"IFERROR(VLOOKUP($B124,Volumes!$B$38:$F$79,MATCH(K$9,Volumes!$B$4:$F$4,0),FALSE),0)","v":0},null,122.16914999999999,121.35519999999998,null,122.1692,124.3884,null,0,0,null,0,0]
[null,{"$f":"Inputs!$C123","v":"80W Mercury Vapour Art decorative"},"Obsolete, no new Connections",{"$f":"IF($C125=\"NA\",\"\",ROUND('Unsmoothed Prices'!D125*'Unsmoothed Prices'!G$141,3))","v":50.345999999999997},{"$f":"IF($C125=\"NA\",\"\",ROUND('Unsmoothed Prices'!E125*'Unsmoothed Prices'!H$141,3))","v":49.892000000000003},null,50.345999999999997,51.139000000000003,null,{"$f":"IFERROR(VLOOKUP($B125,Volumes!$B$38:$F$79,MATCH(J$9,Volumes!$B$4:$F$4,0),FALSE),0)","v":40},{"$f":"IFERROR(VLOOKUP($B125,Volumes!$B$38:$F$79,MATCH(K$9,Volumes!$B$4:$F$4,0),FALSE),0)","v":40},null,183.76289999999997,182.10580000000002,null,183.7629,186.65740000000002,null,7350.5159999999996,7466.2960000000012,null,7350.5159999999987,7284.2320000000009]
[null,{"$f":"Inputs!$C124","v":"80W Mercury Vapour"},"Obsolete, no new Connections",{"$f":"IF($C126=\"NA\",\"\",ROUND('Unsmoothed Prices'!D126*'Unsmoothed Prices'!G$141,3))","v":33.472000000000001},{"$f":"IF($C126=\"NA\",\"\",ROUND('Unsmoothed Prices'!E126*'Unsmoothed Prices'!H$141,3))","v":33.249000000000002},null,33.472000000000001,34.08,null,{"$f":"IFERROR(VLOOKUP($B126,Volumes!$B$38:$F$79,MATCH(J$9,Volumes!$B$4:$F$4,0),FALSE),0)","v":14235},{"$f":"IFERROR(VLOOKUP($B126,Volumes!$B$38:$F$79,MATCH(K$9,Volumes!$B$4:$F$4,0),FALSE),0)","v":10135},null,122.17280000000001,121.35885,null,122.17280000000001,124.39200000000001,null,1739129.8080000002,1260712.9200000002,null,1739129.8080000002,1229971.94475]
[]
[null,null,null,null,null,null,null,null,null,{"$f":"SUM(J71:J127)","v":43293},43662]
[null,null,null,null,null,null,null,null,null,{"$f":"Volumes!E80=J128","v":true},{"$f":"Volumes!F80=K128","v":true},null,null,null,null,null,null,"Annuity Revenue",{"$f":"SUM(S10:S66,S71:S126)/1000000","v":6.3592771412999971},{"$f":"SUM(T10:T66,T71:T126)/1000000","v":6.547583219799999},{"$f":"SUM(S129:T129)","v":12.906860361099996},{"$f":"SUM(V10:V66,V71:V126)/1000000","v":6.3592759953999956},{"$f":"SUM(W10:W66,W71:W126)/1000000","v":6.3878672995000016},{"$f":"SUM(V129:W129)","v":12.747143294899997}]
[null,"Total",null,null,null,null,null,null,null,{"$f":"SUM(J67,J128)","v":49622},50020,null,null,null,null,null,null,"RAB Approach Revenue",{"$f":"'Revenue Nominal RAB'!D13","v":5.656010741624435},{"$f":"'Revenue Nominal RAB'!E13","v":6.4695100347795655}]
[null,null,null,null,null,null,null,null,null,{"$f":"Volumes!E84=J130","v":true},{"$f":"Volumes!F84=K130","v":true},null,null,null,null,null,null,"Difference",{"$f":"S129-S130","v":0.70326639967556215},7.8073185020433478E-2]
[]
[null,null,null,null,null,null,null,null,null,null,null,null,null,null,null,null,null,"Per Smoothed Revenue",{"$f":"'Unsmoothed Prices'!M130","v":6.3164028909999965},{"$f":"'Unsmoothed Prices'!N130","v":6.5941504235600004},{"$f":"SUM(S133:T133)","v":12.910553314559998},{"$f":"'Unsmoothed Prices'!G130","v":6.3164028909999965},{"$f":"'Unsmoothed Prices'!H130","v":6.4333174863999991},{"$f":"SUM(V133:W133)","v":12.749720377399996}]
[null,null,null,null,null,null,null,null,null,null,null,null,null,null,null,null,null,null,null,null,{"$f":"U129-U133","v":-3.6929534600016467E-3},null,null,{"$f":"X129-X133","v":-2.5770824999984399E-3}]
[null,null,null,null,null,null,null,null,null,null,null,null,null,null,null,null,null,null,{"$f":"T129/S129","v":1.029611239503474},null,null,{"$f":"W129/V129","v":1.0044959998780816}]

{"sheet":"Unsmoothed Prices","index":7,"n_rows":150,"n_cols":17,"rows_kept":150,"cut":false,"hidden":false,"merged":[[7,2,7,4],[68,2,68,4],[68,9,68,10],[7,12,7,13],[7,6,7,7],[68,12,68,13],[7,9,7,10],[68,6,68,7]]}
[]
[]
[]
[null,"Private Contract Lights"]
[]
[null,null,null,null,null,"Days",{"$f":"'Master Data'!I23","v":365},{"$f":"'Master Data'!J23","v":365}]
[null,null,null,8,{"$f":"D7+1","v":9},null,null,null,null,null,null,null,{"$f":"'Master Data'!I32","v":1},{"$f":"'Master Data'!J32","v":1.0249999999999999}]
[null,"Private Contract Lights","Price (cents) per Light per day",null,null,null,"Revenue ($m)  - Real",null,null,null,null,null,"Revenue ($m)  - Nominal"]
[null,null,"Offered / No Longer Offered / NA",{"$f":"'Master Data'!I$29","v":"2017-18"},{"$f":"'Master Data'!J$29","v":"2018-19"},null,{"$f":"D9","v":"2017-18"},{"$f":"E9","v":"2018-19"},null,{"$f":"G9","v":"2017-18"},{"$f":"H9","v":"2018-19"},null,{"$f":"'Master Data'!I$29","v":"2017-18"},{"$f":"'Master Data'!J$29","v":"2018-19"}]
[null,{"$f":"Inputs!$C69","v":"32W Compact Fluorescent"},"Old light no volumes",{"$f":"IF($C10=\"NA\",\"\",OFFSET('Combined Annuity Prices CL'!$B$10,MATCH($B10,'Combined Annuity Prices CL'!$B$10:$B$3811,0)+12,D$7))","v":18.564},{"$f":"IF($C10=\"NA\",\"\",OFFSET('Combined Annuity Prices CL'!$B$10,MATCH($B10,'Combined Annuity Prices CL'!$B$10:$B$3811,0)+12,E$7))","v":18.582000000000001},null,{"$f":"IF($C10=\"NA\",\"\",D10*J10*G$6/100/10^6)","v":0},{"$f":"IF($C10=\"NA\",\"\",E10*K10*H$6/100/10^6)","v":0},null,{"$f":"IFERROR(VLOOKUP($B10,Volumes!$B$4:$F$32,MATCH(J$9,Volumes!$B$4:$F$4,0),FALSE),0)","v":0},{"$f":"IFERROR(VLOOKUP($B10,Volumes!$B$4:$F$32,MATCH(K$9,Volumes!$B$4:$F$4,0),FALSE),0)","v":0},null,{"$f":"IF($C10=\"NA\",\"\",D10*M$7*J10*G$6/100/10^6)","v":0},{"$f":"IF($C10=\"NA\",\"\",E10*N$7*K10*H$6/100/10^6)","v":0}]
[null,{"$f":"Inputs!$C70","v":"42W Compact Fluorescent"},"Old light no volumes",{"$f":"IF($C11=\"NA\",\"\",OFFSET('Combined Annuity Prices CL'!$B$10,MATCH($B11,'Combined Annuity Prices CL'!$B$10:$B$3811,0)+12,D$7))","v":18.564},{"$f":"IF($C11=\"NA\",\"\",OFFSET('Combined Annuity Prices CL'!$B$10,MATCH($B11,'Combined Annuity Prices CL'!$B$10:$B$3811,0)+12,E$7))","v":18.582000000000001},null,0,0,null,{"$f":"IFERROR(VLOOKUP($B11,Volumes!$B$4:$F$32,MATCH(J$9,Volumes!$B$4:$F$4,0),FALSE),0)","v":0},{"$f":"IFERROR(VLOOKUP($B11,Volumes!$B$4:$F$32,MATCH(K$9,Volumes!$B$4:$F$4,0),FALSE),0)","v":0},null,0,0]
[null,{"$f":"Inputs!$C71","v":"42W Compact Fluorescent - Bottom Pole Entry"},"Old light no volumes",{"$f":"IF($C12=\"NA\",\"\",OFFSET('Combined Annuity Prices CL'!$B$10,MATCH($B12,'Combined Annuity Prices CL'!$B$10:$B$3811,0)+12,D$7))","v":18.564},{"$f":"IF($C12=\"NA\",\"\",OFFSET('Combined Annuity Prices CL'!$B$10,MATCH($B12,'Combined Annuity Prices CL'!$B$10:$B$3811,0)+12,E$7))","v":18.582000000000001},null,0,0,null,{"$f":"IFERROR(VLOOKUP($B12,Volumes!$B$4:$F$32,MATCH(J$9,Volumes!$B$4:$F$4,0),FALSE),0)","v":0},{"$f":"IFERROR(VLOOKUP($B12,Volumes!$B$4:$F$32,MATCH(K$9,Volumes!$B$4:$F$4,0),FALSE),0)","v":0},null,0,0]
[null,{"$f":"Inputs!$C72","v":"2x24W Compact Fluorescent"},"Old light no volumes",{"$f":"IF($C13=\"NA\",\"\",OFFSET('Combined Annuity Prices CL'!$B$10,MATCH($B13,'Combined Annuity Prices CL'!$B$10:$B$3811,0)+12,D$7))","v":18.864999999999998},{"$f":"IF($C13=\"NA\",\"\",OFFSET('Combined Annuity Prices CL'!$B$10,MATCH($B13,'Combined Annuity Prices CL'!$B$10:$B$3811,0)+12,E$7))","v":18.882999999999999},null,0,0,null,{"$f":"IFERROR(VLOOKUP($B13,Volumes!$B$4:$F$32,MATCH(J$9,Volumes!$B$4:$F$4,0),FALSE),0)","v":0},{"$f":"IFERROR(VLOOKUP($B13,Volumes!$B$4:$F$32,MATCH(K$9,Volumes!$B$4:$F$4,0),FALSE),0)","v":0},null,0,0]
[null,{"$f":"Inputs!$C73","v":"1x20W Fluorescent"},"Obsolete, no new Connections",{"$f":"IF($C14=\"NA\",\"\",OFFSET('Combined Annuity Prices CL'!$B$10,MATCH($B14,'Combined Annuity Prices CL'!$B$10:$B$3811,0)+12,D$7))","v":18.553999999999998},{"$f":"IF($C14=\"NA\",\"\",OFFSET('Combined Annuity Prices CL'!$B$10,MATCH($B14,'Combined Annuity Prices CL'!$B$10:$B$3811,0)+12,E$7))","v":18.571000000000002},null,0,0,null,{"$f":"IFERROR(VLOOKUP($B14,Volumes!$B$4:$F$32,MATCH(J$9,Volumes!$B$4:$F$4,0),FALSE),0)","v":0},{"$f":"IFERROR(VLOOKUP($B14,Volumes!$B$4:$F$32,MATCH(K$9,Volumes!$B$4:$F$4,0),FALSE),0)","v":0},null,0,0]
[null,{"$f":"Inputs!$C74","v":"1x40W Fluorescent"},"Obsolete, no new Connections",{"$f":"IF($C15=\"NA\",\"\",OFFSET('Combined Annuity Prices CL'!$B$10,MATCH($B15,'Combined Annuity Prices CL'!$B$10:$B$3811,0)+12,D$7))","v":18.573},{"$f":"IF($C15=\"NA\",\"\",OFFSET('Combined Annuity Prices CL'!$B$10,MATCH($B15,'Combined Annuity Prices CL'!$B$10:$B$3811,0)+12,E$7))","v":18.59},null,0,0,null,{"$f":"IFERROR(VLOOKUP($B15,Volumes!$B$4:$F$32,MATCH(J$9,Volumes!$B$4:$F$4,0),FALSE),0)","v":0},{"$f":"IFERROR(VLOOKUP($B15,Volumes!$B$4:$F$32,MATCH(K$9,Volumes!$B$4:$F$4,0),FALSE),0)","v":0},null,0,0]
[null,{"$f":"Inputs!$C75","v":"2x20W Fluorescent"},"Obsolete, no new Connections",{"$f":"IF($C16=\"NA\",\"\",OFFSET('Combined Annuity Prices CL'!$B$10,MATCH($B16,'Combined Annuity Prices CL'!$B$10:$B$3811,0)+12,D$7))","v":18.844000000000001},{"$f":"IF($C16=\"NA\",\"\",OFFSET('Combined Annuity Prices CL'!$B$10,MATCH($B16,'Combined Annuity Prices CL'!$B$10:$B$3811,0)+12,E$7))","v":18.861999999999998},null,0,0,null,{"$f":"IFERROR(VLOOKUP($B16,Volumes!$B$4:$F$32,MATCH(J$9,Volumes!$B$4:$F$4,0),FALSE),0)","v":0},{"$f":"IFERROR(VLOOKUP($B16,Volumes!$B$4:$F$32,MATCH(K$9,Volumes!$B$4:$F$4,0),FALSE),0)","v":0},null,0,0]
[null,{"$f":"Inputs!$C76","v":"2x24W Fluorescent"},"Old light no volumes",{"$f":"IF($C17=\"NA\",\"\",OFFSET('Combined Annuity Prices CL'!$B$10,MATCH($B17,'Combined Annuity Prices CL'!$B$10:$B$3811,0)+12,D$7))","v":18.657},{"$f":"IF($C17=\"NA\",\"\",OFFSET('Combined Annuity Prices CL'!$B$10,MATCH($B17,'Combined Annuity Prices CL'!$B$10:$B$3811,0)+12,E$7))","v":18.673999999999999},null,0,0,null,{"$f":"IFERROR(VLOOKUP($B17,Volumes!$B$4:$F$32,MATCH(J$9,Volumes!$B$4:$F$4,0),FALSE),0)","v":0},{"$f":"IFERROR(VLOOKUP($B17,Volumes!$B$4:$F$32,MATCH(K$9,Volumes!$B$4:$F$4,0),FALSE),0)","v":0},null,0,0]
[null,{"$f":"Inputs!$C77","v":"T5 Fluorescent 2 x 24W"},"Old light no volumes",{"$f":"IF($C18=\"NA\",\"\",OFFSET('Combined Annuity Prices CL'!$B$10,MATCH($B18,'Combined Annuity Prices CL'!$B$10:$B$3811,0)+12,D$7))","v":18.844000000000001},{"$f":"IF($C18=\"NA\",\"\",OFFSET('Combined Annuity Prices CL'!$B$10,MATCH($B18,'Combined Annuity Prices CL'!$B$10:$B$3811,0)+12,E$7))","v":18.861999999999998},null,0,0,null,{"$f":"IFERROR(VLOOKUP($B18,Volumes!$B$4:$F$32,MATCH(J$9,Volumes!$B$4:$F$4,0),FALSE),0)","v":0},{"$f":"IFERROR(VLOOKUP($B18,Volumes!$B$4:$F$32,MATCH(K$9,Volumes!$B$4:$F$4,0),FALSE),0)","v":0},null,0,0]
[null,{"$f":"Inputs!$C78","v":"20 Fluorescent 1X20FL"},"Old light no volumes",{"$f":"IF($C19=\"NA\",\"\",OFFSET('Combined Annuity Prices CL'!$B$10,MATCH($B19,'Combined Annuity Prices CL'!$B$10:$B$3811,0)+12,D$7))","v":18.553999999999998},{"$f":"IF($C19=\"NA\",\"\",OFFSET('Combined Annuity Prices CL'!$B$10,MATCH($B19,'Combined Annuity Prices CL'!$B$10:$B$3811,0)+12,E$7))","v":18.571000000000002},null,0,0,null,{"$f":"IFERROR(VLOOKUP($B19,Volumes!$B$4:$F$32,MATCH(J$9,Volumes!$B$4:$F$4,0),FALSE),0)","v":0},{"$f":"IFERROR(VLOOKUP($B19,Volumes!$B$4:$F$32,MATCH(K$9,Volumes!$B$4:$F$4,0),FALSE),0)","v":0},null,0,0]
[null,{"$f":"Inputs!$C79","v":"2x40W Fluorescent"},"Obsolete, no new Connections",{"$f":"IF($C20=\"NA\",\"\",OFFSET('Combined Annuity Prices CL'!$B$10,MATCH($B20,'Combined Annuity Prices CL'!$B$10:$B$3811,0)+12,D$7))","v":18.882000000000001},{"$f":"IF($C20=\"NA\",\"\",OFFSET('Combined Annuity Prices CL'!$B$10,MATCH($B20,'Combined Annuity Prices CL'!$B$10:$B$3811,0)+12,E$7))","v":18.899000000000001},null,0,0,null,{"$f":"IFERROR(VLOOKUP($B20,Volumes!$B$4:$F$32,MATCH(J$9,Volumes!$B$4:$F$4,0),FALSE),0)","v":0},{"$f":"IFERROR(VLOOKUP($B20,Volumes!$B$4:$F$32,MATCH(K$9,Volumes!$B$4:$F$4,0),FALSE),0)","v":0},null,0,0]
[null,{"$f":"Inputs!$C80","v":"3x40W Fluorescent"},"Obsolete, no new Connections",{"$f":"IF($C21=\"NA\",\"\",OFFSET('Combined Annuity Prices CL'!$B$10,MATCH($B21,'Combined Annuity Prices CL'!$B$10:$B$3811,0)+12,D$7))","v":22.741},{"$f":"IF($C21=\"NA\",\"\",OFFSET('Combined Annuity Prices CL'!$B$10,MATCH($B21,'Combined Annuity Prices CL'!$B$10:$B$3811,0)+12,E$7))","v":22.757999999999999},null,0,0,null,{"$f":"IFERROR(VLOOKUP($B21,Volumes!$B$4:$F$32,MATCH(J$9,Volumes!$B$4:$F$4,0),FALSE),0)","v":0},{"$f":"IFERROR(VLOOKUP($B21,Volumes!$B$4:$F$32,MATCH(K$9,Volumes!$B$4:$F$4,0),FALSE),0)","v":0},null,0,0]
[null,{"$f":"Inputs!$C81","v":"4x20 Fluorescent"},"Old light no volumes",{"$f":"IF($C22=\"NA\",\"\",OFFSET('Combined Annuity Prices CL'!$B$10,MATCH($B22,'Combined Annuity Prices CL'!$B$10:$B$3811,0)+12,D$7))","v":19.425000000000001},{"$f":"IF($C22=\"NA\",\"\",OFFSET('Combined Annuity Prices CL'!$B$10,MATCH($B22,'Combined Annuity Prices CL'!$B$10:$B$3811,0)+12,E$7))","v":19.443000000000001},null,0,0,null,{"$f":"IFERROR(VLOOKUP($B22,Volumes!$B$4:$F$32,MATCH(J$9,Volumes!$B$4:$F$4,0),FALSE),0)","v":0},{"$f":"IFERROR(VLOOKUP($B22,Volumes!$B$4:$F$32,MATCH(K$9,Volumes!$B$4:$F$4,0),FALSE),0)","v":0},null,0,0]
[null,{"$f":"Inputs!$C82","v":"4x40W Fluorescent"},"Obsolete, no new Connections",{"$f":"IF($C23=\"NA\",\"\",OFFSET('Combined Annuity Prices CL'!$B$10,MATCH($B23,'Combined Annuity Prices CL'!$B$10:$B$3811,0)+12,D$7))","v":23.05},{"$f":"IF($C23=\"NA\",\"\",OFFSET('Combined Annuity Prices CL'!$B$10,MATCH($B23,'Combined Annuity Prices CL'!$B$10:$B$3811,0)+12,E$7))","v":23.067},null,0,0,null,{"$f":"IFERROR(VLOOKUP($B23,Volumes!$B$4:$F$32,MATCH(J$9,Volumes!$B$4:$F$4,0),FALSE),0)","v":0},{"$f":"IFERROR(VLOOKUP($B23,Volumes!$B$4:$F$32,MATCH(K$9,Volumes!$B$4:$F$4,0),FALSE),0)","v":0},null,0,0]
[null,{"$f":"Inputs!$C83","v":"100W Sodium Vapour"},"Old light no volumes",{"$f":"IF($C24=\"NA\",\"\",OFFSET('Combined Annuity Prices CL'!$B$10,MATCH($B24,'Combined Annuity Prices CL'!$B$10:$B$3811,0)+12,D$7))","v":22.814},{"$f":"IF($C24=\"NA\",\"\",OFFSET('Combined Annuity Prices CL'!$B$10,MATCH($B24,'Combined Annuity Prices CL'!$B$10:$B$3811,0)+12,E$7))","v":22.831},null,4.1635549999999993E-4,4.1666574999999997E-4,null,{"$f":"IFERROR(VLOOKUP($B24,Volumes!$B$4:$F$32,MATCH(J$9,Volumes!$B$4:$F$4,0),FALSE),0)","v":5},{"$f":"IFERROR(VLOOKUP($B24,Volumes!$B$4:$F$32,MATCH(K$9,Volumes!$B$4:$F$4,0),FALSE),0)","v":5},null,4.1635549999999993E-4,4.2708239375000001E-4]
[null,{"$f":"Inputs!$C84","v":0},"NA",{"$f":"IF($C25=\"NA\",\"\",OFFSET('Combined Annuity Prices CL'!$B$10,MATCH($B25,'Combined Annuity Prices CL'!$B$10:$B$3811,0)+12,D$7))","v":""},{"$f":"IF($C25=\"NA\",\"\",OFFSET('Combined Annuity Prices CL'!$B$10,MATCH($B25,'Combined Annuity Prices CL'!$B$10:$B$3811,0)+12,E$7))","v":""},null,"","",null,{"$f":"IFERROR(VLOOKUP($B25,Volumes!$B$4:$F$32,MATCH(J$9,Volumes!$B$4:$F$4,0),FALSE),0)","v":0},{"$f":"IFERROR(VLOOKUP($B25,Volumes!$B$4:$F$32,MATCH(K$9,Volumes!$B$4:$F$4,0),FALSE),0)","v":0},null,"",""]
[null,{"$f":"Inputs!$C85","v":"150W Sodium Vapour"},"Offered",{"$f":"IF($C26=\"NA\",\"\",OFFSET('Combined Annuity Prices CL'!$B$10,MATCH($B26,'Combined Annuity Prices CL'!$B$10:$B$3811,0)+12,D$7))","v":22.81},{"$f":"IF($C26=\"NA\",\"\",OFFSET('Combined Annuity Prices CL'!$B$10,MATCH($B26,'Combined Annuity Prices CL'!$B$10:$B$3811,0)+12,E$7))","v":22.827000000000002},null,1.3570809499999999E-2,1.3580923650000002E-2,null,{"$f":"IFERROR(VLOOKUP($B26,Volumes!$B$4:$F$32,MATCH(J$9,Volumes!$B$4:$F$4,0),FALSE),0)","v":163},{"$f":"IFERROR(VLOOKUP($B26,Volumes!$B$4:$F$32,MATCH(K$9,Volumes!$B$4:$F$4,0),FALSE),0)","v":163},null,1.3570809499999999E-2,1.392044674125E-2]
[null,{"$f":"Inputs!$C86","v":0},"NA",{"$f":"IF($C27=\"NA\",\"\",OFFSET('Combined Annuity Prices CL'!$B$10,MATCH($B27,'Combined Annuity Prices CL'!$B$10:$B$3811,0)+12,D$7))","v":""},{"$f":"IF($C27=\"NA\",\"\",OFFSET('Combined Annuity Prices CL'!$B$10,MATCH($B27,'Combined Annuity Prices CL'!$B$10:$B$3811,0)+12,E$7))","v":""},null,"","",null,{"$f":"IFERROR(VLOOKUP($B27,Volumes!$B$4:$F$32,MATCH(J$9,Volumes!$B$4:$F$4,0),FALSE),0)","v":0},{"$f":"IFERROR(VLOOKUP($B27,Volumes!$B$4:$F$32,MATCH(K$9,Volumes!$B$4:$F$4,0),FALSE),0)","v":0},null,"",""]
[null,{"$f":"Inputs!$C87","v":0},"NA",{"$f":"IF($C28=\"NA\",\"\",OFFSET('Combined Annuity Prices CL'!$B$10,MATCH($B28,'Combined Annuity Prices CL'!$B$10:$B$3811,0)+12,D$7))","v":""},{"$f":"IF($C28=\"NA\",\"\",OFFSET('Combined Annuity Prices CL'!$B$10,MATCH($B28,'Combined Annuity Prices CL'!$B$10:$B$3811,0)+12,E$7))","v":""},null,"","",null,{"$f":"IFERROR(VLOOKUP($B28,Volumes!$B$4:$F$32,MATCH(J$9,Volumes!$B$4:$F$4,0),FALSE),0)","v":0},{"$f":"IFERROR(VLOOKUP($B28,Volumes!$B$4:$F$32,MATCH(K$9,Volumes!$B$4:$F$4,0),FALSE),0)","v":0},null,"",""]
[null,{"$f":"Inputs!$C88","v":0},"NA",{"$f":"IF($C29=\"NA\",\"\",OFFSET('Combined Annuity Prices CL'!$B$10,MATCH($B29,'Combined Annuity Prices CL'!$B$10:$B$3811,0)+12,D$7))","v":""},{"$f":"IF($C29=\"NA\",\"\",OFFSET('Combined Annuity Prices CL'!$B$10,MATCH($B29,'Combined Annuity Prices CL'!$B$10:$B$3811,0)+12,E$7))","v":""},null,"","",null,{"$f":"IFERROR(VLOOKUP($B29,Volumes!$B$4:$F$32,MATCH(J$9,Volumes!$B$4:$F$4,0),FALSE),0)","v":0},{"$f":"IFERROR(VLOOKUP($B29,Volumes!$B$4:$F$32,MATCH(K$9,Volumes!$B$4:$F$4,0),FALSE),0)","v":0},null,"",""]
[null,{"$f":"Inputs!$C89","v":"250W Sodium Vapour"},"Offered",{"$f":"IF($C30=\"NA\",\"\",OFFSET('Combined Annuity Prices CL'!$B$10,MATCH($B30,'Combined Annuity Prices CL'!$B$10:$B$3811,0)+12,D$7))","v":22.934000000000001},{"$f":"IF($C30=\"NA\",\"\",OFFSET('Combined Annuity Prices CL'!$B$10,MATCH($B30,'Combined Annuity Prices CL'!$B$10:$B$3811,0)+12,E$7))","v":22.951000000000001},null,1.3812001500000002E-2,1.3822239750000001E-2,null,{"$f":"IFERROR(VLOOKUP($B30,Volumes!$B$4:$F$32,MATCH(J$9,Volumes!$B$4:$F$4,0),FALSE),0)","v":165},{"$f":"IFERROR(VLOOKUP($B30,Volumes!$B$4:$F$32,MATCH(K$9,Volumes!$B$4:$F$4,0),FALSE),0)","v":165},null,1.3812001500000002E-2,1.4167795743749999E-2]
[null,{"$f":"Inputs!$C90","v":0},"NA",{"$f":"IF($C31=\"NA\",\"\",OFFSET('Combined Annuity Prices CL'!$B$10,MATCH($B31,'Combined Annuity Prices CL'!$B$10:$B$3811,0)+12,D$7))","v":""},{"$f":"IF($C31=\"NA\",\"\",OFFSET('Combined Annuity Prices CL'!$B$10,MATCH($B31,'Combined Annuity Prices CL'!$B$10:$B$3811,0)+12,E$7))","v":""},null,"","",null,{"$f":"IFERROR(VLOOKUP($B31,Volumes!$B$4:$F$32,MATCH(J$9,Volumes!$B$4:$F$4,0),FALSE),0)","v":0},{"$f":"IFERROR(VLOOKUP($B31,Volumes!$B$4:$F$32,MATCH(K$9,Volumes!$B$4:$F$4,0),FALSE),0)","v":0},null,"",""]
[null,{"$f":"Inputs!$C91","v":0},"NA",{"$f":"IF($C32=\"NA\",\"\",OFFSET('Combined Annuity Prices CL'!$B$10,MATCH($B32,'Combined Annuity Prices CL'!$B$10:$B$3811,0)+12,D$7))","v":""},{"$f":"IF($C32=\"NA\",\"\",OFFSET('Combined Annuity Prices CL'!$B$10,MATCH($B32,'Combined Annuity Prices CL'!$B$10:$B$3811,0)+12,E$7))","v":""},null,"","",null,{"$f":"IFERROR(VLOOKUP($B32,Volumes!$B$4:$F$32,MATCH(J$9,Volumes!$B$4:$F$4,0),FALSE),0)","v":0},{"$f":"IFERROR(VLOOKUP($B32,Volumes!$B$4:$F$32,MATCH(K$9,Volumes!$B$4:$F$4,0),FALSE),0)","v":0},null,"",""]
[null,{"$f":"Inputs!$C92","v":0},"NA",{"$f":"IF($C33=\"NA\",\"\",OFFSET('Combined Annuity Prices CL'!$B$10,MATCH($B33,'Combined Annuity Prices CL'!$B$10:$B$3811,0)+12,D$7))","v":""},{"$f":"IF($C33=\"NA\",\"\",OFFSET('Combined Annuity Prices CL'!$B$10,MATCH($B33,'Combined Annuity Prices CL'!$B$10:$B$3811,0)+12,E$7))","v":""},null,"","",null,{"$f":"IFERROR(VLOOKUP($B33,Volumes!$B$4:$F$32,MATCH(J$9,Volumes!$B$4:$F$4,0),FALSE),0)","v":0},{"$f":"IFERROR(VLOOKUP($B33,Volumes!$B$4:$F$32,MATCH(K$9,Volumes!$B$4:$F$4,0),FALSE),0)","v":0},null,"",""]
[null,{"$f":"Inputs!$C93","v":"250W Sodium Vapour - Flood Light"},"Old light no volumes",{"$f":"IF($C34=\"NA\",\"\",OFFSET('Combined Annuity Prices CL'!$B$10,MATCH($B34,'Combined Annuity Prices CL'!$B$10:$B$3811,0)+12,D$7))","v":22.934000000000001},{"$f":"IF($C34=\"NA\",\"\",OFFSET('Combined Annuity Prices CL'!$B$10,MATCH($B34,'Combined Annuity Prices CL'!$B$10:$B$3811,0)+12,E$7))","v":22.951000000000001},null,0,0,null,{"$f":"IFERROR(VLOOKUP($B34,Volumes!$B$4:$F$32,MATCH(J$9,Volumes!$B$4:$F$4,0),FALSE),0)","v":0},{"$f":"IFERROR(VLOOKUP($B34,Volumes!$B$4:$F$32,MATCH(K$9,Volumes!$B$4:$F$4,0),FALSE),0)","v":0},null,0,0]
[null,{"$f":"Inputs!$C94","v":"400W Sodium Vapour"},"Offered",{"$f":"IF($C35=\"NA\",\"\",OFFSET('Combined Annuity Prices CL'!$B$10,MATCH($B35,'Combined Annuity Prices CL'!$B$10:$B$3811,0)+12,D$7))","v":22.975999999999999},{"$f":"IF($C35=\"NA\",\"\",OFFSET('Combined Annuity Prices CL'!$B$10,MATCH($B35,'Combined Annuity Prices CL'!$B$10:$B$3811,0)+12,E$7))","v":22.994},null,8.7216896000000006E-3,8.7285224000000008E-3,null,{"$f":"IFERROR(VLOOKUP($B35,Volumes!$B$4:$F$32,MATCH(J$9,Volumes!$B$4:$F$4,0),FALSE),0)","v":104},{"$f":"IFERROR(VLOOKUP($B35,Volumes!$B$4:$F$32,MATCH(K$9,Volumes!$B$4:$F$4,0),FALSE),0)","v":104},null,8.7216896000000006E-3,8.9467354599999972E-3]
[null,{"$f":"Inputs!$C95","v":0},"NA",{"$f":"IF($C36=\"NA\",\"\",OFFSET('Combined Annuity Prices CL'!$B$10,MATCH($B36,'Combined Annuity Prices CL'!$B$10:$B$3811,0)+12,D$7))","v":""},{"$f":"IF($C36=\"NA\",\"\",OFFSET('Combined Annuity Prices CL'!$B$10,MATCH($B36,'Combined Annuity Prices CL'!$B$10:$B$3811,0)+12,E$7))","v":""},null,"","",null,{"$f":"IFERROR(VLOOKUP($B36,Volumes!$B$4:$F$32,MATCH(J$9,Volumes!$B$4:$F$4,0),FALSE),0)","v":0},{"$f":"IFERROR(VLOOKUP($B36,Volumes!$B$4:$F$32,MATCH(K$9,Volumes!$B$4:$F$4,0),FALSE),0)","v":0},null,"",""]
[null,{"$f":"Inputs!$C96","v":"400W Sodium Vapour - Flood Light"},"Old light no volumes",{"$f":"IF($C37=\"NA\",\"\",OFFSET('Combined Annuity Prices CL'!$B$10,MATCH($B37,'Combined Annuity Prices CL'!$B$10:$B$3811,0)+12,D$7))","v":22.975999999999999},{"$f":"IF($C37=\"NA\",\"\",OFFSET('Combined Annuity Prices CL'!$B$10,MATCH($B37,'Combined Annuity Prices CL'!$B$10:$B$3811,0)+12,E$7))","v":22.994},null,0,0,null,{"$f":"IFERROR(VLOOKUP($B37,Volumes!$B$4:$F$32,MATCH(J$9,Volumes!$B$4:$F$4,0),FALSE),0)","v":0},{"$f":"IFERROR(VLOOKUP($B37,Volumes!$B$4:$F$32,MATCH(K$9,Volumes!$B$4:$F$4,0),FALSE),0)","v":0},null,0,0]
[null,{"$f":"Inputs!$C97","v":"70W Sodium Vapour"},"Offered",{"$f":"IF($C38=\"NA\",\"\",OFFSET('Combined Annuity Prices CL'!$B$10,MATCH($B38,'Combined Annuity Prices CL'!$B$10:$B$3811,0)+12,D$7))","v":18.762},{"$f":"IF($C38=\"NA\",\"\",OFFSET('Combined Annuity Prices CL'!$B$10,MATCH($B38,'Combined Annuity Prices CL'!$B$10:$B$3811,0)+12,E$7))","v":18.78},null,4.9991349000000004E-3,5.0039310000000005E-3,null,{"$f":"IFERROR(VLOOKUP($B38,Volumes!$B$4:$F$32,MATCH(J$9,Volumes!$B$4:$F$4,0),FALSE),0)","v":73},{"$f":"IFERROR(VLOOKUP($B38,Volumes!$B$4:$F$32,MATCH(K$9,Volumes!$B$4:$F$4,0),FALSE),0)","v":73},null,4.9991349000000004E-3,5.1290292750000004E-3]
[null,{"$f":"Inputs!$C98","v":0},"NA",{"$f":"IF($C39=\"NA\",\"\",OFFSET('Combined Annuity Prices CL'!$B$10,MATCH($B39,'Combined Annuity Prices CL'!$B$10:$B$3811,0)+12,D$7))","v":""},{"$f":"IF($C39=\"NA\",\"\",OFFSET('Combined Annuity Prices CL'!$B$10,MATCH($B39,'Combined Annuity Prices CL'!$B$10:$B$3811,0)+12,E$7))","v":""},null,"","",null,{"$f":"IFERROR(VLOOKUP($B39,Volumes!$B$4:$F$32,MATCH(J$9,Volumes!$B$4:$F$4,0),FALSE),0)","v":0},{"$f":"IFERROR(VLOOKUP($B39,Volumes!$B$4:$F$32,MATCH(K$9,Volumes!$B$4:$F$4,0),FALSE),0)","v":0},null,"",""]
[null,{"$f":"Inputs!$C99","v":"100W Incandescent"},"Obsolete, no new Connections",{"$f":"IF($C40=\"NA\",\"\",OFFSET('Combined Annuity Prices CL'!$B$10,MATCH($B40,'Combined Annuity Prices CL'!$B$10:$B$3811,0)+12,D$7))","v":21.937000000000001},{"$f":"IF($C40=\"NA\",\"\",OFFSET('Combined Annuity Prices CL'!$B$10,MATCH($B40,'Combined Annuity Prices CL'!$B$10:$B$3811,0)+12,E$7))","v":21.954000000000001},null,0,0,null,{"$f":"IFERROR(VLOOKUP($B40,Volumes!$B$4:$F$32,MATCH(J$9,Volumes!$B$4:$F$4,0),FALSE),0)","v":0},{"$f":"IFERROR(VLOOKUP($B40,Volumes!$B$4:$F$32,MATCH(K$9,Volumes!$B$4:$F$4,0),FALSE),0)","v":0},null,0,0]
[null,{"$f":"Inputs!$C100","v":"60W Incandescent"},"Obsolete, no new Connections",{"$f":"IF($C41=\"NA\",\"\",OFFSET('Combined Annuity Prices CL'!$B$10,MATCH($B41,'Combined Annuity Prices CL'!$B$10:$B$3811,0)+12,D$7))","v":18.387},{"$f":"IF($C41=\"NA\",\"\",OFFSET('Combined Annuity Prices CL'!$B$10,MATCH($B41,'Combined Annuity Prices CL'!$B$10:$B$3811,0)+12,E$7))","v":18.405000000000001},null,0,0,null,{"$f":"IFERROR(VLOOKUP($B41,Volumes!$B$4:$F$32,MATCH(J$9,Volumes!$B$4:$F$4,0),FALSE),0)","v":0},{"$f":"IFERROR(VLOOKUP($B41,Volumes!$B$4:$F$32,MATCH(K$9,Volumes!$B$4:$F$4,0),FALSE),0)","v":0},null,0,0]
[null,{"$f":"Inputs!$C101","v":"18W LED"},"Offered",{"$f":"IF($C42=\"NA\",\"\",OFFSET('Combined Annuity Prices CL'!$B$10,MATCH($B42,'Combined Annuity Prices CL'!$B$10:$B$3811,0)+12,D$7))","v":12.766},{"$f":"IF($C42=\"NA\",\"\",OFFSET('Combined Annuity Prices CL'!$B$10,MATCH($B42,'Combined Annuity Prices CL'!$B$10:$B$3811,0)+12,E$7))","v":12.782999999999999},null,{"$f":"IF($C42=\"NA\",\"\",D42*J42*G$6/100/10^6)","v":0.22188967580000002},{"$f":"IF($C42=\"NA\",\"\",E42*K42*H$6/100/10^6)","v":0.2244247395},null,{"$f":"IFERROR(VLOOKUP($B42,Volumes!$B$4:$F$32,MATCH(J$9,Volumes!$B$4:$F$4,0),FALSE),0)","v":4762},{"$f":"IFERROR(VLOOKUP($B42,Volumes!$B$4:$F$32,MATCH(K$9,Volumes!$B$4:$F$4,0),FALSE),0)","v":4810},null,{"$f":"IF($C42=\"NA\",\"\",D42*M$7*J42*G$6/100/10^6)","v":0.22188967580000002},{"$f":"IF($C42=\"NA\",\"\",E42*N$7*K42*H$6/100/10^6)","v":0.23003535798749997}]
[null,{"$f":"Inputs!$C102","v":"25W LED"},"Obsolete, no new Connections",{"$f":"IF($C43=\"NA\",\"\",OFFSET('Combined Annuity Prices CL'!$B$10,MATCH($B43,'Combined Annuity Prices CL'!$B$10:$B$3811,0)+12,D$7))","v":12.766},{"$f":"IF($C43=\"NA\",\"\",OFFSET('Combined Annuity Prices CL'!$B$10,MATCH($B43,'Combined Annuity Prices CL'!$B$10:$B$3811,0)+12,E$7))","v":12.782999999999999},null,1.3512811E-3,1.35308055E-3,null,{"$f":"IFERROR(VLOOKUP($B43,Volumes!$B$4:$F$32,MATCH(J$9,Volumes!$B$4:$F$4,0),FALSE),0)","v":29},{"$f":"IFERROR(VLOOKUP($B43,Volumes!$B$4:$F$32,MATCH(K$9,Volumes!$B$4:$F$4,0),FALSE),0)","v":29},null,1.3512811E-3,1.3869075637499997E-3]
[null,{"$f":"Inputs!$C103","v":"18W LED Decorative - Bottom Pole Entry"},"Not Offered",{"$f":"IF($C44=\"NA\",\"\",OFFSET('Combined Annuity Prices CL'!$B$10,MATCH($B44,'Combined Annuity Prices CL'!$B$10:$B$3811,0)+12,D$7))","v":12.766},{"$f":"IF($C44=\"NA\",\"\",OFFSET('Combined Annuity Prices CL'!$B$10,MATCH($B44,'Combined Annuity Prices CL'!$B$10:$B$3811,0)+12,E$7))","v":12.782999999999999},null,0,0,null,{"$f":"IFERROR(VLOOKUP($B44,Volumes!$B$4:$F$32,MATCH(J$9,Volumes!$B$4:$F$4,0),FALSE),0)","v":0},{"$f":"IFERROR(VLOOKUP($B44,Volumes!$B$4:$F$32,MATCH(K$9,Volumes!$B$4:$F$4,0),FALSE),0)","v":0},null,0,0]
[null,{"$f":"Inputs!$C104","v":"18W LED Decorative - Side Entry"},"Not Offered",{"$f":"IF($C45=\"NA\",\"\",OFFSET('Combined Annuity Prices CL'!$B$10,MATCH($B45,'Combined Annuity Prices CL'!$B$10:$B$3811,0)+12,D$7))","v":12.766},{"$f":"IF($C45=\"NA\",\"\",OFFSET('Combined Annuity Prices CL'!$B$10,MATCH($B45,'Combined Annuity Prices CL'!$B$10:$B$3811,0)+12,E$7))","v":12.782999999999999},null,0,0,null,{"$f":"IFERROR(VLOOKUP($B45,Volumes!$B$4:$F$32,MATCH(J$9,Volumes!$B$4:$F$4,0),FALSE),0)","v":0},{"$f":"IFERROR(VLOOKUP($B45,Volumes!$B$4:$F$32,MATCH(K$9,Volumes!$B$4:$F$4,0),FALSE),0)","v":0},null,0,0]
[null,{"$f":"Inputs!$C105","v":"18W LED Decorative - Top Entry"},"Offered",{"$f":"IF($C46=\"NA\",\"\",OFFSET('Combined Annuity Prices CL'!$B$10,MATCH($B46,'Combined Annuity Prices CL'!$B$10:$B$3811,0)+12,D$7))","v":12.766},{"$f":"IF($C46=\"NA\",\"\",OFFSET('Combined Annuity Prices CL'!$B$10,MATCH($B46,'Combined Annuity Prices CL'!$B$10:$B$3811,0)+12,E$7))","v":12.782999999999999},null,0,0,null,{"$f":"IFERROR(VLOOKUP($B46,Volumes!$B$4:$F$32,MATCH(J$9,Volumes!$B$4:$F$4,0),FALSE),0)","v":0},{"$f":"IFERROR(VLOOKUP($B46,Volumes!$B$4:$F$32,MATCH(K$9,Volumes!$B$4:$F$4,0),FALSE),0)","v":0},null,0,0]
[null,{"$f":"Inputs!$C106","v":"25W LED Decorative - Bottom Pole Entry"},"Not Offered",{"$f":"IF($C47=\"NA\",\"\",OFFSET('Combined Annuity Prices CL'!$B$10,MATCH($B47,'Combined Annuity Prices CL'!$B$10:$B$3811,0)+12,D$7))","v":12.766},{"$f":"IF($C47=\"NA\",\"\",OFFSET('Combined Annuity Prices CL'!$B$10,MATCH($B47,'Combined Annuity Prices CL'!$B$10:$B$3811,0)+12,E$7))","v":12.782999999999999},null,0,0,null,{"$f":"IFERROR(VLOOKUP($B47,Volumes!$B$4:$F$32,MATCH(J$9,Volumes!$B$4:$F$4,0),FALSE),0)","v":0},{"$f":"IFERROR(VLOOKUP($B47,Volumes!$B$4:$F$32,MATCH(K$9,Volumes!$B$4:$F$4,0),FALSE),0)","v":0},null,0,0]
[null,{"$f":"Inputs!$C107","v":"25W LED Decorative - Side Entry"},"Not Offered",{"$f":"IF($C48=\"NA\",\"\",OFFSET('Combined Annuity Prices CL'!$B$10,MATCH($B48,'Combined Annuity Prices CL'!$B$10:$B$3811,0)+12,D$7))","v":12.766},{"$f":"IF($C48=\"NA\",\"\",OFFSET('Combined Annuity Prices CL'!$B$10,MATCH($B48,'Combined Annuity Prices CL'!$B$10:$B$3811,0)+12,E$7))","v":12.782999999999999},null,0,0,null,{"$f":"IFERROR(VLOOKUP($B48,Volumes!$B$4:$F$32,MATCH(J$9,Volumes!$B$4:$F$4,0),FALSE),0)","v":0},{"$f":"IFERROR(VLOOKUP($B48,Volumes!$B$4:$F$32,MATCH(K$9,Volumes!$B$4:$F$4,0),FALSE),0)","v":0},null,0,0]
[null,{"$f":"Inputs!$C108","v":"25W LED Decorative - Top Entry"},"Not Offered",{"$f":"IF($C49=\"NA\",\"\",OFFSET('Combined Annuity Prices CL'!$B$10,MATCH($B49,'Combined Annuity Prices CL'!$B$10:$B$3811,0)+12,D$7))","v":12.766},{"$f":"IF($C49=\"NA\",\"\",OFFSET('Combined Annuity Prices CL'!$B$10,MATCH($B49,'Combined Annuity Prices CL'!$B$10:$B$3811,0)+12,E$7))","v":12.782999999999999},null,0,0,null,{"$f":"IFERROR(VLOOKUP($B49,Volumes!$B$4:$F$32,MATCH(J$9,Volumes!$B$4:$F$4,0),FALSE),0)","v":0},{"$f":"IFERROR(VLOOKUP($B49,Volumes!$B$4:$F$32,MATCH(K$9,Volumes!$B$4:$F$4,0),FALSE),0)","v":0},null,0,0]
[null,{"$f":"Inputs!$C109","v":"30W LED"},"Offered",{"$f":"IF($C50=\"NA\",\"\",OFFSET('Combined Annuity Prices CL'!$B$10,MATCH($B50,'Combined Annuity Prices CL'!$B$10:$B$3811,0)+12,D$7))","v":12.766},{"$f":"IF($C50=\"NA\",\"\",OFFSET('Combined Annuity Prices CL'!$B$10,MATCH($B50,'Combined Annuity Prices CL'!$B$10:$B$3811,0)+12,E$7))","v":12.782999999999999},null,1.4910688E-3,1.4930544000000001E-3,null,{"$f":"IFERROR(VLOOKUP($B50,Volumes!$B$4:$F$32,MATCH(J$9,Volumes!$B$4:$F$4,0),FALSE),0)","v":32},{"$f":"IFERROR(VLOOKUP($B50,Volumes!$B$4:$F$32,MATCH(K$9,Volumes!$B$4:$F$4,0),FALSE),0)","v":32},null,1.4910688E-3,1.5303807599999998E-3]
[null,{"$f":"Inputs!$C110","v":"88 LED Light"},"Not Offered",{"$f":"IF($C51=\"NA\",\"\",OFFSET('Combined Annuity Prices CL'!$B$10,MATCH($B51,'Combined Annuity Prices CL'!$B$10:$B$3811,0)+12,D$7))","v":12.766},{"$f":"IF($C51=\"NA\",\"\",OFFSET('Combined Annuity Prices CL'!$B$10,MATCH($B51,'Combined Annuity Prices CL'!$B$10:$B$3811,0)+12,E$7))","v":12.782999999999999},null,0,0,null,{"$f":"IFERROR(VLOOKUP($B51,Volumes!$B$4:$F$32,MATCH(J$9,Volumes!$B$4:$F$4,0),FALSE),0)","v":0},{"$f":"IFERROR(VLOOKUP($B51,Volumes!$B$4:$F$32,MATCH(K$9,Volumes!$B$4:$F$4,0),FALSE),0)","v":0},null,0,0]
[null,{"$f":"Inputs!$C111","v":"100W Metal Halide"},"Offered",{"$f":"IF($C52=\"NA\",\"\",OFFSET('Combined Annuity Prices CL'!$B$10,MATCH($B52,'Combined Annuity Prices CL'!$B$10:$B$3811,0)+12,D$7))","v":22.81},{"$f":"IF($C52=\"NA\",\"\",OFFSET('Combined Annuity Prices CL'!$B$10,MATCH($B52,'Combined Annuity Prices CL'!$B$10:$B$3811,0)+12,E$7))","v":22.827999999999999},null,4.1628250000000003E-4,4.16611E-4,null,{"$f":"IFERROR(VLOOKUP($B52,Volumes!$B$4:$F$32,MATCH(J$9,Volumes!$B$4:$F$4,0),FALSE),0)","v":5},{"$f":"IFERROR(VLOOKUP($B52,Volumes!$B$4:$F$32,MATCH(K$9,Volumes!$B$4:$F$4,0),FALSE),0)","v":5},null,4.1628250000000003E-4,4.2702627499999993E-4]
[null,{"$f":"Inputs!$C112","v":"150W Metal Halide"},"Offered",{"$f":"IF($C53=\"NA\",\"\",OFFSET('Combined Annuity Prices CL'!$B$10,MATCH($B53,'Combined Annuity Prices CL'!$B$10:$B$3811,0)+12,D$7))","v":22.948},{"$f":"IF($C53=\"NA\",\"\",OFFSET('Combined Annuity Prices CL'!$B$10,MATCH($B53,'Combined Annuity Prices CL'!$B$10:$B$3811,0)+12,E$7))","v":22.965},null,2.2615254E-3,2.26320075E-3,null,{"$f":"IFERROR(VLOOKUP($B53,Volumes!$B$4:$F$32,MATCH(J$9,Volumes!$B$4:$F$4,0),FALSE),0)","v":27},{"$f":"IFERROR(VLOOKUP($B53,Volumes!$B$4:$F$32,MATCH(K$9,Volumes!$B$4:$F$4,0),FALSE),0)","v":27},null,2.2615254E-3,2.3197807687499999E-3]
[null,{"$f":"Inputs!$C113","v":"250W Metal Halide"},"Offered",{"$f":"IF($C54=\"NA\",\"\",OFFSET('Combined Annuity Prices CL'!$B$10,MATCH($B54,'Combined Annuity Prices CL'!$B$10:$B$3811,0)+12,D$7))","v":22.948},{"$f":"IF($C54=\"NA\",\"\",OFFSET('Combined Annuity Prices CL'!$B$10,MATCH($B54,'Combined Annuity Prices CL'!$B$10:$B$3811,0)+12,E$7))","v":22.965},null,3.3504080000000005E-3,3.3528899999999999E-3,null,{"$f":"IFERROR(VLOOKUP($B54,Volumes!$B$4:$F$32,MATCH(J$9,Volumes!$B$4:$F$4,0),FALSE),0)","v":40},{"$f":"IFERROR(VLOOKUP($B54,Volumes!$B$4:$F$32,MATCH(K$9,Volumes!$B$4:$F$4,0),FALSE),0)","v":40},null,3.3504080000000005E-3,3.4367122499999996E-3]
[null,{"$f":"Inputs!$C114","v":"400W Metal Halide"},"Offered",{"$f":"IF($C55=\"NA\",\"\",OFFSET('Combined Annuity Prices CL'!$B$10,MATCH($B55,'Combined Annuity Prices CL'!$B$10:$B$3811,0)+12,D$7))","v":23.605},{"$f":"IF($C55=\"NA\",\"\",OFFSET('Combined Annuity Prices CL'!$B$10,MATCH($B55,'Combined Annuity Prices CL'!$B$10:$B$3811,0)+12,E$7))","v":23.623000000000001},null,7.7542425000000001E-4,7.7601554999999999E-4,null,{"$f":"IFERROR(VLOOKUP($B55,Volumes!$B$4:$F$32,MATCH(J$9,Volumes!$B$4:$F$4,0),FALSE),0)","v":9},{"$f":"IFERROR(VLOOKUP($B55,Volumes!$B$4:$F$32,MATCH(K$9,Volumes!$B$4:$F$4,0),FALSE),0)","v":9},null,7.7542425000000001E-4,7.9541593874999988E-4]
[null,{"$f":"Inputs!$C115","v":"70W Metal Halide"},"Old light no volumes",{"$f":"IF($C56=\"NA\",\"\",OFFSET('Combined Annuity Prices CL'!$B$10,MATCH($B56,'Combined Annuity Prices CL'!$B$10:$B$3811,0)+12,D$7))","v":19.242999999999999},{"$f":"IF($C56=\"NA\",\"\",OFFSET('Combined Annuity Prices CL'!$B$10,MATCH($B56,'Combined Annuity Prices CL'!$B$10:$B$3811,0)+12,E$7))","v":19.260999999999999},null,0,0,null,{"$f":"IFERROR(VLOOKUP($B56,Volumes!$B$4:$F$32,MATCH(J$9,Volumes!$B$4:$F$4,0),FALSE),0)","v":0},{"$f":"IFERROR(VLOOKUP($B56,Volumes!$B$4:$F$32,MATCH(K$9,Volumes!$B$4:$F$4,0),FALSE),0)","v":0},null,0,0]
[null,{"$f":"Inputs!$C116","v":"250W Metal Halide - Flood Light"},"Old light no volumes",{"$f":"IF($C57=\"NA\",\"\",OFFSET('Combined Annuity Prices CL'!$B$10,MATCH($B57,'Combined Annuity Prices CL'!$B$10:$B$3811,0)+12,D$7))","v":22.948},{"$f":"IF($C57=\"NA\",\"\",OFFSET('Combined Annuity Prices CL'!$B$10,MATCH($B57,'Combined Annuity Prices CL'!$B$10:$B$3811,0)+12,E$7))","v":22.965},null,0,0,null,{"$f":"IFERROR(VLOOKUP($B57,Volumes!$B$4:$F$32,MATCH(J$9,Volumes!$B$4:$F$4,0),FALSE),0)","v":0},{"$f":"IFERROR(VLOOKUP($B57,Volumes!$B$4:$F$32,MATCH(K$9,Volumes!$B$4:$F$4,0),FALSE),0)","v":0},null,0,0]
[null,{"$f":"Inputs!$C117","v":"400W Metal Halide - Flood Light"},"Old light no volumes",{"$f":"IF($C58=\"NA\",\"\",OFFSET('Combined Annuity Prices CL'!$B$10,MATCH($B58,'Combined Annuity Prices CL'!$B$10:$B$3811,0)+12,D$7))","v":23.605},{"$f":"IF($C58=\"NA\",\"\",OFFSET('Combined Annuity Prices CL'!$B$10,MATCH($B58,'Combined Annuity Prices CL'!$B$10:$B$3811,0)+12,E$7))","v":23.623000000000001},null,0,0,null,{"$f":"IFERROR(VLOOKUP($B58,Volumes!$B$4:$F$32,MATCH(J$9,Volumes!$B$4:$F$4,0),FALSE),0)","v":0},{"$f":"IFERROR(VLOOKUP($B58,Volumes!$B$4:$F$32,MATCH(K$9,Volumes!$B$4:$F$4,0),FALSE),0)","v":0},null,0,0]
[null,{"$f":"Inputs!$C118","v":"125W Mercury Vapour"},"Obsolete, no new Connections",{"$f":"IF($C59=\"NA\",\"\",OFFSET('Combined Annuity Prices CL'!$B$10,MATCH($B59,'Combined Annuity Prices CL'!$B$10:$B$3811,0)+12,D$7))","v":21.962},{"$f":"IF($C59=\"NA\",\"\",OFFSET('Combined Annuity Prices CL'!$B$10,MATCH($B59,'Combined Annuity Prices CL'!$B$10:$B$3811,0)+12,E$7))","v":21.978999999999999},null,2.6212745099999997E-2,2.5671471999999997E-2,null,{"$f":"IFERROR(VLOOKUP($B59,Volumes!$B$4:$F$32,MATCH(J$9,Volumes!$B$4:$F$4,0),FALSE),0)","v":327},{"$f":"IFERROR(VLOOKUP($B59,Volumes!$B$4:$F$32,MATCH(K$9,Volumes!$B$4:$F$4,0),FALSE),0)","v":320},null,2.6212745099999997E-2,2.6313258799999999E-2]
[null,{"$f":"Inputs!$C119","v":"250W Mercury Vapour"},"Obsolete, no new Connections",{"$f":"IF($C60=\"NA\",\"\",OFFSET('Combined Annuity Prices CL'!$B$10,MATCH($B60,'Combined Annuity Prices CL'!$B$10:$B$3811,0)+12,D$7))","v":21.962},{"$f":"IF($C60=\"NA\",\"\",OFFSET('Combined Annuity Prices CL'!$B$10,MATCH($B60,'Combined Annuity Prices CL'!$B$10:$B$3811,0)+12,E$7))","v":21.978999999999999},null,2.2445163999999999E-3,2.2462538E-3,null,{"$f":"IFERROR(VLOOKUP($B60,Volumes!$B$4:$F$32,MATCH(J$9,Volumes!$B$4:$F$4,0),FALSE),0)","v":28},{"$f":"IFERROR(VLOOKUP($B60,Volumes!$B$4:$F$32,MATCH(K$9,Volumes!$B$4:$F$4,0),FALSE),0)","v":28},null,2.2445163999999999E-3,2.3024101449999998E-3]
[null,{"$f":"Inputs!$C120","v":0},"NA",{"$f":"IF($C61=\"NA\",\"\",OFFSET('Combined Annuity Prices CL'!$B$10,MATCH($B61,'Combined Annuity Prices CL'!$B$10:$B$3811,0)+12,D$7))","v":""},{"$f":"IF($C61=\"NA\",\"\",OFFSET('Combined Annuity Prices CL'!$B$10,MATCH($B61,'Combined Annuity Prices CL'!$B$10:$B$3811,0)+12,E$7))","v":""},null,"","",null,{"$f":"IFERROR(VLOOKUP($B61,Volumes!$B$4:$F$32,MATCH(J$9,Volumes!$B$4:$F$4,0),FALSE),0)","v":0},{"$f":"IFERROR(VLOOKUP($B61,Volumes!$B$4:$F$32,MATCH(K$9,Volumes!$B$4:$F$4,0),FALSE),0)","v":0},null,"",""]
[null,{"$f":"Inputs!$C121","v":"400W Mercury Vapour"},"Obsolete, no new Connections",{"$f":"IF($C62=\"NA\",\"\",OFFSET('Combined Annuity Prices CL'!$B$10,MATCH($B62,'Combined Annuity Prices CL'!$B$10:$B$3811,0)+12,D$7))","v":22.106000000000002},{"$f":"IF($C62=\"NA\",\"\",OFFSET('Combined Annuity Prices CL'!$B$10,MATCH($B62,'Combined Annuity Prices CL'!$B$10:$B$3811,0)+12,E$7))","v":22.123000000000001},null,1.7751118000000001E-3,1.6957279500000003E-3,null,{"$f":"IFERROR(VLOOKUP($B62,Volumes!$B$4:$F$32,MATCH(J$9,Volumes!$B$4:$F$4,0),FALSE),0)","v":22},{"$f":"IFERROR(VLOOKUP($B62,Volumes!$B$4:$F$32,MATCH(K$9,Volumes!$B$4:$F$4,0),FALSE),0)","v":21},null,1.7751118000000001E-3,1.73812114875E-3]
[null,{"$f":"Inputs!$C122","v":"50W Mercury Vapour"},"Obsolete, no new Connections",{"$f":"IF($C63=\"NA\",\"\",OFFSET('Combined Annuity Prices CL'!$B$10,MATCH($B63,'Combined Annuity Prices CL'!$B$10:$B$3811,0)+12,D$7))","v":18.439},{"$f":"IF($C63=\"NA\",\"\",OFFSET('Combined Annuity Prices CL'!$B$10,MATCH($B63,'Combined Annuity Prices CL'!$B$10:$B$3811,0)+12,E$7))","v":18.457000000000001},null,1.2652841800000002E-2,1.2395721200000001E-2,null,{"$f":"IFERROR(VLOOKUP($B63,Volumes!$B$4:$F$32,MATCH(J$9,Volumes!$B$4:$F$4,0),FALSE),0)","v":188},{"$f":"IFERROR(VLOOKUP($B63,Volumes!$B$4:$F$32,MATCH(K$9,Volumes!$B$4:$F$4,0),FALSE),0)","v":184},null,1.2652841800000002E-2,1.2705614229999999E-2]
[null,{"$f":"Inputs!$C123","v":"80W Mercury Vapour Art decorative"},"Old light no volumes",{"$f":"IF($C64=\"NA\",\"\",OFFSET('Combined Annuity Prices CL'!$B$10,MATCH($B64,'Combined Annuity Prices CL'!$B$10:$B$3811,0)+12,D$7))","v":18.41},{"$f":"IF($C64=\"NA\",\"\",OFFSET('Combined Annuity Prices CL'!$B$10,MATCH($B64,'Combined Annuity Prices CL'!$B$10:$B$3811,0)+12,E$7))","v":18.427},null,0,0,null,{"$f":"IFERROR(VLOOKUP($B64,Volumes!$B$4:$F$32,MATCH(J$9,Volumes!$B$4:$F$4,0),FALSE),0)","v":0},{"$f":"IFERROR(VLOOKUP($B64,Volumes!$B$4:$F$32,MATCH(K$9,Volumes!$B$4:$F$4,0),FALSE),0)","v":0},null,0,0]
[null,{"$f":"Inputs!$C124","v":"80W Mercury Vapour"},"Obsolete, no new Connections",{"$f":"IF($C65=\"NA\",\"\",OFFSET('Combined Annuity Prices CL'!$B$10,MATCH($B65,'Combined Annuity Prices CL'!$B$10:$B$3811,0)+12,D$7))","v":18.41},{"$f":"IF($C65=\"NA\",\"\",OFFSET('Combined Annuity Prices CL'!$B$10,MATCH($B65,'Combined Annuity Prices CL'!$B$10:$B$3811,0)+12,E$7))","v":18.427},null,2.3518775000000002E-2,2.3069682650000003E-2,null,{"$f":"IFERROR(VLOOKUP($B65,Volumes!$B$4:$F$32,MATCH(J$9,Volumes!$B$4:$F$4,0),FALSE),0)","v":350},{"$f":"IFERROR(VLOOKUP($B65,Volumes!$B$4:$F$32,MATCH(K$9,Volumes!$B$4:$F$4,0),FALSE),0)","v":343},null,2.3518775000000002E-2,2.3646424716249996E-2]
[null,null,null,null,null,null,null,null,null,null,null,null,0,0]
[null,null,null,null,null,null,{"$f":"SUM(G10:G66)","v":0.33945964694999997},0.34071073190000001,null,{"$f":"SUM(J10:J66)","v":6329},6358,null,{"$f":"SUM(M10:M66)","v":0.33945964694999997},0.34922850019749996]
[null,null,null,null,null,null,null,null,null,{"$f":"Volumes!E33=J67","v":true},{"$f":"Volumes!F33=K67","v":true}]
[null,"Public Road Lights",{"$f":"C8","v":"Price (cents) per Light per day"},null,null,null,{"$f":"G8","v":"Revenue ($m)  - Real"},null,null,null,null,null,"Revenue ($m)  - Nominal"]
[null,null,"Offered / No Longer Offered / NA",{"$f":"'Master Data'!I$29","v":"2017-18"},{"$f":"'Master Data'!J$29","v":"2018-19"},null,{"$f":"G9","v":"2017-18"},"2018-19",null,{"$f":"J9","v":"2017-18"},"2018-19",null,{"$f":"'Master Data'!I$29","v":"2017-18"},{"$f":"'Master Data'!J$29","v":"2018-19"}]
[null,{"$f":"Inputs!$C69","v":"32W Compact Fluorescent"},"No Longer Offered",{"$f":"IF($C71=\"NA\",\"\",IF($B71=0,\"\",OFFSET('Combined Annuity Prices PL'!$B$10,MATCH($B71,'Combined Annuity Prices PL'!$B$10:$B$3811,0)+12,D$7)))","v":35.420999999999999},{"$f":"IF($C71=\"NA\",\"\",IF($B71=0,\"\",OFFSET('Combined Annuity Prices PL'!$B$10,MATCH($B71,'Combined Annuity Prices PL'!$B$10:$B$3811,0)+12,E$7)))","v":35.661000000000001},null,{"$f":"IF($C71=\"NA\",\"\",D71*J71*G$6/100/10^6)","v":0},{"$f":"IF($C71=\"NA\",\"\",E71*K71*H$6/100/10^6)","v":0},null,{"$f":"IFERROR(VLOOKUP($B71,Volumes!$B$38:$F$79,MATCH(J$9,Volumes!$B$4:$F$4,0),FALSE),0)","v":0},{"$f":"IFERROR(VLOOKUP($B71,Volumes!$B$38:$F$79,MATCH(K$9,Volumes!$B$4:$F$4,0),FALSE),0)","v":0},null,{"$f":"IF($C71=\"NA\",\"\",D71*M$7*J71*G$6/100/10^6)","v":0},{"$f":"IF($C71=\"NA\",\"\",E71*N$7*K71*H$6/100/10^6)","v":0}]
[null,{"$f":"Inputs!$C70","v":"42W Compact Fluorescent"},"Offered",{"$f":"IF($C72=\"NA\",\"\",IF($B72=0,\"\",OFFSET('Combined Annuity Prices PL'!$B$10,MATCH($B72,'Combined Annuity Prices PL'!$B$10:$B$3811,0)+12,D$7)))","v":35.445},{"$f":"IF($C72=\"NA\",\"\",IF($B72=0,\"\",OFFSET('Combined Annuity Prices PL'!$B$10,MATCH($B72,'Combined Annuity Prices PL'!$B$10:$B$3811,0)+12,E$7)))","v":35.685000000000002},null,0.73795072200000011,0.70582610475000007,null,{"$f":"IFERROR(VLOOKUP($B72,Volumes!$B$38:$F$79,MATCH(J$9,Volumes!$B$4:$F$4,0),FALSE),0)","v":5704},{"$f":"IFERROR(VLOOKUP($B72,Volumes!$B$38:$F$79,MATCH(K$9,Volumes!$B$4:$F$4,0),FALSE),0)","v":5419},null,0.73795072200000011,0.72347175736874991]
[null,{"$f":"Inputs!$C71","v":"42W Compact Fluorescent - Bottom Pole Entry"},"No Longer Offered",{"$f":"IF($C73=\"NA\",\"\",IF($B73=0,\"\",OFFSET('Combined Annuity Prices PL'!$B$10,MATCH($B73,'Combined Annuity Prices PL'!$B$10:$B$3811,0)+12,D$7)))","v":35.445},{"$f":"IF($C73=\"NA\",\"\",IF($B73=0,\"\",OFFSET('Combined Annuity Prices PL'!$B$10,MATCH($B73,'Combined Annuity Prices PL'!$B$10:$B$3811,0)+12,E$7)))","v":35.685000000000002},null,1.5524909999999998E-2,2.2142542500000004E-2,null,{"$f":"IFERROR(VLOOKUP($B73,Volumes!$B$38:$F$79,MATCH(J$9,Volumes!$B$4:$F$4,0),FALSE),0)","v":120},{"$f":"IFERROR(VLOOKUP($B73,Volumes!$B$38:$F$79,MATCH(K$9,Volumes!$B$4:$F$4,0),FALSE),0)","v":170},null,1.5524909999999998E-2,2.2696106062500002E-2]
[null,{"$f":"Inputs!$C72","v":"2x24W Compact Fluorescent"},"Old light no volumes",{"$f":"IF($C74=\"NA\",\"\",IF($B74=0,\"\",OFFSET('Combined Annuity Prices PL'!$B$10,MATCH($B74,'Combined Annuity Prices PL'!$B$10:$B$3811,0)+12,D$7)))","v":35.746000000000002},{"$f":"IF($C74=\"NA\",\"\",IF($B74=0,\"\",OFFSET('Combined Annuity Prices PL'!$B$10,MATCH($B74,'Combined Annuity Prices PL'!$B$10:$B$3811,0)+12,E$7)))","v":35.985999999999997},null,0,0,null,{"$f":"IFERROR(VLOOKUP($B74,Volumes!$B$38:$F$79,MATCH(J$9,Volumes!$B$4:$F$4,0),FALSE),0)","v":0},{"$f":"IFERROR(VLOOKUP($B74,Volumes!$B$38:$F$79,MATCH(K$9,Volumes!$B$4:$F$4,0),FALSE),0)","v":0},null,0,0]
[null,{"$f":"Inputs!$C73","v":"1x20W Fluorescent"},"Old light no volumes",{"$f":"IF($C75=\"NA\",\"\",IF($B75=0,\"\",OFFSET('Combined Annuity Prices PL'!$B$10,MATCH($B75,'Combined Annuity Prices PL'!$B$10:$B$3811,0)+12,D$7)))","v":37.396000000000001},{"$f":"IF($C75=\"NA\",\"\",IF($B75=0,\"\",OFFSET('Combined Annuity Prices PL'!$B$10,MATCH($B75,'Combined Annuity Prices PL'!$B$10:$B$3811,0)+12,E$7)))","v":37.636000000000003},null,0,0,null,{"$f":"IFERROR(VLOOKUP($B75,Volumes!$B$38:$F$79,MATCH(J$9,Volumes!$B$4:$F$4,0),FALSE),0)","v":0},{"$f":"IFERROR(VLOOKUP($B75,Volumes!$B$38:$F$79,MATCH(K$9,Volumes!$B$4:$F$4,0),FALSE),0)","v":0},null,0,0]
[null,{"$f":"Inputs!$C74","v":"1x40W Fluorescent"},"Old light no volumes",{"$f":"IF($C76=\"NA\",\"\",IF($B76=0,\"\",OFFSET('Combined Annuity Prices PL'!$B$10,MATCH($B76,'Combined Annuity Prices PL'!$B$10:$B$3811,0)+12,D$7)))","v":36.253},{"$f":"IF($C76=\"NA\",\"\",IF($B76=0,\"\",OFFSET('Combined Annuity Prices PL'!$B$10,MATCH($B76,'Combined Annuity Prices PL'!$B$10:$B$3811,0)+12,E$7)))","v":36.493000000000002},null,0,0,null,{"$f":"IFERROR(VLOOKUP($B76,Volumes!$B$38:$F$79,MATCH(J$9,Volumes!$B$4:$F$4,0),FALSE),0)","v":0},{"$f":"IFERROR(VLOOKUP($B76,Volumes!$B$38:$F$79,MATCH(K$9,Volumes!$B$4:$F$4,0),FALSE),0)","v":0},null,0,0]
[null,{"$f":"Inputs!$C75","v":"2x20W Fluorescent"},"Old light no volumes",{"$f":"IF($C77=\"NA\",\"\",IF($B77=0,\"\",OFFSET('Combined Annuity Prices PL'!$B$10,MATCH($B77,'Combined Annuity Prices PL'!$B$10:$B$3811,0)+12,D$7)))","v":37.686},{"$f":"IF($C77=\"NA\",\"\",IF($B77=0,\"\",OFFSET('Combined Annuity Prices PL'!$B$10,MATCH($B77,'Combined Annuity Prices PL'!$B$10:$B$3811,0)+12,E$7)))","v":37.927},null,0,0,null,{"$f":"IFERROR(VLOOKUP($B77,Volumes!$B$38:$F$79,MATCH(J$9,Volumes!$B$4:$F$4,0),FALSE),0)","v":0},{"$f":"IFERROR(VLOOKUP($B77,Volumes!$B$38:$F$79,MATCH(K$9,Volumes!$B$4:$F$4,0),FALSE),0)","v":0},null,0,0]
[null,{"$f":"Inputs!$C76","v":"2x24W Fluorescent"},"Old light no volumes",{"$f":"IF($C78=\"NA\",\"\",IF($B78=0,\"\",OFFSET('Combined Annuity Prices PL'!$B$10,MATCH($B78,'Combined Annuity Prices PL'!$B$10:$B$3811,0)+12,D$7)))","v":37.606000000000002},{"$f":"IF($C78=\"NA\",\"\",IF($B78=0,\"\",OFFSET('Combined Annuity Prices PL'!$B$10,MATCH($B78,'Combined Annuity Prices PL'!$B$10:$B$3811,0)+12,E$7)))","v":37.845999999999997},null,0,0,null,{"$f":"IFERROR(VLOOKUP($B78,Volumes!$B$38:$F$79,MATCH(J$9,Volumes!$B$4:$F$4,0),FALSE),0)","v":0},{"$f":"IFERROR(VLOOKUP($B78,Volumes!$B$38:$F$79,MATCH(K$9,Volumes!$B$4:$F$4,0),FALSE),0)","v":0},null,0,0]
[null,{"$f":"Inputs!$C77","v":"T5 Fluorescent 2 x 24W"},"Obsolete, no new Connections",{"$f":"IF($C79=\"NA\",\"\",IF($B79=0,\"\",OFFSET('Combined Annuity Prices PL'!$B$10,MATCH($B79,'Combined Annuity Prices PL'!$B$10:$B$3811,0)+12,D$7)))","v":37.686},{"$f":"IF($C79=\"NA\",\"\",IF($B79=0,\"\",OFFSET('Combined Annuity Prices PL'!$B$10,MATCH($B79,'Combined Annuity Prices PL'!$B$10:$B$3811,0)+12,E$7)))","v":37.927},null,1.1416973700000001E-2,1.1489984649999998E-2,null,{"$f":"IFERROR(VLOOKUP($B79,Volumes!$B$38:$F$79,MATCH(J$9,Volumes!$B$4:$F$4,0),FALSE),0)","v":83},{"$f":"IFERROR(VLOOKUP($B79,Volumes!$B$38:$F$79,MATCH(K$9,Volumes!$B$4:$F$4,0),FALSE),0)","v":83},null,1.1416973700000001E-2,1.1777234266250002E-2]
[null,{"$f":"Inputs!$C78","v":"20 Fluorescent 1X20FL"},"Old light no volumes",{"$f":"IF($C80=\"NA\",\"\",IF($B80=0,\"\",OFFSET('Combined Annuity Prices PL'!$B$10,MATCH($B80,'Combined Annuity Prices PL'!$B$10:$B$3811,0)+12,D$7)))","v":37.396000000000001},{"$f":"IF($C80=\"NA\",\"\",IF($B80=0,\"\",OFFSET('Combined Annuity Prices PL'!$B$10,MATCH($B80,'Combined Annuity Prices PL'!$B$10:$B$3811,0)+12,E$7)))","v":37.636000000000003},null,0,0,null,{"$f":"IFERROR(VLOOKUP($B80,Volumes!$B$38:$F$79,MATCH(J$9,Volumes!$B$4:$F$4,0),FALSE),0)","v":0},{"$f":"IFERROR(VLOOKUP($B80,Volumes!$B$38:$F$79,MATCH(K$9,Volumes!$B$4:$F$4,0),FALSE),0)","v":0},null,0,0]
[null,{"$f":"Inputs!$C79","v":"2x40W Fluorescent"},"Old light no volumes",{"$f":"IF($C81=\"NA\",\"\",IF($B81=0,\"\",OFFSET('Combined Annuity Prices PL'!$B$10,MATCH($B81,'Combined Annuity Prices PL'!$B$10:$B$3811,0)+12,D$7)))","v":36.561999999999998},{"$f":"IF($C81=\"NA\",\"\",IF($B81=0,\"\",OFFSET('Combined Annuity Prices PL'!$B$10,MATCH($B81,'Combined Annuity Prices PL'!$B$10:$B$3811,0)+12,E$7)))","v":36.802999999999997},null,0,0,null,{"$f":"IFERROR(VLOOKUP($B81,Volumes!$B$38:$F$79,MATCH(J$9,Volumes!$B$4:$F$4,0),FALSE),0)","v":0},{"$f":"IFERROR(VLOOKUP($B81,Volumes!$B$38:$F$79,MATCH(K$9,Volumes!$B$4:$F$4,0),FALSE),0)","v":0},null,0,0]
[null,{"$f":"Inputs!$C80","v":"3x40W Fluorescent"},"Old light no volumes",{"$f":"IF($C82=\"NA\",\"\",IF($B82=0,\"\",OFFSET('Combined Annuity Prices PL'!$B$10,MATCH($B82,'Combined Annuity Prices PL'!$B$10:$B$3811,0)+12,D$7)))","v":42.930999999999997},{"$f":"IF($C82=\"NA\",\"\",IF($B82=0,\"\",OFFSET('Combined Annuity Prices PL'!$B$10,MATCH($B82,'Combined Annuity Prices PL'!$B$10:$B$3811,0)+12,E$7)))","v":43.170999999999999},null,0,0,null,{"$f":"IFERROR(VLOOKUP($B82,Volumes!$B$38:$F$79,MATCH(J$9,Volumes!$B$4:$F$4,0),FALSE),0)","v":0},{"$f":"IFERROR(VLOOKUP($B82,Volumes!$B$38:$F$79,MATCH(K$9,Volumes!$B$4:$F$4,0),FALSE),0)","v":0},null,0,0]
[null,{"$f":"Inputs!$C81","v":"4x20 Fluorescent"},"Old light no volumes",{"$f":"IF($C83=\"NA\",\"\",IF($B83=0,\"\",OFFSET('Combined Annuity Prices PL'!$B$10,MATCH($B83,'Combined Annuity Prices PL'!$B$10:$B$3811,0)+12,D$7)))","v":38.267000000000003},{"$f":"IF($C83=\"NA\",\"\",IF($B83=0,\"\",OFFSET('Combined Annuity Prices PL'!$B$10,MATCH($B83,'Combined Annuity Prices PL'!$B$10:$B$3811,0)+12,E$7)))","v":38.508000000000003},null,0,0,null,{"$f":"IFERROR(VLOOKUP($B83,Volumes!$B$38:$F$79,MATCH(J$9,Volumes!$B$4:$F$4,0),FALSE),0)","v":0},{"$f":"IFERROR(VLOOKUP($B83,Volumes!$B$38:$F$79,MATCH(K$9,Volumes!$B$4:$F$4,0),FALSE),0)","v":0},null,0,0]
[null,{"$f":"Inputs!$C82","v":"4x40W Fluorescent"},"Old light no volumes",{"$f":"IF($C84=\"NA\",\"\",IF($B84=0,\"\",OFFSET('Combined Annuity Prices PL'!$B$10,MATCH($B84,'Combined Annuity Prices PL'!$B$10:$B$3811,0)+12,D$7)))","v":47.350999999999999},{"$f":"IF($C84=\"NA\",\"\",IF($B84=0,\"\",OFFSET('Combined Annuity Prices PL'!$B$10,MATCH($B84,'Combined Annuity Prices PL'!$B$10:$B$3811,0)+12,E$7)))","v":47.591000000000001},null,0,0,null,{"$f":"IFERROR(VLOOKUP($B84,Volumes!$B$38:$F$79,MATCH(J$9,Volumes!$B$4:$F$4,0),FALSE),0)","v":0},{"$f":"IFERROR(VLOOKUP($B84,Volumes!$B$38:$F$79,MATCH(K$9,Volumes!$B$4:$F$4,0),FALSE),0)","v":0},null,0,0]
[null,{"$f":"Inputs!$C83","v":"100W Sodium Vapour"},"Offered",{"$f":"IF($C85=\"NA\",\"\",IF($B85=0,\"\",OFFSET('Combined Annuity Prices PL'!$B$10,MATCH($B85,'Combined Annuity Prices PL'!$B$10:$B$3811,0)+12,D$7)))","v":44.734999999999999},{"$f":"IF($C85=\"NA\",\"\",IF($B85=0,\"\",OFFSET('Combined Annuity Prices PL'!$B$10,MATCH($B85,'Combined Annuity Prices PL'!$B$10:$B$3811,0)+12,E$7)))","v":44.975000000000001},null,6.5802948249999993E-2,6.9439151249999997E-2,null,{"$f":"IFERROR(VLOOKUP($B85,Volumes!$B$38:$F$79,MATCH(J$9,Volumes!$B$4:$F$4,0),FALSE),0)","v":403},{"$f":"IFERROR(VLOOKUP($B85,Volumes!$B$38:$F$79,MATCH(K$9,Volumes!$B$4:$F$4,0),FALSE),0)","v":423},null,6.5802948249999993E-2,7.1175130031249992E-2]
[null,{"$f":"Inputs!$C84","v":0},"NA",{"$f":"IF($C86=\"NA\",\"\",IF($B86=0,\"\",OFFSET('Combined Annuity Prices PL'!$B$10,MATCH($B86,'Combined Annuity Prices PL'!$B$10:$B$3811,0)+12,D$7)))","v":""},{"$f":"IF($C86=\"NA\",\"\",IF($B86=0,\"\",OFFSET('Combined Annuity Prices PL'!$B$10,MATCH($B86,'Combined Annuity Prices PL'!$B$10:$B$3811,0)+12,E$7)))","v":""},null,"","",null,{"$f":"IFERROR(VLOOKUP($B86,Volumes!$B$38:$F$79,MATCH(J$9,Volumes!$B$4:$F$4,0),FALSE),0)","v":0},{"$f":"IFERROR(VLOOKUP($B86,Volumes!$B$38:$F$79,MATCH(K$9,Volumes!$B$4:$F$4,0),FALSE),0)","v":0},null,"",""]
[null,{"$f":"Inputs!$C85","v":"150W Sodium Vapour"},"Offered",{"$f":"IF($C87=\"NA\",\"\",IF($B87=0,\"\",OFFSET('Combined Annuity Prices PL'!$B$10,MATCH($B87,'Combined Annuity Prices PL'!$B$10:$B$3811,0)+12,D$7)))","v":46.93},{"$f":"IF($C87=\"NA\",\"\",IF($B87=0,\"\",OFFSET('Combined Annuity Prices PL'!$B$10,MATCH($B87,'Combined Annuity Prices PL'!$B$10:$B$3811,0)+12,E$7)))","v":47.17},null,0.82683855149999996,0.87273226450000008,null,{"$f":"IFERROR(VLOOKUP($B87,Volumes!$B$38:$F$79,MATCH(J$9,Volumes!$B$4:$F$4,0),FALSE),0)","v":4827},{"$f":"IFERROR(VLOOKUP($B87,Volumes!$B$38:$F$79,MATCH(K$9,Volumes!$B$4:$F$4,0),FALSE),0)","v":5069},null,0.82683855149999996,0.89455057111250003]
[null,{"$f":"Inputs!$C86","v":0},"NA",{"$f":"IF($C88=\"NA\",\"\",IF($B88=0,\"\",OFFSET('Combined Annuity Prices PL'!$B$10,MATCH($B88,'Combined Annuity Prices PL'!$B$10:$B$3811,0)+12,D$7)))","v":""},{"$f":"IF($C88=\"NA\",\"\",IF($B88=0,\"\",OFFSET('Combined Annuity Prices PL'!$B$10,MATCH($B88,'Combined Annuity Prices PL'!$B$10:$B$3811,0)+12,E$7)))","v":""},null,"","",null,{"$f":"IFERROR(VLOOKUP($B88,Volumes!$B$38:$F$79,MATCH(J$9,Volumes!$B$4:$F$4,0),FALSE),0)","v":0},{"$f":"IFERROR(VLOOKUP($B88,Volumes!$B$38:$F$79,MATCH(K$9,Volumes!$B$4:$F$4,0),FALSE),0)","v":0},null,"",""]
[null,{"$f":"Inputs!$C87","v":0},"NA",{"$f":"IF($C89=\"NA\",\"\",IF($B89=0,\"\",OFFSET('Combined Annuity Prices PL'!$B$10,MATCH($B89,'Combined Annuity Prices PL'!$B$10:$B$3811,0)+12,D$7)))","v":""},{"$f":"IF($C89=\"NA\",\"\",IF($B89=0,\"\",OFFSET('Combined Annuity Prices PL'!$B$10,MATCH($B89,'Combined Annuity Prices PL'!$B$10:$B$3811,0)+12,E$7)))","v":""},null,"","",null,{"$f":"IFERROR(VLOOKUP($B89,Volumes!$B$38:$F$79,MATCH(J$9,Volumes!$B$4:$F$4,0),FALSE),0)","v":0},{"$f":"IFERROR(VLOOKUP($B89,Volumes!$B$38:$F$79,MATCH(K$9,Volumes!$B$4:$F$4,0),FALSE),0)","v":0},null,"",""]
[null,{"$f":"Inputs!$C88","v":0},"NA",{"$f":"IF($C90=\"NA\",\"\",IF($B90=0,\"\",OFFSET('Combined Annuity Prices PL'!$B$10,MATCH($B90,'Combined Annuity Prices PL'!$B$10:$B$3811,0)+12,D$7)))","v":""},{"$f":"IF($C90=\"NA\",\"\",IF($B90=0,\"\",OFFSET('Combined Annuity Prices PL'!$B$10,MATCH($B90,'Combined Annuity Prices PL'!$B$10:$B$3811,0)+12,E$7)))","v":""},null,"","",null,{"$f":"IFERROR(VLOOKUP($B90,Volumes!$B$38:$F$79,MATCH(J$9,Volumes!$B$4:$F$4,0),FALSE),0)","v":0},{"$f":"IFERROR(VLOOKUP($B90,Volumes!$B$38:$F$79,MATCH(K$9,Volumes!$B$4:$F$4,0),FALSE),0)","v":0},null,"",""]
[null,{"$f":"Inputs!$C89","v":"250W Sodium Vapour"},"Offered",{"$f":"IF($C91=\"NA\",\"\",IF($B91=0,\"\",OFFSET('Combined Annuity Prices PL'!$B$10,MATCH($B91,'Combined Annuity Prices PL'!$B$10:$B$3811,0)+12,D$7)))","v":48.002000000000002},{"$f":"IF($C91=\"NA\",\"\",IF($B91=0,\"\",OFFSET('Combined Annuity Prices PL'!$B$10,MATCH($B91,'Combined Annuity Prices PL'!$B$10:$B$3811,0)+12,E$7)))","v":48.241999999999997},null,1.0512438,1.1093247899999998,null,{"$f":"IFERROR(VLOOKUP($B91,Volumes!$B$38:$F$79,MATCH(J$9,Volumes!$B$4:$F$4,0),FALSE),0)","v":6000},{"$f":"IFERROR(VLOOKUP($B91,Volumes!$B$38:$F$79,MATCH(K$9,Volumes!$B$4:$F$4,0),FALSE),0)","v":6300},null,1.0512438,1.13705790975]
[null,{"$f":"Inputs!$C90","v":0},"NA",{"$f":"IF($C92=\"NA\",\"\",IF($B92=0,\"\",OFFSET('Combined Annuity Prices PL'!$B$10,MATCH($B92,'Combined Annuity Prices PL'!$B$10:$B$3811,0)+12,D$7)))","v":""},{"$f":"IF($C92=\"NA\",\"\",IF($B92=0,\"\",OFFSET('Combined Annuity Prices PL'!$B$10,MATCH($B92,'Combined Annuity Prices PL'!$B$10:$B$3811,0)+12,E$7)))","v":""},null,"","",null,{"$f":"IFERROR(VLOOKUP($B92,Volumes!$B$38:$F$79,MATCH(J$9,Volumes!$B$4:$F$4,0),FALSE),0)","v":0},{"$f":"IFERROR(VLOOKUP($B92,Volumes!$B$38:$F$79,MATCH(K$9,Volumes!$B$4:$F$4,0),FALSE),0)","v":0},null,"",""]
[null,{"$f":"Inputs!$C91","v":0},"NA",{"$f":"IF($C93=\"NA\",\"\",IF($B93=0,\"\",OFFSET('Combined Annuity Prices PL'!$B$10,MATCH($B93,'Combined Annuity Prices PL'!$B$10:$B$3811,0)+12,D$7)))","v":""},{"$f":"IF($C93=\"NA\",\"\",IF($B93=0,\"\",OFFSET('Combined Annuity Prices PL'!$B$10,MATCH($B93,'Combined Annuity Prices PL'!$B$10:$B$3811,0)+12,E$7)))","v":""},null,"","",null,{"$f":"IFERROR(VLOOKUP($B93,Volumes!$B$38:$F$79,MATCH(J$9,Volumes!$B$4:$F$4,0),FALSE),0)","v":0},{"$f":"IFERROR(VLOOKUP($B93,Volumes!$B$38:$F$79,MATCH(K$9,Volumes!$B$4:$F$4,0),FALSE),0)","v":0},null,"",""]
[null,{"$f":"Inputs!$C92","v":0},"NA",{"$f":"IF($C94=\"NA\",\"\",IF($B94=0,\"\",OFFSET('Combined Annuity Prices PL'!$B$10,MATCH($B94,'Combined Annuity Prices PL'!$B$10:$B$3811,0)+12,D$7)))","v":""},{"$f":"IF($C94=\"NA\",\"\",IF($B94=0,\"\",OFFSET('Combined Annuity Prices PL'!$B$10,MATCH($B94,'Combined Annuity Prices PL'!$B$10:$B$3811,0)+12,E$7)))","v":""},null,"","",null,{"$f":"IFERROR(VLOOKUP($B94,Volumes!$B$38:$F$79,MATCH(J$9,Volumes!$B$4:$F$4,0),FALSE),0)","v":0},{"$f":"IFERROR(VLOOKUP($B94,Volumes!$B$38:$F$79,MATCH(K$9,Volumes!$B$4:$F$4,0),FALSE),0)","v":0},null,"",""]
[null,{"$f":"Inputs!$C93","v":"250W Sodium Vapour - Flood Light"},"Offered",{"$f":"IF($C95=\"NA\",\"\",IF($B95=0,\"\",OFFSET('Combined Annuity Prices PL'!$B$10,MATCH($B95,'Combined Annuity Prices PL'!$B$10:$B$3811,0)+12,D$7)))","v":51.768000000000001},{"$f":"IF($C95=\"NA\",\"\",IF($B95=0,\"\",OFFSET('Combined Annuity Prices PL'!$B$10,MATCH($B95,'Combined Annuity Prices PL'!$B$10:$B$3811,0)+12,E$7)))","v":52.008000000000003},null,6.2354556000000002E-3,6.6440220000000012E-3,null,{"$f":"IFERROR(VLOOKUP($B95,Volumes!$B$38:$F$79,MATCH(J$9,Volumes!$B$4:$F$4,0),FALSE),0)","v":33},{"$f":"IFERROR(VLOOKUP($B95,Volumes!$B$38:$F$79,MATCH(K$9,Volumes!$B$4:$F$4,0),FALSE),0)","v":35},null,6.2354556000000002E-3,6.8101225500000005E-3]
[null,{"$f":"Inputs!$C94","v":"400W Sodium Vapour"},"Offered",{"$f":"IF($C96=\"NA\",\"\",IF($B96=0,\"\",OFFSET('Combined Annuity Prices PL'!$B$10,MATCH($B96,'Combined Annuity Prices PL'!$B$10:$B$3811,0)+12,D$7)))","v":48.767000000000003},{"$f":"IF($C96=\"NA\",\"\",IF($B96=0,\"\",OFFSET('Combined Annuity Prices PL'!$B$10,MATCH($B96,'Combined Annuity Prices PL'!$B$10:$B$3811,0)+12,E$7)))","v":49.006999999999998},null,0.10875772505,0.11483810309999999,null,{"$f":"IFERROR(VLOOKUP($B96,Volumes!$B$38:$F$79,MATCH(J$9,Volumes!$B$4:$F$4,0),FALSE),0)","v":611},{"$f":"IFERROR(VLOOKUP($B96,Volumes!$B$38:$F$79,MATCH(K$9,Volumes!$B$4:$F$4,0),FALSE),0)","v":642},null,0.10875772505,0.11770905567749997]
[null,{"$f":"Inputs!$C95","v":0},"NA",{"$f":"IF($C97=\"NA\",\"\",IF($B97=0,\"\",OFFSET('Combined Annuity Prices PL'!$B$10,MATCH($B97,'Combined Annuity Prices PL'!$B$10:$B$3811,0)+12,D$7)))","v":""},{"$f":"IF($C97=\"NA\",\"\",IF($B97=0,\"\",OFFSET('Combined Annuity Prices PL'!$B$10,MATCH($B97,'Combined Annuity Prices PL'!$B$10:$B$3811,0)+12,E$7)))","v":""},null,"","",null,{"$f":"IFERROR(VLOOKUP($B97,Volumes!$B$38:$F$79,MATCH(J$9,Volumes!$B$4:$F$4,0),FALSE),0)","v":0},{"$f":"IFERROR(VLOOKUP($B97,Volumes!$B$38:$F$79,MATCH(K$9,Volumes!$B$4:$F$4,0),FALSE),0)","v":0},null,"",""]
[null,{"$f":"Inputs!$C96","v":"400W Sodium Vapour - Flood Light"},"Offered",{"$f":"IF($C98=\"NA\",\"\",IF($B98=0,\"\",OFFSET('Combined Annuity Prices PL'!$B$10,MATCH($B98,'Combined Annuity Prices PL'!$B$10:$B$3811,0)+12,D$7)))","v":51.25},{"$f":"IF($C98=\"NA\",\"\",IF($B98=0,\"\",OFFSET('Combined Annuity Prices PL'!$B$10,MATCH($B98,'Combined Annuity Prices PL'!$B$10:$B$3811,0)+12,E$7)))","v":51.491},null,6.1730624999999997E-3,6.5779752500000005E-3,null,{"$f":"IFERROR(VLOOKUP($B98,Volumes!$B$38:$F$79,MATCH(J$9,Volumes!$B$4:$F$4,0),FALSE),0)","v":33},{"$f":"IFERROR(VLOOKUP($B98,Volumes!$B$38:$F$79,MATCH(K$9,Volumes!$B$4:$F$4,0),FALSE),0)","v":35},null,6.1730624999999997E-3,6.7424246312499988E-3]
[null,{"$f":"Inputs!$C97","v":"70W Sodium Vapour"},"Offered",{"$f":"IF($C99=\"NA\",\"\",IF($B99=0,\"\",OFFSET('Combined Annuity Prices PL'!$B$10,MATCH($B99,'Combined Annuity Prices PL'!$B$10:$B$3811,0)+12,D$7)))","v":35.305999999999997},{"$f":"IF($C99=\"NA\",\"\",IF($B99=0,\"\",OFFSET('Combined Annuity Prices PL'!$B$10,MATCH($B99,'Combined Annuity Prices PL'!$B$10:$B$3811,0)+12,E$7)))","v":35.545999999999999},null,2.7577516599999994E-2,2.9192152499999999E-2,null,{"$f":"IFERROR(VLOOKUP($B99,Volumes!$B$38:$F$79,MATCH(J$9,Volumes!$B$4:$F$4,0),FALSE),0)","v":214},{"$f":"IFERROR(VLOOKUP($B99,Volumes!$B$38:$F$79,MATCH(K$9,Volumes!$B$4:$F$4,0),FALSE),0)","v":225},null,2.7577516599999994E-2,2.9921956312499994E-2]
[null,{"$f":"Inputs!$C98","v":0},"NA",{"$f":"IF($C100=\"NA\",\"\",IF($B100=0,\"\",OFFSET('Combined Annuity Prices PL'!$B$10,MATCH($B100,'Combined Annuity Prices PL'!$B$10:$B$3811,0)+12,D$7)))","v":""},{"$f":"IF($C100=\"NA\",\"\",IF($B100=0,\"\",OFFSET('Combined Annuity Prices PL'!$B$10,MATCH($B100,'Combined Annuity Prices PL'!$B$10:$B$3811,0)+12,E$7)))","v":""},null,"","",null,{"$f":"IFERROR(VLOOKUP($B100,Volumes!$B$38:$F$79,MATCH(J$9,Volumes!$B$4:$F$4,0),FALSE),0)","v":0},{"$f":"IFERROR(VLOOKUP($B100,Volumes!$B$38:$F$79,MATCH(K$9,Volumes!$B$4:$F$4,0),FALSE),0)","v":0},null,"",""]
[null,{"$f":"Inputs!$C99","v":"100W Incandescent"},"Old light no volumes",{"$f":"IF($C101=\"NA\",\"\",IF($B101=0,\"\",OFFSET('Combined Annuity Prices PL'!$B$10,MATCH($B101,'Combined Annuity Prices PL'!$B$10:$B$3811,0)+12,D$7)))","v":41.548000000000002},{"$f":"IF($C101=\"NA\",\"\",IF($B101=0,\"\",OFFSET('Combined Annuity Prices PL'!$B$10,MATCH($B101,'Combined Annuity Prices PL'!$B$10:$B$3811,0)+12,E$7)))","v":41.787999999999997},null,0,0,null,{"$f":"IFERROR(VLOOKUP($B101,Volumes!$B$38:$F$79,MATCH(J$9,Volumes!$B$4:$F$4,0),FALSE),0)","v":0},{"$f":"IFERROR(VLOOKUP($B101,Volumes!$B$38:$F$79,MATCH(K$9,Volumes!$B$4:$F$4,0),FALSE),0)","v":0},null,0,0]
[null,{"$f":"Inputs!$C100","v":"60W Incandescent"},"Old light no volumes",{"$f":"IF($C102=\"NA\",\"\",IF($B102=0,\"\",OFFSET('Combined Annuity Prices PL'!$B$10,MATCH($B102,'Combined Annuity Prices PL'!$B$10:$B$3811,0)+12,D$7)))","v":32.539000000000001},{"$f":"IF($C102=\"NA\",\"\",IF($B102=0,\"\",OFFSET('Combined Annuity Prices PL'!$B$10,MATCH($B102,'Combined Annuity Prices PL'!$B$10:$B$3811,0)+12,E$7)))","v":32.78},null,0,0,null,{"$f":"IFERROR(VLOOKUP($B102,Volumes!$B$38:$F$79,MATCH(J$9,Volumes!$B$4:$F$4,0),FALSE),0)","v":0},{"$f":"IFERROR(VLOOKUP($B102,Volumes!$B$38:$F$79,MATCH(K$9,Volumes!$B$4:$F$4,0),FALSE),0)","v":0},null,0,0]
[null,{"$f":"Inputs!$C101","v":"18W LED"},"Offered",{"$f":"IF($C103=\"NA\",\"\",IF($B103=0,\"\",OFFSET('Combined Annuity Prices PL'!$B$10,MATCH($B103,'Combined Annuity Prices PL'!$B$10:$B$3811,0)+12,D$7)))","v":33.466000000000001},{"$f":"IF($C103=\"NA\",\"\",IF($B103=0,\"\",OFFSET('Combined Annuity Prices PL'!$B$10,MATCH($B103,'Combined Annuity Prices PL'!$B$10:$B$3811,0)+12,E$7)))","v":33.706000000000003},null,{"$f":"IF($C103=\"NA\",\"\",D103*J103*G$6/100/10^6)","v":1.2349455990000002},{"$f":"IF($C103=\"NA\",\"\",E103*K103*H$6/100/10^6)","v":1.7482122490000003},null,{"$f":"IFERROR(VLOOKUP($B103,Volumes!$B$38:$F$79,MATCH(J$9,Volumes!$B$4:$F$4,0),FALSE),0)","v":10110},{"$f":"IFERROR(VLOOKUP($B103,Volumes!$B$38:$F$79,MATCH(K$9,Volumes!$B$4:$F$4,0),FALSE),0)","v":14210},null,{"$f":"IF($C103=\"NA\",\"\",D103*M$7*J103*G$6/100/10^6)","v":1.2349455990000002},{"$f":"IF($C103=\"NA\",\"\",E103*N$7*K103*H$6/100/10^6)","v":1.791917555225}]
[null,{"$f":"Inputs!$C102","v":"25W LED"},"Obsolete, no new Connections",{"$f":"IF($C104=\"NA\",\"\",IF($B104=0,\"\",OFFSET('Combined Annuity Prices PL'!$B$10,MATCH($B104,'Combined Annuity Prices PL'!$B$10:$B$3811,0)+12,D$7)))","v":33.466000000000001},{"$f":"IF($C104=\"NA\",\"\",IF($B104=0,\"\",OFFSET('Combined Annuity Prices PL'!$B$10,MATCH($B104,'Combined Annuity Prices PL'!$B$10:$B$3811,0)+12,E$7)))","v":33.706000000000003},null,2.5651688999999999E-3,2.5835649000000003E-3,null,{"$f":"IFERROR(VLOOKUP($B104,Volumes!$B$38:$F$79,MATCH(J$9,Volumes!$B$4:$F$4,0),FALSE),0)","v":21},{"$f":"IFERROR(VLOOKUP($B104,Volumes!$B$38:$F$79,MATCH(K$9,Volumes!$B$4:$F$4,0),FALSE),0)","v":21},null,2.5651688999999999E-3,2.6481540224999999E-3]
[null,{"$f":"Inputs!$C103","v":"18W LED Decorative - Bottom Pole Entry"},"Offered",{"$f":"IF($C105=\"NA\",\"\",IF($B105=0,\"\",OFFSET('Combined Annuity Prices PL'!$B$10,MATCH($B105,'Combined Annuity Prices PL'!$B$10:$B$3811,0)+12,D$7)))","v":47.338000000000001},{"$f":"IF($C105=\"NA\",\"\",IF($B105=0,\"\",OFFSET('Combined Annuity Prices PL'!$B$10,MATCH($B105,'Combined Annuity Prices PL'!$B$10:$B$3811,0)+12,E$7)))","v":47.578000000000003},null,5.701862099999999E-3,6.0780894999999989E-3,null,{"$f":"IFERROR(VLOOKUP($B105,Volumes!$B$38:$F$79,MATCH(J$9,Volumes!$B$4:$F$4,0),FALSE),0)","v":33},{"$f":"IFERROR(VLOOKUP($B105,Volumes!$B$38:$F$79,MATCH(K$9,Volumes!$B$4:$F$4,0),FALSE),0)","v":35},null,5.701862099999999E-3,6.2300417374999998E-3]
[null,{"$f":"Inputs!$C104","v":"18W LED Decorative - Side Entry"},"Offered",{"$f":"IF($C106=\"NA\",\"\",IF($B106=0,\"\",OFFSET('Combined Annuity Prices PL'!$B$10,MATCH($B106,'Combined Annuity Prices PL'!$B$10:$B$3811,0)+12,D$7)))","v":47.338000000000001},{"$f":"IF($C106=\"NA\",\"\",IF($B106=0,\"\",OFFSET('Combined Annuity Prices PL'!$B$10,MATCH($B106,'Combined Annuity Prices PL'!$B$10:$B$3811,0)+12,E$7)))","v":47.578000000000003},null,5.701862099999999E-3,6.0780894999999989E-3,null,{"$f":"IFERROR(VLOOKUP($B106,Volumes!$B$38:$F$79,MATCH(J$9,Volumes!$B$4:$F$4,0),FALSE),0)","v":33},{"$f":"IFERROR(VLOOKUP($B106,Volumes!$B$38:$F$79,MATCH(K$9,Volumes!$B$4:$F$4,0),FALSE),0)","v":35},null,5.701862099999999E-3,6.2300417374999998E-3]
[null,{"$f":"Inputs!$C105","v":"18W LED Decorative - Top Entry"},"Offered",{"$f":"IF($C107=\"NA\",\"\",IF($B107=0,\"\",OFFSET('Combined Annuity Prices PL'!$B$10,MATCH($B107,'Combined Annuity Prices PL'!$B$10:$B$3811,0)+12,D$7)))","v":47.338000000000001},{"$f":"IF($C107=\"NA\",\"\",IF($B107=0,\"\",OFFSET('Combined Annuity Prices PL'!$B$10,MATCH($B107,'Combined Annuity Prices PL'!$B$10:$B$3811,0)+12,E$7)))","v":47.578000000000003},null,5.701862099999999E-3,6.0780894999999989E-3,null,{"$f":"IFERROR(VLOOKUP($B107,Volumes!$B$38:$F$79,MATCH(J$9,Volumes!$B$4:$F$4,0),FALSE),0)","v":33},{"$f":"IFERROR(VLOOKUP($B107,Volumes!$B$38:$F$79,MATCH(K$9,Volumes!$B$4:$F$4,0),FALSE),0)","v":35},null,5.701862099999999E-3,6.2300417374999998E-3]
[null,{"$f":"Inputs!$C106","v":"25W LED Decorative - Bottom Pole Entry"},"Offered",{"$f":"IF($C108=\"NA\",\"\",IF($B108=0,\"\",OFFSET('Combined Annuity Prices PL'!$B$10,MATCH($B108,'Combined Annuity Prices PL'!$B$10:$B$3811,0)+12,D$7)))","v":47.338000000000001},{"$f":"IF($C108=\"NA\",\"\",IF($B108=0,\"\",OFFSET('Combined Annuity Prices PL'!$B$10,MATCH($B108,'Combined Annuity Prices PL'!$B$10:$B$3811,0)+12,E$7)))","v":47.578000000000003},null,5.701862099999999E-3,6.0780894999999989E-3,null,{"$f":"IFERROR(VLOOKUP($B108,Volumes!$B$38:$F$79,MATCH(J$9,Volumes!$B$4:$F$4,0),FALSE),0)","v":33},{"$f":"IFERROR(VLOOKUP($B108,Volumes!$B$38:$F$79,MATCH(K$9,Volumes!$B$4:$F$4,0),FALSE),0)","v":35},null,5.701862099999999E-3,6.2300417374999998E-3]
[null,{"$f":"Inputs!$C107","v":"25W LED Decorative - Side Entry"},"Offered",{"$f":"IF($C109=\"NA\",\"\",IF($B109=0,\"\",OFFSET('Combined Annuity Prices PL'!$B$10,MATCH($B109,'Combined Annuity Prices PL'!$B$10:$B$3811,0)+12,D$7)))","v":47.338000000000001},{"$f":"IF($C109=\"NA\",\"\",IF($B109=0,\"\",OFFSET('Combined Annuity Prices PL'!$B$10,MATCH($B109,'Combined Annuity Prices PL'!$B$10:$B$3811,0)+12,E$7)))","v":47.578000000000003},null,5.701862099999999E-3,6.0780894999999989E-3,null,{"$f":"IFERROR(VLOOKUP($B109,Volumes!$B$38:$F$79,MATCH(J$9,Volumes!$B$4:$F$4,0),FALSE),0)","v":33},{"$f":"IFERROR(VLOOKUP($B109,Volumes!$B$38:$F$79,MATCH(K$9,Volumes!$B$4:$F$4,0),FALSE),0)","v":35},null,5.701862099999999E-3,6.2300417374999998E-3]
[null,{"$f":"Inputs!$C108","v":"25W LED Decorative - Top Entry"},"Offered",{"$f":"IF($C110=\"NA\",\"\",IF($B110=0,\"\",OFFSET('Combined Annuity Prices PL'!$B$10,MATCH($B110,'Combined Annuity Prices PL'!$B$10:$B$3811,0)+12,D$7)))","v":47.338000000000001},{"$f":"IF($C110=\"NA\",\"\",IF($B110=0,\"\",OFFSET('Combined Annuity Prices PL'!$B$10,MATCH($B110,'Combined Annuity Prices PL'!$B$10:$B$3811,0)+12,E$7)))","v":47.578000000000003},null,5.701862099999999E-3,6.0780894999999989E-3,null,{"$f":"IFERROR(VLOOKUP($B110,Volumes!$B$38:$F$79,MATCH(J$9,Volumes!$B$4:$F$4,0),FALSE),0)","v":33},{"$f":"IFERROR(VLOOKUP($B110,Volumes!$B$38:$F$79,MATCH(K$9,Volumes!$B$4:$F$4,0),FALSE),0)","v":35},null,5.701862099999999E-3,6.2300417374999998E-3]
[null,{"$f":"Inputs!$C109","v":"30W LED"},"Not Offered",{"$f":"IF($C111=\"NA\",\"\",IF($B111=0,\"\",OFFSET('Combined Annuity Prices PL'!$B$10,MATCH($B111,'Combined Annuity Prices PL'!$B$10:$B$3811,0)+12,D$7)))","v":33.466000000000001},{"$f":"IF($C111=\"NA\",\"\",IF($B111=0,\"\",OFFSET('Combined Annuity Prices PL'!$B$10,MATCH($B111,'Combined Annuity Prices PL'!$B$10:$B$3811,0)+12,E$7)))","v":33.706000000000003},null,0,0,null,{"$f":"IFERROR(VLOOKUP($B111,Volumes!$B$38:$F$79,MATCH(J$9,Volumes!$B$4:$F$4,0),FALSE),0)","v":0},{"$f":"IFERROR(VLOOKUP($B111,Volumes!$B$38:$F$79,MATCH(K$9,Volumes!$B$4:$F$4,0),FALSE),0)","v":0},null,0,0]
[null,{"$f":"Inputs!$C110","v":"88 LED Light"},"Not Offered",{"$f":"IF($C112=\"NA\",\"\",IF($B112=0,\"\",OFFSET('Combined Annuity Prices PL'!$B$10,MATCH($B112,'Combined Annuity Prices PL'!$B$10:$B$3811,0)+12,D$7)))","v":33.466000000000001},{"$f":"IF($C112=\"NA\",\"\",IF($B112=0,\"\",OFFSET('Combined Annuity Prices PL'!$B$10,MATCH($B112,'Combined Annuity Prices PL'!$B$10:$B$3811,0)+12,E$7)))","v":33.706000000000003},null,0,0,null,{"$f":"IFERROR(VLOOKUP($B112,Volumes!$B$38:$F$79,MATCH(J$9,Volumes!$B$4:$F$4,0),FALSE),0)","v":0},{"$f":"IFERROR(VLOOKUP($B112,Volumes!$B$38:$F$79,MATCH(K$9,Volumes!$B$4:$F$4,0),FALSE),0)","v":0},null,0,0]
[null,{"$f":"Inputs!$C111","v":"100W Metal Halide"},"Offered",{"$f":"IF($C113=\"NA\",\"\",IF($B113=0,\"\",OFFSET('Combined Annuity Prices PL'!$B$10,MATCH($B113,'Combined Annuity Prices PL'!$B$10:$B$3811,0)+12,D$7)))","v":44.877000000000002},{"$f":"IF($C113=\"NA\",\"\",IF($B113=0,\"\",OFFSET('Combined Annuity Prices PL'!$B$10,MATCH($B113,'Combined Annuity Prices PL'!$B$10:$B$3811,0)+12,E$7)))","v":45.118000000000002},null,2.7846178499999997E-3,2.7995718999999997E-3,null,{"$f":"IFERROR(VLOOKUP($B113,Volumes!$B$38:$F$79,MATCH(J$9,Volumes!$B$4:$F$4,0),FALSE),0)","v":17},{"$f":"IFERROR(VLOOKUP($B113,Volumes!$B$38:$F$79,MATCH(K$9,Volumes!$B$4:$F$4,0),FALSE),0)","v":17},null,2.7846178499999997E-3,2.8695611975000004E-3]
[null,{"$f":"Inputs!$C112","v":"150W Metal Halide"},"Offered",{"$f":"IF($C114=\"NA\",\"\",IF($B114=0,\"\",OFFSET('Combined Annuity Prices PL'!$B$10,MATCH($B114,'Combined Annuity Prices PL'!$B$10:$B$3811,0)+12,D$7)))","v":47.465000000000003},{"$f":"IF($C114=\"NA\",\"\",IF($B114=0,\"\",OFFSET('Combined Annuity Prices PL'!$B$10,MATCH($B114,'Combined Annuity Prices PL'!$B$10:$B$3811,0)+12,E$7)))","v":47.706000000000003},null,2.4254615E-3,2.6119034999999998E-3,null,{"$f":"IFERROR(VLOOKUP($B114,Volumes!$B$38:$F$79,MATCH(J$9,Volumes!$B$4:$F$4,0),FALSE),0)","v":14},{"$f":"IFERROR(VLOOKUP($B114,Volumes!$B$38:$F$79,MATCH(K$9,Volumes!$B$4:$F$4,0),FALSE),0)","v":15},null,2.4254615E-3,2.6772010875E-3]
[null,{"$f":"Inputs!$C113","v":"250W Metal Halide"},"Offered",{"$f":"IF($C115=\"NA\",\"\",IF($B115=0,\"\",OFFSET('Combined Annuity Prices PL'!$B$10,MATCH($B115,'Combined Annuity Prices PL'!$B$10:$B$3811,0)+12,D$7)))","v":48.279000000000003},{"$f":"IF($C115=\"NA\",\"\",IF($B115=0,\"\",OFFSET('Combined Annuity Prices PL'!$B$10,MATCH($B115,'Combined Annuity Prices PL'!$B$10:$B$3811,0)+12,E$7)))","v":48.52},null,1.5507214800000002E-2,1.5761722000000002E-2,null,{"$f":"IFERROR(VLOOKUP($B115,Volumes!$B$38:$F$79,MATCH(J$9,Volumes!$B$4:$F$4,0),FALSE),0)","v":88},{"$f":"IFERROR(VLOOKUP($B115,Volumes!$B$38:$F$79,MATCH(K$9,Volumes!$B$4:$F$4,0),FALSE),0)","v":89},null,1.5507214800000002E-2,1.6155765050000003E-2]
[null,{"$f":"Inputs!$C114","v":"400W Metal Halide"},"Not Offered",{"$f":"IF($C116=\"NA\",\"\",IF($B116=0,\"\",OFFSET('Combined Annuity Prices PL'!$B$10,MATCH($B116,'Combined Annuity Prices PL'!$B$10:$B$3811,0)+12,D$7)))","v":53.216999999999999},{"$f":"IF($C116=\"NA\",\"\",IF($B116=0,\"\",OFFSET('Combined Annuity Prices PL'!$B$10,MATCH($B116,'Combined Annuity Prices PL'!$B$10:$B$3811,0)+12,E$7)))","v":53.457999999999998},null,3.3021148499999997E-3,3.3170688999999997E-3,null,{"$f":"IFERROR(VLOOKUP($B116,Volumes!$B$38:$F$79,MATCH(J$9,Volumes!$B$4:$F$4,0),FALSE),0)","v":17},{"$f":"IFERROR(VLOOKUP($B116,Volumes!$B$38:$F$79,MATCH(K$9,Volumes!$B$4:$F$4,0),FALSE),0)","v":17},null,3.3021148499999997E-3,3.3999956224999997E-3]
[null,{"$f":"Inputs!$C115","v":"70W Metal Halide"},"Old light no volumes",{"$f":"IF($C117=\"NA\",\"\",IF($B117=0,\"\",OFFSET('Combined Annuity Prices PL'!$B$10,MATCH($B117,'Combined Annuity Prices PL'!$B$10:$B$3811,0)+12,D$7)))","v":34.329000000000001},{"$f":"IF($C117=\"NA\",\"\",IF($B117=0,\"\",OFFSET('Combined Annuity Prices PL'!$B$10,MATCH($B117,'Combined Annuity Prices PL'!$B$10:$B$3811,0)+12,E$7)))","v":34.569000000000003},null,0,0,null,{"$f":"IFERROR(VLOOKUP($B117,Volumes!$B$38:$F$79,MATCH(J$9,Volumes!$B$4:$F$4,0),FALSE),0)","v":0},{"$f":"IFERROR(VLOOKUP($B117,Volumes!$B$38:$F$79,MATCH(K$9,Volumes!$B$4:$F$4,0),FALSE),0)","v":0},null,0,0]
[null,{"$f":"Inputs!$C116","v":"250W Metal Halide - Flood Light"},"Obsolete, no new Connections",{"$f":"IF($C118=\"NA\",\"\",IF($B118=0,\"\",OFFSET('Combined Annuity Prices PL'!$B$10,MATCH($B118,'Combined Annuity Prices PL'!$B$10:$B$3811,0)+12,D$7)))","v":53.372},{"$f":"IF($C118=\"NA\",\"\",IF($B118=0,\"\",OFFSET('Combined Annuity Prices PL'!$B$10,MATCH($B118,'Combined Annuity Prices PL'!$B$10:$B$3811,0)+12,E$7)))","v":53.612000000000002},null,6.4286574000000001E-3,6.8489330000000006E-3,null,{"$f":"IFERROR(VLOOKUP($B118,Volumes!$B$38:$F$79,MATCH(J$9,Volumes!$B$4:$F$4,0),FALSE),0)","v":33},{"$f":"IFERROR(VLOOKUP($B118,Volumes!$B$38:$F$79,MATCH(K$9,Volumes!$B$4:$F$4,0),FALSE),0)","v":35},null,6.4286574000000001E-3,7.0201563249999996E-3]
[null,{"$f":"Inputs!$C117","v":"400W Metal Halide - Flood Light"},"Obsolete, no new Connections",{"$f":"IF($C119=\"NA\",\"\",IF($B119=0,\"\",OFFSET('Combined Annuity Prices PL'!$B$10,MATCH($B119,'Combined Annuity Prices PL'!$B$10:$B$3811,0)+12,D$7)))","v":53.216999999999999},{"$f":"IF($C119=\"NA\",\"\",IF($B119=0,\"\",OFFSET('Combined Annuity Prices PL'!$B$10,MATCH($B119,'Combined Annuity Prices PL'!$B$10:$B$3811,0)+12,E$7)))","v":53.457999999999998},null,6.4099876499999998E-3,6.8292594999999996E-3,null,{"$f":"IFERROR(VLOOKUP($B119,Volumes!$B$38:$F$79,MATCH(J$9,Volumes!$B$4:$F$4,0),FALSE),0)","v":33},{"$f":"IFERROR(VLOOKUP($B119,Volumes!$B$38:$F$79,MATCH(K$9,Volumes!$B$4:$F$4,0),FALSE),0)","v":35},null,6.4099876499999998E-3,6.9999909874999986E-3]
[null,{"$f":"Inputs!$C118","v":"125W Mercury Vapour"},"Obsolete, no new Connections",{"$f":"IF($C120=\"NA\",\"\",IF($B120=0,\"\",OFFSET('Combined Annuity Prices PL'!$B$10,MATCH($B120,'Combined Annuity Prices PL'!$B$10:$B$3811,0)+12,D$7)))","v":44.838999999999999},{"$f":"IF($C120=\"NA\",\"\",IF($B120=0,\"\",OFFSET('Combined Annuity Prices PL'!$B$10,MATCH($B120,'Combined Annuity Prices PL'!$B$10:$B$3811,0)+12,E$7)))","v":45.079000000000001},null,0,0,null,{"$f":"IFERROR(VLOOKUP($B120,Volumes!$B$38:$F$79,MATCH(J$9,Volumes!$B$4:$F$4,0),FALSE),0)","v":0},{"$f":"IFERROR(VLOOKUP($B120,Volumes!$B$38:$F$79,MATCH(K$9,Volumes!$B$4:$F$4,0),FALSE),0)","v":0},null,0,0]
[null,{"$f":"Inputs!$C119","v":"250W Mercury Vapour"},"Obsolete, no new Connections",{"$f":"IF($C121=\"NA\",\"\",IF($B121=0,\"\",OFFSET('Combined Annuity Prices PL'!$B$10,MATCH($B121,'Combined Annuity Prices PL'!$B$10:$B$3811,0)+12,D$7)))","v":45.308},{"$f":"IF($C121=\"NA\",\"\",IF($B121=0,\"\",OFFSET('Combined Annuity Prices PL'!$B$10,MATCH($B121,'Combined Annuity Prices PL'!$B$10:$B$3811,0)+12,E$7)))","v":45.548999999999999},null,7.0614783400000006E-2,6.7499063100000006E-2,null,{"$f":"IFERROR(VLOOKUP($B121,Volumes!$B$38:$F$79,MATCH(J$9,Volumes!$B$4:$F$4,0),FALSE),0)","v":427},{"$f":"IFERROR(VLOOKUP($B121,Volumes!$B$38:$F$79,MATCH(K$9,Volumes!$B$4:$F$4,0),FALSE),0)","v":406},null,7.0614783400000006E-2,6.9186539677499992E-2]
[null,{"$f":"Inputs!$C120","v":0},"NA",{"$f":"IF($C122=\"NA\",\"\",IF($B122=0,\"\",OFFSET('Combined Annuity Prices PL'!$B$10,MATCH($B122,'Combined Annuity Prices PL'!$B$10:$B$3811,0)+12,D$7)))","v":""},{"$f":"IF($C122=\"NA\",\"\",IF($B122=0,\"\",OFFSET('Combined Annuity Prices PL'!$B$10,MATCH($B122,'Combined Annuity Prices PL'!$B$10:$B$3811,0)+12,E$7)))","v":""},null,"","",null,{"$f":"IFERROR(VLOOKUP($B122,Volumes!$B$38:$F$79,MATCH(J$9,Volumes!$B$4:$F$4,0),FALSE),0)","v":0},{"$f":"IFERROR(VLOOKUP($B122,Volumes!$B$38:$F$79,MATCH(K$9,Volumes!$B$4:$F$4,0),FALSE),0)","v":0},null,"",""]
[null,{"$f":"Inputs!$C121","v":"400W Mercury Vapour"},"Obsolete, no new Connections",{"$f":"IF($C123=\"NA\",\"\",IF($B123=0,\"\",OFFSET('Combined Annuity Prices PL'!$B$10,MATCH($B123,'Combined Annuity Prices PL'!$B$10:$B$3811,0)+12,D$7)))","v":47.417999999999999},{"$f":"IF($C123=\"NA\",\"\",IF($B123=0,\"\",OFFSET('Combined Annuity Prices PL'!$B$10,MATCH($B123,'Combined Annuity Prices PL'!$B$10:$B$3811,0)+12,E$7)))","v":47.658000000000001},null,5.5384223999999996E-3,5.3925027000000002E-3,null,{"$f":"IFERROR(VLOOKUP($B123,Volumes!$B$38:$F$79,MATCH(J$9,Volumes!$B$4:$F$4,0),FALSE),0)","v":32},{"$f":"IFERROR(VLOOKUP($B123,Volumes!$B$38:$F$79,MATCH(K$9,Volumes!$B$4:$F$4,0),FALSE),0)","v":31},null,5.5384223999999996E-3,5.5273152674999992E-3]
[null,{"$f":"Inputs!$C122","v":"50W Mercury Vapour"},"Obsolete, no new Connections",{"$f":"IF($C124=\"NA\",\"\",IF($B124=0,\"\",OFFSET('Combined Annuity Prices PL'!$B$10,MATCH($B124,'Combined Annuity Prices PL'!$B$10:$B$3811,0)+12,D$7)))","v":33.244999999999997},{"$f":"IF($C124=\"NA\",\"\",IF($B124=0,\"\",OFFSET('Combined Annuity Prices PL'!$B$10,MATCH($B124,'Combined Annuity Prices PL'!$B$10:$B$3811,0)+12,E$7)))","v":33.484999999999999},null,0,0,null,{"$f":"IFERROR(VLOOKUP($B124,Volumes!$B$38:$F$79,MATCH(J$9,Volumes!$B$4:$F$4,0),FALSE),0)","v":0},{"$f":"IFERROR(VLOOKUP($B124,Volumes!$B$38:$F$79,MATCH(K$9,Volumes!$B$4:$F$4,0),FALSE),0)","v":0},null,0,0]
[null,{"$f":"Inputs!$C123","v":"80W Mercury Vapour Art decorative"},"Obsolete, no new Connections",{"$f":"IF($C125=\"NA\",\"\",IF($B125=0,\"\",OFFSET('Combined Annuity Prices PL'!$B$10,MATCH($B125,'Combined Annuity Prices PL'!$B$10:$B$3811,0)+12,D$7)))","v":50.006999999999998},{"$f":"IF($C125=\"NA\",\"\",IF($B125=0,\"\",OFFSET('Combined Annuity Prices PL'!$B$10,MATCH($B125,'Combined Annuity Prices PL'!$B$10:$B$3811,0)+12,E$7)))","v":50.247},null,7.3010219999999999E-3,7.3360620000000008E-3,null,{"$f":"IFERROR(VLOOKUP($B125,Volumes!$B$38:$F$79,MATCH(J$9,Volumes!$B$4:$F$4,0),FALSE),0)","v":40},{"$f":"IFERROR(VLOOKUP($B125,Volumes!$B$38:$F$79,MATCH(K$9,Volumes!$B$4:$F$4,0),FALSE),0)","v":40},null,{"$f":"IF($C125=\"NA\",\"\",D125*M$7*J125*G$6/100/10^6)","v":7.3010219999999999E-3},7.5194635499999992E-3]
[null,{"$f":"Inputs!$C124","v":"80W Mercury Vapour"},"Obsolete, no new Connections",{"$f":"IF($C126=\"NA\",\"\",IF($B126=0,\"\",OFFSET('Combined Annuity Prices PL'!$B$10,MATCH($B126,'Combined Annuity Prices PL'!$B$10:$B$3811,0)+12,D$7)))","v":33.246000000000002},{"$f":"IF($C126=\"NA\",\"\",IF($B126=0,\"\",OFFSET('Combined Annuity Prices PL'!$B$10,MATCH($B126,'Combined Annuity Prices PL'!$B$10:$B$3811,0)+12,E$7)))","v":33.485999999999997},null,1.7273873565,1.2387392264999999,null,{"$f":"IFERROR(VLOOKUP($B126,Volumes!$B$38:$F$79,MATCH(J$9,Volumes!$B$4:$F$4,0),FALSE),0)","v":14235},{"$f":"IFERROR(VLOOKUP($B126,Volumes!$B$38:$F$79,MATCH(K$9,Volumes!$B$4:$F$4,0),FALSE),0)","v":10135},null,1.7273873565,1.2697077071624996]
[null,null,null,null,null,null,null,null,null,null,null,null,0,0]
[null,null,null,null,null,null,{"$f":"SUM(G71:G127)","v":5.9769432440499966},{"$f":"SUM(H71:H127)","v":6.0926067544999993},null,{"$f":"SUM(J71:J127)","v":43293},43662,null,{"$f":"SUM(M71:M127)","v":5.9769432440499966},{"$f":"SUM(N71:N127)","v":6.2449219233625}]
[null,null,null,null,null,null,null,null,null,{"$f":"Volumes!E80=J128","v":true},{"$f":"Volumes!F80=K128","v":true}]
[null,"Total",null,null,null,{"$f":"G8","v":"Revenue ($m)  - Real"},{"$f":"SUM(G67,G128)","v":6.3164028909999965},{"$f":"SUM(H67,H128)","v":6.4333174863999991},null,{"$f":"SUM(J67,J128)","v":49622},50020,null,{"$f":"SUM(M67,M128)","v":6.3164028909999965},{"$f":"SUM(N67,N128)","v":6.5941504235600004}]
[null,null,null,null,null,null,null,null,null,{"$f":"Volumes!E84=J130","v":true},{"$f":"Volumes!F84=K130","v":true}]
[null,null,null,null,null,"Compare Annuity and PTRM"]
[null,null,null,null,null,"Nominal ($m Nominal)",{"$f":"G130*'Master Data'!I32","v":6.3164028909999965},{"$f":"H130*'Master Data'!J32","v":6.5941504235599986}]
[]
[]
[null,null,null,null,null,null,{"$f":"'Master Data'!$B$40","v":6.0399999999999995E-2},{"$f":"'Master Data'!$B$40","v":6.0399999999999995E-2},null,null,null,null,{"$f":"'Master Data'!$B$40","v":6.0399999999999995E-2},{"$f":"'Master Data'!$B$40","v":6.0399999999999995E-2},"Nominal Vanilla WACC"]
[null,null,null,null,null,1,{"$f":"F137*(1+G136)","v":1.0604},{"$f":"G137*(1+H136)","v":1.12444816},null,null,null,1,{"$f":"L137*(1+M136)","v":1.0604},{"$f":"M137*(1+N136)","v":1.12444816},"Cumulative Discount Rate"]
[]
[null,null,null,null,null,"unsmoothed Revenue ($m)",{"$f":"G130","v":6.3164028909999965},{"$f":"H130","v":6.4333174863999991},{"$f":"SUM(G139:H139)","v":12.749720377399996},{"$f":"G139/G137+H139/H137","v":11.677933744865921},"NPV (unsmoothed)",null,{"$f":"M130","v":6.3164028909999965},{"$f":"N130","v":6.5941504235600004},{"$f":"SUM(M139:N139)","v":12.910553314559998},{"$f":"M139/M137+N139/N137","v":11.820966516745775},"NPV (unsmoothed)"]
[null,null,null,null,null,"Smoothed Revenue using PTRM ($m)",6.3592576454144973,6.3878743048188618,{"$f":"SUM(G140:H140)","v":12.74713195023336},{"$f":"G140/G137+H140/H137","v":11.677933744865921},"NPV (smoothed)",null,6.437146616870745,6.4661137766466625,{"$f":"SUM(M140:N140)","v":12.903260393517407},{"$f":"M140/M137+N140/N137","v":11.820966516745779},"NPV (smoothed)"]
[null,null,null,null,null,"Revenue adjustment",{"$f":"G140/G139","v":1.0067846771578746},{"$f":"H140/H139","v":0.99293627561872955},null,{"$f":"J139-J140","v":0},"NPV difference",null,{"$f":"M140/M139","v":1.019115899975727},{"$f":"N140/N139","v":0.98058329903183883},null,{"$f":"P139-P140","v":0},"NPV difference"]
[null,null,null,null,null,"CPI",null,{"$f":"'Master Data'!J30","v":2.5000000000000001E-2},null,null,null,null,null,{"$f":"'Master Data'!J30","v":2.5000000000000001E-2}]
[null,null,null,null,null,"X Factors",null,0.02,null,null,null,null,null,0.02]
[null,null,null,null,null,null,"P_0","X_02",null,null,null,null,"P_0","X_02"]
[null,null,null,null,null,null,-4.1432798395080489E-2,0.02,null,null,null,null,7.2782700914565068E-2,0.02]
[null,null,null,null,null,null,null,null,null,null,null,null,"Note increase in volumes therefore revenue does not reflect price per light"]
[]
[null,null,null,null,null,null,null,null,null,null,null,null,{"$f":"N139/M139","v":1.0439724218598778}]
[null,null,null,null,null,null,null,null,null,null,null,null,{"$f":"N140/M140","v":1.0044999999999999}]
[null,null,null,null,null,null,null,null,null,null,null,null,{"$f":"M139/M140","v":0.98124266339463229},{"$f":"N139/N140","v":1.0198011744513005}]

{"sheet":"Combined Annuity Prices CL","index":8,"n_rows":758,"n_cols":11,"rows_kept":758,"cut":false,"hidden":false,"merged":[[3,4,3,5],[3,9,3,10]]}
[null,null,null,null,null,null,null,null,{"$f":"'Master Data'!H$22","v":"2017-06-30"},{"$f":"'Master Data'!I$22","v":"2018-06-30"},{"$f":"'Master Data'!J$22","v":"2019-06-30"}]
[null,null,null,null,null,null,null,null,null,{"$f":"HLOOKUP(J1,'Master Data'!$B$22:$P$23,2,FALSE)","v":365},{"$f":"HLOOKUP(K1,'Master Data'!$B$22:$P$23,2,FALSE)","v":365}]
[null,null,null,null,{"$f":"'Master Data'!I29","v":"2017-18"},{"$f":"'Master Data'!J29","v":"2018-19"},null,null,null,{"$f":"'Master Data'!I29","v":"2017-18"},{"$f":"'Master Data'!J29","v":"2018-19"}]
[null,null,null,null,"Cost $ Per year",null,null,null,null,"Cost Cents per Day"]
[null,null,null,"Check errors",{"$f":"SUBTOTAL(9,$E$10:$E$758)","v":6382.1813578945585},{"$f":"SUBTOTAL(9,$E$10:$E$758)","v":6382.1813578945585}]
[null,"Lookup/Offset",null,"Offset",13,{"$f":"E6+1","v":14}]
[null,{"$f":"Inputs!$C$68","v":"Light Description"},null,"Useful Life"]
[null,"Private Contract Lighting"]
[]
[1,{"$f":"IFERROR(VLOOKUP($A10,Inputs!$B$68:$AK$129,MATCH($B$7,Inputs!$B$68:$AK$68,0),FALSE),\"Blank\")","v":"32W Compact Fluorescent"},null,null,null,null,null,null,{"$f":"IFERROR(VLOOKUP($A10,Inputs!$B$68:$AK$129,MATCH($B$7,Inputs!$B$68:$AK$68,0),FALSE),\"Blank\")","v":"32W Compact Fluorescent"}]
[null,{"$f":"Inputs!$R$68","v":"Lamp UNIT price Annualised Cost"},{"$f":"Inputs!$P$68","v":"Lamp Maintenance cycle"},null,{"$f":"IF($B10=\"Blank\",0,VLOOKUP($B10,Inputs!$C$68:$AK$129,MATCH($B11,Inputs!$C$68:$AK$68,0),FALSE))","v":1.0984639624469332},{"$f":"IF($B10=\"Blank\",0,VLOOKUP($B10,Inputs!$C$68:$AK$129,MATCH($B11,Inputs!$C$68:$AK$68,0),FALSE))","v":1.0984639624469332},null,null,{"$f":"B11","v":"Lamp UNIT price Annualised Cost"},{"$f":"IF(E11=\"NA\",\"\",E11/J$2*100)","v":0.30094903080737895},{"$f":"IF(F11=\"NA\",\"\",F11/K$2*100)","v":0.30094903080737895}]
[null,{"$f":"Inputs!$K$68","v":"PE Cell UNIT price Annualised Cost"},{"$f":"Inputs!$I$68","v":"PE Cell Maintenance Cycle"},null,{"$f":"IF($B10=\"Blank\",0,VLOOKUP($B10,Inputs!$C$68:$AK$129,MATCH($B12,Inputs!$C$68:$AK$68,0),FALSE))","v":0.6107414998224272},{"$f":"IF($B10=\"Blank\",0,VLOOKUP($B10,Inputs!$C$68:$AK$129,MATCH($B12,Inputs!$C$68:$AK$68,0),FALSE))","v":0.6107414998224272},null,null,"PE Cell UNIT price Annualised Cost",0.16732643830751431,0.16732643830751431]
[null,"Corp capex annuity per light",null,null,{"$f":"IF($B10=\"Blank\",0,'Corp Capex Annuity calcs'!F$109)","v":14.826870317655803},{"$f":"IF($B10=\"Blank\",0,'Corp Capex Annuity calcs'!G$109)","v":14.708895619806404},null,null,"Corp capex annuity per light",4.0621562514125493,4.0298344163853157]
[null,{"$f":"Inputs!$T$68","v":"Lamp Service costs Annualised"},null,null,{"$f":"IF($B10=\"Blank\",0,VLOOKUP($B10,Inputs!$C$68:$AK$129,MATCH($B14,Inputs!$C$68:$AK$68,0),FALSE))","v":26.347371767734501},{"$f":"IF($B10=\"Blank\",0,VLOOKUP($B10,Inputs!$C$68:$AK$129,MATCH($B14,Inputs!$C$68:$AK$68,0),FALSE))","v":26.347371767734501},null,null,"Lamp Service costs Annualised",7.2184580185573974,7.2184580185573974]
[null,{"$f":"Inputs!$M$68","v":"PE Cell Service costs Annualised"},null,null,{"$f":"IF($B10=\"Blank\",0,VLOOKUP($B10,Inputs!$C$68:$AK$129,MATCH($B15,Inputs!$C$68:$AK$68,0),FALSE))","v":0},{"$f":"IF($B10=\"Blank\",0,VLOOKUP($B10,Inputs!$C$68:$AK$129,MATCH($B15,Inputs!$C$68:$AK$68,0),FALSE))","v":0},null,null,"PE Cell Service costs Annualised",0,0]
[null,"Indirect Opex",null,null,{"$f":"IF($B10=\"Blank\",0,IF($B$8=\"Private Contract Lighting\",'Opex Weighting'!D$113,'Opex Weighting'!D$111))","v":13.654305575211096},{"$f":"IF($B10=\"Blank\",0,IF($B$8=\"Private Contract Lighting\",'Opex Weighting'!E$113,'Opex Weighting'!E$111))","v":13.545660760758196},null,null,"Indirect Opex",3.7409056370441354,3.7111399344543003]
[null,"Indirect Capex",null,null,{"$f":"IF($B11=\"Blank\",0,IF($B$8=\"Private Contract Lighting\",'Capex Weighting'!D$115,'Capex Weighting'!D$117))","v":0},{"$f":"IF($B11=\"Blank\",0,IF($B$8=\"Private Contract Lighting\",'Capex Weighting'!E$115,'Capex Weighting'!E$117))","v":0},null,null,"Indirect Capex",0,0]
[null,"Overhead Costs per light",null,null,{"$f":"IF($B10=\"Blank\",0,IF($B$8=\"Private Contract Lighting\",'Building Block'!C$49,'Building Block'!C$48))","v":11.222353166014571},{"$f":"IF($B10=\"Blank\",0,IF($B$8=\"Private Contract Lighting\",'Building Block'!D$49,'Building Block'!D$48))","v":11.512124256080179},null,null,"Overhead Costs per light",3.0746173057574167,3.1540066455014193]
[null,{"$f":"Inputs!$AH$68","v":"Bracket UNIT price"},0,null,"NA","NA",null,null,"Bracket UNIT price","",""]
[null,{"$f":"Inputs!$Y$68","v":"CAPEX Installation costs"},{"$f":"C19+1","v":1},null,"NA","NA",null,null,"CAPEX Installation costs","",""]
[null,{"$f":"Inputs!$X$68","v":"Luminaire UNIT price"},{"$f":"C20+1","v":2},null,"NA","NA",null,null,"Luminaire UNIT price","",""]
[null,{"$f":"Inputs!$Y$68","v":"CAPEX Installation costs"},{"$f":"C21+1","v":3},null,"NA","NA",null,null,"CAPEX Installation costs","",""]
[null,null,null,null,{"$f":"SUM(E11:E22)","v":67.760106288885339},{"$f":"SUM(F11:F22)","v":67.823257866648646},null,null,null,{"$f":"ROUND(E23/J$2*100,3)","v":18.564},{"$f":"ROUND(F23/K$2*100,3)","v":18.582000000000001}]
[]
[{"$f":"A10+1","v":2},{"$f":"IFERROR(VLOOKUP($A25,Inputs!$B$68:$AK$129,MATCH($B$7,Inputs!$B$68:$AK$68,0),FALSE),\"Blank\")","v":"42W Compact Fluorescent"},null,null,null,null,null,null,{"$f":"IFERROR(VLOOKUP($A25,Inputs!$B$68:$AK$129,MATCH($B$7,Inputs!$B$68:$AK$68,0),FALSE),\"Blank\")","v":"42W Compact Fluorescent"}]
[null,{"$f":"Inputs!$R$68","v":"Lamp UNIT price Annualised Cost"},{"$f":"Inputs!$P$68","v":"Lamp Maintenance cycle"},null,{"$f":"IF($B25=\"Blank\",0,VLOOKUP($B25,Inputs!$C$68:$AK$129,MATCH($B26,Inputs!$C$68:$AK$68,0),FALSE))","v":1.0984639624469332},{"$f":"IF($B25=\"Blank\",0,VLOOKUP($B25,Inputs!$C$68:$AK$129,MATCH($B26,Inputs!$C$68:$AK$68,0),FALSE))","v":1.0984639624469332},null,null,{"$f":"B26","v":"Lamp UNIT price Annualised Cost"},{"$f":"IF(E26=\"NA\",\"\",E26/J$2*100)","v":0.30094903080737895},{"$f":"IF(F26=\"NA\",\"\",F26/K$2*100)","v":0.30094903080737895}]
[null,{"$f":"Inputs!$K$68","v":"PE Cell UNIT price Annualised Cost"},{"$f":"Inputs!$I$68","v":"PE Cell Maintenance Cycle"},null,{"$f":"IF($B25=\"Blank\",0,VLOOKUP($B25,Inputs!$C$68:$AK$129,MATCH($B27,Inputs!$C$68:$AK$68,0),FALSE))","v":0.6107414998224272},{"$f":"IF($B25=\"Blank\",0,VLOOKUP($B25,Inputs!$C$68:$AK$129,MATCH($B27,Inputs!$C$68:$AK$68,0),FALSE))","v":0.6107414998224272},null,null,"PE Cell UNIT price Annualised Cost",0.16732643830751431,0.16732643830751431]
[null,"Corp capex annuity per light",null,null,{"$f":"IF($B25=\"Blank\",0,'Corp Capex Annuity calcs'!F$109)","v":14.826870317655803},{"$f":"IF($B25=\"Blank\",0,'Corp Capex Annuity calcs'!G$109)","v":14.708895619806404},null,null,"Corp capex annuity per light",4.0621562514125493,4.0298344163853157]
[null,{"$f":"Inputs!$T$68","v":"Lamp Service costs Annualised"},null,null,{"$f":"IF($B25=\"Blank\",0,VLOOKUP($B25,Inputs!$C$68:$AK$129,MATCH($B29,Inputs!$C$68:$AK$68,0),FALSE))","v":26.347371767734501},{"$f":"IF($B25=\"Blank\",0,VLOOKUP($B25,Inputs!$C$68:$AK$129,MATCH($B29,Inputs!$C$68:$AK$68,0),FALSE))","v":26.347371767734501},null,null,"Lamp Service costs Annualised",7.2184580185573974,7.2184580185573974]
[null,{"$f":"Inputs!$M$68","v":"PE Cell Service costs Annualised"},null,null,{"$f":"IF($B25=\"Blank\",0,VLOOKUP($B25,Inputs!$C$68:$AK$129,MATCH($B30,Inputs!$C$68:$AK$68,0),FALSE))","v":0},{"$f":"IF($B25=\"Blank\",0,VLOOKUP($B25,Inputs!$C$68:$AK$129,MATCH($B30,Inputs!$C$68:$AK$68,0),FALSE))","v":0},null,null,"PE Cell Service costs Annualised",0,0]
[null,"Indirect Opex",null,null,{"$f":"IF($B25=\"Blank\",0,IF($B$8=\"Private Contract Lighting\",'Opex Weighting'!D$113,'Opex Weighting'!D$111))","v":13.654305575211096},{"$f":"IF($B25=\"Blank\",0,IF($B$8=\"Private Contract Lighting\",'Opex Weighting'!E$113,'Opex Weighting'!E$111))","v":13.545660760758196},null,null,"Indirect Opex",3.7409056370441354,3.7111399344543003]
[null,"Indirect Capex",null,null,{"$f":"IF($B26=\"Blank\",0,IF($B$8=\"Private Contract Lighting\",'Capex Weighting'!D$115,'Capex Weighting'!D$117))","v":0},{"$f":"IF($B26=\"Blank\",0,IF($B$8=\"Private Contract Lighting\",'Capex Weighting'!E$115,'Capex Weighting'!E$117))","v":0},null,null,"Indirect Capex",0,0]
[null,"Overhead Costs per light",null,null,{"$f":"IF($B25=\"Blank\",0,IF($B$8=\"Private Contract Lighting\",'Building Block'!C$49,'Building Block'!C$48))","v":11.222353166014571},{"$f":"IF($B25=\"Blank\",0,IF($B$8=\"Private Contract Lighting\",'Building Block'!D$49,'Building Block'!D$48))","v":11.512124256080179},null,null,"Overhead Costs per light",3.0746173057574167,3.1540066455014193]
[null,{"$f":"Inputs!$AH$68","v":"Bracket UNIT price"},0,null,"NA","NA",null,null,"Bracket UNIT price","",""]
[null,{"$f":"Inputs!$Y$68","v":"CAPEX Installation costs"},{"$f":"C34+1","v":1},null,"NA","NA",null,null,"CAPEX Installation costs","",""]
[null,{"$f":"Inputs!$X$68","v":"Luminaire UNIT price"},{"$f":"C35+1","v":2},null,"NA","NA",null,null,"Luminaire UNIT price","",""]
[null,{"$f":"Inputs!$Y$68","v":"CAPEX Installation costs"},3,null,"NA","NA",null,null,"CAPEX Installation costs","",""]
[null,null,null,null,{"$f":"SUM(E26:E37)","v":67.760106288885339},{"$f":"SUM(F26:F37)","v":67.823257866648646},null,null,null,{"$f":"ROUND(E38/J$2*100,3)","v":18.564},{"$f":"ROUND(F38/K$2*100,3)","v":18.582000000000001}]
[]
[{"$f":"A25+1","v":3},{"$f":"IFERROR(VLOOKUP($A40,Inputs!$B$68:$AK$129,MATCH($B$7,Inputs!$B$68:$AK$68,0),FALSE),\"Blank\")","v":"42W Compact Fluorescent - Bottom Pole Entry"},null,null,null,null,null,null,{"$f":"IFERROR(VLOOKUP($A40,Inputs!$B$68:$AK$129,MATCH($B$7,Inputs!$B$68:$AK$68,0),FALSE),\"Blank\")","v":"42W Compact Fluorescent - Bottom Pole Entry"}]
[null,{"$f":"Inputs!$R$68","v":"Lamp UNIT price Annualised Cost"},{"$f":"Inputs!$P$68","v":"Lamp Maintenance cycle"},null,{"$f":"IF($B40=\"Blank\",0,VLOOKUP($B40,Inputs!$C$68:$AK$129,MATCH($B41,Inputs!$C$68:$AK$68,0),FALSE))","v":1.0984639624469332},{"$f":"IF($B40=\"Blank\",0,VLOOKUP($B40,Inputs!$C$68:$AK$129,MATCH($B41,Inputs!$C$68:$AK$68,0),FALSE))","v":1.0984639624469332},null,null,{"$f":"B41","v":"Lamp UNIT price Annualised Cost"},{"$f":"IF(E41=\"NA\",\"\",E41/J$2*100)","v":0.30094903080737895},{"$f":"IF(F41=\"NA\",\"\",F41/K$2*100)","v":0.30094903080737895}]
[null,{"$f":"Inputs!$K$68","v":"PE Cell UNIT price Annualised Cost"},{"$f":"Inputs!$I$68","v":"PE Cell Maintenance Cycle"},null,{"$f":"IF($B40=\"Blank\",0,VLOOKUP($B40,Inputs!$C$68:$AK$129,MATCH($B42,Inputs!$C$68:$AK$68,0),FALSE))","v":0.6107414998224272},{"$f":"IF($B40=\"Blank\",0,VLOOKUP($B40,Inputs!$C$68:$AK$129,MATCH($B42,Inputs!$C$68:$AK$68,0),FALSE))","v":0.6107414998224272},null,null,"PE Cell UNIT price Annualised Cost",0.16732643830751431,0.16732643830751431]
[null,"Corp capex annuity per light",null,null,{"$f":"IF($B40=\"Blank\",0,'Corp Capex Annuity calcs'!F$109)","v":14.826870317655803},{"$f":"IF($B40=\"Blank\",0,'Corp Capex Annuity calcs'!G$109)","v":14.708895619806404},null,null,"Corp capex annuity per light",4.0621562514125493,4.0298344163853157]
[null,{"$f":"Inputs!$T$68","v":"Lamp Service costs Annualised"},null,null,{"$f":"IF($B40=\"Blank\",0,VLOOKUP($B40,Inputs!$C$68:$AK$129,MATCH($B44,Inputs!$C$68:$AK$68,0),FALSE))","v":26.347371767734501},{"$f":"IF($B40=\"Blank\",0,VLOOKUP($B40,Inputs!$C$68:$AK$129,MATCH($B44,Inputs!$C$68:$AK$68,0),FALSE))","v":26.347371767734501},null,null,"Lamp Service costs Annualised",7.2184580185573974,7.2184580185573974]
[null,{"$f":"Inputs!$M$68","v":"PE Cell Service costs Annualised"},null,null,{"$f":"IF($B40=\"Blank\",0,VLOOKUP($B40,Inputs!$C$68:$AK$129,MATCH($B45,Inputs!$C$68:$AK$68,0),FALSE))","v":0},{"$f":"IF($B40=\"Blank\",0,VLOOKUP($B40,Inputs!$C$68:$AK$129,MATCH($B45,Inputs!$C$68:$AK$68,0),FALSE))","v":0},null,null,"PE Cell Service costs Annualised",0,0]
[null,"Indirect Opex",null,null,{"$f":"IF($B40=\"Blank\",0,IF($B$8=\"Private Contract Lighting\",'Opex Weighting'!D$113,'Opex Weighting'!D$111))","v":13.654305575211096},{"$f":"IF($B40=\"Blank\",0,IF($B$8=\"Private Contract Lighting\",'Opex Weighting'!E$113,'Opex Weighting'!E$111))","v":13.545660760758196},null,null,"Indirect Opex",3.7409056370441354,3.7111399344543003]
[null,"Indirect Capex",null,null,{"$f":"IF($B41=\"Blank\",0,IF($B$8=\"Private Contract Lighting\",'Capex Weighting'!D$115,'Capex Weighting'!D$117))","v":0},{"$f":"IF($B41=\"Blank\",0,IF($B$8=\"Private Contract Lighting\",'Capex Weighting'!E$115,'Capex Weighting'!E$117))","v":0},null,null,"Indirect Capex",0,0]
[null,"Overhead Costs per light",null,null,{"$f":"IF($B40=\"Blank\",0,IF($B$8=\"Private Contract Lighting\",'Building Block'!C$49,'Building Block'!C$48))","v":11.222353166014571},{"$f":"IF($B40=\"Blank\",0,IF($B$8=\"Private Contract Lighting\",'Building Block'!D$49,'Building Block'!D$48))","v":11.512124256080179},null,null,"Overhead Costs per light",3.0746173057574167,3.1540066455014193]
[null,{"$f":"Inputs!$AH$68","v":"Bracket UNIT price"},0,null,"NA","NA",null,null,"Bracket UNIT price","",""]
[null,{"$f":"Inputs!$Y$68","v":"CAPEX Installation costs"},{"$f":"C49+1","v":1},null,"NA","NA",null,null,"CAPEX Installation costs","",""]
[null,{"$f":"Inputs!$X$68","v":"Luminaire UNIT price"},{"$f":"C50+1","v":2},null,"NA","NA",null,null,"Luminaire UNIT price","",""]
[null,{"$f":"Inputs!$Y$68","v":"CAPEX Installation costs"},3,null,"NA","NA",null,null,"CAPEX Installation costs","",""]
[null,null,null,null,{"$f":"SUM(E41:E52)","v":67.760106288885339},{"$f":"SUM(F41:F52)","v":67.823257866648646},null,null,null,{"$f":"ROUND(E53/J$2*100,3)","v":18.564},{"$f":"ROUND(F53/K$2*100,3)","v":18.582000000000001}]
[]
[{"$f":"A40+1","v":4},{"$f":"IFERROR(VLOOKUP($A55,Inputs!$B$68:$AK$129,MATCH($B$7,Inputs!$B$68:$AK$68,0),FALSE),\"Blank\")","v":"2x24W Compact Fluorescent"},null,null,null,null,null,null,{"$f":"IFERROR(VLOOKUP($A55,Inputs!$B$68:$AK$129,MATCH($B$7,Inputs!$B$68:$AK$68,0),FALSE),\"Blank\")","v":"2x24W Compact Fluorescent"}]
[null,{"$f":"Inputs!$R$68","v":"Lamp UNIT price Annualised Cost"},{"$f":"Inputs!$P$68","v":"Lamp Maintenance cycle"},null,{"$f":"IF($B55=\"Blank\",0,VLOOKUP($B55,Inputs!$C$68:$AK$129,MATCH($B56,Inputs!$C$68:$AK$68,0),FALSE))","v":2.1969279248938665},{"$f":"IF($B55=\"Blank\",0,VLOOKUP($B55,Inputs!$C$68:$AK$129,MATCH($B56,Inputs!$C$68:$AK$68,0),FALSE))","v":2.1969279248938665},null,null,{"$f":"B56","v":"Lamp UNIT price Annualised Cost"},{"$f":"IF(E56=\"NA\",\"\",E56/J$2*100)","v":0.6018980616147579},{"$f":"IF(F56=\"NA\",\"\",F56/K$2*100)","v":0.6018980616147579}]
[null,{"$f":"Inputs!$K$68","v":"PE Cell UNIT price Annualised Cost"},{"$f":"Inputs!$I$68","v":"PE Cell Maintenance Cycle"},null,{"$f":"IF($B55=\"Blank\",0,VLOOKUP($B55,Inputs!$C$68:$AK$129,MATCH($B57,Inputs!$C$68:$AK$68,0),FALSE))","v":0.6107414998224272},{"$f":"IF($B55=\"Blank\",0,VLOOKUP($B55,Inputs!$C$68:$AK$129,MATCH($B57,Inputs!$C$68:$AK$68,0),FALSE))","v":0.6107414998224272},null,null,"PE Cell UNIT price Annualised Cost",0.16732643830751431,0.16732643830751431]
[null,"Corp capex annuity per light",null,null,{"$f":"IF($B55=\"Blank\",0,'Corp Capex Annuity calcs'!F$109)","v":14.826870317655803},{"$f":"IF($B55=\"Blank\",0,'Corp Capex Annuity calcs'!G$109)","v":14.708895619806404},null,null,"Corp capex annuity per light",4.0621562514125493,4.0298344163853157]
[null,{"$f":"Inputs!$T$68","v":"Lamp Service costs Annualised"},null,null,{"$f":"IF($B55=\"Blank\",0,VLOOKUP($B55,Inputs!$C$68:$AK$129,MATCH($B59,Inputs!$C$68:$AK$68,0),FALSE))","v":26.347371767734501},{"$f":"IF($B55=\"Blank\",0,VLOOKUP($B55,Inputs!$C$68:$AK$129,MATCH($B59,Inputs!$C$68:$AK$68,0),FALSE))","v":26.347371767734501},null,null,"Lamp Service costs Annualised",7.2184580185573974,7.2184580185573974]
[null,{"$f":"Inputs!$M$68","v":"PE Cell Service costs Annualised"},null,null,{"$f":"IF($B55=\"Blank\",0,VLOOKUP($B55,Inputs!$C$68:$AK$129,MATCH($B60,Inputs!$C$68:$AK$68,0),FALSE))","v":0},{"$f":"IF($B55=\"Blank\",0,VLOOKUP($B55,Inputs!$C$68:$AK$129,MATCH($B60,Inputs!$C$68:$AK$68,0),FALSE))","v":0},null,null,"PE Cell Service costs Annualised",0,0]
[null,"Indirect Opex",null,null,{"$f":"IF($B55=\"Blank\",0,IF($B$8=\"Private Contract Lighting\",'Opex Weighting'!D$113,'Opex Weighting'!D$111))","v":13.654305575211096},{"$f":"IF($B55=\"Blank\",0,IF($B$8=\"Private Contract Lighting\",'Opex Weighting'!E$113,'Opex Weighting'!E$111))","v":13.545660760758196},null,null,"Indirect Opex",3.7409056370441354,3.7111399344543003]
[null,"Indirect Capex",null,null,{"$f":"IF($B56=\"Blank\",0,IF($B$8=\"Private Contract Lighting\",'Capex Weighting'!D$115,'Capex Weighting'!D$117))","v":0},{"$f":"IF($B56=\"Blank\",0,IF($B$8=\"Private Contract Lighting\",'Capex Weighting'!E$115,'Capex Weighting'!E$117))","v":0},null,null,"Indirect Capex",0,0]
[null,"Overhead Costs per light",null,null,{"$f":"IF($B55=\"Blank\",0,IF($B$8=\"Private Contract Lighting\",'Building Block'!C$49,'Building Block'!C$48))","v":11.222353166014571},{"$f":"IF($B55=\"Blank\",0,IF($B$8=\"Private Contract Lighting\",'Building Block'!D$49,'Building Block'!D$48))","v":11.512124256080179},null,null,"Overhead Costs per light",3.0746173057574167,3.1540066455014193]
[null,{"$f":"Inputs!$AH$68","v":"Bracket UNIT price"},0,null,"NA","NA",null,null,"Bracket UNIT price","",""]
[null,{"$f":"Inputs!$Y$68","v":"CAPEX Installation costs"},{"$f":"C64+1","v":1},null,"NA","NA",null,null,"CAPEX Installation costs","",""]
[null,{"$f":"Inputs!$X$68","v":"Luminaire UNIT price"},{"$f":"C65+1","v":2},null,"NA","NA",null,null,"Luminaire UNIT price","",""]
[null,{"$f":"Inputs!$Y$68","v":"CAPEX Installation costs"},3,null,"NA","NA",null,null,"CAPEX Installation costs","",""]
[null,null,null,null,{"$f":"SUM(E56:E67)","v":68.858570251332267},{"$f":"SUM(F56:F67)","v":68.921721829095574},null,null,null,{"$f":"ROUND(E68/J$2*100,3)","v":18.864999999999998},{"$f":"ROUND(F68/K$2*100,3)","v":18.882999999999999}]
[]
[{"$f":"A55+1","v":5},{"$f":"IFERROR(VLOOKUP($A70,Inputs!$B$68:$AK$129,MATCH($B$7,Inputs!$B$68:$AK$68,0),FALSE),\"Blank\")","v":"1x20W Fluorescent"},null,null,null,null,null,null,{"$f":"IFERROR(VLOOKUP($A70,Inputs!$B$68:$AK$129,MATCH($B$7,Inputs!$B$68:$AK$68,0),FALSE),\"Blank\")","v":"1x20W Fluorescent"}]
[null,{"$f":"Inputs!$R$68","v":"Lamp UNIT price Annualised Cost"},{"$f":"Inputs!$P$68","v":"Lamp Maintenance cycle"},null,{"$f":"IF($B70=\"Blank\",0,VLOOKUP($B70,Inputs!$C$68:$AK$129,MATCH($B71,Inputs!$C$68:$AK$68,0),FALSE))","v":1.0601081787533762},{"$f":"IF($B70=\"Blank\",0,VLOOKUP($B70,Inputs!$C$68:$AK$129,MATCH($B71,Inputs!$C$68:$AK$68,0),FALSE))","v":1.0601081787533762},null,null,{"$f":"B71","v":"Lamp UNIT price Annualised Cost"},{"$f":"IF(E71=\"NA\",\"\",E71/J$2*100)","v":0.2904405969187332},{"$f":"IF(F71=\"NA\",\"\",F71/K$2*100)","v":0.2904405969187332}]
[null,{"$f":"Inputs!$K$68","v":"PE Cell UNIT price Annualised Cost"},{"$f":"Inputs!$I$68","v":"PE Cell Maintenance Cycle"},null,{"$f":"IF($B70=\"Blank\",0,VLOOKUP($B70,Inputs!$C$68:$AK$129,MATCH($B72,Inputs!$C$68:$AK$68,0),FALSE))","v":0.6107414998224272},{"$f":"IF($B70=\"Blank\",0,VLOOKUP($B70,Inputs!$C$68:$AK$129,MATCH($B72,Inputs!$C$68:$AK$68,0),FALSE))","v":0.6107414998224272},null,null,"PE Cell UNIT price Annualised Cost",0.16732643830751431,0.16732643830751431]
[null,"Corp capex annuity per light",null,null,{"$f":"IF($B70=\"Blank\",0,'Corp Capex Annuity calcs'!F$109)","v":14.826870317655803},{"$f":"IF($B70=\"Blank\",0,'Corp Capex Annuity calcs'!G$109)","v":14.708895619806404},null,null,"Corp capex annuity per light",4.0621562514125493,4.0298344163853157]
[null,{"$f":"Inputs!$T$68","v":"Lamp Service costs Annualised"},null,null,{"$f":"IF($B70=\"Blank\",0,VLOOKUP($B70,Inputs!$C$68:$AK$129,MATCH($B74,Inputs!$C$68:$AK$68,0),FALSE))","v":26.347371767734501},{"$f":"IF($B70=\"Blank\",0,VLOOKUP($B70,Inputs!$C$68:$AK$129,MATCH($B74,Inputs!$C$68:$AK$68,0),FALSE))","v":26.347371767734501},null,null,"Lamp Service costs Annualised",7.2184580185573974,7.2184580185573974]
[null,{"$f":"Inputs!$M$68","v":"PE Cell Service costs Annualised"},null,null,{"$f":"IF($B70=\"Blank\",0,VLOOKUP($B70,Inputs!$C$68:$AK$129,MATCH($B75,Inputs!$C$68:$AK$68,0),FALSE))","v":0},{"$f":"IF($B70=\"Blank\",0,VLOOKUP($B70,Inputs!$C$68:$AK$129,MATCH($B75,Inputs!$C$68:$AK$68,0),FALSE))","v":0},null,null,"PE Cell Service costs Annualised",0,0]
[null,"Indirect Opex",null,null,{"$f":"IF($B70=\"Blank\",0,IF($B$8=\"Private Contract Lighting\",'Opex Weighting'!D$113,'Opex Weighting'!D$111))","v":13.654305575211096},{"$f":"IF($B70=\"Blank\",0,IF($B$8=\"Private Contract Lighting\",'Opex Weighting'!E$113,'Opex Weighting'!E$111))","v":13.545660760758196},null,null,"Indirect Opex",3.7409056370441354,3.7111399344543003]
[null,"Indirect Capex",null,null,{"$f":"IF($B71=\"Blank\",0,IF($B$8=\"Private Contract Lighting\",'Capex Weighting'!D$115,'Capex Weighting'!D$117))","v":0},{"$f":"IF($B71=\"Blank\",0,IF($B$8=\"Private Contract Lighting\",'Capex Weighting'!E$115,'Capex Weighting'!E$117))","v":0},null,null,"Indirect Capex",0,0]
[null,"Overhead Costs per light",null,null,{"$f":"IF($B70=\"Blank\",0,IF($B$8=\"Private Contract Lighting\",'Building Block'!C$49,'Building Block'!C$48))","v":11.222353166014571},{"$f":"IF($B70=\"Blank\",0,IF($B$8=\"Private Contract Lighting\",'Building Block'!D$49,'Building Block'!D$48))","v":11.512124256080179},null,null,"Overhead Costs per light",3.0746173057574167,3.1540066455014193]
[null,{"$f":"Inputs!$AH$68","v":"Bracket UNIT price"},0,null,"NA","NA",null,null,"Bracket UNIT price","",""]
[null,{"$f":"Inputs!$Y$68","v":"CAPEX Installation costs"},{"$f":"C79+1","v":1},null,"NA","NA",null,null,"CAPEX Installation costs","",""]
[null,{"$f":"Inputs!$X$68","v":"Luminaire UNIT price"},{"$f":"C80+1","v":2},null,"NA","NA",null,null,"Luminaire UNIT price","",""]
[null,{"$f":"Inputs!$Y$68","v":"CAPEX Installation costs"},3,null,"NA","NA",null,null,"CAPEX Installation costs","",""]
[null,null,null,null,{"$f":"SUM(E71:E82)","v":67.721750505191778},{"$f":"SUM(F71:F82)","v":67.784902082955085},null,null,null,{"$f":"ROUND(E83/J$2*100,3)","v":18.553999999999998},{"$f":"ROUND(F83/K$2*100,3)","v":18.571000000000002}]
[]
[{"$f":"A70+1","v":6},{"$f":"IFERROR(VLOOKUP($A85,Inputs!$B$68:$AK$129,MATCH($B$7,Inputs!$B$68:$AK$68,0),FALSE),\"Blank\")","v":"1x40W Fluorescent"},null,null,null,null,null,null,{"$f":"IFERROR(VLOOKUP($A85,Inputs!$B$68:$AK$129,MATCH($B$7,Inputs!$B$68:$AK$68,0),FALSE),\"Blank\")","v":"1x40W Fluorescent"}]
[null,{"$f":"Inputs!$R$68","v":"Lamp UNIT price Annualised Cost"},{"$f":"Inputs!$P$68","v":"Lamp Maintenance cycle"},null,{"$f":"IF($B85=\"Blank\",0,VLOOKUP($B85,Inputs!$C$68:$AK$129,MATCH($B86,Inputs!$C$68:$AK$68,0),FALSE))","v":1.1289783156561479},{"$f":"IF($B85=\"Blank\",0,VLOOKUP($B85,Inputs!$C$68:$AK$129,MATCH($B86,Inputs!$C$68:$AK$68,0),FALSE))","v":1.1289783156561479},null,null,{"$f":"B86","v":"Lamp UNIT price Annualised Cost"},{"$f":"IF(E86=\"NA\",\"\",E86/J$2*100)","v":0.30930912757702683},{"$f":"IF(F86=\"NA\",\"\",F86/K$2*100)","v":0.30930912757702683}]
[null,{"$f":"Inputs!$K$68","v":"PE Cell UNIT price Annualised Cost"},{"$f":"Inputs!$I$68","v":"PE Cell Maintenance Cycle"},null,{"$f":"IF($B85=\"Blank\",0,VLOOKUP($B85,Inputs!$C$68:$AK$129,MATCH($B87,Inputs!$C$68:$AK$68,0),FALSE))","v":0.6107414998224272},{"$f":"IF($B85=\"Blank\",0,VLOOKUP($B85,Inputs!$C$68:$AK$129,MATCH($B87,Inputs!$C$68:$AK$68,0),FALSE))","v":0.6107414998224272},null,null,"PE Cell UNIT price Annualised Cost",0.16732643830751431,0.16732643830751431]
[null,"Corp capex annuity per light",null,null,{"$f":"IF($B85=\"Blank\",0,'Corp Capex Annuity calcs'!F$109)","v":14.826870317655803},{"$f":"IF($B85=\"Blank\",0,'Corp Capex Annuity calcs'!G$109)","v":14.708895619806404},null,null,"Corp capex annuity per light",4.0621562514125493,4.0298344163853157]
[null,{"$f":"Inputs!$T$68","v":"Lamp Service costs Annualised"},null,null,{"$f":"IF($B85=\"Blank\",0,VLOOKUP($B85,Inputs!$C$68:$AK$129,MATCH($B89,Inputs!$C$68:$AK$68,0),FALSE))","v":26.347371767734501},{"$f":"IF($B85=\"Blank\",0,VLOOKUP($B85,Inputs!$C$68:$AK$129,MATCH($B89,Inputs!$C$68:$AK$68,0),FALSE))","v":26.347371767734501},null,null,"Lamp Service costs Annualised",7.2184580185573974,7.2184580185573974]
[null,{"$f":"Inputs!$M$68","v":"PE Cell Service costs Annualised"},null,null,{"$f":"IF($B85=\"Blank\",0,VLOOKUP($B85,Inputs!$C$68:$AK$129,MATCH($B90,Inputs!$C$68:$AK$68,0),FALSE))","v":0},{"$f":"IF($B85=\"Blank\",0,VLOOKUP($B85,Inputs!$C$68:$AK$129,MATCH($B90,Inputs!$C$68:$AK$68,0),FALSE))","v":0},null,null,"PE Cell Service costs Annualised",0,0]
[null,"Indirect Opex",null,null,{"$f":"IF($B85=\"Blank\",0,IF($B$8=\"Private Contract Lighting\",'Opex Weighting'!D$113,'Opex Weighting'!D$111))","v":13.654305575211096},{"$f":"IF($B85=\"Blank\",0,IF($B$8=\"Private Contract Lighting\",'Opex Weighting'!E$113,'Opex Weighting'!E$111))","v":13.545660760758196},null,null,"Indirect Opex",3.7409056370441354,3.7111399344543003]
[null,"Indirect Capex",null,null,{"$f":"IF($B86=\"Blank\",0,IF($B$8=\"Private Contract Lighting\",'Capex Weighting'!D$115,'Capex Weighting'!D$117))","v":0},{"$f":"IF($B86=\"Blank\",0,IF($B$8=\"Private Contract Lighting\",'Capex Weighting'!E$115,'Capex Weighting'!E$117))","v":0},null,null,"Indirect Capex",0,0]
[null,"Overhead Costs per light",null,null,{"$f":"IF($B85=\"Blank\",0,IF($B$8=\"Private Contract Lighting\",'Building Block'!C$49,'Building Block'!C$48))","v":11.222353166014571},{"$f":"IF($B85=\"Blank\",0,IF($B$8=\"Private Contract Lighting\",'Building Block'!D$49,'Building Block'!D$48))","v":11.512124256080179},null,null,"Overhead Costs per light",3.0746173057574167,3.1540066455014193]
[null,{"$f":"Inputs!$AH$68","v":"Bracket UNIT price"},0,null,"NA","NA",null,null,"Bracket UNIT price","",""]
[null,{"$f":"Inputs!$Y$68","v":"CAPEX Installation costs"},{"$f":"C94+1","v":1},null,"NA","NA",null,null,"CAPEX Installation costs","",""]
[null,{"$f":"Inputs!$X$68","v":"Luminaire UNIT price"},{"$f":"C95+1","v":2},null,"NA","NA",null,null,"Luminaire UNIT price","",""]
[null,{"$f":"Inputs!$Y$68","v":"CAPEX Installation costs"},3,null,"NA","NA",null,null,"CAPEX Installation costs","",""]
[null,null,null,null,{"$f":"SUM(E86:E97)","v":67.790620642094552},{"$f":"SUM(F86:F97)","v":67.853772219857859},null,null,null,{"$f":"ROUND(E98/J$2*100,3)","v":18.573},{"$f":"ROUND(F98/K$2*100,3)","v":18.59}]
[]
[{"$f":"A85+1","v":7},{"$f":"IFERROR(VLOOKUP($A100,Inputs!$B$68:$AK$129,MATCH($B$7,Inputs!$B$68:$AK$68,0),FALSE),\"Blank\")","v":"2x20W Fluorescent"},null,null,null,null,null,null,{"$f":"IFERROR(VLOOKUP($A100,Inputs!$B$68:$AK$129,MATCH($B$7,Inputs!$B$68:$AK$68,0),FALSE),\"Blank\")","v":"2x20W Fluorescent"}]
[null,{"$f":"Inputs!$R$68","v":"Lamp UNIT price Annualised Cost"},{"$f":"Inputs!$P$68","v":"Lamp Maintenance cycle"},null,{"$f":"IF($B100=\"Blank\",0,VLOOKUP($B100,Inputs!$C$68:$AK$129,MATCH($B101,Inputs!$C$68:$AK$68,0),FALSE))","v":2.1202163575067523},{"$f":"IF($B100=\"Blank\",0,VLOOKUP($B100,Inputs!$C$68:$AK$129,MATCH($B101,Inputs!$C$68:$AK$68,0),FALSE))","v":2.1202163575067523},null,null,{"$f":"B101","v":"Lamp UNIT price Annualised Cost"},{"$f":"IF(E101=\"NA\",\"\",E101/J$2*100)","v":0.58088119383746639},{"$f":"IF(F101=\"NA\",\"\",F101/K$2*100)","v":0.58088119383746639}]
[null,{"$f":"Inputs!$K$68","v":"PE Cell UNIT price Annualised Cost"},{"$f":"Inputs!$I$68","v":"PE Cell Maintenance Cycle"},null,{"$f":"IF($B100=\"Blank\",0,VLOOKUP($B100,Inputs!$C$68:$AK$129,MATCH($B102,Inputs!$C$68:$AK$68,0),FALSE))","v":0.6107414998224272},{"$f":"IF($B100=\"Blank\",0,VLOOKUP($B100,Inputs!$C$68:$AK$129,MATCH($B102,Inputs!$C$68:$AK$68,0),FALSE))","v":0.6107414998224272},null,null,"PE Cell UNIT price Annualised Cost",0.16732643830751431,0.16732643830751431]
[null,"Corp capex annuity per light",null,null,{"$f":"IF($B100=\"Blank\",0,'Corp Capex Annuity calcs'!F$109)","v":14.826870317655803},{"$f":"IF($B100=\"Blank\",0,'Corp Capex Annuity calcs'!G$109)","v":14.708895619806404},null,null,"Corp capex annuity per light",4.0621562514125493,4.0298344163853157]
[null,{"$f":"Inputs!$T$68","v":"Lamp Service costs Annualised"},null,null,{"$f":"IF($B100=\"Blank\",0,VLOOKUP($B100,Inputs!$C$68:$AK$129,MATCH($B104,Inputs!$C$68:$AK$68,0),FALSE))","v":26.347371767734501},{"$f":"IF($B100=\"Blank\",0,VLOOKUP($B100,Inputs!$C$68:$AK$129,MATCH($B104,Inputs!$C$68:$AK$68,0),FALSE))","v":26.347371767734501},null,null,"Lamp Service costs Annualised",7.2184580185573974,7.2184580185573974]
[null,{"$f":"Inputs!$M$68","v":"PE Cell Service costs Annualised"},null,null,{"$f":"IF($B100=\"Blank\",0,VLOOKUP($B100,Inputs!$C$68:$AK$129,MATCH($B105,Inputs!$C$68:$AK$68,0),FALSE))","v":0},{"$f":"IF($B100=\"Blank\",0,VLOOKUP($B100,Inputs!$C$68:$AK$129,MATCH($B105,Inputs!$C$68:$AK$68,0),FALSE))","v":0},null,null,"PE Cell Service costs Annualised",0,0]
[null,"Indirect Opex",null,null,{"$f":"IF($B100=\"Blank\",0,IF($B$8=\"Private Contract Lighting\",'Opex Weighting'!D$113,'Opex Weighting'!D$111))","v":13.654305575211096},{"$f":"IF($B100=\"Blank\",0,IF($B$8=\"Private Contract Lighting\",'Opex Weighting'!E$113,'Opex Weighting'!E$111))","v":13.545660760758196},null,null,"Indirect Opex",3.7409056370441354,3.7111399344543003]
[null,"Indirect Capex",null,null,{"$f":"IF($B101=\"Blank\",0,IF($B$8=\"Private Contract Lighting\",'Capex Weighting'!D$115,'Capex Weighting'!D$117))","v":0},{"$f":"IF($B101=\"Blank\",0,IF($B$8=\"Private Contract Lighting\",'Capex Weighting'!E$115,'Capex Weighting'!E$117))","v":0},null,null,"Indirect Capex",0,0]
[null,"Overhead Costs per light",null,null,{"$f":"IF($B100=\"Blank\",0,IF($B$8=\"Private Contract Lighting\",'Building Block'!C$49,'Building Block'!C$48))","v":11.222353166014571},{"$f":"IF($B100=\"Blank\",0,IF($B$8=\"Private Contract Lighting\",'Building Block'!D$49,'Building Block'!D$48))","v":11.512124256080179},null,null,"Overhead Costs per light",3.0746173057574167,3.1540066455014193]
[null,{"$f":"Inputs!$AH$68","v":"Bracket UNIT price"},0,null,"NA","NA",null,null,"Bracket UNIT price","",""]
[null,{"$f":"Inputs!$Y$68","v":"CAPEX Installation costs"},{"$f":"C109+1","v":1},null,"NA","NA",null,null,"CAPEX Installation costs","",""]
[null,{"$f":"Inputs!$X$68","v":"Luminaire UNIT price"},{"$f":"C110+1","v":2},null,"NA","NA",null,null,"Luminaire UNIT price","",""]
[null,{"$f":"Inputs!$Y$68","v":"CAPEX Installation costs"},3,null,"NA","NA",null,null,"CAPEX Installation costs","",""]
[null,null,null,null,{"$f":"SUM(E101:E112)","v":68.78185868394516},{"$f":"SUM(F101:F112)","v":68.845010261708467},null,null,null,{"$f":"ROUND(E113/J$2*100,3)","v":18.844000000000001},{"$f":"ROUND(F113/K$2*100,3)","v":18.861999999999998}]
[]
[{"$f":"A100+1","v":8},{"$f":"IFERROR(VLOOKUP($A115,Inputs!$B$68:$AK$129,MATCH($B$7,Inputs!$B$68:$AK$68,0),FALSE),\"Blank\")","v":"2x24W Fluorescent"},null,null,null,null,null,null,{"$f":"IFERROR(VLOOKUP($A115,Inputs!$B$68:$AK$129,MATCH($B$7,Inputs!$B$68:$AK$68,0),FALSE),\"Blank\")","v":"2x24W Fluorescent"}]
[null,{"$f":"Inputs!$R$68","v":"Lamp UNIT price Annualised Cost"},{"$f":"Inputs!$P$68","v":"Lamp Maintenance cycle"},null,{"$f":"IF($B115=\"Blank\",0,VLOOKUP($B115,Inputs!$C$68:$AK$129,MATCH($B116,Inputs!$C$68:$AK$68,0),FALSE))","v":1.4370046282556002},{"$f":"IF($B115=\"Blank\",0,VLOOKUP($B115,Inputs!$C$68:$AK$129,MATCH($B116,Inputs!$C$68:$AK$68,0),FALSE))","v":1.4370046282556002},null,null,{"$f":"B116","v":"Lamp UNIT price Annualised Cost"},{"$f":"IF(E116=\"NA\",\"\",E116/J$2*100)","v":0.39369989815221923},{"$f":"IF(F116=\"NA\",\"\",F116/K$2*100)","v":0.39369989815221923}]
[null,{"$f":"Inputs!$K$68","v":"PE Cell UNIT price Annualised Cost"},{"$f":"Inputs!$I$68","v":"PE Cell Maintenance Cycle"},null,{"$f":"IF($B115=\"Blank\",0,VLOOKUP($B115,Inputs!$C$68:$AK$129,MATCH($B117,Inputs!$C$68:$AK$68,0),FALSE))","v":0.6107414998224272},{"$f":"IF($B115=\"Blank\",0,VLOOKUP($B115,Inputs!$C$68:$AK$129,MATCH($B117,Inputs!$C$68:$AK$68,0),FALSE))","v":0.6107414998224272},null,null,"PE Cell UNIT price Annualised Cost",0.16732643830751431,0.16732643830751431]
[null,"Corp capex annuity per light",null,null,{"$f":"IF($B115=\"Blank\",0,'Corp Capex Annuity calcs'!F$109)","v":14.826870317655803},{"$f":"IF($B115=\"Blank\",0,'Corp Capex Annuity calcs'!G$109)","v":14.708895619806404},null,null,"Corp capex annuity per light",4.0621562514125493,4.0298344163853157]
[null,{"$f":"Inputs!$T$68","v":"Lamp Service costs Annualised"},null,null,{"$f":"IF($B115=\"Blank\",0,VLOOKUP($B115,Inputs!$C$68:$AK$129,MATCH($B119,Inputs!$C$68:$AK$68,0),FALSE))","v":26.347371767734501},{"$f":"IF($B115=\"Blank\",0,VLOOKUP($B115,Inputs!$C$68:$AK$129,MATCH($B119,Inputs!$C$68:$AK$68,0),FALSE))","v":26.347371767734501},null,null,"Lamp Service costs Annualised",7.2184580185573974,7.2184580185573974]
[null,{"$f":"Inputs!$M$68","v":"PE Cell Service costs Annualised"},null,null,{"$f":"IF($B115=\"Blank\",0,VLOOKUP($B115,Inputs!$C$68:$AK$129,MATCH($B120,Inputs!$C$68:$AK$68,0),FALSE))","v":0},{"$f":"IF($B115=\"Blank\",0,VLOOKUP($B115,Inputs!$C$68:$AK$129,MATCH($B120,Inputs!$C$68:$AK$68,0),FALSE))","v":0},null,null,"PE Cell Service costs Annualised",0,0]
[null,"Indirect Opex",null,null,{"$f":"IF($B115=\"Blank\",0,IF($B$8=\"Private Contract Lighting\",'Opex Weighting'!D$113,'Opex Weighting'!D$111))","v":13.654305575211096},{"$f":"IF($B115=\"Blank\",0,IF($B$8=\"Private Contract Lighting\",'Opex Weighting'!E$113,'Opex Weighting'!E$111))","v":13.545660760758196},null,null,"Indirect Opex",3.7409056370441354,3.7111399344543003]
[null,"Indirect Capex",null,null,{"$f":"IF($B116=\"Blank\",0,IF($B$8=\"Private Contract Lighting\",'Capex Weighting'!D$115,'Capex Weighting'!D$117))","v":0},{"$f":"IF($B116=\"Blank\",0,IF($B$8=\"Private Contract Lighting\",'Capex Weighting'!E$115,'Capex Weighting'!E$117))","v":0},null,null,"Indirect Capex",0,0]
[null,"Overhead Costs per light",null,null,{"$f":"IF($B115=\"Blank\",0,IF($B$8=\"Private Contract Lighting\",'Building Block'!C$49,'Building Block'!C$48))","v":11.222353166014571},{"$f":"IF($B115=\"Blank\",0,IF($B$8=\"Private Contract Lighting\",'Building Block'!D$49,'Building Block'!D$48))","v":11.512124256080179},null,null,"Overhead Costs per light",3.0746173057574167,3.1540066455014193]
[null,{"$f":"Inputs!$AH$68","v":"Bracket UNIT price"},0,null,"NA","NA",null,null,"Bracket UNIT price","",""]
[null,{"$f":"Inputs!$Y$68","v":"CAPEX Installation costs"},{"$f":"C124+1","v":1},null,"NA","NA",null,null,"CAPEX Installation costs","",""]
[null,{"$f":"Inputs!$X$68","v":"Luminaire UNIT price"},{"$f":"C125+1","v":2},null,"NA","NA",null,null,"Luminaire UNIT price","",""]
[null,{"$f":"Inputs!$Y$68","v":"CAPEX Installation costs"},3,null,"NA","NA",null,null,"CAPEX Installation costs","",""]
[null,null,null,null,{"$f":"SUM(E116:E127)","v":68.098646954694004},{"$f":"SUM(F116:F127)","v":68.161798532457311},null,null,null,{"$f":"ROUND(E128/J$2*100,3)","v":18.657},{"$f":"ROUND(F128/K$2*100,3)","v":18.673999999999999}]
[]
[{"$f":"A115+1","v":9},{"$f":"IFERROR(VLOOKUP($A130,Inputs!$B$68:$AK$129,MATCH($B$7,Inputs!$B$68:$AK$68,0),FALSE),\"Blank\")","v":"T5 Fluorescent 2 x 24W"},null,null,null,null,null,null,{"$f":"IFERROR(VLOOKUP($A130,Inputs!$B$68:$AK$129,MATCH($B$7,Inputs!$B$68:$AK$68,0),FALSE),\"Blank\")","v":"T5 Fluorescent 2 x 24W"}]
[null,{"$f":"Inputs!$R$68","v":"Lamp UNIT price Annualised Cost"},{"$f":"Inputs!$P$68","v":"Lamp Maintenance cycle"},null,{"$f":"IF($B130=\"Blank\",0,VLOOKUP($B130,Inputs!$C$68:$AK$129,MATCH($B131,Inputs!$C$68:$AK$68,0),FALSE))","v":2.1202163575067523},{"$f":"IF($B130=\"Blank\",0,VLOOKUP($B130,Inputs!$C$68:$AK$129,MATCH($B131,Inputs!$C$68:$AK$68,0),FALSE))","v":2.1202163575067523},null,null,{"$f":"B131","v":"Lamp UNIT price Annualised Cost"},{"$f":"IF(E131=\"NA\",\"\",E131/J$2*100)","v":0.58088119383746639},{"$f":"IF(F131=\"NA\",\"\",F131/K$2*100)","v":0.58088119383746639}]
[null,{"$f":"Inputs!$K$68","v":"PE Cell UNIT price Annualised Cost"},{"$f":"Inputs!$I$68","v":"PE Cell Maintenance Cycle"},null,{"$f":"IF($B130=\"Blank\",0,VLOOKUP($B130,Inputs!$C$68:$AK$129,MATCH($B132,Inputs!$C$68:$AK$68,0),FALSE))","v":0.6107414998224272},{"$f":"IF($B130=\"Blank\",0,VLOOKUP($B130,Inputs!$C$68:$AK$129,MATCH($B132,Inputs!$C$68:$AK$68,0),FALSE))","v":0.6107414998224272},null,null,"PE Cell UNIT price Annualised Cost",0.16732643830751431,0.16732643830751431]
[null,"Corp capex annuity per light",null,null,{"$f":"IF($B130=\"Blank\",0,'Corp Capex Annuity calcs'!F$109)","v":14.826870317655803},{"$f":"IF($B130=\"Blank\",0,'Corp Capex Annuity calcs'!G$109)","v":14.708895619806404},null,null,"Corp capex annuity per light",4.0621562514125493,4.0298344163853157]
[null,{"$f":"Inputs!$T$68","v":"Lamp Service costs Annualised"},null,null,{"$f":"IF($B130=\"Blank\",0,VLOOKUP($B130,Inputs!$C$68:$AK$129,MATCH($B134,Inputs!$C$68:$AK$68,0),FALSE))","v":26.347371767734501},{"$f":"IF($B130=\"Blank\",0,VLOOKUP($B130,Inputs!$C$68:$AK$129,MATCH($B134,Inputs!$C$68:$AK$68,0),FALSE))","v":26.347371767734501},null,null,"Lamp Service costs Annualised",7.2184580185573974,7.2184580185573974]
[null,{"$f":"Inputs!$M$68","v":"PE Cell Service costs Annualised"},null,null,{"$f":"IF($B130=\"Blank\",0,VLOOKUP($B130,Inputs!$C$68:$AK$129,MATCH($B135,Inputs!$C$68:$AK$68,0),FALSE))","v":0},{"$f":"IF($B130=\"Blank\",0,VLOOKUP($B130,Inputs!$C$68:$AK$129,MATCH($B135,Inputs!$C$68:$AK$68,0),FALSE))","v":0},null,null,"PE Cell Service costs Annualised",0,0]
[null,"Indirect Opex",null,null,{"$f":"IF($B130=\"Blank\",0,IF($B$8=\"Private Contract Lighting\",'Opex Weighting'!D$113,'Opex Weighting'!D$111))","v":13.654305575211096},{"$f":"IF($B130=\"Blank\",0,IF($B$8=\"Private Contract Lighting\",'Opex Weighting'!E$113,'Opex Weighting'!E$111))","v":13.545660760758196},null,null,"Indirect Opex",3.7409056370441354,3.7111399344543003]
[null,"Indirect Capex",null,null,{"$f":"IF($B131=\"Blank\",0,IF($B$8=\"Private Contract Lighting\",'Capex Weighting'!D$115,'Capex Weighting'!D$117))","v":0},{"$f":"IF($B131=\"Blank\",0,IF($B$8=\"Private Contract Lighting\",'Capex Weighting'!E$115,'Capex Weighting'!E$117))","v":0},null,null,"Indirect Capex",0,0]
[null,"Overhead Costs per light",null,null,{"$f":"IF($B130=\"Blank\",0,IF($B$8=\"Private Contract Lighting\",'Building Block'!C$49,'Building Block'!C$48))","v":11.222353166014571},{"$f":"IF($B130=\"Blank\",0,IF($B$8=\"Private Contract Lighting\",'Building Block'!D$49,'Building Block'!D$48))","v":11.512124256080179},null,null,"Overhead Costs per light",3.0746173057574167,3.1540066455014193]
[null,{"$f":"Inputs!$AH$68","v":"Bracket UNIT price"},0,null,"NA","NA",null,null,"Bracket UNIT price","",""]
[null,{"$f":"Inputs!$Y$68","v":"CAPEX Installation costs"},{"$f":"C139+1","v":1},null,"NA","NA",null,null,"CAPEX Installation costs","",""]
[null,{"$f":"Inputs!$X$68","v":"Luminaire UNIT price"},{"$f":"C140+1","v":2},null,"NA","NA",null,null,"Luminaire UNIT price","",""]
[null,{"$f":"Inputs!$Y$68","v":"CAPEX Installation costs"},3,null,"NA","NA",null,null,"CAPEX Installation costs","",""]
[null,null,null,null,{"$f":"SUM(E131:E142)","v":68.78185868394516},{"$f":"SUM(F131:F142)","v":68.845010261708467},null,null,null,{"$f":"ROUND(E143/J$2*100,3)","v":18.844000000000001},{"$f":"ROUND(F143/K$2*100,3)","v":18.861999999999998}]
[]
[{"$f":"A130+1","v":10},{"$f":"IFERROR(VLOOKUP($A145,Inputs!$B$68:$AK$129,MATCH($B$7,Inputs!$B$68:$AK$68,0),FALSE),\"Blank\")","v":"20 Fluorescent 1X20FL"},null,null,null,null,null,null,{"$f":"IFERROR(VLOOKUP($A145,Inputs!$B$68:$AK$129,MATCH($B$7,Inputs!$B$68:$AK$68,0),FALSE),\"Blank\")","v":"20 Fluorescent 1X20FL"}]
[null,{"$f":"Inputs!$R$68","v":"Lamp UNIT price Annualised Cost"},{"$f":"Inputs!$P$68","v":"Lamp Maintenance cycle"},null,{"$f":"IF($B145=\"Blank\",0,VLOOKUP($B145,Inputs!$C$68:$AK$129,MATCH($B146,Inputs!$C$68:$AK$68,0),FALSE))","v":1.0601081787533762},{"$f":"IF($B145=\"Blank\",0,VLOOKUP($B145,Inputs!$C$68:$AK$129,MATCH($B146,Inputs!$C$68:$AK$68,0),FALSE))","v":1.0601081787533762},null,null,{"$f":"B146","v":"Lamp UNIT price Annualised Cost"},{"$f":"IF(E146=\"NA\",\"\",E146/J$2*100)","v":0.2904405969187332},{"$f":"IF(F146=\"NA\",\"\",F146/K$2*100)","v":0.2904405969187332}]
[null,{"$f":"Inputs!$K$68","v":"PE Cell UNIT price Annualised Cost"},{"$f":"Inputs!$I$68","v":"PE Cell Maintenance Cycle"},null,{"$f":"IF($B145=\"Blank\",0,VLOOKUP($B145,Inputs!$C$68:$AK$129,MATCH($B147,Inputs!$C$68:$AK$68,0),FALSE))","v":0.6107414998224272},{"$f":"IF($B145=\"Blank\",0,VLOOKUP($B145,Inputs!$C$68:$AK$129,MATCH($B147,Inputs!$C$68:$AK$68,0),FALSE))","v":0.6107414998224272},null,null,"PE Cell UNIT price Annualised Cost",0.16732643830751431,0.16732643830751431]
[null,"Corp capex annuity per light",null,null,{"$f":"IF($B145=\"Blank\",0,'Corp Capex Annuity calcs'!F$109)","v":14.826870317655803},{"$f":"IF($B145=\"Blank\",0,'Corp Capex Annuity calcs'!G$109)","v":14.708895619806404},null,null,"Corp capex annuity per light",4.0621562514125493,4.0298344163853157]
[null,{"$f":"Inputs!$T$68","v":"Lamp Service costs Annualised"},null,null,{"$f":"IF($B145=\"Blank\",0,VLOOKUP($B145,Inputs!$C$68:$AK$129,MATCH($B149,Inputs!$C$68:$AK$68,0),FALSE))","v":26.347371767734501},{"$f":"IF($B145=\"Blank\",0,VLOOKUP($B145,Inputs!$C$68:$AK$129,MATCH($B149,Inputs!$C$68:$AK$68,0),FALSE))","v":26.347371767734501},null,null,"Lamp Service costs Annualised",7.2184580185573974,7.2184580185573974]
[null,{"$f":"Inputs!$M$68","v":"PE Cell Service costs Annualised"},null,null,{"$f":"IF($B145=\"Blank\",0,VLOOKUP($B145,Inputs!$C$68:$AK$129,MATCH($B150,Inputs!$C$68:$AK$68,0),FALSE))","v":0},{"$f":"IF($B145=\"Blank\",0,VLOOKUP($B145,Inputs!$C$68:$AK$129,MATCH($B150,Inputs!$C$68:$AK$68,0),FALSE))","v":0},null,null,"PE Cell Service costs Annualised",0,0]
[null,"Indirect Opex",null,null,{"$f":"IF($B145=\"Blank\",0,IF($B$8=\"Private Contract Lighting\",'Opex Weighting'!D$113,'Opex Weighting'!D$111))","v":13.654305575211096},{"$f":"IF($B145=\"Blank\",0,IF($B$8=\"Private Contract Lighting\",'Opex Weighting'!E$113,'Opex Weighting'!E$111))","v":13.545660760758196},null,null,"Indirect Opex",3.7409056370441354,3.7111399344543003]
[null,"Indirect Capex",null,null,{"$f":"IF($B146=\"Blank\",0,IF($B$8=\"Private Contract Lighting\",'Capex Weighting'!D$115,'Capex Weighting'!D$117))","v":0},{"$f":"IF($B146=\"Blank\",0,IF($B$8=\"Private Contract Lighting\",'Capex Weighting'!E$115,'Capex Weighting'!E$117))","v":0},null,null,"Indirect Capex",0,0]
[null,"Overhead Costs per light",null,null,{"$f":"IF($B145=\"Blank\",0,IF($B$8=\"Private Contract Lighting\",'Building Block'!C$49,'Building Block'!C$48))","v":11.222353166014571},{"$f":"IF($B145=\"Blank\",0,IF($B$8=\"Private Contract Lighting\",'Building Block'!D$49,'Building Block'!D$48))","v":11.512124256080179},null,null,"Overhead Costs per light",3.0746173057574167,3.1540066455014193]
[null,{"$f":"Inputs!$AH$68","v":"Bracket UNIT price"},0,null,"NA","NA",null,null,"Bracket UNIT price","",""]
[null,{"$f":"Inputs!$Y$68","v":"CAPEX Installation costs"},{"$f":"C154+1","v":1},null,"NA","NA",null,null,"CAPEX Installation costs","",""]
[null,{"$f":"Inputs!$X$68","v":"Luminaire UNIT price"},{"$f":"C155+1","v":2},null,"NA","NA",null,null,"Luminaire UNIT price","",""]
[null,{"$f":"Inputs!$Y$68","v":"CAPEX Installation costs"},3,null,"NA","NA",null,null,"CAPEX Installation costs","",""]
[null,null,null,null,{"$f":"SUM(E146:E157)","v":67.721750505191778},{"$f":"SUM(F146:F157)","v":67.784902082955085},null,null,null,{"$f":"ROUND(E158/J$2*100,3)","v":18.553999999999998},{"$f":"ROUND(F158/K$2*100,3)","v":18.571000000000002}]
[]
[{"$f":"A145+1","v":11},{"$f":"IFERROR(VLOOKUP($A160,Inputs!$B$68:$AK$129,MATCH($B$7,Inputs!$B$68:$AK$68,0),FALSE),\"Blank\")","v":"2x40W Fluorescent"},null,null,null,null,null,null,{"$f":"IFERROR(VLOOKUP($A160,Inputs!$B$68:$AK$129,MATCH($B$7,Inputs!$B$68:$AK$68,0),FALSE),\"Blank\")","v":"2x40W Fluorescent"}]
[null,{"$f":"Inputs!$R$68","v":"Lamp UNIT price Annualised Cost"},{"$f":"Inputs!$P$68","v":"Lamp Maintenance cycle"},null,{"$f":"IF($B160=\"Blank\",0,VLOOKUP($B160,Inputs!$C$68:$AK$129,MATCH($B161,Inputs!$C$68:$AK$68,0),FALSE))","v":2.2579566313122958},{"$f":"IF($B160=\"Blank\",0,VLOOKUP($B160,Inputs!$C$68:$AK$129,MATCH($B161,Inputs!$C$68:$AK$68,0),FALSE))","v":2.2579566313122958},null,null,{"$f":"B161","v":"Lamp UNIT price Annualised Cost"},{"$f":"IF(E161=\"NA\",\"\",E161/J$2*100)","v":0.61861825515405366},{"$f":"IF(F161=\"NA\",\"\",F161/K$2*100)","v":0.61861825515405366}]
[null,{"$f":"Inputs!$K$68","v":"PE Cell UNIT price Annualised Cost"},{"$f":"Inputs!$I$68","v":"PE Cell Maintenance Cycle"},null,{"$f":"IF($B160=\"Blank\",0,VLOOKUP($B160,Inputs!$C$68:$AK$129,MATCH($B162,Inputs!$C$68:$AK$68,0),FALSE))","v":0.6107414998224272},{"$f":"IF($B160=\"Blank\",0,VLOOKUP($B160,Inputs!$C$68:$AK$129,MATCH($B162,Inputs!$C$68:$AK$68,0),FALSE))","v":0.6107414998224272},null,null,"PE Cell UNIT price Annualised Cost",0.16732643830751431,0.16732643830751431]
[null,"Corp capex annuity per light",null,null,{"$f":"IF($B160=\"Blank\",0,'Corp Capex Annuity calcs'!F$109)","v":14.826870317655803},{"$f":"IF($B160=\"Blank\",0,'Corp Capex Annuity calcs'!G$109)","v":14.708895619806404},null,null,"Corp capex annuity per light",4.0621562514125493,4.0298344163853157]
[null,{"$f":"Inputs!$T$68","v":"Lamp Service costs Annualised"},null,null,{"$f":"IF($B160=\"Blank\",0,VLOOKUP($B160,Inputs!$C$68:$AK$129,MATCH($B164,Inputs!$C$68:$AK$68,0),FALSE))","v":26.347371767734501},{"$f":"IF($B160=\"Blank\",0,VLOOKUP($B160,Inputs!$C$68:$AK$129,MATCH($B164,Inputs!$C$68:$AK$68,0),FALSE))","v":26.347371767734501},null,null,"Lamp Service costs Annualised",7.2184580185573974,7.2184580185573974]
[null,{"$f":"Inputs!$M$68","v":"PE Cell Service costs Annualised"},null,null,{"$f":"IF($B160=\"Blank\",0,VLOOKUP($B160,Inputs!$C$68:$AK$129,MATCH($B165,Inputs!$C$68:$AK$68,0),FALSE))","v":0},{"$f":"IF($B160=\"Blank\",0,VLOOKUP($B160,Inputs!$C$68:$AK$129,MATCH($B165,Inputs!$C$68:$AK$68,0),FALSE))","v":0},null,null,"PE Cell Service costs Annualised",0,0]
[null,"Indirect Opex",null,null,{"$f":"IF($B160=\"Blank\",0,IF($B$8=\"Private Contract Lighting\",'Opex Weighting'!D$113,'Opex Weighting'!D$111))","v":13.654305575211096},{"$f":"IF($B160=\"Blank\",0,IF($B$8=\"Private Contract Lighting\",'Opex Weighting'!E$113,'Opex Weighting'!E$111))","v":13.545660760758196},null,null,"Indirect Opex",3.7409056370441354,3.7111399344543003]
[null,"Indirect Capex",null,null,{"$f":"IF($B161=\"Blank\",0,IF($B$8=\"Private Contract Lighting\",'Capex Weighting'!D$115,'Capex Weighting'!D$117))","v":0},{"$f":"IF($B161=\"Blank\",0,IF($B$8=\"Private Contract Lighting\",'Capex Weighting'!E$115,'Capex Weighting'!E$117))","v":0},null,null,"Indirect Capex",0,0]
[null,"Overhead Costs per light",null,null,{"$f":"IF($B160=\"Blank\",0,IF($B$8=\"Private Contract Lighting\",'Building Block'!C$49,'Building Block'!C$48))","v":11.222353166014571},{"$f":"IF($B160=\"Blank\",0,IF($B$8=\"Private Contract Lighting\",'Building Block'!D$49,'Building Block'!D$48))","v":11.512124256080179},null,null,"Overhead Costs per light",3.0746173057574167,3.1540066455014193]
[null,{"$f":"Inputs!$AH$68","v":"Bracket UNIT price"},0,null,"NA","NA",null,null,"Bracket UNIT price","",""]
[null,{"$f":"Inputs!$Y$68","v":"CAPEX Installation costs"},{"$f":"C169+1","v":1},null,"NA","NA",null,null,"CAPEX Installation costs","",""]
[null,{"$f":"Inputs!$X$68","v":"Luminaire UNIT price"},{"$f":"C170+1","v":2},null,"NA","NA",null,null,"Luminaire UNIT price","",""]
[null,{"$f":"Inputs!$Y$68","v":"CAPEX Installation costs"},3,null,"NA","NA",null,null,"CAPEX Installation costs","",""]
[null,null,null,null,{"$f":"SUM(E161:E172)","v":68.919598957750694},{"$f":"SUM(F161:F172)","v":68.982750535514},null,null,null,{"$f":"ROUND(E173/J$2*100,3)","v":18.882000000000001},{"$f":"ROUND(F173/K$2*100,3)","v":18.899000000000001}]
[]
[{"$f":"A160+1","v":12},{"$f":"IFERROR(VLOOKUP($A175,Inputs!$B$68:$AK$129,MATCH($B$7,Inputs!$B$68:$AK$68,0),FALSE),\"Blank\")","v":"3x40W Fluorescent"},null,null,null,null,null,null,{"$f":"IFERROR(VLOOKUP($A175,Inputs!$B$68:$AK$129,MATCH($B$7,Inputs!$B$68:$AK$68,0),FALSE),\"Blank\")","v":"3x40W Fluorescent"}]
[null,{"$f":"Inputs!$R$68","v":"Lamp UNIT price Annualised Cost"},{"$f":"Inputs!$P$68","v":"Lamp Maintenance cycle"},null,{"$f":"IF($B175=\"Blank\",0,VLOOKUP($B175,Inputs!$C$68:$AK$129,MATCH($B176,Inputs!$C$68:$AK$68,0),FALSE))","v":3.3869349469684438},{"$f":"IF($B175=\"Blank\",0,VLOOKUP($B175,Inputs!$C$68:$AK$129,MATCH($B176,Inputs!$C$68:$AK$68,0),FALSE))","v":3.3869349469684438},null,null,{"$f":"B176","v":"Lamp UNIT price Annualised Cost"},{"$f":"IF(E176=\"NA\",\"\",E176/J$2*100)","v":0.92792738273108044},{"$f":"IF(F176=\"NA\",\"\",F176/K$2*100)","v":0.92792738273108044}]
[null,{"$f":"Inputs!$K$68","v":"PE Cell UNIT price Annualised Cost"},{"$f":"Inputs!$I$68","v":"PE Cell Maintenance Cycle"},null,{"$f":"IF($B175=\"Blank\",0,VLOOKUP($B175,Inputs!$C$68:$AK$129,MATCH($B177,Inputs!$C$68:$AK$68,0),FALSE))","v":1.7788104971099301},{"$f":"IF($B175=\"Blank\",0,VLOOKUP($B175,Inputs!$C$68:$AK$129,MATCH($B177,Inputs!$C$68:$AK$68,0),FALSE))","v":1.7788104971099301},null,null,"PE Cell UNIT price Annualised Cost",0.48734534167395344,0.48734534167395344]
[null,"Corp capex annuity per light",null,null,{"$f":"IF($B175=\"Blank\",0,'Corp Capex Annuity calcs'!F$109)","v":14.826870317655803},{"$f":"IF($B175=\"Blank\",0,'Corp Capex Annuity calcs'!G$109)","v":14.708895619806404},null,null,"Corp capex annuity per light",4.0621562514125493,4.0298344163853157]
[null,{"$f":"Inputs!$T$68","v":"Lamp Service costs Annualised"},null,null,{"$f":"IF($B175=\"Blank\",0,VLOOKUP($B175,Inputs!$C$68:$AK$129,MATCH($B179,Inputs!$C$68:$AK$68,0),FALSE))","v":38.134353874352563},{"$f":"IF($B175=\"Blank\",0,VLOOKUP($B175,Inputs!$C$68:$AK$129,MATCH($B179,Inputs!$C$68:$AK$68,0),FALSE))","v":38.134353874352563},null,null,"Lamp Service costs Annualised",10.447768184754127,10.447768184754127]
[null,{"$f":"Inputs!$M$68","v":"PE Cell Service costs Annualised"},null,null,{"$f":"IF($B175=\"Blank\",0,VLOOKUP($B175,Inputs!$C$68:$AK$129,MATCH($B180,Inputs!$C$68:$AK$68,0),FALSE))","v":0},{"$f":"IF($B175=\"Blank\",0,VLOOKUP($B175,Inputs!$C$68:$AK$129,MATCH($B180,Inputs!$C$68:$AK$68,0),FALSE))","v":0},null,null,"PE Cell Service costs Annualised",0,0]
[null,"Indirect Opex",null,null,{"$f":"IF($B175=\"Blank\",0,IF($B$8=\"Private Contract Lighting\",'Opex Weighting'!D$113,'Opex Weighting'!D$111))","v":13.654305575211096},{"$f":"IF($B175=\"Blank\",0,IF($B$8=\"Private Contract Lighting\",'Opex Weighting'!E$113,'Opex Weighting'!E$111))","v":13.545660760758196},null,null,"Indirect Opex",3.7409056370441354,3.7111399344543003]
[null,"Indirect Capex",null,null,{"$f":"IF($B176=\"Blank\",0,IF($B$8=\"Private Contract Lighting\",'Capex Weighting'!D$115,'Capex Weighting'!D$117))","v":0},{"$f":"IF($B176=\"Blank\",0,IF($B$8=\"Private Contract Lighting\",'Capex Weighting'!E$115,'Capex Weighting'!E$117))","v":0},null,null,"Indirect Capex",0,0]
[null,"Overhead Costs per light",null,null,{"$f":"IF($B175=\"Blank\",0,IF($B$8=\"Private Contract Lighting\",'Building Block'!C$49,'Building Block'!C$48))","v":11.222353166014571},{"$f":"IF($B175=\"Blank\",0,IF($B$8=\"Private Contract Lighting\",'Building Block'!D$49,'Building Block'!D$48))","v":11.512124256080179},null,null,"Overhead Costs per light",3.0746173057574167,3.1540066455014193]
[null,{"$f":"Inputs!$AH$68","v":"Bracket UNIT price"},0,null,"NA","NA",null,null,"Bracket UNIT price","",""]
[null,{"$f":"Inputs!$Y$68","v":"CAPEX Installation costs"},{"$f":"C184+1","v":1},null,"NA","NA",null,null,"CAPEX Installation costs","",""]
[null,{"$f":"Inputs!$X$68","v":"Luminaire UNIT price"},{"$f":"C185+1","v":2},null,"NA","NA",null,null,"Luminaire UNIT price","",""]
[null,{"$f":"Inputs!$Y$68","v":"CAPEX Installation costs"},3,null,"NA","NA",null,null,"CAPEX Installation costs","",""]
[null,null,null,null,{"$f":"SUM(E176:E187)","v":83.00362837731241},{"$f":"SUM(F176:F187)","v":83.066779955075717},null,null,null,{"$f":"ROUND(E188/J$2*100,3)","v":22.741},{"$f":"ROUND(F188/K$2*100,3)","v":22.757999999999999}]
[]
[{"$f":"A175+1","v":13},{"$f":"IFERROR(VLOOKUP($A190,Inputs!$B$68:$AK$129,MATCH($B$7,Inputs!$B$68:$AK$68,0),FALSE),\"Blank\")","v":"4x20 Fluorescent"},null,null,null,null,null,null,{"$f":"IFERROR(VLOOKUP($A190,Inputs!$B$68:$AK$129,MATCH($B$7,Inputs!$B$68:$AK$68,0),FALSE),\"Blank\")","v":"4x20 Fluorescent"}]
[null,{"$f":"Inputs!$R$68","v":"Lamp UNIT price Annualised Cost"},{"$f":"Inputs!$P$68","v":"Lamp Maintenance cycle"},null,{"$f":"IF($B190=\"Blank\",0,VLOOKUP($B190,Inputs!$C$68:$AK$129,MATCH($B191,Inputs!$C$68:$AK$68,0),FALSE))","v":4.2404327150135046},{"$f":"IF($B190=\"Blank\",0,VLOOKUP($B190,Inputs!$C$68:$AK$129,MATCH($B191,Inputs!$C$68:$AK$68,0),FALSE))","v":4.2404327150135046},null,null,{"$f":"B191","v":"Lamp UNIT price Annualised Cost"},{"$f":"IF(E191=\"NA\",\"\",E191/J$2*100)","v":1.1617623876749328},{"$f":"IF(F191=\"NA\",\"\",F191/K$2*100)","v":1.1617623876749328}]
[null,{"$f":"Inputs!$K$68","v":"PE Cell UNIT price Annualised Cost"},{"$f":"Inputs!$I$68","v":"PE Cell Maintenance Cycle"},null,{"$f":"IF($B190=\"Blank\",0,VLOOKUP($B190,Inputs!$C$68:$AK$129,MATCH($B192,Inputs!$C$68:$AK$68,0),FALSE))","v":0.6107414998224272},{"$f":"IF($B190=\"Blank\",0,VLOOKUP($B190,Inputs!$C$68:$AK$129,MATCH($B192,Inputs!$C$68:$AK$68,0),FALSE))","v":0.6107414998224272},null,null,"PE Cell UNIT price Annualised Cost",0.16732643830751431,0.16732643830751431]
[null,"Corp capex annuity per light",null,null,{"$f":"IF($B190=\"Blank\",0,'Corp Capex Annuity calcs'!F$109)","v":14.826870317655803},{"$f":"IF($B190=\"Blank\",0,'Corp Capex Annuity calcs'!G$109)","v":14.708895619806404},null,null,"Corp capex annuity per light",4.0621562514125493,4.0298344163853157]
[null,{"$f":"Inputs!$T$68","v":"Lamp Service costs Annualised"},null,null,{"$f":"IF($B190=\"Blank\",0,VLOOKUP($B190,Inputs!$C$68:$AK$129,MATCH($B194,Inputs!$C$68:$AK$68,0),FALSE))","v":26.347371767734501},{"$f":"IF($B190=\"Blank\",0,VLOOKUP($B190,Inputs!$C$68:$AK$129,MATCH($B194,Inputs!$C$68:$AK$68,0),FALSE))","v":26.347371767734501},null,null,"Lamp Service costs Annualised",7.2184580185573974,7.2184580185573974]
[null,{"$f":"Inputs!$M$68","v":"PE Cell Service costs Annualised"},null,null,{"$f":"IF($B190=\"Blank\",0,VLOOKUP($B190,Inputs!$C$68:$AK$129,MATCH($B195,Inputs!$C$68:$AK$68,0),FALSE))","v":0},{"$f":"IF($B190=\"Blank\",0,VLOOKUP($B190,Inputs!$C$68:$AK$129,MATCH($B195,Inputs!$C$68:$AK$68,0),FALSE))","v":0},null,null,"PE Cell Service costs Annualised",0,0]
[null,"Indirect Opex",null,null,{"$f":"IF($B190=\"Blank\",0,IF($B$8=\"Private Contract Lighting\",'Opex Weighting'!D$113,'Opex Weighting'!D$111))","v":13.654305575211096},{"$f":"IF($B190=\"Blank\",0,IF($B$8=\"Private Contract Lighting\",'Opex Weighting'!E$113,'Opex Weighting'!E$111))","v":13.545660760758196},null,null,"Indirect Opex",3.7409056370441354,3.7111399344543003]
[null,"Indirect Capex",null,null,{"$f":"IF($B191=\"Blank\",0,IF($B$8=\"Private Contract Lighting\",'Capex Weighting'!D$115,'Capex Weighting'!D$117))","v":0},{"$f":"IF($B191=\"Blank\",0,IF($B$8=\"Private Contract Lighting\",'Capex Weighting'!E$115,'Capex Weighting'!E$117))","v":0},null,null,"Indirect Capex",0,0]
[null,"Overhead Costs per light",null,null,{"$f":"IF($B190=\"Blank\",0,IF($B$8=\"Private Contract Lighting\",'Building Block'!C$49,'Building Block'!C$48))","v":11.222353166014571},{"$f":"IF($B190=\"Blank\",0,IF($B$8=\"Private Contract Lighting\",'Building Block'!D$49,'Building Block'!D$48))","v":11.512124256080179},null,null,"Overhead Costs per light",3.0746173057574167,3.1540066455014193]
[null,{"$f":"Inputs!$AH$68","v":"Bracket UNIT price"},0,null,"NA","NA",null,null,"Bracket UNIT price","",""]
[null,{"$f":"Inputs!$Y$68","v":"CAPEX Installation costs"},{"$f":"C199+1","v":1},null,"NA","NA",null,null,"CAPEX Installation costs","",""]
[null,{"$f":"Inputs!$X$68","v":"Luminaire UNIT price"},{"$f":"C200+1","v":2},null,"NA","NA",null,null,"Luminaire UNIT price","",""]
[null,{"$f":"Inputs!$Y$68","v":"CAPEX Installation costs"},3,null,"NA","NA",null,null,"CAPEX Installation costs","",""]
[null,null,null,null,{"$f":"SUM(E191:E202)","v":70.902075041451909},{"$f":"SUM(F191:F202)","v":70.965226619215215},null,null,null,{"$f":"ROUND(E203/J$2*100,3)","v":19.425000000000001},{"$f":"ROUND(F203/K$2*100,3)","v":19.443000000000001}]
[]
[{"$f":"A190+1","v":14},{"$f":"IFERROR(VLOOKUP($A205,Inputs!$B$68:$AK$129,MATCH($B$7,Inputs!$B$68:$AK$68,0),FALSE),\"Blank\")","v":"4x40W Fluorescent"},null,null,null,null,null,null,{"$f":"IFERROR(VLOOKUP($A205,Inputs!$B$68:$AK$129,MATCH($B$7,Inputs!$B$68:$AK$68,0),FALSE),\"Blank\")","v":"4x40W Fluorescent"}]
[null,{"$f":"Inputs!$R$68","v":"Lamp UNIT price Annualised Cost"},{"$f":"Inputs!$P$68","v":"Lamp Maintenance cycle"},null,{"$f":"IF($B205=\"Blank\",0,VLOOKUP($B205,Inputs!$C$68:$AK$129,MATCH($B206,Inputs!$C$68:$AK$68,0),FALSE))","v":4.5159132626245917},{"$f":"IF($B205=\"Blank\",0,VLOOKUP($B205,Inputs!$C$68:$AK$129,MATCH($B206,Inputs!$C$68:$AK$68,0),FALSE))","v":4.5159132626245917},null,null,{"$f":"B206","v":"Lamp UNIT price Annualised Cost"},{"$f":"IF(E206=\"NA\",\"\",E206/J$2*100)","v":1.2372365103081073},{"$f":"IF(F206=\"NA\",\"\",F206/K$2*100)","v":1.2372365103081073}]
[null,{"$f":"Inputs!$K$68","v":"PE Cell UNIT price Annualised Cost"},{"$f":"Inputs!$I$68","v":"PE Cell Maintenance Cycle"},null,{"$f":"IF($B205=\"Blank\",0,VLOOKUP($B205,Inputs!$C$68:$AK$129,MATCH($B207,Inputs!$C$68:$AK$68,0),FALSE))","v":1.7788104971099301},{"$f":"IF($B205=\"Blank\",0,VLOOKUP($B205,Inputs!$C$68:$AK$129,MATCH($B207,Inputs!$C$68:$AK$68,0),FALSE))","v":1.7788104971099301},null,null,"PE Cell UNIT price Annualised Cost",0.48734534167395344,0.48734534167395344]
[null,"Corp capex annuity per light",null,null,{"$f":"IF($B205=\"Blank\",0,'Corp Capex Annuity calcs'!F$109)","v":14.826870317655803},{"$f":"IF($B205=\"Blank\",0,'Corp Capex Annuity calcs'!G$109)","v":14.708895619806404},null,null,"Corp capex annuity per light",4.0621562514125493,4.0298344163853157]
[null,{"$f":"Inputs!$T$68","v":"Lamp Service costs Annualised"},null,null,{"$f":"IF($B205=\"Blank\",0,VLOOKUP($B205,Inputs!$C$68:$AK$129,MATCH($B209,Inputs!$C$68:$AK$68,0),FALSE))","v":38.134353874352563},{"$f":"IF($B205=\"Blank\",0,VLOOKUP($B205,Inputs!$C$68:$AK$129,MATCH($B209,Inputs!$C$68:$AK$68,0),FALSE))","v":38.134353874352563},null,null,"Lamp Service costs Annualised",10.447768184754127,10.447768184754127]
[null,{"$f":"Inputs!$M$68","v":"PE Cell Service costs Annualised"},null,null,{"$f":"IF($B205=\"Blank\",0,VLOOKUP($B205,Inputs!$C$68:$AK$129,MATCH($B210,Inputs!$C$68:$AK$68,0),FALSE))","v":0},{"$f":"IF($B205=\"Blank\",0,VLOOKUP($B205,Inputs!$C$68:$AK$129,MATCH($B210,Inputs!$C$68:$AK$68,0),FALSE))","v":0},null,null,"PE Cell Service costs Annualised",0,0]
[null,"Indirect Opex",null,null,{"$f":"IF($B205=\"Blank\",0,IF($B$8=\"Private Contract Lighting\",'Opex Weighting'!D$113,'Opex Weighting'!D$111))","v":13.654305575211096},{"$f":"IF($B205=\"Blank\",0,IF($B$8=\"Private Contract Lighting\",'Opex Weighting'!E$113,'Opex Weighting'!E$111))","v":13.545660760758196},null,null,"Indirect Opex",3.7409056370441354,3.7111399344543003]
[null,"Indirect Capex",null,null,{"$f":"IF($B206=\"Blank\",0,IF($B$8=\"Private Contract Lighting\",'Capex Weighting'!D$115,'Capex Weighting'!D$117))","v":0},{"$f":"IF($B206=\"Blank\",0,IF($B$8=\"Private Contract Lighting\",'Capex Weighting'!E$115,'Capex Weighting'!E$117))","v":0},null,null,"Indirect Capex",0,0]
[null,"Overhead Costs per light",null,null,{"$f":"IF($B205=\"Blank\",0,IF($B$8=\"Private Contract Lighting\",'Building Block'!C$49,'Building Block'!C$48))","v":11.222353166014571},{"$f":"IF($B205=\"Blank\",0,IF($B$8=\"Private Contract Lighting\",'Building Block'!D$49,'Building Block'!D$48))","v":11.512124256080179},null,null,"Overhead Costs per light",3.0746173057574167,3.1540066455014193]
[null,{"$f":"Inputs!$AH$68","v":"Bracket UNIT price"},0,null,"NA","NA",null,null,"Bracket UNIT price","",""]
[null,{"$f":"Inputs!$Y$68","v":"CAPEX Installation costs"},{"$f":"C214+1","v":1},null,"NA","NA",null,null,"CAPEX Installation costs","",""]
[null,{"$f":"Inputs!$X$68","v":"Luminaire UNIT price"},{"$f":"C215+1","v":2},null,"NA","NA",null,null,"Luminaire UNIT price","",""]
[null,{"$f":"Inputs!$Y$68","v":"CAPEX Installation costs"},3,null,"NA","NA",null,null,"CAPEX Installation costs","",""]
[null,null,null,null,{"$f":"SUM(E206:E217)","v":84.132606692968551},{"$f":"SUM(F206:F217)","v":84.195758270731872},null,null,null,{"$f":"ROUND(E218/J$2*100,3)","v":23.05},{"$f":"ROUND(F218/K$2*100,3)","v":23.067}]
[]
[{"$f":"A205+1","v":15},{"$f":"IFERROR(VLOOKUP($A220,Inputs!$B$68:$AK$129,MATCH($B$7,Inputs!$B$68:$AK$68,0),FALSE),\"Blank\")","v":"100W Sodium Vapour"},null,null,null,null,null,null,{"$f":"IFERROR(VLOOKUP($A220,Inputs!$B$68:$AK$129,MATCH($B$7,Inputs!$B$68:$AK$68,0),FALSE),\"Blank\")","v":"100W Sodium Vapour"}]
[null,{"$f":"Inputs!$R$68","v":"Lamp UNIT price Annualised Cost"},{"$f":"Inputs!$P$68","v":"Lamp Maintenance cycle"},null,{"$f":"IF($B220=\"Blank\",0,VLOOKUP($B220,Inputs!$C$68:$AK$129,MATCH($B221,Inputs!$C$68:$AK$68,0),FALSE))","v":3.6534015972599994},{"$f":"IF($B220=\"Blank\",0,VLOOKUP($B220,Inputs!$C$68:$AK$129,MATCH($B221,Inputs!$C$68:$AK$68,0),FALSE))","v":3.6534015972599994},null,null,{"$f":"B221","v":"Lamp UNIT price Annualised Cost"},{"$f":"IF(E221=\"NA\",\"\",E221/J$2*100)","v":1.0009319444547944},{"$f":"IF(F221=\"NA\",\"\",F221/K$2*100)","v":1.0009319444547944}]
[null,{"$f":"Inputs!$K$68","v":"PE Cell UNIT price Annualised Cost"},{"$f":"Inputs!$I$68","v":"PE Cell Maintenance Cycle"},null,{"$f":"IF($B220=\"Blank\",0,VLOOKUP($B220,Inputs!$C$68:$AK$129,MATCH($B222,Inputs!$C$68:$AK$68,0),FALSE))","v":1.7788104971099301},{"$f":"IF($B220=\"Blank\",0,VLOOKUP($B220,Inputs!$C$68:$AK$129,MATCH($B222,Inputs!$C$68:$AK$68,0),FALSE))","v":1.7788104971099301},null,null,"PE Cell UNIT price Annualised Cost",0.48734534167395344,0.48734534167395344]
[null,"Corp capex annuity per light",null,null,{"$f":"IF($B220=\"Blank\",0,'Corp Capex Annuity calcs'!F$109)","v":14.826870317655803},{"$f":"IF($B220=\"Blank\",0,'Corp Capex Annuity calcs'!G$109)","v":14.708895619806404},null,null,"Corp capex annuity per light",4.0621562514125493,4.0298344163853157]
[null,{"$f":"Inputs!$T$68","v":"Lamp Service costs Annualised"},null,null,{"$f":"IF($B220=\"Blank\",0,VLOOKUP($B220,Inputs!$C$68:$AK$129,MATCH($B224,Inputs!$C$68:$AK$68,0),FALSE))","v":38.134353874352563},{"$f":"IF($B220=\"Blank\",0,VLOOKUP($B220,Inputs!$C$68:$AK$129,MATCH($B224,Inputs!$C$68:$AK$68,0),FALSE))","v":38.134353874352563},null,null,"Lamp Service costs Annualised",10.447768184754127,10.447768184754127]
[null,{"$f":"Inputs!$M$68","v":"PE Cell Service costs Annualised"},null,null,{"$f":"IF($B220=\"Blank\",0,VLOOKUP($B220,Inputs!$C$68:$AK$129,MATCH($B225,Inputs!$C$68:$AK$68,0),FALSE))","v":0},{"$f":"IF($B220=\"Blank\",0,VLOOKUP($B220,Inputs!$C$68:$AK$129,MATCH($B225,Inputs!$C$68:$AK$68,0),FALSE))","v":0},null,null,"PE Cell Service costs Annualised",0,0]
[null,"Indirect Opex",null,null,{"$f":"IF($B220=\"Blank\",0,IF($B$8=\"Private Contract Lighting\",'Opex Weighting'!D$113,'Opex Weighting'!D$111))","v":13.654305575211096},{"$f":"IF($B220=\"Blank\",0,IF($B$8=\"Private Contract Lighting\",'Opex Weighting'!E$113,'Opex Weighting'!E$111))","v":13.545660760758196},null,null,"Indirect Opex",3.7409056370441354,3.7111399344543003]
[null,"Indirect Capex",null,null,{"$f":"IF($B221=\"Blank\",0,IF($B$8=\"Private Contract Lighting\",'Capex Weighting'!D$115,'Capex Weighting'!D$117))","v":0},{"$f":"IF($B221=\"Blank\",0,IF($B$8=\"Private Contract Lighting\",'Capex Weighting'!E$115,'Capex Weighting'!E$117))","v":0},null,null,"Indirect Capex",0,0]
[null,"Overhead Costs per light",null,null,{"$f":"IF($B220=\"Blank\",0,IF($B$8=\"Private Contract Lighting\",'Building Block'!C$49,'Building Block'!C$48))","v":11.222353166014571},{"$f":"IF($B220=\"Blank\",0,IF($B$8=\"Private Contract Lighting\",'Building Block'!D$49,'Building Block'!D$48))","v":11.512124256080179},null,null,"Overhead Costs per light",3.0746173057574167,3.1540066455014193]
[null,{"$f":"Inputs!$AH$68","v":"Bracket UNIT price"},0,null,"NA","NA",null,null,"Bracket UNIT price","",""]
[null,{"$f":"Inputs!$Y$68","v":"CAPEX Installation costs"},{"$f":"C229+1","v":1},null,"NA","NA",null,null,"CAPEX Installation costs","",""]
[null,{"$f":"Inputs!$X$68","v":"Luminaire UNIT price"},{"$f":"C230+1","v":2},null,"NA","NA",null,null,"Luminaire UNIT price","",""]
[null,{"$f":"Inputs!$Y$68","v":"CAPEX Installation costs"},3,null,"NA","NA",null,null,"CAPEX Installation costs","",""]
[null,null,null,null,{"$f":"SUM(E221:E232)","v":83.270095027603958},{"$f":"SUM(F221:F232)","v":83.333246605367279},null,null,null,{"$f":"ROUND(E233/J$2*100,3)","v":22.814},{"$f":"ROUND(F233/K$2*100,3)","v":22.831}]
[]
[{"$f":"A220+1","v":16},{"$f":"IFERROR(VLOOKUP($A235,Inputs!$B$68:$AK$129,MATCH($B$7,Inputs!$B$68:$AK$68,0),FALSE),\"Blank\")","v":"150W Sodium Vapour"},null,null,null,null,null,null,{"$f":"IFERROR(VLOOKUP($A235,Inputs!$B$68:$AK$129,MATCH($B$7,Inputs!$B$68:$AK$68,0),FALSE),\"Blank\")","v":"150W Sodium Vapour"}]
[null,{"$f":"Inputs!$R$68","v":"Lamp UNIT price Annualised Cost"},{"$f":"Inputs!$P$68","v":"Lamp Maintenance cycle"},null,{"$f":"IF($B235=\"Blank\",0,VLOOKUP($B235,Inputs!$C$68:$AK$129,MATCH($B236,Inputs!$C$68:$AK$68,0),FALSE))","v":3.6395683290762002},{"$f":"IF($B235=\"Blank\",0,VLOOKUP($B235,Inputs!$C$68:$AK$129,MATCH($B236,Inputs!$C$68:$AK$68,0),FALSE))","v":3.6395683290762002},null,null,{"$f":"B236","v":"Lamp UNIT price Annualised Cost"},{"$f":"IF(E236=\"NA\",\"\",E236/J$2*100)","v":0.99714200796608232},{"$f":"IF(F236=\"NA\",\"\",F236/K$2*100)","v":0.99714200796608232}]
[null,{"$f":"Inputs!$K$68","v":"PE Cell UNIT price Annualised Cost"},{"$f":"Inputs!$I$68","v":"PE Cell Maintenance Cycle"},null,{"$f":"IF($B235=\"Blank\",0,VLOOKUP($B235,Inputs!$C$68:$AK$129,MATCH($B237,Inputs!$C$68:$AK$68,0),FALSE))","v":1.7788104971099301},{"$f":"IF($B235=\"Blank\",0,VLOOKUP($B235,Inputs!$C$68:$AK$129,MATCH($B237,Inputs!$C$68:$AK$68,0),FALSE))","v":1.7788104971099301},null,null,"PE Cell UNIT price Annualised Cost",0.48734534167395344,0.48734534167395344]
[null,"Corp capex annuity per light",null,null,{"$f":"IF($B235=\"Blank\",0,'Corp Capex Annuity calcs'!F$109)","v":14.826870317655803},{"$f":"IF($B235=\"Blank\",0,'Corp Capex Annuity calcs'!G$109)","v":14.708895619806404},null,null,"Corp capex annuity per light",4.0621562514125493,4.0298344163853157]
[null,{"$f":"Inputs!$T$68","v":"Lamp Service costs Annualised"},null,null,{"$f":"IF($B235=\"Blank\",0,VLOOKUP($B235,Inputs!$C$68:$AK$129,MATCH($B239,Inputs!$C$68:$AK$68,0),FALSE))","v":38.134353874352563},{"$f":"IF($B235=\"Blank\",0,VLOOKUP($B235,Inputs!$C$68:$AK$129,MATCH($B239,Inputs!$C$68:$AK$68,0),FALSE))","v":38.134353874352563},null,null,"Lamp Service costs Annualised",10.447768184754127,10.447768184754127]
[null,{"$f":"Inputs!$M$68","v":"PE Cell Service costs Annualised"},null,null,{"$f":"IF($B235=\"Blank\",0,VLOOKUP($B235,Inputs!$C$68:$AK$129,MATCH($B240,Inputs!$C$68:$AK$68,0),FALSE))","v":0},{"$f":"IF($B235=\"Blank\",0,VLOOKUP($B235,Inputs!$C$68:$AK$129,MATCH($B240,Inputs!$C$68:$AK$68,0),FALSE))","v":0},null,null,"PE Cell Service costs Annualised",0,0]
[null,"Indirect Opex",null,null,{"$f":"IF($B235=\"Blank\",0,IF($B$8=\"Private Contract Lighting\",'Opex Weighting'!D$113,'Opex Weighting'!D$111))","v":13.654305575211096},{"$f":"IF($B235=\"Blank\",0,IF($B$8=\"Private Contract Lighting\",'Opex Weighting'!E$113,'Opex Weighting'!E$111))","v":13.545660760758196},null,null,"Indirect Opex",3.7409056370441354,3.7111399344543003]
[null,"Indirect Capex",null,null,{"$f":"IF($B236=\"Blank\",0,IF($B$8=\"Private Contract Lighting\",'Capex Weighting'!D$115,'Capex Weighting'!D$117))","v":0},{"$f":"IF($B236=\"Blank\",0,IF($B$8=\"Private Contract Lighting\",'Capex Weighting'!E$115,'Capex Weighting'!E$117))","v":0},null,null,"Indirect Capex",0,0]
[null,"Overhead Costs per light",null,null,{"$f":"IF($B235=\"Blank\",0,IF($B$8=\"Private Contract Lighting\",'Building Block'!C$49,'Building Block'!C$48))","v":11.222353166014571},{"$f":"IF($B235=\"Blank\",0,IF($B$8=\"Private Contract Lighting\",'Building Block'!D$49,'Building Block'!D$48))","v":11.512124256080179},null,null,"Overhead Costs per light",3.0746173057574167,3.1540066455014193]
[null,{"$f":"Inputs!$AH$68","v":"Bracket UNIT price"},0,null,"NA","NA",null,null,"Bracket UNIT price","",""]
[null,{"$f":"Inputs!$Y$68","v":"CAPEX Installation costs"},{"$f":"C244+1","v":1},null,"NA","NA",null,null,"CAPEX Installation costs","",""]
[null,{"$f":"Inputs!$X$68","v":"Luminaire UNIT price"},{"$f":"C245+1","v":2},null,"NA","NA",null,null,"Luminaire UNIT price","",""]
[null,{"$f":"Inputs!$Y$68","v":"CAPEX Installation costs"},3,null,"NA","NA",null,null,"CAPEX Installation costs","",""]
[null,null,null,null,{"$f":"SUM(E236:E247)","v":83.256261759420155},{"$f":"SUM(F236:F247)","v":83.319413337183477},null,null,null,{"$f":"ROUND(E248/J$2*100,3)","v":22.81},{"$f":"ROUND(F248/K$2*100,3)","v":22.827000000000002}]
[]
[{"$f":"A235+1","v":17},{"$f":"IFERROR(VLOOKUP($A250,Inputs!$B$68:$AK$129,MATCH($B$7,Inputs!$B$68:$AK$68,0),FALSE),\"Blank\")","v":"250W Sodium Vapour"},null,null,null,null,null,null,{"$f":"IFERROR(VLOOKUP($A250,Inputs!$B$68:$AK$129,MATCH($B$7,Inputs!$B$68:$AK$68,0),FALSE),\"Blank\")","v":"250W Sodium Vapour"}]
[null,{"$f":"Inputs!$R$68","v":"Lamp UNIT price Annualised Cost"},{"$f":"Inputs!$P$68","v":"Lamp Maintenance cycle"},null,{"$f":"IF($B250=\"Blank\",0,VLOOKUP($B250,Inputs!$C$68:$AK$129,MATCH($B251,Inputs!$C$68:$AK$68,0),FALSE))","v":4.0928443282184501},{"$f":"IF($B250=\"Blank\",0,VLOOKUP($B250,Inputs!$C$68:$AK$129,MATCH($B251,Inputs!$C$68:$AK$68,0),FALSE))","v":4.0928443282184501},null,null,{"$f":"B251","v":"Lamp UNIT price Annualised Cost"},{"$f":"IF(E251=\"NA\",\"\",E251/J$2*100)","v":1.1213272132105343},{"$f":"IF(F251=\"NA\",\"\",F251/K$2*100)","v":1.1213272132105343}]
[null,{"$f":"Inputs!$K$68","v":"PE Cell UNIT price Annualised Cost"},{"$f":"Inputs!$I$68","v":"PE Cell Maintenance Cycle"},null,{"$f":"IF($B250=\"Blank\",0,VLOOKUP($B250,Inputs!$C$68:$AK$129,MATCH($B252,Inputs!$C$68:$AK$68,0),FALSE))","v":1.7788104971099301},{"$f":"IF($B250=\"Blank\",0,VLOOKUP($B250,Inputs!$C$68:$AK$129,MATCH($B252,Inputs!$C$68:$AK$68,0),FALSE))","v":1.7788104971099301},null,null,"PE Cell UNIT price Annualised Cost",0.48734534167395344,0.48734534167395344]
[null,"Corp capex annuity per light",null,null,{"$f":"IF($B250=\"Blank\",0,'Corp Capex Annuity calcs'!F$109)","v":14.826870317655803},{"$f":"IF($B250=\"Blank\",0,'Corp Capex Annuity calcs'!G$109)","v":14.708895619806404},null,null,"Corp capex annuity per light",4.0621562514125493,4.0298344163853157]
[null,{"$f":"Inputs!$T$68","v":"Lamp Service costs Annualised"},null,null,{"$f":"IF($B250=\"Blank\",0,VLOOKUP($B250,Inputs!$C$68:$AK$129,MATCH($B254,Inputs!$C$68:$AK$68,0),FALSE))","v":38.134353874352563},{"$f":"IF($B250=\"Blank\",0,VLOOKUP($B250,Inputs!$C$68:$AK$129,MATCH($B254,Inputs!$C$68:$AK$68,0),FALSE))","v":38.134353874352563},null,null,"Lamp Service costs Annualised",10.447768184754127,10.447768184754127]
[null,{"$f":"Inputs!$M$68","v":"PE Cell Service costs Annualised"},null,null,{"$f":"IF($B250=\"Blank\",0,VLOOKUP($B250,Inputs!$C$68:$AK$129,MATCH($B255,Inputs!$C$68:$AK$68,0),FALSE))","v":0},{"$f":"IF($B250=\"Blank\",0,VLOOKUP($B250,Inputs!$C$68:$AK$129,MATCH($B255,Inputs!$C$68:$AK$68,0),FALSE))","v":0},null,null,"PE Cell Service costs Annualised",0,0]
[null,"Indirect Opex",null,null,{"$f":"IF($B250=\"Blank\",0,IF($B$8=\"Private Contract Lighting\",'Opex Weighting'!D$113,'Opex Weighting'!D$111))","v":13.654305575211096},{"$f":"IF($B250=\"Blank\",0,IF($B$8=\"Private Contract Lighting\",'Opex Weighting'!E$113,'Opex Weighting'!E$111))","v":13.545660760758196},null,null,"Indirect Opex",3.7409056370441354,3.7111399344543003]
[null,"Indirect Capex",null,null,{"$f":"IF($B251=\"Blank\",0,IF($B$8=\"Private Contract Lighting\",'Capex Weighting'!D$115,'Capex Weighting'!D$117))","v":0},{"$f":"IF($B251=\"Blank\",0,IF($B$8=\"Private Contract Lighting\",'Capex Weighting'!E$115,'Capex Weighting'!E$117))","v":0},null,null,"Indirect Capex",0,0]
[null,"Overhead Costs per light",null,null,{"$f":"IF($B250=\"Blank\",0,IF($B$8=\"Private Contract Lighting\",'Building Block'!C$49,'Building Block'!C$48))","v":11.222353166014571},{"$f":"IF($B250=\"Blank\",0,IF($B$8=\"Private Contract Lighting\",'Building Block'!D$49,'Building Block'!D$48))","v":11.512124256080179},null,null,"Overhead Costs per light",3.0746173057574167,3.1540066455014193]
[null,{"$f":"Inputs!$AH$68","v":"Bracket UNIT price"},0,null,"NA","NA",null,null,"Bracket UNIT price","",""]
[null,{"$f":"Inputs!$Y$68","v":"CAPEX Installation costs"},{"$f":"C259+1","v":1},null,"NA","NA",null,null,"CAPEX Installation costs","",""]
[null,{"$f":"Inputs!$X$68","v":"Luminaire UNIT price"},{"$f":"C260+1","v":2},null,"NA","NA",null,null,"Luminaire UNIT price","",""]
[null,{"$f":"Inputs!$Y$68","v":"CAPEX Installation costs"},3,null,"NA","NA",null,null,"CAPEX Installation costs","",""]
[null,null,null,null,{"$f":"SUM(E251:E262)","v":83.709537758562419},{"$f":"SUM(F251:F262)","v":83.772689336325726},null,null,null,{"$f":"ROUND(E263/J$2*100,3)","v":22.934000000000001},{"$f":"ROUND(F263/K$2*100,3)","v":22.951000000000001}]
[]
[{"$f":"A250+1","v":18},{"$f":"IFERROR(VLOOKUP($A265,Inputs!$B$68:$AK$129,MATCH($B$7,Inputs!$B$68:$AK$68,0),FALSE),\"Blank\")","v":"250W Sodium Vapour - Flood Light"},null,null,null,null,null,null,{"$f":"IFERROR(VLOOKUP($A265,Inputs!$B$68:$AK$129,MATCH($B$7,Inputs!$B$68:$AK$68,0),FALSE),\"Blank\")","v":"250W Sodium Vapour - Flood Light"}]
[null,{"$f":"Inputs!$R$68","v":"Lamp UNIT price Annualised Cost"},{"$f":"Inputs!$P$68","v":"Lamp Maintenance cycle"},null,{"$f":"IF($B265=\"Blank\",0,VLOOKUP($B265,Inputs!$C$68:$AK$129,MATCH($B266,Inputs!$C$68:$AK$68,0),FALSE))","v":4.0928443282184501},{"$f":"IF($B265=\"Blank\",0,VLOOKUP($B265,Inputs!$C$68:$AK$129,MATCH($B266,Inputs!$C$68:$AK$68,0),FALSE))","v":4.0928443282184501},null,null,{"$f":"B266","v":"Lamp UNIT price Annualised Cost"},{"$f":"IF(E266=\"NA\",\"\",E266/J$2*100)","v":1.1213272132105343},{"$f":"IF(F266=\"NA\",\"\",F266/K$2*100)","v":1.1213272132105343}]
[null,{"$f":"Inputs!$K$68","v":"PE Cell UNIT price Annualised Cost"},{"$f":"Inputs!$I$68","v":"PE Cell Maintenance Cycle"},null,{"$f":"IF($B265=\"Blank\",0,VLOOKUP($B265,Inputs!$C$68:$AK$129,MATCH($B267,Inputs!$C$68:$AK$68,0),FALSE))","v":1.7788104971099301},{"$f":"IF($B265=\"Blank\",0,VLOOKUP($B265,Inputs!$C$68:$AK$129,MATCH($B267,Inputs!$C$68:$AK$68,0),FALSE))","v":1.7788104971099301},null,null,"PE Cell UNIT price Annualised Cost",0.48734534167395344,0.48734534167395344]
[null,"Corp capex annuity per light",null,null,{"$f":"IF($B265=\"Blank\",0,'Corp Capex Annuity calcs'!F$109)","v":14.826870317655803},{"$f":"IF($B265=\"Blank\",0,'Corp Capex Annuity calcs'!G$109)","v":14.708895619806404},null,null,"Corp capex annuity per light",4.0621562514125493,4.0298344163853157]
[null,{"$f":"Inputs!$T$68","v":"Lamp Service costs Annualised"},null,null,{"$f":"IF($B265=\"Blank\",0,VLOOKUP($B265,Inputs!$C$68:$AK$129,MATCH($B269,Inputs!$C$68:$AK$68,0),FALSE))","v":38.134353874352563},{"$f":"IF($B265=\"Blank\",0,VLOOKUP($B265,Inputs!$C$68:$AK$129,MATCH($B269,Inputs!$C$68:$AK$68,0),FALSE))","v":38.134353874352563},null,null,"Lamp Service costs Annualised",10.447768184754127,10.447768184754127]
[null,{"$f":"Inputs!$M$68","v":"PE Cell Service costs Annualised"},null,null,{"$f":"IF($B265=\"Blank\",0,VLOOKUP($B265,Inputs!$C$68:$AK$129,MATCH($B270,Inputs!$C$68:$AK$68,0),FALSE))","v":0},{"$f":"IF($B265=\"Blank\",0,VLOOKUP($B265,Inputs!$C$68:$AK$129,MATCH($B270,Inputs!$C$68:$AK$68,0),FALSE))","v":0},null,null,"PE Cell Service costs Annualised",0,0]
[null,"Indirect Opex",null,null,{"$f":"IF($B265=\"Blank\",0,IF($B$8=\"Private Contract Lighting\",'Opex Weighting'!D$113,'Opex Weighting'!D$111))","v":13.654305575211096},{"$f":"IF($B265=\"Blank\",0,IF($B$8=\"Private Contract Lighting\",'Opex Weighting'!E$113,'Opex Weighting'!E$111))","v":13.545660760758196},null,null,"Indirect Opex",3.7409056370441354,3.7111399344543003]
[null,"Indirect Capex",null,null,{"$f":"IF($B266=\"Blank\",0,IF($B$8=\"Private Contract Lighting\",'Capex Weighting'!D$115,'Capex Weighting'!D$117))","v":0},{"$f":"IF($B266=\"Blank\",0,IF($B$8=\"Private Contract Lighting\",'Capex Weighting'!E$115,'Capex Weighting'!E$117))","v":0},null,null,"Indirect Capex",0,0]
[null,"Overhead Costs per light",null,null,{"$f":"IF($B265=\"Blank\",0,IF($B$8=\"Private Contract Lighting\",'Building Block'!C$49,'Building Block'!C$48))","v":11.222353166014571},{"$f":"IF($B265=\"Blank\",0,IF($B$8=\"Private Contract Lighting\",'Building Block'!D$49,'Building Block'!D$48))","v":11.512124256080179},null,null,"Overhead Costs per light",3.0746173057574167,3.1540066455014193]
[null,{"$f":"Inputs!$AH$68","v":"Bracket UNIT price"},0,null,"NA","NA",null,null,"Bracket UNIT price","",""]
[null,{"$f":"Inputs!$Y$68","v":"CAPEX Installation costs"},{"$f":"C274+1","v":1},null,"NA","NA",null,null,"CAPEX Installation costs","",""]
[null,{"$f":"Inputs!$X$68","v":"Luminaire UNIT price"},{"$f":"C275+1","v":2},null,"NA","NA",null,null,"Luminaire UNIT price","",""]
[null,{"$f":"Inputs!$Y$68","v":"CAPEX Installation costs"},3,null,"NA","NA",null,null,"CAPEX Installation costs","",""]
[null,null,null,null,{"$f":"SUM(E266:E277)","v":83.709537758562419},{"$f":"SUM(F266:F277)","v":83.772689336325726},null,null,null,{"$f":"ROUND(E278/J$2*100,3)","v":22.934000000000001},{"$f":"ROUND(F278/K$2*100,3)","v":22.951000000000001}]
[]
[{"$f":"A265+1","v":19},{"$f":"IFERROR(VLOOKUP($A280,Inputs!$B$68:$AK$129,MATCH($B$7,Inputs!$B$68:$AK$68,0),FALSE),\"Blank\")","v":"400W Sodium Vapour"},null,null,null,null,null,null,{"$f":"IFERROR(VLOOKUP($A280,Inputs!$B$68:$AK$129,MATCH($B$7,Inputs!$B$68:$AK$68,0),FALSE),\"Blank\")","v":"400W Sodium Vapour"}]
[null,{"$f":"Inputs!$R$68","v":"Lamp UNIT price Annualised Cost"},{"$f":"Inputs!$P$68","v":"Lamp Maintenance cycle"},null,{"$f":"IF($B280=\"Blank\",0,VLOOKUP($B280,Inputs!$C$68:$AK$129,MATCH($B281,Inputs!$C$68:$AK$68,0),FALSE))","v":4.2464881915077495},{"$f":"IF($B280=\"Blank\",0,VLOOKUP($B280,Inputs!$C$68:$AK$129,MATCH($B281,Inputs!$C$68:$AK$68,0),FALSE))","v":4.2464881915077495},null,null,{"$f":"B281","v":"Lamp UNIT price Annualised Cost"},{"$f":"IF(E281=\"NA\",\"\",E281/J$2*100)","v":1.1634214223308903},{"$f":"IF(F281=\"NA\",\"\",F281/K$2*100)","v":1.1634214223308903}]
[null,{"$f":"Inputs!$K$68","v":"PE Cell UNIT price Annualised Cost"},{"$f":"Inputs!$I$68","v":"PE Cell Maintenance Cycle"},null,{"$f":"IF($B280=\"Blank\",0,VLOOKUP($B280,Inputs!$C$68:$AK$129,MATCH($B282,Inputs!$C$68:$AK$68,0),FALSE))","v":1.7788104971099301},{"$f":"IF($B280=\"Blank\",0,VLOOKUP($B280,Inputs!$C$68:$AK$129,MATCH($B282,Inputs!$C$68:$AK$68,0),FALSE))","v":1.7788104971099301},null,null,"PE Cell UNIT price Annualised Cost",0.48734534167395344,0.48734534167395344]
[null,"Corp capex annuity per light",null,null,{"$f":"IF($B280=\"Blank\",0,'Corp Capex Annuity calcs'!F$109)","v":14.826870317655803},{"$f":"IF($B280=\"Blank\",0,'Corp Capex Annuity calcs'!G$109)","v":14.708895619806404},null,null,"Corp capex annuity per light",4.0621562514125493,4.0298344163853157]
[null,{"$f":"Inputs!$T$68","v":"Lamp Service costs Annualised"},null,null,{"$f":"IF($B280=\"Blank\",0,VLOOKUP($B280,Inputs!$C$68:$AK$129,MATCH($B284,Inputs!$C$68:$AK$68,0),FALSE))","v":38.134353874352563},{"$f":"IF($B280=\"Blank\",0,VLOOKUP($B280,Inputs!$C$68:$AK$129,MATCH($B284,Inputs!$C$68:$AK$68,0),FALSE))","v":38.134353874352563},null,null,"Lamp Service costs Annualised",10.447768184754127,10.447768184754127]
[null,{"$f":"Inputs!$M$68","v":"PE Cell Service costs Annualised"},null,null,{"$f":"IF($B280=\"Blank\",0,VLOOKUP($B280,Inputs!$C$68:$AK$129,MATCH($B285,Inputs!$C$68:$AK$68,0),FALSE))","v":0},{"$f":"IF($B280=\"Blank\",0,VLOOKUP($B280,Inputs!$C$68:$AK$129,MATCH($B285,Inputs!$C$68:$AK$68,0),FALSE))","v":0},null,null,"PE Cell Service costs Annualised",0,0]
[null,"Indirect Opex",null,null,{"$f":"IF($B280=\"Blank\",0,IF($B$8=\"Private Contract Lighting\",'Opex Weighting'!D$113,'Opex Weighting'!D$111))","v":13.654305575211096},{"$f":"IF($B280=\"Blank\",0,IF($B$8=\"Private Contract Lighting\",'Opex Weighting'!E$113,'Opex Weighting'!E$111))","v":13.545660760758196},null,null,"Indirect Opex",3.7409056370441354,3.7111399344543003]
[null,"Indirect Capex",null,null,{"$f":"IF($B281=\"Blank\",0,IF($B$8=\"Private Contract Lighting\",'Capex Weighting'!D$115,'Capex Weighting'!D$117))","v":0},{"$f":"IF($B281=\"Blank\",0,IF($B$8=\"Private Contract Lighting\",'Capex Weighting'!E$115,'Capex Weighting'!E$117))","v":0},null,null,"Indirect Capex",0,0]
[null,"Overhead Costs per light",null,null,{"$f":"IF($B280=\"Blank\",0,IF($B$8=\"Private Contract Lighting\",'Building Block'!C$49,'Building Block'!C$48))","v":11.222353166014571},{"$f":"IF($B280=\"Blank\",0,IF($B$8=\"Private Contract Lighting\",'Building Block'!D$49,'Building Block'!D$48))","v":11.512124256080179},null,null,"Overhead Costs per light",3.0746173057574167,3.1540066455014193]
[null,{"$f":"Inputs!$AH$68","v":"Bracket UNIT price"},0,null,"NA","NA",null,null,"Bracket UNIT price","",""]
[null,{"$f":"Inputs!$Y$68","v":"CAPEX Installation costs"},{"$f":"C289+1","v":1},null,"NA","NA",null,null,"CAPEX Installation costs","",""]
[null,{"$f":"Inputs!$X$68","v":"Luminaire UNIT price"},{"$f":"C290+1","v":2},null,"NA","NA",null,null,"Luminaire UNIT price","",""]
[null,{"$f":"Inputs!$Y$68","v":"CAPEX Installation costs"},3,null,"NA","NA",null,null,"CAPEX Installation costs","",""]
[null,null,null,null,{"$f":"SUM(E281:E292)","v":83.863181621851709},{"$f":"SUM(F281:F292)","v":83.92633319961503},null,null,null,{"$f":"ROUND(E293/J$2*100,3)","v":22.975999999999999},{"$f":"ROUND(F293/K$2*100,3)","v":22.994}]
[]
[{"$f":"A280+1","v":20},{"$f":"IFERROR(VLOOKUP($A295,Inputs!$B$68:$AK$129,MATCH($B$7,Inputs!$B$68:$AK$68,0),FALSE),\"Blank\")","v":"400W Sodium Vapour - Flood Light"},null,null,null,null,null,null,{"$f":"IFERROR(VLOOKUP($A295,Inputs!$B$68:$AK$129,MATCH($B$7,Inputs!$B$68:$AK$68,0),FALSE),\"Blank\")","v":"400W Sodium Vapour - Flood Light"}]
[null,{"$f":"Inputs!$R$68","v":"Lamp UNIT price Annualised Cost"},{"$f":"Inputs!$P$68","v":"Lamp Maintenance cycle"},null,{"$f":"IF($B295=\"Blank\",0,VLOOKUP($B295,Inputs!$C$68:$AK$129,MATCH($B296,Inputs!$C$68:$AK$68,0),FALSE))","v":4.2464881915077495},{"$f":"IF($B295=\"Blank\",0,VLOOKUP($B295,Inputs!$C$68:$AK$129,MATCH($B296,Inputs!$C$68:$AK$68,0),FALSE))","v":4.2464881915077495},null,null,{"$f":"B296","v":"Lamp UNIT price Annualised Cost"},{"$f":"IF(E296=\"NA\",\"\",E296/J$2*100)","v":1.1634214223308903},{"$f":"IF(F296=\"NA\",\"\",F296/K$2*100)","v":1.1634214223308903}]
[null,{"$f":"Inputs!$K$68","v":"PE Cell UNIT price Annualised Cost"},{"$f":"Inputs!$I$68","v":"PE Cell Maintenance Cycle"},null,{"$f":"IF($B295=\"Blank\",0,VLOOKUP($B295,Inputs!$C$68:$AK$129,MATCH($B297,Inputs!$C$68:$AK$68,0),FALSE))","v":1.7788104971099301},{"$f":"IF($B295=\"Blank\",0,VLOOKUP($B295,Inputs!$C$68:$AK$129,MATCH($B297,Inputs!$C$68:$AK$68,0),FALSE))","v":1.7788104971099301},null,null,"PE Cell UNIT price Annualised Cost",0.48734534167395344,0.48734534167395344]
[null,"Corp capex annuity per light",null,null,{"$f":"IF($B295=\"Blank\",0,'Corp Capex Annuity calcs'!F$109)","v":14.826870317655803},{"$f":"IF($B295=\"Blank\",0,'Corp Capex Annuity calcs'!G$109)","v":14.708895619806404},null,null,"Corp capex annuity per light",4.0621562514125493,4.0298344163853157]
[null,{"$f":"Inputs!$T$68","v":"Lamp Service costs Annualised"},null,null,{"$f":"IF($B295=\"Blank\",0,VLOOKUP($B295,Inputs!$C$68:$AK$129,MATCH($B299,Inputs!$C$68:$AK$68,0),FALSE))","v":38.134353874352563},{"$f":"IF($B295=\"Blank\",0,VLOOKUP($B295,Inputs!$C$68:$AK$129,MATCH($B299,Inputs!$C$68:$AK$68,0),FALSE))","v":38.134353874352563},null,null,"Lamp Service costs Annualised",10.447768184754127,10.447768184754127]
[null,{"$f":"Inputs!$M$68","v":"PE Cell Service costs Annualised"},null,null,{"$f":"IF($B295=\"Blank\",0,VLOOKUP($B295,Inputs!$C$68:$AK$129,MATCH($B300,Inputs!$C$68:$AK$68,0),FALSE))","v":0},{"$f":"IF($B295=\"Blank\",0,VLOOKUP($B295,Inputs!$C$68:$AK$129,MATCH($B300,Inputs!$C$68:$AK$68,0),FALSE))","v":0},null,null,"PE Cell Service costs Annualised",0,0]
[null,"Indirect Opex",null,null,{"$f":"IF($B295=\"Blank\",0,IF($B$8=\"Private Contract Lighting\",'Opex Weighting'!D$113,'Opex Weighting'!D$111))","v":13.654305575211096},{"$f":"IF($B295=\"Blank\",0,IF($B$8=\"Private Contract Lighting\",'Opex Weighting'!E$113,'Opex Weighting'!E$111))","v":13.545660760758196},null,null,"Indirect Opex",3.7409056370441354,3.7111399344543003]
[null,"Indirect Capex",null,null,{"$f":"IF($B296=\"Blank\",0,IF($B$8=\"Private Contract Lighting\",'Capex Weighting'!D$115,'Capex Weighting'!D$117))","v":0},{"$f":"IF($B296=\"Blank\",0,IF($B$8=\"Private Contract Lighting\",'Capex Weighting'!E$115,'Capex Weighting'!E$117))","v":0},null,null,"Indirect Capex",0,0]
[null,"Overhead Costs per light",null,null,{"$f":"IF($B295=\"Blank\",0,IF($B$8=\"Private Contract Lighting\",'Building Block'!C$49,'Building Block'!C$48))","v":11.222353166014571},{"$f":"IF($B295=\"Blank\",0,IF($B$8=\"Private Contract Lighting\",'Building Block'!D$49,'Building Block'!D$48))","v":11.512124256080179},null,null,"Overhead Costs per light",3.0746173057574167,3.1540066455014193]
[null,{"$f":"Inputs!$AH$68","v":"Bracket UNIT price"},0,null,"NA","NA",null,null,"Bracket UNIT price","",""]
[null,{"$f":"Inputs!$Y$68","v":"CAPEX Installation costs"},{"$f":"C304+1","v":1},null,"NA","NA",null,null,"CAPEX Installation costs","",""]
[null,{"$f":"Inputs!$X$68","v":"Luminaire UNIT price"},{"$f":"C305+1","v":2},null,"NA","NA",null,null,"Luminaire UNIT price","",""]
[null,{"$f":"Inputs!$Y$68","v":"CAPEX Installation costs"},3,null,"NA","NA",null,null,"CAPEX Installation costs","",""]
[null,null,null,null,{"$f":"SUM(E296:E307)","v":83.863181621851709},{"$f":"SUM(F296:F307)","v":83.92633319961503},null,null,null,{"$f":"ROUND(E308/J$2*100,3)","v":22.975999999999999},{"$f":"ROUND(F308/K$2*100,3)","v":22.994}]
[]
[{"$f":"A295+1","v":21},{"$f":"IFERROR(VLOOKUP($A310,Inputs!$B$68:$AK$129,MATCH($B$7,Inputs!$B$68:$AK$68,0),FALSE),\"Blank\")","v":"70W Sodium Vapour"},null,null,null,null,null,null,{"$f":"IFERROR(VLOOKUP($A310,Inputs!$B$68:$AK$129,MATCH($B$7,Inputs!$B$68:$AK$68,0),FALSE),\"Blank\")","v":"70W Sodium Vapour"}]
[null,{"$f":"Inputs!$R$68","v":"Lamp UNIT price Annualised Cost"},{"$f":"Inputs!$P$68","v":"Lamp Maintenance cycle"},null,{"$f":"IF($B310=\"Blank\",0,VLOOKUP($B310,Inputs!$C$68:$AK$129,MATCH($B311,Inputs!$C$68:$AK$68,0),FALSE))","v":1.8209369368867503},{"$f":"IF($B310=\"Blank\",0,VLOOKUP($B310,Inputs!$C$68:$AK$129,MATCH($B311,Inputs!$C$68:$AK$68,0),FALSE))","v":1.8209369368867503},null,null,{"$f":"B311","v":"Lamp UNIT price Annualised Cost"},{"$f":"IF(E311=\"NA\",\"\",E311/J$2*100)","v":0.49888683202376721},{"$f":"IF(F311=\"NA\",\"\",F311/K$2*100)","v":0.49888683202376721}]
[null,{"$f":"Inputs!$K$68","v":"PE Cell UNIT price Annualised Cost"},{"$f":"Inputs!$I$68","v":"PE Cell Maintenance Cycle"},null,{"$f":"IF($B310=\"Blank\",0,VLOOKUP($B310,Inputs!$C$68:$AK$129,MATCH($B312,Inputs!$C$68:$AK$68,0),FALSE))","v":0.6107414998224272},{"$f":"IF($B310=\"Blank\",0,VLOOKUP($B310,Inputs!$C$68:$AK$129,MATCH($B312,Inputs!$C$68:$AK$68,0),FALSE))","v":0.6107414998224272},null,null,"PE Cell UNIT price Annualised Cost",0.16732643830751431,0.16732643830751431]
[null,"Corp capex annuity per light",null,null,{"$f":"IF($B310=\"Blank\",0,'Corp Capex Annuity calcs'!F$109)","v":14.826870317655803},{"$f":"IF($B310=\"Blank\",0,'Corp Capex Annuity calcs'!G$109)","v":14.708895619806404},null,null,"Corp capex annuity per light",4.0621562514125493,4.0298344163853157]
[null,{"$f":"Inputs!$T$68","v":"Lamp Service costs Annualised"},null,null,{"$f":"IF($B310=\"Blank\",0,VLOOKUP($B310,Inputs!$C$68:$AK$129,MATCH($B314,Inputs!$C$68:$AK$68,0),FALSE))","v":26.347371767734501},{"$f":"IF($B310=\"Blank\",0,VLOOKUP($B310,Inputs!$C$68:$AK$129,MATCH($B314,Inputs!$C$68:$AK$68,0),FALSE))","v":26.347371767734501},null,null,"Lamp Service costs Annualised",7.2184580185573974,7.2184580185573974]
[null,{"$f":"Inputs!$M$68","v":"PE Cell Service costs Annualised"},null,null,{"$f":"IF($B310=\"Blank\",0,VLOOKUP($B310,Inputs!$C$68:$AK$129,MATCH($B315,Inputs!$C$68:$AK$68,0),FALSE))","v":0},{"$f":"IF($B310=\"Blank\",0,VLOOKUP($B310,Inputs!$C$68:$AK$129,MATCH($B315,Inputs!$C$68:$AK$68,0),FALSE))","v":0},null,null,"PE Cell Service costs Annualised",0,0]
[null,"Indirect Opex",null,null,{"$f":"IF($B310=\"Blank\",0,IF($B$8=\"Private Contract Lighting\",'Opex Weighting'!D$113,'Opex Weighting'!D$111))","v":13.654305575211096},{"$f":"IF($B310=\"Blank\",0,IF($B$8=\"Private Contract Lighting\",'Opex Weighting'!E$113,'Opex Weighting'!E$111))","v":13.545660760758196},null,null,"Indirect Opex",3.7409056370441354,3.7111399344543003]
[null,"Indirect Capex",null,null,{"$f":"IF($B311=\"Blank\",0,IF($B$8=\"Private Contract Lighting\",'Capex Weighting'!D$115,'Capex Weighting'!D$117))","v":0},{"$f":"IF($B311=\"Blank\",0,IF($B$8=\"Private Contract Lighting\",'Capex Weighting'!E$115,'Capex Weighting'!E$117))","v":0},null,null,"Indirect Capex",0,0]
[null,"Overhead Costs per light",null,null,{"$f":"IF($B310=\"Blank\",0,IF($B$8=\"Private Contract Lighting\",'Building Block'!C$49,'Building Block'!C$48))","v":11.222353166014571},{"$f":"IF($B310=\"Blank\",0,IF($B$8=\"Private Contract Lighting\",'Building Block'!D$49,'Building Block'!D$48))","v":11.512124256080179},null,null,"Overhead Costs per light",3.0746173057574167,3.1540066455014193]
[null,{"$f":"Inputs!$AH$68","v":"Bracket UNIT price"},0,null,"NA","NA",null,null,"Bracket UNIT price","",""]
[null,{"$f":"Inputs!$Y$68","v":"CAPEX Installation costs"},{"$f":"C319+1","v":1},null,"NA","NA",null,null,"CAPEX Installation costs","",""]
[null,{"$f":"Inputs!$X$68","v":"Luminaire UNIT price"},{"$f":"C320+1","v":2},null,"NA","NA",null,null,"Luminaire UNIT price","",""]
[null,{"$f":"Inputs!$Y$68","v":"CAPEX Installation costs"},3,null,"NA","NA",null,null,"CAPEX Installation costs","",""]
[null,null,null,null,{"$f":"SUM(E311:E322)","v":68.48257926332515},{"$f":"SUM(F311:F322)","v":68.545730841088456},null,null,null,{"$f":"ROUND(E323/J$2*100,3)","v":18.762},{"$f":"ROUND(F323/K$2*100,3)","v":18.78}]
[]
[{"$f":"A310+1","v":22},{"$f":"IFERROR(VLOOKUP($A325,Inputs!$B$68:$AK$129,MATCH($B$7,Inputs!$B$68:$AK$68,0),FALSE),\"Blank\")","v":"100W Incandescent"},null,null,null,null,null,null,{"$f":"IFERROR(VLOOKUP($A325,Inputs!$B$68:$AK$129,MATCH($B$7,Inputs!$B$68:$AK$68,0),FALSE),\"Blank\")","v":"100W Incandescent"}]
[null,{"$f":"Inputs!$R$68","v":"Lamp UNIT price Annualised Cost"},{"$f":"Inputs!$P$68","v":"Lamp Maintenance cycle"},null,{"$f":"IF($B325=\"Blank\",0,VLOOKUP($B325,Inputs!$C$68:$AK$129,MATCH($B326,Inputs!$C$68:$AK$68,0),FALSE))","v":0.45257518536107016},{"$f":"IF($B325=\"Blank\",0,VLOOKUP($B325,Inputs!$C$68:$AK$129,MATCH($B326,Inputs!$C$68:$AK$68,0),FALSE))","v":0.45257518536107016},null,null,{"$f":"B326","v":"Lamp UNIT price Annualised Cost"},{"$f":"IF(E326=\"NA\",\"\",E326/J$2*100)","v":0.12399320146878635},{"$f":"IF(F326=\"NA\",\"\",F326/K$2*100)","v":0.12399320146878635}]
[null,{"$f":"Inputs!$K$68","v":"PE Cell UNIT price Annualised Cost"},{"$f":"Inputs!$I$68","v":"PE Cell Maintenance Cycle"},null,{"$f":"IF($B325=\"Blank\",0,VLOOKUP($B325,Inputs!$C$68:$AK$129,MATCH($B327,Inputs!$C$68:$AK$68,0),FALSE))","v":1.7788104971099301},{"$f":"IF($B325=\"Blank\",0,VLOOKUP($B325,Inputs!$C$68:$AK$129,MATCH($B327,Inputs!$C$68:$AK$68,0),FALSE))","v":1.7788104971099301},null,null,"PE Cell UNIT price Annualised Cost",0.48734534167395344,0.48734534167395344]
[null,"Corp capex annuity per light",null,null,{"$f":"IF($B325=\"Blank\",0,'Corp Capex Annuity calcs'!F$109)","v":14.826870317655803},{"$f":"IF($B325=\"Blank\",0,'Corp Capex Annuity calcs'!G$109)","v":14.708895619806404},null,null,"Corp capex annuity per light",4.0621562514125493,4.0298344163853157]
[null,{"$f":"Inputs!$T$68","v":"Lamp Service costs Annualised"},null,null,{"$f":"IF($B325=\"Blank\",0,VLOOKUP($B325,Inputs!$C$68:$AK$129,MATCH($B329,Inputs!$C$68:$AK$68,0),FALSE))","v":38.134353874352563},{"$f":"IF($B325=\"Blank\",0,VLOOKUP($B325,Inputs!$C$68:$AK$129,MATCH($B329,Inputs!$C$68:$AK$68,0),FALSE))","v":38.134353874352563},null,null,"Lamp Service costs Annualised",10.447768184754127,10.447768184754127]
[null,{"$f":"Inputs!$M$68","v":"PE Cell Service costs Annualised"},null,null,{"$f":"IF($B325=\"Blank\",0,VLOOKUP($B325,Inputs!$C$68:$AK$129,MATCH($B330,Inputs!$C$68:$AK$68,0),FALSE))","v":0},{"$f":"IF($B325=\"Blank\",0,VLOOKUP($B325,Inputs!$C$68:$AK$129,MATCH($B330,Inputs!$C$68:$AK$68,0),FALSE))","v":0},null,null,"PE Cell Service costs Annualised",0,0]
[null,"Indirect Opex",null,null,{"$f":"IF($B325=\"Blank\",0,IF($B$8=\"Private Contract Lighting\",'Opex Weighting'!D$113,'Opex Weighting'!D$111))","v":13.654305575211096},{"$f":"IF($B325=\"Blank\",0,IF($B$8=\"Private Contract Lighting\",'Opex Weighting'!E$113,'Opex Weighting'!E$111))","v":13.545660760758196},null,null,"Indirect Opex",3.7409056370441354,3.7111399344543003]
[null,"Indirect Capex",null,null,{"$f":"IF($B326=\"Blank\",0,IF($B$8=\"Private Contract Lighting\",'Capex Weighting'!D$115,'Capex Weighting'!D$117))","v":0},{"$f":"IF($B326=\"Blank\",0,IF($B$8=\"Private Contract Lighting\",'Capex Weighting'!E$115,'Capex Weighting'!E$117))","v":0},null,null,"Indirect Capex",0,0]
[null,"Overhead Costs per light",null,null,{"$f":"IF($B325=\"Blank\",0,IF($B$8=\"Private Contract Lighting\",'Building Block'!C$49,'Building Block'!C$48))","v":11.222353166014571},{"$f":"IF($B325=\"Blank\",0,IF($B$8=\"Private Contract Lighting\",'Building Block'!D$49,'Building Block'!D$48))","v":11.512124256080179},null,null,"Overhead Costs per light",3.0746173057574167,3.1540066455014193]
[null,{"$f":"Inputs!$AH$68","v":"Bracket UNIT price"},0,null,"NA","NA",null,null,"Bracket UNIT price","",""]
[null,{"$f":"Inputs!$Y$68","v":"CAPEX Installation costs"},{"$f":"C334+1","v":1},null,"NA","NA",null,null,"CAPEX Installation costs","",""]
[null,{"$f":"Inputs!$X$68","v":"Luminaire UNIT price"},{"$f":"C335+1","v":2},null,"NA","NA",null,null,"Luminaire UNIT price","",""]
[null,{"$f":"Inputs!$Y$68","v":"CAPEX Installation costs"},3,null,"NA","NA",null,null,"CAPEX Installation costs","",""]
[null,null,null,null,{"$f":"SUM(E326:E337)","v":80.069268615705028},{"$f":"SUM(F326:F337)","v":80.132420193468349},null,null,null,{"$f":"ROUND(E338/J$2*100,3)","v":21.937000000000001},{"$f":"ROUND(F338/K$2*100,3)","v":21.954000000000001}]
[]
[{"$f":"A325+1","v":23},{"$f":"IFERROR(VLOOKUP($A340,Inputs!$B$68:$AK$129,MATCH($B$7,Inputs!$B$68:$AK$68,0),FALSE),\"Blank\")","v":"60W Incandescent"},null,null,null,null,null,null,{"$f":"IFERROR(VLOOKUP($A340,Inputs!$B$68:$AK$129,MATCH($B$7,Inputs!$B$68:$AK$68,0),FALSE),\"Blank\")","v":"60W Incandescent"}]
[null,{"$f":"Inputs!$R$68","v":"Lamp UNIT price Annualised Cost"},{"$f":"Inputs!$P$68","v":"Lamp Maintenance cycle"},null,{"$f":"IF($B340=\"Blank\",0,VLOOKUP($B340,Inputs!$C$68:$AK$129,MATCH($B341,Inputs!$C$68:$AK$68,0),FALSE))","v":0.45257518536107016},{"$f":"IF($B340=\"Blank\",0,VLOOKUP($B340,Inputs!$C$68:$AK$129,MATCH($B341,Inputs!$C$68:$AK$68,0),FALSE))","v":0.45257518536107016},null,null,{"$f":"B341","v":"Lamp UNIT price Annualised Cost"},{"$f":"IF(E341=\"NA\",\"\",E341/J$2*100)","v":0.12399320146878635},{"$f":"IF(F341=\"NA\",\"\",F341/K$2*100)","v":0.12399320146878635}]
[null,{"$f":"Inputs!$K$68","v":"PE Cell UNIT price Annualised Cost"},{"$f":"Inputs!$I$68","v":"PE Cell Maintenance Cycle"},null,{"$f":"IF($B340=\"Blank\",0,VLOOKUP($B340,Inputs!$C$68:$AK$129,MATCH($B342,Inputs!$C$68:$AK$68,0),FALSE))","v":0.6107414998224272},{"$f":"IF($B340=\"Blank\",0,VLOOKUP($B340,Inputs!$C$68:$AK$129,MATCH($B342,Inputs!$C$68:$AK$68,0),FALSE))","v":0.6107414998224272},null,null,"PE Cell UNIT price Annualised Cost",0.16732643830751431,0.16732643830751431]
[null,"Corp capex annuity per light",null,null,{"$f":"IF($B340=\"Blank\",0,'Corp Capex Annuity calcs'!F$109)","v":14.826870317655803},{"$f":"IF($B340=\"Blank\",0,'Corp Capex Annuity calcs'!G$109)","v":14.708895619806404},null,null,"Corp capex annuity per light",4.0621562514125493,4.0298344163853157]
[null,{"$f":"Inputs!$T$68","v":"Lamp Service costs Annualised"},null,null,{"$f":"IF($B340=\"Blank\",0,VLOOKUP($B340,Inputs!$C$68:$AK$129,MATCH($B344,Inputs!$C$68:$AK$68,0),FALSE))","v":26.347371767734501},{"$f":"IF($B340=\"Blank\",0,VLOOKUP($B340,Inputs!$C$68:$AK$129,MATCH($B344,Inputs!$C$68:$AK$68,0),FALSE))","v":26.347371767734501},null,null,"Lamp Service costs Annualised",7.2184580185573974,7.2184580185573974]
[null,{"$f":"Inputs!$M$68","v":"PE Cell Service costs Annualised"},null,null,{"$f":"IF($B340=\"Blank\",0,VLOOKUP($B340,Inputs!$C$68:$AK$129,MATCH($B345,Inputs!$C$68:$AK$68,0),FALSE))","v":0},{"$f":"IF($B340=\"Blank\",0,VLOOKUP($B340,Inputs!$C$68:$AK$129,MATCH($B345,Inputs!$C$68:$AK$68,0),FALSE))","v":0},null,null,"PE Cell Service costs Annualised",0,0]
[null,"Indirect Opex",null,null,{"$f":"IF($B340=\"Blank\",0,IF($B$8=\"Private Contract Lighting\",'Opex Weighting'!D$113,'Opex Weighting'!D$111))","v":13.654305575211096},{"$f":"IF($B340=\"Blank\",0,IF($B$8=\"Private Contract Lighting\",'Opex Weighting'!E$113,'Opex Weighting'!E$111))","v":13.545660760758196},null,null,"Indirect Opex",3.7409056370441354,3.7111399344543003]
[null,"Indirect Capex",null,null,{"$f":"IF($B341=\"Blank\",0,IF($B$8=\"Private Contract Lighting\",'Capex Weighting'!D$115,'Capex Weighting'!D$117))","v":0},{"$f":"IF($B341=\"Blank\",0,IF($B$8=\"Private Contract Lighting\",'Capex Weighting'!E$115,'Capex Weighting'!E$117))","v":0},null,null,"Indirect Capex",0,0]
[null,"Overhead Costs per light",null,null,{"$f":"IF($B340=\"Blank\",0,IF($B$8=\"Private Contract Lighting\",'Building Block'!C$49,'Building Block'!C$48))","v":11.222353166014571},{"$f":"IF($B340=\"Blank\",0,IF($B$8=\"Private Contract Lighting\",'Building Block'!D$49,'Building Block'!D$48))","v":11.512124256080179},null,null,"Overhead Costs per light",3.0746173057574167,3.1540066455014193]
[null,{"$f":"Inputs!$AH$68","v":"Bracket UNIT price"},0,null,"NA","NA",null,null,"Bracket UNIT price","",""]
[null,{"$f":"Inputs!$Y$68","v":"CAPEX Installation costs"},{"$f":"C349+1","v":1},null,"NA","NA",null,null,"CAPEX Installation costs","",""]
[null,{"$f":"Inputs!$X$68","v":"Luminaire UNIT price"},{"$f":"C350+1","v":2},null,"NA","NA",null,null,"Luminaire UNIT price","",""]
[null,{"$f":"Inputs!$Y$68","v":"CAPEX Installation costs"},3,null,"NA","NA",null,null,"CAPEX Installation costs","",""]
[null,null,null,null,{"$f":"SUM(E341:E352)","v":67.114217511799467},{"$f":"SUM(F341:F352)","v":67.177369089562774},null,null,null,{"$f":"ROUND(E353/J$2*100,3)","v":18.387},{"$f":"ROUND(F353/K$2*100,3)","v":18.405000000000001}]
[]
[{"$f":"A340+1","v":24},{"$f":"IFERROR(VLOOKUP($A355,Inputs!$B$68:$AK$129,MATCH($B$7,Inputs!$B$68:$AK$68,0),FALSE),\"Blank\")","v":"18W LED"},null,null,null,null,null,null,{"$f":"IFERROR(VLOOKUP($A355,Inputs!$B$68:$AK$129,MATCH($B$7,Inputs!$B$68:$AK$68,0),FALSE),\"Blank\")","v":"18W LED"}]
[null,{"$f":"Inputs!$R$68","v":"Lamp UNIT price Annualised Cost"},{"$f":"Inputs!$P$68","v":"Lamp Maintenance cycle"},null,{"$f":"IF($B355=\"Blank\",0,VLOOKUP($B355,Inputs!$C$68:$AK$129,MATCH($B356,Inputs!$C$68:$AK$68,0),FALSE))","v":0},{"$f":"IF($B355=\"Blank\",0,VLOOKUP($B355,Inputs!$C$68:$AK$129,MATCH($B356,Inputs!$C$68:$AK$68,0),FALSE))","v":0},null,null,{"$f":"B356","v":"Lamp UNIT price Annualised Cost"},{"$f":"IF(E356=\"NA\",\"\",E356/J$2*100)","v":0},{"$f":"IF(F356=\"NA\",\"\",F356/K$2*100)","v":0}]
[null,{"$f":"Inputs!$K$68","v":"PE Cell UNIT price Annualised Cost"},{"$f":"Inputs!$I$68","v":"PE Cell Maintenance Cycle"},null,{"$f":"IF($B355=\"Blank\",0,VLOOKUP($B355,Inputs!$C$68:$AK$129,MATCH($B357,Inputs!$C$68:$AK$68,0),FALSE))","v":0.3053707499112136},{"$f":"IF($B355=\"Blank\",0,VLOOKUP($B355,Inputs!$C$68:$AK$129,MATCH($B357,Inputs!$C$68:$AK$68,0),FALSE))","v":0.3053707499112136},null,null,"PE Cell UNIT price Annualised Cost",8.3663219153757157E-2,8.3663219153757157E-2]
[null,"Corp capex annuity per light",null,null,{"$f":"IF($B355=\"Blank\",0,'Corp Capex Annuity calcs'!F$109)","v":14.826870317655803},{"$f":"IF($B355=\"Blank\",0,'Corp Capex Annuity calcs'!G$109)","v":14.708895619806404},null,null,"Corp capex annuity per light",4.0621562514125493,4.0298344163853157]
[null,{"$f":"Inputs!$T$68","v":"Lamp Service costs Annualised"},null,null,{"$f":"IF($B355=\"Blank\",0,VLOOKUP($B355,Inputs!$C$68:$AK$129,MATCH($B359,Inputs!$C$68:$AK$68,0),FALSE))","v":0},{"$f":"IF($B355=\"Blank\",0,VLOOKUP($B355,Inputs!$C$68:$AK$129,MATCH($B359,Inputs!$C$68:$AK$68,0),FALSE))","v":0},null,null,"Lamp Service costs Annualised",0,0]
[null,{"$f":"Inputs!$M$68","v":"PE Cell Service costs Annualised"},null,null,{"$f":"IF($B355=\"Blank\",0,VLOOKUP($B355,Inputs!$C$68:$AK$129,MATCH($B360,Inputs!$C$68:$AK$68,0),FALSE))","v":6.5868429419336252},{"$f":"IF($B355=\"Blank\",0,VLOOKUP($B355,Inputs!$C$68:$AK$129,MATCH($B360,Inputs!$C$68:$AK$68,0),FALSE))","v":6.5868429419336252},null,null,"PE Cell Service costs Annualised",1.8046145046393494,1.8046145046393494]
[null,"Indirect Opex",null,null,{"$f":"IF($B355=\"Blank\",0,IF($B$8=\"Private Contract Lighting\",'Opex Weighting'!D$113,'Opex Weighting'!D$111))","v":13.654305575211096},{"$f":"IF($B355=\"Blank\",0,IF($B$8=\"Private Contract Lighting\",'Opex Weighting'!E$113,'Opex Weighting'!E$111))","v":13.545660760758196},null,null,"Indirect Opex",3.7409056370441354,3.7111399344543003]
[null,"Indirect Capex",null,null,{"$f":"IF($B356=\"Blank\",0,IF($B$8=\"Private Contract Lighting\",'Capex Weighting'!D$115,'Capex Weighting'!D$117))","v":0},{"$f":"IF($B356=\"Blank\",0,IF($B$8=\"Private Contract Lighting\",'Capex Weighting'!E$115,'Capex Weighting'!E$117))","v":0},null,null,"Indirect Capex",0,0]
[null,"Overhead Costs per light",null,null,{"$f":"IF($B355=\"Blank\",0,IF($B$8=\"Private Contract Lighting\",'Building Block'!C$49,'Building Block'!C$48))","v":11.222353166014571},{"$f":"IF($B355=\"Blank\",0,IF($B$8=\"Private Contract Lighting\",'Building Block'!D$49,'Building Block'!D$48))","v":11.512124256080179},null,null,"Overhead Costs per light",3.0746173057574167,3.1540066455014193]
[null,{"$f":"Inputs!$AH$68","v":"Bracket UNIT price"},0,null,"NA","NA",null,null,"Bracket UNIT price","",""]
[null,{"$f":"Inputs!$Y$68","v":"CAPEX Installation costs"},{"$f":"C364+1","v":1},null,"NA","NA",null,null,"CAPEX Installation costs","",""]
[null,{"$f":"Inputs!$X$68","v":"Luminaire UNIT price"},{"$f":"C365+1","v":2},null,"NA","NA",null,null,"Luminaire UNIT price","",""]
[null,{"$f":"Inputs!$Y$68","v":"CAPEX Installation costs"},3,null,"NA","NA",null,null,"CAPEX Installation costs","",""]
[null,null,null,null,{"$f":"SUM(E356:E367)","v":46.595742750726309},{"$f":"SUM(F356:F367)","v":46.658894328489616},null,null,null,{"$f":"ROUND(E368/J$2*100,3)","v":12.766},{"$f":"ROUND(F368/K$2*100,3)","v":12.782999999999999}]
[]
[{"$f":"A355+1","v":25},{"$f":"IFERROR(VLOOKUP($A370,Inputs!$B$68:$AK$129,MATCH($B$7,Inputs!$B$68:$AK$68,0),FALSE),\"Blank\")","v":"25W LED"},null,null,null,null,null,null,{"$f":"IFERROR(VLOOKUP($A370,Inputs!$B$68:$AK$129,MATCH($B$7,Inputs!$B$68:$AK$68,0),FALSE),\"Blank\")","v":"25W LED"}]
[null,{"$f":"Inputs!$R$68","v":"Lamp UNIT price Annualised Cost"},{"$f":"Inputs!$P$68","v":"Lamp Maintenance cycle"},null,{"$f":"IF($B370=\"Blank\",0,VLOOKUP($B370,Inputs!$C$68:$AK$129,MATCH($B371,Inputs!$C$68:$AK$68,0),FALSE))","v":0},{"$f":"IF($B370=\"Blank\",0,VLOOKUP($B370,Inputs!$C$68:$AK$129,MATCH($B371,Inputs!$C$68:$AK$68,0),FALSE))","v":0},null,null,{"$f":"B371","v":"Lamp UNIT price Annualised Cost"},{"$f":"IF(E371=\"NA\",\"\",E371/J$2*100)","v":0},{"$f":"IF(F371=\"NA\",\"\",F371/K$2*100)","v":0}]
[null,{"$f":"Inputs!$K$68","v":"PE Cell UNIT price Annualised Cost"},{"$f":"Inputs!$I$68","v":"PE Cell Maintenance Cycle"},null,{"$f":"IF($B370=\"Blank\",0,VLOOKUP($B370,Inputs!$C$68:$AK$129,MATCH($B372,Inputs!$C$68:$AK$68,0),FALSE))","v":0.3053707499112136},{"$f":"IF($B370=\"Blank\",0,VLOOKUP($B370,Inputs!$C$68:$AK$129,MATCH($B372,Inputs!$C$68:$AK$68,0),FALSE))","v":0.3053707499112136},null,null,"PE Cell UNIT price Annualised Cost",8.3663219153757157E-2,8.3663219153757157E-2]
[null,"Corp capex annuity per light",null,null,{"$f":"IF($B370=\"Blank\",0,'Corp Capex Annuity calcs'!F$109)","v":14.826870317655803},{"$f":"IF($B370=\"Blank\",0,'Corp Capex Annuity calcs'!G$109)","v":14.708895619806404},null,null,"Corp capex annuity per light",4.0621562514125493,4.0298344163853157]
[null,{"$f":"Inputs!$T$68","v":"Lamp Service costs Annualised"},null,null,{"$f":"IF($B370=\"Blank\",0,VLOOKUP($B370,Inputs!$C$68:$AK$129,MATCH($B374,Inputs!$C$68:$AK$68,0),FALSE))","v":0},{"$f":"IF($B370=\"Blank\",0,VLOOKUP($B370,Inputs!$C$68:$AK$129,MATCH($B374,Inputs!$C$68:$AK$68,0),FALSE))","v":0},null,null,"Lamp Service costs Annualised",0,0]
[null,{"$f":"Inputs!$M$68","v":"PE Cell Service costs Annualised"},null,null,{"$f":"IF($B370=\"Blank\",0,VLOOKUP($B370,Inputs!$C$68:$AK$129,MATCH($B375,Inputs!$C$68:$AK$68,0),FALSE))","v":6.5868429419336252},{"$f":"IF($B370=\"Blank\",0,VLOOKUP($B370,Inputs!$C$68:$AK$129,MATCH($B375,Inputs!$C$68:$AK$68,0),FALSE))","v":6.5868429419336252},null,null,"PE Cell Service costs Annualised",1.8046145046393494,1.8046145046393494]
[null,"Indirect Opex",null,null,{"$f":"IF($B370=\"Blank\",0,IF($B$8=\"Private Contract Lighting\",'Opex Weighting'!D$113,'Opex Weighting'!D$111))","v":13.654305575211096},{"$f":"IF($B370=\"Blank\",0,IF($B$8=\"Private Contract Lighting\",'Opex Weighting'!E$113,'Opex Weighting'!E$111))","v":13.545660760758196},null,null,"Indirect Opex",3.7409056370441354,3.7111399344543003]
[null,"Indirect Capex",null,null,{"$f":"IF($B371=\"Blank\",0,IF($B$8=\"Private Contract Lighting\",'Capex Weighting'!D$115,'Capex Weighting'!D$117))","v":0},{"$f":"IF($B371=\"Blank\",0,IF($B$8=\"Private Contract Lighting\",'Capex Weighting'!E$115,'Capex Weighting'!E$117))","v":0},null,null,"Indirect Capex",0,0]
[null,"Overhead Costs per light",null,null,{"$f":"IF($B370=\"Blank\",0,IF($B$8=\"Private Contract Lighting\",'Building Block'!C$49,'Building Block'!C$48))","v":11.222353166014571},{"$f":"IF($B370=\"Blank\",0,IF($B$8=\"Private Contract Lighting\",'Building Block'!D$49,'Building Block'!D$48))","v":11.512124256080179},null,null,"Overhead Costs per light",3.0746173057574167,3.1540066455014193]
[null,{"$f":"Inputs!$AH$68","v":"Bracket UNIT price"},0,null,"NA","NA",null,null,"Bracket UNIT price","",""]
[null,{"$f":"Inputs!$Y$68","v":"CAPEX Installation costs"},{"$f":"C379+1","v":1},null,"NA","NA",null,null,"CAPEX Installation costs","",""]
[null,{"$f":"Inputs!$X$68","v":"Luminaire UNIT price"},{"$f":"C380+1","v":2},null,"NA","NA",null,null,"Luminaire UNIT price","",""]
[null,{"$f":"Inputs!$Y$68","v":"CAPEX Installation costs"},3,null,"NA","NA",null,null,"CAPEX Installation costs","",""]
[null,null,null,null,{"$f":"SUM(E371:E382)","v":46.595742750726309},{"$f":"SUM(F371:F382)","v":46.658894328489616},null,null,null,{"$f":"ROUND(E383/J$2*100,3)","v":12.766},{"$f":"ROUND(F383/K$2*100,3)","v":12.782999999999999}]
[]
[{"$f":"A370+1","v":26},{"$f":"IFERROR(VLOOKUP($A385,Inputs!$B$68:$AK$129,MATCH($B$7,Inputs!$B$68:$AK$68,0),FALSE),\"Blank\")","v":"18W LED Decorative - Bottom Pole Entry"},null,null,null,null,null,null,{"$f":"IFERROR(VLOOKUP($A385,Inputs!$B$68:$AK$129,MATCH($B$7,Inputs!$B$68:$AK$68,0),FALSE),\"Blank\")","v":"18W LED Decorative - Bottom Pole Entry"}]
[null,{"$f":"Inputs!$R$68","v":"Lamp UNIT price Annualised Cost"},{"$f":"Inputs!$P$68","v":"Lamp Maintenance cycle"},null,{"$f":"IF($B385=\"Blank\",0,VLOOKUP($B385,Inputs!$C$68:$AK$129,MATCH($B386,Inputs!$C$68:$AK$68,0),FALSE))","v":0},{"$f":"IF($B385=\"Blank\",0,VLOOKUP($B385,Inputs!$C$68:$AK$129,MATCH($B386,Inputs!$C$68:$AK$68,0),FALSE))","v":0},null,null,{"$f":"B386","v":"Lamp UNIT price Annualised Cost"},{"$f":"IF(E386=\"NA\",\"\",E386/J$2*100)","v":0},{"$f":"IF(F386=\"NA\",\"\",F386/K$2*100)","v":0}]
[null,{"$f":"Inputs!$K$68","v":"PE Cell UNIT price Annualised Cost"},{"$f":"Inputs!$I$68","v":"PE Cell Maintenance Cycle"},null,{"$f":"IF($B385=\"Blank\",0,VLOOKUP($B385,Inputs!$C$68:$AK$129,MATCH($B387,Inputs!$C$68:$AK$68,0),FALSE))","v":0.3053707499112136},{"$f":"IF($B385=\"Blank\",0,VLOOKUP($B385,Inputs!$C$68:$AK$129,MATCH($B387,Inputs!$C$68:$AK$68,0),FALSE))","v":0.3053707499112136},null,null,"PE Cell UNIT price Annualised Cost",8.3663219153757157E-2,8.3663219153757157E-2]
[null,"Corp capex annuity per light",null,null,{"$f":"IF($B385=\"Blank\",0,'Corp Capex Annuity calcs'!F$109)","v":14.826870317655803},{"$f":"IF($B385=\"Blank\",0,'Corp Capex Annuity calcs'!G$109)","v":14.708895619806404},null,null,"Corp capex annuity per light",4.0621562514125493,4.0298344163853157]
[null,{"$f":"Inputs!$T$68","v":"Lamp Service costs Annualised"},null,null,{"$f":"IF($B385=\"Blank\",0,VLOOKUP($B385,Inputs!$C$68:$AK$129,MATCH($B389,Inputs!$C$68:$AK$68,0),FALSE))","v":0},{"$f":"IF($B385=\"Blank\",0,VLOOKUP($B385,Inputs!$C$68:$AK$129,MATCH($B389,Inputs!$C$68:$AK$68,0),FALSE))","v":0},null,null,"Lamp Service costs Annualised",0,0]
[null,{"$f":"Inputs!$M$68","v":"PE Cell Service costs Annualised"},null,null,{"$f":"IF($B385=\"Blank\",0,VLOOKUP($B385,Inputs!$C$68:$AK$129,MATCH($B390,Inputs!$C$68:$AK$68,0),FALSE))","v":6.5868429419336252},{"$f":"IF($B385=\"Blank\",0,VLOOKUP($B385,Inputs!$C$68:$AK$129,MATCH($B390,Inputs!$C$68:$AK$68,0),FALSE))","v":6.5868429419336252},null,null,"PE Cell Service costs Annualised",1.8046145046393494,1.8046145046393494]
[null,"Indirect Opex",null,null,{"$f":"IF($B385=\"Blank\",0,IF($B$8=\"Private Contract Lighting\",'Opex Weighting'!D$113,'Opex Weighting'!D$111))","v":13.654305575211096},{"$f":"IF($B385=\"Blank\",0,IF($B$8=\"Private Contract Lighting\",'Opex Weighting'!E$113,'Opex Weighting'!E$111))","v":13.545660760758196},null,null,"Indirect Opex",3.7409056370441354,3.7111399344543003]
[null,"Indirect Capex",null,null,{"$f":"IF($B386=\"Blank\",0,IF($B$8=\"Private Contract Lighting\",'Capex Weighting'!D$115,'Capex Weighting'!D$117))","v":0},{"$f":"IF($B386=\"Blank\",0,IF($B$8=\"Private Contract Lighting\",'Capex Weighting'!E$115,'Capex Weighting'!E$117))","v":0},null,null,"Indirect Capex",0,0]
[null,"Overhead Costs per light",null,null,{"$f":"IF($B385=\"Blank\",0,IF($B$8=\"Private Contract Lighting\",'Building Block'!C$49,'Building Block'!C$48))","v":11.222353166014571},{"$f":"IF($B385=\"Blank\",0,IF($B$8=\"Private Contract Lighting\",'Building Block'!D$49,'Building Block'!D$48))","v":11.512124256080179},null,null,"Overhead Costs per light",3.0746173057574167,3.1540066455014193]
[null,{"$f":"Inputs!$AH$68","v":"Bracket UNIT price"},0,null,"NA","NA",null,null,"Bracket UNIT price","",""]
[null,{"$f":"Inputs!$Y$68","v":"CAPEX Installation costs"},{"$f":"C394+1","v":1},null,"NA","NA",null,null,"CAPEX Installation costs","",""]
[null,{"$f":"Inputs!$X$68","v":"Luminaire UNIT price"},{"$f":"C395+1","v":2},null,"NA","NA",null,null,"Luminaire UNIT price","",""]
[null,{"$f":"Inputs!$Y$68","v":"CAPEX Installation costs"},3,null,"NA","NA",null,null,"CAPEX Installation costs","",""]
[null,null,null,null,{"$f":"SUM(E386:E397)","v":46.595742750726309},{"$f":"SUM(F386:F397)","v":46.658894328489616},null,null,null,{"$f":"ROUND(E398/J$2*100,3)","v":12.766},{"$f":"ROUND(F398/K$2*100,3)","v":12.782999999999999}]
[]
[{"$f":"A385+1","v":27},{"$f":"IFERROR(VLOOKUP($A400,Inputs!$B$68:$AK$129,MATCH($B$7,Inputs!$B$68:$AK$68,0),FALSE),\"Blank\")","v":"18W LED Decorative - Side Entry"},null,null,null,null,null,null,{"$f":"IFERROR(VLOOKUP($A400,Inputs!$B$68:$AK$129,MATCH($B$7,Inputs!$B$68:$AK$68,0),FALSE),\"Blank\")","v":"18W LED Decorative - Side Entry"}]
[null,{"$f":"Inputs!$R$68","v":"Lamp UNIT price Annualised Cost"},{"$f":"Inputs!$P$68","v":"Lamp Maintenance cycle"},null,{"$f":"IF($B400=\"Blank\",0,VLOOKUP($B400,Inputs!$C$68:$AK$129,MATCH($B401,Inputs!$C$68:$AK$68,0),FALSE))","v":0},{"$f":"IF($B400=\"Blank\",0,VLOOKUP($B400,Inputs!$C$68:$AK$129,MATCH($B401,Inputs!$C$68:$AK$68,0),FALSE))","v":0},null,null,{"$f":"B401","v":"Lamp UNIT price Annualised Cost"},{"$f":"IF(E401=\"NA\",\"\",E401/J$2*100)","v":0},{"$f":"IF(F401=\"NA\",\"\",F401/K$2*100)","v":0}]
[null,{"$f":"Inputs!$K$68","v":"PE Cell UNIT price Annualised Cost"},{"$f":"Inputs!$I$68","v":"PE Cell Maintenance Cycle"},null,{"$f":"IF($B400=\"Blank\",0,VLOOKUP($B400,Inputs!$C$68:$AK$129,MATCH($B402,Inputs!$C$68:$AK$68,0),FALSE))","v":0.3053707499112136},{"$f":"IF($B400=\"Blank\",0,VLOOKUP($B400,Inputs!$C$68:$AK$129,MATCH($B402,Inputs!$C$68:$AK$68,0),FALSE))","v":0.3053707499112136},null,null,"PE Cell UNIT price Annualised Cost",8.3663219153757157E-2,8.3663219153757157E-2]
[null,"Corp capex annuity per light",null,null,{"$f":"IF($B400=\"Blank\",0,'Corp Capex Annuity calcs'!F$109)","v":14.826870317655803},{"$f":"IF($B400=\"Blank\",0,'Corp Capex Annuity calcs'!G$109)","v":14.708895619806404},null,null,"Corp capex annuity per light",4.0621562514125493,4.0298344163853157]
[null,{"$f":"Inputs!$T$68","v":"Lamp Service costs Annualised"},null,null,{"$f":"IF($B400=\"Blank\",0,VLOOKUP($B400,Inputs!$C$68:$AK$129,MATCH($B404,Inputs!$C$68:$AK$68,0),FALSE))","v":0},{"$f":"IF($B400=\"Blank\",0,VLOOKUP($B400,Inputs!$C$68:$AK$129,MATCH($B404,Inputs!$C$68:$AK$68,0),FALSE))","v":0},null,null,"Lamp Service costs Annualised",0,0]
[null,{"$f":"Inputs!$M$68","v":"PE Cell Service costs Annualised"},null,null,{"$f":"IF($B400=\"Blank\",0,VLOOKUP($B400,Inputs!$C$68:$AK$129,MATCH($B405,Inputs!$C$68:$AK$68,0),FALSE))","v":6.5868429419336252},{"$f":"IF($B400=\"Blank\",0,VLOOKUP($B400,Inputs!$C$68:$AK$129,MATCH($B405,Inputs!$C$68:$AK$68,0),FALSE))","v":6.5868429419336252},null,null,"PE Cell Service costs Annualised",1.8046145046393494,1.8046145046393494]
[null,"Indirect Opex",null,null,{"$f":"IF($B400=\"Blank\",0,IF($B$8=\"Private Contract Lighting\",'Opex Weighting'!D$113,'Opex Weighting'!D$111))","v":13.654305575211096},{"$f":"IF($B400=\"Blank\",0,IF($B$8=\"Private Contract Lighting\",'Opex Weighting'!E$113,'Opex Weighting'!E$111))","v":13.545660760758196},null,null,"Indirect Opex",3.7409056370441354,3.7111399344543003]
[null,"Indirect Capex",null,null,{"$f":"IF($B401=\"Blank\",0,IF($B$8=\"Private Contract Lighting\",'Capex Weighting'!D$115,'Capex Weighting'!D$117))","v":0},{"$f":"IF($B401=\"Blank\",0,IF($B$8=\"Private Contract Lighting\",'Capex Weighting'!E$115,'Capex Weighting'!E$117))","v":0},null,null,"Indirect Capex",0,0]
[null,"Overhead Costs per light",null,null,{"$f":"IF($B400=\"Blank\",0,IF($B$8=\"Private Contract Lighting\",'Building Block'!C$49,'Building Block'!C$48))","v":11.222353166014571},{"$f":"IF($B400=\"Blank\",0,IF($B$8=\"Private Contract Lighting\",'Building Block'!D$49,'Building Block'!D$48))","v":11.512124256080179},null,null,"Overhead Costs per light",3.0746173057574167,3.1540066455014193]
[null,{"$f":"Inputs!$AH$68","v":"Bracket UNIT price"},0,null,"NA","NA",null,null,"Bracket UNIT price","",""]
[null,{"$f":"Inputs!$Y$68","v":"CAPEX Installation costs"},{"$f":"C409+1","v":1},null,"NA","NA",null,null,"CAPEX Installation costs","",""]
[null,{"$f":"Inputs!$X$68","v":"Luminaire UNIT price"},{"$f":"C410+1","v":2},null,"NA","NA",null,null,"Luminaire UNIT price","",""]
[null,{"$f":"Inputs!$Y$68","v":"CAPEX Installation costs"},3,null,"NA","NA",null,null,"CAPEX Installation costs","",""]
[null,null,null,null,{"$f":"SUM(E401:E412)","v":46.595742750726309},{"$f":"SUM(F401:F412)","v":46.658894328489616},null,null,null,{"$f":"ROUND(E413/J$2*100,3)","v":12.766},{"$f":"ROUND(F413/K$2*100,3)","v":12.782999999999999}]
[]
[{"$f":"A400+1","v":28},{"$f":"IFERROR(VLOOKUP($A415,Inputs!$B$68:$AK$129,MATCH($B$7,Inputs!$B$68:$AK$68,0),FALSE),\"Blank\")","v":"18W LED Decorative - Top Entry"},null,null,null,null,null,null,{"$f":"IFERROR(VLOOKUP($A415,Inputs!$B$68:$AK$129,MATCH($B$7,Inputs!$B$68:$AK$68,0),FALSE),\"Blank\")","v":"18W LED Decorative - Top Entry"}]
[null,{"$f":"Inputs!$R$68","v":"Lamp UNIT price Annualised Cost"},{"$f":"Inputs!$P$68","v":"Lamp Maintenance cycle"},null,{"$f":"IF($B415=\"Blank\",0,VLOOKUP($B415,Inputs!$C$68:$AK$129,MATCH($B416,Inputs!$C$68:$AK$68,0),FALSE))","v":0},{"$f":"IF($B415=\"Blank\",0,VLOOKUP($B415,Inputs!$C$68:$AK$129,MATCH($B416,Inputs!$C$68:$AK$68,0),FALSE))","v":0},null,null,{"$f":"B416","v":"Lamp UNIT price Annualised Cost"},{"$f":"IF(E416=\"NA\",\"\",E416/J$2*100)","v":0},{"$f":"IF(F416=\"NA\",\"\",F416/K$2*100)","v":0}]
[null,{"$f":"Inputs!$K$68","v":"PE Cell UNIT price Annualised Cost"},{"$f":"Inputs!$I$68","v":"PE Cell Maintenance Cycle"},null,{"$f":"IF($B415=\"Blank\",0,VLOOKUP($B415,Inputs!$C$68:$AK$129,MATCH($B417,Inputs!$C$68:$AK$68,0),FALSE))","v":0.3053707499112136},{"$f":"IF($B415=\"Blank\",0,VLOOKUP($B415,Inputs!$C$68:$AK$129,MATCH($B417,Inputs!$C$68:$AK$68,0),FALSE))","v":0.3053707499112136},null,null,"PE Cell UNIT price Annualised Cost",8.3663219153757157E-2,8.3663219153757157E-2]
[null,"Corp capex annuity per light",null,null,{"$f":"IF($B415=\"Blank\",0,'Corp Capex Annuity calcs'!F$109)","v":14.826870317655803},{"$f":"IF($B415=\"Blank\",0,'Corp Capex Annuity calcs'!G$109)","v":14.708895619806404},null,null,"Corp capex annuity per light",4.0621562514125493,4.0298344163853157]
[null,{"$f":"Inputs!$T$68","v":"Lamp Service costs Annualised"},null,null,{"$f":"IF($B415=\"Blank\",0,VLOOKUP($B415,Inputs!$C$68:$AK$129,MATCH($B419,Inputs!$C$68:$AK$68,0),FALSE))","v":0},{"$f":"IF($B415=\"Blank\",0,VLOOKUP($B415,Inputs!$C$68:$AK$129,MATCH($B419,Inputs!$C$68:$AK$68,0),FALSE))","v":0},null,null,"Lamp Service costs Annualised",0,0]
[null,{"$f":"Inputs!$M$68","v":"PE Cell Service costs Annualised"},null,null,{"$f":"IF($B415=\"Blank\",0,VLOOKUP($B415,Inputs!$C$68:$AK$129,MATCH($B420,Inputs!$C$68:$AK$68,0),FALSE))","v":6.5868429419336252},{"$f":"IF($B415=\"Blank\",0,VLOOKUP($B415,Inputs!$C$68:$AK$129,MATCH($B420,Inputs!$C$68:$AK$68,0),FALSE))","v":6.5868429419336252},null,null,"PE Cell Service costs Annualised",1.8046145046393494,1.8046145046393494]
[null,"Indirect Opex",null,null,{"$f":"IF($B415=\"Blank\",0,IF($B$8=\"Private Contract Lighting\",'Opex Weighting'!D$113,'Opex Weighting'!D$111))","v":13.654305575211096},{"$f":"IF($B415=\"Blank\",0,IF($B$8=\"Private Contract Lighting\",'Opex Weighting'!E$113,'Opex Weighting'!E$111))","v":13.545660760758196},null,null,"Indirect Opex",3.7409056370441354,3.7111399344543003]
[null,"Indirect Capex",null,null,{"$f":"IF($B416=\"Blank\",0,IF($B$8=\"Private Contract Lighting\",'Capex Weighting'!D$115,'Capex Weighting'!D$117))","v":0},{"$f":"IF($B416=\"Blank\",0,IF($B$8=\"Private Contract Lighting\",'Capex Weighting'!E$115,'Capex Weighting'!E$117))","v":0},null,null,"Indirect Capex",0,0]
[null,"Overhead Costs per light",null,null,{"$f":"IF($B415=\"Blank\",0,IF($B$8=\"Private Contract Lighting\",'Building Block'!C$49,'Building Block'!C$48))","v":11.222353166014571},{"$f":"IF($B415=\"Blank\",0,IF($B$8=\"Private Contract Lighting\",'Building Block'!D$49,'Building Block'!D$48))","v":11.512124256080179},null,null,"Overhead Costs per light",3.0746173057574167,3.1540066455014193]
[null,{"$f":"Inputs!$AH$68","v":"Bracket UNIT price"},0,null,"NA","NA",null,null,"Bracket UNIT price","",""]
[null,{"$f":"Inputs!$Y$68","v":"CAPEX Installation costs"},{"$f":"C424+1","v":1},null,"NA","NA",null,null,"CAPEX Installation costs","",""]
[null,{"$f":"Inputs!$X$68","v":"Luminaire UNIT price"},{"$f":"C425+1","v":2},null,"NA","NA",null,null,"Luminaire UNIT price","",""]
[null,{"$f":"Inputs!$Y$68","v":"CAPEX Installation costs"},3,null,"NA","NA",null,null,"CAPEX Installation costs","",""]
[null,null,null,null,{"$f":"SUM(E416:E427)","v":46.595742750726309},{"$f":"SUM(F416:F427)","v":46.658894328489616},null,null,null,{"$f":"ROUND(E428/J$2*100,3)","v":12.766},{"$f":"ROUND(F428/K$2*100,3)","v":12.782999999999999}]
[]
[{"$f":"A415+1","v":29},{"$f":"IFERROR(VLOOKUP($A430,Inputs!$B$68:$AK$129,MATCH($B$7,Inputs!$B$68:$AK$68,0),FALSE),\"Blank\")","v":"25W LED Decorative - Bottom Pole Entry"},null,null,null,null,null,null,{"$f":"IFERROR(VLOOKUP($A430,Inputs!$B$68:$AK$129,MATCH($B$7,Inputs!$B$68:$AK$68,0),FALSE),\"Blank\")","v":"25W LED Decorative - Bottom Pole Entry"}]
[null,{"$f":"Inputs!$R$68","v":"Lamp UNIT price Annualised Cost"},{"$f":"Inputs!$P$68","v":"Lamp Maintenance cycle"},null,{"$f":"IF($B430=\"Blank\",0,VLOOKUP($B430,Inputs!$C$68:$AK$129,MATCH($B431,Inputs!$C$68:$AK$68,0),FALSE))","v":0},{"$f":"IF($B430=\"Blank\",0,VLOOKUP($B430,Inputs!$C$68:$AK$129,MATCH($B431,Inputs!$C$68:$AK$68,0),FALSE))","v":0},null,null,{"$f":"B431","v":"Lamp UNIT price Annualised Cost"},{"$f":"IF(E431=\"NA\",\"\",E431/J$2*100)","v":0},{"$f":"IF(F431=\"NA\",\"\",F431/K$2*100)","v":0}]
[null,{"$f":"Inputs!$K$68","v":"PE Cell UNIT price Annualised Cost"},{"$f":"Inputs!$I$68","v":"PE Cell Maintenance Cycle"},null,{"$f":"IF($B430=\"Blank\",0,VLOOKUP($B430,Inputs!$C$68:$AK$129,MATCH($B432,Inputs!$C$68:$AK$68,0),FALSE))","v":0.3053707499112136},{"$f":"IF($B430=\"Blank\",0,VLOOKUP($B430,Inputs!$C$68:$AK$129,MATCH($B432,Inputs!$C$68:$AK$68,0),FALSE))","v":0.3053707499112136},null,null,"PE Cell UNIT price Annualised Cost",8.3663219153757157E-2,8.3663219153757157E-2]
[null,"Corp capex annuity per light",null,null,{"$f":"IF($B430=\"Blank\",0,'Corp Capex Annuity calcs'!F$109)","v":14.826870317655803},{"$f":"IF($B430=\"Blank\",0,'Corp Capex Annuity calcs'!G$109)","v":14.708895619806404},null,null,"Corp capex annuity per light",4.0621562514125493,4.0298344163853157]
[null,{"$f":"Inputs!$T$68","v":"Lamp Service costs Annualised"},null,null,{"$f":"IF($B430=\"Blank\",0,VLOOKUP($B430,Inputs!$C$68:$AK$129,MATCH($B434,Inputs!$C$68:$AK$68,0),FALSE))","v":0},{"$f":"IF($B430=\"Blank\",0,VLOOKUP($B430,Inputs!$C$68:$AK$129,MATCH($B434,Inputs!$C$68:$AK$68,0),FALSE))","v":0},null,null,"Lamp Service costs Annualised",0,0]
[null,{"$f":"Inputs!$M$68","v":"PE Cell Service costs Annualised"},null,null,{"$f":"IF($B430=\"Blank\",0,VLOOKUP($B430,Inputs!$C$68:$AK$129,MATCH($B435,Inputs!$C$68:$AK$68,0),FALSE))","v":6.5868429419336252},{"$f":"IF($B430=\"Blank\",0,VLOOKUP($B430,Inputs!$C$68:$AK$129,MATCH($B435,Inputs!$C$68:$AK$68,0),FALSE))","v":6.5868429419336252},null,null,"PE Cell Service costs Annualised",1.8046145046393494,1.8046145046393494]
[null,"Indirect Opex",null,null,{"$f":"IF($B430=\"Blank\",0,IF($B$8=\"Private Contract Lighting\",'Opex Weighting'!D$113,'Opex Weighting'!D$111))","v":13.654305575211096},{"$f":"IF($B430=\"Blank\",0,IF($B$8=\"Private Contract Lighting\",'Opex Weighting'!E$113,'Opex Weighting'!E$111))","v":13.545660760758196},null,null,"Indirect Opex",3.7409056370441354,3.7111399344543003]
[null,"Indirect Capex",null,null,{"$f":"IF($B431=\"Blank\",0,IF($B$8=\"Private Contract Lighting\",'Capex Weighting'!D$115,'Capex Weighting'!D$117))","v":0},{"$f":"IF($B431=\"Blank\",0,IF($B$8=\"Private Contract Lighting\",'Capex Weighting'!E$115,'Capex Weighting'!E$117))","v":0},null,null,"Indirect Capex",0,0]
[null,"Overhead Costs per light",null,null,{"$f":"IF($B430=\"Blank\",0,IF($B$8=\"Private Contract Lighting\",'Building Block'!C$49,'Building Block'!C$48))","v":11.222353166014571},{"$f":"IF($B430=\"Blank\",0,IF($B$8=\"Private Contract Lighting\",'Building Block'!D$49,'Building Block'!D$48))","v":11.512124256080179},null,null,"Overhead Costs per light",3.0746173057574167,3.1540066455014193]
[null,{"$f":"Inputs!$AH$68","v":"Bracket UNIT price"},0,null,"NA","NA",null,null,"Bracket UNIT price","",""]
[null,{"$f":"Inputs!$Y$68","v":"CAPEX Installation costs"},{"$f":"C439+1","v":1},null,"NA","NA",null,null,"CAPEX Installation costs","",""]
[null,{"$f":"Inputs!$X$68","v":"Luminaire UNIT price"},{"$f":"C440+1","v":2},null,"NA","NA",null,null,"Luminaire UNIT price","",""]
[null,{"$f":"Inputs!$Y$68","v":"CAPEX Installation costs"},3,null,"NA","NA",null,null,"CAPEX Installation costs","",""]
[null,null,null,null,{"$f":"SUM(E431:E442)","v":46.595742750726309},{"$f":"SUM(F431:F442)","v":46.658894328489616},null,null,null,{"$f":"ROUND(E443/J$2*100,3)","v":12.766},{"$f":"ROUND(F443/K$2*100,3)","v":12.782999999999999}]
[]
[{"$f":"A430+1","v":30},{"$f":"IFERROR(VLOOKUP($A445,Inputs!$B$68:$AK$129,MATCH($B$7,Inputs!$B$68:$AK$68,0),FALSE),\"Blank\")","v":"25W LED Decorative - Side Entry"},null,null,null,null,null,null,{"$f":"IFERROR(VLOOKUP($A445,Inputs!$B$68:$AK$129,MATCH($B$7,Inputs!$B$68:$AK$68,0),FALSE),\"Blank\")","v":"25W LED Decorative - Side Entry"}]
[null,{"$f":"Inputs!$R$68","v":"Lamp UNIT price Annualised Cost"},{"$f":"Inputs!$P$68","v":"Lamp Maintenance cycle"},null,{"$f":"IF($B445=\"Blank\",0,VLOOKUP($B445,Inputs!$C$68:$AK$129,MATCH($B446,Inputs!$C$68:$AK$68,0),FALSE))","v":0},{"$f":"IF($B445=\"Blank\",0,VLOOKUP($B445,Inputs!$C$68:$AK$129,MATCH($B446,Inputs!$C$68:$AK$68,0),FALSE))","v":0},null,null,{"$f":"B446","v":"Lamp UNIT price Annualised Cost"},{"$f":"IF(E446=\"NA\",\"\",E446/J$2*100)","v":0},{"$f":"IF(F446=\"NA\",\"\",F446/K$2*100)","v":0}]
[null,{"$f":"Inputs!$K$68","v":"PE Cell UNIT price Annualised Cost"},{"$f":"Inputs!$I$68","v":"PE Cell Maintenance Cycle"},null,{"$f":"IF($B445=\"Blank\",0,VLOOKUP($B445,Inputs!$C$68:$AK$129,MATCH($B447,Inputs!$C$68:$AK$68,0),FALSE))","v":0.3053707499112136},{"$f":"IF($B445=\"Blank\",0,VLOOKUP($B445,Inputs!$C$68:$AK$129,MATCH($B447,Inputs!$C$68:$AK$68,0),FALSE))","v":0.3053707499112136},null,null,"PE Cell UNIT price Annualised Cost",8.3663219153757157E-2,8.3663219153757157E-2]
[null,"Corp capex annuity per light",null,null,{"$f":"IF($B445=\"Blank\",0,'Corp Capex Annuity calcs'!F$109)","v":14.826870317655803},{"$f":"IF($B445=\"Blank\",0,'Corp Capex Annuity calcs'!G$109)","v":14.708895619806404},null,null,"Corp capex annuity per light",4.0621562514125493,4.0298344163853157]
[null,{"$f":"Inputs!$T$68","v":"Lamp Service costs Annualised"},null,null,{"$f":"IF($B445=\"Blank\",0,VLOOKUP($B445,Inputs!$C$68:$AK$129,MATCH($B449,Inputs!$C$68:$AK$68,0),FALSE))","v":0},{"$f":"IF($B445=\"Blank\",0,VLOOKUP($B445,Inputs!$C$68:$AK$129,MATCH($B449,Inputs!$C$68:$AK$68,0),FALSE))","v":0},null,null,"Lamp Service costs Annualised",0,0]
[null,{"$f":"Inputs!$M$68","v":"PE Cell Service costs Annualised"},null,null,{"$f":"IF($B445=\"Blank\",0,VLOOKUP($B445,Inputs!$C$68:$AK$129,MATCH($B450,Inputs!$C$68:$AK$68,0),FALSE))","v":6.5868429419336252},{"$f":"IF($B445=\"Blank\",0,VLOOKUP($B445,Inputs!$C$68:$AK$129,MATCH($B450,Inputs!$C$68:$AK$68,0),FALSE))","v":6.5868429419336252},null,null,"PE Cell Service costs Annualised",1.8046145046393494,1.8046145046393494]
[null,"Indirect Opex",null,null,{"$f":"IF($B445=\"Blank\",0,IF($B$8=\"Private Contract Lighting\",'Opex Weighting'!D$113,'Opex Weighting'!D$111))","v":13.654305575211096},{"$f":"IF($B445=\"Blank\",0,IF($B$8=\"Private Contract Lighting\",'Opex Weighting'!E$113,'Opex Weighting'!E$111))","v":13.545660760758196},null,null,"Indirect Opex",3.7409056370441354,3.7111399344543003]
[null,"Indirect Capex",null,null,{"$f":"IF($B446=\"Blank\",0,IF($B$8=\"Private Contract Lighting\",'Capex Weighting'!D$115,'Capex Weighting'!D$117))","v":0},{"$f":"IF($B446=\"Blank\",0,IF($B$8=\"Private Contract Lighting\",'Capex Weighting'!E$115,'Capex Weighting'!E$117))","v":0},null,null,"Indirect Capex",0,0]
[null,"Overhead Costs per light",null,null,{"$f":"IF($B445=\"Blank\",0,IF($B$8=\"Private Contract Lighting\",'Building Block'!C$49,'Building Block'!C$48))","v":11.222353166014571},{"$f":"IF($B445=\"Blank\",0,IF($B$8=\"Private Contract Lighting\",'Building Block'!D$49,'Building Block'!D$48))","v":11.512124256080179},null,null,"Overhead Costs per light",3.0746173057574167,3.1540066455014193]
[null,{"$f":"Inputs!$AH$68","v":"Bracket UNIT price"},0,null,"NA","NA",null,null,"Bracket UNIT price","",""]
[null,{"$f":"Inputs!$Y$68","v":"CAPEX Installation costs"},{"$f":"C454+1","v":1},null,"NA","NA",null,null,"CAPEX Installation costs","",""]
[null,{"$f":"Inputs!$X$68","v":"Luminaire UNIT price"},{"$f":"C455+1","v":2},null,"NA","NA",null,null,"Luminaire UNIT price","",""]
[null,{"$f":"Inputs!$Y$68","v":"CAPEX Installation costs"},3,null,"NA","NA",null,null,"CAPEX Installation costs","",""]
[null,null,null,null,{"$f":"SUM(E446:E457)","v":46.595742750726309},{"$f":"SUM(F446:F457)","v":46.658894328489616},null,null,null,{"$f":"ROUND(E458/J$2*100,3)","v":12.766},{"$f":"ROUND(F458/K$2*100,3)","v":12.782999999999999}]
[]
[{"$f":"A445+1","v":31},{"$f":"IFERROR(VLOOKUP($A460,Inputs!$B$68:$AK$129,MATCH($B$7,Inputs!$B$68:$AK$68,0),FALSE),\"Blank\")","v":"25W LED Decorative - Top Entry"},null,null,null,null,null,null,{"$f":"IFERROR(VLOOKUP($A460,Inputs!$B$68:$AK$129,MATCH($B$7,Inputs!$B$68:$AK$68,0),FALSE),\"Blank\")","v":"25W LED Decorative - Top Entry"}]
[null,{"$f":"Inputs!$R$68","v":"Lamp UNIT price Annualised Cost"},{"$f":"Inputs!$P$68","v":"Lamp Maintenance cycle"},null,{"$f":"IF($B460=\"Blank\",0,VLOOKUP($B460,Inputs!$C$68:$AK$129,MATCH($B461,Inputs!$C$68:$AK$68,0),FALSE))","v":0},{"$f":"IF($B460=\"Blank\",0,VLOOKUP($B460,Inputs!$C$68:$AK$129,MATCH($B461,Inputs!$C$68:$AK$68,0),FALSE))","v":0},null,null,{"$f":"B461","v":"Lamp UNIT price Annualised Cost"},{"$f":"IF(E461=\"NA\",\"\",E461/J$2*100)","v":0},{"$f":"IF(F461=\"NA\",\"\",F461/K$2*100)","v":0}]
[null,{"$f":"Inputs!$K$68","v":"PE Cell UNIT price Annualised Cost"},{"$f":"Inputs!$I$68","v":"PE Cell Maintenance Cycle"},null,{"$f":"IF($B460=\"Blank\",0,VLOOKUP($B460,Inputs!$C$68:$AK$129,MATCH($B462,Inputs!$C$68:$AK$68,0),FALSE))","v":0.3053707499112136},{"$f":"IF($B460=\"Blank\",0,VLOOKUP($B460,Inputs!$C$68:$AK$129,MATCH($B462,Inputs!$C$68:$AK$68,0),FALSE))","v":0.3053707499112136},null,null,"PE Cell UNIT price Annualised Cost",8.3663219153757157E-2,8.3663219153757157E-2]
[null,"Corp capex annuity per light",null,null,{"$f":"IF($B460=\"Blank\",0,'Corp Capex Annuity calcs'!F$109)","v":14.826870317655803},{"$f":"IF($B460=\"Blank\",0,'Corp Capex Annuity calcs'!G$109)","v":14.708895619806404},null,null,"Corp capex annuity per light",4.0621562514125493,4.0298344163853157]
[null,{"$f":"Inputs!$T$68","v":"Lamp Service costs Annualised"},null,null,{"$f":"IF($B460=\"Blank\",0,VLOOKUP($B460,Inputs!$C$68:$AK$129,MATCH($B464,Inputs!$C$68:$AK$68,0),FALSE))","v":0},{"$f":"IF($B460=\"Blank\",0,VLOOKUP($B460,Inputs!$C$68:$AK$129,MATCH($B464,Inputs!$C$68:$AK$68,0),FALSE))","v":0},null,null,"Lamp Service costs Annualised",0,0]
[null,{"$f":"Inputs!$M$68","v":"PE Cell Service costs Annualised"},null,null,{"$f":"IF($B460=\"Blank\",0,VLOOKUP($B460,Inputs!$C$68:$AK$129,MATCH($B465,Inputs!$C$68:$AK$68,0),FALSE))","v":6.5868429419336252},{"$f":"IF($B460=\"Blank\",0,VLOOKUP($B460,Inputs!$C$68:$AK$129,MATCH($B465,Inputs!$C$68:$AK$68,0),FALSE))","v":6.5868429419336252},null,null,"PE Cell Service costs Annualised",1.8046145046393494,1.8046145046393494]
[null,"Indirect Opex",null,null,{"$f":"IF($B460=\"Blank\",0,IF($B$8=\"Private Contract Lighting\",'Opex Weighting'!D$113,'Opex Weighting'!D$111))","v":13.654305575211096},{"$f":"IF($B460=\"Blank\",0,IF($B$8=\"Private Contract Lighting\",'Opex Weighting'!E$113,'Opex Weighting'!E$111))","v":13.545660760758196},null,null,"Indirect Opex",3.7409056370441354,3.7111399344543003]
[null,"Indirect Capex",null,null,{"$f":"IF($B461=\"Blank\",0,IF($B$8=\"Private Contract Lighting\",'Capex Weighting'!D$115,'Capex Weighting'!D$117))","v":0},{"$f":"IF($B461=\"Blank\",0,IF($B$8=\"Private Contract Lighting\",'Capex Weighting'!E$115,'Capex Weighting'!E$117))","v":0},null,null,"Indirect Capex",0,0]
[null,"Overhead Costs per light",null,null,{"$f":"IF($B460=\"Blank\",0,IF($B$8=\"Private Contract Lighting\",'Building Block'!C$49,'Building Block'!C$48))","v":11.222353166014571},{"$f":"IF($B460=\"Blank\",0,IF($B$8=\"Private Contract Lighting\",'Building Block'!D$49,'Building Block'!D$48))","v":11.512124256080179},null,null,"Overhead Costs per light",3.0746173057574167,3.1540066455014193]
[null,{"$f":"Inputs!$AH$68","v":"Bracket UNIT price"},0,null,"NA","NA",null,null,"Bracket UNIT price","",""]
[null,{"$f":"Inputs!$Y$68","v":"CAPEX Installation costs"},{"$f":"C469+1","v":1},null,"NA","NA",null,null,"CAPEX Installation costs","",""]
[null,{"$f":"Inputs!$X$68","v":"Luminaire UNIT price"},{"$f":"C470+1","v":2},null,"NA","NA",null,null,"Luminaire UNIT price","",""]
[null,{"$f":"Inputs!$Y$68","v":"CAPEX Installation costs"},3,null,"NA","NA",null,null,"CAPEX Installation costs","",""]
[null,null,null,null,{"$f":"SUM(E461:E472)","v":46.595742750726309},{"$f":"SUM(F461:F472)","v":46.658894328489616},null,null,null,{"$f":"ROUND(E473/J$2*100,3)","v":12.766},{"$f":"ROUND(F473/K$2*100,3)","v":12.782999999999999}]
[]
[{"$f":"A460+1","v":32},{"$f":"IFERROR(VLOOKUP($A475,Inputs!$B$68:$AK$129,MATCH($B$7,Inputs!$B$68:$AK$68,0),FALSE),\"Blank\")","v":"30W LED"},null,null,null,null,null,null,{"$f":"IFERROR(VLOOKUP($A475,Inputs!$B$68:$AK$129,MATCH($B$7,Inputs!$B$68:$AK$68,0),FALSE),\"Blank\")","v":"30W LED"}]
[null,{"$f":"Inputs!$R$68","v":"Lamp UNIT price Annualised Cost"},{"$f":"Inputs!$P$68","v":"Lamp Maintenance cycle"},null,{"$f":"IF($B475=\"Blank\",0,VLOOKUP($B475,Inputs!$C$68:$AK$129,MATCH($B476,Inputs!$C$68:$AK$68,0),FALSE))","v":0},{"$f":"IF($B475=\"Blank\",0,VLOOKUP($B475,Inputs!$C$68:$AK$129,MATCH($B476,Inputs!$C$68:$AK$68,0),FALSE))","v":0},null,null,{"$f":"B476","v":"Lamp UNIT price Annualised Cost"},{"$f":"IF(E476=\"NA\",\"\",E476/J$2*100)","v":0},{"$f":"IF(F476=\"NA\",\"\",F476/K$2*100)","v":0}]
[null,{"$f":"Inputs!$K$68","v":"PE Cell UNIT price Annualised Cost"},{"$f":"Inputs!$I$68","v":"PE Cell Maintenance Cycle"},null,{"$f":"IF($B475=\"Blank\",0,VLOOKUP($B475,Inputs!$C$68:$AK$129,MATCH($B477,Inputs!$C$68:$AK$68,0),FALSE))","v":0.3053707499112136},{"$f":"IF($B475=\"Blank\",0,VLOOKUP($B475,Inputs!$C$68:$AK$129,MATCH($B477,Inputs!$C$68:$AK$68,0),FALSE))","v":0.3053707499112136},null,null,"PE Cell UNIT price Annualised Cost",8.3663219153757157E-2,8.3663219153757157E-2]
[null,"Corp capex annuity per light",null,null,{"$f":"IF($B475=\"Blank\",0,'Corp Capex Annuity calcs'!F$109)","v":14.826870317655803},{"$f":"IF($B475=\"Blank\",0,'Corp Capex Annuity calcs'!G$109)","v":14.708895619806404},null,null,"Corp capex annuity per light",4.0621562514125493,4.0298344163853157]
[null,{"$f":"Inputs!$T$68","v":"Lamp Service costs Annualised"},null,null,{"$f":"IF($B475=\"Blank\",0,VLOOKUP($B475,Inputs!$C$68:$AK$129,MATCH($B479,Inputs!$C$68:$AK$68,0),FALSE))","v":0},{"$f":"IF($B475=\"Blank\",0,VLOOKUP($B475,Inputs!$C$68:$AK$129,MATCH($B479,Inputs!$C$68:$AK$68,0),FALSE))","v":0},null,null,"Lamp Service costs Annualised",0,0]
[null,{"$f":"Inputs!$M$68","v":"PE Cell Service costs Annualised"},null,null,{"$f":"IF($B475=\"Blank\",0,VLOOKUP($B475,Inputs!$C$68:$AK$129,MATCH($B480,Inputs!$C$68:$AK$68,0),FALSE))","v":6.5868429419336252},{"$f":"IF($B475=\"Blank\",0,VLOOKUP($B475,Inputs!$C$68:$AK$129,MATCH($B480,Inputs!$C$68:$AK$68,0),FALSE))","v":6.5868429419336252},null,null,"PE Cell Service costs Annualised",1.8046145046393494,1.8046145046393494]
[null,"Indirect Opex",null,null,{"$f":"IF($B475=\"Blank\",0,IF($B$8=\"Private Contract Lighting\",'Opex Weighting'!D$113,'Opex Weighting'!D$111))","v":13.654305575211096},{"$f":"IF($B475=\"Blank\",0,IF($B$8=\"Private Contract Lighting\",'Opex Weighting'!E$113,'Opex Weighting'!E$111))","v":13.545660760758196},null,null,"Indirect Opex",3.7409056370441354,3.7111399344543003]
[null,"Indirect Capex",null,null,{"$f":"IF($B476=\"Blank\",0,IF($B$8=\"Private Contract Lighting\",'Capex Weighting'!D$115,'Capex Weighting'!D$117))","v":0},{"$f":"IF($B476=\"Blank\",0,IF($B$8=\"Private Contract Lighting\",'Capex Weighting'!E$115,'Capex Weighting'!E$117))","v":0},null,null,"Indirect Capex",0,0]
[null,"Overhead Costs per light",null,null,{"$f":"IF($B475=\"Blank\",0,IF($B$8=\"Private Contract Lighting\",'Building Block'!C$49,'Building Block'!C$48))","v":11.222353166014571},{"$f":"IF($B475=\"Blank\",0,IF($B$8=\"Private Contract Lighting\",'Building Block'!D$49,'Building Block'!D$48))","v":11.512124256080179},null,null,"Overhead Costs per light",3.0746173057574167,3.1540066455014193]
[null,{"$f":"Inputs!$AH$68","v":"Bracket UNIT price"},0,null,"NA","NA",null,null,"Bracket UNIT price","",""]
[null,{"$f":"Inputs!$Y$68","v":"CAPEX Installation costs"},{"$f":"C484+1","v":1},null,"NA","NA",null,null,"CAPEX Installation costs","",""]
[null,{"$f":"Inputs!$X$68","v":"Luminaire UNIT price"},{"$f":"C485+1","v":2},null,"NA","NA",null,null,"Luminaire UNIT price","",""]
[null,{"$f":"Inputs!$Y$68","v":"CAPEX Installation costs"},3,null,"NA","NA",null,null,"CAPEX Installation costs","",""]
[null,null,null,null,{"$f":"SUM(E476:E487)","v":46.595742750726309},{"$f":"SUM(F476:F487)","v":46.658894328489616},null,null,null,{"$f":"ROUND(E488/J$2*100,3)","v":12.766},{"$f":"ROUND(F488/K$2*100,3)","v":12.782999999999999}]
[]
[{"$f":"A475+1","v":33},{"$f":"IFERROR(VLOOKUP($A490,Inputs!$B$68:$AK$129,MATCH($B$7,Inputs!$B$68:$AK$68,0),FALSE),\"Blank\")","v":"88 LED Light"},null,null,null,null,null,null,{"$f":"IFERROR(VLOOKUP($A490,Inputs!$B$68:$AK$129,MATCH($B$7,Inputs!$B$68:$AK$68,0),FALSE),\"Blank\")","v":"88 LED Light"}]
[null,{"$f":"Inputs!$R$68","v":"Lamp UNIT price Annualised Cost"},{"$f":"Inputs!$P$68","v":"Lamp Maintenance cycle"},null,{"$f":"IF($B490=\"Blank\",0,VLOOKUP($B490,Inputs!$C$68:$AK$129,MATCH($B491,Inputs!$C$68:$AK$68,0),FALSE))","v":0},{"$f":"IF($B490=\"Blank\",0,VLOOKUP($B490,Inputs!$C$68:$AK$129,MATCH($B491,Inputs!$C$68:$AK$68,0),FALSE))","v":0},null,null,{"$f":"B491","v":"Lamp UNIT price Annualised Cost"},{"$f":"IF(E491=\"NA\",\"\",E491/J$2*100)","v":0},{"$f":"IF(F491=\"NA\",\"\",F491/K$2*100)","v":0}]
[null,{"$f":"Inputs!$K$68","v":"PE Cell UNIT price Annualised Cost"},{"$f":"Inputs!$I$68","v":"PE Cell Maintenance Cycle"},null,{"$f":"IF($B490=\"Blank\",0,VLOOKUP($B490,Inputs!$C$68:$AK$129,MATCH($B492,Inputs!$C$68:$AK$68,0),FALSE))","v":0.3053707499112136},{"$f":"IF($B490=\"Blank\",0,VLOOKUP($B490,Inputs!$C$68:$AK$129,MATCH($B492,Inputs!$C$68:$AK$68,0),FALSE))","v":0.3053707499112136},null,null,"PE Cell UNIT price Annualised Cost",8.3663219153757157E-2,8.3663219153757157E-2]
[null,"Corp capex annuity per light",null,null,{"$f":"IF($B490=\"Blank\",0,'Corp Capex Annuity calcs'!F$109)","v":14.826870317655803},{"$f":"IF($B490=\"Blank\",0,'Corp Capex Annuity calcs'!G$109)","v":14.708895619806404},null,null,"Corp capex annuity per light",4.0621562514125493,4.0298344163853157]
[null,{"$f":"Inputs!$T$68","v":"Lamp Service costs Annualised"},null,null,{"$f":"IF($B490=\"Blank\",0,VLOOKUP($B490,Inputs!$C$68:$AK$129,MATCH($B494,Inputs!$C$68:$AK$68,0),FALSE))","v":0},{"$f":"IF($B490=\"Blank\",0,VLOOKUP($B490,Inputs!$C$68:$AK$129,MATCH($B494,Inputs!$C$68:$AK$68,0),FALSE))","v":0},null,null,"Lamp Service costs Annualised",0,0]
[null,{"$f":"Inputs!$M$68","v":"PE Cell Service costs Annualised"},null,null,{"$f":"IF($B490=\"Blank\",0,VLOOKUP($B490,Inputs!$C$68:$AK$129,MATCH($B495,Inputs!$C$68:$AK$68,0),FALSE))","v":6.5868429419336252},{"$f":"IF($B490=\"Blank\",0,VLOOKUP($B490,Inputs!$C$68:$AK$129,MATCH($B495,Inputs!$C$68:$AK$68,0),FALSE))","v":6.5868429419336252},null,null,"PE Cell Service costs Annualised",1.8046145046393494,1.8046145046393494]
[null,"Indirect Opex",null,null,{"$f":"IF($B490=\"Blank\",0,IF($B$8=\"Private Contract Lighting\",'Opex Weighting'!D$113,'Opex Weighting'!D$111))","v":13.654305575211096},{"$f":"IF($B490=\"Blank\",0,IF($B$8=\"Private Contract Lighting\",'Opex Weighting'!E$113,'Opex Weighting'!E$111))","v":13.545660760758196},null,null,"Indirect Opex",3.7409056370441354,3.7111399344543003]
[null,"Indirect Capex",null,null,{"$f":"IF($B491=\"Blank\",0,IF($B$8=\"Private Contract Lighting\",'Capex Weighting'!D$115,'Capex Weighting'!D$117))","v":0},{"$f":"IF($B491=\"Blank\",0,IF($B$8=\"Private Contract Lighting\",'Capex Weighting'!E$115,'Capex Weighting'!E$117))","v":0},null,null,"Indirect Capex",0,0]
[null,"Overhead Costs per light",null,null,{"$f":"IF($B490=\"Blank\",0,IF($B$8=\"Private Contract Lighting\",'Building Block'!C$49,'Building Block'!C$48))","v":11.222353166014571},{"$f":"IF($B490=\"Blank\",0,IF($B$8=\"Private Contract Lighting\",'Building Block'!D$49,'Building Block'!D$48))","v":11.512124256080179},null,null,"Overhead Costs per light",3.0746173057574167,3.1540066455014193]
[null,{"$f":"Inputs!$AH$68","v":"Bracket UNIT price"},0,null,"NA","NA",null,null,"Bracket UNIT price","",""]
[null,{"$f":"Inputs!$Y$68","v":"CAPEX Installation costs"},{"$f":"C499+1","v":1},null,"NA","NA",null,null,"CAPEX Installation costs","",""]
[null,{"$f":"Inputs!$X$68","v":"Luminaire UNIT price"},{"$f":"C500+1","v":2},null,"NA","NA",null,null,"Luminaire UNIT price","",""]
[null,{"$f":"Inputs!$Y$68","v":"CAPEX Installation costs"},3,null,"NA","NA",null,null,"CAPEX Installation costs","",""]
[null,null,null,null,{"$f":"SUM(E491:E502)","v":46.595742750726309},{"$f":"SUM(F491:F502)","v":46.658894328489616},null,null,null,{"$f":"ROUND(E503/J$2*100,3)","v":12.766},{"$f":"ROUND(F503/K$2*100,3)","v":12.782999999999999}]
[]
[{"$f":"A490+1","v":34},{"$f":"IFERROR(VLOOKUP($A505,Inputs!$B$68:$AK$129,MATCH($B$7,Inputs!$B$68:$AK$68,0),FALSE),\"Blank\")","v":"100W Metal Halide"},null,null,null,null,null,null,{"$f":"IFERROR(VLOOKUP($A505,Inputs!$B$68:$AK$129,MATCH($B$7,Inputs!$B$68:$AK$68,0),FALSE),\"Blank\")","v":"100W Metal Halide"}]
[null,{"$f":"Inputs!$R$68","v":"Lamp UNIT price Annualised Cost"},{"$f":"Inputs!$P$68","v":"Lamp Maintenance cycle"},null,{"$f":"IF($B505=\"Blank\",0,VLOOKUP($B505,Inputs!$C$68:$AK$129,MATCH($B506,Inputs!$C$68:$AK$68,0),FALSE))","v":3.6415782911199996},{"$f":"IF($B505=\"Blank\",0,VLOOKUP($B505,Inputs!$C$68:$AK$129,MATCH($B506,Inputs!$C$68:$AK$68,0),FALSE))","v":3.6415782911199996},null,null,{"$f":"B506","v":"Lamp UNIT price Annualised Cost"},{"$f":"IF(E506=\"NA\",\"\",E506/J$2*100)","v":0.99769268249863008},{"$f":"IF(F506=\"NA\",\"\",F506/K$2*100)","v":0.99769268249863008}]
[null,{"$f":"Inputs!$K$68","v":"PE Cell UNIT price Annualised Cost"},{"$f":"Inputs!$I$68","v":"PE Cell Maintenance Cycle"},null,{"$f":"IF($B505=\"Blank\",0,VLOOKUP($B505,Inputs!$C$68:$AK$129,MATCH($B507,Inputs!$C$68:$AK$68,0),FALSE))","v":1.7788104971099301},{"$f":"IF($B505=\"Blank\",0,VLOOKUP($B505,Inputs!$C$68:$AK$129,MATCH($B507,Inputs!$C$68:$AK$68,0),FALSE))","v":1.7788104971099301},null,null,"PE Cell UNIT price Annualised Cost",0.48734534167395344,0.48734534167395344]
[null,"Corp capex annuity per light",null,null,{"$f":"IF($B505=\"Blank\",0,'Corp Capex Annuity calcs'!F$109)","v":14.826870317655803},{"$f":"IF($B505=\"Blank\",0,'Corp Capex Annuity calcs'!G$109)","v":14.708895619806404},null,null,"Corp capex annuity per light",4.0621562514125493,4.0298344163853157]
[null,{"$f":"Inputs!$T$68","v":"Lamp Service costs Annualised"},null,null,{"$f":"IF($B505=\"Blank\",0,VLOOKUP($B505,Inputs!$C$68:$AK$129,MATCH($B509,Inputs!$C$68:$AK$68,0),FALSE))","v":38.134353874352563},{"$f":"IF($B505=\"Blank\",0,VLOOKUP($B505,Inputs!$C$68:$AK$129,MATCH($B509,Inputs!$C$68:$AK$68,0),FALSE))","v":38.134353874352563},null,null,"Lamp Service costs Annualised",10.447768184754127,10.447768184754127]
[null,{"$f":"Inputs!$M$68","v":"PE Cell Service costs Annualised"},null,null,{"$f":"IF($B505=\"Blank\",0,VLOOKUP($B505,Inputs!$C$68:$AK$129,MATCH($B510,Inputs!$C$68:$AK$68,0),FALSE))","v":0},{"$f":"IF($B505=\"Blank\",0,VLOOKUP($B505,Inputs!$C$68:$AK$129,MATCH($B510,Inputs!$C$68:$AK$68,0),FALSE))","v":0},null,null,"PE Cell Service costs Annualised",0,0]
[null,"Indirect Opex",null,null,{"$f":"IF($B505=\"Blank\",0,IF($B$8=\"Private Contract Lighting\",'Opex Weighting'!D$113,'Opex Weighting'!D$111))","v":13.654305575211096},{"$f":"IF($B505=\"Blank\",0,IF($B$8=\"Private Contract Lighting\",'Opex Weighting'!E$113,'Opex Weighting'!E$111))","v":13.545660760758196},null,null,"Indirect Opex",3.7409056370441354,3.7111399344543003]
[null,"Indirect Capex",null,null,{"$f":"IF($B506=\"Blank\",0,IF($B$8=\"Private Contract Lighting\",'Capex Weighting'!D$115,'Capex Weighting'!D$117))","v":0},{"$f":"IF($B506=\"Blank\",0,IF($B$8=\"Private Contract Lighting\",'Capex Weighting'!E$115,'Capex Weighting'!E$117))","v":0},null,null,"Indirect Capex",0,0]
[null,"Overhead Costs per light",null,null,{"$f":"IF($B505=\"Blank\",0,IF($B$8=\"Private Contract Lighting\",'Building Block'!C$49,'Building Block'!C$48))","v":11.222353166014571},{"$f":"IF($B505=\"Blank\",0,IF($B$8=\"Private Contract Lighting\",'Building Block'!D$49,'Building Block'!D$48))","v":11.512124256080179},null,null,"Overhead Costs per light",3.0746173057574167,3.1540066455014193]
[null,{"$f":"Inputs!$AH$68","v":"Bracket UNIT price"},0,null,"NA","NA",null,null,"Bracket UNIT price","",""]
[null,{"$f":"Inputs!$Y$68","v":"CAPEX Installation costs"},{"$f":"C514+1","v":1},null,"NA","NA",null,null,"CAPEX Installation costs","",""]
[null,{"$f":"Inputs!$X$68","v":"Luminaire UNIT price"},{"$f":"C515+1","v":2},null,"NA","NA",null,null,"Luminaire UNIT price","",""]
[null,{"$f":"Inputs!$Y$68","v":"CAPEX Installation costs"},3,null,"NA","NA",null,null,"CAPEX Installation costs","",""]
[null,null,null,null,{"$f":"SUM(E506:E517)","v":83.258271721463956},{"$f":"SUM(F506:F517)","v":83.321423299227277},null,null,null,{"$f":"ROUND(E518/J$2*100,3)","v":22.81},{"$f":"ROUND(F518/K$2*100,3)","v":22.827999999999999}]
[]
[{"$f":"A505+1","v":35},{"$f":"IFERROR(VLOOKUP($A520,Inputs!$B$68:$AK$129,MATCH($B$7,Inputs!$B$68:$AK$68,0),FALSE),\"Blank\")","v":"150W Metal Halide"},null,null,null,null,null,null,{"$f":"IFERROR(VLOOKUP($A520,Inputs!$B$68:$AK$129,MATCH($B$7,Inputs!$B$68:$AK$68,0),FALSE),\"Blank\")","v":"150W Metal Halide"}]
[null,{"$f":"Inputs!$R$68","v":"Lamp UNIT price Annualised Cost"},{"$f":"Inputs!$P$68","v":"Lamp Maintenance cycle"},null,{"$f":"IF($B520=\"Blank\",0,VLOOKUP($B520,Inputs!$C$68:$AK$129,MATCH($B521,Inputs!$C$68:$AK$68,0),FALSE))","v":4.1438966180000003},{"$f":"IF($B520=\"Blank\",0,VLOOKUP($B520,Inputs!$C$68:$AK$129,MATCH($B521,Inputs!$C$68:$AK$68,0),FALSE))","v":4.1438966180000003},null,null,{"$f":"B521","v":"Lamp UNIT price Annualised Cost"},{"$f":"IF(E521=\"NA\",\"\",E521/J$2*100)","v":1.1353141419178083},{"$f":"IF(F521=\"NA\",\"\",F521/K$2*100)","v":1.1353141419178083}]
[null,{"$f":"Inputs!$K$68","v":"PE Cell UNIT price Annualised Cost"},{"$f":"Inputs!$I$68","v":"PE Cell Maintenance Cycle"},null,{"$f":"IF($B520=\"Blank\",0,VLOOKUP($B520,Inputs!$C$68:$AK$129,MATCH($B522,Inputs!$C$68:$AK$68,0),FALSE))","v":1.7788104971099301},{"$f":"IF($B520=\"Blank\",0,VLOOKUP($B520,Inputs!$C$68:$AK$129,MATCH($B522,Inputs!$C$68:$AK$68,0),FALSE))","v":1.7788104971099301},null,null,"PE Cell UNIT price Annualised Cost",0.48734534167395344,0.48734534167395344]
[null,"Corp capex annuity per light",null,null,{"$f":"IF($B520=\"Blank\",0,'Corp Capex Annuity calcs'!F$109)","v":14.826870317655803},{"$f":"IF($B520=\"Blank\",0,'Corp Capex Annuity calcs'!G$109)","v":14.708895619806404},null,null,"Corp capex annuity per light",4.0621562514125493,4.0298344163853157]
[null,{"$f":"Inputs!$T$68","v":"Lamp Service costs Annualised"},null,null,{"$f":"IF($B520=\"Blank\",0,VLOOKUP($B520,Inputs!$C$68:$AK$129,MATCH($B524,Inputs!$C$68:$AK$68,0),FALSE))","v":38.134353874352563},{"$f":"IF($B520=\"Blank\",0,VLOOKUP($B520,Inputs!$C$68:$AK$129,MATCH($B524,Inputs!$C$68:$AK$68,0),FALSE))","v":38.134353874352563},null,null,"Lamp Service costs Annualised",10.447768184754127,10.447768184754127]
[null,{"$f":"Inputs!$M$68","v":"PE Cell Service costs Annualised"},null,null,{"$f":"IF($B520=\"Blank\",0,VLOOKUP($B520,Inputs!$C$68:$AK$129,MATCH($B525,Inputs!$C$68:$AK$68,0),FALSE))","v":0},{"$f":"IF($B520=\"Blank\",0,VLOOKUP($B520,Inputs!$C$68:$AK$129,MATCH($B525,Inputs!$C$68:$AK$68,0),FALSE))","v":0},null,null,"PE Cell Service costs Annualised",0,0]
[null,"Indirect Opex",null,null,{"$f":"IF($B520=\"Blank\",0,IF($B$8=\"Private Contract Lighting\",'Opex Weighting'!D$113,'Opex Weighting'!D$111))","v":13.654305575211096},{"$f":"IF($B520=\"Blank\",0,IF($B$8=\"Private Contract Lighting\",'Opex Weighting'!E$113,'Opex Weighting'!E$111))","v":13.545660760758196},null,null,"Indirect Opex",3.7409056370441354,3.7111399344543003]
[null,"Indirect Capex",null,null,{"$f":"IF($B521=\"Blank\",0,IF($B$8=\"Private Contract Lighting\",'Capex Weighting'!D$115,'Capex Weighting'!D$117))","v":0},{"$f":"IF($B521=\"Blank\",0,IF($B$8=\"Private Contract Lighting\",'Capex Weighting'!E$115,'Capex Weighting'!E$117))","v":0},null,null,"Indirect Capex",0,0]
[null,"Overhead Costs per light",null,null,{"$f":"IF($B520=\"Blank\",0,IF($B$8=\"Private Contract Lighting\",'Building Block'!C$49,'Building Block'!C$48))","v":11.222353166014571},{"$f":"IF($B520=\"Blank\",0,IF($B$8=\"Private Contract Lighting\",'Building Block'!D$49,'Building Block'!D$48))","v":11.512124256080179},null,null,"Overhead Costs per light",3.0746173057574167,3.1540066455014193]
[null,{"$f":"Inputs!$AH$68","v":"Bracket UNIT price"},0,null,"NA","NA",null,null,"Bracket UNIT price","",""]
[null,{"$f":"Inputs!$Y$68","v":"CAPEX Installation costs"},{"$f":"C529+1","v":1},null,"NA","NA",null,null,"CAPEX Installation costs","",""]
[null,{"$f":"Inputs!$X$68","v":"Luminaire UNIT price"},{"$f":"C530+1","v":2},null,"NA","NA",null,null,"Luminaire UNIT price","",""]
[null,{"$f":"Inputs!$Y$68","v":"CAPEX Installation costs"},3,null,"NA","NA",null,null,"CAPEX Installation costs","",""]
[null,null,null,null,{"$f":"SUM(E521:E532)","v":83.760590048343957},{"$f":"SUM(F521:F532)","v":83.823741626107278},null,null,null,{"$f":"ROUND(E533/J$2*100,3)","v":22.948},{"$f":"ROUND(F533/K$2*100,3)","v":22.965}]
[]
[{"$f":"A520+1","v":36},{"$f":"IFERROR(VLOOKUP($A535,Inputs!$B$68:$AK$129,MATCH($B$7,Inputs!$B$68:$AK$68,0),FALSE),\"Blank\")","v":"250W Metal Halide"},null,null,null,null,null,null,{"$f":"IFERROR(VLOOKUP($A535,Inputs!$B$68:$AK$129,MATCH($B$7,Inputs!$B$68:$AK$68,0),FALSE),\"Blank\")","v":"250W Metal Halide"}]
[null,{"$f":"Inputs!$R$68","v":"Lamp UNIT price Annualised Cost"},{"$f":"Inputs!$P$68","v":"Lamp Maintenance cycle"},null,{"$f":"IF($B535=\"Blank\",0,VLOOKUP($B535,Inputs!$C$68:$AK$129,MATCH($B536,Inputs!$C$68:$AK$68,0),FALSE))","v":4.1438966180000003},{"$f":"IF($B535=\"Blank\",0,VLOOKUP($B535,Inputs!$C$68:$AK$129,MATCH($B536,Inputs!$C$68:$AK$68,0),FALSE))","v":4.1438966180000003},null,null,{"$f":"B536","v":"Lamp UNIT price Annualised Cost"},{"$f":"IF(E536=\"NA\",\"\",E536/J$2*100)","v":1.1353141419178083},{"$f":"IF(F536=\"NA\",\"\",F536/K$2*100)","v":1.1353141419178083}]
[null,{"$f":"Inputs!$K$68","v":"PE Cell UNIT price Annualised Cost"},{"$f":"Inputs!$I$68","v":"PE Cell Maintenance Cycle"},null,{"$f":"IF($B535=\"Blank\",0,VLOOKUP($B535,Inputs!$C$68:$AK$129,MATCH($B537,Inputs!$C$68:$AK$68,0),FALSE))","v":1.7788104971099301},{"$f":"IF($B535=\"Blank\",0,VLOOKUP($B535,Inputs!$C$68:$AK$129,MATCH($B537,Inputs!$C$68:$AK$68,0),FALSE))","v":1.7788104971099301},null,null,"PE Cell UNIT price Annualised Cost",0.48734534167395344,0.48734534167395344]
[null,"Corp capex annuity per light",null,null,{"$f":"IF($B535=\"Blank\",0,'Corp Capex Annuity calcs'!F$109)","v":14.826870317655803},{"$f":"IF($B535=\"Blank\",0,'Corp Capex Annuity calcs'!G$109)","v":14.708895619806404},null,null,"Corp capex annuity per light",4.0621562514125493,4.0298344163853157]
[null,{"$f":"Inputs!$T$68","v":"Lamp Service costs Annualised"},null,null,{"$f":"IF($B535=\"Blank\",0,VLOOKUP($B535,Inputs!$C$68:$AK$129,MATCH($B539,Inputs!$C$68:$AK$68,0),FALSE))","v":38.134353874352563},{"$f":"IF($B535=\"Blank\",0,VLOOKUP($B535,Inputs!$C$68:$AK$129,MATCH($B539,Inputs!$C$68:$AK$68,0),FALSE))","v":38.134353874352563},null,null,"Lamp Service costs Annualised",10.447768184754127,10.447768184754127]
[null,{"$f":"Inputs!$M$68","v":"PE Cell Service costs Annualised"},null,null,{"$f":"IF($B535=\"Blank\",0,VLOOKUP($B535,Inputs!$C$68:$AK$129,MATCH($B540,Inputs!$C$68:$AK$68,0),FALSE))","v":0},{"$f":"IF($B535=\"Blank\",0,VLOOKUP($B535,Inputs!$C$68:$AK$129,MATCH($B540,Inputs!$C$68:$AK$68,0),FALSE))","v":0},null,null,"PE Cell Service costs Annualised",0,0]
[null,"Indirect Opex",null,null,{"$f":"IF($B535=\"Blank\",0,IF($B$8=\"Private Contract Lighting\",'Opex Weighting'!D$113,'Opex Weighting'!D$111))","v":13.654305575211096},{"$f":"IF($B535=\"Blank\",0,IF($B$8=\"Private Contract Lighting\",'Opex Weighting'!E$113,'Opex Weighting'!E$111))","v":13.545660760758196},null,null,"Indirect Opex",3.7409056370441354,3.7111399344543003]
[null,"Indirect Capex",null,null,{"$f":"IF($B536=\"Blank\",0,IF($B$8=\"Private Contract Lighting\",'Capex Weighting'!D$115,'Capex Weighting'!D$117))","v":0},{"$f":"IF($B536=\"Blank\",0,IF($B$8=\"Private Contract Lighting\",'Capex Weighting'!E$115,'Capex Weighting'!E$117))","v":0},null,null,"Indirect Capex",0,0]
[null,"Overhead Costs per light",null,null,{"$f":"IF($B535=\"Blank\",0,IF($B$8=\"Private Contract Lighting\",'Building Block'!C$49,'Building Block'!C$48))","v":11.222353166014571},{"$f":"IF($B535=\"Blank\",0,IF($B$8=\"Private Contract Lighting\",'Building Block'!D$49,'Building Block'!D$48))","v":11.512124256080179},null,null,"Overhead Costs per light",3.0746173057574167,3.1540066455014193]
[null,{"$f":"Inputs!$AH$68","v":"Bracket UNIT price"},0,null,"NA","NA",null,null,"Bracket UNIT price","",""]
[null,{"$f":"Inputs!$Y$68","v":"CAPEX Installation costs"},{"$f":"C544+1","v":1},null,"NA","NA",null,null,"CAPEX Installation costs","",""]
[null,{"$f":"Inputs!$X$68","v":"Luminaire UNIT price"},{"$f":"C545+1","v":2},null,"NA","NA",null,null,"Luminaire UNIT price","",""]
[null,{"$f":"Inputs!$Y$68","v":"CAPEX Installation costs"},3,null,"NA","NA",null,null,"CAPEX Installation costs","",""]
[null,null,null,null,{"$f":"SUM(E536:E547)","v":83.760590048343957},{"$f":"SUM(F536:F547)","v":83.823741626107278},null,null,null,{"$f":"ROUND(E548/J$2*100,3)","v":22.948},{"$f":"ROUND(F548/K$2*100,3)","v":22.965}]
[]
[{"$f":"A535+1","v":37},{"$f":"IFERROR(VLOOKUP($A550,Inputs!$B$68:$AK$129,MATCH($B$7,Inputs!$B$68:$AK$68,0),FALSE),\"Blank\")","v":"400W Metal Halide"},null,null,null,null,null,null,{"$f":"IFERROR(VLOOKUP($A550,Inputs!$B$68:$AK$129,MATCH($B$7,Inputs!$B$68:$AK$68,0),FALSE),\"Blank\")","v":"400W Metal Halide"}]
[null,{"$f":"Inputs!$R$68","v":"Lamp UNIT price Annualised Cost"},{"$f":"Inputs!$P$68","v":"Lamp Maintenance cycle"},null,{"$f":"IF($B550=\"Blank\",0,VLOOKUP($B550,Inputs!$C$68:$AK$129,MATCH($B551,Inputs!$C$68:$AK$68,0),FALSE))","v":6.5429946599999997},{"$f":"IF($B550=\"Blank\",0,VLOOKUP($B550,Inputs!$C$68:$AK$129,MATCH($B551,Inputs!$C$68:$AK$68,0),FALSE))","v":6.5429946599999997},null,null,{"$f":"B551","v":"Lamp UNIT price Annualised Cost"},{"$f":"IF(E551=\"NA\",\"\",E551/J$2*100)","v":1.7926012767123287},{"$f":"IF(F551=\"NA\",\"\",F551/K$2*100)","v":1.7926012767123287}]
[null,{"$f":"Inputs!$K$68","v":"PE Cell UNIT price Annualised Cost"},{"$f":"Inputs!$I$68","v":"PE Cell Maintenance Cycle"},null,{"$f":"IF($B550=\"Blank\",0,VLOOKUP($B550,Inputs!$C$68:$AK$129,MATCH($B552,Inputs!$C$68:$AK$68,0),FALSE))","v":1.7788104971099301},{"$f":"IF($B550=\"Blank\",0,VLOOKUP($B550,Inputs!$C$68:$AK$129,MATCH($B552,Inputs!$C$68:$AK$68,0),FALSE))","v":1.7788104971099301},null,null,"PE Cell UNIT price Annualised Cost",0.48734534167395344,0.48734534167395344]
[null,"Corp capex annuity per light",null,null,{"$f":"IF($B550=\"Blank\",0,'Corp Capex Annuity calcs'!F$109)","v":14.826870317655803},{"$f":"IF($B550=\"Blank\",0,'Corp Capex Annuity calcs'!G$109)","v":14.708895619806404},null,null,"Corp capex annuity per light",4.0621562514125493,4.0298344163853157]
[null,{"$f":"Inputs!$T$68","v":"Lamp Service costs Annualised"},null,null,{"$f":"IF($B550=\"Blank\",0,VLOOKUP($B550,Inputs!$C$68:$AK$129,MATCH($B554,Inputs!$C$68:$AK$68,0),FALSE))","v":38.134353874352563},{"$f":"IF($B550=\"Blank\",0,VLOOKUP($B550,Inputs!$C$68:$AK$129,MATCH($B554,Inputs!$C$68:$AK$68,0),FALSE))","v":38.134353874352563},null,null,"Lamp Service costs Annualised",10.447768184754127,10.447768184754127]
[null,{"$f":"Inputs!$M$68","v":"PE Cell Service costs Annualised"},null,null,{"$f":"IF($B550=\"Blank\",0,VLOOKUP($B550,Inputs!$C$68:$AK$129,MATCH($B555,Inputs!$C$68:$AK$68,0),FALSE))","v":0},{"$f":"IF($B550=\"Blank\",0,VLOOKUP($B550,Inputs!$C$68:$AK$129,MATCH($B555,Inputs!$C$68:$AK$68,0),FALSE))","v":0},null,null,"PE Cell Service costs Annualised",0,0]
[null,"Indirect Opex",null,null,{"$f":"IF($B550=\"Blank\",0,IF($B$8=\"Private Contract Lighting\",'Opex Weighting'!D$113,'Opex Weighting'!D$111))","v":13.654305575211096},{"$f":"IF($B550=\"Blank\",0,IF($B$8=\"Private Contract Lighting\",'Opex Weighting'!E$113,'Opex Weighting'!E$111))","v":13.545660760758196},null,null,"Indirect Opex",3.7409056370441354,3.7111399344543003]
[null,"Indirect Capex",null,null,{"$f":"IF($B551=\"Blank\",0,IF($B$8=\"Private Contract Lighting\",'Capex Weighting'!D$115,'Capex Weighting'!D$117))","v":0},{"$f":"IF($B551=\"Blank\",0,IF($B$8=\"Private Contract Lighting\",'Capex Weighting'!E$115,'Capex Weighting'!E$117))","v":0},null,null,"Indirect Capex",0,0]
[null,"Overhead Costs per light",null,null,{"$f":"IF($B550=\"Blank\",0,IF($B$8=\"Private Contract Lighting\",'Building Block'!C$49,'Building Block'!C$48))","v":11.222353166014571},{"$f":"IF($B550=\"Blank\",0,IF($B$8=\"Private Contract Lighting\",'Building Block'!D$49,'Building Block'!D$48))","v":11.512124256080179},null,null,"Overhead Costs per light",3.0746173057574167,3.1540066455014193]
[null,{"$f":"Inputs!$AH$68","v":"Bracket UNIT price"},0,null,"NA","NA",null,null,"Bracket UNIT price","",""]
[null,{"$f":"Inputs!$Y$68","v":"CAPEX Installation costs"},{"$f":"C559+1","v":1},null,"NA","NA",null,null,"CAPEX Installation costs","",""]
[null,{"$f":"Inputs!$X$68","v":"Luminaire UNIT price"},{"$f":"C560+1","v":2},null,"NA","NA",null,null,"Luminaire UNIT price","",""]
[null,{"$f":"Inputs!$Y$68","v":"CAPEX Installation costs"},3,null,"NA","NA",null,null,"CAPEX Installation costs","",""]
[null,null,null,null,{"$f":"SUM(E551:E562)","v":86.159688090343963},{"$f":"SUM(F551:F562)","v":86.222839668107284},null,null,null,{"$f":"ROUND(E563/J$2*100,3)","v":23.605},{"$f":"ROUND(F563/K$2*100,3)","v":23.623000000000001}]
[]
[{"$f":"A550+1","v":38},{"$f":"IFERROR(VLOOKUP($A565,Inputs!$B$68:$AK$129,MATCH($B$7,Inputs!$B$68:$AK$68,0),FALSE),\"Blank\")","v":"70W Metal Halide"},null,null,null,null,null,null,{"$f":"IFERROR(VLOOKUP($A565,Inputs!$B$68:$AK$129,MATCH($B$7,Inputs!$B$68:$AK$68,0),FALSE),\"Blank\")","v":"70W Metal Halide"}]
[null,{"$f":"Inputs!$R$68","v":"Lamp UNIT price Annualised Cost"},{"$f":"Inputs!$P$68","v":"Lamp Maintenance cycle"},null,{"$f":"IF($B565=\"Blank\",0,VLOOKUP($B565,Inputs!$C$68:$AK$129,MATCH($B566,Inputs!$C$68:$AK$68,0),FALSE))","v":3.5765501073499997},{"$f":"IF($B565=\"Blank\",0,VLOOKUP($B565,Inputs!$C$68:$AK$129,MATCH($B566,Inputs!$C$68:$AK$68,0),FALSE))","v":3.5765501073499997},null,null,{"$f":"B566","v":"Lamp UNIT price Annualised Cost"},{"$f":"IF(E566=\"NA\",\"\",E566/J$2*100)","v":0.97987674173972594},{"$f":"IF(F566=\"NA\",\"\",F566/K$2*100)","v":0.97987674173972594}]
[null,{"$f":"Inputs!$K$68","v":"PE Cell UNIT price Annualised Cost"},{"$f":"Inputs!$I$68","v":"PE Cell Maintenance Cycle"},null,{"$f":"IF($B565=\"Blank\",0,VLOOKUP($B565,Inputs!$C$68:$AK$129,MATCH($B567,Inputs!$C$68:$AK$68,0),FALSE))","v":0.6107414998224272},{"$f":"IF($B565=\"Blank\",0,VLOOKUP($B565,Inputs!$C$68:$AK$129,MATCH($B567,Inputs!$C$68:$AK$68,0),FALSE))","v":0.6107414998224272},null,null,"PE Cell UNIT price Annualised Cost",0.16732643830751431,0.16732643830751431]
[null,"Corp capex annuity per light",null,null,{"$f":"IF($B565=\"Blank\",0,'Corp Capex Annuity calcs'!F$109)","v":14.826870317655803},{"$f":"IF($B565=\"Blank\",0,'Corp Capex Annuity calcs'!G$109)","v":14.708895619806404},null,null,"Corp capex annuity per light",4.0621562514125493,4.0298344163853157]
[null,{"$f":"Inputs!$T$68","v":"Lamp Service costs Annualised"},null,null,{"$f":"IF($B565=\"Blank\",0,VLOOKUP($B565,Inputs!$C$68:$AK$129,MATCH($B569,Inputs!$C$68:$AK$68,0),FALSE))","v":26.347371767734501},{"$f":"IF($B565=\"Blank\",0,VLOOKUP($B565,Inputs!$C$68:$AK$129,MATCH($B569,Inputs!$C$68:$AK$68,0),FALSE))","v":26.347371767734501},null,null,"Lamp Service costs Annualised",7.2184580185573974,7.2184580185573974]
[null,{"$f":"Inputs!$M$68","v":"PE Cell Service costs Annualised"},null,null,{"$f":"IF($B565=\"Blank\",0,VLOOKUP($B565,Inputs!$C$68:$AK$129,MATCH($B570,Inputs!$C$68:$AK$68,0),FALSE))","v":0},{"$f":"IF($B565=\"Blank\",0,VLOOKUP($B565,Inputs!$C$68:$AK$129,MATCH($B570,Inputs!$C$68:$AK$68,0),FALSE))","v":0},null,null,"PE Cell Service costs Annualised",0,0]
[null,"Indirect Opex",null,null,{"$f":"IF($B565=\"Blank\",0,IF($B$8=\"Private Contract Lighting\",'Opex Weighting'!D$113,'Opex Weighting'!D$111))","v":13.654305575211096},{"$f":"IF($B565=\"Blank\",0,IF($B$8=\"Private Contract Lighting\",'Opex Weighting'!E$113,'Opex Weighting'!E$111))","v":13.545660760758196},null,null,"Indirect Opex",3.7409056370441354,3.7111399344543003]
[null,"Indirect Capex",null,null,{"$f":"IF($B566=\"Blank\",0,IF($B$8=\"Private Contract Lighting\",'Capex Weighting'!D$115,'Capex Weighting'!D$117))","v":0},{"$f":"IF($B566=\"Blank\",0,IF($B$8=\"Private Contract Lighting\",'Capex Weighting'!E$115,'Capex Weighting'!E$117))","v":0},null,null,"Indirect Capex",0,0]
[null,"Overhead Costs per light",null,null,{"$f":"IF($B565=\"Blank\",0,IF($B$8=\"Private Contract Lighting\",'Building Block'!C$49,'Building Block'!C$48))","v":11.222353166014571},{"$f":"IF($B565=\"Blank\",0,IF($B$8=\"Private Contract Lighting\",'Building Block'!D$49,'Building Block'!D$48))","v":11.512124256080179},null,null,"Overhead Costs per light",3.0746173057574167,3.1540066455014193]
[null,{"$f":"Inputs!$AH$68","v":"Bracket UNIT price"},0,null,"NA","NA",null,null,"Bracket UNIT price","",""]
[null,{"$f":"Inputs!$Y$68","v":"CAPEX Installation costs"},{"$f":"C574+1","v":1},null,"NA","NA",null,null,"CAPEX Installation costs","",""]
[null,{"$f":"Inputs!$X$68","v":"Luminaire UNIT price"},{"$f":"C575+1","v":2},null,"NA","NA",null,null,"Luminaire UNIT price","",""]
[null,{"$f":"Inputs!$Y$68","v":"CAPEX Installation costs"},3,null,"NA","NA",null,null,"CAPEX Installation costs","",""]
[null,null,null,null,{"$f":"SUM(E566:E577)","v":70.238192433788399},{"$f":"SUM(F566:F577)","v":70.301344011551706},null,null,null,{"$f":"ROUND(E578/J$2*100,3)","v":19.242999999999999},{"$f":"ROUND(F578/K$2*100,3)","v":19.260999999999999}]
[]
[{"$f":"A565+1","v":39},{"$f":"IFERROR(VLOOKUP($A580,Inputs!$B$68:$AK$129,MATCH($B$7,Inputs!$B$68:$AK$68,0),FALSE),\"Blank\")","v":"250W Metal Halide - Flood Light"},null,null,null,null,null,null,{"$f":"IFERROR(VLOOKUP($A580,Inputs!$B$68:$AK$129,MATCH($B$7,Inputs!$B$68:$AK$68,0),FALSE),\"Blank\")","v":"250W Metal Halide - Flood Light"}]
[null,{"$f":"Inputs!$R$68","v":"Lamp UNIT price Annualised Cost"},{"$f":"Inputs!$P$68","v":"Lamp Maintenance cycle"},null,{"$f":"IF($B580=\"Blank\",0,VLOOKUP($B580,Inputs!$C$68:$AK$129,MATCH($B581,Inputs!$C$68:$AK$68,0),FALSE))","v":4.1438966180000003},{"$f":"IF($B580=\"Blank\",0,VLOOKUP($B580,Inputs!$C$68:$AK$129,MATCH($B581,Inputs!$C$68:$AK$68,0),FALSE))","v":4.1438966180000003},null,null,{"$f":"B581","v":"Lamp UNIT price Annualised Cost"},{"$f":"IF(E581=\"NA\",\"\",E581/J$2*100)","v":1.1353141419178083},{"$f":"IF(F581=\"NA\",\"\",F581/K$2*100)","v":1.1353141419178083}]
[null,{"$f":"Inputs!$K$68","v":"PE Cell UNIT price Annualised Cost"},{"$f":"Inputs!$I$68","v":"PE Cell Maintenance Cycle"},null,{"$f":"IF($B580=\"Blank\",0,VLOOKUP($B580,Inputs!$C$68:$AK$129,MATCH($B582,Inputs!$C$68:$AK$68,0),FALSE))","v":1.7788104971099301},{"$f":"IF($B580=\"Blank\",0,VLOOKUP($B580,Inputs!$C$68:$AK$129,MATCH($B582,Inputs!$C$68:$AK$68,0),FALSE))","v":1.7788104971099301},null,null,"PE Cell UNIT price Annualised Cost",0.48734534167395344,0.48734534167395344]
[null,"Corp capex annuity per light",null,null,{"$f":"IF($B580=\"Blank\",0,'Corp Capex Annuity calcs'!F$109)","v":14.826870317655803},{"$f":"IF($B580=\"Blank\",0,'Corp Capex Annuity calcs'!G$109)","v":14.708895619806404},null,null,"Corp capex annuity per light",4.0621562514125493,4.0298344163853157]
[null,{"$f":"Inputs!$T$68","v":"Lamp Service costs Annualised"},null,null,{"$f":"IF($B580=\"Blank\",0,VLOOKUP($B580,Inputs!$C$68:$AK$129,MATCH($B584,Inputs!$C$68:$AK$68,0),FALSE))","v":38.134353874352563},{"$f":"IF($B580=\"Blank\",0,VLOOKUP($B580,Inputs!$C$68:$AK$129,MATCH($B584,Inputs!$C$68:$AK$68,0),FALSE))","v":38.134353874352563},null,null,"Lamp Service costs Annualised",10.447768184754127,10.447768184754127]
[null,{"$f":"Inputs!$M$68","v":"PE Cell Service costs Annualised"},null,null,{"$f":"IF($B580=\"Blank\",0,VLOOKUP($B580,Inputs!$C$68:$AK$129,MATCH($B585,Inputs!$C$68:$AK$68,0),FALSE))","v":0},{"$f":"IF($B580=\"Blank\",0,VLOOKUP($B580,Inputs!$C$68:$AK$129,MATCH($B585,Inputs!$C$68:$AK$68,0),FALSE))","v":0},null,null,"PE Cell Service costs Annualised",0,0]
[null,"Indirect Opex",null,null,{"$f":"IF($B580=\"Blank\",0,IF($B$8=\"Private Contract Lighting\",'Opex Weighting'!D$113,'Opex Weighting'!D$111))","v":13.654305575211096},{"$f":"IF($B580=\"Blank\",0,IF($B$8=\"Private Contract Lighting\",'Opex Weighting'!E$113,'Opex Weighting'!E$111))","v":13.545660760758196},null,null,"Indirect Opex",3.7409056370441354,3.7111399344543003]
[null,"Indirect Capex",null,null,{"$f":"IF($B581=\"Blank\",0,IF($B$8=\"Private Contract Lighting\",'Capex Weighting'!D$115,'Capex Weighting'!D$117))","v":0},{"$f":"IF($B581=\"Blank\",0,IF($B$8=\"Private Contract Lighting\",'Capex Weighting'!E$115,'Capex Weighting'!E$117))","v":0},null,null,"Indirect Capex",0,0]
[null,"Overhead Costs per light",null,null,{"$f":"IF($B580=\"Blank\",0,IF($B$8=\"Private Contract Lighting\",'Building Block'!C$49,'Building Block'!C$48))","v":11.222353166014571},{"$f":"IF($B580=\"Blank\",0,IF($B$8=\"Private Contract Lighting\",'Building Block'!D$49,'Building Block'!D$48))","v":11.512124256080179},null,null,"Overhead Costs per light",3.0746173057574167,3.1540066455014193]
[null,{"$f":"Inputs!$AH$68","v":"Bracket UNIT price"},0,null,"NA","NA",null,null,"Bracket UNIT price","",""]
[null,{"$f":"Inputs!$Y$68","v":"CAPEX Installation costs"},{"$f":"C589+1","v":1},null,"NA","NA",null,null,"CAPEX Installation costs","",""]
[null,{"$f":"Inputs!$X$68","v":"Luminaire UNIT price"},{"$f":"C590+1","v":2},null,"NA","NA",null,null,"Luminaire UNIT price","",""]
[null,{"$f":"Inputs!$Y$68","v":"CAPEX Installation costs"},3,null,"NA","NA",null,null,"CAPEX Installation costs","",""]
[null,null,null,null,{"$f":"SUM(E581:E592)","v":83.760590048343957},{"$f":"SUM(F581:F592)","v":83.823741626107278},null,null,null,{"$f":"ROUND(E593/J$2*100,3)","v":22.948},{"$f":"ROUND(F593/K$2*100,3)","v":22.965}]
[]
[{"$f":"A580+1","v":40},{"$f":"IFERROR(VLOOKUP($A595,Inputs!$B$68:$AK$129,MATCH($B$7,Inputs!$B$68:$AK$68,0),FALSE),\"Blank\")","v":"400W Metal Halide - Flood Light"},null,null,null,null,null,null,{"$f":"IFERROR(VLOOKUP($A595,Inputs!$B$68:$AK$129,MATCH($B$7,Inputs!$B$68:$AK$68,0),FALSE),\"Blank\")","v":"400W Metal Halide - Flood Light"}]
[null,{"$f":"Inputs!$R$68","v":"Lamp UNIT price Annualised Cost"},{"$f":"Inputs!$P$68","v":"Lamp Maintenance cycle"},null,{"$f":"IF($B595=\"Blank\",0,VLOOKUP($B595,Inputs!$C$68:$AK$129,MATCH($B596,Inputs!$C$68:$AK$68,0),FALSE))","v":6.5429946599999997},{"$f":"IF($B595=\"Blank\",0,VLOOKUP($B595,Inputs!$C$68:$AK$129,MATCH($B596,Inputs!$C$68:$AK$68,0),FALSE))","v":6.5429946599999997},null,null,{"$f":"B596","v":"Lamp UNIT price Annualised Cost"},{"$f":"IF(E596=\"NA\",\"\",E596/J$2*100)","v":1.7926012767123287},{"$f":"IF(F596=\"NA\",\"\",F596/K$2*100)","v":1.7926012767123287}]
[null,{"$f":"Inputs!$K$68","v":"PE Cell UNIT price Annualised Cost"},{"$f":"Inputs!$I$68","v":"PE Cell Maintenance Cycle"},null,{"$f":"IF($B595=\"Blank\",0,VLOOKUP($B595,Inputs!$C$68:$AK$129,MATCH($B597,Inputs!$C$68:$AK$68,0),FALSE))","v":1.7788104971099301},{"$f":"IF($B595=\"Blank\",0,VLOOKUP($B595,Inputs!$C$68:$AK$129,MATCH($B597,Inputs!$C$68:$AK$68,0),FALSE))","v":1.7788104971099301},null,null,"PE Cell UNIT price Annualised Cost",0.48734534167395344,0.48734534167395344]
[null,"Corp capex annuity per light",null,null,{"$f":"IF($B595=\"Blank\",0,'Corp Capex Annuity calcs'!F$109)","v":14.826870317655803},{"$f":"IF($B595=\"Blank\",0,'Corp Capex Annuity calcs'!G$109)","v":14.708895619806404},null,null,"Corp capex annuity per light",4.0621562514125493,4.0298344163853157]
[null,{"$f":"Inputs!$T$68","v":"Lamp Service costs Annualised"},null,null,{"$f":"IF($B595=\"Blank\",0,VLOOKUP($B595,Inputs!$C$68:$AK$129,MATCH($B599,Inputs!$C$68:$AK$68,0),FALSE))","v":38.134353874352563},{"$f":"IF($B595=\"Blank\",0,VLOOKUP($B595,Inputs!$C$68:$AK$129,MATCH($B599,Inputs!$C$68:$AK$68,0),FALSE))","v":38.134353874352563},null,null,"Lamp Service costs Annualised",10.447768184754127,10.447768184754127]
[null,{"$f":"Inputs!$M$68","v":"PE Cell Service costs Annualised"},null,null,{"$f":"IF($B595=\"Blank\",0,VLOOKUP($B595,Inputs!$C$68:$AK$129,MATCH($B600,Inputs!$C$68:$AK$68,0),FALSE))","v":0},{"$f":"IF($B595=\"Blank\",0,VLOOKUP($B595,Inputs!$C$68:$AK$129,MATCH($B600,Inputs!$C$68:$AK$68,0),FALSE))","v":0},null,null,"PE Cell Service costs Annualised",0,0]
[null,"Indirect Opex",null,null,{"$f":"IF($B595=\"Blank\",0,IF($B$8=\"Private Contract Lighting\",'Opex Weighting'!D$113,'Opex Weighting'!D$111))","v":13.654305575211096},{"$f":"IF($B595=\"Blank\",0,IF($B$8=\"Private Contract Lighting\",'Opex Weighting'!E$113,'Opex Weighting'!E$111))","v":13.545660760758196},null,null,"Indirect Opex",3.7409056370441354,3.7111399344543003]
[null,"Indirect Capex",null,null,{"$f":"IF($B596=\"Blank\",0,IF($B$8=\"Private Contract Lighting\",'Capex Weighting'!D$115,'Capex Weighting'!D$117))","v":0},{"$f":"IF($B596=\"Blank\",0,IF($B$8=\"Private Contract Lighting\",'Capex Weighting'!E$115,'Capex Weighting'!E$117))","v":0},null,null,"Indirect Capex",0,0]
[null,"Overhead Costs per light",null,null,{"$f":"IF($B595=\"Blank\",0,IF($B$8=\"Private Contract Lighting\",'Building Block'!C$49,'Building Block'!C$48))","v":11.222353166014571},{"$f":"IF($B595=\"Blank\",0,IF($B$8=\"Private Contract Lighting\",'Building Block'!D$49,'Building Block'!D$48))","v":11.512124256080179},null,null,"Overhead Costs per light",3.0746173057574167,3.1540066455014193]
[null,{"$f":"Inputs!$AH$68","v":"Bracket UNIT price"},0,null,"NA","NA",null,null,"Bracket UNIT price","",""]
[null,{"$f":"Inputs!$Y$68","v":"CAPEX Installation costs"},{"$f":"C604+1","v":1},null,"NA","NA",null,null,"CAPEX Installation costs","",""]
[null,{"$f":"Inputs!$X$68","v":"Luminaire UNIT price"},{"$f":"C605+1","v":2},null,"NA","NA",null,null,"Luminaire UNIT price","",""]
[null,{"$f":"Inputs!$Y$68","v":"CAPEX Installation costs"},3,null,"NA","NA",null,null,"CAPEX Installation costs","",""]
[null,null,null,null,{"$f":"SUM(E596:E607)","v":86.159688090343963},{"$f":"SUM(F596:F607)","v":86.222839668107284},null,null,null,{"$f":"ROUND(E608/J$2*100,3)","v":23.605},{"$f":"ROUND(F608/K$2*100,3)","v":23.623000000000001}]
[]
[{"$f":"A595+1","v":41},{"$f":"IFERROR(VLOOKUP($A610,Inputs!$B$68:$AK$129,MATCH($B$7,Inputs!$B$68:$AK$68,0),FALSE),\"Blank\")","v":"125W Mercury Vapour"},null,null,null,null,null,null,{"$f":"IFERROR(VLOOKUP($A610,Inputs!$B$68:$AK$129,MATCH($B$7,Inputs!$B$68:$AK$68,0),FALSE),\"Blank\")","v":"125W Mercury Vapour"}]
[null,{"$f":"Inputs!$R$68","v":"Lamp UNIT price Annualised Cost"},{"$f":"Inputs!$P$68","v":"Lamp Maintenance cycle"},null,{"$f":"IF($B610=\"Blank\",0,VLOOKUP($B610,Inputs!$C$68:$AK$129,MATCH($B611,Inputs!$C$68:$AK$68,0),FALSE))","v":0.54524955500000005},{"$f":"IF($B610=\"Blank\",0,VLOOKUP($B610,Inputs!$C$68:$AK$129,MATCH($B611,Inputs!$C$68:$AK$68,0),FALSE))","v":0.54524955500000005},null,null,{"$f":"B611","v":"Lamp UNIT price Annualised Cost"},{"$f":"IF(E611=\"NA\",\"\",E611/J$2*100)","v":0.14938343972602741},{"$f":"IF(F611=\"NA\",\"\",F611/K$2*100)","v":0.14938343972602741}]
[null,{"$f":"Inputs!$K$68","v":"PE Cell UNIT price Annualised Cost"},{"$f":"Inputs!$I$68","v":"PE Cell Maintenance Cycle"},null,{"$f":"IF($B610=\"Blank\",0,VLOOKUP($B610,Inputs!$C$68:$AK$129,MATCH($B612,Inputs!$C$68:$AK$68,0),FALSE))","v":1.7788104971099301},{"$f":"IF($B610=\"Blank\",0,VLOOKUP($B610,Inputs!$C$68:$AK$129,MATCH($B612,Inputs!$C$68:$AK$68,0),FALSE))","v":1.7788104971099301},null,null,"PE Cell UNIT price Annualised Cost",0.48734534167395344,0.48734534167395344]
[null,"Corp capex annuity per light",null,null,{"$f":"IF($B610=\"Blank\",0,'Corp Capex Annuity calcs'!F$109)","v":14.826870317655803},{"$f":"IF($B610=\"Blank\",0,'Corp Capex Annuity calcs'!G$109)","v":14.708895619806404},null,null,"Corp capex annuity per light",4.0621562514125493,4.0298344163853157]
[null,{"$f":"Inputs!$T$68","v":"Lamp Service costs Annualised"},null,null,{"$f":"IF($B610=\"Blank\",0,VLOOKUP($B610,Inputs!$C$68:$AK$129,MATCH($B614,Inputs!$C$68:$AK$68,0),FALSE))","v":38.134353874352563},{"$f":"IF($B610=\"Blank\",0,VLOOKUP($B610,Inputs!$C$68:$AK$129,MATCH($B614,Inputs!$C$68:$AK$68,0),FALSE))","v":38.134353874352563},null,null,"Lamp Service costs Annualised",10.447768184754127,10.447768184754127]
[null,{"$f":"Inputs!$M$68","v":"PE Cell Service costs Annualised"},null,null,{"$f":"IF($B610=\"Blank\",0,VLOOKUP($B610,Inputs!$C$68:$AK$129,MATCH($B615,Inputs!$C$68:$AK$68,0),FALSE))","v":0},{"$f":"IF($B610=\"Blank\",0,VLOOKUP($B610,Inputs!$C$68:$AK$129,MATCH($B615,Inputs!$C$68:$AK$68,0),FALSE))","v":0},null,null,"PE Cell Service costs Annualised",0,0]
[null,"Indirect Opex",null,null,{"$f":"IF($B610=\"Blank\",0,IF($B$8=\"Private Contract Lighting\",'Opex Weighting'!D$113,'Opex Weighting'!D$111))","v":13.654305575211096},{"$f":"IF($B610=\"Blank\",0,IF($B$8=\"Private Contract Lighting\",'Opex Weighting'!E$113,'Opex Weighting'!E$111))","v":13.545660760758196},null,null,"Indirect Opex",3.7409056370441354,3.7111399344543003]
[null,"Indirect Capex",null,null,{"$f":"IF($B611=\"Blank\",0,IF($B$8=\"Private Contract Lighting\",'Capex Weighting'!D$115,'Capex Weighting'!D$117))","v":0},{"$f":"IF($B611=\"Blank\",0,IF($B$8=\"Private Contract Lighting\",'Capex Weighting'!E$115,'Capex Weighting'!E$117))","v":0},null,null,"Indirect Capex",0,0]
[null,"Overhead Costs per light",null,null,{"$f":"IF($B610=\"Blank\",0,IF($B$8=\"Private Contract Lighting\",'Building Block'!C$49,'Building Block'!C$48))","v":11.222353166014571},{"$f":"IF($B610=\"Blank\",0,IF($B$8=\"Private Contract Lighting\",'Building Block'!D$49,'Building Block'!D$48))","v":11.512124256080179},null,null,"Overhead Costs per light",3.0746173057574167,3.1540066455014193]
[null,{"$f":"Inputs!$AH$68","v":"Bracket UNIT price"},0,null,"NA","NA",null,null,"Bracket UNIT price","",""]
[null,{"$f":"Inputs!$Y$68","v":"CAPEX Installation costs"},{"$f":"C619+1","v":1},null,"NA","NA",null,null,"CAPEX Installation costs","",""]
[null,{"$f":"Inputs!$X$68","v":"Luminaire UNIT price"},{"$f":"C620+1","v":2},null,"NA","NA",null,null,"Luminaire UNIT price","",""]
[null,{"$f":"Inputs!$Y$68","v":"CAPEX Installation costs"},3,null,"NA","NA",null,null,"CAPEX Installation costs","",""]
[null,null,null,null,{"$f":"SUM(E611:E622)","v":80.161942985343956},{"$f":"SUM(F611:F622)","v":80.225094563107277},null,null,null,{"$f":"ROUND(E623/J$2*100,3)","v":21.962},{"$f":"ROUND(F623/K$2*100,3)","v":21.978999999999999}]
[]
[{"$f":"A610+1","v":42},{"$f":"IFERROR(VLOOKUP($A625,Inputs!$B$68:$AK$129,MATCH($B$7,Inputs!$B$68:$AK$68,0),FALSE),\"Blank\")","v":"250W Mercury Vapour"},null,null,null,null,null,null,{"$f":"IFERROR(VLOOKUP($A625,Inputs!$B$68:$AK$129,MATCH($B$7,Inputs!$B$68:$AK$68,0),FALSE),\"Blank\")","v":"250W Mercury Vapour"}]
[null,{"$f":"Inputs!$R$68","v":"Lamp UNIT price Annualised Cost"},{"$f":"Inputs!$P$68","v":"Lamp Maintenance cycle"},null,{"$f":"IF($B625=\"Blank\",0,VLOOKUP($B625,Inputs!$C$68:$AK$129,MATCH($B626,Inputs!$C$68:$AK$68,0),FALSE))","v":0.54524955500000005},{"$f":"IF($B625=\"Blank\",0,VLOOKUP($B625,Inputs!$C$68:$AK$129,MATCH($B626,Inputs!$C$68:$AK$68,0),FALSE))","v":0.54524955500000005},null,null,{"$f":"B626","v":"Lamp UNIT price Annualised Cost"},{"$f":"IF(E626=\"NA\",\"\",E626/J$2*100)","v":0.14938343972602741},{"$f":"IF(F626=\"NA\",\"\",F626/K$2*100)","v":0.14938343972602741}]
[null,{"$f":"Inputs!$K$68","v":"PE Cell UNIT price Annualised Cost"},{"$f":"Inputs!$I$68","v":"PE Cell Maintenance Cycle"},null,{"$f":"IF($B625=\"Blank\",0,VLOOKUP($B625,Inputs!$C$68:$AK$129,MATCH($B627,Inputs!$C$68:$AK$68,0),FALSE))","v":1.7788104971099301},{"$f":"IF($B625=\"Blank\",0,VLOOKUP($B625,Inputs!$C$68:$AK$129,MATCH($B627,Inputs!$C$68:$AK$68,0),FALSE))","v":1.7788104971099301},null,null,"PE Cell UNIT price Annualised Cost",0.48734534167395344,0.48734534167395344]
[null,"Corp capex annuity per light",null,null,{"$f":"IF($B625=\"Blank\",0,'Corp Capex Annuity calcs'!F$109)","v":14.826870317655803},{"$f":"IF($B625=\"Blank\",0,'Corp Capex Annuity calcs'!G$109)","v":14.708895619806404},null,null,"Corp capex annuity per light",4.0621562514125493,4.0298344163853157]
[null,{"$f":"Inputs!$T$68","v":"Lamp Service costs Annualised"},null,null,{"$f":"IF($B625=\"Blank\",0,VLOOKUP($B625,Inputs!$C$68:$AK$129,MATCH($B629,Inputs!$C$68:$AK$68,0),FALSE))","v":38.134353874352563},{"$f":"IF($B625=\"Blank\",0,VLOOKUP($B625,Inputs!$C$68:$AK$129,MATCH($B629,Inputs!$C$68:$AK$68,0),FALSE))","v":38.134353874352563},null,null,"Lamp Service costs Annualised",10.447768184754127,10.447768184754127]
[null,{"$f":"Inputs!$M$68","v":"PE Cell Service costs Annualised"},null,null,{"$f":"IF($B625=\"Blank\",0,VLOOKUP($B625,Inputs!$C$68:$AK$129,MATCH($B630,Inputs!$C$68:$AK$68,0),FALSE))","v":0},{"$f":"IF($B625=\"Blank\",0,VLOOKUP($B625,Inputs!$C$68:$AK$129,MATCH($B630,Inputs!$C$68:$AK$68,0),FALSE))","v":0},null,null,"PE Cell Service costs Annualised",0,0]
[null,"Indirect Opex",null,null,{"$f":"IF($B625=\"Blank\",0,IF($B$8=\"Private Contract Lighting\",'Opex Weighting'!D$113,'Opex Weighting'!D$111))","v":13.654305575211096},{"$f":"IF($B625=\"Blank\",0,IF($B$8=\"Private Contract Lighting\",'Opex Weighting'!E$113,'Opex Weighting'!E$111))","v":13.545660760758196},null,null,"Indirect Opex",3.7409056370441354,3.7111399344543003]
[null,"Indirect Capex",null,null,{"$f":"IF($B626=\"Blank\",0,IF($B$8=\"Private Contract Lighting\",'Capex Weighting'!D$115,'Capex Weighting'!D$117))","v":0},{"$f":"IF($B626=\"Blank\",0,IF($B$8=\"Private Contract Lighting\",'Capex Weighting'!E$115,'Capex Weighting'!E$117))","v":0},null,null,"Indirect Capex",0,0]
[null,"Overhead Costs per light",null,null,{"$f":"IF($B625=\"Blank\",0,IF($B$8=\"Private Contract Lighting\",'Building Block'!C$49,'Building Block'!C$48))","v":11.222353166014571},{"$f":"IF($B625=\"Blank\",0,IF($B$8=\"Private Contract Lighting\",'Building Block'!D$49,'Building Block'!D$48))","v":11.512124256080179},null,null,"Overhead Costs per light",3.0746173057574167,3.1540066455014193]
[null,{"$f":"Inputs!$AH$68","v":"Bracket UNIT price"},0,null,"NA","NA",null,null,"Bracket UNIT price","",""]
[null,{"$f":"Inputs!$Y$68","v":"CAPEX Installation costs"},{"$f":"C634+1","v":1},null,"NA","NA",null,null,"CAPEX Installation costs","",""]
[null,{"$f":"Inputs!$X$68","v":"Luminaire UNIT price"},{"$f":"C635+1","v":2},null,"NA","NA",null,null,"Luminaire UNIT price","",""]
[null,{"$f":"Inputs!$Y$68","v":"CAPEX Installation costs"},3,null,"NA","NA",null,null,"CAPEX Installation costs","",""]
[null,null,null,null,{"$f":"SUM(E626:E637)","v":80.161942985343956},{"$f":"SUM(F626:F637)","v":80.225094563107277},null,null,null,{"$f":"ROUND(E638/J$2*100,3)","v":21.962},{"$f":"ROUND(F638/K$2*100,3)","v":21.978999999999999}]
[]
[{"$f":"A625+1","v":43},{"$f":"IFERROR(VLOOKUP($A640,Inputs!$B$68:$AK$129,MATCH($B$7,Inputs!$B$68:$AK$68,0),FALSE),\"Blank\")","v":"400W Mercury Vapour"},null,null,null,null,null,null,{"$f":"IFERROR(VLOOKUP($A640,Inputs!$B$68:$AK$129,MATCH($B$7,Inputs!$B$68:$AK$68,0),FALSE),\"Blank\")","v":"400W Mercury Vapour"}]
[null,{"$f":"Inputs!$R$68","v":"Lamp UNIT price Annualised Cost"},{"$f":"Inputs!$P$68","v":"Lamp Maintenance cycle"},null,{"$f":"IF($B640=\"Blank\",0,VLOOKUP($B640,Inputs!$C$68:$AK$129,MATCH($B641,Inputs!$C$68:$AK$68,0),FALSE))","v":1.0686891278000004},{"$f":"IF($B640=\"Blank\",0,VLOOKUP($B640,Inputs!$C$68:$AK$129,MATCH($B641,Inputs!$C$68:$AK$68,0),FALSE))","v":1.0686891278000004},null,null,{"$f":"B641","v":"Lamp UNIT price Annualised Cost"},{"$f":"IF(E641=\"NA\",\"\",E641/J$2*100)","v":0.29279154186301382},{"$f":"IF(F641=\"NA\",\"\",F641/K$2*100)","v":0.29279154186301382}]
[null,{"$f":"Inputs!$K$68","v":"PE Cell UNIT price Annualised Cost"},{"$f":"Inputs!$I$68","v":"PE Cell Maintenance Cycle"},null,{"$f":"IF($B640=\"Blank\",0,VLOOKUP($B640,Inputs!$C$68:$AK$129,MATCH($B642,Inputs!$C$68:$AK$68,0),FALSE))","v":1.7788104971099301},{"$f":"IF($B640=\"Blank\",0,VLOOKUP($B640,Inputs!$C$68:$AK$129,MATCH($B642,Inputs!$C$68:$AK$68,0),FALSE))","v":1.7788104971099301},null,null,"PE Cell UNIT price Annualised Cost",0.48734534167395344,0.48734534167395344]
[null,"Corp capex annuity per light",null,null,{"$f":"IF($B640=\"Blank\",0,'Corp Capex Annuity calcs'!F$109)","v":14.826870317655803},{"$f":"IF($B640=\"Blank\",0,'Corp Capex Annuity calcs'!G$109)","v":14.708895619806404},null,null,"Corp capex annuity per light",4.0621562514125493,4.0298344163853157]
[null,{"$f":"Inputs!$T$68","v":"Lamp Service costs Annualised"},null,null,{"$f":"IF($B640=\"Blank\",0,VLOOKUP($B640,Inputs!$C$68:$AK$129,MATCH($B644,Inputs!$C$68:$AK$68,0),FALSE))","v":38.134353874352563},{"$f":"IF($B640=\"Blank\",0,VLOOKUP($B640,Inputs!$C$68:$AK$129,MATCH($B644,Inputs!$C$68:$AK$68,0),FALSE))","v":38.134353874352563},null,null,"Lamp Service costs Annualised",10.447768184754127,10.447768184754127]
[null,{"$f":"Inputs!$M$68","v":"PE Cell Service costs Annualised"},null,null,{"$f":"IF($B640=\"Blank\",0,VLOOKUP($B640,Inputs!$C$68:$AK$129,MATCH($B645,Inputs!$C$68:$AK$68,0),FALSE))","v":0},{"$f":"IF($B640=\"Blank\",0,VLOOKUP($B640,Inputs!$C$68:$AK$129,MATCH($B645,Inputs!$C$68:$AK$68,0),FALSE))","v":0},null,null,"PE Cell Service costs Annualised",0,0]
[null,"Indirect Opex",null,null,{"$f":"IF($B640=\"Blank\",0,IF($B$8=\"Private Contract Lighting\",'Opex Weighting'!D$113,'Opex Weighting'!D$111))","v":13.654305575211096},{"$f":"IF($B640=\"Blank\",0,IF($B$8=\"Private Contract Lighting\",'Opex Weighting'!E$113,'Opex Weighting'!E$111))","v":13.545660760758196},null,null,"Indirect Opex",3.7409056370441354,3.7111399344543003]
[null,"Indirect Capex",null,null,{"$f":"IF($B641=\"Blank\",0,IF($B$8=\"Private Contract Lighting\",'Capex Weighting'!D$115,'Capex Weighting'!D$117))","v":0},{"$f":"IF($B641=\"Blank\",0,IF($B$8=\"Private Contract Lighting\",'Capex Weighting'!E$115,'Capex Weighting'!E$117))","v":0},null,null,"Indirect Capex",0,0]
[null,"Overhead Costs per light",null,null,{"$f":"IF($B640=\"Blank\",0,IF($B$8=\"Private Contract Lighting\",'Building Block'!C$49,'Building Block'!C$48))","v":11.222353166014571},{"$f":"IF($B640=\"Blank\",0,IF($B$8=\"Private Contract Lighting\",'Building Block'!D$49,'Building Block'!D$48))","v":11.512124256080179},null,null,"Overhead Costs per light",3.0746173057574167,3.1540066455014193]
[null,{"$f":"Inputs!$AH$68","v":"Bracket UNIT price"},0,null,"NA","NA",null,null,"Bracket UNIT price","",""]
[null,{"$f":"Inputs!$Y$68","v":"CAPEX Installation costs"},{"$f":"C649+1","v":1},null,"NA","NA",null,null,"CAPEX Installation costs","",""]
[null,{"$f":"Inputs!$X$68","v":"Luminaire UNIT price"},{"$f":"C650+1","v":2},null,"NA","NA",null,null,"Luminaire UNIT price","",""]
[null,{"$f":"Inputs!$Y$68","v":"CAPEX Installation costs"},3,null,"NA","NA",null,null,"CAPEX Installation costs","",""]
[null,null,null,null,{"$f":"SUM(E641:E652)","v":80.685382558143957},{"$f":"SUM(F641:F652)","v":80.748534135907278},null,null,null,{"$f":"ROUND(E653/J$2*100,3)","v":22.106000000000002},{"$f":"ROUND(F653/K$2*100,3)","v":22.123000000000001}]
[]
[{"$f":"A640+1","v":44},{"$f":"IFERROR(VLOOKUP($A655,Inputs!$B$68:$AK$129,MATCH($B$7,Inputs!$B$68:$AK$68,0),FALSE),\"Blank\")","v":"50W Mercury Vapour"},null,null,null,null,null,null,{"$f":"IFERROR(VLOOKUP($A655,Inputs!$B$68:$AK$129,MATCH($B$7,Inputs!$B$68:$AK$68,0),FALSE),\"Blank\")","v":"50W Mercury Vapour"}]
[null,{"$f":"Inputs!$R$68","v":"Lamp UNIT price Annualised Cost"},{"$f":"Inputs!$P$68","v":"Lamp Maintenance cycle"},null,{"$f":"IF($B655=\"Blank\",0,VLOOKUP($B655,Inputs!$C$68:$AK$129,MATCH($B656,Inputs!$C$68:$AK$68,0),FALSE))","v":0.64212375646340014},{"$f":"IF($B655=\"Blank\",0,VLOOKUP($B655,Inputs!$C$68:$AK$129,MATCH($B656,Inputs!$C$68:$AK$68,0),FALSE))","v":0.64212375646340014},null,null,{"$f":"B656","v":"Lamp UNIT price Annualised Cost"},{"$f":"IF(E656=\"NA\",\"\",E656/J$2*100)","v":0.17592431683928772},{"$f":"IF(F656=\"NA\",\"\",F656/K$2*100)","v":0.17592431683928772}]
[null,{"$f":"Inputs!$K$68","v":"PE Cell UNIT price Annualised Cost"},{"$f":"Inputs!$I$68","v":"PE Cell Maintenance Cycle"},null,{"$f":"IF($B655=\"Blank\",0,VLOOKUP($B655,Inputs!$C$68:$AK$129,MATCH($B657,Inputs!$C$68:$AK$68,0),FALSE))","v":0.6107414998224272},{"$f":"IF($B655=\"Blank\",0,VLOOKUP($B655,Inputs!$C$68:$AK$129,MATCH($B657,Inputs!$C$68:$AK$68,0),FALSE))","v":0.6107414998224272},null,null,"PE Cell UNIT price Annualised Cost",0.16732643830751431,0.16732643830751431]
[null,"Corp capex annuity per light",null,null,{"$f":"IF($B655=\"Blank\",0,'Corp Capex Annuity calcs'!F$109)","v":14.826870317655803},{"$f":"IF($B655=\"Blank\",0,'Corp Capex Annuity calcs'!G$109)","v":14.708895619806404},null,null,"Corp capex annuity per light",4.0621562514125493,4.0298344163853157]
[null,{"$f":"Inputs!$T$68","v":"Lamp Service costs Annualised"},null,null,{"$f":"IF($B655=\"Blank\",0,VLOOKUP($B655,Inputs!$C$68:$AK$129,MATCH($B659,Inputs!$C$68:$AK$68,0),FALSE))","v":26.347371767734501},{"$f":"IF($B655=\"Blank\",0,VLOOKUP($B655,Inputs!$C$68:$AK$129,MATCH($B659,Inputs!$C$68:$AK$68,0),FALSE))","v":26.347371767734501},null,null,"Lamp Service costs Annualised",7.2184580185573974,7.2184580185573974]
[null,{"$f":"Inputs!$M$68","v":"PE Cell Service costs Annualised"},null,null,{"$f":"IF($B655=\"Blank\",0,VLOOKUP($B655,Inputs!$C$68:$AK$129,MATCH($B660,Inputs!$C$68:$AK$68,0),FALSE))","v":0},{"$f":"IF($B655=\"Blank\",0,VLOOKUP($B655,Inputs!$C$68:$AK$129,MATCH($B660,Inputs!$C$68:$AK$68,0),FALSE))","v":0},null,null,"PE Cell Service costs Annualised",0,0]
[null,"Indirect Opex",null,null,{"$f":"IF($B655=\"Blank\",0,IF($B$8=\"Private Contract Lighting\",'Opex Weighting'!D$113,'Opex Weighting'!D$111))","v":13.654305575211096},{"$f":"IF($B655=\"Blank\",0,IF($B$8=\"Private Contract Lighting\",'Opex Weighting'!E$113,'Opex Weighting'!E$111))","v":13.545660760758196},null,null,"Indirect Opex",3.7409056370441354,3.7111399344543003]
[null,"Indirect Capex",null,null,{"$f":"IF($B656=\"Blank\",0,IF($B$8=\"Private Contract Lighting\",'Capex Weighting'!D$115,'Capex Weighting'!D$117))","v":0},{"$f":"IF($B656=\"Blank\",0,IF($B$8=\"Private Contract Lighting\",'Capex Weighting'!E$115,'Capex Weighting'!E$117))","v":0},null,null,"Indirect Capex",0,0]
[null,"Overhead Costs per light",null,null,{"$f":"IF($B655=\"Blank\",0,IF($B$8=\"Private Contract Lighting\",'Building Block'!C$49,'Building Block'!C$48))","v":11.222353166014571},{"$f":"IF($B655=\"Blank\",0,IF($B$8=\"Private Contract Lighting\",'Building Block'!D$49,'Building Block'!D$48))","v":11.512124256080179},null,null,"Overhead Costs per light",3.0746173057574167,3.1540066455014193]
[null,{"$f":"Inputs!$AH$68","v":"Bracket UNIT price"},0,null,"NA","NA",null,null,"Bracket UNIT price","",""]
[null,{"$f":"Inputs!$Y$68","v":"CAPEX Installation costs"},{"$f":"C664+1","v":1},null,"NA","NA",null,null,"CAPEX Installation costs","",""]
[null,{"$f":"Inputs!$X$68","v":"Luminaire UNIT price"},{"$f":"C665+1","v":2},null,"NA","NA",null,null,"Luminaire UNIT price","",""]
[null,{"$f":"Inputs!$Y$68","v":"CAPEX Installation costs"},3,null,"NA","NA",null,null,"CAPEX Installation costs","",""]
[null,null,null,null,{"$f":"SUM(E656:E667)","v":67.303766082901802},{"$f":"SUM(F656:F667)","v":67.366917660665109},null,null,null,{"$f":"ROUND(E668/J$2*100,3)","v":18.439},{"$f":"ROUND(F668/K$2*100,3)","v":18.457000000000001}]
[]
[{"$f":"A655+1","v":45},{"$f":"IFERROR(VLOOKUP($A670,Inputs!$B$68:$AK$129,MATCH($B$7,Inputs!$B$68:$AK$68,0),FALSE),\"Blank\")","v":"80W Mercury Vapour Art decorative"},null,null,null,null,null,null,{"$f":"IFERROR(VLOOKUP($A670,Inputs!$B$68:$AK$129,MATCH($B$7,Inputs!$B$68:$AK$68,0),FALSE),\"Blank\")","v":"80W Mercury Vapour Art decorative"}]
[null,{"$f":"Inputs!$R$68","v":"Lamp UNIT price Annualised Cost"},{"$f":"Inputs!$P$68","v":"Lamp Maintenance cycle"},null,{"$f":"IF($B670=\"Blank\",0,VLOOKUP($B670,Inputs!$C$68:$AK$129,MATCH($B671,Inputs!$C$68:$AK$68,0),FALSE))","v":0.53408829660915003},{"$f":"IF($B670=\"Blank\",0,VLOOKUP($B670,Inputs!$C$68:$AK$129,MATCH($B671,Inputs!$C$68:$AK$68,0),FALSE))","v":0.53408829660915003},null,null,{"$f":"B671","v":"Lamp UNIT price Annualised Cost"},{"$f":"IF(E671=\"NA\",\"\",E671/J$2*100)","v":0.14632556071483563},{"$f":"IF(F671=\"NA\",\"\",F671/K$2*100)","v":0.14632556071483563}]
[null,{"$f":"Inputs!$K$68","v":"PE Cell UNIT price Annualised Cost"},{"$f":"Inputs!$I$68","v":"PE Cell Maintenance Cycle"},null,{"$f":"IF($B670=\"Blank\",0,VLOOKUP($B670,Inputs!$C$68:$AK$129,MATCH($B672,Inputs!$C$68:$AK$68,0),FALSE))","v":0.6107414998224272},{"$f":"IF($B670=\"Blank\",0,VLOOKUP($B670,Inputs!$C$68:$AK$129,MATCH($B672,Inputs!$C$68:$AK$68,0),FALSE))","v":0.6107414998224272},null,null,"PE Cell UNIT price Annualised Cost",0.16732643830751431,0.16732643830751431]
[null,"Corp capex annuity per light",null,null,{"$f":"IF($B670=\"Blank\",0,'Corp Capex Annuity calcs'!F$109)","v":14.826870317655803},{"$f":"IF($B670=\"Blank\",0,'Corp Capex Annuity calcs'!G$109)","v":14.708895619806404},null,null,"Corp capex annuity per light",4.0621562514125493,4.0298344163853157]
[null,{"$f":"Inputs!$T$68","v":"Lamp Service costs Annualised"},null,null,{"$f":"IF($B670=\"Blank\",0,VLOOKUP($B670,Inputs!$C$68:$AK$129,MATCH($B674,Inputs!$C$68:$AK$68,0),FALSE))","v":26.347371767734501},{"$f":"IF($B670=\"Blank\",0,VLOOKUP($B670,Inputs!$C$68:$AK$129,MATCH($B674,Inputs!$C$68:$AK$68,0),FALSE))","v":26.347371767734501},null,null,"Lamp Service costs Annualised",7.2184580185573974,7.2184580185573974]
[null,{"$f":"Inputs!$M$68","v":"PE Cell Service costs Annualised"},null,null,{"$f":"IF($B670=\"Blank\",0,VLOOKUP($B670,Inputs!$C$68:$AK$129,MATCH($B675,Inputs!$C$68:$AK$68,0),FALSE))","v":0},{"$f":"IF($B670=\"Blank\",0,VLOOKUP($B670,Inputs!$C$68:$AK$129,MATCH($B675,Inputs!$C$68:$AK$68,0),FALSE))","v":0},null,null,"PE Cell Service costs Annualised",0,0]
[null,"Indirect Opex",null,null,{"$f":"IF($B670=\"Blank\",0,IF($B$8=\"Private Contract Lighting\",'Opex Weighting'!D$113,'Opex Weighting'!D$111))","v":13.654305575211096},{"$f":"IF($B670=\"Blank\",0,IF($B$8=\"Private Contract Lighting\",'Opex Weighting'!E$113,'Opex Weighting'!E$111))","v":13.545660760758196},null,null,"Indirect Opex",3.7409056370441354,3.7111399344543003]
[null,"Indirect Capex",null,null,{"$f":"IF($B671=\"Blank\",0,IF($B$8=\"Private Contract Lighting\",'Capex Weighting'!D$115,'Capex Weighting'!D$117))","v":0},{"$f":"IF($B671=\"Blank\",0,IF($B$8=\"Private Contract Lighting\",'Capex Weighting'!E$115,'Capex Weighting'!E$117))","v":0},null,null,"Indirect Capex",0,0]
[null,"Overhead Costs per light",null,null,{"$f":"IF($B670=\"Blank\",0,IF($B$8=\"Private Contract Lighting\",'Building Block'!C$49,'Building Block'!C$48))","v":11.222353166014571},{"$f":"IF($B670=\"Blank\",0,IF($B$8=\"Private Contract Lighting\",'Building Block'!D$49,'Building Block'!D$48))","v":11.512124256080179},null,null,"Overhead Costs per light",3.0746173057574167,3.1540066455014193]
[null,{"$f":"Inputs!$AH$68","v":"Bracket UNIT price"},0,null,"NA","NA",null,null,"Bracket UNIT price","",""]
[null,{"$f":"Inputs!$Y$68","v":"CAPEX Installation costs"},{"$f":"C679+1","v":1},null,"NA","NA",null,null,"CAPEX Installation costs","",""]
[null,{"$f":"Inputs!$X$68","v":"Luminaire UNIT price"},{"$f":"C680+1","v":2},null,"NA","NA",null,null,"Luminaire UNIT price","",""]
[null,{"$f":"Inputs!$Y$68","v":"CAPEX Installation costs"},3,null,"NA","NA",null,null,"CAPEX Installation costs","",""]
[null,null,null,null,{"$f":"SUM(E671:E682)","v":67.195730623047552},{"$f":"SUM(F671:F682)","v":67.258882200810859},null,null,null,{"$f":"ROUND(E683/J$2*100,3)","v":18.41},{"$f":"ROUND(F683/K$2*100,3)","v":18.427}]
[]
[{"$f":"A670+1","v":46},{"$f":"IFERROR(VLOOKUP($A685,Inputs!$B$68:$AK$129,MATCH($B$7,Inputs!$B$68:$AK$68,0),FALSE),\"Blank\")","v":"80W Mercury Vapour"},null,null,null,null,null,null,{"$f":"IFERROR(VLOOKUP($A685,Inputs!$B$68:$AK$129,MATCH($B$7,Inputs!$B$68:$AK$68,0),FALSE),\"Blank\")","v":"80W Mercury Vapour"}]
[null,{"$f":"Inputs!$R$68","v":"Lamp UNIT price Annualised Cost"},{"$f":"Inputs!$P$68","v":"Lamp Maintenance cycle"},null,{"$f":"IF($B685=\"Blank\",0,VLOOKUP($B685,Inputs!$C$68:$AK$129,MATCH($B686,Inputs!$C$68:$AK$68,0),FALSE))","v":0.53408829660915003},{"$f":"IF($B685=\"Blank\",0,VLOOKUP($B685,Inputs!$C$68:$AK$129,MATCH($B686,Inputs!$C$68:$AK$68,0),FALSE))","v":0.53408829660915003},null,null,{"$f":"B686","v":"Lamp UNIT price Annualised Cost"},{"$f":"IF(E686=\"NA\",\"\",E686/J$2*100)","v":0.14632556071483563},{"$f":"IF(F686=\"NA\",\"\",F686/K$2*100)","v":0.14632556071483563}]
[null,{"$f":"Inputs!$K$68","v":"PE Cell UNIT price Annualised Cost"},{"$f":"Inputs!$I$68","v":"PE Cell Maintenance Cycle"},null,{"$f":"IF($B685=\"Blank\",0,VLOOKUP($B685,Inputs!$C$68:$AK$129,MATCH($B687,Inputs!$C$68:$AK$68,0),FALSE))","v":0.6107414998224272},{"$f":"IF($B685=\"Blank\",0,VLOOKUP($B685,Inputs!$C$68:$AK$129,MATCH($B687,Inputs!$C$68:$AK$68,0),FALSE))","v":0.6107414998224272},null,null,"PE Cell UNIT price Annualised Cost",0.16732643830751431,0.16732643830751431]
[null,"Corp capex annuity per light",null,null,{"$f":"IF($B685=\"Blank\",0,'Corp Capex Annuity calcs'!F$109)","v":14.826870317655803},{"$f":"IF($B685=\"Blank\",0,'Corp Capex Annuity calcs'!G$109)","v":14.708895619806404},null,null,"Corp capex annuity per light",4.0621562514125493,4.0298344163853157]
[null,{"$f":"Inputs!$T$68","v":"Lamp Service costs Annualised"},null,null,{"$f":"IF($B685=\"Blank\",0,VLOOKUP($B685,Inputs!$C$68:$AK$129,MATCH($B689,Inputs!$C$68:$AK$68,0),FALSE))","v":26.347371767734501},{"$f":"IF($B685=\"Blank\",0,VLOOKUP($B685,Inputs!$C$68:$AK$129,MATCH($B689,Inputs!$C$68:$AK$68,0),FALSE))","v":26.347371767734501},null,null,"Lamp Service costs Annualised",7.2184580185573974,7.2184580185573974]
[null,{"$f":"Inputs!$M$68","v":"PE Cell Service costs Annualised"},null,null,{"$f":"IF($B685=\"Blank\",0,VLOOKUP($B685,Inputs!$C$68:$AK$129,MATCH($B690,Inputs!$C$68:$AK$68,0),FALSE))","v":0},{"$f":"IF($B685=\"Blank\",0,VLOOKUP($B685,Inputs!$C$68:$AK$129,MATCH($B690,Inputs!$C$68:$AK$68,0),FALSE))","v":0},null,null,"PE Cell Service costs Annualised",0,0]
[null,"Indirect Opex",null,null,{"$f":"IF($B685=\"Blank\",0,IF($B$8=\"Private Contract Lighting\",'Opex Weighting'!D$113,'Opex Weighting'!D$111))","v":13.654305575211096},{"$f":"IF($B685=\"Blank\",0,IF($B$8=\"Private Contract Lighting\",'Opex Weighting'!E$113,'Opex Weighting'!E$111))","v":13.545660760758196},null,null,"Indirect Opex",3.7409056370441354,3.7111399344543003]
[null,"Indirect Capex",null,null,{"$f":"IF($B686=\"Blank\",0,IF($B$8=\"Private Contract Lighting\",'Capex Weighting'!D$115,'Capex Weighting'!D$117))","v":0},{"$f":"IF($B686=\"Blank\",0,IF($B$8=\"Private Contract Lighting\",'Capex Weighting'!E$115,'Capex Weighting'!E$117))","v":0},null,null,"Indirect Capex",0,0]
[null,"Overhead Costs per light",null,null,{"$f":"IF($B685=\"Blank\",0,IF($B$8=\"Private Contract Lighting\",'Building Block'!C$49,'Building Block'!C$48))","v":11.222353166014571},{"$f":"IF($B685=\"Blank\",0,IF($B$8=\"Private Contract Lighting\",'Building Block'!D$49,'Building Block'!D$48))","v":11.512124256080179},null,null,"Overhead Costs per light",3.0746173057574167,3.1540066455014193]
[null,{"$f":"Inputs!$AH$68","v":"Bracket UNIT price"},0,null,"NA","NA",null,null,"Bracket UNIT price","",""]
[null,{"$f":"Inputs!$Y$68","v":"CAPEX Installation costs"},{"$f":"C694+1","v":1},null,"NA","NA",null,null,"CAPEX Installation costs","",""]
[null,{"$f":"Inputs!$X$68","v":"Luminaire UNIT price"},{"$f":"C695+1","v":2},null,"NA","NA",null,null,"Luminaire UNIT price","",""]
[null,{"$f":"Inputs!$Y$68","v":"CAPEX Installation costs"},3,null,"NA","NA",null,null,"CAPEX Installation costs","",""]
[null,null,null,null,{"$f":"SUM(E686:E697)","v":67.195730623047552},{"$f":"SUM(F686:F697)","v":67.258882200810859},null,null,null,{"$f":"ROUND(E698/J$2*100,3)","v":18.41},{"$f":"ROUND(F698/K$2*100,3)","v":18.427}]
[]
[{"$f":"A685+1","v":47},{"$f":"IFERROR(VLOOKUP($A700,Inputs!$B$68:$AK$129,MATCH($B$7,Inputs!$B$68:$AK$68,0),FALSE),\"Blank\")","v":"Blank"},null,null,null,null,null,null,{"$f":"IFERROR(VLOOKUP($A700,Inputs!$B$68:$AK$129,MATCH($B$7,Inputs!$B$68:$AK$68,0),FALSE),\"Blank\")","v":"Blank"}]
[null,{"$f":"Inputs!$R$68","v":"Lamp UNIT price Annualised Cost"},{"$f":"Inputs!$P$68","v":"Lamp Maintenance cycle"},null,{"$f":"IF($B700=\"Blank\",0,VLOOKUP($B700,Inputs!$C$68:$AK$129,MATCH($B701,Inputs!$C$68:$AK$68,0),FALSE))","v":0},{"$f":"IF($B700=\"Blank\",0,VLOOKUP($B700,Inputs!$C$68:$AK$129,MATCH($B701,Inputs!$C$68:$AK$68,0),FALSE))","v":0},null,null,{"$f":"B701","v":"Lamp UNIT price Annualised Cost"},{"$f":"IF(E701=\"NA\",\"\",E701/J$2*100)","v":0},{"$f":"IF(F701=\"NA\",\"\",F701/K$2*100)","v":0}]
[null,{"$f":"Inputs!$K$68","v":"PE Cell UNIT price Annualised Cost"},{"$f":"Inputs!$I$68","v":"PE Cell Maintenance Cycle"},null,{"$f":"IF($B700=\"Blank\",0,VLOOKUP($B700,Inputs!$C$68:$AK$129,MATCH($B702,Inputs!$C$68:$AK$68,0),FALSE))","v":0},{"$f":"IF($B700=\"Blank\",0,VLOOKUP($B700,Inputs!$C$68:$AK$129,MATCH($B702,Inputs!$C$68:$AK$68,0),FALSE))","v":0},null,null,"PE Cell UNIT price Annualised Cost",0,0]
[null,"Corp capex annuity per light",null,null,{"$f":"IF($B700=\"Blank\",0,'Corp Capex Annuity calcs'!F$109)","v":0},{"$f":"IF($B700=\"Blank\",0,'Corp Capex Annuity calcs'!G$109)","v":0},null,null,"Corp capex annuity per light",0,0]
[null,{"$f":"Inputs!$T$68","v":"Lamp Service costs Annualised"},null,null,{"$f":"IF($B700=\"Blank\",0,VLOOKUP($B700,Inputs!$C$68:$AK$129,MATCH($B704,Inputs!$C$68:$AK$68,0),FALSE))","v":0},{"$f":"IF($B700=\"Blank\",0,VLOOKUP($B700,Inputs!$C$68:$AK$129,MATCH($B704,Inputs!$C$68:$AK$68,0),FALSE))","v":0},null,null,"Lamp Service costs Annualised",0,0]
[null,{"$f":"Inputs!$M$68","v":"PE Cell Service costs Annualised"},null,null,{"$f":"IF($B700=\"Blank\",0,VLOOKUP($B700,Inputs!$C$68:$AK$129,MATCH($B705,Inputs!$C$68:$AK$68,0),FALSE))","v":0},{"$f":"IF($B700=\"Blank\",0,VLOOKUP($B700,Inputs!$C$68:$AK$129,MATCH($B705,Inputs!$C$68:$AK$68,0),FALSE))","v":0},null,null,"PE Cell Service costs Annualised",0,0]
[null,"Indirect Opex",null,null,{"$f":"IF($B700=\"Blank\",0,IF($B$8=\"Private Contract Lighting\",'Opex Weighting'!D$113,'Opex Weighting'!D$111))","v":0},{"$f":"IF($B700=\"Blank\",0,IF($B$8=\"Private Contract Lighting\",'Opex Weighting'!E$113,'Opex Weighting'!E$111))","v":0},null,null,"Indirect Opex",0,0]
[null,"Indirect Capex",null,null,{"$f":"IF($B701=\"Blank\",0,IF($B$8=\"Private Contract Lighting\",'Capex Weighting'!D$115,'Capex Weighting'!D$117))","v":0},{"$f":"IF($B701=\"Blank\",0,IF($B$8=\"Private Contract Lighting\",'Capex Weighting'!E$115,'Capex Weighting'!E$117))","v":0},null,null,"Indirect Capex",0,0]
[null,"Overhead Costs per light",null,null,{"$f":"IF($B700=\"Blank\",0,IF($B$8=\"Private Contract Lighting\",'Building Block'!C$49,'Building Block'!C$48))","v":0},{"$f":"IF($B700=\"Blank\",0,IF($B$8=\"Private Contract Lighting\",'Building Block'!D$49,'Building Block'!D$48))","v":0},null,null,"Overhead Costs per light",0,0]
[null,{"$f":"Inputs!$AH$68","v":"Bracket UNIT price"},0,null,"NA","NA",null,null,"Bracket UNIT price","",""]
[null,{"$f":"Inputs!$Y$68","v":"CAPEX Installation costs"},{"$f":"C709+1","v":1},null,"NA","NA",null,null,"CAPEX Installation costs","",""]
[null,{"$f":"Inputs!$X$68","v":"Luminaire UNIT price"},{"$f":"C710+1","v":2},null,"NA","NA",null,null,"Luminaire UNIT price","",""]
[null,{"$f":"Inputs!$Y$68","v":"CAPEX Installation costs"},3,null,"NA","NA",null,null,"CAPEX Installation costs","",""]
[null,null,null,null,{"$f":"SUM(E701:E712)","v":0},{"$f":"SUM(F701:F712)","v":0},null,null,null,{"$f":"ROUND(E713/J$2*100,3)","v":0},{"$f":"ROUND(F713/K$2*100,3)","v":0}]
[]
[{"$f":"A700+1","v":48},{"$f":"IFERROR(VLOOKUP($A715,Inputs!$B$68:$AK$129,MATCH($B$7,Inputs!$B$68:$AK$68,0),FALSE),\"Blank\")","v":"Blank"},null,null,null,null,null,null,{"$f":"IFERROR(VLOOKUP($A715,Inputs!$B$68:$AK$129,MATCH($B$7,Inputs!$B$68:$AK$68,0),FALSE),\"Blank\")","v":"Blank"}]
[null,{"$f":"Inputs!$R$68","v":"Lamp UNIT price Annualised Cost"},{"$f":"Inputs!$P$68","v":"Lamp Maintenance cycle"},null,{"$f":"IF($B715=\"Blank\",0,VLOOKUP($B715,Inputs!$C$68:$AK$129,MATCH($B716,Inputs!$C$68:$AK$68,0),FALSE))","v":0},{"$f":"IF($B715=\"Blank\",0,VLOOKUP($B715,Inputs!$C$68:$AK$129,MATCH($B716,Inputs!$C$68:$AK$68,0),FALSE))","v":0},null,null,{"$f":"B716","v":"Lamp UNIT price Annualised Cost"},{"$f":"IF(E716=\"NA\",\"\",E716/J$2*100)","v":0},{"$f":"IF(F716=\"NA\",\"\",F716/K$2*100)","v":0}]
[null,{"$f":"Inputs!$K$68","v":"PE Cell UNIT price Annualised Cost"},{"$f":"Inputs!$I$68","v":"PE Cell Maintenance Cycle"},null,{"$f":"IF($B715=\"Blank\",0,VLOOKUP($B715,Inputs!$C$68:$AK$129,MATCH($B717,Inputs!$C$68:$AK$68,0),FALSE))","v":0},{"$f":"IF($B715=\"Blank\",0,VLOOKUP($B715,Inputs!$C$68:$AK$129,MATCH($B717,Inputs!$C$68:$AK$68,0),FALSE))","v":0},null,null,"PE Cell UNIT price Annualised Cost",0,0]
[null,"Corp capex annuity per light",null,null,{"$f":"IF($B715=\"Blank\",0,'Corp Capex Annuity calcs'!F$109)","v":0},{"$f":"IF($B715=\"Blank\",0,'Corp Capex Annuity calcs'!G$109)","v":0},null,null,"Corp capex annuity per light",0,0]
[null,{"$f":"Inputs!$T$68","v":"Lamp Service costs Annualised"},null,null,{"$f":"IF($B715=\"Blank\",0,VLOOKUP($B715,Inputs!$C$68:$AK$129,MATCH($B719,Inputs!$C$68:$AK$68,0),FALSE))","v":0},{"$f":"IF($B715=\"Blank\",0,VLOOKUP($B715,Inputs!$C$68:$AK$129,MATCH($B719,Inputs!$C$68:$AK$68,0),FALSE))","v":0},null,null,"Lamp Service costs Annualised",0,0]
[null,{"$f":"Inputs!$M$68","v":"PE Cell Service costs Annualised"},null,null,{"$f":"IF($B715=\"Blank\",0,VLOOKUP($B715,Inputs!$C$68:$AK$129,MATCH($B720,Inputs!$C$68:$AK$68,0),FALSE))","v":0},{"$f":"IF($B715=\"Blank\",0,VLOOKUP($B715,Inputs!$C$68:$AK$129,MATCH($B720,Inputs!$C$68:$AK$68,0),FALSE))","v":0},null,null,"PE Cell Service costs Annualised",0,0]
[null,"Indirect Opex",null,null,{"$f":"IF($B715=\"Blank\",0,IF($B$8=\"Private Contract Lighting\",'Opex Weighting'!D$113,'Opex Weighting'!D$111))","v":0},{"$f":"IF($B715=\"Blank\",0,IF($B$8=\"Private Contract Lighting\",'Opex Weighting'!E$113,'Opex Weighting'!E$111))","v":0},null,null,"Indirect Opex",0,0]
[null,"Indirect Capex",null,null,{"$f":"IF($B716=\"Blank\",0,IF($B$8=\"Private Contract Lighting\",'Capex Weighting'!D$115,'Capex Weighting'!D$117))","v":0},{"$f":"IF($B716=\"Blank\",0,IF($B$8=\"Private Contract Lighting\",'Capex Weighting'!E$115,'Capex Weighting'!E$117))","v":0},null,null,"Indirect Capex",0,0]
[null,"Overhead Costs per light",null,null,{"$f":"IF($B715=\"Blank\",0,IF($B$8=\"Private Contract Lighting\",'Building Block'!C$49,'Building Block'!C$48))","v":0},{"$f":"IF($B715=\"Blank\",0,IF($B$8=\"Private Contract Lighting\",'Building Block'!D$49,'Building Block'!D$48))","v":0},null,null,"Overhead Costs per light",0,0]
[null,{"$f":"Inputs!$AH$68","v":"Bracket UNIT price"},0,null,"NA","NA",null,null,"Bracket UNIT price","",""]
[null,{"$f":"Inputs!$Y$68","v":"CAPEX Installation costs"},{"$f":"C724+1","v":1},null,"NA","NA",null,null,"CAPEX Installation costs","",""]
[null,{"$f":"Inputs!$X$68","v":"Luminaire UNIT price"},{"$f":"C725+1","v":2},null,"NA","NA",null,null,"Luminaire UNIT price","",""]
[null,{"$f":"Inputs!$Y$68","v":"CAPEX Installation costs"},3,null,"NA","NA",null,null,"CAPEX Installation costs","",""]
[null,null,null,null,{"$f":"SUM(E716:E727)","v":0},{"$f":"SUM(F716:F727)","v":0},null,null,null,{"$f":"ROUND(E728/J$2*100,3)","v":0},{"$f":"ROUND(F728/K$2*100,3)","v":0}]
[]
[{"$f":"A715+1","v":49},{"$f":"IFERROR(VLOOKUP($A730,Inputs!$B$68:$AK$129,MATCH($B$7,Inputs!$B$68:$AK$68,0),FALSE),\"Blank\")","v":"Blank"},null,null,null,null,null,null,{"$f":"IFERROR(VLOOKUP($A730,Inputs!$B$68:$AK$129,MATCH($B$7,Inputs!$B$68:$AK$68,0),FALSE),\"Blank\")","v":"Blank"}]
[null,{"$f":"Inputs!$R$68","v":"Lamp UNIT price Annualised Cost"},{"$f":"Inputs!$P$68","v":"Lamp Maintenance cycle"},null,{"$f":"IF($B730=\"Blank\",0,VLOOKUP($B730,Inputs!$C$68:$AK$129,MATCH($B731,Inputs!$C$68:$AK$68,0),FALSE))","v":0},{"$f":"IF($B730=\"Blank\",0,VLOOKUP($B730,Inputs!$C$68:$AK$129,MATCH($B731,Inputs!$C$68:$AK$68,0),FALSE))","v":0},null,null,{"$f":"B731","v":"Lamp UNIT price Annualised Cost"},{"$f":"IF(E731=\"NA\",\"\",E731/J$2*100)","v":0},{"$f":"IF(F731=\"NA\",\"\",F731/K$2*100)","v":0}]
[null,{"$f":"Inputs!$K$68","v":"PE Cell UNIT price Annualised Cost"},{"$f":"Inputs!$I$68","v":"PE Cell Maintenance Cycle"},null,{"$f":"IF($B730=\"Blank\",0,VLOOKUP($B730,Inputs!$C$68:$AK$129,MATCH($B732,Inputs!$C$68:$AK$68,0),FALSE))","v":0},{"$f":"IF($B730=\"Blank\",0,VLOOKUP($B730,Inputs!$C$68:$AK$129,MATCH($B732,Inputs!$C$68:$AK$68,0),FALSE))","v":0},null,null,"PE Cell UNIT price Annualised Cost",0,0]
[null,"Corp capex annuity per light",null,null,{"$f":"IF($B730=\"Blank\",0,'Corp Capex Annuity calcs'!F$109)","v":0},{"$f":"IF($B730=\"Blank\",0,'Corp Capex Annuity calcs'!G$109)","v":0},null,null,"Corp capex annuity per light",0,0]
[null,{"$f":"Inputs!$T$68","v":"Lamp Service costs Annualised"},null,null,{"$f":"IF($B730=\"Blank\",0,VLOOKUP($B730,Inputs!$C$68:$AK$129,MATCH($B734,Inputs!$C$68:$AK$68,0),FALSE))","v":0},{"$f":"IF($B730=\"Blank\",0,VLOOKUP($B730,Inputs!$C$68:$AK$129,MATCH($B734,Inputs!$C$68:$AK$68,0),FALSE))","v":0},null,null,"Lamp Service costs Annualised",0,0]
[null,{"$f":"Inputs!$M$68","v":"PE Cell Service costs Annualised"},null,null,{"$f":"IF($B730=\"Blank\",0,VLOOKUP($B730,Inputs!$C$68:$AK$129,MATCH($B735,Inputs!$C$68:$AK$68,0),FALSE))","v":0},{"$f":"IF($B730=\"Blank\",0,VLOOKUP($B730,Inputs!$C$68:$AK$129,MATCH($B735,Inputs!$C$68:$AK$68,0),FALSE))","v":0},null,null,"PE Cell Service costs Annualised",0,0]
[null,"Indirect Opex",null,null,{"$f":"IF($B730=\"Blank\",0,IF($B$8=\"Private Contract Lighting\",'Opex Weighting'!D$113,'Opex Weighting'!D$111))","v":0},{"$f":"IF($B730=\"Blank\",0,IF($B$8=\"Private Contract Lighting\",'Opex Weighting'!E$113,'Opex Weighting'!E$111))","v":0},null,null,"Indirect Opex",0,0]
[null,"Indirect Capex",null,null,{"$f":"IF($B731=\"Blank\",0,IF($B$8=\"Private Contract Lighting\",'Capex Weighting'!D$115,'Capex Weighting'!D$117))","v":0},{"$f":"IF($B731=\"Blank\",0,IF($B$8=\"Private Contract Lighting\",'Capex Weighting'!E$115,'Capex Weighting'!E$117))","v":0},null,null,"Indirect Capex",0,0]
[null,"Overhead Costs per light",null,null,{"$f":"IF($B730=\"Blank\",0,IF($B$8=\"Private Contract Lighting\",'Building Block'!C$49,'Building Block'!C$48))","v":0},{"$f":"IF($B730=\"Blank\",0,IF($B$8=\"Private Contract Lighting\",'Building Block'!D$49,'Building Block'!D$48))","v":0},null,null,"Overhead Costs per light",0,0]
[null,{"$f":"Inputs!$AH$68","v":"Bracket UNIT price"},0,null,"NA","NA",null,null,"Bracket UNIT price","",""]
[null,{"$f":"Inputs!$Y$68","v":"CAPEX Installation costs"},{"$f":"C739+1","v":1},null,"NA","NA",null,null,"CAPEX Installation costs","",""]
[null,{"$f":"Inputs!$X$68","v":"Luminaire UNIT price"},{"$f":"C740+1","v":2},null,"NA","NA",null,null,"Luminaire UNIT price","",""]
[null,{"$f":"Inputs!$Y$68","v":"CAPEX Installation costs"},3,null,"NA","NA",null,null,"CAPEX Installation costs","",""]
[null,null,null,null,{"$f":"SUM(E731:E742)","v":0},{"$f":"SUM(F731:F742)","v":0},null,null,null,{"$f":"ROUND(E743/J$2*100,3)","v":0},{"$f":"ROUND(F743/K$2*100,3)","v":0}]
[]
[{"$f":"A730+1","v":50},{"$f":"IFERROR(VLOOKUP($A745,Inputs!$B$68:$AK$129,MATCH($B$7,Inputs!$B$68:$AK$68,0),FALSE),\"Blank\")","v":"Blank"},null,null,null,null,null,null,{"$f":"IFERROR(VLOOKUP($A745,Inputs!$B$68:$AK$129,MATCH($B$7,Inputs!$B$68:$AK$68,0),FALSE),\"Blank\")","v":"Blank"}]
[null,{"$f":"Inputs!$R$68","v":"Lamp UNIT price Annualised Cost"},{"$f":"Inputs!$P$68","v":"Lamp Maintenance cycle"},null,{"$f":"IF($B745=\"Blank\",0,VLOOKUP($B745,Inputs!$C$68:$AK$129,MATCH($B746,Inputs!$C$68:$AK$68,0),FALSE))","v":0},{"$f":"IF($B745=\"Blank\",0,VLOOKUP($B745,Inputs!$C$68:$AK$129,MATCH($B746,Inputs!$C$68:$AK$68,0),FALSE))","v":0},null,null,{"$f":"B746","v":"Lamp UNIT price Annualised Cost"},{"$f":"IF(E746=\"NA\",\"\",E746/J$2*100)","v":0},{"$f":"IF(F746=\"NA\",\"\",F746/K$2*100)","v":0}]
[null,{"$f":"Inputs!$K$68","v":"PE Cell UNIT price Annualised Cost"},{"$f":"Inputs!$I$68","v":"PE Cell Maintenance Cycle"},null,{"$f":"IF($B745=\"Blank\",0,VLOOKUP($B745,Inputs!$C$68:$AK$129,MATCH($B747,Inputs!$C$68:$AK$68,0),FALSE))","v":0},{"$f":"IF($B745=\"Blank\",0,VLOOKUP($B745,Inputs!$C$68:$AK$129,MATCH($B747,Inputs!$C$68:$AK$68,0),FALSE))","v":0},null,null,"PE Cell UNIT price Annualised Cost",0,0]
[null,"Corp capex annuity per light",null,null,{"$f":"IF($B745=\"Blank\",0,'Corp Capex Annuity calcs'!F$109)","v":0},{"$f":"IF($B745=\"Blank\",0,'Corp Capex Annuity calcs'!G$109)","v":0},null,null,"Corp capex annuity per light",0,0]
[null,{"$f":"Inputs!$T$68","v":"Lamp Service costs Annualised"},null,null,{"$f":"IF($B745=\"Blank\",0,VLOOKUP($B745,Inputs!$C$68:$AK$129,MATCH($B749,Inputs!$C$68:$AK$68,0),FALSE))","v":0},{"$f":"IF($B745=\"Blank\",0,VLOOKUP($B745,Inputs!$C$68:$AK$129,MATCH($B749,Inputs!$C$68:$AK$68,0),FALSE))","v":0},null,null,"Lamp Service costs Annualised",0,0]
[null,{"$f":"Inputs!$M$68","v":"PE Cell Service costs Annualised"},null,null,{"$f":"IF($B745=\"Blank\",0,VLOOKUP($B745,Inputs!$C$68:$AK$129,MATCH($B750,Inputs!$C$68:$AK$68,0),FALSE))","v":0},{"$f":"IF($B745=\"Blank\",0,VLOOKUP($B745,Inputs!$C$68:$AK$129,MATCH($B750,Inputs!$C$68:$AK$68,0),FALSE))","v":0},null,null,"PE Cell Service costs Annualised",0,0]
[null,"Indirect Opex",null,null,{"$f":"IF($B745=\"Blank\",0,IF($B$8=\"Private Contract Lighting\",'Opex Weighting'!D$113,'Opex Weighting'!D$111))","v":0},{"$f":"IF($B745=\"Blank\",0,IF($B$8=\"Private Contract Lighting\",'Opex Weighting'!E$113,'Opex Weighting'!E$111))","v":0},null,null,"Indirect Opex",0,0]
[null,"Indirect Capex",null,null,{"$f":"IF($B746=\"Blank\",0,IF($B$8=\"Private Contract Lighting\",'Capex Weighting'!D$115,'Capex Weighting'!D$117))","v":0},{"$f":"IF($B746=\"Blank\",0,IF($B$8=\"Private Contract Lighting\",'Capex Weighting'!E$115,'Capex Weighting'!E$117))","v":0},null,null,"Indirect Capex",0,0]
[null,"Overhead Costs per light",null,null,{"$f":"IF($B745=\"Blank\",0,IF($B$8=\"Private Contract Lighting\",'Building Block'!C$49,'Building Block'!C$48))","v":0},{"$f":"IF($B745=\"Blank\",0,IF($B$8=\"Private Contract Lighting\",'Building Block'!D$49,'Building Block'!D$48))","v":0},null,null,"Overhead Costs per light",0,0]
[null,{"$f":"Inputs!$AH$68","v":"Bracket UNIT price"},0,null,"NA","NA",null,null,"Bracket UNIT price","",""]
[null,{"$f":"Inputs!$Y$68","v":"CAPEX Installation costs"},{"$f":"C754+1","v":1},null,"NA","NA",null,null,"CAPEX Installation costs","",""]
[null,{"$f":"Inputs!$X$68","v":"Luminaire UNIT price"},{"$f":"C755+1","v":2},null,"NA","NA",null,null,"Luminaire UNIT price","",""]
[null,{"$f":"Inputs!$Y$68","v":"CAPEX Installation costs"},3,null,"NA","NA",null,null,"CAPEX Installation costs","",""]
[null,null,null,null,{"$f":"SUM(E746:E757)","v":0},{"$f":"SUM(F746:F757)","v":0},null,null,null,{"$f":"ROUND(E758/J$2*100,3)","v":0},{"$f":"ROUND(F758/K$2*100,3)","v":0}]

{"sheet":"Combined Annuity Prices PL","index":9,"n_rows":758,"n_cols":11,"rows_kept":758,"cut":false,"hidden":false,"merged":[[3,4,3,5],[3,9,3,10]]}
[null,null,null,null,null,null,null,null,{"$f":"'Master Data'!H$22","v":"2017-06-30"},{"$f":"'Master Data'!I$22","v":"2018-06-30"},{"$f":"'Master Data'!J$22","v":"2019-06-30"}]
[null,null,null,null,null,null,null,null,null,{"$f":"HLOOKUP(J1,'Master Data'!$B$22:$P$23,2,FALSE)","v":365},{"$f":"HLOOKUP(K1,'Master Data'!$B$22:$P$23,2,FALSE)","v":365}]
[null,null,null,null,{"$f":"'Master Data'!I29","v":"2017-18"},{"$f":"'Master Data'!J29","v":"2018-19"},null,null,null,{"$f":"'Master Data'!I29","v":"2017-18"},{"$f":"'Master Data'!J29","v":"2018-19"}]
[null,null,null,null,"Cost $ Per year",null,null,null,null,"Cost Cents per Day"]
[]
[null,"Lookup/Offset",null,"Offset",13,{"$f":"E6+1","v":14}]
[null,{"$f":"Inputs!$C$68","v":"Light Description"},null,"Useful Life"]
[null,"Public Lighting"]
[]
[1,{"$f":"IFERROR(VLOOKUP($A10,Inputs!$B$68:$AK$129,MATCH($B$7,Inputs!$B$68:$AK$68,0),FALSE),\"Blank\")","v":"32W Compact Fluorescent"},null,null,null,null,null,null,{"$f":"IFERROR(VLOOKUP($A10,Inputs!$B$68:$AK$129,MATCH($B$7,Inputs!$B$68:$AK$68,0),FALSE),\"Blank\")","v":"32W Compact Fluorescent"}]
[null,{"$f":"Inputs!$R$68","v":"Lamp UNIT price Annualised Cost"},{"$f":"Inputs!$P$68","v":"Lamp Maintenance cycle"},null,{"$f":"IF($B10=\"Blank\",0,VLOOKUP($B10,Inputs!$C$68:$AK$129,MATCH($B11,Inputs!$C$68:$AK$68,0),FALSE))","v":1.0984639624469332},{"$f":"IF($B10=\"Blank\",0,VLOOKUP($B10,Inputs!$C$68:$AK$129,MATCH($B11,Inputs!$C$68:$AK$68,0),FALSE))","v":1.0984639624469332},null,null,{"$f":"B11","v":"Lamp UNIT price Annualised Cost"},{"$f":"IF(E11=\"NA\",\"\",E11/J$2*100)","v":0.30094903080737895},{"$f":"IF(F11=\"NA\",\"\",F11/K$2*100)","v":0.30094903080737895}]
[null,{"$f":"Inputs!$K$68","v":"PE Cell UNIT price Annualised Cost"},{"$f":"Inputs!$I$68","v":"PE Cell Maintenance Cycle"},null,{"$f":"IF($B10=\"Blank\",0,VLOOKUP($B10,Inputs!$C$68:$AK$129,MATCH($B12,Inputs!$C$68:$AK$68,0),FALSE))","v":0.6107414998224272},{"$f":"IF($B10=\"Blank\",0,VLOOKUP($B10,Inputs!$C$68:$AK$129,MATCH($B12,Inputs!$C$68:$AK$68,0),FALSE))","v":0.6107414998224272},null,null,"PE Cell UNIT price Annualised Cost",0.16732643830751431,0.16732643830751431]
[null,"Corp capex annuity per light",null,null,{"$f":"IF($B10=\"Blank\",0,'Corp Capex Annuity calcs'!F$109)","v":14.826870317655803},{"$f":"IF($B10=\"Blank\",0,'Corp Capex Annuity calcs'!G$109)","v":14.708895619806404},null,null,"Corp capex annuity per light",4.0621562514125493,4.0298344163853157]
[null,{"$f":"Inputs!$T$68","v":"Lamp Service costs Annualised"},null,null,{"$f":"IF($B10=\"Blank\",0,VLOOKUP($B10,Inputs!$C$68:$AK$129,MATCH($B14,Inputs!$C$68:$AK$68,0),FALSE))","v":26.347371767734501},{"$f":"IF($B10=\"Blank\",0,VLOOKUP($B10,Inputs!$C$68:$AK$129,MATCH($B14,Inputs!$C$68:$AK$68,0),FALSE))","v":26.347371767734501},null,null,"Lamp Service costs Annualised",7.2184580185573974,7.2184580185573974]
[null,{"$f":"Inputs!$M$68","v":"PE Cell Service costs Annualised"},null,null,{"$f":"IF($B10=\"Blank\",0,VLOOKUP($B10,Inputs!$C$68:$AK$129,MATCH($B15,Inputs!$C$68:$AK$68,0),FALSE))","v":0},{"$f":"IF($B10=\"Blank\",0,VLOOKUP($B10,Inputs!$C$68:$AK$129,MATCH($B15,Inputs!$C$68:$AK$68,0),FALSE))","v":0},null,null,"PE Cell Service costs Annualised",0,0]
[null,"Indirect Opex",null,null,{"$f":"IF($B10=\"Blank\",0,IF($B$8=\"Private Contract Lighting\",'Opex Weighting'!D$113,'Opex Weighting'!D$111))","v":24.081834785768372},{"$f":"IF($B10=\"Blank\",0,IF($B$8=\"Private Contract Lighting\",'Opex Weighting'!E$113,'Opex Weighting'!E$111))","v":25.134626053693843},null,null,"Indirect Opex",6.5977629550050336,6.8861989188202317]
[null,"Indirect Capex",null,null,{"$f":"'Capex Weighting'!D$115","v":0},{"$f":"'Capex Weighting'!E$114","v":0},null,null,"Indirect Capex",0,0]
[null,"Overhead Costs per light",null,null,{"$f":"IF($B10=\"Blank\",0,IF($B$8=\"Private Contract Lighting\",'Building Block'!C$49,'Building Block'!C$48))","v":27.508265089316332},{"$f":"IF($B10=\"Blank\",0,IF($B$8=\"Private Contract Lighting\",'Building Block'!D$49,'Building Block'!D$48))","v":27.450442561572103},null,null,"Overhead Costs per light",7.5365109833743382,7.5206691949512612]
[null,{"$f":"Inputs!$AH$68","v":"Bracket UNIT price"},0,null,{"$f":"IF($B10=\"Blank\",0,OFFSET('CAPEX Annuity calcs'!$B$9,MATCH($B10,'CAPEX Annuity calcs'!$B$9:$B$500,0)+$C19,E$6))","v":3.7541481445031155},{"$f":"IF($B10=\"Blank\",0,OFFSET('CAPEX Annuity calcs'!$B$9,MATCH($B10,'CAPEX Annuity calcs'!$B$9:$B$500,0)+$C19,F$6))","v":3.7541481445031155},null,null,"Bracket UNIT price",1.0285337382200317,1.0285337382200317]
[null,{"$f":"Inputs!$Y$68","v":"CAPEX Installation costs"},{"$f":"C19+1","v":1},null,{"$f":"IF($B10=\"Blank\",0,OFFSET('CAPEX Annuity calcs'!$B$9,MATCH($B10,'CAPEX Annuity calcs'!$B$9:$B$500,0)+$C20,E$6))","v":0},{"$f":"IF($B10=\"Blank\",0,OFFSET('CAPEX Annuity calcs'!$B$9,MATCH($B10,'CAPEX Annuity calcs'!$B$9:$B$500,0)+$C20,F$6))","v":0},null,null,"CAPEX Installation costs",0,0]
[null,{"$f":"Inputs!$X$68","v":"Luminaire UNIT price"},{"$f":"C20+1","v":2},null,{"$f":"IF($B10=\"Blank\",0,OFFSET('CAPEX Annuity calcs'!$B$9,MATCH($B10,'CAPEX Annuity calcs'!$B$9:$B$500,0)+$C21,E$6))","v":13.893650526169594},{"$f":"IF($B10=\"Blank\",0,OFFSET('CAPEX Annuity calcs'!$B$9,MATCH($B10,'CAPEX Annuity calcs'!$B$9:$B$500,0)+$C21,F$6))","v":13.893650526169594},null,null,"Luminaire UNIT price",3.8064795962108473,3.8064795962108473]
[null,{"$f":"Inputs!$Y$68","v":"CAPEX Installation costs"},3,null,{"$f":"IF($B10=\"Blank\",0,OFFSET('CAPEX Annuity calcs'!$B$9,MATCH($B10,'CAPEX Annuity calcs'!$B$9:$B$500,0)+$C22,E$6))","v":17.165250199817599},{"$f":"IF($B10=\"Blank\",0,OFFSET('CAPEX Annuity calcs'!$B$9,MATCH($B10,'CAPEX Annuity calcs'!$B$9:$B$500,0)+$C22,F$6))","v":17.165250199817599},null,null,"CAPEX Installation costs",4.7028082739226296,4.7028082739226296]
[null,null,null,null,{"$f":"SUM(E11:E22)","v":129.28659629323468},{"$f":"SUM(F11:F22)","v":130.16359033556651},null,null,null,{"$f":"ROUND(E23/J$2*100,3)","v":35.420999999999999},{"$f":"ROUND(F23/K$2*100,3)","v":35.661000000000001}]
[]
[{"$f":"A10+1","v":2},{"$f":"IFERROR(VLOOKUP($A25,Inputs!$B$68:$AK$129,MATCH($B$7,Inputs!$B$68:$AK$68,0),FALSE),\"Blank\")","v":"42W Compact Fluorescent"},null,null,null,null,null,null,{"$f":"IFERROR(VLOOKUP($A25,Inputs!$B$68:$AK$129,MATCH($B$7,Inputs!$B$68:$AK$68,0),FALSE),\"Blank\")","v":"42W Compact Fluorescent"}]
[null,{"$f":"Inputs!$R$68","v":"Lamp UNIT price Annualised Cost"},{"$f":"Inputs!$P$68","v":"Lamp Maintenance cycle"},null,{"$f":"IF($B25=\"Blank\",0,VLOOKUP($B25,Inputs!$C$68:$AK$129,MATCH($B26,Inputs!$C$68:$AK$68,0),FALSE))","v":1.0984639624469332},{"$f":"IF($B25=\"Blank\",0,VLOOKUP($B25,Inputs!$C$68:$AK$129,MATCH($B26,Inputs!$C$68:$AK$68,0),FALSE))","v":1.0984639624469332},null,null,{"$f":"B26","v":"Lamp UNIT price Annualised Cost"},{"$f":"IF(E26=\"NA\",\"\",E26/J$2*100)","v":0.30094903080737895},{"$f":"IF(F26=\"NA\",\"\",F26/K$2*100)","v":0.30094903080737895}]
[null,{"$f":"Inputs!$K$68","v":"PE Cell UNIT price Annualised Cost"},{"$f":"Inputs!$I$68","v":"PE Cell Maintenance Cycle"},null,{"$f":"IF($B25=\"Blank\",0,VLOOKUP($B25,Inputs!$C$68:$AK$129,MATCH($B27,Inputs!$C$68:$AK$68,0),FALSE))","v":0.6107414998224272},{"$f":"IF($B25=\"Blank\",0,VLOOKUP($B25,Inputs!$C$68:$AK$129,MATCH($B27,Inputs!$C$68:$AK$68,0),FALSE))","v":0.6107414998224272},null,null,"PE Cell UNIT price Annualised Cost",0.16732643830751431,0.16732643830751431]
[null,"Corp capex annuity per light",null,null,{"$f":"IF($B25=\"Blank\",0,'Corp Capex Annuity calcs'!F$109)","v":14.826870317655803},{"$f":"IF($B25=\"Blank\",0,'Corp Capex Annuity calcs'!G$109)","v":14.708895619806404},null,null,"Corp capex annuity per light",4.0621562514125493,4.0298344163853157]
[null,{"$f":"Inputs!$T$68","v":"Lamp Service costs Annualised"},null,null,{"$f":"IF($B25=\"Blank\",0,VLOOKUP($B25,Inputs!$C$68:$AK$129,MATCH($B29,Inputs!$C$68:$AK$68,0),FALSE))","v":26.347371767734501},{"$f":"IF($B25=\"Blank\",0,VLOOKUP($B25,Inputs!$C$68:$AK$129,MATCH($B29,Inputs!$C$68:$AK$68,0),FALSE))","v":26.347371767734501},null,null,"Lamp Service costs Annualised",7.2184580185573974,7.2184580185573974]
[null,{"$f":"Inputs!$M$68","v":"PE Cell Service costs Annualised"},null,null,{"$f":"IF($B25=\"Blank\",0,VLOOKUP($B25,Inputs!$C$68:$AK$129,MATCH($B30,Inputs!$C$68:$AK$68,0),FALSE))","v":0},{"$f":"IF($B25=\"Blank\",0,VLOOKUP($B25,Inputs!$C$68:$AK$129,MATCH($B30,Inputs!$C$68:$AK$68,0),FALSE))","v":0},null,null,"PE Cell Service costs Annualised",0,0]
[null,"Indirect Opex",null,null,{"$f":"IF($B25=\"Blank\",0,IF($B$8=\"Private Contract Lighting\",'Opex Weighting'!D$113,'Opex Weighting'!D$111))","v":24.081834785768372},{"$f":"IF($B25=\"Blank\",0,IF($B$8=\"Private Contract Lighting\",'Opex Weighting'!E$113,'Opex Weighting'!E$111))","v":25.134626053693843},null,null,"Indirect Opex",6.5977629550050336,6.8861989188202317]
[null,"Indirect Capex",null,null,{"$f":"'Capex Weighting'!D$115","v":0},{"$f":"'Capex Weighting'!E$114","v":0},null,null,"Indirect Capex",0,0]
[null,"Overhead Costs per light",null,null,{"$f":"IF($B25=\"Blank\",0,IF($B$8=\"Private Contract Lighting\",'Building Block'!C$49,'Building Block'!C$48))","v":27.508265089316332},{"$f":"IF($B25=\"Blank\",0,IF($B$8=\"Private Contract Lighting\",'Building Block'!D$49,'Building Block'!D$48))","v":27.450442561572103},null,null,"Overhead Costs per light",7.5365109833743382,7.5206691949512612]
[null,{"$f":"Inputs!$AH$68","v":"Bracket UNIT price"},0,null,{"$f":"IF($B25=\"Blank\",0,OFFSET('CAPEX Annuity calcs'!$B$9,MATCH($B25,'CAPEX Annuity calcs'!$B$9:$B$500,0)+$C34,E$6))","v":3.8424329541525415},{"$f":"IF($B25=\"Blank\",0,OFFSET('CAPEX Annuity calcs'!$B$9,MATCH($B25,'CAPEX Annuity calcs'!$B$9:$B$500,0)+$C34,F$6))","v":3.8424329541525415},null,null,"Bracket UNIT price",1.0527213573020662,1.0527213573020662]
[null,{"$f":"Inputs!$Y$68","v":"CAPEX Installation costs"},{"$f":"C34+1","v":1},null,{"$f":"IF($B25=\"Blank\",0,OFFSET('CAPEX Annuity calcs'!$B$9,MATCH($B25,'CAPEX Annuity calcs'!$B$9:$B$500,0)+$C35,E$6))","v":0},{"$f":"IF($B25=\"Blank\",0,OFFSET('CAPEX Annuity calcs'!$B$9,MATCH($B25,'CAPEX Annuity calcs'!$B$9:$B$500,0)+$C35,F$6))","v":0},null,null,"CAPEX Installation costs",0,0]
[null,{"$f":"Inputs!$X$68","v":"Luminaire UNIT price"},{"$f":"C35+1","v":2},null,{"$f":"IF($B25=\"Blank\",0,OFFSET('CAPEX Annuity calcs'!$B$9,MATCH($B25,'CAPEX Annuity calcs'!$B$9:$B$500,0)+$C36,E$6))","v":13.893650526169594},{"$f":"IF($B25=\"Blank\",0,OFFSET('CAPEX Annuity calcs'!$B$9,MATCH($B25,'CAPEX Annuity calcs'!$B$9:$B$500,0)+$C36,F$6))","v":13.893650526169594},null,null,"Luminaire UNIT price",3.8064795962108473,3.8064795962108473]
[null,{"$f":"Inputs!$Y$68","v":"CAPEX Installation costs"},3,null,{"$f":"IF($B25=\"Blank\",0,OFFSET('CAPEX Annuity calcs'!$B$9,MATCH($B25,'CAPEX Annuity calcs'!$B$9:$B$500,0)+$C37,E$6))","v":17.165250199817599},{"$f":"IF($B25=\"Blank\",0,OFFSET('CAPEX Annuity calcs'!$B$9,MATCH($B25,'CAPEX Annuity calcs'!$B$9:$B$500,0)+$C37,F$6))","v":17.165250199817599},null,null,"CAPEX Installation costs",4.7028082739226296,4.7028082739226296]
[null,null,null,null,{"$f":"SUM(E26:E37)","v":129.3748811028841},{"$f":"SUM(F26:F37)","v":130.25187514521593},null,null,null,{"$f":"ROUND(E38/J$2*100,3)","v":35.445},{"$f":"ROUND(F38/K$2*100,3)","v":35.685000000000002}]
[]
[{"$f":"A25+1","v":3},{"$f":"IFERROR(VLOOKUP($A40,Inputs!$B$68:$AK$129,MATCH($B$7,Inputs!$B$68:$AK$68,0),FALSE),\"Blank\")","v":"42W Compact Fluorescent - Bottom Pole Entry"},null,null,null,null,null,null,{"$f":"IFERROR(VLOOKUP($A40,Inputs!$B$68:$AK$129,MATCH($B$7,Inputs!$B$68:$AK$68,0),FALSE),\"Blank\")","v":"42W Compact Fluorescent - Bottom Pole Entry"}]
[null,{"$f":"Inputs!$R$68","v":"Lamp UNIT price Annualised Cost"},{"$f":"Inputs!$P$68","v":"Lamp Maintenance cycle"},null,{"$f":"IF($B40=\"Blank\",0,VLOOKUP($B40,Inputs!$C$68:$AK$129,MATCH($B41,Inputs!$C$68:$AK$68,0),FALSE))","v":1.0984639624469332},{"$f":"IF($B40=\"Blank\",0,VLOOKUP($B40,Inputs!$C$68:$AK$129,MATCH($B41,Inputs!$C$68:$AK$68,0),FALSE))","v":1.0984639624469332},null,null,{"$f":"B41","v":"Lamp UNIT price Annualised Cost"},{"$f":"IF(E41=\"NA\",\"\",E41/J$2*100)","v":0.30094903080737895},{"$f":"IF(F41=\"NA\",\"\",F41/K$2*100)","v":0.30094903080737895}]
[null,{"$f":"Inputs!$K$68","v":"PE Cell UNIT price Annualised Cost"},{"$f":"Inputs!$I$68","v":"PE Cell Maintenance Cycle"},null,{"$f":"IF($B40=\"Blank\",0,VLOOKUP($B40,Inputs!$C$68:$AK$129,MATCH($B42,Inputs!$C$68:$AK$68,0),FALSE))","v":0.6107414998224272},{"$f":"IF($B40=\"Blank\",0,VLOOKUP($B40,Inputs!$C$68:$AK$129,MATCH($B42,Inputs!$C$68:$AK$68,0),FALSE))","v":0.6107414998224272},null,null,"PE Cell UNIT price Annualised Cost",0.16732643830751431,0.16732643830751431]
[null,"Corp capex annuity per light",null,null,{"$f":"IF($B40=\"Blank\",0,'Corp Capex Annuity calcs'!F$109)","v":14.826870317655803},{"$f":"IF($B40=\"Blank\",0,'Corp Capex Annuity calcs'!G$109)","v":14.708895619806404},null,null,"Corp capex annuity per light",4.0621562514125493,4.0298344163853157]
[null,{"$f":"Inputs!$T$68","v":"Lamp Service costs Annualised"},null,null,{"$f":"IF($B40=\"Blank\",0,VLOOKUP($B40,Inputs!$C$68:$AK$129,MATCH($B44,Inputs!$C$68:$AK$68,0),FALSE))","v":26.347371767734501},{"$f":"IF($B40=\"Blank\",0,VLOOKUP($B40,Inputs!$C$68:$AK$129,MATCH($B44,Inputs!$C$68:$AK$68,0),FALSE))","v":26.347371767734501},null,null,"Lamp Service costs Annualised",7.2184580185573974,7.2184580185573974]
[null,{"$f":"Inputs!$M$68","v":"PE Cell Service costs Annualised"},null,null,{"$f":"IF($B40=\"Blank\",0,VLOOKUP($B40,Inputs!$C$68:$AK$129,MATCH($B45,Inputs!$C$68:$AK$68,0),FALSE))","v":0},{"$f":"IF($B40=\"Blank\",0,VLOOKUP($B40,Inputs!$C$68:$AK$129,MATCH($B45,Inputs!$C$68:$AK$68,0),FALSE))","v":0},null,null,"PE Cell Service costs Annualised",0,0]
[null,"Indirect Opex",null,null,{"$f":"IF($B40=\"Blank\",0,IF($B$8=\"Private Contract Lighting\",'Opex Weighting'!D$113,'Opex Weighting'!D$111))","v":24.081834785768372},{"$f":"IF($B40=\"Blank\",0,IF($B$8=\"Private Contract Lighting\",'Opex Weighting'!E$113,'Opex Weighting'!E$111))","v":25.134626053693843},null,null,"Indirect Opex",6.5977629550050336,6.8861989188202317]
[null,"Indirect Capex",null,null,{"$f":"'Capex Weighting'!D$115","v":0},{"$f":"'Capex Weighting'!E$114","v":0},null,null,"Indirect Capex",0,0]
[null,"Overhead Costs per light",null,null,{"$f":"IF($B40=\"Blank\",0,IF($B$8=\"Private Contract Lighting\",'Building Block'!C$49,'Building Block'!C$48))","v":27.508265089316332},{"$f":"IF($B40=\"Blank\",0,IF($B$8=\"Private Contract Lighting\",'Building Block'!D$49,'Building Block'!D$48))","v":27.450442561572103},null,null,"Overhead Costs per light",7.5365109833743382,7.5206691949512612]
[null,{"$f":"Inputs!$AH$68","v":"Bracket UNIT price"},0,null,{"$f":"IF($B40=\"Blank\",0,OFFSET('CAPEX Annuity calcs'!$B$9,MATCH($B40,'CAPEX Annuity calcs'!$B$9:$B$500,0)+$C49,E$6))","v":3.8424329541525415},{"$f":"IF($B40=\"Blank\",0,OFFSET('CAPEX Annuity calcs'!$B$9,MATCH($B40,'CAPEX Annuity calcs'!$B$9:$B$500,0)+$C49,F$6))","v":3.8424329541525415},null,null,"Bracket UNIT price",1.0527213573020662,1.0527213573020662]
[null,{"$f":"Inputs!$Y$68","v":"CAPEX Installation costs"},{"$f":"C49+1","v":1},null,{"$f":"IF($B40=\"Blank\",0,OFFSET('CAPEX Annuity calcs'!$B$9,MATCH($B40,'CAPEX Annuity calcs'!$B$9:$B$500,0)+$C50,E$6))","v":0},{"$f":"IF($B40=\"Blank\",0,OFFSET('CAPEX Annuity calcs'!$B$9,MATCH($B40,'CAPEX Annuity calcs'!$B$9:$B$500,0)+$C50,F$6))","v":0},null,null,"CAPEX Installation costs",0,0]
[null,{"$f":"Inputs!$X$68","v":"Luminaire UNIT price"},{"$f":"C50+1","v":2},null,{"$f":"IF($B40=\"Blank\",0,OFFSET('CAPEX Annuity calcs'!$B$9,MATCH($B40,'CAPEX Annuity calcs'!$B$9:$B$500,0)+$C51,E$6))","v":13.893650526169594},{"$f":"IF($B40=\"Blank\",0,OFFSET('CAPEX Annuity calcs'!$B$9,MATCH($B40,'CAPEX Annuity calcs'!$B$9:$B$500,0)+$C51,F$6))","v":13.893650526169594},null,null,"Luminaire UNIT price",3.8064795962108473,3.8064795962108473]
[null,{"$f":"Inputs!$Y$68","v":"CAPEX Installation costs"},3,null,{"$f":"IF($B40=\"Blank\",0,OFFSET('CAPEX Annuity calcs'!$B$9,MATCH($B40,'CAPEX Annuity calcs'!$B$9:$B$500,0)+$C52,E$6))","v":17.165250199817599},{"$f":"IF($B40=\"Blank\",0,OFFSET('CAPEX Annuity calcs'!$B$9,MATCH($B40,'CAPEX Annuity calcs'!$B$9:$B$500,0)+$C52,F$6))","v":17.165250199817599},null,null,"CAPEX Installation costs",4.7028082739226296,4.7028082739226296]
[null,null,null,null,{"$f":"SUM(E41:E52)","v":129.3748811028841},{"$f":"SUM(F41:F52)","v":130.25187514521593},null,null,null,{"$f":"ROUND(E53/J$2*100,3)","v":35.445},{"$f":"ROUND(F53/K$2*100,3)","v":35.685000000000002}]
[]
[{"$f":"A40+1","v":4},{"$f":"IFERROR(VLOOKUP($A55,Inputs!$B$68:$AK$129,MATCH($B$7,Inputs!$B$68:$AK$68,0),FALSE),\"Blank\")","v":"2x24W Compact Fluorescent"},null,null,null,null,null,null,{"$f":"IFERROR(VLOOKUP($A55,Inputs!$B$68:$AK$129,MATCH($B$7,Inputs!$B$68:$AK$68,0),FALSE),\"Blank\")","v":"2x24W Compact Fluorescent"}]
[null,{"$f":"Inputs!$R$68","v":"Lamp UNIT price Annualised Cost"},{"$f":"Inputs!$P$68","v":"Lamp Maintenance cycle"},null,{"$f":"IF($B55=\"Blank\",0,VLOOKUP($B55,Inputs!$C$68:$AK$129,MATCH($B56,Inputs!$C$68:$AK$68,0),FALSE))","v":2.1969279248938665},{"$f":"IF($B55=\"Blank\",0,VLOOKUP($B55,Inputs!$C$68:$AK$129,MATCH($B56,Inputs!$C$68:$AK$68,0),FALSE))","v":2.1969279248938665},null,null,{"$f":"B56","v":"Lamp UNIT price Annualised Cost"},{"$f":"IF(E56=\"NA\",\"\",E56/J$2*100)","v":0.6018980616147579},{"$f":"IF(F56=\"NA\",\"\",F56/K$2*100)","v":0.6018980616147579}]
[null,{"$f":"Inputs!$K$68","v":"PE Cell UNIT price Annualised Cost"},{"$f":"Inputs!$I$68","v":"PE Cell Maintenance Cycle"},null,{"$f":"IF($B55=\"Blank\",0,VLOOKUP($B55,Inputs!$C$68:$AK$129,MATCH($B57,Inputs!$C$68:$AK$68,0),FALSE))","v":0.6107414998224272},{"$f":"IF($B55=\"Blank\",0,VLOOKUP($B55,Inputs!$C$68:$AK$129,MATCH($B57,Inputs!$C$68:$AK$68,0),FALSE))","v":0.6107414998224272},null,null,"PE Cell UNIT price Annualised Cost",0.16732643830751431,0.16732643830751431]
[null,"Corp capex annuity per light",null,null,{"$f":"IF($B55=\"Blank\",0,'Corp Capex Annuity calcs'!F$109)","v":14.826870317655803},{"$f":"IF($B55=\"Blank\",0,'Corp Capex Annuity calcs'!G$109)","v":14.708895619806404},null,null,"Corp capex annuity per light",4.0621562514125493,4.0298344163853157]
[null,{"$f":"Inputs!$T$68","v":"Lamp Service costs Annualised"},null,null,{"$f":"IF($B55=\"Blank\",0,VLOOKUP($B55,Inputs!$C$68:$AK$129,MATCH($B59,Inputs!$C$68:$AK$68,0),FALSE))","v":26.347371767734501},{"$f":"IF($B55=\"Blank\",0,VLOOKUP($B55,Inputs!$C$68:$AK$129,MATCH($B59,Inputs!$C$68:$AK$68,0),FALSE))","v":26.347371767734501},null,null,"Lamp Service costs Annualised",7.2184580185573974,7.2184580185573974]
[null,{"$f":"Inputs!$M$68","v":"PE Cell Service costs Annualised"},null,null,{"$f":"IF($B55=\"Blank\",0,VLOOKUP($B55,Inputs!$C$68:$AK$129,MATCH($B60,Inputs!$C$68:$AK$68,0),FALSE))","v":0},{"$f":"IF($B55=\"Blank\",0,VLOOKUP($B55,Inputs!$C$68:$AK$129,MATCH($B60,Inputs!$C$68:$AK$68,0),FALSE))","v":0},null,null,"PE Cell Service costs Annualised",0,0]
[null,"Indirect Opex",null,null,{"$f":"IF($B55=\"Blank\",0,IF($B$8=\"Private Contract Lighting\",'Opex Weighting'!D$113,'Opex Weighting'!D$111))","v":24.081834785768372},{"$f":"IF($B55=\"Blank\",0,IF($B$8=\"Private Contract Lighting\",'Opex Weighting'!E$113,'Opex Weighting'!E$111))","v":25.134626053693843},null,null,"Indirect Opex",6.5977629550050336,6.8861989188202317]
[null,"Indirect Capex",null,null,{"$f":"'Capex Weighting'!D$115","v":0},{"$f":"'Capex Weighting'!E$114","v":0},null,null,"Indirect Capex",0,0]
[null,"Overhead Costs per light",null,null,{"$f":"IF($B55=\"Blank\",0,IF($B$8=\"Private Contract Lighting\",'Building Block'!C$49,'Building Block'!C$48))","v":27.508265089316332},{"$f":"IF($B55=\"Blank\",0,IF($B$8=\"Private Contract Lighting\",'Building Block'!D$49,'Building Block'!D$48))","v":27.450442561572103},null,null,"Overhead Costs per light",7.5365109833743382,7.5206691949512612]
[null,{"$f":"Inputs!$AH$68","v":"Bracket UNIT price"},0,null,{"$f":"IF($B55=\"Blank\",0,OFFSET('CAPEX Annuity calcs'!$B$9,MATCH($B55,'CAPEX Annuity calcs'!$B$9:$B$500,0)+$C64,E$6))","v":3.8420943738662539},{"$f":"IF($B55=\"Blank\",0,OFFSET('CAPEX Annuity calcs'!$B$9,MATCH($B55,'CAPEX Annuity calcs'!$B$9:$B$500,0)+$C64,F$6))","v":3.8420943738662539},null,null,"Bracket UNIT price",1.0526285955797956,1.0526285955797956]
[null,{"$f":"Inputs!$Y$68","v":"CAPEX Installation costs"},{"$f":"C64+1","v":1},null,{"$f":"IF($B55=\"Blank\",0,OFFSET('CAPEX Annuity calcs'!$B$9,MATCH($B55,'CAPEX Annuity calcs'!$B$9:$B$500,0)+$C65,E$6))","v":0},{"$f":"IF($B55=\"Blank\",0,OFFSET('CAPEX Annuity calcs'!$B$9,MATCH($B55,'CAPEX Annuity calcs'!$B$9:$B$500,0)+$C65,F$6))","v":0},null,null,"CAPEX Installation costs",0,0]
[null,{"$f":"Inputs!$X$68","v":"Luminaire UNIT price"},{"$f":"C65+1","v":2},null,{"$f":"IF($B55=\"Blank\",0,OFFSET('CAPEX Annuity calcs'!$B$9,MATCH($B55,'CAPEX Annuity calcs'!$B$9:$B$500,0)+$C66,E$6))","v":13.893650526169594},{"$f":"IF($B55=\"Blank\",0,OFFSET('CAPEX Annuity calcs'!$B$9,MATCH($B55,'CAPEX Annuity calcs'!$B$9:$B$500,0)+$C66,F$6))","v":13.893650526169594},null,null,"Luminaire UNIT price",3.8064795962108473,3.8064795962108473]
[null,{"$f":"Inputs!$Y$68","v":"CAPEX Installation costs"},3,null,{"$f":"IF($B55=\"Blank\",0,OFFSET('CAPEX Annuity calcs'!$B$9,MATCH($B55,'CAPEX Annuity calcs'!$B$9:$B$500,0)+$C67,E$6))","v":17.165250199817599},{"$f":"IF($B55=\"Blank\",0,OFFSET('CAPEX Annuity calcs'!$B$9,MATCH($B55,'CAPEX Annuity calcs'!$B$9:$B$500,0)+$C67,F$6))","v":17.165250199817599},null,null,"CAPEX Installation costs",4.7028082739226296,4.7028082739226296]
[null,null,null,null,{"$f":"SUM(E56:E67)","v":130.47300648504475},{"$f":"SUM(F56:F67)","v":131.35000052737661},null,null,null,{"$f":"ROUND(E68/J$2*100,3)","v":35.746000000000002},{"$f":"ROUND(F68/K$2*100,3)","v":35.985999999999997}]
[]
[{"$f":"A55+1","v":5},{"$f":"IFERROR(VLOOKUP($A70,Inputs!$B$68:$AK$129,MATCH($B$7,Inputs!$B$68:$AK$68,0),FALSE),\"Blank\")","v":"1x20W Fluorescent"},null,null,null,null,null,null,{"$f":"IFERROR(VLOOKUP($A70,Inputs!$B$68:$AK$129,MATCH($B$7,Inputs!$B$68:$AK$68,0),FALSE),\"Blank\")","v":"1x20W Fluorescent"}]
[null,{"$f":"Inputs!$R$68","v":"Lamp UNIT price Annualised Cost"},{"$f":"Inputs!$P$68","v":"Lamp Maintenance cycle"},null,{"$f":"IF($B70=\"Blank\",0,VLOOKUP($B70,Inputs!$C$68:$AK$129,MATCH($B71,Inputs!$C$68:$AK$68,0),FALSE))","v":1.0601081787533762},{"$f":"IF($B70=\"Blank\",0,VLOOKUP($B70,Inputs!$C$68:$AK$129,MATCH($B71,Inputs!$C$68:$AK$68,0),FALSE))","v":1.0601081787533762},null,null,{"$f":"B71","v":"Lamp UNIT price Annualised Cost"},{"$f":"IF(E71=\"NA\",\"\",E71/J$2*100)","v":0.2904405969187332},{"$f":"IF(F71=\"NA\",\"\",F71/K$2*100)","v":0.2904405969187332}]
[null,{"$f":"Inputs!$K$68","v":"PE Cell UNIT price Annualised Cost"},{"$f":"Inputs!$I$68","v":"PE Cell Maintenance Cycle"},null,{"$f":"IF($B70=\"Blank\",0,VLOOKUP($B70,Inputs!$C$68:$AK$129,MATCH($B72,Inputs!$C$68:$AK$68,0),FALSE))","v":0.6107414998224272},{"$f":"IF($B70=\"Blank\",0,VLOOKUP($B70,Inputs!$C$68:$AK$129,MATCH($B72,Inputs!$C$68:$AK$68,0),FALSE))","v":0.6107414998224272},null,null,"PE Cell UNIT price Annualised Cost",0.16732643830751431,0.16732643830751431]
[null,"Corp capex annuity per light",null,null,{"$f":"IF($B70=\"Blank\",0,'Corp Capex Annuity calcs'!F$109)","v":14.826870317655803},{"$f":"IF($B70=\"Blank\",0,'Corp Capex Annuity calcs'!G$109)","v":14.708895619806404},null,null,"Corp capex annuity per light",4.0621562514125493,4.0298344163853157]
[null,{"$f":"Inputs!$T$68","v":"Lamp Service costs Annualised"},null,null,{"$f":"IF($B70=\"Blank\",0,VLOOKUP($B70,Inputs!$C$68:$AK$129,MATCH($B74,Inputs!$C$68:$AK$68,0),FALSE))","v":26.347371767734501},{"$f":"IF($B70=\"Blank\",0,VLOOKUP($B70,Inputs!$C$68:$AK$129,MATCH($B74,Inputs!$C$68:$AK$68,0),FALSE))","v":26.347371767734501},null,null,"Lamp Service costs Annualised",7.2184580185573974,7.2184580185573974]
[null,{"$f":"Inputs!$M$68","v":"PE Cell Service costs Annualised"},null,null,{"$f":"IF($B70=\"Blank\",0,VLOOKUP($B70,Inputs!$C$68:$AK$129,MATCH($B75,Inputs!$C$68:$AK$68,0),FALSE))","v":0},{"$f":"IF($B70=\"Blank\",0,VLOOKUP($B70,Inputs!$C$68:$AK$129,MATCH($B75,Inputs!$C$68:$AK$68,0),FALSE))","v":0},null,null,"PE Cell Service costs Annualised",0,0]
[null,"Indirect Opex",null,null,{"$f":"IF($B70=\"Blank\",0,IF($B$8=\"Private Contract Lighting\",'Opex Weighting'!D$113,'Opex Weighting'!D$111))","v":24.081834785768372},{"$f":"IF($B70=\"Blank\",0,IF($B$8=\"Private Contract Lighting\",'Opex Weighting'!E$113,'Opex Weighting'!E$111))","v":25.134626053693843},null,null,"Indirect Opex",6.5977629550050336,6.8861989188202317]
[null,"Indirect Capex",null,null,{"$f":"'Capex Weighting'!D$115","v":0},{"$f":"'Capex Weighting'!E$114","v":0},null,null,"Indirect Capex",0,0]
[null,"Overhead Costs per light",null,null,{"$f":"IF($B70=\"Blank\",0,IF($B$8=\"Private Contract Lighting\",'Building Block'!C$49,'Building Block'!C$48))","v":27.508265089316332},{"$f":"IF($B70=\"Blank\",0,IF($B$8=\"Private Contract Lighting\",'Building Block'!D$49,'Building Block'!D$48))","v":27.450442561572103},null,null,"Overhead Costs per light",7.5365109833743382,7.5206691949512612]
[null,{"$f":"Inputs!$AH$68","v":"Bracket UNIT price"},0,null,{"$f":"IF($B70=\"Blank\",0,OFFSET('CAPEX Annuity calcs'!$B$9,MATCH($B70,'CAPEX Annuity calcs'!$B$9:$B$500,0)+$C79,E$6))","v":5.3053413014332218},{"$f":"IF($B70=\"Blank\",0,OFFSET('CAPEX Annuity calcs'!$B$9,MATCH($B70,'CAPEX Annuity calcs'!$B$9:$B$500,0)+$C79,F$6))","v":5.3053413014332218},null,null,"Bracket UNIT price",1.4535181647762252,1.4535181647762252]
[null,{"$f":"Inputs!$Y$68","v":"CAPEX Installation costs"},{"$f":"C79+1","v":1},null,{"$f":"IF($B70=\"Blank\",0,OFFSET('CAPEX Annuity calcs'!$B$9,MATCH($B70,'CAPEX Annuity calcs'!$B$9:$B$500,0)+$C80,E$6))","v":0},{"$f":"IF($B70=\"Blank\",0,OFFSET('CAPEX Annuity calcs'!$B$9,MATCH($B70,'CAPEX Annuity calcs'!$B$9:$B$500,0)+$C80,F$6))","v":0},null,null,"CAPEX Installation costs",0,0]
[null,{"$f":"Inputs!$X$68","v":"Luminaire UNIT price"},{"$f":"C80+1","v":2},null,{"$f":"IF($B70=\"Blank\",0,OFFSET('CAPEX Annuity calcs'!$B$9,MATCH($B70,'CAPEX Annuity calcs'!$B$9:$B$500,0)+$C81,E$6))","v":19.58976361013648},{"$f":"IF($B70=\"Blank\",0,OFFSET('CAPEX Annuity calcs'!$B$9,MATCH($B70,'CAPEX Annuity calcs'!$B$9:$B$500,0)+$C81,F$6))","v":19.58976361013648},null,null,"Luminaire UNIT price",5.3670585233250625,5.3670585233250625]
[null,{"$f":"Inputs!$Y$68","v":"CAPEX Installation costs"},3,null,{"$f":"IF($B70=\"Blank\",0,OFFSET('CAPEX Annuity calcs'!$B$9,MATCH($B70,'CAPEX Annuity calcs'!$B$9:$B$500,0)+$C82,E$6))","v":17.165250199817599},{"$f":"IF($B70=\"Blank\",0,OFFSET('CAPEX Annuity calcs'!$B$9,MATCH($B70,'CAPEX Annuity calcs'!$B$9:$B$500,0)+$C82,F$6))","v":17.165250199817599},null,null,"CAPEX Installation costs",4.7028082739226296,4.7028082739226296]
[null,null,null,null,{"$f":"SUM(E71:E82)","v":136.49554675043808},{"$f":"SUM(F71:F82)","v":137.37254079276994},null,null,null,{"$f":"ROUND(E83/J$2*100,3)","v":37.396000000000001},{"$f":"ROUND(F83/K$2*100,3)","v":37.636000000000003}]
[]
[{"$f":"A70+1","v":6},{"$f":"IFERROR(VLOOKUP($A85,Inputs!$B$68:$AK$129,MATCH($B$7,Inputs!$B$68:$AK$68,0),FALSE),\"Blank\")","v":"1x40W Fluorescent"},null,null,null,null,null,null,{"$f":"IFERROR(VLOOKUP($A85,Inputs!$B$68:$AK$129,MATCH($B$7,Inputs!$B$68:$AK$68,0),FALSE),\"Blank\")","v":"1x40W Fluorescent"}]
[null,{"$f":"Inputs!$R$68","v":"Lamp UNIT price Annualised Cost"},{"$f":"Inputs!$P$68","v":"Lamp Maintenance cycle"},null,{"$f":"IF($B85=\"Blank\",0,VLOOKUP($B85,Inputs!$C$68:$AK$129,MATCH($B86,Inputs!$C$68:$AK$68,0),FALSE))","v":1.1289783156561479},{"$f":"IF($B85=\"Blank\",0,VLOOKUP($B85,Inputs!$C$68:$AK$129,MATCH($B86,Inputs!$C$68:$AK$68,0),FALSE))","v":1.1289783156561479},null,null,{"$f":"B86","v":"Lamp UNIT price Annualised Cost"},{"$f":"IF(E86=\"NA\",\"\",E86/J$2*100)","v":0.30930912757702683},{"$f":"IF(F86=\"NA\",\"\",F86/K$2*100)","v":0.30930912757702683}]
[null,{"$f":"Inputs!$K$68","v":"PE Cell UNIT price Annualised Cost"},{"$f":"Inputs!$I$68","v":"PE Cell Maintenance Cycle"},null,{"$f":"IF($B85=\"Blank\",0,VLOOKUP($B85,Inputs!$C$68:$AK$129,MATCH($B87,Inputs!$C$68:$AK$68,0),FALSE))","v":0.6107414998224272},{"$f":"IF($B85=\"Blank\",0,VLOOKUP($B85,Inputs!$C$68:$AK$129,MATCH($B87,Inputs!$C$68:$AK$68,0),FALSE))","v":0.6107414998224272},null,null,"PE Cell UNIT price Annualised Cost",0.16732643830751431,0.16732643830751431]
[null,"Corp capex annuity per light",null,null,{"$f":"IF($B85=\"Blank\",0,'Corp Capex Annuity calcs'!F$109)","v":14.826870317655803},{"$f":"IF($B85=\"Blank\",0,'Corp Capex Annuity calcs'!G$109)","v":14.708895619806404},null,null,"Corp capex annuity per light",4.0621562514125493,4.0298344163853157]
[null,{"$f":"Inputs!$T$68","v":"Lamp Service costs Annualised"},null,null,{"$f":"IF($B85=\"Blank\",0,VLOOKUP($B85,Inputs!$C$68:$AK$129,MATCH($B89,Inputs!$C$68:$AK$68,0),FALSE))","v":26.347371767734501},{"$f":"IF($B85=\"Blank\",0,VLOOKUP($B85,Inputs!$C$68:$AK$129,MATCH($B89,Inputs!$C$68:$AK$68,0),FALSE))","v":26.347371767734501},null,null,"Lamp Service costs Annualised",7.2184580185573974,7.2184580185573974]
[null,{"$f":"Inputs!$M$68","v":"PE Cell Service costs Annualised"},null,null,{"$f":"IF($B85=\"Blank\",0,VLOOKUP($B85,Inputs!$C$68:$AK$129,MATCH($B90,Inputs!$C$68:$AK$68,0),FALSE))","v":0},{"$f":"IF($B85=\"Blank\",0,VLOOKUP($B85,Inputs!$C$68:$AK$129,MATCH($B90,Inputs!$C$68:$AK$68,0),FALSE))","v":0},null,null,"PE Cell Service costs Annualised",0,0]
[null,"Indirect Opex",null,null,{"$f":"IF($B85=\"Blank\",0,IF($B$8=\"Private Contract Lighting\",'Opex Weighting'!D$113,'Opex Weighting'!D$111))","v":24.081834785768372},{"$f":"IF($B85=\"Blank\",0,IF($B$8=\"Private Contract Lighting\",'Opex Weighting'!E$113,'Opex Weighting'!E$111))","v":25.134626053693843},null,null,"Indirect Opex",6.5977629550050336,6.8861989188202317]
[null,"Indirect Capex",null,null,{"$f":"'Capex Weighting'!D$115","v":0},{"$f":"'Capex Weighting'!E$114","v":0},null,null,"Indirect Capex",0,0]
[null,"Overhead Costs per light",null,null,{"$f":"IF($B85=\"Blank\",0,IF($B$8=\"Private Contract Lighting\",'Building Block'!C$49,'Building Block'!C$48))","v":27.508265089316332},{"$f":"IF($B85=\"Blank\",0,IF($B$8=\"Private Contract Lighting\",'Building Block'!D$49,'Building Block'!D$48))","v":27.450442561572103},null,null,"Overhead Costs per light",7.5365109833743382,7.5206691949512612]
[null,{"$f":"Inputs!$AH$68","v":"Bracket UNIT price"},0,null,{"$f":"IF($B85=\"Blank\",0,OFFSET('CAPEX Annuity calcs'!$B$9,MATCH($B85,'CAPEX Annuity calcs'!$B$9:$B$500,0)+$C94,E$6))","v":5.3053413014332218},{"$f":"IF($B85=\"Blank\",0,OFFSET('CAPEX Annuity calcs'!$B$9,MATCH($B85,'CAPEX Annuity calcs'!$B$9:$B$500,0)+$C94,F$6))","v":5.3053413014332218},null,null,"Bracket UNIT price",1.4535181647762252,1.4535181647762252]
[null,{"$f":"Inputs!$Y$68","v":"CAPEX Installation costs"},{"$f":"C94+1","v":1},null,{"$f":"IF($B85=\"Blank\",0,OFFSET('CAPEX Annuity calcs'!$B$9,MATCH($B85,'CAPEX Annuity calcs'!$B$9:$B$500,0)+$C95,E$6))","v":0},{"$f":"IF($B85=\"Blank\",0,OFFSET('CAPEX Annuity calcs'!$B$9,MATCH($B85,'CAPEX Annuity calcs'!$B$9:$B$500,0)+$C95,F$6))","v":0},null,null,"CAPEX Installation costs",0,0]
[null,{"$f":"Inputs!$X$68","v":"Luminaire UNIT price"},{"$f":"C95+1","v":2},null,{"$f":"IF($B85=\"Blank\",0,OFFSET('CAPEX Annuity calcs'!$B$9,MATCH($B85,'CAPEX Annuity calcs'!$B$9:$B$500,0)+$C96,E$6))","v":15.349445399575959},{"$f":"IF($B85=\"Blank\",0,OFFSET('CAPEX Annuity calcs'!$B$9,MATCH($B85,'CAPEX Annuity calcs'!$B$9:$B$500,0)+$C96,F$6))","v":15.349445399575959},null,null,"Luminaire UNIT price",4.2053275067331395,4.2053275067331395]
[null,{"$f":"Inputs!$Y$68","v":"CAPEX Installation costs"},3,null,{"$f":"IF($B85=\"Blank\",0,OFFSET('CAPEX Annuity calcs'!$B$9,MATCH($B85,'CAPEX Annuity calcs'!$B$9:$B$500,0)+$C97,E$6))","v":17.165250199817599},{"$f":"IF($B85=\"Blank\",0,OFFSET('CAPEX Annuity calcs'!$B$9,MATCH($B85,'CAPEX Annuity calcs'!$B$9:$B$500,0)+$C97,F$6))","v":17.165250199817599},null,null,"CAPEX Installation costs",4.7028082739226296,4.7028082739226296]
[null,null,null,null,{"$f":"SUM(E86:E97)","v":132.32409867678035},{"$f":"SUM(F86:F97)","v":133.20109271911218},null,null,null,{"$f":"ROUND(E98/J$2*100,3)","v":36.253},{"$f":"ROUND(F98/K$2*100,3)","v":36.493000000000002}]
[]
[{"$f":"A85+1","v":7},{"$f":"IFERROR(VLOOKUP($A100,Inputs!$B$68:$AK$129,MATCH($B$7,Inputs!$B$68:$AK$68,0),FALSE),\"Blank\")","v":"2x20W Fluorescent"},null,null,null,null,null,null,{"$f":"IFERROR(VLOOKUP($A100,Inputs!$B$68:$AK$129,MATCH($B$7,Inputs!$B$68:$AK$68,0),FALSE),\"Blank\")","v":"2x20W Fluorescent"}]
[null,{"$f":"Inputs!$R$68","v":"Lamp UNIT price Annualised Cost"},{"$f":"Inputs!$P$68","v":"Lamp Maintenance cycle"},null,{"$f":"IF($B100=\"Blank\",0,VLOOKUP($B100,Inputs!$C$68:$AK$129,MATCH($B101,Inputs!$C$68:$AK$68,0),FALSE))","v":2.1202163575067523},{"$f":"IF($B100=\"Blank\",0,VLOOKUP($B100,Inputs!$C$68:$AK$129,MATCH($B101,Inputs!$C$68:$AK$68,0),FALSE))","v":2.1202163575067523},null,null,{"$f":"B101","v":"Lamp UNIT price Annualised Cost"},{"$f":"IF(E101=\"NA\",\"\",E101/J$2*100)","v":0.58088119383746639},{"$f":"IF(F101=\"NA\",\"\",F101/K$2*100)","v":0.58088119383746639}]
[null,{"$f":"Inputs!$K$68","v":"PE Cell UNIT price Annualised Cost"},{"$f":"Inputs!$I$68","v":"PE Cell Maintenance Cycle"},null,{"$f":"IF($B100=\"Blank\",0,VLOOKUP($B100,Inputs!$C$68:$AK$129,MATCH($B102,Inputs!$C$68:$AK$68,0),FALSE))","v":0.6107414998224272},{"$f":"IF($B100=\"Blank\",0,VLOOKUP($B100,Inputs!$C$68:$AK$129,MATCH($B102,Inputs!$C$68:$AK$68,0),FALSE))","v":0.6107414998224272},null,null,"PE Cell UNIT price Annualised Cost",0.16732643830751431,0.16732643830751431]
[null,"Corp capex annuity per light",null,null,{"$f":"IF($B100=\"Blank\",0,'Corp Capex Annuity calcs'!F$109)","v":14.826870317655803},{"$f":"IF($B100=\"Blank\",0,'Corp Capex Annuity calcs'!G$109)","v":14.708895619806404},null,null,"Corp capex annuity per light",4.0621562514125493,4.0298344163853157]
[null,{"$f":"Inputs!$T$68","v":"Lamp Service costs Annualised"},null,null,{"$f":"IF($B100=\"Blank\",0,VLOOKUP($B100,Inputs!$C$68:$AK$129,MATCH($B104,Inputs!$C$68:$AK$68,0),FALSE))","v":26.347371767734501},{"$f":"IF($B100=\"Blank\",0,VLOOKUP($B100,Inputs!$C$68:$AK$129,MATCH($B104,Inputs!$C$68:$AK$68,0),FALSE))","v":26.347371767734501},null,null,"Lamp Service costs Annualised",7.2184580185573974,7.2184580185573974]
[null,{"$f":"Inputs!$M$68","v":"PE Cell Service costs Annualised"},null,null,{"$f":"IF($B100=\"Blank\",0,VLOOKUP($B100,Inputs!$C$68:$AK$129,MATCH($B105,Inputs!$C$68:$AK$68,0),FALSE))","v":0},{"$f":"IF($B100=\"Blank\",0,VLOOKUP($B100,Inputs!$C$68:$AK$129,MATCH($B105,Inputs!$C$68:$AK$68,0),FALSE))","v":0},null,null,"PE Cell Service costs Annualised",0,0]
[null,"Indirect Opex",null,null,{"$f":"IF($B100=\"Blank\",0,IF($B$8=\"Private Contract Lighting\",'Opex Weighting'!D$113,'Opex Weighting'!D$111))","v":24.081834785768372},{"$f":"IF($B100=\"Blank\",0,IF($B$8=\"Private Contract Lighting\",'Opex Weighting'!E$113,'Opex Weighting'!E$111))","v":25.134626053693843},null,null,"Indirect Opex",6.5977629550050336,6.8861989188202317]
[null,"Indirect Capex",null,null,{"$f":"'Capex Weighting'!D$115","v":0},{"$f":"'Capex Weighting'!E$114","v":0},null,null,"Indirect Capex",0,0]
[null,"Overhead Costs per light",null,null,{"$f":"IF($B100=\"Blank\",0,IF($B$8=\"Private Contract Lighting\",'Building Block'!C$49,'Building Block'!C$48))","v":27.508265089316332},{"$f":"IF($B100=\"Blank\",0,IF($B$8=\"Private Contract Lighting\",'Building Block'!D$49,'Building Block'!D$48))","v":27.450442561572103},null,null,"Overhead Costs per light",7.5365109833743382,7.5206691949512612]
[null,{"$f":"Inputs!$AH$68","v":"Bracket UNIT price"},0,null,{"$f":"IF($B100=\"Blank\",0,OFFSET('CAPEX Annuity calcs'!$B$9,MATCH($B100,'CAPEX Annuity calcs'!$B$9:$B$500,0)+$C109,E$6))","v":5.3053413014332218},{"$f":"IF($B100=\"Blank\",0,OFFSET('CAPEX Annuity calcs'!$B$9,MATCH($B100,'CAPEX Annuity calcs'!$B$9:$B$500,0)+$C109,F$6))","v":5.3053413014332218},null,null,"Bracket UNIT price",1.4535181647762252,1.4535181647762252]
[null,{"$f":"Inputs!$Y$68","v":"CAPEX Installation costs"},{"$f":"C109+1","v":1},null,{"$f":"IF($B100=\"Blank\",0,OFFSET('CAPEX Annuity calcs'!$B$9,MATCH($B100,'CAPEX Annuity calcs'!$B$9:$B$500,0)+$C110,E$6))","v":0},{"$f":"IF($B100=\"Blank\",0,OFFSET('CAPEX Annuity calcs'!$B$9,MATCH($B100,'CAPEX Annuity calcs'!$B$9:$B$500,0)+$C110,F$6))","v":0},null,null,"CAPEX Installation costs",0,0]
[null,{"$f":"Inputs!$X$68","v":"Luminaire UNIT price"},{"$f":"C110+1","v":2},null,{"$f":"IF($B100=\"Blank\",0,OFFSET('CAPEX Annuity calcs'!$B$9,MATCH($B100,'CAPEX Annuity calcs'!$B$9:$B$500,0)+$C111,E$6))","v":19.58976361013648},{"$f":"IF($B100=\"Blank\",0,OFFSET('CAPEX Annuity calcs'!$B$9,MATCH($B100,'CAPEX Annuity calcs'!$B$9:$B$500,0)+$C111,F$6))","v":19.58976361013648},null,null,"Luminaire UNIT price",5.3670585233250625,5.3670585233250625]
[null,{"$f":"Inputs!$Y$68","v":"CAPEX Installation costs"},3,null,{"$f":"IF($B100=\"Blank\",0,OFFSET('CAPEX Annuity calcs'!$B$9,MATCH($B100,'CAPEX Annuity calcs'!$B$9:$B$500,0)+$C112,E$6))","v":17.165250199817599},{"$f":"IF($B100=\"Blank\",0,OFFSET('CAPEX Annuity calcs'!$B$9,MATCH($B100,'CAPEX Annuity calcs'!$B$9:$B$500,0)+$C112,F$6))","v":17.165250199817599},null,null,"CAPEX Installation costs",4.7028082739226296,4.7028082739226296]
[null,null,null,null,{"$f":"SUM(E101:E112)","v":137.55565492919146},{"$f":"SUM(F101:F112)","v":138.43264897152332},null,null,null,{"$f":"ROUND(E113/J$2*100,3)","v":37.686},{"$f":"ROUND(F113/K$2*100,3)","v":37.927}]
[]
[{"$f":"A100+1","v":8},{"$f":"IFERROR(VLOOKUP($A115,Inputs!$B$68:$AK$129,MATCH($B$7,Inputs!$B$68:$AK$68,0),FALSE),\"Blank\")","v":"2x24W Fluorescent"},null,null,null,null,null,null,{"$f":"IFERROR(VLOOKUP($A115,Inputs!$B$68:$AK$129,MATCH($B$7,Inputs!$B$68:$AK$68,0),FALSE),\"Blank\")","v":"2x24W Fluorescent"}]
[null,{"$f":"Inputs!$R$68","v":"Lamp UNIT price Annualised Cost"},{"$f":"Inputs!$P$68","v":"Lamp Maintenance cycle"},null,{"$f":"IF($B115=\"Blank\",0,VLOOKUP($B115,Inputs!$C$68:$AK$129,MATCH($B116,Inputs!$C$68:$AK$68,0),FALSE))","v":1.4370046282556002},{"$f":"IF($B115=\"Blank\",0,VLOOKUP($B115,Inputs!$C$68:$AK$129,MATCH($B116,Inputs!$C$68:$AK$68,0),FALSE))","v":1.4370046282556002},null,null,{"$f":"B116","v":"Lamp UNIT price Annualised Cost"},{"$f":"IF(E116=\"NA\",\"\",E116/J$2*100)","v":0.39369989815221923},{"$f":"IF(F116=\"NA\",\"\",F116/K$2*100)","v":0.39369989815221923}]
[null,{"$f":"Inputs!$K$68","v":"PE Cell UNIT price Annualised Cost"},{"$f":"Inputs!$I$68","v":"PE Cell Maintenance Cycle"},null,{"$f":"IF($B115=\"Blank\",0,VLOOKUP($B115,Inputs!$C$68:$AK$129,MATCH($B117,Inputs!$C$68:$AK$68,0),FALSE))","v":0.6107414998224272},{"$f":"IF($B115=\"Blank\",0,VLOOKUP($B115,Inputs!$C$68:$AK$129,MATCH($B117,Inputs!$C$68:$AK$68,0),FALSE))","v":0.6107414998224272},null,null,"PE Cell UNIT price Annualised Cost",0.16732643830751431,0.16732643830751431]
[null,"Corp capex annuity per light",null,null,{"$f":"IF($B115=\"Blank\",0,'Corp Capex Annuity calcs'!F$109)","v":14.826870317655803},{"$f":"IF($B115=\"Blank\",0,'Corp Capex Annuity calcs'!G$109)","v":14.708895619806404},null,null,"Corp capex annuity per light",4.0621562514125493,4.0298344163853157]
[null,{"$f":"Inputs!$T$68","v":"Lamp Service costs Annualised"},null,null,{"$f":"IF($B115=\"Blank\",0,VLOOKUP($B115,Inputs!$C$68:$AK$129,MATCH($B119,Inputs!$C$68:$AK$68,0),FALSE))","v":26.347371767734501},{"$f":"IF($B115=\"Blank\",0,VLOOKUP($B115,Inputs!$C$68:$AK$129,MATCH($B119,Inputs!$C$68:$AK$68,0),FALSE))","v":26.347371767734501},null,null,"Lamp Service costs Annualised",7.2184580185573974,7.2184580185573974]
[null,{"$f":"Inputs!$M$68","v":"PE Cell Service costs Annualised"},null,null,{"$f":"IF($B115=\"Blank\",0,VLOOKUP($B115,Inputs!$C$68:$AK$129,MATCH($B120,Inputs!$C$68:$AK$68,0),FALSE))","v":0},{"$f":"IF($B115=\"Blank\",0,VLOOKUP($B115,Inputs!$C$68:$AK$129,MATCH($B120,Inputs!$C$68:$AK$68,0),FALSE))","v":0},null,null,"PE Cell Service costs Annualised",0,0]
[null,"Indirect Opex",null,null,{"$f":"IF($B115=\"Blank\",0,IF($B$8=\"Private Contract Lighting\",'Opex Weighting'!D$113,'Opex Weighting'!D$111))","v":24.081834785768372},{"$f":"IF($B115=\"Blank\",0,IF($B$8=\"Private Contract Lighting\",'Opex Weighting'!E$113,'Opex Weighting'!E$111))","v":25.134626053693843},null,null,"Indirect Opex",6.5977629550050336,6.8861989188202317]
[null,"Indirect Capex",null,null,{"$f":"'Capex Weighting'!D$115","v":0},{"$f":"'Capex Weighting'!E$114","v":0},null,null,"Indirect Capex",0,0]
[null,"Overhead Costs per light",null,null,{"$f":"IF($B115=\"Blank\",0,IF($B$8=\"Private Contract Lighting\",'Building Block'!C$49,'Building Block'!C$48))","v":27.508265089316332},{"$f":"IF($B115=\"Blank\",0,IF($B$8=\"Private Contract Lighting\",'Building Block'!D$49,'Building Block'!D$48))","v":27.450442561572103},null,null,"Overhead Costs per light",7.5365109833743382,7.5206691949512612]
[null,{"$f":"Inputs!$AH$68","v":"Bracket UNIT price"},0,null,{"$f":"IF($B115=\"Blank\",0,OFFSET('CAPEX Annuity calcs'!$B$9,MATCH($B115,'CAPEX Annuity calcs'!$B$9:$B$500,0)+$C124,E$6))","v":5.3053413014332218},{"$f":"IF($B115=\"Blank\",0,OFFSET('CAPEX Annuity calcs'!$B$9,MATCH($B115,'CAPEX Annuity calcs'!$B$9:$B$500,0)+$C124,F$6))","v":5.3053413014332218},null,null,"Bracket UNIT price",1.4535181647762252,1.4535181647762252]
[null,{"$f":"Inputs!$Y$68","v":"CAPEX Installation costs"},{"$f":"C124+1","v":1},null,{"$f":"IF($B115=\"Blank\",0,OFFSET('CAPEX Annuity calcs'!$B$9,MATCH($B115,'CAPEX Annuity calcs'!$B$9:$B$500,0)+$C125,E$6))","v":0},{"$f":"IF($B115=\"Blank\",0,OFFSET('CAPEX Annuity calcs'!$B$9,MATCH($B115,'CAPEX Annuity calcs'!$B$9:$B$500,0)+$C125,F$6))","v":0},null,null,"CAPEX Installation costs",0,0]
[null,{"$f":"Inputs!$X$68","v":"Luminaire UNIT price"},{"$f":"C125+1","v":2},null,{"$f":"IF($B115=\"Blank\",0,OFFSET('CAPEX Annuity calcs'!$B$9,MATCH($B115,'CAPEX Annuity calcs'!$B$9:$B$500,0)+$C126,E$6))","v":19.979605152105677},{"$f":"IF($B115=\"Blank\",0,OFFSET('CAPEX Annuity calcs'!$B$9,MATCH($B115,'CAPEX Annuity calcs'!$B$9:$B$500,0)+$C126,F$6))","v":19.979605152105677},null,null,"Luminaire UNIT price",5.4738644252344324,5.4738644252344324]
[null,{"$f":"Inputs!$Y$68","v":"CAPEX Installation costs"},3,null,{"$f":"IF($B115=\"Blank\",0,OFFSET('CAPEX Annuity calcs'!$B$9,MATCH($B115,'CAPEX Annuity calcs'!$B$9:$B$500,0)+$C127,E$6))","v":17.165250199817599},{"$f":"IF($B115=\"Blank\",0,OFFSET('CAPEX Annuity calcs'!$B$9,MATCH($B115,'CAPEX Annuity calcs'!$B$9:$B$500,0)+$C127,F$6))","v":17.165250199817599},null,null,"CAPEX Installation costs",4.7028082739226296,4.7028082739226296]
[null,null,null,null,{"$f":"SUM(E116:E127)","v":137.26228474190953},{"$f":"SUM(F116:F127)","v":138.13927878424136},null,null,null,{"$f":"ROUND(E128/J$2*100,3)","v":37.606000000000002},{"$f":"ROUND(F128/K$2*100,3)","v":37.845999999999997}]
[]
[{"$f":"A115+1","v":9},{"$f":"IFERROR(VLOOKUP($A130,Inputs!$B$68:$AK$129,MATCH($B$7,Inputs!$B$68:$AK$68,0),FALSE),\"Blank\")","v":"T5 Fluorescent 2 x 24W"},null,null,null,null,null,null,{"$f":"IFERROR(VLOOKUP($A130,Inputs!$B$68:$AK$129,MATCH($B$7,Inputs!$B$68:$AK$68,0),FALSE),\"Blank\")","v":"T5 Fluorescent 2 x 24W"}]
[null,{"$f":"Inputs!$R$68","v":"Lamp UNIT price Annualised Cost"},{"$f":"Inputs!$P$68","v":"Lamp Maintenance cycle"},null,{"$f":"IF($B130=\"Blank\",0,VLOOKUP($B130,Inputs!$C$68:$AK$129,MATCH($B131,Inputs!$C$68:$AK$68,0),FALSE))","v":2.1202163575067523},{"$f":"IF($B130=\"Blank\",0,VLOOKUP($B130,Inputs!$C$68:$AK$129,MATCH($B131,Inputs!$C$68:$AK$68,0),FALSE))","v":2.1202163575067523},null,null,{"$f":"B131","v":"Lamp UNIT price Annualised Cost"},{"$f":"IF(E131=\"NA\",\"\",E131/J$2*100)","v":0.58088119383746639},{"$f":"IF(F131=\"NA\",\"\",F131/K$2*100)","v":0.58088119383746639}]
[null,{"$f":"Inputs!$K$68","v":"PE Cell UNIT price Annualised Cost"},{"$f":"Inputs!$I$68","v":"PE Cell Maintenance Cycle"},null,{"$f":"IF($B130=\"Blank\",0,VLOOKUP($B130,Inputs!$C$68:$AK$129,MATCH($B132,Inputs!$C$68:$AK$68,0),FALSE))","v":0.6107414998224272},{"$f":"IF($B130=\"Blank\",0,VLOOKUP($B130,Inputs!$C$68:$AK$129,MATCH($B132,Inputs!$C$68:$AK$68,0),FALSE))","v":0.6107414998224272},null,null,"PE Cell UNIT price Annualised Cost",0.16732643830751431,0.16732643830751431]
[null,"Corp capex annuity per light",null,null,{"$f":"IF($B130=\"Blank\",0,'Corp Capex Annuity calcs'!F$109)","v":14.826870317655803},{"$f":"IF($B130=\"Blank\",0,'Corp Capex Annuity calcs'!G$109)","v":14.708895619806404},null,null,"Corp capex annuity per light",4.0621562514125493,4.0298344163853157]
[null,{"$f":"Inputs!$T$68","v":"Lamp Service costs Annualised"},null,null,{"$f":"IF($B130=\"Blank\",0,VLOOKUP($B130,Inputs!$C$68:$AK$129,MATCH($B134,Inputs!$C$68:$AK$68,0),FALSE))","v":26.347371767734501},{"$f":"IF($B130=\"Blank\",0,VLOOKUP($B130,Inputs!$C$68:$AK$129,MATCH($B134,Inputs!$C$68:$AK$68,0),FALSE))","v":26.347371767734501},null,null,"Lamp Service costs Annualised",7.2184580185573974,7.2184580185573974]
[null,{"$f":"Inputs!$M$68","v":"PE Cell Service costs Annualised"},null,null,{"$f":"IF($B130=\"Blank\",0,VLOOKUP($B130,Inputs!$C$68:$AK$129,MATCH($B135,Inputs!$C$68:$AK$68,0),FALSE))","v":0},{"$f":"IF($B130=\"Blank\",0,VLOOKUP($B130,Inputs!$C$68:$AK$129,MATCH($B135,Inputs!$C$68:$AK$68,0),FALSE))","v":0},null,null,"PE Cell Service costs Annualised",0,0]
[null,"Indirect Opex",null,null,{"$f":"IF($B130=\"Blank\",0,IF($B$8=\"Private Contract Lighting\",'Opex Weighting'!D$113,'Opex Weighting'!D$111))","v":24.081834785768372},{"$f":"IF($B130=\"Blank\",0,IF($B$8=\"Private Contract Lighting\",'Opex Weighting'!E$113,'Opex Weighting'!E$111))","v":25.134626053693843},null,null,"Indirect Opex",6.5977629550050336,6.8861989188202317]
[null,"Indirect Capex",null,null,{"$f":"'Capex Weighting'!D$115","v":0},{"$f":"'Capex Weighting'!E$114","v":0},null,null,"Indirect Capex",0,0]
[null,"Overhead Costs per light",null,null,{"$f":"IF($B130=\"Blank\",0,IF($B$8=\"Private Contract Lighting\",'Building Block'!C$49,'Building Block'!C$48))","v":27.508265089316332},{"$f":"IF($B130=\"Blank\",0,IF($B$8=\"Private Contract Lighting\",'Building Block'!D$49,'Building Block'!D$48))","v":27.450442561572103},null,null,"Overhead Costs per light",7.5365109833743382,7.5206691949512612]
[null,{"$f":"Inputs!$AH$68","v":"Bracket UNIT price"},0,null,{"$f":"IF($B130=\"Blank\",0,OFFSET('CAPEX Annuity calcs'!$B$9,MATCH($B130,'CAPEX Annuity calcs'!$B$9:$B$500,0)+$C139,E$6))","v":5.3053413014332218},{"$f":"IF($B130=\"Blank\",0,OFFSET('CAPEX Annuity calcs'!$B$9,MATCH($B130,'CAPEX Annuity calcs'!$B$9:$B$500,0)+$C139,F$6))","v":5.3053413014332218},null,null,"Bracket UNIT price",1.4535181647762252,1.4535181647762252]
[null,{"$f":"Inputs!$Y$68","v":"CAPEX Installation costs"},{"$f":"C139+1","v":1},null,{"$f":"IF($B130=\"Blank\",0,OFFSET('CAPEX Annuity calcs'!$B$9,MATCH($B130,'CAPEX Annuity calcs'!$B$9:$B$500,0)+$C140,E$6))","v":0},{"$f":"IF($B130=\"Blank\",0,OFFSET('CAPEX Annuity calcs'!$B$9,MATCH($B130,'CAPEX Annuity calcs'!$B$9:$B$500,0)+$C140,F$6))","v":0},null,null,"CAPEX Installation costs",0,0]
[null,{"$f":"Inputs!$X$68","v":"Luminaire UNIT price"},{"$f":"C140+1","v":2},null,{"$f":"IF($B130=\"Blank\",0,OFFSET('CAPEX Annuity calcs'!$B$9,MATCH($B130,'CAPEX Annuity calcs'!$B$9:$B$500,0)+$C141,E$6))","v":19.58976361013648},{"$f":"IF($B130=\"Blank\",0,OFFSET('CAPEX Annuity calcs'!$B$9,MATCH($B130,'CAPEX Annuity calcs'!$B$9:$B$500,0)+$C141,F$6))","v":19.58976361013648},null,null,"Luminaire UNIT price",5.3670585233250625,5.3670585233250625]
[null,{"$f":"Inputs!$Y$68","v":"CAPEX Installation costs"},3,null,{"$f":"IF($B130=\"Blank\",0,OFFSET('CAPEX Annuity calcs'!$B$9,MATCH($B130,'CAPEX Annuity calcs'!$B$9:$B$500,0)+$C142,E$6))","v":17.165250199817599},{"$f":"IF($B130=\"Blank\",0,OFFSET('CAPEX Annuity calcs'!$B$9,MATCH($B130,'CAPEX Annuity calcs'!$B$9:$B$500,0)+$C142,F$6))","v":17.165250199817599},null,null,"CAPEX Installation costs",4.7028082739226296,4.7028082739226296]
[null,null,null,null,{"$f":"SUM(E131:E142)","v":137.55565492919146},{"$f":"SUM(F131:F142)","v":138.43264897152332},null,null,null,{"$f":"ROUND(E143/J$2*100,3)","v":37.686},{"$f":"ROUND(F143/K$2*100,3)","v":37.927}]
[]
[{"$f":"A130+1","v":10},{"$f":"IFERROR(VLOOKUP($A145,Inputs!$B$68:$AK$129,MATCH($B$7,Inputs!$B$68:$AK$68,0),FALSE),\"Blank\")","v":"20 Fluorescent 1X20FL"},null,null,null,null,null,null,{"$f":"IFERROR(VLOOKUP($A145,Inputs!$B$68:$AK$129,MATCH($B$7,Inputs!$B$68:$AK$68,0),FALSE),\"Blank\")","v":"20 Fluorescent 1X20FL"}]
[null,{"$f":"Inputs!$R$68","v":"Lamp UNIT price Annualised Cost"},{"$f":"Inputs!$P$68","v":"Lamp Maintenance cycle"},null,{"$f":"IF($B145=\"Blank\",0,VLOOKUP($B145,Inputs!$C$68:$AK$129,MATCH($B146,Inputs!$C$68:$AK$68,0),FALSE))","v":1.0601081787533762},{"$f":"IF($B145=\"Blank\",0,VLOOKUP($B145,Inputs!$C$68:$AK$129,MATCH($B146,Inputs!$C$68:$AK$68,0),FALSE))","v":1.0601081787533762},null,null,{"$f":"B146","v":"Lamp UNIT price Annualised Cost"},{"$f":"IF(E146=\"NA\",\"\",E146/J$2*100)","v":0.2904405969187332},{"$f":"IF(F146=\"NA\",\"\",F146/K$2*100)","v":0.2904405969187332}]
[null,{"$f":"Inputs!$K$68","v":"PE Cell UNIT price Annualised Cost"},{"$f":"Inputs!$I$68","v":"PE Cell Maintenance Cycle"},null,{"$f":"IF($B145=\"Blank\",0,VLOOKUP($B145,Inputs!$C$68:$AK$129,MATCH($B147,Inputs!$C$68:$AK$68,0),FALSE))","v":0.6107414998224272},{"$f":"IF($B145=\"Blank\",0,VLOOKUP($B145,Inputs!$C$68:$AK$129,MATCH($B147,Inputs!$C$68:$AK$68,0),FALSE))","v":0.6107414998224272},null,null,"PE Cell UNIT price Annualised Cost",0.16732643830751431,0.16732643830751431]
[null,"Corp capex annuity per light",null,null,{"$f":"IF($B145=\"Blank\",0,'Corp Capex Annuity calcs'!F$109)","v":14.826870317655803},{"$f":"IF($B145=\"Blank\",0,'Corp Capex Annuity calcs'!G$109)","v":14.708895619806404},null,null,"Corp capex annuity per light",4.0621562514125493,4.0298344163853157]
[null,{"$f":"Inputs!$T$68","v":"Lamp Service costs Annualised"},null,null,{"$f":"IF($B145=\"Blank\",0,VLOOKUP($B145,Inputs!$C$68:$AK$129,MATCH($B149,Inputs!$C$68:$AK$68,0),FALSE))","v":26.347371767734501},{"$f":"IF($B145=\"Blank\",0,VLOOKUP($B145,Inputs!$C$68:$AK$129,MATCH($B149,Inputs!$C$68:$AK$68,0),FALSE))","v":26.347371767734501},null,null,"Lamp Service costs Annualised",7.2184580185573974,7.2184580185573974]
[null,{"$f":"Inputs!$M$68","v":"PE Cell Service costs Annualised"},null,null,{"$f":"IF($B145=\"Blank\",0,VLOOKUP($B145,Inputs!$C$68:$AK$129,MATCH($B150,Inputs!$C$68:$AK$68,0),FALSE))","v":0},{"$f":"IF($B145=\"Blank\",0,VLOOKUP($B145,Inputs!$C$68:$AK$129,MATCH($B150,Inputs!$C$68:$AK$68,0),FALSE))","v":0},null,null,"PE Cell Service costs Annualised",0,0]
[null,"Indirect Opex",null,null,{"$f":"IF($B145=\"Blank\",0,IF($B$8=\"Private Contract Lighting\",'Opex Weighting'!D$113,'Opex Weighting'!D$111))","v":24.081834785768372},{"$f":"IF($B145=\"Blank\",0,IF($B$8=\"Private Contract Lighting\",'Opex Weighting'!E$113,'Opex Weighting'!E$111))","v":25.134626053693843},null,null,"Indirect Opex",6.5977629550050336,6.8861989188202317]
[null,"Indirect Capex",null,null,{"$f":"'Capex Weighting'!D$115","v":0},{"$f":"'Capex Weighting'!E$114","v":0},null,null,"Indirect Capex",0,0]
[null,"Overhead Costs per light",null,null,{"$f":"IF($B145=\"Blank\",0,IF($B$8=\"Private Contract Lighting\",'Building Block'!C$49,'Building Block'!C$48))","v":27.508265089316332},{"$f":"IF($B145=\"Blank\",0,IF($B$8=\"Private Contract Lighting\",'Building Block'!D$49,'Building Block'!D$48))","v":27.450442561572103},null,null,"Overhead Costs per light",7.5365109833743382,7.5206691949512612]
[null,{"$f":"Inputs!$AH$68","v":"Bracket UNIT price"},0,null,{"$f":"IF($B145=\"Blank\",0,OFFSET('CAPEX Annuity calcs'!$B$9,MATCH($B145,'CAPEX Annuity calcs'!$B$9:$B$500,0)+$C154,E$6))","v":5.3053413014332218},{"$f":"IF($B145=\"Blank\",0,OFFSET('CAPEX Annuity calcs'!$B$9,MATCH($B145,'CAPEX Annuity calcs'!$B$9:$B$500,0)+$C154,F$6))","v":5.3053413014332218},null,null,"Bracket UNIT price",1.4535181647762252,1.4535181647762252]
[null,{"$f":"Inputs!$Y$68","v":"CAPEX Installation costs"},{"$f":"C154+1","v":1},null,{"$f":"IF($B145=\"Blank\",0,OFFSET('CAPEX Annuity calcs'!$B$9,MATCH($B145,'CAPEX Annuity calcs'!$B$9:$B$500,0)+$C155,E$6))","v":0},{"$f":"IF($B145=\"Blank\",0,OFFSET('CAPEX Annuity calcs'!$B$9,MATCH($B145,'CAPEX Annuity calcs'!$B$9:$B$500,0)+$C155,F$6))","v":0},null,null,"CAPEX Installation costs",0,0]
[null,{"$f":"Inputs!$X$68","v":"Luminaire UNIT price"},{"$f":"C155+1","v":2},null,{"$f":"IF($B145=\"Blank\",0,OFFSET('CAPEX Annuity calcs'!$B$9,MATCH($B145,'CAPEX Annuity calcs'!$B$9:$B$500,0)+$C156,E$6))","v":19.58976361013648},{"$f":"IF($B145=\"Blank\",0,OFFSET('CAPEX Annuity calcs'!$B$9,MATCH($B145,'CAPEX Annuity calcs'!$B$9:$B$500,0)+$C156,F$6))","v":19.58976361013648},null,null,"Luminaire UNIT price",5.3670585233250625,5.3670585233250625]
[null,{"$f":"Inputs!$Y$68","v":"CAPEX Installation costs"},3,null,{"$f":"IF($B145=\"Blank\",0,OFFSET('CAPEX Annuity calcs'!$B$9,MATCH($B145,'CAPEX Annuity calcs'!$B$9:$B$500,0)+$C157,E$6))","v":17.165250199817599},{"$f":"IF($B145=\"Blank\",0,OFFSET('CAPEX Annuity calcs'!$B$9,MATCH($B145,'CAPEX Annuity calcs'!$B$9:$B$500,0)+$C157,F$6))","v":17.165250199817599},null,null,"CAPEX Installation costs",4.7028082739226296,4.7028082739226296]
[null,null,null,null,{"$f":"SUM(E146:E157)","v":136.49554675043808},{"$f":"SUM(F146:F157)","v":137.37254079276994},null,null,null,{"$f":"ROUND(E158/J$2*100,3)","v":37.396000000000001},{"$f":"ROUND(F158/K$2*100,3)","v":37.636000000000003}]
[]
[{"$f":"A145+1","v":11},{"$f":"IFERROR(VLOOKUP($A160,Inputs!$B$68:$AK$129,MATCH($B$7,Inputs!$B$68:$AK$68,0),FALSE),\"Blank\")","v":"2x40W Fluorescent"},null,null,null,null,null,null,{"$f":"IFERROR(VLOOKUP($A160,Inputs!$B$68:$AK$129,MATCH($B$7,Inputs!$B$68:$AK$68,0),FALSE),\"Blank\")","v":"2x40W Fluorescent"}]
[null,{"$f":"Inputs!$R$68","v":"Lamp UNIT price Annualised Cost"},{"$f":"Inputs!$P$68","v":"Lamp Maintenance cycle"},null,{"$f":"IF($B160=\"Blank\",0,VLOOKUP($B160,Inputs!$C$68:$AK$129,MATCH($B161,Inputs!$C$68:$AK$68,0),FALSE))","v":2.2579566313122958},{"$f":"IF($B160=\"Blank\",0,VLOOKUP($B160,Inputs!$C$68:$AK$129,MATCH($B161,Inputs!$C$68:$AK$68,0),FALSE))","v":2.2579566313122958},null,null,{"$f":"B161","v":"Lamp UNIT price Annualised Cost"},{"$f":"IF(E161=\"NA\",\"\",E161/J$2*100)","v":0.61861825515405366},{"$f":"IF(F161=\"NA\",\"\",F161/K$2*100)","v":0.61861825515405366}]
[null,{"$f":"Inputs!$K$68","v":"PE Cell UNIT price Annualised Cost"},{"$f":"Inputs!$I$68","v":"PE Cell Maintenance Cycle"},null,{"$f":"IF($B160=\"Blank\",0,VLOOKUP($B160,Inputs!$C$68:$AK$129,MATCH($B162,Inputs!$C$68:$AK$68,0),FALSE))","v":0.6107414998224272},{"$f":"IF($B160=\"Blank\",0,VLOOKUP($B160,Inputs!$C$68:$AK$129,MATCH($B162,Inputs!$C$68:$AK$68,0),FALSE))","v":0.6107414998224272},null,null,"PE Cell UNIT price Annualised Cost",0.16732643830751431,0.16732643830751431]
[null,"Corp capex annuity per light",null,null,{"$f":"IF($B160=\"Blank\",0,'Corp Capex Annuity calcs'!F$109)","v":14.826870317655803},{"$f":"IF($B160=\"Blank\",0,'Corp Capex Annuity calcs'!G$109)","v":14.708895619806404},null,null,"Corp capex annuity per light",4.0621562514125493,4.0298344163853157]
[null,{"$f":"Inputs!$T$68","v":"Lamp Service costs Annualised"},null,null,{"$f":"IF($B160=\"Blank\",0,VLOOKUP($B160,Inputs!$C$68:$AK$129,MATCH($B164,Inputs!$C$68:$AK$68,0),FALSE))","v":26.347371767734501},{"$f":"IF($B160=\"Blank\",0,VLOOKUP($B160,Inputs!$C$68:$AK$129,MATCH($B164,Inputs!$C$68:$AK$68,0),FALSE))","v":26.347371767734501},null,null,"Lamp Service costs Annualised",7.2184580185573974,7.2184580185573974]
[null,{"$f":"Inputs!$M$68","v":"PE Cell Service costs Annualised"},null,null,{"$f":"IF($B160=\"Blank\",0,VLOOKUP($B160,Inputs!$C$68:$AK$129,MATCH($B165,Inputs!$C$68:$AK$68,0),FALSE))","v":0},{"$f":"IF($B160=\"Blank\",0,VLOOKUP($B160,Inputs!$C$68:$AK$129,MATCH($B165,Inputs!$C$68:$AK$68,0),FALSE))","v":0},null,null,"PE Cell Service costs Annualised",0,0]
[null,"Indirect Opex",null,null,{"$f":"IF($B160=\"Blank\",0,IF($B$8=\"Private Contract Lighting\",'Opex Weighting'!D$113,'Opex Weighting'!D$111))","v":24.081834785768372},{"$f":"IF($B160=\"Blank\",0,IF($B$8=\"Private Contract Lighting\",'Opex Weighting'!E$113,'Opex Weighting'!E$111))","v":25.134626053693843},null,null,"Indirect Opex",6.5977629550050336,6.8861989188202317]
[null,"Indirect Capex",null,null,{"$f":"'Capex Weighting'!D$115","v":0},{"$f":"'Capex Weighting'!E$114","v":0},null,null,"Indirect Capex",0,0]
[null,"Overhead Costs per light",null,null,{"$f":"IF($B160=\"Blank\",0,IF($B$8=\"Private Contract Lighting\",'Building Block'!C$49,'Building Block'!C$48))","v":27.508265089316332},{"$f":"IF($B160=\"Blank\",0,IF($B$8=\"Private Contract Lighting\",'Building Block'!D$49,'Building Block'!D$48))","v":27.450442561572103},null,null,"Overhead Costs per light",7.5365109833743382,7.5206691949512612]
[null,{"$f":"Inputs!$AH$68","v":"Bracket UNIT price"},0,null,{"$f":"IF($B160=\"Blank\",0,OFFSET('CAPEX Annuity calcs'!$B$9,MATCH($B160,'CAPEX Annuity calcs'!$B$9:$B$500,0)+$C169,E$6))","v":5.3053413014332218},{"$f":"IF($B160=\"Blank\",0,OFFSET('CAPEX Annuity calcs'!$B$9,MATCH($B160,'CAPEX Annuity calcs'!$B$9:$B$500,0)+$C169,F$6))","v":5.3053413014332218},null,null,"Bracket UNIT price",1.4535181647762252,1.4535181647762252]
[null,{"$f":"Inputs!$Y$68","v":"CAPEX Installation costs"},{"$f":"C169+1","v":1},null,{"$f":"IF($B160=\"Blank\",0,OFFSET('CAPEX Annuity calcs'!$B$9,MATCH($B160,'CAPEX Annuity calcs'!$B$9:$B$500,0)+$C170,E$6))","v":0},{"$f":"IF($B160=\"Blank\",0,OFFSET('CAPEX Annuity calcs'!$B$9,MATCH($B160,'CAPEX Annuity calcs'!$B$9:$B$500,0)+$C170,F$6))","v":0},null,null,"CAPEX Installation costs",0,0]
[null,{"$f":"Inputs!$X$68","v":"Luminaire UNIT price"},{"$f":"C170+1","v":2},null,{"$f":"IF($B160=\"Blank\",0,OFFSET('CAPEX Annuity calcs'!$B$9,MATCH($B160,'CAPEX Annuity calcs'!$B$9:$B$500,0)+$C171,E$6))","v":15.349445399575959},{"$f":"IF($B160=\"Blank\",0,OFFSET('CAPEX Annuity calcs'!$B$9,MATCH($B160,'CAPEX Annuity calcs'!$B$9:$B$500,0)+$C171,F$6))","v":15.349445399575959},null,null,"Luminaire UNIT price",4.2053275067331395,4.2053275067331395]
[null,{"$f":"Inputs!$Y$68","v":"CAPEX Installation costs"},3,null,{"$f":"IF($B160=\"Blank\",0,OFFSET('CAPEX Annuity calcs'!$B$9,MATCH($B160,'CAPEX Annuity calcs'!$B$9:$B$500,0)+$C172,E$6))","v":17.165250199817599},{"$f":"IF($B160=\"Blank\",0,OFFSET('CAPEX Annuity calcs'!$B$9,MATCH($B160,'CAPEX Annuity calcs'!$B$9:$B$500,0)+$C172,F$6))","v":17.165250199817599},null,null,"CAPEX Installation costs",4.7028082739226296,4.7028082739226296]
[null,null,null,null,{"$f":"SUM(E161:E172)","v":133.45307699243651},{"$f":"SUM(F161:F172)","v":134.33007103476834},null,null,null,{"$f":"ROUND(E173/J$2*100,3)","v":36.561999999999998},{"$f":"ROUND(F173/K$2*100,3)","v":36.802999999999997}]
[]
[{"$f":"A160+1","v":12},{"$f":"IFERROR(VLOOKUP($A175,Inputs!$B$68:$AK$129,MATCH($B$7,Inputs!$B$68:$AK$68,0),FALSE),\"Blank\")","v":"3x40W Fluorescent"},null,null,null,null,null,null,{"$f":"IFERROR(VLOOKUP($A175,Inputs!$B$68:$AK$129,MATCH($B$7,Inputs!$B$68:$AK$68,0),FALSE),\"Blank\")","v":"3x40W Fluorescent"}]
[null,{"$f":"Inputs!$R$68","v":"Lamp UNIT price Annualised Cost"},{"$f":"Inputs!$P$68","v":"Lamp Maintenance cycle"},null,{"$f":"IF($B175=\"Blank\",0,VLOOKUP($B175,Inputs!$C$68:$AK$129,MATCH($B176,Inputs!$C$68:$AK$68,0),FALSE))","v":3.3869349469684438},{"$f":"IF($B175=\"Blank\",0,VLOOKUP($B175,Inputs!$C$68:$AK$129,MATCH($B176,Inputs!$C$68:$AK$68,0),FALSE))","v":3.3869349469684438},null,null,{"$f":"B176","v":"Lamp UNIT price Annualised Cost"},{"$f":"IF(E176=\"NA\",\"\",E176/J$2*100)","v":0.92792738273108044},{"$f":"IF(F176=\"NA\",\"\",F176/K$2*100)","v":0.92792738273108044}]
[null,{"$f":"Inputs!$K$68","v":"PE Cell UNIT price Annualised Cost"},{"$f":"Inputs!$I$68","v":"PE Cell Maintenance Cycle"},null,{"$f":"IF($B175=\"Blank\",0,VLOOKUP($B175,Inputs!$C$68:$AK$129,MATCH($B177,Inputs!$C$68:$AK$68,0),FALSE))","v":1.7788104971099301},{"$f":"IF($B175=\"Blank\",0,VLOOKUP($B175,Inputs!$C$68:$AK$129,MATCH($B177,Inputs!$C$68:$AK$68,0),FALSE))","v":1.7788104971099301},null,null,"PE Cell UNIT price Annualised Cost",0.48734534167395344,0.48734534167395344]
[null,"Corp capex annuity per light",null,null,{"$f":"IF($B175=\"Blank\",0,'Corp Capex Annuity calcs'!F$109)","v":14.826870317655803},{"$f":"IF($B175=\"Blank\",0,'Corp Capex Annuity calcs'!G$109)","v":14.708895619806404},null,null,"Corp capex annuity per light",4.0621562514125493,4.0298344163853157]
[null,{"$f":"Inputs!$T$68","v":"Lamp Service costs Annualised"},null,null,{"$f":"IF($B175=\"Blank\",0,VLOOKUP($B175,Inputs!$C$68:$AK$129,MATCH($B179,Inputs!$C$68:$AK$68,0),FALSE))","v":38.134353874352563},{"$f":"IF($B175=\"Blank\",0,VLOOKUP($B175,Inputs!$C$68:$AK$129,MATCH($B179,Inputs!$C$68:$AK$68,0),FALSE))","v":38.134353874352563},null,null,"Lamp Service costs Annualised",10.447768184754127,10.447768184754127]
[null,{"$f":"Inputs!$M$68","v":"PE Cell Service costs Annualised"},null,null,{"$f":"IF($B175=\"Blank\",0,VLOOKUP($B175,Inputs!$C$68:$AK$129,MATCH($B180,Inputs!$C$68:$AK$68,0),FALSE))","v":0},{"$f":"IF($B175=\"Blank\",0,VLOOKUP($B175,Inputs!$C$68:$AK$129,MATCH($B180,Inputs!$C$68:$AK$68,0),FALSE))","v":0},null,null,"PE Cell Service costs Annualised",0,0]
[null,"Indirect Opex",null,null,{"$f":"IF($B175=\"Blank\",0,IF($B$8=\"Private Contract Lighting\",'Opex Weighting'!D$113,'Opex Weighting'!D$111))","v":24.081834785768372},{"$f":"IF($B175=\"Blank\",0,IF($B$8=\"Private Contract Lighting\",'Opex Weighting'!E$113,'Opex Weighting'!E$111))","v":25.134626053693843},null,null,"Indirect Opex",6.5977629550050336,6.8861989188202317]
[null,"Indirect Capex",null,null,{"$f":"'Capex Weighting'!D$115","v":0},{"$f":"'Capex Weighting'!E$114","v":0},null,null,"Indirect Capex",0,0]
[null,"Overhead Costs per light",null,null,{"$f":"IF($B175=\"Blank\",0,IF($B$8=\"Private Contract Lighting\",'Building Block'!C$49,'Building Block'!C$48))","v":27.508265089316332},{"$f":"IF($B175=\"Blank\",0,IF($B$8=\"Private Contract Lighting\",'Building Block'!D$49,'Building Block'!D$48))","v":27.450442561572103},null,null,"Overhead Costs per light",7.5365109833743382,7.5206691949512612]
[null,{"$f":"Inputs!$AH$68","v":"Bracket UNIT price"},0,null,{"$f":"IF($B175=\"Blank\",0,OFFSET('CAPEX Annuity calcs'!$B$9,MATCH($B175,'CAPEX Annuity calcs'!$B$9:$B$500,0)+$C184,E$6))","v":4.846461255494809},{"$f":"IF($B175=\"Blank\",0,OFFSET('CAPEX Annuity calcs'!$B$9,MATCH($B175,'CAPEX Annuity calcs'!$B$9:$B$500,0)+$C184,F$6))","v":4.846461255494809},null,null,"Bracket UNIT price",1.3277976042451531,1.3277976042451531]
[null,{"$f":"Inputs!$Y$68","v":"CAPEX Installation costs"},{"$f":"C184+1","v":1},null,{"$f":"IF($B175=\"Blank\",0,OFFSET('CAPEX Annuity calcs'!$B$9,MATCH($B175,'CAPEX Annuity calcs'!$B$9:$B$500,0)+$C185,E$6))","v":11.495076294026832},{"$f":"IF($B175=\"Blank\",0,OFFSET('CAPEX Annuity calcs'!$B$9,MATCH($B175,'CAPEX Annuity calcs'!$B$9:$B$500,0)+$C185,F$6))","v":11.495076294026832},null,null,"CAPEX Installation costs",3.1493359709662556,3.1493359709662556]
[null,{"$f":"Inputs!$X$68","v":"Luminaire UNIT price"},{"$f":"C185+1","v":2},null,{"$f":"IF($B175=\"Blank\",0,OFFSET('CAPEX Annuity calcs'!$B$9,MATCH($B175,'CAPEX Annuity calcs'!$B$9:$B$500,0)+$C186,E$6))","v":13.893650526169594},{"$f":"IF($B175=\"Blank\",0,OFFSET('CAPEX Annuity calcs'!$B$9,MATCH($B175,'CAPEX Annuity calcs'!$B$9:$B$500,0)+$C186,F$6))","v":13.893650526169594},null,null,"Luminaire UNIT price",3.8064795962108473,3.8064795962108473]
[null,{"$f":"Inputs!$Y$68","v":"CAPEX Installation costs"},3,null,{"$f":"IF($B175=\"Blank\",0,OFFSET('CAPEX Annuity calcs'!$B$9,MATCH($B175,'CAPEX Annuity calcs'!$B$9:$B$500,0)+$C187,E$6))","v":16.746585560797659},{"$f":"IF($B175=\"Blank\",0,OFFSET('CAPEX Annuity calcs'!$B$9,MATCH($B175,'CAPEX Annuity calcs'!$B$9:$B$500,0)+$C187,F$6))","v":16.746585560797659},null,null,"CAPEX Installation costs",4.5881056330952488,4.5881056330952488]
[null,null,null,null,{"$f":"SUM(E176:E187)","v":156.69884314766034},{"$f":"SUM(F176:F187)","v":157.57583718999217},null,null,null,{"$f":"ROUND(E188/J$2*100,3)","v":42.930999999999997},{"$f":"ROUND(F188/K$2*100,3)","v":43.170999999999999}]
[]
[{"$f":"A175+1","v":13},{"$f":"IFERROR(VLOOKUP($A190,Inputs!$B$68:$AK$129,MATCH($B$7,Inputs!$B$68:$AK$68,0),FALSE),\"Blank\")","v":"4x20 Fluorescent"},null,null,null,null,null,null,{"$f":"IFERROR(VLOOKUP($A190,Inputs!$B$68:$AK$129,MATCH($B$7,Inputs!$B$68:$AK$68,0),FALSE),\"Blank\")","v":"4x20 Fluorescent"}]
[null,{"$f":"Inputs!$R$68","v":"Lamp UNIT price Annualised Cost"},{"$f":"Inputs!$P$68","v":"Lamp Maintenance cycle"},null,{"$f":"IF($B190=\"Blank\",0,VLOOKUP($B190,Inputs!$C$68:$AK$129,MATCH($B191,Inputs!$C$68:$AK$68,0),FALSE))","v":4.2404327150135046},{"$f":"IF($B190=\"Blank\",0,VLOOKUP($B190,Inputs!$C$68:$AK$129,MATCH($B191,Inputs!$C$68:$AK$68,0),FALSE))","v":4.2404327150135046},null,null,{"$f":"B191","v":"Lamp UNIT price Annualised Cost"},{"$f":"IF(E191=\"NA\",\"\",E191/J$2*100)","v":1.1617623876749328},{"$f":"IF(F191=\"NA\",\"\",F191/K$2*100)","v":1.1617623876749328}]
[null,{"$f":"Inputs!$K$68","v":"PE Cell UNIT price Annualised Cost"},{"$f":"Inputs!$I$68","v":"PE Cell Maintenance Cycle"},null,{"$f":"IF($B190=\"Blank\",0,VLOOKUP($B190,Inputs!$C$68:$AK$129,MATCH($B192,Inputs!$C$68:$AK$68,0),FALSE))","v":0.6107414998224272},{"$f":"IF($B190=\"Blank\",0,VLOOKUP($B190,Inputs!$C$68:$AK$129,MATCH($B192,Inputs!$C$68:$AK$68,0),FALSE))","v":0.6107414998224272},null,null,"PE Cell UNIT price Annualised Cost",0.16732643830751431,0.16732643830751431]
[null,"Corp capex annuity per light",null,null,{"$f":"IF($B190=\"Blank\",0,'Corp Capex Annuity calcs'!F$109)","v":14.826870317655803},{"$f":"IF($B190=\"Blank\",0,'Corp Capex Annuity calcs'!G$109)","v":14.708895619806404},null,null,"Corp capex annuity per light",4.0621562514125493,4.0298344163853157]
[null,{"$f":"Inputs!$T$68","v":"Lamp Service costs Annualised"},null,null,{"$f":"IF($B190=\"Blank\",0,VLOOKUP($B190,Inputs!$C$68:$AK$129,MATCH($B194,Inputs!$C$68:$AK$68,0),FALSE))","v":26.347371767734501},{"$f":"IF($B190=\"Blank\",0,VLOOKUP($B190,Inputs!$C$68:$AK$129,MATCH($B194,Inputs!$C$68:$AK$68,0),FALSE))","v":26.347371767734501},null,null,"Lamp Service costs Annualised",7.2184580185573974,7.2184580185573974]
[null,{"$f":"Inputs!$M$68","v":"PE Cell Service costs Annualised"},null,null,{"$f":"IF($B190=\"Blank\",0,VLOOKUP($B190,Inputs!$C$68:$AK$129,MATCH($B195,Inputs!$C$68:$AK$68,0),FALSE))","v":0},{"$f":"IF($B190=\"Blank\",0,VLOOKUP($B190,Inputs!$C$68:$AK$129,MATCH($B195,Inputs!$C$68:$AK$68,0),FALSE))","v":0},null,null,"PE Cell Service costs Annualised",0,0]
[null,"Indirect Opex",null,null,{"$f":"IF($B190=\"Blank\",0,IF($B$8=\"Private Contract Lighting\",'Opex Weighting'!D$113,'Opex Weighting'!D$111))","v":24.081834785768372},{"$f":"IF($B190=\"Blank\",0,IF($B$8=\"Private Contract Lighting\",'Opex Weighting'!E$113,'Opex Weighting'!E$111))","v":25.134626053693843},null,null,"Indirect Opex",6.5977629550050336,6.8861989188202317]
[null,"Indirect Capex",null,null,{"$f":"'Capex Weighting'!D$115","v":0},{"$f":"'Capex Weighting'!E$114","v":0},null,null,"Indirect Capex",0,0]
[null,"Overhead Costs per light",null,null,{"$f":"IF($B190=\"Blank\",0,IF($B$8=\"Private Contract Lighting\",'Building Block'!C$49,'Building Block'!C$48))","v":27.508265089316332},{"$f":"IF($B190=\"Blank\",0,IF($B$8=\"Private Contract Lighting\",'Building Block'!D$49,'Building Block'!D$48))","v":27.450442561572103},null,null,"Overhead Costs per light",7.5365109833743382,7.5206691949512612]
[null,{"$f":"Inputs!$AH$68","v":"Bracket UNIT price"},0,null,{"$f":"IF($B190=\"Blank\",0,OFFSET('CAPEX Annuity calcs'!$B$9,MATCH($B190,'CAPEX Annuity calcs'!$B$9:$B$500,0)+$C199,E$6))","v":5.3053413014332218},{"$f":"IF($B190=\"Blank\",0,OFFSET('CAPEX Annuity calcs'!$B$9,MATCH($B190,'CAPEX Annuity calcs'!$B$9:$B$500,0)+$C199,F$6))","v":5.3053413014332218},null,null,"Bracket UNIT price",1.4535181647762252,1.4535181647762252]
[null,{"$f":"Inputs!$Y$68","v":"CAPEX Installation costs"},{"$f":"C199+1","v":1},null,{"$f":"IF($B190=\"Blank\",0,OFFSET('CAPEX Annuity calcs'!$B$9,MATCH($B190,'CAPEX Annuity calcs'!$B$9:$B$500,0)+$C200,E$6))","v":0},{"$f":"IF($B190=\"Blank\",0,OFFSET('CAPEX Annuity calcs'!$B$9,MATCH($B190,'CAPEX Annuity calcs'!$B$9:$B$500,0)+$C200,F$6))","v":0},null,null,"CAPEX Installation costs",0,0]
[null,{"$f":"Inputs!$X$68","v":"Luminaire UNIT price"},{"$f":"C200+1","v":2},null,{"$f":"IF($B190=\"Blank\",0,OFFSET('CAPEX Annuity calcs'!$B$9,MATCH($B190,'CAPEX Annuity calcs'!$B$9:$B$500,0)+$C201,E$6))","v":19.58976361013648},{"$f":"IF($B190=\"Blank\",0,OFFSET('CAPEX Annuity calcs'!$B$9,MATCH($B190,'CAPEX Annuity calcs'!$B$9:$B$500,0)+$C201,F$6))","v":19.58976361013648},null,null,"Luminaire UNIT price",5.3670585233250625,5.3670585233250625]
[null,{"$f":"Inputs!$Y$68","v":"CAPEX Installation costs"},3,null,{"$f":"IF($B190=\"Blank\",0,OFFSET('CAPEX Annuity calcs'!$B$9,MATCH($B190,'CAPEX Annuity calcs'!$B$9:$B$500,0)+$C202,E$6))","v":17.165250199817599},{"$f":"IF($B190=\"Blank\",0,OFFSET('CAPEX Annuity calcs'!$B$9,MATCH($B190,'CAPEX Annuity calcs'!$B$9:$B$500,0)+$C202,F$6))","v":17.165250199817599},null,null,"CAPEX Installation costs",4.7028082739226296,4.7028082739226296]
[null,null,null,null,{"$f":"SUM(E191:E202)","v":139.67587128669823},{"$f":"SUM(F191:F202)","v":140.55286532903008},null,null,null,{"$f":"ROUND(E203/J$2*100,3)","v":38.267000000000003},{"$f":"ROUND(F203/K$2*100,3)","v":38.508000000000003}]
[]
[{"$f":"A190+1","v":14},{"$f":"IFERROR(VLOOKUP($A205,Inputs!$B$68:$AK$129,MATCH($B$7,Inputs!$B$68:$AK$68,0),FALSE),\"Blank\")","v":"4x40W Fluorescent"},null,null,null,null,null,null,{"$f":"IFERROR(VLOOKUP($A205,Inputs!$B$68:$AK$129,MATCH($B$7,Inputs!$B$68:$AK$68,0),FALSE),\"Blank\")","v":"4x40W Fluorescent"}]
[null,{"$f":"Inputs!$R$68","v":"Lamp UNIT price Annualised Cost"},{"$f":"Inputs!$P$68","v":"Lamp Maintenance cycle"},null,{"$f":"IF($B205=\"Blank\",0,VLOOKUP($B205,Inputs!$C$68:$AK$129,MATCH($B206,Inputs!$C$68:$AK$68,0),FALSE))","v":4.5159132626245917},{"$f":"IF($B205=\"Blank\",0,VLOOKUP($B205,Inputs!$C$68:$AK$129,MATCH($B206,Inputs!$C$68:$AK$68,0),FALSE))","v":4.5159132626245917},null,null,{"$f":"B206","v":"Lamp UNIT price Annualised Cost"},{"$f":"IF(E206=\"NA\",\"\",E206/J$2*100)","v":1.2372365103081073},{"$f":"IF(F206=\"NA\",\"\",F206/K$2*100)","v":1.2372365103081073}]
[null,{"$f":"Inputs!$K$68","v":"PE Cell UNIT price Annualised Cost"},{"$f":"Inputs!$I$68","v":"PE Cell Maintenance Cycle"},null,{"$f":"IF($B205=\"Blank\",0,VLOOKUP($B205,Inputs!$C$68:$AK$129,MATCH($B207,Inputs!$C$68:$AK$68,0),FALSE))","v":1.7788104971099301},{"$f":"IF($B205=\"Blank\",0,VLOOKUP($B205,Inputs!$C$68:$AK$129,MATCH($B207,Inputs!$C$68:$AK$68,0),FALSE))","v":1.7788104971099301},null,null,"PE Cell UNIT price Annualised Cost",0.48734534167395344,0.48734534167395344]
[null,"Corp capex annuity per light",null,null,{"$f":"IF($B205=\"Blank\",0,'Corp Capex Annuity calcs'!F$109)","v":14.826870317655803},{"$f":"IF($B205=\"Blank\",0,'Corp Capex Annuity calcs'!G$109)","v":14.708895619806404},null,null,"Corp capex annuity per light",4.0621562514125493,4.0298344163853157]
[null,{"$f":"Inputs!$T$68","v":"Lamp Service costs Annualised"},null,null,{"$f":"IF($B205=\"Blank\",0,VLOOKUP($B205,Inputs!$C$68:$AK$129,MATCH($B209,Inputs!$C$68:$AK$68,0),FALSE))","v":38.134353874352563},{"$f":"IF($B205=\"Blank\",0,VLOOKUP($B205,Inputs!$C$68:$AK$129,MATCH($B209,Inputs!$C$68:$AK$68,0),FALSE))","v":38.134353874352563},null,null,"Lamp Service costs Annualised",10.447768184754127,10.447768184754127]
[null,{"$f":"Inputs!$M$68","v":"PE Cell Service costs Annualised"},null,null,{"$f":"IF($B205=\"Blank\",0,VLOOKUP($B205,Inputs!$C$68:$AK$129,MATCH($B210,Inputs!$C$68:$AK$68,0),FALSE))","v":0},{"$f":"IF($B205=\"Blank\",0,VLOOKUP($B205,Inputs!$C$68:$AK$129,MATCH($B210,Inputs!$C$68:$AK$68,0),FALSE))","v":0},null,null,"PE Cell Service costs Annualised",0,0]
[null,"Indirect Opex",null,null,{"$f":"IF($B205=\"Blank\",0,IF($B$8=\"Private Contract Lighting\",'Opex Weighting'!D$113,'Opex Weighting'!D$111))","v":24.081834785768372},{"$f":"IF($B205=\"Blank\",0,IF($B$8=\"Private Contract Lighting\",'Opex Weighting'!E$113,'Opex Weighting'!E$111))","v":25.134626053693843},null,null,"Indirect Opex",6.5977629550050336,6.8861989188202317]
[null,"Indirect Capex",null,null,{"$f":"'Capex Weighting'!D$115","v":0},{"$f":"'Capex Weighting'!E$114","v":0},null,null,"Indirect Capex",0,0]
[null,"Overhead Costs per light",null,null,{"$f":"IF($B205=\"Blank\",0,IF($B$8=\"Private Contract Lighting\",'Building Block'!C$49,'Building Block'!C$48))","v":27.508265089316332},{"$f":"IF($B205=\"Blank\",0,IF($B$8=\"Private Contract Lighting\",'Building Block'!D$49,'Building Block'!D$48))","v":27.450442561572103},null,null,"Overhead Costs per light",7.5365109833743382,7.5206691949512612]
[null,{"$f":"Inputs!$AH$68","v":"Bracket UNIT price"},0,null,{"$f":"IF($B205=\"Blank\",0,OFFSET('CAPEX Annuity calcs'!$B$9,MATCH($B205,'CAPEX Annuity calcs'!$B$9:$B$500,0)+$C214,E$6))","v":5.3053413014332218},{"$f":"IF($B205=\"Blank\",0,OFFSET('CAPEX Annuity calcs'!$B$9,MATCH($B205,'CAPEX Annuity calcs'!$B$9:$B$500,0)+$C214,F$6))","v":5.3053413014332218},null,null,"Bracket UNIT price",1.4535181647762252,1.4535181647762252]
[null,{"$f":"Inputs!$Y$68","v":"CAPEX Installation costs"},{"$f":"C214+1","v":1},null,{"$f":"IF($B205=\"Blank\",0,OFFSET('CAPEX Annuity calcs'!$B$9,MATCH($B205,'CAPEX Annuity calcs'!$B$9:$B$500,0)+$C215,E$6))","v":0},{"$f":"IF($B205=\"Blank\",0,OFFSET('CAPEX Annuity calcs'!$B$9,MATCH($B205,'CAPEX Annuity calcs'!$B$9:$B$500,0)+$C215,F$6))","v":0},null,null,"CAPEX Installation costs",0,0]
[null,{"$f":"Inputs!$X$68","v":"Luminaire UNIT price"},{"$f":"C215+1","v":2},null,{"$f":"IF($B205=\"Blank\",0,OFFSET('CAPEX Annuity calcs'!$B$9,MATCH($B205,'CAPEX Annuity calcs'!$B$9:$B$500,0)+$C216,E$6))","v":19.58976361013648},{"$f":"IF($B205=\"Blank\",0,OFFSET('CAPEX Annuity calcs'!$B$9,MATCH($B205,'CAPEX Annuity calcs'!$B$9:$B$500,0)+$C216,F$6))","v":19.58976361013648},null,null,"Luminaire UNIT price",5.3670585233250625,5.3670585233250625]
[null,{"$f":"Inputs!$Y$68","v":"CAPEX Installation costs"},3,null,{"$f":"IF($B205=\"Blank\",0,OFFSET('CAPEX Annuity calcs'!$B$9,MATCH($B205,'CAPEX Annuity calcs'!$B$9:$B$500,0)+$C217,E$6))","v":37.089616333754066},{"$f":"IF($B205=\"Blank\",0,OFFSET('CAPEX Annuity calcs'!$B$9,MATCH($B205,'CAPEX Annuity calcs'!$B$9:$B$500,0)+$C217,F$6))","v":37.089616333754066},null,null,"CAPEX Installation costs",10.161538721576456,10.161538721576456]
[null,null,null,null,{"$f":"SUM(E206:E217)","v":172.83076907215136},{"$f":"SUM(F206:F217)","v":173.70776311448321},null,null,null,{"$f":"ROUND(E218/J$2*100,3)","v":47.350999999999999},{"$f":"ROUND(F218/K$2*100,3)","v":47.591000000000001}]
[]
[{"$f":"A205+1","v":15},{"$f":"IFERROR(VLOOKUP($A220,Inputs!$B$68:$AK$129,MATCH($B$7,Inputs!$B$68:$AK$68,0),FALSE),\"Blank\")","v":"100W Sodium Vapour"},null,null,null,null,null,null,{"$f":"IFERROR(VLOOKUP($A220,Inputs!$B$68:$AK$129,MATCH($B$7,Inputs!$B$68:$AK$68,0),FALSE),\"Blank\")","v":"100W Sodium Vapour"}]
[null,{"$f":"Inputs!$R$68","v":"Lamp UNIT price Annualised Cost"},{"$f":"Inputs!$P$68","v":"Lamp Maintenance cycle"},null,{"$f":"IF($B220=\"Blank\",0,VLOOKUP($B220,Inputs!$C$68:$AK$129,MATCH($B221,Inputs!$C$68:$AK$68,0),FALSE))","v":3.6534015972599994},{"$f":"IF($B220=\"Blank\",0,VLOOKUP($B220,Inputs!$C$68:$AK$129,MATCH($B221,Inputs!$C$68:$AK$68,0),FALSE))","v":3.6534015972599994},null,null,{"$f":"B221","v":"Lamp UNIT price Annualised Cost"},{"$f":"IF(E221=\"NA\",\"\",E221/J$2*100)","v":1.0009319444547944},{"$f":"IF(F221=\"NA\",\"\",F221/K$2*100)","v":1.0009319444547944}]
[null,{"$f":"Inputs!$K$68","v":"PE Cell UNIT price Annualised Cost"},{"$f":"Inputs!$I$68","v":"PE Cell Maintenance Cycle"},null,{"$f":"IF($B220=\"Blank\",0,VLOOKUP($B220,Inputs!$C$68:$AK$129,MATCH($B222,Inputs!$C$68:$AK$68,0),FALSE))","v":1.7788104971099301},{"$f":"IF($B220=\"Blank\",0,VLOOKUP($B220,Inputs!$C$68:$AK$129,MATCH($B222,Inputs!$C$68:$AK$68,0),FALSE))","v":1.7788104971099301},null,null,"PE Cell UNIT price Annualised Cost",0.48734534167395344,0.48734534167395344]
[null,"Corp capex annuity per light",null,null,{"$f":"IF($B220=\"Blank\",0,'Corp Capex Annuity calcs'!F$109)","v":14.826870317655803},{"$f":"IF($B220=\"Blank\",0,'Corp Capex Annuity calcs'!G$109)","v":14.708895619806404},null,null,"Corp capex annuity per light",4.0621562514125493,4.0298344163853157]
[null,{"$f":"Inputs!$T$68","v":"Lamp Service costs Annualised"},null,null,{"$f":"IF($B220=\"Blank\",0,VLOOKUP($B220,Inputs!$C$68:$AK$129,MATCH($B224,Inputs!$C$68:$AK$68,0),FALSE))","v":38.134353874352563},{"$f":"IF($B220=\"Blank\",0,VLOOKUP($B220,Inputs!$C$68:$AK$129,MATCH($B224,Inputs!$C$68:$AK$68,0),FALSE))","v":38.134353874352563},null,null,"Lamp Service costs Annualised",10.447768184754127,10.447768184754127]
[null,{"$f":"Inputs!$M$68","v":"PE Cell Service costs Annualised"},null,null,{"$f":"IF($B220=\"Blank\",0,VLOOKUP($B220,Inputs!$C$68:$AK$129,MATCH($B225,Inputs!$C$68:$AK$68,0),FALSE))","v":0},{"$f":"IF($B220=\"Blank\",0,VLOOKUP($B220,Inputs!$C$68:$AK$129,MATCH($B225,Inputs!$C$68:$AK$68,0),FALSE))","v":0},null,null,"PE Cell Service costs Annualised",0,0]
[null,"Indirect Opex",null,null,{"$f":"IF($B220=\"Blank\",0,IF($B$8=\"Private Contract Lighting\",'Opex Weighting'!D$113,'Opex Weighting'!D$111))","v":24.081834785768372},{"$f":"IF($B220=\"Blank\",0,IF($B$8=\"Private Contract Lighting\",'Opex Weighting'!E$113,'Opex Weighting'!E$111))","v":25.134626053693843},null,null,"Indirect Opex",6.5977629550050336,6.8861989188202317]
[null,"Indirect Capex",null,null,{"$f":"'Capex Weighting'!D$115","v":0},{"$f":"'Capex Weighting'!E$114","v":0},null,null,"Indirect Capex",0,0]
[null,"Overhead Costs per light",null,null,{"$f":"IF($B220=\"Blank\",0,IF($B$8=\"Private Contract Lighting\",'Building Block'!C$49,'Building Block'!C$48))","v":27.508265089316332},{"$f":"IF($B220=\"Blank\",0,IF($B$8=\"Private Contract Lighting\",'Building Block'!D$49,'Building Block'!D$48))","v":27.450442561572103},null,null,"Overhead Costs per light",7.5365109833743382,7.5206691949512612]
[null,{"$f":"Inputs!$AH$68","v":"Bracket UNIT price"},0,null,{"$f":"IF($B220=\"Blank\",0,OFFSET('CAPEX Annuity calcs'!$B$9,MATCH($B220,'CAPEX Annuity calcs'!$B$9:$B$500,0)+$C229,E$6))","v":4.8130896030266097},{"$f":"IF($B220=\"Blank\",0,OFFSET('CAPEX Annuity calcs'!$B$9,MATCH($B220,'CAPEX Annuity calcs'!$B$9:$B$500,0)+$C229,F$6))","v":4.8130896030266097},null,null,"Bracket UNIT price",1.3186546857607151,1.3186546857607151]
[null,{"$f":"Inputs!$Y$68","v":"CAPEX Installation costs"},{"$f":"C229+1","v":1},null,{"$f":"IF($B220=\"Blank\",0,OFFSET('CAPEX Annuity calcs'!$B$9,MATCH($B220,'CAPEX Annuity calcs'!$B$9:$B$500,0)+$C230,E$6))","v":0},{"$f":"IF($B220=\"Blank\",0,OFFSET('CAPEX Annuity calcs'!$B$9,MATCH($B220,'CAPEX Annuity calcs'!$B$9:$B$500,0)+$C230,F$6))","v":0},null,null,"CAPEX Installation costs",0,0]
[null,{"$f":"Inputs!$X$68","v":"Luminaire UNIT price"},{"$f":"C230+1","v":2},null,{"$f":"IF($B220=\"Blank\",0,OFFSET('CAPEX Annuity calcs'!$B$9,MATCH($B220,'CAPEX Annuity calcs'!$B$9:$B$500,0)+$C231,E$6))","v":11.396526313352776},{"$f":"IF($B220=\"Blank\",0,OFFSET('CAPEX Annuity calcs'!$B$9,MATCH($B220,'CAPEX Annuity calcs'!$B$9:$B$500,0)+$C231,F$6))","v":11.396526313352776},null,null,"Luminaire UNIT price",3.1223359762610348,3.1223359762610348]
[null,{"$f":"Inputs!$Y$68","v":"CAPEX Installation costs"},3,null,{"$f":"IF($B220=\"Blank\",0,OFFSET('CAPEX Annuity calcs'!$B$9,MATCH($B220,'CAPEX Annuity calcs'!$B$9:$B$500,0)+$C232,E$6))","v":37.089616333754066},{"$f":"IF($B220=\"Blank\",0,OFFSET('CAPEX Annuity calcs'!$B$9,MATCH($B220,'CAPEX Annuity calcs'!$B$9:$B$500,0)+$C232,F$6))","v":37.089616333754066},null,null,"CAPEX Installation costs",10.161538721576456,10.161538721576456]
[null,null,null,null,{"$f":"SUM(E221:E232)","v":163.28276841159646},{"$f":"SUM(F221:F232)","v":164.15976245392829},null,null,null,{"$f":"ROUND(E233/J$2*100,3)","v":44.734999999999999},{"$f":"ROUND(F233/K$2*100,3)","v":44.975000000000001}]
[]
[{"$f":"A220+1","v":16},{"$f":"IFERROR(VLOOKUP($A235,Inputs!$B$68:$AK$129,MATCH($B$7,Inputs!$B$68:$AK$68,0),FALSE),\"Blank\")","v":"150W Sodium Vapour"},null,null,null,null,null,null,{"$f":"IFERROR(VLOOKUP($A235,Inputs!$B$68:$AK$129,MATCH($B$7,Inputs!$B$68:$AK$68,0),FALSE),\"Blank\")","v":"150W Sodium Vapour"}]
[null,{"$f":"Inputs!$R$68","v":"Lamp UNIT price Annualised Cost"},{"$f":"Inputs!$P$68","v":"Lamp Maintenance cycle"},null,{"$f":"IF($B235=\"Blank\",0,VLOOKUP($B235,Inputs!$C$68:$AK$129,MATCH($B236,Inputs!$C$68:$AK$68,0),FALSE))","v":3.6395683290762002},{"$f":"IF($B235=\"Blank\",0,VLOOKUP($B235,Inputs!$C$68:$AK$129,MATCH($B236,Inputs!$C$68:$AK$68,0),FALSE))","v":3.6395683290762002},null,null,{"$f":"B236","v":"Lamp UNIT price Annualised Cost"},{"$f":"IF(E236=\"NA\",\"\",E236/J$2*100)","v":0.99714200796608232},{"$f":"IF(F236=\"NA\",\"\",F236/K$2*100)","v":0.99714200796608232}]
[null,{"$f":"Inputs!$K$68","v":"PE Cell UNIT price Annualised Cost"},{"$f":"Inputs!$I$68","v":"PE Cell Maintenance Cycle"},null,{"$f":"IF($B235=\"Blank\",0,VLOOKUP($B235,Inputs!$C$68:$AK$129,MATCH($B237,Inputs!$C$68:$AK$68,0),FALSE))","v":1.7788104971099301},{"$f":"IF($B235=\"Blank\",0,VLOOKUP($B235,Inputs!$C$68:$AK$129,MATCH($B237,Inputs!$C$68:$AK$68,0),FALSE))","v":1.7788104971099301},null,null,"PE Cell UNIT price Annualised Cost",0.48734534167395344,0.48734534167395344]
[null,"Corp capex annuity per light",null,null,{"$f":"IF($B235=\"Blank\",0,'Corp Capex Annuity calcs'!F$109)","v":14.826870317655803},{"$f":"IF($B235=\"Blank\",0,'Corp Capex Annuity calcs'!G$109)","v":14.708895619806404},null,null,"Corp capex annuity per light",4.0621562514125493,4.0298344163853157]
[null,{"$f":"Inputs!$T$68","v":"Lamp Service costs Annualised"},null,null,{"$f":"IF($B235=\"Blank\",0,VLOOKUP($B235,Inputs!$C$68:$AK$129,MATCH($B239,Inputs!$C$68:$AK$68,0),FALSE))","v":38.134353874352563},{"$f":"IF($B235=\"Blank\",0,VLOOKUP($B235,Inputs!$C$68:$AK$129,MATCH($B239,Inputs!$C$68:$AK$68,0),FALSE))","v":38.134353874352563},null,null,"Lamp Service costs Annualised",10.447768184754127,10.447768184754127]
[null,{"$f":"Inputs!$M$68","v":"PE Cell Service costs Annualised"},null,null,{"$f":"IF($B235=\"Blank\",0,VLOOKUP($B235,Inputs!$C$68:$AK$129,MATCH($B240,Inputs!$C$68:$AK$68,0),FALSE))","v":0},{"$f":"IF($B235=\"Blank\",0,VLOOKUP($B235,Inputs!$C$68:$AK$129,MATCH($B240,Inputs!$C$68:$AK$68,0),FALSE))","v":0},null,null,"PE Cell Service costs Annualised",0,0]
[null,"Indirect Opex",null,null,{"$f":"IF($B235=\"Blank\",0,IF($B$8=\"Private Contract Lighting\",'Opex Weighting'!D$113,'Opex Weighting'!D$111))","v":24.081834785768372},{"$f":"IF($B235=\"Blank\",0,IF($B$8=\"Private Contract Lighting\",'Opex Weighting'!E$113,'Opex Weighting'!E$111))","v":25.134626053693843},null,null,"Indirect Opex",6.5977629550050336,6.8861989188202317]
[null,"Indirect Capex",null,null,{"$f":"'Capex Weighting'!D$115","v":0},{"$f":"'Capex Weighting'!E$114","v":0},null,null,"Indirect Capex",0,0]
[null,"Overhead Costs per light",null,null,{"$f":"IF($B235=\"Blank\",0,IF($B$8=\"Private Contract Lighting\",'Building Block'!C$49,'Building Block'!C$48))","v":27.508265089316332},{"$f":"IF($B235=\"Blank\",0,IF($B$8=\"Private Contract Lighting\",'Building Block'!D$49,'Building Block'!D$48))","v":27.450442561572103},null,null,"Overhead Costs per light",7.5365109833743382,7.5206691949512612]
[null,{"$f":"Inputs!$AH$68","v":"Bracket UNIT price"},0,null,{"$f":"IF($B235=\"Blank\",0,OFFSET('CAPEX Annuity calcs'!$B$9,MATCH($B235,'CAPEX Annuity calcs'!$B$9:$B$500,0)+$C244,E$6))","v":8.2851765008532716},{"$f":"IF($B235=\"Blank\",0,OFFSET('CAPEX Annuity calcs'!$B$9,MATCH($B235,'CAPEX Annuity calcs'!$B$9:$B$500,0)+$C244,F$6))","v":8.2851765008532716},null,null,"Bracket UNIT price",2.2699113700967866,2.2699113700967866]
[null,{"$f":"Inputs!$Y$68","v":"CAPEX Installation costs"},{"$f":"C244+1","v":1},null,{"$f":"IF($B235=\"Blank\",0,OFFSET('CAPEX Annuity calcs'!$B$9,MATCH($B235,'CAPEX Annuity calcs'!$B$9:$B$500,0)+$C245,E$6))","v":0},{"$f":"IF($B235=\"Blank\",0,OFFSET('CAPEX Annuity calcs'!$B$9,MATCH($B235,'CAPEX Annuity calcs'!$B$9:$B$500,0)+$C245,F$6))","v":0},null,null,"CAPEX Installation costs",0,0]
[null,{"$f":"Inputs!$X$68","v":"Luminaire UNIT price"},{"$f":"C245+1","v":2},null,{"$f":"IF($B235=\"Blank\",0,OFFSET('CAPEX Annuity calcs'!$B$9,MATCH($B235,'CAPEX Annuity calcs'!$B$9:$B$500,0)+$C246,E$6))","v":15.950383935062112},{"$f":"IF($B235=\"Blank\",0,OFFSET('CAPEX Annuity calcs'!$B$9,MATCH($B235,'CAPEX Annuity calcs'!$B$9:$B$500,0)+$C246,F$6))","v":15.950383935062112},null,null,"Luminaire UNIT price",4.3699682013868797,4.3699682013868797]
[null,{"$f":"Inputs!$Y$68","v":"CAPEX Installation costs"},3,null,{"$f":"IF($B235=\"Blank\",0,OFFSET('CAPEX Annuity calcs'!$B$9,MATCH($B235,'CAPEX Annuity calcs'!$B$9:$B$500,0)+$C247,E$6))","v":37.089616333754066},{"$f":"IF($B235=\"Blank\",0,OFFSET('CAPEX Annuity calcs'!$B$9,MATCH($B235,'CAPEX Annuity calcs'!$B$9:$B$500,0)+$C247,F$6))","v":37.089616333754066},null,null,"CAPEX Installation costs",10.161538721576456,10.161538721576456]
[null,null,null,null,{"$f":"SUM(E236:E247)","v":171.29487966294863},{"$f":"SUM(F236:F247)","v":172.17187370528049},null,null,null,{"$f":"ROUND(E248/J$2*100,3)","v":46.93},{"$f":"ROUND(F248/K$2*100,3)","v":47.17}]
[]
[{"$f":"A235+1","v":17},{"$f":"IFERROR(VLOOKUP($A250,Inputs!$B$68:$AK$129,MATCH($B$7,Inputs!$B$68:$AK$68,0),FALSE),\"Blank\")","v":"250W Sodium Vapour"},null,null,null,null,null,null,{"$f":"IFERROR(VLOOKUP($A250,Inputs!$B$68:$AK$129,MATCH($B$7,Inputs!$B$68:$AK$68,0),FALSE),\"Blank\")","v":"250W Sodium Vapour"}]
[null,{"$f":"Inputs!$R$68","v":"Lamp UNIT price Annualised Cost"},{"$f":"Inputs!$P$68","v":"Lamp Maintenance cycle"},null,{"$f":"IF($B250=\"Blank\",0,VLOOKUP($B250,Inputs!$C$68:$AK$129,MATCH($B251,Inputs!$C$68:$AK$68,0),FALSE))","v":4.0928443282184501},{"$f":"IF($B250=\"Blank\",0,VLOOKUP($B250,Inputs!$C$68:$AK$129,MATCH($B251,Inputs!$C$68:$AK$68,0),FALSE))","v":4.0928443282184501},null,null,{"$f":"B251","v":"Lamp UNIT price Annualised Cost"},{"$f":"IF(E251=\"NA\",\"\",E251/J$2*100)","v":1.1213272132105343},{"$f":"IF(F251=\"NA\",\"\",F251/K$2*100)","v":1.1213272132105343}]
[null,{"$f":"Inputs!$K$68","v":"PE Cell UNIT price Annualised Cost"},{"$f":"Inputs!$I$68","v":"PE Cell Maintenance Cycle"},null,{"$f":"IF($B250=\"Blank\",0,VLOOKUP($B250,Inputs!$C$68:$AK$129,MATCH($B252,Inputs!$C$68:$AK$68,0),FALSE))","v":1.7788104971099301},{"$f":"IF($B250=\"Blank\",0,VLOOKUP($B250,Inputs!$C$68:$AK$129,MATCH($B252,Inputs!$C$68:$AK$68,0),FALSE))","v":1.7788104971099301},null,null,"PE Cell UNIT price Annualised Cost",0.48734534167395344,0.48734534167395344]
[null,"Corp capex annuity per light",null,null,{"$f":"IF($B250=\"Blank\",0,'Corp Capex Annuity calcs'!F$109)","v":14.826870317655803},{"$f":"IF($B250=\"Blank\",0,'Corp Capex Annuity calcs'!G$109)","v":14.708895619806404},null,null,"Corp capex annuity per light",4.0621562514125493,4.0298344163853157]
[null,{"$f":"Inputs!$T$68","v":"Lamp Service costs Annualised"},null,null,{"$f":"IF($B250=\"Blank\",0,VLOOKUP($B250,Inputs!$C$68:$AK$129,MATCH($B254,Inputs!$C$68:$AK$68,0),FALSE))","v":38.134353874352563},{"$f":"IF($B250=\"Blank\",0,VLOOKUP($B250,Inputs!$C$68:$AK$129,MATCH($B254,Inputs!$C$68:$AK$68,0),FALSE))","v":38.134353874352563},null,null,"Lamp Service costs Annualised",10.447768184754127,10.447768184754127]
[null,{"$f":"Inputs!$M$68","v":"PE Cell Service costs Annualised"},null,null,{"$f":"IF($B250=\"Blank\",0,VLOOKUP($B250,Inputs!$C$68:$AK$129,MATCH($B255,Inputs!$C$68:$AK$68,0),FALSE))","v":0},{"$f":"IF($B250=\"Blank\",0,VLOOKUP($B250,Inputs!$C$68:$AK$129,MATCH($B255,Inputs!$C$68:$AK$68,0),FALSE))","v":0},null,null,"PE Cell Service costs Annualised",0,0]
[null,"Indirect Opex",null,null,{"$f":"IF($B250=\"Blank\",0,IF($B$8=\"Private Contract Lighting\",'Opex Weighting'!D$113,'Opex Weighting'!D$111))","v":24.081834785768372},{"$f":"IF($B250=\"Blank\",0,IF($B$8=\"Private Contract Lighting\",'Opex Weighting'!E$113,'Opex Weighting'!E$111))","v":25.134626053693843},null,null,"Indirect Opex",6.5977629550050336,6.8861989188202317]
[null,"Indirect Capex",null,null,{"$f":"'Capex Weighting'!D$115","v":0},{"$f":"'Capex Weighting'!E$114","v":0},null,null,"Indirect Capex",0,0]
[null,"Overhead Costs per light",null,null,{"$f":"IF($B250=\"Blank\",0,IF($B$8=\"Private Contract Lighting\",'Building Block'!C$49,'Building Block'!C$48))","v":27.508265089316332},{"$f":"IF($B250=\"Blank\",0,IF($B$8=\"Private Contract Lighting\",'Building Block'!D$49,'Building Block'!D$48))","v":27.450442561572103},null,null,"Overhead Costs per light",7.5365109833743382,7.5206691949512612]
[null,{"$f":"Inputs!$AH$68","v":"Bracket UNIT price"},0,null,{"$f":"IF($B250=\"Blank\",0,OFFSET('CAPEX Annuity calcs'!$B$9,MATCH($B250,'CAPEX Annuity calcs'!$B$9:$B$500,0)+$C259,E$6))","v":10.631763726905863},{"$f":"IF($B250=\"Blank\",0,OFFSET('CAPEX Annuity calcs'!$B$9,MATCH($B250,'CAPEX Annuity calcs'!$B$9:$B$500,0)+$C259,F$6))","v":10.631763726905863},null,null,"Bracket UNIT price",2.9128119799742089,2.9128119799742089]
[null,{"$f":"Inputs!$Y$68","v":"CAPEX Installation costs"},{"$f":"C259+1","v":1},null,{"$f":"IF($B250=\"Blank\",0,OFFSET('CAPEX Annuity calcs'!$B$9,MATCH($B250,'CAPEX Annuity calcs'!$B$9:$B$500,0)+$C260,E$6))","v":0},{"$f":"IF($B250=\"Blank\",0,OFFSET('CAPEX Annuity calcs'!$B$9,MATCH($B250,'CAPEX Annuity calcs'!$B$9:$B$500,0)+$C260,F$6))","v":0},null,null,"CAPEX Installation costs",0,0]
[null,{"$f":"Inputs!$X$68","v":"Luminaire UNIT price"},{"$f":"C260+1","v":2},null,{"$f":"IF($B250=\"Blank\",0,OFFSET('CAPEX Annuity calcs'!$B$9,MATCH($B250,'CAPEX Annuity calcs'!$B$9:$B$500,0)+$C261,E$6))","v":17.062871414319702},{"$f":"IF($B250=\"Blank\",0,OFFSET('CAPEX Annuity calcs'!$B$9,MATCH($B250,'CAPEX Annuity calcs'!$B$9:$B$500,0)+$C261,F$6))","v":17.062871414319702},null,null,"Luminaire UNIT price",4.6747592915944391,4.6747592915944391]
[null,{"$f":"Inputs!$Y$68","v":"CAPEX Installation costs"},3,null,{"$f":"IF($B250=\"Blank\",0,OFFSET('CAPEX Annuity calcs'!$B$9,MATCH($B250,'CAPEX Annuity calcs'!$B$9:$B$500,0)+$C262,E$6))","v":37.089616333754066},{"$f":"IF($B250=\"Blank\",0,OFFSET('CAPEX Annuity calcs'!$B$9,MATCH($B250,'CAPEX Annuity calcs'!$B$9:$B$500,0)+$C262,F$6))","v":37.089616333754066},null,null,"CAPEX Installation costs",10.161538721576456,10.161538721576456]
[null,null,null,null,{"$f":"SUM(E251:E262)","v":175.20723036740105},{"$f":"SUM(F251:F262)","v":176.08422440973291},null,null,null,{"$f":"ROUND(E263/J$2*100,3)","v":48.002000000000002},{"$f":"ROUND(F263/K$2*100,3)","v":48.241999999999997}]
[]
[{"$f":"A250+1","v":18},{"$f":"IFERROR(VLOOKUP($A265,Inputs!$B$68:$AK$129,MATCH($B$7,Inputs!$B$68:$AK$68,0),FALSE),\"Blank\")","v":"250W Sodium Vapour - Flood Light"},null,null,null,null,null,null,{"$f":"IFERROR(VLOOKUP($A265,Inputs!$B$68:$AK$129,MATCH($B$7,Inputs!$B$68:$AK$68,0),FALSE),\"Blank\")","v":"250W Sodium Vapour - Flood Light"}]
[null,{"$f":"Inputs!$R$68","v":"Lamp UNIT price Annualised Cost"},{"$f":"Inputs!$P$68","v":"Lamp Maintenance cycle"},null,{"$f":"IF($B265=\"Blank\",0,VLOOKUP($B265,Inputs!$C$68:$AK$129,MATCH($B266,Inputs!$C$68:$AK$68,0),FALSE))","v":4.0928443282184501},{"$f":"IF($B265=\"Blank\",0,VLOOKUP($B265,Inputs!$C$68:$AK$129,MATCH($B266,Inputs!$C$68:$AK$68,0),FALSE))","v":4.0928443282184501},null,null,{"$f":"B266","v":"Lamp UNIT price Annualised Cost"},{"$f":"IF(E266=\"NA\",\"\",E266/J$2*100)","v":1.1213272132105343},{"$f":"IF(F266=\"NA\",\"\",F266/K$2*100)","v":1.1213272132105343}]
[null,{"$f":"Inputs!$K$68","v":"PE Cell UNIT price Annualised Cost"},{"$f":"Inputs!$I$68","v":"PE Cell Maintenance Cycle"},null,{"$f":"IF($B265=\"Blank\",0,VLOOKUP($B265,Inputs!$C$68:$AK$129,MATCH($B267,Inputs!$C$68:$AK$68,0),FALSE))","v":1.7788104971099301},{"$f":"IF($B265=\"Blank\",0,VLOOKUP($B265,Inputs!$C$68:$AK$129,MATCH($B267,Inputs!$C$68:$AK$68,0),FALSE))","v":1.7788104971099301},null,null,"PE Cell UNIT price Annualised Cost",0.48734534167395344,0.48734534167395344]
[null,"Corp capex annuity per light",null,null,{"$f":"IF($B265=\"Blank\",0,'Corp Capex Annuity calcs'!F$109)","v":14.826870317655803},{"$f":"IF($B265=\"Blank\",0,'Corp Capex Annuity calcs'!G$109)","v":14.708895619806404},null,null,"Corp capex annuity per light",4.0621562514125493,4.0298344163853157]
[null,{"$f":"Inputs!$T$68","v":"Lamp Service costs Annualised"},null,null,{"$f":"IF($B265=\"Blank\",0,VLOOKUP($B265,Inputs!$C$68:$AK$129,MATCH($B269,Inputs!$C$68:$AK$68,0),FALSE))","v":38.134353874352563},{"$f":"IF($B265=\"Blank\",0,VLOOKUP($B265,Inputs!$C$68:$AK$129,MATCH($B269,Inputs!$C$68:$AK$68,0),FALSE))","v":38.134353874352563},null,null,"Lamp Service costs Annualised",10.447768184754127,10.447768184754127]
[null,{"$f":"Inputs!$M$68","v":"PE Cell Service costs Annualised"},null,null,{"$f":"IF($B265=\"Blank\",0,VLOOKUP($B265,Inputs!$C$68:$AK$129,MATCH($B270,Inputs!$C$68:$AK$68,0),FALSE))","v":0},{"$f":"IF($B265=\"Blank\",0,VLOOKUP($B265,Inputs!$C$68:$AK$129,MATCH($B270,Inputs!$C$68:$AK$68,0),FALSE))","v":0},null,null,"PE Cell Service costs Annualised",0,0]
[null,"Indirect Opex",null,null,{"$f":"IF($B265=\"Blank\",0,IF($B$8=\"Private Contract Lighting\",'Opex Weighting'!D$113,'Opex Weighting'!D$111))","v":24.081834785768372},{"$f":"IF($B265=\"Blank\",0,IF($B$8=\"Private Contract Lighting\",'Opex Weighting'!E$113,'Opex Weighting'!E$111))","v":25.134626053693843},null,null,"Indirect Opex",6.5977629550050336,6.8861989188202317]
[null,"Indirect Capex",null,null,{"$f":"'Capex Weighting'!D$115","v":0},{"$f":"'Capex Weighting'!E$114","v":0},null,null,"Indirect Capex",0,0]
[null,"Overhead Costs per light",null,null,{"$f":"IF($B265=\"Blank\",0,IF($B$8=\"Private Contract Lighting\",'Building Block'!C$49,'Building Block'!C$48))","v":27.508265089316332},{"$f":"IF($B265=\"Blank\",0,IF($B$8=\"Private Contract Lighting\",'Building Block'!D$49,'Building Block'!D$48))","v":27.450442561572103},null,null,"Overhead Costs per light",7.5365109833743382,7.5206691949512612]
[null,{"$f":"Inputs!$AH$68","v":"Bracket UNIT price"},0,null,{"$f":"IF($B265=\"Blank\",0,OFFSET('CAPEX Annuity calcs'!$B$9,MATCH($B265,'CAPEX Annuity calcs'!$B$9:$B$500,0)+$C274,E$6))","v":10.631763726905863},{"$f":"IF($B265=\"Blank\",0,OFFSET('CAPEX Annuity calcs'!$B$9,MATCH($B265,'CAPEX Annuity calcs'!$B$9:$B$500,0)+$C274,F$6))","v":10.631763726905863},null,null,"Bracket UNIT price",2.9128119799742089,2.9128119799742089]
[null,{"$f":"Inputs!$Y$68","v":"CAPEX Installation costs"},{"$f":"C274+1","v":1},null,{"$f":"IF($B265=\"Blank\",0,OFFSET('CAPEX Annuity calcs'!$B$9,MATCH($B265,'CAPEX Annuity calcs'!$B$9:$B$500,0)+$C275,E$6))","v":0},{"$f":"IF($B265=\"Blank\",0,OFFSET('CAPEX Annuity calcs'!$B$9,MATCH($B265,'CAPEX Annuity calcs'!$B$9:$B$500,0)+$C275,F$6))","v":0},null,null,"CAPEX Installation costs",0,0]
[null,{"$f":"Inputs!$X$68","v":"Luminaire UNIT price"},{"$f":"C275+1","v":2},null,{"$f":"IF($B265=\"Blank\",0,OFFSET('CAPEX Annuity calcs'!$B$9,MATCH($B265,'CAPEX Annuity calcs'!$B$9:$B$500,0)+$C276,E$6))","v":30.807561077872098},{"$f":"IF($B265=\"Blank\",0,OFFSET('CAPEX Annuity calcs'!$B$9,MATCH($B265,'CAPEX Annuity calcs'!$B$9:$B$500,0)+$C276,F$6))","v":30.807561077872098},null,null,"Luminaire UNIT price",8.4404276925676989,8.4404276925676989]
[null,{"$f":"Inputs!$Y$68","v":"CAPEX Installation costs"},3,null,{"$f":"IF($B265=\"Blank\",0,OFFSET('CAPEX Annuity calcs'!$B$9,MATCH($B265,'CAPEX Annuity calcs'!$B$9:$B$500,0)+$C277,E$6))","v":37.089616333754066},{"$f":"IF($B265=\"Blank\",0,OFFSET('CAPEX Annuity calcs'!$B$9,MATCH($B265,'CAPEX Annuity calcs'!$B$9:$B$500,0)+$C277,F$6))","v":37.089616333754066},null,null,"CAPEX Installation costs",10.161538721576456,10.161538721576456]
[null,null,null,null,{"$f":"SUM(E266:E277)","v":188.95192003095346},{"$f":"SUM(F266:F277)","v":189.82891407328532},null,null,null,{"$f":"ROUND(E278/J$2*100,3)","v":51.768000000000001},{"$f":"ROUND(F278/K$2*100,3)","v":52.008000000000003}]
[]
[{"$f":"A265+1","v":19},{"$f":"IFERROR(VLOOKUP($A280,Inputs!$B$68:$AK$129,MATCH($B$7,Inputs!$B$68:$AK$68,0),FALSE),\"Blank\")","v":"400W Sodium Vapour"},null,null,null,null,null,null,{"$f":"IFERROR(VLOOKUP($A280,Inputs!$B$68:$AK$129,MATCH($B$7,Inputs!$B$68:$AK$68,0),FALSE),\"Blank\")","v":"400W Sodium Vapour"}]
[null,{"$f":"Inputs!$R$68","v":"Lamp UNIT price Annualised Cost"},{"$f":"Inputs!$P$68","v":"Lamp Maintenance cycle"},null,{"$f":"IF($B280=\"Blank\",0,VLOOKUP($B280,Inputs!$C$68:$AK$129,MATCH($B281,Inputs!$C$68:$AK$68,0),FALSE))","v":4.2464881915077495},{"$f":"IF($B280=\"Blank\",0,VLOOKUP($B280,Inputs!$C$68:$AK$129,MATCH($B281,Inputs!$C$68:$AK$68,0),FALSE))","v":4.2464881915077495},null,null,{"$f":"B281","v":"Lamp UNIT price Annualised Cost"},{"$f":"IF(E281=\"NA\",\"\",E281/J$2*100)","v":1.1634214223308903},{"$f":"IF(F281=\"NA\",\"\",F281/K$2*100)","v":1.1634214223308903}]
[null,{"$f":"Inputs!$K$68","v":"PE Cell UNIT price Annualised Cost"},{"$f":"Inputs!$I$68","v":"PE Cell Maintenance Cycle"},null,{"$f":"IF($B280=\"Blank\",0,VLOOKUP($B280,Inputs!$C$68:$AK$129,MATCH($B282,Inputs!$C$68:$AK$68,0),FALSE))","v":1.7788104971099301},{"$f":"IF($B280=\"Blank\",0,VLOOKUP($B280,Inputs!$C$68:$AK$129,MATCH($B282,Inputs!$C$68:$AK$68,0),FALSE))","v":1.7788104971099301},null,null,"PE Cell UNIT price Annualised Cost",0.48734534167395344,0.48734534167395344]
[null,"Corp capex annuity per light",null,null,{"$f":"IF($B280=\"Blank\",0,'Corp Capex Annuity calcs'!F$109)","v":14.826870317655803},{"$f":"IF($B280=\"Blank\",0,'Corp Capex Annuity calcs'!G$109)","v":14.708895619806404},null,null,"Corp capex annuity per light",4.0621562514125493,4.0298344163853157]
[null,{"$f":"Inputs!$T$68","v":"Lamp Service costs Annualised"},null,null,{"$f":"IF($B280=\"Blank\",0,VLOOKUP($B280,Inputs!$C$68:$AK$129,MATCH($B284,Inputs!$C$68:$AK$68,0),FALSE))","v":38.134353874352563},{"$f":"IF($B280=\"Blank\",0,VLOOKUP($B280,Inputs!$C$68:$AK$129,MATCH($B284,Inputs!$C$68:$AK$68,0),FALSE))","v":38.134353874352563},null,null,"Lamp Service costs Annualised",10.447768184754127,10.447768184754127]
[null,{"$f":"Inputs!$M$68","v":"PE Cell Service costs Annualised"},null,null,{"$f":"IF($B280=\"Blank\",0,VLOOKUP($B280,Inputs!$C$68:$AK$129,MATCH($B285,Inputs!$C$68:$AK$68,0),FALSE))","v":0},{"$f":"IF($B280=\"Blank\",0,VLOOKUP($B280,Inputs!$C$68:$AK$129,MATCH($B285,Inputs!$C$68:$AK$68,0),FALSE))","v":0},null,null,"PE Cell Service costs Annualised",0,0]
[null,"Indirect Opex",null,null,{"$f":"IF($B280=\"Blank\",0,IF($B$8=\"Private Contract Lighting\",'Opex Weighting'!D$113,'Opex Weighting'!D$111))","v":24.081834785768372},{"$f":"IF($B280=\"Blank\",0,IF($B$8=\"Private Contract Lighting\",'Opex Weighting'!E$113,'Opex Weighting'!E$111))","v":25.134626053693843},null,null,"Indirect Opex",6.5977629550050336,6.8861989188202317]
[null,"Indirect Capex",null,null,{"$f":"'Capex Weighting'!D$115","v":0},{"$f":"'Capex Weighting'!E$114","v":0},null,null,"Indirect Capex",0,0]
[null,"Overhead Costs per light",null,null,{"$f":"IF($B280=\"Blank\",0,IF($B$8=\"Private Contract Lighting\",'Building Block'!C$49,'Building Block'!C$48))","v":27.508265089316332},{"$f":"IF($B280=\"Blank\",0,IF($B$8=\"Private Contract Lighting\",'Building Block'!D$49,'Building Block'!D$48))","v":27.450442561572103},null,null,"Overhead Costs per light",7.5365109833743382,7.5206691949512612]
[null,{"$f":"Inputs!$AH$68","v":"Bracket UNIT price"},0,null,{"$f":"IF($B280=\"Blank\",0,OFFSET('CAPEX Annuity calcs'!$B$9,MATCH($B280,'CAPEX Annuity calcs'!$B$9:$B$500,0)+$C289,E$6))","v":7.6697768001663169},{"$f":"IF($B280=\"Blank\",0,OFFSET('CAPEX Annuity calcs'!$B$9,MATCH($B280,'CAPEX Annuity calcs'!$B$9:$B$500,0)+$C289,F$6))","v":7.6697768001663169},null,null,"Bracket UNIT price",2.1013087123743333,2.1013087123743333]
[null,{"$f":"Inputs!$Y$68","v":"CAPEX Installation costs"},{"$f":"C289+1","v":1},null,{"$f":"IF($B280=\"Blank\",0,OFFSET('CAPEX Annuity calcs'!$B$9,MATCH($B280,'CAPEX Annuity calcs'!$B$9:$B$500,0)+$C290,E$6))","v":0},{"$f":"IF($B280=\"Blank\",0,OFFSET('CAPEX Annuity calcs'!$B$9,MATCH($B280,'CAPEX Annuity calcs'!$B$9:$B$500,0)+$C290,F$6))","v":0},null,null,"CAPEX Installation costs",0,0]
[null,{"$f":"Inputs!$X$68","v":"Luminaire UNIT price"},{"$f":"C290+1","v":2},null,{"$f":"IF($B280=\"Blank\",0,OFFSET('CAPEX Annuity calcs'!$B$9,MATCH($B280,'CAPEX Annuity calcs'!$B$9:$B$500,0)+$C291,E$6))","v":22.662265370142414},{"$f":"IF($B280=\"Blank\",0,OFFSET('CAPEX Annuity calcs'!$B$9,MATCH($B280,'CAPEX Annuity calcs'!$B$9:$B$500,0)+$C291,F$6))","v":22.662265370142414},null,null,"Luminaire UNIT price",6.2088398274362779,6.2088398274362779]
[null,{"$f":"Inputs!$Y$68","v":"CAPEX Installation costs"},3,null,{"$f":"IF($B280=\"Blank\",0,OFFSET('CAPEX Annuity calcs'!$B$9,MATCH($B280,'CAPEX Annuity calcs'!$B$9:$B$500,0)+$C292,E$6))","v":37.089616333754066},{"$f":"IF($B280=\"Blank\",0,OFFSET('CAPEX Annuity calcs'!$B$9,MATCH($B280,'CAPEX Annuity calcs'!$B$9:$B$500,0)+$C292,F$6))","v":37.089616333754066},null,null,"CAPEX Installation costs",10.161538721576456,10.161538721576456]
[null,null,null,null,{"$f":"SUM(E281:E292)","v":177.99828125977356},{"$f":"SUM(F281:F292)","v":178.87527530210539},null,null,null,{"$f":"ROUND(E293/J$2*100,3)","v":48.767000000000003},{"$f":"ROUND(F293/K$2*100,3)","v":49.006999999999998}]
[]
[{"$f":"A280+1","v":20},{"$f":"IFERROR(VLOOKUP($A295,Inputs!$B$68:$AK$129,MATCH($B$7,Inputs!$B$68:$AK$68,0),FALSE),\"Blank\")","v":"400W Sodium Vapour - Flood Light"},null,null,null,null,null,null,{"$f":"IFERROR(VLOOKUP($A295,Inputs!$B$68:$AK$129,MATCH($B$7,Inputs!$B$68:$AK$68,0),FALSE),\"Blank\")","v":"400W Sodium Vapour - Flood Light"}]
[null,{"$f":"Inputs!$R$68","v":"Lamp UNIT price Annualised Cost"},{"$f":"Inputs!$P$68","v":"Lamp Maintenance cycle"},null,{"$f":"IF($B295=\"Blank\",0,VLOOKUP($B295,Inputs!$C$68:$AK$129,MATCH($B296,Inputs!$C$68:$AK$68,0),FALSE))","v":4.2464881915077495},{"$f":"IF($B295=\"Blank\",0,VLOOKUP($B295,Inputs!$C$68:$AK$129,MATCH($B296,Inputs!$C$68:$AK$68,0),FALSE))","v":4.2464881915077495},null,null,{"$f":"B296","v":"Lamp UNIT price Annualised Cost"},{"$f":"IF(E296=\"NA\",\"\",E296/J$2*100)","v":1.1634214223308903},{"$f":"IF(F296=\"NA\",\"\",F296/K$2*100)","v":1.1634214223308903}]
[null,{"$f":"Inputs!$K$68","v":"PE Cell UNIT price Annualised Cost"},{"$f":"Inputs!$I$68","v":"PE Cell Maintenance Cycle"},null,{"$f":"IF($B295=\"Blank\",0,VLOOKUP($B295,Inputs!$C$68:$AK$129,MATCH($B297,Inputs!$C$68:$AK$68,0),FALSE))","v":1.7788104971099301},{"$f":"IF($B295=\"Blank\",0,VLOOKUP($B295,Inputs!$C$68:$AK$129,MATCH($B297,Inputs!$C$68:$AK$68,0),FALSE))","v":1.7788104971099301},null,null,"PE Cell UNIT price Annualised Cost",0.48734534167395344,0.48734534167395344]
[null,"Corp capex annuity per light",null,null,{"$f":"IF($B295=\"Blank\",0,'Corp Capex Annuity calcs'!F$109)","v":14.826870317655803},{"$f":"IF($B295=\"Blank\",0,'Corp Capex Annuity calcs'!G$109)","v":14.708895619806404},null,null,"Corp capex annuity per light",4.0621562514125493,4.0298344163853157]
[null,{"$f":"Inputs!$T$68","v":"Lamp Service costs Annualised"},null,null,{"$f":"IF($B295=\"Blank\",0,VLOOKUP($B295,Inputs!$C$68:$AK$129,MATCH($B299,Inputs!$C$68:$AK$68,0),FALSE))","v":38.134353874352563},{"$f":"IF($B295=\"Blank\",0,VLOOKUP($B295,Inputs!$C$68:$AK$129,MATCH($B299,Inputs!$C$68:$AK$68,0),FALSE))","v":38.134353874352563},null,null,"Lamp Service costs Annualised",10.447768184754127,10.447768184754127]
[null,{"$f":"Inputs!$M$68","v":"PE Cell Service costs Annualised"},null,null,{"$f":"IF($B295=\"Blank\",0,VLOOKUP($B295,Inputs!$C$68:$AK$129,MATCH($B300,Inputs!$C$68:$AK$68,0),FALSE))","v":0},{"$f":"IF($B295=\"Blank\",0,VLOOKUP($B295,Inputs!$C$68:$AK$129,MATCH($B300,Inputs!$C$68:$AK$68,0),FALSE))","v":0},null,null,"PE Cell Service costs Annualised",0,0]
[null,"Indirect Opex",null,null,{"$f":"IF($B295=\"Blank\",0,IF($B$8=\"Private Contract Lighting\",'Opex Weighting'!D$113,'Opex Weighting'!D$111))","v":24.081834785768372},{"$f":"IF($B295=\"Blank\",0,IF($B$8=\"Private Contract Lighting\",'Opex Weighting'!E$113,'Opex Weighting'!E$111))","v":25.134626053693843},null,null,"Indirect Opex",6.5977629550050336,6.8861989188202317]
[null,"Indirect Capex",null,null,{"$f":"'Capex Weighting'!D$115","v":0},{"$f":"'Capex Weighting'!E$114","v":0},null,null,"Indirect Capex",0,0]
[null,"Overhead Costs per light",null,null,{"$f":"IF($B295=\"Blank\",0,IF($B$8=\"Private Contract Lighting\",'Building Block'!C$49,'Building Block'!C$48))","v":27.508265089316332},{"$f":"IF($B295=\"Blank\",0,IF($B$8=\"Private Contract Lighting\",'Building Block'!D$49,'Building Block'!D$48))","v":27.450442561572103},null,null,"Overhead Costs per light",7.5365109833743382,7.5206691949512612]
[null,{"$f":"Inputs!$AH$68","v":"Bracket UNIT price"},0,null,{"$f":"IF($B295=\"Blank\",0,OFFSET('CAPEX Annuity calcs'!$B$9,MATCH($B295,'CAPEX Annuity calcs'!$B$9:$B$500,0)+$C304,E$6))","v":7.6697768001663169},{"$f":"IF($B295=\"Blank\",0,OFFSET('CAPEX Annuity calcs'!$B$9,MATCH($B295,'CAPEX Annuity calcs'!$B$9:$B$500,0)+$C304,F$6))","v":7.6697768001663169},null,null,"Bracket UNIT price",2.1013087123743333,2.1013087123743333]
[null,{"$f":"Inputs!$Y$68","v":"CAPEX Installation costs"},{"$f":"C304+1","v":1},null,{"$f":"IF($B295=\"Blank\",0,OFFSET('CAPEX Annuity calcs'!$B$9,MATCH($B295,'CAPEX Annuity calcs'!$B$9:$B$500,0)+$C305,E$6))","v":0},{"$f":"IF($B295=\"Blank\",0,OFFSET('CAPEX Annuity calcs'!$B$9,MATCH($B295,'CAPEX Annuity calcs'!$B$9:$B$500,0)+$C305,F$6))","v":0},null,null,"CAPEX Installation costs",0,0]
[null,{"$f":"Inputs!$X$68","v":"Luminaire UNIT price"},{"$f":"C305+1","v":2},null,{"$f":"IF($B295=\"Blank\",0,OFFSET('CAPEX Annuity calcs'!$B$9,MATCH($B295,'CAPEX Annuity calcs'!$B$9:$B$500,0)+$C306,E$6))","v":31.727394224958356},{"$f":"IF($B295=\"Blank\",0,OFFSET('CAPEX Annuity calcs'!$B$9,MATCH($B295,'CAPEX Annuity calcs'!$B$9:$B$500,0)+$C306,F$6))","v":31.727394224958356},null,null,"Luminaire UNIT price",8.6924367739611927,8.6924367739611927]
[null,{"$f":"Inputs!$Y$68","v":"CAPEX Installation costs"},3,null,{"$f":"IF($B295=\"Blank\",0,OFFSET('CAPEX Annuity calcs'!$B$9,MATCH($B295,'CAPEX Annuity calcs'!$B$9:$B$500,0)+$C307,E$6))","v":37.089616333754066},{"$f":"IF($B295=\"Blank\",0,OFFSET('CAPEX Annuity calcs'!$B$9,MATCH($B295,'CAPEX Annuity calcs'!$B$9:$B$500,0)+$C307,F$6))","v":37.089616333754066},null,null,"CAPEX Installation costs",10.161538721576456,10.161538721576456]
[null,null,null,null,{"$f":"SUM(E296:E307)","v":187.06341011458949},{"$f":"SUM(F296:F307)","v":187.94040415692135},null,null,null,{"$f":"ROUND(E308/J$2*100,3)","v":51.25},{"$f":"ROUND(F308/K$2*100,3)","v":51.491}]
[]
[{"$f":"A295+1","v":21},{"$f":"IFERROR(VLOOKUP($A310,Inputs!$B$68:$AK$129,MATCH($B$7,Inputs!$B$68:$AK$68,0),FALSE),\"Blank\")","v":"70W Sodium Vapour"},null,null,null,null,null,null,{"$f":"IFERROR(VLOOKUP($A310,Inputs!$B$68:$AK$129,MATCH($B$7,Inputs!$B$68:$AK$68,0),FALSE),\"Blank\")","v":"70W Sodium Vapour"}]
[null,{"$f":"Inputs!$R$68","v":"Lamp UNIT price Annualised Cost"},{"$f":"Inputs!$P$68","v":"Lamp Maintenance cycle"},null,{"$f":"IF($B310=\"Blank\",0,VLOOKUP($B310,Inputs!$C$68:$AK$129,MATCH($B311,Inputs!$C$68:$AK$68,0),FALSE))","v":1.8209369368867503},{"$f":"IF($B310=\"Blank\",0,VLOOKUP($B310,Inputs!$C$68:$AK$129,MATCH($B311,Inputs!$C$68:$AK$68,0),FALSE))","v":1.8209369368867503},null,null,{"$f":"B311","v":"Lamp UNIT price Annualised Cost"},{"$f":"IF(E311=\"NA\",\"\",E311/J$2*100)","v":0.49888683202376721},{"$f":"IF(F311=\"NA\",\"\",F311/K$2*100)","v":0.49888683202376721}]
[null,{"$f":"Inputs!$K$68","v":"PE Cell UNIT price Annualised Cost"},{"$f":"Inputs!$I$68","v":"PE Cell Maintenance Cycle"},null,{"$f":"IF($B310=\"Blank\",0,VLOOKUP($B310,Inputs!$C$68:$AK$129,MATCH($B312,Inputs!$C$68:$AK$68,0),FALSE))","v":0.6107414998224272},{"$f":"IF($B310=\"Blank\",0,VLOOKUP($B310,Inputs!$C$68:$AK$129,MATCH($B312,Inputs!$C$68:$AK$68,0),FALSE))","v":0.6107414998224272},null,null,"PE Cell UNIT price Annualised Cost",0.16732643830751431,0.16732643830751431]
[null,"Corp capex annuity per light",null,null,{"$f":"IF($B310=\"Blank\",0,'Corp Capex Annuity calcs'!F$109)","v":14.826870317655803},{"$f":"IF($B310=\"Blank\",0,'Corp Capex Annuity calcs'!G$109)","v":14.708895619806404},null,null,"Corp capex annuity per light",4.0621562514125493,4.0298344163853157]
[null,{"$f":"Inputs!$T$68","v":"Lamp Service costs Annualised"},null,null,{"$f":"IF($B310=\"Blank\",0,VLOOKUP($B310,Inputs!$C$68:$AK$129,MATCH($B314,Inputs!$C$68:$AK$68,0),FALSE))","v":26.347371767734501},{"$f":"IF($B310=\"Blank\",0,VLOOKUP($B310,Inputs!$C$68:$AK$129,MATCH($B314,Inputs!$C$68:$AK$68,0),FALSE))","v":26.347371767734501},null,null,"Lamp Service costs Annualised",7.2184580185573974,7.2184580185573974]
[null,{"$f":"Inputs!$M$68","v":"PE Cell Service costs Annualised"},null,null,{"$f":"IF($B310=\"Blank\",0,VLOOKUP($B310,Inputs!$C$68:$AK$129,MATCH($B315,Inputs!$C$68:$AK$68,0),FALSE))","v":0},{"$f":"IF($B310=\"Blank\",0,VLOOKUP($B310,Inputs!$C$68:$AK$129,MATCH($B315,Inputs!$C$68:$AK$68,0),FALSE))","v":0},null,null,"PE Cell Service costs Annualised",0,0]
[null,"Indirect Opex",null,null,{"$f":"IF($B310=\"Blank\",0,IF($B$8=\"Private Contract Lighting\",'Opex Weighting'!D$113,'Opex Weighting'!D$111))","v":24.081834785768372},{"$f":"IF($B310=\"Blank\",0,IF($B$8=\"Private Contract Lighting\",'Opex Weighting'!E$113,'Opex Weighting'!E$111))","v":25.134626053693843},null,null,"Indirect Opex",6.5977629550050336,6.8861989188202317]
[null,"Indirect Capex",null,null,{"$f":"'Capex Weighting'!D$115","v":0},{"$f":"'Capex Weighting'!E$114","v":0},null,null,"Indirect Capex",0,0]
[null,"Overhead Costs per light",null,null,{"$f":"IF($B310=\"Blank\",0,IF($B$8=\"Private Contract Lighting\",'Building Block'!C$49,'Building Block'!C$48))","v":27.508265089316332},{"$f":"IF($B310=\"Blank\",0,IF($B$8=\"Private Contract Lighting\",'Building Block'!D$49,'Building Block'!D$48))","v":27.450442561572103},null,null,"Overhead Costs per light",7.5365109833743382,7.5206691949512612]
[null,{"$f":"Inputs!$AH$68","v":"Bracket UNIT price"},0,null,{"$f":"IF($B310=\"Blank\",0,OFFSET('CAPEX Annuity calcs'!$B$9,MATCH($B310,'CAPEX Annuity calcs'!$B$9:$B$500,0)+$C319,E$6))","v":4.6535794707903211},{"$f":"IF($B310=\"Blank\",0,OFFSET('CAPEX Annuity calcs'!$B$9,MATCH($B310,'CAPEX Annuity calcs'!$B$9:$B$500,0)+$C319,F$6))","v":4.6535794707903211},null,null,"Bracket UNIT price",1.2749532796685812,1.2749532796685812]
[null,{"$f":"Inputs!$Y$68","v":"CAPEX Installation costs"},{"$f":"C319+1","v":1},null,{"$f":"IF($B310=\"Blank\",0,OFFSET('CAPEX Annuity calcs'!$B$9,MATCH($B310,'CAPEX Annuity calcs'!$B$9:$B$500,0)+$C320,E$6))","v":0},{"$f":"IF($B310=\"Blank\",0,OFFSET('CAPEX Annuity calcs'!$B$9,MATCH($B310,'CAPEX Annuity calcs'!$B$9:$B$500,0)+$C320,F$6))","v":0},null,null,"CAPEX Installation costs",0,0]
[null,{"$f":"Inputs!$X$68","v":"Luminaire UNIT price"},{"$f":"C320+1","v":2},null,{"$f":"IF($B310=\"Blank\",0,OFFSET('CAPEX Annuity calcs'!$B$9,MATCH($B310,'CAPEX Annuity calcs'!$B$9:$B$500,0)+$C321,E$6))","v":11.851783749496695},{"$f":"IF($B310=\"Blank\",0,OFFSET('CAPEX Annuity calcs'!$B$9,MATCH($B310,'CAPEX Annuity calcs'!$B$9:$B$500,0)+$C321,F$6))","v":11.851783749496695},null,null,"Luminaire UNIT price",3.2470640409579992,3.2470640409579992]
[null,{"$f":"Inputs!$Y$68","v":"CAPEX Installation costs"},3,null,{"$f":"IF($B310=\"Blank\",0,OFFSET('CAPEX Annuity calcs'!$B$9,MATCH($B310,'CAPEX Annuity calcs'!$B$9:$B$500,0)+$C322,E$6))","v":17.165250199817599},{"$f":"IF($B310=\"Blank\",0,OFFSET('CAPEX Annuity calcs'!$B$9,MATCH($B310,'CAPEX Annuity calcs'!$B$9:$B$500,0)+$C322,F$6))","v":17.165250199817599},null,null,"CAPEX Installation costs",4.7028082739226296,4.7028082739226296]
[null,null,null,null,{"$f":"SUM(E311:E322)","v":128.8666338172888},{"$f":"SUM(F311:F322)","v":129.74362785962063},null,null,null,{"$f":"ROUND(E323/J$2*100,3)","v":35.305999999999997},{"$f":"ROUND(F323/K$2*100,3)","v":35.545999999999999}]
[]
[{"$f":"A310+1","v":22},{"$f":"IFERROR(VLOOKUP($A325,Inputs!$B$68:$AK$129,MATCH($B$7,Inputs!$B$68:$AK$68,0),FALSE),\"Blank\")","v":"100W Incandescent"},null,null,null,null,null,null,{"$f":"IFERROR(VLOOKUP($A325,Inputs!$B$68:$AK$129,MATCH($B$7,Inputs!$B$68:$AK$68,0),FALSE),\"Blank\")","v":"100W Incandescent"}]
[null,{"$f":"Inputs!$R$68","v":"Lamp UNIT price Annualised Cost"},{"$f":"Inputs!$P$68","v":"Lamp Maintenance cycle"},null,{"$f":"IF($B325=\"Blank\",0,VLOOKUP($B325,Inputs!$C$68:$AK$129,MATCH($B326,Inputs!$C$68:$AK$68,0),FALSE))","v":0.45257518536107016},{"$f":"IF($B325=\"Blank\",0,VLOOKUP($B325,Inputs!$C$68:$AK$129,MATCH($B326,Inputs!$C$68:$AK$68,0),FALSE))","v":0.45257518536107016},null,null,{"$f":"B326","v":"Lamp UNIT price Annualised Cost"},{"$f":"IF(E326=\"NA\",\"\",E326/J$2*100)","v":0.12399320146878635},{"$f":"IF(F326=\"NA\",\"\",F326/K$2*100)","v":0.12399320146878635}]
[null,{"$f":"Inputs!$K$68","v":"PE Cell UNIT price Annualised Cost"},{"$f":"Inputs!$I$68","v":"PE Cell Maintenance Cycle"},null,{"$f":"IF($B325=\"Blank\",0,VLOOKUP($B325,Inputs!$C$68:$AK$129,MATCH($B327,Inputs!$C$68:$AK$68,0),FALSE))","v":1.7788104971099301},{"$f":"IF($B325=\"Blank\",0,VLOOKUP($B325,Inputs!$C$68:$AK$129,MATCH($B327,Inputs!$C$68:$AK$68,0),FALSE))","v":1.7788104971099301},null,null,"PE Cell UNIT price Annualised Cost",0.48734534167395344,0.48734534167395344]
[null,"Corp capex annuity per light",null,null,{"$f":"IF($B325=\"Blank\",0,'Corp Capex Annuity calcs'!F$109)","v":14.826870317655803},{"$f":"IF($B325=\"Blank\",0,'Corp Capex Annuity calcs'!G$109)","v":14.708895619806404},null,null,"Corp capex annuity per light",4.0621562514125493,4.0298344163853157]
[null,{"$f":"Inputs!$T$68","v":"Lamp Service costs Annualised"},null,null,{"$f":"IF($B325=\"Blank\",0,VLOOKUP($B325,Inputs!$C$68:$AK$129,MATCH($B329,Inputs!$C$68:$AK$68,0),FALSE))","v":38.134353874352563},{"$f":"IF($B325=\"Blank\",0,VLOOKUP($B325,Inputs!$C$68:$AK$129,MATCH($B329,Inputs!$C$68:$AK$68,0),FALSE))","v":38.134353874352563},null,null,"Lamp Service costs Annualised",10.447768184754127,10.447768184754127]
[null,{"$f":"Inputs!$M$68","v":"PE Cell Service costs Annualised"},null,null,{"$f":"IF($B325=\"Blank\",0,VLOOKUP($B325,Inputs!$C$68:$AK$129,MATCH($B330,Inputs!$C$68:$AK$68,0),FALSE))","v":0},{"$f":"IF($B325=\"Blank\",0,VLOOKUP($B325,Inputs!$C$68:$AK$129,MATCH($B330,Inputs!$C$68:$AK$68,0),FALSE))","v":0},null,null,"PE Cell Service costs Annualised",0,0]
[null,"Indirect Opex",null,null,{"$f":"IF($B325=\"Blank\",0,IF($B$8=\"Private Contract Lighting\",'Opex Weighting'!D$113,'Opex Weighting'!D$111))","v":24.081834785768372},{"$f":"IF($B325=\"Blank\",0,IF($B$8=\"Private Contract Lighting\",'Opex Weighting'!E$113,'Opex Weighting'!E$111))","v":25.134626053693843},null,null,"Indirect Opex",6.5977629550050336,6.8861989188202317]
[null,"Indirect Capex",null,null,{"$f":"'Capex Weighting'!D$115","v":0},{"$f":"'Capex Weighting'!E$114","v":0},null,null,"Indirect Capex",0,0]
[null,"Overhead Costs per light",null,null,{"$f":"IF($B325=\"Blank\",0,IF($B$8=\"Private Contract Lighting\",'Building Block'!C$49,'Building Block'!C$48))","v":27.508265089316332},{"$f":"IF($B325=\"Blank\",0,IF($B$8=\"Private Contract Lighting\",'Building Block'!D$49,'Building Block'!D$48))","v":27.450442561572103},null,null,"Overhead Costs per light",7.5365109833743382,7.5206691949512612]
[null,{"$f":"Inputs!$AH$68","v":"Bracket UNIT price"},0,null,{"$f":"IF($B325=\"Blank\",0,OFFSET('CAPEX Annuity calcs'!$B$9,MATCH($B325,'CAPEX Annuity calcs'!$B$9:$B$500,0)+$C334,E$6))","v":3.4606597921646172},{"$f":"IF($B325=\"Blank\",0,OFFSET('CAPEX Annuity calcs'!$B$9,MATCH($B325,'CAPEX Annuity calcs'!$B$9:$B$500,0)+$C334,F$6))","v":3.4606597921646172},null,null,"Bracket UNIT price",0.9481259704560594,0.9481259704560594]
[null,{"$f":"Inputs!$Y$68","v":"CAPEX Installation costs"},{"$f":"C334+1","v":1},null,{"$f":"IF($B325=\"Blank\",0,OFFSET('CAPEX Annuity calcs'!$B$9,MATCH($B325,'CAPEX Annuity calcs'!$B$9:$B$500,0)+$C335,E$6))","v":0},{"$f":"IF($B325=\"Blank\",0,OFFSET('CAPEX Annuity calcs'!$B$9,MATCH($B325,'CAPEX Annuity calcs'!$B$9:$B$500,0)+$C335,F$6))","v":0},null,null,"CAPEX Installation costs",0,0]
[null,{"$f":"Inputs!$X$68","v":"Luminaire UNIT price"},{"$f":"C335+1","v":2},null,{"$f":"IF($B325=\"Blank\",0,OFFSET('CAPEX Annuity calcs'!$B$9,MATCH($B325,'CAPEX Annuity calcs'!$B$9:$B$500,0)+$C336,E$6))","v":4.3153921037935703},{"$f":"IF($B325=\"Blank\",0,OFFSET('CAPEX Annuity calcs'!$B$9,MATCH($B325,'CAPEX Annuity calcs'!$B$9:$B$500,0)+$C336,F$6))","v":4.3153921037935703},null,null,"Luminaire UNIT price",1.1822992065187863,1.1822992065187863]
[null,{"$f":"Inputs!$Y$68","v":"CAPEX Installation costs"},3,null,{"$f":"IF($B325=\"Blank\",0,OFFSET('CAPEX Annuity calcs'!$B$9,MATCH($B325,'CAPEX Annuity calcs'!$B$9:$B$500,0)+$C337,E$6))","v":37.089616333754066},{"$f":"IF($B325=\"Blank\",0,OFFSET('CAPEX Annuity calcs'!$B$9,MATCH($B325,'CAPEX Annuity calcs'!$B$9:$B$500,0)+$C337,F$6))","v":37.089616333754066},null,null,"CAPEX Installation costs",10.161538721576456,10.161538721576456]
[null,null,null,null,{"$f":"SUM(E326:E337)","v":151.64837797927635},{"$f":"SUM(F326:F337)","v":152.52537202160818},null,null,null,{"$f":"ROUND(E338/J$2*100,3)","v":41.548000000000002},{"$f":"ROUND(F338/K$2*100,3)","v":41.787999999999997}]
[]
[{"$f":"A325+1","v":23},{"$f":"IFERROR(VLOOKUP($A340,Inputs!$B$68:$AK$129,MATCH($B$7,Inputs!$B$68:$AK$68,0),FALSE),\"Blank\")","v":"60W Incandescent"},null,null,null,null,null,null,{"$f":"IFERROR(VLOOKUP($A340,Inputs!$B$68:$AK$129,MATCH($B$7,Inputs!$B$68:$AK$68,0),FALSE),\"Blank\")","v":"60W Incandescent"}]
[null,{"$f":"Inputs!$R$68","v":"Lamp UNIT price Annualised Cost"},{"$f":"Inputs!$P$68","v":"Lamp Maintenance cycle"},null,{"$f":"IF($B340=\"Blank\",0,VLOOKUP($B340,Inputs!$C$68:$AK$129,MATCH($B341,Inputs!$C$68:$AK$68,0),FALSE))","v":0.45257518536107016},{"$f":"IF($B340=\"Blank\",0,VLOOKUP($B340,Inputs!$C$68:$AK$129,MATCH($B341,Inputs!$C$68:$AK$68,0),FALSE))","v":0.45257518536107016},null,null,{"$f":"B341","v":"Lamp UNIT price Annualised Cost"},{"$f":"IF(E341=\"NA\",\"\",E341/J$2*100)","v":0.12399320146878635},{"$f":"IF(F341=\"NA\",\"\",F341/K$2*100)","v":0.12399320146878635}]
[null,{"$f":"Inputs!$K$68","v":"PE Cell UNIT price Annualised Cost"},{"$f":"Inputs!$I$68","v":"PE Cell Maintenance Cycle"},null,{"$f":"IF($B340=\"Blank\",0,VLOOKUP($B340,Inputs!$C$68:$AK$129,MATCH($B342,Inputs!$C$68:$AK$68,0),FALSE))","v":0.6107414998224272},{"$f":"IF($B340=\"Blank\",0,VLOOKUP($B340,Inputs!$C$68:$AK$129,MATCH($B342,Inputs!$C$68:$AK$68,0),FALSE))","v":0.6107414998224272},null,null,"PE Cell UNIT price Annualised Cost",0.16732643830751431,0.16732643830751431]
[null,"Corp capex annuity per light",null,null,{"$f":"IF($B340=\"Blank\",0,'Corp Capex Annuity calcs'!F$109)","v":14.826870317655803},{"$f":"IF($B340=\"Blank\",0,'Corp Capex Annuity calcs'!G$109)","v":14.708895619806404},null,null,"Corp capex annuity per light",4.0621562514125493,4.0298344163853157]
[null,{"$f":"Inputs!$T$68","v":"Lamp Service costs Annualised"},null,null,{"$f":"IF($B340=\"Blank\",0,VLOOKUP($B340,Inputs!$C$68:$AK$129,MATCH($B344,Inputs!$C$68:$AK$68,0),FALSE))","v":26.347371767734501},{"$f":"IF($B340=\"Blank\",0,VLOOKUP($B340,Inputs!$C$68:$AK$129,MATCH($B344,Inputs!$C$68:$AK$68,0),FALSE))","v":26.347371767734501},null,null,"Lamp Service costs Annualised",7.2184580185573974,7.2184580185573974]
[null,{"$f":"Inputs!$M$68","v":"PE Cell Service costs Annualised"},null,null,{"$f":"IF($B340=\"Blank\",0,VLOOKUP($B340,Inputs!$C$68:$AK$129,MATCH($B345,Inputs!$C$68:$AK$68,0),FALSE))","v":0},{"$f":"IF($B340=\"Blank\",0,VLOOKUP($B340,Inputs!$C$68:$AK$129,MATCH($B345,Inputs!$C$68:$AK$68,0),FALSE))","v":0},null,null,"PE Cell Service costs Annualised",0,0]
[null,"Indirect Opex",null,null,{"$f":"IF($B340=\"Blank\",0,IF($B$8=\"Private Contract Lighting\",'Opex Weighting'!D$113,'Opex Weighting'!D$111))","v":24.081834785768372},{"$f":"IF($B340=\"Blank\",0,IF($B$8=\"Private Contract Lighting\",'Opex Weighting'!E$113,'Opex Weighting'!E$111))","v":25.134626053693843},null,null,"Indirect Opex",6.5977629550050336,6.8861989188202317]
[null,"Indirect Capex",null,null,{"$f":"'Capex Weighting'!D$115","v":0},{"$f":"'Capex Weighting'!E$114","v":0},null,null,"Indirect Capex",0,0]
[null,"Overhead Costs per light",null,null,{"$f":"IF($B340=\"Blank\",0,IF($B$8=\"Private Contract Lighting\",'Building Block'!C$49,'Building Block'!C$48))","v":27.508265089316332},{"$f":"IF($B340=\"Blank\",0,IF($B$8=\"Private Contract Lighting\",'Building Block'!D$49,'Building Block'!D$48))","v":27.450442561572103},null,null,"Overhead Costs per light",7.5365109833743382,7.5206691949512612]
[null,{"$f":"Inputs!$AH$68","v":"Bracket UNIT price"},0,null,{"$f":"IF($B340=\"Blank\",0,OFFSET('CAPEX Annuity calcs'!$B$9,MATCH($B340,'CAPEX Annuity calcs'!$B$9:$B$500,0)+$C349,E$6))","v":3.4606597921646172},{"$f":"IF($B340=\"Blank\",0,OFFSET('CAPEX Annuity calcs'!$B$9,MATCH($B340,'CAPEX Annuity calcs'!$B$9:$B$500,0)+$C349,F$6))","v":3.4606597921646172},null,null,"Bracket UNIT price",0.9481259704560594,0.9481259704560594]
[null,{"$f":"Inputs!$Y$68","v":"CAPEX Installation costs"},{"$f":"C349+1","v":1},null,{"$f":"IF($B340=\"Blank\",0,OFFSET('CAPEX Annuity calcs'!$B$9,MATCH($B340,'CAPEX Annuity calcs'!$B$9:$B$500,0)+$C350,E$6))","v":0},{"$f":"IF($B340=\"Blank\",0,OFFSET('CAPEX Annuity calcs'!$B$9,MATCH($B340,'CAPEX Annuity calcs'!$B$9:$B$500,0)+$C350,F$6))","v":0},null,null,"CAPEX Installation costs",0,0]
[null,{"$f":"Inputs!$X$68","v":"Luminaire UNIT price"},{"$f":"C350+1","v":2},null,{"$f":"IF($B340=\"Blank\",0,OFFSET('CAPEX Annuity calcs'!$B$9,MATCH($B340,'CAPEX Annuity calcs'!$B$9:$B$500,0)+$C351,E$6))","v":4.3153921037935703},{"$f":"IF($B340=\"Blank\",0,OFFSET('CAPEX Annuity calcs'!$B$9,MATCH($B340,'CAPEX Annuity calcs'!$B$9:$B$500,0)+$C351,F$6))","v":4.3153921037935703},null,null,"Luminaire UNIT price",1.1822992065187863,1.1822992065187863]
[null,{"$f":"Inputs!$Y$68","v":"CAPEX Installation costs"},3,null,{"$f":"IF($B340=\"Blank\",0,OFFSET('CAPEX Annuity calcs'!$B$9,MATCH($B340,'CAPEX Annuity calcs'!$B$9:$B$500,0)+$C352,E$6))","v":17.165250199817599},{"$f":"IF($B340=\"Blank\",0,OFFSET('CAPEX Annuity calcs'!$B$9,MATCH($B340,'CAPEX Annuity calcs'!$B$9:$B$500,0)+$C352,F$6))","v":17.165250199817599},null,null,"CAPEX Installation costs",4.7028082739226296,4.7028082739226296]
[null,null,null,null,{"$f":"SUM(E341:E352)","v":118.76896074143428},{"$f":"SUM(F341:F352)","v":119.64595478376614},null,null,null,{"$f":"ROUND(E353/J$2*100,3)","v":32.539000000000001},{"$f":"ROUND(F353/K$2*100,3)","v":32.78}]
[]
[{"$f":"A340+1","v":24},{"$f":"IFERROR(VLOOKUP($A355,Inputs!$B$68:$AK$129,MATCH($B$7,Inputs!$B$68:$AK$68,0),FALSE),\"Blank\")","v":"18W LED"},null,null,null,null,null,null,{"$f":"IFERROR(VLOOKUP($A355,Inputs!$B$68:$AK$129,MATCH($B$7,Inputs!$B$68:$AK$68,0),FALSE),\"Blank\")","v":"18W LED"}]
[null,{"$f":"Inputs!$R$68","v":"Lamp UNIT price Annualised Cost"},{"$f":"Inputs!$P$68","v":"Lamp Maintenance cycle"},null,{"$f":"IF($B355=\"Blank\",0,VLOOKUP($B355,Inputs!$C$68:$AK$129,MATCH($B356,Inputs!$C$68:$AK$68,0),FALSE))","v":0},{"$f":"IF($B355=\"Blank\",0,VLOOKUP($B355,Inputs!$C$68:$AK$129,MATCH($B356,Inputs!$C$68:$AK$68,0),FALSE))","v":0},null,null,{"$f":"B356","v":"Lamp UNIT price Annualised Cost"},{"$f":"IF(E356=\"NA\",\"\",E356/J$2*100)","v":0},{"$f":"IF(F356=\"NA\",\"\",F356/K$2*100)","v":0}]
[null,{"$f":"Inputs!$K$68","v":"PE Cell UNIT price Annualised Cost"},{"$f":"Inputs!$I$68","v":"PE Cell Maintenance Cycle"},null,{"$f":"IF($B355=\"Blank\",0,VLOOKUP($B355,Inputs!$C$68:$AK$129,MATCH($B357,Inputs!$C$68:$AK$68,0),FALSE))","v":0.3053707499112136},{"$f":"IF($B355=\"Blank\",0,VLOOKUP($B355,Inputs!$C$68:$AK$129,MATCH($B357,Inputs!$C$68:$AK$68,0),FALSE))","v":0.3053707499112136},null,null,"PE Cell UNIT price Annualised Cost",8.3663219153757157E-2,8.3663219153757157E-2]
[null,"Corp capex annuity per light",null,null,{"$f":"IF($B355=\"Blank\",0,'Corp Capex Annuity calcs'!F$109)","v":14.826870317655803},{"$f":"IF($B355=\"Blank\",0,'Corp Capex Annuity calcs'!G$109)","v":14.708895619806404},null,null,"Corp capex annuity per light",4.0621562514125493,4.0298344163853157]
[null,{"$f":"Inputs!$T$68","v":"Lamp Service costs Annualised"},null,null,{"$f":"IF($B355=\"Blank\",0,VLOOKUP($B355,Inputs!$C$68:$AK$129,MATCH($B359,Inputs!$C$68:$AK$68,0),FALSE))","v":0},{"$f":"IF($B355=\"Blank\",0,VLOOKUP($B355,Inputs!$C$68:$AK$129,MATCH($B359,Inputs!$C$68:$AK$68,0),FALSE))","v":0},null,null,"Lamp Service costs Annualised",0,0]
[null,{"$f":"Inputs!$M$68","v":"PE Cell Service costs Annualised"},null,null,{"$f":"IF($B355=\"Blank\",0,VLOOKUP($B355,Inputs!$C$68:$AK$129,MATCH($B360,Inputs!$C$68:$AK$68,0),FALSE))","v":6.5868429419336252},{"$f":"IF($B355=\"Blank\",0,VLOOKUP($B355,Inputs!$C$68:$AK$129,MATCH($B360,Inputs!$C$68:$AK$68,0),FALSE))","v":6.5868429419336252},null,null,"PE Cell Service costs Annualised",1.8046145046393494,1.8046145046393494]
[null,"Indirect Opex",null,null,{"$f":"IF($B355=\"Blank\",0,IF($B$8=\"Private Contract Lighting\",'Opex Weighting'!D$113,'Opex Weighting'!D$111))","v":24.081834785768372},{"$f":"IF($B355=\"Blank\",0,IF($B$8=\"Private Contract Lighting\",'Opex Weighting'!E$113,'Opex Weighting'!E$111))","v":25.134626053693843},null,null,"Indirect Opex",6.5977629550050336,6.8861989188202317]
[null,"Indirect Capex",null,null,{"$f":"'Capex Weighting'!D$115","v":0},{"$f":"'Capex Weighting'!E$114","v":0},null,null,"Indirect Capex",0,0]
[null,"Overhead Costs per light",null,null,{"$f":"IF($B355=\"Blank\",0,IF($B$8=\"Private Contract Lighting\",'Building Block'!C$49,'Building Block'!C$48))","v":27.508265089316332},{"$f":"IF($B355=\"Blank\",0,IF($B$8=\"Private Contract Lighting\",'Building Block'!D$49,'Building Block'!D$48))","v":27.450442561572103},null,null,"Overhead Costs per light",7.5365109833743382,7.5206691949512612]
[null,{"$f":"Inputs!$AH$68","v":"Bracket UNIT price"},0,null,{"$f":"IF($B355=\"Blank\",0,OFFSET('CAPEX Annuity calcs'!$B$9,MATCH($B355,'CAPEX Annuity calcs'!$B$9:$B$500,0)+$C364,E$6))","v":3.9708893514415231},{"$f":"IF($B355=\"Blank\",0,OFFSET('CAPEX Annuity calcs'!$B$9,MATCH($B355,'CAPEX Annuity calcs'!$B$9:$B$500,0)+$C364,F$6))","v":3.9708893514415231},null,null,"Bracket UNIT price",1.0879148908058969,1.0879148908058969]
[null,{"$f":"Inputs!$Y$68","v":"CAPEX Installation costs"},{"$f":"C364+1","v":1},null,{"$f":"IF($B355=\"Blank\",0,OFFSET('CAPEX Annuity calcs'!$B$9,MATCH($B355,'CAPEX Annuity calcs'!$B$9:$B$500,0)+$C365,E$6))","v":0},{"$f":"IF($B355=\"Blank\",0,OFFSET('CAPEX Annuity calcs'!$B$9,MATCH($B355,'CAPEX Annuity calcs'!$B$9:$B$500,0)+$C365,F$6))","v":0},null,null,"CAPEX Installation costs",0,0]
[null,{"$f":"Inputs!$X$68","v":"Luminaire UNIT price"},{"$f":"C365+1","v":2},null,{"$f":"IF($B355=\"Blank\",0,OFFSET('CAPEX Annuity calcs'!$B$9,MATCH($B355,'CAPEX Annuity calcs'!$B$9:$B$500,0)+$C366,E$6))","v":27.704423187523222},{"$f":"IF($B355=\"Blank\",0,OFFSET('CAPEX Annuity calcs'!$B$9,MATCH($B355,'CAPEX Annuity calcs'!$B$9:$B$500,0)+$C366,F$6))","v":27.704423187523222},null,null,"Luminaire UNIT price",7.5902529280885531,7.5902529280885531]
[null,{"$f":"Inputs!$Y$68","v":"CAPEX Installation costs"},3,null,{"$f":"IF($B355=\"Blank\",0,OFFSET('CAPEX Annuity calcs'!$B$9,MATCH($B355,'CAPEX Annuity calcs'!$B$9:$B$500,0)+$C367,E$6))","v":17.165250199817599},{"$f":"IF($B355=\"Blank\",0,OFFSET('CAPEX Annuity calcs'!$B$9,MATCH($B355,'CAPEX Annuity calcs'!$B$9:$B$500,0)+$C367,F$6))","v":17.165250199817599},null,null,"CAPEX Installation costs",4.7028082739226296,4.7028082739226296]
[null,null,null,null,{"$f":"SUM(E356:E367)","v":122.14974662336769},{"$f":"SUM(F356:F367)","v":123.02674066569955},null,null,null,{"$f":"ROUND(E368/J$2*100,3)","v":33.466000000000001},{"$f":"ROUND(F368/K$2*100,3)","v":33.706000000000003}]
[]
[{"$f":"A355+1","v":25},{"$f":"IFERROR(VLOOKUP($A370,Inputs!$B$68:$AK$129,MATCH($B$7,Inputs!$B$68:$AK$68,0),FALSE),\"Blank\")","v":"25W LED"},null,null,null,null,null,null,{"$f":"IFERROR(VLOOKUP($A370,Inputs!$B$68:$AK$129,MATCH($B$7,Inputs!$B$68:$AK$68,0),FALSE),\"Blank\")","v":"25W LED"}]
[null,{"$f":"Inputs!$R$68","v":"Lamp UNIT price Annualised Cost"},{"$f":"Inputs!$P$68","v":"Lamp Maintenance cycle"},null,{"$f":"IF($B370=\"Blank\",0,VLOOKUP($B370,Inputs!$C$68:$AK$129,MATCH($B371,Inputs!$C$68:$AK$68,0),FALSE))","v":0},{"$f":"IF($B370=\"Blank\",0,VLOOKUP($B370,Inputs!$C$68:$AK$129,MATCH($B371,Inputs!$C$68:$AK$68,0),FALSE))","v":0},null,null,{"$f":"B371","v":"Lamp UNIT price Annualised Cost"},{"$f":"IF(E371=\"NA\",\"\",E371/J$2*100)","v":0},{"$f":"IF(F371=\"NA\",\"\",F371/K$2*100)","v":0}]
[null,{"$f":"Inputs!$K$68","v":"PE Cell UNIT price Annualised Cost"},{"$f":"Inputs!$I$68","v":"PE Cell Maintenance Cycle"},null,{"$f":"IF($B370=\"Blank\",0,VLOOKUP($B370,Inputs!$C$68:$AK$129,MATCH($B372,Inputs!$C$68:$AK$68,0),FALSE))","v":0.3053707499112136},{"$f":"IF($B370=\"Blank\",0,VLOOKUP($B370,Inputs!$C$68:$AK$129,MATCH($B372,Inputs!$C$68:$AK$68,0),FALSE))","v":0.3053707499112136},null,null,"PE Cell UNIT price Annualised Cost",8.3663219153757157E-2,8.3663219153757157E-2]
[null,"Corp capex annuity per light",null,null,{"$f":"IF($B370=\"Blank\",0,'Corp Capex Annuity calcs'!F$109)","v":14.826870317655803},{"$f":"IF($B370=\"Blank\",0,'Corp Capex Annuity calcs'!G$109)","v":14.708895619806404},null,null,"Corp capex annuity per light",4.0621562514125493,4.0298344163853157]
[null,{"$f":"Inputs!$T$68","v":"Lamp Service costs Annualised"},null,null,{"$f":"IF($B370=\"Blank\",0,VLOOKUP($B370,Inputs!$C$68:$AK$129,MATCH($B374,Inputs!$C$68:$AK$68,0),FALSE))","v":0},{"$f":"IF($B370=\"Blank\",0,VLOOKUP($B370,Inputs!$C$68:$AK$129,MATCH($B374,Inputs!$C$68:$AK$68,0),FALSE))","v":0},null,null,"Lamp Service costs Annualised",0,0]
[null,{"$f":"Inputs!$M$68","v":"PE Cell Service costs Annualised"},null,null,{"$f":"IF($B370=\"Blank\",0,VLOOKUP($B370,Inputs!$C$68:$AK$129,MATCH($B375,Inputs!$C$68:$AK$68,0),FALSE))","v":6.5868429419336252},{"$f":"IF($B370=\"Blank\",0,VLOOKUP($B370,Inputs!$C$68:$AK$129,MATCH($B375,Inputs!$C$68:$AK$68,0),FALSE))","v":6.5868429419336252},null,null,"PE Cell Service costs Annualised",1.8046145046393494,1.8046145046393494]
[null,"Indirect Opex",null,null,{"$f":"IF($B370=\"Blank\",0,IF($B$8=\"Private Contract Lighting\",'Opex Weighting'!D$113,'Opex Weighting'!D$111))","v":24.081834785768372},{"$f":"IF($B370=\"Blank\",0,IF($B$8=\"Private Contract Lighting\",'Opex Weighting'!E$113,'Opex Weighting'!E$111))","v":25.134626053693843},null,null,"Indirect Opex",6.5977629550050336,6.8861989188202317]
[null,"Indirect Capex",null,null,{"$f":"'Capex Weighting'!D$115","v":0},{"$f":"'Capex Weighting'!E$114","v":0},null,null,"Indirect Capex",0,0]
[null,"Overhead Costs per light",null,null,{"$f":"IF($B370=\"Blank\",0,IF($B$8=\"Private Contract Lighting\",'Building Block'!C$49,'Building Block'!C$48))","v":27.508265089316332},{"$f":"IF($B370=\"Blank\",0,IF($B$8=\"Private Contract Lighting\",'Building Block'!D$49,'Building Block'!D$48))","v":27.450442561572103},null,null,"Overhead Costs per light",7.5365109833743382,7.5206691949512612]
[null,{"$f":"Inputs!$AH$68","v":"Bracket UNIT price"},0,null,{"$f":"IF($B370=\"Blank\",0,OFFSET('CAPEX Annuity calcs'!$B$9,MATCH($B370,'CAPEX Annuity calcs'!$B$9:$B$500,0)+$C379,E$6))","v":3.9708893514415231},{"$f":"IF($B370=\"Blank\",0,OFFSET('CAPEX Annuity calcs'!$B$9,MATCH($B370,'CAPEX Annuity calcs'!$B$9:$B$500,0)+$C379,F$6))","v":3.9708893514415231},null,null,"Bracket UNIT price",1.0879148908058969,1.0879148908058969]
[null,{"$f":"Inputs!$Y$68","v":"CAPEX Installation costs"},{"$f":"C379+1","v":1},null,{"$f":"IF($B370=\"Blank\",0,OFFSET('CAPEX Annuity calcs'!$B$9,MATCH($B370,'CAPEX Annuity calcs'!$B$9:$B$500,0)+$C380,E$6))","v":0},{"$f":"IF($B370=\"Blank\",0,OFFSET('CAPEX Annuity calcs'!$B$9,MATCH($B370,'CAPEX Annuity calcs'!$B$9:$B$500,0)+$C380,F$6))","v":0},null,null,"CAPEX Installation costs",0,0]
[null,{"$f":"Inputs!$X$68","v":"Luminaire UNIT price"},{"$f":"C380+1","v":2},null,{"$f":"IF($B370=\"Blank\",0,OFFSET('CAPEX Annuity calcs'!$B$9,MATCH($B370,'CAPEX Annuity calcs'!$B$9:$B$500,0)+$C381,E$6))","v":27.704423187523222},{"$f":"IF($B370=\"Blank\",0,OFFSET('CAPEX Annuity calcs'!$B$9,MATCH($B370,'CAPEX Annuity calcs'!$B$9:$B$500,0)+$C381,F$6))","v":27.704423187523222},null,null,"Luminaire UNIT price",7.5902529280885531,7.5902529280885531]
[null,{"$f":"Inputs!$Y$68","v":"CAPEX Installation costs"},3,null,{"$f":"IF($B370=\"Blank\",0,OFFSET('CAPEX Annuity calcs'!$B$9,MATCH($B370,'CAPEX Annuity calcs'!$B$9:$B$500,0)+$C382,E$6))","v":17.165250199817599},{"$f":"IF($B370=\"Blank\",0,OFFSET('CAPEX Annuity calcs'!$B$9,MATCH($B370,'CAPEX Annuity calcs'!$B$9:$B$500,0)+$C382,F$6))","v":17.165250199817599},null,null,"CAPEX Installation costs",4.7028082739226296,4.7028082739226296]
[null,null,null,null,{"$f":"SUM(E371:E382)","v":122.14974662336769},{"$f":"SUM(F371:F382)","v":123.02674066569955},null,null,null,{"$f":"ROUND(E383/J$2*100,3)","v":33.466000000000001},{"$f":"ROUND(F383/K$2*100,3)","v":33.706000000000003}]
[]
[{"$f":"A370+1","v":26},{"$f":"IFERROR(VLOOKUP($A385,Inputs!$B$68:$AK$129,MATCH($B$7,Inputs!$B$68:$AK$68,0),FALSE),\"Blank\")","v":"18W LED Decorative - Bottom Pole Entry"},null,null,null,null,null,null,{"$f":"IFERROR(VLOOKUP($A385,Inputs!$B$68:$AK$129,MATCH($B$7,Inputs!$B$68:$AK$68,0),FALSE),\"Blank\")","v":"18W LED Decorative - Bottom Pole Entry"}]
[null,{"$f":"Inputs!$R$68","v":"Lamp UNIT price Annualised Cost"},{"$f":"Inputs!$P$68","v":"Lamp Maintenance cycle"},null,{"$f":"IF($B385=\"Blank\",0,VLOOKUP($B385,Inputs!$C$68:$AK$129,MATCH($B386,Inputs!$C$68:$AK$68,0),FALSE))","v":0},{"$f":"IF($B385=\"Blank\",0,VLOOKUP($B385,Inputs!$C$68:$AK$129,MATCH($B386,Inputs!$C$68:$AK$68,0),FALSE))","v":0},null,null,{"$f":"B386","v":"Lamp UNIT price Annualised Cost"},{"$f":"IF(E386=\"NA\",\"\",E386/J$2*100)","v":0},{"$f":"IF(F386=\"NA\",\"\",F386/K$2*100)","v":0}]
[null,{"$f":"Inputs!$K$68","v":"PE Cell UNIT price Annualised Cost"},{"$f":"Inputs!$I$68","v":"PE Cell Maintenance Cycle"},null,{"$f":"IF($B385=\"Blank\",0,VLOOKUP($B385,Inputs!$C$68:$AK$129,MATCH($B387,Inputs!$C$68:$AK$68,0),FALSE))","v":0.3053707499112136},{"$f":"IF($B385=\"Blank\",0,VLOOKUP($B385,Inputs!$C$68:$AK$129,MATCH($B387,Inputs!$C$68:$AK$68,0),FALSE))","v":0.3053707499112136},null,null,"PE Cell UNIT price Annualised Cost",8.3663219153757157E-2,8.3663219153757157E-2]
[null,"Corp capex annuity per light",null,null,{"$f":"IF($B385=\"Blank\",0,'Corp Capex Annuity calcs'!F$109)","v":14.826870317655803},{"$f":"IF($B385=\"Blank\",0,'Corp Capex Annuity calcs'!G$109)","v":14.708895619806404},null,null,"Corp capex annuity per light",4.0621562514125493,4.0298344163853157]
[null,{"$f":"Inputs!$T$68","v":"Lamp Service costs Annualised"},null,null,{"$f":"IF($B385=\"Blank\",0,VLOOKUP($B385,Inputs!$C$68:$AK$129,MATCH($B389,Inputs!$C$68:$AK$68,0),FALSE))","v":0},{"$f":"IF($B385=\"Blank\",0,VLOOKUP($B385,Inputs!$C$68:$AK$129,MATCH($B389,Inputs!$C$68:$AK$68,0),FALSE))","v":0},null,null,"Lamp Service costs Annualised",0,0]
[null,{"$f":"Inputs!$M$68","v":"PE Cell Service costs Annualised"},null,null,{"$f":"IF($B385=\"Blank\",0,VLOOKUP($B385,Inputs!$C$68:$AK$129,MATCH($B390,Inputs!$C$68:$AK$68,0),FALSE))","v":6.5868429419336252},{"$f":"IF($B385=\"Blank\",0,VLOOKUP($B385,Inputs!$C$68:$AK$129,MATCH($B390,Inputs!$C$68:$AK$68,0),FALSE))","v":6.5868429419336252},null,null,"PE Cell Service costs Annualised",1.8046145046393494,1.8046145046393494]
[null,"Indirect Opex",null,null,{"$f":"IF($B385=\"Blank\",0,IF($B$8=\"Private Contract Lighting\",'Opex Weighting'!D$113,'Opex Weighting'!D$111))","v":24.081834785768372},{"$f":"IF($B385=\"Blank\",0,IF($B$8=\"Private Contract Lighting\",'Opex Weighting'!E$113,'Opex Weighting'!E$111))","v":25.134626053693843},null,null,"Indirect Opex",6.5977629550050336,6.8861989188202317]
[null,"Indirect Capex",null,null,{"$f":"'Capex Weighting'!D$115","v":0},{"$f":"'Capex Weighting'!E$114","v":0},null,null,"Indirect Capex",0,0]
[null,"Overhead Costs per light",null,null,{"$f":"IF($B385=\"Blank\",0,IF($B$8=\"Private Contract Lighting\",'Building Block'!C$49,'Building Block'!C$48))","v":27.508265089316332},{"$f":"IF($B385=\"Blank\",0,IF($B$8=\"Private Contract Lighting\",'Building Block'!D$49,'Building Block'!D$48))","v":27.450442561572103},null,null,"Overhead Costs per light",7.5365109833743382,7.5206691949512612]
[null,{"$f":"Inputs!$AH$68","v":"Bracket UNIT price"},0,null,{"$f":"IF($B385=\"Blank\",0,OFFSET('CAPEX Annuity calcs'!$B$9,MATCH($B385,'CAPEX Annuity calcs'!$B$9:$B$500,0)+$C394,E$6))","v":3.9708893514415231},{"$f":"IF($B385=\"Blank\",0,OFFSET('CAPEX Annuity calcs'!$B$9,MATCH($B385,'CAPEX Annuity calcs'!$B$9:$B$500,0)+$C394,F$6))","v":3.9708893514415231},null,null,"Bracket UNIT price",1.0879148908058969,1.0879148908058969]
[null,{"$f":"Inputs!$Y$68","v":"CAPEX Installation costs"},{"$f":"C394+1","v":1},null,{"$f":"IF($B385=\"Blank\",0,OFFSET('CAPEX Annuity calcs'!$B$9,MATCH($B385,'CAPEX Annuity calcs'!$B$9:$B$500,0)+$C395,E$6))","v":0},{"$f":"IF($B385=\"Blank\",0,OFFSET('CAPEX Annuity calcs'!$B$9,MATCH($B385,'CAPEX Annuity calcs'!$B$9:$B$500,0)+$C395,F$6))","v":0},null,null,"CAPEX Installation costs",0,0]
[null,{"$f":"Inputs!$X$68","v":"Luminaire UNIT price"},{"$f":"C395+1","v":2},null,{"$f":"IF($B385=\"Blank\",0,OFFSET('CAPEX Annuity calcs'!$B$9,MATCH($B385,'CAPEX Annuity calcs'!$B$9:$B$500,0)+$C396,E$6))","v":78.338408727237379},{"$f":"IF($B385=\"Blank\",0,OFFSET('CAPEX Annuity calcs'!$B$9,MATCH($B385,'CAPEX Annuity calcs'!$B$9:$B$500,0)+$C396,F$6))","v":78.338408727237379},null,null,"Luminaire UNIT price",21.462577733489692,21.462577733489692]
[null,{"$f":"Inputs!$Y$68","v":"CAPEX Installation costs"},3,null,{"$f":"IF($B385=\"Blank\",0,OFFSET('CAPEX Annuity calcs'!$B$9,MATCH($B385,'CAPEX Annuity calcs'!$B$9:$B$500,0)+$C397,E$6))","v":17.165250199817599},{"$f":"IF($B385=\"Blank\",0,OFFSET('CAPEX Annuity calcs'!$B$9,MATCH($B385,'CAPEX Annuity calcs'!$B$9:$B$500,0)+$C397,F$6))","v":17.165250199817599},null,null,"CAPEX Installation costs",4.7028082739226296,4.7028082739226296]
[null,null,null,null,{"$f":"SUM(E386:E397)","v":172.78373216308182},{"$f":"SUM(F386:F397)","v":173.66072620541371},null,null,null,{"$f":"ROUND(E398/J$2*100,3)","v":47.338000000000001},{"$f":"ROUND(F398/K$2*100,3)","v":47.578000000000003}]
[]
[{"$f":"A385+1","v":27},{"$f":"IFERROR(VLOOKUP($A400,Inputs!$B$68:$AK$129,MATCH($B$7,Inputs!$B$68:$AK$68,0),FALSE),\"Blank\")","v":"18W LED Decorative - Side Entry"},null,null,null,null,null,null,{"$f":"IFERROR(VLOOKUP($A400,Inputs!$B$68:$AK$129,MATCH($B$7,Inputs!$B$68:$AK$68,0),FALSE),\"Blank\")","v":"18W LED Decorative - Side Entry"}]
[null,{"$f":"Inputs!$R$68","v":"Lamp UNIT price Annualised Cost"},{"$f":"Inputs!$P$68","v":"Lamp Maintenance cycle"},null,{"$f":"IF($B400=\"Blank\",0,VLOOKUP($B400,Inputs!$C$68:$AK$129,MATCH($B401,Inputs!$C$68:$AK$68,0),FALSE))","v":0},{"$f":"IF($B400=\"Blank\",0,VLOOKUP($B400,Inputs!$C$68:$AK$129,MATCH($B401,Inputs!$C$68:$AK$68,0),FALSE))","v":0},null,null,{"$f":"B401","v":"Lamp UNIT price Annualised Cost"},{"$f":"IF(E401=\"NA\",\"\",E401/J$2*100)","v":0},{"$f":"IF(F401=\"NA\",\"\",F401/K$2*100)","v":0}]
[null,{"$f":"Inputs!$K$68","v":"PE Cell UNIT price Annualised Cost"},{"$f":"Inputs!$I$68","v":"PE Cell Maintenance Cycle"},null,{"$f":"IF($B400=\"Blank\",0,VLOOKUP($B400,Inputs!$C$68:$AK$129,MATCH($B402,Inputs!$C$68:$AK$68,0),FALSE))","v":0.3053707499112136},{"$f":"IF($B400=\"Blank\",0,VLOOKUP($B400,Inputs!$C$68:$AK$129,MATCH($B402,Inputs!$C$68:$AK$68,0),FALSE))","v":0.3053707499112136},null,null,"PE Cell UNIT price Annualised Cost",8.3663219153757157E-2,8.3663219153757157E-2]
[null,"Corp capex annuity per light",null,null,{"$f":"IF($B400=\"Blank\",0,'Corp Capex Annuity calcs'!F$109)","v":14.826870317655803},{"$f":"IF($B400=\"Blank\",0,'Corp Capex Annuity calcs'!G$109)","v":14.708895619806404},null,null,"Corp capex annuity per light",4.0621562514125493,4.0298344163853157]
[null,{"$f":"Inputs!$T$68","v":"Lamp Service costs Annualised"},null,null,{"$f":"IF($B400=\"Blank\",0,VLOOKUP($B400,Inputs!$C$68:$AK$129,MATCH($B404,Inputs!$C$68:$AK$68,0),FALSE))","v":0},{"$f":"IF($B400=\"Blank\",0,VLOOKUP($B400,Inputs!$C$68:$AK$129,MATCH($B404,Inputs!$C$68:$AK$68,0),FALSE))","v":0},null,null,"Lamp Service costs Annualised",0,0]
[null,{"$f":"Inputs!$M$68","v":"PE Cell Service costs Annualised"},null,null,{"$f":"IF($B400=\"Blank\",0,VLOOKUP($B400,Inputs!$C$68:$AK$129,MATCH($B405,Inputs!$C$68:$AK$68,0),FALSE))","v":6.5868429419336252},{"$f":"IF($B400=\"Blank\",0,VLOOKUP($B400,Inputs!$C$68:$AK$129,MATCH($B405,Inputs!$C$68:$AK$68,0),FALSE))","v":6.5868429419336252},null,null,"PE Cell Service costs Annualised",1.8046145046393494,1.8046145046393494]
[null,"Indirect Opex",null,null,{"$f":"IF($B400=\"Blank\",0,IF($B$8=\"Private Contract Lighting\",'Opex Weighting'!D$113,'Opex Weighting'!D$111))","v":24.081834785768372},{"$f":"IF($B400=\"Blank\",0,IF($B$8=\"Private Contract Lighting\",'Opex Weighting'!E$113,'Opex Weighting'!E$111))","v":25.134626053693843},null,null,"Indirect Opex",6.5977629550050336,6.8861989188202317]
[null,"Indirect Capex",null,null,{"$f":"'Capex Weighting'!D$115","v":0},{"$f":"'Capex Weighting'!E$114","v":0},null,null,"Indirect Capex",0,0]
[null,"Overhead Costs per light",null,null,{"$f":"IF($B400=\"Blank\",0,IF($B$8=\"Private Contract Lighting\",'Building Block'!C$49,'Building Block'!C$48))","v":27.508265089316332},{"$f":"IF($B400=\"Blank\",0,IF($B$8=\"Private Contract Lighting\",'Building Block'!D$49,'Building Block'!D$48))","v":27.450442561572103},null,null,"Overhead Costs per light",7.5365109833743382,7.5206691949512612]
[null,{"$f":"Inputs!$AH$68","v":"Bracket UNIT price"},0,null,{"$f":"IF($B400=\"Blank\",0,OFFSET('CAPEX Annuity calcs'!$B$9,MATCH($B400,'CAPEX Annuity calcs'!$B$9:$B$500,0)+$C409,E$6))","v":3.9708893514415231},{"$f":"IF($B400=\"Blank\",0,OFFSET('CAPEX Annuity calcs'!$B$9,MATCH($B400,'CAPEX Annuity calcs'!$B$9:$B$500,0)+$C409,F$6))","v":3.9708893514415231},null,null,"Bracket UNIT price",1.0879148908058969,1.0879148908058969]
[null,{"$f":"Inputs!$Y$68","v":"CAPEX Installation costs"},{"$f":"C409+1","v":1},null,{"$f":"IF($B400=\"Blank\",0,OFFSET('CAPEX Annuity calcs'!$B$9,MATCH($B400,'CAPEX Annuity calcs'!$B$9:$B$500,0)+$C410,E$6))","v":0},{"$f":"IF($B400=\"Blank\",0,OFFSET('CAPEX Annuity calcs'!$B$9,MATCH($B400,'CAPEX Annuity calcs'!$B$9:$B$500,0)+$C410,F$6))","v":0},null,null,"CAPEX Installation costs",0,0]
[null,{"$f":"Inputs!$X$68","v":"Luminaire UNIT price"},{"$f":"C410+1","v":2},null,{"$f":"IF($B400=\"Blank\",0,OFFSET('CAPEX Annuity calcs'!$B$9,MATCH($B400,'CAPEX Annuity calcs'!$B$9:$B$500,0)+$C411,E$6))","v":78.338408727237379},{"$f":"IF($B400=\"Blank\",0,OFFSET('CAPEX Annuity calcs'!$B$9,MATCH($B400,'CAPEX Annuity calcs'!$B$9:$B$500,0)+$C411,F$6))","v":78.338408727237379},null,null,"Luminaire UNIT price",21.462577733489692,21.462577733489692]
[null,{"$f":"Inputs!$Y$68","v":"CAPEX Installation costs"},3,null,{"$f":"IF($B400=\"Blank\",0,OFFSET('CAPEX Annuity calcs'!$B$9,MATCH($B400,'CAPEX Annuity calcs'!$B$9:$B$500,0)+$C412,E$6))","v":17.165250199817599},{"$f":"IF($B400=\"Blank\",0,OFFSET('CAPEX Annuity calcs'!$B$9,MATCH($B400,'CAPEX Annuity calcs'!$B$9:$B$500,0)+$C412,F$6))","v":17.165250199817599},null,null,"CAPEX Installation costs",4.7028082739226296,4.7028082739226296]
[null,null,null,null,{"$f":"SUM(E401:E412)","v":172.78373216308182},{"$f":"SUM(F401:F412)","v":173.66072620541371},null,null,null,{"$f":"ROUND(E413/J$2*100,3)","v":47.338000000000001},{"$f":"ROUND(F413/K$2*100,3)","v":47.578000000000003}]
[]
[{"$f":"A400+1","v":28},{"$f":"IFERROR(VLOOKUP($A415,Inputs!$B$68:$AK$129,MATCH($B$7,Inputs!$B$68:$AK$68,0),FALSE),\"Blank\")","v":"18W LED Decorative - Top Entry"},null,null,null,null,null,null,{"$f":"IFERROR(VLOOKUP($A415,Inputs!$B$68:$AK$129,MATCH($B$7,Inputs!$B$68:$AK$68,0),FALSE),\"Blank\")","v":"18W LED Decorative - Top Entry"}]
[null,{"$f":"Inputs!$R$68","v":"Lamp UNIT price Annualised Cost"},{"$f":"Inputs!$P$68","v":"Lamp Maintenance cycle"},null,{"$f":"IF($B415=\"Blank\",0,VLOOKUP($B415,Inputs!$C$68:$AK$129,MATCH($B416,Inputs!$C$68:$AK$68,0),FALSE))","v":0},{"$f":"IF($B415=\"Blank\",0,VLOOKUP($B415,Inputs!$C$68:$AK$129,MATCH($B416,Inputs!$C$68:$AK$68,0),FALSE))","v":0},null,null,{"$f":"B416","v":"Lamp UNIT price Annualised Cost"},{"$f":"IF(E416=\"NA\",\"\",E416/J$2*100)","v":0},{"$f":"IF(F416=\"NA\",\"\",F416/K$2*100)","v":0}]
[null,{"$f":"Inputs!$K$68","v":"PE Cell UNIT price Annualised Cost"},{"$f":"Inputs!$I$68","v":"PE Cell Maintenance Cycle"},null,{"$f":"IF($B415=\"Blank\",0,VLOOKUP($B415,Inputs!$C$68:$AK$129,MATCH($B417,Inputs!$C$68:$AK$68,0),FALSE))","v":0.3053707499112136},{"$f":"IF($B415=\"Blank\",0,VLOOKUP($B415,Inputs!$C$68:$AK$129,MATCH($B417,Inputs!$C$68:$AK$68,0),FALSE))","v":0.3053707499112136},null,null,"PE Cell UNIT price Annualised Cost",8.3663219153757157E-2,8.3663219153757157E-2]
[null,"Corp capex annuity per light",null,null,{"$f":"IF($B415=\"Blank\",0,'Corp Capex Annuity calcs'!F$109)","v":14.826870317655803},{"$f":"IF($B415=\"Blank\",0,'Corp Capex Annuity calcs'!G$109)","v":14.708895619806404},null,null,"Corp capex annuity per light",4.0621562514125493,4.0298344163853157]
[null,{"$f":"Inputs!$T$68","v":"Lamp Service costs Annualised"},null,null,{"$f":"IF($B415=\"Blank\",0,VLOOKUP($B415,Inputs!$C$68:$AK$129,MATCH($B419,Inputs!$C$68:$AK$68,0),FALSE))","v":0},{"$f":"IF($B415=\"Blank\",0,VLOOKUP($B415,Inputs!$C$68:$AK$129,MATCH($B419,Inputs!$C$68:$AK$68,0),FALSE))","v":0},null,null,"Lamp Service costs Annualised",0,0]
[null,{"$f":"Inputs!$M$68","v":"PE Cell Service costs Annualised"},null,null,{"$f":"IF($B415=\"Blank\",0,VLOOKUP($B415,Inputs!$C$68:$AK$129,MATCH($B420,Inputs!$C$68:$AK$68,0),FALSE))","v":6.5868429419336252},{"$f":"IF($B415=\"Blank\",0,VLOOKUP($B415,Inputs!$C$68:$AK$129,MATCH($B420,Inputs!$C$68:$AK$68,0),FALSE))","v":6.5868429419336252},null,null,"PE Cell Service costs Annualised",1.8046145046393494,1.8046145046393494]
[null,"Indirect Opex",null,null,{"$f":"IF($B415=\"Blank\",0,IF($B$8=\"Private Contract Lighting\",'Opex Weighting'!D$113,'Opex Weighting'!D$111))","v":24.081834785768372},{"$f":"IF($B415=\"Blank\",0,IF($B$8=\"Private Contract Lighting\",'Opex Weighting'!E$113,'Opex Weighting'!E$111))","v":25.134626053693843},null,null,"Indirect Opex",6.5977629550050336,6.8861989188202317]
[null,"Indirect Capex",null,null,{"$f":"'Capex Weighting'!D$115","v":0},{"$f":"'Capex Weighting'!E$114","v":0},null,null,"Indirect Capex",0,0]
[null,"Overhead Costs per light",null,null,{"$f":"IF($B415=\"Blank\",0,IF($B$8=\"Private Contract Lighting\",'Building Block'!C$49,'Building Block'!C$48))","v":27.508265089316332},{"$f":"IF($B415=\"Blank\",0,IF($B$8=\"Private Contract Lighting\",'Building Block'!D$49,'Building Block'!D$48))","v":27.450442561572103},null,null,"Overhead Costs per light",7.5365109833743382,7.5206691949512612]
[null,{"$f":"Inputs!$AH$68","v":"Bracket UNIT price"},0,null,{"$f":"IF($B415=\"Blank\",0,OFFSET('CAPEX Annuity calcs'!$B$9,MATCH($B415,'CAPEX Annuity calcs'!$B$9:$B$500,0)+$C424,E$6))","v":3.9708893514415231},{"$f":"IF($B415=\"Blank\",0,OFFSET('CAPEX Annuity calcs'!$B$9,MATCH($B415,'CAPEX Annuity calcs'!$B$9:$B$500,0)+$C424,F$6))","v":3.9708893514415231},null,null,"Bracket UNIT price",1.0879148908058969,1.0879148908058969]
[null,{"$f":"Inputs!$Y$68","v":"CAPEX Installation costs"},{"$f":"C424+1","v":1},null,{"$f":"IF($B415=\"Blank\",0,OFFSET('CAPEX Annuity calcs'!$B$9,MATCH($B415,'CAPEX Annuity calcs'!$B$9:$B$500,0)+$C425,E$6))","v":0},{"$f":"IF($B415=\"Blank\",0,OFFSET('CAPEX Annuity calcs'!$B$9,MATCH($B415,'CAPEX Annuity calcs'!$B$9:$B$500,0)+$C425,F$6))","v":0},null,null,"CAPEX Installation costs",0,0]
[null,{"$f":"Inputs!$X$68","v":"Luminaire UNIT price"},{"$f":"C425+1","v":2},null,{"$f":"IF($B415=\"Blank\",0,OFFSET('CAPEX Annuity calcs'!$B$9,MATCH($B415,'CAPEX Annuity calcs'!$B$9:$B$500,0)+$C426,E$6))","v":78.338408727237379},{"$f":"IF($B415=\"Blank\",0,OFFSET('CAPEX Annuity calcs'!$B$9,MATCH($B415,'CAPEX Annuity calcs'!$B$9:$B$500,0)+$C426,F$6))","v":78.338408727237379},null,null,"Luminaire UNIT price",21.462577733489692,21.462577733489692]
[null,{"$f":"Inputs!$Y$68","v":"CAPEX Installation costs"},3,null,{"$f":"IF($B415=\"Blank\",0,OFFSET('CAPEX Annuity calcs'!$B$9,MATCH($B415,'CAPEX Annuity calcs'!$B$9:$B$500,0)+$C427,E$6))","v":17.165250199817599},{"$f":"IF($B415=\"Blank\",0,OFFSET('CAPEX Annuity calcs'!$B$9,MATCH($B415,'CAPEX Annuity calcs'!$B$9:$B$500,0)+$C427,F$6))","v":17.165250199817599},null,null,"CAPEX Installation costs",4.7028082739226296,4.7028082739226296]
[null,null,null,null,{"$f":"SUM(E416:E427)","v":172.78373216308182},{"$f":"SUM(F416:F427)","v":173.66072620541371},null,null,null,{"$f":"ROUND(E428/J$2*100,3)","v":47.338000000000001},{"$f":"ROUND(F428/K$2*100,3)","v":47.578000000000003}]
[]
[{"$f":"A415+1","v":29},{"$f":"IFERROR(VLOOKUP($A430,Inputs!$B$68:$AK$129,MATCH($B$7,Inputs!$B$68:$AK$68,0),FALSE),\"Blank\")","v":"25W LED Decorative - Bottom Pole Entry"},null,null,null,null,null,null,{"$f":"IFERROR(VLOOKUP($A430,Inputs!$B$68:$AK$129,MATCH($B$7,Inputs!$B$68:$AK$68,0),FALSE),\"Blank\")","v":"25W LED Decorative - Bottom Pole Entry"}]
[null,{"$f":"Inputs!$R$68","v":"Lamp UNIT price Annualised Cost"},{"$f":"Inputs!$P$68","v":"Lamp Maintenance cycle"},null,{"$f":"IF($B430=\"Blank\",0,VLOOKUP($B430,Inputs!$C$68:$AK$129,MATCH($B431,Inputs!$C$68:$AK$68,0),FALSE))","v":0},{"$f":"IF($B430=\"Blank\",0,VLOOKUP($B430,Inputs!$C$68:$AK$129,MATCH($B431,Inputs!$C$68:$AK$68,0),FALSE))","v":0},null,null,{"$f":"B431","v":"Lamp UNIT price Annualised Cost"},{"$f":"IF(E431=\"NA\",\"\",E431/J$2*100)","v":0},{"$f":"IF(F431=\"NA\",\"\",F431/K$2*100)","v":0}]
[null,{"$f":"Inputs!$K$68","v":"PE Cell UNIT price Annualised Cost"},{"$f":"Inputs!$I$68","v":"PE Cell Maintenance Cycle"},null,{"$f":"IF($B430=\"Blank\",0,VLOOKUP($B430,Inputs!$C$68:$AK$129,MATCH($B432,Inputs!$C$68:$AK$68,0),FALSE))","v":0.3053707499112136},{"$f":"IF($B430=\"Blank\",0,VLOOKUP($B430,Inputs!$C$68:$AK$129,MATCH($B432,Inputs!$C$68:$AK$68,0),FALSE))","v":0.3053707499112136},null,null,"PE Cell UNIT price Annualised Cost",8.3663219153757157E-2,8.3663219153757157E-2]
[null,"Corp capex annuity per light",null,null,{"$f":"IF($B430=\"Blank\",0,'Corp Capex Annuity calcs'!F$109)","v":14.826870317655803},{"$f":"IF($B430=\"Blank\",0,'Corp Capex Annuity calcs'!G$109)","v":14.708895619806404},null,null,"Corp capex annuity per light",4.0621562514125493,4.0298344163853157]
[null,{"$f":"Inputs!$T$68","v":"Lamp Service costs Annualised"},null,null,{"$f":"IF($B430=\"Blank\",0,VLOOKUP($B430,Inputs!$C$68:$AK$129,MATCH($B434,Inputs!$C$68:$AK$68,0),FALSE))","v":0},{"$f":"IF($B430=\"Blank\",0,VLOOKUP($B430,Inputs!$C$68:$AK$129,MATCH($B434,Inputs!$C$68:$AK$68,0),FALSE))","v":0},null,null,"Lamp Service costs Annualised",0,0]
[null,{"$f":"Inputs!$M$68","v":"PE Cell Service costs Annualised"},null,null,{"$f":"IF($B430=\"Blank\",0,VLOOKUP($B430,Inputs!$C$68:$AK$129,MATCH($B435,Inputs!$C$68:$AK$68,0),FALSE))","v":6.5868429419336252},{"$f":"IF($B430=\"Blank\",0,VLOOKUP($B430,Inputs!$C$68:$AK$129,MATCH($B435,Inputs!$C$68:$AK$68,0),FALSE))","v":6.5868429419336252},null,null,"PE Cell Service costs Annualised",1.8046145046393494,1.8046145046393494]
[null,"Indirect Opex",null,null,{"$f":"IF($B430=\"Blank\",0,IF($B$8=\"Private Contract Lighting\",'Opex Weighting'!D$113,'Opex Weighting'!D$111))","v":24.081834785768372},{"$f":"IF($B430=\"Blank\",0,IF($B$8=\"Private Contract Lighting\",'Opex Weighting'!E$113,'Opex Weighting'!E$111))","v":25.134626053693843},null,null,"Indirect Opex",6.5977629550050336,6.8861989188202317]
[null,"Indirect Capex",null,null,{"$f":"'Capex Weighting'!D$115","v":0},{"$f":"'Capex Weighting'!E$114","v":0},null,null,"Indirect Capex",0,0]
[null,"Overhead Costs per light",null,null,{"$f":"IF($B430=\"Blank\",0,IF($B$8=\"Private Contract Lighting\",'Building Block'!C$49,'Building Block'!C$48))","v":27.508265089316332},{"$f":"IF($B430=\"Blank\",0,IF($B$8=\"Private Contract Lighting\",'Building Block'!D$49,'Building Block'!D$48))","v":27.450442561572103},null,null,"Overhead Costs per light",7.5365109833743382,7.5206691949512612]
[null,{"$f":"Inputs!$AH$68","v":"Bracket UNIT price"},0,null,{"$f":"IF($B430=\"Blank\",0,OFFSET('CAPEX Annuity calcs'!$B$9,MATCH($B430,'CAPEX Annuity calcs'!$B$9:$B$500,0)+$C439,E$6))","v":3.9708893514415231},{"$f":"IF($B430=\"Blank\",0,OFFSET('CAPEX Annuity calcs'!$B$9,MATCH($B430,'CAPEX Annuity calcs'!$B$9:$B$500,0)+$C439,F$6))","v":3.9708893514415231},null,null,"Bracket UNIT price",1.0879148908058969,1.0879148908058969]
[null,{"$f":"Inputs!$Y$68","v":"CAPEX Installation costs"},{"$f":"C439+1","v":1},null,{"$f":"IF($B430=\"Blank\",0,OFFSET('CAPEX Annuity calcs'!$B$9,MATCH($B430,'CAPEX Annuity calcs'!$B$9:$B$500,0)+$C440,E$6))","v":0},{"$f":"IF($B430=\"Blank\",0,OFFSET('CAPEX Annuity calcs'!$B$9,MATCH($B430,'CAPEX Annuity calcs'!$B$9:$B$500,0)+$C440,F$6))","v":0},null,null,"CAPEX Installation costs",0,0]
[null,{"$f":"Inputs!$X$68","v":"Luminaire UNIT price"},{"$f":"C440+1","v":2},null,{"$f":"IF($B430=\"Blank\",0,OFFSET('CAPEX Annuity calcs'!$B$9,MATCH($B430,'CAPEX Annuity calcs'!$B$9:$B$500,0)+$C441,E$6))","v":78.338408727237379},{"$f":"IF($B430=\"Blank\",0,OFFSET('CAPEX Annuity calcs'!$B$9,MATCH($B430,'CAPEX Annuity calcs'!$B$9:$B$500,0)+$C441,F$6))","v":78.338408727237379},null,null,"Luminaire UNIT price",21.462577733489692,21.462577733489692]
[null,{"$f":"Inputs!$Y$68","v":"CAPEX Installation costs"},3,null,{"$f":"IF($B430=\"Blank\",0,OFFSET('CAPEX Annuity calcs'!$B$9,MATCH($B430,'CAPEX Annuity calcs'!$B$9:$B$500,0)+$C442,E$6))","v":17.165250199817599},{"$f":"IF($B430=\"Blank\",0,OFFSET('CAPEX Annuity calcs'!$B$9,MATCH($B430,'CAPEX Annuity calcs'!$B$9:$B$500,0)+$C442,F$6))","v":17.165250199817599},null,null,"CAPEX Installation costs",4.7028082739226296,4.7028082739226296]
[null,null,null,null,{"$f":"SUM(E431:E442)","v":172.78373216308182},{"$f":"SUM(F431:F442)","v":173.66072620541371},null,null,null,{"$f":"ROUND(E443/J$2*100,3)","v":47.338000000000001},{"$f":"ROUND(F443/K$2*100,3)","v":47.578000000000003}]
[]
[{"$f":"A430+1","v":30},{"$f":"IFERROR(VLOOKUP($A445,Inputs!$B$68:$AK$129,MATCH($B$7,Inputs!$B$68:$AK$68,0),FALSE),\"Blank\")","v":"25W LED Decorative - Side Entry"},null,null,null,null,null,null,{"$f":"IFERROR(VLOOKUP($A445,Inputs!$B$68:$AK$129,MATCH($B$7,Inputs!$B$68:$AK$68,0),FALSE),\"Blank\")","v":"25W LED Decorative - Side Entry"}]
[null,{"$f":"Inputs!$R$68","v":"Lamp UNIT price Annualised Cost"},{"$f":"Inputs!$P$68","v":"Lamp Maintenance cycle"},null,{"$f":"IF($B445=\"Blank\",0,VLOOKUP($B445,Inputs!$C$68:$AK$129,MATCH($B446,Inputs!$C$68:$AK$68,0),FALSE))","v":0},{"$f":"IF($B445=\"Blank\",0,VLOOKUP($B445,Inputs!$C$68:$AK$129,MATCH($B446,Inputs!$C$68:$AK$68,0),FALSE))","v":0},null,null,{"$f":"B446","v":"Lamp UNIT price Annualised Cost"},{"$f":"IF(E446=\"NA\",\"\",E446/J$2*100)","v":0},{"$f":"IF(F446=\"NA\",\"\",F446/K$2*100)","v":0}]
[null,{"$f":"Inputs!$K$68","v":"PE Cell UNIT price Annualised Cost"},{"$f":"Inputs!$I$68","v":"PE Cell Maintenance Cycle"},null,{"$f":"IF($B445=\"Blank\",0,VLOOKUP($B445,Inputs!$C$68:$AK$129,MATCH($B447,Inputs!$C$68:$AK$68,0),FALSE))","v":0.3053707499112136},{"$f":"IF($B445=\"Blank\",0,VLOOKUP($B445,Inputs!$C$68:$AK$129,MATCH($B447,Inputs!$C$68:$AK$68,0),FALSE))","v":0.3053707499112136},null,null,"PE Cell UNIT price Annualised Cost",8.3663219153757157E-2,8.3663219153757157E-2]
[null,"Corp capex annuity per light",null,null,{"$f":"IF($B445=\"Blank\",0,'Corp Capex Annuity calcs'!F$109)","v":14.826870317655803},{"$f":"IF($B445=\"Blank\",0,'Corp Capex Annuity calcs'!G$109)","v":14.708895619806404},null,null,"Corp capex annuity per light",4.0621562514125493,4.0298344163853157]
[null,{"$f":"Inputs!$T$68","v":"Lamp Service costs Annualised"},null,null,{"$f":"IF($B445=\"Blank\",0,VLOOKUP($B445,Inputs!$C$68:$AK$129,MATCH($B449,Inputs!$C$68:$AK$68,0),FALSE))","v":0},{"$f":"IF($B445=\"Blank\",0,VLOOKUP($B445,Inputs!$C$68:$AK$129,MATCH($B449,Inputs!$C$68:$AK$68,0),FALSE))","v":0},null,null,"Lamp Service costs Annualised",0,0]
[null,{"$f":"Inputs!$M$68","v":"PE Cell Service costs Annualised"},null,null,{"$f":"IF($B445=\"Blank\",0,VLOOKUP($B445,Inputs!$C$68:$AK$129,MATCH($B450,Inputs!$C$68:$AK$68,0),FALSE))","v":6.5868429419336252},{"$f":"IF($B445=\"Blank\",0,VLOOKUP($B445,Inputs!$C$68:$AK$129,MATCH($B450,Inputs!$C$68:$AK$68,0),FALSE))","v":6.5868429419336252},null,null,"PE Cell Service costs Annualised",1.8046145046393494,1.8046145046393494]
[null,"Indirect Opex",null,null,{"$f":"IF($B445=\"Blank\",0,IF($B$8=\"Private Contract Lighting\",'Opex Weighting'!D$113,'Opex Weighting'!D$111))","v":24.081834785768372},{"$f":"IF($B445=\"Blank\",0,IF($B$8=\"Private Contract Lighting\",'Opex Weighting'!E$113,'Opex Weighting'!E$111))","v":25.134626053693843},null,null,"Indirect Opex",6.5977629550050336,6.8861989188202317]
[null,"Indirect Capex",null,null,{"$f":"'Capex Weighting'!D$115","v":0},{"$f":"'Capex Weighting'!E$114","v":0},null,null,"Indirect Capex",0,0]
[null,"Overhead Costs per light",null,null,{"$f":"IF($B445=\"Blank\",0,IF($B$8=\"Private Contract Lighting\",'Building Block'!C$49,'Building Block'!C$48))","v":27.508265089316332},{"$f":"IF($B445=\"Blank\",0,IF($B$8=\"Private Contract Lighting\",'Building Block'!D$49,'Building Block'!D$48))","v":27.450442561572103},null,null,"Overhead Costs per light",7.5365109833743382,7.5206691949512612]
[null,{"$f":"Inputs!$AH$68","v":"Bracket UNIT price"},0,null,{"$f":"IF($B445=\"Blank\",0,OFFSET('CAPEX Annuity calcs'!$B$9,MATCH($B445,'CAPEX Annuity calcs'!$B$9:$B$500,0)+$C454,E$6))","v":3.9708893514415231},{"$f":"IF($B445=\"Blank\",0,OFFSET('CAPEX Annuity calcs'!$B$9,MATCH($B445,'CAPEX Annuity calcs'!$B$9:$B$500,0)+$C454,F$6))","v":3.9708893514415231},null,null,"Bracket UNIT price",1.0879148908058969,1.0879148908058969]
[null,{"$f":"Inputs!$Y$68","v":"CAPEX Installation costs"},{"$f":"C454+1","v":1},null,{"$f":"IF($B445=\"Blank\",0,OFFSET('CAPEX Annuity calcs'!$B$9,MATCH($B445,'CAPEX Annuity calcs'!$B$9:$B$500,0)+$C455,E$6))","v":0},{"$f":"IF($B445=\"Blank\",0,OFFSET('CAPEX Annuity calcs'!$B$9,MATCH($B445,'CAPEX Annuity calcs'!$B$9:$B$500,0)+$C455,F$6))","v":0},null,null,"CAPEX Installation costs",0,0]
[null,{"$f":"Inputs!$X$68","v":"Luminaire UNIT price"},{"$f":"C455+1","v":2},null,{"$f":"IF($B445=\"Blank\",0,OFFSET('CAPEX Annuity calcs'!$B$9,MATCH($B445,'CAPEX Annuity calcs'!$B$9:$B$500,0)+$C456,E$6))","v":78.338408727237379},{"$f":"IF($B445=\"Blank\",0,OFFSET('CAPEX Annuity calcs'!$B$9,MATCH($B445,'CAPEX Annuity calcs'!$B$9:$B$500,0)+$C456,F$6))","v":78.338408727237379},null,null,"Luminaire UNIT price",21.462577733489692,21.462577733489692]
[null,{"$f":"Inputs!$Y$68","v":"CAPEX Installation costs"},3,null,{"$f":"IF($B445=\"Blank\",0,OFFSET('CAPEX Annuity calcs'!$B$9,MATCH($B445,'CAPEX Annuity calcs'!$B$9:$B$500,0)+$C457,E$6))","v":17.165250199817599},{"$f":"IF($B445=\"Blank\",0,OFFSET('CAPEX Annuity calcs'!$B$9,MATCH($B445,'CAPEX Annuity calcs'!$B$9:$B$500,0)+$C457,F$6))","v":17.165250199817599},null,null,"CAPEX Installation costs",4.7028082739226296,4.7028082739226296]
[null,null,null,null,{"$f":"SUM(E446:E457)","v":172.78373216308182},{"$f":"SUM(F446:F457)","v":173.66072620541371},null,null,null,{"$f":"ROUND(E458/J$2*100,3)","v":47.338000000000001},{"$f":"ROUND(F458/K$2*100,3)","v":47.578000000000003}]
[]
[{"$f":"A445+1","v":31},{"$f":"IFERROR(VLOOKUP($A460,Inputs!$B$68:$AK$129,MATCH($B$7,Inputs!$B$68:$AK$68,0),FALSE),\"Blank\")","v":"25W LED Decorative - Top Entry"},null,null,null,null,null,null,{"$f":"IFERROR(VLOOKUP($A460,Inputs!$B$68:$AK$129,MATCH($B$7,Inputs!$B$68:$AK$68,0),FALSE),\"Blank\")","v":"25W LED Decorative - Top Entry"}]
[null,{"$f":"Inputs!$R$68","v":"Lamp UNIT price Annualised Cost"},{"$f":"Inputs!$P$68","v":"Lamp Maintenance cycle"},null,{"$f":"IF($B460=\"Blank\",0,VLOOKUP($B460,Inputs!$C$68:$AK$129,MATCH($B461,Inputs!$C$68:$AK$68,0),FALSE))","v":0},{"$f":"IF($B460=\"Blank\",0,VLOOKUP($B460,Inputs!$C$68:$AK$129,MATCH($B461,Inputs!$C$68:$AK$68,0),FALSE))","v":0},null,null,{"$f":"B461","v":"Lamp UNIT price Annualised Cost"},{"$f":"IF(E461=\"NA\",\"\",E461/J$2*100)","v":0},{"$f":"IF(F461=\"NA\",\"\",F461/K$2*100)","v":0}]
[null,{"$f":"Inputs!$K$68","v":"PE Cell UNIT price Annualised Cost"},{"$f":"Inputs!$I$68","v":"PE Cell Maintenance Cycle"},null,{"$f":"IF($B460=\"Blank\",0,VLOOKUP($B460,Inputs!$C$68:$AK$129,MATCH($B462,Inputs!$C$68:$AK$68,0),FALSE))","v":0.3053707499112136},{"$f":"IF($B460=\"Blank\",0,VLOOKUP($B460,Inputs!$C$68:$AK$129,MATCH($B462,Inputs!$C$68:$AK$68,0),FALSE))","v":0.3053707499112136},null,null,"PE Cell UNIT price Annualised Cost",8.3663219153757157E-2,8.3663219153757157E-2]
[null,"Corp capex annuity per light",null,null,{"$f":"IF($B460=\"Blank\",0,'Corp Capex Annuity calcs'!F$109)","v":14.826870317655803},{"$f":"IF($B460=\"Blank\",0,'Corp Capex Annuity calcs'!G$109)","v":14.708895619806404},null,null,"Corp capex annuity per light",4.0621562514125493,4.0298344163853157]
[null,{"$f":"Inputs!$T$68","v":"Lamp Service costs Annualised"},null,null,{"$f":"IF($B460=\"Blank\",0,VLOOKUP($B460,Inputs!$C$68:$AK$129,MATCH($B464,Inputs!$C$68:$AK$68,0),FALSE))","v":0},{"$f":"IF($B460=\"Blank\",0,VLOOKUP($B460,Inputs!$C$68:$AK$129,MATCH($B464,Inputs!$C$68:$AK$68,0),FALSE))","v":0},null,null,"Lamp Service costs Annualised",0,0]
[null,{"$f":"Inputs!$M$68","v":"PE Cell Service costs Annualised"},null,null,{"$f":"IF($B460=\"Blank\",0,VLOOKUP($B460,Inputs!$C$68:$AK$129,MATCH($B465,Inputs!$C$68:$AK$68,0),FALSE))","v":6.5868429419336252},{"$f":"IF($B460=\"Blank\",0,VLOOKUP($B460,Inputs!$C$68:$AK$129,MATCH($B465,Inputs!$C$68:$AK$68,0),FALSE))","v":6.5868429419336252},null,null,"PE Cell Service costs Annualised",1.8046145046393494,1.8046145046393494]
[null,"Indirect Opex",null,null,{"$f":"IF($B460=\"Blank\",0,IF($B$8=\"Private Contract Lighting\",'Opex Weighting'!D$113,'Opex Weighting'!D$111))","v":24.081834785768372},{"$f":"IF($B460=\"Blank\",0,IF($B$8=\"Private Contract Lighting\",'Opex Weighting'!E$113,'Opex Weighting'!E$111))","v":25.134626053693843},null,null,"Indirect Opex",6.5977629550050336,6.8861989188202317]
[null,"Indirect Capex",null,null,{"$f":"'Capex Weighting'!D$115","v":0},{"$f":"'Capex Weighting'!E$114","v":0},null,null,"Indirect Capex",0,0]
[null,"Overhead Costs per light",null,null,{"$f":"IF($B460=\"Blank\",0,IF($B$8=\"Private Contract Lighting\",'Building Block'!C$49,'Building Block'!C$48))","v":27.508265089316332},{"$f":"IF($B460=\"Blank\",0,IF($B$8=\"Private Contract Lighting\",'Building Block'!D$49,'Building Block'!D$48))","v":27.450442561572103},null,null,"Overhead Costs per light",7.5365109833743382,7.5206691949512612]
[null,{"$f":"Inputs!$AH$68","v":"Bracket UNIT price"},0,null,{"$f":"IF($B460=\"Blank\",0,OFFSET('CAPEX Annuity calcs'!$B$9,MATCH($B460,'CAPEX Annuity calcs'!$B$9:$B$500,0)+$C469,E$6))","v":3.9708893514415231},{"$f":"IF($B460=\"Blank\",0,OFFSET('CAPEX Annuity calcs'!$B$9,MATCH($B460,'CAPEX Annuity calcs'!$B$9:$B$500,0)+$C469,F$6))","v":3.9708893514415231},null,null,"Bracket UNIT price",1.0879148908058969,1.0879148908058969]
[null,{"$f":"Inputs!$Y$68","v":"CAPEX Installation costs"},{"$f":"C469+1","v":1},null,{"$f":"IF($B460=\"Blank\",0,OFFSET('CAPEX Annuity calcs'!$B$9,MATCH($B460,'CAPEX Annuity calcs'!$B$9:$B$500,0)+$C470,E$6))","v":0},{"$f":"IF($B460=\"Blank\",0,OFFSET('CAPEX Annuity calcs'!$B$9,MATCH($B460,'CAPEX Annuity calcs'!$B$9:$B$500,0)+$C470,F$6))","v":0},null,null,"CAPEX Installation costs",0,0]
[null,{"$f":"Inputs!$X$68","v":"Luminaire UNIT price"},{"$f":"C470+1","v":2},null,{"$f":"IF($B460=\"Blank\",0,OFFSET('CAPEX Annuity calcs'!$B$9,MATCH($B460,'CAPEX Annuity calcs'!$B$9:$B$500,0)+$C471,E$6))","v":78.338408727237379},{"$f":"IF($B460=\"Blank\",0,OFFSET('CAPEX Annuity calcs'!$B$9,MATCH($B460,'CAPEX Annuity calcs'!$B$9:$B$500,0)+$C471,F$6))","v":78.338408727237379},null,null,"Luminaire UNIT price",21.462577733489692,21.462577733489692]
[null,{"$f":"Inputs!$Y$68","v":"CAPEX Installation costs"},3,null,{"$f":"IF($B460=\"Blank\",0,OFFSET('CAPEX Annuity calcs'!$B$9,MATCH($B460,'CAPEX Annuity calcs'!$B$9:$B$500,0)+$C472,E$6))","v":17.165250199817599},{"$f":"IF($B460=\"Blank\",0,OFFSET('CAPEX Annuity calcs'!$B$9,MATCH($B460,'CAPEX Annuity calcs'!$B$9:$B$500,0)+$C472,F$6))","v":17.165250199817599},null,null,"CAPEX Installation costs",4.7028082739226296,4.7028082739226296]
[null,null,null,null,{"$f":"SUM(E461:E472)","v":172.78373216308182},{"$f":"SUM(F461:F472)","v":173.66072620541371},null,null,null,{"$f":"ROUND(E473/J$2*100,3)","v":47.338000000000001},{"$f":"ROUND(F473/K$2*100,3)","v":47.578000000000003}]
[]
[{"$f":"A460+1","v":32},{"$f":"IFERROR(VLOOKUP($A475,Inputs!$B$68:$AK$129,MATCH($B$7,Inputs!$B$68:$AK$68,0),FALSE),\"Blank\")","v":"30W LED"},null,null,null,null,null,null,{"$f":"IFERROR(VLOOKUP($A475,Inputs!$B$68:$AK$129,MATCH($B$7,Inputs!$B$68:$AK$68,0),FALSE),\"Blank\")","v":"30W LED"}]
[null,{"$f":"Inputs!$R$68","v":"Lamp UNIT price Annualised Cost"},{"$f":"Inputs!$P$68","v":"Lamp Maintenance cycle"},null,{"$f":"IF($B475=\"Blank\",0,VLOOKUP($B475,Inputs!$C$68:$AK$129,MATCH($B476,Inputs!$C$68:$AK$68,0),FALSE))","v":0},{"$f":"IF($B475=\"Blank\",0,VLOOKUP($B475,Inputs!$C$68:$AK$129,MATCH($B476,Inputs!$C$68:$AK$68,0),FALSE))","v":0},null,null,{"$f":"B476","v":"Lamp UNIT price Annualised Cost"},{"$f":"IF(E476=\"NA\",\"\",E476/J$2*100)","v":0},{"$f":"IF(F476=\"NA\",\"\",F476/K$2*100)","v":0}]
[null,{"$f":"Inputs!$K$68","v":"PE Cell UNIT price Annualised Cost"},{"$f":"Inputs!$I$68","v":"PE Cell Maintenance Cycle"},null,{"$f":"IF($B475=\"Blank\",0,VLOOKUP($B475,Inputs!$C$68:$AK$129,MATCH($B477,Inputs!$C$68:$AK$68,0),FALSE))","v":0.3053707499112136},{"$f":"IF($B475=\"Blank\",0,VLOOKUP($B475,Inputs!$C$68:$AK$129,MATCH($B477,Inputs!$C$68:$AK$68,0),FALSE))","v":0.3053707499112136},null,null,"PE Cell UNIT price Annualised Cost",8.3663219153757157E-2,8.3663219153757157E-2]
[null,"Corp capex annuity per light",null,null,{"$f":"IF($B475=\"Blank\",0,'Corp Capex Annuity calcs'!F$109)","v":14.826870317655803},{"$f":"IF($B475=\"Blank\",0,'Corp Capex Annuity calcs'!G$109)","v":14.708895619806404},null,null,"Corp capex annuity per light",4.0621562514125493,4.0298344163853157]
[null,{"$f":"Inputs!$T$68","v":"Lamp Service costs Annualised"},null,null,{"$f":"IF($B475=\"Blank\",0,VLOOKUP($B475,Inputs!$C$68:$AK$129,MATCH($B479,Inputs!$C$68:$AK$68,0),FALSE))","v":0},{"$f":"IF($B475=\"Blank\",0,VLOOKUP($B475,Inputs!$C$68:$AK$129,MATCH($B479,Inputs!$C$68:$AK$68,0),FALSE))","v":0},null,null,"Lamp Service costs Annualised",0,0]
[null,{"$f":"Inputs!$M$68","v":"PE Cell Service costs Annualised"},null,null,{"$f":"IF($B475=\"Blank\",0,VLOOKUP($B475,Inputs!$C$68:$AK$129,MATCH($B480,Inputs!$C$68:$AK$68,0),FALSE))","v":6.5868429419336252},{"$f":"IF($B475=\"Blank\",0,VLOOKUP($B475,Inputs!$C$68:$AK$129,MATCH($B480,Inputs!$C$68:$AK$68,0),FALSE))","v":6.5868429419336252},null,null,"PE Cell Service costs Annualised",1.8046145046393494,1.8046145046393494]
[null,"Indirect Opex",null,null,{"$f":"IF($B475=\"Blank\",0,IF($B$8=\"Private Contract Lighting\",'Opex Weighting'!D$113,'Opex Weighting'!D$111))","v":24.081834785768372},{"$f":"IF($B475=\"Blank\",0,IF($B$8=\"Private Contract Lighting\",'Opex Weighting'!E$113,'Opex Weighting'!E$111))","v":25.134626053693843},null,null,"Indirect Opex",6.5977629550050336,6.8861989188202317]
[null,"Indirect Capex",null,null,{"$f":"'Capex Weighting'!D$115","v":0},{"$f":"'Capex Weighting'!E$114","v":0},null,null,"Indirect Capex",0,0]
[null,"Overhead Costs per light",null,null,{"$f":"IF($B475=\"Blank\",0,IF($B$8=\"Private Contract Lighting\",'Building Block'!C$49,'Building Block'!C$48))","v":27.508265089316332},{"$f":"IF($B475=\"Blank\",0,IF($B$8=\"Private Contract Lighting\",'Building Block'!D$49,'Building Block'!D$48))","v":27.450442561572103},null,null,"Overhead Costs per light",7.5365109833743382,7.5206691949512612]
[null,{"$f":"Inputs!$AH$68","v":"Bracket UNIT price"},0,null,{"$f":"IF($B475=\"Blank\",0,OFFSET('CAPEX Annuity calcs'!$B$9,MATCH($B475,'CAPEX Annuity calcs'!$B$9:$B$500,0)+$C484,E$6))","v":3.9708893514415231},{"$f":"IF($B475=\"Blank\",0,OFFSET('CAPEX Annuity calcs'!$B$9,MATCH($B475,'CAPEX Annuity calcs'!$B$9:$B$500,0)+$C484,F$6))","v":3.9708893514415231},null,null,"Bracket UNIT price",1.0879148908058969,1.0879148908058969]
[null,{"$f":"Inputs!$Y$68","v":"CAPEX Installation costs"},{"$f":"C484+1","v":1},null,{"$f":"IF($B475=\"Blank\",0,OFFSET('CAPEX Annuity calcs'!$B$9,MATCH($B475,'CAPEX Annuity calcs'!$B$9:$B$500,0)+$C485,E$6))","v":0},{"$f":"IF($B475=\"Blank\",0,OFFSET('CAPEX Annuity calcs'!$B$9,MATCH($B475,'CAPEX Annuity calcs'!$B$9:$B$500,0)+$C485,F$6))","v":0},null,null,"CAPEX Installation costs",0,0]
[null,{"$f":"Inputs!$X$68","v":"Luminaire UNIT price"},{"$f":"C485+1","v":2},null,{"$f":"IF($B475=\"Blank\",0,OFFSET('CAPEX Annuity calcs'!$B$9,MATCH($B475,'CAPEX Annuity calcs'!$B$9:$B$500,0)+$C486,E$6))","v":27.704423187523222},{"$f":"IF($B475=\"Blank\",0,OFFSET('CAPEX Annuity calcs'!$B$9,MATCH($B475,'CAPEX Annuity calcs'!$B$9:$B$500,0)+$C486,F$6))","v":27.704423187523222},null,null,"Luminaire UNIT price",7.5902529280885531,7.5902529280885531]
[null,{"$f":"Inputs!$Y$68","v":"CAPEX Installation costs"},3,null,{"$f":"IF($B475=\"Blank\",0,OFFSET('CAPEX Annuity calcs'!$B$9,MATCH($B475,'CAPEX Annuity calcs'!$B$9:$B$500,0)+$C487,E$6))","v":17.165250199817599},{"$f":"IF($B475=\"Blank\",0,OFFSET('CAPEX Annuity calcs'!$B$9,MATCH($B475,'CAPEX Annuity calcs'!$B$9:$B$500,0)+$C487,F$6))","v":17.165250199817599},null,null,"CAPEX Installation costs",4.7028082739226296,4.7028082739226296]
[null,null,null,null,{"$f":"SUM(E476:E487)","v":122.14974662336769},{"$f":"SUM(F476:F487)","v":123.02674066569955},null,null,null,{"$f":"ROUND(E488/J$2*100,3)","v":33.466000000000001},{"$f":"ROUND(F488/K$2*100,3)","v":33.706000000000003}]
[]
[{"$f":"A475+1","v":33},{"$f":"IFERROR(VLOOKUP($A490,Inputs!$B$68:$AK$129,MATCH($B$7,Inputs!$B$68:$AK$68,0),FALSE),\"Blank\")","v":"88 LED Light"},null,null,null,null,null,null,{"$f":"IFERROR(VLOOKUP($A490,Inputs!$B$68:$AK$129,MATCH($B$7,Inputs!$B$68:$AK$68,0),FALSE),\"Blank\")","v":"88 LED Light"}]
[null,{"$f":"Inputs!$R$68","v":"Lamp UNIT price Annualised Cost"},{"$f":"Inputs!$P$68","v":"Lamp Maintenance cycle"},null,{"$f":"IF($B490=\"Blank\",0,VLOOKUP($B490,Inputs!$C$68:$AK$129,MATCH($B491,Inputs!$C$68:$AK$68,0),FALSE))","v":0},{"$f":"IF($B490=\"Blank\",0,VLOOKUP($B490,Inputs!$C$68:$AK$129,MATCH($B491,Inputs!$C$68:$AK$68,0),FALSE))","v":0},null,null,{"$f":"B491","v":"Lamp UNIT price Annualised Cost"},{"$f":"IF(E491=\"NA\",\"\",E491/J$2*100)","v":0},{"$f":"IF(F491=\"NA\",\"\",F491/K$2*100)","v":0}]
[null,{"$f":"Inputs!$K$68","v":"PE Cell UNIT price Annualised Cost"},{"$f":"Inputs!$I$68","v":"PE Cell Maintenance Cycle"},null,{"$f":"IF($B490=\"Blank\",0,VLOOKUP($B490,Inputs!$C$68:$AK$129,MATCH($B492,Inputs!$C$68:$AK$68,0),FALSE))","v":0.3053707499112136},{"$f":"IF($B490=\"Blank\",0,VLOOKUP($B490,Inputs!$C$68:$AK$129,MATCH($B492,Inputs!$C$68:$AK$68,0),FALSE))","v":0.3053707499112136},null,null,"PE Cell UNIT price Annualised Cost",8.3663219153757157E-2,8.3663219153757157E-2]
[null,"Corp capex annuity per light",null,null,{"$f":"IF($B490=\"Blank\",0,'Corp Capex Annuity calcs'!F$109)","v":14.826870317655803},{"$f":"IF($B490=\"Blank\",0,'Corp Capex Annuity calcs'!G$109)","v":14.708895619806404},null,null,"Corp capex annuity per light",4.0621562514125493,4.0298344163853157]
[null,{"$f":"Inputs!$T$68","v":"Lamp Service costs Annualised"},null,null,{"$f":"IF($B490=\"Blank\",0,VLOOKUP($B490,Inputs!$C$68:$AK$129,MATCH($B494,Inputs!$C$68:$AK$68,0),FALSE))","v":0},{"$f":"IF($B490=\"Blank\",0,VLOOKUP($B490,Inputs!$C$68:$AK$129,MATCH($B494,Inputs!$C$68:$AK$68,0),FALSE))","v":0},null,null,"Lamp Service costs Annualised",0,0]
[null,{"$f":"Inputs!$M$68","v":"PE Cell Service costs Annualised"},null,null,{"$f":"IF($B490=\"Blank\",0,VLOOKUP($B490,Inputs!$C$68:$AK$129,MATCH($B495,Inputs!$C$68:$AK$68,0),FALSE))","v":6.5868429419336252},{"$f":"IF($B490=\"Blank\",0,VLOOKUP($B490,Inputs!$C$68:$AK$129,MATCH($B495,Inputs!$C$68:$AK$68,0),FALSE))","v":6.5868429419336252},null,null,"PE Cell Service costs Annualised",1.8046145046393494,1.8046145046393494]
[null,"Indirect Opex",null,null,{"$f":"IF($B490=\"Blank\",0,IF($B$8=\"Private Contract Lighting\",'Opex Weighting'!D$113,'Opex Weighting'!D$111))","v":24.081834785768372},{"$f":"IF($B490=\"Blank\",0,IF($B$8=\"Private Contract Lighting\",'Opex Weighting'!E$113,'Opex Weighting'!E$111))","v":25.134626053693843},null,null,"Indirect Opex",6.5977629550050336,6.8861989188202317]
[null,"Indirect Capex",null,null,{"$f":"'Capex Weighting'!D$115","v":0},{"$f":"'Capex Weighting'!E$114","v":0},null,null,"Indirect Capex",0,0]
[null,"Overhead Costs per light",null,null,{"$f":"IF($B490=\"Blank\",0,IF($B$8=\"Private Contract Lighting\",'Building Block'!C$49,'Building Block'!C$48))","v":27.508265089316332},{"$f":"IF($B490=\"Blank\",0,IF($B$8=\"Private Contract Lighting\",'Building Block'!D$49,'Building Block'!D$48))","v":27.450442561572103},null,null,"Overhead Costs per light",7.5365109833743382,7.5206691949512612]
[null,{"$f":"Inputs!$AH$68","v":"Bracket UNIT price"},0,null,{"$f":"IF($B490=\"Blank\",0,OFFSET('CAPEX Annuity calcs'!$B$9,MATCH($B490,'CAPEX Annuity calcs'!$B$9:$B$500,0)+$C499,E$6))","v":3.9708893514415231},{"$f":"IF($B490=\"Blank\",0,OFFSET('CAPEX Annuity calcs'!$B$9,MATCH($B490,'CAPEX Annuity calcs'!$B$9:$B$500,0)+$C499,F$6))","v":3.9708893514415231},null,null,"Bracket UNIT price",1.0879148908058969,1.0879148908058969]
[null,{"$f":"Inputs!$Y$68","v":"CAPEX Installation costs"},{"$f":"C499+1","v":1},null,{"$f":"IF($B490=\"Blank\",0,OFFSET('CAPEX Annuity calcs'!$B$9,MATCH($B490,'CAPEX Annuity calcs'!$B$9:$B$500,0)+$C500,E$6))","v":0},{"$f":"IF($B490=\"Blank\",0,OFFSET('CAPEX Annuity calcs'!$B$9,MATCH($B490,'CAPEX Annuity calcs'!$B$9:$B$500,0)+$C500,F$6))","v":0},null,null,"CAPEX Installation costs",0,0]
[null,{"$f":"Inputs!$X$68","v":"Luminaire UNIT price"},{"$f":"C500+1","v":2},null,{"$f":"IF($B490=\"Blank\",0,OFFSET('CAPEX Annuity calcs'!$B$9,MATCH($B490,'CAPEX Annuity calcs'!$B$9:$B$500,0)+$C501,E$6))","v":27.704423187523222},{"$f":"IF($B490=\"Blank\",0,OFFSET('CAPEX Annuity calcs'!$B$9,MATCH($B490,'CAPEX Annuity calcs'!$B$9:$B$500,0)+$C501,F$6))","v":27.704423187523222},null,null,"Luminaire UNIT price",7.5902529280885531,7.5902529280885531]
[null,{"$f":"Inputs!$Y$68","v":"CAPEX Installation costs"},3,null,{"$f":"IF($B490=\"Blank\",0,OFFSET('CAPEX Annuity calcs'!$B$9,MATCH($B490,'CAPEX Annuity calcs'!$B$9:$B$500,0)+$C502,E$6))","v":17.165250199817599},{"$f":"IF($B490=\"Blank\",0,OFFSET('CAPEX Annuity calcs'!$B$9,MATCH($B490,'CAPEX Annuity calcs'!$B$9:$B$500,0)+$C502,F$6))","v":17.165250199817599},null,null,"CAPEX Installation costs",4.7028082739226296,4.7028082739226296]
[null,null,null,null,{"$f":"SUM(E491:E502)","v":122.14974662336769},{"$f":"SUM(F491:F502)","v":123.02674066569955},null,null,null,{"$f":"ROUND(E503/J$2*100,3)","v":33.466000000000001},{"$f":"ROUND(F503/K$2*100,3)","v":33.706000000000003}]
[]
[{"$f":"A490+1","v":34},{"$f":"IFERROR(VLOOKUP($A505,Inputs!$B$68:$AK$129,MATCH($B$7,Inputs!$B$68:$AK$68,0),FALSE),\"Blank\")","v":"100W Metal Halide"},null,null,null,null,null,null,{"$f":"IFERROR(VLOOKUP($A505,Inputs!$B$68:$AK$129,MATCH($B$7,Inputs!$B$68:$AK$68,0),FALSE),\"Blank\")","v":"100W Metal Halide"}]
[null,{"$f":"Inputs!$R$68","v":"Lamp UNIT price Annualised Cost"},{"$f":"Inputs!$P$68","v":"Lamp Maintenance cycle"},null,{"$f":"IF($B505=\"Blank\",0,VLOOKUP($B505,Inputs!$C$68:$AK$129,MATCH($B506,Inputs!$C$68:$AK$68,0),FALSE))","v":3.6415782911199996},{"$f":"IF($B505=\"Blank\",0,VLOOKUP($B505,Inputs!$C$68:$AK$129,MATCH($B506,Inputs!$C$68:$AK$68,0),FALSE))","v":3.6415782911199996},null,null,{"$f":"B506","v":"Lamp UNIT price Annualised Cost"},{"$f":"IF(E506=\"NA\",\"\",E506/J$2*100)","v":0.99769268249863008},{"$f":"IF(F506=\"NA\",\"\",F506/K$2*100)","v":0.99769268249863008}]
[null,{"$f":"Inputs!$K$68","v":"PE Cell UNIT price Annualised Cost"},{"$f":"Inputs!$I$68","v":"PE Cell Maintenance Cycle"},null,{"$f":"IF($B505=\"Blank\",0,VLOOKUP($B505,Inputs!$C$68:$AK$129,MATCH($B507,Inputs!$C$68:$AK$68,0),FALSE))","v":1.7788104971099301},{"$f":"IF($B505=\"Blank\",0,VLOOKUP($B505,Inputs!$C$68:$AK$129,MATCH($B507,Inputs!$C$68:$AK$68,0),FALSE))","v":1.7788104971099301},null,null,"PE Cell UNIT price Annualised Cost",0.48734534167395344,0.48734534167395344]
[null,"Corp capex annuity per light",null,null,{"$f":"IF($B505=\"Blank\",0,'Corp Capex Annuity calcs'!F$109)","v":14.826870317655803},{"$f":"IF($B505=\"Blank\",0,'Corp Capex Annuity calcs'!G$109)","v":14.708895619806404},null,null,"Corp capex annuity per light",4.0621562514125493,4.0298344163853157]
[null,{"$f":"Inputs!$T$68","v":"Lamp Service costs Annualised"},null,null,{"$f":"IF($B505=\"Blank\",0,VLOOKUP($B505,Inputs!$C$68:$AK$129,MATCH($B509,Inputs!$C$68:$AK$68,0),FALSE))","v":38.134353874352563},{"$f":"IF($B505=\"Blank\",0,VLOOKUP($B505,Inputs!$C$68:$AK$129,MATCH($B509,Inputs!$C$68:$AK$68,0),FALSE))","v":38.134353874352563},null,null,"Lamp Service costs Annualised",10.447768184754127,10.447768184754127]
[null,{"$f":"Inputs!$M$68","v":"PE Cell Service costs Annualised"},null,null,{"$f":"IF($B505=\"Blank\",0,VLOOKUP($B505,Inputs!$C$68:$AK$129,MATCH($B510,Inputs!$C$68:$AK$68,0),FALSE))","v":0},{"$f":"IF($B505=\"Blank\",0,VLOOKUP($B505,Inputs!$C$68:$AK$129,MATCH($B510,Inputs!$C$68:$AK$68,0),FALSE))","v":0},null,null,"PE Cell Service costs Annualised",0,0]
[null,"Indirect Opex",null,null,{"$f":"IF($B505=\"Blank\",0,IF($B$8=\"Private Contract Lighting\",'Opex Weighting'!D$113,'Opex Weighting'!D$111))","v":24.081834785768372},{"$f":"IF($B505=\"Blank\",0,IF($B$8=\"Private Contract Lighting\",'Opex Weighting'!E$113,'Opex Weighting'!E$111))","v":25.134626053693843},null,null,"Indirect Opex",6.5977629550050336,6.8861989188202317]
[null,"Indirect Capex",null,null,{"$f":"'Capex Weighting'!D$115","v":0},{"$f":"'Capex Weighting'!E$114","v":0},null,null,"Indirect Capex",0,0]
[null,"Overhead Costs per light",null,null,{"$f":"IF($B505=\"Blank\",0,IF($B$8=\"Private Contract Lighting\",'Building Block'!C$49,'Building Block'!C$48))","v":27.508265089316332},{"$f":"IF($B505=\"Blank\",0,IF($B$8=\"Private Contract Lighting\",'Building Block'!D$49,'Building Block'!D$48))","v":27.450442561572103},null,null,"Overhead Costs per light",7.5365109833743382,7.5206691949512612]
[null,{"$f":"Inputs!$AH$68","v":"Bracket UNIT price"},0,null,{"$f":"IF($B505=\"Blank\",0,OFFSET('CAPEX Annuity calcs'!$B$9,MATCH($B505,'CAPEX Annuity calcs'!$B$9:$B$500,0)+$C514,E$6))","v":4.8130896030266097},{"$f":"IF($B505=\"Blank\",0,OFFSET('CAPEX Annuity calcs'!$B$9,MATCH($B505,'CAPEX Annuity calcs'!$B$9:$B$500,0)+$C514,F$6))","v":4.8130896030266097},null,null,"Bracket UNIT price",1.3186546857607151,1.3186546857607151]
[null,{"$f":"Inputs!$Y$68","v":"CAPEX Installation costs"},{"$f":"C514+1","v":1},null,{"$f":"IF($B505=\"Blank\",0,OFFSET('CAPEX Annuity calcs'!$B$9,MATCH($B505,'CAPEX Annuity calcs'!$B$9:$B$500,0)+$C515,E$6))","v":0},{"$f":"IF($B505=\"Blank\",0,OFFSET('CAPEX Annuity calcs'!$B$9,MATCH($B505,'CAPEX Annuity calcs'!$B$9:$B$500,0)+$C515,F$6))","v":0},null,null,"CAPEX Installation costs",0,0]
[null,{"$f":"Inputs!$X$68","v":"Luminaire UNIT price"},{"$f":"C515+1","v":2},null,{"$f":"IF($B505=\"Blank\",0,OFFSET('CAPEX Annuity calcs'!$B$9,MATCH($B505,'CAPEX Annuity calcs'!$B$9:$B$500,0)+$C516,E$6))","v":11.927579642573505},{"$f":"IF($B505=\"Blank\",0,OFFSET('CAPEX Annuity calcs'!$B$9,MATCH($B505,'CAPEX Annuity calcs'!$B$9:$B$500,0)+$C516,F$6))","v":11.927579642573505},null,null,"Luminaire UNIT price",3.2678300390612343,3.2678300390612343]
[null,{"$f":"Inputs!$Y$68","v":"CAPEX Installation costs"},3,null,{"$f":"IF($B505=\"Blank\",0,OFFSET('CAPEX Annuity calcs'!$B$9,MATCH($B505,'CAPEX Annuity calcs'!$B$9:$B$500,0)+$C517,E$6))","v":37.089616333754066},{"$f":"IF($B505=\"Blank\",0,OFFSET('CAPEX Annuity calcs'!$B$9,MATCH($B505,'CAPEX Annuity calcs'!$B$9:$B$500,0)+$C517,F$6))","v":37.089616333754066},null,null,"CAPEX Installation costs",10.161538721576456,10.161538721576456]
[null,null,null,null,{"$f":"SUM(E506:E517)","v":163.80199843467719},{"$f":"SUM(F506:F517)","v":164.67899247700905},null,null,null,{"$f":"ROUND(E518/J$2*100,3)","v":44.877000000000002},{"$f":"ROUND(F518/K$2*100,3)","v":45.118000000000002}]
[]
[{"$f":"A505+1","v":35},{"$f":"IFERROR(VLOOKUP($A520,Inputs!$B$68:$AK$129,MATCH($B$7,Inputs!$B$68:$AK$68,0),FALSE),\"Blank\")","v":"150W Metal Halide"},null,null,null,null,null,null,{"$f":"IFERROR(VLOOKUP($A520,Inputs!$B$68:$AK$129,MATCH($B$7,Inputs!$B$68:$AK$68,0),FALSE),\"Blank\")","v":"150W Metal Halide"}]
[null,{"$f":"Inputs!$R$68","v":"Lamp UNIT price Annualised Cost"},{"$f":"Inputs!$P$68","v":"Lamp Maintenance cycle"},null,{"$f":"IF($B520=\"Blank\",0,VLOOKUP($B520,Inputs!$C$68:$AK$129,MATCH($B521,Inputs!$C$68:$AK$68,0),FALSE))","v":4.1438966180000003},{"$f":"IF($B520=\"Blank\",0,VLOOKUP($B520,Inputs!$C$68:$AK$129,MATCH($B521,Inputs!$C$68:$AK$68,0),FALSE))","v":4.1438966180000003},null,null,{"$f":"B521","v":"Lamp UNIT price Annualised Cost"},{"$f":"IF(E521=\"NA\",\"\",E521/J$2*100)","v":1.1353141419178083},{"$f":"IF(F521=\"NA\",\"\",F521/K$2*100)","v":1.1353141419178083}]
[null,{"$f":"Inputs!$K$68","v":"PE Cell UNIT price Annualised Cost"},{"$f":"Inputs!$I$68","v":"PE Cell Maintenance Cycle"},null,{"$f":"IF($B520=\"Blank\",0,VLOOKUP($B520,Inputs!$C$68:$AK$129,MATCH($B522,Inputs!$C$68:$AK$68,0),FALSE))","v":1.7788104971099301},{"$f":"IF($B520=\"Blank\",0,VLOOKUP($B520,Inputs!$C$68:$AK$129,MATCH($B522,Inputs!$C$68:$AK$68,0),FALSE))","v":1.7788104971099301},null,null,"PE Cell UNIT price Annualised Cost",0.48734534167395344,0.48734534167395344]
[null,"Corp capex annuity per light",null,null,{"$f":"IF($B520=\"Blank\",0,'Corp Capex Annuity calcs'!F$109)","v":14.826870317655803},{"$f":"IF($B520=\"Blank\",0,'Corp Capex Annuity calcs'!G$109)","v":14.708895619806404},null,null,"Corp capex annuity per light",4.0621562514125493,4.0298344163853157]
[null,{"$f":"Inputs!$T$68","v":"Lamp Service costs Annualised"},null,null,{"$f":"IF($B520=\"Blank\",0,VLOOKUP($B520,Inputs!$C$68:$AK$129,MATCH($B524,Inputs!$C$68:$AK$68,0),FALSE))","v":38.134353874352563},{"$f":"IF($B520=\"Blank\",0,VLOOKUP($B520,Inputs!$C$68:$AK$129,MATCH($B524,Inputs!$C$68:$AK$68,0),FALSE))","v":38.134353874352563},null,null,"Lamp Service costs Annualised",10.447768184754127,10.447768184754127]
[null,{"$f":"Inputs!$M$68","v":"PE Cell Service costs Annualised"},null,null,{"$f":"IF($B520=\"Blank\",0,VLOOKUP($B520,Inputs!$C$68:$AK$129,MATCH($B525,Inputs!$C$68:$AK$68,0),FALSE))","v":0},{"$f":"IF($B520=\"Blank\",0,VLOOKUP($B520,Inputs!$C$68:$AK$129,MATCH($B525,Inputs!$C$68:$AK$68,0),FALSE))","v":0},null,null,"PE Cell Service costs Annualised",0,0]
[null,"Indirect Opex",null,null,{"$f":"IF($B520=\"Blank\",0,IF($B$8=\"Private Contract Lighting\",'Opex Weighting'!D$113,'Opex Weighting'!D$111))","v":24.081834785768372},{"$f":"IF($B520=\"Blank\",0,IF($B$8=\"Private Contract Lighting\",'Opex Weighting'!E$113,'Opex Weighting'!E$111))","v":25.134626053693843},null,null,"Indirect Opex",6.5977629550050336,6.8861989188202317]
[null,"Indirect Capex",null,null,{"$f":"'Capex Weighting'!D$115","v":0},{"$f":"'Capex Weighting'!E$114","v":0},null,null,"Indirect Capex",0,0]
[null,"Overhead Costs per light",null,null,{"$f":"IF($B520=\"Blank\",0,IF($B$8=\"Private Contract Lighting\",'Building Block'!C$49,'Building Block'!C$48))","v":27.508265089316332},{"$f":"IF($B520=\"Blank\",0,IF($B$8=\"Private Contract Lighting\",'Building Block'!D$49,'Building Block'!D$48))","v":27.450442561572103},null,null,"Overhead Costs per light",7.5365109833743382,7.5206691949512612]
[null,{"$f":"Inputs!$AH$68","v":"Bracket UNIT price"},0,null,{"$f":"IF($B520=\"Blank\",0,OFFSET('CAPEX Annuity calcs'!$B$9,MATCH($B520,'CAPEX Annuity calcs'!$B$9:$B$500,0)+$C529,E$6))","v":8.2851765008532716},{"$f":"IF($B520=\"Blank\",0,OFFSET('CAPEX Annuity calcs'!$B$9,MATCH($B520,'CAPEX Annuity calcs'!$B$9:$B$500,0)+$C529,F$6))","v":8.2851765008532716},null,null,"Bracket UNIT price",2.2699113700967866,2.2699113700967866]
[null,{"$f":"Inputs!$Y$68","v":"CAPEX Installation costs"},{"$f":"C529+1","v":1},null,{"$f":"IF($B520=\"Blank\",0,OFFSET('CAPEX Annuity calcs'!$B$9,MATCH($B520,'CAPEX Annuity calcs'!$B$9:$B$500,0)+$C530,E$6))","v":0},{"$f":"IF($B520=\"Blank\",0,OFFSET('CAPEX Annuity calcs'!$B$9,MATCH($B520,'CAPEX Annuity calcs'!$B$9:$B$500,0)+$C530,F$6))","v":0},null,null,"CAPEX Installation costs",0,0]
[null,{"$f":"Inputs!$X$68","v":"Luminaire UNIT price"},{"$f":"C530+1","v":2},null,{"$f":"IF($B520=\"Blank\",0,OFFSET('CAPEX Annuity calcs'!$B$9,MATCH($B520,'CAPEX Annuity calcs'!$B$9:$B$500,0)+$C531,E$6))","v":17.399674988298965},{"$f":"IF($B520=\"Blank\",0,OFFSET('CAPEX Annuity calcs'!$B$9,MATCH($B520,'CAPEX Annuity calcs'!$B$9:$B$500,0)+$C531,F$6))","v":17.399674988298965},null,null,"Luminaire UNIT price",4.7670342433695803,4.7670342433695803]
[null,{"$f":"Inputs!$Y$68","v":"CAPEX Installation costs"},3,null,{"$f":"IF($B520=\"Blank\",0,OFFSET('CAPEX Annuity calcs'!$B$9,MATCH($B520,'CAPEX Annuity calcs'!$B$9:$B$500,0)+$C532,E$6))","v":37.089616333754066},{"$f":"IF($B520=\"Blank\",0,OFFSET('CAPEX Annuity calcs'!$B$9,MATCH($B520,'CAPEX Annuity calcs'!$B$9:$B$500,0)+$C532,F$6))","v":37.089616333754066},null,null,"CAPEX Installation costs",10.161538721576456,10.161538721576456]
[null,null,null,null,{"$f":"SUM(E521:E532)","v":173.2484990051093},{"$f":"SUM(F521:F532)","v":174.12549304744113},null,null,null,{"$f":"ROUND(E533/J$2*100,3)","v":47.465000000000003},{"$f":"ROUND(F533/K$2*100,3)","v":47.706000000000003}]
[]
[{"$f":"A520+1","v":36},{"$f":"IFERROR(VLOOKUP($A535,Inputs!$B$68:$AK$129,MATCH($B$7,Inputs!$B$68:$AK$68,0),FALSE),\"Blank\")","v":"250W Metal Halide"},null,null,null,null,null,null,{"$f":"IFERROR(VLOOKUP($A535,Inputs!$B$68:$AK$129,MATCH($B$7,Inputs!$B$68:$AK$68,0),FALSE),\"Blank\")","v":"250W Metal Halide"}]
[null,{"$f":"Inputs!$R$68","v":"Lamp UNIT price Annualised Cost"},{"$f":"Inputs!$P$68","v":"Lamp Maintenance cycle"},null,{"$f":"IF($B535=\"Blank\",0,VLOOKUP($B535,Inputs!$C$68:$AK$129,MATCH($B536,Inputs!$C$68:$AK$68,0),FALSE))","v":4.1438966180000003},{"$f":"IF($B535=\"Blank\",0,VLOOKUP($B535,Inputs!$C$68:$AK$129,MATCH($B536,Inputs!$C$68:$AK$68,0),FALSE))","v":4.1438966180000003},null,null,{"$f":"B536","v":"Lamp UNIT price Annualised Cost"},{"$f":"IF(E536=\"NA\",\"\",E536/J$2*100)","v":1.1353141419178083},{"$f":"IF(F536=\"NA\",\"\",F536/K$2*100)","v":1.1353141419178083}]
[null,{"$f":"Inputs!$K$68","v":"PE Cell UNIT price Annualised Cost"},{"$f":"Inputs!$I$68","v":"PE Cell Maintenance Cycle"},null,{"$f":"IF($B535=\"Blank\",0,VLOOKUP($B535,Inputs!$C$68:$AK$129,MATCH($B537,Inputs!$C$68:$AK$68,0),FALSE))","v":1.7788104971099301},{"$f":"IF($B535=\"Blank\",0,VLOOKUP($B535,Inputs!$C$68:$AK$129,MATCH($B537,Inputs!$C$68:$AK$68,0),FALSE))","v":1.7788104971099301},null,null,"PE Cell UNIT price Annualised Cost",0.48734534167395344,0.48734534167395344]
[null,"Corp capex annuity per light",null,null,{"$f":"IF($B535=\"Blank\",0,'Corp Capex Annuity calcs'!F$109)","v":14.826870317655803},{"$f":"IF($B535=\"Blank\",0,'Corp Capex Annuity calcs'!G$109)","v":14.708895619806404},null,null,"Corp capex annuity per light",4.0621562514125493,4.0298344163853157]
[null,{"$f":"Inputs!$T$68","v":"Lamp Service costs Annualised"},null,null,{"$f":"IF($B535=\"Blank\",0,VLOOKUP($B535,Inputs!$C$68:$AK$129,MATCH($B539,Inputs!$C$68:$AK$68,0),FALSE))","v":38.134353874352563},{"$f":"IF($B535=\"Blank\",0,VLOOKUP($B535,Inputs!$C$68:$AK$129,MATCH($B539,Inputs!$C$68:$AK$68,0),FALSE))","v":38.134353874352563},null,null,"Lamp Service costs Annualised",10.447768184754127,10.447768184754127]
[null,{"$f":"Inputs!$M$68","v":"PE Cell Service costs Annualised"},null,null,{"$f":"IF($B535=\"Blank\",0,VLOOKUP($B535,Inputs!$C$68:$AK$129,MATCH($B540,Inputs!$C$68:$AK$68,0),FALSE))","v":0},{"$f":"IF($B535=\"Blank\",0,VLOOKUP($B535,Inputs!$C$68:$AK$129,MATCH($B540,Inputs!$C$68:$AK$68,0),FALSE))","v":0},null,null,"PE Cell Service costs Annualised",0,0]
[null,"Indirect Opex",null,null,{"$f":"IF($B535=\"Blank\",0,IF($B$8=\"Private Contract Lighting\",'Opex Weighting'!D$113,'Opex Weighting'!D$111))","v":24.081834785768372},{"$f":"IF($B535=\"Blank\",0,IF($B$8=\"Private Contract Lighting\",'Opex Weighting'!E$113,'Opex Weighting'!E$111))","v":25.134626053693843},null,null,"Indirect Opex",6.5977629550050336,6.8861989188202317]
[null,"Indirect Capex",null,null,{"$f":"'Capex Weighting'!D$115","v":0},{"$f":"'Capex Weighting'!E$114","v":0},null,null,"Indirect Capex",0,0]
[null,"Overhead Costs per light",null,null,{"$f":"IF($B535=\"Blank\",0,IF($B$8=\"Private Contract Lighting\",'Building Block'!C$49,'Building Block'!C$48))","v":27.508265089316332},{"$f":"IF($B535=\"Blank\",0,IF($B$8=\"Private Contract Lighting\",'Building Block'!D$49,'Building Block'!D$48))","v":27.450442561572103},null,null,"Overhead Costs per light",7.5365109833743382,7.5206691949512612]
[null,{"$f":"Inputs!$AH$68","v":"Bracket UNIT price"},0,null,{"$f":"IF($B535=\"Blank\",0,OFFSET('CAPEX Annuity calcs'!$B$9,MATCH($B535,'CAPEX Annuity calcs'!$B$9:$B$500,0)+$C544,E$6))","v":10.631763726905863},{"$f":"IF($B535=\"Blank\",0,OFFSET('CAPEX Annuity calcs'!$B$9,MATCH($B535,'CAPEX Annuity calcs'!$B$9:$B$500,0)+$C544,F$6))","v":10.631763726905863},null,null,"Bracket UNIT price",2.9128119799742089,2.9128119799742089]
[null,{"$f":"Inputs!$Y$68","v":"CAPEX Installation costs"},{"$f":"C544+1","v":1},null,{"$f":"IF($B535=\"Blank\",0,OFFSET('CAPEX Annuity calcs'!$B$9,MATCH($B535,'CAPEX Annuity calcs'!$B$9:$B$500,0)+$C545,E$6))","v":0},{"$f":"IF($B535=\"Blank\",0,OFFSET('CAPEX Annuity calcs'!$B$9,MATCH($B535,'CAPEX Annuity calcs'!$B$9:$B$500,0)+$C545,F$6))","v":0},null,null,"CAPEX Installation costs",0,0]
[null,{"$f":"Inputs!$X$68","v":"Luminaire UNIT price"},{"$f":"C545+1","v":2},null,{"$f":"IF($B535=\"Blank\",0,OFFSET('CAPEX Annuity calcs'!$B$9,MATCH($B535,'CAPEX Annuity calcs'!$B$9:$B$500,0)+$C546,E$6))","v":18.024706392955267},{"$f":"IF($B535=\"Blank\",0,OFFSET('CAPEX Annuity calcs'!$B$9,MATCH($B535,'CAPEX Annuity calcs'!$B$9:$B$500,0)+$C546,F$6))","v":18.024706392955267},null,null,"Luminaire UNIT price",4.9382757240973332,4.9382757240973332]
[null,{"$f":"Inputs!$Y$68","v":"CAPEX Installation costs"},3,null,{"$f":"IF($B535=\"Blank\",0,OFFSET('CAPEX Annuity calcs'!$B$9,MATCH($B535,'CAPEX Annuity calcs'!$B$9:$B$500,0)+$C547,E$6))","v":37.089616333754066},{"$f":"IF($B535=\"Blank\",0,OFFSET('CAPEX Annuity calcs'!$B$9,MATCH($B535,'CAPEX Annuity calcs'!$B$9:$B$500,0)+$C547,F$6))","v":37.089616333754066},null,null,"CAPEX Installation costs",10.161538721576456,10.161538721576456]
[null,null,null,null,{"$f":"SUM(E536:E547)","v":176.22011763581818},{"$f":"SUM(F536:F547)","v":177.09711167815004},null,null,null,{"$f":"ROUND(E548/J$2*100,3)","v":48.279000000000003},{"$f":"ROUND(F548/K$2*100,3)","v":48.52}]
[]
[{"$f":"A535+1","v":37},{"$f":"IFERROR(VLOOKUP($A550,Inputs!$B$68:$AK$129,MATCH($B$7,Inputs!$B$68:$AK$68,0),FALSE),\"Blank\")","v":"400W Metal Halide"},null,null,null,null,null,null,{"$f":"IFERROR(VLOOKUP($A550,Inputs!$B$68:$AK$129,MATCH($B$7,Inputs!$B$68:$AK$68,0),FALSE),\"Blank\")","v":"400W Metal Halide"}]
[null,{"$f":"Inputs!$R$68","v":"Lamp UNIT price Annualised Cost"},{"$f":"Inputs!$P$68","v":"Lamp Maintenance cycle"},null,{"$f":"IF($B550=\"Blank\",0,VLOOKUP($B550,Inputs!$C$68:$AK$129,MATCH($B551,Inputs!$C$68:$AK$68,0),FALSE))","v":6.5429946599999997},{"$f":"IF($B550=\"Blank\",0,VLOOKUP($B550,Inputs!$C$68:$AK$129,MATCH($B551,Inputs!$C$68:$AK$68,0),FALSE))","v":6.5429946599999997},null,null,{"$f":"B551","v":"Lamp UNIT price Annualised Cost"},{"$f":"IF(E551=\"NA\",\"\",E551/J$2*100)","v":1.7926012767123287},{"$f":"IF(F551=\"NA\",\"\",F551/K$2*100)","v":1.7926012767123287}]
[null,{"$f":"Inputs!$K$68","v":"PE Cell UNIT price Annualised Cost"},{"$f":"Inputs!$I$68","v":"PE Cell Maintenance Cycle"},null,{"$f":"IF($B550=\"Blank\",0,VLOOKUP($B550,Inputs!$C$68:$AK$129,MATCH($B552,Inputs!$C$68:$AK$68,0),FALSE))","v":1.7788104971099301},{"$f":"IF($B550=\"Blank\",0,VLOOKUP($B550,Inputs!$C$68:$AK$129,MATCH($B552,Inputs!$C$68:$AK$68,0),FALSE))","v":1.7788104971099301},null,null,"PE Cell UNIT price Annualised Cost",0.48734534167395344,0.48734534167395344]
[null,"Corp capex annuity per light",null,null,{"$f":"IF($B550=\"Blank\",0,'Corp Capex Annuity calcs'!F$109)","v":14.826870317655803},{"$f":"IF($B550=\"Blank\",0,'Corp Capex Annuity calcs'!G$109)","v":14.708895619806404},null,null,"Corp capex annuity per light",4.0621562514125493,4.0298344163853157]
[null,{"$f":"Inputs!$T$68","v":"Lamp Service costs Annualised"},null,null,{"$f":"IF($B550=\"Blank\",0,VLOOKUP($B550,Inputs!$C$68:$AK$129,MATCH($B554,Inputs!$C$68:$AK$68,0),FALSE))","v":38.134353874352563},{"$f":"IF($B550=\"Blank\",0,VLOOKUP($B550,Inputs!$C$68:$AK$129,MATCH($B554,Inputs!$C$68:$AK$68,0),FALSE))","v":38.134353874352563},null,null,"Lamp Service costs Annualised",10.447768184754127,10.447768184754127]
[null,{"$f":"Inputs!$M$68","v":"PE Cell Service costs Annualised"},null,null,{"$f":"IF($B550=\"Blank\",0,VLOOKUP($B550,Inputs!$C$68:$AK$129,MATCH($B555,Inputs!$C$68:$AK$68,0),FALSE))","v":0},{"$f":"IF($B550=\"Blank\",0,VLOOKUP($B550,Inputs!$C$68:$AK$129,MATCH($B555,Inputs!$C$68:$AK$68,0),FALSE))","v":0},null,null,"PE Cell Service costs Annualised",0,0]
[null,"Indirect Opex",null,null,{"$f":"IF($B550=\"Blank\",0,IF($B$8=\"Private Contract Lighting\",'Opex Weighting'!D$113,'Opex Weighting'!D$111))","v":24.081834785768372},{"$f":"IF($B550=\"Blank\",0,IF($B$8=\"Private Contract Lighting\",'Opex Weighting'!E$113,'Opex Weighting'!E$111))","v":25.134626053693843},null,null,"Indirect Opex",6.5977629550050336,6.8861989188202317]
[null,"Indirect Capex",null,null,{"$f":"'Capex Weighting'!D$115","v":0},{"$f":"'Capex Weighting'!E$114","v":0},null,null,"Indirect Capex",0,0]
[null,"Overhead Costs per light",null,null,{"$f":"IF($B550=\"Blank\",0,IF($B$8=\"Private Contract Lighting\",'Building Block'!C$49,'Building Block'!C$48))","v":27.508265089316332},{"$f":"IF($B550=\"Blank\",0,IF($B$8=\"Private Contract Lighting\",'Building Block'!D$49,'Building Block'!D$48))","v":27.450442561572103},null,null,"Overhead Costs per light",7.5365109833743382,7.5206691949512612]
[null,{"$f":"Inputs!$AH$68","v":"Bracket UNIT price"},0,null,{"$f":"IF($B550=\"Blank\",0,OFFSET('CAPEX Annuity calcs'!$B$9,MATCH($B550,'CAPEX Annuity calcs'!$B$9:$B$500,0)+$C559,E$6))","v":7.6697768001663169},{"$f":"IF($B550=\"Blank\",0,OFFSET('CAPEX Annuity calcs'!$B$9,MATCH($B550,'CAPEX Annuity calcs'!$B$9:$B$500,0)+$C559,F$6))","v":7.6697768001663169},null,null,"Bracket UNIT price",2.1013087123743333,2.1013087123743333]
[null,{"$f":"Inputs!$Y$68","v":"CAPEX Installation costs"},{"$f":"C559+1","v":1},null,{"$f":"IF($B550=\"Blank\",0,OFFSET('CAPEX Annuity calcs'!$B$9,MATCH($B550,'CAPEX Annuity calcs'!$B$9:$B$500,0)+$C560,E$6))","v":0},{"$f":"IF($B550=\"Blank\",0,OFFSET('CAPEX Annuity calcs'!$B$9,MATCH($B550,'CAPEX Annuity calcs'!$B$9:$B$500,0)+$C560,F$6))","v":0},null,null,"CAPEX Installation costs",0,0]
[null,{"$f":"Inputs!$X$68","v":"Luminaire UNIT price"},{"$f":"C560+1","v":2},null,{"$f":"IF($B550=\"Blank\",0,OFFSET('CAPEX Annuity calcs'!$B$9,MATCH($B550,'CAPEX Annuity calcs'!$B$9:$B$500,0)+$C561,E$6))","v":36.610644569099641},{"$f":"IF($B550=\"Blank\",0,OFFSET('CAPEX Annuity calcs'!$B$9,MATCH($B550,'CAPEX Annuity calcs'!$B$9:$B$500,0)+$C561,F$6))","v":36.610644569099641},null,null,"Luminaire UNIT price",10.030313580575244,10.030313580575244]
[null,{"$f":"Inputs!$Y$68","v":"CAPEX Installation costs"},3,null,{"$f":"IF($B550=\"Blank\",0,OFFSET('CAPEX Annuity calcs'!$B$9,MATCH($B550,'CAPEX Annuity calcs'!$B$9:$B$500,0)+$C562,E$6))","v":37.089616333754066},{"$f":"IF($B550=\"Blank\",0,OFFSET('CAPEX Annuity calcs'!$B$9,MATCH($B550,'CAPEX Annuity calcs'!$B$9:$B$500,0)+$C562,F$6))","v":37.089616333754066},null,null,"CAPEX Installation costs",10.161538721576456,10.161538721576456]
[null,null,null,null,{"$f":"SUM(E551:E562)","v":194.243166927223},{"$f":"SUM(F551:F562)","v":195.12016096955486},null,null,null,{"$f":"ROUND(E563/J$2*100,3)","v":53.216999999999999},{"$f":"ROUND(F563/K$2*100,3)","v":53.457999999999998}]
[]
[{"$f":"A550+1","v":38},{"$f":"IFERROR(VLOOKUP($A565,Inputs!$B$68:$AK$129,MATCH($B$7,Inputs!$B$68:$AK$68,0),FALSE),\"Blank\")","v":"70W Metal Halide"},null,null,null,null,null,null,{"$f":"IFERROR(VLOOKUP($A565,Inputs!$B$68:$AK$129,MATCH($B$7,Inputs!$B$68:$AK$68,0),FALSE),\"Blank\")","v":"70W Metal Halide"}]
[null,{"$f":"Inputs!$R$68","v":"Lamp UNIT price Annualised Cost"},{"$f":"Inputs!$P$68","v":"Lamp Maintenance cycle"},null,{"$f":"IF($B565=\"Blank\",0,VLOOKUP($B565,Inputs!$C$68:$AK$129,MATCH($B566,Inputs!$C$68:$AK$68,0),FALSE))","v":3.5765501073499997},{"$f":"IF($B565=\"Blank\",0,VLOOKUP($B565,Inputs!$C$68:$AK$129,MATCH($B566,Inputs!$C$68:$AK$68,0),FALSE))","v":3.5765501073499997},null,null,{"$f":"B566","v":"Lamp UNIT price Annualised Cost"},{"$f":"IF(E566=\"NA\",\"\",E566/J$2*100)","v":0.97987674173972594},{"$f":"IF(F566=\"NA\",\"\",F566/K$2*100)","v":0.97987674173972594}]
[null,{"$f":"Inputs!$K$68","v":"PE Cell UNIT price Annualised Cost"},{"$f":"Inputs!$I$68","v":"PE Cell Maintenance Cycle"},null,{"$f":"IF($B565=\"Blank\",0,VLOOKUP($B565,Inputs!$C$68:$AK$129,MATCH($B567,Inputs!$C$68:$AK$68,0),FALSE))","v":0.6107414998224272},{"$f":"IF($B565=\"Blank\",0,VLOOKUP($B565,Inputs!$C$68:$AK$129,MATCH($B567,Inputs!$C$68:$AK$68,0),FALSE))","v":0.6107414998224272},null,null,"PE Cell UNIT price Annualised Cost",0.16732643830751431,0.16732643830751431]
[null,"Corp capex annuity per light",null,null,{"$f":"IF($B565=\"Blank\",0,'Corp Capex Annuity calcs'!F$109)","v":14.826870317655803},{"$f":"IF($B565=\"Blank\",0,'Corp Capex Annuity calcs'!G$109)","v":14.708895619806404},null,null,"Corp capex annuity per light",4.0621562514125493,4.0298344163853157]
[null,{"$f":"Inputs!$T$68","v":"Lamp Service costs Annualised"},null,null,{"$f":"IF($B565=\"Blank\",0,VLOOKUP($B565,Inputs!$C$68:$AK$129,MATCH($B569,Inputs!$C$68:$AK$68,0),FALSE))","v":26.347371767734501},{"$f":"IF($B565=\"Blank\",0,VLOOKUP($B565,Inputs!$C$68:$AK$129,MATCH($B569,Inputs!$C$68:$AK$68,0),FALSE))","v":26.347371767734501},null,null,"Lamp Service costs Annualised",7.2184580185573974,7.2184580185573974]
[null,{"$f":"Inputs!$M$68","v":"PE Cell Service costs Annualised"},null,null,{"$f":"IF($B565=\"Blank\",0,VLOOKUP($B565,Inputs!$C$68:$AK$129,MATCH($B570,Inputs!$C$68:$AK$68,0),FALSE))","v":0},{"$f":"IF($B565=\"Blank\",0,VLOOKUP($B565,Inputs!$C$68:$AK$129,MATCH($B570,Inputs!$C$68:$AK$68,0),FALSE))","v":0},null,null,"PE Cell Service costs Annualised",0,0]
[null,"Indirect Opex",null,null,{"$f":"IF($B565=\"Blank\",0,IF($B$8=\"Private Contract Lighting\",'Opex Weighting'!D$113,'Opex Weighting'!D$111))","v":24.081834785768372},{"$f":"IF($B565=\"Blank\",0,IF($B$8=\"Private Contract Lighting\",'Opex Weighting'!E$113,'Opex Weighting'!E$111))","v":25.134626053693843},null,null,"Indirect Opex",6.5977629550050336,6.8861989188202317]
[null,"Indirect Capex",null,null,{"$f":"'Capex Weighting'!D$115","v":0},{"$f":"'Capex Weighting'!E$114","v":0},null,null,"Indirect Capex",0,0]
[null,"Overhead Costs per light",null,null,{"$f":"IF($B565=\"Blank\",0,IF($B$8=\"Private Contract Lighting\",'Building Block'!C$49,'Building Block'!C$48))","v":27.508265089316332},{"$f":"IF($B565=\"Blank\",0,IF($B$8=\"Private Contract Lighting\",'Building Block'!D$49,'Building Block'!D$48))","v":27.450442561572103},null,null,"Overhead Costs per light",7.5365109833743382,7.5206691949512612]
[null,{"$f":"Inputs!$AH$68","v":"Bracket UNIT price"},0,null,{"$f":"IF($B565=\"Blank\",0,OFFSET('CAPEX Annuity calcs'!$B$9,MATCH($B565,'CAPEX Annuity calcs'!$B$9:$B$500,0)+$C574,E$6))","v":4.8130896030266097},{"$f":"IF($B565=\"Blank\",0,OFFSET('CAPEX Annuity calcs'!$B$9,MATCH($B565,'CAPEX Annuity calcs'!$B$9:$B$500,0)+$C574,F$6))","v":4.8130896030266097},null,null,"Bracket UNIT price",1.3186546857607151,1.3186546857607151]
[null,{"$f":"Inputs!$Y$68","v":"CAPEX Installation costs"},{"$f":"C574+1","v":1},null,{"$f":"IF($B565=\"Blank\",0,OFFSET('CAPEX Annuity calcs'!$B$9,MATCH($B565,'CAPEX Annuity calcs'!$B$9:$B$500,0)+$C575,E$6))","v":0},{"$f":"IF($B565=\"Blank\",0,OFFSET('CAPEX Annuity calcs'!$B$9,MATCH($B565,'CAPEX Annuity calcs'!$B$9:$B$500,0)+$C575,F$6))","v":0},null,null,"CAPEX Installation costs",0,0]
[null,{"$f":"Inputs!$X$68","v":"Luminaire UNIT price"},{"$f":"C575+1","v":2},null,{"$f":"IF($B565=\"Blank\",0,OFFSET('CAPEX Annuity calcs'!$B$9,MATCH($B565,'CAPEX Annuity calcs'!$B$9:$B$500,0)+$C576,E$6))","v":6.3695223632182607},{"$f":"IF($B565=\"Blank\",0,OFFSET('CAPEX Annuity calcs'!$B$9,MATCH($B565,'CAPEX Annuity calcs'!$B$9:$B$500,0)+$C576,F$6))","v":6.3695223632182607},null,null,"Luminaire UNIT price",1.7450746200597975,1.7450746200597975]
[null,{"$f":"Inputs!$Y$68","v":"CAPEX Installation costs"},3,null,{"$f":"IF($B565=\"Blank\",0,OFFSET('CAPEX Annuity calcs'!$B$9,MATCH($B565,'CAPEX Annuity calcs'!$B$9:$B$500,0)+$C577,E$6))","v":17.165250199817599},{"$f":"IF($B565=\"Blank\",0,OFFSET('CAPEX Annuity calcs'!$B$9,MATCH($B565,'CAPEX Annuity calcs'!$B$9:$B$500,0)+$C577,F$6))","v":17.165250199817599},null,null,"CAPEX Installation costs",4.7028082739226296,4.7028082739226296]
[null,null,null,null,{"$f":"SUM(E566:E577)","v":125.2994957337099},{"$f":"SUM(F566:F577)","v":126.17648977604176},null,null,null,{"$f":"ROUND(E578/J$2*100,3)","v":34.329000000000001},{"$f":"ROUND(F578/K$2*100,3)","v":34.569000000000003}]
[]
[{"$f":"A565+1","v":39},{"$f":"IFERROR(VLOOKUP($A580,Inputs!$B$68:$AK$129,MATCH($B$7,Inputs!$B$68:$AK$68,0),FALSE),\"Blank\")","v":"250W Metal Halide - Flood Light"},null,null,null,null,null,null,{"$f":"IFERROR(VLOOKUP($A580,Inputs!$B$68:$AK$129,MATCH($B$7,Inputs!$B$68:$AK$68,0),FALSE),\"Blank\")","v":"250W Metal Halide - Flood Light"}]
[null,{"$f":"Inputs!$R$68","v":"Lamp UNIT price Annualised Cost"},{"$f":"Inputs!$P$68","v":"Lamp Maintenance cycle"},null,{"$f":"IF($B580=\"Blank\",0,VLOOKUP($B580,Inputs!$C$68:$AK$129,MATCH($B581,Inputs!$C$68:$AK$68,0),FALSE))","v":4.1438966180000003},{"$f":"IF($B580=\"Blank\",0,VLOOKUP($B580,Inputs!$C$68:$AK$129,MATCH($B581,Inputs!$C$68:$AK$68,0),FALSE))","v":4.1438966180000003},null,null,{"$f":"B581","v":"Lamp UNIT price Annualised Cost"},{"$f":"IF(E581=\"NA\",\"\",E581/J$2*100)","v":1.1353141419178083},{"$f":"IF(F581=\"NA\",\"\",F581/K$2*100)","v":1.1353141419178083}]
[null,{"$f":"Inputs!$K$68","v":"PE Cell UNIT price Annualised Cost"},{"$f":"Inputs!$I$68","v":"PE Cell Maintenance Cycle"},null,{"$f":"IF($B580=\"Blank\",0,VLOOKUP($B580,Inputs!$C$68:$AK$129,MATCH($B582,Inputs!$C$68:$AK$68,0),FALSE))","v":1.7788104971099301},{"$f":"IF($B580=\"Blank\",0,VLOOKUP($B580,Inputs!$C$68:$AK$129,MATCH($B582,Inputs!$C$68:$AK$68,0),FALSE))","v":1.7788104971099301},null,null,"PE Cell UNIT price Annualised Cost",0.48734534167395344,0.48734534167395344]
[null,"Corp capex annuity per light",null,null,{"$f":"IF($B580=\"Blank\",0,'Corp Capex Annuity calcs'!F$109)","v":14.826870317655803},{"$f":"IF($B580=\"Blank\",0,'Corp Capex Annuity calcs'!G$109)","v":14.708895619806404},null,null,"Corp capex annuity per light",4.0621562514125493,4.0298344163853157]
[null,{"$f":"Inputs!$T$68","v":"Lamp Service costs Annualised"},null,null,{"$f":"IF($B580=\"Blank\",0,VLOOKUP($B580,Inputs!$C$68:$AK$129,MATCH($B584,Inputs!$C$68:$AK$68,0),FALSE))","v":38.134353874352563},{"$f":"IF($B580=\"Blank\",0,VLOOKUP($B580,Inputs!$C$68:$AK$129,MATCH($B584,Inputs!$C$68:$AK$68,0),FALSE))","v":38.134353874352563},null,null,"Lamp Service costs Annualised",10.447768184754127,10.447768184754127]
[null,{"$f":"Inputs!$M$68","v":"PE Cell Service costs Annualised"},null,null,{"$f":"IF($B580=\"Blank\",0,VLOOKUP($B580,Inputs!$C$68:$AK$129,MATCH($B585,Inputs!$C$68:$AK$68,0),FALSE))","v":0},{"$f":"IF($B580=\"Blank\",0,VLOOKUP($B580,Inputs!$C$68:$AK$129,MATCH($B585,Inputs!$C$68:$AK$68,0),FALSE))","v":0},null,null,"PE Cell Service costs Annualised",0,0]
[null,"Indirect Opex",null,null,{"$f":"IF($B580=\"Blank\",0,IF($B$8=\"Private Contract Lighting\",'Opex Weighting'!D$113,'Opex Weighting'!D$111))","v":24.081834785768372},{"$f":"IF($B580=\"Blank\",0,IF($B$8=\"Private Contract Lighting\",'Opex Weighting'!E$113,'Opex Weighting'!E$111))","v":25.134626053693843},null,null,"Indirect Opex",6.5977629550050336,6.8861989188202317]
[null,"Indirect Capex",null,null,{"$f":"'Capex Weighting'!D$115","v":0},{"$f":"'Capex Weighting'!E$114","v":0},null,null,"Indirect Capex",0,0]
[null,"Overhead Costs per light",null,null,{"$f":"IF($B580=\"Blank\",0,IF($B$8=\"Private Contract Lighting\",'Building Block'!C$49,'Building Block'!C$48))","v":27.508265089316332},{"$f":"IF($B580=\"Blank\",0,IF($B$8=\"Private Contract Lighting\",'Building Block'!D$49,'Building Block'!D$48))","v":27.450442561572103},null,null,"Overhead Costs per light",7.5365109833743382,7.5206691949512612]
[null,{"$f":"Inputs!$AH$68","v":"Bracket UNIT price"},0,null,{"$f":"IF($B580=\"Blank\",0,OFFSET('CAPEX Annuity calcs'!$B$9,MATCH($B580,'CAPEX Annuity calcs'!$B$9:$B$500,0)+$C589,E$6))","v":10.631763726905863},{"$f":"IF($B580=\"Blank\",0,OFFSET('CAPEX Annuity calcs'!$B$9,MATCH($B580,'CAPEX Annuity calcs'!$B$9:$B$500,0)+$C589,F$6))","v":10.631763726905863},null,null,"Bracket UNIT price",2.9128119799742089,2.9128119799742089]
[null,{"$f":"Inputs!$Y$68","v":"CAPEX Installation costs"},{"$f":"C589+1","v":1},null,{"$f":"IF($B580=\"Blank\",0,OFFSET('CAPEX Annuity calcs'!$B$9,MATCH($B580,'CAPEX Annuity calcs'!$B$9:$B$500,0)+$C590,E$6))","v":0},{"$f":"IF($B580=\"Blank\",0,OFFSET('CAPEX Annuity calcs'!$B$9,MATCH($B580,'CAPEX Annuity calcs'!$B$9:$B$500,0)+$C590,F$6))","v":0},null,null,"CAPEX Installation costs",0,0]
[null,{"$f":"Inputs!$X$68","v":"Luminaire UNIT price"},{"$f":"C590+1","v":2},null,{"$f":"IF($B580=\"Blank\",0,OFFSET('CAPEX Annuity calcs'!$B$9,MATCH($B580,'CAPEX Annuity calcs'!$B$9:$B$500,0)+$C591,E$6))","v":36.610644569099641},{"$f":"IF($B580=\"Blank\",0,OFFSET('CAPEX Annuity calcs'!$B$9,MATCH($B580,'CAPEX Annuity calcs'!$B$9:$B$500,0)+$C591,F$6))","v":36.610644569099641},null,null,"Luminaire UNIT price",10.030313580575244,10.030313580575244]
[null,{"$f":"Inputs!$Y$68","v":"CAPEX Installation costs"},3,null,{"$f":"IF($B580=\"Blank\",0,OFFSET('CAPEX Annuity calcs'!$B$9,MATCH($B580,'CAPEX Annuity calcs'!$B$9:$B$500,0)+$C592,E$6))","v":37.089616333754066},{"$f":"IF($B580=\"Blank\",0,OFFSET('CAPEX Annuity calcs'!$B$9,MATCH($B580,'CAPEX Annuity calcs'!$B$9:$B$500,0)+$C592,F$6))","v":37.089616333754066},null,null,"CAPEX Installation costs",10.161538721576456,10.161538721576456]
[null,null,null,null,{"$f":"SUM(E581:E592)","v":194.80605581196255},{"$f":"SUM(F581:F592)","v":195.68304985429441},null,null,null,{"$f":"ROUND(E593/J$2*100,3)","v":53.372},{"$f":"ROUND(F593/K$2*100,3)","v":53.612000000000002}]
[]
[{"$f":"A580+1","v":40},{"$f":"IFERROR(VLOOKUP($A595,Inputs!$B$68:$AK$129,MATCH($B$7,Inputs!$B$68:$AK$68,0),FALSE),\"Blank\")","v":"400W Metal Halide - Flood Light"},null,null,null,null,null,null,{"$f":"IFERROR(VLOOKUP($A595,Inputs!$B$68:$AK$129,MATCH($B$7,Inputs!$B$68:$AK$68,0),FALSE),\"Blank\")","v":"400W Metal Halide - Flood Light"}]
[null,{"$f":"Inputs!$R$68","v":"Lamp UNIT price Annualised Cost"},{"$f":"Inputs!$P$68","v":"Lamp Maintenance cycle"},null,{"$f":"IF($B595=\"Blank\",0,VLOOKUP($B595,Inputs!$C$68:$AK$129,MATCH($B596,Inputs!$C$68:$AK$68,0),FALSE))","v":6.5429946599999997},{"$f":"IF($B595=\"Blank\",0,VLOOKUP($B595,Inputs!$C$68:$AK$129,MATCH($B596,Inputs!$C$68:$AK$68,0),FALSE))","v":6.5429946599999997},null,null,{"$f":"B596","v":"Lamp UNIT price Annualised Cost"},{"$f":"IF(E596=\"NA\",\"\",E596/J$2*100)","v":1.7926012767123287},{"$f":"IF(F596=\"NA\",\"\",F596/K$2*100)","v":1.7926012767123287}]
[null,{"$f":"Inputs!$K$68","v":"PE Cell UNIT price Annualised Cost"},{"$f":"Inputs!$I$68","v":"PE Cell Maintenance Cycle"},null,{"$f":"IF($B595=\"Blank\",0,VLOOKUP($B595,Inputs!$C$68:$AK$129,MATCH($B597,Inputs!$C$68:$AK$68,0),FALSE))","v":1.7788104971099301},{"$f":"IF($B595=\"Blank\",0,VLOOKUP($B595,Inputs!$C$68:$AK$129,MATCH($B597,Inputs!$C$68:$AK$68,0),FALSE))","v":1.7788104971099301},null,null,"PE Cell UNIT price Annualised Cost",0.48734534167395344,0.48734534167395344]
[null,"Corp capex annuity per light",null,null,{"$f":"IF($B595=\"Blank\",0,'Corp Capex Annuity calcs'!F$109)","v":14.826870317655803},{"$f":"IF($B595=\"Blank\",0,'Corp Capex Annuity calcs'!G$109)","v":14.708895619806404},null,null,"Corp capex annuity per light",4.0621562514125493,4.0298344163853157]
[null,{"$f":"Inputs!$T$68","v":"Lamp Service costs Annualised"},null,null,{"$f":"IF($B595=\"Blank\",0,VLOOKUP($B595,Inputs!$C$68:$AK$129,MATCH($B599,Inputs!$C$68:$AK$68,0),FALSE))","v":38.134353874352563},{"$f":"IF($B595=\"Blank\",0,VLOOKUP($B595,Inputs!$C$68:$AK$129,MATCH($B599,Inputs!$C$68:$AK$68,0),FALSE))","v":38.134353874352563},null,null,"Lamp Service costs Annualised",10.447768184754127,10.447768184754127]
[null,{"$f":"Inputs!$M$68","v":"PE Cell Service costs Annualised"},null,null,{"$f":"IF($B595=\"Blank\",0,VLOOKUP($B595,Inputs!$C$68:$AK$129,MATCH($B600,Inputs!$C$68:$AK$68,0),FALSE))","v":0},{"$f":"IF($B595=\"Blank\",0,VLOOKUP($B595,Inputs!$C$68:$AK$129,MATCH($B600,Inputs!$C$68:$AK$68,0),FALSE))","v":0},null,null,"PE Cell Service costs Annualised",0,0]
[null,"Indirect Opex",null,null,{"$f":"IF($B595=\"Blank\",0,IF($B$8=\"Private Contract Lighting\",'Opex Weighting'!D$113,'Opex Weighting'!D$111))","v":24.081834785768372},{"$f":"IF($B595=\"Blank\",0,IF($B$8=\"Private Contract Lighting\",'Opex Weighting'!E$113,'Opex Weighting'!E$111))","v":25.134626053693843},null,null,"Indirect Opex",6.5977629550050336,6.8861989188202317]
[null,"Indirect Capex",null,null,{"$f":"'Capex Weighting'!D$115","v":0},{"$f":"'Capex Weighting'!E$114","v":0},null,null,"Indirect Capex",0,0]
[null,"Overhead Costs per light",null,null,{"$f":"IF($B595=\"Blank\",0,IF($B$8=\"Private Contract Lighting\",'Building Block'!C$49,'Building Block'!C$48))","v":27.508265089316332},{"$f":"IF($B595=\"Blank\",0,IF($B$8=\"Private Contract Lighting\",'Building Block'!D$49,'Building Block'!D$48))","v":27.450442561572103},null,null,"Overhead Costs per light",7.5365109833743382,7.5206691949512612]
[null,{"$f":"Inputs!$AH$68","v":"Bracket UNIT price"},0,null,{"$f":"IF($B595=\"Blank\",0,OFFSET('CAPEX Annuity calcs'!$B$9,MATCH($B595,'CAPEX Annuity calcs'!$B$9:$B$500,0)+$C604,E$6))","v":7.6697768001663169},{"$f":"IF($B595=\"Blank\",0,OFFSET('CAPEX Annuity calcs'!$B$9,MATCH($B595,'CAPEX Annuity calcs'!$B$9:$B$500,0)+$C604,F$6))","v":7.6697768001663169},null,null,"Bracket UNIT price",2.1013087123743333,2.1013087123743333]
[null,{"$f":"Inputs!$Y$68","v":"CAPEX Installation costs"},{"$f":"C604+1","v":1},null,{"$f":"IF($B595=\"Blank\",0,OFFSET('CAPEX Annuity calcs'!$B$9,MATCH($B595,'CAPEX Annuity calcs'!$B$9:$B$500,0)+$C605,E$6))","v":0},{"$f":"IF($B595=\"Blank\",0,OFFSET('CAPEX Annuity calcs'!$B$9,MATCH($B595,'CAPEX Annuity calcs'!$B$9:$B$500,0)+$C605,F$6))","v":0},null,null,"CAPEX Installation costs",0,0]
[null,{"$f":"Inputs!$X$68","v":"Luminaire UNIT price"},{"$f":"C605+1","v":2},null,{"$f":"IF($B595=\"Blank\",0,OFFSET('CAPEX Annuity calcs'!$B$9,MATCH($B595,'CAPEX Annuity calcs'!$B$9:$B$500,0)+$C606,E$6))","v":36.610644569099641},{"$f":"IF($B595=\"Blank\",0,OFFSET('CAPEX Annuity calcs'!$B$9,MATCH($B595,'CAPEX Annuity calcs'!$B$9:$B$500,0)+$C606,F$6))","v":36.610644569099641},null,null,"Luminaire UNIT price",10.030313580575244,10.030313580575244]
[null,{"$f":"Inputs!$Y$68","v":"CAPEX Installation costs"},3,null,{"$f":"IF($B595=\"Blank\",0,OFFSET('CAPEX Annuity calcs'!$B$9,MATCH($B595,'CAPEX Annuity calcs'!$B$9:$B$500,0)+$C607,E$6))","v":37.089616333754066},{"$f":"IF($B595=\"Blank\",0,OFFSET('CAPEX Annuity calcs'!$B$9,MATCH($B595,'CAPEX Annuity calcs'!$B$9:$B$500,0)+$C607,F$6))","v":37.089616333754066},null,null,"CAPEX Installation costs",10.161538721576456,10.161538721576456]
[null,null,null,null,{"$f":"SUM(E596:E607)","v":194.243166927223},{"$f":"SUM(F596:F607)","v":195.12016096955486},null,null,null,{"$f":"ROUND(E608/J$2*100,3)","v":53.216999999999999},{"$f":"ROUND(F608/K$2*100,3)","v":53.457999999999998}]
[]
[{"$f":"A595+1","v":41},{"$f":"IFERROR(VLOOKUP($A610,Inputs!$B$68:$AK$129,MATCH($B$7,Inputs!$B$68:$AK$68,0),FALSE),\"Blank\")","v":"125W Mercury Vapour"},null,null,null,null,null,null,{"$f":"IFERROR(VLOOKUP($A610,Inputs!$B$68:$AK$129,MATCH($B$7,Inputs!$B$68:$AK$68,0),FALSE),\"Blank\")","v":"125W Mercury Vapour"}]
[null,{"$f":"Inputs!$R$68","v":"Lamp UNIT price Annualised Cost"},{"$f":"Inputs!$P$68","v":"Lamp Maintenance cycle"},null,{"$f":"IF($B610=\"Blank\",0,VLOOKUP($B610,Inputs!$C$68:$AK$129,MATCH($B611,Inputs!$C$68:$AK$68,0),FALSE))","v":0.54524955500000005},{"$f":"IF($B610=\"Blank\",0,VLOOKUP($B610,Inputs!$C$68:$AK$129,MATCH($B611,Inputs!$C$68:$AK$68,0),FALSE))","v":0.54524955500000005},null,null,{"$f":"B611","v":"Lamp UNIT price Annualised Cost"},{"$f":"IF(E611=\"NA\",\"\",E611/J$2*100)","v":0.14938343972602741},{"$f":"IF(F611=\"NA\",\"\",F611/K$2*100)","v":0.14938343972602741}]
[null,{"$f":"Inputs!$K$68","v":"PE Cell UNIT price Annualised Cost"},{"$f":"Inputs!$I$68","v":"PE Cell Maintenance Cycle"},null,{"$f":"IF($B610=\"Blank\",0,VLOOKUP($B610,Inputs!$C$68:$AK$129,MATCH($B612,Inputs!$C$68:$AK$68,0),FALSE))","v":1.7788104971099301},{"$f":"IF($B610=\"Blank\",0,VLOOKUP($B610,Inputs!$C$68:$AK$129,MATCH($B612,Inputs!$C$68:$AK$68,0),FALSE))","v":1.7788104971099301},null,null,"PE Cell UNIT price Annualised Cost",0.48734534167395344,0.48734534167395344]
[null,"Corp capex annuity per light",null,null,{"$f":"IF($B610=\"Blank\",0,'Corp Capex Annuity calcs'!F$109)","v":14.826870317655803},{"$f":"IF($B610=\"Blank\",0,'Corp Capex Annuity calcs'!G$109)","v":14.708895619806404},null,null,"Corp capex annuity per light",4.0621562514125493,4.0298344163853157]
[null,{"$f":"Inputs!$T$68","v":"Lamp Service costs Annualised"},null,null,{"$f":"IF($B610=\"Blank\",0,VLOOKUP($B610,Inputs!$C$68:$AK$129,MATCH($B614,Inputs!$C$68:$AK$68,0),FALSE))","v":38.134353874352563},{"$f":"IF($B610=\"Blank\",0,VLOOKUP($B610,Inputs!$C$68:$AK$129,MATCH($B614,Inputs!$C$68:$AK$68,0),FALSE))","v":38.134353874352563},null,null,"Lamp Service costs Annualised",10.447768184754127,10.447768184754127]
[null,{"$f":"Inputs!$M$68","v":"PE Cell Service costs Annualised"},null,null,{"$f":"IF($B610=\"Blank\",0,VLOOKUP($B610,Inputs!$C$68:$AK$129,MATCH($B615,Inputs!$C$68:$AK$68,0),FALSE))","v":0},{"$f":"IF($B610=\"Blank\",0,VLOOKUP($B610,Inputs!$C$68:$AK$129,MATCH($B615,Inputs!$C$68:$AK$68,0),FALSE))","v":0},null,null,"PE Cell Service costs Annualised",0,0]
[null,"Indirect Opex",null,null,{"$f":"IF($B610=\"Blank\",0,IF($B$8=\"Private Contract Lighting\",'Opex Weighting'!D$113,'Opex Weighting'!D$111))","v":24.081834785768372},{"$f":"IF($B610=\"Blank\",0,IF($B$8=\"Private Contract Lighting\",'Opex Weighting'!E$113,'Opex Weighting'!E$111))","v":25.134626053693843},null,null,"Indirect Opex",6.5977629550050336,6.8861989188202317]
[null,"Indirect Capex",null,null,{"$f":"'Capex Weighting'!D$115","v":0},{"$f":"'Capex Weighting'!E$114","v":0},null,null,"Indirect Capex",0,0]
[null,"Overhead Costs per light",null,null,{"$f":"IF($B610=\"Blank\",0,IF($B$8=\"Private Contract Lighting\",'Building Block'!C$49,'Building Block'!C$48))","v":27.508265089316332},{"$f":"IF($B610=\"Blank\",0,IF($B$8=\"Private Contract Lighting\",'Building Block'!D$49,'Building Block'!D$48))","v":27.450442561572103},null,null,"Overhead Costs per light",7.5365109833743382,7.5206691949512612]
[null,{"$f":"Inputs!$AH$68","v":"Bracket UNIT price"},0,null,{"$f":"IF($B610=\"Blank\",0,OFFSET('CAPEX Annuity calcs'!$B$9,MATCH($B610,'CAPEX Annuity calcs'!$B$9:$B$500,0)+$C619,E$6))","v":8.642310866877267},{"$f":"IF($B610=\"Blank\",0,OFFSET('CAPEX Annuity calcs'!$B$9,MATCH($B610,'CAPEX Annuity calcs'!$B$9:$B$500,0)+$C619,F$6))","v":8.642310866877267},null,null,"Bracket UNIT price",2.3677564018841828,2.3677564018841828]
[null,{"$f":"Inputs!$Y$68","v":"CAPEX Installation costs"},{"$f":"C619+1","v":1},null,{"$f":"IF($B610=\"Blank\",0,OFFSET('CAPEX Annuity calcs'!$B$9,MATCH($B610,'CAPEX Annuity calcs'!$B$9:$B$500,0)+$C620,E$6))","v":0},{"$f":"IF($B610=\"Blank\",0,OFFSET('CAPEX Annuity calcs'!$B$9,MATCH($B610,'CAPEX Annuity calcs'!$B$9:$B$500,0)+$C620,F$6))","v":0},null,null,"CAPEX Installation costs",0,0]
[null,{"$f":"Inputs!$X$68","v":"Luminaire UNIT price"},{"$f":"C620+1","v":2},null,{"$f":"IF($B610=\"Blank\",0,OFFSET('CAPEX Annuity calcs'!$B$9,MATCH($B610,'CAPEX Annuity calcs'!$B$9:$B$500,0)+$C621,E$6))","v":11.053952400012832},{"$f":"IF($B610=\"Blank\",0,OFFSET('CAPEX Annuity calcs'!$B$9,MATCH($B610,'CAPEX Annuity calcs'!$B$9:$B$500,0)+$C621,F$6))","v":11.053952400012832},null,null,"Luminaire UNIT price",3.0284801095925569,3.0284801095925569]
[null,{"$f":"Inputs!$Y$68","v":"CAPEX Installation costs"},3,null,{"$f":"IF($B610=\"Blank\",0,OFFSET('CAPEX Annuity calcs'!$B$9,MATCH($B610,'CAPEX Annuity calcs'!$B$9:$B$500,0)+$C622,E$6))","v":37.089616333754066},{"$f":"IF($B610=\"Blank\",0,OFFSET('CAPEX Annuity calcs'!$B$9,MATCH($B610,'CAPEX Annuity calcs'!$B$9:$B$500,0)+$C622,F$6))","v":37.089616333754066},null,null,"CAPEX Installation costs",10.161538721576456,10.161538721576456]
[null,null,null,null,{"$f":"SUM(E611:E622)","v":163.66126371984717},{"$f":"SUM(F611:F622)","v":164.538257762179},null,null,null,{"$f":"ROUND(E623/J$2*100,3)","v":44.838999999999999},{"$f":"ROUND(F623/K$2*100,3)","v":45.079000000000001}]
[]
[{"$f":"A610+1","v":42},{"$f":"IFERROR(VLOOKUP($A625,Inputs!$B$68:$AK$129,MATCH($B$7,Inputs!$B$68:$AK$68,0),FALSE),\"Blank\")","v":"250W Mercury Vapour"},null,null,null,null,null,null,{"$f":"IFERROR(VLOOKUP($A625,Inputs!$B$68:$AK$129,MATCH($B$7,Inputs!$B$68:$AK$68,0),FALSE),\"Blank\")","v":"250W Mercury Vapour"}]
[null,{"$f":"Inputs!$R$68","v":"Lamp UNIT price Annualised Cost"},{"$f":"Inputs!$P$68","v":"Lamp Maintenance cycle"},null,{"$f":"IF($B625=\"Blank\",0,VLOOKUP($B625,Inputs!$C$68:$AK$129,MATCH($B626,Inputs!$C$68:$AK$68,0),FALSE))","v":0.54524955500000005},{"$f":"IF($B625=\"Blank\",0,VLOOKUP($B625,Inputs!$C$68:$AK$129,MATCH($B626,Inputs!$C$68:$AK$68,0),FALSE))","v":0.54524955500000005},null,null,{"$f":"B626","v":"Lamp UNIT price Annualised Cost"},{"$f":"IF(E626=\"NA\",\"\",E626/J$2*100)","v":0.14938343972602741},{"$f":"IF(F626=\"NA\",\"\",F626/K$2*100)","v":0.14938343972602741}]
[null,{"$f":"Inputs!$K$68","v":"PE Cell UNIT price Annualised Cost"},{"$f":"Inputs!$I$68","v":"PE Cell Maintenance Cycle"},null,{"$f":"IF($B625=\"Blank\",0,VLOOKUP($B625,Inputs!$C$68:$AK$129,MATCH($B627,Inputs!$C$68:$AK$68,0),FALSE))","v":1.7788104971099301},{"$f":"IF($B625=\"Blank\",0,VLOOKUP($B625,Inputs!$C$68:$AK$129,MATCH($B627,Inputs!$C$68:$AK$68,0),FALSE))","v":1.7788104971099301},null,null,"PE Cell UNIT price Annualised Cost",0.48734534167395344,0.48734534167395344]
[null,"Corp capex annuity per light",null,null,{"$f":"IF($B625=\"Blank\",0,'Corp Capex Annuity calcs'!F$109)","v":14.826870317655803},{"$f":"IF($B625=\"Blank\",0,'Corp Capex Annuity calcs'!G$109)","v":14.708895619806404},null,null,"Corp capex annuity per light",4.0621562514125493,4.0298344163853157]
[null,{"$f":"Inputs!$T$68","v":"Lamp Service costs Annualised"},null,null,{"$f":"IF($B625=\"Blank\",0,VLOOKUP($B625,Inputs!$C$68:$AK$129,MATCH($B629,Inputs!$C$68:$AK$68,0),FALSE))","v":38.134353874352563},{"$f":"IF($B625=\"Blank\",0,VLOOKUP($B625,Inputs!$C$68:$AK$129,MATCH($B629,Inputs!$C$68:$AK$68,0),FALSE))","v":38.134353874352563},null,null,"Lamp Service costs Annualised",10.447768184754127,10.447768184754127]
[null,{"$f":"Inputs!$M$68","v":"PE Cell Service costs Annualised"},null,null,{"$f":"IF($B625=\"Blank\",0,VLOOKUP($B625,Inputs!$C$68:$AK$129,MATCH($B630,Inputs!$C$68:$AK$68,0),FALSE))","v":0},{"$f":"IF($B625=\"Blank\",0,VLOOKUP($B625,Inputs!$C$68:$AK$129,MATCH($B630,Inputs!$C$68:$AK$68,0),FALSE))","v":0},null,null,"PE Cell Service costs Annualised",0,0]
[null,"Indirect Opex",null,null,{"$f":"IF($B625=\"Blank\",0,IF($B$8=\"Private Contract Lighting\",'Opex Weighting'!D$113,'Opex Weighting'!D$111))","v":24.081834785768372},{"$f":"IF($B625=\"Blank\",0,IF($B$8=\"Private Contract Lighting\",'Opex Weighting'!E$113,'Opex Weighting'!E$111))","v":25.134626053693843},null,null,"Indirect Opex",6.5977629550050336,6.8861989188202317]
[null,"Indirect Capex",null,null,{"$f":"'Capex Weighting'!D$115","v":0},{"$f":"'Capex Weighting'!E$114","v":0},null,null,"Indirect Capex",0,0]
[null,"Overhead Costs per light",null,null,{"$f":"IF($B625=\"Blank\",0,IF($B$8=\"Private Contract Lighting\",'Building Block'!C$49,'Building Block'!C$48))","v":27.508265089316332},{"$f":"IF($B625=\"Blank\",0,IF($B$8=\"Private Contract Lighting\",'Building Block'!D$49,'Building Block'!D$48))","v":27.450442561572103},null,null,"Overhead Costs per light",7.5365109833743382,7.5206691949512612]
[null,{"$f":"Inputs!$AH$68","v":"Bracket UNIT price"},0,null,{"$f":"IF($B625=\"Blank\",0,OFFSET('CAPEX Annuity calcs'!$B$9,MATCH($B625,'CAPEX Annuity calcs'!$B$9:$B$500,0)+$C634,E$6))","v":8.642310866877267},{"$f":"IF($B625=\"Blank\",0,OFFSET('CAPEX Annuity calcs'!$B$9,MATCH($B625,'CAPEX Annuity calcs'!$B$9:$B$500,0)+$C634,F$6))","v":8.642310866877267},null,null,"Bracket UNIT price",2.3677564018841828,2.3677564018841828]
[null,{"$f":"Inputs!$Y$68","v":"CAPEX Installation costs"},{"$f":"C634+1","v":1},null,{"$f":"IF($B625=\"Blank\",0,OFFSET('CAPEX Annuity calcs'!$B$9,MATCH($B625,'CAPEX Annuity calcs'!$B$9:$B$500,0)+$C635,E$6))","v":0},{"$f":"IF($B625=\"Blank\",0,OFFSET('CAPEX Annuity calcs'!$B$9,MATCH($B625,'CAPEX Annuity calcs'!$B$9:$B$500,0)+$C635,F$6))","v":0},null,null,"CAPEX Installation costs",0,0]
[null,{"$f":"Inputs!$X$68","v":"Luminaire UNIT price"},{"$f":"C635+1","v":2},null,{"$f":"IF($B625=\"Blank\",0,OFFSET('CAPEX Annuity calcs'!$B$9,MATCH($B625,'CAPEX Annuity calcs'!$B$9:$B$500,0)+$C636,E$6))","v":12.767988878044445},{"$f":"IF($B625=\"Blank\",0,OFFSET('CAPEX Annuity calcs'!$B$9,MATCH($B625,'CAPEX Annuity calcs'!$B$9:$B$500,0)+$C636,F$6))","v":12.767988878044445},null,null,"Luminaire UNIT price",3.4980791446697106,3.4980791446697106]
[null,{"$f":"Inputs!$Y$68","v":"CAPEX Installation costs"},3,null,{"$f":"IF($B625=\"Blank\",0,OFFSET('CAPEX Annuity calcs'!$B$9,MATCH($B625,'CAPEX Annuity calcs'!$B$9:$B$500,0)+$C637,E$6))","v":37.089616333754066},{"$f":"IF($B625=\"Blank\",0,OFFSET('CAPEX Annuity calcs'!$B$9,MATCH($B625,'CAPEX Annuity calcs'!$B$9:$B$500,0)+$C637,F$6))","v":37.089616333754066},null,null,"CAPEX Installation costs",10.161538721576456,10.161538721576456]
[null,null,null,null,{"$f":"SUM(E626:E637)","v":165.37530019787877},{"$f":"SUM(F626:F637)","v":166.25229424021063},null,null,null,{"$f":"ROUND(E638/J$2*100,3)","v":45.308},{"$f":"ROUND(F638/K$2*100,3)","v":45.548999999999999}]
[]
[{"$f":"A625+1","v":43},{"$f":"IFERROR(VLOOKUP($A640,Inputs!$B$68:$AK$129,MATCH($B$7,Inputs!$B$68:$AK$68,0),FALSE),\"Blank\")","v":"400W Mercury Vapour"},null,null,null,null,null,null,{"$f":"IFERROR(VLOOKUP($A640,Inputs!$B$68:$AK$129,MATCH($B$7,Inputs!$B$68:$AK$68,0),FALSE),\"Blank\")","v":"400W Mercury Vapour"}]
[null,{"$f":"Inputs!$R$68","v":"Lamp UNIT price Annualised Cost"},{"$f":"Inputs!$P$68","v":"Lamp Maintenance cycle"},null,{"$f":"IF($B640=\"Blank\",0,VLOOKUP($B640,Inputs!$C$68:$AK$129,MATCH($B641,Inputs!$C$68:$AK$68,0),FALSE))","v":1.0686891278000004},{"$f":"IF($B640=\"Blank\",0,VLOOKUP($B640,Inputs!$C$68:$AK$129,MATCH($B641,Inputs!$C$68:$AK$68,0),FALSE))","v":1.0686891278000004},null,null,{"$f":"B641","v":"Lamp UNIT price Annualised Cost"},{"$f":"IF(E641=\"NA\",\"\",E641/J$2*100)","v":0.29279154186301382},{"$f":"IF(F641=\"NA\",\"\",F641/K$2*100)","v":0.29279154186301382}]
[null,{"$f":"Inputs!$K$68","v":"PE Cell UNIT price Annualised Cost"},{"$f":"Inputs!$I$68","v":"PE Cell Maintenance Cycle"},null,{"$f":"IF($B640=\"Blank\",0,VLOOKUP($B640,Inputs!$C$68:$AK$129,MATCH($B642,Inputs!$C$68:$AK$68,0),FALSE))","v":1.7788104971099301},{"$f":"IF($B640=\"Blank\",0,VLOOKUP($B640,Inputs!$C$68:$AK$129,MATCH($B642,Inputs!$C$68:$AK$68,0),FALSE))","v":1.7788104971099301},null,null,"PE Cell UNIT price Annualised Cost",0.48734534167395344,0.48734534167395344]
[null,"Corp capex annuity per light",null,null,{"$f":"IF($B640=\"Blank\",0,'Corp Capex Annuity calcs'!F$109)","v":14.826870317655803},{"$f":"IF($B640=\"Blank\",0,'Corp Capex Annuity calcs'!G$109)","v":14.708895619806404},null,null,"Corp capex annuity per light",4.0621562514125493,4.0298344163853157]
[null,{"$f":"Inputs!$T$68","v":"Lamp Service costs Annualised"},null,null,{"$f":"IF($B640=\"Blank\",0,VLOOKUP($B640,Inputs!$C$68:$AK$129,MATCH($B644,Inputs!$C$68:$AK$68,0),FALSE))","v":38.134353874352563},{"$f":"IF($B640=\"Blank\",0,VLOOKUP($B640,Inputs!$C$68:$AK$129,MATCH($B644,Inputs!$C$68:$AK$68,0),FALSE))","v":38.134353874352563},null,null,"Lamp Service costs Annualised",10.447768184754127,10.447768184754127]
[null,{"$f":"Inputs!$M$68","v":"PE Cell Service costs Annualised"},null,null,{"$f":"IF($B640=\"Blank\",0,VLOOKUP($B640,Inputs!$C$68:$AK$129,MATCH($B645,Inputs!$C$68:$AK$68,0),FALSE))","v":0},{"$f":"IF($B640=\"Blank\",0,VLOOKUP($B640,Inputs!$C$68:$AK$129,MATCH($B645,Inputs!$C$68:$AK$68,0),FALSE))","v":0},null,null,"PE Cell Service costs Annualised",0,0]
[null,"Indirect Opex",null,null,{"$f":"IF($B640=\"Blank\",0,IF($B$8=\"Private Contract Lighting\",'Opex Weighting'!D$113,'Opex Weighting'!D$111))","v":24.081834785768372},{"$f":"IF($B640=\"Blank\",0,IF($B$8=\"Private Contract Lighting\",'Opex Weighting'!E$113,'Opex Weighting'!E$111))","v":25.134626053693843},null,null,"Indirect Opex",6.5977629550050336,6.8861989188202317]
[null,"Indirect Capex",null,null,{"$f":"'Capex Weighting'!D$115","v":0},{"$f":"'Capex Weighting'!E$114","v":0},null,null,"Indirect Capex",0,0]
[null,"Overhead Costs per light",null,null,{"$f":"IF($B640=\"Blank\",0,IF($B$8=\"Private Contract Lighting\",'Building Block'!C$49,'Building Block'!C$48))","v":27.508265089316332},{"$f":"IF($B640=\"Blank\",0,IF($B$8=\"Private Contract Lighting\",'Building Block'!D$49,'Building Block'!D$48))","v":27.450442561572103},null,null,"Overhead Costs per light",7.5365109833743382,7.5206691949512612]
[null,{"$f":"Inputs!$AH$68","v":"Bracket UNIT price"},0,null,{"$f":"IF($B640=\"Blank\",0,OFFSET('CAPEX Annuity calcs'!$B$9,MATCH($B640,'CAPEX Annuity calcs'!$B$9:$B$500,0)+$C649,E$6))","v":10.177912747319557},{"$f":"IF($B640=\"Blank\",0,OFFSET('CAPEX Annuity calcs'!$B$9,MATCH($B640,'CAPEX Annuity calcs'!$B$9:$B$500,0)+$C649,F$6))","v":10.177912747319557},null,null,"Bracket UNIT price",2.7884692458409743,2.7884692458409743]
[null,{"$f":"Inputs!$Y$68","v":"CAPEX Installation costs"},{"$f":"C649+1","v":1},null,{"$f":"IF($B640=\"Blank\",0,OFFSET('CAPEX Annuity calcs'!$B$9,MATCH($B640,'CAPEX Annuity calcs'!$B$9:$B$500,0)+$C650,E$6))","v":0},{"$f":"IF($B640=\"Blank\",0,OFFSET('CAPEX Annuity calcs'!$B$9,MATCH($B640,'CAPEX Annuity calcs'!$B$9:$B$500,0)+$C650,F$6))","v":0},null,null,"CAPEX Installation costs",0,0]
[null,{"$f":"Inputs!$X$68","v":"Luminaire UNIT price"},{"$f":"C650+1","v":2},null,{"$f":"IF($B640=\"Blank\",0,OFFSET('CAPEX Annuity calcs'!$B$9,MATCH($B640,'CAPEX Annuity calcs'!$B$9:$B$500,0)+$C651,E$6))","v":18.408480422638178},{"$f":"IF($B640=\"Blank\",0,OFFSET('CAPEX Annuity calcs'!$B$9,MATCH($B640,'CAPEX Annuity calcs'!$B$9:$B$500,0)+$C651,F$6))","v":18.408480422638178},null,null,"Luminaire UNIT price",5.0434192938734732,5.0434192938734732]
[null,{"$f":"Inputs!$Y$68","v":"CAPEX Installation costs"},3,null,{"$f":"IF($B640=\"Blank\",0,OFFSET('CAPEX Annuity calcs'!$B$9,MATCH($B640,'CAPEX Annuity calcs'!$B$9:$B$500,0)+$C652,E$6))","v":37.089616333754066},{"$f":"IF($B640=\"Blank\",0,OFFSET('CAPEX Annuity calcs'!$B$9,MATCH($B640,'CAPEX Annuity calcs'!$B$9:$B$500,0)+$C652,F$6))","v":37.089616333754066},null,null,"CAPEX Installation costs",10.161538721576456,10.161538721576456]
[null,null,null,null,{"$f":"SUM(E641:E652)","v":173.0748331957148},{"$f":"SUM(F641:F652)","v":173.95182723804663},null,null,null,{"$f":"ROUND(E653/J$2*100,3)","v":47.417999999999999},{"$f":"ROUND(F653/K$2*100,3)","v":47.658000000000001}]
[]
[{"$f":"A640+1","v":44},{"$f":"IFERROR(VLOOKUP($A655,Inputs!$B$68:$AK$129,MATCH($B$7,Inputs!$B$68:$AK$68,0),FALSE),\"Blank\")","v":"50W Mercury Vapour"},null,null,null,null,null,null,{"$f":"IFERROR(VLOOKUP($A655,Inputs!$B$68:$AK$129,MATCH($B$7,Inputs!$B$68:$AK$68,0),FALSE),\"Blank\")","v":"50W Mercury Vapour"}]
[null,{"$f":"Inputs!$R$68","v":"Lamp UNIT price Annualised Cost"},{"$f":"Inputs!$P$68","v":"Lamp Maintenance cycle"},null,{"$f":"IF($B655=\"Blank\",0,VLOOKUP($B655,Inputs!$C$68:$AK$129,MATCH($B656,Inputs!$C$68:$AK$68,0),FALSE))","v":0.64212375646340014},{"$f":"IF($B655=\"Blank\",0,VLOOKUP($B655,Inputs!$C$68:$AK$129,MATCH($B656,Inputs!$C$68:$AK$68,0),FALSE))","v":0.64212375646340014},null,null,{"$f":"B656","v":"Lamp UNIT price Annualised Cost"},{"$f":"IF(E656=\"NA\",\"\",E656/J$2*100)","v":0.17592431683928772},{"$f":"IF(F656=\"NA\",\"\",F656/K$2*100)","v":0.17592431683928772}]
[null,{"$f":"Inputs!$K$68","v":"PE Cell UNIT price Annualised Cost"},{"$f":"Inputs!$I$68","v":"PE Cell Maintenance Cycle"},null,{"$f":"IF($B655=\"Blank\",0,VLOOKUP($B655,Inputs!$C$68:$AK$129,MATCH($B657,Inputs!$C$68:$AK$68,0),FALSE))","v":0.6107414998224272},{"$f":"IF($B655=\"Blank\",0,VLOOKUP($B655,Inputs!$C$68:$AK$129,MATCH($B657,Inputs!$C$68:$AK$68,0),FALSE))","v":0.6107414998224272},null,null,"PE Cell UNIT price Annualised Cost",0.16732643830751431,0.16732643830751431]
[null,"Corp capex annuity per light",null,null,{"$f":"IF($B655=\"Blank\",0,'Corp Capex Annuity calcs'!F$109)","v":14.826870317655803},{"$f":"IF($B655=\"Blank\",0,'Corp Capex Annuity calcs'!G$109)","v":14.708895619806404},null,null,"Corp capex annuity per light",4.0621562514125493,4.0298344163853157]
[null,{"$f":"Inputs!$T$68","v":"Lamp Service costs Annualised"},null,null,{"$f":"IF($B655=\"Blank\",0,VLOOKUP($B655,Inputs!$C$68:$AK$129,MATCH($B659,Inputs!$C$68:$AK$68,0),FALSE))","v":26.347371767734501},{"$f":"IF($B655=\"Blank\",0,VLOOKUP($B655,Inputs!$C$68:$AK$129,MATCH($B659,Inputs!$C$68:$AK$68,0),FALSE))","v":26.347371767734501},null,null,"Lamp Service costs Annualised",7.2184580185573974,7.2184580185573974]
[null,{"$f":"Inputs!$M$68","v":"PE Cell Service costs Annualised"},null,null,{"$f":"IF($B655=\"Blank\",0,VLOOKUP($B655,Inputs!$C$68:$AK$129,MATCH($B660,Inputs!$C$68:$AK$68,0),FALSE))","v":0},{"$f":"IF($B655=\"Blank\",0,VLOOKUP($B655,Inputs!$C$68:$AK$129,MATCH($B660,Inputs!$C$68:$AK$68,0),FALSE))","v":0},null,null,"PE Cell Service costs Annualised",0,0]
[null,"Indirect Opex",null,null,{"$f":"IF($B655=\"Blank\",0,IF($B$8=\"Private Contract Lighting\",'Opex Weighting'!D$113,'Opex Weighting'!D$111))","v":24.081834785768372},{"$f":"IF($B655=\"Blank\",0,IF($B$8=\"Private Contract Lighting\",'Opex Weighting'!E$113,'Opex Weighting'!E$111))","v":25.134626053693843},null,null,"Indirect Opex",6.5977629550050336,6.8861989188202317]
[null,"Indirect Capex",null,null,{"$f":"'Capex Weighting'!D$115","v":0},{"$f":"'Capex Weighting'!E$114","v":0},null,null,"Indirect Capex",0,0]
[null,"Overhead Costs per light",null,null,{"$f":"IF($B655=\"Blank\",0,IF($B$8=\"Private Contract Lighting\",'Building Block'!C$49,'Building Block'!C$48))","v":27.508265089316332},{"$f":"IF($B655=\"Blank\",0,IF($B$8=\"Private Contract Lighting\",'Building Block'!D$49,'Building Block'!D$48))","v":27.450442561572103},null,null,"Overhead Costs per light",7.5365109833743382,7.5206691949512612]
[null,{"$f":"Inputs!$AH$68","v":"Bracket UNIT price"},0,null,{"$f":"IF($B655=\"Blank\",0,OFFSET('CAPEX Annuity calcs'!$B$9,MATCH($B655,'CAPEX Annuity calcs'!$B$9:$B$500,0)+$C664,E$6))","v":3.7541481445031155},{"$f":"IF($B655=\"Blank\",0,OFFSET('CAPEX Annuity calcs'!$B$9,MATCH($B655,'CAPEX Annuity calcs'!$B$9:$B$500,0)+$C664,F$6))","v":3.7541481445031155},null,null,"Bracket UNIT price",1.0285337382200317,1.0285337382200317]
[null,{"$f":"Inputs!$Y$68","v":"CAPEX Installation costs"},{"$f":"C664+1","v":1},null,{"$f":"IF($B655=\"Blank\",0,OFFSET('CAPEX Annuity calcs'!$B$9,MATCH($B655,'CAPEX Annuity calcs'!$B$9:$B$500,0)+$C665,E$6))","v":0},{"$f":"IF($B655=\"Blank\",0,OFFSET('CAPEX Annuity calcs'!$B$9,MATCH($B655,'CAPEX Annuity calcs'!$B$9:$B$500,0)+$C665,F$6))","v":0},null,null,"CAPEX Installation costs",0,0]
[null,{"$f":"Inputs!$X$68","v":"Luminaire UNIT price"},{"$f":"C665+1","v":2},null,{"$f":"IF($B655=\"Blank\",0,OFFSET('CAPEX Annuity calcs'!$B$9,MATCH($B655,'CAPEX Annuity calcs'!$B$9:$B$500,0)+$C666,E$6))","v":6.4075115622036574},{"$f":"IF($B655=\"Blank\",0,OFFSET('CAPEX Annuity calcs'!$B$9,MATCH($B655,'CAPEX Annuity calcs'!$B$9:$B$500,0)+$C666,F$6))","v":6.4075115622036574},null,null,"Luminaire UNIT price",1.7554826197818241,1.7554826197818241]
[null,{"$f":"Inputs!$Y$68","v":"CAPEX Installation costs"},3,null,{"$f":"IF($B655=\"Blank\",0,OFFSET('CAPEX Annuity calcs'!$B$9,MATCH($B655,'CAPEX Annuity calcs'!$B$9:$B$500,0)+$C667,E$6))","v":17.165250199817599},{"$f":"IF($B655=\"Blank\",0,OFFSET('CAPEX Annuity calcs'!$B$9,MATCH($B655,'CAPEX Annuity calcs'!$B$9:$B$500,0)+$C667,F$6))","v":17.165250199817599},null,null,"CAPEX Installation costs",4.7028082739226296,4.7028082739226296]
[null,null,null,null,{"$f":"SUM(E656:E667)","v":121.3441171232852},{"$f":"SUM(F656:F667)","v":122.22111116561703},null,null,null,{"$f":"ROUND(E668/J$2*100,3)","v":33.244999999999997},{"$f":"ROUND(F668/K$2*100,3)","v":33.484999999999999}]
[]
[{"$f":"A655+1","v":45},{"$f":"IFERROR(VLOOKUP($A670,Inputs!$B$68:$AK$129,MATCH($B$7,Inputs!$B$68:$AK$68,0),FALSE),\"Blank\")","v":"80W Mercury Vapour Art decorative"},null,null,null,null,null,null,{"$f":"IFERROR(VLOOKUP($A670,Inputs!$B$68:$AK$129,MATCH($B$7,Inputs!$B$68:$AK$68,0),FALSE),\"Blank\")","v":"80W Mercury Vapour Art decorative"}]
[null,{"$f":"Inputs!$R$68","v":"Lamp UNIT price Annualised Cost"},{"$f":"Inputs!$P$68","v":"Lamp Maintenance cycle"},null,{"$f":"IF($B670=\"Blank\",0,VLOOKUP($B670,Inputs!$C$68:$AK$129,MATCH($B671,Inputs!$C$68:$AK$68,0),FALSE))","v":0.53408829660915003},{"$f":"IF($B670=\"Blank\",0,VLOOKUP($B670,Inputs!$C$68:$AK$129,MATCH($B671,Inputs!$C$68:$AK$68,0),FALSE))","v":0.53408829660915003},null,null,{"$f":"B671","v":"Lamp UNIT price Annualised Cost"},{"$f":"IF(E671=\"NA\",\"\",E671/J$2*100)","v":0.14632556071483563},{"$f":"IF(F671=\"NA\",\"\",F671/K$2*100)","v":0.14632556071483563}]
[null,{"$f":"Inputs!$K$68","v":"PE Cell UNIT price Annualised Cost"},{"$f":"Inputs!$I$68","v":"PE Cell Maintenance Cycle"},null,{"$f":"IF($B670=\"Blank\",0,VLOOKUP($B670,Inputs!$C$68:$AK$129,MATCH($B672,Inputs!$C$68:$AK$68,0),FALSE))","v":0.6107414998224272},{"$f":"IF($B670=\"Blank\",0,VLOOKUP($B670,Inputs!$C$68:$AK$129,MATCH($B672,Inputs!$C$68:$AK$68,0),FALSE))","v":0.6107414998224272},null,null,"PE Cell UNIT price Annualised Cost",0.16732643830751431,0.16732643830751431]
[null,"Corp capex annuity per light",null,null,{"$f":"IF($B670=\"Blank\",0,'Corp Capex Annuity calcs'!F$109)","v":14.826870317655803},{"$f":"IF($B670=\"Blank\",0,'Corp Capex Annuity calcs'!G$109)","v":14.708895619806404},null,null,"Corp capex annuity per light",4.0621562514125493,4.0298344163853157]
[null,{"$f":"Inputs!$T$68","v":"Lamp Service costs Annualised"},null,null,{"$f":"IF($B670=\"Blank\",0,VLOOKUP($B670,Inputs!$C$68:$AK$129,MATCH($B674,Inputs!$C$68:$AK$68,0),FALSE))","v":26.347371767734501},{"$f":"IF($B670=\"Blank\",0,VLOOKUP($B670,Inputs!$C$68:$AK$129,MATCH($B674,Inputs!$C$68:$AK$68,0),FALSE))","v":26.347371767734501},null,null,"Lamp Service costs Annualised",7.2184580185573974,7.2184580185573974]
[null,{"$f":"Inputs!$M$68","v":"PE Cell Service costs Annualised"},null,null,{"$f":"IF($B670=\"Blank\",0,VLOOKUP($B670,Inputs!$C$68:$AK$129,MATCH($B675,Inputs!$C$68:$AK$68,0),FALSE))","v":0},{"$f":"IF($B670=\"Blank\",0,VLOOKUP($B670,Inputs!$C$68:$AK$129,MATCH($B675,Inputs!$C$68:$AK$68,0),FALSE))","v":0},null,null,"PE Cell Service costs Annualised",0,0]
[null,"Indirect Opex",null,null,{"$f":"IF($B670=\"Blank\",0,IF($B$8=\"Private Contract Lighting\",'Opex Weighting'!D$113,'Opex Weighting'!D$111))","v":24.081834785768372},{"$f":"IF($B670=\"Blank\",0,IF($B$8=\"Private Contract Lighting\",'Opex Weighting'!E$113,'Opex Weighting'!E$111))","v":25.134626053693843},null,null,"Indirect Opex",6.5977629550050336,6.8861989188202317]
[null,"Indirect Capex",null,null,{"$f":"'Capex Weighting'!D$115","v":0},{"$f":"'Capex Weighting'!E$114","v":0},null,null,"Indirect Capex",0,0]
[null,"Overhead Costs per light",null,null,{"$f":"IF($B670=\"Blank\",0,IF($B$8=\"Private Contract Lighting\",'Building Block'!C$49,'Building Block'!C$48))","v":27.508265089316332},{"$f":"IF($B670=\"Blank\",0,IF($B$8=\"Private Contract Lighting\",'Building Block'!D$49,'Building Block'!D$48))","v":27.450442561572103},null,null,"Overhead Costs per light",7.5365109833743382,7.5206691949512612]
[null,{"$f":"Inputs!$AH$68","v":"Bracket UNIT price"},0,null,{"$f":"IF($B670=\"Blank\",0,OFFSET('CAPEX Annuity calcs'!$B$9,MATCH($B670,'CAPEX Annuity calcs'!$B$9:$B$500,0)+$C679,E$6))","v":3.9031523192396289},{"$f":"IF($B670=\"Blank\",0,OFFSET('CAPEX Annuity calcs'!$B$9,MATCH($B670,'CAPEX Annuity calcs'!$B$9:$B$500,0)+$C679,F$6))","v":3.9031523192396289},null,null,"Bracket UNIT price",1.0693567997916791,1.0693567997916791]
[null,{"$f":"Inputs!$Y$68","v":"CAPEX Installation costs"},{"$f":"C679+1","v":1},null,{"$f":"IF($B670=\"Blank\",0,OFFSET('CAPEX Annuity calcs'!$B$9,MATCH($B670,'CAPEX Annuity calcs'!$B$9:$B$500,0)+$C680,E$6))","v":0},{"$f":"IF($B670=\"Blank\",0,OFFSET('CAPEX Annuity calcs'!$B$9,MATCH($B670,'CAPEX Annuity calcs'!$B$9:$B$500,0)+$C680,F$6))","v":0},null,null,"CAPEX Installation costs",0,0]
[null,{"$f":"Inputs!$X$68","v":"Luminaire UNIT price"},{"$f":"C680+1","v":2},null,{"$f":"IF($B670=\"Blank\",0,OFFSET('CAPEX Annuity calcs'!$B$9,MATCH($B670,'CAPEX Annuity calcs'!$B$9:$B$500,0)+$C681,E$6))","v":67.548413814987171},{"$f":"IF($B670=\"Blank\",0,OFFSET('CAPEX Annuity calcs'!$B$9,MATCH($B670,'CAPEX Annuity calcs'!$B$9:$B$500,0)+$C681,F$6))","v":67.548413814987171},null,null,"Luminaire UNIT price",18.506414743832103,18.506414743832103]
[null,{"$f":"Inputs!$Y$68","v":"CAPEX Installation costs"},3,null,{"$f":"IF($B670=\"Blank\",0,OFFSET('CAPEX Annuity calcs'!$B$9,MATCH($B670,'CAPEX Annuity calcs'!$B$9:$B$500,0)+$C682,E$6))","v":17.165250199817599},{"$f":"IF($B670=\"Blank\",0,OFFSET('CAPEX Annuity calcs'!$B$9,MATCH($B670,'CAPEX Annuity calcs'!$B$9:$B$500,0)+$C682,F$6))","v":17.165250199817599},null,null,"CAPEX Installation costs",4.7028082739226296,4.7028082739226296]
[null,null,null,null,{"$f":"SUM(E671:E682)","v":182.52598809095096},{"$f":"SUM(F671:F682)","v":183.40298213328282},null,null,null,{"$f":"ROUND(E683/J$2*100,3)","v":50.006999999999998},{"$f":"ROUND(F683/K$2*100,3)","v":50.247}]
[]
[{"$f":"A670+1","v":46},{"$f":"IFERROR(VLOOKUP($A685,Inputs!$B$68:$AK$129,MATCH($B$7,Inputs!$B$68:$AK$68,0),FALSE),\"Blank\")","v":"80W Mercury Vapour"},null,null,null,null,null,null,{"$f":"IFERROR(VLOOKUP($A685,Inputs!$B$68:$AK$129,MATCH($B$7,Inputs!$B$68:$AK$68,0),FALSE),\"Blank\")","v":"80W Mercury Vapour"}]
[null,{"$f":"Inputs!$R$68","v":"Lamp UNIT price Annualised Cost"},{"$f":"Inputs!$P$68","v":"Lamp Maintenance cycle"},null,{"$f":"IF($B685=\"Blank\",0,VLOOKUP($B685,Inputs!$C$68:$AK$129,MATCH($B686,Inputs!$C$68:$AK$68,0),FALSE))","v":0.53408829660915003},{"$f":"IF($B685=\"Blank\",0,VLOOKUP($B685,Inputs!$C$68:$AK$129,MATCH($B686,Inputs!$C$68:$AK$68,0),FALSE))","v":0.53408829660915003},null,null,{"$f":"B686","v":"Lamp UNIT price Annualised Cost"},{"$f":"IF(E686=\"NA\",\"\",E686/J$2*100)","v":0.14632556071483563},{"$f":"IF(F686=\"NA\",\"\",F686/K$2*100)","v":0.14632556071483563}]
[null,{"$f":"Inputs!$K$68","v":"PE Cell UNIT price Annualised Cost"},{"$f":"Inputs!$I$68","v":"PE Cell Maintenance Cycle"},null,{"$f":"IF($B685=\"Blank\",0,VLOOKUP($B685,Inputs!$C$68:$AK$129,MATCH($B687,Inputs!$C$68:$AK$68,0),FALSE))","v":0.6107414998224272},{"$f":"IF($B685=\"Blank\",0,VLOOKUP($B685,Inputs!$C$68:$AK$129,MATCH($B687,Inputs!$C$68:$AK$68,0),FALSE))","v":0.6107414998224272},null,null,"PE Cell UNIT price Annualised Cost",0.16732643830751431,0.16732643830751431]
[null,"Corp capex annuity per light",null,null,{"$f":"IF($B685=\"Blank\",0,'Corp Capex Annuity calcs'!F$109)","v":14.826870317655803},{"$f":"IF($B685=\"Blank\",0,'Corp Capex Annuity calcs'!G$109)","v":14.708895619806404},null,null,"Corp capex annuity per light",4.0621562514125493,4.0298344163853157]
[null,{"$f":"Inputs!$T$68","v":"Lamp Service costs Annualised"},null,null,{"$f":"IF($B685=\"Blank\",0,VLOOKUP($B685,Inputs!$C$68:$AK$129,MATCH($B689,Inputs!$C$68:$AK$68,0),FALSE))","v":26.347371767734501},{"$f":"IF($B685=\"Blank\",0,VLOOKUP($B685,Inputs!$C$68:$AK$129,MATCH($B689,Inputs!$C$68:$AK$68,0),FALSE))","v":26.347371767734501},null,null,"Lamp Service costs Annualised",7.2184580185573974,7.2184580185573974]
[null,{"$f":"Inputs!$M$68","v":"PE Cell Service costs Annualised"},null,null,{"$f":"IF($B685=\"Blank\",0,VLOOKUP($B685,Inputs!$C$68:$AK$129,MATCH($B690,Inputs!$C$68:$AK$68,0),FALSE))","v":0},{"$f":"IF($B685=\"Blank\",0,VLOOKUP($B685,Inputs!$C$68:$AK$129,MATCH($B690,Inputs!$C$68:$AK$68,0),FALSE))","v":0},null,null,"PE Cell Service costs Annualised",0,0]
[null,"Indirect Opex",null,null,{"$f":"IF($B685=\"Blank\",0,IF($B$8=\"Private Contract Lighting\",'Opex Weighting'!D$113,'Opex Weighting'!D$111))","v":24.081834785768372},{"$f":"IF($B685=\"Blank\",0,IF($B$8=\"Private Contract Lighting\",'Opex Weighting'!E$113,'Opex Weighting'!E$111))","v":25.134626053693843},null,null,"Indirect Opex",6.5977629550050336,6.8861989188202317]
[null,"Indirect Capex",null,null,{"$f":"'Capex Weighting'!D$115","v":0},{"$f":"'Capex Weighting'!E$114","v":0},null,null,"Indirect Capex",0,0]
[null,"Overhead Costs per light",null,null,{"$f":"IF($B685=\"Blank\",0,IF($B$8=\"Private Contract Lighting\",'Building Block'!C$49,'Building Block'!C$48))","v":27.508265089316332},{"$f":"IF($B685=\"Blank\",0,IF($B$8=\"Private Contract Lighting\",'Building Block'!D$49,'Building Block'!D$48))","v":27.450442561572103},null,null,"Overhead Costs per light",7.5365109833743382,7.5206691949512612]
[null,{"$f":"Inputs!$AH$68","v":"Bracket UNIT price"},0,null,{"$f":"IF($B685=\"Blank\",0,OFFSET('CAPEX Annuity calcs'!$B$9,MATCH($B685,'CAPEX Annuity calcs'!$B$9:$B$500,0)+$C694,E$6))","v":3.9031523192396289},{"$f":"IF($B685=\"Blank\",0,OFFSET('CAPEX Annuity calcs'!$B$9,MATCH($B685,'CAPEX Annuity calcs'!$B$9:$B$500,0)+$C694,F$6))","v":3.9031523192396289},null,null,"Bracket UNIT price",1.0693567997916791,1.0693567997916791]
[null,{"$f":"Inputs!$Y$68","v":"CAPEX Installation costs"},{"$f":"C694+1","v":1},null,{"$f":"IF($B685=\"Blank\",0,OFFSET('CAPEX Annuity calcs'!$B$9,MATCH($B685,'CAPEX Annuity calcs'!$B$9:$B$500,0)+$C695,E$6))","v":0},{"$f":"IF($B685=\"Blank\",0,OFFSET('CAPEX Annuity calcs'!$B$9,MATCH($B685,'CAPEX Annuity calcs'!$B$9:$B$500,0)+$C695,F$6))","v":0},null,null,"CAPEX Installation costs",0,0]
[null,{"$f":"Inputs!$X$68","v":"Luminaire UNIT price"},{"$f":"C695+1","v":2},null,{"$f":"IF($B685=\"Blank\",0,OFFSET('CAPEX Annuity calcs'!$B$9,MATCH($B685,'CAPEX Annuity calcs'!$B$9:$B$500,0)+$C696,E$6))","v":6.3695223632182607},{"$f":"IF($B685=\"Blank\",0,OFFSET('CAPEX Annuity calcs'!$B$9,MATCH($B685,'CAPEX Annuity calcs'!$B$9:$B$500,0)+$C696,F$6))","v":6.3695223632182607},null,null,"Luminaire UNIT price",1.7450746200597975,1.7450746200597975]
[null,{"$f":"Inputs!$Y$68","v":"CAPEX Installation costs"},3,null,{"$f":"IF($B685=\"Blank\",0,OFFSET('CAPEX Annuity calcs'!$B$9,MATCH($B685,'CAPEX Annuity calcs'!$B$9:$B$500,0)+$C697,E$6))","v":17.165250199817599},{"$f":"IF($B685=\"Blank\",0,OFFSET('CAPEX Annuity calcs'!$B$9,MATCH($B685,'CAPEX Annuity calcs'!$B$9:$B$500,0)+$C697,F$6))","v":17.165250199817599},null,null,"CAPEX Installation costs",4.7028082739226296,4.7028082739226296]
[null,null,null,null,{"$f":"SUM(E686:E697)","v":121.34709663918207},{"$f":"SUM(F686:F697)","v":122.2240906815139},null,null,null,{"$f":"ROUND(E698/J$2*100,3)","v":33.246000000000002},{"$f":"ROUND(F698/K$2*100,3)","v":33.485999999999997}]
[]
[{"$f":"A685+1","v":47},{"$f":"IFERROR(VLOOKUP($A700,Inputs!$B$68:$AK$129,MATCH($B$7,Inputs!$B$68:$AK$68,0),FALSE),\"Blank\")","v":"Blank"},null,null,null,null,null,null,{"$f":"IFERROR(VLOOKUP($A700,Inputs!$B$68:$AK$129,MATCH($B$7,Inputs!$B$68:$AK$68,0),FALSE),\"Blank\")","v":"Blank"}]
[null,{"$f":"Inputs!$R$68","v":"Lamp UNIT price Annualised Cost"},{"$f":"Inputs!$P$68","v":"Lamp Maintenance cycle"},null,{"$f":"IF($B700=\"Blank\",0,VLOOKUP($B700,Inputs!$C$68:$AK$129,MATCH($B701,Inputs!$C$68:$AK$68,0),FALSE))","v":0},{"$f":"IF($B700=\"Blank\",0,VLOOKUP($B700,Inputs!$C$68:$AK$129,MATCH($B701,Inputs!$C$68:$AK$68,0),FALSE))","v":0},null,null,{"$f":"B701","v":"Lamp UNIT price Annualised Cost"},{"$f":"IF(E701=\"NA\",\"\",E701/J$2*100)","v":0},{"$f":"IF(F701=\"NA\",\"\",F701/K$2*100)","v":0}]
[null,{"$f":"Inputs!$K$68","v":"PE Cell UNIT price Annualised Cost"},{"$f":"Inputs!$I$68","v":"PE Cell Maintenance Cycle"},null,{"$f":"IF($B700=\"Blank\",0,VLOOKUP($B700,Inputs!$C$68:$AK$129,MATCH($B702,Inputs!$C$68:$AK$68,0),FALSE))","v":0},{"$f":"IF($B700=\"Blank\",0,VLOOKUP($B700,Inputs!$C$68:$AK$129,MATCH($B702,Inputs!$C$68:$AK$68,0),FALSE))","v":0},null,null,"PE Cell UNIT price Annualised Cost",0,0]
[null,"Corp capex annuity per light",null,null,{"$f":"IF($B700=\"Blank\",0,'Corp Capex Annuity calcs'!F$109)","v":0},{"$f":"IF($B700=\"Blank\",0,'Corp Capex Annuity calcs'!G$109)","v":0},null,null,"Corp capex annuity per light",0,0]
[null,{"$f":"Inputs!$T$68","v":"Lamp Service costs Annualised"},null,null,{"$f":"IF($B700=\"Blank\",0,VLOOKUP($B700,Inputs!$C$68:$AK$129,MATCH($B704,Inputs!$C$68:$AK$68,0),FALSE))","v":0},{"$f":"IF($B700=\"Blank\",0,VLOOKUP($B700,Inputs!$C$68:$AK$129,MATCH($B704,Inputs!$C$68:$AK$68,0),FALSE))","v":0},null,null,"Lamp Service costs Annualised",0,0]
[null,{"$f":"Inputs!$M$68","v":"PE Cell Service costs Annualised"},null,null,{"$f":"IF($B700=\"Blank\",0,VLOOKUP($B700,Inputs!$C$68:$AK$129,MATCH($B705,Inputs!$C$68:$AK$68,0),FALSE))","v":0},{"$f":"IF($B700=\"Blank\",0,VLOOKUP($B700,Inputs!$C$68:$AK$129,MATCH($B705,Inputs!$C$68:$AK$68,0),FALSE))","v":0},null,null,"PE Cell Service costs Annualised",0,0]
[null,"Indirect Opex",null,null,{"$f":"IF($B700=\"Blank\",0,IF($B$8=\"Private Contract Lighting\",'Opex Weighting'!D$113,'Opex Weighting'!D$111))","v":0},{"$f":"IF($B700=\"Blank\",0,IF($B$8=\"Private Contract Lighting\",'Opex Weighting'!E$113,'Opex Weighting'!E$111))","v":0},null,null,"Indirect Opex",0,0]
[null,"Indirect Capex",null,null,{"$f":"'Capex Weighting'!D$115","v":0},{"$f":"'Capex Weighting'!E$114","v":0},null,null,"Indirect Capex",0,0]
[null,"Overhead Costs per light",null,null,{"$f":"IF($B700=\"Blank\",0,IF($B$8=\"Private Contract Lighting\",'Building Block'!C$49,'Building Block'!C$48))","v":0},{"$f":"IF($B700=\"Blank\",0,IF($B$8=\"Private Contract Lighting\",'Building Block'!D$49,'Building Block'!D$48))","v":0},null,null,"Overhead Costs per light",0,0]
[null,{"$f":"Inputs!$AH$68","v":"Bracket UNIT price"},0,null,{"$f":"IF($B700=\"Blank\",0,OFFSET('CAPEX Annuity calcs'!$B$9,MATCH($B700,'CAPEX Annuity calcs'!$B$9:$B$500,0)+$C709,E$6))","v":0},{"$f":"IF($B700=\"Blank\",0,OFFSET('CAPEX Annuity calcs'!$B$9,MATCH($B700,'CAPEX Annuity calcs'!$B$9:$B$500,0)+$C709,F$6))","v":0},null,null,"Bracket UNIT price",0,0]
[null,{"$f":"Inputs!$Y$68","v":"CAPEX Installation costs"},{"$f":"C709+1","v":1},null,{"$f":"IF($B700=\"Blank\",0,OFFSET('CAPEX Annuity calcs'!$B$9,MATCH($B700,'CAPEX Annuity calcs'!$B$9:$B$500,0)+$C710,E$6))","v":0},{"$f":"IF($B700=\"Blank\",0,OFFSET('CAPEX Annuity calcs'!$B$9,MATCH($B700,'CAPEX Annuity calcs'!$B$9:$B$500,0)+$C710,F$6))","v":0},null,null,"CAPEX Installation costs",0,0]
[null,{"$f":"Inputs!$X$68","v":"Luminaire UNIT price"},{"$f":"C710+1","v":2},null,{"$f":"IF($B700=\"Blank\",0,OFFSET('CAPEX Annuity calcs'!$B$9,MATCH($B700,'CAPEX Annuity calcs'!$B$9:$B$500,0)+$C711,E$6))","v":0},{"$f":"IF($B700=\"Blank\",0,OFFSET('CAPEX Annuity calcs'!$B$9,MATCH($B700,'CAPEX Annuity calcs'!$B$9:$B$500,0)+$C711,F$6))","v":0},null,null,"Luminaire UNIT price",0,0]
[null,{"$f":"Inputs!$Y$68","v":"CAPEX Installation costs"},3,null,{"$f":"IF($B700=\"Blank\",0,OFFSET('CAPEX Annuity calcs'!$B$9,MATCH($B700,'CAPEX Annuity calcs'!$B$9:$B$500,0)+$C712,E$6))","v":0},{"$f":"IF($B700=\"Blank\",0,OFFSET('CAPEX Annuity calcs'!$B$9,MATCH($B700,'CAPEX Annuity calcs'!$B$9:$B$500,0)+$C712,F$6))","v":0},null,null,"CAPEX Installation costs",0,0]
[null,null,null,null,{"$f":"SUM(E701:E712)","v":0},{"$f":"SUM(F701:F712)","v":0},null,null,null,{"$f":"ROUND(E713/J$2*100,3)","v":0},{"$f":"ROUND(F713/K$2*100,3)","v":0}]
[]
[{"$f":"A700+1","v":48},{"$f":"IFERROR(VLOOKUP($A715,Inputs!$B$68:$AK$129,MATCH($B$7,Inputs!$B$68:$AK$68,0),FALSE),\"Blank\")","v":"Blank"},null,null,null,null,null,null,{"$f":"IFERROR(VLOOKUP($A715,Inputs!$B$68:$AK$129,MATCH($B$7,Inputs!$B$68:$AK$68,0),FALSE),\"Blank\")","v":"Blank"}]
[null,{"$f":"Inputs!$R$68","v":"Lamp UNIT price Annualised Cost"},{"$f":"Inputs!$P$68","v":"Lamp Maintenance cycle"},null,{"$f":"IF($B715=\"Blank\",0,VLOOKUP($B715,Inputs!$C$68:$AK$129,MATCH($B716,Inputs!$C$68:$AK$68,0),FALSE))","v":0},{"$f":"IF($B715=\"Blank\",0,VLOOKUP($B715,Inputs!$C$68:$AK$129,MATCH($B716,Inputs!$C$68:$AK$68,0),FALSE))","v":0},null,null,{"$f":"B716","v":"Lamp UNIT price Annualised Cost"},{"$f":"IF(E716=\"NA\",\"\",E716/J$2*100)","v":0},{"$f":"IF(F716=\"NA\",\"\",F716/K$2*100)","v":0}]
[null,{"$f":"Inputs!$K$68","v":"PE Cell UNIT price Annualised Cost"},{"$f":"Inputs!$I$68","v":"PE Cell Maintenance Cycle"},null,{"$f":"IF($B715=\"Blank\",0,VLOOKUP($B715,Inputs!$C$68:$AK$129,MATCH($B717,Inputs!$C$68:$AK$68,0),FALSE))","v":0},{"$f":"IF($B715=\"Blank\",0,VLOOKUP($B715,Inputs!$C$68:$AK$129,MATCH($B717,Inputs!$C$68:$AK$68,0),FALSE))","v":0},null,null,"PE Cell UNIT price Annualised Cost",0,0]
[null,"Corp capex annuity per light",null,null,{"$f":"IF($B715=\"Blank\",0,'Corp Capex Annuity calcs'!F$109)","v":0},{"$f":"IF($B715=\"Blank\",0,'Corp Capex Annuity calcs'!G$109)","v":0},null,null,"Corp capex annuity per light",0,0]
[null,{"$f":"Inputs!$T$68","v":"Lamp Service costs Annualised"},null,null,{"$f":"IF($B715=\"Blank\",0,VLOOKUP($B715,Inputs!$C$68:$AK$129,MATCH($B719,Inputs!$C$68:$AK$68,0),FALSE))","v":0},{"$f":"IF($B715=\"Blank\",0,VLOOKUP($B715,Inputs!$C$68:$AK$129,MATCH($B719,Inputs!$C$68:$AK$68,0),FALSE))","v":0},null,null,"Lamp Service costs Annualised",0,0]
[null,{"$f":"Inputs!$M$68","v":"PE Cell Service costs Annualised"},null,null,{"$f":"IF($B715=\"Blank\",0,VLOOKUP($B715,Inputs!$C$68:$AK$129,MATCH($B720,Inputs!$C$68:$AK$68,0),FALSE))","v":0},{"$f":"IF($B715=\"Blank\",0,VLOOKUP($B715,Inputs!$C$68:$AK$129,MATCH($B720,Inputs!$C$68:$AK$68,0),FALSE))","v":0},null,null,"PE Cell Service costs Annualised",0,0]
[null,"Indirect Opex",null,null,{"$f":"IF($B715=\"Blank\",0,IF($B$8=\"Private Contract Lighting\",'Opex Weighting'!D$113,'Opex Weighting'!D$111))","v":0},{"$f":"IF($B715=\"Blank\",0,IF($B$8=\"Private Contract Lighting\",'Opex Weighting'!E$113,'Opex Weighting'!E$111))","v":0},null,null,"Indirect Opex",0,0]
[null,"Indirect Capex",null,null,{"$f":"'Capex Weighting'!D$115","v":0},{"$f":"'Capex Weighting'!E$114","v":0},null,null,"Indirect Capex",0,0]
[null,"Overhead Costs per light",null,null,{"$f":"IF($B715=\"Blank\",0,IF($B$8=\"Private Contract Lighting\",'Building Block'!C$49,'Building Block'!C$48))","v":0},{"$f":"IF($B715=\"Blank\",0,IF($B$8=\"Private Contract Lighting\",'Building Block'!D$49,'Building Block'!D$48))","v":0},null,null,"Overhead Costs per light",0,0]
[null,{"$f":"Inputs!$AH$68","v":"Bracket UNIT price"},0,null,{"$f":"IF($B715=\"Blank\",0,OFFSET('CAPEX Annuity calcs'!$B$9,MATCH($B715,'CAPEX Annuity calcs'!$B$9:$B$500,0)+$C724,E$6))","v":0},{"$f":"IF($B715=\"Blank\",0,OFFSET('CAPEX Annuity calcs'!$B$9,MATCH($B715,'CAPEX Annuity calcs'!$B$9:$B$500,0)+$C724,F$6))","v":0},null,null,"Bracket UNIT price",0,0]
[null,{"$f":"Inputs!$Y$68","v":"CAPEX Installation costs"},{"$f":"C724+1","v":1},null,{"$f":"IF($B715=\"Blank\",0,OFFSET('CAPEX Annuity calcs'!$B$9,MATCH($B715,'CAPEX Annuity calcs'!$B$9:$B$500,0)+$C725,E$6))","v":0},{"$f":"IF($B715=\"Blank\",0,OFFSET('CAPEX Annuity calcs'!$B$9,MATCH($B715,'CAPEX Annuity calcs'!$B$9:$B$500,0)+$C725,F$6))","v":0},null,null,"CAPEX Installation costs",0,0]
[null,{"$f":"Inputs!$X$68","v":"Luminaire UNIT price"},{"$f":"C725+1","v":2},null,{"$f":"IF($B715=\"Blank\",0,OFFSET('CAPEX Annuity calcs'!$B$9,MATCH($B715,'CAPEX Annuity calcs'!$B$9:$B$500,0)+$C726,E$6))","v":0},{"$f":"IF($B715=\"Blank\",0,OFFSET('CAPEX Annuity calcs'!$B$9,MATCH($B715,'CAPEX Annuity calcs'!$B$9:$B$500,0)+$C726,F$6))","v":0},null,null,"Luminaire UNIT price",0,0]
[null,{"$f":"Inputs!$Y$68","v":"CAPEX Installation costs"},3,null,{"$f":"IF($B715=\"Blank\",0,OFFSET('CAPEX Annuity calcs'!$B$9,MATCH($B715,'CAPEX Annuity calcs'!$B$9:$B$500,0)+$C727,E$6))","v":0},{"$f":"IF($B715=\"Blank\",0,OFFSET('CAPEX Annuity calcs'!$B$9,MATCH($B715,'CAPEX Annuity calcs'!$B$9:$B$500,0)+$C727,F$6))","v":0},null,null,"CAPEX Installation costs",0,0]
[null,null,null,null,{"$f":"SUM(E716:E727)","v":0},{"$f":"SUM(F716:F727)","v":0},null,null,null,{"$f":"ROUND(E728/J$2*100,3)","v":0},{"$f":"ROUND(F728/K$2*100,3)","v":0}]
[]
[{"$f":"A715+1","v":49},{"$f":"IFERROR(VLOOKUP($A730,Inputs!$B$68:$AK$129,MATCH($B$7,Inputs!$B$68:$AK$68,0),FALSE),\"Blank\")","v":"Blank"},null,null,null,null,null,null,{"$f":"IFERROR(VLOOKUP($A730,Inputs!$B$68:$AK$129,MATCH($B$7,Inputs!$B$68:$AK$68,0),FALSE),\"Blank\")","v":"Blank"}]
[null,{"$f":"Inputs!$R$68","v":"Lamp UNIT price Annualised Cost"},{"$f":"Inputs!$P$68","v":"Lamp Maintenance cycle"},null,{"$f":"IF($B730=\"Blank\",0,VLOOKUP($B730,Inputs!$C$68:$AK$129,MATCH($B731,Inputs!$C$68:$AK$68,0),FALSE))","v":0},{"$f":"IF($B730=\"Blank\",0,VLOOKUP($B730,Inputs!$C$68:$AK$129,MATCH($B731,Inputs!$C$68:$AK$68,0),FALSE))","v":0},null,null,{"$f":"B731","v":"Lamp UNIT price Annualised Cost"},{"$f":"IF(E731=\"NA\",\"\",E731/J$2*100)","v":0},{"$f":"IF(F731=\"NA\",\"\",F731/K$2*100)","v":0}]
[null,{"$f":"Inputs!$K$68","v":"PE Cell UNIT price Annualised Cost"},{"$f":"Inputs!$I$68","v":"PE Cell Maintenance Cycle"},null,{"$f":"IF($B730=\"Blank\",0,VLOOKUP($B730,Inputs!$C$68:$AK$129,MATCH($B732,Inputs!$C$68:$AK$68,0),FALSE))","v":0},{"$f":"IF($B730=\"Blank\",0,VLOOKUP($B730,Inputs!$C$68:$AK$129,MATCH($B732,Inputs!$C$68:$AK$68,0),FALSE))","v":0},null,null,"PE Cell UNIT price Annualised Cost",0,0]
[null,"Corp capex annuity per light",null,null,{"$f":"IF($B730=\"Blank\",0,'Corp Capex Annuity calcs'!F$109)","v":0},{"$f":"IF($B730=\"Blank\",0,'Corp Capex Annuity calcs'!G$109)","v":0},null,null,"Corp capex annuity per light",0,0]
[null,{"$f":"Inputs!$T$68","v":"Lamp Service costs Annualised"},null,null,{"$f":"IF($B730=\"Blank\",0,VLOOKUP($B730,Inputs!$C$68:$AK$129,MATCH($B734,Inputs!$C$68:$AK$68,0),FALSE))","v":0},{"$f":"IF($B730=\"Blank\",0,VLOOKUP($B730,Inputs!$C$68:$AK$129,MATCH($B734,Inputs!$C$68:$AK$68,0),FALSE))","v":0},null,null,"Lamp Service costs Annualised",0,0]
[null,{"$f":"Inputs!$M$68","v":"PE Cell Service costs Annualised"},null,null,{"$f":"IF($B730=\"Blank\",0,VLOOKUP($B730,Inputs!$C$68:$AK$129,MATCH($B735,Inputs!$C$68:$AK$68,0),FALSE))","v":0},{"$f":"IF($B730=\"Blank\",0,VLOOKUP($B730,Inputs!$C$68:$AK$129,MATCH($B735,Inputs!$C$68:$AK$68,0),FALSE))","v":0},null,null,"PE Cell Service costs Annualised",0,0]
[null,"Indirect Opex",null,null,{"$f":"IF($B730=\"Blank\",0,IF($B$8=\"Private Contract Lighting\",'Opex Weighting'!D$113,'Opex Weighting'!D$111))","v":0},{"$f":"IF($B730=\"Blank\",0,IF($B$8=\"Private Contract Lighting\",'Opex Weighting'!E$113,'Opex Weighting'!E$111))","v":0},null,null,"Indirect Opex",0,0]
[null,"Indirect Capex",null,null,{"$f":"'Capex Weighting'!D$115","v":0},{"$f":"'Capex Weighting'!E$114","v":0},null,null,"Indirect Capex",0,0]
[null,"Overhead Costs per light",null,null,{"$f":"IF($B730=\"Blank\",0,IF($B$8=\"Private Contract Lighting\",'Building Block'!C$49,'Building Block'!C$48))","v":0},{"$f":"IF($B730=\"Blank\",0,IF($B$8=\"Private Contract Lighting\",'Building Block'!D$49,'Building Block'!D$48))","v":0},null,null,"Overhead Costs per light",0,0]
[null,{"$f":"Inputs!$AH$68","v":"Bracket UNIT price"},0,null,{"$f":"IF($B730=\"Blank\",0,OFFSET('CAPEX Annuity calcs'!$B$9,MATCH($B730,'CAPEX Annuity calcs'!$B$9:$B$500,0)+$C739,E$6))","v":0},{"$f":"IF($B730=\"Blank\",0,OFFSET('CAPEX Annuity calcs'!$B$9,MATCH($B730,'CAPEX Annuity calcs'!$B$9:$B$500,0)+$C739,F$6))","v":0},null,null,"Bracket UNIT price",0,0]
[null,{"$f":"Inputs!$Y$68","v":"CAPEX Installation costs"},{"$f":"C739+1","v":1},null,{"$f":"IF($B730=\"Blank\",0,OFFSET('CAPEX Annuity calcs'!$B$9,MATCH($B730,'CAPEX Annuity calcs'!$B$9:$B$500,0)+$C740,E$6))","v":0},{"$f":"IF($B730=\"Blank\",0,OFFSET('CAPEX Annuity calcs'!$B$9,MATCH($B730,'CAPEX Annuity calcs'!$B$9:$B$500,0)+$C740,F$6))","v":0},null,null,"CAPEX Installation costs",0,0]
[null,{"$f":"Inputs!$X$68","v":"Luminaire UNIT price"},{"$f":"C740+1","v":2},null,{"$f":"IF($B730=\"Blank\",0,OFFSET('CAPEX Annuity calcs'!$B$9,MATCH($B730,'CAPEX Annuity calcs'!$B$9:$B$500,0)+$C741,E$6))","v":0},{"$f":"IF($B730=\"Blank\",0,OFFSET('CAPEX Annuity calcs'!$B$9,MATCH($B730,'CAPEX Annuity calcs'!$B$9:$B$500,0)+$C741,F$6))","v":0},null,null,"Luminaire UNIT price",0,0]
[null,{"$f":"Inputs!$Y$68","v":"CAPEX Installation costs"},3,null,{"$f":"IF($B730=\"Blank\",0,OFFSET('CAPEX Annuity calcs'!$B$9,MATCH($B730,'CAPEX Annuity calcs'!$B$9:$B$500,0)+$C742,E$6))","v":0},{"$f":"IF($B730=\"Blank\",0,OFFSET('CAPEX Annuity calcs'!$B$9,MATCH($B730,'CAPEX Annuity calcs'!$B$9:$B$500,0)+$C742,F$6))","v":0},null,null,"CAPEX Installation costs",0,0]
[null,null,null,null,{"$f":"SUM(E731:E742)","v":0},{"$f":"SUM(F731:F742)","v":0},null,null,null,{"$f":"ROUND(E743/J$2*100,3)","v":0},{"$f":"ROUND(F743/K$2*100,3)","v":0}]
[]
[{"$f":"A730+1","v":50},{"$f":"IFERROR(VLOOKUP($A745,Inputs!$B$68:$AK$129,MATCH($B$7,Inputs!$B$68:$AK$68,0),FALSE),\"Blank\")","v":"Blank"},null,null,null,null,null,null,{"$f":"IFERROR(VLOOKUP($A745,Inputs!$B$68:$AK$129,MATCH($B$7,Inputs!$B$68:$AK$68,0),FALSE),\"Blank\")","v":"Blank"}]
[null,{"$f":"Inputs!$R$68","v":"Lamp UNIT price Annualised Cost"},{"$f":"Inputs!$P$68","v":"Lamp Maintenance cycle"},null,{"$f":"IF($B745=\"Blank\",0,VLOOKUP($B745,Inputs!$C$68:$AK$129,MATCH($B746,Inputs!$C$68:$AK$68,0),FALSE))","v":0},{"$f":"IF($B745=\"Blank\",0,VLOOKUP($B745,Inputs!$C$68:$AK$129,MATCH($B746,Inputs!$C$68:$AK$68,0),FALSE))","v":0},null,null,{"$f":"B746","v":"Lamp UNIT price Annualised Cost"},{"$f":"IF(E746=\"NA\",\"\",E746/J$2*100)","v":0},{"$f":"IF(F746=\"NA\",\"\",F746/K$2*100)","v":0}]
[null,{"$f":"Inputs!$K$68","v":"PE Cell UNIT price Annualised Cost"},{"$f":"Inputs!$I$68","v":"PE Cell Maintenance Cycle"},null,{"$f":"IF($B745=\"Blank\",0,VLOOKUP($B745,Inputs!$C$68:$AK$129,MATCH($B747,Inputs!$C$68:$AK$68,0),FALSE))","v":0},{"$f":"IF($B745=\"Blank\",0,VLOOKUP($B745,Inputs!$C$68:$AK$129,MATCH($B747,Inputs!$C$68:$AK$68,0),FALSE))","v":0},null,null,"PE Cell UNIT price Annualised Cost",0,0]
[null,"Corp capex annuity per light",null,null,{"$f":"IF($B745=\"Blank\",0,'Corp Capex Annuity calcs'!F$109)","v":0},{"$f":"IF($B745=\"Blank\",0,'Corp Capex Annuity calcs'!G$109)","v":0},null,null,"Corp capex annuity per light",0,0]
[null,{"$f":"Inputs!$T$68","v":"Lamp Service costs Annualised"},null,null,{"$f":"IF($B745=\"Blank\",0,VLOOKUP($B745,Inputs!$C$68:$AK$129,MATCH($B749,Inputs!$C$68:$AK$68,0),FALSE))","v":0},{"$f":"IF($B745=\"Blank\",0,VLOOKUP($B745,Inputs!$C$68:$AK$129,MATCH($B749,Inputs!$C$68:$AK$68,0),FALSE))","v":0},null,null,"Lamp Service costs Annualised",0,0]
[null,{"$f":"Inputs!$M$68","v":"PE Cell Service costs Annualised"},null,null,{"$f":"IF($B745=\"Blank\",0,VLOOKUP($B745,Inputs!$C$68:$AK$129,MATCH($B750,Inputs!$C$68:$AK$68,0),FALSE))","v":0},{"$f":"IF($B745=\"Blank\",0,VLOOKUP($B745,Inputs!$C$68:$AK$129,MATCH($B750,Inputs!$C$68:$AK$68,0),FALSE))","v":0},null,null,"PE Cell Service costs Annualised",0,0]
[null,"Indirect Opex",null,null,{"$f":"IF($B745=\"Blank\",0,IF($B$8=\"Private Contract Lighting\",'Opex Weighting'!D$113,'Opex Weighting'!D$111))","v":0},{"$f":"IF($B745=\"Blank\",0,IF($B$8=\"Private Contract Lighting\",'Opex Weighting'!E$113,'Opex Weighting'!E$111))","v":0},null,null,"Indirect Opex",0,0]
[null,"Indirect Capex",null,null,{"$f":"'Capex Weighting'!D$115","v":0},{"$f":"'Capex Weighting'!E$114","v":0},null,null,"Indirect Capex",0,0]
[null,"Overhead Costs per light",null,null,{"$f":"IF($B745=\"Blank\",0,IF($B$8=\"Private Contract Lighting\",'Building Block'!C$49,'Building Block'!C$48))","v":0},{"$f":"IF($B745=\"Blank\",0,IF($B$8=\"Private Contract Lighting\",'Building Block'!D$49,'Building Block'!D$48))","v":0},null,null,"Overhead Costs per light",0,0]
[null,{"$f":"Inputs!$AH$68","v":"Bracket UNIT price"},0,null,{"$f":"IF($B745=\"Blank\",0,OFFSET('CAPEX Annuity calcs'!$B$9,MATCH($B745,'CAPEX Annuity calcs'!$B$9:$B$500,0)+$C754,E$6))","v":0},{"$f":"IF($B745=\"Blank\",0,OFFSET('CAPEX Annuity calcs'!$B$9,MATCH($B745,'CAPEX Annuity calcs'!$B$9:$B$500,0)+$C754,F$6))","v":0},null,null,"Bracket UNIT price",0,0]
[null,{"$f":"Inputs!$Y$68","v":"CAPEX Installation costs"},{"$f":"C754+1","v":1},null,{"$f":"IF($B745=\"Blank\",0,OFFSET('CAPEX Annuity calcs'!$B$9,MATCH($B745,'CAPEX Annuity calcs'!$B$9:$B$500,0)+$C755,E$6))","v":0},{"$f":"IF($B745=\"Blank\",0,OFFSET('CAPEX Annuity calcs'!$B$9,MATCH($B745,'CAPEX Annuity calcs'!$B$9:$B$500,0)+$C755,F$6))","v":0},null,null,"CAPEX Installation costs",0,0]
[null,{"$f":"Inputs!$X$68","v":"Luminaire UNIT price"},{"$f":"C755+1","v":2},null,{"$f":"IF($B745=\"Blank\",0,OFFSET('CAPEX Annuity calcs'!$B$9,MATCH($B745,'CAPEX Annuity calcs'!$B$9:$B$500,0)+$C756,E$6))","v":0},{"$f":"IF($B745=\"Blank\",0,OFFSET('CAPEX Annuity calcs'!$B$9,MATCH($B745,'CAPEX Annuity calcs'!$B$9:$B$500,0)+$C756,F$6))","v":0},null,null,"Luminaire UNIT price",0,0]
[null,{"$f":"Inputs!$Y$68","v":"CAPEX Installation costs"},3,null,{"$f":"IF($B745=\"Blank\",0,OFFSET('CAPEX Annuity calcs'!$B$9,MATCH($B745,'CAPEX Annuity calcs'!$B$9:$B$500,0)+$C757,E$6))","v":0},{"$f":"IF($B745=\"Blank\",0,OFFSET('CAPEX Annuity calcs'!$B$9,MATCH($B745,'CAPEX Annuity calcs'!$B$9:$B$500,0)+$C757,F$6))","v":0},null,null,"CAPEX Installation costs",0,0]
[null,null,null,null,{"$f":"SUM(E746:E757)","v":0},{"$f":"SUM(F746:F757)","v":0},null,null,null,{"$f":"ROUND(E758/J$2*100,3)","v":0},{"$f":"ROUND(F758/K$2*100,3)","v":0}]

{"sheet":"CAPEX Annuity calcs","index":10,"n_rows":356,"n_cols":21,"rows_kept":356,"cut":false,"hidden":false,"merged":[]}
[]
[]
[]
[]
[null,"Public Lighting Capital Cost",null,null,"Base Costs  $2017/18",null,null,null,null,null,null,null,null,"Public Lighting Capital Cost","Annuity calculation"]
[]
[null,"Light Description","Major/Minor size","Useful Life","2017-18","2018-19","2019-20","2020-21","2021-22","2022-23","2023-24",null,null,"Light Description","2017-18","2018-19","2019-20","2020-21","2021-22","2022-23","2023-24"]
[]
[1,"32W Compact Fluorescent","RLMIN",null,null,null,null,null,null,null,null,null,null,"32W Compact Fluorescent"]
[null,"Bracket UNIT price",null,40,74.363169923970332,{"$f":"E10","v":74.363169923970332},74.363169923970332,74.363169923970332,74.363169923970332,74.363169923970332,74.363169923970332,null,null,{"$f":"B10","v":"Bracket UNIT price"},3.7541481445031155,3.7541481445031155,3.7541481445031155,3.7541481445031155,3.7541481445031155,3.7541481445031155,3.7541481445031155]
[null,"CAPEX Installation costs","Bracket (40yrs)",40,null,0,0,0,0,0,0,null,null,{"$f":"B11","v":"CAPEX Installation costs"},0,0,0,0,0,0,0]
[null,"Luminaire UNIT price",null,20,188.90717086145477,188.90717086145477,188.90717086145477,188.90717086145477,188.90717086145477,188.90717086145477,188.90717086145477,null,null,{"$f":"B12","v":"Luminaire UNIT price"},13.893650526169594,13.893650526169594,13.893650526169594,13.893650526169594,13.893650526169594,13.893650526169594,13.893650526169594]
[null,"CAPEX Installation costs","Luminaire (20yrs)",20,233.38998244333573,233.38998244333573,233.38998244333573,233.38998244333573,233.38998244333573,233.38998244333573,233.38998244333573,null,null,{"$f":"B13","v":"CAPEX Installation costs"},17.165250199817599,17.165250199817599,17.165250199817599,17.165250199817599,17.165250199817599,17.165250199817599,17.165250199817599]
[]
[]
[{"$f":"A9+1","v":2},"42W Compact Fluorescent","RLMIN",null,null,null,null,null,null,null,null,null,null,"42W Compact Fluorescent"]
[null,"Bracket UNIT price",null,40,76.111939031891239,{"$f":"E17","v":76.111939031891239},76.111939031891239,76.111939031891239,76.111939031891239,76.111939031891239,76.111939031891239,null,null,{"$f":"B17","v":"Bracket UNIT price"},3.8424329541525415,3.8424329541525415,3.8424329541525415,3.8424329541525415,3.8424329541525415,3.8424329541525415,3.8424329541525415]
[null,"CAPEX Installation costs","Bracket (40yrs)",40,null,0,0,0,0,0,0,null,null,{"$f":"B18","v":"CAPEX Installation costs"},0,0,0,0,0,0,0]
[null,"Luminaire UNIT price",null,20,188.90717086145477,188.90717086145477,188.90717086145477,188.90717086145477,188.90717086145477,188.90717086145477,188.90717086145477,null,null,{"$f":"B19","v":"Luminaire UNIT price"},13.893650526169594,13.893650526169594,13.893650526169594,13.893650526169594,13.893650526169594,13.893650526169594,13.893650526169594]
[null,"CAPEX Installation costs","Luminaire (20yrs)",20,233.38998244333573,233.38998244333573,233.38998244333573,233.38998244333573,233.38998244333573,233.38998244333573,233.38998244333573,null,null,{"$f":"B20","v":"CAPEX Installation costs"},17.165250199817599,17.165250199817599,17.165250199817599,17.165250199817599,17.165250199817599,17.165250199817599,17.165250199817599]
[]
[]
[{"$f":"A16+1","v":3},"42W Compact Fluorescent - Bottom Pole Entry","RLMIN",null,null,null,null,null,null,null,null,null,null,"42W Compact Fluorescent - Bottom Pole Entry"]
[null,"Bracket UNIT price",null,40,76.111939031891239,{"$f":"E24","v":76.111939031891239},76.111939031891239,76.111939031891239,76.111939031891239,76.111939031891239,76.111939031891239,null,null,{"$f":"B24","v":"Bracket UNIT price"},3.8424329541525415,3.8424329541525415,3.8424329541525415,3.8424329541525415,3.8424329541525415,3.8424329541525415,3.8424329541525415]
[null,"CAPEX Installation costs","Bracket (40yrs)",40,null,0,0,0,0,0,0,null,null,{"$f":"B25","v":"CAPEX Installation costs"},0,0,0,0,0,0,0]
[null,"Luminaire UNIT price",null,20,188.90717086145477,188.90717086145477,188.90717086145477,188.90717086145477,188.90717086145477,188.90717086145477,188.90717086145477,null,null,{"$f":"B26","v":"Luminaire UNIT price"},13.893650526169594,13.893650526169594,13.893650526169594,13.893650526169594,13.893650526169594,13.893650526169594,13.893650526169594]
[null,"CAPEX Installation costs","Luminaire (20yrs)",20,233.38998244333573,233.38998244333573,233.38998244333573,233.38998244333573,233.38998244333573,233.38998244333573,233.38998244333573,null,null,{"$f":"B27","v":"CAPEX Installation costs"},17.165250199817599,17.165250199817599,17.165250199817599,17.165250199817599,17.165250199817599,17.165250199817599,17.165250199817599]
[]
[]
[{"$f":"A23+1","v":4},"2x24W Compact Fluorescent","RLMIN",null,null,null,null,null,null,null,null,null,null,"2x24W Compact Fluorescent"]
[null,"Bracket UNIT price",null,40,76.105232343078498,{"$f":"E31","v":76.105232343078498},76.105232343078498,76.105232343078498,76.105232343078498,76.105232343078498,76.105232343078498,null,null,{"$f":"B31","v":"Bracket UNIT price"},3.8420943738662539,3.8420943738662539,3.8420943738662539,3.8420943738662539,3.8420943738662539,3.8420943738662539,3.8420943738662539]
[null,"CAPEX Installation costs","Bracket (40yrs)",40,null,0,0,0,0,0,0,null,null,{"$f":"B32","v":"CAPEX Installation costs"},0,0,0,0,0,0,0]
[null,"Luminaire UNIT price",null,20,188.90717086145477,188.90717086145477,188.90717086145477,188.90717086145477,188.90717086145477,188.90717086145477,188.90717086145477,null,null,{"$f":"B33","v":"Luminaire UNIT price"},13.893650526169594,13.893650526169594,13.893650526169594,13.893650526169594,13.893650526169594,13.893650526169594,13.893650526169594]
[null,"CAPEX Installation costs","Luminaire (20yrs)",20,233.38998244333573,233.38998244333573,233.38998244333573,233.38998244333573,233.38998244333573,233.38998244333573,233.38998244333573,null,null,{"$f":"B34","v":"CAPEX Installation costs"},17.165250199817599,17.165250199817599,17.165250199817599,17.165250199817599,17.165250199817599,17.165250199817599,17.165250199817599]
[]
[]
[{"$f":"A30+1","v":5},"1x20W Fluorescent","RLMIN",null,null,null,null,null,null,null,null,null,null,"1x20W Fluorescent"]
[null,"Bracket UNIT price",null,40,105.08961860783307,{"$f":"E38","v":105.08961860783307},105.08961860783307,105.08961860783307,105.08961860783307,105.08961860783307,105.08961860783307,null,null,{"$f":"B38","v":"Bracket UNIT price"},5.3053413014332218,5.3053413014332218,5.3053413014332218,5.3053413014332218,5.3053413014332218,5.3053413014332218,5.3053413014332218]
[null,"CAPEX Installation costs","Bracket (40yrs)",40,null,0,0,0,0,0,0,null,null,{"$f":"B39","v":"CAPEX Installation costs"},0,0,0,0,0,0,0]
[null,"Luminaire UNIT price",null,20,266.35525447146898,266.35525447146898,266.35525447146898,266.35525447146898,266.35525447146898,266.35525447146898,266.35525447146898,null,null,{"$f":"B40","v":"Luminaire UNIT price"},19.58976361013648,19.58976361013648,19.58976361013648,19.58976361013648,19.58976361013648,19.58976361013648,19.58976361013648]
[null,"CAPEX Installation costs","Luminaire (20yrs)",20,233.38998244333573,233.38998244333573,233.38998244333573,233.38998244333573,233.38998244333573,233.38998244333573,233.38998244333573,null,null,{"$f":"B41","v":"CAPEX Installation costs"},17.165250199817599,17.165250199817599,17.165250199817599,17.165250199817599,17.165250199817599,17.165250199817599,17.165250199817599]
[]
[]
[{"$f":"A37+1","v":6},"1x40W Fluorescent","RLMIN",null,null,null,null,null,null,null,null,null,null,"1x40W Fluorescent"]
[null,"Bracket UNIT price",null,40,105.08961860783307,{"$f":"E45","v":105.08961860783307},105.08961860783307,105.08961860783307,105.08961860783307,105.08961860783307,105.08961860783307,null,null,{"$f":"B45","v":"Bracket UNIT price"},5.3053413014332218,5.3053413014332218,5.3053413014332218,5.3053413014332218,5.3053413014332218,5.3053413014332218,5.3053413014332218]
[null,"CAPEX Installation costs","Bracket (40yrs)",40,null,0,0,0,0,0,0,null,null,{"$f":"B46","v":"CAPEX Installation costs"},0,0,0,0,0,0,0]
[null,"Luminaire UNIT price",null,20,208.70111129286309,208.70111129286309,208.70111129286309,208.70111129286309,208.70111129286309,208.70111129286309,208.70111129286309,null,null,{"$f":"B47","v":"Luminaire UNIT price"},15.349445399575959,15.349445399575959,15.349445399575959,15.349445399575959,15.349445399575959,15.349445399575959,15.349445399575959]
[null,"CAPEX Installation costs","Luminaire (20yrs)",20,233.38998244333573,233.38998244333573,233.38998244333573,233.38998244333573,233.38998244333573,233.38998244333573,233.38998244333573,null,null,{"$f":"B48","v":"CAPEX Installation costs"},17.165250199817599,17.165250199817599,17.165250199817599,17.165250199817599,17.165250199817599,17.165250199817599,17.165250199817599]
[]
[]
[{"$f":"A44+1","v":7},"2x20W Fluorescent","RLMIN",null,null,null,null,null,null,null,null,null,null,"2x20W Fluorescent"]
[null,"Bracket UNIT price",null,40,105.08961860783307,{"$f":"E52","v":105.08961860783307},105.08961860783307,105.08961860783307,105.08961860783307,105.08961860783307,105.08961860783307,null,null,{"$f":"B52","v":"Bracket UNIT price"},5.3053413014332218,5.3053413014332218,5.3053413014332218,5.3053413014332218,5.3053413014332218,5.3053413014332218,5.3053413014332218]
[null,"CAPEX Installation costs","Bracket (40yrs)",40,null,0,0,0,0,0,0,null,null,{"$f":"B53","v":"CAPEX Installation costs"},0,0,0,0,0,0,0]
[null,"Luminaire UNIT price",null,20,266.35525447146898,266.35525447146898,266.35525447146898,266.35525447146898,266.35525447146898,266.35525447146898,266.35525447146898,null,null,{"$f":"B54","v":"Luminaire UNIT price"},19.58976361013648,19.58976361013648,19.58976361013648,19.58976361013648,19.58976361013648,19.58976361013648,19.58976361013648]
[null,"CAPEX Installation costs","Luminaire (20yrs)",20,233.38998244333573,233.38998244333573,233.38998244333573,233.38998244333573,233.38998244333573,233.38998244333573,233.38998244333573,null,null,{"$f":"B55","v":"CAPEX Installation costs"},17.165250199817599,17.165250199817599,17.165250199817599,17.165250199817599,17.165250199817599,17.165250199817599,17.165250199817599]
[]
[]
[{"$f":"A51+1","v":8},"2x24W Fluorescent","RLMIN",null,null,null,null,null,null,null,null,null,null,"2x24W Fluorescent"]
[null,"Bracket UNIT price",null,40,105.08961860783307,{"$f":"E59","v":105.08961860783307},105.08961860783307,105.08961860783307,105.08961860783307,105.08961860783307,105.08961860783307,null,null,{"$f":"B59","v":"Bracket UNIT price"},5.3053413014332218,5.3053413014332218,5.3053413014332218,5.3053413014332218,5.3053413014332218,5.3053413014332218,5.3053413014332218]
[null,"CAPEX Installation costs","Bracket (40yrs)",40,null,0,0,0,0,0,0,null,null,{"$f":"B60","v":"CAPEX Installation costs"},0,0,0,0,0,0,0]
[null,"Luminaire UNIT price",null,20,271.65579536523586,271.65579536523586,271.65579536523586,271.65579536523586,271.65579536523586,271.65579536523586,271.65579536523586,null,null,{"$f":"B61","v":"Luminaire UNIT price"},19.979605152105677,19.979605152105677,19.979605152105677,19.979605152105677,19.979605152105677,19.979605152105677,19.979605152105677]
[null,"CAPEX Installation costs","Luminaire (20yrs)",20,233.38998244333573,233.38998244333573,233.38998244333573,233.38998244333573,233.38998244333573,233.38998244333573,233.38998244333573,null,null,{"$f":"B62","v":"CAPEX Installation costs"},17.165250199817599,17.165250199817599,17.165250199817599,17.165250199817599,17.165250199817599,17.165250199817599,17.165250199817599]
[]
[]
[{"$f":"A58+1","v":9},"T5 Fluorescent 2 x 24W","RLMIN",null,null,null,null,null,null,null,null,null,null,"T5 Fluorescent 2 x 24W"]
[null,"Bracket UNIT price",null,40,105.08961860783307,{"$f":"E66","v":105.08961860783307},105.08961860783307,105.08961860783307,105.08961860783307,105.08961860783307,105.08961860783307,null,null,{"$f":"B66","v":"Bracket UNIT price"},5.3053413014332218,5.3053413014332218,5.3053413014332218,5.3053413014332218,5.3053413014332218,5.3053413014332218,5.3053413014332218]
[null,"CAPEX Installation costs","Bracket (40yrs)",40,null,0,0,0,0,0,0,null,null,{"$f":"B67","v":"CAPEX Installation costs"},0,0,0,0,0,0,0]
[null,"Luminaire UNIT price",null,20,266.35525447146898,266.35525447146898,266.35525447146898,266.35525447146898,266.35525447146898,266.35525447146898,266.35525447146898,null,null,{"$f":"B68","v":"Luminaire UNIT price"},19.58976361013648,19.58976361013648,19.58976361013648,19.58976361013648,19.58976361013648,19.58976361013648,19.58976361013648]
[null,"CAPEX Installation costs","Luminaire (20yrs)",20,233.38998244333573,233.38998244333573,233.38998244333573,233.38998244333573,233.38998244333573,233.38998244333573,233.38998244333573,null,null,{"$f":"B69","v":"CAPEX Installation costs"},17.165250199817599,17.165250199817599,17.165250199817599,17.165250199817599,17.165250199817599,17.165250199817599,17.165250199817599]
[]
[]
[{"$f":"A65+1","v":10},"20 Fluorescent 1X20FL","RLMIN",null,null,null,null,null,null,null,null,null,null,"20 Fluorescent 1X20FL"]
[null,"Bracket UNIT price",null,40,105.08961860783307,{"$f":"E73","v":105.08961860783307},105.08961860783307,105.08961860783307,105.08961860783307,105.08961860783307,105.08961860783307,null,null,{"$f":"B73","v":"Bracket UNIT price"},5.3053413014332218,5.3053413014332218,5.3053413014332218,5.3053413014332218,5.3053413014332218,5.3053413014332218,5.3053413014332218]
[null,"CAPEX Installation costs","Bracket (40yrs)",40,null,0,0,0,0,0,0,null,null,{"$f":"B74","v":"CAPEX Installation costs"},0,0,0,0,0,0,0]
[null,"Luminaire UNIT price",null,20,266.35525447146898,266.35525447146898,266.35525447146898,266.35525447146898,266.35525447146898,266.35525447146898,266.35525447146898,null,null,{"$f":"B75","v":"Luminaire UNIT price"},19.58976361013648,19.58976361013648,19.58976361013648,19.58976361013648,19.58976361013648,19.58976361013648,19.58976361013648]
[null,"CAPEX Installation costs","Luminaire (20yrs)",20,233.38998244333573,233.38998244333573,233.38998244333573,233.38998244333573,233.38998244333573,233.38998244333573,233.38998244333573,null,null,{"$f":"B76","v":"CAPEX Installation costs"},17.165250199817599,17.165250199817599,17.165250199817599,17.165250199817599,17.165250199817599,17.165250199817599,17.165250199817599]
[]
[]
[{"$f":"A72+1","v":11},"2x40W Fluorescent","RLMIN",null,null,null,null,null,null,null,null,null,null,"2x40W Fluorescent"]
[null,"Bracket UNIT price",null,40,105.08961860783307,{"$f":"E80","v":105.08961860783307},105.08961860783307,105.08961860783307,105.08961860783307,105.08961860783307,105.08961860783307,null,null,{"$f":"B80","v":"Bracket UNIT price"},5.3053413014332218,5.3053413014332218,5.3053413014332218,5.3053413014332218,5.3053413014332218,5.3053413014332218,5.3053413014332218]
[null,"CAPEX Installation costs","Bracket (40yrs)",40,null,0,0,0,0,0,0,null,null,{"$f":"B81","v":"CAPEX Installation costs"},0,0,0,0,0,0,0]
[null,"Luminaire UNIT price",null,20,208.70111129286309,208.70111129286309,208.70111129286309,208.70111129286309,208.70111129286309,208.70111129286309,208.70111129286309,null,null,{"$f":"B82","v":"Luminaire UNIT price"},15.349445399575959,15.349445399575959,15.349445399575959,15.349445399575959,15.349445399575959,15.349445399575959,15.349445399575959]
[null,"CAPEX Installation costs","Luminaire (20yrs)",20,233.38998244333573,233.38998244333573,233.38998244333573,233.38998244333573,233.38998244333573,233.38998244333573,233.38998244333573,null,null,{"$f":"B83","v":"CAPEX Installation costs"},17.165250199817599,17.165250199817599,17.165250199817599,17.165250199817599,17.165250199817599,17.165250199817599,17.165250199817599]
[]
[]
[{"$f":"A79+1","v":12},"3x40W Fluorescent","RLMAJ",null,null,null,null,null,null,null,null,null,null,"3x40W Fluorescent"]
[null,"Bracket UNIT price",null,40,96,96,96,96,96,96,96,null,null,{"$f":"B87","v":"Bracket UNIT price"},4.846461255494809,4.846461255494809,4.846461255494809,4.846461255494809,4.846461255494809,4.846461255494809,4.846461255494809]
[null,"CAPEX Installation costs","Bracket (40yrs)",40,null,227.69754384715679,227.69754384715679,227.69754384715679,227.69754384715679,227.69754384715679,227.69754384715679,null,null,{"$f":"B88","v":"CAPEX Installation costs"},11.495076294026832,11.495076294026832,11.495076294026832,11.495076294026832,11.495076294026832,11.495076294026832,11.495076294026832]
[null,"Luminaire UNIT price",null,20,188.90717086145477,188.90717086145477,188.90717086145477,188.90717086145477,188.90717086145477,188.90717086145477,188.90717086145477,null,null,{"$f":"B89","v":"Luminaire UNIT price"},13.893650526169594,13.893650526169594,13.893650526169594,13.893650526169594,13.893650526169594,13.893650526169594,13.893650526169594]
[null,"CAPEX Installation costs","Luminaire (20yrs)",20,227.69754384715679,227.69754384715679,227.69754384715679,227.69754384715679,227.69754384715679,227.69754384715679,227.69754384715679,null,null,{"$f":"B90","v":"CAPEX Installation costs"},16.746585560797659,16.746585560797659,16.746585560797659,16.746585560797659,16.746585560797659,16.746585560797659,16.746585560797659]
[]
[]
[{"$f":"A86+1","v":13},"4x20 Fluorescent","RLMIN",null,null,null,null,null,null,null,null,null,null,"4x20 Fluorescent"]
[null,"Bracket UNIT price",null,40,105.08961860783307,{"$f":"E94","v":105.08961860783307},105.08961860783307,105.08961860783307,105.08961860783307,105.08961860783307,105.08961860783307,null,null,{"$f":"B94","v":"Bracket UNIT price"},5.3053413014332218,5.3053413014332218,5.3053413014332218,5.3053413014332218,5.3053413014332218,5.3053413014332218,5.3053413014332218]
[null,"CAPEX Installation costs","Bracket (40yrs)",40,null,0,0,0,0,0,0,null,null,{"$f":"B95","v":"CAPEX Installation costs"},0,0,0,0,0,0,0]
[null,"Luminaire UNIT price",null,20,266.35525447146898,266.35525447146898,266.35525447146898,266.35525447146898,266.35525447146898,266.35525447146898,266.35525447146898,null,null,{"$f":"B96","v":"Luminaire UNIT price"},19.58976361013648,19.58976361013648,19.58976361013648,19.58976361013648,19.58976361013648,19.58976361013648,19.58976361013648]
[null,"CAPEX Installation costs","Luminaire (20yrs)",20,233.38998244333573,233.38998244333573,233.38998244333573,233.38998244333573,233.38998244333573,233.38998244333573,233.38998244333573,null,null,{"$f":"B97","v":"CAPEX Installation costs"},17.165250199817599,17.165250199817599,17.165250199817599,17.165250199817599,17.165250199817599,17.165250199817599,17.165250199817599]
[]
[]
[{"$f":"A93+1","v":14},"4x40W Fluorescent","RLMAJ",null,null,null,null,null,null,null,null,null,null,"4x40W Fluorescent"]
[null,"Bracket UNIT price",null,40,105.08961860783307,{"$f":"E101","v":105.08961860783307},105.08961860783307,105.08961860783307,105.08961860783307,105.08961860783307,105.08961860783307,null,null,{"$f":"B101","v":"Bracket UNIT price"},5.3053413014332218,5.3053413014332218,5.3053413014332218,5.3053413014332218,5.3053413014332218,5.3053413014332218,5.3053413014332218]
[null,"CAPEX Installation costs","Bracket (40yrs)",40,null,0,0,0,0,0,0,null,null,{"$f":"B102","v":"CAPEX Installation costs"},0,0,0,0,0,0,0]
[null,"Luminaire UNIT price",null,20,266.35525447146898,266.35525447146898,266.35525447146898,266.35525447146898,266.35525447146898,266.35525447146898,266.35525447146898,null,null,{"$f":"B103","v":"Luminaire UNIT price"},19.58976361013648,19.58976361013648,19.58976361013648,19.58976361013648,19.58976361013648,19.58976361013648,19.58976361013648]
[null,"CAPEX Installation costs","Luminaire (20yrs)",20,504.2947119440708,504.2947119440708,504.2947119440708,504.2947119440708,504.2947119440708,504.2947119440708,504.2947119440708,null,null,{"$f":"B104","v":"CAPEX Installation costs"},37.089616333754066,37.089616333754066,37.089616333754066,37.089616333754066,37.089616333754066,37.089616333754066,37.089616333754066]
[]
[]
[{"$f":"A100+1","v":15},"100W Sodium Vapour","RLMAJ",null,null,null,null,null,null,null,null,null,null,"100W Sodium Vapour"]
[null,"Bracket UNIT price",null,40,95.338965387721842,{"$f":"E108","v":95.338965387721842},95.338965387721842,95.338965387721842,95.338965387721842,95.338965387721842,95.338965387721842,null,null,{"$f":"B108","v":"Bracket UNIT price"},4.8130896030266097,4.8130896030266097,4.8130896030266097,4.8130896030266097,4.8130896030266097,4.8130896030266097,4.8130896030266097]
[null,"CAPEX Installation costs","Bracket (40yrs)",40,null,0,0,0,0,0,0,null,null,{"$f":"B109","v":"CAPEX Installation costs"},0,0,0,0,0,0,0]
[null,"Luminaire UNIT price",null,20,154.95463481311108,154.95463481311108,154.95463481311108,154.95463481311108,154.95463481311108,154.95463481311108,154.95463481311108,null,null,{"$f":"B110","v":"Luminaire UNIT price"},11.396526313352776,11.396526313352776,11.396526313352776,11.396526313352776,11.396526313352776,11.396526313352776,11.396526313352776]
[null,"CAPEX Installation costs","Luminaire (20yrs)",20,504.2947119440708,504.2947119440708,504.2947119440708,504.2947119440708,504.2947119440708,504.2947119440708,504.2947119440708,null,null,{"$f":"B111","v":"CAPEX Installation costs"},37.089616333754066,37.089616333754066,37.089616333754066,37.089616333754066,37.089616333754066,37.089616333754066,37.089616333754066]
[]
[]
[{"$f":"A107+1","v":16},"150W Sodium Vapour","RLMAJ",null,null,null,null,null,null,null,null,null,null,"150W Sodium Vapour"]
[null,"Bracket UNIT price",null,40,164.11499074301554,{"$f":"E115","v":164.11499074301554},164.11499074301554,164.11499074301554,164.11499074301554,164.11499074301554,164.11499074301554,null,null,{"$f":"B115","v":"Bracket UNIT price"},8.2851765008532716,8.2851765008532716,8.2851765008532716,8.2851765008532716,8.2851765008532716,8.2851765008532716,8.2851765008532716]
[null,"CAPEX Installation costs","Bracket (40yrs)",40,null,0,0,0,0,0,0,null,null,{"$f":"B116","v":"CAPEX Installation costs"},0,0,0,0,0,0,0]
[null,"Luminaire UNIT price",null,20,216.87186514812163,216.87186514812163,216.87186514812163,216.87186514812163,216.87186514812163,216.87186514812163,216.87186514812163,null,null,{"$f":"B117","v":"Luminaire UNIT price"},15.950383935062112,15.950383935062112,15.950383935062112,15.950383935062112,15.950383935062112,15.950383935062112,15.950383935062112]
[null,"CAPEX Installation costs","Luminaire (20yrs)",20,504.2947119440708,504.2947119440708,504.2947119440708,504.2947119440708,504.2947119440708,504.2947119440708,504.2947119440708,null,null,{"$f":"B118","v":"CAPEX Installation costs"},37.089616333754066,37.089616333754066,37.089616333754066,37.089616333754066,37.089616333754066,37.089616333754066,37.089616333754066]
[]
[]
[{"$f":"A114+1","v":17},"250W Sodium Vapour","RLMAJ",null,null,null,null,null,null,null,null,null,null,"250W Sodium Vapour"]
[null,"Bracket UNIT price",null,40,210.59681775558886,{"$f":"E122","v":210.59681775558886},210.59681775558886,210.59681775558886,210.59681775558886,210.59681775558886,210.59681775558886,null,null,{"$f":"B122","v":"Bracket UNIT price"},10.631763726905863,10.631763726905863,10.631763726905863,10.631763726905863,10.631763726905863,10.631763726905863,10.631763726905863]
[null,"CAPEX Installation costs","Bracket (40yrs)",40,null,0,0,0,0,0,0,null,null,{"$f":"B123","v":"CAPEX Installation costs"},0,0,0,0,0,0,0]
[null,"Luminaire UNIT price",null,20,231.9979734325857,231.9979734325857,231.9979734325857,231.9979734325857,231.9979734325857,231.9979734325857,231.9979734325857,null,null,{"$f":"B124","v":"Luminaire UNIT price"},17.062871414319702,17.062871414319702,17.062871414319702,17.062871414319702,17.062871414319702,17.062871414319702,17.062871414319702]
[null,"CAPEX Installation costs","Luminaire (20yrs)",20,504.2947119440708,504.2947119440708,504.2947119440708,504.2947119440708,504.2947119440708,504.2947119440708,504.2947119440708,null,null,{"$f":"B125","v":"CAPEX Installation costs"},37.089616333754066,37.089616333754066,37.089616333754066,37.089616333754066,37.089616333754066,37.089616333754066,37.089616333754066]
[]
[]
[{"$f":"A121+1","v":18},"250W Sodium Vapour - Flood Light","RLMAJ",null,null,null,null,null,null,null,null,null,null,"250W Sodium Vapour - Flood Light"]
[null,"Bracket UNIT price",null,40,210.59681775558886,{"$f":"E129","v":210.59681775558886},210.59681775558886,210.59681775558886,210.59681775558886,210.59681775558886,210.59681775558886,null,null,{"$f":"B129","v":"Bracket UNIT price"},10.631763726905863,10.631763726905863,10.631763726905863,10.631763726905863,10.631763726905863,10.631763726905863,10.631763726905863]
[null,"CAPEX Installation costs","Bracket (40yrs)",40,null,0,0,0,0,0,0,null,null,{"$f":"B130","v":"CAPEX Installation costs"},0,0,0,0,0,0,0]
[null,"Luminaire UNIT price",null,20,418.87977485833363,418.87977485833363,418.87977485833363,418.87977485833363,418.87977485833363,418.87977485833363,418.87977485833363,null,null,{"$f":"B131","v":"Luminaire UNIT price"},30.807561077872098,30.807561077872098,30.807561077872098,30.807561077872098,30.807561077872098,30.807561077872098,30.807561077872098]
[null,"CAPEX Installation costs","Luminaire (20yrs)",20,504.2947119440708,504.2947119440708,504.2947119440708,504.2947119440708,504.2947119440708,504.2947119440708,504.2947119440708,null,null,{"$f":"B132","v":"CAPEX Installation costs"},37.089616333754066,37.089616333754066,37.089616333754066,37.089616333754066,37.089616333754066,37.089616333754066,37.089616333754066]
[]
[]
[{"$f":"A128+1","v":19},"400W Sodium Vapour","RLMAJ",null,null,null,null,null,null,null,null,null,null,"400W Sodium Vapour"]
[null,"Bracket UNIT price",null,40,151.9249889764759,{"$f":"E136","v":151.9249889764759},151.9249889764759,151.9249889764759,151.9249889764759,151.9249889764759,151.9249889764759,null,null,{"$f":"B136","v":"Bracket UNIT price"},7.6697768001663169,7.6697768001663169,7.6697768001663169,7.6697768001663169,7.6697768001663169,7.6697768001663169,7.6697768001663169]
[null,"CAPEX Installation costs","Bracket (40yrs)",40,null,0,0,0,0,0,0,null,null,{"$f":"B137","v":"CAPEX Installation costs"},0,0,0,0,0,0,0]
[null,"Luminaire UNIT price",null,20,308.13100043947838,308.13100043947838,308.13100043947838,308.13100043947838,308.13100043947838,308.13100043947838,308.13100043947838,null,null,{"$f":"B138","v":"Luminaire UNIT price"},22.662265370142414,22.662265370142414,22.662265370142414,22.662265370142414,22.662265370142414,22.662265370142414,22.662265370142414]
[null,"CAPEX Installation costs","Luminaire (20yrs)",20,504.2947119440708,504.2947119440708,504.2947119440708,504.2947119440708,504.2947119440708,504.2947119440708,504.2947119440708,null,null,{"$f":"B139","v":"CAPEX Installation costs"},37.089616333754066,37.089616333754066,37.089616333754066,37.089616333754066,37.089616333754066,37.089616333754066,37.089616333754066]
[]
[]
[{"$f":"A135+1","v":20},"400W Sodium Vapour - Flood Light","RLMAJ",null,null,null,null,null,null,null,null,null,null,"400W Sodium Vapour - Flood Light"]
[null,"Bracket UNIT price",null,40,151.9249889764759,{"$f":"E143","v":151.9249889764759},151.9249889764759,151.9249889764759,151.9249889764759,151.9249889764759,151.9249889764759,null,null,{"$f":"B143","v":"Bracket UNIT price"},7.6697768001663169,7.6697768001663169,7.6697768001663169,7.6697768001663169,7.6697768001663169,7.6697768001663169,7.6697768001663169]
[null,"CAPEX Installation costs","Bracket (40yrs)",40,null,0,0,0,0,0,0,null,null,{"$f":"B144","v":"CAPEX Installation costs"},0,0,0,0,0,0,0]
[null,"Luminaire UNIT price",null,20,431.38642868220512,431.38642868220512,431.38642868220512,431.38642868220512,431.38642868220512,431.38642868220512,431.38642868220512,null,null,{"$f":"B145","v":"Luminaire UNIT price"},31.727394224958356,31.727394224958356,31.727394224958356,31.727394224958356,31.727394224958356,31.727394224958356,31.727394224958356]
[null,"CAPEX Installation costs","Luminaire (20yrs)",20,504.2947119440708,504.2947119440708,504.2947119440708,504.2947119440708,504.2947119440708,504.2947119440708,504.2947119440708,null,null,{"$f":"B146","v":"CAPEX Installation costs"},37.089616333754066,37.089616333754066,37.089616333754066,37.089616333754066,37.089616333754066,37.089616333754066,37.089616333754066]
[]
[]
[{"$f":"A142+1","v":21},"70W Sodium Vapour","RLMIN",null,null,null,null,null,null,null,null,null,null,"70W Sodium Vapour"]
[null,"Bracket UNIT price",null,40,92.17934605158824,{"$f":"E150","v":92.17934605158824},92.17934605158824,92.17934605158824,92.17934605158824,92.17934605158824,92.17934605158824,null,null,{"$f":"B150","v":"Bracket UNIT price"},4.6535794707903211,4.6535794707903211,4.6535794707903211,4.6535794707903211,4.6535794707903211,4.6535794707903211,4.6535794707903211]
[null,"CAPEX Installation costs","Bracket (40yrs)",40,null,0,0,0,0,0,0,null,null,{"$f":"B151","v":"CAPEX Installation costs"},0,0,0,0,0,0,0]
[null,"Luminaire UNIT price",null,20,161.14461304191406,161.14461304191406,161.14461304191406,161.14461304191406,161.14461304191406,161.14461304191406,161.14461304191406,null,null,{"$f":"B152","v":"Luminaire UNIT price"},11.851783749496695,11.851783749496695,11.851783749496695,11.851783749496695,11.851783749496695,11.851783749496695,11.851783749496695]
[null,"CAPEX Installation costs","Luminaire (20yrs)",20,233.38998244333573,233.38998244333573,233.38998244333573,233.38998244333573,233.38998244333573,233.38998244333573,233.38998244333573,null,null,{"$f":"B153","v":"CAPEX Installation costs"},17.165250199817599,17.165250199817599,17.165250199817599,17.165250199817599,17.165250199817599,17.165250199817599,17.165250199817599]
[]
[]
[{"$f":"A149+1","v":22},"100W Incandescent","RLMAJ",null,null,null,null,null,null,null,null,null,null,"100W Incandescent"]
[null,"Bracket UNIT price",null,40,68.549674191893288,{"$f":"E157","v":68.549674191893288},68.549674191893288,68.549674191893288,68.549674191893288,68.549674191893288,68.549674191893288,null,null,{"$f":"B157","v":"Bracket UNIT price"},3.4606597921646172,3.4606597921646172,3.4606597921646172,3.4606597921646172,3.4606597921646172,3.4606597921646172,3.4606597921646172]
[null,"CAPEX Installation costs","Bracket (40yrs)",40,null,0,0,0,0,0,0,null,null,{"$f":"B158","v":"CAPEX Installation costs"},0,0,0,0,0,0,0]
[null,"Luminaire UNIT price",null,20,58.674896993414826,58.674896993414826,58.674896993414826,58.674896993414826,58.674896993414826,58.674896993414826,58.674896993414826,null,null,{"$f":"B159","v":"Luminaire UNIT price"},4.3153921037935703,4.3153921037935703,4.3153921037935703,4.3153921037935703,4.3153921037935703,4.3153921037935703,4.3153921037935703]
[null,"CAPEX Installation costs","Luminaire (20yrs)",20,504.2947119440708,504.2947119440708,504.2947119440708,504.2947119440708,504.2947119440708,504.2947119440708,504.2947119440708,null,null,{"$f":"B160","v":"CAPEX Installation costs"},37.089616333754066,37.089616333754066,37.089616333754066,37.089616333754066,37.089616333754066,37.089616333754066,37.089616333754066]
[]
[]
[{"$f":"A156+1","v":23},"60W Incandescent","RLMIN",null,null,null,null,null,null,null,null,null,null,"60W Incandescent"]
[null,"Bracket UNIT price",null,40,68.549674191893288,{"$f":"E164","v":68.549674191893288},68.549674191893288,68.549674191893288,68.549674191893288,68.549674191893288,68.549674191893288,null,null,{"$f":"B164","v":"Bracket UNIT price"},3.4606597921646172,3.4606597921646172,3.4606597921646172,3.4606597921646172,3.4606597921646172,3.4606597921646172,3.4606597921646172]
[null,"CAPEX Installation costs","Bracket (40yrs)",40,null,0,0,0,0,0,0,null,null,{"$f":"B165","v":"CAPEX Installation costs"},0,0,0,0,0,0,0]
[null,"Luminaire UNIT price",null,20,58.674896993414826,58.674896993414826,58.674896993414826,58.674896993414826,58.674896993414826,58.674896993414826,58.674896993414826,null,null,{"$f":"B166","v":"Luminaire UNIT price"},4.3153921037935703,4.3153921037935703,4.3153921037935703,4.3153921037935703,4.3153921037935703,4.3153921037935703,4.3153921037935703]
[null,"CAPEX Installation costs","Luminaire (20yrs)",20,233.38998244333573,233.38998244333573,233.38998244333573,233.38998244333573,233.38998244333573,233.38998244333573,233.38998244333573,null,null,{"$f":"B167","v":"CAPEX Installation costs"},17.165250199817599,17.165250199817599,17.165250199817599,17.165250199817599,17.165250199817599,17.165250199817599,17.165250199817599]
[]
[]
[{"$f":"A163+1","v":24},"18W LED","RLMIN",null,null,null,null,null,null,null,null,null,null,"18W LED"]
[null,"Bracket UNIT price",null,40,78.656437685576066,{"$f":"E171","v":78.656437685576066},78.656437685576066,78.656437685576066,78.656437685576066,78.656437685576066,78.656437685576066,null,null,{"$f":"B171","v":"Bracket UNIT price"},3.9708893514415231,3.9708893514415231,3.9708893514415231,3.9708893514415231,3.9708893514415231,3.9708893514415231,3.9708893514415231]
[null,"CAPEX Installation costs","Bracket (40yrs)",40,null,0,0,0,0,0,0,null,null,{"$f":"B172","v":"CAPEX Installation costs"},0,0,0,0,0,0,0]
[null,"Luminaire UNIT price",null,20,376.68747999999999,376.68747999999999,376.68747999999999,376.68747999999999,376.68747999999999,376.68747999999999,376.68747999999999,null,null,{"$f":"B173","v":"Luminaire UNIT price"},27.704423187523222,27.704423187523222,27.704423187523222,27.704423187523222,27.704423187523222,27.704423187523222,27.704423187523222]
[null,"CAPEX Installation costs","Luminaire (20yrs)",20,233.38998244333573,233.38998244333573,233.38998244333573,233.38998244333573,233.38998244333573,233.38998244333573,233.38998244333573,null,null,{"$f":"B174","v":"CAPEX Installation costs"},17.165250199817599,17.165250199817599,17.165250199817599,17.165250199817599,17.165250199817599,17.165250199817599,17.165250199817599]
[]
[]
[{"$f":"A170+1","v":25},"25W LED","RLMIN",null,null,null,null,null,null,null,null,null,null,"25W LED"]
[null,"Bracket UNIT price",null,40,78.656437685576066,{"$f":"E178","v":78.656437685576066},78.656437685576066,78.656437685576066,78.656437685576066,78.656437685576066,78.656437685576066,null,null,{"$f":"B178","v":"Bracket UNIT price"},3.9708893514415231,3.9708893514415231,3.9708893514415231,3.9708893514415231,3.9708893514415231,3.9708893514415231,3.9708893514415231]
[null,"CAPEX Installation costs","Bracket (40yrs)",40,null,0,0,0,0,0,0,null,null,{"$f":"B179","v":"CAPEX Installation costs"},0,0,0,0,0,0,0]
[null,"Luminaire UNIT price",null,20,376.68747999999999,376.68747999999999,376.68747999999999,376.68747999999999,376.68747999999999,376.68747999999999,376.68747999999999,null,null,{"$f":"B180","v":"Luminaire UNIT price"},27.704423187523222,27.704423187523222,27.704423187523222,27.704423187523222,27.704423187523222,27.704423187523222,27.704423187523222]
[null,"CAPEX Installation costs","Luminaire (20yrs)",20,233.38998244333573,233.38998244333573,233.38998244333573,233.38998244333573,233.38998244333573,233.38998244333573,233.38998244333573,null,null,{"$f":"B181","v":"CAPEX Installation costs"},17.165250199817599,17.165250199817599,17.165250199817599,17.165250199817599,17.165250199817599,17.165250199817599,17.165250199817599]
[]
[]
[{"$f":"A177+1","v":26},"18W LED Decorative - Bottom Pole Entry","RLMIN",null,null,null,null,null,null,null,null,null,null,"18W LED Decorative - Bottom Pole Entry"]
[null,"Bracket UNIT price",null,40,78.656437685576066,{"$f":"E185","v":78.656437685576066},78.656437685576066,78.656437685576066,78.656437685576066,78.656437685576066,78.656437685576066,null,null,{"$f":"B185","v":"Bracket UNIT price"},3.9708893514415231,3.9708893514415231,3.9708893514415231,3.9708893514415231,3.9708893514415231,3.9708893514415231,3.9708893514415231]
[null,"CAPEX Installation costs","Bracket (40yrs)",40,null,0,0,0,0,0,0,null,null,{"$f":"B186","v":"CAPEX Installation costs"},0,0,0,0,0,0,0]
[null,"Luminaire UNIT price",null,20,1065.1403052478124,1065.1403052478124,1065.1403052478124,1065.1403052478124,1065.1403052478124,1065.1403052478124,1065.1403052478124,null,null,{"$f":"B187","v":"Luminaire UNIT price"},78.338408727237379,78.338408727237379,78.338408727237379,78.338408727237379,78.338408727237379,78.338408727237379,78.338408727237379]
[null,"CAPEX Installation costs","Luminaire (20yrs)",20,233.38998244333573,233.38998244333573,233.38998244333573,233.38998244333573,233.38998244333573,233.38998244333573,233.38998244333573,null,null,{"$f":"B188","v":"CAPEX Installation costs"},17.165250199817599,17.165250199817599,17.165250199817599,17.165250199817599,17.165250199817599,17.165250199817599,17.165250199817599]
[]
[]
[{"$f":"A184+1","v":27},"18W LED Decorative - Side Entry","RLMIN",null,null,null,null,null,null,null,null,null,null,"18W LED Decorative - Side Entry"]
[null,"Bracket UNIT price",null,40,78.656437685576066,{"$f":"E192","v":78.656437685576066},78.656437685576066,78.656437685576066,78.656437685576066,78.656437685576066,78.656437685576066,null,null,{"$f":"B192","v":"Bracket UNIT price"},3.9708893514415231,3.9708893514415231,3.9708893514415231,3.9708893514415231,3.9708893514415231,3.9708893514415231,3.9708893514415231]
[null,"CAPEX Installation costs","Bracket (40yrs)",40,null,0,0,0,0,0,0,null,null,{"$f":"B193","v":"CAPEX Installation costs"},0,0,0,0,0,0,0]
[null,"Luminaire UNIT price",null,20,1065.1403052478124,1065.1403052478124,1065.1403052478124,1065.1403052478124,1065.1403052478124,1065.1403052478124,1065.1403052478124,null,null,{"$f":"B194","v":"Luminaire UNIT price"},78.338408727237379,78.338408727237379,78.338408727237379,78.338408727237379,78.338408727237379,78.338408727237379,78.338408727237379]
[null,"CAPEX Installation costs","Luminaire (20yrs)",20,233.38998244333573,233.38998244333573,233.38998244333573,233.38998244333573,233.38998244333573,233.38998244333573,233.38998244333573,null,null,{"$f":"B195","v":"CAPEX Installation costs"},17.165250199817599,17.165250199817599,17.165250199817599,17.165250199817599,17.165250199817599,17.165250199817599,17.165250199817599]
[]
[]
[{"$f":"A191+1","v":28},"18W LED Decorative - Top Entry","RLMIN",null,null,null,null,null,null,null,null,null,null,"18W LED Decorative - Top Entry"]
[null,"Bracket UNIT price",null,40,78.656437685576066,{"$f":"E199","v":78.656437685576066},78.656437685576066,78.656437685576066,78.656437685576066,78.656437685576066,78.656437685576066,null,null,{"$f":"B199","v":"Bracket UNIT price"},3.9708893514415231,3.9708893514415231,3.9708893514415231,3.9708893514415231,3.9708893514415231,3.9708893514415231,3.9708893514415231]
[null,"CAPEX Installation costs","Bracket (40yrs)",40,null,0,0,0,0,0,0,null,null,{"$f":"B200","v":"CAPEX Installation costs"},0,0,0,0,0,0,0]
[null,"Luminaire UNIT price",null,20,1065.1403052478124,1065.1403052478124,1065.1403052478124,1065.1403052478124,1065.1403052478124,1065.1403052478124,1065.1403052478124,null,null,{"$f":"B201","v":"Luminaire UNIT price"},78.338408727237379,78.338408727237379,78.338408727237379,78.338408727237379,78.338408727237379,78.338408727237379,78.338408727237379]
[null,"CAPEX Installation costs","Luminaire (20yrs)",20,233.38998244333573,233.38998244333573,233.38998244333573,233.38998244333573,233.38998244333573,233.38998244333573,233.38998244333573,null,null,{"$f":"B202","v":"CAPEX Installation costs"},17.165250199817599,17.165250199817599,17.165250199817599,17.165250199817599,17.165250199817599,17.165250199817599,17.165250199817599]
[]
[]
[{"$f":"A198+1","v":29},"25W LED Decorative - Bottom Pole Entry","RLMIN",null,null,null,null,null,null,null,null,null,null,"25W LED Decorative - Bottom Pole Entry"]
[null,"Bracket UNIT price",null,40,78.656437685576066,{"$f":"E206","v":78.656437685576066},78.656437685576066,78.656437685576066,78.656437685576066,78.656437685576066,78.656437685576066,null,null,{"$f":"B206","v":"Bracket UNIT price"},3.9708893514415231,3.9708893514415231,3.9708893514415231,3.9708893514415231,3.9708893514415231,3.9708893514415231,3.9708893514415231]
[null,"CAPEX Installation costs","Bracket (40yrs)",40,null,0,0,0,0,0,0,null,null,{"$f":"B207","v":"CAPEX Installation costs"},0,0,0,0,0,0,0]
[null,"Luminaire UNIT price",null,20,1065.1403052478124,1065.1403052478124,1065.1403052478124,1065.1403052478124,1065.1403052478124,1065.1403052478124,1065.1403052478124,null,null,{"$f":"B208","v":"Luminaire UNIT price"},78.338408727237379,78.338408727237379,78.338408727237379,78.338408727237379,78.338408727237379,78.338408727237379,78.338408727237379]
[null,"CAPEX Installation costs","Luminaire (20yrs)",20,233.38998244333573,233.38998244333573,233.38998244333573,233.38998244333573,233.38998244333573,233.38998244333573,233.38998244333573,null,null,{"$f":"B209","v":"CAPEX Installation costs"},17.165250199817599,17.165250199817599,17.165250199817599,17.165250199817599,17.165250199817599,17.165250199817599,17.165250199817599]
[]
[]
[{"$f":"A205+1","v":30},"25W LED Decorative - Side Entry","RLMIN",null,null,null,null,null,null,null,null,null,null,"25W LED Decorative - Side Entry"]
[null,"Bracket UNIT price",null,40,78.656437685576066,{"$f":"E213","v":78.656437685576066},78.656437685576066,78.656437685576066,78.656437685576066,78.656437685576066,78.656437685576066,null,null,{"$f":"B213","v":"Bracket UNIT price"},3.9708893514415231,3.9708893514415231,3.9708893514415231,3.9708893514415231,3.9708893514415231,3.9708893514415231,3.9708893514415231]
[null,"CAPEX Installation costs","Bracket (40yrs)",40,null,0,0,0,0,0,0,null,null,{"$f":"B214","v":"CAPEX Installation costs"},0,0,0,0,0,0,0]
[null,"Luminaire UNIT price",null,20,1065.1403052478124,1065.1403052478124,1065.1403052478124,1065.1403052478124,1065.1403052478124,1065.1403052478124,1065.1403052478124,null,null,{"$f":"B215","v":"Luminaire UNIT price"},78.338408727237379,78.338408727237379,78.338408727237379,78.338408727237379,78.338408727237379,78.338408727237379,78.338408727237379]
[null,"CAPEX Installation costs","Luminaire (20yrs)",20,233.38998244333573,233.38998244333573,233.38998244333573,233.38998244333573,233.38998244333573,233.38998244333573,233.38998244333573,null,null,{"$f":"B216","v":"CAPEX Installation costs"},17.165250199817599,17.165250199817599,17.165250199817599,17.165250199817599,17.165250199817599,17.165250199817599,17.165250199817599]
[]
[]
[{"$f":"A212+1","v":31},"25W LED Decorative - Top Entry","RLMIN",null,null,null,null,null,null,null,null,null,null,"25W LED Decorative - Top Entry"]
[null,"Bracket UNIT price",null,40,78.656437685576066,{"$f":"E220","v":78.656437685576066},78.656437685576066,78.656437685576066,78.656437685576066,78.656437685576066,78.656437685576066,null,null,{"$f":"B220","v":"Bracket UNIT price"},3.9708893514415231,3.9708893514415231,3.9708893514415231,3.9708893514415231,3.9708893514415231,3.9708893514415231,3.9708893514415231]
[null,"CAPEX Installation costs","Bracket (40yrs)",40,null,0,0,0,0,0,0,null,null,{"$f":"B221","v":"CAPEX Installation costs"},0,0,0,0,0,0,0]
[null,"Luminaire UNIT price",null,20,1065.1403052478124,1065.1403052478124,1065.1403052478124,1065.1403052478124,1065.1403052478124,1065.1403052478124,1065.1403052478124,null,null,{"$f":"B222","v":"Luminaire UNIT price"},78.338408727237379,78.338408727237379,78.338408727237379,78.338408727237379,78.338408727237379,78.338408727237379,78.338408727237379]
[null,"CAPEX Installation costs","Luminaire (20yrs)",20,233.38998244333573,233.38998244333573,233.38998244333573,233.38998244333573,233.38998244333573,233.38998244333573,233.38998244333573,null,null,{"$f":"B223","v":"CAPEX Installation costs"},17.165250199817599,17.165250199817599,17.165250199817599,17.165250199817599,17.165250199817599,17.165250199817599,17.165250199817599]
[]
[]
[{"$f":"A219+1","v":32},"30W LED","RLMIN",null,null,null,null,null,null,null,null,null,null,"30W LED"]
[null,"Bracket UNIT price",null,40,78.656437685576066,{"$f":"E227","v":78.656437685576066},78.656437685576066,78.656437685576066,78.656437685576066,78.656437685576066,78.656437685576066,null,null,{"$f":"B227","v":"Bracket UNIT price"},3.9708893514415231,3.9708893514415231,3.9708893514415231,3.9708893514415231,3.9708893514415231,3.9708893514415231,3.9708893514415231]
[null,"CAPEX Installation costs","Bracket (40yrs)",40,null,0,0,0,0,0,0,null,null,{"$f":"B228","v":"CAPEX Installation costs"},0,0,0,0,0,0,0]
[null,"Luminaire UNIT price",null,20,376.68747999999999,376.68747999999999,376.68747999999999,376.68747999999999,376.68747999999999,376.68747999999999,376.68747999999999,null,null,{"$f":"B229","v":"Luminaire UNIT price"},27.704423187523222,27.704423187523222,27.704423187523222,27.704423187523222,27.704423187523222,27.704423187523222,27.704423187523222]
[null,"CAPEX Installation costs","Luminaire (20yrs)",20,233.38998244333573,233.38998244333573,233.38998244333573,233.38998244333573,233.38998244333573,233.38998244333573,233.38998244333573,null,null,{"$f":"B230","v":"CAPEX Installation costs"},17.165250199817599,17.165250199817599,17.165250199817599,17.165250199817599,17.165250199817599,17.165250199817599,17.165250199817599]
[]
[]
[{"$f":"A226+1","v":33},"88 LED Light","RLMIN",null,null,null,null,null,null,null,null,null,null,"88 LED Light"]
[null,"Bracket UNIT price",null,40,78.656437685576066,{"$f":"E234","v":78.656437685576066},78.656437685576066,78.656437685576066,78.656437685576066,78.656437685576066,78.656437685576066,null,null,{"$f":"B234","v":"Bracket UNIT price"},3.9708893514415231,3.9708893514415231,3.9708893514415231,3.9708893514415231,3.9708893514415231,3.9708893514415231,3.9708893514415231]
[null,"CAPEX Installation costs","Bracket (40yrs)",40,null,0,0,0,0,0,0,null,null,{"$f":"B235","v":"CAPEX Installation costs"},0,0,0,0,0,0,0]
[null,"Luminaire UNIT price",null,20,376.68747999999999,376.68747999999999,376.68747999999999,376.68747999999999,376.68747999999999,376.68747999999999,376.68747999999999,null,null,{"$f":"B236","v":"Luminaire UNIT price"},27.704423187523222,27.704423187523222,27.704423187523222,27.704423187523222,27.704423187523222,27.704423187523222,27.704423187523222]
[null,"CAPEX Installation costs","Luminaire (20yrs)",20,233.38998244333573,233.38998244333573,233.38998244333573,233.38998244333573,233.38998244333573,233.38998244333573,233.38998244333573,null,null,{"$f":"B237","v":"CAPEX Installation costs"},17.165250199817599,17.165250199817599,17.165250199817599,17.165250199817599,17.165250199817599,17.165250199817599,17.165250199817599]
[]
[]
[{"$f":"A233+1","v":34},"100W Metal Halide","RLMAJ",null,null,null,null,null,null,null,null,null,null,"100W Metal Halide"]
[null,"Bracket UNIT price",null,40,95.338965387721842,{"$f":"E241","v":95.338965387721842},95.338965387721842,95.338965387721842,95.338965387721842,95.338965387721842,95.338965387721842,null,null,{"$f":"B241","v":"Bracket UNIT price"},4.8130896030266097,4.8130896030266097,4.8130896030266097,4.8130896030266097,4.8130896030266097,4.8130896030266097,4.8130896030266097]
[null,"CAPEX Installation costs","Bracket (40yrs)",40,null,0,0,0,0,0,0,null,null,{"$f":"B242","v":"CAPEX Installation costs"},0,0,0,0,0,0,0]
[null,"Luminaire UNIT price",null,20,162.17518363940306,162.17518363940306,162.17518363940306,162.17518363940306,162.17518363940306,162.17518363940306,162.17518363940306,null,null,{"$f":"B243","v":"Luminaire UNIT price"},11.927579642573505,11.927579642573505,11.927579642573505,11.927579642573505,11.927579642573505,11.927579642573505,11.927579642573505]
[null,"CAPEX Installation costs","Luminaire (20yrs)",20,504.2947119440708,504.2947119440708,504.2947119440708,504.2947119440708,504.2947119440708,504.2947119440708,504.2947119440708,null,null,{"$f":"B244","v":"CAPEX Installation costs"},37.089616333754066,37.089616333754066,37.089616333754066,37.089616333754066,37.089616333754066,37.089616333754066,37.089616333754066]
[]
[]
[{"$f":"A240+1","v":35},"150W Metal Halide","RLMAJ",null,null,null,null,null,null,null,null,null,null,"150W Metal Halide"]
[null,"Bracket UNIT price",null,40,164.11499074301554,{"$f":"E248","v":164.11499074301554},164.11499074301554,164.11499074301554,164.11499074301554,164.11499074301554,164.11499074301554,null,null,{"$f":"B248","v":"Bracket UNIT price"},8.2851765008532716,8.2851765008532716,8.2851765008532716,8.2851765008532716,8.2851765008532716,8.2851765008532716,8.2851765008532716]
[null,"CAPEX Installation costs","Bracket (40yrs)",40,null,0,0,0,0,0,0,null,null,{"$f":"B249","v":"CAPEX Installation costs"},0,0,0,0,0,0,0]
[null,"Luminaire UNIT price",null,20,236.57737538145497,236.57737538145497,236.57737538145497,236.57737538145497,236.57737538145497,236.57737538145497,236.57737538145497,null,null,{"$f":"B250","v":"Luminaire UNIT price"},17.399674988298965,17.399674988298965,17.399674988298965,17.399674988298965,17.399674988298965,17.399674988298965,17.399674988298965]
[null,"CAPEX Installation costs","Luminaire (20yrs)",20,504.2947119440708,504.2947119440708,504.2947119440708,504.2947119440708,504.2947119440708,504.2947119440708,504.2947119440708,null,null,{"$f":"B251","v":"CAPEX Installation costs"},37.089616333754066,37.089616333754066,37.089616333754066,37.089616333754066,37.089616333754066,37.089616333754066,37.089616333754066]
[]
[]
[{"$f":"A247+1","v":36},"250W Metal Halide","RLMAJ",null,null,null,null,null,null,null,null,null,null,"250W Metal Halide"]
[null,"Bracket UNIT price",null,40,210.59681775558886,{"$f":"E255","v":210.59681775558886},210.59681775558886,210.59681775558886,210.59681775558886,210.59681775558886,210.59681775558886,null,null,{"$f":"B255","v":"Bracket UNIT price"},10.631763726905863,10.631763726905863,10.631763726905863,10.631763726905863,10.631763726905863,10.631763726905863,10.631763726905863]
[null,"CAPEX Installation costs","Bracket (40yrs)",40,null,0,0,0,0,0,0,null,null,{"$f":"B256","v":"CAPEX Installation costs"},0,0,0,0,0,0,0]
[null,"Luminaire UNIT price",null,20,245.07571166325397,245.07571166325397,245.07571166325397,245.07571166325397,245.07571166325397,245.07571166325397,245.07571166325397,null,null,{"$f":"B257","v":"Luminaire UNIT price"},18.024706392955267,18.024706392955267,18.024706392955267,18.024706392955267,18.024706392955267,18.024706392955267,18.024706392955267]
[null,"CAPEX Installation costs","Luminaire (20yrs)",20,504.2947119440708,504.2947119440708,504.2947119440708,504.2947119440708,504.2947119440708,504.2947119440708,504.2947119440708,null,null,{"$f":"B258","v":"CAPEX Installation costs"},37.089616333754066,37.089616333754066,37.089616333754066,37.089616333754066,37.089616333754066,37.089616333754066,37.089616333754066]
[]
[]
[{"$f":"A254+1","v":37},"400W Metal Halide","RLMAJ",null,null,null,null,null,null,null,null,null,null,"400W Metal Halide"]
[null,"Bracket UNIT price",null,40,151.9249889764759,{"$f":"E262","v":151.9249889764759},151.9249889764759,151.9249889764759,151.9249889764759,151.9249889764759,151.9249889764759,null,null,{"$f":"B262","v":"Bracket UNIT price"},7.6697768001663169,7.6697768001663169,7.6697768001663169,7.6697768001663169,7.6697768001663169,7.6697768001663169,7.6697768001663169]
[null,"CAPEX Installation costs","Bracket (40yrs)",40,null,0,0,0,0,0,0,null,null,{"$f":"B263","v":"CAPEX Installation costs"},0,0,0,0,0,0,0]
[null,"Luminaire UNIT price",null,20,497.78229817542456,497.78229817542456,497.78229817542456,497.78229817542456,497.78229817542456,497.78229817542456,497.78229817542456,null,null,{"$f":"B264","v":"Luminaire UNIT price"},36.610644569099641,36.610644569099641,36.610644569099641,36.610644569099641,36.610644569099641,36.610644569099641,36.610644569099641]
[null,"CAPEX Installation costs","Luminaire (20yrs)",20,504.2947119440708,504.2947119440708,504.2947119440708,504.2947119440708,504.2947119440708,504.2947119440708,504.2947119440708,null,null,{"$f":"B265","v":"CAPEX Installation costs"},37.089616333754066,37.089616333754066,37.089616333754066,37.089616333754066,37.089616333754066,37.089616333754066,37.089616333754066]
[]
[]
[{"$f":"A261+1","v":38},"70W Metal Halide","RLMIN",null,null,null,null,null,null,null,null,null,null,"70W Metal Halide"]
[null,"Bracket UNIT price",null,40,95.338965387721842,{"$f":"E269","v":95.338965387721842},95.338965387721842,95.338965387721842,95.338965387721842,95.338965387721842,95.338965387721842,null,null,{"$f":"B269","v":"Bracket UNIT price"},4.8130896030266097,4.8130896030266097,4.8130896030266097,4.8130896030266097,4.8130896030266097,4.8130896030266097,4.8130896030266097]
[null,"CAPEX Installation costs","Bracket (40yrs)",40,null,0,0,0,0,0,0,null,null,{"$f":"B270","v":"CAPEX Installation costs"},0,0,0,0,0,0,0]
[null,"Luminaire UNIT price",null,20,86.604197155235227,86.604197155235227,86.604197155235227,86.604197155235227,86.604197155235227,86.604197155235227,86.604197155235227,null,null,{"$f":"B271","v":"Luminaire UNIT price"},6.3695223632182607,6.3695223632182607,6.3695223632182607,6.3695223632182607,6.3695223632182607,6.3695223632182607,6.3695223632182607]
[null,"CAPEX Installation costs","Luminaire (20yrs)",20,233.38998244333573,233.38998244333573,233.38998244333573,233.38998244333573,233.38998244333573,233.38998244333573,233.38998244333573,null,null,{"$f":"B272","v":"CAPEX Installation costs"},17.165250199817599,17.165250199817599,17.165250199817599,17.165250199817599,17.165250199817599,17.165250199817599,17.165250199817599]
[]
[]
[{"$f":"A268+1","v":39},"250W Metal Halide - Flood Light","RLMAJ",null,null,null,null,null,null,null,null,null,null,"250W Metal Halide - Flood Light"]
[null,"Bracket UNIT price",null,40,210.59681775558886,{"$f":"E276","v":210.59681775558886},210.59681775558886,210.59681775558886,210.59681775558886,210.59681775558886,210.59681775558886,null,null,{"$f":"B276","v":"Bracket UNIT price"},10.631763726905863,10.631763726905863,10.631763726905863,10.631763726905863,10.631763726905863,10.631763726905863,10.631763726905863]
[null,"CAPEX Installation costs","Bracket (40yrs)",40,null,0,0,0,0,0,0,null,null,{"$f":"B277","v":"CAPEX Installation costs"},0,0,0,0,0,0,0]
[null,"Luminaire UNIT price",null,20,497.78229817542456,497.78229817542456,497.78229817542456,497.78229817542456,497.78229817542456,497.78229817542456,497.78229817542456,null,null,{"$f":"B278","v":"Luminaire UNIT price"},36.610644569099641,36.610644569099641,36.610644569099641,36.610644569099641,36.610644569099641,36.610644569099641,36.610644569099641]
[null,"CAPEX Installation costs","Luminaire (20yrs)",20,504.2947119440708,504.2947119440708,504.2947119440708,504.2947119440708,504.2947119440708,504.2947119440708,504.2947119440708,null,null,{"$f":"B279","v":"CAPEX Installation costs"},37.089616333754066,37.089616333754066,37.089616333754066,37.089616333754066,37.089616333754066,37.089616333754066,37.089616333754066]
[]
[]
[{"$f":"A275+1","v":40},"400W Metal Halide - Flood Light","RLMAJ",null,null,null,null,null,null,null,null,null,null,"400W Metal Halide - Flood Light"]
[null,"Bracket UNIT price",null,40,151.9249889764759,{"$f":"E283","v":151.9249889764759},151.9249889764759,151.9249889764759,151.9249889764759,151.9249889764759,151.9249889764759,null,null,{"$f":"B283","v":"Bracket UNIT price"},7.6697768001663169,7.6697768001663169,7.6697768001663169,7.6697768001663169,7.6697768001663169,7.6697768001663169,7.6697768001663169]
[null,"CAPEX Installation costs","Bracket (40yrs)",40,null,0,0,0,0,0,0,null,null,{"$f":"B284","v":"CAPEX Installation costs"},0,0,0,0,0,0,0]
[null,"Luminaire UNIT price",null,20,497.78229817542456,497.78229817542456,497.78229817542456,497.78229817542456,497.78229817542456,497.78229817542456,497.78229817542456,null,null,{"$f":"B285","v":"Luminaire UNIT price"},36.610644569099641,36.610644569099641,36.610644569099641,36.610644569099641,36.610644569099641,36.610644569099641,36.610644569099641]
[null,"CAPEX Installation costs","Luminaire (20yrs)",20,504.2947119440708,504.2947119440708,504.2947119440708,504.2947119440708,504.2947119440708,504.2947119440708,504.2947119440708,null,null,{"$f":"B286","v":"CAPEX Installation costs"},37.089616333754066,37.089616333754066,37.089616333754066,37.089616333754066,37.089616333754066,37.089616333754066,37.089616333754066]
[]
[]
[{"$f":"A282+1","v":41},"125W Mercury Vapour","RLMAJ",null,null,null,null,null,null,null,null,null,null,"125W Mercury Vapour"]
[null,"Bracket UNIT price",null,40,171.18920372665016,{"$f":"E290","v":171.18920372665016},171.18920372665016,171.18920372665016,171.18920372665016,171.18920372665016,171.18920372665016,null,null,{"$f":"B290","v":"Bracket UNIT price"},8.642310866877267,8.642310866877267,8.642310866877267,8.642310866877267,8.642310866877267,8.642310866877267,8.642310866877267]
[null,"CAPEX Installation costs","Bracket (40yrs)",40,null,0,0,0,0,0,0,null,null,{"$f":"B291","v":"CAPEX Installation costs"},0,0,0,0,0,0,0]
[null,"Luminaire UNIT price",null,20,150.29677555156627,150.29677555156627,150.29677555156627,150.29677555156627,150.29677555156627,150.29677555156627,150.29677555156627,null,null,{"$f":"B292","v":"Luminaire UNIT price"},11.053952400012832,11.053952400012832,11.053952400012832,11.053952400012832,11.053952400012832,11.053952400012832,11.053952400012832]
[null,"CAPEX Installation costs","Luminaire (20yrs)",20,504.2947119440708,504.2947119440708,504.2947119440708,504.2947119440708,504.2947119440708,504.2947119440708,504.2947119440708,null,null,{"$f":"B293","v":"CAPEX Installation costs"},37.089616333754066,37.089616333754066,37.089616333754066,37.089616333754066,37.089616333754066,37.089616333754066,37.089616333754066]
[]
[]
[{"$f":"A289+1","v":42},"250W Mercury Vapour","RLMAJ",null,null,null,null,null,null,null,null,null,null,"250W Mercury Vapour"]
[null,"Bracket UNIT price",null,40,171.18920372665016,{"$f":"E297","v":171.18920372665016},171.18920372665016,171.18920372665016,171.18920372665016,171.18920372665016,171.18920372665016,null,null,{"$f":"B297","v":"Bracket UNIT price"},8.642310866877267,8.642310866877267,8.642310866877267,8.642310866877267,8.642310866877267,8.642310866877267,8.642310866877267]
[null,"CAPEX Installation costs","Bracket (40yrs)",40,null,0,0,0,0,0,0,null,null,{"$f":"B298","v":"CAPEX Installation costs"},0,0,0,0,0,0,0]
[null,"Luminaire UNIT price",null,20,173.60193794991488,173.60193794991488,173.60193794991488,173.60193794991488,173.60193794991488,173.60193794991488,173.60193794991488,null,null,{"$f":"B299","v":"Luminaire UNIT price"},12.767988878044445,12.767988878044445,12.767988878044445,12.767988878044445,12.767988878044445,12.767988878044445,12.767988878044445]
[null,"CAPEX Installation costs","Luminaire (20yrs)",20,504.2947119440708,504.2947119440708,504.2947119440708,504.2947119440708,504.2947119440708,504.2947119440708,504.2947119440708,null,null,{"$f":"B300","v":"CAPEX Installation costs"},37.089616333754066,37.089616333754066,37.089616333754066,37.089616333754066,37.089616333754066,37.089616333754066,37.089616333754066]
[]
[]
[{"$f":"A296+1","v":43},"400W Mercury Vapour","RLMAJ",null,null,null,null,null,null,null,null,null,null,"400W Mercury Vapour"]
[null,"Bracket UNIT price",null,40,201.60681623831957,{"$f":"E304","v":201.60681623831957},201.60681623831957,201.60681623831957,201.60681623831957,201.60681623831957,201.60681623831957,null,null,{"$f":"B304","v":"Bracket UNIT price"},10.177912747319557,10.177912747319557,10.177912747319557,10.177912747319557,10.177912747319557,10.177912747319557,10.177912747319557]
[null,"CAPEX Installation costs","Bracket (40yrs)",40,null,0,0,0,0,0,0,null,null,{"$f":"B305","v":"CAPEX Installation costs"},0,0,0,0,0,0,0]
[null,"Luminaire UNIT price",null,20,250.29375468664404,250.29375468664404,250.29375468664404,250.29375468664404,250.29375468664404,250.29375468664404,250.29375468664404,null,null,{"$f":"B306","v":"Luminaire UNIT price"},18.408480422638178,18.408480422638178,18.408480422638178,18.408480422638178,18.408480422638178,18.408480422638178,18.408480422638178]
[null,"CAPEX Installation costs","Luminaire (20yrs)",20,504.2947119440708,504.2947119440708,504.2947119440708,504.2947119440708,504.2947119440708,504.2947119440708,504.2947119440708,null,null,{"$f":"B307","v":"CAPEX Installation costs"},37.089616333754066,37.089616333754066,37.089616333754066,37.089616333754066,37.089616333754066,37.089616333754066,37.089616333754066]
[]
[]
[{"$f":"A303+1","v":44},"50W Mercury Vapour","RLMIN",null,null,null,null,null,null,null,null,null,null,"50W Mercury Vapour"]
[null,"Bracket UNIT price",null,40,74.363169923970332,{"$f":"E311","v":74.363169923970332},74.363169923970332,74.363169923970332,74.363169923970332,74.363169923970332,74.363169923970332,null,null,{"$f":"B311","v":"Bracket UNIT price"},3.7541481445031155,3.7541481445031155,3.7541481445031155,3.7541481445031155,3.7541481445031155,3.7541481445031155,3.7541481445031155]
[null,"CAPEX Installation costs","Bracket (40yrs)",40,null,0,0,0,0,0,0,null,null,{"$f":"B312","v":"CAPEX Installation costs"},0,0,0,0,0,0,0]
[null,"Luminaire UNIT price",null,20,87.120723182006003,87.120723182006003,87.120723182006003,87.120723182006003,87.120723182006003,87.120723182006003,87.120723182006003,null,null,{"$f":"B313","v":"Luminaire UNIT price"},6.4075115622036574,6.4075115622036574,6.4075115622036574,6.4075115622036574,6.4075115622036574,6.4075115622036574,6.4075115622036574]
[null,"CAPEX Installation costs","Luminaire (20yrs)",20,233.38998244333573,233.38998244333573,233.38998244333573,233.38998244333573,233.38998244333573,233.38998244333573,233.38998244333573,null,null,{"$f":"B314","v":"CAPEX Installation costs"},17.165250199817599,17.165250199817599,17.165250199817599,17.165250199817599,17.165250199817599,17.165250199817599,17.165250199817599]
[]
[]
[{"$f":"A310+1","v":45},"80W Mercury Vapour Art decorative","RLMIN",null,null,null,null,null,null,null,null,null,null,"80W Mercury Vapour Art decorative"]
[null,"Bracket UNIT price",null,40,77.314684445723145,{"$f":"E318","v":77.314684445723145},77.314684445723145,77.314684445723145,77.314684445723145,77.314684445723145,77.314684445723145,null,null,{"$f":"B318","v":"Bracket UNIT price"},3.9031523192396289,3.9031523192396289,3.9031523192396289,3.9031523192396289,3.9031523192396289,3.9031523192396289,3.9031523192396289]
[null,"CAPEX Installation costs","Bracket (40yrs)",40,null,0,0,0,0,0,0,null,null,{"$f":"B319","v":"CAPEX Installation costs"},0,0,0,0,0,0,0]
[null,"Luminaire UNIT price",null,20,918.43246855338907,918.43246855338907,918.43246855338907,918.43246855338907,918.43246855338907,918.43246855338907,918.43246855338907,null,null,{"$f":"B320","v":"Luminaire UNIT price"},67.548413814987171,67.548413814987171,67.548413814987171,67.548413814987171,67.548413814987171,67.548413814987171,67.548413814987171]
[null,"CAPEX Installation costs","Luminaire (20yrs)",20,233.38998244333573,233.38998244333573,233.38998244333573,233.38998244333573,233.38998244333573,233.38998244333573,233.38998244333573,null,null,{"$f":"B321","v":"CAPEX Installation costs"},17.165250199817599,17.165250199817599,17.165250199817599,17.165250199817599,17.165250199817599,17.165250199817599,17.165250199817599]
[]
[]
[{"$f":"A317+1","v":46},"80W Mercury Vapour","RLMIN",null,null,null,null,null,null,null,null,null,null,"80W Mercury Vapour"]
[null,"Bracket UNIT price",null,40,77.314684445723145,{"$f":"E325","v":77.314684445723145},77.314684445723145,77.314684445723145,77.314684445723145,77.314684445723145,77.314684445723145,null,null,{"$f":"B325","v":"Bracket UNIT price"},3.9031523192396289,3.9031523192396289,3.9031523192396289,3.9031523192396289,3.9031523192396289,3.9031523192396289,3.9031523192396289]
[null,"CAPEX Installation costs","Bracket (40yrs)",40,null,0,0,0,0,0,0,null,null,{"$f":"B326","v":"CAPEX Installation costs"},0,0,0,0,0,0,0]
[null,"Luminaire UNIT price",null,20,86.604197155235227,86.604197155235227,86.604197155235227,86.604197155235227,86.604197155235227,86.604197155235227,86.604197155235227,null,null,{"$f":"B327","v":"Luminaire UNIT price"},6.3695223632182607,6.3695223632182607,6.3695223632182607,6.3695223632182607,6.3695223632182607,6.3695223632182607,6.3695223632182607]
[null,"CAPEX Installation costs","Luminaire (20yrs)",20,233.38998244333573,233.38998244333573,233.38998244333573,233.38998244333573,233.38998244333573,233.38998244333573,233.38998244333573,null,null,{"$f":"B328","v":"CAPEX Installation costs"},17.165250199817599,17.165250199817599,17.165250199817599,17.165250199817599,17.165250199817599,17.165250199817599,17.165250199817599]
[]
[]
[{"$f":"A324+1","v":47},{"$error":"#N/A"},{"$error":"#N/A"},null,null,null,null,null,null,null,null,null,null,{"$error":"#N/A"}]
[null,"Bracket UNIT price",null,40,{"$error":"#N/A"},{"$f":"E332","v":{"$error":"#N/A"}},{"$error":"#N/A"},{"$error":"#N/A"},{"$error":"#N/A"},{"$error":"#N/A"},{"$error":"#N/A"},null,null,{"$f":"B332","v":"Bracket UNIT price"},{"$error":"#N/A"},{"$error":"#N/A"},{"$error":"#N/A"},{"$error":"#N/A"},{"$error":"#N/A"},{"$error":"#N/A"},{"$error":"#N/A"}]
[null,"CAPEX Installation costs","Bracket (40yrs)",40,null,0,0,0,0,0,0,null,null,{"$f":"B333","v":"CAPEX Installation costs"},0,0,0,0,0,0,0]
[null,"Luminaire UNIT price",null,20,{"$error":"#N/A"},{"$error":"#N/A"},{"$error":"#N/A"},{"$error":"#N/A"},{"$error":"#N/A"},{"$error":"#N/A"},{"$error":"#N/A"},null,null,{"$f":"B334","v":"Luminaire UNIT price"},{"$error":"#N/A"},{"$error":"#N/A"},{"$error":"#N/A"},{"$error":"#N/A"},{"$error":"#N/A"},{"$error":"#N/A"},{"$error":"#N/A"}]
[null,"CAPEX Installation costs","Luminaire (20yrs)",20,{"$error":"#N/A"},{"$error":"#N/A"},{"$error":"#N/A"},{"$error":"#N/A"},{"$error":"#N/A"},{"$error":"#N/A"},{"$error":"#N/A"},null,null,{"$f":"B335","v":"CAPEX Installation costs"},{"$error":"#N/A"},{"$error":"#N/A"},{"$error":"#N/A"},{"$error":"#N/A"},{"$error":"#N/A"},{"$error":"#N/A"},{"$error":"#N/A"}]
[]
[]
[{"$f":"A331+1","v":48},{"$error":"#N/A"},{"$error":"#N/A"},null,null,null,null,null,null,null,null,null,null,{"$error":"#N/A"}]
[null,"Bracket UNIT price",null,40,{"$error":"#N/A"},{"$f":"E339","v":{"$error":"#N/A"}},{"$error":"#N/A"},{"$error":"#N/A"},{"$error":"#N/A"},{"$error":"#N/A"},{"$error":"#N/A"},null,null,{"$f":"B339","v":"Bracket UNIT price"},{"$error":"#N/A"},{"$error":"#N/A"},{"$error":"#N/A"},{"$error":"#N/A"},{"$error":"#N/A"},{"$error":"#N/A"},{"$error":"#N/A"}]
[null,"CAPEX Installation costs","Bracket (40yrs)",40,null,0,0,0,0,0,0,null,null,{"$f":"B340","v":"CAPEX Installation costs"},0,0,0,0,0,0,0]
[null,"Luminaire UNIT price",null,20,{"$error":"#N/A"},{"$error":"#N/A"},{"$error":"#N/A"},{"$error":"#N/A"},{"$error":"#N/A"},{"$error":"#N/A"},{"$error":"#N/A"},null,null,{"$f":"B341","v":"Luminaire UNIT price"},{"$error":"#N/A"},{"$error":"#N/A"},{"$error":"#N/A"},{"$error":"#N/A"},{"$error":"#N/A"},{"$error":"#N/A"},{"$error":"#N/A"}]
[null,"CAPEX Installation costs","Luminaire (20yrs)",20,{"$error":"#N/A"},{"$error":"#N/A"},{"$error":"#N/A"},{"$error":"#N/A"},{"$error":"#N/A"},{"$error":"#N/A"},{"$error":"#N/A"},null,null,{"$f":"B342","v":"CAPEX Installation costs"},{"$error":"#N/A"},{"$error":"#N/A"},{"$error":"#N/A"},{"$error":"#N/A"},{"$error":"#N/A"},{"$error":"#N/A"},{"$error":"#N/A"}]
[]
[]
[{"$f":"A338+1","v":49},{"$error":"#N/A"},{"$error":"#N/A"},null,null,null,null,null,null,null,null,null,null,{"$error":"#N/A"}]
[null,"Bracket UNIT price",null,40,{"$error":"#N/A"},{"$f":"E346","v":{"$error":"#N/A"}},{"$error":"#N/A"},{"$error":"#N/A"},{"$error":"#N/A"},{"$error":"#N/A"},{"$error":"#N/A"},null,null,{"$f":"B346","v":"Bracket UNIT price"},{"$error":"#N/A"},{"$error":"#N/A"},{"$error":"#N/A"},{"$error":"#N/A"},{"$error":"#N/A"},{"$error":"#N/A"},{"$error":"#N/A"}]
[null,"CAPEX Installation costs","Bracket (40yrs)",40,null,0,0,0,0,0,0,null,null,{"$f":"B347","v":"CAPEX Installation costs"},0,0,0,0,0,0,0]
[null,"Luminaire UNIT price",null,20,{"$error":"#N/A"},{"$error":"#N/A"},{"$error":"#N/A"},{"$error":"#N/A"},{"$error":"#N/A"},{"$error":"#N/A"},{"$error":"#N/A"},null,null,{"$f":"B348","v":"Luminaire UNIT price"},{"$error":"#N/A"},{"$error":"#N/A"},{"$error":"#N/A"},{"$error":"#N/A"},{"$error":"#N/A"},{"$error":"#N/A"},{"$error":"#N/A"}]
[null,"CAPEX Installation costs","Luminaire (20yrs)",20,{"$error":"#N/A"},{"$error":"#N/A"},{"$error":"#N/A"},{"$error":"#N/A"},{"$error":"#N/A"},{"$error":"#N/A"},{"$error":"#N/A"},null,null,{"$f":"B349","v":"CAPEX Installation costs"},{"$error":"#N/A"},{"$error":"#N/A"},{"$error":"#N/A"},{"$error":"#N/A"},{"$error":"#N/A"},{"$error":"#N/A"},{"$error":"#N/A"}]
[]
[]
[{"$f":"A345+1","v":50},{"$error":"#N/A"},{"$error":"#N/A"},null,null,null,null,null,null,null,null,null,null,{"$error":"#N/A"}]
[null,"Bracket UNIT price",null,40,{"$error":"#N/A"},{"$f":"E353","v":{"$error":"#N/A"}},{"$error":"#N/A"},{"$error":"#N/A"},{"$error":"#N/A"},{"$error":"#N/A"},{"$error":"#N/A"},null,null,{"$f":"B353","v":"Bracket UNIT price"},{"$error":"#N/A"},{"$error":"#N/A"},{"$error":"#N/A"},{"$error":"#N/A"},{"$error":"#N/A"},{"$error":"#N/A"},{"$error":"#N/A"}]
[null,"CAPEX Installation costs","Bracket (40yrs)",40,null,0,0,0,0,0,0,null,null,{"$f":"B354","v":"CAPEX Installation costs"},0,0,0,0,0,0,0]
[null,"Luminaire UNIT price",null,20,{"$error":"#N/A"},{"$error":"#N/A"},{"$error":"#N/A"},{"$error":"#N/A"},{"$error":"#N/A"},{"$error":"#N/A"},{"$error":"#N/A"},null,null,{"$f":"B355","v":"Luminaire UNIT price"},{"$error":"#N/A"},{"$error":"#N/A"},{"$error":"#N/A"},{"$error":"#N/A"},{"$error":"#N/A"},{"$error":"#N/A"},{"$error":"#N/A"}]
[null,"CAPEX Installation costs","Luminaire (20yrs)",20,{"$error":"#N/A"},{"$error":"#N/A"},{"$error":"#N/A"},{"$error":"#N/A"},{"$error":"#N/A"},{"$error":"#N/A"},{"$error":"#N/A"},null,null,{"$f":"B356","v":"CAPEX Installation costs"},{"$error":"#N/A"},{"$error":"#N/A"},{"$error":"#N/A"},{"$error":"#N/A"},{"$error":"#N/A"},{"$error":"#N/A"},{"$error":"#N/A"}]

{"sheet":"Corp Capex Annuity calcs","index":11,"n_rows":109,"n_cols":12,"rows_kept":109,"cut":false,"hidden":false,"merged":[[1,2,1,3],[1,5,1,9]]}
[]
[null,null,null,null,null,"Annuity Calculation June 2017 $'s"]
[]
[null,null,null,null,null,"2017-18","2018-19","2019-20","2020-21","2021-22","2022-23","2023-24"]
[null,"Shared Assets","June 2017 $'s","Remaining / Effective Life","Annual Annuity","Annual Annuity","Annual Annuity","Annual Annuity","Annual Annuity","Annual Annuity","Annual Annuity","Annual Annuity"]
[null,null,null,"Year",0,1,2,3,4,5,6,7]
[null,"30 June 2017 WDBV"]
[null,"Spare Parts",0,"n/a",0,{"$f":"IF($D8<=E$6,\"\",IF($D8>F$6-0.000001,$E8,$E8*($D8-INT($D8))))","v":0},{"$f":"IF($D8<=F$6,\"\",IF($D8>G$6-0.000001,$E8,$E8*($D8-INT($D8))))","v":0},0,0,0,0,0]
[null,"Motor Vehicles",224351.42137660165,3.7292569715400208,65943.778810157572,{"$f":"IF($D9<=E$6,\"\",IF($D9>F$6-0.000001,$E9,$E9*($D9-INT($D9))))","v":65943.778810157572},{"$f":"IF($D9<=F$6,\"\",IF($D9>G$6-0.000001,$E9,$E9*($D9-INT($D9))))","v":65943.778810157572},65943.778810157572,48089.960427000507,"","",""]
[null,"Minor Assets",656030.6005379468,3.7442209457257203,192111.83453947806,{"$f":"IF($D10<=E$6,\"\",IF($D10>F$6-0.000001,$E10,$E10*($D10-INT($D10))))","v":192111.83453947806},192111.83453947806,192111.83453947806,{"$f":"IF($D10<=H$6,\"\",IF($D10>I$6-0.000001,$E10,$E10*($D10-INT($D10))))","v":142973.65118607346},"","",""]
[null,"NEM Assets",242143.50836533992,1.8085282664607123,141440.23404032725,141440.23404032725,114358.42723642322,"","","","",""]
[null,"Streetlights",null,null,null,"","","","","","",""]
[null,"Non System Property",145430.42258474225,44.24240169561083,7056.9299928140672,7056.9299928140672,7056.9299928140672,7056.9299928140672,7056.9299928140672,7056.9299928140672,7056.9299928140672,7056.9299928140672]
[null,"Non-System Land",0,"n/a",0,0,0,0,0,0,0,0]
[null,"Overhead High Voltage Lines Rural",466507.94639345008,18.585293013920541,36037.594873252892,36037.594873252892,36037.594873252892,36037.594873252892,36037.594873252892,36037.594873252892,36037.594873252892,36037.594873252892]
[null,"Indirect POW Capex",0]
[]
[null,"2017-18"]
[null,{"$f":"B8","v":"Spare Parts"},0,5,0,null,{"$f":"IF($D19<=F$6,\"\",IF($D19>G$6-0.000001,$E19,$E19*($D19-INT($D19))))","v":0},{"$f":"IF($D19<=G$6,\"\",IF($D19>H$6-0.000001,$E19,$E19*($D19-INT($D19))))","v":0},0,0,"",""]
[null,"Motor Vehicles",77307.719905524194,6,14744.843952215526,null,{"$f":"IF($D20<=F$6,\"\",IF($D20>G$6-0.000001,$E20,$E20*($D20-INT($D20))))","v":14744.843952215526},14744.843952215526,14744.843952215526,14744.843952215526,14744.843952215526,""]
[null,"Minor Assets",1036078.9508142836,5,232697.05511012429,null,{"$f":"IF($D21<=F$6,\"\",IF($D21>G$6-0.000001,$E21,$E21*($D21-INT($D21))))","v":232697.05511012429},232697.05511012429,232697.05511012429,232697.05511012429,"",""]
[null,"NEM Assets",0,5,0,null,0,0,0,0,"",""]
[null,"Streetlights",null,null,null,null,"","","","","",""]
[null,"Non System Property",64725.692060717949,40,3267.6099875766408,null,3267.6099875766408,3267.6099875766408,3267.6099875766408,3267.6099875766408,3267.6099875766408,3267.6099875766408]
[null,"Non-System Land",0,0,{"$error":"#NUM!"},null,"","","","","",""]
[null,"Overhead High Voltage Lines Rural",0,35,0,null,0,0,0,0,0,0]
[null,"Indirect POW Capex",937030.09044359368,40,47305.000297579936,null,47305.000297579936,47305.000297579936,47305.000297579936,47305.000297579936,47305.000297579936,47305.000297579936]
[]
[null,"2018-19"]
[null,{"$f":"B19","v":"Spare Parts"},0,5,0,null,null,{"$f":"IF($D30<=G$6,\"\",IF($D30>H$6-0.000001,$E30,$E30*($D30-INT($D30))))","v":0},0,0,"",""]
[null,"Motor Vehicles",148602.97066952431,6,28342.934134333776,null,null,28342.934134333776,28342.934134333776,28342.934134333776,28342.934134333776,""]
[null,"Minor Assets",922490.41769434582,5,207185.75876488449,null,null,207185.75876488449,207185.75876488449,207185.75876488449,"",""]
[null,"NEM Assets",0,5,0,null,null,0,0,0,"",""]
[null,"Streetlights",null,null,null,null,null,"","","","",""]
[null,"Non System Property",95538.532967727791,40,4823.1645670302732,null,null,4823.1645670302732,4823.1645670302732,4823.1645670302732,4823.1645670302732,4823.1645670302732]
[null,"Non-System Land",0,0,{"$error":"#NUM!"},null,null,"","","","",""]
[null,"Overhead High Voltage Lines Rural",0,35,0,null,null,0,0,0,0,0]
[null,"Indirect POW Capex",937030.09044359368,40,47305.000297579936,null,null,47305.000297579936,47305.000297579936,47305.000297579936,47305.000297579936,47305.000297579936]
[]
[null,"2019-20"]
[null,{"$f":"B30","v":"Spare Parts"},0,5,0,null,null,null,{"$f":"IF($D41<=H$6,\"\",IF($D41>I$6-0.000001,$E41,$E41*($D41-INT($D41))))","v":0},0,"",""]
[null,"Motor Vehicles",116586.28862653683,6,22236.416167325187,null,null,null,22236.416167325187,22236.416167325187,22236.416167325187,""]
[null,"Minor Assets",1031641.354885753,5,231700.39795042988,null,null,null,231700.39795042988,231700.39795042988,"",""]
[null,"NEM Assets",0,5,null,null,null,null,0,0,"",""]
[null,"Streetlights",null,null,null,null,null,null,"","","",""]
[null,"Non System Property",100536.43131084305,40,5075.4783241012083,null,null,null,5075.4783241012083,5075.4783241012083,5075.4783241012083,5075.4783241012083]
[null,"Non-System Land",0,0,{"$error":"#NUM!"},null,null,null,"","","",""]
[null,"Overhead High Voltage Lines Rural",0,35,0,null,null,null,0,0,0,0]
[null,"Indirect POW Capex",965128.85907640611,40,48723.537729934498,null,null,null,48723.537729934498,48723.537729934498,48723.537729934498,48723.537729934498]
[]
[null,"2020-21"]
[null,{"$f":"B41","v":"Spare Parts"},0,5,0,null,null,null,null,{"$f":"IF($D52<=I$6,\"\",IF($D52>J$6-0.000001,$E52,$E52*($D52-INT($D52))))","v":0},"",""]
[null,"Motor Vehicles",99243.346059562871,6,18928.60962310457,null,null,null,null,18928.60962310457,18928.60962310457,""]
[null,"Minor Assets",1072368.7636713888,5,240847.52721044942,null,null,null,null,240847.52721044942,"",""]
[null,"NEM Assets",0,5,0,null,null,null,null,0,"",""]
[null,"Streetlights",null,null,null,null,null,null,null,"","",""]
[null,"Non System Property",89679.7492639173,40,4527.3898980215035,null,null,null,null,4527.3898980215035,4527.3898980215035,4527.3898980215035]
[null,"Non-System Land",0,0,{"$error":"#NUM!"},null,null,null,null,"","",""]
[null,"Overhead High Voltage Lines Rural",0,35,0,null,null,null,null,0,0,0]
[null,"Indirect POW Capex",759256.13532499992,40,38330.26502968058,null,null,null,null,38330.26502968058,38330.26502968058,38330.26502968058]
[]
[null,"2021-22"]
[null,{"$f":"B52","v":"Spare Parts"},0,5,0,null,null,null,null,null,{"$f":"IF($D63<=J$6,\"\",IF($D63>K$6-0.000001,$E63,$E63*($D63-INT($D63))))","v":""},""]
[null,"Motor Vehicles",101120.57622700732,6,19286.652337534466,null,null,null,null,null,19286.652337534466,""]
[null,"Minor Assets",1105066.4604529787,5,248191.23180359832,null,null,null,null,null,"",""]
[null,"NEM Assets",0,5,0,null,null,null,null,null,"",""]
[null,"Streetlights",null,null,null,null,null,null,null,null,"",""]
[null,"Non System Property",90854.895348737569,40,4586.7159393717939,null,null,null,null,null,4586.7159393717939,4586.7159393717939]
[null,"Non-System Land",0,0,{"$error":"#NUM!"},null,null,null,null,null,"",""]
[null,"Overhead High Voltage Lines Rural",0,35,0,null,null,null,null,null,0,0]
[null,"Indirect POW Capex",787354.90395781246,40,39748.80246203515,null,null,null,null,null,39748.80246203515,39748.80246203515]
[]
[null,"2022-23"]
[null,{"$f":"B63","v":"Spare Parts"},0,5,0,null,null,null,null,null,null,{"$f":"IF($D74<=K$6,\"\",IF($D74>L$6-0.000001,$E74,$E74*($D74-INT($D74))))","v":""}]
[null,"Motor Vehicles",96367.142656135897,6,18380.033485945321,null,null,null,null,null,null,""]
[null,"Minor Assets",1093215.1217608436,5,245529.49293649258,null,null,null,null,null,null,""]
[null,"NEM Assets",0,5,0,null,null,null,null,null,null,""]
[null,"Streetlights",null,null,null,null,null,null,null,null,null,""]
[null,"Non System Property",87879.245933372062,40,4436.4933393561196,null,null,null,null,null,null,4436.4933393561196]
[null,"Non-System Land",0,0,{"$error":"#NUM!"},null,null,null,null,null,null,""]
[null,"Overhead High Voltage Lines Rural",0,35,0,null,null,null,null,null,null,0]
[null,"Indirect POW Capex",787354.90395781246,40,39748.80246203515,null,null,null,null,null,null,{"$f":"IF($D82<=K$6,\"\",IF($D82>L$6-0.000001,$E82,$E82*($D82-INT($D82))))","v":39748.80246203515}]
[]
[null,"2023-24"]
[null,{"$f":"B74","v":"Spare Parts"},0,5,0]
[null,"Motor Vehicles",89032.886618114047,6,16981.176283606601]
[null,"Minor Assets",1023076.509989519,5,229776.78567815828]
[null,"NEM Assets",0,5,0]
[null,"Streetlights"]
[null,"Non System Property",83288.001653570333,40,4204.7090943918356]
[null,"Non-System Land",0,0,{"$error":"#NUM!"}]
[null,"Overhead High Voltage Lines Rural",0,35,0]
[null,"Indirect POW Capex",815453.67259062501,40,41167.339894389726]
[]
[]
[null,"Total",{"$f":"SUM(C8:C94)","v":16347773.613623325},null,null,{"$f":"SUM(F8:F94)","v":442590.37225602986},{"$f":"SUM(G8:G94)","v":713523.07479962218},886821.50532702729,1127565.3337622567,1239135.5139104386,390326.94561349199,330972.78520036972]
[]
[]
[]
[]
[null,null,null,"NPV",4416803.4736788571,{"$f":"F96","v":442590.37225602986},{"$f":"G96","v":713523.07479962218},886821.50532702729,1127565.3337622567,1239135.5139104386,390326.94561349199,330972.78520036972]
[]
[null,null,null,"NPV",4416803.473678858,{"$f":"$E$101/$E$104","v":735738.95890271629},{"$f":"$E$101/$E$104","v":735738.95890271629},735738.95890271629,735738.95890271629,735738.95890271629,735738.95890271629,{"$f":"$E$101/$E$104","v":735738.95890271629}]
[null,null,null,"Discount factor",{"$f":"SUM(F104:L104)","v":6.0032208709813242},0.96158706768991942,0.92464968874849751,0.88913118284406434,0.85497704690269327,0.82213487147334752,0.79055426030568487,0.7601867530171168]
[]
[null,"Real Annuity Charge to be allocated",null,null,null,{"$f":"F103","v":735738.95890271629},{"$f":"G103","v":735738.95890271629},735738.95890271629,735738.95890271629,735738.95890271629,735738.95890271629,735738.95890271629]
[]
[null,"Total Lights",null,null,null,49622,50020,50438,50878,51368,51907,52496]
[null,"Corp capex annuity per Light",null,null,null,{"$f":"F106/F108","v":14.826870317655803},{"$f":"G106/G108","v":14.708895619806404},14.586997083601972,14.460846709829715,14.322904510643129,14.174176101541532,14.015143228107213]

{"sheet":"Revenue Nominal RAB","index":12,"n_rows":297,"n_cols":11,"rows_kept":297,"cut":false,"hidden":false,"merged":[[90,6,90,7],[159,6,159,7],[90,9,90,10],[159,9,159,10],[229,3,229,4],[229,2,230,2],[15,2,16,2],[21,3,21,4],[90,3,90,4],[159,3,159,4]]}
[null,"Revenue per the PTRM work paper",null,{"$f":"'Master Data'!I$28","v":"Year 3"},{"$f":"'Master Data'!J$28","v":"Year 4"}]
[null,"Year",null,{"$f":"'Master Data'!I$29","v":"2017-18"},{"$f":"'Master Data'!J$29","v":"2018-19"}]
[null,"Nominal ($m)"]
[null,"Building block components"]
[null,"Return on capital","Link to PTRM",1.0784317682678153,1.3740174873305153]
[null,"Regulated Asset base (regulatory depreciation)","Link to PTRM",1.3253951001224902,1.7157263332430879]
[]
[null,null,null,{"$f":"SUM(D5:D7)","v":2.4038268683903055},{"$f":"SUM(E5:E7)","v":3.0897438205736032}]
[]
[null,"Operating Expenditure","Link to PTRM",3.2521838732341295,3.3797662142059619]
[null,"After Tax and Imputation credits","Below weighting",{"$f":"D15","v":0},{"$f":"E15","v":0}]
[null,null,null,{"$f":"SUM(D10:D11)","v":3.2521838732341295},3.3797662142059619]
[null,null,"Total Revenue",{"$f":"D8+D12","v":5.656010741624435},6.4695100347795655]
[]
[null,"After Tax and Imputation credits","Link to PTRM",0,0]
[]
[]
[]
[]
[null,null,null,{"$f":"'Master Data'!I23","v":365},{"$f":"'Master Data'!J23","v":365},null,{"$f":"'Master Data'!I23","v":365},{"$f":"'Master Data'!J23","v":365},null,{"$f":"'Master Data'!I23","v":365},{"$f":"'Master Data'!J23","v":365}]
[]
["Filter","Public Lighting",null,null,null,null,"Revenue per Year ($m) ",null,null,"Annual Cost Per Year ($) "]
[null,"Meter Type",null,{"$f":"'Master Data'!I$29","v":"2017-18"},{"$f":"'Master Data'!J$29","v":"2018-19"},null,{"$f":"'Master Data'!I$29","v":"2017-18"},{"$f":"'Master Data'!J$29","v":"2018-19"},null,{"$f":"'Master Data'!I$29","v":"2017-18"},{"$f":"'Master Data'!J$29","v":"2018-19"}]
[{"$f":"IF(B24=0,\"x\",\"\")","v":""},{"$f":"Inputs!C69","v":"32W Compact Fluorescent"},null,{"$f":"IFERROR(D$8*10^6*(VLOOKUP($B24,'Capex Weighting'!$B$14:$X$76,MATCH(D$23&\" Capex weighting\",'Capex Weighting'!$B$14:$X$14,0),FALSE))/VLOOKUP($B24,$B$232:$E$294,MATCH(D$23,$B$231:$E$231,0),FALSE)/D$20*100,0)","v":0},{"$f":"IFERROR(E$8*10^6*(VLOOKUP($B24,'Capex Weighting'!$B$14:$X$76,MATCH(E$23&\" Capex weighting\",'Capex Weighting'!$B$14:$X$14,0),FALSE))/VLOOKUP($B24,$B$232:$E$294,MATCH(E$23,$B$231:$E$231,0),FALSE)/E$20*100,0)","v":0},null,{"$f":"IFERROR(D24*VLOOKUP($B24,$B$232:$E$294,MATCH(G$23,$B$231:$E$231,0),FALSE)*G$20/100/10^6,0)","v":0},{"$f":"IFERROR(E24*VLOOKUP($B24,$B$232:$E$294,MATCH(H$23,$B$231:$E$231,0),FALSE)*H$20/100/10^6,0)","v":0},null,{"$f":"IFERROR(D24/100*J$20,0)","v":0},{"$f":"IFERROR(E24/100*K$20,0)","v":0}]
["",{"$f":"Inputs!C70","v":"42W Compact Fluorescent"},null,{"$f":"IFERROR(D$8*10^6*(VLOOKUP($B25,'Capex Weighting'!$B$14:$X$76,MATCH(D$23&\" Capex weighting\",'Capex Weighting'!$B$14:$X$14,0),FALSE))/VLOOKUP($B25,$B$232:$E$294,MATCH(D$23,$B$231:$E$231,0),FALSE)/D$20*100,0)","v":16.004279038185327},{"$f":"IFERROR(E$8*10^6*(VLOOKUP($B25,'Capex Weighting'!$B$14:$X$76,MATCH(E$23&\" Capex weighting\",'Capex Weighting'!$B$14:$X$14,0),FALSE))/VLOOKUP($B25,$B$232:$E$294,MATCH(E$23,$B$231:$E$231,0),FALSE)/E$20*100,0)","v":22.215021597794461},null,0.33320268786340324,0.43939868744033594,null,58.415618489376442,81.084828831949778]
["",{"$f":"Inputs!C71","v":"42W Compact Fluorescent - Bottom Pole Entry"},null,{"$f":"IFERROR(D$8*10^6*(VLOOKUP($B26,'Capex Weighting'!$B$14:$X$76,MATCH(D$23&\" Capex weighting\",'Capex Weighting'!$B$14:$X$14,0),FALSE))/VLOOKUP($B26,$B$232:$E$294,MATCH(D$23,$B$231:$E$231,0),FALSE)/D$20*100,0)","v":16.124081027231959},{"$f":"IFERROR(E$8*10^6*(VLOOKUP($B26,'Capex Weighting'!$B$14:$X$76,MATCH(E$23&\" Capex weighting\",'Capex Weighting'!$B$14:$X$14,0),FALSE))/VLOOKUP($B26,$B$232:$E$294,MATCH(E$23,$B$231:$E$231,0),FALSE)/E$20*100,0)","v":22.381314860226322},null,7.0623474899275986E-3,1.3887605870770432E-2,null,58.852895749396652,81.691799239826082]
["",{"$f":"Inputs!C72","v":"2x24W Compact Fluorescent"},null,{"$f":"IFERROR(D$8*10^6*(VLOOKUP($B27,'Capex Weighting'!$B$14:$X$76,MATCH(D$23&\" Capex weighting\",'Capex Weighting'!$B$14:$X$14,0),FALSE))/VLOOKUP($B27,$B$232:$E$294,MATCH(D$23,$B$231:$E$231,0),FALSE)/D$20*100,0)","v":0},{"$f":"IFERROR(E$8*10^6*(VLOOKUP($B27,'Capex Weighting'!$B$14:$X$76,MATCH(E$23&\" Capex weighting\",'Capex Weighting'!$B$14:$X$14,0),FALSE))/VLOOKUP($B27,$B$232:$E$294,MATCH(E$23,$B$231:$E$231,0),FALSE)/E$20*100,0)","v":0},null,0,0,null,0,0]
["",{"$f":"Inputs!C73","v":"1x20W Fluorescent"},null,{"$f":"IFERROR(D$8*10^6*(VLOOKUP($B28,'Capex Weighting'!$B$14:$X$76,MATCH(D$23&\" Capex weighting\",'Capex Weighting'!$B$14:$X$14,0),FALSE))/VLOOKUP($B28,$B$232:$E$294,MATCH(D$23,$B$231:$E$231,0),FALSE)/D$20*100,0)","v":0},{"$f":"IFERROR(E$8*10^6*(VLOOKUP($B28,'Capex Weighting'!$B$14:$X$76,MATCH(E$23&\" Capex weighting\",'Capex Weighting'!$B$14:$X$14,0),FALSE))/VLOOKUP($B28,$B$232:$E$294,MATCH(E$23,$B$231:$E$231,0),FALSE)/E$20*100,0)","v":0},null,0,0,null,0,0]
["",{"$f":"Inputs!C74","v":"1x40W Fluorescent"},null,{"$f":"IFERROR(D$8*10^6*(VLOOKUP($B29,'Capex Weighting'!$B$14:$X$76,MATCH(D$23&\" Capex weighting\",'Capex Weighting'!$B$14:$X$14,0),FALSE))/VLOOKUP($B29,$B$232:$E$294,MATCH(D$23,$B$231:$E$231,0),FALSE)/D$20*100,0)","v":0},{"$f":"IFERROR(E$8*10^6*(VLOOKUP($B29,'Capex Weighting'!$B$14:$X$76,MATCH(E$23&\" Capex weighting\",'Capex Weighting'!$B$14:$X$14,0),FALSE))/VLOOKUP($B29,$B$232:$E$294,MATCH(E$23,$B$231:$E$231,0),FALSE)/E$20*100,0)","v":0},null,0,0,null,0,0]
["",{"$f":"Inputs!C75","v":"2x20W Fluorescent"},null,{"$f":"IFERROR(D$8*10^6*(VLOOKUP($B30,'Capex Weighting'!$B$14:$X$76,MATCH(D$23&\" Capex weighting\",'Capex Weighting'!$B$14:$X$14,0),FALSE))/VLOOKUP($B30,$B$232:$E$294,MATCH(D$23,$B$231:$E$231,0),FALSE)/D$20*100,0)","v":0},{"$f":"IFERROR(E$8*10^6*(VLOOKUP($B30,'Capex Weighting'!$B$14:$X$76,MATCH(E$23&\" Capex weighting\",'Capex Weighting'!$B$14:$X$14,0),FALSE))/VLOOKUP($B30,$B$232:$E$294,MATCH(E$23,$B$231:$E$231,0),FALSE)/E$20*100,0)","v":0},null,0,0,null,0,0]
["",{"$f":"Inputs!C76","v":"2x24W Fluorescent"},null,{"$f":"IFERROR(D$8*10^6*(VLOOKUP($B31,'Capex Weighting'!$B$14:$X$76,MATCH(D$23&\" Capex weighting\",'Capex Weighting'!$B$14:$X$14,0),FALSE))/VLOOKUP($B31,$B$232:$E$294,MATCH(D$23,$B$231:$E$231,0),FALSE)/D$20*100,0)","v":0},{"$f":"IFERROR(E$8*10^6*(VLOOKUP($B31,'Capex Weighting'!$B$14:$X$76,MATCH(E$23&\" Capex weighting\",'Capex Weighting'!$B$14:$X$14,0),FALSE))/VLOOKUP($B31,$B$232:$E$294,MATCH(E$23,$B$231:$E$231,0),FALSE)/E$20*100,0)","v":0},null,0,0,null,0,0]
["",{"$f":"Inputs!C77","v":"T5 Fluorescent 2 x 24W"},null,{"$f":"IFERROR(D$8*10^6*(VLOOKUP($B32,'Capex Weighting'!$B$14:$X$76,MATCH(D$23&\" Capex weighting\",'Capex Weighting'!$B$14:$X$14,0),FALSE))/VLOOKUP($B32,$B$232:$E$294,MATCH(D$23,$B$231:$E$231,0),FALSE)/D$20*100,0)","v":17.187744298660064},{"$f":"IFERROR(E$8*10^6*(VLOOKUP($B32,'Capex Weighting'!$B$14:$X$76,MATCH(E$23&\" Capex weighting\",'Capex Weighting'!$B$14:$X$14,0),FALSE))/VLOOKUP($B32,$B$232:$E$294,MATCH(E$23,$B$231:$E$231,0),FALSE)/E$20*100,0)","v":23.857751411424786},null,5.207027135279067E-3,7.2277057900911393E-3,null,62.735266690109242,87.080792651700463]
["",{"$f":"Inputs!C78","v":"20 Fluorescent 1X20FL"},null,{"$f":"IFERROR(D$8*10^6*(VLOOKUP($B33,'Capex Weighting'!$B$14:$X$76,MATCH(D$23&\" Capex weighting\",'Capex Weighting'!$B$14:$X$14,0),FALSE))/VLOOKUP($B33,$B$232:$E$294,MATCH(D$23,$B$231:$E$231,0),FALSE)/D$20*100,0)","v":0},{"$f":"IFERROR(E$8*10^6*(VLOOKUP($B33,'Capex Weighting'!$B$14:$X$76,MATCH(E$23&\" Capex weighting\",'Capex Weighting'!$B$14:$X$14,0),FALSE))/VLOOKUP($B33,$B$232:$E$294,MATCH(E$23,$B$231:$E$231,0),FALSE)/E$20*100,0)","v":0},null,0,0,null,0,0]
["",{"$f":"Inputs!C79","v":"2x40W Fluorescent"},null,{"$f":"IFERROR(D$8*10^6*(VLOOKUP($B34,'Capex Weighting'!$B$14:$X$76,MATCH(D$23&\" Capex weighting\",'Capex Weighting'!$B$14:$X$14,0),FALSE))/VLOOKUP($B34,$B$232:$E$294,MATCH(D$23,$B$231:$E$231,0),FALSE)/D$20*100,0)","v":0},{"$f":"IFERROR(E$8*10^6*(VLOOKUP($B34,'Capex Weighting'!$B$14:$X$76,MATCH(E$23&\" Capex weighting\",'Capex Weighting'!$B$14:$X$14,0),FALSE))/VLOOKUP($B34,$B$232:$E$294,MATCH(E$23,$B$231:$E$231,0),FALSE)/E$20*100,0)","v":0},null,0,0,null,0,0]
["",{"$f":"Inputs!C80","v":"3x40W Fluorescent"},null,{"$f":"IFERROR(D$8*10^6*(VLOOKUP($B35,'Capex Weighting'!$B$14:$X$76,MATCH(D$23&\" Capex weighting\",'Capex Weighting'!$B$14:$X$14,0),FALSE))/VLOOKUP($B35,$B$232:$E$294,MATCH(D$23,$B$231:$E$231,0),FALSE)/D$20*100,0)","v":0},{"$f":"IFERROR(E$8*10^6*(VLOOKUP($B35,'Capex Weighting'!$B$14:$X$76,MATCH(E$23&\" Capex weighting\",'Capex Weighting'!$B$14:$X$14,0),FALSE))/VLOOKUP($B35,$B$232:$E$294,MATCH(E$23,$B$231:$E$231,0),FALSE)/E$20*100,0)","v":0},null,0,0,null,0,0]
["",{"$f":"Inputs!C81","v":"4x20 Fluorescent"},null,{"$f":"IFERROR(D$8*10^6*(VLOOKUP($B36,'Capex Weighting'!$B$14:$X$76,MATCH(D$23&\" Capex weighting\",'Capex Weighting'!$B$14:$X$14,0),FALSE))/VLOOKUP($B36,$B$232:$E$294,MATCH(D$23,$B$231:$E$231,0),FALSE)/D$20*100,0)","v":0},{"$f":"IFERROR(E$8*10^6*(VLOOKUP($B36,'Capex Weighting'!$B$14:$X$76,MATCH(E$23&\" Capex weighting\",'Capex Weighting'!$B$14:$X$14,0),FALSE))/VLOOKUP($B36,$B$232:$E$294,MATCH(E$23,$B$231:$E$231,0),FALSE)/E$20*100,0)","v":0},null,0,0,null,0,0]
["",{"$f":"Inputs!C82","v":"4x40W Fluorescent"},null,{"$f":"IFERROR(D$8*10^6*(VLOOKUP($B37,'Capex Weighting'!$B$14:$X$76,MATCH(D$23&\" Capex weighting\",'Capex Weighting'!$B$14:$X$14,0),FALSE))/VLOOKUP($B37,$B$232:$E$294,MATCH(D$23,$B$231:$E$231,0),FALSE)/D$20*100,0)","v":0},{"$f":"IFERROR(E$8*10^6*(VLOOKUP($B37,'Capex Weighting'!$B$14:$X$76,MATCH(E$23&\" Capex weighting\",'Capex Weighting'!$B$14:$X$14,0),FALSE))/VLOOKUP($B37,$B$232:$E$294,MATCH(E$23,$B$231:$E$231,0),FALSE)/E$20*100,0)","v":0},null,0,0,null,0,0]
["",{"$f":"Inputs!C83","v":"100W Sodium Vapour"},null,{"$f":"IFERROR(D$8*10^6*(VLOOKUP($B38,'Capex Weighting'!$B$14:$X$76,MATCH(D$23&\" Capex weighting\",'Capex Weighting'!$B$14:$X$14,0),FALSE))/VLOOKUP($B38,$B$232:$E$294,MATCH(D$23,$B$231:$E$231,0),FALSE)/D$20*100,0)","v":24.485728731216224},{"$f":"IFERROR(E$8*10^6*(VLOOKUP($B38,'Capex Weighting'!$B$14:$X$76,MATCH(E$23&\" Capex weighting\",'Capex Weighting'!$B$14:$X$14,0),FALSE))/VLOOKUP($B38,$B$232:$E$294,MATCH(E$23,$B$231:$E$231,0),FALSE)/E$20*100,0)","v":33.987847331570997},null,3.6017282677182509E-2,5.2475536887579034E-2,null,89.372909868939217,124.05564276023414]
[{"$f":"IF(B39=0,\"x\",\"\")","v":"x"},{"$f":"Inputs!C84","v":0},null,{"$f":"IFERROR(D$8*10^6*(VLOOKUP($B39,'Capex Weighting'!$B$14:$X$76,MATCH(D$23&\" Capex weighting\",'Capex Weighting'!$B$14:$X$14,0),FALSE))/VLOOKUP($B39,$B$232:$E$294,MATCH(D$23,$B$231:$E$231,0),FALSE)/D$20*100,0)","v":0},{"$f":"IFERROR(E$8*10^6*(VLOOKUP($B39,'Capex Weighting'!$B$14:$X$76,MATCH(E$23&\" Capex weighting\",'Capex Weighting'!$B$14:$X$14,0),FALSE))/VLOOKUP($B39,$B$232:$E$294,MATCH(E$23,$B$231:$E$231,0),FALSE)/E$20*100,0)","v":0},null,0,0,null,0,0]
[{"$f":"IF(B40=0,\"x\",\"\")","v":""},{"$f":"Inputs!C85","v":"150W Sodium Vapour"},null,{"$f":"IFERROR(D$8*10^6*(VLOOKUP($B40,'Capex Weighting'!$B$14:$X$76,MATCH(D$23&\" Capex weighting\",'Capex Weighting'!$B$14:$X$14,0),FALSE))/VLOOKUP($B40,$B$232:$E$294,MATCH(D$23,$B$231:$E$231,0),FALSE)/D$20*100,0)","v":25.414293159495678},{"$f":"IFERROR(E$8*10^6*(VLOOKUP($B40,'Capex Weighting'!$B$14:$X$76,MATCH(E$23&\" Capex weighting\",'Capex Weighting'!$B$14:$X$14,0),FALSE))/VLOOKUP($B40,$B$232:$E$294,MATCH(E$23,$B$231:$E$231,0),FALSE)/E$20*100,0)","v":35.276757552390961},null,0.44776299474523251,0.65268527672070464,null,92.762170032159219,128.76016506622702]
["x",{"$f":"Inputs!C86","v":0},null,{"$f":"IFERROR(D$8*10^6*(VLOOKUP($B41,'Capex Weighting'!$B$14:$X$76,MATCH(D$23&\" Capex weighting\",'Capex Weighting'!$B$14:$X$14,0),FALSE))/VLOOKUP($B41,$B$232:$E$294,MATCH(D$23,$B$231:$E$231,0),FALSE)/D$20*100,0)","v":0},{"$f":"IFERROR(E$8*10^6*(VLOOKUP($B41,'Capex Weighting'!$B$14:$X$76,MATCH(E$23&\" Capex weighting\",'Capex Weighting'!$B$14:$X$14,0),FALSE))/VLOOKUP($B41,$B$232:$E$294,MATCH(E$23,$B$231:$E$231,0),FALSE)/E$20*100,0)","v":0},null,0,0,null,0,0]
["x",{"$f":"Inputs!C87","v":0},null,{"$f":"IFERROR(D$8*10^6*(VLOOKUP($B42,'Capex Weighting'!$B$14:$X$76,MATCH(D$23&\" Capex weighting\",'Capex Weighting'!$B$14:$X$14,0),FALSE))/VLOOKUP($B42,$B$232:$E$294,MATCH(D$23,$B$231:$E$231,0),FALSE)/D$20*100,0)","v":0},{"$f":"IFERROR(E$8*10^6*(VLOOKUP($B42,'Capex Weighting'!$B$14:$X$76,MATCH(E$23&\" Capex weighting\",'Capex Weighting'!$B$14:$X$14,0),FALSE))/VLOOKUP($B42,$B$232:$E$294,MATCH(E$23,$B$231:$E$231,0),FALSE)/E$20*100,0)","v":0},null,0,0,null,0,0]
["x",{"$f":"Inputs!C88","v":0},null,{"$f":"IFERROR(D$8*10^6*(VLOOKUP($B43,'Capex Weighting'!$B$14:$X$76,MATCH(D$23&\" Capex weighting\",'Capex Weighting'!$B$14:$X$14,0),FALSE))/VLOOKUP($B43,$B$232:$E$294,MATCH(D$23,$B$231:$E$231,0),FALSE)/D$20*100,0)","v":0},{"$f":"IFERROR(E$8*10^6*(VLOOKUP($B43,'Capex Weighting'!$B$14:$X$76,MATCH(E$23&\" Capex weighting\",'Capex Weighting'!$B$14:$X$14,0),FALSE))/VLOOKUP($B43,$B$232:$E$294,MATCH(E$23,$B$231:$E$231,0),FALSE)/E$20*100,0)","v":0},null,0,0,null,0,0]
["",{"$f":"Inputs!C89","v":"250W Sodium Vapour"},null,{"$f":"IFERROR(D$8*10^6*(VLOOKUP($B44,'Capex Weighting'!$B$14:$X$76,MATCH(D$23&\" Capex weighting\",'Capex Weighting'!$B$14:$X$14,0),FALSE))/VLOOKUP($B44,$B$232:$E$294,MATCH(D$23,$B$231:$E$231,0),FALSE)/D$20*100,0)","v":26.344589599770462},{"$f":"IFERROR(E$8*10^6*(VLOOKUP($B44,'Capex Weighting'!$B$14:$X$76,MATCH(E$23&\" Capex weighting\",'Capex Weighting'!$B$14:$X$14,0),FALSE))/VLOOKUP($B44,$B$232:$E$294,MATCH(E$23,$B$231:$E$231,0),FALSE)/E$20*100,0)","v":36.568071922988139},null,0.57694651223497317,0.84088281386911223,null,96.15775203916219,133.4734625189067]
["x",{"$f":"Inputs!C90","v":0},null,{"$f":"IFERROR(D$8*10^6*(VLOOKUP($B45,'Capex Weighting'!$B$14:$X$76,MATCH(D$23&\" Capex weighting\",'Capex Weighting'!$B$14:$X$14,0),FALSE))/VLOOKUP($B45,$B$232:$E$294,MATCH(D$23,$B$231:$E$231,0),FALSE)/D$20*100,0)","v":0},{"$f":"IFERROR(E$8*10^6*(VLOOKUP($B45,'Capex Weighting'!$B$14:$X$76,MATCH(E$23&\" Capex weighting\",'Capex Weighting'!$B$14:$X$14,0),FALSE))/VLOOKUP($B45,$B$232:$E$294,MATCH(E$23,$B$231:$E$231,0),FALSE)/E$20*100,0)","v":0},null,0,0,null,0,0]
["x",{"$f":"Inputs!C91","v":0},null,{"$f":"IFERROR(D$8*10^6*(VLOOKUP($B46,'Capex Weighting'!$B$14:$X$76,MATCH(D$23&\" Capex weighting\",'Capex Weighting'!$B$14:$X$14,0),FALSE))/VLOOKUP($B46,$B$232:$E$294,MATCH(D$23,$B$231:$E$231,0),FALSE)/D$20*100,0)","v":0},{"$f":"IFERROR(E$8*10^6*(VLOOKUP($B46,'Capex Weighting'!$B$14:$X$76,MATCH(E$23&\" Capex weighting\",'Capex Weighting'!$B$14:$X$14,0),FALSE))/VLOOKUP($B46,$B$232:$E$294,MATCH(E$23,$B$231:$E$231,0),FALSE)/E$20*100,0)","v":0},null,0,0,null,0,0]
["x",{"$f":"Inputs!C92","v":0},null,{"$f":"IFERROR(D$8*10^6*(VLOOKUP($B47,'Capex Weighting'!$B$14:$X$76,MATCH(D$23&\" Capex weighting\",'Capex Weighting'!$B$14:$X$14,0),FALSE))/VLOOKUP($B47,$B$232:$E$294,MATCH(D$23,$B$231:$E$231,0),FALSE)/D$20*100,0)","v":0},{"$f":"IFERROR(E$8*10^6*(VLOOKUP($B47,'Capex Weighting'!$B$14:$X$76,MATCH(E$23&\" Capex weighting\",'Capex Weighting'!$B$14:$X$14,0),FALSE))/VLOOKUP($B47,$B$232:$E$294,MATCH(E$23,$B$231:$E$231,0),FALSE)/E$20*100,0)","v":0},null,0,0,null,0,0]
["",{"$f":"Inputs!C93","v":"250W Sodium Vapour - Flood Light"},null,{"$f":"IFERROR(D$8*10^6*(VLOOKUP($B48,'Capex Weighting'!$B$14:$X$76,MATCH(D$23&\" Capex weighting\",'Capex Weighting'!$B$14:$X$14,0),FALSE))/VLOOKUP($B48,$B$232:$E$294,MATCH(D$23,$B$231:$E$231,0),FALSE)/D$20*100,0)","v":26.344589599770462},{"$f":"IFERROR(E$8*10^6*(VLOOKUP($B48,'Capex Weighting'!$B$14:$X$76,MATCH(E$23&\" Capex weighting\",'Capex Weighting'!$B$14:$X$14,0),FALSE))/VLOOKUP($B48,$B$232:$E$294,MATCH(E$23,$B$231:$E$231,0),FALSE)/E$20*100,0)","v":36.568071922988125},null,3.1732058172923515E-3,4.671571188161733E-3,null,96.15775203916219,133.47346251890667]
["",{"$f":"Inputs!C94","v":"400W Sodium Vapour"},null,{"$f":"IFERROR(D$8*10^6*(VLOOKUP($B49,'Capex Weighting'!$B$14:$X$76,MATCH(D$23&\" Capex weighting\",'Capex Weighting'!$B$14:$X$14,0),FALSE))/VLOOKUP($B49,$B$232:$E$294,MATCH(D$23,$B$231:$E$231,0),FALSE)/D$20*100,0)","v":25.645263807306375},{"$f":"IFERROR(E$8*10^6*(VLOOKUP($B49,'Capex Weighting'!$B$14:$X$76,MATCH(E$23&\" Capex weighting\",'Capex Weighting'!$B$14:$X$14,0),FALSE))/VLOOKUP($B49,$B$232:$E$294,MATCH(E$23,$B$231:$E$231,0),FALSE)/E$20*100,0)","v":35.597360430991671},null,5.7192785079864313E-2,8.3415294697942774E-2,null,93.605212896668263,129.93036557311959]
["x",{"$f":"Inputs!C95","v":0},null,{"$f":"IFERROR(D$8*10^6*(VLOOKUP($B50,'Capex Weighting'!$B$14:$X$76,MATCH(D$23&\" Capex weighting\",'Capex Weighting'!$B$14:$X$14,0),FALSE))/VLOOKUP($B50,$B$232:$E$294,MATCH(D$23,$B$231:$E$231,0),FALSE)/D$20*100,0)","v":0},{"$f":"IFERROR(E$8*10^6*(VLOOKUP($B50,'Capex Weighting'!$B$14:$X$76,MATCH(E$23&\" Capex weighting\",'Capex Weighting'!$B$14:$X$14,0),FALSE))/VLOOKUP($B50,$B$232:$E$294,MATCH(E$23,$B$231:$E$231,0),FALSE)/E$20*100,0)","v":0},null,0,0,null,0,0]
["",{"$f":"Inputs!C96","v":"400W Sodium Vapour - Flood Light"},null,{"$f":"IFERROR(D$8*10^6*(VLOOKUP($B51,'Capex Weighting'!$B$14:$X$76,MATCH(D$23&\" Capex weighting\",'Capex Weighting'!$B$14:$X$14,0),FALSE))/VLOOKUP($B51,$B$232:$E$294,MATCH(D$23,$B$231:$E$231,0),FALSE)/D$20*100,0)","v":25.645263807306367},{"$f":"IFERROR(E$8*10^6*(VLOOKUP($B51,'Capex Weighting'!$B$14:$X$76,MATCH(E$23&\" Capex weighting\",'Capex Weighting'!$B$14:$X$14,0),FALSE))/VLOOKUP($B51,$B$232:$E$294,MATCH(E$23,$B$231:$E$231,0),FALSE)/E$20*100,0)","v":35.597360430991678},null,3.0889720255900519E-3,4.5475627950591867E-3,null,93.605212896668249,129.93036557311962]
["",{"$f":"Inputs!C97","v":"70W Sodium Vapour"},null,{"$f":"IFERROR(D$8*10^6*(VLOOKUP($B52,'Capex Weighting'!$B$14:$X$76,MATCH(D$23&\" Capex weighting\",'Capex Weighting'!$B$14:$X$14,0),FALSE))/VLOOKUP($B52,$B$232:$E$294,MATCH(D$23,$B$231:$E$231,0),FALSE)/D$20*100,0)","v":16.815897634034265},{"$f":"IFERROR(E$8*10^6*(VLOOKUP($B52,'Capex Weighting'!$B$14:$X$76,MATCH(E$23&\" Capex weighting\",'Capex Weighting'!$B$14:$X$14,0),FALSE))/VLOOKUP($B52,$B$232:$E$294,MATCH(E$23,$B$231:$E$231,0),FALSE)/E$20*100,0)","v":23.341603094713943},null,1.3134897641944164E-2,1.9169291541533826E-2,null,61.378026364225072,85.196851295705883]
["x",{"$f":"Inputs!C98","v":0},null,{"$f":"IFERROR(D$8*10^6*(VLOOKUP($B53,'Capex Weighting'!$B$14:$X$76,MATCH(D$23&\" Capex weighting\",'Capex Weighting'!$B$14:$X$14,0),FALSE))/VLOOKUP($B53,$B$232:$E$294,MATCH(D$23,$B$231:$E$231,0),FALSE)/D$20*100,0)","v":0},{"$f":"IFERROR(E$8*10^6*(VLOOKUP($B53,'Capex Weighting'!$B$14:$X$76,MATCH(E$23&\" Capex weighting\",'Capex Weighting'!$B$14:$X$14,0),FALSE))/VLOOKUP($B53,$B$232:$E$294,MATCH(E$23,$B$231:$E$231,0),FALSE)/E$20*100,0)","v":0},null,0,0,null,0,0]
["",{"$f":"Inputs!C99","v":"100W Incandescent"},null,{"$f":"IFERROR(D$8*10^6*(VLOOKUP($B54,'Capex Weighting'!$B$14:$X$76,MATCH(D$23&\" Capex weighting\",'Capex Weighting'!$B$14:$X$14,0),FALSE))/VLOOKUP($B54,$B$232:$E$294,MATCH(D$23,$B$231:$E$231,0),FALSE)/D$20*100,0)","v":0},{"$f":"IFERROR(E$8*10^6*(VLOOKUP($B54,'Capex Weighting'!$B$14:$X$76,MATCH(E$23&\" Capex weighting\",'Capex Weighting'!$B$14:$X$14,0),FALSE))/VLOOKUP($B54,$B$232:$E$294,MATCH(E$23,$B$231:$E$231,0),FALSE)/E$20*100,0)","v":0},null,0,0,null,0,0]
["",{"$f":"Inputs!C100","v":"60W Incandescent"},null,{"$f":"IFERROR(D$8*10^6*(VLOOKUP($B55,'Capex Weighting'!$B$14:$X$76,MATCH(D$23&\" Capex weighting\",'Capex Weighting'!$B$14:$X$14,0),FALSE))/VLOOKUP($B55,$B$232:$E$294,MATCH(D$23,$B$231:$E$231,0),FALSE)/D$20*100,0)","v":0},{"$f":"IFERROR(E$8*10^6*(VLOOKUP($B55,'Capex Weighting'!$B$14:$X$76,MATCH(E$23&\" Capex weighting\",'Capex Weighting'!$B$14:$X$14,0),FALSE))/VLOOKUP($B55,$B$232:$E$294,MATCH(E$23,$B$231:$E$231,0),FALSE)/E$20*100,0)","v":0},null,0,0,null,0,0]
["",{"$f":"Inputs!C101","v":"18W LED"},null,{"$f":"IFERROR(D$8*10^6*(VLOOKUP($B56,'Capex Weighting'!$B$14:$X$76,MATCH(D$23&\" Capex weighting\",'Capex Weighting'!$B$14:$X$14,0),FALSE))/VLOOKUP($B56,$B$232:$E$294,MATCH(D$23,$B$231:$E$231,0),FALSE)/D$20*100,0)","v":1.0723152975660044},{"$f":"IFERROR(E$8*10^6*(VLOOKUP($B56,'Capex Weighting'!$B$14:$X$76,MATCH(E$23&\" Capex weighting\",'Capex Weighting'!$B$14:$X$14,0),FALSE))/VLOOKUP($B56,$B$232:$E$294,MATCH(E$23,$B$231:$E$231,0),FALSE)/E$20*100,0)","v":1.4884461485729776},null,{"$f":"IFERROR(D56*VLOOKUP($B56,$B$232:$E$294,MATCH(G$23,$B$231:$E$231,0),FALSE)*G$20/100/10^6,0)","v":3.9570042953131906E-2},{"$f":"IFERROR(E56*VLOOKUP($B56,$B$232:$E$294,MATCH(H$23,$B$231:$E$231,0),FALSE)*H$20/100/10^6,0)","v":7.7200492164960346E-2},null,{"$f":"IFERROR(D56/100*J$20,0)","v":3.9139508361159159},{"$f":"IFERROR(E56/100*K$20,0)","v":5.4328284422913677}]
["",{"$f":"Inputs!C102","v":"25W LED"},null,{"$f":"IFERROR(D$8*10^6*(VLOOKUP($B57,'Capex Weighting'!$B$14:$X$76,MATCH(D$23&\" Capex weighting\",'Capex Weighting'!$B$14:$X$14,0),FALSE))/VLOOKUP($B57,$B$232:$E$294,MATCH(D$23,$B$231:$E$231,0),FALSE)/D$20*100,0)","v":1.0723152975660044},{"$f":"IFERROR(E$8*10^6*(VLOOKUP($B57,'Capex Weighting'!$B$14:$X$76,MATCH(E$23&\" Capex weighting\",'Capex Weighting'!$B$14:$X$14,0),FALSE))/VLOOKUP($B57,$B$232:$E$294,MATCH(E$23,$B$231:$E$231,0),FALSE)/E$20*100,0)","v":1.4884461485729776},null,8.219296755843424E-5,1.1408939728811873E-4,null,3.9139508361159159,5.4328284422913677]
["",{"$f":"Inputs!C103","v":"18W LED Decorative - Bottom Pole Entry"},null,{"$f":"IFERROR(D$8*10^6*(VLOOKUP($B58,'Capex Weighting'!$B$14:$X$76,MATCH(D$23&\" Capex weighting\",'Capex Weighting'!$B$14:$X$14,0),FALSE))/VLOOKUP($B58,$B$232:$E$294,MATCH(D$23,$B$231:$E$231,0),FALSE)/D$20*100,0)","v":1.0723152975660046},{"$f":"IFERROR(E$8*10^6*(VLOOKUP($B58,'Capex Weighting'!$B$14:$X$76,MATCH(E$23&\" Capex weighting\",'Capex Weighting'!$B$14:$X$14,0),FALSE))/VLOOKUP($B58,$B$232:$E$294,MATCH(E$23,$B$231:$E$231,0),FALSE)/E$20*100,0)","v":1.4884461485729776},null,1.2916037759182526E-4,1.9014899548019788E-4,null,3.9139508361159168,5.4328284422913677]
["",{"$f":"Inputs!C104","v":"18W LED Decorative - Side Entry"},null,{"$f":"IFERROR(D$8*10^6*(VLOOKUP($B59,'Capex Weighting'!$B$14:$X$76,MATCH(D$23&\" Capex weighting\",'Capex Weighting'!$B$14:$X$14,0),FALSE))/VLOOKUP($B59,$B$232:$E$294,MATCH(D$23,$B$231:$E$231,0),FALSE)/D$20*100,0)","v":1.0723152975660046},{"$f":"IFERROR(E$8*10^6*(VLOOKUP($B59,'Capex Weighting'!$B$14:$X$76,MATCH(E$23&\" Capex weighting\",'Capex Weighting'!$B$14:$X$14,0),FALSE))/VLOOKUP($B59,$B$232:$E$294,MATCH(E$23,$B$231:$E$231,0),FALSE)/E$20*100,0)","v":1.4884461485729776},null,1.2916037759182526E-4,1.9014899548019788E-4,null,3.9139508361159168,5.4328284422913677]
["",{"$f":"Inputs!C105","v":"18W LED Decorative - Top Entry"},null,{"$f":"IFERROR(D$8*10^6*(VLOOKUP($B60,'Capex Weighting'!$B$14:$X$76,MATCH(D$23&\" Capex weighting\",'Capex Weighting'!$B$14:$X$14,0),FALSE))/VLOOKUP($B60,$B$232:$E$294,MATCH(D$23,$B$231:$E$231,0),FALSE)/D$20*100,0)","v":1.0723152975660046},{"$f":"IFERROR(E$8*10^6*(VLOOKUP($B60,'Capex Weighting'!$B$14:$X$76,MATCH(E$23&\" Capex weighting\",'Capex Weighting'!$B$14:$X$14,0),FALSE))/VLOOKUP($B60,$B$232:$E$294,MATCH(E$23,$B$231:$E$231,0),FALSE)/E$20*100,0)","v":1.4884461485729776},null,1.2916037759182526E-4,1.9014899548019788E-4,null,3.9139508361159168,5.4328284422913677]
["",{"$f":"Inputs!C106","v":"25W LED Decorative - Bottom Pole Entry"},null,{"$f":"IFERROR(D$8*10^6*(VLOOKUP($B61,'Capex Weighting'!$B$14:$X$76,MATCH(D$23&\" Capex weighting\",'Capex Weighting'!$B$14:$X$14,0),FALSE))/VLOOKUP($B61,$B$232:$E$294,MATCH(D$23,$B$231:$E$231,0),FALSE)/D$20*100,0)","v":1.0723152975660046},{"$f":"IFERROR(E$8*10^6*(VLOOKUP($B61,'Capex Weighting'!$B$14:$X$76,MATCH(E$23&\" Capex weighting\",'Capex Weighting'!$B$14:$X$14,0),FALSE))/VLOOKUP($B61,$B$232:$E$294,MATCH(E$23,$B$231:$E$231,0),FALSE)/E$20*100,0)","v":1.4884461485729776},null,1.2916037759182526E-4,1.9014899548019788E-4,null,3.9139508361159168,5.4328284422913677]
["",{"$f":"Inputs!C107","v":"25W LED Decorative - Side Entry"},null,{"$f":"IFERROR(D$8*10^6*(VLOOKUP($B62,'Capex Weighting'!$B$14:$X$76,MATCH(D$23&\" Capex weighting\",'Capex Weighting'!$B$14:$X$14,0),FALSE))/VLOOKUP($B62,$B$232:$E$294,MATCH(D$23,$B$231:$E$231,0),FALSE)/D$20*100,0)","v":1.0723152975660046},{"$f":"IFERROR(E$8*10^6*(VLOOKUP($B62,'Capex Weighting'!$B$14:$X$76,MATCH(E$23&\" Capex weighting\",'Capex Weighting'!$B$14:$X$14,0),FALSE))/VLOOKUP($B62,$B$232:$E$294,MATCH(E$23,$B$231:$E$231,0),FALSE)/E$20*100,0)","v":1.4884461485729776},null,1.2916037759182526E-4,1.9014899548019788E-4,null,3.9139508361159168,5.4328284422913677]
["",{"$f":"Inputs!C108","v":"25W LED Decorative - Top Entry"},null,{"$f":"IFERROR(D$8*10^6*(VLOOKUP($B63,'Capex Weighting'!$B$14:$X$76,MATCH(D$23&\" Capex weighting\",'Capex Weighting'!$B$14:$X$14,0),FALSE))/VLOOKUP($B63,$B$232:$E$294,MATCH(D$23,$B$231:$E$231,0),FALSE)/D$20*100,0)","v":1.0723152975660046},{"$f":"IFERROR(E$8*10^6*(VLOOKUP($B63,'Capex Weighting'!$B$14:$X$76,MATCH(E$23&\" Capex weighting\",'Capex Weighting'!$B$14:$X$14,0),FALSE))/VLOOKUP($B63,$B$232:$E$294,MATCH(E$23,$B$231:$E$231,0),FALSE)/E$20*100,0)","v":1.4884461485729776},null,1.2916037759182526E-4,1.9014899548019788E-4,null,3.9139508361159168,5.4328284422913677]
["",{"$f":"Inputs!C109","v":"30W LED"},null,{"$f":"IFERROR(D$8*10^6*(VLOOKUP($B64,'Capex Weighting'!$B$14:$X$76,MATCH(D$23&\" Capex weighting\",'Capex Weighting'!$B$14:$X$14,0),FALSE))/VLOOKUP($B64,$B$232:$E$294,MATCH(D$23,$B$231:$E$231,0),FALSE)/D$20*100,0)","v":0},{"$f":"IFERROR(E$8*10^6*(VLOOKUP($B64,'Capex Weighting'!$B$14:$X$76,MATCH(E$23&\" Capex weighting\",'Capex Weighting'!$B$14:$X$14,0),FALSE))/VLOOKUP($B64,$B$232:$E$294,MATCH(E$23,$B$231:$E$231,0),FALSE)/E$20*100,0)","v":0},null,0,0,null,0,0]
["",{"$f":"Inputs!C110","v":"88 LED Light"},null,{"$f":"IFERROR(D$8*10^6*(VLOOKUP($B65,'Capex Weighting'!$B$14:$X$76,MATCH(D$23&\" Capex weighting\",'Capex Weighting'!$B$14:$X$14,0),FALSE))/VLOOKUP($B65,$B$232:$E$294,MATCH(D$23,$B$231:$E$231,0),FALSE)/D$20*100,0)","v":0},{"$f":"IFERROR(E$8*10^6*(VLOOKUP($B65,'Capex Weighting'!$B$14:$X$76,MATCH(E$23&\" Capex weighting\",'Capex Weighting'!$B$14:$X$14,0),FALSE))/VLOOKUP($B65,$B$232:$E$294,MATCH(E$23,$B$231:$E$231,0),FALSE)/E$20*100,0)","v":0},null,0,0,null,0,0]
["",{"$f":"Inputs!C111","v":"100W Metal Halide"},null,{"$f":"IFERROR(D$8*10^6*(VLOOKUP($B66,'Capex Weighting'!$B$14:$X$76,MATCH(D$23&\" Capex weighting\",'Capex Weighting'!$B$14:$X$14,0),FALSE))/VLOOKUP($B66,$B$232:$E$294,MATCH(D$23,$B$231:$E$231,0),FALSE)/D$20*100,0)","v":24.477991805976409},{"$f":"IFERROR(E$8*10^6*(VLOOKUP($B66,'Capex Weighting'!$B$14:$X$76,MATCH(E$23&\" Capex weighting\",'Capex Weighting'!$B$14:$X$14,0),FALSE))/VLOOKUP($B66,$B$232:$E$294,MATCH(E$23,$B$231:$E$231,0),FALSE)/E$20*100,0)","v":33.977107956126915},null,1.5188593915608361E-3,2.1082795486776756E-3,null,89.344670091813896,124.01644403986325]
["",{"$f":"Inputs!C112","v":"150W Metal Halide"},null,{"$f":"IFERROR(D$8*10^6*(VLOOKUP($B67,'Capex Weighting'!$B$14:$X$76,MATCH(D$23&\" Capex weighting\",'Capex Weighting'!$B$14:$X$14,0),FALSE))/VLOOKUP($B67,$B$232:$E$294,MATCH(D$23,$B$231:$E$231,0),FALSE)/D$20*100,0)","v":25.744315085809756},{"$f":"IFERROR(E$8*10^6*(VLOOKUP($B67,'Capex Weighting'!$B$14:$X$76,MATCH(E$23&\" Capex weighting\",'Capex Weighting'!$B$14:$X$14,0),FALSE))/VLOOKUP($B67,$B$232:$E$294,MATCH(E$23,$B$231:$E$231,0),FALSE)/E$20*100,0)","v":35.734850303918265},null,1.3155345008848784E-3,1.9564830541395251E-3,null,93.966750063205609,130.43220360930167]
["",{"$f":"Inputs!C113","v":"250W Metal Halide"},null,{"$f":"IFERROR(D$8*10^6*(VLOOKUP($B68,'Capex Weighting'!$B$14:$X$76,MATCH(D$23&\" Capex weighting\",'Capex Weighting'!$B$14:$X$14,0),FALSE))/VLOOKUP($B68,$B$232:$E$294,MATCH(D$23,$B$231:$E$231,0),FALSE)/D$20*100,0)","v":26.377997154703387},{"$f":"IFERROR(E$8*10^6*(VLOOKUP($B68,'Capex Weighting'!$B$14:$X$76,MATCH(E$23&\" Capex weighting\",'Capex Weighting'!$B$14:$X$14,0),FALSE))/VLOOKUP($B68,$B$232:$E$294,MATCH(E$23,$B$231:$E$231,0),FALSE)/E$20*100,0)","v":36.614443868428076},null,8.4726126860907303E-3,1.189420209065886E-2,null,96.279689614667362,133.64272011976249]
["",{"$f":"Inputs!C114","v":"400W Metal Halide"},null,{"$f":"IFERROR(D$8*10^6*(VLOOKUP($B69,'Capex Weighting'!$B$14:$X$76,MATCH(D$23&\" Capex weighting\",'Capex Weighting'!$B$14:$X$14,0),FALSE))/VLOOKUP($B69,$B$232:$E$294,MATCH(D$23,$B$231:$E$231,0),FALSE)/D$20*100,0)","v":27.148049800417844},{"$f":"IFERROR(E$8*10^6*(VLOOKUP($B69,'Capex Weighting'!$B$14:$X$76,MATCH(E$23&\" Capex weighting\",'Capex Weighting'!$B$14:$X$14,0),FALSE))/VLOOKUP($B69,$B$232:$E$294,MATCH(E$23,$B$231:$E$231,0),FALSE)/E$20*100,0)","v":37.683329015654621},null,1.6845364901159274E-3,2.3382505654213691E-3,null,99.090381771525131,137.54415090713937]
["",{"$f":"Inputs!C115","v":"70W Metal Halide"},null,{"$f":"IFERROR(D$8*10^6*(VLOOKUP($B70,'Capex Weighting'!$B$14:$X$76,MATCH(D$23&\" Capex weighting\",'Capex Weighting'!$B$14:$X$14,0),FALSE))/VLOOKUP($B70,$B$232:$E$294,MATCH(D$23,$B$231:$E$231,0),FALSE)/D$20*100,0)","v":0},{"$f":"IFERROR(E$8*10^6*(VLOOKUP($B70,'Capex Weighting'!$B$14:$X$76,MATCH(E$23&\" Capex weighting\",'Capex Weighting'!$B$14:$X$14,0),FALSE))/VLOOKUP($B70,$B$232:$E$294,MATCH(E$23,$B$231:$E$231,0),FALSE)/E$20*100,0)","v":0},null,0,0,null,0,0]
["",{"$f":"Inputs!C116","v":"250W Metal Halide - Flood Light"},null,{"$f":"IFERROR(D$8*10^6*(VLOOKUP($B71,'Capex Weighting'!$B$14:$X$76,MATCH(D$23&\" Capex weighting\",'Capex Weighting'!$B$14:$X$14,0),FALSE))/VLOOKUP($B71,$B$232:$E$294,MATCH(D$23,$B$231:$E$231,0),FALSE)/D$20*100,0)","v":26.377997154703394},{"$f":"IFERROR(E$8*10^6*(VLOOKUP($B71,'Capex Weighting'!$B$14:$X$76,MATCH(E$23&\" Capex weighting\",'Capex Weighting'!$B$14:$X$14,0),FALSE))/VLOOKUP($B71,$B$232:$E$294,MATCH(E$23,$B$231:$E$231,0),FALSE)/E$20*100,0)","v":36.614443868428076},null,3.1772297572840238E-3,4.6774952041916864E-3,null,96.279689614667376,133.64272011976249]
["",{"$f":"Inputs!C117","v":"400W Metal Halide - Flood Light"},null,{"$f":"IFERROR(D$8*10^6*(VLOOKUP($B72,'Capex Weighting'!$B$14:$X$76,MATCH(D$23&\" Capex weighting\",'Capex Weighting'!$B$14:$X$14,0),FALSE))/VLOOKUP($B72,$B$232:$E$294,MATCH(D$23,$B$231:$E$231,0),FALSE)/D$20*100,0)","v":27.148049800417841},{"$f":"IFERROR(E$8*10^6*(VLOOKUP($B72,'Capex Weighting'!$B$14:$X$76,MATCH(E$23&\" Capex weighting\",'Capex Weighting'!$B$14:$X$14,0),FALSE))/VLOOKUP($B72,$B$232:$E$294,MATCH(E$23,$B$231:$E$231,0),FALSE)/E$20*100,0)","v":37.683329015654621},null,3.2699825984603289E-3,4.8140452817498781E-3,null,99.090381771525117,137.54415090713937]
["",{"$f":"Inputs!C118","v":"125W Mercury Vapour"},null,{"$f":"IFERROR(D$8*10^6*(VLOOKUP($B73,'Capex Weighting'!$B$14:$X$76,MATCH(D$23&\" Capex weighting\",'Capex Weighting'!$B$14:$X$14,0),FALSE))/VLOOKUP($B73,$B$232:$E$294,MATCH(D$23,$B$231:$E$231,0),FALSE)/D$20*100,0)","v":0},{"$f":"IFERROR(E$8*10^6*(VLOOKUP($B73,'Capex Weighting'!$B$14:$X$76,MATCH(E$23&\" Capex weighting\",'Capex Weighting'!$B$14:$X$14,0),FALSE))/VLOOKUP($B73,$B$232:$E$294,MATCH(E$23,$B$231:$E$231,0),FALSE)/E$20*100,0)","v":0},null,0,0,null,0,0]
["",{"$f":"Inputs!C119","v":"250W Mercury Vapour"},null,{"$f":"IFERROR(D$8*10^6*(VLOOKUP($B74,'Capex Weighting'!$B$14:$X$76,MATCH(D$23&\" Capex weighting\",'Capex Weighting'!$B$14:$X$14,0),FALSE))/VLOOKUP($B74,$B$232:$E$294,MATCH(D$23,$B$231:$E$231,0),FALSE)/D$20*100,0)","v":23.485877446834582},{"$f":"IFERROR(E$8*10^6*(VLOOKUP($B74,'Capex Weighting'!$B$14:$X$76,MATCH(E$23&\" Capex weighting\",'Capex Weighting'!$B$14:$X$14,0),FALSE))/VLOOKUP($B74,$B$232:$E$294,MATCH(E$23,$B$231:$E$231,0),FALSE)/E$20*100,0)","v":32.599986133692319},null,3.6603914294764041E-2,4.8309919451518649E-2,null,85.723452680946224,118.98994938797698]
["x",{"$f":"Inputs!C120","v":0},null,{"$f":"IFERROR(D$8*10^6*(VLOOKUP($B75,'Capex Weighting'!$B$14:$X$76,MATCH(D$23&\" Capex weighting\",'Capex Weighting'!$B$14:$X$14,0),FALSE))/VLOOKUP($B75,$B$232:$E$294,MATCH(D$23,$B$231:$E$231,0),FALSE)/D$20*100,0)","v":0},{"$f":"IFERROR(E$8*10^6*(VLOOKUP($B75,'Capex Weighting'!$B$14:$X$76,MATCH(E$23&\" Capex weighting\",'Capex Weighting'!$B$14:$X$14,0),FALSE))/VLOOKUP($B75,$B$232:$E$294,MATCH(E$23,$B$231:$E$231,0),FALSE)/E$20*100,0)","v":0},null,0,0,null,0,0]
["",{"$f":"Inputs!C121","v":"400W Mercury Vapour"},null,{"$f":"IFERROR(D$8*10^6*(VLOOKUP($B76,'Capex Weighting'!$B$14:$X$76,MATCH(D$23&\" Capex weighting\",'Capex Weighting'!$B$14:$X$14,0),FALSE))/VLOOKUP($B76,$B$232:$E$294,MATCH(D$23,$B$231:$E$231,0),FALSE)/D$20*100,0)","v":24.243085648793777},{"$f":"IFERROR(E$8*10^6*(VLOOKUP($B76,'Capex Weighting'!$B$14:$X$76,MATCH(E$23&\" Capex weighting\",'Capex Weighting'!$B$14:$X$14,0),FALSE))/VLOOKUP($B76,$B$232:$E$294,MATCH(E$23,$B$231:$E$231,0),FALSE)/E$20*100,0)","v":33.651042324378309},null,2.8315924037791134E-3,3.8076154390034055E-3,null,88.48726261809729,122.82630448398083]
["",{"$f":"Inputs!C122","v":"50W Mercury Vapour"},null,{"$f":"IFERROR(D$8*10^6*(VLOOKUP($B77,'Capex Weighting'!$B$14:$X$76,MATCH(D$23&\" Capex weighting\",'Capex Weighting'!$B$14:$X$14,0),FALSE))/VLOOKUP($B77,$B$232:$E$294,MATCH(D$23,$B$231:$E$231,0),FALSE)/D$20*100,0)","v":0},{"$f":"IFERROR(E$8*10^6*(VLOOKUP($B77,'Capex Weighting'!$B$14:$X$76,MATCH(E$23&\" Capex weighting\",'Capex Weighting'!$B$14:$X$14,0),FALSE))/VLOOKUP($B77,$B$232:$E$294,MATCH(E$23,$B$231:$E$231,0),FALSE)/E$20*100,0)","v":0},null,0,0,null,0,0]
["",{"$f":"Inputs!C123","v":"80W Mercury Vapour Art decorative"},null,{"$f":"IFERROR(D$8*10^6*(VLOOKUP($B78,'Capex Weighting'!$B$14:$X$76,MATCH(D$23&\" Capex weighting\",'Capex Weighting'!$B$14:$X$14,0),FALSE))/VLOOKUP($B78,$B$232:$E$294,MATCH(D$23,$B$231:$E$231,0),FALSE)/D$20*100,0)","v":15.771162255508203},{"$f":"IFERROR(E$8*10^6*(VLOOKUP($B78,'Capex Weighting'!$B$14:$X$76,MATCH(E$23&\" Capex weighting\",'Capex Weighting'!$B$14:$X$14,0),FALSE))/VLOOKUP($B78,$B$232:$E$294,MATCH(E$23,$B$231:$E$231,0),FALSE)/E$20*100,0)","v":21.891439738866332},null,2.3025896893041982E-3,3.1961502018744842E-3,null,57.564742232604942,79.903755046862102]
["",{"$f":"Inputs!C124","v":"80W Mercury Vapour"},null,{"$f":"IFERROR(D$8*10^6*(VLOOKUP($B79,'Capex Weighting'!$B$14:$X$76,MATCH(D$23&\" Capex weighting\",'Capex Weighting'!$B$14:$X$14,0),FALSE))/VLOOKUP($B79,$B$232:$E$294,MATCH(D$23,$B$231:$E$231,0),FALSE)/D$20*100,0)","v":15.771162255508205},{"$f":"IFERROR(E$8*10^6*(VLOOKUP($B79,'Capex Weighting'!$B$14:$X$76,MATCH(E$23&\" Capex weighting\",'Capex Weighting'!$B$14:$X$14,0),FALSE))/VLOOKUP($B79,$B$232:$E$294,MATCH(E$23,$B$231:$E$231,0),FALSE)/E$20*100,0)","v":21.891439738866332},null,0.81943410568113151,0.80982455739994752,null,57.564742232604949,79.903755046862102]
["x",{"$f":"Inputs!C125","v":0},null,{"$f":"IFERROR(D$8*10^6*(VLOOKUP($B80,'Capex Weighting'!$B$14:$X$76,MATCH(D$23&\" Capex weighting\",'Capex Weighting'!$B$14:$X$14,0),FALSE))/VLOOKUP($B80,$B$232:$E$294,MATCH(D$23,$B$231:$E$231,0),FALSE)/D$20*100,0)","v":0},{"$f":"IFERROR(E$8*10^6*(VLOOKUP($B80,'Capex Weighting'!$B$14:$X$76,MATCH(E$23&\" Capex weighting\",'Capex Weighting'!$B$14:$X$14,0),FALSE))/VLOOKUP($B80,$B$232:$E$294,MATCH(E$23,$B$231:$E$231,0),FALSE)/E$20*100,0)","v":0},null,0,0,null,0,0]
[null,{"$f":"Inputs!C126","v":0},null,{"$f":"IFERROR(D$8*10^6*(VLOOKUP($B81,'Capex Weighting'!$B$14:$X$76,MATCH(D$23&\" Capex weighting\",'Capex Weighting'!$B$14:$X$14,0),FALSE))/VLOOKUP($B81,$B$232:$E$294,MATCH(D$23,$B$231:$E$231,0),FALSE)/D$20*100,0)","v":0},{"$f":"IFERROR(E$8*10^6*(VLOOKUP($B81,'Capex Weighting'!$B$14:$X$76,MATCH(E$23&\" Capex weighting\",'Capex Weighting'!$B$14:$X$14,0),FALSE))/VLOOKUP($B81,$B$232:$E$294,MATCH(E$23,$B$231:$E$231,0),FALSE)/E$20*100,0)","v":0},null,0,0,null,0,0]
[null,{"$f":"Inputs!C127","v":0},null,{"$f":"IFERROR(D$8*10^6*(VLOOKUP($B82,'Capex Weighting'!$B$14:$X$76,MATCH(D$23&\" Capex weighting\",'Capex Weighting'!$B$14:$X$14,0),FALSE))/VLOOKUP($B82,$B$232:$E$294,MATCH(D$23,$B$231:$E$231,0),FALSE)/D$20*100,0)","v":0},{"$f":"IFERROR(E$8*10^6*(VLOOKUP($B82,'Capex Weighting'!$B$14:$X$76,MATCH(E$23&\" Capex weighting\",'Capex Weighting'!$B$14:$X$14,0),FALSE))/VLOOKUP($B82,$B$232:$E$294,MATCH(E$23,$B$231:$E$231,0),FALSE)/E$20*100,0)","v":0},null,0,0,null,0,0]
[null,{"$f":"Inputs!C128","v":0},null,{"$f":"IFERROR(D$8*10^6*(VLOOKUP($B83,'Capex Weighting'!$B$14:$X$76,MATCH(D$23&\" Capex weighting\",'Capex Weighting'!$B$14:$X$14,0),FALSE))/VLOOKUP($B83,$B$232:$E$294,MATCH(D$23,$B$231:$E$231,0),FALSE)/D$20*100,0)","v":0},{"$f":"IFERROR(E$8*10^6*(VLOOKUP($B83,'Capex Weighting'!$B$14:$X$76,MATCH(E$23&\" Capex weighting\",'Capex Weighting'!$B$14:$X$14,0),FALSE))/VLOOKUP($B83,$B$232:$E$294,MATCH(E$23,$B$231:$E$231,0),FALSE)/E$20*100,0)","v":0},null,0,0,null,0,0]
[]
[null,null,{"$f":"SUM(C24:C84)","v":0},465.13594149217869,645.6401417086787,null,{"$f":"SUM(G24:G84)","v":2.4038268683903068},3.0897438205736041]
[null,null,null,null,null,null,{"$f":"ROUND(G85,4)=ROUND(D8,4)","v":true},{"$f":"ROUND(H85,4)=ROUND(E8,4)","v":true}]
[]
[]
[]
[]
[]
[null,"Meter Type",null,{"$f":"'Master Data'!I$29","v":"2017-18"},{"$f":"'Master Data'!J$29","v":"2018-19"},null,{"$f":"'Master Data'!I$29","v":"2017-18"},{"$f":"'Master Data'!J$29","v":"2018-19"},null,{"$f":"'Master Data'!I$29","v":"2017-18"},{"$f":"'Master Data'!J$29","v":"2018-19"}]
[{"$f":"IF(B93=0,\"x\",\"\")","v":""},{"$f":"Inputs!C69","v":"32W Compact Fluorescent"},null,{"$f":"IFERROR(D$12*10^6*(VLOOKUP($B93,'Opex Weighting'!$B$16:$U$74,MATCH(D$92&\" Opex weighting\",'Opex Weighting'!$B$16:$U$16,0),FALSE))/VLOOKUP($B93,$B$232:$E$294,MATCH(D$92,$B$231:$E$231,0),FALSE)/D$20*100,0)","v":0},{"$f":"IFERROR(E$12*10^6*(VLOOKUP($B93,'Opex Weighting'!$B$16:$U$74,MATCH(E$92&\" Opex weighting\",'Opex Weighting'!$B$16:$U$16,0),FALSE))/VLOOKUP($B93,$B$232:$E$294,MATCH(E$92,$B$231:$E$231,0),FALSE)/E$20*100,0)","v":0},null,{"$f":"IFERROR(D93*VLOOKUP($B93,$B$232:$E$294,MATCH(G$92,$B$231:$E$231,0),FALSE)*G$20/100/10^6,0)","v":0},{"$f":"IFERROR(E93*VLOOKUP($B93,$B$232:$E$294,MATCH(H$92,$B$231:$E$231,0),FALSE)*H$20/100/10^6,0)","v":0},null,{"$f":"IFERROR(D93/100*J$20,0)","v":0},{"$f":"IFERROR(E93/100*K$20,0)","v":0}]
["",{"$f":"Inputs!C70","v":"42W Compact Fluorescent"},null,{"$f":"IFERROR(D$12*10^6*(VLOOKUP($B94,'Opex Weighting'!$B$16:$U$74,MATCH(D$92&\" Opex weighting\",'Opex Weighting'!$B$16:$U$16,0),FALSE))/VLOOKUP($B94,$B$232:$E$294,MATCH(D$92,$B$231:$E$231,0),FALSE)/D$20*100,0)","v":20.675612755127716},{"$f":"IFERROR(E$12*10^6*(VLOOKUP($B94,'Opex Weighting'!$B$16:$U$74,MATCH(E$92&\" Opex weighting\",'Opex Weighting'!$B$16:$U$16,0),FALSE))/VLOOKUP($B94,$B$232:$E$294,MATCH(E$92,$B$231:$E$231,0),FALSE)/E$20*100,0)","v":21.698598549455333},null,0.43045798731665702,0.42918417521916935,null,75.465986556216166,79.199884705511963]
["",{"$f":"Inputs!C71","v":"42W Compact Fluorescent - Bottom Pole Entry"},null,{"$f":"IFERROR(D$12*10^6*(VLOOKUP($B95,'Opex Weighting'!$B$16:$U$74,MATCH(D$92&\" Opex weighting\",'Opex Weighting'!$B$16:$U$16,0),FALSE))/VLOOKUP($B95,$B$232:$E$294,MATCH(D$92,$B$231:$E$231,0),FALSE)/D$20*100,0)","v":20.72423234285948},{"$f":"IFERROR(E$12*10^6*(VLOOKUP($B95,'Opex Weighting'!$B$16:$U$74,MATCH(E$92&\" Opex weighting\",'Opex Weighting'!$B$16:$U$16,0),FALSE))/VLOOKUP($B95,$B$232:$E$294,MATCH(E$92,$B$231:$E$231,0),FALSE)/E$20*100,0)","v":21.748735859115062},null,9.0772137661724525E-3,1.3495090600580897E-2,null,75.643448051437105,79.38288588576998]
["",{"$f":"Inputs!C72","v":"2x24W Compact Fluorescent"},null,{"$f":"IFERROR(D$12*10^6*(VLOOKUP($B96,'Opex Weighting'!$B$16:$U$74,MATCH(D$92&\" Opex weighting\",'Opex Weighting'!$B$16:$U$16,0),FALSE))/VLOOKUP($B96,$B$232:$E$294,MATCH(D$92,$B$231:$E$231,0),FALSE)/D$20*100,0)","v":0},{"$f":"IFERROR(E$12*10^6*(VLOOKUP($B96,'Opex Weighting'!$B$16:$U$74,MATCH(E$92&\" Opex weighting\",'Opex Weighting'!$B$16:$U$16,0),FALSE))/VLOOKUP($B96,$B$232:$E$294,MATCH(E$92,$B$231:$E$231,0),FALSE)/E$20*100,0)","v":0},null,0,0,null,0,0]
["",{"$f":"Inputs!C73","v":"1x20W Fluorescent"},null,{"$f":"IFERROR(D$12*10^6*(VLOOKUP($B97,'Opex Weighting'!$B$16:$U$74,MATCH(D$92&\" Opex weighting\",'Opex Weighting'!$B$16:$U$16,0),FALSE))/VLOOKUP($B97,$B$232:$E$294,MATCH(D$92,$B$231:$E$231,0),FALSE)/D$20*100,0)","v":0},{"$f":"IFERROR(E$12*10^6*(VLOOKUP($B97,'Opex Weighting'!$B$16:$U$74,MATCH(E$92&\" Opex weighting\",'Opex Weighting'!$B$16:$U$16,0),FALSE))/VLOOKUP($B97,$B$232:$E$294,MATCH(E$92,$B$231:$E$231,0),FALSE)/E$20*100,0)","v":0},null,0,0,null,0,0]
["",{"$f":"Inputs!C74","v":"1x40W Fluorescent"},null,{"$f":"IFERROR(D$12*10^6*(VLOOKUP($B98,'Opex Weighting'!$B$16:$U$74,MATCH(D$92&\" Opex weighting\",'Opex Weighting'!$B$16:$U$16,0),FALSE))/VLOOKUP($B98,$B$232:$E$294,MATCH(D$92,$B$231:$E$231,0),FALSE)/D$20*100,0)","v":0},{"$f":"IFERROR(E$12*10^6*(VLOOKUP($B98,'Opex Weighting'!$B$16:$U$74,MATCH(E$92&\" Opex weighting\",'Opex Weighting'!$B$16:$U$16,0),FALSE))/VLOOKUP($B98,$B$232:$E$294,MATCH(E$92,$B$231:$E$231,0),FALSE)/E$20*100,0)","v":0},null,0,0,null,0,0]
["",{"$f":"Inputs!C75","v":"2x20W Fluorescent"},null,{"$f":"IFERROR(D$12*10^6*(VLOOKUP($B99,'Opex Weighting'!$B$16:$U$74,MATCH(D$92&\" Opex weighting\",'Opex Weighting'!$B$16:$U$16,0),FALSE))/VLOOKUP($B99,$B$232:$E$294,MATCH(D$92,$B$231:$E$231,0),FALSE)/D$20*100,0)","v":0},{"$f":"IFERROR(E$12*10^6*(VLOOKUP($B99,'Opex Weighting'!$B$16:$U$74,MATCH(E$92&\" Opex weighting\",'Opex Weighting'!$B$16:$U$16,0),FALSE))/VLOOKUP($B99,$B$232:$E$294,MATCH(E$92,$B$231:$E$231,0),FALSE)/E$20*100,0)","v":0},null,0,0,null,0,0]
["",{"$f":"Inputs!C76","v":"2x24W Fluorescent"},null,{"$f":"IFERROR(D$12*10^6*(VLOOKUP($B100,'Opex Weighting'!$B$16:$U$74,MATCH(D$92&\" Opex weighting\",'Opex Weighting'!$B$16:$U$16,0),FALSE))/VLOOKUP($B100,$B$232:$E$294,MATCH(D$92,$B$231:$E$231,0),FALSE)/D$20*100,0)","v":0},{"$f":"IFERROR(E$12*10^6*(VLOOKUP($B100,'Opex Weighting'!$B$16:$U$74,MATCH(E$92&\" Opex weighting\",'Opex Weighting'!$B$16:$U$16,0),FALSE))/VLOOKUP($B100,$B$232:$E$294,MATCH(E$92,$B$231:$E$231,0),FALSE)/E$20*100,0)","v":0},null,0,0,null,0,0]
["",{"$f":"Inputs!C77","v":"T5 Fluorescent 2 x 24W"},null,{"$f":"IFERROR(D$12*10^6*(VLOOKUP($B101,'Opex Weighting'!$B$16:$U$74,MATCH(D$92&\" Opex weighting\",'Opex Weighting'!$B$16:$U$16,0),FALSE))/VLOOKUP($B101,$B$232:$E$294,MATCH(D$92,$B$231:$E$231,0),FALSE)/D$20*100,0)","v":20.995577686412268},{"$f":"IFERROR(E$12*10^6*(VLOOKUP($B101,'Opex Weighting'!$B$16:$U$74,MATCH(E$92&\" Opex weighting\",'Opex Weighting'!$B$16:$U$16,0),FALSE))/VLOOKUP($B101,$B$232:$E$294,MATCH(E$92,$B$231:$E$231,0),FALSE)/E$20*100,0)","v":22.028551590780392},null,6.3606102600985964E-3,6.6735497044269195E-3,null,76.633858555404771,80.404213306348439]
["",{"$f":"Inputs!C78","v":"20 Fluorescent 1X20FL"},null,{"$f":"IFERROR(D$12*10^6*(VLOOKUP($B102,'Opex Weighting'!$B$16:$U$74,MATCH(D$92&\" Opex weighting\",'Opex Weighting'!$B$16:$U$16,0),FALSE))/VLOOKUP($B102,$B$232:$E$294,MATCH(D$92,$B$231:$E$231,0),FALSE)/D$20*100,0)","v":0},{"$f":"IFERROR(E$12*10^6*(VLOOKUP($B102,'Opex Weighting'!$B$16:$U$74,MATCH(E$92&\" Opex weighting\",'Opex Weighting'!$B$16:$U$16,0),FALSE))/VLOOKUP($B102,$B$232:$E$294,MATCH(E$92,$B$231:$E$231,0),FALSE)/E$20*100,0)","v":0},null,0,0,null,0,0]
["",{"$f":"Inputs!C79","v":"2x40W Fluorescent"},null,{"$f":"IFERROR(D$12*10^6*(VLOOKUP($B103,'Opex Weighting'!$B$16:$U$74,MATCH(D$92&\" Opex weighting\",'Opex Weighting'!$B$16:$U$16,0),FALSE))/VLOOKUP($B103,$B$232:$E$294,MATCH(D$92,$B$231:$E$231,0),FALSE)/D$20*100,0)","v":0},{"$f":"IFERROR(E$12*10^6*(VLOOKUP($B103,'Opex Weighting'!$B$16:$U$74,MATCH(E$92&\" Opex weighting\",'Opex Weighting'!$B$16:$U$16,0),FALSE))/VLOOKUP($B103,$B$232:$E$294,MATCH(E$92,$B$231:$E$231,0),FALSE)/E$20*100,0)","v":0},null,0,0,null,0,0]
["",{"$f":"Inputs!C80","v":"3x40W Fluorescent"},null,{"$f":"IFERROR(D$12*10^6*(VLOOKUP($B104,'Opex Weighting'!$B$16:$U$74,MATCH(D$92&\" Opex weighting\",'Opex Weighting'!$B$16:$U$16,0),FALSE))/VLOOKUP($B104,$B$232:$E$294,MATCH(D$92,$B$231:$E$231,0),FALSE)/D$20*100,0)","v":0},{"$f":"IFERROR(E$12*10^6*(VLOOKUP($B104,'Opex Weighting'!$B$16:$U$74,MATCH(E$92&\" Opex weighting\",'Opex Weighting'!$B$16:$U$16,0),FALSE))/VLOOKUP($B104,$B$232:$E$294,MATCH(E$92,$B$231:$E$231,0),FALSE)/E$20*100,0)","v":0},null,0,0,null,0,0]
["",{"$f":"Inputs!C81","v":"4x20 Fluorescent"},null,{"$f":"IFERROR(D$12*10^6*(VLOOKUP($B105,'Opex Weighting'!$B$16:$U$74,MATCH(D$92&\" Opex weighting\",'Opex Weighting'!$B$16:$U$16,0),FALSE))/VLOOKUP($B105,$B$232:$E$294,MATCH(D$92,$B$231:$E$231,0),FALSE)/D$20*100,0)","v":0},{"$f":"IFERROR(E$12*10^6*(VLOOKUP($B105,'Opex Weighting'!$B$16:$U$74,MATCH(E$92&\" Opex weighting\",'Opex Weighting'!$B$16:$U$16,0),FALSE))/VLOOKUP($B105,$B$232:$E$294,MATCH(E$92,$B$231:$E$231,0),FALSE)/E$20*100,0)","v":0},null,0,0,null,0,0]
["",{"$f":"Inputs!C82","v":"4x40W Fluorescent"},null,{"$f":"IFERROR(D$12*10^6*(VLOOKUP($B106,'Opex Weighting'!$B$16:$U$74,MATCH(D$92&\" Opex weighting\",'Opex Weighting'!$B$16:$U$16,0),FALSE))/VLOOKUP($B106,$B$232:$E$294,MATCH(D$92,$B$231:$E$231,0),FALSE)/D$20*100,0)","v":0},{"$f":"IFERROR(E$12*10^6*(VLOOKUP($B106,'Opex Weighting'!$B$16:$U$74,MATCH(E$92&\" Opex weighting\",'Opex Weighting'!$B$16:$U$16,0),FALSE))/VLOOKUP($B106,$B$232:$E$294,MATCH(E$92,$B$231:$E$231,0),FALSE)/E$20*100,0)","v":0},null,0,0,null,0,0]
["",{"$f":"Inputs!C83","v":"100W Sodium Vapour"},null,{"$f":"IFERROR(D$12*10^6*(VLOOKUP($B107,'Opex Weighting'!$B$16:$U$74,MATCH(D$92&\" Opex weighting\",'Opex Weighting'!$B$16:$U$16,0),FALSE))/VLOOKUP($B107,$B$232:$E$294,MATCH(D$92,$B$231:$E$231,0),FALSE)/D$20*100,0)","v":24.269789082666755},{"$f":"IFERROR(E$12*10^6*(VLOOKUP($B107,'Opex Weighting'!$B$16:$U$74,MATCH(E$92&\" Opex weighting\",'Opex Weighting'!$B$16:$U$16,0),FALSE))/VLOOKUP($B107,$B$232:$E$294,MATCH(E$92,$B$231:$E$231,0),FALSE)/E$20*100,0)","v":25.404971637184008},null,3.5699646251148659E-2,3.922400595923025E-2,null,88.584730151733652,92.72814647572163]
["x",{"$f":"Inputs!C84","v":0},null,{"$f":"IFERROR(D$12*10^6*(VLOOKUP($B108,'Opex Weighting'!$B$16:$U$74,MATCH(D$92&\" Opex weighting\",'Opex Weighting'!$B$16:$U$16,0),FALSE))/VLOOKUP($B108,$B$232:$E$294,MATCH(D$92,$B$231:$E$231,0),FALSE)/D$20*100,0)","v":0},{"$f":"IFERROR(E$12*10^6*(VLOOKUP($B108,'Opex Weighting'!$B$16:$U$74,MATCH(E$92&\" Opex weighting\",'Opex Weighting'!$B$16:$U$16,0),FALSE))/VLOOKUP($B108,$B$232:$E$294,MATCH(E$92,$B$231:$E$231,0),FALSE)/E$20*100,0)","v":0},null,0,0,null,0,0]
["",{"$f":"Inputs!C85","v":"150W Sodium Vapour"},null,{"$f":"IFERROR(D$12*10^6*(VLOOKUP($B109,'Opex Weighting'!$B$16:$U$74,MATCH(D$92&\" Opex weighting\",'Opex Weighting'!$B$16:$U$16,0),FALSE))/VLOOKUP($B109,$B$232:$E$294,MATCH(D$92,$B$231:$E$231,0),FALSE)/D$20*100,0)","v":24.266115401131053},{"$f":"IFERROR(E$12*10^6*(VLOOKUP($B109,'Opex Weighting'!$B$16:$U$74,MATCH(E$92&\" Opex weighting\",'Opex Weighting'!$B$16:$U$16,0),FALSE))/VLOOKUP($B109,$B$232:$E$294,MATCH(E$92,$B$231:$E$231,0),FALSE)/E$20*100,0)","v":25.40118327703248},null,0.42753376750059746,0.46996888281416332,null,88.571321214128346,92.714318961168544]
["x",{"$f":"Inputs!C86","v":0},null,{"$f":"IFERROR(D$12*10^6*(VLOOKUP($B110,'Opex Weighting'!$B$16:$U$74,MATCH(D$92&\" Opex weighting\",'Opex Weighting'!$B$16:$U$16,0),FALSE))/VLOOKUP($B110,$B$232:$E$294,MATCH(D$92,$B$231:$E$231,0),FALSE)/D$20*100,0)","v":0},{"$f":"IFERROR(E$12*10^6*(VLOOKUP($B110,'Opex Weighting'!$B$16:$U$74,MATCH(E$92&\" Opex weighting\",'Opex Weighting'!$B$16:$U$16,0),FALSE))/VLOOKUP($B110,$B$232:$E$294,MATCH(E$92,$B$231:$E$231,0),FALSE)/E$20*100,0)","v":0},null,0,0,null,0,0]
["x",{"$f":"Inputs!C87","v":0},null,{"$f":"IFERROR(D$12*10^6*(VLOOKUP($B111,'Opex Weighting'!$B$16:$U$74,MATCH(D$92&\" Opex weighting\",'Opex Weighting'!$B$16:$U$16,0),FALSE))/VLOOKUP($B111,$B$232:$E$294,MATCH(D$92,$B$231:$E$231,0),FALSE)/D$20*100,0)","v":0},{"$f":"IFERROR(E$12*10^6*(VLOOKUP($B111,'Opex Weighting'!$B$16:$U$74,MATCH(E$92&\" Opex weighting\",'Opex Weighting'!$B$16:$U$16,0),FALSE))/VLOOKUP($B111,$B$232:$E$294,MATCH(E$92,$B$231:$E$231,0),FALSE)/E$20*100,0)","v":0},null,0,0,null,0,0]
["x",{"$f":"Inputs!C88","v":0},null,{"$f":"IFERROR(D$12*10^6*(VLOOKUP($B112,'Opex Weighting'!$B$16:$U$74,MATCH(D$92&\" Opex weighting\",'Opex Weighting'!$B$16:$U$16,0),FALSE))/VLOOKUP($B112,$B$232:$E$294,MATCH(D$92,$B$231:$E$231,0),FALSE)/D$20*100,0)","v":0},{"$f":"IFERROR(E$12*10^6*(VLOOKUP($B112,'Opex Weighting'!$B$16:$U$74,MATCH(E$92&\" Opex weighting\",'Opex Weighting'!$B$16:$U$16,0),FALSE))/VLOOKUP($B112,$B$232:$E$294,MATCH(E$92,$B$231:$E$231,0),FALSE)/E$20*100,0)","v":0},null,0,0,null,0,0]
["",{"$f":"Inputs!C89","v":"250W Sodium Vapour"},null,{"$f":"IFERROR(D$12*10^6*(VLOOKUP($B113,'Opex Weighting'!$B$16:$U$74,MATCH(D$92&\" Opex weighting\",'Opex Weighting'!$B$16:$U$16,0),FALSE))/VLOOKUP($B113,$B$232:$E$294,MATCH(D$92,$B$231:$E$231,0),FALSE)/D$20*100,0)","v":24.386491269400274},{"$f":"IFERROR(E$12*10^6*(VLOOKUP($B113,'Opex Weighting'!$B$16:$U$74,MATCH(E$92&\" Opex weighting\",'Opex Weighting'!$B$16:$U$16,0),FALSE))/VLOOKUP($B113,$B$232:$E$294,MATCH(E$92,$B$231:$E$231,0),FALSE)/E$20*100,0)","v":25.525316830288205},null,0.53406415879986613,0.58695466051247724,null,89.010693133310994,93.167406430551935]
["x",{"$f":"Inputs!C90","v":0},null,{"$f":"IFERROR(D$12*10^6*(VLOOKUP($B114,'Opex Weighting'!$B$16:$U$74,MATCH(D$92&\" Opex weighting\",'Opex Weighting'!$B$16:$U$16,0),FALSE))/VLOOKUP($B114,$B$232:$E$294,MATCH(D$92,$B$231:$E$231,0),FALSE)/D$20*100,0)","v":0},{"$f":"IFERROR(E$12*10^6*(VLOOKUP($B114,'Opex Weighting'!$B$16:$U$74,MATCH(E$92&\" Opex weighting\",'Opex Weighting'!$B$16:$U$16,0),FALSE))/VLOOKUP($B114,$B$232:$E$294,MATCH(E$92,$B$231:$E$231,0),FALSE)/E$20*100,0)","v":0},null,0,0,null,0,0]
["x",{"$f":"Inputs!C91","v":0},null,{"$f":"IFERROR(D$12*10^6*(VLOOKUP($B115,'Opex Weighting'!$B$16:$U$74,MATCH(D$92&\" Opex weighting\",'Opex Weighting'!$B$16:$U$16,0),FALSE))/VLOOKUP($B115,$B$232:$E$294,MATCH(D$92,$B$231:$E$231,0),FALSE)/D$20*100,0)","v":0},{"$f":"IFERROR(E$12*10^6*(VLOOKUP($B115,'Opex Weighting'!$B$16:$U$74,MATCH(E$92&\" Opex weighting\",'Opex Weighting'!$B$16:$U$16,0),FALSE))/VLOOKUP($B115,$B$232:$E$294,MATCH(E$92,$B$231:$E$231,0),FALSE)/E$20*100,0)","v":0},null,0,0,null,0,0]
["x",{"$f":"Inputs!C92","v":0},null,{"$f":"IFERROR(D$12*10^6*(VLOOKUP($B116,'Opex Weighting'!$B$16:$U$74,MATCH(D$92&\" Opex weighting\",'Opex Weighting'!$B$16:$U$16,0),FALSE))/VLOOKUP($B116,$B$232:$E$294,MATCH(D$92,$B$231:$E$231,0),FALSE)/D$20*100,0)","v":0},{"$f":"IFERROR(E$12*10^6*(VLOOKUP($B116,'Opex Weighting'!$B$16:$U$74,MATCH(E$92&\" Opex weighting\",'Opex Weighting'!$B$16:$U$16,0),FALSE))/VLOOKUP($B116,$B$232:$E$294,MATCH(E$92,$B$231:$E$231,0),FALSE)/E$20*100,0)","v":0},null,0,0,null,0,0]
["",{"$f":"Inputs!C93","v":"250W Sodium Vapour - Flood Light"},null,{"$f":"IFERROR(D$12*10^6*(VLOOKUP($B117,'Opex Weighting'!$B$16:$U$74,MATCH(D$92&\" Opex weighting\",'Opex Weighting'!$B$16:$U$16,0),FALSE))/VLOOKUP($B117,$B$232:$E$294,MATCH(D$92,$B$231:$E$231,0),FALSE)/D$20*100,0)","v":24.386491269400274},{"$f":"IFERROR(E$12*10^6*(VLOOKUP($B117,'Opex Weighting'!$B$16:$U$74,MATCH(E$92&\" Opex weighting\",'Opex Weighting'!$B$16:$U$16,0),FALSE))/VLOOKUP($B117,$B$232:$E$294,MATCH(E$92,$B$231:$E$231,0),FALSE)/E$20*100,0)","v":25.525316830288205},null,2.9373528733992629E-3,3.2608592250693183E-3,null,89.010693133310994,93.167406430551935]
["",{"$f":"Inputs!C94","v":"400W Sodium Vapour"},null,{"$f":"IFERROR(D$12*10^6*(VLOOKUP($B118,'Opex Weighting'!$B$16:$U$74,MATCH(D$92&\" Opex weighting\",'Opex Weighting'!$B$16:$U$16,0),FALSE))/VLOOKUP($B118,$B$232:$E$294,MATCH(D$92,$B$231:$E$231,0),FALSE)/D$20*100,0)","v":24.427294253636557},{"$f":"IFERROR(E$12*10^6*(VLOOKUP($B118,'Opex Weighting'!$B$16:$U$74,MATCH(E$92&\" Opex weighting\",'Opex Weighting'!$B$16:$U$16,0),FALSE))/VLOOKUP($B118,$B$232:$E$294,MATCH(E$92,$B$231:$E$231,0),FALSE)/E$20*100,0)","v":25.567393531287429},null,5.4476530279747568E-2,5.9912073261865838E-2,null,89.159624025773425,93.32098638919912]
["x",{"$f":"Inputs!C95","v":0},null,{"$f":"IFERROR(D$12*10^6*(VLOOKUP($B119,'Opex Weighting'!$B$16:$U$74,MATCH(D$92&\" Opex weighting\",'Opex Weighting'!$B$16:$U$16,0),FALSE))/VLOOKUP($B119,$B$232:$E$294,MATCH(D$92,$B$231:$E$231,0),FALSE)/D$20*100,0)","v":0},{"$f":"IFERROR(E$12*10^6*(VLOOKUP($B119,'Opex Weighting'!$B$16:$U$74,MATCH(E$92&\" Opex weighting\",'Opex Weighting'!$B$16:$U$16,0),FALSE))/VLOOKUP($B119,$B$232:$E$294,MATCH(E$92,$B$231:$E$231,0),FALSE)/E$20*100,0)","v":0},null,0,0,null,0,0]
["",{"$f":"Inputs!C96","v":"400W Sodium Vapour - Flood Light"},null,{"$f":"IFERROR(D$12*10^6*(VLOOKUP($B120,'Opex Weighting'!$B$16:$U$74,MATCH(D$92&\" Opex weighting\",'Opex Weighting'!$B$16:$U$16,0),FALSE))/VLOOKUP($B120,$B$232:$E$294,MATCH(D$92,$B$231:$E$231,0),FALSE)/D$20*100,0)","v":24.427294253636557},{"$f":"IFERROR(E$12*10^6*(VLOOKUP($B120,'Opex Weighting'!$B$16:$U$74,MATCH(E$92&\" Opex weighting\",'Opex Weighting'!$B$16:$U$16,0),FALSE))/VLOOKUP($B120,$B$232:$E$294,MATCH(E$92,$B$231:$E$231,0),FALSE)/E$20*100,0)","v":25.567393531287429},null,2.9422675928505232E-3,3.2662345236219694E-3,null,89.159624025773425,93.32098638919912]
["",{"$f":"Inputs!C97","v":"70W Sodium Vapour"},null,{"$f":"IFERROR(D$12*10^6*(VLOOKUP($B121,'Opex Weighting'!$B$16:$U$74,MATCH(D$92&\" Opex weighting\",'Opex Weighting'!$B$16:$U$16,0),FALSE))/VLOOKUP($B121,$B$232:$E$294,MATCH(D$92,$B$231:$E$231,0),FALSE)/D$20*100,0)","v":20.91609847246664},{"$f":"IFERROR(E$12*10^6*(VLOOKUP($B121,'Opex Weighting'!$B$16:$U$74,MATCH(E$92&\" Opex weighting\",'Opex Weighting'!$B$16:$U$16,0),FALSE))/VLOOKUP($B121,$B$232:$E$294,MATCH(E$92,$B$231:$E$231,0),FALSE)/E$20*100,0)","v":21.946591332641468},null,1.6337564516843692E-2,1.8023638131931807E-2,null,76.343759424503233,80.105058364141357]
["x",{"$f":"Inputs!C98","v":0},null,{"$f":"IFERROR(D$12*10^6*(VLOOKUP($B122,'Opex Weighting'!$B$16:$U$74,MATCH(D$92&\" Opex weighting\",'Opex Weighting'!$B$16:$U$16,0),FALSE))/VLOOKUP($B122,$B$232:$E$294,MATCH(D$92,$B$231:$E$231,0),FALSE)/D$20*100,0)","v":0},{"$f":"IFERROR(E$12*10^6*(VLOOKUP($B122,'Opex Weighting'!$B$16:$U$74,MATCH(E$92&\" Opex weighting\",'Opex Weighting'!$B$16:$U$16,0),FALSE))/VLOOKUP($B122,$B$232:$E$294,MATCH(E$92,$B$231:$E$231,0),FALSE)/E$20*100,0)","v":0},null,0,0,null,0,0]
["",{"$f":"Inputs!C99","v":"100W Incandescent"},null,{"$f":"IFERROR(D$12*10^6*(VLOOKUP($B123,'Opex Weighting'!$B$16:$U$74,MATCH(D$92&\" Opex weighting\",'Opex Weighting'!$B$16:$U$16,0),FALSE))/VLOOKUP($B123,$B$232:$E$294,MATCH(D$92,$B$231:$E$231,0),FALSE)/D$20*100,0)","v":0},{"$f":"IFERROR(E$12*10^6*(VLOOKUP($B123,'Opex Weighting'!$B$16:$U$74,MATCH(E$92&\" Opex weighting\",'Opex Weighting'!$B$16:$U$16,0),FALSE))/VLOOKUP($B123,$B$232:$E$294,MATCH(E$92,$B$231:$E$231,0),FALSE)/E$20*100,0)","v":0},null,0,0,null,0,0]
["",{"$f":"Inputs!C100","v":"60W Incandescent"},null,{"$f":"IFERROR(D$12*10^6*(VLOOKUP($B124,'Opex Weighting'!$B$16:$U$74,MATCH(D$92&\" Opex weighting\",'Opex Weighting'!$B$16:$U$16,0),FALSE))/VLOOKUP($B124,$B$232:$E$294,MATCH(D$92,$B$231:$E$231,0),FALSE)/D$20*100,0)","v":0},{"$f":"IFERROR(E$12*10^6*(VLOOKUP($B124,'Opex Weighting'!$B$16:$U$74,MATCH(E$92&\" Opex weighting\",'Opex Weighting'!$B$16:$U$16,0),FALSE))/VLOOKUP($B124,$B$232:$E$294,MATCH(E$92,$B$231:$E$231,0),FALSE)/E$20*100,0)","v":0},null,0,0,null,0,0]
["",{"$f":"Inputs!C101","v":"18W LED"},null,{"$f":"IFERROR(D$12*10^6*(VLOOKUP($B125,'Opex Weighting'!$B$16:$U$74,MATCH(D$92&\" Opex weighting\",'Opex Weighting'!$B$16:$U$16,0),FALSE))/VLOOKUP($B125,$B$232:$E$294,MATCH(D$92,$B$231:$E$231,0),FALSE)/D$20*100,0)","v":15.991787591039925},{"$f":"IFERROR(E$12*10^6*(VLOOKUP($B125,'Opex Weighting'!$B$16:$U$74,MATCH(E$92&\" Opex weighting\",'Opex Weighting'!$B$16:$U$16,0),FALSE))/VLOOKUP($B125,$B$232:$E$294,MATCH(E$92,$B$231:$E$231,0),FALSE)/E$20*100,0)","v":16.868561858493152},null,{"$f":"IFERROR(D125*VLOOKUP($B125,$B$232:$E$294,MATCH(G$92,$B$231:$E$231,0),FALSE)*G$20/100/10^6,0)","v":0.5901209497907598},{"$f":"IFERROR(E125*VLOOKUP($B125,$B$232:$E$294,MATCH(H$92,$B$231:$E$231,0),FALSE)*H$20/100/10^6,0)","v":0.87491326363353505},null,{"$f":"IFERROR(D125/100*J$20,0)","v":58.370024707295727},{"$f":"IFERROR(E125/100*K$20,0)","v":61.570250783500008}]
["",{"$f":"Inputs!C102","v":"25W LED"},null,{"$f":"IFERROR(D$12*10^6*(VLOOKUP($B126,'Opex Weighting'!$B$16:$U$74,MATCH(D$92&\" Opex weighting\",'Opex Weighting'!$B$16:$U$16,0),FALSE))/VLOOKUP($B126,$B$232:$E$294,MATCH(D$92,$B$231:$E$231,0),FALSE)/D$20*100,0)","v":15.99178759103993},{"$f":"IFERROR(E$12*10^6*(VLOOKUP($B126,'Opex Weighting'!$B$16:$U$74,MATCH(E$92&\" Opex weighting\",'Opex Weighting'!$B$16:$U$16,0),FALSE))/VLOOKUP($B126,$B$232:$E$294,MATCH(E$92,$B$231:$E$231,0),FALSE)/E$20*100,0)","v":16.868561858493152},null,1.2257705188532106E-3,1.2929752664535001E-3,null,58.370024707295741,61.570250783500008]
["",{"$f":"Inputs!C103","v":"18W LED Decorative - Bottom Pole Entry"},null,{"$f":"IFERROR(D$12*10^6*(VLOOKUP($B127,'Opex Weighting'!$B$16:$U$74,MATCH(D$92&\" Opex weighting\",'Opex Weighting'!$B$16:$U$16,0),FALSE))/VLOOKUP($B127,$B$232:$E$294,MATCH(D$92,$B$231:$E$231,0),FALSE)/D$20*100,0)","v":15.99178759103993},{"$f":"IFERROR(E$12*10^6*(VLOOKUP($B127,'Opex Weighting'!$B$16:$U$74,MATCH(E$92&\" Opex weighting\",'Opex Weighting'!$B$16:$U$16,0),FALSE))/VLOOKUP($B127,$B$232:$E$294,MATCH(E$92,$B$231:$E$231,0),FALSE)/E$20*100,0)","v":16.868561858493152},null,1.9262108153407596E-3,2.1549587774225003E-3,null,58.370024707295741,61.570250783500008]
["",{"$f":"Inputs!C104","v":"18W LED Decorative - Side Entry"},null,{"$f":"IFERROR(D$12*10^6*(VLOOKUP($B128,'Opex Weighting'!$B$16:$U$74,MATCH(D$92&\" Opex weighting\",'Opex Weighting'!$B$16:$U$16,0),FALSE))/VLOOKUP($B128,$B$232:$E$294,MATCH(D$92,$B$231:$E$231,0),FALSE)/D$20*100,0)","v":15.99178759103993},{"$f":"IFERROR(E$12*10^6*(VLOOKUP($B128,'Opex Weighting'!$B$16:$U$74,MATCH(E$92&\" Opex weighting\",'Opex Weighting'!$B$16:$U$16,0),FALSE))/VLOOKUP($B128,$B$232:$E$294,MATCH(E$92,$B$231:$E$231,0),FALSE)/E$20*100,0)","v":16.868561858493152},null,1.9262108153407596E-3,2.1549587774225003E-3,null,58.370024707295741,61.570250783500008]
["",{"$f":"Inputs!C105","v":"18W LED Decorative - Top Entry"},null,{"$f":"IFERROR(D$12*10^6*(VLOOKUP($B129,'Opex Weighting'!$B$16:$U$74,MATCH(D$92&\" Opex weighting\",'Opex Weighting'!$B$16:$U$16,0),FALSE))/VLOOKUP($B129,$B$232:$E$294,MATCH(D$92,$B$231:$E$231,0),FALSE)/D$20*100,0)","v":15.99178759103993},{"$f":"IFERROR(E$12*10^6*(VLOOKUP($B129,'Opex Weighting'!$B$16:$U$74,MATCH(E$92&\" Opex weighting\",'Opex Weighting'!$B$16:$U$16,0),FALSE))/VLOOKUP($B129,$B$232:$E$294,MATCH(E$92,$B$231:$E$231,0),FALSE)/E$20*100,0)","v":16.868561858493152},null,1.9262108153407596E-3,2.1549587774225003E-3,null,58.370024707295741,61.570250783500008]
["",{"$f":"Inputs!C106","v":"25W LED Decorative - Bottom Pole Entry"},null,{"$f":"IFERROR(D$12*10^6*(VLOOKUP($B130,'Opex Weighting'!$B$16:$U$74,MATCH(D$92&\" Opex weighting\",'Opex Weighting'!$B$16:$U$16,0),FALSE))/VLOOKUP($B130,$B$232:$E$294,MATCH(D$92,$B$231:$E$231,0),FALSE)/D$20*100,0)","v":15.99178759103993},{"$f":"IFERROR(E$12*10^6*(VLOOKUP($B130,'Opex Weighting'!$B$16:$U$74,MATCH(E$92&\" Opex weighting\",'Opex Weighting'!$B$16:$U$16,0),FALSE))/VLOOKUP($B130,$B$232:$E$294,MATCH(E$92,$B$231:$E$231,0),FALSE)/E$20*100,0)","v":16.868561858493152},null,1.9262108153407596E-3,2.1549587774225003E-3,null,58.370024707295741,61.570250783500008]
["",{"$f":"Inputs!C107","v":"25W LED Decorative - Side Entry"},null,{"$f":"IFERROR(D$12*10^6*(VLOOKUP($B131,'Opex Weighting'!$B$16:$U$74,MATCH(D$92&\" Opex weighting\",'Opex Weighting'!$B$16:$U$16,0),FALSE))/VLOOKUP($B131,$B$232:$E$294,MATCH(D$92,$B$231:$E$231,0),FALSE)/D$20*100,0)","v":15.99178759103993},{"$f":"IFERROR(E$12*10^6*(VLOOKUP($B131,'Opex Weighting'!$B$16:$U$74,MATCH(E$92&\" Opex weighting\",'Opex Weighting'!$B$16:$U$16,0),FALSE))/VLOOKUP($B131,$B$232:$E$294,MATCH(E$92,$B$231:$E$231,0),FALSE)/E$20*100,0)","v":16.868561858493152},null,1.9262108153407596E-3,2.1549587774225003E-3,null,58.370024707295741,61.570250783500008]
["",{"$f":"Inputs!C108","v":"25W LED Decorative - Top Entry"},null,{"$f":"IFERROR(D$12*10^6*(VLOOKUP($B132,'Opex Weighting'!$B$16:$U$74,MATCH(D$92&\" Opex weighting\",'Opex Weighting'!$B$16:$U$16,0),FALSE))/VLOOKUP($B132,$B$232:$E$294,MATCH(D$92,$B$231:$E$231,0),FALSE)/D$20*100,0)","v":15.99178759103993},{"$f":"IFERROR(E$12*10^6*(VLOOKUP($B132,'Opex Weighting'!$B$16:$U$74,MATCH(E$92&\" Opex weighting\",'Opex Weighting'!$B$16:$U$16,0),FALSE))/VLOOKUP($B132,$B$232:$E$294,MATCH(E$92,$B$231:$E$231,0),FALSE)/E$20*100,0)","v":16.868561858493152},null,1.9262108153407596E-3,2.1549587774225003E-3,null,58.370024707295741,61.570250783500008]
["",{"$f":"Inputs!C109","v":"30W LED"},null,{"$f":"IFERROR(D$12*10^6*(VLOOKUP($B133,'Opex Weighting'!$B$16:$U$74,MATCH(D$92&\" Opex weighting\",'Opex Weighting'!$B$16:$U$16,0),FALSE))/VLOOKUP($B133,$B$232:$E$294,MATCH(D$92,$B$231:$E$231,0),FALSE)/D$20*100,0)","v":0},{"$f":"IFERROR(E$12*10^6*(VLOOKUP($B133,'Opex Weighting'!$B$16:$U$74,MATCH(E$92&\" Opex weighting\",'Opex Weighting'!$B$16:$U$16,0),FALSE))/VLOOKUP($B133,$B$232:$E$294,MATCH(E$92,$B$231:$E$231,0),FALSE)/E$20*100,0)","v":0},null,0,0,null,0,0]
["",{"$f":"Inputs!C110","v":"88 LED Light"},null,{"$f":"IFERROR(D$12*10^6*(VLOOKUP($B134,'Opex Weighting'!$B$16:$U$74,MATCH(D$92&\" Opex weighting\",'Opex Weighting'!$B$16:$U$16,0),FALSE))/VLOOKUP($B134,$B$232:$E$294,MATCH(D$92,$B$231:$E$231,0),FALSE)/D$20*100,0)","v":0},{"$f":"IFERROR(E$12*10^6*(VLOOKUP($B134,'Opex Weighting'!$B$16:$U$74,MATCH(E$92&\" Opex weighting\",'Opex Weighting'!$B$16:$U$16,0),FALSE))/VLOOKUP($B134,$B$232:$E$294,MATCH(E$92,$B$231:$E$231,0),FALSE)/E$20*100,0)","v":0},null,0,0,null,0,0]
["",{"$f":"Inputs!C111","v":"100W Metal Halide"},null,{"$f":"IFERROR(D$12*10^6*(VLOOKUP($B135,'Opex Weighting'!$B$16:$U$74,MATCH(D$92&\" Opex weighting\",'Opex Weighting'!$B$16:$U$16,0),FALSE))/VLOOKUP($B135,$B$232:$E$294,MATCH(D$92,$B$231:$E$231,0),FALSE)/D$20*100,0)","v":24.266649183918286},{"$f":"IFERROR(E$12*10^6*(VLOOKUP($B135,'Opex Weighting'!$B$16:$U$74,MATCH(E$92&\" Opex weighting\",'Opex Weighting'!$B$16:$U$16,0),FALSE))/VLOOKUP($B135,$B$232:$E$294,MATCH(E$92,$B$231:$E$231,0),FALSE)/E$20*100,0)","v":25.401733722524583},null,1.5057455818621296E-3,1.57617757748265E-3,null,88.573269521301754,92.716328087214734]
["",{"$f":"Inputs!C112","v":"150W Metal Halide"},null,{"$f":"IFERROR(D$12*10^6*(VLOOKUP($B136,'Opex Weighting'!$B$16:$U$74,MATCH(D$92&\" Opex weighting\",'Opex Weighting'!$B$16:$U$16,0),FALSE))/VLOOKUP($B136,$B$232:$E$294,MATCH(D$92,$B$231:$E$231,0),FALSE)/D$20*100,0)","v":24.400049154047188},{"$f":"IFERROR(E$12*10^6*(VLOOKUP($B136,'Opex Weighting'!$B$16:$U$74,MATCH(E$92&\" Opex weighting\",'Opex Weighting'!$B$16:$U$16,0),FALSE))/VLOOKUP($B136,$B$232:$E$294,MATCH(E$92,$B$231:$E$231,0),FALSE)/E$20*100,0)","v":25.539297941453178},null,1.2468425117718113E-3,1.3982765622945618E-3,null,89.060179412272234,93.218437486304097]
["",{"$f":"Inputs!C113","v":"250W Metal Halide"},null,{"$f":"IFERROR(D$12*10^6*(VLOOKUP($B137,'Opex Weighting'!$B$16:$U$74,MATCH(D$92&\" Opex weighting\",'Opex Weighting'!$B$16:$U$16,0),FALSE))/VLOOKUP($B137,$B$232:$E$294,MATCH(D$92,$B$231:$E$231,0),FALSE)/D$20*100,0)","v":24.400049154047192},{"$f":"IFERROR(E$12*10^6*(VLOOKUP($B137,'Opex Weighting'!$B$16:$U$74,MATCH(E$92&\" Opex weighting\",'Opex Weighting'!$B$16:$U$16,0),FALSE))/VLOOKUP($B137,$B$232:$E$294,MATCH(E$92,$B$231:$E$231,0),FALSE)/E$20*100,0)","v":25.539297941453171},null,7.837295788279958E-3,8.2964409362810618E-3,null,89.060179412272248,93.218437486304069]
["",{"$f":"Inputs!C114","v":"400W Metal Halide"},null,{"$f":"IFERROR(D$12*10^6*(VLOOKUP($B138,'Opex Weighting'!$B$16:$U$74,MATCH(D$92&\" Opex weighting\",'Opex Weighting'!$B$16:$U$16,0),FALSE))/VLOOKUP($B138,$B$232:$E$294,MATCH(D$92,$B$231:$E$231,0),FALSE)/D$20*100,0)","v":25.037174239900484},{"$f":"IFERROR(E$12*10^6*(VLOOKUP($B138,'Opex Weighting'!$B$16:$U$74,MATCH(E$92&\" Opex weighting\",'Opex Weighting'!$B$16:$U$16,0),FALSE))/VLOOKUP($B138,$B$232:$E$294,MATCH(E$92,$B$231:$E$231,0),FALSE)/E$20*100,0)","v":26.196311692734653},null,1.553556661585825E-3,1.6254811405341852E-3,null,91.385685975636761,95.616537678481478]
["",{"$f":"Inputs!C115","v":"70W Metal Halide"},null,{"$f":"IFERROR(D$12*10^6*(VLOOKUP($B139,'Opex Weighting'!$B$16:$U$74,MATCH(D$92&\" Opex weighting\",'Opex Weighting'!$B$16:$U$16,0),FALSE))/VLOOKUP($B139,$B$232:$E$294,MATCH(D$92,$B$231:$E$231,0),FALSE)/D$20*100,0)","v":0},{"$f":"IFERROR(E$12*10^6*(VLOOKUP($B139,'Opex Weighting'!$B$16:$U$74,MATCH(E$92&\" Opex weighting\",'Opex Weighting'!$B$16:$U$16,0),FALSE))/VLOOKUP($B139,$B$232:$E$294,MATCH(E$92,$B$231:$E$231,0),FALSE)/E$20*100,0)","v":0},null,0,0,null,0,0]
["",{"$f":"Inputs!C116","v":"250W Metal Halide - Flood Light"},null,{"$f":"IFERROR(D$12*10^6*(VLOOKUP($B140,'Opex Weighting'!$B$16:$U$74,MATCH(D$92&\" Opex weighting\",'Opex Weighting'!$B$16:$U$16,0),FALSE))/VLOOKUP($B140,$B$232:$E$294,MATCH(D$92,$B$231:$E$231,0),FALSE)/D$20*100,0)","v":24.400049154047192},{"$f":"IFERROR(E$12*10^6*(VLOOKUP($B140,'Opex Weighting'!$B$16:$U$74,MATCH(E$92&\" Opex weighting\",'Opex Weighting'!$B$16:$U$16,0),FALSE))/VLOOKUP($B140,$B$232:$E$294,MATCH(E$92,$B$231:$E$231,0),FALSE)/E$20*100,0)","v":25.539297941453178},null,2.938985920604984E-3,3.2626453120206439E-3,null,89.060179412272248,93.218437486304097]
["",{"$f":"Inputs!C117","v":"400W Metal Halide - Flood Light"},null,{"$f":"IFERROR(D$12*10^6*(VLOOKUP($B141,'Opex Weighting'!$B$16:$U$74,MATCH(D$92&\" Opex weighting\",'Opex Weighting'!$B$16:$U$16,0),FALSE))/VLOOKUP($B141,$B$232:$E$294,MATCH(D$92,$B$231:$E$231,0),FALSE)/D$20*100,0)","v":25.037174239900491},{"$f":"IFERROR(E$12*10^6*(VLOOKUP($B141,'Opex Weighting'!$B$16:$U$74,MATCH(E$92&\" Opex weighting\",'Opex Weighting'!$B$16:$U$16,0),FALSE))/VLOOKUP($B141,$B$232:$E$294,MATCH(E$92,$B$231:$E$231,0),FALSE)/E$20*100,0)","v":26.196311692734646},null,3.0157276371960144E-3,3.3465788187468509E-3,null,91.38568597563679,95.616537678481464]
["",{"$f":"Inputs!C118","v":"125W Mercury Vapour"},null,{"$f":"IFERROR(D$12*10^6*(VLOOKUP($B142,'Opex Weighting'!$B$16:$U$74,MATCH(D$92&\" Opex weighting\",'Opex Weighting'!$B$16:$U$16,0),FALSE))/VLOOKUP($B142,$B$232:$E$294,MATCH(D$92,$B$231:$E$231,0),FALSE)/D$20*100,0)","v":0},{"$f":"IFERROR(E$12*10^6*(VLOOKUP($B142,'Opex Weighting'!$B$16:$U$74,MATCH(E$92&\" Opex weighting\",'Opex Weighting'!$B$16:$U$16,0),FALSE))/VLOOKUP($B142,$B$232:$E$294,MATCH(E$92,$B$231:$E$231,0),FALSE)/E$20*100,0)","v":0},null,0,0,null,0,0]
["",{"$f":"Inputs!C119","v":"250W Mercury Vapour"},null,{"$f":"IFERROR(D$12*10^6*(VLOOKUP($B143,'Opex Weighting'!$B$16:$U$74,MATCH(D$92&\" Opex weighting\",'Opex Weighting'!$B$16:$U$16,0),FALSE))/VLOOKUP($B143,$B$232:$E$294,MATCH(D$92,$B$231:$E$231,0),FALSE)/D$20*100,0)","v":23.444361525267237},{"$f":"IFERROR(E$12*10^6*(VLOOKUP($B143,'Opex Weighting'!$B$16:$U$74,MATCH(E$92&\" Opex weighting\",'Opex Weighting'!$B$16:$U$16,0),FALSE))/VLOOKUP($B143,$B$232:$E$294,MATCH(E$92,$B$231:$E$231,0),FALSE)/E$20*100,0)","v":24.553777314530969},null,3.6539209655205254E-2,3.6386242602403446E-2,null,85.571919567225422,89.621287198038033]
["x",{"$f":"Inputs!C120","v":0},null,{"$f":"IFERROR(D$12*10^6*(VLOOKUP($B144,'Opex Weighting'!$B$16:$U$74,MATCH(D$92&\" Opex weighting\",'Opex Weighting'!$B$16:$U$16,0),FALSE))/VLOOKUP($B144,$B$232:$E$294,MATCH(D$92,$B$231:$E$231,0),FALSE)/D$20*100,0)","v":0},{"$f":"IFERROR(E$12*10^6*(VLOOKUP($B144,'Opex Weighting'!$B$16:$U$74,MATCH(E$92&\" Opex weighting\",'Opex Weighting'!$B$16:$U$16,0),FALSE))/VLOOKUP($B144,$B$232:$E$294,MATCH(E$92,$B$231:$E$231,0),FALSE)/E$20*100,0)","v":0},null,0,0,null,0,0]
["",{"$f":"Inputs!C121","v":"400W Mercury Vapour"},null,{"$f":"IFERROR(D$12*10^6*(VLOOKUP($B145,'Opex Weighting'!$B$16:$U$74,MATCH(D$92&\" Opex weighting\",'Opex Weighting'!$B$16:$U$16,0),FALSE))/VLOOKUP($B145,$B$232:$E$294,MATCH(D$92,$B$231:$E$231,0),FALSE)/D$20*100,0)","v":23.583370634907958},{"$f":"IFERROR(E$12*10^6*(VLOOKUP($B145,'Opex Weighting'!$B$16:$U$74,MATCH(E$92&\" Opex weighting\",'Opex Weighting'!$B$16:$U$16,0),FALSE))/VLOOKUP($B145,$B$232:$E$294,MATCH(E$92,$B$231:$E$231,0),FALSE)/E$20*100,0)","v":24.697125769356017},null,2.7545376901572495E-3,2.7944797808026329E-3,null,86.079302817414046,90.144509058149467]
["",{"$f":"Inputs!C122","v":"50W Mercury Vapour"},null,{"$f":"IFERROR(D$12*10^6*(VLOOKUP($B146,'Opex Weighting'!$B$16:$U$74,MATCH(D$92&\" Opex weighting\",'Opex Weighting'!$B$16:$U$16,0),FALSE))/VLOOKUP($B146,$B$232:$E$294,MATCH(D$92,$B$231:$E$231,0),FALSE)/D$20*100,0)","v":0},{"$f":"IFERROR(E$12*10^6*(VLOOKUP($B146,'Opex Weighting'!$B$16:$U$74,MATCH(E$92&\" Opex weighting\",'Opex Weighting'!$B$16:$U$16,0),FALSE))/VLOOKUP($B146,$B$232:$E$294,MATCH(E$92,$B$231:$E$231,0),FALSE)/E$20*100,0)","v":0},null,0,0,null,0,0]
["",{"$f":"Inputs!C123","v":"80W Mercury Vapour Art decorative"},null,{"$f":"IFERROR(D$12*10^6*(VLOOKUP($B147,'Opex Weighting'!$B$16:$U$74,MATCH(D$92&\" Opex weighting\",'Opex Weighting'!$B$16:$U$16,0),FALSE))/VLOOKUP($B147,$B$232:$E$294,MATCH(D$92,$B$231:$E$231,0),FALSE)/D$20*100,0)","v":20.574351892683858},{"$f":"IFERROR(E$12*10^6*(VLOOKUP($B147,'Opex Weighting'!$B$16:$U$74,MATCH(E$92&\" Opex weighting\",'Opex Weighting'!$B$16:$U$16,0),FALSE))/VLOOKUP($B147,$B$232:$E$294,MATCH(E$92,$B$231:$E$231,0),FALSE)/E$20*100,0)","v":21.594176701109603},null,3.003855376331843E-3,3.1527497983620018E-3,null,75.096384408296075,78.818744959050051]
["",{"$f":"Inputs!C124","v":"80W Mercury Vapour"},null,{"$f":"IFERROR(D$12*10^6*(VLOOKUP($B148,'Opex Weighting'!$B$16:$U$74,MATCH(D$92&\" Opex weighting\",'Opex Weighting'!$B$16:$U$16,0),FALSE))/VLOOKUP($B148,$B$232:$E$294,MATCH(D$92,$B$231:$E$231,0),FALSE)/D$20*100,0)","v":20.574351892683858},{"$f":"IFERROR(E$12*10^6*(VLOOKUP($B148,'Opex Weighting'!$B$16:$U$74,MATCH(E$92&\" Opex weighting\",'Opex Weighting'!$B$16:$U$16,0),FALSE))/VLOOKUP($B148,$B$232:$E$294,MATCH(E$92,$B$231:$E$231,0),FALSE)/E$20*100,0)","v":21.594176701109607},null,1.0689970320520945,0.79882798015997247,null,75.096384408296075,78.818744959050065]
["x",{"$f":"Inputs!C125","v":0},null,{"$f":"IFERROR(D$12*10^6*(VLOOKUP($B149,'Opex Weighting'!$B$16:$U$74,MATCH(D$92&\" Opex weighting\",'Opex Weighting'!$B$16:$U$16,0),FALSE))/VLOOKUP($B149,$B$232:$E$294,MATCH(D$92,$B$231:$E$231,0),FALSE)/D$20*100,0)","v":0},{"$f":"IFERROR(E$12*10^6*(VLOOKUP($B149,'Opex Weighting'!$B$16:$U$74,MATCH(E$92&\" Opex weighting\",'Opex Weighting'!$B$16:$U$16,0),FALSE))/VLOOKUP($B149,$B$232:$E$294,MATCH(E$92,$B$231:$E$231,0),FALSE)/E$20*100,0)","v":0},null,0,0,null,0,0]
[{"$f":"IF(B150=0,\"x\",\"\")","v":"x"},{"$f":"Inputs!C126","v":0},null,{"$f":"IFERROR(D$12*10^6*(VLOOKUP($B150,'Opex Weighting'!$B$16:$U$74,MATCH(D$92&\" Opex weighting\",'Opex Weighting'!$B$16:$U$16,0),FALSE))/VLOOKUP($B150,$B$232:$E$294,MATCH(D$92,$B$231:$E$231,0),FALSE)/D$20*100,0)","v":0},{"$f":"IFERROR(E$12*10^6*(VLOOKUP($B150,'Opex Weighting'!$B$16:$U$74,MATCH(E$92&\" Opex weighting\",'Opex Weighting'!$B$16:$U$16,0),FALSE))/VLOOKUP($B150,$B$232:$E$294,MATCH(E$92,$B$231:$E$231,0),FALSE)/E$20*100,0)","v":0},null,0,0,null,0,0]
["x",{"$f":"Inputs!C127","v":0},null,{"$f":"IFERROR(D$12*10^6*(VLOOKUP($B151,'Opex Weighting'!$B$16:$U$74,MATCH(D$92&\" Opex weighting\",'Opex Weighting'!$B$16:$U$16,0),FALSE))/VLOOKUP($B151,$B$232:$E$294,MATCH(D$92,$B$231:$E$231,0),FALSE)/D$20*100,0)","v":0},{"$f":"IFERROR(E$12*10^6*(VLOOKUP($B151,'Opex Weighting'!$B$16:$U$74,MATCH(E$92&\" Opex weighting\",'Opex Weighting'!$B$16:$U$16,0),FALSE))/VLOOKUP($B151,$B$232:$E$294,MATCH(E$92,$B$231:$E$231,0),FALSE)/E$20*100,0)","v":0},null,0,0,null,0,0]
["x",{"$f":"Inputs!C128","v":0},null,{"$f":"IFERROR(D$12*10^6*(VLOOKUP($B152,'Opex Weighting'!$B$16:$U$74,MATCH(D$92&\" Opex weighting\",'Opex Weighting'!$B$16:$U$16,0),FALSE))/VLOOKUP($B152,$B$232:$E$294,MATCH(D$92,$B$231:$E$231,0),FALSE)/D$20*100,0)","v":0},{"$f":"IFERROR(E$12*10^6*(VLOOKUP($B152,'Opex Weighting'!$B$16:$U$74,MATCH(E$92&\" Opex weighting\",'Opex Weighting'!$B$16:$U$16,0),FALSE))/VLOOKUP($B152,$B$232:$E$294,MATCH(E$92,$B$231:$E$231,0),FALSE)/E$20*100,0)","v":0},null,0,0,null,0,0]
["x"]
[null,null,{"$f":"SUM(C93:C153)","v":0},593.12687858646063,622.21405525576483,null,{"$f":"SUM(G93:G153)","v":3.2521838732341291},3.3797662142059601]
[null,null,null,null,null,null,{"$f":"ROUND(D12,4)=ROUND(G154,4)","v":true},{"$f":"ROUND(E12,4)=ROUND(H154,4)","v":true}]
[]
[]
[]
[]
[]
[null,null,null,{"$f":"'Master Data'!I$29","v":"2017-18"},{"$f":"'Master Data'!J$29","v":"2018-19"},null,{"$f":"'Master Data'!I$29","v":"2017-18"},{"$f":"'Master Data'!J$29","v":"2018-19"},null,{"$f":"'Master Data'!I$29","v":"2017-18"},{"$f":"'Master Data'!J$29","v":"2018-19"}]
[{"$f":"IF(B162=0,\"x\",\"\")","v":""},{"$f":"B24","v":"32W Compact Fluorescent"},null,{"$f":"D24+D93","v":0},0,null,{"$f":"IFERROR(D162*VLOOKUP($B162,$B$232:$E$294,MATCH(G$161,$B$231:$E$231,0),FALSE)*G$20/100/10^6,0)","v":0},{"$f":"IFERROR(E162*VLOOKUP($B162,$B$232:$E$294,MATCH(H$161,$B$231:$E$231,0),FALSE)*H$20/100/10^6,0)","v":0},null,{"$f":"J24+J93","v":0},0]
["",{"$f":"B25","v":"42W Compact Fluorescent"},null,36.679891793313047,43.913620147249794,null,0.76366067518006031,0.86858286265950513,null,133.88160504559261,160.28471353746176]
["",{"$f":"B26","v":"42W Compact Fluorescent - Bottom Pole Entry"},null,36.848313370091439,44.130050719341384,null,1.6139561256100051E-2,2.7382696471351331E-2,null,134.49634380083376,161.07468512559606]
["","2x24W Compact Fluorescent",null,0,0,null,0,0,null,0,0]
["","1x20W Fluorescent",null,0,0,null,0,0,null,0,0]
["","1x40W Fluorescent",null,0,0,null,0,0,null,0,0]
["","2x20W Fluorescent",null,0,0,null,0,0,null,0,0]
["","2x24W Fluorescent",null,0,0,null,0,0,null,0,0]
["","T5 Fluorescent 2 x 24W",null,38.183321985072332,45.886303002205182,null,1.1567637395377662E-2,1.3901255494518058E-2,null,139.369125245514,167.4850059580489]
["","20 Fluorescent 1X20FL",null,0,0,null,0,0,null,0,0]
["","2x40W Fluorescent",null,{"$f":"D34+D103","v":0},0,null,0,0,null,{"$f":"J34+J103","v":0},0]
["","3x40W Fluorescent",null,0,0,null,0,0,null,0,0]
["","4x20 Fluorescent",null,0,0,null,0,0,null,0,0]
["","4x40W Fluorescent",null,0,0,null,0,0,null,0,0]
["","100W Sodium Vapour",null,48.755517813882975,59.392818968755009,null,7.1716928928331161E-2,9.1699542846809284E-2,null,177.95764002067287,216.78378923595577]
["x",0,null,0,0,null,0,0,null,0,0]
["","150W Sodium Vapour",null,49.680408560626731,60.677940829423441,null,0.87529676224583008,1.122654159534868,null,181.33349124628756,221.47448402739556]
["x",0,null,0,0,null,0,0,null,0,0]
["x",0,null,0,0,null,0,0,null,0,0]
["x",0,null,0,0,null,0,0,null,0,0]
["","250W Sodium Vapour",null,{"$f":"D44+D113","v":50.731080869170739},62.093388753276344,null,1.1110106710348393,1.4278374743815896,null,{"$f":"J44+J113","v":185.16844517247318},226.64086894945865]
["x",0,null,0,0,null,0,0,null,0,0]
["x",0,null,0,0,null,0,0,null,0,0]
["x",0,null,0,0,null,0,0,null,0,0]
["","250W Sodium Vapour - Flood Light",null,50.731080869170739,62.093388753276329,null,6.1105586906916162E-3,7.9324304132310508E-3,null,185.16844517247318,226.64086894945859]
["","400W Sodium Vapour",null,50.072558060942931,61.1647539622791,null,0.11166931535961187,0.1433273679598086,null,182.7648369224417,223.25135196231872]
["x",0,null,0,0,null,0,0,null,0,0]
["","400W Sodium Vapour - Flood Light",null,50.072558060942924,61.164753962279107,null,6.0312396184405747E-3,7.8137973186811552E-3,null,182.76483692244167,223.25135196231872]
["","70W Sodium Vapour",null,37.731996106500901,45.288194427355407,null,2.9472462158787856E-2,3.719292967346563E-2,null,137.72178578872831,165.30190965984724]
["x",0,null,0,0,null,0,0,null,0,0]
["","100W Incandescent",null,{"$f":"D54+D123","v":0},0,null,0,0,null,{"$f":"J54+J123","v":0},0]
["","60W Incandescent",null,0,0,null,0,0,null,0,0]
["","18W LED",null,17.06410288860593,18.357008007066128,null,{"$f":"IFERROR(D194*VLOOKUP($B194,$B$232:$E$294,MATCH(G$161,$B$231:$E$231,0),FALSE)*G$20/100/10^6,0)","v":0.62969099274389173},{"$f":"IFERROR(E194*VLOOKUP($B194,$B$232:$E$294,MATCH(H$161,$B$231:$E$231,0),FALSE)*H$20/100/10^6,0)","v":0.95211375579849522},null,62.283975543411643,67.003079225791382]
["","25W LED",null,17.064102888605934,18.357008007066128,null,1.3079634864116448E-3,1.4070646637416189E-3,null,62.283975543411657,67.003079225791382]
["","18W LED Decorative - Bottom Pole Entry",null,17.064102888605934,18.357008007066128,null,2.0553711929325847E-3,2.3451077729026975E-3,null,62.283975543411657,67.003079225791382]
["","18W LED Decorative - Side Entry",null,17.064102888605934,18.357008007066128,null,2.0553711929325847E-3,2.3451077729026975E-3,null,62.283975543411657,67.003079225791382]
["","18W LED Decorative - Top Entry",null,17.064102888605934,18.357008007066128,null,2.0553711929325847E-3,2.3451077729026975E-3,null,62.283975543411657,67.003079225791382]
["","25W LED Decorative - Bottom Pole Entry",null,17.064102888605934,18.357008007066128,null,2.0553711929325847E-3,2.3451077729026975E-3,null,62.283975543411657,67.003079225791382]
["","25W LED Decorative - Side Entry",null,17.064102888605934,18.357008007066128,null,2.0553711929325847E-3,2.3451077729026975E-3,null,62.283975543411657,67.003079225791382]
["","25W LED Decorative - Top Entry",null,17.064102888605934,18.357008007066128,null,2.0553711929325847E-3,2.3451077729026975E-3,null,62.283975543411657,67.003079225791382]
["","30W LED",null,{"$f":"D64+D133","v":0},0,null,0,0,null,{"$f":"J64+J133","v":0},0]
["","88 LED Light",null,0,0,null,0,0,null,0,0]
["","100W Metal Halide",null,48.744640989894691,59.378841678651497,null,3.0246049734229661E-3,3.6844571261603252E-3,null,177.91793961311566,216.73277212707796]
["","150W Metal Halide",null,50.144364239856941,61.274148245371443,null,2.5623770126566897E-3,3.3547596164340862E-3,null,183.02692947547786,223.65064109560575]
["","250W Metal Halide",null,50.778046308750575,62.153741809881247,null,1.6309908474370687E-2,2.019064302693992E-2,null,185.3398690269396,226.86115760606657]
["","400W Metal Halide",null,52.185224040318332,63.879640708389275,null,3.2380931517017519E-3,3.9637317059555543E-3,null,190.47606774716189,233.16068858562085]
["","70W Metal Halide",null,0,0,null,0,0,null,0,0]
["","250W Metal Halide - Flood Light",null,50.778046308750589,62.153741809881254,null,6.1162156778890083E-3,7.9401405162123316E-3,null,185.33986902693962,226.86115760606657]
["","400W Metal Halide - Flood Light",null,52.185224040318332,63.879640708389267,null,6.2857102356563433E-3,8.1606241004967273E-3,null,190.47606774716189,233.16068858562085]
["","125W Mercury Vapour",null,0,0,null,0,0,null,0,0]
["","250W Mercury Vapour",null,{"$f":"D74+D143","v":46.930238972101819},57.153763448223287,null,7.3143123949969288E-2,8.4696162053922081E-2,null,{"$f":"J74+J143","v":171.29537224817165},208.61123658601502]
["x",0,null,0,0,null,0,0,null,0,0]
["","400W Mercury Vapour",null,47.826456283701731,58.34816809373433,null,5.5861300939363629E-3,6.6020952198060394E-3,null,174.56656543551134,212.97081354213032]
["","50W Mercury Vapour",null,0,0,null,0,0,null,0,0]
["","80W Mercury Vapour Art decorative",null,36.345514148192059,43.485616439975935,null,5.3064450656360399E-3,6.3489000002364864E-3,null,132.66112664090102,158.72250000591214]
["","80W Mercury Vapour",null,36.345514148192066,43.485616439975942,null,1.8884311377332264,1.6086525375599199,null,132.66112664090102,158.72250000591217]
[{"$f":"IF(B218=0,\"x\",\"\")","v":"x"},0,null,{"$f":"D80+D149","v":0},0,null,0,0,null,{"$f":"J80+J149","v":0},0]
["x",0,null,{"$f":"D81+D150","v":0},0,null,0,0,null,{"$f":"J81+J150","v":0},0]
["x",0,null,{"$f":"D82+D151","v":0},0,null,0,0,null,{"$f":"J82+J151","v":0},0]
["x",0,null,{"$f":"D83+D152","v":0},0,null,0,0,null,{"$f":"J83+J152","v":0},0]
["x"]
[null,null,{"$f":"SUM(C162:C222)","v":0},1058.2628200786394,1267.8541969644439,null,{"$f":"SUM(G162:G222)","v":5.656010741624435},6.4695100347795655]
[null,null,null,null,null,null,{"$f":"ROUND(D13,4)=ROUND(G223,4)","v":true},{"$f":"ROUND(E13,4)=ROUND(H223,4)","v":true}]
[]
[]
[]
[]
[]
[]
[null,null,null,{"$f":"D161","v":"2017-18"},"2018-19"]
[{"$f":"IF(B232=0,\"x\",\"\")","v":""},{"$f":"Inputs!C69","v":"32W Compact Fluorescent"},null,{"$f":"IFERROR(VLOOKUP($B232,Volumes!$B$38:$F$79,MATCH('Revenue Nominal RAB'!D$231,Volumes!$B$38:$F$38,0),FALSE),0)","v":0},{"$f":"IFERROR(VLOOKUP($B232,Volumes!$B$38:$F$79,MATCH('Revenue Nominal RAB'!E$231,Volumes!$B$38:$F$38,0),FALSE),0)","v":0}]
["",{"$f":"Inputs!C70","v":"42W Compact Fluorescent"},null,{"$f":"IFERROR(VLOOKUP($B233,Volumes!$B$38:$F$79,MATCH('Revenue Nominal RAB'!D$231,Volumes!$B$38:$F$38,0),FALSE),0)","v":5704},{"$f":"IFERROR(VLOOKUP($B233,Volumes!$B$38:$F$79,MATCH('Revenue Nominal RAB'!E$231,Volumes!$B$38:$F$38,0),FALSE),0)","v":5419}]
["",{"$f":"Inputs!C71","v":"42W Compact Fluorescent - Bottom Pole Entry"},null,{"$f":"IFERROR(VLOOKUP($B234,Volumes!$B$38:$F$79,MATCH('Revenue Nominal RAB'!D$231,Volumes!$B$38:$F$38,0),FALSE),0)","v":120},{"$f":"IFERROR(VLOOKUP($B234,Volumes!$B$38:$F$79,MATCH('Revenue Nominal RAB'!E$231,Volumes!$B$38:$F$38,0),FALSE),0)","v":170}]
["",{"$f":"Inputs!C72","v":"2x24W Compact Fluorescent"},null,{"$f":"IFERROR(VLOOKUP($B235,Volumes!$B$38:$F$79,MATCH('Revenue Nominal RAB'!D$231,Volumes!$B$38:$F$38,0),FALSE),0)","v":0},{"$f":"IFERROR(VLOOKUP($B235,Volumes!$B$38:$F$79,MATCH('Revenue Nominal RAB'!E$231,Volumes!$B$38:$F$38,0),FALSE),0)","v":0}]
["",{"$f":"Inputs!C73","v":"1x20W Fluorescent"},null,{"$f":"IFERROR(VLOOKUP($B236,Volumes!$B$38:$F$79,MATCH('Revenue Nominal RAB'!D$231,Volumes!$B$38:$F$38,0),FALSE),0)","v":0},{"$f":"IFERROR(VLOOKUP($B236,Volumes!$B$38:$F$79,MATCH('Revenue Nominal RAB'!E$231,Volumes!$B$38:$F$38,0),FALSE),0)","v":0}]
["",{"$f":"Inputs!C74","v":"1x40W Fluorescent"},null,{"$f":"IFERROR(VLOOKUP($B237,Volumes!$B$38:$F$79,MATCH('Revenue Nominal RAB'!D$231,Volumes!$B$38:$F$38,0),FALSE),0)","v":0},{"$f":"IFERROR(VLOOKUP($B237,Volumes!$B$38:$F$79,MATCH('Revenue Nominal RAB'!E$231,Volumes!$B$38:$F$38,0),FALSE),0)","v":0}]
["",{"$f":"Inputs!C75","v":"2x20W Fluorescent"},null,{"$f":"IFERROR(VLOOKUP($B238,Volumes!$B$38:$F$79,MATCH('Revenue Nominal RAB'!D$231,Volumes!$B$38:$F$38,0),FALSE),0)","v":0},{"$f":"IFERROR(VLOOKUP($B238,Volumes!$B$38:$F$79,MATCH('Revenue Nominal RAB'!E$231,Volumes!$B$38:$F$38,0),FALSE),0)","v":0}]
["",{"$f":"Inputs!C76","v":"2x24W Fluorescent"},null,{"$f":"IFERROR(VLOOKUP($B239,Volumes!$B$38:$F$79,MATCH('Revenue Nominal RAB'!D$231,Volumes!$B$38:$F$38,0),FALSE),0)","v":0},{"$f":"IFERROR(VLOOKUP($B239,Volumes!$B$38:$F$79,MATCH('Revenue Nominal RAB'!E$231,Volumes!$B$38:$F$38,0),FALSE),0)","v":0}]
["",{"$f":"Inputs!C77","v":"T5 Fluorescent 2 x 24W"},null,{"$f":"IFERROR(VLOOKUP($B240,Volumes!$B$38:$F$79,MATCH('Revenue Nominal RAB'!D$231,Volumes!$B$38:$F$38,0),FALSE),0)","v":83},{"$f":"IFERROR(VLOOKUP($B240,Volumes!$B$38:$F$79,MATCH('Revenue Nominal RAB'!E$231,Volumes!$B$38:$F$38,0),FALSE),0)","v":83}]
["",{"$f":"Inputs!C78","v":"20 Fluorescent 1X20FL"},null,{"$f":"IFERROR(VLOOKUP($B241,Volumes!$B$38:$F$79,MATCH('Revenue Nominal RAB'!D$231,Volumes!$B$38:$F$38,0),FALSE),0)","v":0},{"$f":"IFERROR(VLOOKUP($B241,Volumes!$B$38:$F$79,MATCH('Revenue Nominal RAB'!E$231,Volumes!$B$38:$F$38,0),FALSE),0)","v":0}]
["",{"$f":"Inputs!C79","v":"2x40W Fluorescent"},null,{"$f":"IFERROR(VLOOKUP($B242,Volumes!$B$38:$F$79,MATCH('Revenue Nominal RAB'!D$231,Volumes!$B$38:$F$38,0),FALSE),0)","v":0},{"$f":"IFERROR(VLOOKUP($B242,Volumes!$B$38:$F$79,MATCH('Revenue Nominal RAB'!E$231,Volumes!$B$38:$F$38,0),FALSE),0)","v":0}]
["",{"$f":"Inputs!C80","v":"3x40W Fluorescent"},null,{"$f":"IFERROR(VLOOKUP($B243,Volumes!$B$38:$F$79,MATCH('Revenue Nominal RAB'!D$231,Volumes!$B$38:$F$38,0),FALSE),0)","v":0},{"$f":"IFERROR(VLOOKUP($B243,Volumes!$B$38:$F$79,MATCH('Revenue Nominal RAB'!E$231,Volumes!$B$38:$F$38,0),FALSE),0)","v":0}]
["",{"$f":"Inputs!C81","v":"4x20 Fluorescent"},null,{"$f":"IFERROR(VLOOKUP($B244,Volumes!$B$38:$F$79,MATCH('Revenue Nominal RAB'!D$231,Volumes!$B$38:$F$38,0),FALSE),0)","v":0},{"$f":"IFERROR(VLOOKUP($B244,Volumes!$B$38:$F$79,MATCH('Revenue Nominal RAB'!E$231,Volumes!$B$38:$F$38,0),FALSE),0)","v":0}]
["",{"$f":"Inputs!C82","v":"4x40W Fluorescent"},null,{"$f":"IFERROR(VLOOKUP($B245,Volumes!$B$38:$F$79,MATCH('Revenue Nominal RAB'!D$231,Volumes!$B$38:$F$38,0),FALSE),0)","v":0},{"$f":"IFERROR(VLOOKUP($B245,Volumes!$B$38:$F$79,MATCH('Revenue Nominal RAB'!E$231,Volumes!$B$38:$F$38,0),FALSE),0)","v":0}]
["",{"$f":"Inputs!C83","v":"100W Sodium Vapour"},null,{"$f":"IFERROR(VLOOKUP($B246,Volumes!$B$38:$F$79,MATCH('Revenue Nominal RAB'!D$231,Volumes!$B$38:$F$38,0),FALSE),0)","v":403},{"$f":"IFERROR(VLOOKUP($B246,Volumes!$B$38:$F$79,MATCH('Revenue Nominal RAB'!E$231,Volumes!$B$38:$F$38,0),FALSE),0)","v":423}]
["x",{"$f":"Inputs!C84","v":0},null,{"$f":"IFERROR(VLOOKUP($B247,Volumes!$B$38:$F$79,MATCH('Revenue Nominal RAB'!D$231,Volumes!$B$38:$F$38,0),FALSE),0)","v":0},{"$f":"IFERROR(VLOOKUP($B247,Volumes!$B$38:$F$79,MATCH('Revenue Nominal RAB'!E$231,Volumes!$B$38:$F$38,0),FALSE),0)","v":0}]
["",{"$f":"Inputs!C85","v":"150W Sodium Vapour"},null,{"$f":"IFERROR(VLOOKUP($B248,Volumes!$B$38:$F$79,MATCH('Revenue Nominal RAB'!D$231,Volumes!$B$38:$F$38,0),FALSE),0)","v":4827},{"$f":"IFERROR(VLOOKUP($B248,Volumes!$B$38:$F$79,MATCH('Revenue Nominal RAB'!E$231,Volumes!$B$38:$F$38,0),FALSE),0)","v":5069}]
["x",{"$f":"Inputs!C86","v":0},null,{"$f":"IFERROR(VLOOKUP($B249,Volumes!$B$38:$F$79,MATCH('Revenue Nominal RAB'!D$231,Volumes!$B$38:$F$38,0),FALSE),0)","v":0},{"$f":"IFERROR(VLOOKUP($B249,Volumes!$B$38:$F$79,MATCH('Revenue Nominal RAB'!E$231,Volumes!$B$38:$F$38,0),FALSE),0)","v":0}]
["x",{"$f":"Inputs!C87","v":0},null,{"$f":"IFERROR(VLOOKUP($B250,Volumes!$B$38:$F$79,MATCH('Revenue Nominal RAB'!D$231,Volumes!$B$38:$F$38,0),FALSE),0)","v":0},{"$f":"IFERROR(VLOOKUP($B250,Volumes!$B$38:$F$79,MATCH('Revenue Nominal RAB'!E$231,Volumes!$B$38:$F$38,0),FALSE),0)","v":0}]
["x",{"$f":"Inputs!C88","v":0},null,{"$f":"IFERROR(VLOOKUP($B251,Volumes!$B$38:$F$79,MATCH('Revenue Nominal RAB'!D$231,Volumes!$B$38:$F$38,0),FALSE),0)","v":0},{"$f":"IFERROR(VLOOKUP($B251,Volumes!$B$38:$F$79,MATCH('Revenue Nominal RAB'!E$231,Volumes!$B$38:$F$38,0),FALSE),0)","v":0}]
["",{"$f":"Inputs!C89","v":"250W Sodium Vapour"},null,{"$f":"IFERROR(VLOOKUP($B252,Volumes!$B$38:$F$79,MATCH('Revenue Nominal RAB'!D$231,Volumes!$B$38:$F$38,0),FALSE),0)","v":6000},{"$f":"IFERROR(VLOOKUP($B252,Volumes!$B$38:$F$79,MATCH('Revenue Nominal RAB'!E$231,Volumes!$B$38:$F$38,0),FALSE),0)","v":6300}]
["x",{"$f":"Inputs!C90","v":0},null,{"$f":"IFERROR(VLOOKUP($B253,Volumes!$B$38:$F$79,MATCH('Revenue Nominal RAB'!D$231,Volumes!$B$38:$F$38,0),FALSE),0)","v":0},{"$f":"IFERROR(VLOOKUP($B253,Volumes!$B$38:$F$79,MATCH('Revenue Nominal RAB'!E$231,Volumes!$B$38:$F$38,0),FALSE),0)","v":0}]
["x",{"$f":"Inputs!C91","v":0},null,{"$f":"IFERROR(VLOOKUP($B254,Volumes!$B$38:$F$79,MATCH('Revenue Nominal RAB'!D$231,Volumes!$B$38:$F$38,0),FALSE),0)","v":0},{"$f":"IFERROR(VLOOKUP($B254,Volumes!$B$38:$F$79,MATCH('Revenue Nominal RAB'!E$231,Volumes!$B$38:$F$38,0),FALSE),0)","v":0}]
["x",{"$f":"Inputs!C92","v":0},null,{"$f":"IFERROR(VLOOKUP($B255,Volumes!$B$38:$F$79,MATCH('Revenue Nominal RAB'!D$231,Volumes!$B$38:$F$38,0),FALSE),0)","v":0},{"$f":"IFERROR(VLOOKUP($B255,Volumes!$B$38:$F$79,MATCH('Revenue Nominal RAB'!E$231,Volumes!$B$38:$F$38,0),FALSE),0)","v":0}]
["",{"$f":"Inputs!C93","v":"250W Sodium Vapour - Flood Light"},null,{"$f":"IFERROR(VLOOKUP($B256,Volumes!$B$38:$F$79,MATCH('Revenue Nominal RAB'!D$231,Volumes!$B$38:$F$38,0),FALSE),0)","v":33},{"$f":"IFERROR(VLOOKUP($B256,Volumes!$B$38:$F$79,MATCH('Revenue Nominal RAB'!E$231,Volumes!$B$38:$F$38,0),FALSE),0)","v":35}]
["",{"$f":"Inputs!C94","v":"400W Sodium Vapour"},null,{"$f":"IFERROR(VLOOKUP($B257,Volumes!$B$38:$F$79,MATCH('Revenue Nominal RAB'!D$231,Volumes!$B$38:$F$38,0),FALSE),0)","v":611},{"$f":"IFERROR(VLOOKUP($B257,Volumes!$B$38:$F$79,MATCH('Revenue Nominal RAB'!E$231,Volumes!$B$38:$F$38,0),FALSE),0)","v":642}]
["x",{"$f":"Inputs!C95","v":0},null,{"$f":"IFERROR(VLOOKUP($B258,Volumes!$B$38:$F$79,MATCH('Revenue Nominal RAB'!D$231,Volumes!$B$38:$F$38,0),FALSE),0)","v":0},{"$f":"IFERROR(VLOOKUP($B258,Volumes!$B$38:$F$79,MATCH('Revenue Nominal RAB'!E$231,Volumes!$B$38:$F$38,0),FALSE),0)","v":0}]
["",{"$f":"Inputs!C96","v":"400W Sodium Vapour - Flood Light"},null,{"$f":"IFERROR(VLOOKUP($B259,Volumes!$B$38:$F$79,MATCH('Revenue Nominal RAB'!D$231,Volumes!$B$38:$F$38,0),FALSE),0)","v":33},{"$f":"IFERROR(VLOOKUP($B259,Volumes!$B$38:$F$79,MATCH('Revenue Nominal RAB'!E$231,Volumes!$B$38:$F$38,0),FALSE),0)","v":35}]
["",{"$f":"Inputs!C97","v":"70W Sodium Vapour"},null,{"$f":"IFERROR(VLOOKUP($B260,Volumes!$B$38:$F$79,MATCH('Revenue Nominal RAB'!D$231,Volumes!$B$38:$F$38,0),FALSE),0)","v":214},{"$f":"IFERROR(VLOOKUP($B260,Volumes!$B$38:$F$79,MATCH('Revenue Nominal RAB'!E$231,Volumes!$B$38:$F$38,0),FALSE),0)","v":225}]
["x",{"$f":"Inputs!C98","v":0},null,{"$f":"IFERROR(VLOOKUP($B261,Volumes!$B$38:$F$79,MATCH('Revenue Nominal RAB'!D$231,Volumes!$B$38:$F$38,0),FALSE),0)","v":0},{"$f":"IFERROR(VLOOKUP($B261,Volumes!$B$38:$F$79,MATCH('Revenue Nominal RAB'!E$231,Volumes!$B$38:$F$38,0),FALSE),0)","v":0}]
["",{"$f":"Inputs!C99","v":"100W Incandescent"},null,{"$f":"IFERROR(VLOOKUP($B262,Volumes!$B$38:$F$79,MATCH('Revenue Nominal RAB'!D$231,Volumes!$B$38:$F$38,0),FALSE),0)","v":0},{"$f":"IFERROR(VLOOKUP($B262,Volumes!$B$38:$F$79,MATCH('Revenue Nominal RAB'!E$231,Volumes!$B$38:$F$38,0),FALSE),0)","v":0}]
["",{"$f":"Inputs!C100","v":"60W Incandescent"},null,{"$f":"IFERROR(VLOOKUP($B263,Volumes!$B$38:$F$79,MATCH('Revenue Nominal RAB'!D$231,Volumes!$B$38:$F$38,0),FALSE),0)","v":0},{"$f":"IFERROR(VLOOKUP($B263,Volumes!$B$38:$F$79,MATCH('Revenue Nominal RAB'!E$231,Volumes!$B$38:$F$38,0),FALSE),0)","v":0}]
["",{"$f":"Inputs!C101","v":"18W LED"},null,{"$f":"IFERROR(VLOOKUP($B264,Volumes!$B$38:$F$79,MATCH('Revenue Nominal RAB'!D$231,Volumes!$B$38:$F$38,0),FALSE),0)","v":10110},{"$f":"IFERROR(VLOOKUP($B264,Volumes!$B$38:$F$79,MATCH('Revenue Nominal RAB'!E$231,Volumes!$B$38:$F$38,0),FALSE),0)","v":14210}]
["",{"$f":"Inputs!C102","v":"25W LED"},null,{"$f":"IFERROR(VLOOKUP($B265,Volumes!$B$38:$F$79,MATCH('Revenue Nominal RAB'!D$231,Volumes!$B$38:$F$38,0),FALSE),0)","v":21},{"$f":"IFERROR(VLOOKUP($B265,Volumes!$B$38:$F$79,MATCH('Revenue Nominal RAB'!E$231,Volumes!$B$38:$F$38,0),FALSE),0)","v":21}]
["",{"$f":"Inputs!C103","v":"18W LED Decorative - Bottom Pole Entry"},null,{"$f":"IFERROR(VLOOKUP($B266,Volumes!$B$38:$F$79,MATCH('Revenue Nominal RAB'!D$231,Volumes!$B$38:$F$38,0),FALSE),0)","v":33},{"$f":"IFERROR(VLOOKUP($B266,Volumes!$B$38:$F$79,MATCH('Revenue Nominal RAB'!E$231,Volumes!$B$38:$F$38,0),FALSE),0)","v":35}]
["",{"$f":"Inputs!C104","v":"18W LED Decorative - Side Entry"},null,{"$f":"IFERROR(VLOOKUP($B267,Volumes!$B$38:$F$79,MATCH('Revenue Nominal RAB'!D$231,Volumes!$B$38:$F$38,0),FALSE),0)","v":33},{"$f":"IFERROR(VLOOKUP($B267,Volumes!$B$38:$F$79,MATCH('Revenue Nominal RAB'!E$231,Volumes!$B$38:$F$38,0),FALSE),0)","v":35}]
["",{"$f":"Inputs!C105","v":"18W LED Decorative - Top Entry"},null,{"$f":"IFERROR(VLOOKUP($B268,Volumes!$B$38:$F$79,MATCH('Revenue Nominal RAB'!D$231,Volumes!$B$38:$F$38,0),FALSE),0)","v":33},{"$f":"IFERROR(VLOOKUP($B268,Volumes!$B$38:$F$79,MATCH('Revenue Nominal RAB'!E$231,Volumes!$B$38:$F$38,0),FALSE),0)","v":35}]
["",{"$f":"Inputs!C106","v":"25W LED Decorative - Bottom Pole Entry"},null,{"$f":"IFERROR(VLOOKUP($B269,Volumes!$B$38:$F$79,MATCH('Revenue Nominal RAB'!D$231,Volumes!$B$38:$F$38,0),FALSE),0)","v":33},{"$f":"IFERROR(VLOOKUP($B269,Volumes!$B$38:$F$79,MATCH('Revenue Nominal RAB'!E$231,Volumes!$B$38:$F$38,0),FALSE),0)","v":35}]
["",{"$f":"Inputs!C107","v":"25W LED Decorative - Side Entry"},null,{"$f":"IFERROR(VLOOKUP($B270,Volumes!$B$38:$F$79,MATCH('Revenue Nominal RAB'!D$231,Volumes!$B$38:$F$38,0),FALSE),0)","v":33},{"$f":"IFERROR(VLOOKUP($B270,Volumes!$B$38:$F$79,MATCH('Revenue Nominal RAB'!E$231,Volumes!$B$38:$F$38,0),FALSE),0)","v":35}]
["",{"$f":"Inputs!C108","v":"25W LED Decorative - Top Entry"},null,{"$f":"IFERROR(VLOOKUP($B271,Volumes!$B$38:$F$79,MATCH('Revenue Nominal RAB'!D$231,Volumes!$B$38:$F$38,0),FALSE),0)","v":33},{"$f":"IFERROR(VLOOKUP($B271,Volumes!$B$38:$F$79,MATCH('Revenue Nominal RAB'!E$231,Volumes!$B$38:$F$38,0),FALSE),0)","v":35}]
["",{"$f":"Inputs!C109","v":"30W LED"},null,{"$f":"IFERROR(VLOOKUP($B272,Volumes!$B$38:$F$79,MATCH('Revenue Nominal RAB'!D$231,Volumes!$B$38:$F$38,0),FALSE),0)","v":0},{"$f":"IFERROR(VLOOKUP($B272,Volumes!$B$38:$F$79,MATCH('Revenue Nominal RAB'!E$231,Volumes!$B$38:$F$38,0),FALSE),0)","v":0}]
["",{"$f":"Inputs!C110","v":"88 LED Light"},null,{"$f":"IFERROR(VLOOKUP($B273,Volumes!$B$38:$F$79,MATCH('Revenue Nominal RAB'!D$231,Volumes!$B$38:$F$38,0),FALSE),0)","v":0},{"$f":"IFERROR(VLOOKUP($B273,Volumes!$B$38:$F$79,MATCH('Revenue Nominal RAB'!E$231,Volumes!$B$38:$F$38,0),FALSE),0)","v":0}]
["",{"$f":"Inputs!C111","v":"100W Metal Halide"},null,{"$f":"IFERROR(VLOOKUP($B274,Volumes!$B$38:$F$79,MATCH('Revenue Nominal RAB'!D$231,Volumes!$B$38:$F$38,0),FALSE),0)","v":17},{"$f":"IFERROR(VLOOKUP($B274,Volumes!$B$38:$F$79,MATCH('Revenue Nominal RAB'!E$231,Volumes!$B$38:$F$38,0),FALSE),0)","v":17}]
["",{"$f":"Inputs!C112","v":"150W Metal Halide"},null,{"$f":"IFERROR(VLOOKUP($B275,Volumes!$B$38:$F$79,MATCH('Revenue Nominal RAB'!D$231,Volumes!$B$38:$F$38,0),FALSE),0)","v":14},{"$f":"IFERROR(VLOOKUP($B275,Volumes!$B$38:$F$79,MATCH('Revenue Nominal RAB'!E$231,Volumes!$B$38:$F$38,0),FALSE),0)","v":15}]
["",{"$f":"Inputs!C113","v":"250W Metal Halide"},null,{"$f":"IFERROR(VLOOKUP($B276,Volumes!$B$38:$F$79,MATCH('Revenue Nominal RAB'!D$231,Volumes!$B$38:$F$38,0),FALSE),0)","v":88},{"$f":"IFERROR(VLOOKUP($B276,Volumes!$B$38:$F$79,MATCH('Revenue Nominal RAB'!E$231,Volumes!$B$38:$F$38,0),FALSE),0)","v":89}]
["",{"$f":"Inputs!C114","v":"400W Metal Halide"},null,{"$f":"IFERROR(VLOOKUP($B277,Volumes!$B$38:$F$79,MATCH('Revenue Nominal RAB'!D$231,Volumes!$B$38:$F$38,0),FALSE),0)","v":17},{"$f":"IFERROR(VLOOKUP($B277,Volumes!$B$38:$F$79,MATCH('Revenue Nominal RAB'!E$231,Volumes!$B$38:$F$38,0),FALSE),0)","v":17}]
["",{"$f":"Inputs!C115","v":"70W Metal Halide"},null,{"$f":"IFERROR(VLOOKUP($B278,Volumes!$B$38:$F$79,MATCH('Revenue Nominal RAB'!D$231,Volumes!$B$38:$F$38,0),FALSE),0)","v":0},{"$f":"IFERROR(VLOOKUP($B278,Volumes!$B$38:$F$79,MATCH('Revenue Nominal RAB'!E$231,Volumes!$B$38:$F$38,0),FALSE),0)","v":0}]
["",{"$f":"Inputs!C116","v":"250W Metal Halide - Flood Light"},null,{"$f":"IFERROR(VLOOKUP($B279,Volumes!$B$38:$F$79,MATCH('Revenue Nominal RAB'!D$231,Volumes!$B$38:$F$38,0),FALSE),0)","v":33},{"$f":"IFERROR(VLOOKUP($B279,Volumes!$B$38:$F$79,MATCH('Revenue Nominal RAB'!E$231,Volumes!$B$38:$F$38,0),FALSE),0)","v":35}]
["",{"$f":"Inputs!C117","v":"400W Metal Halide - Flood Light"},null,{"$f":"IFERROR(VLOOKUP($B280,Volumes!$B$38:$F$79,MATCH('Revenue Nominal RAB'!D$231,Volumes!$B$38:$F$38,0),FALSE),0)","v":33},{"$f":"IFERROR(VLOOKUP($B280,Volumes!$B$38:$F$79,MATCH('Revenue Nominal RAB'!E$231,Volumes!$B$38:$F$38,0),FALSE),0)","v":35}]
["",{"$f":"Inputs!C118","v":"125W Mercury Vapour"},null,{"$f":"IFERROR(VLOOKUP($B281,Volumes!$B$38:$F$79,MATCH('Revenue Nominal RAB'!D$231,Volumes!$B$38:$F$38,0),FALSE),0)","v":0},{"$f":"IFERROR(VLOOKUP($B281,Volumes!$B$38:$F$79,MATCH('Revenue Nominal RAB'!E$231,Volumes!$B$38:$F$38,0),FALSE),0)","v":0}]
["",{"$f":"Inputs!C119","v":"250W Mercury Vapour"},null,{"$f":"IFERROR(VLOOKUP($B282,Volumes!$B$38:$F$79,MATCH('Revenue Nominal RAB'!D$231,Volumes!$B$38:$F$38,0),FALSE),0)","v":427},{"$f":"IFERROR(VLOOKUP($B282,Volumes!$B$38:$F$79,MATCH('Revenue Nominal RAB'!E$231,Volumes!$B$38:$F$38,0),FALSE),0)","v":406}]
["x",{"$f":"Inputs!C120","v":0},null,{"$f":"IFERROR(VLOOKUP($B283,Volumes!$B$38:$F$79,MATCH('Revenue Nominal RAB'!D$231,Volumes!$B$38:$F$38,0),FALSE),0)","v":0},{"$f":"IFERROR(VLOOKUP($B283,Volumes!$B$38:$F$79,MATCH('Revenue Nominal RAB'!E$231,Volumes!$B$38:$F$38,0),FALSE),0)","v":0}]
["",{"$f":"Inputs!C121","v":"400W Mercury Vapour"},null,{"$f":"IFERROR(VLOOKUP($B284,Volumes!$B$38:$F$79,MATCH('Revenue Nominal RAB'!D$231,Volumes!$B$38:$F$38,0),FALSE),0)","v":32},{"$f":"IFERROR(VLOOKUP($B284,Volumes!$B$38:$F$79,MATCH('Revenue Nominal RAB'!E$231,Volumes!$B$38:$F$38,0),FALSE),0)","v":31}]
["",{"$f":"Inputs!C122","v":"50W Mercury Vapour"},null,{"$f":"IFERROR(VLOOKUP($B285,Volumes!$B$38:$F$79,MATCH('Revenue Nominal RAB'!D$231,Volumes!$B$38:$F$38,0),FALSE),0)","v":0},{"$f":"IFERROR(VLOOKUP($B285,Volumes!$B$38:$F$79,MATCH('Revenue Nominal RAB'!E$231,Volumes!$B$38:$F$38,0),FALSE),0)","v":0}]
["",{"$f":"Inputs!C123","v":"80W Mercury Vapour Art decorative"},null,{"$f":"IFERROR(VLOOKUP($B286,Volumes!$B$38:$F$79,MATCH('Revenue Nominal RAB'!D$231,Volumes!$B$38:$F$38,0),FALSE),0)","v":40},{"$f":"IFERROR(VLOOKUP($B286,Volumes!$B$38:$F$79,MATCH('Revenue Nominal RAB'!E$231,Volumes!$B$38:$F$38,0),FALSE),0)","v":40}]
["",{"$f":"Inputs!C124","v":"80W Mercury Vapour"},null,{"$f":"IFERROR(VLOOKUP($B287,Volumes!$B$38:$F$79,MATCH('Revenue Nominal RAB'!D$231,Volumes!$B$38:$F$38,0),FALSE),0)","v":14235},{"$f":"IFERROR(VLOOKUP($B287,Volumes!$B$38:$F$79,MATCH('Revenue Nominal RAB'!E$231,Volumes!$B$38:$F$38,0),FALSE),0)","v":10135}]
[{"$f":"IF(B288=0,\"x\",\"\")","v":"x"},{"$f":"Inputs!C125","v":0},null,{"$f":"IFERROR(VLOOKUP($B288,Volumes!$B$38:$F$79,MATCH('Revenue Nominal RAB'!D$231,Volumes!$B$38:$F$38,0),FALSE),0)","v":0},{"$f":"IFERROR(VLOOKUP($B288,Volumes!$B$38:$F$79,MATCH('Revenue Nominal RAB'!E$231,Volumes!$B$38:$F$38,0),FALSE),0)","v":0}]
[null,{"$f":"Inputs!C126","v":0},null,{"$f":"IFERROR(VLOOKUP($B289,Volumes!$B$38:$F$79,MATCH('Revenue Nominal RAB'!D$231,Volumes!$B$38:$F$38,0),FALSE),0)","v":0},{"$f":"IFERROR(VLOOKUP($B289,Volumes!$B$38:$F$79,MATCH('Revenue Nominal RAB'!E$231,Volumes!$B$38:$F$38,0),FALSE),0)","v":0}]
[null,{"$f":"Inputs!C127","v":0},null,{"$f":"IFERROR(VLOOKUP($B290,Volumes!$B$38:$F$79,MATCH('Revenue Nominal RAB'!D$231,Volumes!$B$38:$F$38,0),FALSE),0)","v":0},{"$f":"IFERROR(VLOOKUP($B290,Volumes!$B$38:$F$79,MATCH('Revenue Nominal RAB'!E$231,Volumes!$B$38:$F$38,0),FALSE),0)","v":0}]
[null,{"$f":"Inputs!C128","v":0},null,{"$f":"IFERROR(VLOOKUP($B291,Volumes!$B$38:$F$79,MATCH('Revenue Nominal RAB'!D$231,Volumes!$B$38:$F$38,0),FALSE),0)","v":0},{"$f":"IFERROR(VLOOKUP($B291,Volumes!$B$38:$F$79,MATCH('Revenue Nominal RAB'!E$231,Volumes!$B$38:$F$38,0),FALSE),0)","v":0}]
[null,null,null,{"$f":"IFERROR(VLOOKUP($B292,Volumes!$B$38:$F$79,MATCH('Revenue Nominal RAB'!D$231,Volumes!$B$38:$F$38,0),FALSE),0)","v":0},{"$f":"IFERROR(VLOOKUP($B292,Volumes!$B$38:$F$79,MATCH('Revenue Nominal RAB'!E$231,Volumes!$B$38:$F$38,0),FALSE),0)","v":0}]
[null,null,null,{"$f":"IFERROR(VLOOKUP($B293,Volumes!$B$38:$F$79,MATCH('Revenue Nominal RAB'!D$231,Volumes!$B$38:$F$38,0),FALSE),0)","v":0},{"$f":"IFERROR(VLOOKUP($B293,Volumes!$B$38:$F$79,MATCH('Revenue Nominal RAB'!E$231,Volumes!$B$38:$F$38,0),FALSE),0)","v":0}]
[null,{"$f":"B222","v":0}]
[null,null,null,{"$f":"SUM(D232:D293)","v":43293},43662]
[null,null,null,{"$f":"Volumes!E80","v":43293},{"$f":"Volumes!F80","v":43662}]
[null,null,null,{"$f":"D295=D296","v":true},true]

{"sheet":"Capex Weighting","index":13,"n_rows":117,"n_cols":24,"rows_kept":117,"cut":false,"hidden":false,"merged":[]}
[]
[null,null,null,{"$f":"'Master Data'!$I$31","v":1.0768906249999999},"Convert 2014/15 POW into 2017/19 dollars"]
[null,"Linked to DD17 POW",0,{"$f":"'Master Data'!I$20","v":"2017-18"},{"$f":"'Master Data'!J$20","v":"2018-19"}]
[null,null,null,"2017/18","2018/19"]
[null,"Capex - Replace luminaires","RLMAJ",403466.35545343743,403466.35545343743]
[null,"Capex - Replace luminaires ","RLMIN",2382547.2684810939,2376057.731734531]
[null,"Capex - New Streetlight installation","RLOLI",375868.96555781248,375868.96555781248]
[null,"Capex - Replace control relays on pilot and cascade roadlighting control systems or Replace OH Swtichwire","RLREL",229443.70575140623,229443.70575140623]
[null,"Capex - Road Light Replace Underground Cable","RLRUC",50729.732806249995,50729.732806249995]
[null,"Capex - New supply to Private Contract Lighting","RLSPR",0,0]
[null,"Capex - Replace condemned wide based steel poles","RLWBP",280987.68632812495,280987.68632812495]
[null,"Total POW Opex",null,{"$f":"SUM(D5:D11)","v":3723043.714378125},3716554.1776315616]
[null,null,null,null,null,null,null,null,null,null,null,null,{"$f":"'Master Data'!I$20","v":"2017-18"},null,null,null,null,null,null,1000,null,null,1000]
["Filter","Meter Type","Major/Minor size","POW cost","Bracket Annualised Cost","Lamp Annualised Cost",null,"Lamp/Globe Cost","Fitting Cost","Installation","Install costs","TOTAL COST","Volumes",null,"Volumes","Capex weighting",null,null,{"$f":"'Master Data'!I$20","v":"2017-18"},"Weighted Volumes",{"$f":"S14&\" Capex weighting\"","v":"2017-18 Capex weighting"},{"$f":"'Master Data'!J$20","v":"2018-19"},"Weighted Volumes",{"$f":"V14&\" Capex weighting\"","v":"2018-19 Capex weighting"}]
[]
[{"$f":"IF(B16=0,\"x\",\"\")","v":""},{"$f":"Inputs!C69","v":"32W Compact Fluorescent"},{"$f":"IF(B16=0,\"\",VLOOKUP($B16,Inputs!$C$68:$AK$129,MATCH(C$14,Inputs!$C$68:$AK$68,0),FALSE))","v":"RLMIN"},null,{"$f":"IF($B16=0,0,VLOOKUP($B16,Inputs!$C$68:$AK$129,MATCH('Capex Weighting'!E$14,Inputs!$C$68:$AK$68,0),FALSE))","v":1.8590792480992584},{"$f":"IF($B16=0,0,VLOOKUP($B16,Inputs!$C$68:$AK$129,MATCH('Capex Weighting'!F$14,Inputs!$C$68:$AK$68,0),FALSE))","v":27.445835730181432},null,null,null,null,null,{"$f":"SUM(D16:K16)","v":29.304914978280692},{"$f":"IFERROR(VLOOKUP($B16,Volumes!$B$38:$F$79,MATCH(M$13,Volumes!$B$38:$F$38,0),FALSE),0)","v":0},null,{"$f":"M16*L16","v":0},{"$f":"O16/$O$76","v":0},null,null,{"$f":"IFERROR(VLOOKUP($B16,Volumes!$B$38:$F$79,MATCH(S$14,Volumes!$B$38:$F$38,0),FALSE),0)","v":0},{"$f":"S16*$L16/T$13","v":0},{"$f":"(T16)/T$76","v":0},{"$f":"IFERROR(VLOOKUP($B16,Volumes!$B$38:$F$79,MATCH(V$14,Volumes!$B$38:$F$38,0),FALSE),0)","v":0},{"$f":"V16*$L16/W$13","v":0},{"$f":"(W16)/W$76","v":0}]
["",{"$f":"Inputs!C70","v":"42W Compact Fluorescent"},{"$f":"IF(B17=0,\"\",VLOOKUP($B17,Inputs!$C$68:$AK$129,MATCH(C$14,Inputs!$C$68:$AK$68,0),FALSE))","v":"RLMIN"},null,{"$f":"IF($B17=0,0,VLOOKUP($B17,Inputs!$C$68:$AK$129,MATCH('Capex Weighting'!E$14,Inputs!$C$68:$AK$68,0),FALSE))","v":1.9027984757972809},{"$f":"IF($B17=0,0,VLOOKUP($B17,Inputs!$C$68:$AK$129,MATCH('Capex Weighting'!F$14,Inputs!$C$68:$AK$68,0),FALSE))","v":27.445835730181432},null,null,null,null,null,{"$f":"SUM(D17:K17)","v":29.348634205978712},{"$f":"IFERROR(VLOOKUP($B17,Volumes!$B$38:$F$79,MATCH(M$13,Volumes!$B$38:$F$38,0),FALSE),0)","v":5704},null,{"$f":"M17*L17","v":167404.60951090258},0.1386134302120221,null,null,{"$f":"IFERROR(VLOOKUP($B17,Volumes!$B$38:$F$79,MATCH(S$14,Volumes!$B$38:$F$38,0),FALSE),0)","v":5704},{"$f":"S17*$L17/T$13","v":167.40460951090259},0.1386134302120221,{"$f":"IFERROR(VLOOKUP($B17,Volumes!$B$38:$F$79,MATCH(V$14,Volumes!$B$38:$F$38,0),FALSE),0)","v":5419},{"$f":"V17*$L17/W$13","v":159.04024876219864},0.14221201269649683]
["",{"$f":"Inputs!C71","v":"42W Compact Fluorescent - Bottom Pole Entry"},{"$f":"IF(B18=0,\"\",VLOOKUP($B18,Inputs!$C$68:$AK$129,MATCH(C$14,Inputs!$C$68:$AK$68,0),FALSE))","v":"RLMIN"},null,{"$f":"IF($B18=0,0,VLOOKUP($B18,Inputs!$C$68:$AK$129,MATCH('Capex Weighting'!E$14,Inputs!$C$68:$AK$68,0),FALSE))","v":1.9027984757972809},{"$f":"IF($B18=0,0,VLOOKUP($B18,Inputs!$C$68:$AK$129,MATCH('Capex Weighting'!F$14,Inputs!$C$68:$AK$68,0),FALSE))","v":27.665528522670819},null,null,null,null,null,{"$f":"SUM(D18:K18)","v":29.568326998468098},{"$f":"IFERROR(VLOOKUP($B18,Volumes!$B$38:$F$79,MATCH(M$13,Volumes!$B$38:$F$38,0),FALSE),0)","v":120},null,3548.1992398161719,2.9379601263284059E-3,null,null,{"$f":"IFERROR(VLOOKUP($B18,Volumes!$B$38:$F$79,MATCH(S$14,Volumes!$B$38:$F$38,0),FALSE),0)","v":120},{"$f":"S18*$L18/T$13","v":3.5481992398161721},2.9379601263284059E-3,{"$f":"IFERROR(VLOOKUP($B18,Volumes!$B$38:$F$79,MATCH(V$14,Volumes!$B$38:$F$38,0),FALSE),0)","v":170},{"$f":"V18*$L18/W$13","v":5.0266155897395768},4.4947434730016663E-3]
["",{"$f":"Inputs!C72","v":"2x24W Compact Fluorescent"},{"$f":"IF(B19=0,\"\",VLOOKUP($B19,Inputs!$C$68:$AK$129,MATCH(C$14,Inputs!$C$68:$AK$68,0),FALSE))","v":"RLMIN"},null,{"$f":"IF($B19=0,0,VLOOKUP($B19,Inputs!$C$68:$AK$129,MATCH('Capex Weighting'!E$14,Inputs!$C$68:$AK$68,0),FALSE))","v":1.9026308085769625},{"$f":"IF($B19=0,0,VLOOKUP($B19,Inputs!$C$68:$AK$129,MATCH('Capex Weighting'!F$14,Inputs!$C$68:$AK$68,0),FALSE))","v":28.98368527760714},null,null,null,null,null,{"$f":"SUM(D19:K19)","v":30.886316086184102},{"$f":"IFERROR(VLOOKUP($B19,Volumes!$B$38:$F$79,MATCH(M$13,Volumes!$B$38:$F$38,0),FALSE),0)","v":0},null,0,0,null,null,{"$f":"IFERROR(VLOOKUP($B19,Volumes!$B$38:$F$79,MATCH(S$14,Volumes!$B$38:$F$38,0),FALSE),0)","v":0},0,0,{"$f":"IFERROR(VLOOKUP($B19,Volumes!$B$38:$F$79,MATCH(V$14,Volumes!$B$38:$F$38,0),FALSE),0)","v":0},0,0]
["",{"$f":"Inputs!C73","v":"1x20W Fluorescent"},{"$f":"IF(B20=0,\"\",VLOOKUP($B20,Inputs!$C$68:$AK$129,MATCH(C$14,Inputs!$C$68:$AK$68,0),FALSE))","v":"RLMIN"},null,{"$f":"IF($B20=0,0,VLOOKUP($B20,Inputs!$C$68:$AK$129,MATCH('Capex Weighting'!E$14,Inputs!$C$68:$AK$68,0),FALSE))","v":2.6272404651958268},{"$f":"IF($B20=0,0,VLOOKUP($B20,Inputs!$C$68:$AK$129,MATCH('Capex Weighting'!F$14,Inputs!$C$68:$AK$68,0),FALSE))","v":27.619501582238552},null,null,null,null,null,30.246742047434378,{"$f":"IFERROR(VLOOKUP($B20,Volumes!$B$38:$F$79,MATCH(M$13,Volumes!$B$38:$F$38,0),FALSE),0)","v":0},null,0,0,null,null,{"$f":"IFERROR(VLOOKUP($B20,Volumes!$B$38:$F$79,MATCH(S$14,Volumes!$B$38:$F$38,0),FALSE),0)","v":0},0,0,{"$f":"IFERROR(VLOOKUP($B20,Volumes!$B$38:$F$79,MATCH(V$14,Volumes!$B$38:$F$38,0),FALSE),0)","v":0},0,0]
["",{"$f":"Inputs!C74","v":"1x40W Fluorescent"},{"$f":"IF(B21=0,\"\",VLOOKUP($B21,Inputs!$C$68:$AK$129,MATCH(C$14,Inputs!$C$68:$AK$68,0),FALSE))","v":"RLMIN"},null,{"$f":"IF($B21=0,0,VLOOKUP($B21,Inputs!$C$68:$AK$129,MATCH('Capex Weighting'!E$14,Inputs!$C$68:$AK$68,0),FALSE))","v":2.6272404651958268},{"$f":"IF($B21=0,0,VLOOKUP($B21,Inputs!$C$68:$AK$129,MATCH('Capex Weighting'!F$14,Inputs!$C$68:$AK$68,0),FALSE))","v":27.702145746521875},null,null,null,null,null,30.329386211717701,{"$f":"IFERROR(VLOOKUP($B21,Volumes!$B$38:$F$79,MATCH(M$13,Volumes!$B$38:$F$38,0),FALSE),0)","v":0},null,0,0,null,null,{"$f":"IFERROR(VLOOKUP($B21,Volumes!$B$38:$F$79,MATCH(S$14,Volumes!$B$38:$F$38,0),FALSE),0)","v":0},0,0,{"$f":"IFERROR(VLOOKUP($B21,Volumes!$B$38:$F$79,MATCH(V$14,Volumes!$B$38:$F$38,0),FALSE),0)","v":0},0,0]
["",{"$f":"Inputs!C75","v":"2x20W Fluorescent"},{"$f":"IF(B22=0,\"\",VLOOKUP($B22,Inputs!$C$68:$AK$129,MATCH(C$14,Inputs!$C$68:$AK$68,0),FALSE))","v":"RLMIN"},null,{"$f":"IF($B22=0,0,VLOOKUP($B22,Inputs!$C$68:$AK$129,MATCH('Capex Weighting'!E$14,Inputs!$C$68:$AK$68,0),FALSE))","v":2.6272404651958268},{"$f":"IF($B22=0,0,VLOOKUP($B22,Inputs!$C$68:$AK$129,MATCH('Capex Weighting'!F$14,Inputs!$C$68:$AK$68,0),FALSE))","v":28.891631396742603},null,null,null,null,null,31.518871861938429,{"$f":"IFERROR(VLOOKUP($B22,Volumes!$B$38:$F$79,MATCH(M$13,Volumes!$B$38:$F$38,0),FALSE),0)","v":0},null,0,0,null,null,{"$f":"IFERROR(VLOOKUP($B22,Volumes!$B$38:$F$79,MATCH(S$14,Volumes!$B$38:$F$38,0),FALSE),0)","v":0},0,0,{"$f":"IFERROR(VLOOKUP($B22,Volumes!$B$38:$F$79,MATCH(V$14,Volumes!$B$38:$F$38,0),FALSE),0)","v":0},0,0]
["",{"$f":"Inputs!C76","v":"2x24W Fluorescent"},{"$f":"IF(B23=0,\"\",VLOOKUP($B23,Inputs!$C$68:$AK$129,MATCH(C$14,Inputs!$C$68:$AK$68,0),FALSE))","v":"RLMIN"},null,{"$f":"IF($B23=0,0,VLOOKUP($B23,Inputs!$C$68:$AK$129,MATCH('Capex Weighting'!E$14,Inputs!$C$68:$AK$68,0),FALSE))","v":2.6272404651958268},{"$f":"IF($B23=0,0,VLOOKUP($B23,Inputs!$C$68:$AK$129,MATCH('Capex Weighting'!F$14,Inputs!$C$68:$AK$68,0),FALSE))","v":28.071777321641218},null,null,null,null,null,30.699017786837043,{"$f":"IFERROR(VLOOKUP($B23,Volumes!$B$38:$F$79,MATCH(M$13,Volumes!$B$38:$F$38,0),FALSE),0)","v":0},null,0,0,null,null,{"$f":"IFERROR(VLOOKUP($B23,Volumes!$B$38:$F$79,MATCH(S$14,Volumes!$B$38:$F$38,0),FALSE),0)","v":0},0,0,{"$f":"IFERROR(VLOOKUP($B23,Volumes!$B$38:$F$79,MATCH(V$14,Volumes!$B$38:$F$38,0),FALSE),0)","v":0},0,0]
["",{"$f":"Inputs!C77","v":"T5 Fluorescent 2 x 24W"},{"$f":"IF(B24=0,\"\",VLOOKUP($B24,Inputs!$C$68:$AK$129,MATCH(C$14,Inputs!$C$68:$AK$68,0),FALSE))","v":"RLMIN"},null,{"$f":"IF($B24=0,0,VLOOKUP($B24,Inputs!$C$68:$AK$129,MATCH('Capex Weighting'!E$14,Inputs!$C$68:$AK$68,0),FALSE))","v":2.6272404651958268},{"$f":"IF($B24=0,0,VLOOKUP($B24,Inputs!$C$68:$AK$129,MATCH('Capex Weighting'!F$14,Inputs!$C$68:$AK$68,0),FALSE))","v":28.891631396742603},null,null,null,null,null,31.518871861938429,{"$f":"IFERROR(VLOOKUP($B24,Volumes!$B$38:$F$79,MATCH(M$13,Volumes!$B$38:$F$38,0),FALSE),0)","v":83},null,2616.0663645408895,2.1661406666803307E-3,null,null,{"$f":"IFERROR(VLOOKUP($B24,Volumes!$B$38:$F$79,MATCH(S$14,Volumes!$B$38:$F$38,0),FALSE),0)","v":83},2.6160663645408895,2.1661406666803303E-3,{"$f":"IFERROR(VLOOKUP($B24,Volumes!$B$38:$F$79,MATCH(V$14,Volumes!$B$38:$F$38,0),FALSE),0)","v":83},2.6160663645408895,2.339257300868825E-3]
["",{"$f":"Inputs!C78","v":"20 Fluorescent 1X20FL"},{"$f":"IF(B25=0,\"\",VLOOKUP($B25,Inputs!$C$68:$AK$129,MATCH(C$14,Inputs!$C$68:$AK$68,0),FALSE))","v":"RLMIN"},null,{"$f":"IF($B25=0,0,VLOOKUP($B25,Inputs!$C$68:$AK$129,MATCH('Capex Weighting'!E$14,Inputs!$C$68:$AK$68,0),FALSE))","v":2.6272404651958268},{"$f":"IF($B25=0,0,VLOOKUP($B25,Inputs!$C$68:$AK$129,MATCH('Capex Weighting'!F$14,Inputs!$C$68:$AK$68,0),FALSE))","v":27.619501582238552},null,null,null,null,null,30.246742047434378,{"$f":"IFERROR(VLOOKUP($B25,Volumes!$B$38:$F$79,MATCH(M$13,Volumes!$B$38:$F$38,0),FALSE),0)","v":0},null,0,0,null,null,{"$f":"IFERROR(VLOOKUP($B25,Volumes!$B$38:$F$79,MATCH(S$14,Volumes!$B$38:$F$38,0),FALSE),0)","v":0},0,0,{"$f":"IFERROR(VLOOKUP($B25,Volumes!$B$38:$F$79,MATCH(V$14,Volumes!$B$38:$F$38,0),FALSE),0)","v":0},0,0]
["",{"$f":"Inputs!C79","v":"2x40W Fluorescent"},{"$f":"IF(B26=0,\"\",VLOOKUP($B26,Inputs!$C$68:$AK$129,MATCH(C$14,Inputs!$C$68:$AK$68,0),FALSE))","v":"RLMIN"},null,{"$f":"IF($B26=0,0,VLOOKUP($B26,Inputs!$C$68:$AK$129,MATCH('Capex Weighting'!E$14,Inputs!$C$68:$AK$68,0),FALSE))","v":2.6272404651958268},{"$f":"IF($B26=0,0,VLOOKUP($B26,Inputs!$C$68:$AK$129,MATCH('Capex Weighting'!F$14,Inputs!$C$68:$AK$68,0),FALSE))","v":29.056919725309257},null,null,null,null,null,31.684160190505082,{"$f":"IFERROR(VLOOKUP($B26,Volumes!$B$38:$F$79,MATCH(M$13,Volumes!$B$38:$F$38,0),FALSE),0)","v":0},null,0,0,null,null,{"$f":"IFERROR(VLOOKUP($B26,Volumes!$B$38:$F$79,MATCH(S$14,Volumes!$B$38:$F$38,0),FALSE),0)","v":0},0,0,{"$f":"IFERROR(VLOOKUP($B26,Volumes!$B$38:$F$79,MATCH(V$14,Volumes!$B$38:$F$38,0),FALSE),0)","v":0},0,0]
["",{"$f":"Inputs!C80","v":"3x40W Fluorescent"},{"$f":"IF(B27=0,\"\",VLOOKUP($B27,Inputs!$C$68:$AK$129,MATCH(C$14,Inputs!$C$68:$AK$68,0),FALSE))","v":"RLMAJ"},null,{"$f":"IF($B27=0,0,VLOOKUP($B27,Inputs!$C$68:$AK$129,MATCH('Capex Weighting'!E$14,Inputs!$C$68:$AK$68,0),FALSE))","v":2.6272404651958268},{"$f":"IF($B27=0,0,VLOOKUP($B27,Inputs!$C$68:$AK$129,MATCH('Capex Weighting'!F$14,Inputs!$C$68:$AK$68,0),FALSE))","v":42.198675810714697},null,null,null,null,null,44.825916275910522,{"$f":"IFERROR(VLOOKUP($B27,Volumes!$B$38:$F$79,MATCH(M$13,Volumes!$B$38:$F$38,0),FALSE),0)","v":0},null,0,0,null,null,{"$f":"IFERROR(VLOOKUP($B27,Volumes!$B$38:$F$79,MATCH(S$14,Volumes!$B$38:$F$38,0),FALSE),0)","v":0},0,0,{"$f":"IFERROR(VLOOKUP($B27,Volumes!$B$38:$F$79,MATCH(V$14,Volumes!$B$38:$F$38,0),FALSE),0)","v":0},0,0]
["",{"$f":"Inputs!C81","v":"4x20 Fluorescent"},{"$f":"IF(B28=0,\"\",VLOOKUP($B28,Inputs!$C$68:$AK$129,MATCH(C$14,Inputs!$C$68:$AK$68,0),FALSE))","v":"RLMIN"},null,{"$f":"IF($B28=0,0,VLOOKUP($B28,Inputs!$C$68:$AK$129,MATCH('Capex Weighting'!E$14,Inputs!$C$68:$AK$68,0),FALSE))","v":2.6272404651958268},{"$f":"IF($B28=0,0,VLOOKUP($B28,Inputs!$C$68:$AK$129,MATCH('Capex Weighting'!F$14,Inputs!$C$68:$AK$68,0),FALSE))","v":31.43589102575071},null,null,null,null,null,34.063131490946539,{"$f":"IFERROR(VLOOKUP($B28,Volumes!$B$38:$F$79,MATCH(M$13,Volumes!$B$38:$F$38,0),FALSE),0)","v":0},null,0,0,null,null,{"$f":"IFERROR(VLOOKUP($B28,Volumes!$B$38:$F$79,MATCH(S$14,Volumes!$B$38:$F$38,0),FALSE),0)","v":0},0,0,{"$f":"IFERROR(VLOOKUP($B28,Volumes!$B$38:$F$79,MATCH(V$14,Volumes!$B$38:$F$38,0),FALSE),0)","v":0},0,0]
["",{"$f":"Inputs!C82","v":"4x40W Fluorescent"},{"$f":"IF(B29=0,\"\",VLOOKUP($B29,Inputs!$C$68:$AK$129,MATCH(C$14,Inputs!$C$68:$AK$68,0),FALSE))","v":"RLMAJ"},null,{"$f":"IF($B29=0,0,VLOOKUP($B29,Inputs!$C$68:$AK$129,MATCH('Capex Weighting'!E$14,Inputs!$C$68:$AK$68,0),FALSE))","v":2.6272404651958268},{"$f":"IF($B29=0,0,VLOOKUP($B29,Inputs!$C$68:$AK$129,MATCH('Capex Weighting'!F$14,Inputs!$C$68:$AK$68,0),FALSE))","v":43.553449789502075},null,null,null,null,null,46.1806902546979,{"$f":"IFERROR(VLOOKUP($B29,Volumes!$B$38:$F$79,MATCH(M$13,Volumes!$B$38:$F$38,0),FALSE),0)","v":0},null,0,0,null,null,{"$f":"IFERROR(VLOOKUP($B29,Volumes!$B$38:$F$79,MATCH(S$14,Volumes!$B$38:$F$38,0),FALSE),0)","v":0},0,0,{"$f":"IFERROR(VLOOKUP($B29,Volumes!$B$38:$F$79,MATCH(V$14,Volumes!$B$38:$F$38,0),FALSE),0)","v":0},0,0]
["",{"$f":"Inputs!C83","v":"100W Sodium Vapour"},{"$f":"IF(B30=0,\"\",VLOOKUP($B30,Inputs!$C$68:$AK$129,MATCH(C$14,Inputs!$C$68:$AK$68,0),FALSE))","v":"RLMAJ"},null,{"$f":"IF($B30=0,0,VLOOKUP($B30,Inputs!$C$68:$AK$129,MATCH('Capex Weighting'!E$14,Inputs!$C$68:$AK$68,0),FALSE))","v":2.3834741346930461},{"$f":"IF($B30=0,0,VLOOKUP($B30,Inputs!$C$68:$AK$129,MATCH('Capex Weighting'!F$14,Inputs!$C$68:$AK$68,0),FALSE))","v":42.518435791064562},null,null,null,null,null,44.901909925757607,{"$f":"IFERROR(VLOOKUP($B30,Volumes!$B$38:$F$79,MATCH(M$13,Volumes!$B$38:$F$38,0),FALSE),0)","v":403},null,18095.469700080317,1.4983309801051127E-2,null,null,{"$f":"IFERROR(VLOOKUP($B30,Volumes!$B$38:$F$79,MATCH(S$14,Volumes!$B$38:$F$38,0),FALSE),0)","v":403},18.095469700080319,1.4983309801051128E-2,{"$f":"IFERROR(VLOOKUP($B30,Volumes!$B$38:$F$79,MATCH(V$14,Volumes!$B$38:$F$38,0),FALSE),0)","v":423},18.993507898595468,1.6983782454118506E-2]
[{"$f":"IF(B31=0,\"x\",\"\")","v":"x"},{"$f":"Inputs!C84","v":0},{"$f":"IF(B31=0,\"\",VLOOKUP($B31,Inputs!$C$68:$AK$129,MATCH(C$14,Inputs!$C$68:$AK$68,0),FALSE))","v":""},null,{"$f":"IF($B31=0,0,VLOOKUP($B31,Inputs!$C$68:$AK$129,MATCH('Capex Weighting'!E$14,Inputs!$C$68:$AK$68,0),FALSE))","v":0},{"$f":"IF($B31=0,0,VLOOKUP($B31,Inputs!$C$68:$AK$129,MATCH('Capex Weighting'!F$14,Inputs!$C$68:$AK$68,0),FALSE))","v":0},null,null,null,null,null,{"$f":"SUM(D31:K31)","v":0},{"$f":"IFERROR(VLOOKUP($B31,Volumes!$B$38:$F$79,MATCH(M$13,Volumes!$B$38:$F$38,0),FALSE),0)","v":0},null,0,0,null,null,{"$f":"IFERROR(VLOOKUP($B31,Volumes!$B$38:$F$79,MATCH(S$14,Volumes!$B$38:$F$38,0),FALSE),0)","v":0},0,0,{"$f":"IFERROR(VLOOKUP($B31,Volumes!$B$38:$F$79,MATCH(V$14,Volumes!$B$38:$F$38,0),FALSE),0)","v":0},0,0]
["",{"$f":"Inputs!C85","v":"150W Sodium Vapour"},{"$f":"IF(B32=0,\"\",VLOOKUP($B32,Inputs!$C$68:$AK$129,MATCH(C$14,Inputs!$C$68:$AK$68,0),FALSE))","v":"RLMAJ"},null,{"$f":"IF($B32=0,0,VLOOKUP($B32,Inputs!$C$68:$AK$129,MATCH('Capex Weighting'!E$14,Inputs!$C$68:$AK$68,0),FALSE))","v":4.1028747685753881},{"$f":"IF($B32=0,0,VLOOKUP($B32,Inputs!$C$68:$AK$129,MATCH('Capex Weighting'!F$14,Inputs!$C$68:$AK$68,0),FALSE))","v":42.501835869244005},null,null,null,null,null,46.604710637819394,{"$f":"IFERROR(VLOOKUP($B32,Volumes!$B$38:$F$79,MATCH(M$13,Volumes!$B$38:$F$38,0),FALSE),0)","v":4827},null,224960.93824875422,0.1862709002188131,null,null,{"$f":"IFERROR(VLOOKUP($B32,Volumes!$B$38:$F$79,MATCH(S$14,Volumes!$B$38:$F$38,0),FALSE),0)","v":4827},224.96093824875422,0.1862709002188131,{"$f":"IFERROR(VLOOKUP($B32,Volumes!$B$38:$F$79,MATCH(V$14,Volumes!$B$38:$F$38,0),FALSE),0)","v":5069},236.23927822310651,0.21124252191223261]
["x",{"$f":"Inputs!C86","v":0},{"$f":"IF(B33=0,\"\",VLOOKUP($B33,Inputs!$C$68:$AK$129,MATCH(C$14,Inputs!$C$68:$AK$68,0),FALSE))","v":""},null,{"$f":"IF($B33=0,0,VLOOKUP($B33,Inputs!$C$68:$AK$129,MATCH('Capex Weighting'!E$14,Inputs!$C$68:$AK$68,0),FALSE))","v":0},{"$f":"IF($B33=0,0,VLOOKUP($B33,Inputs!$C$68:$AK$129,MATCH('Capex Weighting'!F$14,Inputs!$C$68:$AK$68,0),FALSE))","v":0},null,null,null,null,null,0,{"$f":"IFERROR(VLOOKUP($B33,Volumes!$B$38:$F$79,MATCH(M$13,Volumes!$B$38:$F$38,0),FALSE),0)","v":0},null,0,0,null,null,{"$f":"IFERROR(VLOOKUP($B33,Volumes!$B$38:$F$79,MATCH(S$14,Volumes!$B$38:$F$38,0),FALSE),0)","v":0},0,0,{"$f":"IFERROR(VLOOKUP($B33,Volumes!$B$38:$F$79,MATCH(V$14,Volumes!$B$38:$F$38,0),FALSE),0)","v":0},0,0]
["x",{"$f":"Inputs!C87","v":0},{"$f":"IF(B34=0,\"\",VLOOKUP($B34,Inputs!$C$68:$AK$129,MATCH(C$14,Inputs!$C$68:$AK$68,0),FALSE))","v":""},null,{"$f":"IF($B34=0,0,VLOOKUP($B34,Inputs!$C$68:$AK$129,MATCH('Capex Weighting'!E$14,Inputs!$C$68:$AK$68,0),FALSE))","v":0},{"$f":"IF($B34=0,0,VLOOKUP($B34,Inputs!$C$68:$AK$129,MATCH('Capex Weighting'!F$14,Inputs!$C$68:$AK$68,0),FALSE))","v":0},null,null,null,null,null,0,{"$f":"IFERROR(VLOOKUP($B34,Volumes!$B$38:$F$79,MATCH(M$13,Volumes!$B$38:$F$38,0),FALSE),0)","v":0},null,0,0,null,null,{"$f":"IFERROR(VLOOKUP($B34,Volumes!$B$38:$F$79,MATCH(S$14,Volumes!$B$38:$F$38,0),FALSE),0)","v":0},0,0,{"$f":"IFERROR(VLOOKUP($B34,Volumes!$B$38:$F$79,MATCH(V$14,Volumes!$B$38:$F$38,0),FALSE),0)","v":0},0,0]
["x",{"$f":"Inputs!C88","v":0},{"$f":"IF(B35=0,\"\",VLOOKUP($B35,Inputs!$C$68:$AK$129,MATCH(C$14,Inputs!$C$68:$AK$68,0),FALSE))","v":""},null,{"$f":"IF($B35=0,0,VLOOKUP($B35,Inputs!$C$68:$AK$129,MATCH('Capex Weighting'!E$14,Inputs!$C$68:$AK$68,0),FALSE))","v":0},{"$f":"IF($B35=0,0,VLOOKUP($B35,Inputs!$C$68:$AK$129,MATCH('Capex Weighting'!F$14,Inputs!$C$68:$AK$68,0),FALSE))","v":0},null,null,null,null,null,0,{"$f":"IFERROR(VLOOKUP($B35,Volumes!$B$38:$F$79,MATCH(M$13,Volumes!$B$38:$F$38,0),FALSE),0)","v":0},null,0,0,null,null,{"$f":"IFERROR(VLOOKUP($B35,Volumes!$B$38:$F$79,MATCH(S$14,Volumes!$B$38:$F$38,0),FALSE),0)","v":0},0,0,{"$f":"IFERROR(VLOOKUP($B35,Volumes!$B$38:$F$79,MATCH(V$14,Volumes!$B$38:$F$38,0),FALSE),0)","v":0},0,0]
["",{"$f":"Inputs!C89","v":"250W Sodium Vapour"},{"$f":"IF(B36=0,\"\",VLOOKUP($B36,Inputs!$C$68:$AK$129,MATCH(C$14,Inputs!$C$68:$AK$68,0),FALSE))","v":"RLMAJ"},null,{"$f":"IF($B36=0,0,VLOOKUP($B36,Inputs!$C$68:$AK$129,MATCH('Capex Weighting'!E$14,Inputs!$C$68:$AK$68,0),FALSE))","v":5.2649204438897215},{"$f":"IF($B36=0,0,VLOOKUP($B36,Inputs!$C$68:$AK$129,MATCH('Capex Weighting'!F$14,Inputs!$C$68:$AK$68,0),FALSE))","v":43.045767068214708},null,null,null,null,null,48.31068751210443,{"$f":"IFERROR(VLOOKUP($B36,Volumes!$B$38:$F$79,MATCH(M$13,Volumes!$B$38:$F$38,0),FALSE),0)","v":6000},null,289864.12507262657,0.24001167464332349,null,null,{"$f":"IFERROR(VLOOKUP($B36,Volumes!$B$38:$F$79,MATCH(S$14,Volumes!$B$38:$F$38,0),FALSE),0)","v":6000},289.86412507262656,0.24001167464332346,{"$f":"IFERROR(VLOOKUP($B36,Volumes!$B$38:$F$79,MATCH(V$14,Volumes!$B$38:$F$38,0),FALSE),0)","v":6300},304.35733132625791,0.27215292357571713]
["x",{"$f":"Inputs!C90","v":0},{"$f":"IF(B37=0,\"\",VLOOKUP($B37,Inputs!$C$68:$AK$129,MATCH(C$14,Inputs!$C$68:$AK$68,0),FALSE))","v":""},null,{"$f":"IF($B37=0,0,VLOOKUP($B37,Inputs!$C$68:$AK$129,MATCH('Capex Weighting'!E$14,Inputs!$C$68:$AK$68,0),FALSE))","v":0},{"$f":"IF($B37=0,0,VLOOKUP($B37,Inputs!$C$68:$AK$129,MATCH('Capex Weighting'!F$14,Inputs!$C$68:$AK$68,0),FALSE))","v":0},null,null,null,null,null,0,{"$f":"IFERROR(VLOOKUP($B37,Volumes!$B$38:$F$79,MATCH(M$13,Volumes!$B$38:$F$38,0),FALSE),0)","v":0},null,0,0,null,null,{"$f":"IFERROR(VLOOKUP($B37,Volumes!$B$38:$F$79,MATCH(S$14,Volumes!$B$38:$F$38,0),FALSE),0)","v":0},0,0,{"$f":"IFERROR(VLOOKUP($B37,Volumes!$B$38:$F$79,MATCH(V$14,Volumes!$B$38:$F$38,0),FALSE),0)","v":0},0,0]
["x",{"$f":"Inputs!C91","v":0},{"$f":"IF(B38=0,\"\",VLOOKUP($B38,Inputs!$C$68:$AK$129,MATCH(C$14,Inputs!$C$68:$AK$68,0),FALSE))","v":""},null,{"$f":"IF($B38=0,0,VLOOKUP($B38,Inputs!$C$68:$AK$129,MATCH('Capex Weighting'!E$14,Inputs!$C$68:$AK$68,0),FALSE))","v":0},{"$f":"IF($B38=0,0,VLOOKUP($B38,Inputs!$C$68:$AK$129,MATCH('Capex Weighting'!F$14,Inputs!$C$68:$AK$68,0),FALSE))","v":0},null,null,null,null,null,0,{"$f":"IFERROR(VLOOKUP($B38,Volumes!$B$38:$F$79,MATCH(M$13,Volumes!$B$38:$F$38,0),FALSE),0)","v":0},null,0,0,null,null,{"$f":"IFERROR(VLOOKUP($B38,Volumes!$B$38:$F$79,MATCH(S$14,Volumes!$B$38:$F$38,0),FALSE),0)","v":0},0,0,{"$f":"IFERROR(VLOOKUP($B38,Volumes!$B$38:$F$79,MATCH(V$14,Volumes!$B$38:$F$38,0),FALSE),0)","v":0},0,0]
["x",{"$f":"Inputs!C92","v":0},{"$f":"IF(B39=0,\"\",VLOOKUP($B39,Inputs!$C$68:$AK$129,MATCH(C$14,Inputs!$C$68:$AK$68,0),FALSE))","v":""},null,{"$f":"IF($B39=0,0,VLOOKUP($B39,Inputs!$C$68:$AK$129,MATCH('Capex Weighting'!E$14,Inputs!$C$68:$AK$68,0),FALSE))","v":0},{"$f":"IF($B39=0,0,VLOOKUP($B39,Inputs!$C$68:$AK$129,MATCH('Capex Weighting'!F$14,Inputs!$C$68:$AK$68,0),FALSE))","v":0},null,null,null,null,null,0,{"$f":"IFERROR(VLOOKUP($B39,Volumes!$B$38:$F$79,MATCH(M$13,Volumes!$B$38:$F$38,0),FALSE),0)","v":0},null,0,0,null,null,{"$f":"IFERROR(VLOOKUP($B39,Volumes!$B$38:$F$79,MATCH(S$14,Volumes!$B$38:$F$38,0),FALSE),0)","v":0},0,0,{"$f":"IFERROR(VLOOKUP($B39,Volumes!$B$38:$F$79,MATCH(V$14,Volumes!$B$38:$F$38,0),FALSE),0)","v":0},0,0]
["",{"$f":"Inputs!C93","v":"250W Sodium Vapour - Flood Light"},{"$f":"IF(B40=0,\"\",VLOOKUP($B40,Inputs!$C$68:$AK$129,MATCH(C$14,Inputs!$C$68:$AK$68,0),FALSE))","v":"RLMAJ"},null,{"$f":"IF($B40=0,0,VLOOKUP($B40,Inputs!$C$68:$AK$129,MATCH('Capex Weighting'!E$14,Inputs!$C$68:$AK$68,0),FALSE))","v":5.2649204438897215},{"$f":"IF($B40=0,0,VLOOKUP($B40,Inputs!$C$68:$AK$129,MATCH('Capex Weighting'!F$14,Inputs!$C$68:$AK$68,0),FALSE))","v":43.045767068214708},null,null,null,null,null,48.31068751210443,{"$f":"IFERROR(VLOOKUP($B40,Volumes!$B$38:$F$79,MATCH(M$13,Volumes!$B$38:$F$38,0),FALSE),0)","v":33},null,1594.2526878994461,1.3200642105382792E-3,null,null,{"$f":"IFERROR(VLOOKUP($B40,Volumes!$B$38:$F$79,MATCH(S$14,Volumes!$B$38:$F$38,0),FALSE),0)","v":33},1.5942526878994461,1.320064210538279E-3,{"$f":"IFERROR(VLOOKUP($B40,Volumes!$B$38:$F$79,MATCH(V$14,Volumes!$B$38:$F$38,0),FALSE),0)","v":35},1.6908740629236549,1.5119606865317617E-3]
["",{"$f":"Inputs!C94","v":"400W Sodium Vapour"},{"$f":"IF(B41=0,\"\",VLOOKUP($B41,Inputs!$C$68:$AK$129,MATCH(C$14,Inputs!$C$68:$AK$68,0),FALSE))","v":"RLMAJ"},null,{"$f":"IF($B41=0,0,VLOOKUP($B41,Inputs!$C$68:$AK$129,MATCH('Capex Weighting'!E$14,Inputs!$C$68:$AK$68,0),FALSE))","v":3.7981247244118976},{"$f":"IF($B41=0,0,VLOOKUP($B41,Inputs!$C$68:$AK$129,MATCH('Capex Weighting'!F$14,Inputs!$C$68:$AK$68,0),FALSE))","v":43.230139704161864},null,null,null,null,null,47.028264428573763,{"$f":"IFERROR(VLOOKUP($B41,Volumes!$B$38:$F$79,MATCH(M$13,Volumes!$B$38:$F$38,0),FALSE),0)","v":611},null,28734.269565858569,2.3792389473607466E-2,null,null,{"$f":"IFERROR(VLOOKUP($B41,Volumes!$B$38:$F$79,MATCH(S$14,Volumes!$B$38:$F$38,0),FALSE),0)","v":611},28.734269565858568,2.3792389473607466E-2,{"$f":"IFERROR(VLOOKUP($B41,Volumes!$B$38:$F$79,MATCH(V$14,Volumes!$B$38:$F$38,0),FALSE),0)","v":642},30.192145763144357,2.6997479254593004E-2]
["x",{"$f":"Inputs!C95","v":0},{"$f":"IF(B42=0,\"\",VLOOKUP($B42,Inputs!$C$68:$AK$129,MATCH(C$14,Inputs!$C$68:$AK$68,0),FALSE))","v":""},null,{"$f":"IF($B42=0,0,VLOOKUP($B42,Inputs!$C$68:$AK$129,MATCH('Capex Weighting'!E$14,Inputs!$C$68:$AK$68,0),FALSE))","v":0},{"$f":"IF($B42=0,0,VLOOKUP($B42,Inputs!$C$68:$AK$129,MATCH('Capex Weighting'!F$14,Inputs!$C$68:$AK$68,0),FALSE))","v":0},null,null,null,null,null,0,{"$f":"IFERROR(VLOOKUP($B42,Volumes!$B$38:$F$79,MATCH(M$13,Volumes!$B$38:$F$38,0),FALSE),0)","v":0},null,0,0,null,null,{"$f":"IFERROR(VLOOKUP($B42,Volumes!$B$38:$F$79,MATCH(S$14,Volumes!$B$38:$F$38,0),FALSE),0)","v":0},0,0,{"$f":"IFERROR(VLOOKUP($B42,Volumes!$B$38:$F$79,MATCH(V$14,Volumes!$B$38:$F$38,0),FALSE),0)","v":0},0,0]
["",{"$f":"Inputs!C96","v":"400W Sodium Vapour - Flood Light"},{"$f":"IF(B43=0,\"\",VLOOKUP($B43,Inputs!$C$68:$AK$129,MATCH(C$14,Inputs!$C$68:$AK$68,0),FALSE))","v":"RLMAJ"},null,{"$f":"IF($B43=0,0,VLOOKUP($B43,Inputs!$C$68:$AK$129,MATCH('Capex Weighting'!E$14,Inputs!$C$68:$AK$68,0),FALSE))","v":3.7981247244118976},{"$f":"IF($B43=0,0,VLOOKUP($B43,Inputs!$C$68:$AK$129,MATCH('Capex Weighting'!F$14,Inputs!$C$68:$AK$68,0),FALSE))","v":43.230139704161864},null,null,null,null,null,47.028264428573763,{"$f":"IFERROR(VLOOKUP($B43,Volumes!$B$38:$F$79,MATCH(M$13,Volumes!$B$38:$F$38,0),FALSE),0)","v":33},null,1551.9327261429341,1.2850226720606324E-3,null,null,{"$f":"IFERROR(VLOOKUP($B43,Volumes!$B$38:$F$79,MATCH(S$14,Volumes!$B$38:$F$38,0),FALSE),0)","v":33},1.5519327261429341,1.2850226720606322E-3,{"$f":"IFERROR(VLOOKUP($B43,Volumes!$B$38:$F$79,MATCH(V$14,Volumes!$B$38:$F$38,0),FALSE),0)","v":35},1.6459892550000819,1.4718251930074069E-3]
["",{"$f":"Inputs!C97","v":"70W Sodium Vapour"},{"$f":"IF(B44=0,\"\",VLOOKUP($B44,Inputs!$C$68:$AK$129,MATCH(C$14,Inputs!$C$68:$AK$68,0),FALSE))","v":"RLMIN"},null,{"$f":"IF($B44=0,0,VLOOKUP($B44,Inputs!$C$68:$AK$129,MATCH('Capex Weighting'!E$14,Inputs!$C$68:$AK$68,0),FALSE))","v":2.304483651289706},{"$f":"IF($B44=0,0,VLOOKUP($B44,Inputs!$C$68:$AK$129,MATCH('Capex Weighting'!F$14,Inputs!$C$68:$AK$68,0),FALSE))","v":28.532496091998599},null,null,null,null,null,30.836979743288303,{"$f":"IFERROR(VLOOKUP($B44,Volumes!$B$38:$F$79,MATCH(M$13,Volumes!$B$38:$F$38,0),FALSE),0)","v":214},null,6599.1136650636972,5.4641612566464883E-3,null,null,{"$f":"IFERROR(VLOOKUP($B44,Volumes!$B$38:$F$79,MATCH(S$14,Volumes!$B$38:$F$38,0),FALSE),0)","v":214},6.5991136650636975,5.4641612566464883E-3,{"$f":"IFERROR(VLOOKUP($B44,Volumes!$B$38:$F$79,MATCH(V$14,Volumes!$B$38:$F$38,0),FALSE),0)","v":225},6.9383204422398688,6.2041685831335661E-3]
["x",{"$f":"Inputs!C98","v":0},{"$f":"IF(B45=0,\"\",VLOOKUP($B45,Inputs!$C$68:$AK$129,MATCH(C$14,Inputs!$C$68:$AK$68,0),FALSE))","v":""},null,{"$f":"IF($B45=0,0,VLOOKUP($B45,Inputs!$C$68:$AK$129,MATCH('Capex Weighting'!E$14,Inputs!$C$68:$AK$68,0),FALSE))","v":0},{"$f":"IF($B45=0,0,VLOOKUP($B45,Inputs!$C$68:$AK$129,MATCH('Capex Weighting'!F$14,Inputs!$C$68:$AK$68,0),FALSE))","v":0},null,null,null,null,null,0,{"$f":"IFERROR(VLOOKUP($B45,Volumes!$B$38:$F$79,MATCH(M$13,Volumes!$B$38:$F$38,0),FALSE),0)","v":0},null,0,0,null,null,{"$f":"IFERROR(VLOOKUP($B45,Volumes!$B$38:$F$79,MATCH(S$14,Volumes!$B$38:$F$38,0),FALSE),0)","v":0},0,0,{"$f":"IFERROR(VLOOKUP($B45,Volumes!$B$38:$F$79,MATCH(V$14,Volumes!$B$38:$F$38,0),FALSE),0)","v":0},0,0]
["",{"$f":"Inputs!C99","v":"100W Incandescent"},{"$f":"IF(B46=0,\"\",VLOOKUP($B46,Inputs!$C$68:$AK$129,MATCH(C$14,Inputs!$C$68:$AK$68,0),FALSE))","v":"RLMAJ"},null,{"$f":"IF($B46=0,0,VLOOKUP($B46,Inputs!$C$68:$AK$129,MATCH('Capex Weighting'!E$14,Inputs!$C$68:$AK$68,0),FALSE))","v":1.7137418547973322},{"$f":"IF($B46=0,0,VLOOKUP($B46,Inputs!$C$68:$AK$129,MATCH('Capex Weighting'!F$14,Inputs!$C$68:$AK$68,0),FALSE))","v":38.677444096785848},null,null,null,null,null,40.391185951583182,{"$f":"IFERROR(VLOOKUP($B46,Volumes!$B$38:$F$79,MATCH(M$13,Volumes!$B$38:$F$38,0),FALSE),0)","v":0},null,0,0,null,null,{"$f":"IFERROR(VLOOKUP($B46,Volumes!$B$38:$F$79,MATCH(S$14,Volumes!$B$38:$F$38,0),FALSE),0)","v":0},0,0,{"$f":"IFERROR(VLOOKUP($B46,Volumes!$B$38:$F$79,MATCH(V$14,Volumes!$B$38:$F$38,0),FALSE),0)","v":0},0,0]
["",{"$f":"Inputs!C100","v":"60W Incandescent"},{"$f":"IF(B47=0,\"\",VLOOKUP($B47,Inputs!$C$68:$AK$129,MATCH(C$14,Inputs!$C$68:$AK$68,0),FALSE))","v":"RLMIN"},null,{"$f":"IF($B47=0,0,VLOOKUP($B47,Inputs!$C$68:$AK$129,MATCH('Capex Weighting'!E$14,Inputs!$C$68:$AK$68,0),FALSE))","v":1.7137418547973322},{"$f":"IF($B47=0,0,VLOOKUP($B47,Inputs!$C$68:$AK$129,MATCH('Capex Weighting'!F$14,Inputs!$C$68:$AK$68,0),FALSE))","v":26.890461990167786},null,null,null,null,null,28.60420384496512,{"$f":"IFERROR(VLOOKUP($B47,Volumes!$B$38:$F$79,MATCH(M$13,Volumes!$B$38:$F$38,0),FALSE),0)","v":0},null,0,0,null,null,{"$f":"IFERROR(VLOOKUP($B47,Volumes!$B$38:$F$79,MATCH(S$14,Volumes!$B$38:$F$38,0),FALSE),0)","v":0},0,0,{"$f":"IFERROR(VLOOKUP($B47,Volumes!$B$38:$F$79,MATCH(V$14,Volumes!$B$38:$F$38,0),FALSE),0)","v":0},0,0]
["",{"$f":"Inputs!C101","v":"18W LED"},{"$f":"IF(B48=0,\"\",VLOOKUP($B48,Inputs!$C$68:$AK$129,MATCH(C$14,Inputs!$C$68:$AK$68,0),FALSE))","v":"RLMIN"},null,{"$f":"IF($B48=0,0,VLOOKUP($B48,Inputs!$C$68:$AK$129,MATCH('Capex Weighting'!E$14,Inputs!$C$68:$AK$68,0),FALSE))","v":1.9664109421394016},{"$f":"IF($B48=0,0,VLOOKUP($B48,Inputs!$C$68:$AK$129,MATCH('Capex Weighting'!F$14,Inputs!$C$68:$AK$68,0),FALSE))","v":0},null,null,null,null,null,1.9664109421394016,{"$f":"IFERROR(VLOOKUP($B48,Volumes!$B$38:$F$79,MATCH(M$13,Volumes!$B$38:$F$38,0),FALSE),0)","v":10110},null,19880.414625029349,1.646126993315019E-2,null,null,{"$f":"IFERROR(VLOOKUP($B48,Volumes!$B$38:$F$79,MATCH(S$14,Volumes!$B$38:$F$38,0),FALSE),0)","v":10110},19.880414625029349,1.646126993315019E-2,{"$f":"IFERROR(VLOOKUP($B48,Volumes!$B$38:$F$79,MATCH(V$14,Volumes!$B$38:$F$38,0),FALSE),0)","v":14210},27.942699487800894,2.498604953941724E-2]
["",{"$f":"Inputs!C102","v":"25W LED"},{"$f":"IF(B49=0,\"\",VLOOKUP($B49,Inputs!$C$68:$AK$129,MATCH(C$14,Inputs!$C$68:$AK$68,0),FALSE))","v":"RLMIN"},null,{"$f":"IF($B49=0,0,VLOOKUP($B49,Inputs!$C$68:$AK$129,MATCH('Capex Weighting'!E$14,Inputs!$C$68:$AK$68,0),FALSE))","v":1.9664109421394016},{"$f":"IF($B49=0,0,VLOOKUP($B49,Inputs!$C$68:$AK$129,MATCH('Capex Weighting'!F$14,Inputs!$C$68:$AK$68,0),FALSE))","v":0},null,null,null,null,null,1.9664109421394016,{"$f":"IFERROR(VLOOKUP($B49,Volumes!$B$38:$F$79,MATCH(M$13,Volumes!$B$38:$F$38,0),FALSE),0)","v":21},null,41.29462978492743,3.4192548822567159E-5,null,null,{"$f":"IFERROR(VLOOKUP($B49,Volumes!$B$38:$F$79,MATCH(S$14,Volumes!$B$38:$F$38,0),FALSE),0)","v":21},4.1294629784927428E-2,3.4192548822567159E-5,{"$f":"IFERROR(VLOOKUP($B49,Volumes!$B$38:$F$79,MATCH(V$14,Volumes!$B$38:$F$38,0),FALSE),0)","v":21},4.1294629784927428E-2,3.6925196363670796E-5]
["",{"$f":"Inputs!C103","v":"18W LED Decorative - Bottom Pole Entry"},{"$f":"IF(B50=0,\"\",VLOOKUP($B50,Inputs!$C$68:$AK$129,MATCH(C$14,Inputs!$C$68:$AK$68,0),FALSE))","v":"RLMIN"},null,{"$f":"IF($B50=0,0,VLOOKUP($B50,Inputs!$C$68:$AK$129,MATCH('Capex Weighting'!E$14,Inputs!$C$68:$AK$68,0),FALSE))","v":1.9664109421394016},{"$f":"IF($B50=0,0,VLOOKUP($B50,Inputs!$C$68:$AK$129,MATCH('Capex Weighting'!F$14,Inputs!$C$68:$AK$68,0),FALSE))","v":0},null,null,null,null,null,1.9664109421394016,{"$f":"IFERROR(VLOOKUP($B50,Volumes!$B$38:$F$79,MATCH(M$13,Volumes!$B$38:$F$38,0),FALSE),0)","v":33},null,64.891561090600248,5.3731148149748394E-5,null,null,{"$f":"IFERROR(VLOOKUP($B50,Volumes!$B$38:$F$79,MATCH(S$14,Volumes!$B$38:$F$38,0),FALSE),0)","v":33},6.489156109060025E-2,5.3731148149748394E-5,{"$f":"IFERROR(VLOOKUP($B50,Volumes!$B$38:$F$79,MATCH(V$14,Volumes!$B$38:$F$38,0),FALSE),0)","v":35},6.8824382974879056E-2,6.1541993939451332E-5]
["",{"$f":"Inputs!C104","v":"18W LED Decorative - Side Entry"},{"$f":"IF(B51=0,\"\",VLOOKUP($B51,Inputs!$C$68:$AK$129,MATCH(C$14,Inputs!$C$68:$AK$68,0),FALSE))","v":"RLMIN"},null,{"$f":"IF($B51=0,0,VLOOKUP($B51,Inputs!$C$68:$AK$129,MATCH('Capex Weighting'!E$14,Inputs!$C$68:$AK$68,0),FALSE))","v":1.9664109421394016},{"$f":"IF($B51=0,0,VLOOKUP($B51,Inputs!$C$68:$AK$129,MATCH('Capex Weighting'!F$14,Inputs!$C$68:$AK$68,0),FALSE))","v":0},null,null,null,null,null,1.9664109421394016,{"$f":"IFERROR(VLOOKUP($B51,Volumes!$B$38:$F$79,MATCH(M$13,Volumes!$B$38:$F$38,0),FALSE),0)","v":33},null,64.891561090600248,5.3731148149748394E-5,null,null,{"$f":"IFERROR(VLOOKUP($B51,Volumes!$B$38:$F$79,MATCH(S$14,Volumes!$B$38:$F$38,0),FALSE),0)","v":33},6.489156109060025E-2,5.3731148149748394E-5,{"$f":"IFERROR(VLOOKUP($B51,Volumes!$B$38:$F$79,MATCH(V$14,Volumes!$B$38:$F$38,0),FALSE),0)","v":35},6.8824382974879056E-2,6.1541993939451332E-5]
["",{"$f":"Inputs!C105","v":"18W LED Decorative - Top Entry"},{"$f":"IF(B52=0,\"\",VLOOKUP($B52,Inputs!$C$68:$AK$129,MATCH(C$14,Inputs!$C$68:$AK$68,0),FALSE))","v":"RLMIN"},null,{"$f":"IF($B52=0,0,VLOOKUP($B52,Inputs!$C$68:$AK$129,MATCH('Capex Weighting'!E$14,Inputs!$C$68:$AK$68,0),FALSE))","v":1.9664109421394016},{"$f":"IF($B52=0,0,VLOOKUP($B52,Inputs!$C$68:$AK$129,MATCH('Capex Weighting'!F$14,Inputs!$C$68:$AK$68,0),FALSE))","v":0},null,null,null,null,null,1.9664109421394016,{"$f":"IFERROR(VLOOKUP($B52,Volumes!$B$38:$F$79,MATCH(M$13,Volumes!$B$38:$F$38,0),FALSE),0)","v":33},null,64.891561090600248,5.3731148149748394E-5,null,null,{"$f":"IFERROR(VLOOKUP($B52,Volumes!$B$38:$F$79,MATCH(S$14,Volumes!$B$38:$F$38,0),FALSE),0)","v":33},6.489156109060025E-2,5.3731148149748394E-5,{"$f":"IFERROR(VLOOKUP($B52,Volumes!$B$38:$F$79,MATCH(V$14,Volumes!$B$38:$F$38,0),FALSE),0)","v":35},6.8824382974879056E-2,6.1541993939451332E-5]
["",{"$f":"Inputs!C106","v":"25W LED Decorative - Bottom Pole Entry"},{"$f":"IF(B53=0,\"\",VLOOKUP($B53,Inputs!$C$68:$AK$129,MATCH(C$14,Inputs!$C$68:$AK$68,0),FALSE))","v":"RLMIN"},null,{"$f":"IF($B53=0,0,VLOOKUP($B53,Inputs!$C$68:$AK$129,MATCH('Capex Weighting'!E$14,Inputs!$C$68:$AK$68,0),FALSE))","v":1.9664109421394016},{"$f":"IF($B53=0,0,VLOOKUP($B53,Inputs!$C$68:$AK$129,MATCH('Capex Weighting'!F$14,Inputs!$C$68:$AK$68,0),FALSE))","v":0},null,null,null,null,null,1.9664109421394016,{"$f":"IFERROR(VLOOKUP($B53,Volumes!$B$38:$F$79,MATCH(M$13,Volumes!$B$38:$F$38,0),FALSE),0)","v":33},null,64.891561090600248,5.3731148149748394E-5,null,null,{"$f":"IFERROR(VLOOKUP($B53,Volumes!$B$38:$F$79,MATCH(S$14,Volumes!$B$38:$F$38,0),FALSE),0)","v":33},6.489156109060025E-2,5.3731148149748394E-5,{"$f":"IFERROR(VLOOKUP($B53,Volumes!$B$38:$F$79,MATCH(V$14,Volumes!$B$38:$F$38,0),FALSE),0)","v":35},6.8824382974879056E-2,6.1541993939451332E-5]
["",{"$f":"Inputs!C107","v":"25W LED Decorative - Side Entry"},{"$f":"IF(B54=0,\"\",VLOOKUP($B54,Inputs!$C$68:$AK$129,MATCH(C$14,Inputs!$C$68:$AK$68,0),FALSE))","v":"RLMIN"},null,{"$f":"IF($B54=0,0,VLOOKUP($B54,Inputs!$C$68:$AK$129,MATCH('Capex Weighting'!E$14,Inputs!$C$68:$AK$68,0),FALSE))","v":1.9664109421394016},{"$f":"IF($B54=0,0,VLOOKUP($B54,Inputs!$C$68:$AK$129,MATCH('Capex Weighting'!F$14,Inputs!$C$68:$AK$68,0),FALSE))","v":0},null,null,null,null,null,1.9664109421394016,{"$f":"IFERROR(VLOOKUP($B54,Volumes!$B$38:$F$79,MATCH(M$13,Volumes!$B$38:$F$38,0),FALSE),0)","v":33},null,64.891561090600248,5.3731148149748394E-5,null,null,{"$f":"IFERROR(VLOOKUP($B54,Volumes!$B$38:$F$79,MATCH(S$14,Volumes!$B$38:$F$38,0),FALSE),0)","v":33},6.489156109060025E-2,5.3731148149748394E-5,{"$f":"IFERROR(VLOOKUP($B54,Volumes!$B$38:$F$79,MATCH(V$14,Volumes!$B$38:$F$38,0),FALSE),0)","v":35},6.8824382974879056E-2,6.1541993939451332E-5]
["",{"$f":"Inputs!C108","v":"25W LED Decorative - Top Entry"},{"$f":"IF(B55=0,\"\",VLOOKUP($B55,Inputs!$C$68:$AK$129,MATCH(C$14,Inputs!$C$68:$AK$68,0),FALSE))","v":"RLMIN"},null,{"$f":"IF($B55=0,0,VLOOKUP($B55,Inputs!$C$68:$AK$129,MATCH('Capex Weighting'!E$14,Inputs!$C$68:$AK$68,0),FALSE))","v":1.9664109421394016},{"$f":"IF($B55=0,0,VLOOKUP($B55,Inputs!$C$68:$AK$129,MATCH('Capex Weighting'!F$14,Inputs!$C$68:$AK$68,0),FALSE))","v":0},null,null,null,null,null,1.9664109421394016,{"$f":"IFERROR(VLOOKUP($B55,Volumes!$B$38:$F$79,MATCH(M$13,Volumes!$B$38:$F$38,0),FALSE),0)","v":33},null,64.891561090600248,5.3731148149748394E-5,null,null,{"$f":"IFERROR(VLOOKUP($B55,Volumes!$B$38:$F$79,MATCH(S$14,Volumes!$B$38:$F$38,0),FALSE),0)","v":33},6.489156109060025E-2,5.3731148149748394E-5,{"$f":"IFERROR(VLOOKUP($B55,Volumes!$B$38:$F$79,MATCH(V$14,Volumes!$B$38:$F$38,0),FALSE),0)","v":35},6.8824382974879056E-2,6.1541993939451332E-5]
["",{"$f":"Inputs!C109","v":"30W LED"},{"$f":"IF(B56=0,\"\",VLOOKUP($B56,Inputs!$C$68:$AK$129,MATCH(C$14,Inputs!$C$68:$AK$68,0),FALSE))","v":"RLMIN"},null,{"$f":"IF($B56=0,0,VLOOKUP($B56,Inputs!$C$68:$AK$129,MATCH('Capex Weighting'!E$14,Inputs!$C$68:$AK$68,0),FALSE))","v":1.9664109421394016},{"$f":"IF($B56=0,0,VLOOKUP($B56,Inputs!$C$68:$AK$129,MATCH('Capex Weighting'!F$14,Inputs!$C$68:$AK$68,0),FALSE))","v":0},null,null,null,null,null,1.9664109421394016,{"$f":"IFERROR(VLOOKUP($B56,Volumes!$B$38:$F$79,MATCH(M$13,Volumes!$B$38:$F$38,0),FALSE),0)","v":0},null,0,0,null,null,{"$f":"IFERROR(VLOOKUP($B56,Volumes!$B$38:$F$79,MATCH(S$14,Volumes!$B$38:$F$38,0),FALSE),0)","v":0},0,0,{"$f":"IFERROR(VLOOKUP($B56,Volumes!$B$38:$F$79,MATCH(V$14,Volumes!$B$38:$F$38,0),FALSE),0)","v":0},0,0]
["",{"$f":"Inputs!C110","v":"88 LED Light"},{"$f":"IF(B57=0,\"\",VLOOKUP($B57,Inputs!$C$68:$AK$129,MATCH(C$14,Inputs!$C$68:$AK$68,0),FALSE))","v":"RLMIN"},null,{"$f":"IF($B57=0,0,VLOOKUP($B57,Inputs!$C$68:$AK$129,MATCH('Capex Weighting'!E$14,Inputs!$C$68:$AK$68,0),FALSE))","v":1.9664109421394016},{"$f":"IF($B57=0,0,VLOOKUP($B57,Inputs!$C$68:$AK$129,MATCH('Capex Weighting'!F$14,Inputs!$C$68:$AK$68,0),FALSE))","v":0},null,null,null,null,null,1.9664109421394016,{"$f":"IFERROR(VLOOKUP($B57,Volumes!$B$38:$F$79,MATCH(M$13,Volumes!$B$38:$F$38,0),FALSE),0)","v":0},null,0,0,null,null,{"$f":"IFERROR(VLOOKUP($B57,Volumes!$B$38:$F$79,MATCH(S$14,Volumes!$B$38:$F$38,0),FALSE),0)","v":0},0,0,{"$f":"IFERROR(VLOOKUP($B57,Volumes!$B$38:$F$79,MATCH(V$14,Volumes!$B$38:$F$38,0),FALSE),0)","v":0},0,0]
["",{"$f":"Inputs!C111","v":"100W Metal Halide"},{"$f":"IF(B58=0,\"\",VLOOKUP($B58,Inputs!$C$68:$AK$129,MATCH(C$14,Inputs!$C$68:$AK$68,0),FALSE))","v":"RLMAJ"},null,{"$f":"IF($B58=0,0,VLOOKUP($B58,Inputs!$C$68:$AK$129,MATCH('Capex Weighting'!E$14,Inputs!$C$68:$AK$68,0),FALSE))","v":2.3834741346930461},{"$f":"IF($B58=0,0,VLOOKUP($B58,Inputs!$C$68:$AK$129,MATCH('Capex Weighting'!F$14,Inputs!$C$68:$AK$68,0),FALSE))","v":42.504247823696559},null,null,null,null,null,44.887721958389605,{"$f":"IFERROR(VLOOKUP($B58,Volumes!$B$38:$F$79,MATCH(M$13,Volumes!$B$38:$F$38,0),FALSE),0)","v":17},null,763.09127329262333,6.3185057606828519E-4,null,null,{"$f":"IFERROR(VLOOKUP($B58,Volumes!$B$38:$F$79,MATCH(S$14,Volumes!$B$38:$F$38,0),FALSE),0)","v":17},0.76309127329262327,6.3185057606828508E-4,{"$f":"IFERROR(VLOOKUP($B58,Volumes!$B$38:$F$79,MATCH(V$14,Volumes!$B$38:$F$38,0),FALSE),0)","v":17},0.76309127329262327,6.8234768676915037E-4]
["",{"$f":"Inputs!C112","v":"150W Metal Halide"},{"$f":"IF(B59=0,\"\",VLOOKUP($B59,Inputs!$C$68:$AK$129,MATCH(C$14,Inputs!$C$68:$AK$68,0),FALSE))","v":"RLMAJ"},null,{"$f":"IF($B59=0,0,VLOOKUP($B59,Inputs!$C$68:$AK$129,MATCH('Capex Weighting'!E$14,Inputs!$C$68:$AK$68,0),FALSE))","v":4.1028747685753881},{"$f":"IF($B59=0,0,VLOOKUP($B59,Inputs!$C$68:$AK$129,MATCH('Capex Weighting'!F$14,Inputs!$C$68:$AK$68,0),FALSE))","v":43.107029815952565},null,null,null,null,null,{"$f":"SUM(D59:K59)","v":47.209904584527955},{"$f":"IFERROR(VLOOKUP($B59,Volumes!$B$38:$F$79,MATCH(M$13,Volumes!$B$38:$F$38,0),FALSE),0)","v":14},null,{"$f":"M59*L59","v":660.93866418339132},5.4726674295217062E-4,null,null,{"$f":"IFERROR(VLOOKUP($B59,Volumes!$B$38:$F$79,MATCH(S$14,Volumes!$B$38:$F$38,0),FALSE),0)","v":14},0.66093866418339131,5.4726674295217062E-4,{"$f":"IFERROR(VLOOKUP($B59,Volumes!$B$38:$F$79,MATCH(V$14,Volumes!$B$38:$F$38,0),FALSE),0)","v":15},0.70814856876791932,6.3321853453090127E-4]
["",{"$f":"Inputs!C113","v":"250W Metal Halide"},{"$f":"IF(B60=0,\"\",VLOOKUP($B60,Inputs!$C$68:$AK$129,MATCH(C$14,Inputs!$C$68:$AK$68,0),FALSE))","v":"RLMAJ"},null,{"$f":"IF($B60=0,0,VLOOKUP($B60,Inputs!$C$68:$AK$129,MATCH('Capex Weighting'!E$14,Inputs!$C$68:$AK$68,0),FALSE))","v":5.2649204438897215},{"$f":"IF($B60=0,0,VLOOKUP($B60,Inputs!$C$68:$AK$129,MATCH('Capex Weighting'!F$14,Inputs!$C$68:$AK$68,0),FALSE))","v":43.107029815952565},null,null,null,null,null,{"$f":"SUM(D60:K60)","v":48.371950259842286},{"$f":"IFERROR(VLOOKUP($B60,Volumes!$B$38:$F$79,MATCH(M$13,Volumes!$B$38:$F$38,0),FALSE),0)","v":88},null,{"$f":"M60*L60","v":4256.7316228661211},{"$f":"O60/$O$76","v":3.524635154679137E-3},null,null,{"$f":"IFERROR(VLOOKUP($B60,Volumes!$B$38:$F$79,MATCH(S$14,Volumes!$B$38:$F$38,0),FALSE),0)","v":88},{"$f":"S60*$L60/T$13","v":4.2567316228661207},{"$f":"(T60)/T$76","v":3.5246351546791362E-3},{"$f":"IFERROR(VLOOKUP($B60,Volumes!$B$38:$F$79,MATCH(V$14,Volumes!$B$38:$F$38,0),FALSE),0)","v":89},{"$f":"V60*$L60/W$13","v":4.3051035731259635},{"$f":"(W60)/W$76","v":3.849575492783325E-3}]
["",{"$f":"Inputs!C114","v":"400W Metal Halide"},{"$f":"IF(B61=0,\"\",VLOOKUP($B61,Inputs!$C$68:$AK$129,MATCH(C$14,Inputs!$C$68:$AK$68,0),FALSE))","v":"RLMAJ"},null,{"$f":"IF($B61=0,0,VLOOKUP($B61,Inputs!$C$68:$AK$129,MATCH('Capex Weighting'!E$14,Inputs!$C$68:$AK$68,0),FALSE))","v":3.7981247244118976},{"$f":"IF($B61=0,0,VLOOKUP($B61,Inputs!$C$68:$AK$129,MATCH('Capex Weighting'!F$14,Inputs!$C$68:$AK$68,0),FALSE))","v":45.985947466352563},null,null,null,null,null,49.784072190764462,{"$f":"IFERROR(VLOOKUP($B61,Volumes!$B$38:$F$79,MATCH(M$13,Volumes!$B$38:$F$38,0),FALSE),0)","v":17},null,846.3292272429959,7.0077280201296592E-4,null,null,{"$f":"IFERROR(VLOOKUP($B61,Volumes!$B$38:$F$79,MATCH(S$14,Volumes!$B$38:$F$38,0),FALSE),0)","v":17},0.84632922724299586,7.0077280201296581E-4,{"$f":"IFERROR(VLOOKUP($B61,Volumes!$B$38:$F$79,MATCH(V$14,Volumes!$B$38:$F$38,0),FALSE),0)","v":17},0.84632922724299586,7.5677813476046651E-4]
["",{"$f":"Inputs!C115","v":"70W Metal Halide"},{"$f":"IF(B62=0,\"\",VLOOKUP($B62,Inputs!$C$68:$AK$129,MATCH(C$14,Inputs!$C$68:$AK$68,0),FALSE))","v":"RLMIN"},null,{"$f":"IF($B62=0,0,VLOOKUP($B62,Inputs!$C$68:$AK$129,MATCH('Capex Weighting'!E$14,Inputs!$C$68:$AK$68,0),FALSE))","v":2.3834741346930461},{"$f":"IF($B62=0,0,VLOOKUP($B62,Inputs!$C$68:$AK$129,MATCH('Capex Weighting'!F$14,Inputs!$C$68:$AK$68,0),FALSE))","v":30.639231896554499},null,null,null,null,null,33.022706031247544,{"$f":"IFERROR(VLOOKUP($B62,Volumes!$B$38:$F$79,MATCH(M$13,Volumes!$B$38:$F$38,0),FALSE),0)","v":0},null,0,0,null,null,{"$f":"IFERROR(VLOOKUP($B62,Volumes!$B$38:$F$79,MATCH(S$14,Volumes!$B$38:$F$38,0),FALSE),0)","v":0},0,0,{"$f":"IFERROR(VLOOKUP($B62,Volumes!$B$38:$F$79,MATCH(V$14,Volumes!$B$38:$F$38,0),FALSE),0)","v":0},0,0]
["",{"$f":"Inputs!C116","v":"250W Metal Halide - Flood Light"},{"$f":"IF(B63=0,\"\",VLOOKUP($B63,Inputs!$C$68:$AK$129,MATCH(C$14,Inputs!$C$68:$AK$68,0),FALSE))","v":"RLMAJ"},null,{"$f":"IF($B63=0,0,VLOOKUP($B63,Inputs!$C$68:$AK$129,MATCH('Capex Weighting'!E$14,Inputs!$C$68:$AK$68,0),FALSE))","v":5.2649204438897215},{"$f":"IF($B63=0,0,VLOOKUP($B63,Inputs!$C$68:$AK$129,MATCH('Capex Weighting'!F$14,Inputs!$C$68:$AK$68,0),FALSE))","v":43.107029815952565},null,null,null,null,null,48.371950259842286,{"$f":"IFERROR(VLOOKUP($B63,Volumes!$B$38:$F$79,MATCH(M$13,Volumes!$B$38:$F$38,0),FALSE),0)","v":33},null,1596.2743585747955,1.3217381830046763E-3,null,null,{"$f":"IFERROR(VLOOKUP($B63,Volumes!$B$38:$F$79,MATCH(S$14,Volumes!$B$38:$F$38,0),FALSE),0)","v":33},1.5962743585747956,1.3217381830046763E-3,{"$f":"IFERROR(VLOOKUP($B63,Volumes!$B$38:$F$79,MATCH(V$14,Volumes!$B$38:$F$38,0),FALSE),0)","v":35},1.69301825909448,1.5138780027799592E-3]
["",{"$f":"Inputs!C117","v":"400W Metal Halide - Flood Light"},{"$f":"IF(B64=0,\"\",VLOOKUP($B64,Inputs!$C$68:$AK$129,MATCH(C$14,Inputs!$C$68:$AK$68,0),FALSE))","v":"RLMAJ"},null,{"$f":"IF($B64=0,0,VLOOKUP($B64,Inputs!$C$68:$AK$129,MATCH('Capex Weighting'!E$14,Inputs!$C$68:$AK$68,0),FALSE))","v":3.7981247244118976},{"$f":"IF($B64=0,0,VLOOKUP($B64,Inputs!$C$68:$AK$129,MATCH('Capex Weighting'!F$14,Inputs!$C$68:$AK$68,0),FALSE))","v":45.985947466352563},null,null,null,null,null,49.784072190764462,{"$f":"IFERROR(VLOOKUP($B64,Volumes!$B$38:$F$79,MATCH(M$13,Volumes!$B$38:$F$38,0),FALSE),0)","v":33},null,1642.8743822952272,1.3603236744957571E-3,null,null,{"$f":"IFERROR(VLOOKUP($B64,Volumes!$B$38:$F$79,MATCH(S$14,Volumes!$B$38:$F$38,0),FALSE),0)","v":33},1.6428743822952272,1.3603236744957571E-3,{"$f":"IFERROR(VLOOKUP($B64,Volumes!$B$38:$F$79,MATCH(V$14,Volumes!$B$38:$F$38,0),FALSE),0)","v":35},1.7424425266767563,1.5580726303891959E-3]
["",{"$f":"Inputs!C118","v":"125W Mercury Vapour"},{"$f":"IF(B65=0,\"\",VLOOKUP($B65,Inputs!$C$68:$AK$129,MATCH(C$14,Inputs!$C$68:$AK$68,0),FALSE))","v":"RLMAJ"},null,{"$f":"IF($B65=0,0,VLOOKUP($B65,Inputs!$C$68:$AK$129,MATCH('Capex Weighting'!E$14,Inputs!$C$68:$AK$68,0),FALSE))","v":4.2797300931662541},{"$f":"IF($B65=0,0,VLOOKUP($B65,Inputs!$C$68:$AK$129,MATCH('Capex Weighting'!F$14,Inputs!$C$68:$AK$68,0),FALSE))","v":38.78865334035256},null,null,null,null,null,43.068383433518818,{"$f":"IFERROR(VLOOKUP($B65,Volumes!$B$38:$F$79,MATCH(M$13,Volumes!$B$38:$F$38,0),FALSE),0)","v":0},null,0,0,null,null,{"$f":"IFERROR(VLOOKUP($B65,Volumes!$B$38:$F$79,MATCH(S$14,Volumes!$B$38:$F$38,0),FALSE),0)","v":0},0,0,{"$f":"IFERROR(VLOOKUP($B65,Volumes!$B$38:$F$79,MATCH(V$14,Volumes!$B$38:$F$38,0),FALSE),0)","v":0},0,0]
["",{"$f":"Inputs!C119","v":"250W Mercury Vapour"},{"$f":"IF(B66=0,\"\",VLOOKUP($B66,Inputs!$C$68:$AK$129,MATCH(C$14,Inputs!$C$68:$AK$68,0),FALSE))","v":"RLMAJ"},null,{"$f":"IF($B66=0,0,VLOOKUP($B66,Inputs!$C$68:$AK$129,MATCH('Capex Weighting'!E$14,Inputs!$C$68:$AK$68,0),FALSE))","v":4.2797300931662541},{"$f":"IF($B66=0,0,VLOOKUP($B66,Inputs!$C$68:$AK$129,MATCH('Capex Weighting'!F$14,Inputs!$C$68:$AK$68,0),FALSE))","v":38.78865334035256},null,null,null,null,null,43.068383433518818,{"$f":"IFERROR(VLOOKUP($B66,Volumes!$B$38:$F$79,MATCH(M$13,Volumes!$B$38:$F$38,0),FALSE),0)","v":427},null,18390.199726112536,1.5227350511842569E-2,null,null,{"$f":"IFERROR(VLOOKUP($B66,Volumes!$B$38:$F$79,MATCH(S$14,Volumes!$B$38:$F$38,0),FALSE),0)","v":427},18.390199726112535,1.5227350511842567E-2,{"$f":"IFERROR(VLOOKUP($B66,Volumes!$B$38:$F$79,MATCH(V$14,Volumes!$B$38:$F$38,0),FALSE),0)","v":406},17.485763674008641,1.5635574422008237E-2]
["x",{"$f":"Inputs!C120","v":0},{"$f":"IF(B67=0,\"\",VLOOKUP($B67,Inputs!$C$68:$AK$129,MATCH(C$14,Inputs!$C$68:$AK$68,0),FALSE))","v":""},null,{"$f":"IF($B67=0,0,VLOOKUP($B67,Inputs!$C$68:$AK$129,MATCH('Capex Weighting'!E$14,Inputs!$C$68:$AK$68,0),FALSE))","v":0},{"$f":"IF($B67=0,0,VLOOKUP($B67,Inputs!$C$68:$AK$129,MATCH('Capex Weighting'!F$14,Inputs!$C$68:$AK$68,0),FALSE))","v":0},null,null,null,null,null,0,{"$f":"IFERROR(VLOOKUP($B67,Volumes!$B$38:$F$79,MATCH(M$13,Volumes!$B$38:$F$38,0),FALSE),0)","v":0},null,0,0,null,null,{"$f":"IFERROR(VLOOKUP($B67,Volumes!$B$38:$F$79,MATCH(S$14,Volumes!$B$38:$F$38,0),FALSE),0)","v":0},0,0,{"$f":"IFERROR(VLOOKUP($B67,Volumes!$B$38:$F$79,MATCH(V$14,Volumes!$B$38:$F$38,0),FALSE),0)","v":0},0,0]
["",{"$f":"Inputs!C121","v":"400W Mercury Vapour"},{"$f":"IF(B68=0,\"\",VLOOKUP($B68,Inputs!$C$68:$AK$129,MATCH(C$14,Inputs!$C$68:$AK$68,0),FALSE))","v":"RLMAJ"},null,{"$f":"IF($B68=0,0,VLOOKUP($B68,Inputs!$C$68:$AK$129,MATCH('Capex Weighting'!E$14,Inputs!$C$68:$AK$68,0),FALSE))","v":5.0401704059579888},{"$f":"IF($B68=0,0,VLOOKUP($B68,Inputs!$C$68:$AK$129,MATCH('Capex Weighting'!F$14,Inputs!$C$68:$AK$68,0),FALSE))","v":39.416780827712564},null,null,null,null,null,44.456951233670551,{"$f":"IFERROR(VLOOKUP($B68,Volumes!$B$38:$F$79,MATCH(M$13,Volumes!$B$38:$F$38,0),FALSE),0)","v":32},null,1422.6224394774576,1.1779518903852076E-3,null,null,{"$f":"IFERROR(VLOOKUP($B68,Volumes!$B$38:$F$79,MATCH(S$14,Volumes!$B$38:$F$38,0),FALSE),0)","v":32},1.4226224394774576,1.1779518903852074E-3,{"$f":"IFERROR(VLOOKUP($B68,Volumes!$B$38:$F$79,MATCH(V$14,Volumes!$B$38:$F$38,0),FALSE),0)","v":31},1.3781654882437873,1.2323401744991698E-3]
["",{"$f":"Inputs!C122","v":"50W Mercury Vapour"},{"$f":"IF(B69=0,\"\",VLOOKUP($B69,Inputs!$C$68:$AK$129,MATCH(C$14,Inputs!$C$68:$AK$68,0),FALSE))","v":"RLMIN"},null,{"$f":"IF($B69=0,0,VLOOKUP($B69,Inputs!$C$68:$AK$129,MATCH('Capex Weighting'!E$14,Inputs!$C$68:$AK$68,0),FALSE))","v":1.8590792480992584},{"$f":"IF($B69=0,0,VLOOKUP($B69,Inputs!$C$68:$AK$129,MATCH('Capex Weighting'!F$14,Inputs!$C$68:$AK$68,0),FALSE))","v":27.117920275490583},null,null,null,null,null,28.976999523589843,{"$f":"IFERROR(VLOOKUP($B69,Volumes!$B$38:$F$79,MATCH(M$13,Volumes!$B$38:$F$38,0),FALSE),0)","v":0},null,0,0,null,null,{"$f":"IFERROR(VLOOKUP($B69,Volumes!$B$38:$F$79,MATCH(S$14,Volumes!$B$38:$F$38,0),FALSE),0)","v":0},0,0,{"$f":"IFERROR(VLOOKUP($B69,Volumes!$B$38:$F$79,MATCH(V$14,Volumes!$B$38:$F$38,0),FALSE),0)","v":0},0,0]
["",{"$f":"Inputs!C123","v":"80W Mercury Vapour Art decorative"},{"$f":"IF(B70=0,\"\",VLOOKUP($B70,Inputs!$C$68:$AK$129,MATCH(C$14,Inputs!$C$68:$AK$68,0),FALSE))","v":"RLMIN"},null,{"$f":"IF($B70=0,0,VLOOKUP($B70,Inputs!$C$68:$AK$129,MATCH('Capex Weighting'!E$14,Inputs!$C$68:$AK$68,0),FALSE))","v":1.9328671111430786},{"$f":"IF($B70=0,0,VLOOKUP($B70,Inputs!$C$68:$AK$129,MATCH('Capex Weighting'!F$14,Inputs!$C$68:$AK$68,0),FALSE))","v":26.988277723665483},null,null,null,null,null,28.921144834808562,{"$f":"IFERROR(VLOOKUP($B70,Volumes!$B$38:$F$79,MATCH(M$13,Volumes!$B$38:$F$38,0),FALSE),0)","v":40},null,1156.8457933923426,9.5788499562204335E-4,null,null,{"$f":"IFERROR(VLOOKUP($B70,Volumes!$B$38:$F$79,MATCH(S$14,Volumes!$B$38:$F$38,0),FALSE),0)","v":40},1.1568457933923426,9.5788499562204335E-4,{"$f":"IFERROR(VLOOKUP($B70,Volumes!$B$38:$F$79,MATCH(V$14,Volumes!$B$38:$F$38,0),FALSE),0)","v":40},1.1568457933923426,1.0344385772672658E-3]
["",{"$f":"Inputs!C124","v":"80W Mercury Vapour"},{"$f":"IF(B71=0,\"\",VLOOKUP($B71,Inputs!$C$68:$AK$129,MATCH(C$14,Inputs!$C$68:$AK$68,0),FALSE))","v":"RLMIN"},null,{"$f":"IF($B71=0,0,VLOOKUP($B71,Inputs!$C$68:$AK$129,MATCH('Capex Weighting'!E$14,Inputs!$C$68:$AK$68,0),FALSE))","v":1.9328671111430786},{"$f":"IF($B71=0,0,VLOOKUP($B71,Inputs!$C$68:$AK$129,MATCH('Capex Weighting'!F$14,Inputs!$C$68:$AK$68,0),FALSE))","v":26.988277723665483},null,null,null,null,null,28.921144834808562,{"$f":"IFERROR(VLOOKUP($B71,Volumes!$B$38:$F$79,MATCH(M$13,Volumes!$B$38:$F$38,0),FALSE),0)","v":14235},null,411692.49672349991,0.34088732281699469,null,null,{"$f":"IFERROR(VLOOKUP($B71,Volumes!$B$38:$F$79,MATCH(S$14,Volumes!$B$38:$F$38,0),FALSE),0)","v":14235},411.69249672349991,0.34088732281699469,{"$f":"IFERROR(VLOOKUP($B71,Volumes!$B$38:$F$79,MATCH(V$14,Volumes!$B$38:$F$38,0),FALSE),0)","v":10135},293.11580290078479,0.26210087451509345]
["x",{"$f":"Inputs!C125","v":0},{"$f":"IF(B72=0,\"\",VLOOKUP($B72,Inputs!$C$68:$AK$129,MATCH(C$14,Inputs!$C$68:$AK$68,0),FALSE))","v":""},null,{"$f":"IF($B72=0,0,VLOOKUP($B72,Inputs!$C$68:$AK$129,MATCH('Capex Weighting'!E$14,Inputs!$C$68:$AK$68,0),FALSE))","v":0},{"$f":"IF($B72=0,0,VLOOKUP($B72,Inputs!$C$68:$AK$129,MATCH('Capex Weighting'!F$14,Inputs!$C$68:$AK$68,0),FALSE))","v":0},null,null,null,null,null,0,{"$f":"IFERROR(VLOOKUP($B72,Volumes!$B$38:$F$79,MATCH(M$13,Volumes!$B$38:$F$38,0),FALSE),0)","v":0},null,0,0,null,null,{"$f":"IFERROR(VLOOKUP($B72,Volumes!$B$38:$F$79,MATCH(S$14,Volumes!$B$38:$F$38,0),FALSE),0)","v":0},0,0,{"$f":"IFERROR(VLOOKUP($B72,Volumes!$B$38:$F$79,MATCH(V$14,Volumes!$B$38:$F$38,0),FALSE),0)","v":0},0,0]
["x"]
["x"]
["x"]
[null,null,null,null,{"$f":"SUM(E15:E75)","v":130.16858511961976},1270.7795253541101,0,0,0,0,0,1400.9481104737299,43293,null,{"$f":"SUM(O15:O75)","v":1207708.4396139805},{"$f":"SUM(P16:P75)","v":1.0000000000000002},null,null,{"$f":"SUM(S15:S75)","v":43293},{"$f":"SUM(T15:T75)","v":1207.7084396139805},{"$f":"SUM(U16:U75)","v":1.0000000000000002},{"$f":"SUM(V15:V75)","v":43662},{"$f":"SUM(W15:W75)","v":1118.3320293878123},{"$f":"SUM(X16:X75)","v":1}]
[null,null,null,null,null,null,null,null,null,null,null,null,{"$f":"Volumes!E80","v":43293},null,null,null,null,null,{"$f":"'Revenue Nominal RAB'!D295=S76","v":true}]
[null,null,null,null,null,null,null,null,null,null,null,null,{"$f":"M77=M76","v":true}]
[]
[]
[]
[null,"Indirect POW CAPEX allocation Public and Contract"]
[null,"RLMAJ & RLMIN allocated with Materials and installation",null,{"$f":"D3","v":"2017-18"},{"$f":"E3","v":"2018-19"}]
[]
[]
[null,{"$f":"B7","v":"Capex - New Streetlight installation"},{"$f":"C7","v":"RLOLI"},{"$f":"D7","v":375868.96555781248},375868.96555781248]
[null,{"$f":"B8","v":"Capex - Replace control relays on pilot and cascade roadlighting control systems or Replace OH Swtichwire"},"RLREL",229443.70575140623,229443.70575140623]
[null,{"$f":"B9","v":"Capex - Road Light Replace Underground Cable"},"RLRUC",50729.732806249995,50729.732806249995]
[null,{"$f":"B10","v":"Capex - New supply to Private Contract Lighting"},"RLSPR",0,0]
[null,{"$f":"B11","v":"Capex - Replace condemned wide based steel poles"},"RLWBP",280987.68632812495,280987.68632812495]
[null,null,null,{"$f":"SUM(D86:D90)","v":937030.09044359368},937030.09044359368]
[]
[]
[null,"Total Lights",null,{"$f":"VLOOKUP($B94,Volumes!$B$84:$F$84,MATCH('Opex Weighting'!D83,Volumes!$B$4:$F$4,0),FALSE)","v":49622},{"$f":"VLOOKUP($B94,Volumes!$B$84:$F$84,MATCH('Opex Weighting'!E83,Volumes!$B$4:$F$4,0),FALSE)","v":50020}]
[]
[]
[null,"Indirect POW OPEX allocation Public"]
[]
[]
[null,null,null,{"$f":"SUM(D98:D99)","v":0},0]
[]
[null,"Total Public Lighting",null,{"$f":"VLOOKUP($B102,Volumes!$B$80:$F$80,MATCH(D83,Volumes!$B$4:$F$4,0),FALSE)","v":43293},{"$f":"VLOOKUP($B102,Volumes!$B$80:$F$80,MATCH(E83,Volumes!$B$4:$F$4,0),FALSE)","v":43662}]
[null,null,null,{"$f":"D100/D102","v":0},{"$f":"E100/E102","v":0}]
[]
[null,"Indirect POW OPEX allocation Private"]
[]
[]
[null,null,null,{"$f":"SUM(D106:D107)","v":0},0]
[]
[null,"Total Private",null,{"$f":"VLOOKUP($B110,Volumes!$B$33:$F$33,MATCH(D83,Volumes!$B$4:$F$4,0),FALSE)","v":6329},{"$f":"VLOOKUP($B110,Volumes!$B$33:$F$33,MATCH(E83,Volumes!$B$4:$F$4,0),FALSE)","v":6358}]
[null,null,null,{"$f":"D108/D110","v":0},{"$f":"E108/E110","v":0}]
[]
[]
[]
[null,"Public Lighting Total rate"]
[]
[null,"Private Contract Lighting Total rate"]

{"sheet":"Opex Weighting","index":14,"n_rows":113,"n_cols":21,"rows_kept":113,"cut":false,"hidden":false,"merged":[[14,9,14,14],[14,15,14,20]]}
[]
[null,null,null,{"$f":"'Master Data'!$I$31","v":1.0768906249999999},"Convert 2014/15 POW into 2017/18 dollars"]
[null,"Linked to DD17 POW",0,{"$f":"'Master Data'!I$20","v":"2017-18"},{"$f":"'Master Data'!J$20","v":"2018-19"}]
[null,null,null,"2017/18","2018/19"]
[null,"Opex - Road lighting - bulk lamp replacement program","RLBLR",1144124.8696762498,1166963.0168370311]
[null,"Opex - Road Lighting UG Cable Inspection & Monitoring","RLCIM",5008.8336749999989,5008.8336749999989]
[null,"Opex - Remove redundant OH Switchwire","RLDEC",672545.11757812498,672545.11757812498]
[null,"Opex - Road lighting Inspection","RLICM",205698.71976421872,154082.16752828122]
[null,"Opex - Road lighting repairs","RLREM",241026.10594843747,347201.038691875]
[null,"Opex - Road Lighting Underground System Asset Repair","RLSAR",4714.1963999999998,4714.1963999999998]
[null,"Total POW Opex",null,{"$f":"SUM(D5:D10)","v":2273117.8430420305},{"$f":"SUM(E5:E10)","v":2350514.3707103119}]
[]
[null,"Corporate Overheads",null,null,null,null,null,null,null,null,{"$f":"'Building Block'!C35*1000000","v":556875.60880397505},"Annual Corporate Overheads",null,null,null,null,{"$f":"'Building Block'!D35*1000000","v":575836.45528913056},"Annual Corporate Overheads"]
[]
[null,null,"Direct Opex",null,null,"Volumes - ",{"$f":"'Master Data'!I$20","v":"2017-18"},null,null,{"$f":"D3","v":"2017-18"},null,null,null,null,null,{"$f":"E3","v":"2018-19"}]
["Filter","Meter Type","blank",{"$f":"Inputs!V68","v":"LAMP Annualised Cost"},{"$f":"Inputs!O68","v":"PE Cell Annualised Cost"},{"$f":"Inputs!AF68","v":"Annualised Cost"},"Total Direct","Total Cost of asset type","BLANK","Volumes","Corporate Overheads","Total POW Opex","Total Shared","TOTAL COST",{"$f":"J15&\" Opex weighting\"","v":"2017-18 Opex weighting"},"Volumes","Corporate Overheads","Total POW Opex","Total Shared","TOTAL COST",{"$f":"P15&\" Opex weighting\"","v":"2018-19 Opex weighting"}]
[]
[{"$f":"IF(B18=0,\"x\",\"\")","v":""},{"$f":"Inputs!C69","v":"32W Compact Fluorescent"},null,{"$f":"IFERROR(VLOOKUP($B18,Inputs!$C$68:$AH$129,MATCH('Opex Weighting'!D$16,Inputs!$C$68:$AH$68,0),FALSE),0)","v":27.445835730181432},{"$f":"VLOOKUP($B18,Inputs!$C$68:$AH$129,MATCH('Opex Weighting'!E$16,Inputs!$C$68:$AH$68,0),FALSE)","v":0.6107414998224272},{"$f":"IF($B18=0,0,VLOOKUP($B18,Inputs!$C$68:$AH$129,MATCH('Opex Weighting'!F$16,Inputs!$C$68:$AH$68,0),FALSE))","v":0},{"$f":"SUM(C18:F18)","v":28.05657723000386},{"$f":"G18*J18","v":0},null,{"$f":"IFERROR(VLOOKUP($B18,Volumes!$B$38:$F$79,MATCH(J$15,Volumes!$B$38:$F$38,0),FALSE),0)","v":0},{"$f":"(J18/J$75)*K$13","v":0},{"$f":"(J18/J$75)*(VLOOKUP(L$16,$B$3:$J$11,MATCH(J$15,$B$3:$J$3,0),FALSE))","v":0},{"$f":"SUM(K18:L18)","v":0},{"$f":"IF(J18=0,0,M18+($G18*J18))","v":0},{"$f":"N18/N$75","v":0},{"$f":"IFERROR(VLOOKUP($B18,Volumes!$B$38:$F$79,MATCH(P$15,Volumes!$B$38:$F$38,0),FALSE),0)","v":0},{"$f":"(P18/P$75)*Q$13","v":0},{"$f":"(P18/P$75)*(VLOOKUP(R$16,$B$3:$J$11,MATCH(P$15,$B$3:$J$3,0),FALSE))","v":0},{"$f":"SUM(Q18:R18)","v":0},{"$f":"IF(P18=0,0,S18+($G18*P18))","v":0},{"$f":"T18/T$75","v":0}]
["",{"$f":"Inputs!C70","v":"42W Compact Fluorescent"},null,{"$f":"IFERROR(VLOOKUP($B19,Inputs!$C$68:$AH$129,MATCH('Opex Weighting'!D$16,Inputs!$C$68:$AH$68,0),FALSE),0)","v":27.445835730181432},{"$f":"VLOOKUP($B19,Inputs!$C$68:$AH$129,MATCH('Opex Weighting'!E$16,Inputs!$C$68:$AH$68,0),FALSE)","v":0.6107414998224272},{"$f":"IF($B19=0,0,VLOOKUP($B19,Inputs!$C$68:$AH$129,MATCH('Opex Weighting'!F$16,Inputs!$C$68:$AH$68,0),FALSE))","v":0},{"$f":"SUM(C19:F19)","v":28.05657723000386},{"$f":"G19*J19","v":160034.71651994201},null,{"$f":"IFERROR(VLOOKUP($B19,Volumes!$B$38:$F$79,MATCH(J$15,Volumes!$B$38:$F$38,0),FALSE),0)","v":5704},{"$f":"(J19/J$75)*K$13","v":73370.255529020258},299491.00724624633,372861.2627752666,{"$f":"IF(J19=0,0,M19+($G19*J19))","v":532895.97929520858},0.13235967094584619,{"$f":"IFERROR(VLOOKUP($B19,Volumes!$B$38:$F$79,MATCH(P$15,Volumes!$B$38:$F$38,0),FALSE),0)","v":5419},{"$f":"(P19/P$75)*Q$13","v":71468.502386784807},291728.21618064173,{"$f":"SUM(Q19:R19)","v":363196.71856742655},{"$f":"IF(P19=0,0,S19+($G19*P19))","v":515235.31057681749},0.12698634994787691]
["",{"$f":"Inputs!C71","v":"42W Compact Fluorescent - Bottom Pole Entry"},null,{"$f":"IFERROR(VLOOKUP($B20,Inputs!$C$68:$AH$129,MATCH('Opex Weighting'!D$16,Inputs!$C$68:$AH$68,0),FALSE),0)","v":27.665528522670819},{"$f":"VLOOKUP($B20,Inputs!$C$68:$AH$129,MATCH('Opex Weighting'!E$16,Inputs!$C$68:$AH$68,0),FALSE)","v":0.6107414998224272},{"$f":"IF($B20=0,0,VLOOKUP($B20,Inputs!$C$68:$AH$129,MATCH('Opex Weighting'!F$16,Inputs!$C$68:$AH$68,0),FALSE))","v":0},{"$f":"SUM(C20:F20)","v":28.276270022493247},{"$f":"G20*J20","v":3393.1524026991897},null,{"$f":"IFERROR(VLOOKUP($B20,Volumes!$B$38:$F$79,MATCH(J$15,Volumes!$B$38:$F$38,0),FALSE),0)","v":120},{"$f":"(J20/J$75)*K$13","v":1543.5537628826139},6300.6523263586178,7844.2060892412319,{"$f":"IF(J20=0,0,M20+($G20*J20))","v":11237.358491940422},2.7911133318380397E-3,{"$f":"IFERROR(VLOOKUP($B20,Volumes!$B$38:$F$79,MATCH(P$15,Volumes!$B$38:$F$38,0),FALSE),0)","v":170},{"$f":"(P20/P$75)*Q$13","v":2242.0456552414503},9151.8355325169032,{"$f":"SUM(Q20:R20)","v":11393.881187758354},{"$f":"IF(P20=0,0,S20+($G20*P20))","v":16200.847091582205},3.99290653414364E-3]
["",{"$f":"Inputs!C72","v":"2x24W Compact Fluorescent"},null,{"$f":"IFERROR(VLOOKUP($B21,Inputs!$C$68:$AH$129,MATCH('Opex Weighting'!D$16,Inputs!$C$68:$AH$68,0),FALSE),0)","v":28.98368527760714},{"$f":"VLOOKUP($B21,Inputs!$C$68:$AH$129,MATCH('Opex Weighting'!E$16,Inputs!$C$68:$AH$68,0),FALSE)","v":0.6107414998224272},{"$f":"IF($B21=0,0,VLOOKUP($B21,Inputs!$C$68:$AH$129,MATCH('Opex Weighting'!F$16,Inputs!$C$68:$AH$68,0),FALSE))","v":0},29.594426777429568,0,null,{"$f":"IFERROR(VLOOKUP($B21,Volumes!$B$38:$F$79,MATCH(J$15,Volumes!$B$38:$F$38,0),FALSE),0)","v":0},0,0,0,0,0,{"$f":"IFERROR(VLOOKUP($B21,Volumes!$B$38:$F$79,MATCH(P$15,Volumes!$B$38:$F$38,0),FALSE),0)","v":0},0,0,0,0,0]
["",{"$f":"Inputs!C73","v":"1x20W Fluorescent"},null,{"$f":"IFERROR(VLOOKUP($B22,Inputs!$C$68:$AH$129,MATCH('Opex Weighting'!D$16,Inputs!$C$68:$AH$68,0),FALSE),0)","v":27.619501582238552},{"$f":"VLOOKUP($B22,Inputs!$C$68:$AH$129,MATCH('Opex Weighting'!E$16,Inputs!$C$68:$AH$68,0),FALSE)","v":0.6107414998224272},{"$f":"IF($B22=0,0,VLOOKUP($B22,Inputs!$C$68:$AH$129,MATCH('Opex Weighting'!F$16,Inputs!$C$68:$AH$68,0),FALSE))","v":0},28.23024308206098,0,null,{"$f":"IFERROR(VLOOKUP($B22,Volumes!$B$38:$F$79,MATCH(J$15,Volumes!$B$38:$F$38,0),FALSE),0)","v":0},0,0,0,0,0,{"$f":"IFERROR(VLOOKUP($B22,Volumes!$B$38:$F$79,MATCH(P$15,Volumes!$B$38:$F$38,0),FALSE),0)","v":0},0,0,0,0,0]
["",{"$f":"Inputs!C74","v":"1x40W Fluorescent"},null,{"$f":"IFERROR(VLOOKUP($B23,Inputs!$C$68:$AH$129,MATCH('Opex Weighting'!D$16,Inputs!$C$68:$AH$68,0),FALSE),0)","v":27.702145746521875},{"$f":"VLOOKUP($B23,Inputs!$C$68:$AH$129,MATCH('Opex Weighting'!E$16,Inputs!$C$68:$AH$68,0),FALSE)","v":0.6107414998224272},{"$f":"IF($B23=0,0,VLOOKUP($B23,Inputs!$C$68:$AH$129,MATCH('Opex Weighting'!F$16,Inputs!$C$68:$AH$68,0),FALSE))","v":0},28.312887246344303,0,null,{"$f":"IFERROR(VLOOKUP($B23,Volumes!$B$38:$F$79,MATCH(J$15,Volumes!$B$38:$F$38,0),FALSE),0)","v":0},0,0,0,0,0,{"$f":"IFERROR(VLOOKUP($B23,Volumes!$B$38:$F$79,MATCH(P$15,Volumes!$B$38:$F$38,0),FALSE),0)","v":0},0,0,0,0,0]
["",{"$f":"Inputs!C75","v":"2x20W Fluorescent"},null,{"$f":"IFERROR(VLOOKUP($B24,Inputs!$C$68:$AH$129,MATCH('Opex Weighting'!D$16,Inputs!$C$68:$AH$68,0),FALSE),0)","v":28.891631396742603},{"$f":"VLOOKUP($B24,Inputs!$C$68:$AH$129,MATCH('Opex Weighting'!E$16,Inputs!$C$68:$AH$68,0),FALSE)","v":0.6107414998224272},{"$f":"IF($B24=0,0,VLOOKUP($B24,Inputs!$C$68:$AH$129,MATCH('Opex Weighting'!F$16,Inputs!$C$68:$AH$68,0),FALSE))","v":0},29.502372896565031,0,null,{"$f":"IFERROR(VLOOKUP($B24,Volumes!$B$38:$F$79,MATCH(J$15,Volumes!$B$38:$F$38,0),FALSE),0)","v":0},0,0,0,0,0,{"$f":"IFERROR(VLOOKUP($B24,Volumes!$B$38:$F$79,MATCH(P$15,Volumes!$B$38:$F$38,0),FALSE),0)","v":0},0,0,0,0,0]
["",{"$f":"Inputs!C76","v":"2x24W Fluorescent"},null,{"$f":"IFERROR(VLOOKUP($B25,Inputs!$C$68:$AH$129,MATCH('Opex Weighting'!D$16,Inputs!$C$68:$AH$68,0),FALSE),0)","v":28.071777321641218},{"$f":"VLOOKUP($B25,Inputs!$C$68:$AH$129,MATCH('Opex Weighting'!E$16,Inputs!$C$68:$AH$68,0),FALSE)","v":0.6107414998224272},{"$f":"IF($B25=0,0,VLOOKUP($B25,Inputs!$C$68:$AH$129,MATCH('Opex Weighting'!F$16,Inputs!$C$68:$AH$68,0),FALSE))","v":0},28.682518821463646,0,null,{"$f":"IFERROR(VLOOKUP($B25,Volumes!$B$38:$F$79,MATCH(J$15,Volumes!$B$38:$F$38,0),FALSE),0)","v":0},0,0,0,0,0,{"$f":"IFERROR(VLOOKUP($B25,Volumes!$B$38:$F$79,MATCH(P$15,Volumes!$B$38:$F$38,0),FALSE),0)","v":0},0,0,0,0,0]
["",{"$f":"Inputs!C77","v":"T5 Fluorescent 2 x 24W"},null,{"$f":"IFERROR(VLOOKUP($B26,Inputs!$C$68:$AH$129,MATCH('Opex Weighting'!D$16,Inputs!$C$68:$AH$68,0),FALSE),0)","v":28.891631396742603},{"$f":"VLOOKUP($B26,Inputs!$C$68:$AH$129,MATCH('Opex Weighting'!E$16,Inputs!$C$68:$AH$68,0),FALSE)","v":0.6107414998224272},{"$f":"IF($B26=0,0,VLOOKUP($B26,Inputs!$C$68:$AH$129,MATCH('Opex Weighting'!F$16,Inputs!$C$68:$AH$68,0),FALSE))","v":0},29.502372896565031,2448.6969504148974,null,{"$f":"IFERROR(VLOOKUP($B26,Volumes!$B$38:$F$79,MATCH(J$15,Volumes!$B$38:$F$38,0),FALSE),0)","v":83},1067.624685993808,4357.9511923980444,5425.5758783918527,7874.2728288067501,1.9557966302112236E-3,{"$f":"IFERROR(VLOOKUP($B26,Volumes!$B$38:$F$79,MATCH(P$15,Volumes!$B$38:$F$38,0),FALSE),0)","v":83},1094.645819912002,4468.2491129347236,5562.8949328467261,8011.5918832616235,1.9745595646161562E-3]
["",{"$f":"Inputs!C78","v":"20 Fluorescent 1X20FL"},null,{"$f":"IFERROR(VLOOKUP($B27,Inputs!$C$68:$AH$129,MATCH('Opex Weighting'!D$16,Inputs!$C$68:$AH$68,0),FALSE),0)","v":27.619501582238552},{"$f":"VLOOKUP($B27,Inputs!$C$68:$AH$129,MATCH('Opex Weighting'!E$16,Inputs!$C$68:$AH$68,0),FALSE)","v":0.6107414998224272},{"$f":"IF($B27=0,0,VLOOKUP($B27,Inputs!$C$68:$AH$129,MATCH('Opex Weighting'!F$16,Inputs!$C$68:$AH$68,0),FALSE))","v":0},28.23024308206098,0,null,{"$f":"IFERROR(VLOOKUP($B27,Volumes!$B$38:$F$79,MATCH(J$15,Volumes!$B$38:$F$38,0),FALSE),0)","v":0},0,0,0,0,0,{"$f":"IFERROR(VLOOKUP($B27,Volumes!$B$38:$F$79,MATCH(P$15,Volumes!$B$38:$F$38,0),FALSE),0)","v":0},0,0,0,0,0]
["",{"$f":"Inputs!C79","v":"2x40W Fluorescent"},null,{"$f":"IFERROR(VLOOKUP($B28,Inputs!$C$68:$AH$129,MATCH('Opex Weighting'!D$16,Inputs!$C$68:$AH$68,0),FALSE),0)","v":29.056919725309257},{"$f":"VLOOKUP($B28,Inputs!$C$68:$AH$129,MATCH('Opex Weighting'!E$16,Inputs!$C$68:$AH$68,0),FALSE)","v":0.6107414998224272},{"$f":"IF($B28=0,0,VLOOKUP($B28,Inputs!$C$68:$AH$129,MATCH('Opex Weighting'!F$16,Inputs!$C$68:$AH$68,0),FALSE))","v":0},29.667661225131685,0,null,{"$f":"IFERROR(VLOOKUP($B28,Volumes!$B$38:$F$79,MATCH(J$15,Volumes!$B$38:$F$38,0),FALSE),0)","v":0},0,0,0,0,0,{"$f":"IFERROR(VLOOKUP($B28,Volumes!$B$38:$F$79,MATCH(P$15,Volumes!$B$38:$F$38,0),FALSE),0)","v":0},0,0,0,0,0]
["",{"$f":"Inputs!C80","v":"3x40W Fluorescent"},null,{"$f":"IFERROR(VLOOKUP($B29,Inputs!$C$68:$AH$129,MATCH('Opex Weighting'!D$16,Inputs!$C$68:$AH$68,0),FALSE),0)","v":42.198675810714697},{"$f":"VLOOKUP($B29,Inputs!$C$68:$AH$129,MATCH('Opex Weighting'!E$16,Inputs!$C$68:$AH$68,0),FALSE)","v":1.7788104971099301},{"$f":"IF($B29=0,0,VLOOKUP($B29,Inputs!$C$68:$AH$129,MATCH('Opex Weighting'!F$16,Inputs!$C$68:$AH$68,0),FALSE))","v":0},43.977486307824627,0,null,{"$f":"IFERROR(VLOOKUP($B29,Volumes!$B$38:$F$79,MATCH(J$15,Volumes!$B$38:$F$38,0),FALSE),0)","v":0},0,0,0,0,0,{"$f":"IFERROR(VLOOKUP($B29,Volumes!$B$38:$F$79,MATCH(P$15,Volumes!$B$38:$F$38,0),FALSE),0)","v":0},0,0,0,0,0]
["",{"$f":"Inputs!C81","v":"4x20 Fluorescent"},null,{"$f":"IFERROR(VLOOKUP($B30,Inputs!$C$68:$AH$129,MATCH('Opex Weighting'!D$16,Inputs!$C$68:$AH$68,0),FALSE),0)","v":31.43589102575071},{"$f":"VLOOKUP($B30,Inputs!$C$68:$AH$129,MATCH('Opex Weighting'!E$16,Inputs!$C$68:$AH$68,0),FALSE)","v":0.6107414998224272},{"$f":"IF($B30=0,0,VLOOKUP($B30,Inputs!$C$68:$AH$129,MATCH('Opex Weighting'!F$16,Inputs!$C$68:$AH$68,0),FALSE))","v":0},32.046632525573138,0,null,{"$f":"IFERROR(VLOOKUP($B30,Volumes!$B$38:$F$79,MATCH(J$15,Volumes!$B$38:$F$38,0),FALSE),0)","v":0},0,0,0,0,0,{"$f":"IFERROR(VLOOKUP($B30,Volumes!$B$38:$F$79,MATCH(P$15,Volumes!$B$38:$F$38,0),FALSE),0)","v":0},0,0,0,0,0]
["",{"$f":"Inputs!C82","v":"4x40W Fluorescent"},null,{"$f":"IFERROR(VLOOKUP($B31,Inputs!$C$68:$AH$129,MATCH('Opex Weighting'!D$16,Inputs!$C$68:$AH$68,0),FALSE),0)","v":43.553449789502075},{"$f":"VLOOKUP($B31,Inputs!$C$68:$AH$129,MATCH('Opex Weighting'!E$16,Inputs!$C$68:$AH$68,0),FALSE)","v":1.7788104971099301},{"$f":"IF($B31=0,0,VLOOKUP($B31,Inputs!$C$68:$AH$129,MATCH('Opex Weighting'!F$16,Inputs!$C$68:$AH$68,0),FALSE))","v":0},45.332260286612005,0,null,{"$f":"IFERROR(VLOOKUP($B31,Volumes!$B$38:$F$79,MATCH(J$15,Volumes!$B$38:$F$38,0),FALSE),0)","v":0},0,0,0,0,0,{"$f":"IFERROR(VLOOKUP($B31,Volumes!$B$38:$F$79,MATCH(P$15,Volumes!$B$38:$F$38,0),FALSE),0)","v":0},0,0,0,0,0]
["",{"$f":"Inputs!C83","v":"100W Sodium Vapour"},null,{"$f":"IFERROR(VLOOKUP($B32,Inputs!$C$68:$AH$129,MATCH('Opex Weighting'!D$16,Inputs!$C$68:$AH$68,0),FALSE),0)","v":42.518435791064562},{"$f":"IF($B32=0,0,VLOOKUP($B32,Inputs!$C$68:$AH$129,MATCH('Opex Weighting'!E$16,Inputs!$C$68:$AH$68,0),FALSE))","v":1.7788104971099301},{"$f":"IF($B32=0,0,VLOOKUP($B32,Inputs!$C$68:$AH$129,MATCH('Opex Weighting'!F$16,Inputs!$C$68:$AH$68,0),FALSE))","v":0},44.297246288174492,17851.790254134321,null,{"$f":"IFERROR(VLOOKUP($B32,Volumes!$B$38:$F$79,MATCH(J$15,Volumes!$B$38:$F$38,0),FALSE),0)","v":403},5183.7680536807784,21159.690729354359,26343.458783035137,44195.249037169458,1.0977130335391275E-2,{"$f":"IFERROR(VLOOKUP($B32,Volumes!$B$38:$F$79,MATCH(P$15,Volumes!$B$38:$F$38,0),FALSE),0)","v":423},5578.737130394903,22771.920177968532,28350.657308363436,47088.392488261248,1.1605538215738833E-2]
[{"$f":"IF(B33=0,\"x\",\"\")","v":"x"},{"$f":"Inputs!C84","v":0},null,{"$f":"IFERROR(VLOOKUP($B33,Inputs!$C$68:$AH$129,MATCH('Opex Weighting'!D$16,Inputs!$C$68:$AH$68,0),FALSE),0)","v":0},{"$f":"IF($B33=0,0,VLOOKUP($B33,Inputs!$C$68:$AH$129,MATCH('Opex Weighting'!E$16,Inputs!$C$68:$AH$68,0),FALSE))","v":0},{"$f":"IF($B33=0,0,VLOOKUP($B33,Inputs!$C$68:$AH$129,MATCH('Opex Weighting'!F$16,Inputs!$C$68:$AH$68,0),FALSE))","v":0},0,0,null,{"$f":"IFERROR(VLOOKUP($B33,Volumes!$B$38:$F$79,MATCH(J$15,Volumes!$B$38:$F$38,0),FALSE),0)","v":0},0,0,0,0,0,{"$f":"IFERROR(VLOOKUP($B33,Volumes!$B$38:$F$79,MATCH(P$15,Volumes!$B$38:$F$38,0),FALSE),0)","v":0},0,0,0,0,0]
["",{"$f":"Inputs!C85","v":"150W Sodium Vapour"},null,{"$f":"IFERROR(VLOOKUP($B34,Inputs!$C$68:$AH$129,MATCH('Opex Weighting'!D$16,Inputs!$C$68:$AH$68,0),FALSE),0)","v":42.501835869244005},{"$f":"IF($B34=0,0,VLOOKUP($B34,Inputs!$C$68:$AH$129,MATCH('Opex Weighting'!E$16,Inputs!$C$68:$AH$68,0),FALSE))","v":1.7788104971099301},{"$f":"IF($B34=0,0,VLOOKUP($B34,Inputs!$C$68:$AH$129,MATCH('Opex Weighting'!F$16,Inputs!$C$68:$AH$68,0),FALSE))","v":0},{"$f":"SUM(C34:F34)","v":44.280646366353935},{"$f":"G34*J34","v":213742.68001039044},null,{"$f":"IFERROR(VLOOKUP($B34,Volumes!$B$38:$F$79,MATCH(J$15,Volumes!$B$38:$F$38,0),FALSE),0)","v":4827},62089.450111953149,253443.73982777543,{"$f":"SUM(K34:L34)","v":315533.18993972859},{"$f":"IF(J34=0,0,M34+($G34*J34))","v":529275.86995011906},0.13146051520003302,{"$f":"IFERROR(VLOOKUP($B34,Volumes!$B$38:$F$79,MATCH(P$15,Volumes!$B$38:$F$38,0),FALSE),0)","v":5069},66852.526037758304,272886.20184898935,{"$f":"SUM(Q34:R34)","v":339738.72788674769},{"$f":"IF(P34=0,0,S34+($G34*P34))","v":564197.32431779581},0.13905366614967993]
["x",{"$f":"Inputs!C86","v":0},null,{"$f":"IFERROR(VLOOKUP($B35,Inputs!$C$68:$AH$129,MATCH('Opex Weighting'!D$16,Inputs!$C$68:$AH$68,0),FALSE),0)","v":0},{"$f":"IF($B35=0,0,VLOOKUP($B35,Inputs!$C$68:$AH$129,MATCH('Opex Weighting'!E$16,Inputs!$C$68:$AH$68,0),FALSE))","v":0},{"$f":"IF($B35=0,0,VLOOKUP($B35,Inputs!$C$68:$AH$129,MATCH('Opex Weighting'!F$16,Inputs!$C$68:$AH$68,0),FALSE))","v":0},0,0,null,{"$f":"IFERROR(VLOOKUP($B35,Volumes!$B$38:$F$79,MATCH(J$15,Volumes!$B$38:$F$38,0),FALSE),0)","v":0},0,0,0,0,0,{"$f":"IFERROR(VLOOKUP($B35,Volumes!$B$38:$F$79,MATCH(P$15,Volumes!$B$38:$F$38,0),FALSE),0)","v":0},0,0,0,0,0]
["x",{"$f":"Inputs!C87","v":0},null,{"$f":"IFERROR(VLOOKUP($B36,Inputs!$C$68:$AH$129,MATCH('Opex Weighting'!D$16,Inputs!$C$68:$AH$68,0),FALSE),0)","v":0},{"$f":"IF($B36=0,0,VLOOKUP($B36,Inputs!$C$68:$AH$129,MATCH('Opex Weighting'!E$16,Inputs!$C$68:$AH$68,0),FALSE))","v":0},{"$f":"IF($B36=0,0,VLOOKUP($B36,Inputs!$C$68:$AH$129,MATCH('Opex Weighting'!F$16,Inputs!$C$68:$AH$68,0),FALSE))","v":0},0,0,null,{"$f":"IFERROR(VLOOKUP($B36,Volumes!$B$38:$F$79,MATCH(J$15,Volumes!$B$38:$F$38,0),FALSE),0)","v":0},0,0,0,0,0,{"$f":"IFERROR(VLOOKUP($B36,Volumes!$B$38:$F$79,MATCH(P$15,Volumes!$B$38:$F$38,0),FALSE),0)","v":0},0,0,0,0,0]
["x",{"$f":"Inputs!C88","v":0},null,{"$f":"IFERROR(VLOOKUP($B37,Inputs!$C$68:$AH$129,MATCH('Opex Weighting'!D$16,Inputs!$C$68:$AH$68,0),FALSE),0)","v":0},{"$f":"IF($B37=0,0,VLOOKUP($B37,Inputs!$C$68:$AH$129,MATCH('Opex Weighting'!E$16,Inputs!$C$68:$AH$68,0),FALSE))","v":0},{"$f":"IF($B37=0,0,VLOOKUP($B37,Inputs!$C$68:$AH$129,MATCH('Opex Weighting'!F$16,Inputs!$C$68:$AH$68,0),FALSE))","v":0},0,0,null,{"$f":"IFERROR(VLOOKUP($B37,Volumes!$B$38:$F$79,MATCH(J$15,Volumes!$B$38:$F$38,0),FALSE),0)","v":0},0,0,0,0,0,{"$f":"IFERROR(VLOOKUP($B37,Volumes!$B$38:$F$79,MATCH(P$15,Volumes!$B$38:$F$38,0),FALSE),0)","v":0},0,0,0,0,0]
["",{"$f":"Inputs!C89","v":"250W Sodium Vapour"},null,{"$f":"IFERROR(VLOOKUP($B38,Inputs!$C$68:$AH$129,MATCH('Opex Weighting'!D$16,Inputs!$C$68:$AH$68,0),FALSE),0)","v":43.045767068214708},{"$f":"IF($B38=0,0,VLOOKUP($B38,Inputs!$C$68:$AH$129,MATCH('Opex Weighting'!E$16,Inputs!$C$68:$AH$68,0),FALSE))","v":1.7788104971099301},{"$f":"IF($B38=0,0,VLOOKUP($B38,Inputs!$C$68:$AH$129,MATCH('Opex Weighting'!F$16,Inputs!$C$68:$AH$68,0),FALSE))","v":0},44.824577565324638,268947.46539194783,null,{"$f":"IFERROR(VLOOKUP($B38,Volumes!$B$38:$F$79,MATCH(J$15,Volumes!$B$38:$F$38,0),FALSE),0)","v":6000},77177.688144130705,315032.61631793092,392210.30446206161,661157.76985400938,0.16421708600035786,{"$f":"IFERROR(VLOOKUP($B38,Volumes!$B$38:$F$79,MATCH(P$15,Volumes!$B$38:$F$38,0),FALSE),0)","v":6300},83087.574282477275,339156.2579697441,422243.83225222136,704638.6709137666,0.17366723711402496]
["x",{"$f":"Inputs!C90","v":0},null,{"$f":"IFERROR(VLOOKUP($B39,Inputs!$C$68:$AH$129,MATCH('Opex Weighting'!D$16,Inputs!$C$68:$AH$68,0),FALSE),0)","v":0},{"$f":"IF($B39=0,0,VLOOKUP($B39,Inputs!$C$68:$AH$129,MATCH('Opex Weighting'!E$16,Inputs!$C$68:$AH$68,0),FALSE))","v":0},{"$f":"IF($B39=0,0,VLOOKUP($B39,Inputs!$C$68:$AH$129,MATCH('Opex Weighting'!F$16,Inputs!$C$68:$AH$68,0),FALSE))","v":0},0,0,null,{"$f":"IFERROR(VLOOKUP($B39,Volumes!$B$38:$F$79,MATCH(J$15,Volumes!$B$38:$F$38,0),FALSE),0)","v":0},0,0,0,0,0,{"$f":"IFERROR(VLOOKUP($B39,Volumes!$B$38:$F$79,MATCH(P$15,Volumes!$B$38:$F$38,0),FALSE),0)","v":0},0,0,0,0,0]
["x",{"$f":"Inputs!C91","v":0},null,{"$f":"IFERROR(VLOOKUP($B40,Inputs!$C$68:$AH$129,MATCH('Opex Weighting'!D$16,Inputs!$C$68:$AH$68,0),FALSE),0)","v":0},{"$f":"IF($B40=0,0,VLOOKUP($B40,Inputs!$C$68:$AH$129,MATCH('Opex Weighting'!E$16,Inputs!$C$68:$AH$68,0),FALSE))","v":0},{"$f":"IF($B40=0,0,VLOOKUP($B40,Inputs!$C$68:$AH$129,MATCH('Opex Weighting'!F$16,Inputs!$C$68:$AH$68,0),FALSE))","v":0},0,0,null,{"$f":"IFERROR(VLOOKUP($B40,Volumes!$B$38:$F$79,MATCH(J$15,Volumes!$B$38:$F$38,0),FALSE),0)","v":0},0,0,0,0,0,{"$f":"IFERROR(VLOOKUP($B40,Volumes!$B$38:$F$79,MATCH(P$15,Volumes!$B$38:$F$38,0),FALSE),0)","v":0},0,0,0,0,0]
["x",{"$f":"Inputs!C92","v":0},null,{"$f":"IFERROR(VLOOKUP($B41,Inputs!$C$68:$AH$129,MATCH('Opex Weighting'!D$16,Inputs!$C$68:$AH$68,0),FALSE),0)","v":0},{"$f":"IF($B41=0,0,VLOOKUP($B41,Inputs!$C$68:$AH$129,MATCH('Opex Weighting'!E$16,Inputs!$C$68:$AH$68,0),FALSE))","v":0},{"$f":"IF($B41=0,0,VLOOKUP($B41,Inputs!$C$68:$AH$129,MATCH('Opex Weighting'!F$16,Inputs!$C$68:$AH$68,0),FALSE))","v":0},0,0,null,{"$f":"IFERROR(VLOOKUP($B41,Volumes!$B$38:$F$79,MATCH(J$15,Volumes!$B$38:$F$38,0),FALSE),0)","v":0},0,0,0,0,0,{"$f":"IFERROR(VLOOKUP($B41,Volumes!$B$38:$F$79,MATCH(P$15,Volumes!$B$38:$F$38,0),FALSE),0)","v":0},0,0,0,0,0]
["",{"$f":"Inputs!C93","v":"250W Sodium Vapour - Flood Light"},null,{"$f":"IFERROR(VLOOKUP($B42,Inputs!$C$68:$AH$129,MATCH('Opex Weighting'!D$16,Inputs!$C$68:$AH$68,0),FALSE),0)","v":43.045767068214708},{"$f":"IF($B42=0,0,VLOOKUP($B42,Inputs!$C$68:$AH$129,MATCH('Opex Weighting'!E$16,Inputs!$C$68:$AH$68,0),FALSE))","v":1.7788104971099301},{"$f":"IF($B42=0,0,VLOOKUP($B42,Inputs!$C$68:$AH$129,MATCH('Opex Weighting'!F$16,Inputs!$C$68:$AH$68,0),FALSE))","v":0},44.824577565324638,1479.2110596557131,null,{"$f":"IFERROR(VLOOKUP($B42,Volumes!$B$38:$F$79,MATCH(J$15,Volumes!$B$38:$F$38,0),FALSE),0)","v":33},424.47728479271882,1732.67938974862,2157.1566745413388,3636.367734197052,9.0319397300196833E-4,{"$f":"IFERROR(VLOOKUP($B42,Volumes!$B$38:$F$79,MATCH(P$15,Volumes!$B$38:$F$38,0),FALSE),0)","v":35},461.59763490265152,1884.2014331652447,2345.7990680678963,3914.6592828542589,9.6481798396680525E-4]
["",{"$f":"Inputs!C94","v":"400W Sodium Vapour"},null,{"$f":"IFERROR(VLOOKUP($B43,Inputs!$C$68:$AH$129,MATCH('Opex Weighting'!D$16,Inputs!$C$68:$AH$68,0),FALSE),0)","v":43.230139704161864},{"$f":"IF($B43=0,0,VLOOKUP($B43,Inputs!$C$68:$AH$129,MATCH('Opex Weighting'!E$16,Inputs!$C$68:$AH$68,0),FALSE))","v":1.7788104971099301},{"$f":"IF($B43=0,0,VLOOKUP($B43,Inputs!$C$68:$AH$129,MATCH('Opex Weighting'!F$16,Inputs!$C$68:$AH$68,0),FALSE))","v":0},45.008950201271794,27500.468572977068,null,{"$f":"IFERROR(VLOOKUP($B43,Volumes!$B$38:$F$79,MATCH(J$15,Volumes!$B$38:$F$38,0),FALSE),0)","v":611},7859.2612426773094,32080.821428375966,39940.082671053278,67440.551244030343,1.6750753463878863E-2,{"$f":"IFERROR(VLOOKUP($B43,Volumes!$B$38:$F$79,MATCH(P$15,Volumes!$B$38:$F$38,0),FALSE),0)","v":642},8467.0194745000645,34561.637716916775,43028.657191416838,71924.403220633336,1.7726691571162863E-2]
["x",{"$f":"Inputs!C95","v":0},null,{"$f":"IFERROR(VLOOKUP($B44,Inputs!$C$68:$AH$129,MATCH('Opex Weighting'!D$16,Inputs!$C$68:$AH$68,0),FALSE),0)","v":0},{"$f":"IF($B44=0,0,VLOOKUP($B44,Inputs!$C$68:$AH$129,MATCH('Opex Weighting'!E$16,Inputs!$C$68:$AH$68,0),FALSE))","v":0},{"$f":"IF($B44=0,0,VLOOKUP($B44,Inputs!$C$68:$AH$129,MATCH('Opex Weighting'!F$16,Inputs!$C$68:$AH$68,0),FALSE))","v":0},0,0,null,{"$f":"IFERROR(VLOOKUP($B44,Volumes!$B$38:$F$79,MATCH(J$15,Volumes!$B$38:$F$38,0),FALSE),0)","v":0},0,0,0,0,0,{"$f":"IFERROR(VLOOKUP($B44,Volumes!$B$38:$F$79,MATCH(P$15,Volumes!$B$38:$F$38,0),FALSE),0)","v":0},0,0,0,0,0]
["",{"$f":"Inputs!C96","v":"400W Sodium Vapour - Flood Light"},null,{"$f":"IFERROR(VLOOKUP($B45,Inputs!$C$68:$AH$129,MATCH('Opex Weighting'!D$16,Inputs!$C$68:$AH$68,0),FALSE),0)","v":43.230139704161864},{"$f":"IF($B45=0,0,VLOOKUP($B45,Inputs!$C$68:$AH$129,MATCH('Opex Weighting'!E$16,Inputs!$C$68:$AH$68,0),FALSE))","v":1.7788104971099301},{"$f":"IF($B45=0,0,VLOOKUP($B45,Inputs!$C$68:$AH$129,MATCH('Opex Weighting'!F$16,Inputs!$C$68:$AH$68,0),FALSE))","v":0},45.008950201271794,1485.2953566419692,null,{"$f":"IFERROR(VLOOKUP($B45,Volumes!$B$38:$F$79,MATCH(J$15,Volumes!$B$38:$F$38,0),FALSE),0)","v":33},424.47728479271882,1732.67938974862,2157.1566745413388,3642.452031183308,9.0470517890016769E-4,{"$f":"IFERROR(VLOOKUP($B45,Volumes!$B$38:$F$79,MATCH(P$15,Volumes!$B$38:$F$38,0),FALSE),0)","v":35},461.59763490265152,1884.2014331652447,2345.7990680678963,3921.1123251124091,9.6640841898862958E-4]
["",{"$f":"Inputs!C97","v":"70W Sodium Vapour"},null,{"$f":"IFERROR(VLOOKUP($B46,Inputs!$C$68:$AH$129,MATCH('Opex Weighting'!D$16,Inputs!$C$68:$AH$68,0),FALSE),0)","v":28.532496091998599},{"$f":"IF($B46=0,0,VLOOKUP($B46,Inputs!$C$68:$AH$129,MATCH('Opex Weighting'!E$16,Inputs!$C$68:$AH$68,0),FALSE))","v":0.6107414998224272},{"$f":"IF($B46=0,0,VLOOKUP($B46,Inputs!$C$68:$AH$129,MATCH('Opex Weighting'!F$16,Inputs!$C$68:$AH$68,0),FALSE))","v":0},29.143237591821027,6236.6528446496995,null,{"$f":"IFERROR(VLOOKUP($B46,Volumes!$B$38:$F$79,MATCH(J$15,Volumes!$B$38:$F$38,0),FALSE),0)","v":214},2752.6708771406616,11236.163315339534,13988.834192480195,20225.487037129897,5.0235672869863987E-3,{"$f":"IFERROR(VLOOKUP($B46,Volumes!$B$38:$F$79,MATCH(P$15,Volumes!$B$38:$F$38,0),FALSE),0)","v":225},2967.413367231331,12112.723498919431,15080.136866150762,21637.365324310493,5.3328061734489703E-3]
["x",{"$f":"Inputs!C98","v":0},null,{"$f":"IFERROR(VLOOKUP($B47,Inputs!$C$68:$AH$129,MATCH('Opex Weighting'!D$16,Inputs!$C$68:$AH$68,0),FALSE),0)","v":0},{"$f":"IF($B47=0,0,VLOOKUP($B47,Inputs!$C$68:$AH$129,MATCH('Opex Weighting'!E$16,Inputs!$C$68:$AH$68,0),FALSE))","v":0},{"$f":"IF($B47=0,0,VLOOKUP($B47,Inputs!$C$68:$AH$129,MATCH('Opex Weighting'!F$16,Inputs!$C$68:$AH$68,0),FALSE))","v":0},0,0,null,{"$f":"IFERROR(VLOOKUP($B47,Volumes!$B$38:$F$79,MATCH(J$15,Volumes!$B$38:$F$38,0),FALSE),0)","v":0},0,0,0,0,0,{"$f":"IFERROR(VLOOKUP($B47,Volumes!$B$38:$F$79,MATCH(P$15,Volumes!$B$38:$F$38,0),FALSE),0)","v":0},0,0,0,0,0]
["",{"$f":"Inputs!C99","v":"100W Incandescent"},null,{"$f":"IFERROR(VLOOKUP($B48,Inputs!$C$68:$AH$129,MATCH('Opex Weighting'!D$16,Inputs!$C$68:$AH$68,0),FALSE),0)","v":38.677444096785848},{"$f":"IF($B48=0,0,VLOOKUP($B48,Inputs!$C$68:$AH$129,MATCH('Opex Weighting'!E$16,Inputs!$C$68:$AH$68,0),FALSE))","v":1.7788104971099301},{"$f":"IF($B48=0,0,VLOOKUP($B48,Inputs!$C$68:$AH$129,MATCH('Opex Weighting'!F$16,Inputs!$C$68:$AH$68,0),FALSE))","v":0},40.456254593895778,0,null,{"$f":"IFERROR(VLOOKUP($B48,Volumes!$B$38:$F$79,MATCH(J$15,Volumes!$B$38:$F$38,0),FALSE),0)","v":0},0,0,0,0,0,{"$f":"IFERROR(VLOOKUP($B48,Volumes!$B$38:$F$79,MATCH(P$15,Volumes!$B$38:$F$38,0),FALSE),0)","v":0},0,0,0,0,0]
["",{"$f":"Inputs!C100","v":"60W Incandescent"},null,{"$f":"IFERROR(VLOOKUP($B49,Inputs!$C$68:$AH$129,MATCH('Opex Weighting'!D$16,Inputs!$C$68:$AH$68,0),FALSE),0)","v":26.890461990167786},{"$f":"IF($B49=0,0,VLOOKUP($B49,Inputs!$C$68:$AH$129,MATCH('Opex Weighting'!E$16,Inputs!$C$68:$AH$68,0),FALSE))","v":0.6107414998224272},{"$f":"IF($B49=0,0,VLOOKUP($B49,Inputs!$C$68:$AH$129,MATCH('Opex Weighting'!F$16,Inputs!$C$68:$AH$68,0),FALSE))","v":0},27.501203489990214,0,null,{"$f":"IFERROR(VLOOKUP($B49,Volumes!$B$38:$F$79,MATCH(J$15,Volumes!$B$38:$F$38,0),FALSE),0)","v":0},0,0,0,0,0,{"$f":"IFERROR(VLOOKUP($B49,Volumes!$B$38:$F$79,MATCH(P$15,Volumes!$B$38:$F$38,0),FALSE),0)","v":0},0,0,0,0,0]
["",{"$f":"Inputs!C101","v":"18W LED"},null,{"$f":"IFERROR(VLOOKUP($B50,Inputs!$C$68:$AH$129,MATCH('Opex Weighting'!D$16,Inputs!$C$68:$AH$68,0),FALSE),0)","v":0},{"$f":"IF($B50=0,0,VLOOKUP($B50,Inputs!$C$68:$AH$129,MATCH('Opex Weighting'!E$16,Inputs!$C$68:$AH$68,0),FALSE))","v":6.8922136918448391},{"$f":"IF($B50=0,0,VLOOKUP($B50,Inputs!$C$68:$AH$129,MATCH('Opex Weighting'!F$16,Inputs!$C$68:$AH$68,0),FALSE))","v":0},6.8922136918448391,69680.280424551325,null,{"$f":"IFERROR(VLOOKUP($B50,Volumes!$B$38:$F$79,MATCH(J$15,Volumes!$B$38:$F$38,0),FALSE),0)","v":10110},130044.40452286022,{"$f":"(J50/J$75)*(VLOOKUP(L$16,$B$3:$J$11,MATCH(J$15,$B$3:$J$3,0),FALSE))","v":530829.95849571354},660874.36301857373,730554.64344312507,{"$f":"N50/N$75","v":0.18145374701828126},{"$f":"IFERROR(VLOOKUP($B50,Volumes!$B$38:$F$79,MATCH(P$15,Volumes!$B$38:$F$38,0),FALSE),0)","v":14210},187408.6397704765,{"$f":"(P50/P$75)*(VLOOKUP(R$16,$B$3:$J$11,MATCH(P$15,$B$3:$J$3,0),FALSE))","v":764985.78186508943},952394.42163556593,1050332.7781966811,{"$f":"T50/T$75","v":0.25886798322205434}]
["",{"$f":"Inputs!C102","v":"25W LED"},null,{"$f":"IFERROR(VLOOKUP($B51,Inputs!$C$68:$AH$129,MATCH('Opex Weighting'!D$16,Inputs!$C$68:$AH$68,0),FALSE),0)","v":0},{"$f":"IF($B51=0,0,VLOOKUP($B51,Inputs!$C$68:$AH$129,MATCH('Opex Weighting'!E$16,Inputs!$C$68:$AH$68,0),FALSE))","v":6.8922136918448391},{"$f":"IF($B51=0,0,VLOOKUP($B51,Inputs!$C$68:$AH$129,MATCH('Opex Weighting'!F$16,Inputs!$C$68:$AH$68,0),FALSE))","v":0},6.8922136918448391,144.73648752874163,null,{"$f":"IFERROR(VLOOKUP($B51,Volumes!$B$38:$F$79,MATCH(J$15,Volumes!$B$38:$F$38,0),FALSE),0)","v":21},270.12190850445745,1102.6141571127582,1372.7360656172157,1517.4725531459574,3.769068929163113E-4,{"$f":"IFERROR(VLOOKUP($B51,Volumes!$B$38:$F$79,MATCH(P$15,Volumes!$B$38:$F$38,0),FALSE),0)","v":21},276.95858094159092,1130.5208598991469,1407.4794408407379,1552.2159283694796,3.82563522003036E-4]
["",{"$f":"Inputs!C103","v":"18W LED Decorative - Bottom Pole Entry"},null,{"$f":"IFERROR(VLOOKUP($B52,Inputs!$C$68:$AH$129,MATCH('Opex Weighting'!D$16,Inputs!$C$68:$AH$68,0),FALSE),0)","v":0},{"$f":"IF($B52=0,0,VLOOKUP($B52,Inputs!$C$68:$AH$129,MATCH('Opex Weighting'!E$16,Inputs!$C$68:$AH$68,0),FALSE))","v":6.8922136918448391},{"$f":"IF($B52=0,0,VLOOKUP($B52,Inputs!$C$68:$AH$129,MATCH('Opex Weighting'!F$16,Inputs!$C$68:$AH$68,0),FALSE))","v":0},6.8922136918448391,227.44305183087968,null,{"$f":"IFERROR(VLOOKUP($B52,Volumes!$B$38:$F$79,MATCH(J$15,Volumes!$B$38:$F$38,0),FALSE),0)","v":33},424.47728479271882,1732.67938974862,2157.1566745413388,2384.5997263722184,5.9228226029706056E-4,{"$f":"IFERROR(VLOOKUP($B52,Volumes!$B$38:$F$79,MATCH(P$15,Volumes!$B$38:$F$38,0),FALSE),0)","v":35},461.59763490265152,1884.2014331652447,2345.7990680678963,2587.0265472824658,6.3760587000505993E-4]
["",{"$f":"Inputs!C104","v":"18W LED Decorative - Side Entry"},null,{"$f":"IFERROR(VLOOKUP($B53,Inputs!$C$68:$AH$129,MATCH('Opex Weighting'!D$16,Inputs!$C$68:$AH$68,0),FALSE),0)","v":0},{"$f":"IF($B53=0,0,VLOOKUP($B53,Inputs!$C$68:$AH$129,MATCH('Opex Weighting'!E$16,Inputs!$C$68:$AH$68,0),FALSE))","v":6.8922136918448391},{"$f":"IF($B53=0,0,VLOOKUP($B53,Inputs!$C$68:$AH$129,MATCH('Opex Weighting'!F$16,Inputs!$C$68:$AH$68,0),FALSE))","v":0},6.8922136918448391,227.44305183087968,null,{"$f":"IFERROR(VLOOKUP($B53,Volumes!$B$38:$F$79,MATCH(J$15,Volumes!$B$38:$F$38,0),FALSE),0)","v":33},424.47728479271882,1732.67938974862,2157.1566745413388,2384.5997263722184,5.9228226029706056E-4,{"$f":"IFERROR(VLOOKUP($B53,Volumes!$B$38:$F$79,MATCH(P$15,Volumes!$B$38:$F$38,0),FALSE),0)","v":35},461.59763490265152,1884.2014331652447,2345.7990680678963,2587.0265472824658,6.3760587000505993E-4]
["",{"$f":"Inputs!C105","v":"18W LED Decorative - Top Entry"},null,{"$f":"IFERROR(VLOOKUP($B54,Inputs!$C$68:$AH$129,MATCH('Opex Weighting'!D$16,Inputs!$C$68:$AH$68,0),FALSE),0)","v":0},{"$f":"IF($B54=0,0,VLOOKUP($B54,Inputs!$C$68:$AH$129,MATCH('Opex Weighting'!E$16,Inputs!$C$68:$AH$68,0),FALSE))","v":6.8922136918448391},{"$f":"IF($B54=0,0,VLOOKUP($B54,Inputs!$C$68:$AH$129,MATCH('Opex Weighting'!F$16,Inputs!$C$68:$AH$68,0),FALSE))","v":0},6.8922136918448391,227.44305183087968,null,{"$f":"IFERROR(VLOOKUP($B54,Volumes!$B$38:$F$79,MATCH(J$15,Volumes!$B$38:$F$38,0),FALSE),0)","v":33},424.47728479271882,1732.67938974862,2157.1566745413388,2384.5997263722184,5.9228226029706056E-4,{"$f":"IFERROR(VLOOKUP($B54,Volumes!$B$38:$F$79,MATCH(P$15,Volumes!$B$38:$F$38,0),FALSE),0)","v":35},461.59763490265152,1884.2014331652447,2345.7990680678963,2587.0265472824658,6.3760587000505993E-4]
["",{"$f":"Inputs!C106","v":"25W LED Decorative - Bottom Pole Entry"},null,{"$f":"IFERROR(VLOOKUP($B55,Inputs!$C$68:$AH$129,MATCH('Opex Weighting'!D$16,Inputs!$C$68:$AH$68,0),FALSE),0)","v":0},{"$f":"IF($B55=0,0,VLOOKUP($B55,Inputs!$C$68:$AH$129,MATCH('Opex Weighting'!E$16,Inputs!$C$68:$AH$68,0),FALSE))","v":6.8922136918448391},{"$f":"IF($B55=0,0,VLOOKUP($B55,Inputs!$C$68:$AH$129,MATCH('Opex Weighting'!F$16,Inputs!$C$68:$AH$68,0),FALSE))","v":0},6.8922136918448391,227.44305183087968,null,{"$f":"IFERROR(VLOOKUP($B55,Volumes!$B$38:$F$79,MATCH(J$15,Volumes!$B$38:$F$38,0),FALSE),0)","v":33},424.47728479271882,1732.67938974862,2157.1566745413388,2384.5997263722184,5.9228226029706056E-4,{"$f":"IFERROR(VLOOKUP($B55,Volumes!$B$38:$F$79,MATCH(P$15,Volumes!$B$38:$F$38,0),FALSE),0)","v":35},461.59763490265152,1884.2014331652447,2345.7990680678963,2587.0265472824658,6.3760587000505993E-4]
["",{"$f":"Inputs!C107","v":"25W LED Decorative - Side Entry"},null,{"$f":"IFERROR(VLOOKUP($B56,Inputs!$C$68:$AH$129,MATCH('Opex Weighting'!D$16,Inputs!$C$68:$AH$68,0),FALSE),0)","v":0},{"$f":"IF($B56=0,0,VLOOKUP($B56,Inputs!$C$68:$AH$129,MATCH('Opex Weighting'!E$16,Inputs!$C$68:$AH$68,0),FALSE))","v":6.8922136918448391},{"$f":"IF($B56=0,0,VLOOKUP($B56,Inputs!$C$68:$AH$129,MATCH('Opex Weighting'!F$16,Inputs!$C$68:$AH$68,0),FALSE))","v":0},6.8922136918448391,227.44305183087968,null,{"$f":"IFERROR(VLOOKUP($B56,Volumes!$B$38:$F$79,MATCH(J$15,Volumes!$B$38:$F$38,0),FALSE),0)","v":33},424.47728479271882,1732.67938974862,2157.1566745413388,2384.5997263722184,5.9228226029706056E-4,{"$f":"IFERROR(VLOOKUP($B56,Volumes!$B$38:$F$79,MATCH(P$15,Volumes!$B$38:$F$38,0),FALSE),0)","v":35},461.59763490265152,1884.2014331652447,2345.7990680678963,2587.0265472824658,6.3760587000505993E-4]
["",{"$f":"Inputs!C108","v":"25W LED Decorative - Top Entry"},null,{"$f":"IFERROR(VLOOKUP($B57,Inputs!$C$68:$AH$129,MATCH('Opex Weighting'!D$16,Inputs!$C$68:$AH$68,0),FALSE),0)","v":0},{"$f":"IF($B57=0,0,VLOOKUP($B57,Inputs!$C$68:$AH$129,MATCH('Opex Weighting'!E$16,Inputs!$C$68:$AH$68,0),FALSE))","v":6.8922136918448391},{"$f":"IF($B57=0,0,VLOOKUP($B57,Inputs!$C$68:$AH$129,MATCH('Opex Weighting'!F$16,Inputs!$C$68:$AH$68,0),FALSE))","v":0},6.8922136918448391,227.44305183087968,null,{"$f":"IFERROR(VLOOKUP($B57,Volumes!$B$38:$F$79,MATCH(J$15,Volumes!$B$38:$F$38,0),FALSE),0)","v":33},424.47728479271882,1732.67938974862,2157.1566745413388,2384.5997263722184,5.9228226029706056E-4,{"$f":"IFERROR(VLOOKUP($B57,Volumes!$B$38:$F$79,MATCH(P$15,Volumes!$B$38:$F$38,0),FALSE),0)","v":35},461.59763490265152,1884.2014331652447,2345.7990680678963,2587.0265472824658,6.3760587000505993E-4]
["",{"$f":"Inputs!C109","v":"30W LED"},null,{"$f":"IFERROR(VLOOKUP($B58,Inputs!$C$68:$AH$129,MATCH('Opex Weighting'!D$16,Inputs!$C$68:$AH$68,0),FALSE),0)","v":0},{"$f":"IF($B58=0,0,VLOOKUP($B58,Inputs!$C$68:$AH$129,MATCH('Opex Weighting'!E$16,Inputs!$C$68:$AH$68,0),FALSE))","v":6.8922136918448391},{"$f":"IF($B58=0,0,VLOOKUP($B58,Inputs!$C$68:$AH$129,MATCH('Opex Weighting'!F$16,Inputs!$C$68:$AH$68,0),FALSE))","v":0},6.8922136918448391,0,null,{"$f":"IFERROR(VLOOKUP($B58,Volumes!$B$38:$F$79,MATCH(J$15,Volumes!$B$38:$F$38,0),FALSE),0)","v":0},0,0,0,0,0,{"$f":"IFERROR(VLOOKUP($B58,Volumes!$B$38:$F$79,MATCH(P$15,Volumes!$B$38:$F$38,0),FALSE),0)","v":0},0,0,0,0,0]
["",{"$f":"Inputs!C110","v":"88 LED Light"},null,{"$f":"IFERROR(VLOOKUP($B59,Inputs!$C$68:$AH$129,MATCH('Opex Weighting'!D$16,Inputs!$C$68:$AH$68,0),FALSE),0)","v":0},{"$f":"IF($B59=0,0,VLOOKUP($B59,Inputs!$C$68:$AH$129,MATCH('Opex Weighting'!E$16,Inputs!$C$68:$AH$68,0),FALSE))","v":6.8922136918448391},{"$f":"IF($B59=0,0,VLOOKUP($B59,Inputs!$C$68:$AH$129,MATCH('Opex Weighting'!F$16,Inputs!$C$68:$AH$68,0),FALSE))","v":0},6.8922136918448391,0,null,{"$f":"IFERROR(VLOOKUP($B59,Volumes!$B$38:$F$79,MATCH(J$15,Volumes!$B$38:$F$38,0),FALSE),0)","v":0},0,0,0,0,0,{"$f":"IFERROR(VLOOKUP($B59,Volumes!$B$38:$F$79,MATCH(P$15,Volumes!$B$38:$F$38,0),FALSE),0)","v":0},0,0,0,0,0]
["",{"$f":"Inputs!C111","v":"100W Metal Halide"},null,{"$f":"IFERROR(VLOOKUP($B60,Inputs!$C$68:$AH$129,MATCH('Opex Weighting'!D$16,Inputs!$C$68:$AH$68,0),FALSE),0)","v":42.504247823696559},{"$f":"IF($B60=0,0,VLOOKUP($B60,Inputs!$C$68:$AH$129,MATCH('Opex Weighting'!E$16,Inputs!$C$68:$AH$68,0),FALSE))","v":1.7788104971099301},{"$f":"IF($B60=0,0,VLOOKUP($B60,Inputs!$C$68:$AH$129,MATCH('Opex Weighting'!F$16,Inputs!$C$68:$AH$68,0),FALSE))","v":0},44.283058320806489,752.81199145371033,null,{"$f":"IFERROR(VLOOKUP($B60,Volumes!$B$38:$F$79,MATCH(J$15,Volumes!$B$38:$F$38,0),FALSE),0)","v":17},218.67011640837032,892.59241290080422,1111.2625293091746,1864.074520762885,4.6299521815313082E-4,{"$f":"IFERROR(VLOOKUP($B60,Volumes!$B$38:$F$79,MATCH(P$15,Volumes!$B$38:$F$38,0),FALSE),0)","v":17},224.20456552414504,915.18355325169034,1139.3881187758354,1892.2001102295458,4.6635698376343331E-4]
["",{"$f":"Inputs!C112","v":"150W Metal Halide"},null,{"$f":"IFERROR(VLOOKUP($B61,Inputs!$C$68:$AH$129,MATCH('Opex Weighting'!D$16,Inputs!$C$68:$AH$68,0),FALSE),0)","v":43.107029815952565},{"$f":"IF($B61=0,0,VLOOKUP($B61,Inputs!$C$68:$AH$129,MATCH('Opex Weighting'!E$16,Inputs!$C$68:$AH$68,0),FALSE))","v":1.7788104971099301},{"$f":"IF($B61=0,0,VLOOKUP($B61,Inputs!$C$68:$AH$129,MATCH('Opex Weighting'!F$16,Inputs!$C$68:$AH$68,0),FALSE))","v":0},44.885840313062495,628.40176438287494,null,{"$f":"IFERROR(VLOOKUP($B61,Volumes!$B$38:$F$79,MATCH(J$15,Volumes!$B$38:$F$38,0),FALSE),0)","v":14},180.08127233630498,735.07610474183878,915.15737707814378,1543.5591414610187,3.8338622918386551E-4,{"$f":"IFERROR(VLOOKUP($B61,Volumes!$B$38:$F$79,MATCH(P$15,Volumes!$B$38:$F$38,0),FALSE),0)","v":15},197.82755781542207,807.51489992796201,1005.3424577433841,1678.6300624393216,4.1371990654775836E-4]
["",{"$f":"Inputs!C113","v":"250W Metal Halide"},null,{"$f":"IFERROR(VLOOKUP($B62,Inputs!$C$68:$AH$129,MATCH('Opex Weighting'!D$16,Inputs!$C$68:$AH$68,0),FALSE),0)","v":43.107029815952565},{"$f":"IF($B62=0,0,VLOOKUP($B62,Inputs!$C$68:$AH$129,MATCH('Opex Weighting'!E$16,Inputs!$C$68:$AH$68,0),FALSE))","v":1.7788104971099301},{"$f":"IF($B62=0,0,VLOOKUP($B62,Inputs!$C$68:$AH$129,MATCH('Opex Weighting'!F$16,Inputs!$C$68:$AH$68,0),FALSE))","v":0},44.885840313062495,3949.9539475494994,null,{"$f":"IFERROR(VLOOKUP($B62,Volumes!$B$38:$F$79,MATCH(J$15,Volumes!$B$38:$F$38,0),FALSE),0)","v":88},1131.9394261139171,4620.4783726629876,5752.4177987769044,9702.3717463264038,2.4098562977271547E-3,{"$f":"IFERROR(VLOOKUP($B62,Volumes!$B$38:$F$79,MATCH(P$15,Volumes!$B$38:$F$38,0),FALSE),0)","v":89},1173.7768430381709,4791.2550729059076,5965.0319159440787,9959.8717038066407,2.454738112183366E-3]
["",{"$f":"Inputs!C114","v":"400W Metal Halide"},null,{"$f":"IFERROR(VLOOKUP($B63,Inputs!$C$68:$AH$129,MATCH('Opex Weighting'!D$16,Inputs!$C$68:$AH$68,0),FALSE),0)","v":45.985947466352563},{"$f":"IF($B63=0,0,VLOOKUP($B63,Inputs!$C$68:$AH$129,MATCH('Opex Weighting'!E$16,Inputs!$C$68:$AH$68,0),FALSE))","v":1.7788104971099301},{"$f":"IF($B63=0,0,VLOOKUP($B63,Inputs!$C$68:$AH$129,MATCH('Opex Weighting'!F$16,Inputs!$C$68:$AH$68,0),FALSE))","v":0},47.764757963462493,812.00088537886234,null,{"$f":"IFERROR(VLOOKUP($B63,Volumes!$B$38:$F$79,MATCH(J$15,Volumes!$B$38:$F$38,0),FALSE),0)","v":17},218.67011640837032,892.59241290080422,1111.2625293091746,1923.2634146880368,4.7769644095827001E-4,{"$f":"IFERROR(VLOOKUP($B63,Volumes!$B$38:$F$79,MATCH(P$15,Volumes!$B$38:$F$38,0),FALSE),0)","v":17},224.20456552414504,915.18355325169034,1139.3881187758354,1951.3890041546979,4.8094484574166731E-4]
["",{"$f":"Inputs!C115","v":"70W Metal Halide"},null,{"$f":"IFERROR(VLOOKUP($B64,Inputs!$C$68:$AH$129,MATCH('Opex Weighting'!D$16,Inputs!$C$68:$AH$68,0),FALSE),0)","v":30.639231896554499},{"$f":"IF($B64=0,0,VLOOKUP($B64,Inputs!$C$68:$AH$129,MATCH('Opex Weighting'!E$16,Inputs!$C$68:$AH$68,0),FALSE))","v":0.6107414998224272},{"$f":"IF($B64=0,0,VLOOKUP($B64,Inputs!$C$68:$AH$129,MATCH('Opex Weighting'!F$16,Inputs!$C$68:$AH$68,0),FALSE))","v":0},31.249973396376927,0,null,{"$f":"IFERROR(VLOOKUP($B64,Volumes!$B$38:$F$79,MATCH(J$15,Volumes!$B$38:$F$38,0),FALSE),0)","v":0},0,0,0,0,0,{"$f":"IFERROR(VLOOKUP($B64,Volumes!$B$38:$F$79,MATCH(P$15,Volumes!$B$38:$F$38,0),FALSE),0)","v":0},0,0,0,0,0]
["",{"$f":"Inputs!C116","v":"250W Metal Halide - Flood Light"},null,{"$f":"IFERROR(VLOOKUP($B65,Inputs!$C$68:$AH$129,MATCH('Opex Weighting'!D$16,Inputs!$C$68:$AH$68,0),FALSE),0)","v":43.107029815952565},{"$f":"IF($B65=0,0,VLOOKUP($B65,Inputs!$C$68:$AH$129,MATCH('Opex Weighting'!E$16,Inputs!$C$68:$AH$68,0),FALSE))","v":1.7788104971099301},{"$f":"IF($B65=0,0,VLOOKUP($B65,Inputs!$C$68:$AH$129,MATCH('Opex Weighting'!F$16,Inputs!$C$68:$AH$68,0),FALSE))","v":0},44.885840313062495,1481.2327303310624,null,{"$f":"IFERROR(VLOOKUP($B65,Volumes!$B$38:$F$79,MATCH(J$15,Volumes!$B$38:$F$38,0),FALSE),0)","v":33},424.47728479271882,1732.67938974862,2157.1566745413388,3638.3894048724014,9.0369611164768302E-4,{"$f":"IFERROR(VLOOKUP($B65,Volumes!$B$38:$F$79,MATCH(P$15,Volumes!$B$38:$F$38,0),FALSE),0)","v":35},461.59763490265152,1884.2014331652447,2345.7990680678963,3916.8034790250836,9.6534644861143615E-4]
["",{"$f":"Inputs!C117","v":"400W Metal Halide - Flood Light"},null,{"$f":"IFERROR(VLOOKUP($B66,Inputs!$C$68:$AH$129,MATCH('Opex Weighting'!D$16,Inputs!$C$68:$AH$68,0),FALSE),0)","v":45.985947466352563},{"$f":"IF($B66=0,0,VLOOKUP($B66,Inputs!$C$68:$AH$129,MATCH('Opex Weighting'!E$16,Inputs!$C$68:$AH$68,0),FALSE))","v":1.7788104971099301},{"$f":"IF($B66=0,0,VLOOKUP($B66,Inputs!$C$68:$AH$129,MATCH('Opex Weighting'!F$16,Inputs!$C$68:$AH$68,0),FALSE))","v":0},47.764757963462493,1576.2370127942622,null,{"$f":"IFERROR(VLOOKUP($B66,Volumes!$B$38:$F$79,MATCH(J$15,Volumes!$B$38:$F$38,0),FALSE),0)","v":33},424.47728479271882,1732.67938974862,2157.1566745413388,3733.393687335601,9.2729309127193601E-4,{"$f":"IFERROR(VLOOKUP($B66,Volumes!$B$38:$F$79,MATCH(P$15,Volumes!$B$38:$F$38,0),FALSE),0)","v":35},461.59763490265152,1884.2014331652447,2345.7990680678963,4017.5655967890834,9.9018056476225607E-4]
["",{"$f":"Inputs!C118","v":"125W Mercury Vapour"},null,{"$f":"IFERROR(VLOOKUP($B67,Inputs!$C$68:$AH$129,MATCH('Opex Weighting'!D$16,Inputs!$C$68:$AH$68,0),FALSE),0)","v":38.78865334035256},{"$f":"IF($B67=0,0,VLOOKUP($B67,Inputs!$C$68:$AH$129,MATCH('Opex Weighting'!E$16,Inputs!$C$68:$AH$68,0),FALSE))","v":1.7788104971099301},{"$f":"IF($B67=0,0,VLOOKUP($B67,Inputs!$C$68:$AH$129,MATCH('Opex Weighting'!F$16,Inputs!$C$68:$AH$68,0),FALSE))","v":0},40.567463837462491,0,null,{"$f":"IFERROR(VLOOKUP($B67,Volumes!$B$38:$F$79,MATCH(J$15,Volumes!$B$38:$F$38,0),FALSE),0)","v":0},0,0,0,0,0,{"$f":"IFERROR(VLOOKUP($B67,Volumes!$B$38:$F$79,MATCH(P$15,Volumes!$B$38:$F$38,0),FALSE),0)","v":0},0,0,0,0,0]
["",{"$f":"Inputs!C119","v":"250W Mercury Vapour"},null,{"$f":"IFERROR(VLOOKUP($B68,Inputs!$C$68:$AH$129,MATCH('Opex Weighting'!D$16,Inputs!$C$68:$AH$68,0),FALSE),0)","v":38.78865334035256},{"$f":"IF($B68=0,0,VLOOKUP($B68,Inputs!$C$68:$AH$129,MATCH('Opex Weighting'!E$16,Inputs!$C$68:$AH$68,0),FALSE))","v":1.7788104971099301},{"$f":"IF($B68=0,0,VLOOKUP($B68,Inputs!$C$68:$AH$129,MATCH('Opex Weighting'!F$16,Inputs!$C$68:$AH$68,0),FALSE))","v":0},40.567463837462491,17322.307058596485,null,{"$f":"IFERROR(VLOOKUP($B68,Volumes!$B$38:$F$79,MATCH(J$15,Volumes!$B$38:$F$38,0),FALSE),0)","v":427},5492.4788062573007,22419.821194626082,27912.300000883384,45234.607059479866,1.1235284067400805E-2,{"$f":"IFERROR(VLOOKUP($B68,Volumes!$B$38:$F$79,MATCH(P$15,Volumes!$B$38:$F$38,0),FALSE),0)","v":406},5354.5325648707576,21856.736624716839,27211.269189587598,43681.659507597367,1.0765905182868392E-2]
["x",{"$f":"Inputs!C120","v":0},null,{"$f":"IFERROR(VLOOKUP($B69,Inputs!$C$68:$AH$129,MATCH('Opex Weighting'!D$16,Inputs!$C$68:$AH$68,0),FALSE),0)","v":0},{"$f":"IF($B69=0,0,VLOOKUP($B69,Inputs!$C$68:$AH$129,MATCH('Opex Weighting'!E$16,Inputs!$C$68:$AH$68,0),FALSE))","v":0},{"$f":"IF($B69=0,0,VLOOKUP($B69,Inputs!$C$68:$AH$129,MATCH('Opex Weighting'!F$16,Inputs!$C$68:$AH$68,0),FALSE))","v":0},0,0,null,{"$f":"IFERROR(VLOOKUP($B69,Volumes!$B$38:$F$79,MATCH(J$15,Volumes!$B$38:$F$38,0),FALSE),0)","v":0},0,0,0,0,0,{"$f":"IFERROR(VLOOKUP($B69,Volumes!$B$38:$F$79,MATCH(P$15,Volumes!$B$38:$F$38,0),FALSE),0)","v":0},0,0,0,0,0]
["",{"$f":"Inputs!C121","v":"400W Mercury Vapour"},null,{"$f":"IFERROR(VLOOKUP($B70,Inputs!$C$68:$AH$129,MATCH('Opex Weighting'!D$16,Inputs!$C$68:$AH$68,0),FALSE),0)","v":39.416780827712564},{"$f":"IF($B70=0,0,VLOOKUP($B70,Inputs!$C$68:$AH$129,MATCH('Opex Weighting'!E$16,Inputs!$C$68:$AH$68,0),FALSE))","v":1.7788104971099301},{"$f":"IF($B70=0,0,VLOOKUP($B70,Inputs!$C$68:$AH$129,MATCH('Opex Weighting'!F$16,Inputs!$C$68:$AH$68,0),FALSE))","v":0},41.195591324822495,1318.2589223943198,null,{"$f":"IFERROR(VLOOKUP($B70,Volumes!$B$38:$F$79,MATCH(J$15,Volumes!$B$38:$F$38,0),FALSE),0)","v":32},411.61433676869706,1680.1739536956316,2091.7882904643284,3410.047212858648,8.4698092036782763E-4,{"$f":"IFERROR(VLOOKUP($B70,Volumes!$B$38:$F$79,MATCH(P$15,Volumes!$B$38:$F$38,0),FALSE),0)","v":31},408.84361948520558,1668.864126517788,2077.7077460029936,3354.7710770724907,8.2682635534279546E-4]
["",{"$f":"Inputs!C122","v":"50W Mercury Vapour"},null,{"$f":"IFERROR(VLOOKUP($B71,Inputs!$C$68:$AH$129,MATCH('Opex Weighting'!D$16,Inputs!$C$68:$AH$68,0),FALSE),0)","v":27.117920275490583},{"$f":"IF($B71=0,0,VLOOKUP($B71,Inputs!$C$68:$AH$129,MATCH('Opex Weighting'!E$16,Inputs!$C$68:$AH$68,0),FALSE))","v":0.6107414998224272},{"$f":"IF($B71=0,0,VLOOKUP($B71,Inputs!$C$68:$AH$129,MATCH('Opex Weighting'!F$16,Inputs!$C$68:$AH$68,0),FALSE))","v":0},27.728661775313011,0,null,{"$f":"IFERROR(VLOOKUP($B71,Volumes!$B$38:$F$79,MATCH(J$15,Volumes!$B$38:$F$38,0),FALSE),0)","v":0},0,0,0,0,0,{"$f":"IFERROR(VLOOKUP($B71,Volumes!$B$38:$F$79,MATCH(P$15,Volumes!$B$38:$F$38,0),FALSE),0)","v":0},0,0,0,0,0]
["",{"$f":"Inputs!C123","v":"80W Mercury Vapour Art decorative"},null,{"$f":"IFERROR(VLOOKUP($B72,Inputs!$C$68:$AH$129,MATCH('Opex Weighting'!D$16,Inputs!$C$68:$AH$68,0),FALSE),0)","v":26.988277723665483},{"$f":"IF($B72=0,0,VLOOKUP($B72,Inputs!$C$68:$AH$129,MATCH('Opex Weighting'!E$16,Inputs!$C$68:$AH$68,0),FALSE))","v":0.6107414998224272},{"$f":"IF($B72=0,0,VLOOKUP($B72,Inputs!$C$68:$AH$129,MATCH('Opex Weighting'!F$16,Inputs!$C$68:$AH$68,0),FALSE))","v":0},27.599019223487911,1103.9607689395164,null,{"$f":"IFERROR(VLOOKUP($B72,Volumes!$B$38:$F$79,MATCH(J$15,Volumes!$B$38:$F$38,0),FALSE),0)","v":40},514.51792096087127,2100.2174421195396,2614.7353630804109,3718.6961320199271,9.2364254095653696E-4,{"$f":"IFERROR(VLOOKUP($B72,Volumes!$B$38:$F$79,MATCH(P$15,Volumes!$B$38:$F$38,0),FALSE),0)","v":40},527.54015417445885,2153.3730664745653,2680.913220649024,3784.8739895885401,9.3283073400469074E-4]
["",{"$f":"Inputs!C124","v":"80W Mercury Vapour"},null,{"$f":"IFERROR(VLOOKUP($B73,Inputs!$C$68:$AH$129,MATCH('Opex Weighting'!D$16,Inputs!$C$68:$AH$68,0),FALSE),0)","v":26.988277723665483},{"$f":"IF($B73=0,0,VLOOKUP($B73,Inputs!$C$68:$AH$129,MATCH('Opex Weighting'!E$16,Inputs!$C$68:$AH$68,0),FALSE))","v":0.6107414998224272},{"$f":"IF($B73=0,0,VLOOKUP($B73,Inputs!$C$68:$AH$129,MATCH('Opex Weighting'!F$16,Inputs!$C$68:$AH$68,0),FALSE))","v":0},27.599019223487911,392872.03864635044,null,{"$f":"IFERROR(VLOOKUP($B73,Volumes!$B$38:$F$79,MATCH(J$15,Volumes!$B$38:$F$38,0),FALSE),0)","v":14235},183104.06512195009,747414.88221429102,930518.94733624114,1323390.9859825915,0.32870128926290759,{"$f":"IFERROR(VLOOKUP($B73,Volumes!$B$38:$F$79,MATCH(P$15,Volumes!$B$38:$F$38,0),FALSE),0)","v":10135},{"$f":"(P73/P$75)*Q$13","v":133665.48656395351},545610.90071799303,679276.38728194661,958992.44711199659,0.23635598722843856]
["x",{"$f":"Inputs!C125","v":0},null,{"$f":"IFERROR(VLOOKUP($B74,Inputs!$C$68:$AH$129,MATCH('Opex Weighting'!D$16,Inputs!$C$68:$AH$68,0),FALSE),0)","v":0},{"$f":"IF($B74=0,0,VLOOKUP($B74,Inputs!$C$68:$AH$129,MATCH('Opex Weighting'!E$16,Inputs!$C$68:$AH$68,0),FALSE))","v":0},{"$f":"IF($B74=0,0,VLOOKUP($B74,Inputs!$C$68:$AH$129,MATCH('Opex Weighting'!F$16,Inputs!$C$68:$AH$68,0),FALSE))","v":0},{"$f":"SUM(C74:F74)","v":0},{"$f":"G74*J74","v":0},null,{"$f":"IFERROR(VLOOKUP($B74,Volumes!$B$38:$F$79,MATCH(J$15,Volumes!$B$38:$F$38,0),FALSE),0)","v":0},{"$f":"(J74/J$75)*K$13","v":0},{"$f":"(J74/J$75)*(VLOOKUP(L$16,$B$3:$J$11,MATCH(J$15,$B$3:$J$3,0),FALSE))","v":0},{"$f":"SUM(K74:L74)","v":0},{"$f":"IF(J74=0,0,M74+($G74*J74))","v":0},{"$f":"N74/N$75","v":0},{"$f":"IFERROR(VLOOKUP($B74,Volumes!$B$38:$F$79,MATCH(P$15,Volumes!$B$38:$F$38,0),FALSE),0)","v":0},{"$f":"(P74/P$75)*Q$13","v":0},{"$f":"(P74/P$75)*(VLOOKUP(R$16,$B$3:$J$11,MATCH(P$15,$B$3:$J$3,0),FALSE))","v":0},{"$f":"SUM(Q74:R74)","v":0},{"$f":"IF(P74=0,0,S74+($G74*P74))","v":0},{"$f":"T74/T$75","v":0}]
[null,null,null,{"$f":"SUM(D17:D74)","v":1270.7795253541101},{"$f":"SUM(E17:E74)","v":111.93407286323082},{"$f":"SUM(F17:F74)","v":0},{"$f":"SUM(G17:G74)","v":1382.7135982173411},{"$f":"SUM(H17:H74)","v":1196127.0083146896},null,{"$f":"SUM(J17:J74)","v":43293},556875.60880397481,2273117.8430420314,2829993.4518460054,4026120.4601606959,1,43662,575836.45528913033,2350514.3707103115,2926350.8259994416,4057407.042475841,0.99999999999999978]
[null,null,null,null,null,null,null,null,null,{"$f":"Volumes!E80","v":43293},{"$f":"$K$13","v":556875.60880397505},{"$f":"D11","v":2273117.8430420305},null,null,null,{"$f":"Volumes!F80","v":43662},{"$f":"Q13","v":575836.45528913056},{"$f":"E11","v":2350514.3707103119}]
[null,null,null,null,null,null,null,null,"Checks",{"$f":"J76=J75","v":true},{"$f":"K76-K75","v":0},{"$f":"L76-L75","v":0},null,null,null,{"$f":"P76-P75","v":0},{"$f":"Q76-Q75","v":0},{"$f":"R76-R75","v":0}]
[]
[]
[]
[]
[null,"Indirect POW OPEX allocation Public and Contract"]
[null,"RLBLR allocated with Materials and installation",null,{"$f":"D3","v":"2017-18"},{"$f":"E3","v":"2018-19"},0,0,0,0,0]
[]
[null,{"$f":"B6","v":"Opex - Road Lighting UG Cable Inspection & Monitoring"},{"$f":"C6","v":"RLCIM"},{"$f":"D6","v":5008.8336749999989},5008.8336749999989,0,0,0,0,0]
[null,{"$f":"B7","v":"Opex - Remove redundant OH Switchwire"},{"$f":"C7","v":"RLDEC"},{"$f":"D7","v":672545.11757812498},672545.11757812498,0,0,0,0,0]
[]
[null,null,null,{"$f":"SUM(D85:D87)","v":677553.95125312498},677553.95125312498,0,0,0,0,0]
[]
[null,"Total Lights",null,{"$f":"VLOOKUP($B90,Volumes!$B$84:$F$84,MATCH('Opex Weighting'!D83,Volumes!$B$4:$F$4,0),FALSE)","v":49622},{"$f":"VLOOKUP($B90,Volumes!$B$84:$F$84,MATCH('Opex Weighting'!E83,Volumes!$B$4:$F$4,0),FALSE)","v":50020},{"$f":"VLOOKUP($B90,Volumes!$B$84:$F$84,MATCH('Opex Weighting'!F83,Volumes!$B$4:$F$4,0),FALSE)","v":{"$error":"#N/A"}},{"$f":"VLOOKUP($B90,Volumes!$B$84:$F$84,MATCH('Opex Weighting'!G83,Volumes!$B$4:$F$4,0),FALSE)","v":{"$error":"#N/A"}},{"$f":"VLOOKUP($B90,Volumes!$B$84:$F$84,MATCH('Opex Weighting'!H83,Volumes!$B$4:$F$4,0),FALSE)","v":{"$error":"#N/A"}},{"$f":"VLOOKUP($B90,Volumes!$B$84:$F$84,MATCH('Opex Weighting'!I83,Volumes!$B$4:$F$4,0),FALSE)","v":{"$error":"#N/A"}},{"$f":"VLOOKUP($B90,Volumes!$B$84:$F$84,MATCH('Opex Weighting'!J83,Volumes!$B$4:$F$4,0),FALSE)","v":{"$error":"#N/A"}}]
[null,null,null,{"$f":"D88/D90","v":13.654305575211096},13.545660760758196,{"$error":"#N/A"},{"$error":"#N/A"},{"$error":"#N/A"},{"$error":"#N/A"},{"$error":"#N/A"}]
[]
[null,"Indirect POW OPEX allocation Public"]
[null,{"$f":"B8","v":"Opex - Road lighting Inspection"},"RLICM",205698.71976421872,154082.16752828122,0,0,0,0,0]
[null,{"$f":"B9","v":"Opex - Road lighting repairs"},"RLREM",241026.10594843747,347201.038691875,0,0,0,0,0]
[null,{"$f":"B10","v":"Opex - Road Lighting Underground System Asset Repair"},{"$f":"C10","v":"RLSAR"},{"$f":"D10","v":4714.1963999999998},{"$f":"E10","v":4714.1963999999998},0,0,0,0,0]
[null,null,null,{"$f":"SUM(D94:D96)","v":451439.02211265621},505997.40262015624,0,0,0,0,0]
[]
[null,"Total Public Lighting",null,{"$f":"VLOOKUP($B99,Volumes!$B$80:$F$80,MATCH('Opex Weighting'!D83,Volumes!$B$4:$F$4,0),FALSE)","v":43293},{"$f":"VLOOKUP($B99,Volumes!$B$80:$F$80,MATCH('Opex Weighting'!E83,Volumes!$B$4:$F$4,0),FALSE)","v":43662},{"$f":"VLOOKUP($B99,Volumes!$B$80:$F$80,MATCH('Opex Weighting'!F83,Volumes!$B$4:$F$4,0),FALSE)","v":{"$error":"#N/A"}},{"$f":"VLOOKUP($B99,Volumes!$B$80:$F$80,MATCH('Opex Weighting'!G83,Volumes!$B$4:$F$4,0),FALSE)","v":{"$error":"#N/A"}},{"$f":"VLOOKUP($B99,Volumes!$B$80:$F$80,MATCH('Opex Weighting'!H83,Volumes!$B$4:$F$4,0),FALSE)","v":{"$error":"#N/A"}},{"$f":"VLOOKUP($B99,Volumes!$B$80:$F$80,MATCH('Opex Weighting'!I83,Volumes!$B$4:$F$4,0),FALSE)","v":{"$error":"#N/A"}},{"$f":"VLOOKUP($B99,Volumes!$B$80:$F$80,MATCH('Opex Weighting'!J83,Volumes!$B$4:$F$4,0),FALSE)","v":{"$error":"#N/A"}}]
[null,null,null,{"$f":"D97/D99","v":10.427529210557278},{"$f":"E97/E99","v":11.588965292935647},{"$error":"#N/A"},{"$error":"#N/A"},{"$error":"#N/A"},{"$error":"#N/A"},{"$error":"#N/A"}]
[]
[null,"Indirect POW OPEX allocation Private"]
[]
[]
[null,null,null,{"$f":"SUM(D103:D104)","v":0},0,0,0,0,0,0]
[]
[null,"Total Private",null,{"$f":"VLOOKUP($B107,Volumes!$B$33:$F$33,MATCH('Opex Weighting'!D83,Volumes!$B$4:$F$4,0),FALSE)","v":6329},{"$f":"VLOOKUP($B107,Volumes!$B$33:$F$33,MATCH('Opex Weighting'!E83,Volumes!$B$4:$F$4,0),FALSE)","v":6358},{"$f":"VLOOKUP($B107,Volumes!$B$33:$F$33,MATCH('Opex Weighting'!F83,Volumes!$B$4:$F$4,0),FALSE)","v":{"$error":"#N/A"}},{"$f":"VLOOKUP($B107,Volumes!$B$33:$F$33,MATCH('Opex Weighting'!G83,Volumes!$B$4:$F$4,0),FALSE)","v":{"$error":"#N/A"}},{"$f":"VLOOKUP($B107,Volumes!$B$33:$F$33,MATCH('Opex Weighting'!H83,Volumes!$B$4:$F$4,0),FALSE)","v":{"$error":"#N/A"}},{"$f":"VLOOKUP($B107,Volumes!$B$33:$F$33,MATCH('Opex Weighting'!I83,Volumes!$B$4:$F$4,0),FALSE)","v":{"$error":"#N/A"}},{"$f":"VLOOKUP($B107,Volumes!$B$33:$F$33,MATCH('Opex Weighting'!J83,Volumes!$B$4:$F$4,0),FALSE)","v":{"$error":"#N/A"}}]
[null,null,null,{"$f":"D105/D107","v":0},{"$f":"E105/E107","v":0},{"$f":"F105/F107","v":{"$error":"#N/A"}},{"$f":"G105/G107","v":{"$error":"#N/A"}},{"$f":"H105/H107","v":{"$error":"#N/A"}},{"$f":"I105/I107","v":{"$error":"#N/A"}},{"$f":"J105/J107","v":{"$error":"#N/A"}}]
[]
[]
[null,"Public Lighting Total rate",null,{"$f":"D91+D100","v":24.081834785768372},25.134626053693843,{"$error":"#N/A"},{"$error":"#N/A"},{"$error":"#N/A"},{"$error":"#N/A"},{"$error":"#N/A"}]
[]
[null,"Private Contract Lighting Total rate",null,{"$f":"D91+D108","v":13.654305575211096},13.545660760758196,{"$error":"#N/A"},{"$error":"#N/A"},{"$error":"#N/A"},{"$error":"#N/A"},{"$error":"#N/A"}]

{"sheet":"Building Block","index":15,"n_rows":61,"n_cols":8,"rows_kept":61,"cut":false,"hidden":false,"merged":[]}
[null,"Prices are in Real values 2014/15"]
[null,"For PTRM Model index's values to 2017/18"]
[null,"Forecast Capital Expenditure – As Incurred ($m Real 2014-15)",{"$f":"'Master Data'!I20","v":"2017-18"},{"$f":"'Master Data'!J20","v":"2018-19"}]
[null,"Motor Vehicles",0.11266024277217572,0.17886497063300202]
[null,"Minor Assets",0.96210230339249514,0.8566240584500826]
[null,"Non-System Property",6.010423951895575E-2,8.8717025433969032E-2]
[null,"Non-System Land",0,0]
[null,"NEM Assets",0,0]
[null,"Streetlighting",4.5942051229995675,4.5688727231818449]
[null,"Spare Parts",0,0]
[null,"Overhead High Voltage Lines Rural",0,0]
[null,null,{"$f":"SUM(C4:C11)","v":5.7290719086831938},5.6930787776988989]
[null,null,5.7290719086831938,5.6930787776988989]
[null,null,{"$f":"C12-C13","v":0},{"$f":"D12-D13","v":0}]
[null,"Disposals"]
[null,"Motor Vehicles",-4.0872339608357032E-2,{"$f":"C16","v":-4.0872339608357032E-2}]
[]
[null,"Re-order into PTRM order"]
[null,"Spare Parts",{"$f":"C10","v":0},0]
[null,"Motor Vehicles",7.1787903163818695E-2,0.13799263102464498]
[null,"Minor Assets",{"$f":"C5","v":0.96210230339249514},0.8566240584500826]
[null,"NEM Assets",{"$f":"C8","v":0},0]
[null,"Streetlights",{"$f":"C9","v":4.5942051229995675},4.5688727231818449]
[null,"Non System Property",{"$f":"C6","v":6.010423951895575E-2},8.8717025433969032E-2]
[null,"Non-System Land",{"$f":"C7","v":0},0]
[null,"Overhead High Voltage Lines Rural",{"$f":"C11","v":0},0]
[null,null,{"$f":"SUM(C19:C26)","v":5.688199569074837},5.6522064380905412]
[null,null,{"$f":"ROUND(C12+C16,2)=ROUND(C27,2)","v":true},{"$f":"ROUND(D12+D16,2)=ROUND(D27,2)","v":true}]
[]
[null,"Corporate Capex",{"$f":"(C27-C23)*1000000","v":1093994.4460752695},1083333.7149086962]
[]
[null,"Linked to POW data and corporate OH allocation"]
[null,"Forecast Operational and Maintenance Expenditure ($m Real 2014-15)",{"$f":"'Master Data'!I$20","v":"2017-18"},{"$f":"'Master Data'!J$20","v":"2018-19"}]
[null,"Direct Excluding OH",2.11081589,2.1826862600000001]
[null,"OPEX Corporate Overheads",{"$f":"('Corporate OH'!D3/1000000)","v":0.55687560880397502},{"$f":"$C35/$C34*D34","v":0.57583645528913052}]
[]
[null,null,{"$f":"SUM(C34:C36)","v":2.667691498803975},2.7585227152891307]
[]
[null,"Corporate Overheads Per Light"]
[null,"Total Private",{"$f":"VLOOKUP($B40,Volumes!$B$33:$F$33,MATCH('Building Block'!C$33,Volumes!$B$4:$F$4,0),FALSE)","v":6329},{"$f":"VLOOKUP($B40,Volumes!$B$33:$F$33,MATCH('Building Block'!D$33,Volumes!$B$4:$F$4,0),FALSE)","v":6358}]
[]
[null,"Total Public Lighting",{"$f":"VLOOKUP($B42,Volumes!$B$80:$F$80,MATCH('Building Block'!C$33,Volumes!$B$4:$F$4,0),FALSE)","v":43293},{"$f":"VLOOKUP($B42,Volumes!$B$80:$F$80,MATCH('Building Block'!D$33,Volumes!$B$4:$F$4,0),FALSE)","v":43662}]
[null,"CAPEX Corporate Overheads",{"$f":"'Corporate OH'!E24","v":705065.98489550315},{"$f":"'Corporate OH'!E25","v":695898.85385438835}]
[null,{"$f":"Volumes!B84","v":"Total Lights"},{"$f":"VLOOKUP($B44,Volumes!$B$84:$F$84,MATCH('Building Block'!C$33,Volumes!$B$4:$F$4,0),FALSE)","v":49622},{"$f":"VLOOKUP($B44,Volumes!$B$84:$F$84,MATCH('Building Block'!D$33,Volumes!$B$4:$F$4,0),FALSE)","v":50020}]
[null,{"$f":"B35","v":"OPEX Corporate Overheads"},{"$f":"C35*1000000","v":556875.60880397505},575836.45528913056]
[null,"Annual Allocation"]
[]
[null,"Public Lighting Total rate",{"$f":"(C43/C42)+(C45/C44)","v":27.508265089316332},{"$f":"(D43/D42)+(D45/D44)","v":27.450442561572103}]
[null,"Private Contract Lighting Total rate",{"$f":"(C45/C44)","v":11.222353166014571},{"$f":"(D45/D44)","v":11.512124256080179},"Only opex maintenance"]
[]
[null,"Linked in from RFM for PTRM"]
[null,"Opening Regulatory Asset Base for 2017-18 ($m Nominal)","Opening Asset Value","Average Remaining Life (Year)","Standard Life (Year)","Opening Tax Value","Average Tax Remaining Life (Year)","Tax Standard Life (Year)"]
[null,"Spare Parts",0,"n/a",5,0,"n/a",0]
[null,"Motor Vehicles",224351.42137660165,3.7292569715400208,6,0.20597960918506175,3.7700335607701443,0]
[null,"Minor Assets",656030.6005379468,3.7442209457257203,5,0.6147183830657682,3.7817490180267668,0]
[null,"NEM Assets",242143.50836533992,1.8085282664607123,5,0.21974029326632483,1.8120083423816873,0]
[null,"Streetlights"]
[null,"Non System Property",145430.42258474225,44.24240169561083,40,0.13922780264631496,43.555786444800425,0]
[null,"Non-System Land",0,"n/a",0,0,"n/a",0]
[null,"Overhead High Voltage Lines Rural",466507.94639345008,18.585293013920541,35,0.3937744846615106,17.585293013920541,0]
[null,"Indirect POW Capex",0,0,40]

{"sheet":"Corporate OH","index":16,"n_rows":25,"n_cols":18,"rows_kept":25,"cut":false,"hidden":false,"merged":[[0,0,0,7],[2,0,2,2]]}
["OPEX Overheads to be Allocated (corporate and Shared Costs)"]
[]
["Annual Overheads to be Allocated",null,null,{"$f":"SUM(G8:G19)","v":556875.60880397505}]
[null,null,null,{"$error":"#REF!"},"Linked to database"]
["This data has been extracted from the step trend workpaper. The network direct overheads are applied to the various forms of control."]
[]
["WC Code","Form of Control","Labour","Material","Contractor","Other","Overheads","Total Including OH","Labour2","Material2","Contractor2","Other2","Total Network Opex","Total (Network Services + OH + Network opex)","inc Actual Provisions","RIN subsubsub category","Service Classification","RIN Sub Sub Sub Category Work Level Description"]
["RLDEC","Alternative Control Public Lighting",0,0,0,0,0,0,0,0,0,0,0,0,null,"Opex Alternative Control Public Lighting","Alternative Control","Alternative Control Public Lighting"]
["ROINW","Alternative Control Public Lighting",0,0,0,0,0,0,0,0,0,0,0,0,null,"Opex Alternative Control Public Lighting","Alternative Control","Alternative Control Public Lighting"]
["RLSAR","Alternative Control Public Lighting",0,0,0,0,0,0,0,0,0,0,0,0,null,"Opex Alternative Control Public Lighting","Alternative Control","Alternative Control Public Lighting"]
["RLREM","Alternative Control Public Lighting",291524.60369548551,90598.176380364341,28609.337040068502,43949.537948421996,498842.85399816936,953524.50906250975,0,0,0,0,0,953524.50906250975,null,"Opex Alternative Control Public Lighting","Alternative Control","Alternative Control Public Lighting"]
["RLPRA","Alternative Control Public Lighting",0,0,0,0,0,0,0,0,0,0,0,0,null,"Opex Alternative Control Public Lighting","Alternative Control","Alternative Control Public Lighting"]
["RLICM","Alternative Control Public Lighting",23517.886094801488,14883.520953928406,4050.1408962863866,1248.5395861901163,30016.576942341308,73716.664473547717,0,0,0,0,0,73716.664473547717,null,"Opex Alternative Control Public Lighting","Alternative Control","Alternative Control Public Lighting"]
["RLCLR","Alternative Control Public Lighting",0,0,0,0,0,0,0,0,0,0,0,0,null,"Opex Alternative Control Public Lighting","Alternative Control","Alternative Control Public Lighting"]
["RLCIM","Alternative Control Public Lighting",0,0,0,0,0,0,0,0,0,0,0,0,null,"Opex Alternative Control Public Lighting","Alternative Control","Alternative Control Public Lighting"]
["RLBLR","Alternative Control Public Lighting",36782.437392044085,285461.05678689858,2113404.6829169323,9946.5378358345934,28016.177863464334,2473610.8927951739,0,0,0,0,0,2473610.8927951739,null,"Opex Alternative Control Public Lighting","Alternative Control","Alternative Control Public Lighting"]
["REVPL","Alternative Control Public Lighting",0,0,0,0,0,0,0,0,0,0,0,0,null,"Opex Alternative Control Public Lighting","Alternative Control","Alternative Control Public Lighting"]
["INTPL","Alternative Control Public Lighting",0,0,0,0,0,0,0,0,0,0,0,0,null,"Opex Alternative Control Public Lighting","Alternative Control","Alternative Control Public Lighting"]
["DEPPL","Alternative Control Public Lighting",0,0,0,0,0,0,0,0,0,0,0,0,null,"Opex Alternative Control Public Lighting","Alternative Control","Alternative Control Public Lighting"]
[]
[]
[]
["DD17 CAPEX OH",null,"Amount","Internal Overheads","Capitalised Overheads (Real$)","Total Capex including Ohs and capitalised labour"]
["Financial Year 2017/18","Streetlighting",3586793.278976392,302345.85912767192,705065.98489550315,4594205.1229995675]
["Financial Year 2018/19","Streetlighting",3580219.8857313818,292753.98359607451,695898.85385438835,4568872.7231818447]

{"sheet":"Inputs","index":17,"n_rows":153,"n_cols":37,"rows_kept":153,"cut":false,"hidden":false,"merged":[[66,22,66,26],[66,32,66,36],[48,8,49,8],[66,8,66,14],[66,15,66,21],[66,27,66,31]]}
[]
[null,null,"Cost data Inputs"]
[]
[null,null,"Pre-tax Real WACC Rate",3.9947430244005266E-2]
[]
[null,null,"Warehousing costs",8.2000000000000003E-2]
[]
[null,null,"Asset Lives (yrs)"]
[null,null,"Luminaire Fitting Life",20]
[null,null,"Bracket Life",40]
[null,null,"PE Cell"]
[null,null,"LED",10]
[null,null,"Other",8]
[]
[null,null,"Maintenance life cycle"]
[null,null,"Lamp Maintenance"]
[null,null,"LED",20]
[null,null,"Other",4]
[]
[null,null,"Maintenance Life Cycle for allocations",20]
[]
[]
[null,"Public Lighting Installation Cost - includes Warehouse Handling Fee"]
[null,null,"Unit Rate (14/15 Dollars)","Linked to POW"]
[null,"CAPEX",null,"Linked Values","Static Values"]
[null,"RLMAJ","Replace luminaires - major (Bulk Replacement)",802,802,{"$f":"E26=D26","v":true}]
[null,"RLMIN","Replace luminaires – minor (Bulk Replacement)",572,572,{"$f":"E27=D27","v":true}]
[null,"OPEX","Road lighting - bulk lamp replacement program - minor",152,152,{"$f":"E28=D28","v":true}]
[null,null,"Road lighting - bulk lamp replacement program - major",220,220,{"$f":"E29=D29","v":true}]
[]
[null,null,"Unit Rates (2017-18 dollars)"]
[null,null,"Work Category Code",{"$f":"'Master Data'!I$20","v":"2017-18"}]
[null,{"$f":"B25","v":"CAPEX"},{"$f":"C26","v":"Replace luminaires - major (Bulk Replacement)"},{"$f":"E26*'Master Data'!$I$31","v":863.66628124999988}]
[null,null,{"$f":"C27","v":"Replace luminaires – minor (Bulk Replacement)"},{"$f":"E27*'Master Data'!$I$31","v":615.98143749999997}]
[null,{"$f":"B28","v":"OPEX"},{"$f":"C28","v":"Road lighting - bulk lamp replacement program - minor"},{"$f":"E28*'Master Data'!$I$31","v":163.68737499999997}]
[null,null,{"$f":"C29","v":"Road lighting - bulk lamp replacement program - major"},{"$f":"E29*'Master Data'!$I$31","v":236.91593749999998}]
[]
[null,null,"Capex - Replace luminaires ",null,"Labour","Material","Contractor","Plant ","Other","TOTAL"]
[null,null,"LMCO % Split of the Unit rate as per the POW",null,7.8525988756450255E-2,0.41610003436258308,0.4899100669484433,1.2064039155535729E-2,3.3998707769877156E-3,{"$f":"SUM(E39:I39)","v":1.0000000000000002}]
[null,"RLMAJ","LMCO $ Split of the Unit rate as per the POW",null,{"$f":"$D$33*E39","v":67.820248690762696},359.37156930592931,423.11880566830052,10.419303834315931,2.936353750691528,863.66628125000011,null,{"$f":"D33=J40","v":true}]
[]
[null,null,"LMCO % Split of the Unit rate as per the POW",null,5.1812368075973295E-2,0.62110874088906987,0.3170575702442906,9.9147093655318243E-3,1.0661142513439907E-4,{"$f":"SUM(E42:I42)","v":1}]
[null,"RLMIN","LMCO $ Split of the Unit rate as per the POW",null,{"$f":"$D$34*E42","v":31.915456967717137},382.59145505666424,195.30157788933533,6.1072769273750058,6.5670658908210763E-2,615.98143749999997,null,{"$f":"D34=J43","v":true}]
[]
[null,null,"Opex - Road lighting - bulk lamp replacement program",null,"Labour","Material","Contractor","Plant ","Other","TOTAL"]
[null,"RLBLR","LMCO % Split of the Unit rate as per the POW",null,6.3141025779726967E-2,0.19519230582888564,0.72606837559397741,1.5491451051644704E-2,1.0684174576533865E-4,{"$f":"SUM(E46:I46)","v":1}]
[null,"Minor","LMCO $ Split of the Unit rate as per the POW",null,{"$f":"$D$35*E46","v":10.335388764690833},31.950516161327485,118.84822647149221,2.5357549575847105,1.7488644904745648E-2,163.68737499999997,null,{"$f":"J47=D35","v":true}]
[null,"Major","LMCO $ Split of the Unit rate as per the POW",null,{"$f":"$D$36*E46","v":14.959115317315682},46.244168128237149,172.01716989294925,3.6701716491357659,2.5312512362131858E-2,236.91593749999998,null,{"$f":"J48=D36","v":true}]
[null,null,null,null,null,null,null,null,"Net of Materials",{"$f":"J47-F47","v":131.7368588386725}]
[null,"PE Cell cost to Purchase - Excluding Warehouse Handling Fee",null,null,null,null,null,null,null,{"$f":"J48-F48","v":190.67176937176282}]
[null,null,"Cost Per unit 2015/16 Contract Price"]
[null,"Raw cost from Contract",null,"Linked Values","Static Values"]
[null,"RLMAJ","Replacement of Photo Electric Cell Major Road",{"$f":"'Warehouse Pricing'!V55","v":15.647850640000001},15.647850640000001,{"$f":"E53=D53","v":true}]
[null,"RLMIN","Replacement of Photo Electric Cell Minor Road",{"$f":"'Warehouse Pricing'!V56","v":5.3725744166666676},5.3725744166666676,{"$f":"E54=D54","v":true}]
[null,"Inclusive of Warehouse Handling Fee"]
[null,null,null,{"$f":"D53*(1+$D$6)","v":16.930974392480003},16.930974392480003,{"$f":"E56=D56","v":true}]
[null,null,null,{"$f":"D54*(1+$D$6)","v":5.8131255188333348},5.8131255188333348,{"$f":"E57=D57","v":true}]
[]
[null,null,"Unit Rates (2017-18 dollars)"]
[null,null,"Work Category Code"]
[null,{"$f":"B53","v":"RLMAJ"},{"$f":"C53","v":"Replacement of Photo Electric Cell Major Road"},{"$f":"E56*'Master Data'!$I$33","v":17.788104971099301}]
[null,{"$f":"B54","v":"RLMIN"},{"$f":"C54","v":"Replacement of Photo Electric Cell Minor Road"},{"$f":"E57*'Master Data'!$I$33","v":6.1074149982242716}]
[]
[null,null,null,null,null,null,null,null,null,null,null,null,null,null,null,null,"Warehouse",null,null,null,null,null,null,"Warehouse"]
[null,null,null,null,null,null,null,null,null,null,null,null,null,null,null,null,"Index old",null,null,null,null,null,null,"Index old"]
[]
[null,null,null,null,null,"Link to file Nominal Wattage",null,null,"OPEX",null,null,null,null,null,null,"OPEX",null,null,null,null,null,null,"CAPEX",null,null,null,null,"Spare",null,null,null,null,"CAPEX"]
[null,null,"Light Description","Light type","FIXTC_CODE","Nominal Wattage","Number Lamps","Major/Minor size","PE Cell Maintenance Cycle","PE Cell UNIT price","PE Cell UNIT price Annualised Cost","PE Cell Service costs","PE Cell Service costs Annualised","20 year life cycle cost","PE Cell Annualised Cost","Lamp Maintenance cycle","Lamp UNIT price","Lamp UNIT price Annualised Cost","Lamp Service costs","Lamp Service costs Annualised","20 year life cycle cost","LAMP Annualised Cost","luminaire  Maintenance cycle","Luminaire UNIT price","CAPEX Installation costs","20 year life cycle cost","Lamp Annualised Cost","  Maintenance cycle","UNIT price","Service costs","20 year life cycle cost","Annualised Cost","Bracket  Maintenance cycle","Bracket UNIT price","Bracket Service costs","20 year life cycle cost","Bracket Annualised Cost"]
[null,1,"32W Compact Fluorescent","Compact Fluorescent 32","CFL_32",32,1,{"$f":"IF(F69>=100,\"RLMAJ\",\"RLMIN\")","v":"RLMIN"},{"$f":"IF(LEFT($D69,3)=\"LED\",$D$12,$D$13)","v":8},{"$f":"VLOOKUP(H69,$B$61:$D$62,3,FALSE)","v":6.1074149982242716},{"$f":"IFERROR((ROUNDDOWN((($D$20-0.1)/I69),0)*SUM(J69))/$D$20,0)","v":0.6107414998224272},{"$f":"IF(LEFT($D69,3)=\"LED\",IF($F69>=100,($J$48-$F$48),($J$47-$F$47)),\"NA included in Lamp cycle\")","v":"NA included in Lamp cycle"},{"$f":"IFERROR((ROUNDDOWN((($D$20-0.1)/I69),0)*SUM(L69))/$D$20,0)","v":0},{"$f":"IFERROR(ROUNDDOWN((($D$20-0.1)/I69),0)*SUM(J69,L69),0)","v":12.214829996448543},{"$f":"IFERROR(N69/$D$20,0)","v":0.6107414998224272},{"$f":"IF(LEFT($D69,3)=\"LED\",$D$17,$D$18)","v":4},{"$f":"'Warehouse Pricing'!$X$46*G69","v":5.4923198122346664},{"$f":"IFERROR((ROUNDDOWN((($D$20-0.1)/P69),0)*SUM(Q69))/$D$20,0)","v":1.0984639624469332},{"$f":"IF(LEFT($D69,3)=\"LED\",\"NA included in PE Cell cycle\",IF($F69>=100,($J$48-$F$48),($J$47-$F$47)))","v":131.7368588386725},{"$f":"IFERROR((ROUNDDOWN((($D$20-0.1)/P69),0)*SUM(S69))/$D$20,0)","v":26.347371767734501},{"$f":"IFERROR(ROUNDDOWN((($D$20-0.1)/P69),0)*SUM(Q69,S69),0)","v":548.91671460362863},{"$f":"IFERROR(U69/$D$20,0)","v":27.445835730181432},{"$f":"$D$9","v":20},{"$f":"'Warehouse Pricing'!$X$9","v":188.90717086145477},{"$f":"IF($F69>=100,($J$40-$F$40),($J$43-$F$43))","v":233.38998244333573},{"$f":"IFERROR(($D$20/W69)*SUM(X69:Y69),0)","v":422.29715330479053},{"$f":"IFERROR(Z69/$D$20,0)","v":21.114857665239526},null,null,null,{"$f":"IFERROR(($D$20/AB69)*SUM(AC69:AD69),0)","v":0},{"$f":"IFERROR(AE69/$D$20,0)","v":0},{"$f":"$D$10","v":40},{"$f":"IFERROR(VLOOKUP(E69,'Bracket Summary'!$A$74:$B$117,2,FALSE),VLOOKUP(E69,'Bracket Summary'!$B$43:$V$68,MATCH('Bracket Summary'!$V$43,'Bracket Summary'!$B$43:$V$43,0),FALSE))","v":74.363169923970332},"NA included in Luminaire",{"$f":"IFERROR(($D$20/AG69)*SUM(AH69:AI69),0)","v":37.181584961985166},{"$f":"IFERROR(AJ69/$D$20,0)","v":1.8590792480992584}]
[null,{"$f":"IF(C70=\"\",\"\",IF(C69=\"\",IF(C68=\"\",IF(C67=\"\",IF(C66=\"\",\"Error\",B66+1),B67+1),B68+1),B69+1))","v":2},"42W Compact Fluorescent","Compact Fluorescent 42","CFL_42",42,1,{"$f":"IF(F70>=100,\"RLMAJ\",\"RLMIN\")","v":"RLMIN"},{"$f":"IF(LEFT($D70,3)=\"LED\",$D$12,$D$13)","v":8},{"$f":"VLOOKUP(H70,$B$61:$D$62,3,FALSE)","v":6.1074149982242716},{"$f":"IFERROR((ROUNDDOWN((($D$20-0.1)/I70),0)*SUM(J70))/$D$20,0)","v":0.6107414998224272},"NA included in Lamp cycle",0,{"$f":"IFERROR(ROUNDDOWN((($D$20-0.1)/I70),0)*SUM(J70,L70),0)","v":12.214829996448543},{"$f":"IFERROR(N70/$D$20,0)","v":0.6107414998224272},4,{"$f":"'Warehouse Pricing'!$X$46*G70","v":5.4923198122346664},{"$f":"IFERROR((ROUNDDOWN((($D$20-0.1)/P70),0)*SUM(Q70))/$D$20,0)","v":1.0984639624469332},{"$f":"IF(LEFT($D70,3)=\"LED\",\"NA included in PE Cell cycle\",IF($F70>=100,($J$48-$F$48),($J$47-$F$47)))","v":131.7368588386725},{"$f":"IFERROR((ROUNDDOWN((($D$20-0.1)/P70),0)*SUM(S70))/$D$20,0)","v":26.347371767734501},{"$f":"IFERROR(ROUNDDOWN((($D$20-0.1)/P70),0)*SUM(Q70,S70),0)","v":548.91671460362863},{"$f":"IFERROR(U70/$D$20,0)","v":27.445835730181432},{"$f":"$D$9","v":20},{"$f":"'Warehouse Pricing'!$X$9","v":188.90717086145477},{"$f":"IF($F70>=100,($J$40-$F$40),($J$43-$F$43))","v":233.38998244333573},{"$f":"IFERROR(($D$20/W70)*SUM(X70:Y70),0)","v":422.29715330479053},{"$f":"IFERROR(Z70/$D$20,0)","v":21.114857665239526},null,null,null,{"$f":"IFERROR(($D$20/AB70)*SUM(AC70:AD70),0)","v":0},{"$f":"IFERROR(AE70/$D$20,0)","v":0},{"$f":"$D$10","v":40},{"$f":"IFERROR(VLOOKUP(E70,'Bracket Summary'!$A$74:$B$117,2,FALSE),VLOOKUP(E70,'Bracket Summary'!$B$43:$V$68,MATCH('Bracket Summary'!$V$43,'Bracket Summary'!$B$43:$V$43,0),FALSE))","v":76.111939031891239},"NA included in Luminaire",{"$f":"IFERROR(($D$20/AG70)*SUM(AH70:AI70),0)","v":38.05596951594562},{"$f":"IFERROR(AJ70/$D$20,0)","v":1.9027984757972809}]
[null,{"$f":"IF(C71=\"\",\"\",IF(C70=\"\",IF(C69=\"\",IF(C68=\"\",IF(C67=\"\",\"Error\",B67+1),B68+1),B69+1),B70+1))","v":3},"42W Compact Fluorescent - Bottom Pole Entry",null,"CFL_42",42,1,{"$f":"IF(F71>=100,\"RLMAJ\",\"RLMIN\")","v":"RLMIN"},{"$f":"IF(LEFT($D71,3)=\"LED\",$D$12,$D$13)","v":8},{"$f":"VLOOKUP(H71,$B$61:$D$62,3,FALSE)","v":6.1074149982242716},0.6107414998224272,"NA included in Lamp cycle",0,12.214829996448543,{"$f":"IFERROR(N71/$D$20,0)","v":0.6107414998224272},4,{"$f":"'Warehouse Pricing'!$X$46*G71","v":5.4923198122346664},1.0984639624469332,131.7368588386725,26.347371767734501,{"$f":"IFERROR(ROUNDDOWN((($D$20-0.1)/P71),0)*SUM(Q71:S71),0)","v":553.3105704534164},{"$f":"IFERROR(U71/$D$20,0)","v":27.665528522670819},{"$f":"$D$9","v":20},{"$f":"'Warehouse Pricing'!$X$9","v":188.90717086145477},{"$f":"IF($F71>=100,($J$40-$F$40),($J$43-$F$43))","v":233.38998244333573},{"$f":"IFERROR(($D$20/W71)*SUM(X71:Y71),0)","v":422.29715330479053},{"$f":"IFERROR(Z71/$D$20,0)","v":21.114857665239526},null,null,null,{"$f":"IFERROR(($D$20/AB71)*SUM(AC71:AD71),0)","v":0},{"$f":"IFERROR(AE71/$D$20,0)","v":0},{"$f":"$D$10","v":40},{"$f":"IFERROR(VLOOKUP(E71,'Bracket Summary'!$A$74:$B$117,2,FALSE),VLOOKUP(E71,'Bracket Summary'!$B$43:$V$68,MATCH('Bracket Summary'!$V$43,'Bracket Summary'!$B$43:$V$43,0),FALSE))","v":76.111939031891239},"NA included in Luminaire",{"$f":"IFERROR(($D$20/AG71)*SUM(AH71:AI71),0)","v":38.05596951594562},{"$f":"IFERROR(AJ71/$D$20,0)","v":1.9027984757972809}]
[null,4,"2x24W Compact Fluorescent","Compact Fluorescent 2x24","CFL_24x2",42,2,"RLMIN",8,6.1074149982242716,0.6107414998224272,"NA included in Lamp cycle",0,12.214829996448543,0.6107414998224272,4,{"$f":"'Warehouse Pricing'!$X$46*G72","v":10.984639624469333},2.1969279248938665,131.7368588386725,26.347371767734501,579.67370555214279,28.98368527760714,20,{"$f":"'Warehouse Pricing'!$X$9","v":188.90717086145477},233.38998244333573,{"$f":"IFERROR(($D$20/W72)*SUM(X72:Y72),0)","v":422.29715330479053},{"$f":"IFERROR(Z72/$D$20,0)","v":21.114857665239526},null,null,null,0,0,40,{"$f":"IFERROR(VLOOKUP(E72,'Bracket Summary'!$A$74:$B$117,2,FALSE),VLOOKUP(E72,'Bracket Summary'!$B$43:$V$68,MATCH('Bracket Summary'!$V$43,'Bracket Summary'!$B$43:$V$43,0),FALSE))","v":76.105232343078498},"NA included in Luminaire",38.052616171539249,1.9026308085769625]
[null,5,"1x20W Fluorescent","Fluorescent 1x20","FL_1X20",20,1,"RLMIN",{"$f":"IF(LEFT($D73,3)=\"LED\",$D$12,$D$13)","v":8},{"$f":"VLOOKUP(H73,$B$61:$D$62,3,FALSE)","v":6.1074149982242716},0.6107414998224272,"NA included in Lamp cycle",0,12.214829996448543,0.6107414998224272,4,{"$f":"'Old Prices Indexed'!$I$19*G73","v":5.3005408937668808},1.0601081787533762,131.7368588386725,26.347371767734501,552.39003164477106,{"$f":"IFERROR(U73/$D$20,0)","v":27.619501582238552},20,{"$f":"'Old Prices Indexed'!$K$19","v":266.35525447146898},233.38998244333573,499.74523691480471,{"$f":"IFERROR(Z73/$D$20,0)","v":24.987261845740235},null,null,null,0,0,40,{"$f":"IFERROR(VLOOKUP(E73,'Bracket Summary'!$A$74:$B$117,2,FALSE),VLOOKUP(E73,'Bracket Summary'!$B$43:$V$68,MATCH('Bracket Summary'!$V$43,'Bracket Summary'!$B$43:$V$43,0),FALSE))","v":105.08961860783307},"NA included in Luminaire",52.544809303916537,2.6272404651958268]
[null,6,"1x40W Fluorescent","Fluorescent 1x40","FL_1X40",40,1,"RLMIN",8,6.1074149982242716,0.6107414998224272,"NA included in Lamp cycle",0,12.214829996448543,{"$f":"IFERROR(N74/$D$20,0)","v":0.6107414998224272},4,{"$f":"'Old Prices Indexed'!$I$21*G74","v":5.6448915782807392},1.1289783156561479,131.7368588386725,26.347371767734501,554.04291493043752,27.702145746521875,20,{"$f":"'Old Prices Indexed'!$K$21","v":208.70111129286309},233.38998244333573,{"$f":"IFERROR(($D$20/W74)*SUM(X74:Y74),0)","v":442.09109373619879},{"$f":"IFERROR(Z74/$D$20,0)","v":22.104554686809941},null,null,null,0,0,{"$f":"$D$10","v":40},{"$f":"IFERROR(VLOOKUP(E74,'Bracket Summary'!$A$74:$B$117,2,FALSE),VLOOKUP(E74,'Bracket Summary'!$B$43:$V$68,MATCH('Bracket Summary'!$V$43,'Bracket Summary'!$B$43:$V$43,0),FALSE))","v":105.08961860783307},"NA included in Luminaire",52.544809303916537,2.6272404651958268]
[null,7,"2x20W Fluorescent","Fluorescent 2X20","FL_2X20",40,2,"RLMIN",8,6.1074149982242716,0.6107414998224272,"NA included in Lamp cycle",0,12.214829996448543,0.6107414998224272,4,{"$f":"'Old Prices Indexed'!$I$19*G75","v":10.601081787533762},2.1202163575067523,131.7368588386725,26.347371767734501,577.8326279348521,28.891631396742603,20,{"$f":"'Old Prices Indexed'!$K$19","v":266.35525447146898},233.38998244333573,499.74523691480471,{"$f":"IFERROR(Z75/$D$20,0)","v":24.987261845740235},null,null,null,0,0,{"$f":"$D$10","v":40},{"$f":"IFERROR(VLOOKUP(E75,'Bracket Summary'!$A$74:$B$117,2,FALSE),VLOOKUP(E75,'Bracket Summary'!$B$43:$V$68,MATCH('Bracket Summary'!$V$43,'Bracket Summary'!$B$43:$V$43,0),FALSE))","v":105.08961860783307},"NA included in Luminaire",52.544809303916537,2.6272404651958268]
[null,8,"2x24W Fluorescent","Fluorescent 2X24","FL_2X24",48,2,"RLMIN",8,6.1074149982242716,0.6107414998224272,"NA included in Lamp cycle",0,12.214829996448543,0.6107414998224272,4,{"$f":"'Warehouse Pricing'!X47*G76","v":7.185023141278001},1.4370046282556002,131.7368588386725,26.347371767734501,561.43554643282437,28.071777321641218,20,{"$f":"'Old Prices Indexed'!$K$20","v":271.65579536523586},233.38998244333573,505.04577780857159,{"$f":"IFERROR(Z76/$D$20,0)","v":25.252288890428581},null,null,null,0,0,{"$f":"$D$10","v":40},{"$f":"IFERROR(VLOOKUP(E76,'Bracket Summary'!$A$74:$B$117,2,FALSE),VLOOKUP(E76,'Bracket Summary'!$B$43:$V$68,MATCH('Bracket Summary'!$V$43,'Bracket Summary'!$B$43:$V$43,0),FALSE))","v":105.08961860783307},"NA included in Luminaire",52.544809303916537,2.6272404651958268]
[null,9,"T5 Fluorescent 2 x 24W",null,"FL_2X24",48,2,"RLMIN",8,6.1074149982242716,0.6107414998224272,"NA included in Lamp cycle",0,12.214829996448543,0.6107414998224272,4,{"$f":"'Old Prices Indexed'!$I$19*G77","v":10.601081787533762},2.1202163575067523,131.7368588386725,26.347371767734501,577.8326279348521,{"$f":"IFERROR(U77/$D$20,0)","v":28.891631396742603},{"$f":"$D$9","v":20},{"$f":"'Old Prices Indexed'!$K$19","v":266.35525447146898},233.38998244333573,{"$f":"IFERROR(($D$20/W77)*SUM(X77:Y77),0)","v":499.74523691480471},{"$f":"IFERROR(Z77/$D$20,0)","v":24.987261845740235},null,null,null,0,0,{"$f":"$D$10","v":40},{"$f":"IFERROR(VLOOKUP(E77,'Bracket Summary'!$A$74:$B$117,2,FALSE),VLOOKUP(E77,'Bracket Summary'!$B$43:$V$68,MATCH('Bracket Summary'!$V$43,'Bracket Summary'!$B$43:$V$43,0),FALSE))","v":105.08961860783307},"NA included in Luminaire",52.544809303916537,2.6272404651958268]
[null,10,"20 Fluorescent 1X20FL",null,"FL_1X20",20,1,"RLMIN",8,6.1074149982242716,0.6107414998224272,"NA included in Lamp cycle",0,12.214829996448543,0.6107414998224272,4,{"$f":"'Old Prices Indexed'!$I$19*G78","v":5.3005408937668808},1.0601081787533762,131.7368588386725,26.347371767734501,552.39003164477106,27.619501582238552,20,{"$f":"'Old Prices Indexed'!$K$19","v":266.35525447146898},233.38998244333573,499.74523691480471,{"$f":"IFERROR(Z78/$D$20,0)","v":24.987261845740235},null,null,null,0,0,40,{"$f":"IFERROR(VLOOKUP(E78,'Bracket Summary'!$A$74:$B$117,2,FALSE),VLOOKUP(E78,'Bracket Summary'!$B$43:$V$68,MATCH('Bracket Summary'!$V$43,'Bracket Summary'!$B$43:$V$43,0),FALSE))","v":105.08961860783307},"NA included in Luminaire",52.544809303916537,{"$f":"IFERROR(AJ78/$D$20,0)","v":2.6272404651958268}]
[null,11,"2x40W Fluorescent","Fluorescent 2x40","FL_2X40",80,2,"RLMIN",8,6.1074149982242716,0.6107414998224272,"NA included in Lamp cycle",0,12.214829996448543,0.6107414998224272,4,{"$f":"'Old Prices Indexed'!$I$21*G79","v":11.289783156561478},2.2579566313122958,131.7368588386725,26.347371767734501,581.13839450618514,29.056919725309257,{"$f":"$D$9","v":20},{"$f":"'Old Prices Indexed'!$K$21","v":208.70111129286309},233.38998244333573,442.09109373619879,{"$f":"IFERROR(Z79/$D$20,0)","v":22.104554686809941},null,null,null,0,0,{"$f":"$D$10","v":40},{"$f":"IFERROR(VLOOKUP(E79,'Bracket Summary'!$A$74:$B$117,2,FALSE),VLOOKUP(E79,'Bracket Summary'!$B$43:$V$68,MATCH('Bracket Summary'!$V$43,'Bracket Summary'!$B$43:$V$43,0),FALSE))","v":105.08961860783307},"NA included in Luminaire",52.544809303916537,2.6272404651958268]
[null,12,"3x40W Fluorescent","Fluorescent 3x40","FL_3X40",120,3,"RLMAJ",8,17.788104971099301,1.7788104971099301,"NA included in Lamp cycle",0,35.576209942198602,1.7788104971099301,4,{"$f":"'Old Prices Indexed'!$I$21*G80","v":16.934674734842218},3.3869349469684438,190.67176937176282,38.134353874352563,843.97351621429391,42.198675810714697,20,{"$f":"'Old Prices Indexed'!$K$21","v":208.70111129286309},504.2947119440708,712.99582323693392,35.649791161846693,null,null,null,0,0,40,{"$f":"IFERROR(VLOOKUP(E80,'Bracket Summary'!$A$74:$B$117,2,FALSE),VLOOKUP(E80,'Bracket Summary'!$B$43:$V$68,MATCH('Bracket Summary'!$V$43,'Bracket Summary'!$B$43:$V$43,0),FALSE))","v":105.08961860783307},"NA included in Luminaire",52.544809303916537,2.6272404651958268]
[null,13,"4x20 Fluorescent","Fluorescent 4x20","FL_4X20",80,4,"RLMIN",8,6.1074149982242716,0.6107414998224272,"NA included in Lamp cycle",0,12.214829996448543,0.6107414998224272,4,{"$f":"'Old Prices Indexed'!$I$19*G81","v":21.202163575067523},4.2404327150135046,131.7368588386725,26.347371767734501,628.71782051501418,31.43589102575071,20,{"$f":"'Old Prices Indexed'!$K$19","v":266.35525447146898},233.38998244333573,499.74523691480471,24.987261845740235,null,null,null,0,0,40,{"$f":"IFERROR(VLOOKUP(E81,'Bracket Summary'!$A$74:$B$117,2,FALSE),VLOOKUP(E81,'Bracket Summary'!$B$43:$V$68,MATCH('Bracket Summary'!$V$43,'Bracket Summary'!$B$43:$V$43,0),FALSE))","v":105.08961860783307},"NA included in Luminaire",52.544809303916537,2.6272404651958268]
[null,14,"4x40W Fluorescent","Fluorescent 4x40","FL_4X40",160,4,"RLMAJ",8,17.788104971099301,1.7788104971099301,"NA included in Lamp cycle",0,35.576209942198602,1.7788104971099301,4,{"$f":"'Old Prices Indexed'!$I$21*G82","v":22.579566313122957},4.5159132626245917,190.67176937176282,38.134353874352563,871.06899579004153,43.553449789502075,20,{"$f":"'Old Prices Indexed'!$K$19","v":266.35525447146898},504.2947119440708,770.64996641553978,38.532498320776988,null,null,null,0,0,40,{"$f":"IFERROR(VLOOKUP(E82,'Bracket Summary'!$A$74:$B$117,2,FALSE),VLOOKUP(E82,'Bracket Summary'!$B$43:$V$68,MATCH('Bracket Summary'!$V$43,'Bracket Summary'!$B$43:$V$43,0),FALSE))","v":105.08961860783307},"NA included in Luminaire",52.544809303916537,2.6272404651958268]
[null,15,"100W Sodium Vapour","High Pressure Sodium (elliptical) 100","HPS_100_E",100,1,"RLMAJ",8,17.788104971099301,1.7788104971099301,"NA included in Lamp cycle",0,35.576209942198602,1.7788104971099301,4,{"$f":"'Warehouse Pricing'!$X$40*G83","v":18.267007986299998},3.6534015972599994,190.67176937176282,38.134353874352563,850.36871582129129,42.518435791064562,20,{"$f":"'Warehouse Pricing'!$X$14","v":154.95463481311108},504.2947119440708,659.24934675718191,32.962467337859096,null,null,null,0,0,40,{"$f":"IFERROR(VLOOKUP(E83,'Bracket Summary'!$A$74:$B$117,2,FALSE),VLOOKUP(E83,'Bracket Summary'!$B$43:$V$68,MATCH('Bracket Summary'!$V$43,'Bracket Summary'!$B$43:$V$43,0),FALSE))","v":95.338965387721842},"NA included in Luminaire",47.669482693860921,2.3834741346930461]
[null,"",null,"High Pressure Sodium (tubular) 100","HPS_100_T",100,1,"RLMAJ",8,17.788104971099301,1.7788104971099301,"NA included in Lamp cycle",0,35.576209942198602,1.7788104971099301,4,{"$f":"'Warehouse Pricing'!$X$40*G84","v":18.267007986299998},3.6534015972599994,190.67176937176282,38.134353874352563,850.36871582129129,42.518435791064562,20,{"$f":"'Warehouse Pricing'!$X$14","v":154.95463481311108},504.2947119440708,659.24934675718191,32.962467337859096,null,null,null,0,0,40,{"$f":"IFERROR(VLOOKUP(E84,'Bracket Summary'!$A$74:$B$117,2,FALSE),VLOOKUP(E84,'Bracket Summary'!$B$43:$V$68,MATCH('Bracket Summary'!$V$43,'Bracket Summary'!$B$43:$V$43,0),FALSE))","v":95.338965387721842},"NA included in Luminaire",47.669482693860921,2.3834741346930461]
[null,16,"150W Sodium Vapour","High Pressure Sodium (elliptical) 150","HPS_150_E",150,1,"RLMAJ",8,17.788104971099301,1.7788104971099301,"NA included in Lamp cycle",0,35.576209942198602,1.7788104971099301,4,{"$f":"'Warehouse Pricing'!$X$41*G85","v":18.197841645381001},3.6395683290762002,190.67176937176282,38.134353874352563,850.03671738488015,42.501835869244005,20,{"$f":"'Warehouse Pricing'!$X$16","v":216.87186514812163},504.2947119440708,721.16657709219248,36.058328854609627,null,null,null,0,0,40,{"$f":"IFERROR(VLOOKUP(E85,'Bracket Summary'!$A$74:$B$117,2,FALSE),VLOOKUP(E85,'Bracket Summary'!$B$43:$V$68,MATCH('Bracket Summary'!$V$43,'Bracket Summary'!$B$43:$V$43,0),FALSE))","v":164.11499074301554},"NA included in Luminaire",82.05749537150777,4.1028747685753881]
[null,"",null,"High Pressure Sodium (tubular) 150","HPS_150_T",150,1,"RLMAJ",8,17.788104971099301,1.7788104971099301,"NA included in Lamp cycle",0,35.576209942198602,1.7788104971099301,4,{"$f":"'Warehouse Pricing'!$X$41*G86","v":18.197841645381001},3.6395683290762002,190.67176937176282,38.134353874352563,850.03671738488015,42.501835869244005,20,{"$f":"'Warehouse Pricing'!$X$16","v":216.87186514812163},504.2947119440708,721.16657709219248,36.058328854609627,null,null,null,0,0,40,{"$f":"IFERROR(VLOOKUP(E86,'Bracket Summary'!$A$74:$B$117,2,FALSE),VLOOKUP(E86,'Bracket Summary'!$B$43:$V$68,MATCH('Bracket Summary'!$V$43,'Bracket Summary'!$B$43:$V$43,0),FALSE))","v":164.11499074301554},"NA included in Luminaire",82.05749537150777,4.1028747685753881]
[null,"",null,"High Pres Sodium (tubular - dbl arc) 150","HPS_150_TDA",150,1,"RLMAJ",8,17.788104971099301,1.7788104971099301,"NA included in Lamp cycle",0,35.576209942198602,1.7788104971099301,4,{"$f":"'Warehouse Pricing'!$X$41*G87","v":18.197841645381001},3.6395683290762002,190.67176937176282,38.134353874352563,850.03671738488015,42.501835869244005,20,{"$f":"'Warehouse Pricing'!$X$16","v":216.87186514812163},504.2947119440708,721.16657709219248,36.058328854609627,null,null,null,0,0,40,{"$f":"IFERROR(VLOOKUP(E87,'Bracket Summary'!$A$74:$B$117,2,FALSE),VLOOKUP(E87,'Bracket Summary'!$B$43:$V$68,MATCH('Bracket Summary'!$V$43,'Bracket Summary'!$B$43:$V$43,0),FALSE))","v":164.11499074301554},"NA included in Luminaire",82.05749537150777,4.1028747685753881]
[null,"",null,"High Pres Sodium (tubular - self ig) 150","HPS_150_TSI",150,1,"RLMAJ",8,17.788104971099301,1.7788104971099301,"NA included in Lamp cycle",0,35.576209942198602,1.7788104971099301,4,{"$f":"'Warehouse Pricing'!$X$41*G88","v":18.197841645381001},3.6395683290762002,190.67176937176282,38.134353874352563,850.03671738488015,42.501835869244005,20,{"$f":"'Warehouse Pricing'!$X$16","v":216.87186514812163},504.2947119440708,721.16657709219248,36.058328854609627,null,null,null,0,0,40,{"$f":"IFERROR(VLOOKUP(E88,'Bracket Summary'!$A$74:$B$117,2,FALSE),VLOOKUP(E88,'Bracket Summary'!$B$43:$V$68,MATCH('Bracket Summary'!$V$43,'Bracket Summary'!$B$43:$V$43,0),FALSE))","v":164.11499074301554},"NA included in Luminaire",82.05749537150777,4.1028747685753881]
[null,17,"250W Sodium Vapour","High Pressure Sodium (elliptical) 250","HPS_250_E",250,1,"RLMAJ",8,17.788104971099301,1.7788104971099301,"NA included in Lamp cycle",0,35.576209942198602,1.7788104971099301,4,{"$f":"'Warehouse Pricing'!$X$42*G89","v":20.464221641092252},4.0928443282184501,190.67176937176282,38.134353874352563,860.91534136429414,43.045767068214708,20,{"$f":"'Warehouse Pricing'!$Y$19","v":231.9979734325857},504.2947119440708,736.29268537665644,36.814634268832819,null,null,null,0,0,40,{"$f":"IFERROR(VLOOKUP(E89,'Bracket Summary'!$A$74:$B$117,2,FALSE),VLOOKUP(E89,'Bracket Summary'!$B$43:$V$68,MATCH('Bracket Summary'!$V$43,'Bracket Summary'!$B$43:$V$43,0),FALSE))","v":210.59681775558886},"NA included in Luminaire",105.29840887779443,5.2649204438897215]
[null,"",null,"High Pressure Sodium (tubular) 250","HPS_250_T",250,1,"RLMAJ",8,17.788104971099301,1.7788104971099301,"NA included in Lamp cycle",0,35.576209942198602,1.7788104971099301,4,{"$f":"'Warehouse Pricing'!$X$42*G90","v":20.464221641092252},4.0928443282184501,190.67176937176282,38.134353874352563,860.91534136429414,43.045767068214708,20,{"$f":"'Warehouse Pricing'!$Y$19","v":231.9979734325857},504.2947119440708,736.29268537665644,36.814634268832819,null,null,null,0,0,40,{"$f":"IFERROR(VLOOKUP(E90,'Bracket Summary'!$A$74:$B$117,2,FALSE),VLOOKUP(E90,'Bracket Summary'!$B$43:$V$68,MATCH('Bracket Summary'!$V$43,'Bracket Summary'!$B$43:$V$43,0),FALSE))","v":210.59681775558886},"NA included in Luminaire",105.29840887779443,5.2649204438897215]
[null,"",null,"High Pres Sodium (tubular - dbl arc) 250","HPS_250_TDA",250,1,"RLMAJ",8,17.788104971099301,1.7788104971099301,"NA included in Lamp cycle",0,35.576209942198602,1.7788104971099301,4,{"$f":"'Warehouse Pricing'!$X$42*G91","v":20.464221641092252},4.0928443282184501,190.67176937176282,38.134353874352563,860.91534136429414,43.045767068214708,20,{"$f":"'Warehouse Pricing'!$Y$19","v":231.9979734325857},504.2947119440708,736.29268537665644,36.814634268832819,null,null,null,0,0,40,{"$f":"IFERROR(VLOOKUP(E91,'Bracket Summary'!$A$74:$B$117,2,FALSE),VLOOKUP(E91,'Bracket Summary'!$B$43:$V$68,MATCH('Bracket Summary'!$V$43,'Bracket Summary'!$B$43:$V$43,0),FALSE))","v":210.59681775558886},"NA included in Luminaire",105.29840887779443,5.2649204438897215]
[null,"",null,"High Pres Sodium (tubular - self ig) 250","HPS_250_TSI",250,1,{"$f":"IF(F92>=100,\"RLMAJ\",\"RLMIN\")","v":"RLMAJ"},8,17.788104971099301,1.7788104971099301,"NA included in Lamp cycle",{"$f":"IFERROR((ROUNDDOWN((($D$20-0.1)/I92),0)*SUM(L92))/$D$20,0)","v":0},35.576209942198602,1.7788104971099301,4,{"$f":"'Warehouse Pricing'!$X$42*G92","v":20.464221641092252},4.0928443282184501,190.67176937176282,38.134353874352563,860.91534136429414,43.045767068214708,20,{"$f":"'Warehouse Pricing'!$Y$19","v":231.9979734325857},504.2947119440708,736.29268537665644,36.814634268832819,null,null,null,0,0,40,{"$f":"IFERROR(VLOOKUP(E92,'Bracket Summary'!$A$74:$B$117,2,FALSE),VLOOKUP(E92,'Bracket Summary'!$B$43:$V$68,MATCH('Bracket Summary'!$V$43,'Bracket Summary'!$B$43:$V$43,0),FALSE))","v":210.59681775558886},"NA included in Luminaire",105.29840887779443,5.2649204438897215]
[null,{"$f":"IF(C93=\"\",\"\",IF(C92=\"\",IF(C91=\"\",IF(C90=\"\",IF(C89=\"\",\"Error\",B89+1),B90+1),B91+1),B92+1))","v":18},"250W Sodium Vapour - Flood Light",null,"HPS_250_FL",250,1,"RLMAJ",8,17.788104971099301,1.7788104971099301,"NA included in Lamp cycle",0,35.576209942198602,1.7788104971099301,4,{"$f":"'Warehouse Pricing'!$X$42*G93","v":20.464221641092252},4.0928443282184501,190.67176937176282,38.134353874352563,860.91534136429414,43.045767068214708,20,{"$f":"'Warehouse Pricing'!X30","v":418.87977485833363},504.2947119440708,923.17448680240443,46.158724340120223,null,null,null,0,0,40,{"$f":"IFERROR(VLOOKUP(E93,'Bracket Summary'!$A$74:$B$117,2,FALSE),VLOOKUP(E93,'Bracket Summary'!$B$43:$V$68,MATCH('Bracket Summary'!$V$43,'Bracket Summary'!$B$43:$V$43,0),FALSE))","v":210.59681775558886},"NA included in Luminaire",105.29840887779443,5.2649204438897215]
[null,{"$f":"IF(C94=\"\",\"\",IF(C93=\"\",IF(C92=\"\",IF(C91=\"\",IF(C90=\"\",\"Error\",B90+1),B91+1),B92+1),B93+1))","v":19},"400W Sodium Vapour","High Pressure Sodium (tubular) 400","HPS_400_T",400,1,"RLMAJ",8,17.788104971099301,1.7788104971099301,"NA included in Lamp cycle",0,35.576209942198602,1.7788104971099301,4,{"$f":"'Warehouse Pricing'!$X$43*G94","v":21.232440957538749},4.2464881915077495,190.67176937176282,38.134353874352563,864.60279408323731,43.230139704161864,{"$f":"$D$9","v":20},{"$f":"'Warehouse Pricing'!$Y$21","v":308.13100043947838},504.2947119440708,812.42571238354913,{"$f":"IFERROR(Z94/$D$20,0)","v":40.621285619177456},null,null,null,0,0,{"$f":"$D$10","v":40},{"$f":"IFERROR(VLOOKUP(E94,'Bracket Summary'!$A$74:$B$117,2,FALSE),VLOOKUP(E94,'Bracket Summary'!$B$43:$V$68,MATCH('Bracket Summary'!$V$43,'Bracket Summary'!$B$43:$V$43,0),FALSE))","v":151.9249889764759},"NA included in Luminaire",75.962494488237951,3.7981247244118976]
[null,"",null,"High Pres Sodium (tubular - dbl arc) 400","HPS_400_TDA",400,1,"RLMAJ",8,17.788104971099301,1.7788104971099301,"NA included in Lamp cycle",0,35.576209942198602,1.7788104971099301,4,{"$f":"'Warehouse Pricing'!$X$43*G95","v":21.232440957538749},4.2464881915077495,190.67176937176282,38.134353874352563,864.60279408323731,43.230139704161864,{"$f":"$D$9","v":20},{"$f":"'Warehouse Pricing'!$Y$21","v":308.13100043947838},504.2947119440708,812.42571238354913,{"$f":"IFERROR(Z95/$D$20,0)","v":40.621285619177456},null,null,null,0,0,{"$f":"$D$10","v":40},{"$f":"IFERROR(VLOOKUP(E95,'Bracket Summary'!$A$74:$B$117,2,FALSE),VLOOKUP(E95,'Bracket Summary'!$B$43:$V$68,MATCH('Bracket Summary'!$V$43,'Bracket Summary'!$B$43:$V$43,0),FALSE))","v":151.9249889764759},"NA included in Luminaire",75.962494488237951,3.7981247244118976]
[null,20,"400W Sodium Vapour - Flood Light",null,"HPS_400_FL",400,1,"RLMAJ",8,17.788104971099301,1.7788104971099301,"NA included in Lamp cycle",0,35.576209942198602,1.7788104971099301,4,{"$f":"'Warehouse Pricing'!$X$43*G96","v":21.232440957538749},4.2464881915077495,190.67176937176282,38.134353874352563,864.60279408323731,43.230139704161864,20,{"$f":"'Warehouse Pricing'!X31","v":431.38642868220512},504.2947119440708,935.68114062627592,{"$f":"IFERROR(Z96/$D$20,0)","v":46.784057031313793},null,null,null,0,0,40,{"$f":"IFERROR(VLOOKUP(E96,'Bracket Summary'!$A$74:$B$117,2,FALSE),VLOOKUP(E96,'Bracket Summary'!$B$43:$V$68,MATCH('Bracket Summary'!$V$43,'Bracket Summary'!$B$43:$V$43,0),FALSE))","v":151.9249889764759},"NA included in Luminaire",75.962494488237951,3.7981247244118976]
[null,21,"70W Sodium Vapour","High Pressure Sodium (elliptical) 70","HPS_70_E",70,1,"RLMIN",8,6.1074149982242716,0.6107414998224272,"NA included in Lamp cycle",0,12.214829996448543,0.6107414998224272,4,{"$f":"'Warehouse Pricing'!$X$39*G97","v":9.1046846844337512},1.8209369368867503,131.7368588386725,26.347371767734501,570.64992183997197,28.532496091998599,{"$f":"$D$9","v":20},{"$f":"'Warehouse Pricing'!$Y$13","v":161.14461304191406},233.38998244333573,394.53459548524978,{"$f":"IFERROR(Z97/$D$20,0)","v":19.726729774262488},null,null,null,0,0,{"$f":"$D$10","v":40},{"$f":"IFERROR(VLOOKUP(E97,'Bracket Summary'!$A$74:$B$117,2,FALSE),VLOOKUP(E97,'Bracket Summary'!$B$43:$V$68,MATCH('Bracket Summary'!$V$43,'Bracket Summary'!$B$43:$V$43,0),FALSE))","v":92.17934605158824},"NA included in Luminaire",46.08967302579412,2.304483651289706]
[null,"",null,"High Pressure Sodium (tubular) 70","HPS_70_T",70,1,"RLMIN",8,6.1074149982242716,0.6107414998224272,{"$f":"IF(LEFT($D98,3)=\"LED\",IF($F98>=100,($J$48-$F$48),($J$47-$F$47)),\"NA included in Lamp cycle\")","v":"NA included in Lamp cycle"},0,12.214829996448543,0.6107414998224272,4,{"$f":"'Warehouse Pricing'!$X$39*G98","v":9.1046846844337512},1.8209369368867503,131.7368588386725,26.347371767734501,570.64992183997197,28.532496091998599,20,{"$f":"'Warehouse Pricing'!$Y$13","v":161.14461304191406},233.38998244333573,394.53459548524978,19.726729774262488,null,null,null,0,0,40,{"$f":"IFERROR(VLOOKUP(E98,'Bracket Summary'!$A$74:$B$117,2,FALSE),VLOOKUP(E98,'Bracket Summary'!$B$43:$V$68,MATCH('Bracket Summary'!$V$43,'Bracket Summary'!$B$43:$V$43,0),FALSE))","v":92.17934605158824},"NA included in Luminaire",46.08967302579412,2.304483651289706]
[null,22,"100W Incandescent","Incandescent 100","INC_100",100,1,"RLMAJ",8,17.788104971099301,1.7788104971099301,"NA included in Lamp cycle",0,35.576209942198602,1.7788104971099301,4,{"$f":"'Old Prices Indexed'!$I$27*G99","v":2.2628759268053509},0.45257518536107016,190.67176937176282,38.134353874352563,773.54888193571696,38.677444096785848,20,{"$f":"'Old Prices Indexed'!$K$27","v":58.674896993414826},504.2947119440708,562.96960893748565,28.148480446874281,null,null,null,0,0,40,{"$f":"IFERROR(VLOOKUP(E99,'Bracket Summary'!$A$74:$B$117,2,FALSE),VLOOKUP(E99,'Bracket Summary'!$B$43:$V$68,MATCH('Bracket Summary'!$V$43,'Bracket Summary'!$B$43:$V$43,0),FALSE))","v":68.549674191893288},"NA included in Luminaire",34.274837095946644,1.7137418547973322]
[null,23,"60W Incandescent","Incandescent 60","INC_60",60,1,"RLMIN",8,6.1074149982242716,0.6107414998224272,{"$f":"IF(LEFT($D100,3)=\"LED\",IF($F100>=100,($J$48-$F$48),($J$47-$F$47)),\"NA included in Lamp cycle\")","v":"NA included in Lamp cycle"},0,12.214829996448543,0.6107414998224272,4,{"$f":"'Old Prices Indexed'!$I$26*G100","v":2.2628759268053509},0.45257518536107016,131.7368588386725,26.347371767734501,537.80923980335569,26.890461990167786,20,{"$f":"'Old Prices Indexed'!$K$26","v":58.674896993414826},233.38998244333573,292.06487943675057,14.603243971837529,null,null,null,0,0,40,{"$f":"IFERROR(VLOOKUP(E100,'Bracket Summary'!$A$74:$B$117,2,FALSE),VLOOKUP(E100,'Bracket Summary'!$B$43:$V$68,MATCH('Bracket Summary'!$V$43,'Bracket Summary'!$B$43:$V$43,0),FALSE))","v":68.549674191893288},"NA included in Luminaire",34.274837095946644,1.7137418547973322]
[null,24,"18W LED","LED 18","LED_18",18,1,"RLMIN",{"$f":"IF(LEFT($D101,3)=\"LED\",$D$12,$D$13)","v":10},6.1074149982242716,0.3053707499112136,{"$f":"IF(LEFT($D101,3)=\"LED\",IF($F101>=100,($J$48-$F$48),($J$47-$F$47)),\"NA included in Lamp cycle\")","v":131.7368588386725},{"$f":"IFERROR((ROUNDDOWN((($D$20-0.1)/I101),0)*SUM(L101))/$D$20,0)","v":6.5868429419336252},137.84427383689678,6.8922136918448391,{"$f":"IF(LEFT($D101,3)=\"LED\",$D$17,$D$18)","v":20},0,0,{"$f":"IF(LEFT($D101,3)=\"LED\",\"NA included in PE Cell cycle\",IF($F101>=100,($J$48-$F$48),($J$47-$F$47)))","v":"NA included in PE Cell cycle"},0,0,0,20,{"$f":"'Warehouse Pricing'!$X$60","v":376.68747999999999},233.38998244333573,610.07746244333566,30.503873122166784,null,null,null,0,0,40,{"$f":"IFERROR(VLOOKUP(E101,'Bracket Summary'!$A$74:$B$117,2,FALSE),VLOOKUP(E101,'Bracket Summary'!$B$43:$V$68,MATCH('Bracket Summary'!$V$43,'Bracket Summary'!$B$43:$V$43,0),FALSE))","v":78.656437685576066},"NA included in Luminaire",39.328218842788033,1.9664109421394016]
[null,25,"25W LED","LED 25","LED_25",25,1,"RLMIN",10,6.1074149982242716,0.3053707499112136,{"$f":"IF(LEFT($D102,3)=\"LED\",IF($F102>=100,($J$48-$F$48),($J$47-$F$47)),\"NA included in Lamp cycle\")","v":131.7368588386725},{"$f":"IFERROR((ROUNDDOWN((($D$20-0.1)/I102),0)*SUM(L102))/$D$20,0)","v":6.5868429419336252},137.84427383689678,6.8922136918448391,{"$f":"IF(LEFT($D102,3)=\"LED\",$D$17,$D$18)","v":20},0,0,{"$f":"IF(LEFT($D102,3)=\"LED\",\"NA included in PE Cell cycle\",IF($F102>=100,($J$48-$F$48),($J$47-$F$47)))","v":"NA included in PE Cell cycle"},0,0,0,20,{"$f":"'Warehouse Pricing'!$X$60","v":376.68747999999999},233.38998244333573,610.07746244333566,30.503873122166784,null,null,null,0,0,40,{"$f":"IFERROR(VLOOKUP(E102,'Bracket Summary'!$A$74:$B$117,2,FALSE),VLOOKUP(E102,'Bracket Summary'!$B$43:$V$68,MATCH('Bracket Summary'!$V$43,'Bracket Summary'!$B$43:$V$43,0),FALSE))","v":78.656437685576066},"NA included in Luminaire",39.328218842788033,1.9664109421394016]
[null,26,"18W LED Decorative - Bottom Pole Entry","LED 18","LED_18",18,1,"RLMIN",10,6.1074149982242716,0.3053707499112136,131.7368588386725,6.5868429419336252,137.84427383689678,6.8922136918448391,20,0,0,"NA included in PE Cell cycle",0,0,0,20,{"$f":"'Warehouse Pricing'!$K$107","v":1065.1403052478124},233.38998244333573,1298.5302876911483,64.926514384557407,null,null,null,0,0,40,{"$f":"IFERROR(VLOOKUP(E103,'Bracket Summary'!$A$74:$B$117,2,FALSE),VLOOKUP(E103,'Bracket Summary'!$B$43:$V$68,MATCH('Bracket Summary'!$V$43,'Bracket Summary'!$B$43:$V$43,0),FALSE))","v":78.656437685576066},"NA included in Luminaire",39.328218842788033,1.9664109421394016]
[null,27,"18W LED Decorative - Side Entry","LED 18","LED_18",18,1,"RLMIN",{"$f":"IF(LEFT($D104,3)=\"LED\",$D$12,$D$13)","v":10},{"$f":"VLOOKUP(H104,$B$61:$D$62,3,FALSE)","v":6.1074149982242716},0.3053707499112136,131.7368588386725,6.5868429419336252,137.84427383689678,6.8922136918448391,20,0,0,"NA included in PE Cell cycle",0,0,0,20,{"$f":"'Warehouse Pricing'!$K$107","v":1065.1403052478124},233.38998244333573,1298.5302876911483,64.926514384557407,null,null,null,0,0,40,{"$f":"IFERROR(VLOOKUP(E104,'Bracket Summary'!$A$74:$B$117,2,FALSE),VLOOKUP(E104,'Bracket Summary'!$B$43:$V$68,MATCH('Bracket Summary'!$V$43,'Bracket Summary'!$B$43:$V$43,0),FALSE))","v":78.656437685576066},"NA included in Luminaire",39.328218842788033,1.9664109421394016]
[null,28,"18W LED Decorative - Top Entry","LED 18","LED_18",18,1,"RLMIN",10,6.1074149982242716,0.3053707499112136,131.7368588386725,6.5868429419336252,137.84427383689678,{"$f":"IFERROR(N105/$D$20,0)","v":6.8922136918448391},20,0,0,"NA included in PE Cell cycle",0,0,0,20,{"$f":"'Warehouse Pricing'!$K$107","v":1065.1403052478124},233.38998244333573,{"$f":"IFERROR(($D$20/W105)*SUM(X105:Y105),0)","v":1298.5302876911483},64.926514384557407,null,null,null,0,0,40,{"$f":"IFERROR(VLOOKUP(E105,'Bracket Summary'!$A$74:$B$117,2,FALSE),VLOOKUP(E105,'Bracket Summary'!$B$43:$V$68,MATCH('Bracket Summary'!$V$43,'Bracket Summary'!$B$43:$V$43,0),FALSE))","v":78.656437685576066},"NA included in Luminaire",39.328218842788033,1.9664109421394016]
[null,29,"25W LED Decorative - Bottom Pole Entry","LED 25","LED_25",25,1,"RLMIN",10,6.1074149982242716,0.3053707499112136,131.7368588386725,6.5868429419336252,137.84427383689678,6.8922136918448391,20,0,0,"NA included in PE Cell cycle",0,0,0,20,{"$f":"'Warehouse Pricing'!$K$110","v":1065.1403052478124},233.38998244333573,1298.5302876911483,64.926514384557407,null,null,null,0,0,40,{"$f":"IFERROR(VLOOKUP(E106,'Bracket Summary'!$A$74:$B$117,2,FALSE),VLOOKUP(E106,'Bracket Summary'!$B$43:$V$68,MATCH('Bracket Summary'!$V$43,'Bracket Summary'!$B$43:$V$43,0),FALSE))","v":78.656437685576066},"NA included in Luminaire",39.328218842788033,1.9664109421394016]
[null,30,"25W LED Decorative - Side Entry","LED 25","LED_25",25,1,"RLMIN",10,6.1074149982242716,0.3053707499112136,131.7368588386725,6.5868429419336252,137.84427383689678,6.8922136918448391,20,0,0,"NA included in PE Cell cycle",0,0,0,20,{"$f":"'Warehouse Pricing'!$K$110","v":1065.1403052478124},233.38998244333573,1298.5302876911483,64.926514384557407,null,null,null,0,0,40,{"$f":"IFERROR(VLOOKUP(E107,'Bracket Summary'!$A$74:$B$117,2,FALSE),VLOOKUP(E107,'Bracket Summary'!$B$43:$V$68,MATCH('Bracket Summary'!$V$43,'Bracket Summary'!$B$43:$V$43,0),FALSE))","v":78.656437685576066},"NA included in Luminaire",39.328218842788033,1.9664109421394016]
[null,31,"25W LED Decorative - Top Entry","LED 25","LED_25",25,1,"RLMIN",10,6.1074149982242716,0.3053707499112136,131.7368588386725,6.5868429419336252,137.84427383689678,6.8922136918448391,20,0,0,"NA included in PE Cell cycle",0,0,0,20,{"$f":"'Warehouse Pricing'!$K$110","v":1065.1403052478124},233.38998244333573,1298.5302876911483,64.926514384557407,null,null,null,0,0,40,{"$f":"IFERROR(VLOOKUP(E108,'Bracket Summary'!$A$74:$B$117,2,FALSE),VLOOKUP(E108,'Bracket Summary'!$B$43:$V$68,MATCH('Bracket Summary'!$V$43,'Bracket Summary'!$B$43:$V$43,0),FALSE))","v":78.656437685576066},"NA included in Luminaire",39.328218842788033,1.9664109421394016]
[null,32,"30W LED","LED 30","LED_30",30,1,"RLMIN",10,6.1074149982242716,0.3053707499112136,131.7368588386725,6.5868429419336252,137.84427383689678,6.8922136918448391,20,0,0,"NA included in PE Cell cycle",0,0,0,20,{"$f":"'Warehouse Pricing'!$X$60","v":376.68747999999999},233.38998244333573,610.07746244333566,30.503873122166784,null,null,null,0,0,40,{"$f":"IFERROR(VLOOKUP(E109,'Bracket Summary'!$A$74:$B$117,2,FALSE),VLOOKUP(E109,'Bracket Summary'!$B$43:$V$68,MATCH('Bracket Summary'!$V$43,'Bracket Summary'!$B$43:$V$43,0),FALSE))","v":78.656437685576066},"NA included in Luminaire",39.328218842788033,1.9664109421394016]
[null,33,"88 LED Light","LED 88","LED_88",88,1,"RLMIN",10,6.1074149982242716,0.3053707499112136,131.7368588386725,6.5868429419336252,137.84427383689678,6.8922136918448391,20,0,0,"NA included in PE Cell cycle",0,0,0,20,{"$f":"'Warehouse Pricing'!$X$60","v":376.68747999999999},233.38998244333573,610.07746244333566,{"$f":"IFERROR(Z110/$D$20,0)","v":30.503873122166784},null,null,null,0,0,40,{"$f":"IFERROR(VLOOKUP(E110,'Bracket Summary'!$A$74:$B$117,2,FALSE),VLOOKUP(E110,'Bracket Summary'!$B$43:$V$68,MATCH('Bracket Summary'!$V$43,'Bracket Summary'!$B$43:$V$43,0),FALSE))","v":78.656437685576066},"NA included in Luminaire",39.328218842788033,1.9664109421394016]
[null,34,"100W Metal Halide","Metal Halide (elliptical) 100","MH_100_E",100,1,"RLMAJ",8,17.788104971099301,1.7788104971099301,"NA included in Lamp cycle",0,35.576209942198602,1.7788104971099301,4,{"$f":"'Warehouse Pricing'!$X$45*G111","v":18.207891455599999},3.6415782911199996,190.67176937176282,38.134353874352563,850.08495647393124,42.504247823696559,{"$f":"$D$9","v":20},{"$f":"'Warehouse Pricing'!$Y$23","v":162.17518363940306},504.2947119440708,666.46989558347389,{"$f":"IFERROR(Z111/$D$20,0)","v":33.323494779173693},null,null,null,0,0,{"$f":"$D$10","v":40},{"$f":"IFERROR(VLOOKUP(E111,'Bracket Summary'!$A$74:$B$117,2,FALSE),VLOOKUP(E111,'Bracket Summary'!$B$43:$V$68,MATCH('Bracket Summary'!$V$43,'Bracket Summary'!$B$43:$V$43,0),FALSE))","v":95.338965387721842},"NA included in Luminaire",47.669482693860921,2.3834741346930461]
[null,35,"150W Metal Halide","Metal Halide (elliptical) 150","MH_150_E",150,1,"RLMAJ",8,17.788104971099301,1.7788104971099301,"NA included in Lamp cycle",0,35.576209942198602,1.7788104971099301,4,{"$f":"'Warehouse Pricing'!X92*G112","v":20.719483090000001},4.1438966180000003,190.67176937176282,38.134353874352563,862.14059631905127,43.107029815952565,20,{"$f":"'Warehouse Pricing'!$Y$25","v":236.57737538145497},504.2947119440708,740.87208732552574,37.043604366276284,null,null,null,0,0,40,{"$f":"IFERROR(VLOOKUP(E112,'Bracket Summary'!$A$74:$B$117,2,FALSE),VLOOKUP(E112,'Bracket Summary'!$B$43:$V$68,MATCH('Bracket Summary'!$V$43,'Bracket Summary'!$B$43:$V$43,0),FALSE))","v":164.11499074301554},"NA included in Luminaire",82.05749537150777,4.1028747685753881]
[null,36,"250W Metal Halide","Metal Halide (tubular) 250","MH_250_T",250,1,"RLMAJ",8,17.788104971099301,1.7788104971099301,"NA included in Lamp cycle",0,35.576209942198602,1.7788104971099301,4,{"$f":"'Warehouse Pricing'!$X$93*G113","v":20.719483090000001},4.1438966180000003,190.67176937176282,38.134353874352563,862.14059631905127,43.107029815952565,20,{"$f":"'Warehouse Pricing'!$Y$27","v":245.07571166325397},504.2947119440708,749.37042360732471,37.468521180366238,null,null,null,0,0,40,{"$f":"IFERROR(VLOOKUP(E113,'Bracket Summary'!$A$74:$B$117,2,FALSE),VLOOKUP(E113,'Bracket Summary'!$B$43:$V$68,MATCH('Bracket Summary'!$V$43,'Bracket Summary'!$B$43:$V$43,0),FALSE))","v":210.59681775558886},"NA included in Luminaire",105.29840887779443,5.2649204438897215]
[null,37,"400W Metal Halide","Metal Halide (tubular) 400","MH_400_T",400,1,"RLMAJ",8,17.788104971099301,1.7788104971099301,"NA included in Lamp cycle",0,35.576209942198602,1.7788104971099301,4,{"$f":"'Warehouse Pricing'!$X$94*G114","v":32.714973299999997},6.5429946599999997,190.67176937176282,38.134353874352563,919.71894932705129,45.985947466352563,20,{"$f":"'Warehouse Pricing'!$Y$29","v":497.78229817542456},504.2947119440708,1002.0770101194953,50.103850505974762,null,null,null,0,0,40,{"$f":"IFERROR(VLOOKUP(E114,'Bracket Summary'!$A$74:$B$117,2,FALSE),VLOOKUP(E114,'Bracket Summary'!$B$43:$V$68,MATCH('Bracket Summary'!$V$43,'Bracket Summary'!$B$43:$V$43,0),FALSE))","v":151.9249889764759},"NA included in Luminaire",75.962494488237951,3.7981247244118976]
[null,38,"70W Metal Halide","Metal Halide (elliptical) 70","MH_70_E",70,1,"RLMIN",8,6.1074149982242716,0.6107414998224272,"NA included in Lamp cycle",0,12.214829996448543,0.6107414998224272,4,{"$f":"'Warehouse Pricing'!$X$44*G115","v":17.882750536749999},3.5765501073499997,131.7368588386725,26.347371767734501,612.78463793108995,30.639231896554499,20,{"$f":"'Old Prices Indexed'!$K$6","v":86.604197155235227},233.38998244333573,319.99417959857095,15.999708979928547,null,null,null,0,0,40,{"$f":"IFERROR(VLOOKUP(E115,'Bracket Summary'!$A$74:$B$117,2,FALSE),VLOOKUP(E115,'Bracket Summary'!$B$43:$V$68,MATCH('Bracket Summary'!$V$43,'Bracket Summary'!$B$43:$V$43,0),FALSE))","v":95.338965387721842},"NA included in Luminaire",47.669482693860921,2.3834741346930461]
[null,39,"250W Metal Halide - Flood Light","Metal Halide (tubular) 250","MH_250_T",250,1,"RLMAJ",8,17.788104971099301,1.7788104971099301,"NA included in Lamp cycle",0,35.576209942198602,1.7788104971099301,4,{"$f":"'Warehouse Pricing'!$X$93*G116","v":20.719483090000001},4.1438966180000003,190.67176937176282,38.134353874352563,862.14059631905127,43.107029815952565,20,{"$f":"'Warehouse Pricing'!$Y$29","v":497.78229817542456},504.2947119440708,1002.0770101194953,50.103850505974762,null,null,null,0,0,40,{"$f":"IFERROR(VLOOKUP(E116,'Bracket Summary'!$A$74:$B$117,2,FALSE),VLOOKUP(E116,'Bracket Summary'!$B$43:$V$68,MATCH('Bracket Summary'!$V$43,'Bracket Summary'!$B$43:$V$43,0),FALSE))","v":210.59681775558886},"NA included in Luminaire",105.29840887779443,5.2649204438897215]
[null,40,"400W Metal Halide - Flood Light","Metal Halide (tubular) 400","MH_400_T",400,1,"RLMAJ",8,17.788104971099301,1.7788104971099301,"NA included in Lamp cycle",0,35.576209942198602,1.7788104971099301,4,{"$f":"'Warehouse Pricing'!$X$94*G117","v":32.714973299999997},6.5429946599999997,190.67176937176282,38.134353874352563,919.71894932705129,45.985947466352563,20,{"$f":"'Warehouse Pricing'!$Y$29","v":497.78229817542456},504.2947119440708,1002.0770101194953,50.103850505974762,null,null,null,0,0,40,{"$f":"IFERROR(VLOOKUP(E117,'Bracket Summary'!$A$74:$B$117,2,FALSE),VLOOKUP(E117,'Bracket Summary'!$B$43:$V$68,MATCH('Bracket Summary'!$V$43,'Bracket Summary'!$B$43:$V$43,0),FALSE))","v":151.9249889764759},"NA included in Luminaire",75.962494488237951,3.7981247244118976]
[null,41,"125W Mercury Vapour","Mercury Vapour (elliptical) 125","MV_125_E",125,1,"RLMAJ",8,17.788104971099301,1.7788104971099301,"NA included in Lamp cycle",0,35.576209942198602,1.7788104971099301,4,{"$f":"'Warehouse Pricing'!$X$85*G118","v":2.726247775},0.54524955500000005,190.67176937176282,38.134353874352563,775.77306680705124,38.78865334035256,20,{"$f":"'Old Prices Indexed'!$K$8","v":150.29677555156627},504.2947119440708,654.59148749563701,32.729574374781848,null,null,null,0,0,40,{"$f":"IFERROR(VLOOKUP(E118,'Bracket Summary'!$A$74:$B$117,2,FALSE),VLOOKUP(E118,'Bracket Summary'!$B$43:$V$68,MATCH('Bracket Summary'!$V$43,'Bracket Summary'!$B$43:$V$43,0),FALSE))","v":171.18920372665016},"NA included in Luminaire",85.594601863325082,4.2797300931662541]
[null,42,"250W Mercury Vapour","Mercury Vapour (elliptical) 250","MV_250_E",250,1,"RLMAJ",8,17.788104971099301,1.7788104971099301,"NA included in Lamp cycle",0,35.576209942198602,1.7788104971099301,4,{"$f":"'Warehouse Pricing'!$X$85*G119","v":2.726247775},0.54524955500000005,190.67176937176282,38.134353874352563,775.77306680705124,38.78865334035256,20,{"$f":"'Old Prices Indexed'!$K$9","v":173.60193794991488},504.2947119440708,677.89664989398568,33.894832494699287,null,null,null,0,0,40,{"$f":"IFERROR(VLOOKUP(E119,'Bracket Summary'!$A$74:$B$117,2,FALSE),VLOOKUP(E119,'Bracket Summary'!$B$43:$V$68,MATCH('Bracket Summary'!$V$43,'Bracket Summary'!$B$43:$V$43,0),FALSE))","v":171.18920372665016},"NA included in Luminaire",85.594601863325082,4.2797300931662541]
[null,"",null,"Mercury Vapour (tubular) 250","MV_250_T",250,1,"RLMAJ",8,17.788104971099301,1.7788104971099301,"NA included in Lamp cycle",0,35.576209942198602,1.7788104971099301,4,{"$f":"'Warehouse Pricing'!$X$85*G120","v":2.726247775},0.54524955500000005,190.67176937176282,38.134353874352563,775.77306680705124,38.78865334035256,20,{"$f":"'Old Prices Indexed'!$K$9","v":173.60193794991488},504.2947119440708,677.89664989398568,33.894832494699287,null,null,null,0,0,40,{"$f":"IFERROR(VLOOKUP(E120,'Bracket Summary'!$A$74:$B$117,2,FALSE),VLOOKUP(E120,'Bracket Summary'!$B$43:$V$68,MATCH('Bracket Summary'!$V$43,'Bracket Summary'!$B$43:$V$43,0),FALSE))","v":171.18920372665016},"NA included in Luminaire",85.594601863325082,4.2797300931662541]
[null,43,"400W Mercury Vapour","Mercury Vapour (elliptical) 400","MV_400_E",400,1,"RLMAJ",8,17.788104971099301,1.7788104971099301,"NA included in Lamp cycle",0,35.576209942198602,1.7788104971099301,4,{"$f":"'Warehouse Pricing'!$X$86*G121","v":5.3434456390000014},1.0686891278000004,190.67176937176282,38.134353874352563,788.33561655425126,39.416780827712564,20,{"$f":"'Old Prices Indexed'!$K$15","v":250.29375468664404},504.2947119440708,754.58846663071483,37.729423331535742,null,null,null,0,0,40,{"$f":"IFERROR(VLOOKUP(E121,'Bracket Summary'!$A$74:$B$117,2,FALSE),VLOOKUP(E121,'Bracket Summary'!$B$43:$V$68,MATCH('Bracket Summary'!$V$43,'Bracket Summary'!$B$43:$V$43,0),FALSE))","v":201.60681623831957},"NA included in Luminaire",100.80340811915978,5.0401704059579888]
[null,44,"50W Mercury Vapour","Mercury Vapour (elliptical) 50","MV_50_E",50,1,"RLMIN",{"$f":"IF(LEFT($D122,3)=\"LED\",$D$12,$D$13)","v":8},{"$f":"VLOOKUP(H122,$B$61:$D$62,3,FALSE)","v":6.1074149982242716},0.6107414998224272,"NA included in Lamp cycle",0,12.214829996448543,{"$f":"IFERROR(N122/$D$20,0)","v":0.6107414998224272},4,{"$f":"'Warehouse Pricing'!$X$35*G122","v":3.2106187823170007},0.64212375646340014,131.7368588386725,26.347371767734501,542.35840550981163,27.117920275490583,20,{"$f":"'Old Prices Indexed'!$K$5","v":87.120723182006003},233.38998244333573,320.51070562534176,16.025535281267089,null,null,null,0,0,40,{"$f":"IFERROR(VLOOKUP(E122,'Bracket Summary'!$A$74:$B$117,2,FALSE),VLOOKUP(E122,'Bracket Summary'!$B$43:$V$68,MATCH('Bracket Summary'!$V$43,'Bracket Summary'!$B$43:$V$43,0),FALSE))","v":74.363169923970332},"NA included in Luminaire",37.181584961985166,1.8590792480992584]
[null,45,"80W Mercury Vapour Art decorative","Mercury Vapour (elliptical) 80","MV_80_E",80,1,{"$f":"IF(F123>=100,\"RLMAJ\",\"RLMIN\")","v":"RLMIN"},8,{"$f":"VLOOKUP(H123,$B$61:$D$62,3,FALSE)","v":6.1074149982242716},{"$f":"IFERROR((ROUNDDOWN((($D$20-0.1)/I123),0)*SUM(J123))/$D$20,0)","v":0.6107414998224272},"NA included in Lamp cycle",{"$f":"IFERROR((ROUNDDOWN((($D$20-0.1)/I123),0)*SUM(L123))/$D$20,0)","v":0},{"$f":"IFERROR(ROUNDDOWN((($D$20-0.1)/I123),0)*SUM(J123,L123),0)","v":12.214829996448543},{"$f":"IFERROR(N123/$D$20,0)","v":0.6107414998224272},4,{"$f":"'Warehouse Pricing'!$X$36*G123","v":2.6704414830457499},{"$f":"IFERROR((ROUNDDOWN((($D$20-0.1)/P123),0)*SUM(Q123))/$D$20,0)","v":0.53408829660915003},131.7368588386725,{"$f":"IFERROR((ROUNDDOWN((($D$20-0.1)/P123),0)*SUM(S123))/$D$20,0)","v":26.347371767734501},{"$f":"IFERROR(ROUNDDOWN((($D$20-0.1)/P123),0)*SUM(Q123:S123),0)","v":539.76555447330963},{"$f":"IFERROR(U123/$D$20,0)","v":26.988277723665483},20,{"$f":"'Old Prices Indexed'!$K$7","v":918.43246855338907},233.38998244333573,{"$f":"IFERROR(($D$20/W123)*SUM(X123:Y123),0)","v":1151.8224509967249},{"$f":"IFERROR(Z123/$D$20,0)","v":57.591122549836243},null,null,null,{"$f":"IFERROR(($D$20/AB123)*SUM(AC123:AD123),0)","v":0},{"$f":"IFERROR(AE123/$D$20,0)","v":0},40,{"$f":"IFERROR(VLOOKUP(E123,'Bracket Summary'!$A$74:$B$117,2,FALSE),VLOOKUP(E123,'Bracket Summary'!$B$43:$V$68,MATCH('Bracket Summary'!$V$43,'Bracket Summary'!$B$43:$V$43,0),FALSE))","v":77.314684445723145},"NA included in Luminaire",{"$f":"IFERROR(($D$20/AG123)*SUM(AH123:AI123),0)","v":38.657342222861573},{"$f":"IFERROR(AJ123/$D$20,0)","v":1.9328671111430786}]
[null,46,"80W Mercury Vapour","Mercury Vapour (elliptical) 80","MV_80_E",80,1,"RLMIN",8,6.1074149982242716,0.6107414998224272,"NA included in Lamp cycle",0,12.214829996448543,0.6107414998224272,4,{"$f":"'Warehouse Pricing'!$X$36*G124","v":2.6704414830457499},0.53408829660915003,131.7368588386725,26.347371767734501,539.76555447330963,26.988277723665483,20,{"$f":"'Old Prices Indexed'!$K$6","v":86.604197155235227},233.38998244333573,319.99417959857095,15.999708979928547,null,null,null,0,0,40,{"$f":"IFERROR(VLOOKUP(E124,'Bracket Summary'!$A$74:$B$117,2,FALSE),VLOOKUP(E124,'Bracket Summary'!$B$43:$V$68,MATCH('Bracket Summary'!$V$43,'Bracket Summary'!$B$43:$V$43,0),FALSE))","v":77.314684445723145},"NA included in Luminaire",38.657342222861573,1.9328671111430786]
[null,""]
[null,""]
[null,""]
[null,""]
[]
[]
[]
[null,null,"LIST "]
[null,null,"Offered / No Longer Offered / NA"]
[null,null,"Offered"]
[null,null,"Obsolete, no new Connections"]
[null,null,"Abolished"]
[null,null,"Not Offered"]
[null,null,"NA"]
[]
[]
[]
[]
[]
[null,null,"External Links","Description"]
[null,null,"Service Classification","Opex Base step trend - Corp OH"]
[null,null,0,"Capex OH allocation"]
[null,null,0,"POW data, Opex and Capex (Direct costs)"]
[null,null,0,"PTRM outputs for RAB Revenue calculations"]
[null,null,0,"Volume data"]
[null,null,0,"Street lighting RFM"]
[]
[null,null,0,"Flat POW for Chart"]
[null,null,"Cost data Inputs","old Aurora prices"]

{"sheet":"Master Data","index":18,"n_rows":40,"n_cols":16,"rows_kept":40,"cut":false,"hidden":false,"merged":[]}
["Previous Year",{"$f":"EOMONTH($B$2,-12)","v":"2014-06-30"},null,{"$f":"TEXT(B1,\"YY\")","v":"14"},{"$f":"TEXT(B1,\"YYy\")","v":"2014"},{"$f":"TEXT(B1,\"mmm\")","v":"Jun"},{"$f":"TEXT(B1,\"mmmm\")","v":"June"}]
["Current Year",{"$f":"EOMONTH($B$3,-1)","v":"2015-06-30"},null,{"$f":"TEXT(B2,\"YY\")","v":"15"},{"$f":"TEXT(B2,\"YYy\")","v":"2015"},{"$f":"TEXT(B2,\"mmm\")","v":"Jun"},{"$f":"TEXT(B2,\"mmmm\")","v":"June"},{"$f":"E1&\"-\"&D2","v":"2014-15"}]
["Year Start","2015-07-01",2015,{"$f":"TEXT(B3,\"YY\")","v":"15"},{"$f":"TEXT(B3,\"YYy\")","v":"2015"},{"$f":"TEXT(B3,\"mmm\")","v":"Jul"},{"$f":"TEXT(B3,\"mmmm\")","v":"July"}]
["Year 1",{"$f":"EOMONTH($B$3,11)","v":"2016-06-30"},null,{"$f":"TEXT(B4,\"YY\")","v":"16"},{"$f":"TEXT(B4,\"YYy\")","v":"2016"},{"$f":"TEXT(B4,\"mmm\")","v":"Jun"},{"$f":"TEXT(B4,\"mmmm\")","v":"June"},{"$f":"E3&\"-\"&D4","v":"2015-16"}]
["Year 2",{"$f":"EOMONTH($B$3,23)","v":"2017-06-30"},null,{"$f":"TEXT(B5,\"YY\")","v":"17"},{"$f":"TEXT(B5,\"YYy\")","v":"2017"},{"$f":"TEXT(B5,\"mmm\")","v":"Jun"},{"$f":"TEXT(B5,\"mmmm\")","v":"June"},{"$f":"E4&\"-\"&D5","v":"2016-17"}]
["Year 3",{"$f":"EOMONTH($B$3,35)","v":"2018-06-30"},null,"18","2018","Jun","June","2017-18"]
["Year 4",{"$f":"EOMONTH($B$3,47)","v":"2019-06-30"},null,"19","2019","Jun","June","2018-19"]
["Year 5",{"$f":"EOMONTH($B$3,59)","v":"2020-06-30"},null,"20","2020","Jun","June","2019-20"]
["Year 6",{"$f":"EOMONTH($B$3,71)","v":"2021-06-30"},null,"21","2021","Jun","June","2020-21"]
["Year 7",{"$f":"EOMONTH($B$3,83)","v":"2022-06-30"},null,"22","2022","Jun","June","2021-22"]
["Year 8",{"$f":"EOMONTH($B$3,95)","v":"2023-06-30"},null,"23","2023","Jun","June","2022-23"]
["Year 9",{"$f":"EOMONTH($B$3,107)","v":"2024-06-30"},null,"24","2024","Jun","June","2023-24"]
["Year 10",{"$f":"EOMONTH($B$3,119)","v":"2025-06-30"},null,"25","2025","Jun","June","2024-25"]
[]
[]
[]
[]
["Year",null,null,null,null,"Current",{"$f":"A4","v":"Year 1"},{"$f":"A5","v":"Year 2"},{"$f":"A6","v":"Year 3"},{"$f":"A7","v":"Year 4"},{"$f":"A8","v":"Year 5"},{"$f":"A9","v":"Year 6"},{"$f":"A10","v":"Year 7"},{"$f":"A11","v":"Year 8"},{"$f":"A12","v":"Year 9"},{"$f":"A13","v":"Year 10"}]
[null,null,null,null,null,{"$f":"C3","v":2015},{"$f":"F19+1","v":2016},{"$f":"G19+1","v":2017},2018,2019,2020,2021,2022,2023,2024,{"$f":"O19+1","v":2025}]
[null,"2010-11","2011-12","2012-13","2013-14",{"$f":"H2","v":"2014-15"},{"$f":"H4","v":"2015-16"},{"$f":"H5","v":"2016-17"},{"$f":"H6","v":"2017-18"},{"$f":"H7","v":"2018-19"},{"$f":"H8","v":"2019-20"},{"$f":"H9","v":"2020-21"},{"$f":"H10","v":"2021-22"},{"$f":"H11","v":"2022-23"},{"$f":"H12","v":"2023-24"},{"$f":"H13","v":"2024-25"}]
[]
[null,{"$f":"EOMONTH(C22,-12)","v":"2011-06-30"},"2012-06-30","2013-06-30",{"$f":"EOMONTH(F22,-12)","v":"2014-06-30"},{"$f":"B2","v":"2015-06-30"},{"$f":"B4","v":"2016-06-30"},{"$f":"B5","v":"2017-06-30"},{"$f":"B6","v":"2018-06-30"},{"$f":"B7","v":"2019-06-30"},{"$f":"B8","v":"2020-06-30"},{"$f":"B9","v":"2021-06-30"},{"$f":"B10","v":"2022-06-30"},{"$f":"B11","v":"2023-06-30"},{"$f":"B12","v":"2024-06-30"},{"$f":"B13","v":"2025-06-30"}]
["Days in the year",null,{"$f":"C22-B22","v":366},365,365,365,{"$f":"G22-F22","v":366},{"$f":"H22-G22","v":365},{"$f":"I22-H22","v":365},365,366,365,365,365,366,365]
[]
[]
[]
[]
[null,"Year -4","Year -3","Year -2","Year -1","Current","Year 1","Year 2","Year 3","Year 4"]
[null,"2010-11","2011-12","2012-13","2013-14",{"$f":"F20","v":"2014-15"},"2015-16","2016-17","2017-18","2018-19"]
["CPI",2.6548672566371723E-2,3.1034482758620641E-2,2.5999999999999999E-2,2.5999999999999999E-2,2.5000000000000001E-2,2.5000000000000001E-2,2.5000000000000001E-2,2.5000000000000001E-2,2.5000000000000001E-2]
["Cumulative CPI",{"$f":"C31-(C31*B30)","v":0.89482987976808059},{"$f":"D31-(D31*C30)","v":0.91923433103448282},{"$f":"E31-(E31*D30)","v":0.94867599999999996},{"$f":"F31-(F31*E30)","v":0.97399999999999998},1,{"$f":"F31*(1+G$30)","v":1.0249999999999999},{"$f":"G31*(1+H$30)","v":1.0506249999999999},1.0768906249999999,1.1038128906249998]
["2017/18 dollars",null,null,null,null,null,null,null,1,{"$f":"I32*(1+J$30)","v":1.0249999999999999}]
[null,null,null,null,null,null,1,{"$f":"G33*(1+H$30)","v":1.0249999999999999},{"$f":"H33*(1+I$30)","v":1.0506249999999999}]
["Bracket Data",2.5000000000000001E-2,{"$f":"B34","v":2.5000000000000001E-2},{"$f":"C34","v":2.5000000000000001E-2},2.5000000000000001E-2,2.5000000000000001E-2,2.5000000000000001E-2,2.5000000000000001E-2,{"$f":"H34","v":2.5000000000000001E-2}]
[1,{"$f":"A35*(1+B$34)","v":1.0249999999999999},{"$f":"B35*(1+C$34)","v":1.0506249999999999},{"$f":"C35*(1+D$34)","v":1.0768906249999999},1.1038128906249998,1.1314082128906247,1.1596934182128902,1.1886857536682123,{"$f":"H35*(1+I$34)","v":1.2184028975099175}]
[]
[]
[]
[]
["Nominal Vanilla WACC",6.0399999999999995E-2]

{"sheet":"Volumes","index":19,"n_rows":101,"n_cols":9,"rows_kept":101,"cut":false,"hidden":false,"merged":[]}
[null,null,"50W Mercury Vapour"]
[null,null,"2014-15\nVolumes"]
[null,null,"2015-16\nRegulatory Year","2016-17\nRegulatory Year","2017-18\nRegulatory Year","2018-19\nRegulatory Year","Comments from Gerrard and Darryl regarding volumes"]
["Private Contract Lights","Light Description",{"$f":"'Master Data'!G$20","v":"2015-16"},{"$f":"'Master Data'!H$20","v":"2016-17"},{"$f":"'Master Data'!I$20","v":"2017-18"},{"$f":"'Master Data'!J$20","v":"2018-19"},null,null,"Check to Unsmoothed Prices"]
[{"$f":"$A$4","v":"Private Contract Lights"},"50W Mercury Vapour",196,192,188,184,"2% decrease per FY - No new PCL lights; Reduction estimated on customer removing PCL.",null,{"$f":"VLOOKUP(B5,'Unsmoothed Prices'!$B$10:$B$65,1,FALSE)","v":"50W Mercury Vapour"}]
[{"$f":"$A$4","v":"Private Contract Lights"},"80W Mercury Vapour",365,357,350,343,"2% decrease per FY - No new PCL lights; Reduction estimated on customer removing PCL.",null,{"$f":"VLOOKUP(B6,'Unsmoothed Prices'!$B$10:$B$65,1,FALSE)","v":"80W Mercury Vapour"}]
["Private Contract Lights","125W Mercury Vapour",340,333,327,320,"2% decrease per FY - No new PCL lights; Reduction estimated on customer removing PCL.",null,{"$f":"VLOOKUP(B7,'Unsmoothed Prices'!$B$10:$B$65,1,FALSE)","v":"125W Mercury Vapour"}]
["Private Contract Lights","250W Mercury Vapour",29,29,28,28,"2% decrease per FY - No new PCL lights; Reduction estimated on customer removing PCL.",null,{"$f":"VLOOKUP(B8,'Unsmoothed Prices'!$B$10:$B$65,1,FALSE)","v":"250W Mercury Vapour"}]
["Private Contract Lights","400W Mercury Vapour",23,22,22,21,"2% decrease per FY - No new PCL lights; Reduction estimated on customer removing PCL.",null,{"$f":"VLOOKUP(B9,'Unsmoothed Prices'!$B$10:$B$65,1,FALSE)","v":"400W Mercury Vapour"}]
["Private Contract Lights","70W Sodium Vapour",73,73,73,73,"Steady - No new PCLs",null,{"$f":"VLOOKUP(B10,'Unsmoothed Prices'!$B$10:$B$65,1,FALSE)","v":"70W Sodium Vapour"}]
["Private Contract Lights","100W Sodium Vapour",0,0,5,5,null,null,{"$f":"VLOOKUP(B11,'Unsmoothed Prices'!$B$10:$B$65,1,FALSE)","v":"100W Sodium Vapour"}]
["Private Contract Lights","150W Sodium Vapour",163,163,163,163,"Steady - No new PCLs",null,{"$f":"VLOOKUP(B12,'Unsmoothed Prices'!$B$10:$B$65,1,FALSE)","v":"150W Sodium Vapour"}]
["Private Contract Lights","250W Sodium Vapour",165,165,165,165,"Steady - No new PCLs",null,{"$f":"VLOOKUP(B13,'Unsmoothed Prices'!$B$10:$B$65,1,FALSE)","v":"250W Sodium Vapour"}]
["Private Contract Lights","400W Sodium Vapour",104,104,104,104,"Steady - No new PCLs",null,{"$f":"VLOOKUP(B14,'Unsmoothed Prices'!$B$10:$B$65,1,FALSE)","v":"400W Sodium Vapour"}]
["Private Contract Lights","100W Metal Halide",0,0,5,5,null,null,{"$f":"VLOOKUP(B15,'Unsmoothed Prices'!$B$10:$B$65,1,FALSE)","v":"100W Metal Halide"}]
["Private Contract Lights","150W Metal Halide",27,27,27,27,"Steady - No new PCLs",null,{"$f":"VLOOKUP(B16,'Unsmoothed Prices'!$B$10:$B$65,1,FALSE)","v":"150W Metal Halide"}]
["Private Contract Lights","250W Metal Halide",40,40,40,40,"Steady - No new PCLs",null,{"$f":"VLOOKUP(B17,'Unsmoothed Prices'!$B$10:$B$65,1,FALSE)","v":"250W Metal Halide"}]
["Private Contract Lights","400W Metal Halide",9,9,9,9,"Steady - No new PCLs",null,{"$f":"VLOOKUP(B18,'Unsmoothed Prices'!$B$10:$B$65,1,FALSE)","v":"400W Metal Halide"}]
["Private Contract Lights","1x20W Fluorescent",22,22,0,0,"Plan to remove all these lights types by 2017-18",null,{"$f":"VLOOKUP(B19,'Unsmoothed Prices'!$B$10:$B$65,1,FALSE)","v":"1x20W Fluorescent"}]
["Private Contract Lights","2x20W Fluorescent",51,51,0,0,"Plan to remove all these lights types by 2017-18",null,{"$f":"VLOOKUP(B20,'Unsmoothed Prices'!$B$10:$B$65,1,FALSE)","v":"2x20W Fluorescent"}]
["Private Contract Lights","1x40W Fluorescent",4,4,0,0,"Plan to remove all these lights types by 2017-18",null,{"$f":"VLOOKUP(B21,'Unsmoothed Prices'!$B$10:$B$65,1,FALSE)","v":"1x40W Fluorescent"}]
["Private Contract Lights","2x40W Fluorescent",3,3,0,0,"Plan to remove all these lights types by 2017-18",null,{"$f":"VLOOKUP(B22,'Unsmoothed Prices'!$B$10:$B$65,1,FALSE)","v":"2x40W Fluorescent"}]
["Private Contract Lights","3x40W Fluorescent",1,1,0,0,"Plan to remove all these lights types by 2017-18",null,{"$f":"VLOOKUP(B23,'Unsmoothed Prices'!$B$10:$B$65,1,FALSE)","v":"3x40W Fluorescent"}]
["Private Contract Lights","4x40W Fluorescent",0,0,0,0,"Plan to remove all these lights types by 2017-18",null,{"$f":"VLOOKUP(B24,'Unsmoothed Prices'!$B$10:$B$65,1,FALSE)","v":"4x40W Fluorescent"}]
["Private Contract Lights","60W Incandescent",21,21,0,0,"Plan to remove all these lights types by 2017-18",null,{"$f":"VLOOKUP(B25,'Unsmoothed Prices'!$B$10:$B$65,1,FALSE)","v":"60W Incandescent"}]
[{"$f":"$A$4","v":"Private Contract Lights"},"100W Incandescent",5,5,0,0,"Plan to remove all these lights types by 2017-18",null,{"$f":"VLOOKUP(B26,'Unsmoothed Prices'!$B$10:$B$65,1,FALSE)","v":"100W Incandescent"}]
["Private Contract Lights","Fluorescent 4x20",2,2,0,0,"Plan to remove all these lights types by 2017-18",null,{"$f":"VLOOKUP(B27,'Unsmoothed Prices'!$B$10:$B$65,1,FALSE)","v":{"$error":"#N/A"}}]
[{"$f":"$A$4","v":"Private Contract Lights"},"18W LED",4668,4715,4762,4810,"New Light type; HCC/GCC Project Energy Efficient Project; 1% increase per year from DD17",null,{"$f":"VLOOKUP(B28,'Unsmoothed Prices'!$B$10:$B$65,1,FALSE)","v":"18W LED"}]
["Private Contract Lights","25W LED",29,29,29,29,"Trial Lights",null,{"$f":"VLOOKUP(B29,'Unsmoothed Prices'!$B$10:$B$65,1,FALSE)","v":"25W LED"}]
["Private Contract Lights","30W LED",32,32,32,32,"Trial Lights",null,{"$f":"VLOOKUP(B30,'Unsmoothed Prices'!$B$10:$B$65,1,FALSE)","v":"30W LED"}]
[]
[]
[null,"Total Private",{"$f":"SUM(C5:C32)","v":6372},6399,6329,6358]
[null,"Change",null,{"$f":"D33-C33","v":27},{"$f":"E33-D33","v":-70},{"$f":"F33-E33","v":29}]
[null,null,null,null,0,0]
[]
[]
["Public Road Lights","Light Description",{"$f":"'Master Data'!G$20","v":"2015-16"},{"$f":"'Master Data'!H$20","v":"2016-17"},{"$f":"'Master Data'!I$20","v":"2017-18"},{"$f":"'Master Data'!J$20","v":"2018-19"},null,null,"Check to Unsmoothed Prices"]
["Mercury Vapour","50W Mercury Vapour",0,0,0,0,"Plan to remove all these lights types by 2017-18",null,{"$f":"VLOOKUP(B39,'Unsmoothed Prices'!$B$70:$B$127,1,FALSE)","v":"50W Mercury Vapour"}]
["Mercury Vapour","80W Mercury Vapour",22345,18345,14235,10135,"Reduction in 15-16 due to HCC/GCC Project Energy Efficient Project/BAU Intalls",null,{"$f":"VLOOKUP(B40,'Unsmoothed Prices'!$B$70:$B$127,1,FALSE)","v":"80W Mercury Vapour"}]
["Mercury Vapour","80W Mercury Vapour Art decorative",40,40,40,40,"Steady",null,{"$f":"VLOOKUP(B41,'Unsmoothed Prices'!$B$70:$B$127,1,FALSE)","v":"80W Mercury Vapour Art decorative"}]
["Mercury Vapour","125W Mercury Vapour",101,101,0,0,"Plan to remove all these lights types by 2017-18",null,{"$f":"VLOOKUP(B42,'Unsmoothed Prices'!$B$70:$B$127,1,FALSE)","v":"125W Mercury Vapour"}]
["Mercury Vapour","250W Mercury Vapour",500,450,427,406,"5% decrease per FY",null,{"$f":"VLOOKUP(B43,'Unsmoothed Prices'!$B$70:$B$127,1,FALSE)","v":"250W Mercury Vapour"}]
["Mercury Vapour","400W Mercury Vapour",36,34,32,31,"5% decrease per FY",null,{"$f":"VLOOKUP(B44,'Unsmoothed Prices'!$B$70:$B$127,1,FALSE)","v":"400W Mercury Vapour"}]
["Sodium Vapour","70W Sodium Vapour",194,204,214,225,"5% increase per FY",null,{"$f":"VLOOKUP(B45,'Unsmoothed Prices'!$B$70:$B$127,1,FALSE)","v":"70W Sodium Vapour"}]
["Sodium Vapour","100W Sodium Vapour",365,384,403,423,"5% increase per FY",null,{"$f":"VLOOKUP(B46,'Unsmoothed Prices'!$B$70:$B$127,1,FALSE)","v":"100W Sodium Vapour"}]
["Sodium Vapour","150W Sodium Vapour",4379,4597,4827,5069,"5% increase per FY",null,{"$f":"VLOOKUP(B47,'Unsmoothed Prices'!$B$70:$B$127,1,FALSE)","v":"150W Sodium Vapour"}]
["Sodium Vapour","250W Sodium Vapour",5442,5714,6000,6300,"5% increase per FY",null,{"$f":"VLOOKUP(B48,'Unsmoothed Prices'!$B$70:$B$127,1,FALSE)","v":"250W Sodium Vapour"}]
["Sodium Vapour","400W Sodium Vapour",554,582,611,642,"5% increase per FY",null,{"$f":"VLOOKUP(B49,'Unsmoothed Prices'!$B$70:$B$127,1,FALSE)","v":"400W Sodium Vapour"}]
["Sodium Vapour","250W Sodium Vapour - Flood Light",30,32,33,35,"5% increase per FY",null,{"$f":"VLOOKUP(B50,'Unsmoothed Prices'!$B$70:$B$127,1,FALSE)","v":"250W Sodium Vapour - Flood Light"}]
["Sodium Vapour","400W Sodium Vapour - Flood Light",30,32,33,35,"5% increase per FY",null,{"$f":"VLOOKUP(B51,'Unsmoothed Prices'!$B$70:$B$127,1,FALSE)","v":"400W Sodium Vapour - Flood Light"}]
["Fluorescent","20 Fluorescent 1X20FL",6,6,0,0,"Plan to remove all these lights types by 2017-18",null,{"$f":"VLOOKUP(B52,'Unsmoothed Prices'!$B$70:$B$127,1,FALSE)","v":"20 Fluorescent 1X20FL"}]
["Fluorescent","1x40W Fluorescent",37,37,0,0,"Plan to remove all these lights types by 2017-18",null,{"$f":"VLOOKUP(B53,'Unsmoothed Prices'!$B$70:$B$127,1,FALSE)","v":"1x40W Fluorescent"}]
["Fluorescent","2x20W Fluorescent",33,33,0,0,"Plan to remove all these lights types by 2017-18",null,{"$f":"VLOOKUP(B54,'Unsmoothed Prices'!$B$70:$B$127,1,FALSE)","v":"2x20W Fluorescent"}]
["Fluorescent","2x40W Fluorescent",3,3,0,0,"Plan to remove all these lights types by 2017-18",null,{"$f":"VLOOKUP(B55,'Unsmoothed Prices'!$B$70:$B$127,1,FALSE)","v":"2x40W Fluorescent"}]
["Fluorescent","T5 Fluorescent 2 x 24W",40,83,83,83,"Install 43 in 16/17",null,{"$f":"VLOOKUP(B56,'Unsmoothed Prices'!$B$70:$B$127,1,FALSE)","v":"T5 Fluorescent 2 x 24W"}]
["Fluorescent","4x20 Fluorescent",1,1,0,0,"Plan to remove all these lights types by 2017-18",null,{"$f":"VLOOKUP(B57,'Unsmoothed Prices'!$B$70:$B$127,1,FALSE)","v":"4x20 Fluorescent"}]
["Fluorescent","4x40W Fluorescent",1,1,0,0,"Plan to remove all these lights types by 2017-18",null,{"$f":"VLOOKUP(B58,'Unsmoothed Prices'!$B$70:$B$127,1,FALSE)","v":"4x40W Fluorescent"}]
["Fluorescent","42W Compact Fluorescent - Bottom Pole Entry",20,70,120,170,"204 Rexel Bathurst Fittings will be replaced with these fittings",null,{"$f":"VLOOKUP(B59,'Unsmoothed Prices'!$B$70:$B$127,1,FALSE)","v":"42W Compact Fluorescent - Bottom Pole Entry"}]
["Fluorescent","42W Compact Fluorescent",6320,6004,5704,5419,"No new 42W CFL from 15-16 onwards; number will decrease due to fault",null,{"$f":"VLOOKUP(B60,'Unsmoothed Prices'!$B$70:$B$127,1,FALSE)","v":"42W Compact Fluorescent"}]
["Incandescent","60W Incandescent",13,13,0,0,"Plan to remove all these lights types by 2017-18",null,{"$f":"VLOOKUP(B61,'Unsmoothed Prices'!$B$70:$B$127,1,FALSE)","v":"60W Incandescent"}]
["Incandescent","100W Incandescent",6,6,0,0,"Plan to remove all these lights types by 2017-18",null,{"$f":"VLOOKUP(B62,'Unsmoothed Prices'!$B$70:$B$127,1,FALSE)","v":"100W Incandescent"}]
["Metal Halide","100W Metal Halide",15,16,17,17,"5% increase per FY",null,{"$f":"VLOOKUP(B63,'Unsmoothed Prices'!$B$70:$B$127,1,FALSE)","v":"100W Metal Halide"}]
["Metal Halide","150W Metal Halide",13,14,14,15,"2% increase per FY",null,{"$f":"VLOOKUP(B64,'Unsmoothed Prices'!$B$70:$B$127,1,FALSE)","v":"150W Metal Halide"}]
["Metal Halide","250W Metal Halide",78,86,88,89,"2% increase per FY",null,{"$f":"VLOOKUP(B65,'Unsmoothed Prices'!$B$70:$B$127,1,FALSE)","v":"250W Metal Halide"}]
["Metal Halide","400W Metal Halide",15,16,17,17,"5% increase per FY",null,{"$f":"VLOOKUP(B66,'Unsmoothed Prices'!$B$70:$B$127,1,FALSE)","v":"400W Metal Halide"}]
["LED","18W LED Decorative - Bottom Pole Entry",30,32,33,35,"5% increase per FY",null,{"$f":"VLOOKUP(B67,'Unsmoothed Prices'!$B$70:$B$127,1,FALSE)","v":"18W LED Decorative - Bottom Pole Entry"}]
["LED","18W LED Decorative - Side Entry",30,32,33,35,"5% increase per FY",null,{"$f":"VLOOKUP(B68,'Unsmoothed Prices'!$B$70:$B$127,1,FALSE)","v":"18W LED Decorative - Side Entry"}]
["LED","18W LED Decorative - Top Entry",30,32,33,35,"5% increase per FY",null,{"$f":"VLOOKUP(B69,'Unsmoothed Prices'!$B$70:$B$127,1,FALSE)","v":"18W LED Decorative - Top Entry"}]
["LED","18W LED",2000,6000,10110,14210,"as per DD17",null,{"$f":"VLOOKUP(B70,'Unsmoothed Prices'!$B$70:$B$127,1,FALSE)","v":"18W LED"}]
["LED","25W LED Decorative - Bottom Pole Entry",30,32,33,35,"5% increase per FY",null,{"$f":"VLOOKUP(B71,'Unsmoothed Prices'!$B$70:$B$127,1,FALSE)","v":"25W LED Decorative - Bottom Pole Entry"}]
["LED","25W LED Decorative - Side Entry",30,32,33,35,"5% increase per FY",null,{"$f":"VLOOKUP(B72,'Unsmoothed Prices'!$B$70:$B$127,1,FALSE)","v":"25W LED Decorative - Side Entry"}]
["LED","25W LED Decorative - Top Entry",30,32,33,35,"5% increase per FY",null,{"$f":"VLOOKUP(B73,'Unsmoothed Prices'!$B$70:$B$127,1,FALSE)","v":"25W LED Decorative - Top Entry"}]
["LED","25W LED",21,21,21,21,"Use up of 25W StreetLED Stock",null,{"$f":"VLOOKUP(B74,'Unsmoothed Prices'!$B$70:$B$127,1,FALSE)","v":"25W LED"}]
["LED","88 LED Light",0,0,0,0,"None on the network",null,{"$f":"VLOOKUP(B75,'Unsmoothed Prices'!$B$70:$B$127,1,FALSE)","v":"88 LED Light"}]
["Metal Halide","250W Metal Halide - Flood Light",30,32,33,35,null,null,{"$f":"VLOOKUP(B76,'Unsmoothed Prices'!$B$70:$B$127,1,FALSE)","v":"250W Metal Halide - Flood Light"}]
["Metal Halide","400W Metal Halide - Flood Light",30,32,33,35,null,null,{"$f":"VLOOKUP(B77,'Unsmoothed Prices'!$B$70:$B$127,1,FALSE)","v":"400W Metal Halide - Flood Light"}]
[]
[]
[null,"Total Public Lighting",{"$f":"SUM(C39:C79)","v":42878},43181,43293,43662]
[null,"Movement",null,{"$f":"D80-C80","v":303},{"$f":"E80-D80","v":112},369]
[null,"Difference due to rounding.",null,null,1,-3]
[]
[null,"Total Lights",{"$f":"C33+C80","v":49250},49580,49622,50020]
[null,"% movement",null,{"$f":"(D84-C84)/C84","v":6.7005076142131982E-3},{"$f":"(E84-D84)/D84","v":8.4711577248890678E-4},{"$f":"(F84-E84)/E84","v":8.0206360082221602E-3}]
[]
["Duplicates"]
[{"$f":"VLOOKUP(B88,'Revenue Nominal RAB'!$B$232:$B$294,1,FALSE)","v":"250W Metal Halide"},"250W Metal Halide",78,86,88,89,"5% increase per FY"]
[{"$f":"VLOOKUP(B89,'Revenue Nominal RAB'!$B$232:$B$294,1,FALSE)","v":"400W Metal Halide"},"400W Metal Halide",15,16,17,17,"5% increase per FY"]
[]
[]
[]
[]
[]
[null,"Totals of Types"]
[null,"Mercury Vapour",{"$f":"SUMIF($A$39:$A$79,$B96,C$39:C$79)","v":23022},{"$f":"SUMIF($A$39:$A$79,$B96,D$39:D$79)","v":18970},14734,10612]
[null,"Sodium Vapour",{"$f":"SUMIF($A$39:$A$79,$B97,C$39:C$79)","v":10994},11545,12121,12729]
[null,"Fluorescent",6461,6238,5907,5672]
[null,"Incandescent",19,19,0,0]
[null,"Metal Halide",181,196,202,208]
[null,"LED",2201,6213,10329,14441]

{"sheet":"Warehouse Pricing","index":20,"n_rows":112,"n_cols":25,"rows_kept":112,"cut":false,"hidden":false,"merged":[]}
["Received from the inventory officer, Inventory Analyst. These are the current contracted prices for various lighting materials."]
[]
[]
[]
["TasNetworks ",null,"Contract: G/002027SY "]
["Supplier:   Gerard Lighting"]
[null,null,null,null,null,null,null,null,null,null,null,null,null,null,null,null,null,null,null,null,null,0.03]
["CONTRACT ITEM NO.","TENDER ITEM NO.","S.I. NO.","ITEM NAME","DESCRIPTION","SAMPLE REQUIRED","ESTIMATED ANNUAL VOLUME REQUIRED ","MANUFACTURER","BRAND AND/OR CATALOGUE NO.","COUNTRY OF ORIGIN","MIN ORDER QUANTITY","STANDARD PACK QUANTITY","LEAD TIME FOR DELIVERY TO AURORA WAREHOUSE FOR AMC (CALENDAR DAYS)","NETT TENDERED RATE CIP CAMBRIDGE    YEAR 1                         1/04/2013 - 31/03/2014                ($ EACH)","NETT TENDERED RATE CIP CAMBRIDGE    YEAR 2                         1/04/2014 - 31/03/2015                ($ EACH)","NETT TENDERED RATE CIP CAMBRIDGE    YEAR 3                         1/04/2015 - 31/03/2016                ($ EACH)","EXCHANGE RATE CURRENCY","$ Variance","Currency Review Nett Price          October 1st  2015 to March 31st 2016   (Excl GST)",null,null,"Contract Increase","Warehouse ",{"$f":"'Master Data'!I29","v":"2017-18"}]
[1,1,null,null,null,null,null,null,null,null,null,null,null,159.775251206897,{"$f":"N9*1.03","v":164.56850874310391},{"$f":"O9*1.03","v":169.50556400539702},"N/A",{"$f":"S9-P9","v":0},{"$f":"P9","v":169.50556400539702},null,null,{"$f":"P9*(1+$V$7)","v":174.59073092555894},{"$f":"V9*(Inputs!$D$6)","v":14.316439935895835},{"$f":"SUM(V9:W9)","v":188.90717086145477}]
[2,2,null,null,null,null,null,null,null,null,null,null,null,205.11142000000001,{"$f":"N10*1.03","v":211.26476260000001},217.60270547800002,"N/A",{"$f":"S10-P10","v":0},{"$f":"P10","v":217.60270547800002},null,null,{"$f":"P10*(1+$V$7)","v":224.13078664234001},{"$f":"V10*(Inputs!$D$6)","v":18.378724504671883},{"$f":"SUM(V10:W10)","v":242.50951114701189}]
[3,17,null,null,null,null,null,null,null,null,null,null,null,310.89975000000004,320.22674250000006,329.83354477500006,"N/A",0,329.83354477500006,null,null,339.7285511182501,{"$f":"V11*(Inputs!$D$6)","v":27.857741191696508},367.5862923099466]
[4,14,null,null,null,null,null,null,null,null,null,null,null,157.84351666666666,162.57882216666667,167.45618683166668,"N/A",0,167.45618683166668,null,null,172.47987243661669,{"$f":"V12*(Inputs!$D$6)","v":14.143349539802569},186.62322197641925]
[5,15,null,null,null,null,null,null,null,null,null,null,null,114.74455833333333,118.18689508333334,121.73250193583334,"N/A",0,121.73250193583334,null,null,125.38447699390835,{"$f":"V13*(Inputs!$D$6)","v":10.281527113500486},135.66600410740884,{"$f":"AVERAGE(X12:X13)","v":161.14461304191406}]
[6,16,null,null,null,null,null,null,null,null,null,null,null,131.05863366666665,134.99039267666666,139.04010445696667,"N/A",0,139.04010445696667,null,null,143.21130759067569,{"$f":"V14*(Inputs!$D$6)","v":11.743327222435408},154.95463481311108]
[7,18,null,null,null,null,null,null,null,null,null,null,null,148.59800333333334,153.05594343333334,157.64762173633335,"N/A",0,157.64762173633335,null,null,162.37705038842336,{"$f":"V15*(Inputs!$D$6)","v":13.314918131850716},175.69196852027406]
[8,8,null,null,null,null,null,null,null,null,null,null,null,183.42742933333335,188.93025221333335,194.59815977973335,"N/A",0,194.59815977973335,null,null,200.43610457312536,{"$f":"V16*(Inputs!$D$6)","v":16.43576057499628},216.87186514812163]
[9,19,null,null,null,null,null,null,null,null,null,null,null,210.64196433333333,216.96122326333335,223.47005996123335,"N/A",0,223.47005996123335,null,null,230.17416176007035,{"$f":"V17*(Inputs!$D$6)","v":18.87428126432577},249.04844302439611]
[10,10,null,null,null,null,null,null,null,null,null,null,null,191.43187933333334,197.17483571333335,203.09008078473335,"N/A",0,203.09008078473335,null,null,209.18278320827534,{"$f":"V18*(Inputs!$D$6)","v":17.15298822307858},226.33577143135392]
[11,21,null,null,null,null,null,null,null,null,null,null,null,201.00991433333334,207.04021176333336,213.25141811623337,"N/A",0,213.25141811623337,null,null,219.64896065972039,{"$f":"V19*(Inputs!$D$6)","v":18.011214774097073},237.66017543381747,{"$f":"AVERAGE(X18:X19)","v":231.9979734325857}]
[12,12,null,null,null,null,null,null,null,null,null,null,null,277.97571266666665,286.31498404666667,294.90443356806668,"N/A",0,294.90443356806668,null,null,303.75156657510871,{"$f":"V20*(Inputs!$D$6)","v":24.907628459158914},328.65919503426761]
[13,23,null,null,null,null,null,null,null,null,null,null,null,243.25074766666665,250.54827009666667,258.0647181995667,"N/A",0,258.0647181995667,null,null,265.8066597455537,{"$f":"V21*(Inputs!$D$6)","v":21.796146099135406},287.6028058446891,{"$f":"AVERAGE(X20:X21)","v":308.13100043947838}]
[14,25,null,null,null,null,null,null,null,null,null,null,null,116.22262500000001,119.70930375000002,123.30058286250002,"N/A",0,123.30058286250002,null,null,126.99960034837503,{"$f":"V22*(Inputs!$D$6)","v":10.413967228566753},137.41356757694177]
[15,26,null,null,null,null,null,null,null,null,null,null,null,158.10873666666669,162.8519987666667,167.73755872966669,"N/A",0,167.73755872966669,null,null,172.76968549155669,{"$f":"V23*(Inputs!$D$6)","v":14.167114210307648},186.93679970186435,{"$f":"AVERAGE(X22:X23)","v":162.17518363940306}]
[16,27,null,null,null,null,null,null,null,null,null,null,null,183.42742933333335,188.93025221333335,194.59815977973335,"N/A",0,194.59815977973335,null,null,200.43610457312536,{"$f":"V24*(Inputs!$D$6)","v":16.43576057499628},216.87186514812163]
[17,28,null,null,null,null,null,null,null,null,null,null,null,216.76076266666666,223.26358554666666,229.96149311306667,"N/A",0,229.96149311306667,null,null,236.86033790645868,{"$f":"V25*(Inputs!$D$6)","v":19.422547708329613},256.28288561478831,{"$f":"AVERAGE(X24:X25)","v":236.57737538145497}]
[18,30,null,null,null,null,null,null,null,null,null,null,null,190.61521266666668,196.33366904666667,202.22367911806668,"N/A",0,202.22367911806668,null,null,208.29038949160869,{"$f":"V26*(Inputs!$D$6)","v":17.079811938311913},225.3702014299206]
[19,31,null,null,null,null,null,null,null,null,null,null,null,223.94854600000002,230.66700238000004,237.58701245140006,"N/A",0,237.58701245140006,null,null,244.71462282494207,{"$f":"V27*(Inputs!$D$6)","v":20.06659907164525},264.78122189658734,{"$f":"AVERAGE(X26:X27)","v":245.07571166325397}]
[20,33,null,null,null,null,null,null,null,null,null,null,null,598.7849609264706,616.74850975426477,635.2509650468927,"NA",0,635.2509650468927,null,null,654.30849399829947,{"$f":"V28*(Inputs!$D$6)","v":53.65329650786056},707.96179050616001]
[21,34,null,null,null,null,null,null,null,null,null,null,null,243.25074766666665,250.54827009666667,258.0647181995667,"N/A",0,258.0647181995667,null,null,265.8066597455537,{"$f":"V29*(Inputs!$D$6)","v":21.796146099135406},287.6028058446891,{"$f":"AVERAGE(X28:X29)","v":497.78229817542456}]
[22,38,null,null,null,null,null,null,null,null,null,null,null,354.28311666666667,364.91161016666666,375.85895847166665,"N/A",0,375.85895847166665,null,null,387.13472722581668,{"$f":"V30*(Inputs!$D$6)","v":31.745047632516968},418.87977485833363]
[23,39,null,null,null,null,null,null,null,null,null,null,null,364.86108333333328,375.80691583333328,387.0811233083333,"N/A",0,387.0811233083333,null,null,398.69355700758331,{"$f":"V31*(Inputs!$D$6)","v":32.692871674621834},431.38642868220512]
[24,40,null,null,null,null,null,null,null,null,null,null,null,307.60145,316.82949350000001,326.33437830500003,"N/A",0,326.33437830500003,null,null,336.12440965415004,{"$f":"V32*(Inputs!$D$6)","v":27.562201591640303},363.68661124579035]
[25,41,null,null,null,null,null,null,null,null,null,null,null,348.17028333333337,358.61539183333338,369.37385358833336,"N/A",0,369.37385358833336,null,null,{"$f":"P33*(1+$V$7)","v":380.45506919598336},{"$f":"V33*(Inputs!$D$6)","v":31.197315674070637},411.65238487005399]
[26,49,null,null,null,null,null,null,null,null,null,null,null,7.7472499999999993,7.9796674999999997,8.2190575250000002,"USD",3.4709424749999993,11.69,null,null,8.4656292507500002,{"$f":"V34*(Inputs!$D$6)","v":0.69418159856150008},9.1598108493114996]
[27,51,null,null,null,null,null,null,null,null,null,null,null,2.7155,2.7969650000000001,2.8808739500000002,"USD",1.2191260499999994,4.0999999999999996,null,null,2.9673001685000004,{"$f":"V35*(Inputs!$D$6)","v":0.24331861381700004},3.2106187823170007]
[28,52,null,null,null,null,null,null,null,null,null,null,null,2.2586249999999999,2.3263837499999998,2.3961752624999999,"USD",1.0138247375000002,3.41,null,null,2.4680605203749999,{"$f":"V36*(Inputs!$D$6)","v":0.20238096267075001},2.6704414830457499]
[29,53,null,null,null,null,null,null,null,null,null,null,null,2.296125,2.3650087499999999,2.4359590125000001,"USD",1.0340409875000001,3.47,null,null,2.5090377828750001,{"$f":"V37*(Inputs!$D$6)","v":0.20574109819575001},2.71477888107075]
[30,58,null,null,null,null,null,null,null,null,null,null,null,8.4723749999999995,8.7265462500000002,8.9883426375000006,"Euro",1.9416573624999991,10.93,null,null,9.2579929166250015,{"$f":"V38*(Inputs!$D$6)","v":0.75915541916325013},10.017148335788251]
[31,60,null,null,null,null,null,null,null,null,null,null,null,7.7006249999999996,7.9316437500000001,8.1695930625000006,"USD",3.4504069374999986,11.62,null,null,8.4146808543750016,{"$f":"V39*(Inputs!$D$6)","v":0.69000383005875021},9.1046846844337512]
[32,61,null,null,null,null,null,null,null,null,null,null,null,15.45,15.913499999999999,16.390905,"Euro",3.5390949999999997,19.93,null,null,16.882632149999999,{"$f":"V40*(Inputs!$D$6)","v":1.3843758363000001},{"$f":"SUM(V40:W40)","v":18.267007986299998}]
[33,66,null,null,null,null,null,null,null,null,null,null,null,15.391499999999999,15.853244999999999,16.328842349999999,"USD",6.8911576500000002,23.22,null,null,16.8187076205,{"$f":"V41*(Inputs!$D$6)","v":1.379134024881},18.197841645381001]
[34,67,null,null,null,null,null,null,null,null,null,null,null,17.308374999999998,17.827626249999998,18.362455037499998,"USD",7.747544962500001,26.11,null,null,18.913328688625,{"$f":"V42*(Inputs!$D$6)","v":1.5508929524672501},20.464221641092252]
[35,68,null,null,null,null,null,null,null,null,null,null,null,17.958124999999999,18.496868750000001,19.0517748125,"USD",8.0382251875000001,27.09,null,null,19.623328056875,{"$f":"V43*(Inputs!$D$6)","v":1.6091129006637501},21.232440957538749]
[36,69,null,null,null,null,null,null,null,null,null,null,null,15.124999999999998,15.578749999999999,16.0461125,"USD",6.7838874999999987,22.83,null,null,16.527495875,{"$f":"V44*(Inputs!$D$6)","v":1.3552546617500001},17.882750536749999]
[37,70,null,null,null,null,null,null,null,null,null,null,null,15.4,15.862,16.337859999999999,"USD",6.9021399999999993,23.24,null,null,16.8279958,{"$f":"V45*(Inputs!$D$6)","v":1.3798956556000002},18.207891455599999]
[38,74,null,null,null,null,null,null,null,null,null,null,null,4.6453333333333333,4.7846933333333332,4.9282341333333335,"USD",2.0817658666666663,7.01,null,null,5.0760811573333333,{"$f":"V46*(Inputs!$D$6)","v":0.41623865490133333},5.4923198122346664]
[39,75,null,null,null,null,null,null,null,null,null,null,null,3.0385,3.1296550000000001,3.22354465,"Euro",0.69645534999999992,3.92,null,null,3.3202509895000003,{"$f":"V47*(Inputs!$D$6)","v":0.27226058113900004},3.5925115706390005]
[40,76,null,null,null,null,null,null,null,null,null,null,null,31.902926829268299,32.860014634146346,33.845815073170733,"N/A","NA",{"$f":"P48","v":33.845815073170733},null,null,{"$f":"P48*(1+$V$7)","v":34.861189525365859},{"$f":"V48*(Inputs!$D$6)","v":2.8586175410800005},37.71980706644586]
[41,77,null,null,null,null,null,null,null,null,null,null,null,31.922800000000002,32.880484000000003,33.866898520000007,"N/A","NA",33.866898520000007,null,null,34.882905475600005,{"$f":"V49*(Inputs!$D$6)","v":2.8603982489992004},37.743303724599208]
[42,78,null,null,null,null,null,null,null,null,null,null,null,138.58000000000001,142.73740000000001,147.01952200000002,"N/A","NA",147.01952200000002,null,null,151.43010766000003,{"$f":"V50*(Inputs!$D$6)","v":12.417268828120003},163.84737648812003]
[43,62,null,null,null,null,null,null,null,null,null,null,null,48.729272727272729,50.191150909090915,51.696885436363644,"N/A","NA",51.696885436363644,null,null,53.247791999454556,{"$f":"V51*(Inputs!$D$6)","v":4.3663189439552736},57.614110943409827]
[44,63,null,null,null,null,null,null,null,null,null,null,null,53.303428571428569,54.902531428571429,56.549607371428571,"N/A","NA",56.549607371428571,null,null,58.246095592571429,{"$f":"V52*(Inputs!$D$6)","v":4.7761798385908572},63.022275431162285]
[45,64,null,null,null,null,null,null,null,null,null,null,null,4.5555555555555554,4.6922222222222221,4.832988888888889,"N/A","NA",4.832988888888889,null,null,4.9779785555555556,{"$f":"V53*(Inputs!$D$6)","v":0.40819424155555556},5.3861727971111115]
[46,65,null,null,null,null,null,null,null,null,null,null,null,8.3047499999999985,8.5538924999999981,8.91,"N/A","NA",8.91,null,null,9.1773000000000007,{"$f":"V54*(Inputs!$D$6)","v":0.75253860000000006},9.9298386000000001]
[47,67,null,null,null,null,null,null,null,null,null,null,null,14.32,14.749600000000001,15.192088000000002,"USD",{"$f":"S55-P55","v":4.8479119999999973},20.04,null,null,15.647850640000001,{"$f":"V55*(Inputs!$D$6)","v":1.2831237524800001},16.930974392480003]
[48,68,null,null,null,null,null,null,null,null,null,null,null,4.916666666666667,5.0641666666666669,5.2160916666666672,"USD",{"$f":"S56-P56","v":2.2039083333333327},7.42,null,null,5.3725744166666676,{"$f":"V56*(Inputs!$D$6)","v":0.44055110216666676},5.8131255188333339]
[]
["Additions:","Addendum"]
[null,null,null,null,null,null,null,null,null,null,null,null,null,null,69.95,null,null,"NA",69.95,null,null,{"$f":"P59*(1+$V$7)","v":0},{"$f":"V59*(Inputs!$D$6)","v":0},{"$f":"SUM(V59:W59)","v":0}]
[70,2,null,null,null,null,null,null,null,null,null,null,null,null,325,338,"TBA","TBA",338,null,null,348.14,{"$f":"V60*(Inputs!$D$6)","v":28.54748},376.68747999999999]
[73,5,null,null,null,null,null,null,null,null,null,null,null,null,null,348,"TBA","TBA",348,null,null,358.44,{"$f":"V61*(Inputs!$D$6)","v":29.39208},387.83208000000002]
[76,8,null,null,null,null,null,null,null,null,null,null,null,null,50,51.5,"NA","NA",{"$f":"P62","v":51.5},null,null,53.045000000000002,{"$f":"V62*(Inputs!$D$6)","v":4.3496900000000007},57.394690000000004]
[null,null,null,null,null,null,null,null,null,null,null,null,null,null,74,76.22,"NA","NA",{"$f":"P63","v":76.22},null,null,78.506600000000006,{"$f":"V63*(Inputs!$D$6)","v":6.437541200000001},84.944141200000004]
[null,null,null,null,null,null,null,null,null,null,null,null,null,null,65,66.95,"NA","NA",{"$f":"P64","v":66.95},null,null,68.958500000000001,{"$f":"V64*(Inputs!$D$6)","v":5.6545969999999999},74.613096999999996]
[null,null,null,null,null,null,null,null,null,null,null,null,null,null,null,85,null,null,85,null,null,87.55,{"$f":"V65*(Inputs!$D$6)","v":7.1791},94.729100000000003]
[null,null,null,null,null,null,null,null,null,null,null,null,null,null,90,92.7,"NA","NA",{"$f":"P66","v":92.7},null,null,95.481000000000009,{"$f":"V66*(Inputs!$D$6)","v":7.8294420000000011},103.31044200000001]
[null,null,null,null,null,null,null,null,null,null,null,null,null,null,null,76.22,null,null,76.22,null,null,78.506600000000006,{"$f":"V67*(Inputs!$D$6)","v":6.437541200000001},84.944141200000004]
[79,11,null,null,null,null,null,null,null,null,null,null,null,null,16.579999999999998,17.239999999999998,"TBA","TBA",17.239999999999998,null,null,17.757199999999997,{"$f":"V68*(Inputs!$D$6)","v":1.4560903999999999},19.213290399999998]
[]
[]
[]
[]
[]
[]
[]
[]
[]
[]
[]
[]
[]
[]
["Contract SOR"]
["CONTRACT ITEM NO.","TENDER ITEM NO.","S.I. NO.","ITEM NAME","DESCRIPTION","ESTIMATED ANNUAL VOLUME REQUIRED ","ESTIMATED ANNUAL VOLUME REQUIRED ","MANUFACTURER","BRAND AND/OR CATALOGUE NO.","COUNTRY OF ORIGIN","MIN ORDER QUANTITY","STANDARD PACK QUANTITY","LEAD TIME FOR DELIVERY TO TASNETWORKS WAREHOUSE FOR AMC (CALENDAR DAYS)","NETT TENDERED RATE CIP CAMBRIDGE          YEAR 1        (01/10/2013 to 30/09/2014)                  ($ EACH ex. gst)","NETT TENDERED RATE CIP CAMBRIDGE          YEAR 2        (01/10/2014 to 30/09/2015)                  ($ EACH ex. gst)"]
[1,54,"15.97.35","LAMP"," ELLIPTICAL MERCURY VAPOUR, HIGH  PRESSURE COLOUR CORRECTED, 250V, 250W,TYPE, E.S.","260 in 13/14, then 50 after that",null,"GE Lighting","74782E","China",1,12,"13 weeks",2.375,2.375,{"$f":"O85*1.03","v":2.44625},null,null,null,null,null,{"$f":"P85*(1+$V$7)","v":2.5196375},{"$f":"V85*(Inputs!$D$6)","v":0.20661027500000001},{"$f":"SUM(V85:W85)","v":2.726247775}]
[2,56,"15.97.37","LAMP"," ELLIPTICAL CAOTED MERCURY VAPOUR, HIGH PRESSURE, COLOUR CORRECTED, 250V, 400W,TYPE, E.S.","230 in 13/14, then 50 after that",null,"GE Lighting",44185,"China",1,12,"13 weeks",4.6550000000000002,4.6550000000000002,4.7946500000000007,null,null,null,null,null,{"$f":"P86*(1+$V$7)","v":4.9384895000000011},{"$f":"V86*(Inputs!$D$6)","v":0.4049561390000001},{"$f":"SUM(V86:W86)","v":5.3434456390000014}]
[3,59,"16.06.12","LAMP"," LAMP, SODIUM VAPOUR TUBULAR, HIGH PRESSURE, COATED, 250V, 100W, G.E.S BASE, W/O IGNITOR, CAT V STREETLIGHT,4-YEAR LIFE MINIMUM",5,null,"GE Lighting",93767,"Hungary/China",1,12,"13 weeks",15.2,15.2,15.655999999999999,null,null,null,null,null,16.125679999999999,{"$f":"V87*(Inputs!$D$6)","v":1.3223057599999999},17.447985759999998]
[4,62,"16.06.02","LAMP"," LAMP, SODIUM VAPOUR HIGH PRESSURE, ELLYPTICAL, COATED. DIFFUSING,  W/O IGNITER, 250V, 150 W, G.E.S. COATED 4 YEAR LIFE MINIMUM",1300,null,"GE Lighting",44245,"Hungary/China",1,12,"13 weeks",15.2,15.2,15.655999999999999,null,null,null,null,null,16.125679999999999,{"$f":"V88*(Inputs!$D$6)","v":1.3223057599999999},17.447985759999998]
[5,63,"16.06.11","LAMP"," SODIUM VAPOUR,  TUBULAR, HIGH PRESSURE, COATED, 250V, 150W, GES BASE, W/O IGNITOR,  CAT V STREETLIGHT, 4 YEAR LIFE MINIMUM","Combined quantity with item 62",null,"GE Lighting",93377,"Hungary/China",1,12,"13 weeks",15.2,15.2,15.655999999999999,null,null,null,null,null,16.125679999999999,{"$f":"V89*(Inputs!$D$6)","v":1.3223057599999999},17.447985759999998]
[6,64,"16.06.04","LAMP"," SODIUM VAPOUR HIGH PRESSURE, ELLYPTICAL, E40, COATED,DIFFUSING, W/O IGNITER, 250V, 250 W, G.E.S.  4 YEAR LIFE MINIMUM",1500,null,"GE Lighting",44052,"Hungary/China",1,12,"13 weeks",15.2,15.2,15.655999999999999,null,null,null,null,null,16.125679999999999,{"$f":"V90*(Inputs!$D$6)","v":1.3223057599999999},17.447985759999998]
[7,65,"16.06.05","LAMP"," SODIUM VAPOUR,  TUBULAR, CLEAR, 250V, 250 W, W/O IGNITOR, G.E.S. 4 YEAR LIFE MINIMUM","Combined quantity with item 64",null,"GE Lighting",93378,"Hungary/China",1,12,"13 weeks",15.2,15.2,15.655999999999999,null,null,null,null,null,16.125679999999999,{"$f":"V91*(Inputs!$D$6)","v":1.3223057599999999},17.447985759999998]
[8,71,"16.06.52","LAMP"," METAL HALIDE, ELLIPTICAL, 250V, 150W, E40 BASE W/O IGNITOR",30,null,"GE Lighting",43285,"Hungary",1,12,"13 weeks",18.05,18.05,18.5915,null,null,null,null,null,19.149245000000001,{"$f":"V92*(Inputs!$D$6)","v":1.5702380900000001},20.719483090000001]
[9,72,"16.06.53","LAMP"," METAL HALIDE, TUBULAR, 250V, 250W, E40  BASE, W/O IGNITOR",30,null,"GE Lighting",10589,"Hungary",1,12,"13 weeks",18.05,18.05,18.5915,null,null,null,null,null,19.149245000000001,{"$f":"V93*(Inputs!$D$6)","v":1.5702380900000001},20.719483090000001]
[10,73,"16.06.54","LAMP"," METAL HALIDE, TUBULAR, 250V, 400W, E40  BASE, W/O IGNITOR",10,null,"GE Lighting",13067,"Hungary",1,12,"13 weeks",28.5,28.5,29.355,null,null,null,null,null,30.23565,{"$f":"V94*(Inputs!$D$6)","v":2.4793232999999999},32.714973299999997]
[11,80,"N/A","RE-PACK CHARGE","CHARGE PER PURCHASE ORDER WHERE ONE OR MORE LINES ON THE PURCHASE ORDER IS FOR A QUANTITY LESS THAN THE STANDARD PACK QUANTITY","Unknown",null,"GE Lighting","N/A","Australia",1,"N/A","N/A",30,30,30.900000000000002,null,null,null,null,null,31.827000000000002,{"$f":"V95*(Inputs!$D$6)","v":2.6098140000000001},34.436813999999998]
[]
[]
[]
[]
[]
[]
[]
[]
[]
[null,null,null,null,null,null,"2014 Prices","Average","Index to 2017","Plus Warehouse",{"$f":"'Master Data'!I29","v":"2017-18"}]
["Manufacturer","Model Abbreviation","PL Tariff description","Power Comsumption (input wattage)","Work Category","Asset Life (years)","Luminaire UNIT price",null,{"$f":"'Master Data'!I31","v":1.0768906249999999}]
["Sylvania","Kensington 18W LED","18W LED Decorative - Bottom Pole Entry",21.9,"RLMIN",20,1085.53,{"$f":"AVERAGE(G107:G109)","v":914.13},{"$f":"H107*I106","v":984.41802703124984},{"$f":"I107*(Inputs!$D$6)","v":80.722278216562486},{"$f":"SUM(I107:J107)","v":1065.1403052478124}]
["Sylvania","Bourke Hill 18W LED Top","18W LED Decorative - Side Entry",21.9,"RLMIN",20,828.43]
["Sylvania","Bourke Hill 18W LED Side","18W LED Decorative - Top Entry",21.9,"RLMIN",20,828.43]
["Sylvania","Kensington 25W LED","25W LED Decorative - Bottom Pole Entry",29,"RLMIN",20,1085.53,{"$f":"AVERAGE(G110:G112)","v":914.13},{"$f":"H110*I106","v":984.41802703124984},{"$f":"I110*(Inputs!$D$6)","v":80.722278216562486},{"$f":"SUM(I110:J110)","v":1065.1403052478124}]
["Sylvania","Bourke Hill 25W LED Top","25W LED Decorative - Side Entry",29,"RLMIN",20,828.43]
["Sylvania","Bourke Hill 25W LED Side","25W LED Decorative - Top Entry",29,"RLMIN",20,828.43]

{"sheet":"Old Prices Indexed","index":21,"n_rows":27,"n_cols":16,"rows_kept":27,"cut":false,"hidden":false,"merged":[]}
["Link to file","Public Lighting Replacement Cost (Unit Rate Material Component) ($2009/10)"]
[null,"Taken from the 2012 Aurora determination cost inputs"]
[null,"Public Lighting Replacement Cost (Unit Rate Material Component) ($2009/10)"]
[null,"Light Description","Work\nCategory\nCode","Bracket\n(Material Cost)","Lamp Price\n(Material Cost)","Luminaire Price\n(Material Cost)","Energy Rating \n(watts)",null,"Lamp Price\nIndex to 2017/18 prices","Luminaire Price\nIndex to 2017/18 prices","Combined",null,null,null,1]
[null,"50W Mercury Vapour","RLMIN",184.84,2.35,68.489999999999995,65,null,{"$f":"E5*$O$12","v":2.8900861021698776},{"$f":"F5*$O$12","v":84.230637079836129},{"$f":"SUM(I5:J5)","v":87.120723182006003},null,1,{"$f":"'Master Data'!B30","v":2.6548672566371723E-2},{"$f":"O4*(1+N5)","v":1.0265486725663717}]
[null,"80W Mercury Vapour","RLMIN",184.84,1.93,68.489999999999995,95.8,null,{"$f":"E6*$O$12","v":2.3735600753990909},{"$f":"F6*$O$12","v":84.230637079836129},{"$f":"SUM(I6:J6)","v":86.604197155235227},null,2,{"$f":"'Master Data'!C30","v":3.1034482758620641E-2},1.0584070796460177]
[null,"80W Mercury Vapour Art decorative","RLMIN",184.84,1.93,744.87,95.8,null,2.3735600753990909,{"$f":"F7*$O$12","v":916.05890847799003},918.43246855338907,null,3,{"$f":"'Master Data'!D30","v":2.5999999999999999E-2},1.0859256637168142]
[null,"125W Mercury Vapour","RLMAJ",184.84,2.41,119.8,142,null,2.9638755345657044,{"$f":"F8*$O$12","v":147.33290001700055},150.29677555156627,null,4,{"$f":"'Master Data'!E30","v":2.5999999999999999E-2},1.1141597309734514]
[null,"250W Mercury Vapour","RLMAJ",184.84,5.05,136.11000000000001,270,null,6.2106105599820767,{"$f":"F9*$O$12","v":167.3913273899328},173.60193794991488,null,5,{"$f":"'Master Data'!F30","v":2.5000000000000001E-2},1.1420137242477877]
[null,"400W Mercury Vapour","RLMAJ",184.84,7.05,294.23,440,null,8.6702583065096324,361.8510782304013,370.52133653691095,null,6,{"$f":"'Master Data'!G30","v":2.5000000000000001E-2},1.1705640673539823]
[null,"70W Sodium Vapour","RLMIN",184.84,9.1199999999999992,148.03,86,null,11.215993724165651,182.05082795923701,193.26682168340267,null,7,{"$f":"'Master Data'!H30","v":2.5000000000000001E-2},1.1998281690378318]
[null,"100W Sodium Vapour","RLMIN",184.84,33.18,119.8,120,null,40.805556114892141,147.33290001700055,188.1384561318927,null,8,{"$f":"'Master Data'!I30","v":2.5000000000000001E-2},1.2298238732637776,{"$f":"'Master Data'!I35","v":1.2184028975099175}]
[null,"150W Sodium Vapour","RLMAJ",184.84,28.35,162.01,173,null,34.865506807028098,199.2437657074646,234.10927251449272]
[null,"250W Sodium Vapour","RLMAJ",184.84,27.15,166.45,273,null,33.38971815911156,204.70418370475576,238.09390186386733]
[null,"400W Sodium Vapour","RLMAJ",184.84,29.84,173.68,440,null,36.697944378191124,213.59581030845291,250.29375468664404]
[null,"150W Metal Halide","RLMAJ",184.84,28.35,162.01,168,null,34.865506807028098,199.2437657074646,234.10927251449272]
[null,"250W Metal Halide","RLMAJ",184.84,27.15,166.45,268,null,33.38971815911156,204.70418370475576,238.09390186386733]
[null,"400W Metal Halide","RLMAJ",184.84,27.15,166.45,268,null,33.38971815911156,204.70418370475576,238.09390186386733]
[null,"1x20W Fluorescent","RLMIN",184.84,4.3099999999999996,212.27,23.5,null,5.3005408937668808,261.0547135777021,266.35525447146898]
[null,"2x20W Fluorescent","RLMIN",184.84,8.6199999999999992,212.27,47,null,10.601081787533762,261.0547135777021,271.65579536523586]
[null,"1x40W Fluorescent","RLMIN",184.84,4.59,165.11,50,null,5.6448915782807392,203.05621971458234,208.70111129286309]
[null,"2x40W Fluorescent","RLMIN",184.84,9.18,165.11,100,null,11.289783156561478,203.05621971458234,214.34600287114381]
[null,"3x40W Fluorescent","RLMIN",184.84,13.77,165.11,150,null,16.934674734842218,203.05621971458234,219.99089444942456]
[null,"4x40W Fluorescent","RLMIN",184.84,44.04,229.33,200,null,54.161443378536767,282.03550885558212,336.1969522341189]
[null,"42W Compact Fluorescent","RLMIN",184.84,12.93,145.91,46.4,null,15.901622681300644,179.44360134791779,195.34522402921843]
[null,"60W Incandescent","RLMIN",184.84,1.84,45.87,60,null,2.2628759268053509,56.412021066609476,58.674896993414826]
[null,"100W Incandescent","RLMIN",184.84,1.84,45.87,100,null,2.2628759268053509,56.412021066609476,58.674896993414826]

{"sheet":"Bracket Summary","index":22,"n_rows":114,"n_cols":22,"rows_kept":114,"cut":false,"hidden":false,"merged":[[41,11,41,21],[41,1,41,10]]}
["Data from the Bracket database sample. These workings have been completed by Garrard which represents a sample of 10,000 brackets and what light is attached to that type."]
[]
["Count of OutreachArmType","Column Labels"]
["Row Labels","T1","T2","T3","T4","T5","TA","TB","TC","Grand Total"]
["CFL_32",null,null,null,4,null,null,null,null,4]
["CFL_42",1,null,39,972,12,1,12,2,1039]
["FL_1X20",null,null,null,null,1,null,null,null,1,null,null,"OUTREACHARM","OUTREACHARM$DESC"]
["FL_1X40",null,null,1,null,null,null,null,null,1,null,"Outreach Arm Type","NA","Not Applicable"]
["FL_2X24",null,null,null,1,null,null,null,null,1,null,"Outreach Arm Type","OTHER","Other"]
["HPS_100_E",null,null,2,1,null,null,null,null,3,null,"Outreach Arm Type","R1","Roadlighting Pole - outreach arm 0.6m"]
["HPS_100_T",null,null,7,13,11,null,null,4,35,null,"Outreach Arm Type","R2","Roadlighting Pole - outreach arm 1m"]
["HPS_150_E",2,null,3,1,null,null,null,null,6,null,"Outreach Arm Type","R3","Roadlighting Pole - outreach arm 1.25m"]
["HPS_150_T",91,6,32,124,100,2,4,1,360,null,"Outreach Arm Type","R4","Roadlighting Pole - outreach arm 1.5m"]
["HPS_150_TDA",null,null,1,null,null,null,null,null,1,null,"Outreach Arm Type","R5","Roadlighting Pole - outreach arm 2m"]
["HPS_250_E",3,null,1,null,2,null,null,null,6,null,"Outreach Arm Type","R6","Roadlighting Pole - outreach arm 3m"]
["HPS_250_T",118,6,22,55,77,1,null,2,281,null,"Outreach Arm Type","R7","Roadlighting Pole - outreach arm 4.5m"]
["HPS_250_TDA",2,null,null,1,null,null,null,null,3,null,"Outreach Arm Type","T1","Uplift Bracket - Type 1 (uplift 4.3m)"]
["HPS_400_T",7,null,2,2,6,5,4,2,28,null,"Outreach Arm Type","T2","Uplift Bracket - Type 2  (uplift 2.8m)"]
["HPS_400_TDA",null,2,null,null,null,null,null,null,2,null,"Outreach Arm Type","T3","Bracket - Type 3 (2m)"]
["HPS_70_E",null,null,1,1,null,null,null,null,2,null,"Outreach Arm Type","T4","Bracket - Type 4 (1.5m)"]
["INC_60",null,null,null,5,null,null,1,null,6,null,"Outreach Arm Type","T5","Bracket - Type 5 (3m)"]
["LED_18",null,null,502,3385,41,2,82,1,4013,null,"Outreach Arm Type","TA","Mounting Bracket - Type A (0.3m) (Vert. Mtd 25 NB)"]
["LED_18_1",null,null,null,5,null,null,null,null,5,null,"Outreach Arm Type","TB","Mounting Bracket - Type B (0.3m) (Horiz. Mtd 25 NB)"]
["LED_25",null,null,10,14,2,null,null,null,26,null,"Outreach Arm Type","TC","Mounting Bracket - Type C (0.3m) (Horiz. Mtd 32 NB)"]
["MV_250_E",5,2,4,6,2,null,1,null,20]
["MV_250_T",1,null,null,2,null,null,null,null,3]
["MV_400_E",4,3,3,1,3,1,null,null,15]
["MV_50_E",null,null,null,8,null,null,null,null,8]
["MV_80_E",4,null,277,4146,61,12,16,4,4520]
["Grand Total",238,19,907,8747,318,24,120,16,10389]
[]
["Unit Cost",444,347,142,96,169,58,50.97,49]
[null,238,19,907,8747,318,24,120,16,{"$f":"SUM(B33:I33)","v":10389}]
["% of Known Types",{"$f":"B33/$J$33","v":2.2908845894696314E-2},1.8288574453749157E-3,8.7303879102897289E-2,0.84194821445759938,3.0609298296274907E-2,2.310135720473578E-3,1.155067860236789E-2,1.5400904803157184E-3,{"$f":"SUM(B34:I34)","v":1}]
[null,{"$f":"B32*B33","v":105672},{"$f":"C32*C33","v":6593},{"$f":"D32*D33","v":128794},839712,53742,1392,6116.4,784,{"$f":"SUM(B35:I35)","v":1142805.3999999999}]
[]
[null,null,null,null,null,null,null,null,null,{"$f":"J35/GETPIVOTDATA(\"OutreachArmType\",$A$3)","v":110.0014823370873}]
[]
[]
[]
[]
[null,"Static of Pivot data above",null,null,null,null,null,null,null,null,null,"Weighting of costs using the unit cost above"]
[null,"Row Labels","T1","T2","T3","T4","T5","TA","TB","TC","Grand Total",{"$f":"C43&\" Cost\"","v":"T1 Cost"},{"$f":"D43&\" Cost\"","v":"T2 Cost"},"T3 Cost","T4 Cost","T5 Cost","TA Cost","TB Cost","TC Cost","Weightd Bracket Cost","Average if applicable","Weightd Bracket Cost net bracketless"]
[{"$f":"VLOOKUP(B44,Inputs!$E$69:$F$129,2,FALSE)","v":32},"CFL_32",null,null,null,4,null,null,null,null,4,{"$f":"IFERROR(C44*C$71,0)","v":0},{"$f":"IFERROR(D44*D$71,0)","v":0},{"$f":"IFERROR(E44*E$71,0)","v":0},{"$f":"IFERROR(F44*F$71,0)","v":384},{"$f":"IFERROR(G44*G$71,0)","v":0},{"$f":"IFERROR(H44*H$71,0)","v":0},{"$f":"IFERROR(I44*I$71,0)","v":0},{"$f":"IFERROR(J44*J$71,0)","v":0},{"$f":"SUM(L44:S44)/K44","v":96},null,{"$f":"T44*$I$76","v":74.363169923970332}]
[{"$f":"VLOOKUP(B45,Inputs!$E$69:$F$129,2,FALSE)","v":42},"CFL_42",1,null,39,972,12,1,12,2,1039,{"$f":"IFERROR(C45*C$71,0)","v":444},0,5538,93312,2028,58,611.64,98,{"$f":"SUM(L45:S45)/K45","v":98.257593840230996},{"$f":"SUM(L44:S45)/SUM(K44:K45)","v":98.248935762224349},{"$f":"T45*$I$76","v":76.111939031891239}]
[{"$f":"VLOOKUP(B46,Inputs!$E$69:$F$129,2,FALSE)","v":20},"FL_1X20",null,null,null,null,1,null,null,null,1,0,0,0,0,169,0,0,0,{"$f":"SUM(L46:S46)/K46","v":169},null,130.91016372032277]
[{"$f":"VLOOKUP(B47,Inputs!$E$69:$F$129,2,FALSE)","v":40},"FL_1X40",null,null,1,null,null,null,null,null,1,0,0,142,0,0,0,0,0,142,null,109.99552217920613]
[{"$f":"VLOOKUP(B48,Inputs!$E$69:$F$129,2,FALSE)","v":48},"FL_2X24",null,null,null,1,null,null,null,null,1,0,0,0,96,0,0,0,0,96,{"$f":"SUM(L46:S48)/SUM(K46:K48)","v":135.66666666666666},74.363169923970332]
[{"$f":"VLOOKUP(B49,Inputs!$E$69:$F$129,2,FALSE)","v":100},"HPS_100_E",null,null,2,1,null,null,null,null,3,0,0,284,96,0,0,0,0,126.66666666666667,null,98.118071427460862]
[{"$f":"VLOOKUP(B50,Inputs!$E$69:$F$129,2,FALSE)","v":100},"HPS_100_T",null,null,7,13,11,null,null,4,35,0,0,994,1248,1859,0,0,196,122.77142857142857,{"$f":"SUM(L49:S50)/SUM(K49:K50)","v":123.07894736842105},95.100756298601354]
[{"$f":"VLOOKUP(B51,Inputs!$E$69:$F$129,2,FALSE)","v":150},"HPS_150_E",2,null,3,1,null,null,null,null,6,888,0,426,96,0,0,0,0,235,null,182.0348430430524]
[{"$f":"VLOOKUP(B52,Inputs!$E$69:$F$129,2,FALSE)","v":150},"HPS_150_T",91,6,32,124,100,2,4,1,360,40404,2082,4544,11904,16900,116,203.88,49,211.67466666666667,null,163.96665839513659]
[{"$f":"VLOOKUP(B53,Inputs!$E$69:$F$129,2,FALSE)","v":150},"HPS_150_TDA",null,null,1,null,null,null,null,null,1,0,0,142,0,0,0,0,0,142,{"$f":"SUM(L51:S53)/SUM(K51:K53)","v":211.86615803814715},109.99552217920613]
[{"$f":"VLOOKUP(B54,Inputs!$E$69:$F$129,2,FALSE)","v":250},"HPS_250_E",3,null,1,null,2,null,null,null,6,1332,0,142,0,338,0,0,0,302,null,233.93413871915669]
[{"$f":"VLOOKUP(B55,Inputs!$E$69:$F$129,2,FALSE)","v":250},"HPS_250_T",118,6,22,55,77,1,null,2,281,52392,2082,3124,5280,13013,58,0,98,270.62989323843414,null,209.6343410145378]
[{"$f":"VLOOKUP(B56,Inputs!$E$69:$F$129,2,FALSE)","v":250},"HPS_250_TDA",2,null,null,1,null,null,null,null,3,888,0,0,96,0,0,0,0,328,{"$f":"SUM(L54:S56)/SUM(K54:K56)","v":271.87241379310348},254.07416390689866]
[{"$f":"VLOOKUP(B57,Inputs!$E$69:$F$129,2,FALSE)","v":400},"HPS_400_T",7,null,2,2,6,5,4,2,28,3108,0,284,192,1014,290,203.88,98,185.35285714285715,null,143.57735428758005]
[{"$f":"VLOOKUP(B58,Inputs!$E$69:$F$129,2,FALSE)","v":400},"HPS_400_TDA",null,2,null,null,null,null,null,null,2,0,694,0,0,0,0,0,0,347,{"$f":"SUM(L57:S58)/SUM(K57:K58)","v":196.12933333333334},268.79187462101777]
[{"$f":"VLOOKUP(B59,Inputs!$E$69:$F$129,2,FALSE)","v":70},"HPS_70_E",null,null,1,1,null,null,null,null,2,0,0,142,96,0,0,0,0,119,{"$f":"SUM(L59:S59)/SUM(K59)","v":119},92.17934605158824]
[{"$f":"VLOOKUP(B60,Inputs!$E$69:$F$129,2,FALSE)","v":60},"INC_60",null,null,null,5,null,null,1,null,6,0,0,0,480,0,0,50.97,0,88.495000000000005,{"$f":"SUM(L60:S60)/SUM(K60)","v":88.495000000000005},68.549674191893288]
[{"$f":"VLOOKUP(B61,Inputs!$E$69:$F$129,2,FALSE)","v":18},"LED_18",null,null,502,3385,41,2,82,1,4013,0,0,71284,324960,6929,116,4179.54,49,101.5493496137553,null,78.661786885378717]
[{"$f":"A61","v":18},"LED_18_1",null,null,null,5,null,null,null,null,5,0,0,0,480,0,0,0,0,{"$f":"SUM(L62:S62)/K62","v":96},{"$f":"SUM(L61:S62)/SUM(K61:K62)","v":101.54244400199103},74.363169923970332]
[{"$f":"VLOOKUP(B63,Inputs!$E$69:$F$129,2,FALSE)","v":25},"LED_25",null,null,10,14,2,null,null,null,26,0,0,1420,1344,338,0,0,0,119.30769230769231,{"$f":"SUM(L63:S63)/SUM(K63)","v":119.30769230769231},92.417689544934291]
[{"$f":"VLOOKUP(B64,Inputs!$E$69:$F$129,2,FALSE)","v":250},"MV_250_E",5,2,4,6,2,null,1,null,20,2220,694,568,576,338,0,50.97,0,222.3485,null,172.23478424833249]
[{"$f":"VLOOKUP(B65,Inputs!$E$69:$F$129,2,FALSE)","v":250},"MV_250_T",1,null,null,2,null,null,null,null,3,444,0,0,192,0,0,0,0,212,{"$f":"SUM(L64:S65)/SUM(K64:K65)","v":220.99869565217392},164.21866691543451]
[{"$f":"VLOOKUP(B66,Inputs!$E$69:$F$129,2,FALSE)","v":400},"MV_400_E",4,3,3,1,3,1,null,null,15,1776,1041,426,96,507,58,0,0,260.26666666666665,null,201.60681623831957]
[{"$f":"VLOOKUP(B67,Inputs!$E$69:$F$129,2,FALSE)","v":50},"MV_50_E",null,null,null,8,null,null,null,null,8,0,0,0,768,0,0,0,0,96,null,74.363169923970332]
[{"$f":"VLOOKUP(B68,Inputs!$E$69:$F$129,2,FALSE)","v":80},"MV_80_E",4,null,277,4146,61,12,16,4,4520,{"$f":"IFERROR(C68*C$71,0)","v":1776},0,39334,398016,10309,696,815.52,196,99.810292035398234,null,77.314684445723145]
[null,"Grand Total",238,19,907,8747,318,24,120,16,10389,{"$f":"IFERROR(C69*C$71,0)","v":105672},6593,128794,839712,53742,1392,6116.4,784,{"$f":"SUM(L69:S69)/K69","v":110.0014823370873}]
[]
[null,"Unit Cost",444,347,142,96,169,58,50.97,49]
[]
["If no direct data use average of light type"]
["Annomily overrides","Weighted for lights without Brackets",null,null,null,null,null,null,"No all lights have a bracket therefore the average cost per bracket needs to be lowered to not over recover"]
["FL_1X20",{"$f":"$U$48*$I$76","v":105.08961860783307},null,null,null,null,null,null,null,{"$f":"Volumes!C80","v":42878},"Total Public Lights 2015/16"]
["FL_1X40",{"$f":"$U$48*$I$76","v":105.08961860783307},null,null,null,null,null,null,{"$f":"J76/$J$78","v":0.77461635337469104},{"$f":"J75-J77","v":33214},"Total Brackets (2915/16 Asset Management Plan)"]
["FL_2X20",105.08961860783307,null,null,null,null,null,null,{"$f":"J77/$J$78","v":0.22538364662530902},{"$f":"J75-K90","v":9664},"Total public poles for private lights (bracketless)"]
["FL_2X24",105.08961860783307,null,null,null,null,null,null,{"$f":"SUM(I76:I77)","v":1},{"$f":"SUM(J76:J77)","v":42878},"Total"]
["FL_2X40",105.08961860783307,null,null,null,null,null,null,null,{"$f":"J78=J75","v":true}]
["FL_3X40",105.08961860783307,null,null,null,null,null,null,null,"AS per the management plan"]
["FL_4X20",105.08961860783307,null,null,null,null,null,null,null,"Bracket type","Number Installed"]
["FL_4X40",105.08961860783307,null,null,null,null,null,null,null,"Type 1 (uplift 4.3m)",761]
["HPS_100_E",{"$f":"$U$50*$I$76","v":95.338965387721842},null,null,null,null,null,null,null,"Type 2  (uplift 2.8m)",61]
["HPS_100_T",{"$f":"$U$50*$I$76","v":95.338965387721842},null,null,null,null,null,null,null,"Type 3 (2m)",2900]
["HPS_150_E",{"$f":"$U$53*$I$76","v":164.11499074301554},null,null,null,null,null,null,null,"Type 4 (1.5m)",27964]
["HPS_150_T",{"$f":"$U$53*$I$76","v":164.11499074301554},null,null,null,null,null,null,null,"Type 5 (3m)",1017]
["HPS_150_TSI",{"$f":"$U$53*$I$76","v":164.11499074301554},null,null,null,null,null,null,null,"Type A (0.3m) (Vert. Mtd 25 NB)",77]
["HPS_150_TDA",{"$f":"$U$53*$I$76","v":164.11499074301554},null,null,null,null,null,null,null,"Type B (0.3m) (Horiz. Mtd 25 NB)",384]
["HPS_250_E",{"$f":"$U$56*$I$76","v":210.59681775558886},null,null,null,null,null,null,null,"Type C (0.3m) (Horiz. Mtd 32 NB)",51]
["HPS_250_T",{"$f":"$U$56*$I$76","v":210.59681775558886},null,null,null,null,null,null,null,"Total",33214]
["HPS_250_TDA",{"$f":"$U$56*$I$76","v":210.59681775558886}]
["HPS_250_FL",{"$f":"$U$56*$I$76","v":210.59681775558886}]
["HPS_250_TSI",{"$f":"$U$56*$I$76","v":210.59681775558886}]
["HPS_400_T",{"$f":"$U$58*$I$76","v":151.9249889764759}]
["HPS_400_FL",{"$f":"$U$58*$I$76","v":151.9249889764759}]
["HPS_400_TDA",{"$f":"$U$58*$I$76","v":151.9249889764759}]
["HPS_2X400_T","NA"]
["HPS_70_E",{"$f":"$U$59*$I$76","v":92.17934605158824}]
["HPS_70_T",{"$f":"$U$59*$I$76","v":92.17934605158824}]
["INC_100",{"$f":"$U$60*$I$76","v":68.549674191893288}]
["INC_60",{"$f":"$U$60*$I$76","v":68.549674191893288}]
["LED_18",{"$f":"$U$62*$I$76","v":78.656437685576066}]
["LED_25",{"$f":"$U$62*$I$76","v":78.656437685576066}]
["LED_30",{"$f":"$U$62*$I$76","v":78.656437685576066}]
["LED_88",{"$f":"$U$62*$I$76","v":78.656437685576066}]
["CFL_24x2",{"$f":"$U$45*$I$76","v":76.105232343078498}]
["MV_250_E",{"$f":"$U$65*$I$76","v":171.18920372665016}]
["MV_250_T",{"$f":"$U$65*$I$76","v":171.18920372665016}]
["MV_125_E",{"$f":"$U$65*$I$76","v":171.18920372665016}]
["MH_70_E",{"$f":"$U$50*$I$76","v":95.338965387721842}]
["MH_100_E",{"$f":"$U$50*$I$76","v":95.338965387721842}]
["MH_150_E",{"$f":"$U$53*$I$76","v":164.11499074301554}]
["MH_250_T",{"$f":"$U$56*$I$76","v":210.59681775558886}]
["MH_400_T",{"$f":"$U$58*$I$76","v":151.9249889764759}]

{"sheet":"Bracket Data","index":23,"n_rows":24539,"n_cols":84,"rows_kept":1125,"cut":true,"hidden":false,"merged":[],"bounds":{"rows_first":500,"rows_last":125,"rows_between":500,"halvings":2}}
["Received from the metering team Leader, Team Leader. These are the current lighting/bracket combinations of what has been replaced to help align what weighting of capex to alloate"]
[]
[]
["ServiceOrderId","NMI","SOType","SOSubType","SOrderStatus","SORequestInstructions","Number","Street","StreetType","Locality","PostCode","Suburb","CreatedOn","TVDCommentsfromField","TVDRequestItemID","TVDRequestAssetID","TVDRequestPoleTagNum","TVDRequestPoleNum","ReqAssetID","ReqControlGear","ReqFuseMake","ReqOutreachArmType","TVDRequestFixtureID","ReqUMSPhase","ReqAccessRequirements","ReqManufactureYear","ReqSwitchLocation","ReqLastFaultType","ReqContractType","ReqCommFibrePilot","TVDRequestSupportType","TVDRequestSwitchMethod","ReqAdditionalDetails","ReqTrafficControl","ReqMissingPoleTag","ReqRepirInDaylight","ReqPrivateProperty","ReqOffPole","TVDRequestLumID","TVDRequestLampMake","ReqPoleOwner","ReqPoleHeight","ReqPoleType","ReqPoleMaterial","####","TVDResponseItemID","TVDResponseAssetID","TVDResponsePoleTagNum","TVDResponsePoleNumber","AssetID","ControlGear","FuseMake","OutreachArmType","TVDResponseFixtureID","UMSPhase","AccessRequirements","ManufactureYear","SwitchLocation","FaultType","ContractType","CommFibrePilot","TVDResponseSupportType","TVDResponseSwitchMethod","TongTestAmps","AdditionalInformation","RequireTrafficControl","MissingPoleTag","RepairInDaylight","PrivateProperty","OffPole","TVDResponseLumID","TVDResponseLampMake","PoleOwner","PoleHeight","PoleType","PoleMaterial","GeneralMaintenance","DiffuserCleaned","RemovedUMSItem","InstalledChangedSwitch","InstalledChangedLuminarire","InstalledChangedLamp","InstalledChangedFuse","InstalledChangedControlGear"]
[5000001,null,null,null,null,null,null,null,null,null,null,null,null,null,null,null,null,null,null,null,null,null,null,null,null,null,null,null,null,null,null,null,null,null,null,null,null,null,null,null,null,null,null,null,null,null,null,null,null,null,null,null,null,"CFL_42"]
[5002164,null,null,null,null,null,null,null,null,null,null,null,null,null,null,null,null,null,null,null,null,null,null,null,null,null,null,null,null,null,null,null,null,null,null,null,null,null,null,null,null,null,null,null,null,null,null,null,null,null,null,null,"T4","MV_50_E"]
[5002166,null,null,null,null,null,null,null,null,null,null,null,null,null,null,null,null,null,null,null,null,null,null,null,null,null,null,null,null,null,null,null,null,null,null,null,null,null,null,null,null,null,null,null,null,null,null,null,null,null,null,null,"R4","HPS_150_T"]
[5002167,null,null,null,null,null,null,null,null,null,null,null,null,null,null,null,null,null,null,null,null,null,null,null,null,null,null,null,null,null,null,null,null,null,null,null,null,null,null,null,null,null,null,null,null,null,null,null,null,null,null,null,"R4","MV_80_E"]
[5002168,null,null,null,null,null,null,null,null,null,null,null,null,null,null,null,null,null,null,null,null,null,null,null,null,null,null,null,null,null,null,null,null,null,null,null,null,null,null,null,null,null,null,null,null,null,null,null,null,null,null,null,"T4","MV_80_E"]
[5002169,null,null,null,null,null,null,null,null,null,null,null,null,null,null,null,null,null,null,null,null,null,null,null,null,null,null,null,null,null,null,null,null,null,null,null,null,null,null,null,null,null,null,null,null,null,null,null,null,null,null,null,"R4","MV_80_E"]
[5002170,null,null,null,null,null,null,null,null,null,null,null,null,null,null,null,null,null,null,null,null,null,null,null,null,null,null,null,null,null,null,null,null,null,null,null,null,null,null,null,null,null,null,null,null,null,null,null,null,null,null,null,"R4","CFL_42"]
[5002171,null,null,null,null,null,null,null,null,null,null,null,null,null,null,null,null,null,null,null,null,null,null,null,null,null,null,null,null,null,null,null,null,null,null,null,null,null,null,null,null,null,null,null,null,null,null,null,null,null,null,null,null,"MV_80_E"]
[5002172,null,null,null,null,null,null,null,null,null,null,null,null,null,null,null,null,null,null,null,null,null,null,null,null,null,null,null,null,null,null,null,null,null,null,null,null,null,null,null,null,null,null,null,null,null,null,null,null,null,null,null,"R4","MV_80_E"]
[5002173,null,null,null,null,null,null,null,null,null,null,null,null,null,null,null,null,null,null,null,null,null,null,null,null,null,null,null,null,null,null,null,null,null,null,null,null,null,null,null,null,null,null,null,null,null,null,null,null,null,null,null,"R4","MV_80_E"]
[5002174,null,null,null,null,null,null,null,null,null,null,null,null,null,null,null,null,null,null,null,null,null,null,null,null,null,null,null,null,null,null,null,null,null,null,null,null,null,null,null,null,null,null,null,null,null,null,null,null,null,null,null,"R5","CFL_42"]
[5002175,null,null,null,null,null,null,null,null,null,null,null,null,null,null,null,null,null,null,null,null,null,null,null,null,null,null,null,null,null,null,null,null,null,null,null,null,null,null,null,null,null,null,null,null,null,null,null,null,null,null,null,"R5","MV_80_E"]
[5002176,null,null,null,null,null,null,null,null,null,null,null,null,null,null,null,null,null,null,null,null,null,null,null,null,null,null,null,null,null,null,null,null,null,null,null,null,null,null,null,null,null,null,null,null,null,null,null,null,null,null,null,"T4","MV_80_E"]
[5002177,null,null,null,null,null,null,null,null,null,null,null,null,null,null,null,null,null,null,null,null,null,null,null,null,null,null,null,null,null,null,null,null,null,null,null,null,null,null,null,null,null,null,null,null,null,null,null,null,null,null,null,"T4","MV_80_E"]
[5002178,null,null,null,null,null,null,null,null,null,null,null,null,null,null,null,null,null,null,null,null,null,null,null,null,null,null,null,null,null,null,null,null,null,null,null,null,null,null,null,null,null,null,null,null,null,null,null,null,null,null,null,"T4","MV_80_E"]
[5002179,null,null,null,null,null,null,null,null,null,null,null,null,null,null,null,null,null,null,null,null,null,null,null,null,null,null,null,null,null,null,null,null,null,null,null,null,null,null,null,null,null,null,null,null,null,null,null,null,null,null,null,"R4","MV_80_E"]
[5002180,null,null,null,null,null,null,null,null,null,null,null,null,null,null,null,null,null,null,null,null,null,null,null,null,null,null,null,null,null,null,null,null,null,null,null,null,null,null,null,null,null,null,null,null,null,null,null,null,null,null,null,"R4","HPS_150_T"]
[5002181,null,null,null,null,null,null,null,null,null,null,null,null,null,null,null,null,null,null,null,null,null,null,null,null,null,null,null,null,null,null,null,null,null,null,null,null,null,null,null,null,null,null,null,null,null,null,null,null,null,null,null,"R4","MV_80_E"]
[5002182,null,null,null,null,null,null,null,null,null,null,null,null,null,null,null,null,null,null,null,null,null,null,null,null,null,null,null,null,null,null,null,null,null,null,null,null,null,null,null,null,null,null,null,null,null,null,null,null,null,null,null,"NA","MV_80_E"]
[5002183,null,null,null,null,null,null,null,null,null,null,null,null,null,null,null,null,null,null,null,null,null,null,null,null,null,null,null,null,null,null,null,null,null,null,null,null,null,null,null,null,null,null,null,null,null,null,null,null,null,null,null,"T4","MV_80_E"]
[5002184,null,null,null,null,null,null,null,null,null,null,null,null,null,null,null,null,null,null,null,null,null,null,null,null,null,null,null,null,null,null,null,null,null,null,null,null,null,null,null,null,null,null,null,null,null,null,null,null,null,null,null,"R1","MV_80_E"]
[5002185,null,null,null,null,null,null,null,null,null,null,null,null,null,null,null,null,null,null,null,null,null,null,null,null,null,null,null,null,null,null,null,null,null,null,null,null,null,null,null,null,null,null,null,null,null,null,null,null,null,null,null,"T4","MV_80_E"]
[5002186,null,null,null,null,null,null,null,null,null,null,null,null,null,null,null,null,null,null,null,null,null,null,null,null,null,null,null,null,null,null,null,null,null,null,null,null,null,null,null,null,null,null,null,null,null,null,null,null,null,null,null,"T4","MV_80_E"]
[5002187,null,null,null,null,null,null,null,null,null,null,null,null,null,null,null,null,null,null,null,null,null,null,null,null,null,null,null,null,null,null,null,null,null,null,null,null,null,null,null,null,null,null,null,null,null,null,null,null,null,null,null,"R4","MV_80_E"]
[5002188,null,null,null,null,null,null,null,null,null,null,null,null,null,null,null,null,null,null,null,null,null,null,null,null,null,null,null,null,null,null,null,null,null,null,null,null,null,null,null,null,null,null,null,null,null,null,null,null,null,null,null,"R4","MV_80_E"]
[5002189,null,null,null,null,null,null,null,null,null,null,null,null,null,null,null,null,null,null,null,null,null,null,null,null,null,null,null,null,null,null,null,null,null,null,null,null,null,null,null,null,null,null,null,null,null,null,null,null,null,null,null,"T4","MV_80_E"]
[5002190,null,null,null,null,null,null,null,null,null,null,null,null,null,null,null,null,null,null,null,null,null,null,null,null,null,null,null,null,null,null,null,null,null,null,null,null,null,null,null,null,null,null,null,null,null,null,null,null,null,null,null,"R4","MV_80_E"]
[5002191,null,null,null,null,null,null,null,null,null,null,null,null,null,null,null,null,null,null,null,null,null,null,null,null,null,null,null,null,null,null,null,null,null,null,null,null,null,null,null,null,null,null,null,null,null,null,null,null,null,null,null,"R4","MV_80_E"]
[5002192,null,null,null,null,null,null,null,null,null,null,null,null,null,null,null,null,null,null,null,null,null,null,null,null,null,null,null,null,null,null,null,null,null,null,null,null,null,null,null,null,null,null,null,null,null,null,null,null,null,null,null,"R4","MV_80_E"]
[5002193,null,null,null,null,null,null,null,null,null,null,null,null,null,null,null,null,null,null,null,null,null,null,null,null,null,null,null,null,null,null,null,null,null,null,null,null,null,null,null,null,null,null,null,null,null,null,null,null,null,null,null,"R1","MV_80_E"]
[5002194,null,null,null,null,null,null,null,null,null,null,null,null,null,null,null,null,null,null,null,null,null,null,null,null,null,null,null,null,null,null,null,null,null,null,null,null,null,null,null,null,null,null,null,null,null,null,null,null,null,null,null,"T4","MV_80_E"]
[5002195,null,null,null,null,null,null,null,null,null,null,null,null,null,null,null,null,null,null,null,null,null,null,null,null,null,null,null,null,null,null,null,null,null,null,null,null,null,null,null,null,null,null,null,null,null,null,null,null,null,null,null,null,"MV_80_E"]
[5002196,null,null,null,null,null,null,null,null,null,null,null,null,null,null,null,null,null,null,null,null,null,null,null,null,null,null,null,null,null,null,null,null,null,null,null,null,null,null,null,null,null,null,null,null,null,null,null,null,null,null,null,"R4","MV_80_E"]
[5002197,null,null,null,null,null,null,null,null,null,null,null,null,null,null,null,null,null,null,null,null,null,null,null,null,null,null,null,null,null,null,null,null,null,null,null,null,null,null,null,null,null,null,null,null,null,null,null,null,null,null,null,"T4","MV_80_E"]
[5002198,null,null,null,null,null,null,null,null,null,null,null,null,null,null,null,null,null,null,null,null,null,null,null,null,null,null,null,null,null,null,null,null,null,null,null,null,null,null,null,null,null,null,null,null,null,null,null,null,null,null,null,"T4","MV_80_E"]
[5002199,null,null,null,null,null,null,null,null,null,null,null,null,null,null,null,null,null,null,null,null,null,null,null,null,null,null,null,null,null,null,null,null,null,null,null,null,null,null,null,null,null,null,null,null,null,null,null,null,null,null,null,"R4","MV_80_E"]
[5002200,null,null,null,null,null,null,null,null,null,null,null,null,null,null,null,null,null,null,null,null,null,null,null,null,null,null,null,null,null,null,null,null,null,null,null,null,null,null,null,null,null,null,null,null,null,null,null,null,null,null,null,"T4","MV_80_E"]
[5002201,null,null,null,null,null,null,null,null,null,null,null,null,null,null,null,null,null,null,null,null,null,null,null,null,null,null,null,null,null,null,null,null,null,null,null,null,null,null,null,null,null,null,null,null,null,null,null,null,null,null,null,"R4","CFL_42"]
[5002202,null,null,null,null,null,null,null,null,null,null,null,null,null,null,null,null,null,null,null,null,null,null,null,null,null,null,null,null,null,null,null,null,null,null,null,null,null,null,null,null,null,null,null,null,null,null,null,null,null,null,null,"T3","MV_80_E"]
[5002203,null,null,null,null,null,null,null,null,null,null,null,null,null,null,null,null,null,null,null,null,null,null,null,null,null,null,null,null,null,null,null,null,null,null,null,null,null,null,null,null,null,null,null,null,null,null,null,null,null,null,null,"R4","MV_80_E"]
[5002204,null,null,null,null,null,null,null,null,null,null,null,null,null,null,null,null,null,null,null,null,null,null,null,null,null,null,null,null,null,null,null,null,null,null,null,null,null,null,null,null,null,null,null,null,null,null,null,null,null,null,null,"T4","MV_80_E"]
[5002205,null,null,null,null,null,null,null,null,null,null,null,null,null,null,null,null,null,null,null,null,null,null,null,null,null,null,null,null,null,null,null,null,null,null,null,null,null,null,null,null,null,null,null,null,null,null,null,null,null,null,null,"T3","MV_80_E"]
[5002206,null,null,null,null,null,null,null,null,null,null,null,null,null,null,null,null,null,null,null,null,null,null,null,null,null,null,null,null,null,null,null,null,null,null,null,null,null,null,null,null,null,null,null,null,null,null,null,null,null,null,null,"R4","MV_80_E"]
[5002207,null,null,null,null,null,null,null,null,null,null,null,null,null,null,null,null,null,null,null,null,null,null,null,null,null,null,null,null,null,null,null,null,null,null,null,null,null,null,null,null,null,null,null,null,null,null,null,null,null,null,null,"R4","MV_80_E"]
[5002208,null,null,null,null,null,null,null,null,null,null,null,null,null,null,null,null,null,null,null,null,null,null,null,null,null,null,null,null,null,null,null,null,null,null,null,null,null,null,null,null,null,null,null,null,null,null,null,null,null,null,null,"R4","MV_80_E"]
[5002209,null,null,null,null,null,null,null,null,null,null,null,null,null,null,null,null,null,null,null,null,null,null,null,null,null,null,null,null,null,null,null,null,null,null,null,null,null,null,null,null,null,null,null,null,null,null,null,null,null,null,null,"T4","CFL_42"]
[5002210,null,null,null,null,null,null,null,null,null,null,null,null,null,null,null,null,null,null,null,null,null,null,null,null,null,null,null,null,null,null,null,null,null,null,null,null,null,null,null,null,null,null,null,null,null,null,null,null,null,null,null,"R4","MV_80_E"]
[5002211,null,null,null,null,null,null,null,null,null,null,null,null,null,null,null,null,null,null,null,null,null,null,null,null,null,null,null,null,null,null,null,null,null,null,null,null,null,null,null,null,null,null,null,null,null,null,null,null,null,null,null,"R4","MV_80_E"]
[5002212,null,null,null,null,null,null,null,null,null,null,null,null,null,null,null,null,null,null,null,null,null,null,null,null,null,null,null,null,null,null,null,null,null,null,null,null,null,null,null,null,null,null,null,null,null,null,null,null,null,null,null,"NA","MV_80_E"]
[5002213,null,null,null,null,null,null,null,null,null,null,null,null,null,null,null,null,null,null,null,null,null,null,null,null,null,null,null,null,null,null,null,null,null,null,null,null,null,null,null,null,null,null,null,null,null,null,null,null,null,null,null,"R4","MV_80_E"]
[5002214,null,null,null,null,null,null,null,null,null,null,null,null,null,null,null,null,null,null,null,null,null,null,null,null,null,null,null,null,null,null,null,null,null,null,null,null,null,null,null,null,null,null,null,null,null,null,null,null,null,null,null,"T4","MV_80_E"]
[5002215,null,null,null,null,null,null,null,null,null,null,null,null,null,null,null,null,null,null,null,null,null,null,null,null,null,null,null,null,null,null,null,null,null,null,null,null,null,null,null,null,null,null,null,null,null,null,null,null,null,null,null,"T4","CFL_42"]
[5002216,null,null,null,null,null,null,null,null,null,null,null,null,null,null,null,null,null,null,null,null,null,null,null,null,null,null,null,null,null,null,null,null,null,null,null,null,null,null,null,null,null,null,null,null,null,null,null,null,null,null,null,"T4","CFL_42"]
[5002217,null,null,null,null,null,null,null,null,null,null,null,null,null,null,null,null,null,null,null,null,null,null,null,null,null,null,null,null,null,null,null,null,null,null,null,null,null,null,null,null,null,null,null,null,null,null,null,null,null,null,null,"T4","MV_80_E"]
[5002218,null,null,null,null,null,null,null,null,null,null,null,null,null,null,null,null,null,null,null,null,null,null,null,null,null,null,null,null,null,null,null,null,null,null,null,null,null,null,null,null,null,null,null,null,null,null,null,null,null,null,null,"R4","MV_80_E"]
[5002219,null,null,null,null,null,null,null,null,null,null,null,null,null,null,null,null,null,null,null,null,null,null,null,null,null,null,null,null,null,null,null,null,null,null,null,null,null,null,null,null,null,null,null,null,null,null,null,null,null,null,null,"R4","MV_80_E"]
[5002220,null,null,null,null,null,null,null,null,null,null,null,null,null,null,null,null,null,null,null,null,null,null,null,null,null,null,null,null,null,null,null,null,null,null,null,null,null,null,null,null,null,null,null,null,null,null,null,null,null,null,null,"R4","MV_80_E"]
[5002221,null,null,null,null,null,null,null,null,null,null,null,null,null,null,null,null,null,null,null,null,null,null,null,null,null,null,null,null,null,null,null,null,null,null,null,null,null,null,null,null,null,null,null,null,null,null,null,null,null,null,null,"T4","MV_80_E"]
[5002222,null,null,null,null,null,null,null,null,null,null,null,null,null,null,null,null,null,null,null,null,null,null,null,null,null,null,null,null,null,null,null,null,null,null,null,null,null,null,null,null,null,null,null,null,null,null,null,null,null,null,null,"R4","CFL_42"]
[5002223,null,null,null,null,null,null,null,null,null,null,null,null,null,null,null,null,null,null,null,null,null,null,null,null,null,null,null,null,null,null,null,null,null,null,null,null,null,null,null,null,null,null,null,null,null,null,null,null,null,null,null,"R4","MV_80_E"]
[5002224,null,null,null,null,null,null,null,null,null,null,null,null,null,null,null,null,null,null,null,null,null,null,null,null,null,null,null,null,null,null,null,null,null,null,null,null,null,null,null,null,null,null,null,null,null,null,null,null,null,null,null,"T4","MV_80_E"]
[5002225,null,null,null,null,null,null,null,null,null,null,null,null,null,null,null,null,null,null,null,null,null,null,null,null,null,null,null,null,null,null,null,null,null,null,null,null,null,null,null,null,null,null,null,null,null,null,null,null,null,null,null,"T4","MV_80_E"]
[5002226,null,null,null,null,null,null,null,null,null,null,null,null,null,null,null,null,null,null,null,null,null,null,null,null,null,null,null,null,null,null,null,null,null,null,null,null,null,null,null,null,null,null,null,null,null,null,null,null,null,null,null,"T4","MV_80_E"]
[5002227,null,null,null,null,null,null,null,null,null,null,null,null,null,null,null,null,null,null,null,null,null,null,null,null,null,null,null,null,null,null,null,null,null,null,null,null,null,null,null,null,null,null,null,null,null,null,null,null,null,null,null,"T4","CFL_42"]
[5002228,null,null,null,null,null,null,null,null,null,null,null,null,null,null,null,null,null,null,null,null,null,null,null,null,null,null,null,null,null,null,null,null,null,null,null,null,null,null,null,null,null,null,null,null,null,null,null,null,null,null,null,"T4","MV_80_E"]
[5002229,null,null,null,null,null,null,null,null,null,null,null,null,null,null,null,null,null,null,null,null,null,null,null,null,null,null,null,null,null,null,null,null,null,null,null,null,null,null,null,null,null,null,null,null,null,null,null,null,null,null,null,"R4","MV_80_E"]
[5002230,null,null,null,null,null,null,null,null,null,null,null,null,null,null,null,null,null,null,null,null,null,null,null,null,null,null,null,null,null,null,null,null,null,null,null,null,null,null,null,null,null,null,null,null,null,null,null,null,null,null,null,"R4","MV_80_E"]
[5002231,null,null,null,null,null,null,null,null,null,null,null,null,null,null,null,null,null,null,null,null,null,null,null,null,null,null,null,null,null,null,null,null,null,null,null,null,null,null,null,null,null,null,null,null,null,null,null,null,null,null,null,"R3","MV_80_E"]
[5002232,null,null,null,null,null,null,null,null,null,null,null,null,null,null,null,null,null,null,null,null,null,null,null,null,null,null,null,null,null,null,null,null,null,null,null,null,null,null,null,null,null,null,null,null,null,null,null,null,null,null,null,"R4","MV_80_E"]
[5002233,null,null,null,null,null,null,null,null,null,null,null,null,null,null,null,null,null,null,null,null,null,null,null,null,null,null,null,null,null,null,null,null,null,null,null,null,null,null,null,null,null,null,null,null,null,null,null,null,null,null,null,"T4","MV_80_E"]
[5002234,null,null,null,null,null,null,null,null,null,null,null,null,null,null,null,null,null,null,null,null,null,null,null,null,null,null,null,null,null,null,null,null,null,null,null,null,null,null,null,null,null,null,null,null,null,null,null,null,null,null,null,"T4","MV_80_E"]
[5002235,null,null,null,null,null,null,null,null,null,null,null,null,null,null,null,null,null,null,null,null,null,null,null,null,null,null,null,null,null,null,null,null,null,null,null,null,null,null,null,null,null,null,null,null,null,null,null,null,null,null,null,"T3","MV_80_E"]
[5002236,null,null,null,null,null,null,null,null,null,null,null,null,null,null,null,null,null,null,null,null,null,null,null,null,null,null,null,null,null,null,null,null,null,null,null,null,null,null,null,null,null,null,null,null,null,null,null,null,null,null,null,"T4","MV_80_E"]
[5002237,null,null,null,null,null,null,null,null,null,null,null,null,null,null,null,null,null,null,null,null,null,null,null,null,null,null,null,null,null,null,null,null,null,null,null,null,null,null,null,null,null,null,null,null,null,null,null,null,null,null,null,"T4","MV_80_E"]
[5002238,null,null,null,null,null,null,null,null,null,null,null,null,null,null,null,null,null,null,null,null,null,null,null,null,null,null,null,null,null,null,null,null,null,null,null,null,null,null,null,null,null,null,null,null,null,null,null,null,null,null,null,"T4","MV_80_E"]
[5002239,null,null,null,null,null,null,null,null,null,null,null,null,null,null,null,null,null,null,null,null,null,null,null,null,null,null,null,null,null,null,null,null,null,null,null,null,null,null,null,null,null,null,null,null,null,null,null,null,null,null,null,"T4","MV_80_E"]
[5002240,null,null,null,null,null,null,null,null,null,null,null,null,null,null,null,null,null,null,null,null,null,null,null,null,null,null,null,null,null,null,null,null,null,null,null,null,null,null,null,null,null,null,null,null,null,null,null,null,null,null,null,"T3","MV_250_E"]
[5002241,null,null,null,null,null,null,null,null,null,null,null,null,null,null,null,null,null,null,null,null,null,null,null,null,null,null,null,null,null,null,null,null,null,null,null,null,null,null,null,null,null,null,null,null,null,null,null,null,null,null,null,"R4","MV_80_E"]
[5002242,null,null,null,null,null,null,null,null,null,null,null,null,null,null,null,null,null,null,null,null,null,null,null,null,null,null,null,null,null,null,null,null,null,null,null,null,null,null,null,null,null,null,null,null,null,null,null,null,null,null,null,"R4","MV_80_E"]
[5002243,null,null,null,null,null,null,null,null,null,null,null,null,null,null,null,null,null,null,null,null,null,null,null,null,null,null,null,null,null,null,null,null,null,null,null,null,null,null,null,null,null,null,null,null,null,null,null,null,null,null,null,"T4","MV_80_E"]
[5002244,null,null,null,null,null,null,null,null,null,null,null,null,null,null,null,null,null,null,null,null,null,null,null,null,null,null,null,null,null,null,null,null,null,null,null,null,null,null,null,null,null,null,null,null,null,null,null,null,null,null,null,"R4","MV_80_E"]
[5002245,null,null,null,null,null,null,null,null,null,null,null,null,null,null,null,null,null,null,null,null,null,null,null,null,null,null,null,null,null,null,null,null,null,null,null,null,null,null,null,null,null,null,null,null,null,null,null,null,null,null,null,"R4","MV_80_E"]
[5002246,null,null,null,null,null,null,null,null,null,null,null,null,null,null,null,null,null,null,null,null,null,null,null,null,null,null,null,null,null,null,null,null,null,null,null,null,null,null,null,null,null,null,null,null,null,null,null,null,null,null,null,"R4","MV_80_E"]
[5002247,null,null,null,null,null,null,null,null,null,null,null,null,null,null,null,null,null,null,null,null,null,null,null,null,null,null,null,null,null,null,null,null,null,null,null,null,null,null,null,null,null,null,null,null,null,null,null,null,null,null,null,"R4","MV_80_E"]
[5002248,null,null,null,null,null,null,null,null,null,null,null,null,null,null,null,null,null,null,null,null,null,null,null,null,null,null,null,null,null,null,null,null,null,null,null,null,null,null,null,null,null,null,null,null,null,null,null,null,null,null,null,"R4","MV_80_E"]
[5002249,null,null,null,null,null,null,null,null,null,null,null,null,null,null,null,null,null,null,null,null,null,null,null,null,null,null,null,null,null,null,null,null,null,null,null,null,null,null,null,null,null,null,null,null,null,null,null,null,null,null,null,"T4","MV_80_E"]
[5002250,null,null,null,null,null,null,null,null,null,null,null,null,null,null,null,null,null,null,null,null,null,null,null,null,null,null,null,null,null,null,null,null,null,null,null,null,null,null,null,null,null,null,null,null,null,null,null,null,null,null,null,"R4","MV_80_E"]
[5002251,null,null,null,null,null,null,null,null,null,null,null,null,null,null,null,null,null,null,null,null,null,null,null,null,null,null,null,null,null,null,null,null,null,null,null,null,null,null,null,null,null,null,null,null,null,null,null,null,null,null,null,"R4","MV_80_E"]
[5002252,null,null,null,null,null,null,null,null,null,null,null,null,null,null,null,null,null,null,null,null,null,null,null,null,null,null,null,null,null,null,null,null,null,null,null,null,null,null,null,null,null,null,null,null,null,null,null,null,null,null,null,"R4","HPS_150_T"]
[5002253,null,null,null,null,null,null,null,null,null,null,null,null,null,null,null,null,null,null,null,null,null,null,null,null,null,null,null,null,null,null,null,null,null,null,null,null,null,null,null,null,null,null,null,null,null,null,null,null,null,null,null,null,"MV_80_E"]
[5002254,null,null,null,null,null,null,null,null,null,null,null,null,null,null,null,null,null,null,null,null,null,null,null,null,null,null,null,null,null,null,null,null,null,null,null,null,null,null,null,null,null,null,null,null,null,null,null,null,null,null,null,"R4","CFL_42"]
[5002255,null,null,null,null,null,null,null,null,null,null,null,null,null,null,null,null,null,null,null,null,null,null,null,null,null,null,null,null,null,null,null,null,null,null,null,null,null,null,null,null,null,null,null,null,null,null,null,null,null,null,null,"R4","MV_80_E"]
[5002256,null,null,null,null,null,null,null,null,null,null,null,null,null,null,null,null,null,null,null,null,null,null,null,null,null,null,null,null,null,null,null,null,null,null,null,null,null,null,null,null,null,null,null,null,null,null,null,null,null,null,null,"R1","MV_80_E"]
[5002257,null,null,null,null,null,null,null,null,null,null,null,null,null,null,null,null,null,null,null,null,null,null,null,null,null,null,null,null,null,null,null,null,null,null,null,null,null,null,null,null,null,null,null,null,null,null,null,null,null,null,null,"T4","MV_80_E"]
[5002258,null,null,null,null,null,null,null,null,null,null,null,null,null,null,null,null,null,null,null,null,null,null,null,null,null,null,null,null,null,null,null,null,null,null,null,null,null,null,null,null,null,null,null,null,null,null,null,null,null,null,null,"R4","MV_80_E"]
[5002259,null,null,null,null,null,null,null,null,null,null,null,null,null,null,null,null,null,null,null,null,null,null,null,null,null,null,null,null,null,null,null,null,null,null,null,null,null,null,null,null,null,null,null,null,null,null,null,null,null,null,null,"R5","MV_80_E"]
[5002260,null,null,null,null,null,null,null,null,null,null,null,null,null,null,null,null,null,null,null,null,null,null,null,null,null,null,null,null,null,null,null,null,null,null,null,null,null,null,null,null,null,null,null,null,null,null,null,null,null,null,null,"R4","MV_80_E"]
[5002261,null,null,null,null,null,null,null,null,null,null,null,null,null,null,null,null,null,null,null,null,null,null,null,null,null,null,null,null,null,null,null,null,null,null,null,null,null,null,null,null,null,null,null,null,null,null,null,null,null,null,null,"R4","MV_80_E"]
[5002262,null,null,null,null,null,null,null,null,null,null,null,null,null,null,null,null,null,null,null,null,null,null,null,null,null,null,null,null,null,null,null,null,null,null,null,null,null,null,null,null,null,null,null,null,null,null,null,null,null,null,null,"T4","MV_80_E"]
[5002263,null,null,null,null,null,null,null,null,null,null,null,null,null,null,null,null,null,null,null,null,null,null,null,null,null,null,null,null,null,null,null,null,null,null,null,null,null,null,null,null,null,null,null,null,null,null,null,null,null,null,null,"T4","MV_80_E"]
[5002264,null,null,null,null,null,null,null,null,null,null,null,null,null,null,null,null,null,null,null,null,null,null,null,null,null,null,null,null,null,null,null,null,null,null,null,null,null,null,null,null,null,null,null,null,null,null,null,null,null,null,null,"T4","HPS_400_T"]
[5002265,null,null,null,null,null,null,null,null,null,null,null,null,null,null,null,null,null,null,null,null,null,null,null,null,null,null,null,null,null,null,null,null,null,null,null,null,null,null,null,null,null,null,null,null,null,null,null,null,null,null,null,"NA","MV_80_E"]
[5002266,null,null,null,null,null,null,null,null,null,null,null,null,null,null,null,null,null,null,null,null,null,null,null,null,null,null,null,null,null,null,null,null,null,null,null,null,null,null,null,null,null,null,null,null,null,null,null,null,null,null,null,"R4","MV_80_E"]
[5002267,null,null,null,null,null,null,null,null,null,null,null,null,null,null,null,null,null,null,null,null,null,null,null,null,null,null,null,null,null,null,null,null,null,null,null,null,null,null,null,null,null,null,null,null,null,null,null,null,null,null,null,"T4","MV_80_E"]
[5002268,null,null,null,null,null,null,null,null,null,null,null,null,null,null,null,null,null,null,null,null,null,null,null,null,null,null,null,null,null,null,null,null,null,null,null,null,null,null,null,null,null,null,null,null,null,null,null,null,null,null,null,"T4","MV_80_E"]
[5002269,null,null,null,null,null,null,null,null,null,null,null,null,null,null,null,null,null,null,null,null,null,null,null,null,null,null,null,null,null,null,null,null,null,null,null,null,null,null,null,null,null,null,null,null,null,null,null,null,null,null,null,"T5","HPS_250_T"]
[5002270,null,null,null,null,null,null,null,null,null,null,null,null,null,null,null,null,null,null,null,null,null,null,null,null,null,null,null,null,null,null,null,null,null,null,null,null,null,null,null,null,null,null,null,null,null,null,null,null,null,null,null,"R4","CFL_42"]
[5002271,null,null,null,null,null,null,null,null,null,null,null,null,null,null,null,null,null,null,null,null,null,null,null,null,null,null,null,null,null,null,null,null,null,null,null,null,null,null,null,null,null,null,null,null,null,null,null,null,null,null,null,"NA","MV_80_E"]
[5002272,null,null,null,null,null,null,null,null,null,null,null,null,null,null,null,null,null,null,null,null,null,null,null,null,null,null,null,null,null,null,null,null,null,null,null,null,null,null,null,null,null,null,null,null,null,null,null,null,null,null,null,"NA","MV_80_E"]
[5002273,null,null,null,null,null,null,null,null,null,null,null,null,null,null,null,null,null,null,null,null,null,null,null,null,null,null,null,null,null,null,null,null,null,null,null,null,null,null,null,null,null,null,null,null,null,null,null,null,null,null,null,"NA","MV_80_E"]
[5002274,null,null,null,null,null,null,null,null,null,null,null,null,null,null,null,null,null,null,null,null,null,null,null,null,null,null,null,null,null,null,null,null,null,null,null,null,null,null,null,null,null,null,null,null,null,null,null,null,null,null,null,"R3","MV_80_E"]
[5002275,null,null,null,null,null,null,null,null,null,null,null,null,null,null,null,null,null,null,null,null,null,null,null,null,null,null,null,null,null,null,null,null,null,null,null,null,null,null,null,null,null,null,null,null,null,null,null,null,null,null,null,"R1","MV_80_E"]
[5002276,null,null,null,null,null,null,null,null,null,null,null,null,null,null,null,null,null,null,null,null,null,null,null,null,null,null,null,null,null,null,null,null,null,null,null,null,null,null,null,null,null,null,null,null,null,null,null,null,null,null,null,"R1","MV_80_E"]
[5002277,null,null,null,null,null,null,null,null,null,null,null,null,null,null,null,null,null,null,null,null,null,null,null,null,null,null,null,null,null,null,null,null,null,null,null,null,null,null,null,null,null,null,null,null,null,null,null,null,null,null,null,"R4","MV_80_E"]
[5002278,null,null,null,null,null,null,null,null,null,null,null,null,null,null,null,null,null,null,null,null,null,null,null,null,null,null,null,null,null,null,null,null,null,null,null,null,null,null,null,null,null,null,null,null,null,null,null,null,null,null,null,"NA","MV_80_E"]
[5002279,null,null,null,null,null,null,null,null,null,null,null,null,null,null,null,null,null,null,null,null,null,null,null,null,null,null,null,null,null,null,null,null,null,null,null,null,null,null,null,null,null,null,null,null,null,null,null,null,null,null,null,"NA","MV_80_E"]
[5002280,null,null,null,null,null,null,null,null,null,null,null,null,null,null,null,null,null,null,null,null,null,null,null,null,null,null,null,null,null,null,null,null,null,null,null,null,null,null,null,null,null,null,null,null,null,null,null,null,null,null,null,"T3","MV_80_E"]
[5002281,null,null,null,null,null,null,null,null,null,null,null,null,null,null,null,null,null,null,null,null,null,null,null,null,null,null,null,null,null,null,null,null,null,null,null,null,null,null,null,null,null,null,null,null,null,null,null,null,null,null,null,"T4","MV_80_E"]
[5002282,null,null,null,null,null,null,null,null,null,null,null,null,null,null,null,null,null,null,null,null,null,null,null,null,null,null,null,null,null,null,null,null,null,null,null,null,null,null,null,null,null,null,null,null,null,null,null,null,null,null,null,"R4","MV_80_E"]
[5002283,null,null,null,null,null,null,null,null,null,null,null,null,null,null,null,null,null,null,null,null,null,null,null,null,null,null,null,null,null,null,null,null,null,null,null,null,null,null,null,null,null,null,null,null,null,null,null,null,null,null,null,"TA","MV_80_E"]
[5002284,null,null,null,null,null,null,null,null,null,null,null,null,null,null,null,null,null,null,null,null,null,null,null,null,null,null,null,null,null,null,null,null,null,null,null,null,null,null,null,null,null,null,null,null,null,null,null,null,null,null,null,"R4","HPS_150_T"]
[5002285,null,null,null,null,null,null,null,null,null,null,null,null,null,null,null,null,null,null,null,null,null,null,null,null,null,null,null,null,null,null,null,null,null,null,null,null,null,null,null,null,null,null,null,null,null,null,null,null,null,null,null,"R4","HPS_150_T"]
[5002286,null,null,null,null,null,null,null,null,null,null,null,null,null,null,null,null,null,null,null,null,null,null,null,null,null,null,null,null,null,null,null,null,null,null,null,null,null,null,null,null,null,null,null,null,null,null,null,null,null,null,null,"T4","CFL_42"]
[5002287,null,null,null,null,null,null,null,null,null,null,null,null,null,null,null,null,null,null,null,null,null,null,null,null,null,null,null,null,null,null,null,null,null,null,null,null,null,null,null,null,null,null,null,null,null,null,null,null,null,null,null,"T4","MV_80_E"]
[5002288,null,null,null,null,null,null,null,null,null,null,null,null,null,null,null,null,null,null,null,null,null,null,null,null,null,null,null,null,null,null,null,null,null,null,null,null,null,null,null,null,null,null,null,null,null,null,null,null,null,null,null,"T4","MV_80_E"]
[5002289,null,null,null,null,null,null,null,null,null,null,null,null,null,null,null,null,null,null,null,null,null,null,null,null,null,null,null,null,null,null,null,null,null,null,null,null,null,null,null,null,null,null,null,null,null,null,null,null,null,null,null,"R4","MV_80_E"]
[5002290,null,null,null,null,null,null,null,null,null,null,null,null,null,null,null,null,null,null,null,null,null,null,null,null,null,null,null,null,null,null,null,null,null,null,null,null,null,null,null,null,null,null,null,null,null,null,null,null,null,null,null,"T4","MV_80_E"]
[5002291,null,null,null,null,null,null,null,null,null,null,null,null,null,null,null,null,null,null,null,null,null,null,null,null,null,null,null,null,null,null,null,null,null,null,null,null,null,null,null,null,null,null,null,null,null,null,null,null,null,null,null,"R5","MV_80_E"]
[5002292,null,null,null,null,null,null,null,null,null,null,null,null,null,null,null,null,null,null,null,null,null,null,null,null,null,null,null,null,null,null,null,null,null,null,null,null,null,null,null,null,null,null,null,null,null,null,null,null,null,null,null,"R4","HPS_150_T"]
[5002293,null,null,null,null,null,null,null,null,null,null,null,null,null,null,null,null,null,null,null,null,null,null,null,null,null,null,null,null,null,null,null,null,null,null,null,null,null,null,null,null,null,null,null,null,null,null,null,null,null,null,null,"NA","MV_80_E"]
[5002294,null,null,null,null,null,null,null,null,null,null,null,null,null,null,null,null,null,null,null,null,null,null,null,null,null,null,null,null,null,null,null,null,null,null,null,null,null,null,null,null,null,null,null,null,null,null,null,null,null,null,null,"T4","MV_80_E"]
[5002295,null,null,null,null,null,null,null,null,null,null,null,null,null,null,null,null,null,null,null,null,null,null,null,null,null,null,null,null,null,null,null,null,null,null,null,null,null,null,null,null,null,null,null,null,null,null,null,null,null,null,null,"R5","MV_80_E"]
[5002296,null,null,null,null,null,null,null,null,null,null,null,null,null,null,null,null,null,null,null,null,null,null,null,null,null,null,null,null,null,null,null,null,null,null,null,null,null,null,null,null,null,null,null,null,null,null,null,null,null,null,null,"T4","MV_80_E"]
[5002297,null,null,null,null,null,null,null,null,null,null,null,null,null,null,null,null,null,null,null,null,null,null,null,null,null,null,null,null,null,null,null,null,null,null,null,null,null,null,null,null,null,null,null,null,null,null,null,null,null,null,null,"T4","MV_80_E"]
[5002298,null,null,null,null,null,null,null,null,null,null,null,null,null,null,null,null,null,null,null,null,null,null,null,null,null,null,null,null,null,null,null,null,null,null,null,null,null,null,null,null,null,null,null,null,null,null,null,null,null,null,null,"T4","MV_80_E"]
[5002299,null,null,null,null,null,null,null,null,null,null,null,null,null,null,null,null,null,null,null,null,null,null,null,null,null,null,null,null,null,null,null,null,null,null,null,null,null,null,null,null,null,null,null,null,null,null,null,null,null,null,null,"T3","MV_80_E"]
[5002300,null,null,null,null,null,null,null,null,null,null,null,null,null,null,null,null,null,null,null,null,null,null,null,null,null,null,null,null,null,null,null,null,null,null,null,null,null,null,null,null,null,null,null,null,null,null,null,null,null,null,null,null,"MV_80_E"]
[5002301,null,null,null,null,null,null,null,null,null,null,null,null,null,null,null,null,null,null,null,null,null,null,null,null,null,null,null,null,null,null,null,null,null,null,null,null,null,null,null,null,null,null,null,null,null,null,null,null,null,null,null,null,"MV_80_E"]
[5002302,null,null,null,null,null,null,null,null,null,null,null,null,null,null,null,null,null,null,null,null,null,null,null,null,null,null,null,null,null,null,null,null,null,null,null,null,null,null,null,null,null,null,null,null,null,null,null,null,null,null,null,"T4","MV_80_E"]
[5002303,null,null,null,null,null,null,null,null,null,null,null,null,null,null,null,null,null,null,null,null,null,null,null,null,null,null,null,null,null,null,null,null,null,null,null,null,null,null,null,null,null,null,null,null,null,null,null,null,null,null,null,"T4","MV_80_E"]
[5002304,null,null,null,null,null,null,null,null,null,null,null,null,null,null,null,null,null,null,null,null,null,null,null,null,null,null,null,null,null,null,null,null,null,null,null,null,null,null,null,null,null,null,null,null,null,null,null,null,null,null,null,null,"MV_80_E"]
[5002305,null,null,null,null,null,null,null,null,null,null,null,null,null,null,null,null,null,null,null,null,null,null,null,null,null,null,null,null,null,null,null,null,null,null,null,null,null,null,null,null,null,null,null,null,null,null,null,null,null,null,null,"T4","MV_80_E"]
[5002306,null,null,null,null,null,null,null,null,null,null,null,null,null,null,null,null,null,null,null,null,null,null,null,null,null,null,null,null,null,null,null,null,null,null,null,null,null,null,null,null,null,null,null,null,null,null,null,null,null,null,null,"R4","MV_80_E"]
[5002307,null,null,null,null,null,null,null,null,null,null,null,null,null,null,null,null,null,null,null,null,null,null,null,null,null,null,null,null,null,null,null,null,null,null,null,null,null,null,null,null,null,null,null,null,null,null,null,null,null,null,null,null,"MV_80_E"]
[5002308,null,null,null,null,null,null,null,null,null,null,null,null,null,null,null,null,null,null,null,null,null,null,null,null,null,null,null,null,null,null,null,null,null,null,null,null,null,null,null,null,null,null,null,null,null,null,null,null,null,null,null,"T4","MV_80_E"]
[5002309,null,null,null,null,null,null,null,null,null,null,null,null,null,null,null,null,null,null,null,null,null,null,null,null,null,null,null,null,null,null,null,null,null,null,null,null,null,null,null,null,null,null,null,null,null,null,null,null,null,null,null,"R4","MV_80_E"]
[5002310,null,null,null,null,null,null,null,null,null,null,null,null,null,null,null,null,null,null,null,null,null,null,null,null,null,null,null,null,null,null,null,null,null,null,null,null,null,null,null,null,null,null,null,null,null,null,null,null,null,null,null,"R4","MV_80_E"]
[5002311,null,null,null,null,null,null,null,null,null,null,null,null,null,null,null,null,null,null,null,null,null,null,null,null,null,null,null,null,null,null,null,null,null,null,null,null,null,null,null,null,null,null,null,null,null,null,null,null,null,null,null,"R1","MV_80_E"]
[5002312,null,null,null,null,null,null,null,null,null,null,null,null,null,null,null,null,null,null,null,null,null,null,null,null,null,null,null,null,null,null,null,null,null,null,null,null,null,null,null,null,null,null,null,null,null,null,null,null,null,null,null,"R1","MV_80_E"]
[5002313,null,null,null,null,null,null,null,null,null,null,null,null,null,null,null,null,null,null,null,null,null,null,null,null,null,null,null,null,null,null,null,null,null,null,null,null,null,null,null,null,null,null,null,null,null,null,null,null,null,null,null,"R1","MV_80_E"]
[5002314,null,null,null,null,null,null,null,null,null,null,null,null,null,null,null,null,null,null,null,null,null,null,null,null,null,null,null,null,null,null,null,null,null,null,null,null,null,null,null,null,null,null,null,null,null,null,null,null,null,null,null,"R1","MV_80_E"]
[5002316,null,null,null,null,null,null,null,null,null,null,null,null,null,null,null,null,null,null,null,null,null,null,null,null,null,null,null,null,null,null,null,null,null,null,null,null,null,null,null,null,null,null,null,null,null,null,null,null,null,null,null,"R1","MV_80_E"]
[5002319,null,null,null,null,null,null,null,null,null,null,null,null,null,null,null,null,null,null,null,null,null,null,null,null,null,null,null,null,null,null,null,null,null,null,null,null,null,null,null,null,null,null,null,null,null,null,null,null,null,null,null,"R1","MV_80_E"]
[5002320,null,null,null,null,null,null,null,null,null,null,null,null,null,null,null,null,null,null,null,null,null,null,null,null,null,null,null,null,null,null,null,null,null,null,null,null,null,null,null,null,null,null,null,null,null,null,null,null,null,null,null,"R1","MV_80_E"]
[5002321,null,null,null,null,null,null,null,null,null,null,null,null,null,null,null,null,null,null,null,null,null,null,null,null,null,null,null,null,null,null,null,null,null,null,null,null,null,null,null,null,null,null,null,null,null,null,null,null,null,null,null,"R1","MV_80_E"]
[5002322,null,null,null,null,null,null,null,null,null,null,null,null,null,null,null,null,null,null,null,null,null,null,null,null,null,null,null,null,null,null,null,null,null,null,null,null,null,null,null,null,null,null,null,null,null,null,null,null,null,null,null,"R1","MV_80_E"]
[5002323,null,null,null,null,null,null,null,null,null,null,null,null,null,null,null,null,null,null,null,null,null,null,null,null,null,null,null,null,null,null,null,null,null,null,null,null,null,null,null,null,null,null,null,null,null,null,null,null,null,null,null,null,"MV_80_E"]
[5002324,null,null,null,null,null,null,null,null,null,null,null,null,null,null,null,null,null,null,null,null,null,null,null,null,null,null,null,null,null,null,null,null,null,null,null,null,null,null,null,null,null,null,null,null,null,null,null,null,null,null,null,"R1","MV_80_E"]
[5002325,null,null,null,null,null,null,null,null,null,null,null,null,null,null,null,null,null,null,null,null,null,null,null,null,null,null,null,null,null,null,null,null,null,null,null,null,null,null,null,null,null,null,null,null,null,null,null,null,null,null,null,"R1","MV_80_E"]
[5002326,null,null,null,null,null,null,null,null,null,null,null,null,null,null,null,null,null,null,null,null,null,null,null,null,null,null,null,null,null,null,null,null,null,null,null,null,null,null,null,null,null,null,null,null,null,null,null,null,null,null,null,"R1","MV_80_E"]
[5002327,null,null,null,null,null,null,null,null,null,null,null,null,null,null,null,null,null,null,null,null,null,null,null,null,null,null,null,null,null,null,null,null,null,null,null,null,null,null,null,null,null,null,null,null,null,null,null,null,null,null,null,"R1","MV_80_E"]
[5002328,null,null,null,null,null,null,null,null,null,null,null,null,null,null,null,null,null,null,null,null,null,null,null,null,null,null,null,null,null,null,null,null,null,null,null,null,null,null,null,null,null,null,null,null,null,null,null,null,null,null,null,"R1","MV_80_E"]
[5002329,null,null,null,null,null,null,null,null,null,null,null,null,null,null,null,null,null,null,null,null,null,null,null,null,null,null,null,null,null,null,null,null,null,null,null,null,null,null,null,null,null,null,null,null,null,null,null,null,null,null,null,"R1","MV_80_E"]
[5002330,null,null,null,null,null,null,null,null,null,null,null,null,null,null,null,null,null,null,null,null,null,null,null,null,null,null,null,null,null,null,null,null,null,null,null,null,null,null,null,null,null,null,null,null,null,null,null,null,null,null,null,"R1","MV_80_E"]
[5002331,null,null,null,null,null,null,null,null,null,null,null,null,null,null,null,null,null,null,null,null,null,null,null,null,null,null,null,null,null,null,null,null,null,null,null,null,null,null,null,null,null,null,null,null,null,null,null,null,null,null,null,"R1","MV_80_E"]
[5002332,null,null,null,null,null,null,null,null,null,null,null,null,null,null,null,null,null,null,null,null,null,null,null,null,null,null,null,null,null,null,null,null,null,null,null,null,null,null,null,null,null,null,null,null,null,null,null,null,null,null,null,"R1","MV_80_E"]
[5002333,null,null,null,null,null,null,null,null,null,null,null,null,null,null,null,null,null,null,null,null,null,null,null,null,null,null,null,null,null,null,null,null,null,null,null,null,null,null,null,null,null,null,null,null,null,null,null,null,null,null,null,"R1","MV_80_E"]
[5002334,null,null,null,null,null,null,null,null,null,null,null,null,null,null,null,null,null,null,null,null,null,null,null,null,null,null,null,null,null,null,null,null,null,null,null,null,null,null,null,null,null,null,null,null,null,null,null,null,null,null,null,"R1","MV_80_E"]
[5002335,null,null,null,null,null,null,null,null,null,null,null,null,null,null,null,null,null,null,null,null,null,null,null,null,null,null,null,null,null,null,null,null,null,null,null,null,null,null,null,null,null,null,null,null,null,null,null,null,null,null,null,"R1","MV_80_E"]
[5002336,null,null,null,null,null,null,null,null,null,null,null,null,null,null,null,null,null,null,null,null,null,null,null,null,null,null,null,null,null,null,null,null,null,null,null,null,null,null,null,null,null,null,null,null,null,null,null,null,null,null,null,"R1","MV_80_E"]
[5002337,null,null,null,null,null,null,null,null,null,null,null,null,null,null,null,null,null,null,null,null,null,null,null,null,null,null,null,null,null,null,null,null,null,null,null,null,null,null,null,null,null,null,null,null,null,null,null,null,null,null,null,"R1","MV_80_E"]
[5002338,null,null,null,null,null,null,null,null,null,null,null,null,null,null,null,null,null,null,null,null,null,null,null,null,null,null,null,null,null,null,null,null,null,null,null,null,null,null,null,null,null,null,null,null,null,null,null,null,null,null,null,"R4","MV_80_E"]
[5002339,null,null,null,null,null,null,null,null,null,null,null,null,null,null,null,null,null,null,null,null,null,null,null,null,null,null,null,null,null,null,null,null,null,null,null,null,null,null,null,null,null,null,null,null,null,null,null,null,null,null,null,"R5","MV_80_E"]
[5002340,null,null,null,null,null,null,null,null,null,null,null,null,null,null,null,null,null,null,null,null,null,null,null,null,null,null,null,null,null,null,null,null,null,null,null,null,null,null,null,null,null,null,null,null,null,null,null,null,null,null,null,"R4","MV_80_E"]
[5002341,null,null,null,null,null,null,null,null,null,null,null,null,null,null,null,null,null,null,null,null,null,null,null,null,null,null,null,null,null,null,null,null,null,null,null,null,null,null,null,null,null,null,null,null,null,null,null,null,null,null,null,"T4","MV_80_E"]
[5002342,null,null,null,null,null,null,null,null,null,null,null,null,null,null,null,null,null,null,null,null,null,null,null,null,null,null,null,null,null,null,null,null,null,null,null,null,null,null,null,null,null,null,null,null,null,null,null,null,null,null,null,"R4","MV_80_E"]
[5002343,null,null,null,null,null,null,null,null,null,null,null,null,null,null,null,null,null,null,null,null,null,null,null,null,null,null,null,null,null,null,null,null,null,null,null,null,null,null,null,null,null,null,null,null,null,null,null,null,null,null,null,"R4","MV_80_E"]
[5002344,null,null,null,null,null,null,null,null,null,null,null,null,null,null,null,null,null,null,null,null,null,null,null,null,null,null,null,null,null,null,null,null,null,null,null,null,null,null,null,null,null,null,null,null,null,null,null,null,null,null,null,"R4","MV_80_E"]
[5002345,null,null,null,null,null,null,null,null,null,null,null,null,null,null,null,null,null,null,null,null,null,null,null,null,null,null,null,null,null,null,null,null,null,null,null,null,null,null,null,null,null,null,null,null,null,null,null,null,null,null,null,"R4","MV_80_E"]
[5002346,null,null,null,null,null,null,null,null,null,null,null,null,null,null,null,null,null,null,null,null,null,null,null,null,null,null,null,null,null,null,null,null,null,null,null,null,null,null,null,null,null,null,null,null,null,null,null,null,null,null,null,"R4","MV_80_E"]
[5002347,null,null,null,null,null,null,null,null,null,null,null,null,null,null,null,null,null,null,null,null,null,null,null,null,null,null,null,null,null,null,null,null,null,null,null,null,null,null,null,null,null,null,null,null,null,null,null,null,null,null,null,"R4","MV_80_E"]
[5002348,null,null,null,null,null,null,null,null,null,null,null,null,null,null,null,null,null,null,null,null,null,null,null,null,null,null,null,null,null,null,null,null,null,null,null,null,null,null,null,null,null,null,null,null,null,null,null,null,null,null,null,"R4","MV_80_E"]
[5002349,null,null,null,null,null,null,null,null,null,null,null,null,null,null,null,null,null,null,null,null,null,null,null,null,null,null,null,null,null,null,null,null,null,null,null,null,null,null,null,null,null,null,null,null,null,null,null,null,null,null,null,"R4","MV_80_E"]
[5002350,null,null,null,null,null,null,null,null,null,null,null,null,null,null,null,null,null,null,null,null,null,null,null,null,null,null,null,null,null,null,null,null,null,null,null,null,null,null,null,null,null,null,null,null,null,null,null,null,null,null,null,"T5","HPS_100_T"]
[5002351,null,null,null,null,null,null,null,null,null,null,null,null,null,null,null,null,null,null,null,null,null,null,null,null,null,null,null,null,null,null,null,null,null,null,null,null,null,null,null,null,null,null,null,null,null,null,null,null,null,null,null,"T5","HPS_100_T"]
[5002352,null,null,null,null,null,null,null,null,null,null,null,null,null,null,null,null,null,null,null,null,null,null,null,null,null,null,null,null,null,null,null,null,null,null,null,null,null,null,null,null,null,null,null,null,null,null,null,null,null,null,null,"T5","HPS_100_T"]
[5002353,null,null,null,null,null,null,null,null,null,null,null,null,null,null,null,null,null,null,null,null,null,null,null,null,null,null,null,null,null,null,null,null,null,null,null,null,null,null,null,null,null,null,null,null,null,null,null,null,null,null,null,"T5","HPS_100_T"]
[5002354,null,null,null,null,null,null,null,null,null,null,null,null,null,null,null,null,null,null,null,null,null,null,null,null,null,null,null,null,null,null,null,null,null,null,null,null,null,null,null,null,null,null,null,null,null,null,null,null,null,null,null,"R4","HPS_100_T"]
[5002355,null,null,null,null,null,null,null,null,null,null,null,null,null,null,null,null,null,null,null,null,null,null,null,null,null,null,null,null,null,null,null,null,null,null,null,null,null,null,null,null,null,null,null,null,null,null,null,null,null,null,null,"T4","MV_80_E"]
[5002356,null,null,null,null,null,null,null,null,null,null,null,null,null,null,null,null,null,null,null,null,null,null,null,null,null,null,null,null,null,null,null,null,null,null,null,null,null,null,null,null,null,null,null,null,null,null,null,null,null,null,null,"R6","HPS_100_T"]
[5002357,null,null,null,null,null,null,null,null,null,null,null,null,null,null,null,null,null,null,null,null,null,null,null,null,null,null,null,null,null,null,null,null,null,null,null,null,null,null,null,null,null,null,null,null,null,null,null,null,null,null,null,"R4","HPS_100_T"]
[5002358,null,null,null,null,null,null,null,null,null,null,null,null,null,null,null,null,null,null,null,null,null,null,null,null,null,null,null,null,null,null,null,null,null,null,null,null,null,null,null,null,null,null,null,null,null,null,null,null,null,null,null,"R4","HPS_100_T"]
[5002359,null,null,null,null,null,null,null,null,null,null,null,null,null,null,null,null,null,null,null,null,null,null,null,null,null,null,null,null,null,null,null,null,null,null,null,null,null,null,null,null,null,null,null,null,null,null,null,null,null,null,null,"T4","HPS_150_T"]
[5002360,null,null,null,null,null,null,null,null,null,null,null,null,null,null,null,null,null,null,null,null,null,null,null,null,null,null,null,null,null,null,null,null,null,null,null,null,null,null,null,null,null,null,null,null,null,null,null,null,null,null,null,"T4","HPS_250_T"]
[5002361,null,null,null,null,null,null,null,null,null,null,null,null,null,null,null,null,null,null,null,null,null,null,null,null,null,null,null,null,null,null,null,null,null,null,null,null,null,null,null,null,null,null,null,null,null,null,null,null,null,null,null,"R4","HPS_100_T"]
[5002362,null,null,null,null,null,null,null,null,null,null,null,null,null,null,null,null,null,null,null,null,null,null,null,null,null,null,null,null,null,null,null,null,null,null,null,null,null,null,null,null,null,null,null,null,null,null,null,null,null,null,null,"R4","HPS_100_T"]
[5002363,null,null,null,null,null,null,null,null,null,null,null,null,null,null,null,null,null,null,null,null,null,null,null,null,null,null,null,null,null,null,null,null,null,null,null,null,null,null,null,null,null,null,null,null,null,null,null,null,null,null,null,null,"HPS_100_T"]
[5002364,null,null,null,null,null,null,null,null,null,null,null,null,null,null,null,null,null,null,null,null,null,null,null,null,null,null,null,null,null,null,null,null,null,null,null,null,null,null,null,null,null,null,null,null,null,null,null,null,null,null,null,"T3","HPS_100_T"]
[5002365,null,null,null,null,null,null,null,null,null,null,null,null,null,null,null,null,null,null,null,null,null,null,null,null,null,null,null,null,null,null,null,null,null,null,null,null,null,null,null,null,null,null,null,null,null,null,null,null,null,null,null,"TC","HPS_100_T"]
[5002366,null,null,null,null,null,null,null,null,null,null,null,null,null,null,null,null,null,null,null,null,null,null,null,null,null,null,null,null,null,null,null,null,null,null,null,null,null,null,null,null,null,null,null,null,null,null,null,null,null,null,null,"TC","HPS_100_T"]
[5002367,null,null,null,null,null,null,null,null,null,null,null,null,null,null,null,null,null,null,null,null,null,null,null,null,null,null,null,null,null,null,null,null,null,null,null,null,null,null,null,null,null,null,null,null,null,null,null,null,null,null,null,"R4","HPS_100_T"]
[5002368,null,null,null,null,null,null,null,null,null,null,null,null,null,null,null,null,null,null,null,null,null,null,null,null,null,null,null,null,null,null,null,null,null,null,null,null,null,null,null,null,null,null,null,null,null,null,null,null,null,null,null,"T5","HPS_100_T"]
[5002369,null,null,null,null,null,null,null,null,null,null,null,null,null,null,null,null,null,null,null,null,null,null,null,null,null,null,null,null,null,null,null,null,null,null,null,null,null,null,null,null,null,null,null,null,null,null,null,null,null,null,null,"R5","MV_80_E"]
[5002370,null,null,null,null,null,null,null,null,null,null,null,null,null,null,null,null,null,null,null,null,null,null,null,null,null,null,null,null,null,null,null,null,null,null,null,null,null,null,null,null,null,null,null,null,null,null,null,null,null,null,null,"R5","MV_80_E"]
[5002371,null,null,null,null,null,null,null,null,null,null,null,null,null,null,null,null,null,null,null,null,null,null,null,null,null,null,null,null,null,null,null,null,null,null,null,null,null,null,null,null,null,null,null,null,null,null,null,null,null,null,null,"R4","MV_80_E"]
[5002372,null,null,null,null,null,null,null,null,null,null,null,null,null,null,null,null,null,null,null,null,null,null,null,null,null,null,null,null,null,null,null,null,null,null,null,null,null,null,null,null,null,null,null,null,null,null,null,null,null,null,null,"R4","MV_80_E"]
[5002373,null,null,null,null,null,null,null,null,null,null,null,null,null,null,null,null,null,null,null,null,null,null,null,null,null,null,null,null,null,null,null,null,null,null,null,null,null,null,null,null,null,null,null,null,null,null,null,null,null,null,null,"OTHER","MV_80_E"]
[5002374,null,null,null,null,null,null,null,null,null,null,null,null,null,null,null,null,null,null,null,null,null,null,null,null,null,null,null,null,null,null,null,null,null,null,null,null,null,null,null,null,null,null,null,null,null,null,null,null,null,null,null,"OTHER","MV_80_E"]
[5002375,null,null,null,null,null,null,null,null,null,null,null,null,null,null,null,null,null,null,null,null,null,null,null,null,null,null,null,null,null,null,null,null,null,null,null,null,null,null,null,null,null,null,null,null,null,null,null,null,null,null,null,"T4","MV_80_E"]
[5002376,null,null,null,null,null,null,null,null,null,null,null,null,null,null,null,null,null,null,null,null,null,null,null,null,null,null,null,null,null,null,null,null,null,null,null,null,null,null,null,null,null,null,null,null,null,null,null,null,null,null,null,"R4","HPS_150_T"]
[5002377,null,null,null,null,null,null,null,null,null,null,null,null,null,null,null,null,null,null,null,null,null,null,null,null,null,null,null,null,null,null,null,null,null,null,null,null,null,null,null,null,null,null,null,null,null,null,null,null,null,null,null,"R4","HPS_150_T"]
[5002378,null,null,null,null,null,null,null,null,null,null,null,null,null,null,null,null,null,null,null,null,null,null,null,null,null,null,null,null,null,null,null,null,null,null,null,null,null,null,null,null,null,null,null,null,null,null,null,null,null,null,null,"NA","HPS_150_T"]
[5002379,null,null,null,null,null,null,null,null,null,null,null,null,null,null,null,null,null,null,null,null,null,null,null,null,null,null,null,null,null,null,null,null,null,null,null,null,null,null,null,null,null,null,null,null,null,null,null,null,null,null,null,"R4","HPS_150_E"]
[5002380,null,null,null,null,null,null,null,null,null,null,null,null,null,null,null,null,null,null,null,null,null,null,null,null,null,null,null,null,null,null,null,null,null,null,null,null,null,null,null,null,null,null,null,null,null,null,null,null,null,null,null,"R4","HPS_150_TSI"]
[5002381,null,null,null,null,null,null,null,null,null,null,null,null,null,null,null,null,null,null,null,null,null,null,null,null,null,null,null,null,null,null,null,null,null,null,null,null,null,null,null,null,null,null,null,null,null,null,null,null,null,null,null,"R4","HPS_150_T"]
[5002382,null,null,null,null,null,null,null,null,null,null,null,null,null,null,null,null,null,null,null,null,null,null,null,null,null,null,null,null,null,null,null,null,null,null,null,null,null,null,null,null,null,null,null,null,null,null,null,null,null,null,null,"R2","HPS_150_T"]
[5002383,null,null,null,null,null,null,null,null,null,null,null,null,null,null,null,null,null,null,null,null,null,null,null,null,null,null,null,null,null,null,null,null,null,null,null,null,null,null,null,null,null,null,null,null,null,null,null,null,null,null,null,"R4","HPS_150_T"]
[5002384,null,null,null,null,null,null,null,null,null,null,null,null,null,null,null,null,null,null,null,null,null,null,null,null,null,null,null,null,null,null,null,null,null,null,null,null,null,null,null,null,null,null,null,null,null,null,null,null,null,null,null,"R4","HPS_150_E"]
[5002385,null,null,null,null,null,null,null,null,null,null,null,null,null,null,null,null,null,null,null,null,null,null,null,null,null,null,null,null,null,null,null,null,null,null,null,null,null,null,null,null,null,null,null,null,null,null,null,null,null,null,null,"R4","HPS_150_T"]
[5002386,null,null,null,null,null,null,null,null,null,null,null,null,null,null,null,null,null,null,null,null,null,null,null,null,null,null,null,null,null,null,null,null,null,null,null,null,null,null,null,null,null,null,null,null,null,null,null,null,null,null,null,"R4","HPS_150_T"]
[5002387,null,null,null,null,null,null,null,null,null,null,null,null,null,null,null,null,null,null,null,null,null,null,null,null,null,null,null,null,null,null,null,null,null,null,null,null,null,null,null,null,null,null,null,null,null,null,null,null,null,null,null,"R4","HPS_150_T"]
[5002388,null,null,null,null,null,null,null,null,null,null,null,null,null,null,null,null,null,null,null,null,null,null,null,null,null,null,null,null,null,null,null,null,null,null,null,null,null,null,null,null,null,null,null,null,null,null,null,null,null,null,null,"R4","HPS_150_T"]
[5002389,null,null,null,null,null,null,null,null,null,null,null,null,null,null,null,null,null,null,null,null,null,null,null,null,null,null,null,null,null,null,null,null,null,null,null,null,null,null,null,null,null,null,null,null,null,null,null,null,null,null,null,"T4","MV_80_E"]
[5002390,null,null,null,null,null,null,null,null,null,null,null,null,null,null,null,null,null,null,null,null,null,null,null,null,null,null,null,null,null,null,null,null,null,null,null,null,null,null,null,null,null,null,null,null,null,null,null,null,null,null,null,"R4","MV_80_E"]
[5002391,null,null,null,null,null,null,null,null,null,null,null,null,null,null,null,null,null,null,null,null,null,null,null,null,null,null,null,null,null,null,null,null,null,null,null,null,null,null,null,null,null,null,null,null,null,null,null,null,null,null,null,null,"MV_80_E"]
[5002392,null,null,null,null,null,null,null,null,null,null,null,null,null,null,null,null,null,null,null,null,null,null,null,null,null,null,null,null,null,null,null,null,null,null,null,null,null,null,null,null,null,null,null,null,null,null,null,null,null,null,null,null,"MV_80_E"]
[5002393,null,null,null,null,null,null,null,null,null,null,null,null,null,null,null,null,null,null,null,null,null,null,null,null,null,null,null,null,null,null,null,null,null,null,null,null,null,null,null,null,null,null,null,null,null,null,null,null,null,null,null,"R4","MV_80_E"]
[5002394,null,null,null,null,null,null,null,null,null,null,null,null,null,null,null,null,null,null,null,null,null,null,null,null,null,null,null,null,null,null,null,null,null,null,null,null,null,null,null,null,null,null,null,null,null,null,null,null,null,null,null,"R4","MV_80_E"]
[5002395,null,null,null,null,null,null,null,null,null,null,null,null,null,null,null,null,null,null,null,null,null,null,null,null,null,null,null,null,null,null,null,null,null,null,null,null,null,null,null,null,null,null,null,null,null,null,null,null,null,null,null,"R4","MV_80_E"]
[5002396,null,null,null,null,null,null,null,null,null,null,null,null,null,null,null,null,null,null,null,null,null,null,null,null,null,null,null,null,null,null,null,null,null,null,null,null,null,null,null,null,null,null,null,null,null,null,null,null,null,null,null,null,"MV_80_E"]
[5002397,null,null,null,null,null,null,null,null,null,null,null,null,null,null,null,null,null,null,null,null,null,null,null,null,null,null,null,null,null,null,null,null,null,null,null,null,null,null,null,null,null,null,null,null,null,null,null,null,null,null,null,null,"MV_80_E"]
[5002398,null,null,null,null,null,null,null,null,null,null,null,null,null,null,null,null,null,null,null,null,null,null,null,null,null,null,null,null,null,null,null,null,null,null,null,null,null,null,null,null,null,null,null,null,null,null,null,null,null,null,null,"R4","MV_80_E"]
[5002399,null,null,null,null,null,null,null,null,null,null,null,null,null,null,null,null,null,null,null,null,null,null,null,null,null,null,null,null,null,null,null,null,null,null,null,null,null,null,null,null,null,null,null,null,null,null,null,null,null,null,null,"R4","MV_80_E"]
[5002400,null,null,null,null,null,null,null,null,null,null,null,null,null,null,null,null,null,null,null,null,null,null,null,null,null,null,null,null,null,null,null,null,null,null,null,null,null,null,null,null,null,null,null,null,null,null,null,null,null,null,null,"R4","MV_80_E"]
[5002401,null,null,null,null,null,null,null,null,null,null,null,null,null,null,null,null,null,null,null,null,null,null,null,null,null,null,null,null,null,null,null,null,null,null,null,null,null,null,null,null,null,null,null,null,null,null,null,null,null,null,null,"R4","MV_80_E"]
[5002402,null,null,null,null,null,null,null,null,null,null,null,null,null,null,null,null,null,null,null,null,null,null,null,null,null,null,null,null,null,null,null,null,null,null,null,null,null,null,null,null,null,null,null,null,null,null,null,null,null,null,null,"R4","MV_80_E"]
[5002403,null,null,null,null,null,null,null,null,null,null,null,null,null,null,null,null,null,null,null,null,null,null,null,null,null,null,null,null,null,null,null,null,null,null,null,null,null,null,null,null,null,null,null,null,null,null,null,null,null,null,null,"R4","MV_80_E"]
[5002404,null,null,null,null,null,null,null,null,null,null,null,null,null,null,null,null,null,null,null,null,null,null,null,null,null,null,null,null,null,null,null,null,null,null,null,null,null,null,null,null,null,null,null,null,null,null,null,null,null,null,null,"R4","MV_80_E"]
[5002405,null,null,null,null,null,null,null,null,null,null,null,null,null,null,null,null,null,null,null,null,null,null,null,null,null,null,null,null,null,null,null,null,null,null,null,null,null,null,null,null,null,null,null,null,null,null,null,null,null,null,null,"R4","CFL_42"]
[5002406,null,null,null,null,null,null,null,null,null,null,null,null,null,null,null,null,null,null,null,null,null,null,null,null,null,null,null,null,null,null,null,null,null,null,null,null,null,null,null,null,null,null,null,null,null,null,null,null,null,null,null,null,"MV_80_E"]
[5002407,null,null,null,null,null,null,null,null,null,null,null,null,null,null,null,null,null,null,null,null,null,null,null,null,null,null,null,null,null,null,null,null,null,null,null,null,null,null,null,null,null,null,null,null,null,null,null,null,null,null,null,"R4","MV_80_E"]
[5002408,null,null,null,null,null,null,null,null,null,null,null,null,null,null,null,null,null,null,null,null,null,null,null,null,null,null,null,null,null,null,null,null,null,null,null,null,null,null,null,null,null,null,null,null,null,null,null,null,null,null,null,"R4","MV_80_E"]
[5002409,null,null,null,null,null,null,null,null,null,null,null,null,null,null,null,null,null,null,null,null,null,null,null,null,null,null,null,null,null,null,null,null,null,null,null,null,null,null,null,null,null,null,null,null,null,null,null,null,null,null,null,"T4","MV_80_E"]
[5002410,null,null,null,null,null,null,null,null,null,null,null,null,null,null,null,null,null,null,null,null,null,null,null,null,null,null,null,null,null,null,null,null,null,null,null,null,null,null,null,null,null,null,null,null,null,null,null,null,null,null,null,"R4","CFL_42"]
[5002411,null,null,null,null,null,null,null,null,null,null,null,null,null,null,null,null,null,null,null,null,null,null,null,null,null,null,null,null,null,null,null,null,null,null,null,null,null,null,null,null,null,null,null,null,null,null,null,null,null,null,null,"R4","CFL_42"]
[5002412,null,null,null,null,null,null,null,null,null,null,null,null,null,null,null,null,null,null,null,null,null,null,null,null,null,null,null,null,null,null,null,null,null,null,null,null,null,null,null,null,null,null,null,null,null,null,null,null,null,null,null,"R4","MV_80_E"]
[5002413,null,null,null,null,null,null,null,null,null,null,null,null,null,null,null,null,null,null,null,null,null,null,null,null,null,null,null,null,null,null,null,null,null,null,null,null,null,null,null,null,null,null,null,null,null,null,null,null,null,null,null,null,"CFL_42"]
[5002414,null,null,null,null,null,null,null,null,null,null,null,null,null,null,null,null,null,null,null,null,null,null,null,null,null,null,null,null,null,null,null,null,null,null,null,null,null,null,null,null,null,null,null,null,null,null,null,null,null,null,null,"R4","CFL_42"]
[5002415,null,null,null,null,null,null,null,null,null,null,null,null,null,null,null,null,null,null,null,null,null,null,null,null,null,null,null,null,null,null,null,null,null,null,null,null,null,null,null,null,null,null,null,null,null,null,null,null,null,null,null,"R4","CFL_42"]
[5002416,null,null,null,null,null,null,null,null,null,null,null,null,null,null,null,null,null,null,null,null,null,null,null,null,null,null,null,null,null,null,null,null,null,null,null,null,null,null,null,null,null,null,null,null,null,null,null,null,null,null,null,"R4","HPS_100_T"]
[5002417,null,null,null,null,null,null,null,null,null,null,null,null,null,null,null,null,null,null,null,null,null,null,null,null,null,null,null,null,null,null,null,null,null,null,null,null,null,null,null,null,null,null,null,null,null,null,null,null,null,null,null,"R4","HPS_100_T"]
[5002418,null,null,null,null,null,null,null,null,null,null,null,null,null,null,null,null,null,null,null,null,null,null,null,null,null,null,null,null,null,null,null,null,null,null,null,null,null,null,null,null,null,null,null,null,null,null,null,null,null,null,null,"R4","HPS_100_T"]
[5002419,null,null,null,null,null,null,null,null,null,null,null,null,null,null,null,null,null,null,null,null,null,null,null,null,null,null,null,null,null,null,null,null,null,null,null,null,null,null,null,null,null,null,null,null,null,null,null,null,null,null,null,"R4","HPS_100_T"]
[5002420,null,null,null,null,null,null,null,null,null,null,null,null,null,null,null,null,null,null,null,null,null,null,null,null,null,null,null,null,null,null,null,null,null,null,null,null,null,null,null,null,null,null,null,null,null,null,null,null,null,null,null,null,"CFL_42"]
[5002421,null,null,null,null,null,null,null,null,null,null,null,null,null,null,null,null,null,null,null,null,null,null,null,null,null,null,null,null,null,null,null,null,null,null,null,null,null,null,null,null,null,null,null,null,null,null,null,null,null,null,null,"R4","CFL_42"]
[5002422,null,null,null,null,null,null,null,null,null,null,null,null,null,null,null,null,null,null,null,null,null,null,null,null,null,null,null,null,null,null,null,null,null,null,null,null,null,null,null,null,null,null,null,null,null,null,null,null,null,null,null,"R4","HPS_150_T"]
[5002423,null,null,null,null,null,null,null,null,null,null,null,null,null,null,null,null,null,null,null,null,null,null,null,null,null,null,null,null,null,null,null,null,null,null,null,null,null,null,null,null,null,null,null,null,null,null,null,null,null,null,null,"NA","HPS_150_T"]
[5002424,null,null,null,null,null,null,null,null,null,null,null,null,null,null,null,null,null,null,null,null,null,null,null,null,null,null,null,null,null,null,null,null,null,null,null,null,null,null,null,null,null,null,null,null,null,null,null,null,null,null,null,null,"HPS_150_T"]
[5002425,null,null,null,null,null,null,null,null,null,null,null,null,null,null,null,null,null,null,null,null,null,null,null,null,null,null,null,null,null,null,null,null,null,null,null,null,null,null,null,null,null,null,null,null,null,null,null,null,null,null,null,"R4","HPS_250_T"]
[5002426,null,null,null,null,null,null,null,null,null,null,null,null,null,null,null,null,null,null,null,null,null,null,null,null,null,null,null,null,null,null,null,null,null,null,null,null,null,null,null,null,null,null,null,null,null,null,null,null,null,null,null,"T4","MV_80_E"]
[5002427,null,null,null,null,null,null,null,null,null,null,null,null,null,null,null,null,null,null,null,null,null,null,null,null,null,null,null,null,null,null,null,null,null,null,null,null,null,null,null,null,null,null,null,null,null,null,null,null,null,null,null,"R4","MV_80_E"]
[5002428,null,null,null,null,null,null,null,null,null,null,null,null,null,null,null,null,null,null,null,null,null,null,null,null,null,null,null,null,null,null,null,null,null,null,null,null,null,null,null,null,null,null,null,null,null,null,null,null,null,null,null,"R4","MV_80_E"]
[5002429,null,null,null,null,null,null,null,null,null,null,null,null,null,null,null,null,null,null,null,null,null,null,null,null,null,null,null,null,null,null,null,null,null,null,null,null,null,null,null,null,null,null,null,null,null,null,null,null,null,null,null,"T4","MV_80_E"]
[5002430,null,null,null,null,null,null,null,null,null,null,null,null,null,null,null,null,null,null,null,null,null,null,null,null,null,null,null,null,null,null,null,null,null,null,null,null,null,null,null,null,null,null,null,null,null,null,null,null,null,null,null,"T4","MV_80_E"]
[5002431,null,null,null,null,null,null,null,null,null,null,null,null,null,null,null,null,null,null,null,null,null,null,null,null,null,null,null,null,null,null,null,null,null,null,null,null,null,null,null,null,null,null,null,null,null,null,null,null,null,null,null,"T4","MV_80_E"]
[5002432,null,null,null,null,null,null,null,null,null,null,null,null,null,null,null,null,null,null,null,null,null,null,null,null,null,null,null,null,null,null,null,null,null,null,null,null,null,null,null,null,null,null,null,null,null,null,null,null,null,null,null,"T4","MV_80_E"]
[5002433,null,null,null,null,null,null,null,null,null,null,null,null,null,null,null,null,null,null,null,null,null,null,null,null,null,null,null,null,null,null,null,null,null,null,null,null,null,null,null,null,null,null,null,null,null,null,null,null,null,null,null,"T4","MV_80_E"]
[5002434,null,null,null,null,null,null,null,null,null,null,null,null,null,null,null,null,null,null,null,null,null,null,null,null,null,null,null,null,null,null,null,null,null,null,null,null,null,null,null,null,null,null,null,null,null,null,null,null,null,null,null,"T4","MV_80_E"]
[5002435,null,null,null,null,null,null,null,null,null,null,null,null,null,null,null,null,null,null,null,null,null,null,null,null,null,null,null,null,null,null,null,null,null,null,null,null,null,null,null,null,null,null,null,null,null,null,null,null,null,null,null,"T4","MV_80_E"]
[5002436,null,null,null,null,null,null,null,null,null,null,null,null,null,null,null,null,null,null,null,null,null,null,null,null,null,null,null,null,null,null,null,null,null,null,null,null,null,null,null,null,null,null,null,null,null,null,null,null,null,null,null,"T4","MV_80_E"]
[5002437,null,null,null,null,null,null,null,null,null,null,null,null,null,null,null,null,null,null,null,null,null,null,null,null,null,null,null,null,null,null,null,null,null,null,null,null,null,null,null,null,null,null,null,null,null,null,null,null,null,null,null,"T4","MV_80_E"]
[5002438,null,null,null,null,null,null,null,null,null,null,null,null,null,null,null,null,null,null,null,null,null,null,null,null,null,null,null,null,null,null,null,null,null,null,null,null,null,null,null,null,null,null,null,null,null,null,null,null,null,null,null,"T4","MV_80_E"]
[5002439,null,null,null,null,null,null,null,null,null,null,null,null,null,null,null,null,null,null,null,null,null,null,null,null,null,null,null,null,null,null,null,null,null,null,null,null,null,null,null,null,null,null,null,null,null,null,null,null,null,null,null,"T4","MV_80_E"]
[5002440,null,null,null,null,null,null,null,null,null,null,null,null,null,null,null,null,null,null,null,null,null,null,null,null,null,null,null,null,null,null,null,null,null,null,null,null,null,null,null,null,null,null,null,null,null,null,null,null,null,null,null,"T4","MV_80_E"]
[5002441,null,null,null,null,null,null,null,null,null,null,null,null,null,null,null,null,null,null,null,null,null,null,null,null,null,null,null,null,null,null,null,null,null,null,null,null,null,null,null,null,null,null,null,null,null,null,null,null,null,null,null,"R4","MV_80_E"]
[5002442,null,null,null,null,null,null,null,null,null,null,null,null,null,null,null,null,null,null,null,null,null,null,null,null,null,null,null,null,null,null,null,null,null,null,null,null,null,null,null,null,null,null,null,null,null,null,null,null,null,null,null,"R4","MV_80_E"]
[5002443,null,null,null,null,null,null,null,null,null,null,null,null,null,null,null,null,null,null,null,null,null,null,null,null,null,null,null,null,null,null,null,null,null,null,null,null,null,null,null,null,null,null,null,null,null,null,null,null,null,null,null,"R4","MV_80_E"]
[5002444,null,null,null,null,null,null,null,null,null,null,null,null,null,null,null,null,null,null,null,null,null,null,null,null,null,null,null,null,null,null,null,null,null,null,null,null,null,null,null,null,null,null,null,null,null,null,null,null,null,null,null,"R4","MV_80_E"]
[5002445,null,null,null,null,null,null,null,null,null,null,null,null,null,null,null,null,null,null,null,null,null,null,null,null,null,null,null,null,null,null,null,null,null,null,null,null,null,null,null,null,null,null,null,null,null,null,null,null,null,null,null,"R4","MV_80_E"]
[5002446,null,null,null,null,null,null,null,null,null,null,null,null,null,null,null,null,null,null,null,null,null,null,null,null,null,null,null,null,null,null,null,null,null,null,null,null,null,null,null,null,null,null,null,null,null,null,null,null,null,null,null,"R4","MV_80_E"]
[5002447,null,null,null,null,null,null,null,null,null,null,null,null,null,null,null,null,null,null,null,null,null,null,null,null,null,null,null,null,null,null,null,null,null,null,null,null,null,null,null,null,null,null,null,null,null,null,null,null,null,null,null,"T3","MV_80_E"]
[5002448,null,null,null,null,null,null,null,null,null,null,null,null,null,null,null,null,null,null,null,null,null,null,null,null,null,null,null,null,null,null,null,null,null,null,null,null,null,null,null,null,null,null,null,null,null,null,null,null,null,null,null,null,"MV_80_E"]
[5002450,null,null,null,null,null,null,null,null,null,null,null,null,null,null,null,null,null,null,null,null,null,null,null,null,null,null,null,null,null,null,null,null,null,null,null,null,null,null,null,null,null,null,null,null,null,null,null,null,null,null,null,"T4","MV_80_E"]
[5002451,null,null,null,null,null,null,null,null,null,null,null,null,null,null,null,null,null,null,null,null,null,null,null,null,null,null,null,null,null,null,null,null,null,null,null,null,null,null,null,null,null,null,null,null,null,null,null,null,null,null,null,null,"MV_80_E"]
[5002452,null,null,null,null,null,null,null,null,null,null,null,null,null,null,null,null,null,null,null,null,null,null,null,null,null,null,null,null,null,null,null,null,null,null,null,null,null,null,null,null,null,null,null,null,null,null,null,null,null,null,null,"T4","MV_80_E"]
[5002453,null,null,null,null,null,null,null,null,null,null,null,null,null,null,null,null,null,null,null,null,null,null,null,null,null,null,null,null,null,null,null,null,null,null,null,null,null,null,null,null,null,null,null,null,null,null,null,null,null,null,null,"T4","MV_80_E"]
[5002454,null,null,null,null,null,null,null,null,null,null,null,null,null,null,null,null,null,null,null,null,null,null,null,null,null,null,null,null,null,null,null,null,null,null,null,null,null,null,null,null,null,null,null,null,null,null,null,null,null,null,null,"T4","MV_80_E"]
[5002455,null,null,null,null,null,null,null,null,null,null,null,null,null,null,null,null,null,null,null,null,null,null,null,null,null,null,null,null,null,null,null,null,null,null,null,null,null,null,null,null,null,null,null,null,null,null,null,null,null,null,null,"R6","HPS_100_T"]
[5002456,null,null,null,null,null,null,null,null,null,null,null,null,null,null,null,null,null,null,null,null,null,null,null,null,null,null,null,null,null,null,null,null,null,null,null,null,null,null,null,null,null,null,null,null,null,null,null,null,null,null,null,"R4","MV_80_E"]
[5002457,null,null,null,null,null,null,null,null,null,null,null,null,null,null,null,null,null,null,null,null,null,null,null,null,null,null,null,null,null,null,null,null,null,null,null,null,null,null,null,null,null,null,null,null,null,null,null,null,null,null,null,"R4","MV_80_E"]
[5002458,null,null,null,null,null,null,null,null,null,null,null,null,null,null,null,null,null,null,null,null,null,null,null,null,null,null,null,null,null,null,null,null,null,null,null,null,null,null,null,null,null,null,null,null,null,null,null,null,null,null,null,"R4","MV_80_E"]
[5002459,null,null,null,null,null,null,null,null,null,null,null,null,null,null,null,null,null,null,null,null,null,null,null,null,null,null,null,null,null,null,null,null,null,null,null,null,null,null,null,null,null,null,null,null,null,null,null,null,null,null,null,"R4","MV_80_E"]
[5002460,null,null,null,null,null,null,null,null,null,null,null,null,null,null,null,null,null,null,null,null,null,null,null,null,null,null,null,null,null,null,null,null,null,null,null,null,null,null,null,null,null,null,null,null,null,null,null,null,null,null,null,"T4","MV_80_E"]
[5002461,null,null,null,null,null,null,null,null,null,null,null,null,null,null,null,null,null,null,null,null,null,null,null,null,null,null,null,null,null,null,null,null,null,null,null,null,null,null,null,null,null,null,null,null,null,null,null,null,null,null,null,"T4","MV_80_E"]
[5002462,null,null,null,null,null,null,null,null,null,null,null,null,null,null,null,null,null,null,null,null,null,null,null,null,null,null,null,null,null,null,null,null,null,null,null,null,null,null,null,null,null,null,null,null,null,null,null,null,null,null,null,"T4","MV_80_E"]
[5002463,null,null,null,null,null,null,null,null,null,null,null,null,null,null,null,null,null,null,null,null,null,null,null,null,null,null,null,null,null,null,null,null,null,null,null,null,null,null,null,null,null,null,null,null,null,null,null,null,null,null,null,"T4","MV_80_E"]
[5002464,null,null,null,null,null,null,null,null,null,null,null,null,null,null,null,null,null,null,null,null,null,null,null,null,null,null,null,null,null,null,null,null,null,null,null,null,null,null,null,null,null,null,null,null,null,null,null,null,null,null,null,"T4","MV_80_E"]
[5002465,null,null,null,null,null,null,null,null,null,null,null,null,null,null,null,null,null,null,null,null,null,null,null,null,null,null,null,null,null,null,null,null,null,null,null,null,null,null,null,null,null,null,null,null,null,null,null,null,null,null,null,"T4","MV_80_E"]
[5002466,null,null,null,null,null,null,null,null,null,null,null,null,null,null,null,null,null,null,null,null,null,null,null,null,null,null,null,null,null,null,null,null,null,null,null,null,null,null,null,null,null,null,null,null,null,null,null,null,null,null,null,"T4","MV_80_E"]
[5002467,null,null,null,null,null,null,null,null,null,null,null,null,null,null,null,null,null,null,null,null,null,null,null,null,null,null,null,null,null,null,null,null,null,null,null,null,null,null,null,null,null,null,null,null,null,null,null,null,null,null,null,"T4","MV_80_E"]
[5002468,null,null,null,null,null,null,null,null,null,null,null,null,null,null,null,null,null,null,null,null,null,null,null,null,null,null,null,null,null,null,null,null,null,null,null,null,null,null,null,null,null,null,null,null,null,null,null,null,null,null,null,"R4","MV_80_E"]
[5002469,null,null,null,null,null,null,null,null,null,null,null,null,null,null,null,null,null,null,null,null,null,null,null,null,null,null,null,null,null,null,null,null,null,null,null,null,null,null,null,null,null,null,null,null,null,null,null,null,null,null,null,"R4","MV_80_E"]
[5002470,null,null,null,null,null,null,null,null,null,null,null,null,null,null,null,null,null,null,null,null,null,null,null,null,null,null,null,null,null,null,null,null,null,null,null,null,null,null,null,null,null,null,null,null,null,null,null,null,null,null,null,"R4","HPS_150_T"]
[5002471,null,null,null,null,null,null,null,null,null,null,null,null,null,null,null,null,null,null,null,null,null,null,null,null,null,null,null,null,null,null,null,null,null,null,null,null,null,null,null,null,null,null,null,null,null,null,null,null,null,null,null,"R5","HPS_150_T"]
[5002472,null,null,null,null,null,null,null,null,null,null,null,null,null,null,null,null,null,null,null,null,null,null,null,null,null,null,null,null,null,null,null,null,null,null,null,null,null,null,null,null,null,null,null,null,null,null,null,null,null,null,null,"T3","HPS_400_T"]
[5002473,null,null,null,null,null,null,null,null,null,null,null,null,null,null,null,null,null,null,null,null,null,null,null,null,null,null,null,null,null,null,null,null,null,null,null,null,null,null,null,null,null,null,null,null,null,null,null,null,null,null,null,"T4","CFL_42"]
[5002474,null,null,null,null,null,null,null,null,null,null,null,null,null,null,null,null,null,null,null,null,null,null,null,null,null,null,null,null,null,null,null,null,null,null,null,null,null,null,null,null,null,null,null,null,null,null,null,null,null,null,null,"R4","CFL_42"]
[5002475,null,null,null,null,null,null,null,null,null,null,null,null,null,null,null,null,null,null,null,null,null,null,null,null,null,null,null,null,null,null,null,null,null,null,null,null,null,null,null,null,null,null,null,null,null,null,null,null,null,null,null,"T4","CFL_42"]
[5002476,null,null,null,null,null,null,null,null,null,null,null,null,null,null,null,null,null,null,null,null,null,null,null,null,null,null,null,null,null,null,null,null,null,null,null,null,null,null,null,null,null,null,null,null,null,null,null,null,null,null,null,null,"HPS_150_T"]
[5002477,null,null,null,null,null,null,null,null,null,null,null,null,null,null,null,null,null,null,null,null,null,null,null,null,null,null,null,null,null,null,null,null,null,null,null,null,null,null,null,null,null,null,null,null,null,null,null,null,null,null,null,"R5","CFL_42"]
[5002478,null,null,null,null,null,null,null,null,null,null,null,null,null,null,null,null,null,null,null,null,null,null,null,null,null,null,null,null,null,null,null,null,null,null,null,null,null,null,null,null,null,null,null,null,null,null,null,null,null,null,null,"NULL","CFL_42"]
[5002479,null,null,null,null,null,null,null,null,null,null,null,null,null,null,null,null,null,null,null,null,null,null,null,null,null,null,null,null,null,null,null,null,null,null,null,null,null,null,null,null,null,null,null,null,null,null,null,null,null,null,null,null,"HPS_250_T"]
[5002480,null,null,null,null,null,null,null,null,null,null,null,null,null,null,null,null,null,null,null,null,null,null,null,null,null,null,null,null,null,null,null,null,null,null,null,null,null,null,null,null,null,null,null,null,null,null,null,null,null,null,null,null,"HPS_250_T"]
[5002481,null,null,null,null,null,null,null,null,null,null,null,null,null,null,null,null,null,null,null,null,null,null,null,null,null,null,null,null,null,null,null,null,null,null,null,null,null,null,null,null,null,null,null,null,null,null,null,null,null,null,null,null,"HPS_250_T"]
[5002482,null,null,null,null,null,null,null,null,null,null,null,null,null,null,null,null,null,null,null,null,null,null,null,null,null,null,null,null,null,null,null,null,null,null,null,null,null,null,null,null,null,null,null,null,null,null,null,null,null,null,null,null,"HPS_250_T"]
[5002483,null,null,null,null,null,null,null,null,null,null,null,null,null,null,null,null,null,null,null,null,null,null,null,null,null,null,null,null,null,null,null,null,null,null,null,null,null,null,null,null,null,null,null,null,null,null,null,null,null,null,null,null,"HPS_250_T"]
[5002484,null,null,null,null,null,null,null,null,null,null,null,null,null,null,null,null,null,null,null,null,null,null,null,null,null,null,null,null,null,null,null,null,null,null,null,null,null,null,null,null,null,null,null,null,null,null,null,null,null,null,null,null,"HPS_250_T"]
[5002485,null,null,null,null,null,null,null,null,null,null,null,null,null,null,null,null,null,null,null,null,null,null,null,null,null,null,null,null,null,null,null,null,null,null,null,null,null,null,null,null,null,null,null,null,null,null,null,null,null,null,null,null,"HPS_250_T"]
[5002486,null,null,null,null,null,null,null,null,null,null,null,null,null,null,null,null,null,null,null,null,null,null,null,null,null,null,null,null,null,null,null,null,null,null,null,null,null,null,null,null,null,null,null,null,null,null,null,null,null,null,null,null,"HPS_250_T"]
[5002487,null,null,null,null,null,null,null,null,null,null,null,null,null,null,null,null,null,null,null,null,null,null,null,null,null,null,null,null,null,null,null,null,null,null,null,null,null,null,null,null,null,null,null,null,null,null,null,null,null,null,null,null,"HPS_250_T"]
[5002488,null,null,null,null,null,null,null,null,null,null,null,null,null,null,null,null,null,null,null,null,null,null,null,null,null,null,null,null,null,null,null,null,null,null,null,null,null,null,null,null,null,null,null,null,null,null,null,null,null,null,null,null,"HPS_250_T"]
[5002489,null,null,null,null,null,null,null,null,null,null,null,null,null,null,null,null,null,null,null,null,null,null,null,null,null,null,null,null,null,null,null,null,null,null,null,null,null,null,null,null,null,null,null,null,null,null,null,null,null,null,null,null,"HPS_250_T"]
[5002490,null,null,null,null,null,null,null,null,null,null,null,null,null,null,null,null,null,null,null,null,null,null,null,null,null,null,null,null,null,null,null,null,null,null,null,null,null,null,null,null,null,null,null,null,null,null,null,null,null,null,null,null,"HPS_250_T"]
[5002491,null,null,null,null,null,null,null,null,null,null,null,null,null,null,null,null,null,null,null,null,null,null,null,null,null,null,null,null,null,null,null,null,null,null,null,null,null,null,null,null,null,null,null,null,null,null,null,null,null,null,null,"R5","HPS_400_T"]
[5002492,null,null,null,null,null,null,null,null,null,null,null,null,null,null,null,null,null,null,null,null,null,null,null,null,null,null,null,null,null,null,null,null,null,null,null,null,null,null,null,null,null,null,null,null,null,null,null,null,null,null,null,"R5","HPS_400_T"]
[5002493,null,null,null,null,null,null,null,null,null,null,null,null,null,null,null,null,null,null,null,null,null,null,null,null,null,null,null,null,null,null,null,null,null,null,null,null,null,null,null,null,null,null,null,null,null,null,null,null,null,null,null,"R6","HPS_400_T"]
[5002494,null,null,null,null,null,null,null,null,null,null,null,null,null,null,null,null,null,null,null,null,null,null,null,null,null,null,null,null,null,null,null,null,null,null,null,null,null,null,null,null,null,null,null,null,null,null,null,null,null,null,null,"R6","HPS_400_T"]
[5002495,null,null,null,null,null,null,null,null,null,null,null,null,null,null,null,null,null,null,null,null,null,null,null,null,null,null,null,null,null,null,null,null,null,null,null,null,null,null,null,null,null,null,null,null,null,null,null,null,null,null,null,null,"HPS_400_T"]
[5002496,null,null,null,null,null,null,null,null,null,null,null,null,null,null,null,null,null,null,null,null,null,null,null,null,null,null,null,null,null,null,null,null,null,null,null,null,null,null,null,null,null,null,null,null,null,null,null,null,null,null,null,"R5","HPS_400_T"]
[5002497,null,null,null,null,null,null,null,null,null,null,null,null,null,null,null,null,null,null,null,null,null,null,null,null,null,null,null,null,null,null,null,null,null,null,null,null,null,null,null,null,null,null,null,null,null,null,null,null,null,null,null,"T1","HPS_400_T"]
[5002498,null,null,null,null,null,null,null,null,null,null,null,null,null,null,null,null,null,null,null,null,null,null,null,null,null,null,null,null,null,null,null,null,null,null,null,null,null,null,null,null,null,null,null,null,null,null,null,null,null,null,null,"R7","HPS_250_T"]
[5002499,null,null,null,null,null,null,null,null,null,null,null,null,null,null,null,null,null,null,null,null,null,null,null,null,null,null,null,null,null,null,null,null,null,null,null,null,null,null,null,null,null,null,null,null,null,null,null,null,null,null,null,"R7","HPS_250_T"]
[5002550,null,null,null,null,null,null,null,null,null,null,null,null,null,null,null,null,null,null,null,null,null,null,null,null,null,null,null,null,null,null,null,null,null,null,null,null,null,null,null,null,null,null,null,null,null,null,null,null,null,null,null,"OTHER","MV_80_E"]
[5002551,null,null,null,null,null,null,null,null,null,null,null,null,null,null,null,null,null,null,null,null,null,null,null,null,null,null,null,null,null,null,null,null,null,null,null,null,null,null,null,null,null,null,null,null,null,null,null,null,null,null,null,null,"MV_80_E"]
[5002552,null,null,null,null,null,null,null,null,null,null,null,null,null,null,null,null,null,null,null,null,null,null,null,null,null,null,null,null,null,null,null,null,null,null,null,null,null,null,null,null,null,null,null,null,null,null,null,null,null,null,null,"T4","MV_80_E"]
[5002553,null,null,null,null,null,null,null,null,null,null,null,null,null,null,null,null,null,null,null,null,null,null,null,null,null,null,null,null,null,null,null,null,null,null,null,null,null,null,null,null,null,null,null,null,null,null,null,null,null,null,null,null,"MV_80_E"]
[5002554,null,null,null,null,null,null,null,null,null,null,null,null,null,null,null,null,null,null,null,null,null,null,null,null,null,null,null,null,null,null,null,null,null,null,null,null,null,null,null,null,null,null,null,null,null,null,null,null,null,null,null,"T4","MV_80_E"]
[5002555,null,null,null,null,null,null,null,null,null,null,null,null,null,null,null,null,null,null,null,null,null,null,null,null,null,null,null,null,null,null,null,null,null,null,null,null,null,null,null,null,null,null,null,null,null,null,null,null,null,null,null,"T4","MV_80_E"]
[5002556,null,null,null,null,null,null,null,null,null,null,null,null,null,null,null,null,null,null,null,null,null,null,null,null,null,null,null,null,null,null,null,null,null,null,null,null,null,null,null,null,null,null,null,null,null,null,null,null,null,null,null,"T4","MV_80_E"]
[5002557,null,null,null,null,null,null,null,null,null,null,null,null,null,null,null,null,null,null,null,null,null,null,null,null,null,null,null,null,null,null,null,null,null,null,null,null,null,null,null,null,null,null,null,null,null,null,null,null,null,null,null,"T4","MV_80_E"]
[5002558,null,null,null,null,null,null,null,null,null,null,null,null,null,null,null,null,null,null,null,null,null,null,null,null,null,null,null,null,null,null,null,null,null,null,null,null,null,null,null,null,null,null,null,null,null,null,null,null,null,null,null,"T4","MV_80_E"]
[5002559,null,null,null,null,null,null,null,null,null,null,null,null,null,null,null,null,null,null,null,null,null,null,null,null,null,null,null,null,null,null,null,null,null,null,null,null,null,null,null,null,null,null,null,null,null,null,null,null,null,null,null,"T3","HPS_150_T"]
[5002560,null,null,null,null,null,null,null,null,null,null,null,null,null,null,null,null,null,null,null,null,null,null,null,null,null,null,null,null,null,null,null,null,null,null,null,null,null,null,null,null,null,null,null,null,null,null,null,null,null,null,null,"T4","MV_80_E"]
[5002561,null,null,null,null,null,null,null,null,null,null,null,null,null,null,null,null,null,null,null,null,null,null,null,null,null,null,null,null,null,null,null,null,null,null,null,null,null,null,null,null,null,null,null,null,null,null,null,null,null,null,null,"T4","MV_80_E"]
[5002562,null,null,null,null,null,null,null,null,null,null,null,null,null,null,null,null,null,null,null,null,null,null,null,null,null,null,null,null,null,null,null,null,null,null,null,null,null,null,null,null,null,null,null,null,null,null,null,null,null,null,null,"T4","MV_80_E"]
[5002563,null,null,null,null,null,null,null,null,null,null,null,null,null,null,null,null,null,null,null,null,null,null,null,null,null,null,null,null,null,null,null,null,null,null,null,null,null,null,null,null,null,null,null,null,null,null,null,null,null,null,null,"T4","MV_80_E"]
[5002564,null,null,null,null,null,null,null,null,null,null,null,null,null,null,null,null,null,null,null,null,null,null,null,null,null,null,null,null,null,null,null,null,null,null,null,null,null,null,null,null,null,null,null,null,null,null,null,null,null,null,null,"T4","MV_80_E"]
[5002565,null,null,null,null,null,null,null,null,null,null,null,null,null,null,null,null,null,null,null,null,null,null,null,null,null,null,null,null,null,null,null,null,null,null,null,null,null,null,null,null,null,null,null,null,null,null,null,null,null,null,null,null,"MV_80_E"]
[5002566,null,null,null,null,null,null,null,null,null,null,null,null,null,null,null,null,null,null,null,null,null,null,null,null,null,null,null,null,null,null,null,null,null,null,null,null,null,null,null,null,null,null,null,null,null,null,null,null,null,null,null,"T4","MV_80_E"]
[5002567,null,null,null,null,null,null,null,null,null,null,null,null,null,null,null,null,null,null,null,null,null,null,null,null,null,null,null,null,null,null,null,null,null,null,null,null,null,null,null,null,null,null,null,null,null,null,null,null,null,null,null,null,"CFL_42"]
[5002568,null,null,null,null,null,null,null,null,null,null,null,null,null,null,null,null,null,null,null,null,null,null,null,null,null,null,null,null,null,null,null,null,null,null,null,null,null,null,null,null,null,null,null,null,null,null,null,null,null,null,null,null,"MV_80_E"]
[5002569,null,null,null,null,null,null,null,null,null,null,null,null,null,null,null,null,null,null,null,null,null,null,null,null,null,null,null,null,null,null,null,null,null,null,null,null,null,null,null,null,null,null,null,null,null,null,null,null,null,null,null,"T4","MV_80_E"]
[5002570,null,null,null,null,null,null,null,null,null,null,null,null,null,null,null,null,null,null,null,null,null,null,null,null,null,null,null,null,null,null,null,null,null,null,null,null,null,null,null,null,null,null,null,null,null,null,null,null,null,null,null,"T4","MV_80_E"]
[5002571,null,null,null,null,null,null,null,null,null,null,null,null,null,null,null,null,null,null,null,null,null,null,null,null,null,null,null,null,null,null,null,null,null,null,null,null,null,null,null,null,null,null,null,null,null,null,null,null,null,null,null,"T4","CFL_42"]
[5002572,null,null,null,null,null,null,null,null,null,null,null,null,null,null,null,null,null,null,null,null,null,null,null,null,null,null,null,null,null,null,null,null,null,null,null,null,null,null,null,null,null,null,null,null,null,null,null,null,null,null,null,"T4","MV_80_E"]
[5002573,null,null,null,null,null,null,null,null,null,null,null,null,null,null,null,null,null,null,null,null,null,null,null,null,null,null,null,null,null,null,null,null,null,null,null,null,null,null,null,null,null,null,null,null,null,null,null,null,null,null,null,null,"CFL_42"]
[5002574,null,null,null,null,null,null,null,null,null,null,null,null,null,null,null,null,null,null,null,null,null,null,null,null,null,null,null,null,null,null,null,null,null,null,null,null,null,null,null,null,null,null,null,null,null,null,null,null,null,null,null,"T4","CFL_42"]
[5002575,null,null,null,null,null,null,null,null,null,null,null,null,null,null,null,null,null,null,null,null,null,null,null,null,null,null,null,null,null,null,null,null,null,null,null,null,null,null,null,null,null,null,null,null,null,null,null,null,null,null,null,"T4","MV_80_E"]
[5002576,null,null,null,null,null,null,null,null,null,null,null,null,null,null,null,null,null,null,null,null,null,null,null,null,null,null,null,null,null,null,null,null,null,null,null,null,null,null,null,null,null,null,null,null,null,null,null,null,null,null,null,"T4","MV_80_E"]
[5002578,null,null,null,null,null,null,null,null,null,null,null,null,null,null,null,null,null,null,null,null,null,null,null,null,null,null,null,null,null,null,null,null,null,null,null,null,null,null,null,null,null,null,null,null,null,null,null,null,null,null,null,null,"MV_80_E"]
[5002580,null,null,null,null,null,null,null,null,null,null,null,null,null,null,null,null,null,null,null,null,null,null,null,null,null,null,null,null,null,null,null,null,null,null,null,null,null,null,null,null,null,null,null,null,null,null,null,null,null,null,null,null,"MV_80_E"]
[5002581,null,null,null,null,null,null,null,null,null,null,null,null,null,null,null,null,null,null,null,null,null,null,null,null,null,null,null,null,null,null,null,null,null,null,null,null,null,null,null,null,null,null,null,null,null,null,null,null,null,null,null,"T4","MV_80_E"]
[5002582,null,null,null,null,null,null,null,null,null,null,null,null,null,null,null,null,null,null,null,null,null,null,null,null,null,null,null,null,null,null,null,null,null,null,null,null,null,null,null,null,null,null,null,null,null,null,null,null,null,null,null,null,"MV_80_E"]
[5002583,null,null,null,null,null,null,null,null,null,null,null,null,null,null,null,null,null,null,null,null,null,null,null,null,null,null,null,null,null,null,null,null,null,null,null,null,null,null,null,null,null,null,null,null,null,null,null,null,null,null,null,"T4","MV_80_E"]
[5002584,null,null,null,null,null,null,null,null,null,null,null,null,null,null,null,null,null,null,null,null,null,null,null,null,null,null,null,null,null,null,null,null,null,null,null,null,null,null,null,null,null,null,null,null,null,null,null,null,null,null,null,null,"CFL_42"]
[5002585,null,null,null,null,null,null,null,null,null,null,null,null,null,null,null,null,null,null,null,null,null,null,null,null,null,null,null,null,null,null,null,null,null,null,null,null,null,null,null,null,null,null,null,null,null,null,null,null,null,null,null,null,"MV_80_E"]
[5002586,null,null,null,null,null,null,null,null,null,null,null,null,null,null,null,null,null,null,null,null,null,null,null,null,null,null,null,null,null,null,null,null,null,null,null,null,null,null,null,null,null,null,null,null,null,null,null,null,null,null,null,"T4","MV_80_E"]
[5002587,null,null,null,null,null,null,null,null,null,null,null,null,null,null,null,null,null,null,null,null,null,null,null,null,null,null,null,null,null,null,null,null,null,null,null,null,null,null,null,null,null,null,null,null,null,null,null,null,null,null,null,"T4","MV_80_E"]
[5002588,null,null,null,null,null,null,null,null,null,null,null,null,null,null,null,null,null,null,null,null,null,null,null,null,null,null,null,null,null,null,null,null,null,null,null,null,null,null,null,null,null,null,null,null,null,null,null,null,null,null,null,"T4","MV_80_E"]
[5002589,null,null,null,null,null,null,null,null,null,null,null,null,null,null,null,null,null,null,null,null,null,null,null,null,null,null,null,null,null,null,null,null,null,null,null,null,null,null,null,null,null,null,null,null,null,null,null,null,null,null,null,"T3","MV_80_E"]
[5002590,null,null,null,null,null,null,null,null,null,null,null,null,null,null,null,null,null,null,null,null,null,null,null,null,null,null,null,null,null,null,null,null,null,null,null,null,null,null,null,null,null,null,null,null,null,null,null,null,null,null,null,"T4","MV_80_E"]
[5002591,null,null,null,null,null,null,null,null,null,null,null,null,null,null,null,null,null,null,null,null,null,null,null,null,null,null,null,null,null,null,null,null,null,null,null,null,null,null,null,null,null,null,null,null,null,null,null,null,null,null,null,"T4","MV_80_E"]
[5002592,null,null,null,null,null,null,null,null,null,null,null,null,null,null,null,null,null,null,null,null,null,null,null,null,null,null,null,null,null,null,null,null,null,null,null,null,null,null,null,null,null,null,null,null,null,null,null,null,null,null,null,"T4","MV_80_E"]
[5002593,null,null,null,null,null,null,null,null,null,null,null,null,null,null,null,null,null,null,null,null,null,null,null,null,null,null,null,null,null,null,null,null,null,null,null,null,null,null,null,null,null,null,null,null,null,null,null,null,null,null,null,"OTHER","MV_80_E"]
[5002594,null,null,null,null,null,null,null,null,null,null,null,null,null,null,null,null,null,null,null,null,null,null,null,null,null,null,null,null,null,null,null,null,null,null,null,null,null,null,null,null,null,null,null,null,null,null,null,null,null,null,null,null,"MV_80_E"]
[5002595,null,null,null,null,null,null,null,null,null,null,null,null,null,null,null,null,null,null,null,null,null,null,null,null,null,null,null,null,null,null,null,null,null,null,null,null,null,null,null,null,null,null,null,null,null,null,null,null,null,null,null,"T4","MV_80_E"]
[5002596,null,null,null,null,null,null,null,null,null,null,null,null,null,null,null,null,null,null,null,null,null,null,null,null,null,null,null,null,null,null,null,null,null,null,null,null,null,null,null,null,null,null,null,null,null,null,null,null,null,null,null,null,"MV_80_E"]
[5002597,null,null,null,null,null,null,null,null,null,null,null,null,null,null,null,null,null,null,null,null,null,null,null,null,null,null,null,null,null,null,null,null,null,null,null,null,null,null,null,null,null,null,null,null,null,null,null,null,null,null,null,"T4","MV_80_E"]
[5002598,null,null,null,null,null,null,null,null,null,null,null,null,null,null,null,null,null,null,null,null,null,null,null,null,null,null,null,null,null,null,null,null,null,null,null,null,null,null,null,null,null,null,null,null,null,null,null,null,null,null,null,"T4","CFL_42"]
[5002599,null,null,null,null,null,null,null,null,null,null,null,null,null,null,null,null,null,null,null,null,null,null,null,null,null,null,null,null,null,null,null,null,null,null,null,null,null,null,null,null,null,null,null,null,null,null,null,null,null,null,null,"T4","MV_80_E"]
[5002600,null,null,null,null,null,null,null,null,null,null,null,null,null,null,null,null,null,null,null,null,null,null,null,null,null,null,null,null,null,null,null,null,null,null,null,null,null,null,null,null,null,null,null,null,null,null,null,null,null,null,null,"T4","MV_80_E"]
[5002601,null,null,null,null,null,null,null,null,null,null,null,null,null,null,null,null,null,null,null,null,null,null,null,null,null,null,null,null,null,null,null,null,null,null,null,null,null,null,null,null,null,null,null,null,null,null,null,null,null,null,null,"T4","MV_80_E"]
[5002602,null,null,null,null,null,null,null,null,null,null,null,null,null,null,null,null,null,null,null,null,null,null,null,null,null,null,null,null,null,null,null,null,null,null,null,null,null,null,null,null,null,null,null,null,null,null,null,null,null,null,null,"T4","HPS_150_T"]
[5002603,null,null,null,null,null,null,null,null,null,null,null,null,null,null,null,null,null,null,null,null,null,null,null,null,null,null,null,null,null,null,null,null,null,null,null,null,null,null,null,null,null,null,null,null,null,null,null,null,null,null,null,"T4","MV_80_E"]
[5002604,null,null,null,null,null,null,null,null,null,null,null,null,null,null,null,null,null,null,null,null,null,null,null,null,null,null,null,null,null,null,null,null,null,null,null,null,null,null,null,null,null,null,null,null,null,null,null,null,null,null,null,"T4","MV_80_E"]
[5002605,null,null,null,null,null,null,null,null,null,null,null,null,null,null,null,null,null,null,null,null,null,null,null,null,null,null,null,null,null,null,null,null,null,null,null,null,null,null,null,null,null,null,null,null,null,null,null,null,null,null,null,"T4","CFL_42"]
[5002606,null,null,null,null,null,null,null,null,null,null,null,null,null,null,null,null,null,null,null,null,null,null,null,null,null,null,null,null,null,null,null,null,null,null,null,null,null,null,null,null,null,null,null,null,null,null,null,null,null,null,null,"T4","MV_80_E"]
[5002607,null,null,null,null,null,null,null,null,null,null,null,null,null,null,null,null,null,null,null,null,null,null,null,null,null,null,null,null,null,null,null,null,null,null,null,null,null,null,null,null,null,null,null,null,null,null,null,null,null,null,null,null,"MV_80_E"]
[5002608,null,null,null,null,null,null,null,null,null,null,null,null,null,null,null,null,null,null,null,null,null,null,null,null,null,null,null,null,null,null,null,null,null,null,null,null,null,null,null,null,null,null,null,null,null,null,null,null,null,null,null,"T4","MV_80_E"]
[5002609,null,null,null,null,null,null,null,null,null,null,null,null,null,null,null,null,null,null,null,null,null,null,null,null,null,null,null,null,null,null,null,null,null,null,null,null,null,null,null,null,null,null,null,null,null,null,null,null,null,null,null,"T4","CFL_42"]
[5002610,null,null,null,null,null,null,null,null,null,null,null,null,null,null,null,null,null,null,null,null,null,null,null,null,null,null,null,null,null,null,null,null,null,null,null,null,null,null,null,null,null,null,null,null,null,null,null,null,null,null,null,null,"MV_80_E"]
[5002611,null,null,null,null,null,null,null,null,null,null,null,null,null,null,null,null,null,null,null,null,null,null,null,null,null,null,null,null,null,null,null,null,null,null,null,null,null,null,null,null,null,null,null,null,null,null,null,null,null,null,null,"T4","CFL_42"]
[5002612,null,null,null,null,null,null,null,null,null,null,null,null,null,null,null,null,null,null,null,null,null,null,null,null,null,null,null,null,null,null,null,null,null,null,null,null,null,null,null,null,null,null,null,null,null,null,null,null,null,null,null,"T4","MV_80_E"]
[5002613,null,null,null,null,null,null,null,null,null,null,null,null,null,null,null,null,null,null,null,null,null,null,null,null,null,null,null,null,null,null,null,null,null,null,null,null,null,null,null,null,null,null,null,null,null,null,null,null,null,null,null,null,"MV_80_E"]
[5002614,null,null,null,null,null,null,null,null,null,null,null,null,null,null,null,null,null,null,null,null,null,null,null,null,null,null,null,null,null,null,null,null,null,null,null,null,null,null,null,null,null,null,null,null,null,null,null,null,null,null,null,"T4","MV_80_E"]
[5002615,null,null,null,null,null,null,null,null,null,null,null,null,null,null,null,null,null,null,null,null,null,null,null,null,null,null,null,null,null,null,null,null,null,null,null,null,null,null,null,null,null,null,null,null,null,null,null,null,null,null,null,"T4","MV_80_E"]
[5002616,null,null,null,null,null,null,null,null,null,null,null,null,null,null,null,null,null,null,null,null,null,null,null,null,null,null,null,null,null,null,null,null,null,null,null,null,null,null,null,null,null,null,null,null,null,null,null,null,null,null,null,"T4","MV_80_E"]
[5002617,null,null,null,null,null,null,null,null,null,null,null,null,null,null,null,null,null,null,null,null,null,null,null,null,null,null,null,null,null,null,null,null,null,null,null,null,null,null,null,null,null,null,null,null,null,null,null,null,null,null,null,"T4","MV_80_E"]
[5002618,null,null,null,null,null,null,null,null,null,null,null,null,null,null,null,null,null,null,null,null,null,null,null,null,null,null,null,null,null,null,null,null,null,null,null,null,null,null,null,null,null,null,null,null,null,null,null,null,null,null,null,"T4","MV_80_E"]
[5002619,null,null,null,null,null,null,null,null,null,null,null,null,null,null,null,null,null,null,null,null,null,null,null,null,null,null,null,null,null,null,null,null,null,null,null,null,null,null,null,null,null,null,null,null,null,null,null,null,null,null,null,"T4","MV_80_E"]
[5002620,null,null,null,null,null,null,null,null,null,null,null,null,null,null,null,null,null,null,null,null,null,null,null,null,null,null,null,null,null,null,null,null,null,null,null,null,null,null,null,null,null,null,null,null,null,null,null,null,null,null,null,"T4","MV_80_E"]
[5002621,null,null,null,null,null,null,null,null,null,null,null,null,null,null,null,null,null,null,null,null,null,null,null,null,null,null,null,null,null,null,null,null,null,null,null,null,null,null,null,null,null,null,null,null,null,null,null,null,null,null,null,"T4","MV_80_E"]
[5002622,null,null,null,null,null,null,null,null,null,null,null,null,null,null,null,null,null,null,null,null,null,null,null,null,null,null,null,null,null,null,null,null,null,null,null,null,null,null,null,null,null,null,null,null,null,null,null,null,null,null,null,null,"MV_80_E"]
[5002623,null,null,null,null,null,null,null,null,null,null,null,null,null,null,null,null,null,null,null,null,null,null,null,null,null,null,null,null,null,null,null,null,null,null,null,null,null,null,null,null,null,null,null,null,null,null,null,null,null,null,null,"T4","MV_80_E"]
[5002624,null,null,null,null,null,null,null,null,null,null,null,null,null,null,null,null,null,null,null,null,null,null,null,null,null,null,null,null,null,null,null,null,null,null,null,null,null,null,null,null,null,null,null,null,null,null,null,null,null,null,null,"T4","MV_80_E"]
[5002625,null,null,null,null,null,null,null,null,null,null,null,null,null,null,null,null,null,null,null,null,null,null,null,null,null,null,null,null,null,null,null,null,null,null,null,null,null,null,null,null,null,null,null,null,null,null,null,null,null,null,null,"T4","CFL_42"]
[5002626,null,null,null,null,null,null,null,null,null,null,null,null,null,null,null,null,null,null,null,null,null,null,null,null,null,null,null,null,null,null,null,null,null,null,null,null,null,null,null,null,null,null,null,null,null,null,null,null,null,null,null,"T4","MV_80_E"]
[5002627,null,null,null,null,null,null,null,null,null,null,null,null,null,null,null,null,null,null,null,null,null,null,null,null,null,null,null,null,null,null,null,null,null,null,null,null,null,null,null,null,null,null,null,null,null,null,null,null,null,null,null,"T3","MV_80_E"]
[5002628,null,null,null,null,null,null,null,null,null,null,null,null,null,null,null,null,null,null,null,null,null,null,null,null,null,null,null,null,null,null,null,null,null,null,null,null,null,null,null,null,null,null,null,null,null,null,null,null,null,null,null,"T3","HPS_250_E"]
[5002629,null,null,null,null,null,null,null,null,null,null,null,null,null,null,null,null,null,null,null,null,null,null,null,null,null,null,null,null,null,null,null,null,null,null,null,null,null,null,null,null,null,null,null,null,null,null,null,null,null,null,null,"T4","MV_80_E"]
[5002630,null,null,null,null,null,null,null,null,null,null,null,null,null,null,null,null,null,null,null,null,null,null,null,null,null,null,null,null,null,null,null,null,null,null,null,null,null,null,null,null,null,null,null,null,null,null,null,null,null,null,null,"T4","MV_80_E"]
[5002631,null,null,null,null,null,null,null,null,null,null,null,null,null,null,null,null,null,null,null,null,null,null,null,null,null,null,null,null,null,null,null,null,null,null,null,null,null,null,null,null,null,null,null,null,null,null,null,null,null,null,null,"T4","MV_80_E"]
[5002632,null,null,null,null,null,null,null,null,null,null,null,null,null,null,null,null,null,null,null,null,null,null,null,null,null,null,null,null,null,null,null,null,null,null,null,null,null,null,null,null,null,null,null,null,null,null,null,null,null,null,null,"T4","CFL_42"]
[5002633,null,null,null,null,null,null,null,null,null,null,null,null,null,null,null,null,null,null,null,null,null,null,null,null,null,null,null,null,null,null,null,null,null,null,null,null,null,null,null,null,null,null,null,null,null,null,null,null,null,null,null,"T4","MV_80_E"]
[5002634,null,null,null,null,null,null,null,null,null,null,null,null,null,null,null,null,null,null,null,null,null,null,null,null,null,null,null,null,null,null,null,null,null,null,null,null,null,null,null,null,null,null,null,null,null,null,null,null,null,null,null,"T4","MV_80_E"]
[5002635,null,null,null,null,null,null,null,null,null,null,null,null,null,null,null,null,null,null,null,null,null,null,null,null,null,null,null,null,null,null,null,null,null,null,null,null,null,null,null,null,null,null,null,null,null,null,null,null,null,null,null,"T4","MV_80_E"]
[5002636,null,null,null,null,null,null,null,null,null,null,null,null,null,null,null,null,null,null,null,null,null,null,null,null,null,null,null,null,null,null,null,null,null,null,null,null,null,null,null,null,null,null,null,null,null,null,null,null,null,null,null,"T4","MV_80_E"]
[5002637,null,null,null,null,null,null,null,null,null,null,null,null,null,null,null,null,null,null,null,null,null,null,null,null,null,null,null,null,null,null,null,null,null,null,null,null,null,null,null,null,null,null,null,null,null,null,null,null,null,null,null,"T4","CFL_42"]
[5002638,null,null,null,null,null,null,null,null,null,null,null,null,null,null,null,null,null,null,null,null,null,null,null,null,null,null,null,null,null,null,null,null,null,null,null,null,null,null,null,null,null,null,null,null,null,null,null,null,null,null,null,"T4","MV_80_E"]
[5002639,null,null,null,null,null,null,null,null,null,null,null,null,null,null,null,null,null,null,null,null,null,null,null,null,null,null,null,null,null,null,null,null,null,null,null,null,null,null,null,null,null,null,null,null,null,null,null,null,null,null,null,null,"MV_80_E"]
[5002640,null,null,null,null,null,null,null,null,null,null,null,null,null,null,null,null,null,null,null,null,null,null,null,null,null,null,null,null,null,null,null,null,null,null,null,null,null,null,null,null,null,null,null,null,null,null,null,null,null,null,null,null,"MV_80_E"]
[5002641,null,null,null,null,null,null,null,null,null,null,null,null,null,null,null,null,null,null,null,null,null,null,null,null,null,null,null,null,null,null,null,null,null,null,null,null,null,null,null,null,null,null,null,null,null,null,null,null,null,null,null,"T4","MV_80_E"]
[5002642,null,null,null,null,null,null,null,null,null,null,null,null,null,null,null,null,null,null,null,null,null,null,null,null,null,null,null,null,null,null,null,null,null,null,null,null,null,null,null,null,null,null,null,null,null,null,null,null,null,null,null,"T4","MV_80_E"]
[5002643,null,null,null,null,null,null,null,null,null,null,null,null,null,null,null,null,null,null,null,null,null,null,null,null,null,null,null,null,null,null,null,null,null,null,null,null,null,null,null,null,null,null,null,null,null,null,null,null,null,null,null,"T4","MV_80_E"]
[5002644,null,null,null,null,null,null,null,null,null,null,null,null,null,null,null,null,null,null,null,null,null,null,null,null,null,null,null,null,null,null,null,null,null,null,null,null,null,null,null,null,null,null,null,null,null,null,null,null,null,null,null,"NA","MV_80_E"]
[5002645,null,null,null,null,null,null,null,null,null,null,null,null,null,null,null,null,null,null,null,null,null,null,null,null,null,null,null,null,null,null,null,null,null,null,null,null,null,null,null,null,null,null,null,null,null,null,null,null,null,null,null,"T4","MV_80_E"]
[5002646,null,null,null,null,null,null,null,null,null,null,null,null,null,null,null,null,null,null,null,null,null,null,null,null,null,null,null,null,null,null,null,null,null,null,null,null,null,null,null,null,null,null,null,null,null,null,null,null,null,null,null,"T4","MV_80_E"]
[5002647,null,null,null,null,null,null,null,null,null,null,null,null,null,null,null,null,null,null,null,null,null,null,null,null,null,null,null,null,null,null,null,null,null,null,null,null,null,null,null,null,null,null,null,null,null,null,null,null,null,null,null,"T4","MV_80_E"]
[5002648,null,null,null,null,null,null,null,null,null,null,null,null,null,null,null,null,null,null,null,null,null,null,null,null,null,null,null,null,null,null,null,null,null,null,null,null,null,null,null,null,null,null,null,null,null,null,null,null,null,null,null,"T4","MV_80_E"]
[5002649,null,null,null,null,null,null,null,null,null,null,null,null,null,null,null,null,null,null,null,null,null,null,null,null,null,null,null,null,null,null,null,null,null,null,null,null,null,null,null,null,null,null,null,null,null,null,null,null,null,null,null,"T4","MV_80_E"]
[5002650,null,null,null,null,null,null,null,null,null,null,null,null,null,null,null,null,null,null,null,null,null,null,null,null,null,null,null,null,null,null,null,null,null,null,null,null,null,null,null,null,null,null,null,null,null,null,null,null,null,null,null,"T4","MV_80_E"]
[5002651,null,null,null,null,null,null,null,null,null,null,null,null,null,null,null,null,null,null,null,null,null,null,null,null,null,null,null,null,null,null,null,null,null,null,null,null,null,null,null,null,null,null,null,null,null,null,null,null,null,null,null,"T4","MV_80_E"]
[5002652,null,null,null,null,null,null,null,null,null,null,null,null,null,null,null,null,null,null,null,null,null,null,null,null,null,null,null,null,null,null,null,null,null,null,null,null,null,null,null,null,null,null,null,null,null,null,null,null,null,null,null,"T4","CFL_42"]
[5002653,null,null,null,null,null,null,null,null,null,null,null,null,null,null,null,null,null,null,null,null,null,null,null,null,null,null,null,null,null,null,null,null,null,null,null,null,null,null,null,null,null,null,null,null,null,null,null,null,null,null,null,"T4","MV_80_E"]
[5002654,null,null,null,null,null,null,null,null,null,null,null,null,null,null,null,null,null,null,null,null,null,null,null,null,null,null,null,null,null,null,null,null,null,null,null,null,null,null,null,null,null,null,null,null,null,null,null,null,null,null,null,"T4","MV_80_E"]
[5002655,null,null,null,null,null,null,null,null,null,null,null,null,null,null,null,null,null,null,null,null,null,null,null,null,null,null,null,null,null,null,null,null,null,null,null,null,null,null,null,null,null,null,null,null,null,null,null,null,null,null,null,"T4","MV_80_E"]
[5002656,null,null,null,null,null,null,null,null,null,null,null,null,null,null,null,null,null,null,null,null,null,null,null,null,null,null,null,null,null,null,null,null,null,null,null,null,null,null,null,null,null,null,null,null,null,null,null,null,null,null,null,"T4","MV_80_E"]
[5002657,null,null,null,null,null,null,null,null,null,null,null,null,null,null,null,null,null,null,null,null,null,null,null,null,null,null,null,null,null,null,null,null,null,null,null,null,null,null,null,null,null,null,null,null,null,null,null,null,null,null,null,"T4","MV_80_E"]
[5002658,null,null,null,null,null,null,null,null,null,null,null,null,null,null,null,null,null,null,null,null,null,null,null,null,null,null,null,null,null,null,null,null,null,null,null,null,null,null,null,null,null,null,null,null,null,null,null,null,null,null,null,null,"MV_80_E"]
[5002659,null,null,null,null,null,null,null,null,null,null,null,null,null,null,null,null,null,null,null,null,null,null,null,null,null,null,null,null,null,null,null,null,null,null,null,null,null,null,null,null,null,null,null,null,null,null,null,null,null,null,null,"T4","MV_80_E"]
[5002660,null,null,null,null,null,null,null,null,null,null,null,null,null,null,null,null,null,null,null,null,null,null,null,null,null,null,null,null,null,null,null,null,null,null,null,null,null,null,null,null,null,null,null,null,null,null,null,null,null,null,null,"T4","CFL_42"]
[5002661,null,null,null,null,null,null,null,null,null,null,null,null,null,null,null,null,null,null,null,null,null,null,null,null,null,null,null,null,null,null,null,null,null,null,null,null,null,null,null,null,null,null,null,null,null,null,null,null,null,null,null,"T4","MV_80_E"]
[5002662,null,null,null,null,null,null,null,null,null,null,null,null,null,null,null,null,null,null,null,null,null,null,null,null,null,null,null,null,null,null,null,null,null,null,null,null,null,null,null,null,null,null,null,null,null,null,null,null,null,null,null,"T4","MV_80_E"]
[5002663,null,null,null,null,null,null,null,null,null,null,null,null,null,null,null,null,null,null,null,null,null,null,null,null,null,null,null,null,null,null,null,null,null,null,null,null,null,null,null,null,null,null,null,null,null,null,null,null,null,null,null,"T4","MV_80_E"]
[5002664,null,null,null,null,null,null,null,null,null,null,null,null,null,null,null,null,null,null,null,null,null,null,null,null,null,null,null,null,null,null,null,null,null,null,null,null,null,null,null,null,null,null,null,null,null,null,null,null,null,null,null,null,"MV_80_E"]
[5002665,null,null,null,null,null,null,null,null,null,null,null,null,null,null,null,null,null,null,null,null,null,null,null,null,null,null,null,null,null,null,null,null,null,null,null,null,null,null,null,null,null,null,null,null,null,null,null,null,null,null,null,"T4","MV_80_E"]
[5002666,null,null,null,null,null,null,null,null,null,null,null,null,null,null,null,null,null,null,null,null,null,null,null,null,null,null,null,null,null,null,null,null,null,null,null,null,null,null,null,null,null,null,null,null,null,null,null,null,null,null,null,"T4","CFL_42"]
[5002667,null,null,null,null,null,null,null,null,null,null,null,null,null,null,null,null,null,null,null,null,null,null,null,null,null,null,null,null,null,null,null,null,null,null,null,null,null,null,null,null,null,null,null,null,null,null,null,null,null,null,null,"T4","MV_80_E"]
[5002668,null,null,null,null,null,null,null,null,null,null,null,null,null,null,null,null,null,null,null,null,null,null,null,null,null,null,null,null,null,null,null,null,null,null,null,null,null,null,null,null,null,null,null,null,null,null,null,null,null,null,null,"T4","MV_80_E"]
[5002669,null,null,null,null,null,null,null,null,null,null,null,null,null,null,null,null,null,null,null,null,null,null,null,null,null,null,null,null,null,null,null,null,null,null,null,null,null,null,null,null,null,null,null,null,null,null,null,null,null,null,null,"T4","MV_80_E"]
[5002670,null,null,null,null,null,null,null,null,null,null,null,null,null,null,null,null,null,null,null,null,null,null,null,null,null,null,null,null,null,null,null,null,null,null,null,null,null,null,null,null,null,null,null,null,null,null,null,null,null,null,null,null,"MV_80_E"]
[5002671,null,null,null,null,null,null,null,null,null,null,null,null,null,null,null,null,null,null,null,null,null,null,null,null,null,null,null,null,null,null,null,null,null,null,null,null,null,null,null,null,null,null,null,null,null,null,null,null,null,null,null,null,"MV_80_E"]
[5002672,null,null,null,null,null,null,null,null,null,null,null,null,null,null,null,null,null,null,null,null,null,null,null,null,null,null,null,null,null,null,null,null,null,null,null,null,null,null,null,null,null,null,null,null,null,null,null,null,null,null,null,null,"MV_80_E"]
[5002673,null,null,null,null,null,null,null,null,null,null,null,null,null,null,null,null,null,null,null,null,null,null,null,null,null,null,null,null,null,null,null,null,null,null,null,null,null,null,null,null,null,null,null,null,null,null,null,null,null,null,null,null,"MV_80_E"]
[5002674,null,null,null,null,null,null,null,null,null,null,null,null,null,null,null,null,null,null,null,null,null,null,null,null,null,null,null,null,null,null,null,null,null,null,null,null,null,null,null,null,null,null,null,null,null,null,null,null,null,null,null,null,"MV_80_E"]
[5002675,null,null,null,null,null,null,null,null,null,null,null,null,null,null,null,null,null,null,null,null,null,null,null,null,null,null,null,null,null,null,null,null,null,null,null,null,null,null,null,null,null,null,null,null,null,null,null,null,null,null,null,"T4","MV_80_E"]
[5002676,null,null,null,null,null,null,null,null,null,null,null,null,null,null,null,null,null,null,null,null,null,null,null,null,null,null,null,null,null,null,null,null,null,null,null,null,null,null,null,null,null,null,null,null,null,null,null,null,null,null,null,"T4","MV_80_E"]
[5002677,null,null,null,null,null,null,null,null,null,null,null,null,null,null,null,null,null,null,null,null,null,null,null,null,null,null,null,null,null,null,null,null,null,null,null,null,null,null,null,null,null,null,null,null,null,null,null,null,null,null,null,null,"MV_80_E"]
[5002678,null,null,null,null,null,null,null,null,null,null,null,null,null,null,null,null,null,null,null,null,null,null,null,null,null,null,null,null,null,null,null,null,null,null,null,null,null,null,null,null,null,null,null,null,null,null,null,null,null,null,null,"T4","MV_80_E"]
[5002679,null,null,null,null,null,null,null,null,null,null,null,null,null,null,null,null,null,null,null,null,null,null,null,null,null,null,null,null,null,null,null,null,null,null,null,null,null,null,null,null,null,null,null,null,null,null,null,null,null,null,null,"T4","MV_80_E"]
[5002680,null,null,null,null,null,null,null,null,null,null,null,null,null,null,null,null,null,null,null,null,null,null,null,null,null,null,null,null,null,null,null,null,null,null,null,null,null,null,null,null,null,null,null,null,null,null,null,null,null,null,null,"T4","MV_80_E"]
[5002681,null,null,null,null,null,null,null,null,null,null,null,null,null,null,null,null,null,null,null,null,null,null,null,null,null,null,null,null,null,null,null,null,null,null,null,null,null,null,null,null,null,null,null,null,null,null,null,null,null,null,null,"T4","CFL_42"]
[5002682,null,null,null,null,null,null,null,null,null,null,null,null,null,null,null,null,null,null,null,null,null,null,null,null,null,null,null,null,null,null,null,null,null,null,null,null,null,null,null,null,null,null,null,null,null,null,null,null,null,null,null,"T4","CFL_42"]
[5002683,null,null,null,null,null,null,null,null,null,null,null,null,null,null,null,null,null,null,null,null,null,null,null,null,null,null,null,null,null,null,null,null,null,null,null,null,null,null,null,null,null,null,null,null,null,null,null,null,null,null,null,null,"MV_80_E"]
[5002684,null,null,null,null,null,null,null,null,null,null,null,null,null,null,null,null,null,null,null,null,null,null,null,null,null,null,null,null,null,null,null,null,null,null,null,null,null,null,null,null,null,null,null,null,null,null,null,null,null,null,null,"T4","MV_80_E"]
[5002685,null,null,null,null,null,null,null,null,null,null,null,null,null,null,null,null,null,null,null,null,null,null,null,null,null,null,null,null,null,null,null,null,null,null,null,null,null,null,null,null,null,null,null,null,null,null,null,null,null,null,null,"T4","MV_80_E"]
[5002686,null,null,null,null,null,null,null,null,null,null,null,null,null,null,null,null,null,null,null,null,null,null,null,null,null,null,null,null,null,null,null,null,null,null,null,null,null,null,null,null,null,null,null,null,null,null,null,null,null,null,null,"T5","MV_80_E"]
[5002687,null,null,null,null,null,null,null,null,null,null,null,null,null,null,null,null,null,null,null,null,null,null,null,null,null,null,null,null,null,null,null,null,null,null,null,null,null,null,null,null,null,null,null,null,null,null,null,null,null,null,null,"T4","MV_80_E"]
[5002688,null,null,null,null,null,null,null,null,null,null,null,null,null,null,null,null,null,null,null,null,null,null,null,null,null,null,null,null,null,null,null,null,null,null,null,null,null,null,null,null,null,null,null,null,null,null,null,null,null,null,null,"T4","MV_80_E"]
[5002689,null,null,null,null,null,null,null,null,null,null,null,null,null,null,null,null,null,null,null,null,null,null,null,null,null,null,null,null,null,null,null,null,null,null,null,null,null,null,null,null,null,null,null,null,null,null,null,null,null,null,null,"T4","MV_80_E"]
[5002690,null,null,null,null,null,null,null,null,null,null,null,null,null,null,null,null,null,null,null,null,null,null,null,null,null,null,null,null,null,null,null,null,null,null,null,null,null,null,null,null,null,null,null,null,null,null,null,null,null,null,null,"T4","MV_80_E"]
[5002691,null,null,null,null,null,null,null,null,null,null,null,null,null,null,null,null,null,null,null,null,null,null,null,null,null,null,null,null,null,null,null,null,null,null,null,null,null,null,null,null,null,null,null,null,null,null,null,null,null,null,null,"T4","MV_80_E"]
[5002692,null,null,null,null,null,null,null,null,null,null,null,null,null,null,null,null,null,null,null,null,null,null,null,null,null,null,null,null,null,null,null,null,null,null,null,null,null,null,null,null,null,null,null,null,null,null,null,null,null,null,null,"T4","MV_80_E"]
[5002693,null,null,null,null,null,null,null,null,null,null,null,null,null,null,null,null,null,null,null,null,null,null,null,null,null,null,null,null,null,null,null,null,null,null,null,null,null,null,null,null,null,null,null,null,null,null,null,null,null,null,null,"T4","MV_80_E"]
[5002694,null,null,null,null,null,null,null,null,null,null,null,null,null,null,null,null,null,null,null,null,null,null,null,null,null,null,null,null,null,null,null,null,null,null,null,null,null,null,null,null,null,null,null,null,null,null,null,null,null,null,null,"T4","MV_80_E"]
[5002695,null,null,null,null,null,null,null,null,null,null,null,null,null,null,null,null,null,null,null,null,null,null,null,null,null,null,null,null,null,null,null,null,null,null,null,null,null,null,null,null,null,null,null,null,null,null,null,null,null,null,null,"T5","MV_80_E"]
[5002696,null,null,null,null,null,null,null,null,null,null,null,null,null,null,null,null,null,null,null,null,null,null,null,null,null,null,null,null,null,null,null,null,null,null,null,null,null,null,null,null,null,null,null,null,null,null,null,null,null,null,null,"T4","MV_80_E"]
[5002697,null,null,null,null,null,null,null,null,null,null,null,null,null,null,null,null,null,null,null,null,null,null,null,null,null,null,null,null,null,null,null,null,null,null,null,null,null,null,null,null,null,null,null,null,null,null,null,null,null,null,null,"T4","MV_80_E"]
[5002698,null,null,null,null,null,null,null,null,null,null,null,null,null,null,null,null,null,null,null,null,null,null,null,null,null,null,null,null,null,null,null,null,null,null,null,null,null,null,null,null,null,null,null,null,null,null,null,null,null,null,null,"T4","MV_80_E"]
[5002699,null,null,null,null,null,null,null,null,null,null,null,null,null,null,null,null,null,null,null,null,null,null,null,null,null,null,null,null,null,null,null,null,null,null,null,null,null,null,null,null,null,null,null,null,null,null,null,null,null,null,null,"T4","MV_80_E"]
[5002700,null,null,null,null,null,null,null,null,null,null,null,null,null,null,null,null,null,null,null,null,null,null,null,null,null,null,null,null,null,null,null,null,null,null,null,null,null,null,null,null,null,null,null,null,null,null,null,null,null,null,null,"T4","MV_80_E"]
[5002701,null,null,null,null,null,null,null,null,null,null,null,null,null,null,null,null,null,null,null,null,null,null,null,null,null,null,null,null,null,null,null,null,null,null,null,null,null,null,null,null,null,null,null,null,null,null,null,null,null,null,null,"T4","MV_80_E"]
[5002702,null,null,null,null,null,null,null,null,null,null,null,null,null,null,null,null,null,null,null,null,null,null,null,null,null,null,null,null,null,null,null,null,null,null,null,null,null,null,null,null,null,null,null,null,null,null,null,null,null,null,null,"T4","MV_80_E"]
[5002703,null,null,null,null,null,null,null,null,null,null,null,null,null,null,null,null,null,null,null,null,null,null,null,null,null,null,null,null,null,null,null,null,null,null,null,null,null,null,null,null,null,null,null,null,null,null,null,null,null,null,null,"T4","MV_80_E"]
[5002704,null,null,null,null,null,null,null,null,null,null,null,null,null,null,null,null,null,null,null,null,null,null,null,null,null,null,null,null,null,null,null,null,null,null,null,null,null,null,null,null,null,null,null,null,null,null,null,null,null,null,null,"T4","MV_80_E"]
[5002705,null,null,null,null,null,null,null,null,null,null,null,null,null,null,null,null,null,null,null,null,null,null,null,null,null,null,null,null,null,null,null,null,null,null,null,null,null,null,null,null,null,null,null,null,null,null,null,null,null,null,null,"T4","MV_80_E"]
[5002706,null,null,null,null,null,null,null,null,null,null,null,null,null,null,null,null,null,null,null,null,null,null,null,null,null,null,null,null,null,null,null,null,null,null,null,null,null,null,null,null,null,null,null,null,null,null,null,null,null,null,null,"T4","MV_80_E"]
[5002707,null,null,null,null,null,null,null,null,null,null,null,null,null,null,null,null,null,null,null,null,null,null,null,null,null,null,null,null,null,null,null,null,null,null,null,null,null,null,null,null,null,null,null,null,null,null,null,null,null,null,null,"T4","MV_80_E"]
[5002708,null,null,null,null,null,null,null,null,null,null,null,null,null,null,null,null,null,null,null,null,null,null,null,null,null,null,null,null,null,null,null,null,null,null,null,null,null,null,null,null,null,null,null,null,null,null,null,null,null,null,null,"T4","MV_80_E"]
[5002709,null,null,null,null,null,null,null,null,null,null,null,null,null,null,null,null,null,null,null,null,null,null,null,null,null,null,null,null,null,null,null,null,null,null,null,null,null,null,null,null,null,null,null,null,null,null,null,null,null,null,null,"T4","MV_80_E"]
[5002710,null,null,null,null,null,null,null,null,null,null,null,null,null,null,null,null,null,null,null,null,null,null,null,null,null,null,null,null,null,null,null,null,null,null,null,null,null,null,null,null,null,null,null,null,null,null,null,null,null,null,null,"T4","MV_80_E"]
[5002711,null,null,null,null,null,null,null,null,null,null,null,null,null,null,null,null,null,null,null,null,null,null,null,null,null,null,null,null,null,null,null,null,null,null,null,null,null,null,null,null,null,null,null,null,null,null,null,null,null,null,null,"T4","MV_80_E"]
[5002712,null,null,null,null,null,null,null,null,null,null,null,null,null,null,null,null,null,null,null,null,null,null,null,null,null,null,null,null,null,null,null,null,null,null,null,null,null,null,null,null,null,null,null,null,null,null,null,null,null,null,null,"T4","MV_80_E"]
[5002714,null,null,null,null,null,null,null,null,null,null,null,null,null,null,null,null,null,null,null,null,null,null,null,null,null,null,null,null,null,null,null,null,null,null,null,null,null,null,null,null,null,null,null,null,null,null,null,null,null,null,null,"T4","MV_80_E"]
[5002715,null,null,null,null,null,null,null,null,null,null,null,null,null,null,null,null,null,null,null,null,null,null,null,null,null,null,null,null,null,null,null,null,null,null,null,null,null,null,null,null,null,null,null,null,null,null,null,null,null,null,null,"T4","MV_80_E"]
[5002717,null,null,null,null,null,null,null,null,null,null,null,null,null,null,null,null,null,null,null,null,null,null,null,null,null,null,null,null,null,null,null,null,null,null,null,null,null,null,null,null,null,null,null,null,null,null,null,null,null,null,null,"T4","MV_80_E"]
[5002750,null,null,null,null,null,null,null,null,null,null,null,null,null,null,null,null,null,null,null,null,null,null,null,null,null,null,null,null,null,null,null,null,null,null,null,null,null,null,null,null,null,null,null,null,null,null,null,null,null,null,null,"T4","MV_80_E"]
[5002776,null,null,null,null,null,null,null,null,null,null,null,null,null,null,null,null,null,null,null,null,null,null,null,null,null,null,null,null,null,null,null,null,null,null,null,null,null,null,null,null,null,null,null,null,null,null,null,null,null,null,null,"T3","MV_80_E"]
[5002978,null,null,null,null,null,null,null,null,null,null,null,null,null,null,null,null,null,null,null,null,null,null,null,null,null,null,null,null,null,null,null,null,null,null,null,null,null,null,null,null,null,null,null,null,null,null,null,null,null,null,null,null,"MV_80_E"]
[5003029,null,null,null,null,null,null,null,null,null,null,null,null,null,null,null,null,null,null,null,null,null,null,null,null,null,null,null,null,null,null,null,null,null,null,null,null,null,null,null,null,null,null,null,null,null,null,null,null,null,null,null,null,"MV_80_E"]
[5003063,null,null,null,null,null,null,null,null,null,null,null,null,null,null,null,null,null,null,null,null,null,null,null,null,null,null,null,null,null,null,null,null,null,null,null,null,null,null,null,null,null,null,null,null,null,null,null,null,null,null,null,null,"MV_80_E"]
[5003085,null,null,null,null,null,null,null,null,null,null,null,null,null,null,null,null,null,null,null,null,null,null,null,null,null,null,null,null,null,null,null,null,null,null,null,null,null,null,null,null,null,null,null,null,null,null,null,null,null,null,null,null,"MV_80_E"]
[5003144,null,null,null,null,null,null,null,null,null,null,null,null,null,null,null,null,null,null,null,null,null,null,null,null,null,null,null,null,null,null,null,null,null,null,null,null,null,null,null,null,null,null,null,null,null,null,null,null,null,null,null,null,"MV_80_E"]
[5003178,null,null,null,null,null,null,null,null,null,null,null,null,null,null,null,null,null,null,null,null,null,null,null,null,null,null,null,null,null,null,null,null,null,null,null,null,null,null,null,null,null,null,null,null,null,null,null,null,null,null,null,null,"CFL_42"]
[5003227,null,null,null,null,null,null,null,null,null,null,null,null,null,null,null,null,null,null,null,null,null,null,null,null,null,null,null,null,null,null,null,null,null,null,null,null,null,null,null,null,null,null,null,null,null,null,null,null,null,null,null,null,"MV_80_E"]
[5015878,null,null,null,null,null,null,null,null,null,null,null,null,null,null,null,null,null,null,null,null,null,null,null,null,null,null,null,null,null,null,null,null,null,null,null,null,null,null,null,null,null,null,null,null,null,null,null,null,null,null,null,"T4","CFL_42"]
[5015911,null,null,null,null,null,null,null,null,null,null,null,null,null,null,null,null,null,null,null,null,null,null,null,null,null,null,null,null,null,null,null,null,null,null,null,null,null,null,null,null,null,null,null,null,null,null,null,null,null,null,null,"T4","CFL_42"]
[5015955,null,null,null,null,null,null,null,null,null,null,null,null,null,null,null,null,null,null,null,null,null,null,null,null,null,null,null,null,null,null,null,null,null,null,null,null,null,null,null,null,null,null,null,null,null,null,null,null,null,null,null,"T4","CFL_42"]
[5016003,null,null,null,null,null,null,null,null,null,null,null,null,null,null,null,null,null,null,null,null,null,null,null,null,null,null,null,null,null,null,null,null,null,null,null,null,null,null,null,null,null,null,null,null,null,null,null,null,null,null,null,null,"MV_80_E"]
[5016088,null,null,null,null,null,null,null,null,null,null,null,null,null,null,null,null,null,null,null,null,null,null,null,null,null,null,null,null,null,null,null,null,null,null,null,null,null,null,null,null,null,null,null,null,null,null,null,null,null,null,null,null,"CFL_42"]
[5016138,null,null,null,null,null,null,null,null,null,null,null,null,null,null,null,null,null,null,null,null,null,null,null,null,null,null,null,null,null,null,null,null,null,null,null,null,null,null,null,null,null,null,null,null,null,null,null,null,null,null,null,"T4","MV_80_E"]
[5016171,null,null,null,null,null,null,null,null,null,null,null,null,null,null,null,null,null,null,null,null,null,null,null,null,null,null,null,null,null,null,null,null,null,null,null,null,null,null,null,null,null,null,null,null,null,null,null,null,null,null,null,"T1","HPS_250_T"]
[5016220,null,null,null,null,null,null,null,null,null,null,null,null,null,null,null,null,null,null,null,null,null,null,null,null,null,null,null,null,null,null,null,null,null,null,null,null,null,null,null,null,null,null,null,null,null,null,null,null,null,null,null,null,"HPS_250_T"]
[5016253,null,null,null,null,null,null,null,null,null,null,null,null,null,null,null,null,null,null,null,null,null,null,null,null,null,null,null,null,null,null,null,null,null,null,null,null,null,null,null,null,null,null,null,null,null,null,null,null,null,null,null,null,"HPS_70_E"]
[5020628,null,null,null,null,null,null,null,null,null,null,null,null,null,null,null,null,null,null,null,null,null,null,null,null,null,null,null,null,null,null,null,null,null,null,null,null,null,null,null,null,null,null,null,null,null,null,null,null,null,null,null,"T5","HPS_250_T"]
[5020768,null,null,null,null,null,null,null,null,null,null,null,null,null,null,null,null,null,null,null,null,null,null,null,null,null,null,null,null,null,null,null,null,null,null,null,null,null,null,null,null,null,null,null,null,null,null,null,null,null,null,null,"R4","MV_80_E"]
[5020801,null,null,null,null,null,null,null,null,null,null,null,null,null,null,null,null,null,null,null,null,null,null,null,null,null,null,null,null,null,null,null,null,null,null,null,null,null,null,null,null,null,null,null,null,null,null,null,null,null,null,null,"R4","MV_80_E"]
[5020888,null,null,null,null,null,null,null,null,null,null,null,null,null,null,null,null,null,null,null,null,null,null,null,null,null,null,null,null,null,null,null,null,null,null,null,null,null,null,null,null,null,null,null,null,null,null,null,null,null,null,null,null,"CFL_42"]
[5020928,null,null,null,null,null,null,null,null,null,null,null,null,null,null,null,null,null,null,null,null,null,null,null,null,null,null,null,null,null,null,null,null,null,null,null,null,null,null,null,null,null,null,null,null,null,null,null,null,null,null,null,"T4","MV_80_E"]
[5020983,null,null,null,null,null,null,null,null,null,null,null,null,null,null,null,null,null,null,null,null,null,null,null,null,null,null,null,null,null,null,null,null,null,null,null,null,null,null,null,null,null,null,null,null,null,null,null,null,null,null,null,"R4","MV_80_E"]
[5021023,null,null,null,null,null,null,null,null,null,null,null,null,null,null,null,null,null,null,null,null,null,null,null,null,null,null,null,null,null,null,null,null,null,null,null,null,null,null,null,null,null,null,null,null,null,null,null,null,null,null,null,null,"HPS_150_T"]
[5023042,null,null,null,null,null,null,null,null,null,null,null,null,null,null,null,null,null,null,null,null,null,null,null,null,null,null,null,null,null,null,null,null,null,null,null,null,null,null,null,null,null,null,null,null,null,null,null,null,null,null,null,"R4","HPS_150_T"]
[5023419,null,null,null,null,null,null,null,null,null,null,null,null,null,null,null,null,null,null,null,null,null,null,null,null,null,null,null,null,null,null,null,null,null,null,null,null,null,null,null,null,null,null,null,null,null,null,null,null,null,null,null,"T1","HPS_150_T"]
[5023478,null,null,null,null,null,null,null,null,null,null,null,null,null,null,null,null,null,null,null,null,null,null,null,null,null,null,null,null,null,null,null,null,null,null,null,null,null,null,null,null,null,null,null,null,null,null,null,null,null,null,null,"T4","MV_80_E"]
[5023515,null,null,null,null,null,null,null,null,null,null,null,null,null,null,null,null,null,null,null,null,null,null,null,null,null,null,null,null,null,null,null,null,null,null,null,null,null,null,null,null,null,null,null,null,null,null,null,null,null,null,null,"T4","MV_80_E"]
[5023600,null,null,null,null,null,null,null,null,null,null,null,null,null,null,null,null,null,null,null,null,null,null,null,null,null,null,null,null,null,null,null,null,null,null,null,null,null,null,null,null,null,null,null,null,null,null,null,null,null,null,null,"T4","CFL_42"]
[5023836,null,null,null,null,null,null,null,null,null,null,null,null,null,null,null,null,null,null,null,null,null,null,null,null,null,null,null,null,null,null,null,null,null,null,null,null,null,null,null,null,null,null,null,null,null,null,null,null,null,null,null,"R4","CFL_42"]
[5023876,null,null,null,null,null,null,null,null,null,null,null,null,null,null,null,null,null,null,null,null,null,null,null,null,null,null,null,null,null,null,null,null,null,null,null,null,null,null,null,null,null,null,null,null,null,null,null,null,null,null,null,"T4","MV_80_E"]
[5025565,null,null,null,null,null,null,null,null,null,null,null,null,null,null,null,null,null,null,null,null,null,null,null,null,null,null,null,null,null,null,null,null,null,null,null,null,null,null,null,null,null,null,null,null,null,null,null,null,null,null,null,"NULL","MH_250_T"]
[5025673,null,null,null,null,null,null,null,null,null,null,null,null,null,null,null,null,null,null,null,null,null,null,null,null,null,null,null,null,null,null,null,null,null,null,null,null,null,null,null,null,null,null,null,null,null,null,null,null,null,null,null,null,"MV_80_E"]
[5025868,null,null,null,null,null,null,null,null,null,null,null,null,null,null,null,null,null,null,null,null,null,null,null,null,null,null,null,null,null,null,null,null,null,null,null,null,null,null,null,null,null,null,null,null,null,null,null,null,null,null,null,null,"MV_80_E"]
[5025926,null,null,null,null,null,null,null,null,null,null,null,null,null,null,null,null,null,null,null,null,null,null,null,null,null,null,null,null,null,null,null,null,null,null,null,null,null,null,null,null,null,null,null,null,null,null,null,null,null,null,null,null,"MV_80_E"]
[5025961,null,null,null,null,null,null,null,null,null,null,null,null,null,null,null,null,null,null,null,null,null,null,null,null,null,null,null,null,null,null,null,null,null,null,null,null,null,null,null,null,null,null,null,null,null,null,null,null,null,null,null,"T4","MV_80_E"]
[5026013,null,null,null,null,null,null,null,null,null,null,null,null,null,null,null,null,null,null,null,null,null,null,null,null,null,null,null,null,null,null,null,null,null,null,null,null,null,null,null,null,null,null,null,null,null,null,null,null,null,null,null,null,"MV_80_E"]
[5026047,null,null,null,null,null,null,null,null,null,null,null,null,null,null,null,null,null,null,null,null,null,null,null,null,null,null,null,null,null,null,null,null,null,null,null,null,null,null,null,null,null,null,null,null,null,null,null,null,null,null,null,null,"MV_80_E"]
[5026465,null,null,null,null,null,null,null,null,null,null,null,null,null,null,null,null,null,null,null,null,null,null,null,null,null,null,null,null,null,null,null,null,null,null,null,null,null,null,null,null,null,null,null,null,null,null,null,null,null,null,null,"T4","MV_80_E"]
[5027003,null,null,null,null,null,null,null,null,null,null,null,null,null,null,null,null,null,null,null,null,null,null,null,null,null,null,null,null,null,null,null,null,null,null,null,null,null,null,null,null,null,null,null,null,null,null,null,null,null,null,null,null,"HPS_400_T"]
[5027066,null,null,null,null,null,null,null,null,null,null,null,null,null,null,null,null,null,null,null,null,null,null,null,null,null,null,null,null,null,null,null,null,null,null,null,null,null,null,null,null,null,null,null,null,null,null,null,null,null,null,null,null,"HPS_250_T"]
[5027159,null,null,null,null,null,null,null,null,null,null,null,null,null,null,null,null,null,null,null,null,null,null,null,null,null,null,null,null,null,null,null,null,null,null,null,null,null,null,null,null,null,null,null,null,null,null,null,null,null,null,null,"T4","MV_80_E"]
[5027212,null,null,null,null,null,null,null,null,null,null,null,null,null,null,null,null,null,null,null,null,null,null,null,null,null,null,null,null,null,null,null,null,null,null,null,null,null,null,null,null,null,null,null,null,null,null,null,null,null,null,null,"T4","MV_80_E"]
[5027262,null,null,null,null,null,null,null,null,null,null,null,null,null,null,null,null,null,null,null,null,null,null,null,null,null,null,null,null,null,null,null,null,null,null,null,null,null,null,null,null,null,null,null,null,null,null,null,null,null,null,null,"T4","HPS_250_T"]
[5027327,null,null,null,null,null,null,null,null,null,null,null,null,null,null,null,null,null,null,null,null,null,null,null,null,null,null,null,null,null,null,null,null,null,null,null,null,null,null,null,null,null,null,null,null,null,null,null,null,null,null,null,null,"HPS_400_T"]
[5027385,null,null,null,null,null,null,null,null,null,null,null,null,null,null,null,null,null,null,null,null,null,null,null,null,null,null,null,null,null,null,null,null,null,null,null,null,null,null,null,null,null,null,null,null,null,null,null,null,null,null,null,null,"HPS_250_T"]
[5028690,null,null,null,null,null,null,null,null,null,null,null,null,null,null,null,null,null,null,null,null,null,null,null,null,null,null,null,null,null,null,null,null,null,null,null,null,null,null,null,null,null,null,null,null,null,null,null,null,null,null,null,"OTHER","MV_80_E"]
[5028750,null,null,null,null,null,null,null,null,null,null,null,null,null,null,null,null,null,null,null,null,null,null,null,null,null,null,null,null,null,null,null,null,null,null,null,null,null,null,null,null,null,null,null,null,null,null,null,null,null,null,null,"R4","CFL_42"]
[5028797,null,null,null,null,null,null,null,null,null,null,null,null,null,null,null,null,null,null,null,null,null,null,null,null,null,null,null,null,null,null,null,null,null,null,null,null,null,null,null,null,null,null,null,null,null,null,null,null,null,null,null,null,"MV_80_E"]
[5028862,null,null,null,null,null,null,null,null,null,null,null,null,null,null,null,null,null,null,null,null,null,null,null,null,null,null,null,null,null,null,null,null,null,null,null,null,null,null,null,null,null,null,null,null,null,null,null,null,null,null,null,"T4","MV_80_E"]
[5031681,null,null,null,null,null,null,null,null,null,null,null,null,null,null,null,null,null,null,null,null,null,null,null,null,null,null,null,null,null,null,null,null,null,null,null,null,null,null,null,null,null,null,null,null,null,null,null,null,null,null,null,"T4","MV_80_E"]
[5031692,null,null,null,null,null,null,null,null,null,null,null,null,null,null,null,null,null,null,null,null,null,null,null,null,null,null,null,null,null,null,null,null,null,null,null,null,null,null,null,null,null,null,null,null,null,null,null,null,null,null,null,"T4","MV_80_E"]
[5031762,null,null,null,null,null,null,null,null,null,null,null,null,null,null,null,null,null,null,null,null,null,null,null,null,null,null,null,null,null,null,null,null,null,null,null,null,null,null,null,null,null,null,null,null,null,null,null,null,null,null,null,"T4","MV_80_E"]
[5031832,null,null,null,null,null,null,null,null,null,null,null,null,null,null,null,null,null,null,null,null,null,null,null,null,null,null,null,null,null,null,null,null,null,null,null,null,null,null,null,null,null,null,null,null,null,null,null,null,null,null,null,"T4","MV_80_E"]
[5033701,null,null,null,null,null,null,null,null,null,null,null,null,null,null,null,null,null,null,null,null,null,null,null,null,null,null,null,null,null,null,null,null,null,null,null,null,null,null,null,null,null,null,null,null,null,null,null,null,null,null,null,"T4","MV_80_E"]
[5033734,null,null,null,null,null,null,null,null,null,null,null,null,null,null,null,null,null,null,null,null,null,null,null,null,null,null,null,null,null,null,null,null,null,null,null,null,null,null,null,null,null,null,null,null,null,null,null,null,null,null,null,"T4","MV_80_E"]
[5033824,null,null,null,null,null,null,null,null,null,null,null,null,null,null,null,null,null,null,null,null,null,null,null,null,null,null,null,null,null,null,null,null,null,null,null,null,null,null,null,null,null,null,null,null,null,null,null,null,null,null,null,"T1","HPS_150_E"]
[5033853,null,null,null,null,null,null,null,null,null,null,null,null,null,null,null,null,null,null,null,null,null,null,null,null,null,null,null,null,null,null,null,null,null,null,null,null,null,null,null,null,null,null,null,null,null,null,null,null,null,null,null,"T4","CFL_42"]
[5033912,null,null,null,null,null,null,null,null,null,null,null,null,null,null,null,null,null,null,null,null,null,null,null,null,null,null,null,null,null,null,null,null,null,null,null,null,null,null,null,null,null,null,null,null,null,null,null,null,null,null,null,null,"MV_80_E"]
[5033949,null,null,null,null,null,null,null,null,null,null,null,null,null,null,null,null,null,null,null,null,null,null,null,null,null,null,null,null,null,null,null,null,null,null,null,null,null,null,null,null,null,null,null,null,null,null,null,null,null,null,null,"T4","MV_80_E"]
[5033999,null,null,null,null,null,null,null,null,null,null,null,null,null,null,null,null,null,null,null,null,null,null,null,null,null,null,null,null,null,null,null,null,null,null,null,null,null,null,null,null,null,null,null,null,null,null,null,null,null,null,null,"T4","HPS_150_T"]
[5034245,null,null,null,null,null,null,null,null,null,null,null,null,null,null,null,null,null,null,null,null,null,null,null,null,null,null,null,null,null,null,null,null,null,null,null,null,null,null,null,null,null,null,null,null,null,null,null,null,null,null,null,"T1","HPS_150_T"]
[5034282,null,null,null,null,null,null,null,null,null,null,null,null,null,null,null,null,null,null,null,null,null,null,null,null,null,null,null,null,null,null,null,null,null,null,null,null,null,null,null,null,null,null,null,null,null,null,null,null,null,null,null,null,"HPS_250_T"]
[5034332,null,null,null,null,null,null,null,null,null,null,null,null,null,null,null,null,null,null,null,null,null,null,null,null,null,null,null,null,null,null,null,null,null,null,null,null,null,null,null,null,null,null,null,null,null,null,null,null,null,null,null,null,"CFL_42"]
[5034365,null,null,null,null,null,null,null,null,null,null,null,null,null,null,null,null,null,null,null,null,null,null,null,null,null,null,null,null,null,null,null,null,null,null,null,null,null,null,null,null,null,null,null,null,null,null,null,null,null,null,null,null,"CFL_42"]
[5034416,null,null,null,null,null,null,null,null,null,null,null,null,null,null,null,null,null,null,null,null,null,null,null,null,null,null,null,null,null,null,null,null,null,null,null,null,null,null,null,null,null,null,null,null,null,null,null,null,null,null,null,null,"MV_80_E"]
[5034502,null,null,null,null,null,null,null,null,null,null,null,null,null,null,null,null,null,null,null,null,null,null,null,null,null,null,null,null,null,null,null,null,null,null,null,null,null,null,null,null,null,null,null,null,null,null,null,null,null,null,null,"T4","MV_80_E"]
[5034535,null,null,null,null,null,null,null,null,null,null,null,null,null,null,null,null,null,null,null,null,null,null,null,null,null,null,null,null,null,null,null,null,null,null,null,null,null,null,null,null,null,null,null,null,null,null,null,null,null,null,null,"T4","MV_80_E"]
[5034591,null,null,null,null,null,null,null,null,null,null,null,null,null,null,null,null,null,null,null,null,null,null,null,null,null,null,null,null,null,null,null,null,null,null,null,null,null,null,null,null,null,null,null,null,null,null,null,null,null,null,null,null,"MV_80_E"]
[5034620,null,null,null,null,null,null,null,null,null,null,null,null,null,null,null,null,null,null,null,null,null,null,null,null,null,null,null,null,null,null,null,null,null,null,null,null,null,null,null,null,null,null,null,null,null,null,null,null,null,null,null,"T4","MV_80_E"]
[5034669,null,null,null,null,null,null,null,null,null,null,null,null,null,null,null,null,null,null,null,null,null,null,null,null,null,null,null,null,null,null,null,null,null,null,null,null,null,null,null,null,null,null,null,null,null,null,null,null,null,null,null,"T3","MV_80_E"]
[5034704,null,null,null,null,null,null,null,null,null,null,null,null,null,null,null,null,null,null,null,null,null,null,null,null,null,null,null,null,null,null,null,null,null,null,null,null,null,null,null,null,null,null,null,null,null,null,null,null,null,null,null,null,"HPS_250_T"]
[5034794,null,null,null,null,null,null,null,null,null,null,null,null,null,null,null,null,null,null,null,null,null,null,null,null,null,null,null,null,null,null,null,null,null,null,null,null,null,null,null,null,null,null,null,null,null,null,null,null,null,null,null,"T1","MV_400_E"]
[5034853,null,null,null,null,null,null,null,null,null,null,null,null,null,null,null,null,null,null,null,null,null,null,null,null,null,null,null,null,null,null,null,null,null,null,null,null,null,null,null,null,null,null,null,null,null,null,null,null,null,null,null,"T4","MV_80_E"]
[5034905,null,null,null,null,null,null,null,null,null,null,null,null,null,null,null,null,null,null,null,null,null,null,null,null,null,null,null,null,null,null,null,null,null,null,null,null,null,null,null,null,null,null,null,null,null,null,null,null,null,null,null,"R4","CFL_42"]
[5034964,null,null,null,null,null,null,null,null,null,null,null,null,null,null,null,null,null,null,null,null,null,null,null,null,null,null,null,null,null,null,null,null,null,null,null,null,null,null,null,null,null,null,null,null,null,null,null,null,null,null,null,"T4","MV_80_E"]
[5034997,null,null,null,null,null,null,null,null,null,null,null,null,null,null,null,null,null,null,null,null,null,null,null,null,null,null,null,null,null,null,null,null,null,null,null,null,null,null,null,null,null,null,null,null,null,null,null,null,null,null,null,"T5","MV_80_E"]
[5035081,null,null,null,null,null,null,null,null,null,null,null,null,null,null,null,null,null,null,null,null,null,null,null,null,null,null,null,null,null,null,null,null,null,null,null,null,null,null,null,null,null,null,null,null,null,null,null,null,null,null,null,"T4","MV_80_E"]
[5035130,null,null,null,null,null,null,null,null,null,null,null,null,null,null,null,null,null,null,null,null,null,null,null,null,null,null,null,null,null,null,null,null,null,null,null,null,null,null,null,null,null,null,null,null,null,null,null,null,null,null,null,"T4","MV_80_E"]
[5035503,null,null,null,null,null,null,null,null,null,null,null,null,null,null,null,null,null,null,null,null,null,null,null,null,null,null,null,null,null,null,null,null,null,null,null,null,null,null,null,null,null,null,null,null,null,null,null,null,null,null,null,null,"HPS_150_T"]
[5035574,null,null,null,null,null,null,null,null,null,null,null,null,null,null,null,null,null,null,null,null,null,null,null,null,null,null,null,null,null,null,null,null,null,null,null,null,null,null,null,null,null,null,null,null,null,null,null,null,null,null,null,null,"MV_80_E"]
[5035587,null,null,null,null,null,null,null,null,null,null,null,null,null,null,null,null,null,null,null,null,null,null,null,null,null,null,null,null,null,null,null,null,null,null,null,null,null,null,null,null,null,null,null,null,null,null,null,null,null,null,null,null,"CFL_42"]
[5035670,null,null,null,null,null,null,null,null,null,null,null,null,null,null,null,null,null,null,null,null,null,null,null,null,null,null,null,null,null,null,null,null,null,null,null,null,null,null,null,null,null,null,null,null,null,null,null,null,null,null,null,"T3","MV_80_E"]
[5035719,null,null,null,null,null,null,null,null,null,null,null,null,null,null,null,null,null,null,null,null,null,null,null,null,null,null,null,null,null,null,null,null,null,null,null,null,null,null,null,null,null,null,null,null,null,null,null,null,null,null,null,null,"MV_80_E"]
[5035755,null,null,null,null,null,null,null,null,null,null,null,null,null,null,null,null,null,null,null,null,null,null,null,null,null,null,null,null,null,null,null,null,null,null,null,null,null,null,null,null,null,null,null,null,null,null,null,null,null,null,null,"T4","MV_80_E"]
[5035788,null,null,null,null,null,null,null,null,null,null,null,null,null,null,null,null,null,null,null,null,null,null,null,null,null,null,null,null,null,null,null,null,null,null,null,null,null,null,null,null,null,null,null,null,null,null,null,null,null,null,null,null,"MV_80_E"]
[5035874,null,null,null,null,null,null,null,null,null,null,null,null,null,null,null,null,null,null,null,null,null,null,null,null,null,null,null,null,null,null,null,null,null,null,null,null,null,null,null,null,null,null,null,null,null,null,null,null,null,null,null,"T4","MV_80_E"]
[5035876,null,null,null,null,null,null,null,null,null,null,null,null,null,null,null,null,null,null,null,null,null,null,null,null,null,null,null,null,null,null,null,null,null,null,null,null,null,null,null,null,null,null,null,null,null,null,null,null,null,null,null,"T4","MV_80_E"]
[5035961,null,null,null,null,null,null,null,null,null,null,null,null,null,null,null,null,null,null,null,null,null,null,null,null,null,null,null,null,null,null,null,null,null,null,null,null,null,null,null,null,null,null,null,null,null,null,null,null,null,null,null,null,"HPS_250_T"]
[5036188,null,null,null,null,null,null,null,null,null,null,null,null,null,null,null,null,null,null,null,null,null,null,null,null,null,null,null,null,null,null,null,null,null,null,null,null,null,null,null,null,null,null,null,null,null,null,null,null,null,null,null,"T4","MV_80_E"]
[5036221,null,null,null,null,null,null,null,null,null,null,null,null,null,null,null,null,null,null,null,null,null,null,null,null,null,null,null,null,null,null,null,null,null,null,null,null,null,null,null,null,null,null,null,null,null,null,null,null,null,null,null,null,"MV_80_E"]
[5036270,null,null,null,null,null,null,null,null,null,null,null,null,null,null,null,null,null,null,null,null,null,null,null,null,null,null,null,null,null,null,null,null,null,null,null,null,null,null,null,null,null,null,null,null,null,null,null,null,null,null,null,null,"MV_80_E"]
[5036303,null,null,null,null,null,null,null,null,null,null,null,null,null,null,null,null,null,null,null,null,null,null,null,null,null,null,null,null,null,null,null,null,null,null,null,null,null,null,null,null,null,null,null,null,null,null,null,null,null,null,null,"T4","MV_80_E"]
[5036394,null,null,null,null,null,null,null,null,null,null,null,null,null,null,null,null,null,null,null,null,null,null,null,null,null,null,null,null,null,null,null,null,null,null,null,null,null,null,null,null,null,null,null,null,null,null,null,null,null,null,null,null,"HPS_250_T"]
[5036451,null,null,null,null,null,null,null,null,null,null,null,null,null,null,null,null,null,null,null,null,null,null,null,null,null,null,null,null,null,null,null,null,null,null,null,null,null,null,null,null,null,null,null,null,null,null,null,null,null,null,null,null,"MV_80_E"]
[5036484,null,null,null,null,null,null,null,null,null,null,null,null,null,null,null,null,null,null,null,null,null,null,null,null,null,null,null,null,null,null,null,null,null,null,null,null,null,null,null,null,null,null,null,null,null,null,null,null,null,null,null,null,"MV_80_E"]
[5036533,null,null,null,null,null,null,null,null,null,null,null,null,null,null,null,null,null,null,null,null,null,null,null,null,null,null,null,null,null,null,null,null,null,null,null,null,null,null,null,null,null,null,null,null,null,null,null,null,null,null,null,"T4","CFL_42"]
[5036579,null,null,null,null,null,null,null,null,null,null,null,null,null,null,null,null,null,null,null,null,null,null,null,null,null,null,null,null,null,null,null,null,null,null,null,null,null,null,null,null,null,null,null,null,null,null,null,null,null,null,null,"T4","MV_80_E"]
[5036692,null,null,null,null,null,null,null,null,null,null,null,null,null,null,null,null,null,null,null,null,null,null,null,null,null,null,null,null,null,null,null,null,null,null,null,null,null,null,null,null,null,null,null,null,null,null,null,null,null,null,null,"T1","HPS_250_T"]
[5036751,null,null,null,null,null,null,null,null,null,null,null,null,null,null,null,null,null,null,null,null,null,null,null,null,null,null,null,null,null,null,null,null,null,null,null,null,null,null,null,null,null,null,null,null,null,null,null,null,null,null,null,"T4","CFL_42"]
[5036784,null,null,null,null,null,null,null,null,null,null,null,null,null,null,null,null,null,null,null,null,null,null,null,null,null,null,null,null,null,null,null,null,null,null,null,null,null,null,null,null,null,null,null,null,null,null,null,null,null,null,null,"T4","MV_80_E"]
[5036817,null,null,null,null,null,null,null,null,null,null,null,null,null,null,null,null,null,null,null,null,null,null,null,null,null,null,null,null,null,null,null,null,null,null,null,null,null,null,null,null,null,null,null,null,null,null,null,null,null,null,null,null,"MV_80_E"]
[5036866,null,null,null,null,null,null,null,null,null,null,null,null,null,null,null,null,null,null,null,null,null,null,null,null,null,null,null,null,null,null,null,null,null,null,null,null,null,null,null,null,null,null,null,null,null,null,null,null,null,null,null,null,"MV_80_E"]
[5036931,null,null,null,null,null,null,null,null,null,null,null,null,null,null,null,null,null,null,null,null,null,null,null,null,null,null,null,null,null,null,null,null,null,null,null,null,null,null,null,null,null,null,null,null,null,null,null,null,null,null,null,null,"MV_80_E"]
[5036950,null,null,null,null,null,null,null,null,null,null,null,null,null,null,null,null,null,null,null,null,null,null,null,null,null,null,null,null,null,null,null,null,null,null,null,null,null,null,null,null,null,null,null,null,null,null,null,null,null,null,null,"T4","MV_80_E"]
[5037031,null,null,null,null,null,null,null,null,null,null,null,null,null,null,null,null,null,null,null,null,null,null,null,null,null,null,null,null,null,null,null,null,null,null,null,null,null,null,null,null,null,null,null,null,null,null,null,null,null,null,null,null,"MV_80_E"]
[5037079,null,null,null,null,null,null,null,null,null,null,null,null,null,null,null,null,null,null,null,null,null,null,null,null,null,null,null,null,null,null,null,null,null,null,null,null,null,null,null,null,null,null,null,null,null,null,null,null,null,null,null,"T4","MV_80_E"]
[5037128,null,null,null,null,null,null,null,null,null,null,null,null,null,null,null,null,null,null,null,null,null,null,null,null,null,null,null,null,null,null,null,null,null,null,null,null,null,null,null,null,null,null,null,null,null,null,null,null,null,null,null,"T4","MV_80_E"]
[5037161,null,null,null,null,null,null,null,null,null,null,null,null,null,null,null,null,null,null,null,null,null,null,null,null,null,null,null,null,null,null,null,null,null,null,null,null,null,null,null,null,null,null,null,null,null,null,null,null,null,null,null,null,"MV_80_E"]
[5037238,null,null,null,null,null,null,null,null,null,null,null,null,null,null,null,null,null,null,null,null,null,null,null,null,null,null,null,null,null,null,null,null,null,null,null,null,null,null,null,null,null,null,null,null,null,null,null,null,null,null,null,"T4","MV_80_E"]
[5037294,null,null,null,null,null,null,null,null,null,null,null,null,null,null,null,null,null,null,null,null,null,null,null,null,null,null,null,null,null,null,null,null,null,null,null,null,null,null,null,null,null,null,null,null,null,null,null,null,null,null,null,"T4","MV_80_E"]
[5037355,null,null,null,null,null,null,null,null,null,null,null,null,null,null,null,null,null,null,null,null,null,null,null,null,null,null,null,null,null,null,null,null,null,null,null,null,null,null,null,null,null,null,null,null,null,null,null,null,null,null,null,"T4","MV_80_E"]
[5037404,null,null,null,null,null,null,null,null,null,null,null,null,null,null,null,null,null,null,null,null,null,null,null,null,null,null,null,null,null,null,null,null,null,null,null,null,null,null,null,null,null,null,null,null,null,null,null,null,null,null,null,"T4","MV_80_E"]
[5037438,null,null,null,null,null,null,null,null,null,null,null,null,null,null,null,null,null,null,null,null,null,null,null,null,null,null,null,null,null,null,null,null,null,null,null,null,null,null,null,null,null,null,null,null,null,null,null,null,null,null,null,"T4","MV_80_E"]
[5037526,null,null,null,null,null,null,null,null,null,null,null,null,null,null,null,null,null,null,null,null,null,null,null,null,null,null,null,null,null,null,null,null,null,null,null,null,null,null,null,null,null,null,null,null,null,null,null,null,null,null,null,"T4","MV_80_E"]
[5037567,null,null,null,null,null,null,null,null,null,null,null,null,null,null,null,null,null,null,null,null,null,null,null,null,null,null,null,null,null,null,null,null,null,null,null,null,null,null,null,null,null,null,null,null,null,null,null,null,null,null,null,"T4","MV_80_E"]
[5037607,null,null,null,null,null,null,null,null,null,null,null,null,null,null,null,null,null,null,null,null,null,null,null,null,null,null,null,null,null,null,null,null,null,null,null,null,null,null,null,null,null,null,null,null,null,null,null,null,null,null,null,null,"CFL_42"]
[5037667,null,null,null,null,null,null,null,null,null,null,null,null,null,null,null,null,null,null,null,null,null,null,null,null,null,null,null,null,null,null,null,null,null,null,null,null,null,null,null,null,null,null,null,null,null,null,null,null,null,null,null,null,"CFL_42"]
[5037700,null,null,null,null,null,null,null,null,null,null,null,null,null,null,null,null,null,null,null,null,null,null,null,null,null,null,null,null,null,null,null,null,null,null,null,null,null,null,null,null,null,null,null,null,null,null,null,null,null,null,null,null,"MV_80_E"]
[5037733,null,null,null,null,null,null,null,null,null,null,null,null,null,null,null,null,null,null,null,null,null,null,null,null,null,null,null,null,null,null,null,null,null,null,null,null,null,null,null,null,null,null,null,null,null,null,null,null,null,null,null,null,"CFL_42"]
[5037782,null,null,null,null,null,null,null,null,null,null,null,null,null,null,null,null,null,null,null,null,null,null,null,null,null,null,null,null,null,null,null,null,null,null,null,null,null,null,null,null,null,null,null,null,null,null,null,null,null,null,null,null,"MV_80_E"]
[5037908,null,null,null,null,null,null,null,null,null,null,null,null,null,null,null,null,null,null,null,null,null,null,null,null,null,null,null,null,null,null,null,null,null,null,null,null,null,null,null,null,null,null,null,null,null,null,null,null,null,null,null,null,"MV_80_E"]
[5037932,null,null,null,null,null,null,null,null,null,null,null,null,null,null,null,null,null,null,null,null,null,null,null,null,null,null,null,null,null,null,null,null,null,null,null,null,null,null,null,null,null,null,null,null,null,null,null,null,null,null,null,"T4","MV_80_E"]
[5037985,null,null,null,null,null,null,null,null,null,null,null,null,null,null,null,null,null,null,null,null,null,null,null,null,null,null,null,null,null,null,null,null,null,null,null,null,null,null,null,null,null,null,null,null,null,null,null,null,null,null,null,null,"HPS_250_T"]
[5038018,null,null,null,null,null,null,null,null,null,null,null,null,null,null,null,null,null,null,null,null,null,null,null,null,null,null,null,null,null,null,null,null,null,null,null,null,null,null,null,null,null,null,null,null,null,null,null,null,null,null,null,null,"HPS_250_T"]
[5042171,null,null,null,null,null,null,null,null,null,null,null,null,null,null,null,null,null,null,null,null,null,null,null,null,null,null,null,null,null,null,null,null,null,null,null,null,null,null,null,null,null,null,null,null,null,null,null,null,null,null,null,null,"HPS_250_T"]
[5045532,null,null,null,null,null,null,null,null,null,null,null,null,null,null,null,null,null,null,null,null,null,null,null,null,null,null,null,null,null,null,null,null,null,null,null,null,null,null,null,null,null,null,null,null,null,null,null,null,null,null,null,null,"HPS_250_T"]
[5045592,null,null,null,null,null,null,null,null,null,null,null,null,null,null,null,null,null,null,null,null,null,null,null,null,null,null,null,null,null,null,null,null,null,null,null,null,null,null,null,null,null,null,null,null,null,null,null,null,null,null,null,null,"MV_80_E"]
[5045643,null,null,null,null,null,null,null,null,null,null,null,null,null,null,null,null,null,null,null,null,null,null,null,null,null,null,null,null,null,null,null,null,null,null,null,null,null,null,null,null,null,null,null,null,null,null,null,null,null,null,null,null,"MV_80_E"]
[5045676,null,null,null,null,null,null,null,null,null,null,null,null,null,null,null,null,null,null,null,null,null,null,null,null,null,null,null,null,null,null,null,null,null,null,null,null,null,null,null,null,null,null,null,null,null,null,null,null,null,null,null,null,"MV_80_E"]
[5045725,null,null,null,null,null,null,null,null,null,null,null,null,null,null,null,null,null,null,null,null,null,null,null,null,null,null,null,null,null,null,null,null,null,null,null,null,null,null,null,null,null,null,null,null,null,null,null,null,null,null,null,null,"MV_80_E"]
[5045806,null,null,null,null,null,null,null,null,null,null,null,null,null,null,null,null,null,null,null,null,null,null,null,null,null,null,null,null,null,null,null,null,null,null,null,null,null,null,null,null,null,null,null,null,null,null,null,null,null,null,null,null,"CFL_42"]
[5045830,null,null,null,null,null,null,null,null,null,null,null,null,null,null,null,null,null,null,null,null,null,null,null,null,null,null,null,null,null,null,null,null,null,null,null,null,null,null,null,null,null,null,null,null,null,null,null,null,null,null,null,null,"MV_80_E"]
[5045888,null,null,null,null,null,null,null,null,null,null,null,null,null,null,null,null,null,null,null,null,null,null,null,null,null,null,null,null,null,null,null,null,null,null,null,null,null,null,null,null,null,null,null,null,null,null,null,null,null,null,null,null,"MV_80_E"]
[5045921,null,null,null,null,null,null,null,null,null,null,null,null,null,null,null,null,null,null,null,null,null,null,null,null,null,null,null,null,null,null,null,null,null,null,null,null,null,null,null,null,null,null,null,null,null,null,null,null,null,null,null,null,"MV_80_E"]
[5045954,null,null,null,null,null,null,null,null,null,null,null,null,null,null,null,null,null,null,null,null,null,null,null,null,null,null,null,null,null,null,null,null,null,null,null,null,null,null,null,null,null,null,null,null,null,null,null,null,null,null,null,null,"CFL_42"]
[5046007,null,null,null,null,null,null,null,null,null,null,null,null,null,null,null,null,null,null,null,null,null,null,null,null,null,null,null,null,null,null,null,null,null,null,null,null,null,null,null,null,null,null,null,null,null,null,null,null,null,null,null,null,"CFL_42"]
[5046088,null,null,null,null,null,null,null,null,null,null,null,null,null,null,null,null,null,null,null,null,null,null,null,null,null,null,null,null,null,null,null,null,null,null,null,null,null,null,null,null,null,null,null,null,null,null,null,null,null,null,null,null,"MV_80_E"]
[5046123,null,null,null,null,null,null,null,null,null,null,null,null,null,null,null,null,null,null,null,null,null,null,null,null,null,null,null,null,null,null,null,null,null,null,null,null,null,null,null,null,null,null,null,null,null,null,null,null,null,null,null,null,"MV_80_E"]
[5046169,null,null,null,null,null,null,null,null,null,null,null,null,null,null,null,null,null,null,null,null,null,null,null,null,null,null,null,null,null,null,null,null,null,null,null,null,null,null,null,null,null,null,null,null,null,null,null,null,null,null,null,null,"MV_80_E"]
[5046202,null,null,null,null,null,null,null,null,null,null,null,null,null,null,null,null,null,null,null,null,null,null,null,null,null,null,null,null,null,null,null,null,null,null,null,null,null,null,null,null,null,null,null,null,null,null,null,null,null,null,null,null,"MV_80_E"]
[5046251,null,null,null,null,null,null,null,null,null,null,null,null,null,null,null,null,null,null,null,null,null,null,null,null,null,null,null,null,null,null,null,null,null,null,null,null,null,null,null,null,null,null,null,null,null,null,null,null,null,null,null,null,"MV_80_E"]
[5059790,null,null,null,null,null,null,null,null,null,null,null,null,null,null,null,null,null,null,null,null,null,null,null,null,null,null,null,null,null,null,null,null,null,null,null,null,null,null,null,null,null,null,null,null,null,null,null,null,null,null,null,"T4","MV_80_E"]
[5059840,null,null,null,null,null,null,null,null,null,null,null,null,null,null,null,null,null,null,null,null,null,null,null,null,null,null,null,null,null,null,null,null,null,null,null,null,null,null,null,null,null,null,null,null,null,null,null,null,null,null,null,"NA","MV_80_E"]
[5059875,null,null,null,null,null,null,null,null,null,null,null,null,null,null,null,null,null,null,null,null,null,null,null,null,null,null,null,null,null,null,null,null,null,null,null,null,null,null,null,null,null,null,null,null,null,null,null,null,null,null,null,"R4","MV_80_E"]
[5059905,null,null,null,null,null,null,null,null,null,null,null,null,null,null,null,null,null,null,null,null,null,null,null,null,null,null,null,null,null,null,null,null,null,null,null,null,null,null,null,null,null,null,null,null,null,null,null,null,null,null,null,"T4","MV_80_E"]
[5059956,null,null,null,null,null,null,null,null,null,null,null,null,null,null,null,null,null,null,null,null,null,null,null,null,null,null,null,null,null,null,null,null,null,null,null,null,null,null,null,null,null,null,null,null,null,null,null,null,null,null,null,"R5","HPS_150_T"]
[5060043,null,null,null,null,null,null,null,null,null,null,null,null,null,null,null,null,null,null,null,null,null,null,null,null,null,null,null,null,null,null,null,null,null,null,null,null,null,null,null,null,null,null,null,null,null,null,null,null,null,null,null,"R4","MV_80_E"]
[5060076,null,null,null,null,null,null,null,null,null,null,null,null,null,null,null,null,null,null,null,null,null,null,null,null,null,null,null,null,null,null,null,null,null,null,null,null,null,null,null,null,null,null,null,null,null,null,null,null,null,null,null,"R4","MV_80_E"]
[5060125,null,null,null,null,null,null,null,null,null,null,null,null,null,null,null,null,null,null,null,null,null,null,null,null,null,null,null,null,null,null,null,null,null,null,null,null,null,null,null,null,null,null,null,null,null,null,null,null,null,null,null,"T4","MV_80_E"]
[5060184,null,null,null,null,null,null,null,null,null,null,null,null,null,null,null,null,null,null,null,null,null,null,null,null,null,null,null,null,null,null,null,null,null,null,null,null,null,null,null,null,null,null,null,null,null,null,null,null,null,null,null,"T4","CFL_42"]
[5060214,null,null,null,null,null,null,null,null,null,null,null,null,null,null,null,null,null,null,null,null,null,null,null,null,null,null,null,null,null,null,null,null,null,null,null,null,null,null,null,null,null,null,null,null,null,null,null,null,null,null,null,"T3","MV_80_E"]
[5060248,null,null,null,null,null,null,null,null,null,null,null,null,null,null,null,null,null,null,null,null,null,null,null,null,null,null,null,null,null,null,null,null,null,null,null,null,null,null,null,null,null,null,null,null,null,null,null,null,null,null,null,"R4","MV_80_E"]
[5060330,null,null,null,null,null,null,null,null,null,null,null,null,null,null,null,null,null,null,null,null,null,null,null,null,null,null,null,null,null,null,null,null,null,null,null,null,null,null,null,null,null,null,null,null,null,null,null,null,null,null,null,"R4","CFL_42"]
[5060379,null,null,null,null,null,null,null,null,null,null,null,null,null,null,null,null,null,null,null,null,null,null,null,null,null,null,null,null,null,null,null,null,null,null,null,null,null,null,null,null,null,null,null,null,null,null,null,null,null,null,null,null,"MV_80_E"]
[5060397,null,null,null,null,null,null,null,null,null,null,null,null,null,null,null,null,null,null,null,null,null,null,null,null,null,null,null,null,null,null,null,null,null,null,null,null,null,null,null,null,null,null,null,null,null,null,null,null,null,null,null,null,"MV_80_E"]
[5060444,null,null,null,null,null,null,null,null,null,null,null,null,null,null,null,null,null,null,null,null,null,null,null,null,null,null,null,null,null,null,null,null,null,null,null,null,null,null,null,null,null,null,null,null,null,null,null,null,null,null,null,"R4","MV_80_E"]
[5069878,null,null,null,null,null,null,null,null,null,null,null,null,null,null,null,null,null,null,null,null,null,null,null,null,null,null,null,null,null,null,null,null,null,null,null,null,null,null,null,null,null,null,null,null,null,null,null,null,null,null,null,null,"MV_80_E"]
[5069963,null,null,null,null,null,null,null,null,null,null,null,null,null,null,null,null,null,null,null,null,null,null,null,null,null,null,null,null,null,null,null,null,null,null,null,null,null,null,null,null,null,null,null,null,null,null,null,null,null,null,null,null,"MV_80_E"]
[5070018,null,null,null,null,null,null,null,null,null,null,null,null,null,null,null,null,null,null,null,null,null,null,null,null,null,null,null,null,null,null,null,null,null,null,null,null,null,null,null,null,null,null,null,null,null,null,null,null,null,null,null,null,"CFL_42"]
[5070060,null,null,null,null,null,null,null,null,null,null,null,null,null,null,null,null,null,null,null,null,null,null,null,null,null,null,null,null,null,null,null,null,null,null,null,null,null,null,null,null,null,null,null,null,null,null,null,null,null,null,null,null,"MV_80_E"]
[5070098,null,null,null,null,null,null,null,null,null,null,null,null,null,null,null,null,null,null,null,null,null,null,null,null,null,null,null,null,null,null,null,null,null,null,null,null,null,null,null,null,null,null,null,null,null,null,null,null,null,null,null,null,"MV_80_E"]
[5070535,null,null,null,null,null,null,null,null,null,null,null,null,null,null,null,null,null,null,null,null,null,null,null,null,null,null,null,null,null,null,null,null,null,null,null,null,null,null,null,null,null,null,null,null,null,null,null,null,null,null,null,null,"HPS_250_T"]
[5070629,null,null,null,null,null,null,null,null,null,null,null,null,null,null,null,null,null,null,null,null,null,null,null,null,null,null,null,null,null,null,null,null,null,null,null,null,null,null,null,null,null,null,null,null,null,null,null,null,null,null,null,null,"MV_80_E"]
[5070678,null,null,null,null,null,null,null,null,null,null,null,null,null,null,null,null,null,null,null,null,null,null,null,null,null,null,null,null,null,null,null,null,null,null,null,null,null,null,null,null,null,null,null,null,null,null,null,null,null,null,null,"T4","MV_80_E"]
[5070712,null,null,null,null,null,null,null,null,null,null,null,null,null,null,null,null,null,null,null,null,null,null,null,null,null,null,null,null,null,null,null,null,null,null,null,null,null,null,null,null,null,null,null,null,null,null,null,null,null,null,null,"T4","MV_80_E"]
[5070745,null,null,null,null,null,null,null,null,null,null,null,null,null,null,null,null,null,null,null,null,null,null,null,null,null,null,null,null,null,null,null,null,null,null,null,null,null,null,null,null,null,null,null,null,null,null,null,null,null,null,null,"T4","MV_80_E"]
[5070791,null,null,null,null,null,null,null,null,null,null,null,null,null,null,null,null,null,null,null,null,null,null,null,null,null,null,null,null,null,null,null,null,null,null,null,null,null,null,null,null,null,null,null,null,null,null,null,null,null,null,null,null,"MV_80_E"]
[5070834,null,null,null,null,null,null,null,null,null,null,null,null,null,null,null,null,null,null,null,null,null,null,null,null,null,null,null,null,null,null,null,null,null,null,null,null,null,null,null,null,null,null,null,null,null,null,null,null,null,null,null,null,"CFL_42"]
[5070916,null,null,null,null,null,null,null,null,null,null,null,null,null,null,null,null,null,null,null,null,null,null,null,null,null,null,null,null,null,null,null,null,null,null,null,null,null,null,null,null,null,null,null,null,null,null,null,null,null,null,null,null,"MV_80_E"]
[5070971,null,null,null,null,null,null,null,null,null,null,null,null,null,null,null,null,null,null,null,null,null,null,null,null,null,null,null,null,null,null,null,null,null,null,null,null,null,null,null,null,null,null,null,null,null,null,null,null,null,null,null,null,"HPS_150_T"]
[5071009,null,null,null,null,null,null,null,null,null,null,null,null,null,null,null,null,null,null,null,null,null,null,null,null,null,null,null,null,null,null,null,null,null,null,null,null,null,null,null,null,null,null,null,null,null,null,null,null,null,null,null,null,"MV_80_E"]
[5071058,null,null,null,null,null,null,null,null,null,null,null,null,null,null,null,null,null,null,null,null,null,null,null,null,null,null,null,null,null,null,null,null,null,null,null,null,null,null,null,null,null,null,null,null,null,null,null,null,null,null,null,null,"CFL_42"]
[5071103,null,null,null,null,null,null,null,null,null,null,null,null,null,null,null,null,null,null,null,null,null,null,null,null,null,null,null,null,null,null,null,null,null,null,null,null,null,null,null,null,null,null,null,null,null,null,null,null,null,null,null,null,"MV_80_E"]
[5071171,null,null,null,null,null,null,null,null,null,null,null,null,null,null,null,null,null,null,null,null,null,null,null,null,null,null,null,null,null,null,null,null,null,null,null,null,null,null,null,null,null,null,null,null,null,null,null,null,null,null,null,"T4","CFL_42"]
[5071229,null,null,null,null,null,null,null,null,null,null,null,null,null,null,null,null,null,null,null,null,null,null,null,null,null,null,null,null,null,null,null,null,null,null,null,null,null,null,null,null,null,null,null,null,null,null,null,null,null,null,null,null,"HPS_250_T"]
[5071262,null,null,null,null,null,null,null,null,null,null,null,null,null,null,null,null,null,null,null,null,null,null,null,null,null,null,null,null,null,null,null,null,null,null,null,null,null,null,null,null,null,null,null,null,null,null,null,null,null,null,null,null,"HPS_150_T"]
[5071308,null,null,null,null,null,null,null,null,null,null,null,null,null,null,null,null,null,null,null,null,null,null,null,null,null,null,null,null,null,null,null,null,null,null,null,null,null,null,null,null,null,null,null,null,null,null,null,null,null,null,null,null,"MV_80_E"]
[5071357,null,null,null,null,null,null,null,null,null,null,null,null,null,null,null,null,null,null,null,null,null,null,null,null,null,null,null,null,null,null,null,null,null,null,null,null,null,null,null,null,null,null,null,null,null,null,null,null,null,null,null,null,"MV_80_E"]
[5071418,null,null,null,null,null,null,null,null,null,null,null,null,null,null,null,null,null,null,null,null,null,null,null,null,null,null,null,null,null,null,null,null,null,null,null,null,null,null,null,null,null,null,null,null,null,null,null,null,null,null,null,null,"MV_80_E"]
[5071848,null,null,null,null,null,null,null,null,null,null,null,null,null,null,null,null,null,null,null,null,null,null,null,null,null,null,null,null,null,null,null,null,null,null,null,null,null,null,null,null,null,null,null,null,null,null,null,null,null,null,null,null,"MV_80_E"]
[5071893,null,null,null,null,null,null,null,null,null,null,null,null,null,null,null,null,null,null,null,null,null,null,null,null,null,null,null,null,null,null,null,null,null,null,null,null,null,null,null,null,null,null,null,null,null,null,null,null,null,null,null,null,"MV_80_E"]
[5071930,null,null,null,null,null,null,null,null,null,null,null,null,null,null,null,null,null,null,null,null,null,null,null,null,null,null,null,null,null,null,null,null,null,null,null,null,null,null,null,null,null,null,null,null,null,null,null,null,null,null,null,null,"HPS_150_T"]
[5071985,null,null,null,null,null,null,null,null,null,null,null,null,null,null,null,null,null,null,null,null,null,null,null,null,null,null,null,null,null,null,null,null,null,null,null,null,null,null,null,null,null,null,null,null,null,null,null,null,null,null,null,null,"HPS_150_T"]
[5072021,null,null,null,null,null,null,null,null,null,null,null,null,null,null,null,null,null,null,null,null,null,null,null,null,null,null,null,null,null,null,null,null,null,null,null,null,null,null,null,null,null,null,null,null,null,null,null,null,null,null,null,null,"HPS_150_T"]
[5072148,null,null,null,null,null,null,null,null,null,null,null,null,null,null,null,null,null,null,null,null,null,null,null,null,null,null,null,null,null,null,null,null,null,null,null,null,null,null,null,null,null,null,null,null,null,null,null,null,null,null,null,null,"MV_80_E"]
[5072211,null,null,null,null,null,null,null,null,null,null,null,null,null,null,null,null,null,null,null,null,null,null,null,null,null,null,null,null,null,null,null,null,null,null,null,null,null,null,null,null,null,null,null,null,null,null,null,null,null,null,null,null,"MV_80_E"]
[5072248,null,null,null,null,null,null,null,null,null,null,null,null,null,null,null,null,null,null,null,null,null,null,null,null,null,null,null,null,null,null,null,null,null,null,null,null,null,null,null,null,null,null,null,null,null,null,null,null,null,null,null,null,"HPS_400_T"]
[5072297,null,null,null,null,null,null,null,null,null,null,null,null,null,null,null,null,null,null,null,null,null,null,null,null,null,null,null,null,null,null,null,null,null,null,null,null,null,null,null,null,null,null,null,null,null,null,null,null,null,null,null,null,"HPS_150_T"]
[5072332,null,null,null,null,null,null,null,null,null,null,null,null,null,null,null,null,null,null,null,null,null,null,null,null,null,null,null,null,null,null,null,null,null,null,null,null,null,null,null,null,null,null,null,null,null,null,null,null,null,null,null,"T4","MV_80_E"]
[5072376,null,null,null,null,null,null,null,null,null,null,null,null,null,null,null,null,null,null,null,null,null,null,null,null,null,null,null,null,null,null,null,null,null,null,null,null,null,null,null,null,null,null,null,null,null,null,null,null,null,null,null,null,"MV_80_E"]
[5072462,null,null,null,null,null,null,null,null,null,null,null,null,null,null,null,null,null,null,null,null,null,null,null,null,null,null,null,null,null,null,null,null,null,null,null,null,null,null,null,null,null,null,null,null,null,null,null,null,null,null,null,"T4","MV_80_E"]
[5072495,null,null,null,null,null,null,null,null,null,null,null,null,null,null,null,null,null,null,null,null,null,null,null,null,null,null,null,null,null,null,null,null,null,null,null,null,null,null,null,null,null,null,null,null,null,null,null,null,null,null,null,"T4","CFL_42"]
[5072545,null,null,null,null,null,null,null,null,null,null,null,null,null,null,null,null,null,null,null,null,null,null,null,null,null,null,null,null,null,null,null,null,null,null,null,null,null,null,null,null,null,null,null,null,null,null,null,null,null,null,null,null,"MV_80_E"]
[5072587,null,null,null,null,null,null,null,null,null,null,null,null,null,null,null,null,null,null,null,null,null,null,null,null,null,null,null,null,null,null,null,null,null,null,null,null,null,null,null,null,null,null,null,null,null,null,null,null,null,null,null,null,"MV_80_E"]
[5072669,null,null,null,null,null,null,null,null,null,null,null,null,null,null,null,null,null,null,null,null,null,null,null,null,null,null,null,null,null,null,null,null,null,null,null,null,null,null,null,null,null,null,null,null,null,null,null,null,null,null,null,null,"MV_80_E"]
[5072676,null,null,null,null,null,null,null,null,null,null,null,null,null,null,null,null,null,null,null,null,null,null,null,null,null,null,null,null,null,null,null,null,null,null,null,null,null,null,null,null,null,null,null,null,null,null,null,null,null,null,null,null,"MV_80_E"]
[5072750,null,null,null,null,null,null,null,null,null,null,null,null,null,null,null,null,null,null,null,null,null,null,null,null,null,null,null,null,null,null,null,null,null,null,null,null,null,null,null,null,null,null,null,null,null,null,null,null,null,null,null,null,"MV_80_E"]
[5072801,null,null,null,null,null,null,null,null,null,null,null,null,null,null,null,null,null,null,null,null,null,null,null,null,null,null,null,null,null,null,null,null,null,null,null,null,null,null,null,null,null,null,null,null,null,null,null,null,null,null,null,null,"MV_80_E"]
[5072862,null,null,null,null,null,null,null,null,null,null,null,null,null,null,null,null,null,null,null,null,null,null,null,null,null,null,null,null,null,null,null,null,null,null,null,null,null,null,null,null,null,null,null,null,null,null,null,null,null,null,null,null,"HPS_250_T"]
[5072897,null,null,null,null,null,null,null,null,null,null,null,null,null,null,null,null,null,null,null,null,null,null,null,null,null,null,null,null,null,null,null,null,null,null,null,null,null,null,null,null,null,null,null,null,null,null,null,null,null,null,null,null,"HPS_150_T"]
[5072950,null,null,null,null,null,null,null,null,null,null,null,null,null,null,null,null,null,null,null,null,null,null,null,null,null,null,null,null,null,null,null,null,null,null,null,null,null,null,null,null,null,null,null,null,null,null,null,null,null,null,null,null,"CFL_42"]
[5073006,null,null,null,null,null,null,null,null,null,null,null,null,null,null,null,null,null,null,null,null,null,null,null,null,null,null,null,null,null,null,null,null,null,null,null,null,null,null,null,null,null,null,null,null,null,null,null,null,null,null,null,null,"CFL_42"]
[5073064,null,null,null,null,null,null,null,null,null,null,null,null,null,null,null,null,null,null,null,null,null,null,null,null,null,null,null,null,null,null,null,null,null,null,null,null,null,null,null,null,null,null,null,null,null,null,null,null,null,null,null,null,"MV_80_E"]
[5073117,null,null,null,null,null,null,null,null,null,null,null,null,null,null,null,null,null,null,null,null,null,null,null,null,null,null,null,null,null,null,null,null,null,null,null,null,null,null,null,null,null,null,null,null,null,null,null,null,null,null,null,null,"MV_80_E"]
[5073150,null,null,null,null,null,null,null,null,null,null,null,null,null,null,null,null,null,null,null,null,null,null,null,null,null,null,null,null,null,null,null,null,null,null,null,null,null,null,null,null,null,null,null,null,null,null,null,null,null,null,null,null,"MV_80_E"]
[5073217,null,null,null,null,null,null,null,null,null,null,null,null,null,null,null,null,null,null,null,null,null,null,null,null,null,null,null,null,null,null,null,null,null,null,null,null,null,null,null,null,null,null,null,null,null,null,null,null,null,null,null,"T4","CFL_42"]
[5073316,null,null,null,null,null,null,null,null,null,null,null,null,null,null,null,null,null,null,null,null,null,null,null,null,null,null,null,null,null,null,null,null,null,null,null,null,null,null,null,null,null,null,null,null,null,null,null,null,null,null,null,"TB","MV_80_E"]
[5073339,null,null,null,null,null,null,null,null,null,null,null,null,null,null,null,null,null,null,null,null,null,null,null,null,null,null,null,null,null,null,null,null,null,null,null,null,null,null,null,null,null,null,null,null,null,null,null,null,null,null,null,"T4","CFL_42"]
[5073397,null,null,null,null,null,null,null,null,null,null,null,null,null,null,null,null,null,null,null,null,null,null,null,null,null,null,null,null,null,null,null,null,null,null,null,null,null,null,null,null,null,null,null,null,null,null,null,null,null,null,null,"T4","MV_80_E"]
[5073430,null,null,null,null,null,null,null,null,null,null,null,null,null,null,null,null,null,null,null,null,null,null,null,null,null,null,null,null,null,null,null,null,null,null,null,null,null,null,null,null,null,null,null,null,null,null,null,null,null,null,null,"T4","MV_80_E"]
[5073522,null,null,null,null,null,null,null,null,null,null,null,null,null,null,null,null,null,null,null,null,null,null,null,null,null,null,null,null,null,null,null,null,null,null,null,null,null,null,null,null,null,null,null,null,null,null,null,null,null,null,null,null,"CFL_42"]
[5073609,null,null,null,null,null,null,null,null,null,null,null,null,null,null,null,null,null,null,null,null,null,null,null,null,null,null,null,null,null,null,null,null,null,null,null,null,null,null,null,null,null,null,null,null,null,null,null,null,null,null,null,null,"MV_80_E"]
[5073688,null,null,null,null,null,null,null,null,null,null,null,null,null,null,null,null,null,null,null,null,null,null,null,null,null,null,null,null,null,null,null,null,null,null,null,null,null,null,null,null,null,null,null,null,null,null,null,null,null,null,null,"T5","HPS_150_T"]
[5073723,null,null,null,null,null,null,null,null,null,null,null,null,null,null,null,null,null,null,null,null,null,null,null,null,null,null,null,null,null,null,null,null,null,null,null,null,null,null,null,null,null,null,null,null,null,null,null,null,null,null,null,"R6","HPS_250_T"]
[5073791,null,null,null,null,null,null,null,null,null,null,null,null,null,null,null,null,null,null,null,null,null,null,null,null,null,null,null,null,null,null,null,null,null,null,null,null,null,null,null,null,null,null,null,null,null,null,null,null,null,null,null,null,"HPS_150_T"]
[5073829,null,null,null,null,null,null,null,null,null,null,null,null,null,null,null,null,null,null,null,null,null,null,null,null,null,null,null,null,null,null,null,null,null,null,null,null,null,null,null,null,null,null,null,null,null,null,null,null,null,null,null,null,"MV_80_E"]
[5073879,null,null,null,null,null,null,null,null,null,null,null,null,null,null,null,null,null,null,null,null,null,null,null,null,null,null,null,null,null,null,null,null,null,null,null,null,null,null,null,null,null,null,null,null,null,null,null,null,null,null,null,null,"MV_80_E"]
[5073960,null,null,null,null,null,null,null,null,null,null,null,null,null,null,null,null,null,null,null,null,null,null,null,null,null,null,null,null,null,null,null,null,null,null,null,null,null,null,null,null,null,null,null,null,null,null,null,null,null,null,null,"T3","CFL_42"]
[5074008,null,null,null,null,null,null,null,null,null,null,null,null,null,null,null,null,null,null,null,null,null,null,null,null,null,null,null,null,null,null,null,null,null,null,null,null,null,null,null,null,null,null,null,null,null,null,null,null,null,null,null,null,"MV_80_E"]
[5074046,null,null,null,null,null,null,null,null,null,null,null,null,null,null,null,null,null,null,null,null,null,null,null,null,null,null,null,null,null,null,null,null,null,null,null,null,null,null,null,null,null,null,null,null,null,null,null,null,null,null,null,null,"CFL_42"]
[5074079,null,null,null,null,null,null,null,null,null,null,null,null,null,null,null,null,null,null,null,null,null,null,null,null,null,null,null,null,null,null,null,null,null,null,null,null,null,null,null,null,null,null,null,null,null,null,null,null,null,null,null,null,"MV_80_E"]
[5074129,null,null,null,null,null,null,null,null,null,null,null,null,null,null,null,null,null,null,null,null,null,null,null,null,null,null,null,null,null,null,null,null,null,null,null,null,null,null,null,null,null,null,null,null,null,null,null,null,null,null,null,null,"MV_80_E"]
[5074211,null,null,null,null,null,null,null,null,null,null,null,null,null,null,null,null,null,null,null,null,null,null,null,null,null,null,null,null,null,null,null,null,null,null,null,null,null,null,null,null,null,null,null,null,null,null,null,null,null,null,null,null,"CFL_42"]
[5074244,null,null,null,null,null,null,null,null,null,null,null,null,null,null,null,null,null,null,null,null,null,null,null,null,null,null,null,null,null,null,null,null,null,null,null,null,null,null,null,null,null,null,null,null,null,null,null,null,null,null,null,null,"MV_80_E"]
[5074320,null,null,null,null,null,null,null,null,null,null,null,null,null,null,null,null,null,null,null,null,null,null,null,null,null,null,null,null,null,null,null,null,null,null,null,null,null,null,null,null,null,null,null,null,null,null,null,null,null,null,null,"T4","HPS_250_T"]
[5074356,null,null,null,null,null,null,null,null,null,null,null,null,null,null,null,null,null,null,null,null,null,null,null,null,null,null,null,null,null,null,null,null,null,null,null,null,null,null,null,null,null,null,null,null,null,null,null,null,null,null,null,"T5","HPS_150_T"]
[5074470,null,null,null,null,null,null,null,null,null,null,null,null,null,null,null,null,null,null,null,null,null,null,null,null,null,null,null,null,null,null,null,null,null,null,null,null,null,null,null,null,null,null,null,null,null,null,null,null,null,null,null,"T4","CFL_42"]
[5074573,null,null,null,null,null,null,null,null,null,null,null,null,null,null,null,null,null,null,null,null,null,null,null,null,null,null,null,null,null,null,null,null,null,null,null,null,null,null,null,null,null,null,null,null,null,null,null,null,null,null,null,null,"HPS_150_T"]
[5074606,null,null,null,null,null,null,null,null,null,null,null,null,null,null,null,null,null,null,null,null,null,null,null,null,null,null,null,null,null,null,null,null,null,null,null,null,null,null,null,null,null,null,null,null,null,null,null,null,null,null,null,null,"HPS_250_T"]
[5074656,null,null,null,null,null,null,null,null,null,null,null,null,null,null,null,null,null,null,null,null,null,null,null,null,null,null,null,null,null,null,null,null,null,null,null,null,null,null,null,null,null,null,null,null,null,null,null,null,null,null,null,null,"HPS_150_T"]
[5074673,null,null,null,null,null,null,null,null,null,null,null,null,null,null,null,null,null,null,null,null,null,null,null,null,null,null,null,null,null,null,null,null,null,null,null,null,null,null,null,null,null,null,null,null,null,null,null,null,null,null,null,null,"HPS_250_T"]
[5075892,null,null,null,null,null,null,null,null,null,null,null,null,null,null,null,null,null,null,null,null,null,null,null,null,null,null,null,null,null,null,null,null,null,null,null,null,null,null,null,null,null,null,null,null,null,null,null,null,null,null,null,"T5","HPS_250_T"]
[5075942,null,null,null,null,null,null,null,null,null,null,null,null,null,null,null,null,null,null,null,null,null,null,null,null,null,null,null,null,null,null,null,null,null,null,null,null,null,null,null,null,null,null,null,null,null,null,null,null,null,null,null,"R6","HPS_250_T"]
[5076025,null,null,null,null,null,null,null,null,null,null,null,null,null,null,null,null,null,null,null,null,null,null,null,null,null,null,null,null,null,null,null,null,null,null,null,null,null,null,null,null,null,null,null,null,null,null,null,null,null,null,null,"T3","HPS_250_T"]
[5076139,null,null,null,null,null,null,null,null,null,null,null,null,null,null,null,null,null,null,null,null,null,null,null,null,null,null,null,null,null,null,null,null,null,null,null,null,null,null,null,null,null,null,null,null,null,null,null,null,null,null,null,"T4","MV_80_E"]
[5076185,null,null,null,null,null,null,null,null,null,null,null,null,null,null,null,null,null,null,null,null,null,null,null,null,null,null,null,null,null,null,null,null,null,null,null,null,null,null,null,null,null,null,null,null,null,null,null,null,null,null,null,null,"MV_80_E"]
[5076224,null,null,null,null,null,null,null,null,null,null,null,null,null,null,null,null,null,null,null,null,null,null,null,null,null,null,null,null,null,null,null,null,null,null,null,null,null,null,null,null,null,null,null,null,null,null,null,null,null,null,null,"T4","MV_80_E"]
[5076290,null,null,null,null,null,null,null,null,null,null,null,null,null,null,null,null,null,null,null,null,null,null,null,null,null,null,null,null,null,null,null,null,null,null,null,null,null,null,null,null,null,null,null,null,null,null,null,null,null,null,null,"T4","MV_80_E"]
[5076371,null,null,null,null,null,null,null,null,null,null,null,null,null,null,null,null,null,null,null,null,null,null,null,null,null,null,null,null,null,null,null,null,null,null,null,null,null,null,null,null,null,null,null,null,null,null,null,null,null,null,null,"T4","MV_80_E"]
[5076420,null,null,null,null,null,null,null,null,null,null,null,null,null,null,null,null,null,null,null,null,null,null,null,null,null,null,null,null,null,null,null,null,null,null,null,null,null,null,null,null,null,null,null,null,null,null,null,null,null,null,null,"T4","MV_80_E"]
[5076453,null,null,null,null,null,null,null,null,null,null,null,null,null,null,null,null,null,null,null,null,null,null,null,null,null,null,null,null,null,null,null,null,null,null,null,null,null,null,null,null,null,null,null,null,null,null,null,null,null,null,null,"T4","MV_80_E"]
[5076486,null,null,null,null,null,null,null,null,null,null,null,null,null,null,null,null,null,null,null,null,null,null,null,null,null,null,null,null,null,null,null,null,null,null,null,null,null,null,null,null,null,null,null,null,null,null,null,null,null,null,null,"T4","CFL_42"]
[5076532,null,null,null,null,null,null,null,null,null,null,null,null,null,null,null,null,null,null,null,null,null,null,null,null,null,null,null,null,null,null,null,null,null,null,null,null,null,null,null,null,null,null,null,null,null,null,null,null,null,null,null,"T4","MV_80_E"]
[5076618,null,null,null,null,null,null,null,null,null,null,null,null,null,null,null,null,null,null,null,null,null,null,null,null,null,null,null,null,null,null,null,null,null,null,null,null,null,null,null,null,null,null,null,null,null,null,null,null,null,null,null,"T4","MV_80_E"]
[5076653,null,null,null,null,null,null,null,null,null,null,null,null,null,null,null,null,null,null,null,null,null,null,null,null,null,null,null,null,null,null,null,null,null,null,null,null,null,null,null,null,null,null,null,null,null,null,null,null,null,null,null,"T4","MV_80_E"]
[5076703,null,null,null,null,null,null,null,null,null,null,null,null,null,null,null,null,null,null,null,null,null,null,null,null,null,null,null,null,null,null,null,null,null,null,null,null,null,null,null,null,null,null,null,null,null,null,null,null,null,null,null,"T3","MV_80_E"]
[5076736,null,null,null,null,null,null,null,null,null,null,null,null,null,null,null,null,null,null,null,null,null,null,null,null,null,null,null,null,null,null,null,null,null,null,null,null,null,null,null,null,null,null,null,null,null,null,null,null,null,null,null,"T4","MV_80_E"]
[5076785,null,null,null,null,null,null,null,null,null,null,null,null,null,null,null,null,null,null,null,null,null,null,null,null,null,null,null,null,null,null,null,null,null,null,null,null,null,null,null,null,null,null,null,null,null,null,null,null,null,null,null,"T4","MV_80_E"]
[5076829,null,null,null,null,null,null,null,null,null,null,null,null,null,null,null,null,null,null,null,null,null,null,null,null,null,null,null,null,null,null,null,null,null,null,null,null,null,null,null,null,null,null,null,null,null,null,null,null,null,null,null,"T4","MV_80_E"]
[5076898,null,null,null,null,null,null,null,null,null,null,null,null,null,null,null,null,null,null,null,null,null,null,null,null,null,null,null,null,null,null,null,null,null,null,null,null,null,null,null,null,null,null,null,null,null,null,null,null,null,null,null,null,"MV_80_E"]
[5076947,null,null,null,null,null,null,null,null,null,null,null,null,null,null,null,null,null,null,null,null,null,null,null,null,null,null,null,null,null,null,null,null,null,null,null,null,null,null,null,null,null,null,null,null,null,null,null,null,null,null,null,null,"MV_80_E"]
[5076980,null,null,null,null,null,null,null,null,null,null,null,null,null,null,null,null,null,null,null,null,null,null,null,null,null,null,null,null,null,null,null,null,null,null,null,null,null,null,null,null,null,null,null,null,null,null,null,null,null,null,null,null,"MV_80_E"]
[5077029,null,null,null,null,null,null,null,null,null,null,null,null,null,null,null,null,null,null,null,null,null,null,null,null,null,null,null,null,null,null,null,null,null,null,null,null,null,null,null,null,null,null,null,null,null,null,null,null,null,null,null,null,"CFL_42"]
[5084233,null,null,null,null,null,null,null,null,null,null,null,null,null,null,null,null,null,null,null,null,null,null,null,null,null,null,null,null,null,null,null,null,null,null,null,null,null,null,null,null,null,null,null,null,null,null,null,null,null,null,null,"T4","MV_80_E"]
[5084288,null,null,null,null,null,null,null,null,null,null,null,null,null,null,null,null,null,null,null,null,null,null,null,null,null,null,null,null,null,null,null,null,null,null,null,null,null,null,null,null,null,null,null,null,null,null,null,null,null,null,null,"T4","MV_80_E"]
[5084344,null,null,null,null,null,null,null,null,null,null,null,null,null,null,null,null,null,null,null,null,null,null,null,null,null,null,null,null,null,null,null,null,null,null,null,null,null,null,null,null,null,null,null,null,null,null,null,null,null,null,null,null,"HPS_150_T"]
[5084377,null,null,null,null,null,null,null,null,null,null,null,null,null,null,null,null,null,null,null,null,null,null,null,null,null,null,null,null,null,null,null,null,null,null,null,null,null,null,null,null,null,null,null,null,null,null,null,null,null,null,null,null,"HPS_150_T"]
[5084410,null,null,null,null,null,null,null,null,null,null,null,null,null,null,null,null,null,null,null,null,null,null,null,null,null,null,null,null,null,null,null,null,null,null,null,null,null,null,null,null,null,null,null,null,null,null,null,null,null,null,null,"T4","MV_80_E"]
[5087536,null,null,null,null,null,null,null,null,null,null,null,null,null,null,null,null,null,null,null,null,null,null,null,null,null,null,null,null,null,null,null,null,null,null,null,null,null,null,null,null,null,null,null,null,null,null,null,null,null,null,null,null,"HPS_150_T"]
[5087650,null,null,null,null,null,null,null,null,null,null,null,null,null,null,null,null,null,null,null,null,null,null,null,null,null,null,null,null,null,null,null,null,null,null,null,null,null,null,null,null,null,null,null,null,null,null,null,null,null,null,null,null,"MV_80_E"]
[5087801,null,null,null,null,null,null,null,null,null,null,null,null,null,null,null,null,null,null,null,null,null,null,null,null,null,null,null,null,null,null,null,null,null,null,null,null,null,null,null,null,null,null,null,null,null,null,null,null,null,null,null,null,"MV_80_E"]
[5087839,null,null,null,null,null,null,null,null,null,null,null,null,null,null,null,null,null,null,null,null,null,null,null,null,null,null,null,null,null,null,null,null,null,null,null,null,null,null,null,null,null,null,null,null,null,null,null,null,null,null,null,null,"MV_80_E"]
[5087873,null,null,null,null,null,null,null,null,null,null,null,null,null,null,null,null,null,null,null,null,null,null,null,null,null,null,null,null,null,null,null,null,null,null,null,null,null,null,null,null,null,null,null,null,null,null,null,null,null,null,null,null,"MV_80_E"]
[5087999,null,null,null,null,null,null,null,null,null,null,null,null,null,null,null,null,null,null,null,null,null,null,null,null,null,null,null,null,null,null,null,null,null,null,null,null,null,null,null,null,null,null,null,null,null,null,null,null,null,null,null,null,"MV_80_E"]
[5088032,null,null,null,null,null,null,null,null,null,null,null,null,null,null,null,null,null,null,null,null,null,null,null,null,null,null,null,null,null,null,null,null,null,null,null,null,null,null,null,null,null,null,null,null,null,null,null,null,null,null,null,null,"CFL_42"]
[5088124,null,null,null,null,null,null,null,null,null,null,null,null,null,null,null,null,null,null,null,null,null,null,null,null,null,null,null,null,null,null,null,null,null,null,null,null,null,null,null,null,null,null,null,null,null,null,null,null,null,null,null,null,"MV_80_E"]
[5088576,null,null,null,null,null,null,null,null,null,null,null,null,null,null,null,null,null,null,null,null,null,null,null,null,null,null,null,null,null,null,null,null,null,null,null,null,null,null,null,null,null,null,null,null,null,null,null,null,null,null,null,null,"MV_80_E"]
[5088609,null,null,null,null,null,null,null,null,null,null,null,null,null,null,null,null,null,null,null,null,null,null,null,null,null,null,null,null,null,null,null,null,null,null,null,null,null,null,null,null,null,null,null,null,null,null,null,null,null,null,null,null,"MV_80_E"]
[5088662,null,null,null,null,null,null,null,null,null,null,null,null,null,null,null,null,null,null,null,null,null,null,null,null,null,null,null,null,null,null,null,null,null,null,null,null,null,null,null,null,null,null,null,null,null,null,null,null,null,null,null,null,"MV_80_E"]
[5088695,null,null,null,null,null,null,null,null,null,null,null,null,null,null,null,null,null,null,null,null,null,null,null,null,null,null,null,null,null,null,null,null,null,null,null,null,null,null,null,null,null,null,null,null,null,null,null,null,null,null,null,null,"MV_80_E"]
[5113951,null,null,null,null,null,null,null,null,null,null,null,null,null,null,null,null,null,null,null,null,null,null,null,null,null,null,null,null,null,null,null,null,null,null,null,null,null,null,null,null,null,null,null,null,null,null,null,null,null,null,null,null,"MV_80_E"]
[5114004,null,null,null,null,null,null,null,null,null,null,null,null,null,null,null,null,null,null,null,null,null,null,null,null,null,null,null,null,null,null,null,null,null,null,null,null,null,null,null,null,null,null,null,null,null,null,null,null,null,null,null,"T4","LED_18"]
[5114032,null,null,null,null,null,null,null,null,null,null,null,null,null,null,null,null,null,null,null,null,null,null,null,null,null,null,null,null,null,null,null,null,null,null,null,null,null,null,null,null,null,null,null,null,null,null,null,null,null,null,null,"T4","LED_18"]
[5114081,null,null,null,null,null,null,null,null,null,null,null,null,null,null,null,null,null,null,null,null,null,null,null,null,null,null,null,null,null,null,null,null,null,null,null,null,null,null,null,null,null,null,null,null,null,null,null,null,null,null,null,"T4","LED_18"]
[5115876,null,null,null,null,null,null,null,null,null,null,null,null,null,null,null,null,null,null,null,null,null,null,null,null,null,null,null,null,null,null,null,null,null,null,null,null,null,null,null,null,null,null,null,null,null,null,null,null,null,null,null,null,"HPS_100_T"]
[5115964,null,null,null,null,null,null,null,null,null,null,null,null,null,null,null,null,null,null,null,null,null,null,null,null,null,null,null,null,null,null,null,null,null,null,null,null,null,null,null,null,null,null,null,null,null,null,null,null,null,null,null,null,"MV_80_E"]
[5116014,null,null,null,null,null,null,null,null,null,null,null,null,null,null,null,null,null,null,null,null,null,null,null,null,null,null,null,null,null,null,null,null,null,null,null,null,null,null,null,null,null,null,null,null,null,null,null,null,null,null,null,"T4","MV_80_E"]
[5116020,null,null,null,null,null,null,null,null,null,null,null,null,null,null,null,null,null,null,null,null,null,null,null,null,null,null,null,null,null,null,null,null,null,null,null,null,null,null,null,null,null,null,null,null,null,null,null,null,null,null,null,"T4","MV_80_E"]
[5116079,null,null,null,null,null,null,null,null,null,null,null,null,null,null,null,null,null,null,null,null,null,null,null,null,null,null,null,null,null,null,null,null,null,null,null,null,null,null,null,null,null,null,null,null,null,null,null,null,null,null,null,"T4","MV_80_E"]
[5116128,null,null,null,null,null,null,null,null,null,null,null,null,null,null,null,null,null,null,null,null,null,null,null,null,null,null,null,null,null,null,null,null,null,null,null,null,null,null,null,null,null,null,null,null,null,null,null,null,null,null,null,"T4","CFL_42"]
[5116165,null,null,null,null,null,null,null,null,null,null,null,null,null,null,null,null,null,null,null,null,null,null,null,null,null,null,null,null,null,null,null,null,null,null,null,null,null,null,null,null,null,null,null,null,null,null,null,null,null,null,null,null,"CFL_42"]
[5116214,null,null,null,null,null,null,null,null,null,null,null,null,null,null,null,null,null,null,null,null,null,null,null,null,null,null,null,null,null,null,null,null,null,null,null,null,null,null,null,null,null,null,null,null,null,null,null,null,null,null,null,"T4","CFL_42"]
[5116282,null,null,null,null,null,null,null,null,null,null,null,null,null,null,null,null,null,null,null,null,null,null,null,null,null,null,null,null,null,null,null,null,null,null,null,null,null,null,null,null,null,null,null,null,null,null,null,null,null,null,null,"T4","CFL_42"]
[5116330,null,null,null,null,null,null,null,null,null,null,null,null,null,null,null,null,null,null,null,null,null,null,null,null,null,null,null,null,null,null,null,null,null,null,null,null,null,null,null,null,null,null,null,null,null,null,null,null,null,null,null,null,"MV_80_E"]
[5116383,null,null,null,null,null,null,null,null,null,null,null,null,null,null,null,null,null,null,null,null,null,null,null,null,null,null,null,null,null,null,null,null,null,null,null,null,null,null,null,null,null,null,null,null,null,null,null,null,null,null,null,null,"MV_80_E"]
[5116437,null,null,null,null,null,null,null,null,null,null,null,null,null,null,null,null,null,null,null,null,null,null,null,null,null,null,null,null,null,null,null,null,null,null,null,null,null,null,null,null,null,null,null,null,null,null,null,null,null,null,null,null,"MV_80_E"]
[5116504,null,null,null,null,null,null,null,null,null,null,null,null,null,null,null,null,null,null,null,null,null,null,null,null,null,null,null,null,null,null,null,null,null,null,null,null,null,null,null,null,null,null,null,null,null,null,null,null,null,null,null,null,"MV_80_E"]
[5116632,null,null,null,null,null,null,null,null,null,null,null,null,null,null,null,null,null,null,null,null,null,null,null,null,null,null,null,null,null,null,null,null,null,null,null,null,null,null,null,null,null,null,null,null,null,null,null,null,null,null,null,null,"MV_80_E"]
[5116668,null,null,null,null,null,null,null,null,null,null,null,null,null,null,null,null,null,null,null,null,null,null,null,null,null,null,null,null,null,null,null,null,null,null,null,null,null,null,null,null,null,null,null,null,null,null,null,null,null,null,null,null,"MV_80_E"]
[5116713,null,null,null,null,null,null,null,null,null,null,null,null,null,null,null,null,null,null,null,null,null,null,null,null,null,null,null,null,null,null,null,null,null,null,null,null,null,null,null,null,null,null,null,null,null,null,null,null,null,null,null,null,"MV_80_E"]
[5116748,null,null,null,null,null,null,null,null,null,null,null,null,null,null,null,null,null,null,null,null,null,null,null,null,null,null,null,null,null,null,null,null,null,null,null,null,null,null,null,null,null,null,null,null,null,null,null,null,null,null,null,null,"MV_80_E"]
[5119156,null,null,null,null,null,null,null,null,null,null,null,null,null,null,null,null,null,null,null,null,null,null,null,null,null,null,null,null,null,null,null,null,null,null,null,null,null,null,null,null,null,null,null,null,null,null,null,null,null,null,null,"T4","LED_18"]
[5119211,null,null,null,null,null,null,null,null,null,null,null,null,null,null,null,null,null,null,null,null,null,null,null,null,null,null,null,null,null,null,null,null,null,null,null,null,null,null,null,null,null,null,null,null,null,null,null,null,null,null,null,"T4","LED_18"]
[5119244,null,null,null,null,null,null,null,null,null,null,null,null,null,null,null,null,null,null,null,null,null,null,null,null,null,null,null,null,null,null,null,null,null,null,null,null,null,null,null,null,null,null,null,null,null,null,null,null,null,null,null,"T4","LED_18"]
[5119292,null,null,null,null,null,null,null,null,null,null,null,null,null,null,null,null,null,null,null,null,null,null,null,null,null,null,null,null,null,null,null,null,null,null,null,null,null,null,null,null,null,null,null,null,null,null,null,null,null,null,null,null,"LED_18"]
[5119326,null,null,null,null,null,null,null,null,null,null,null,null,null,null,null,null,null,null,null,null,null,null,null,null,null,null,null,null,null,null,null,null,null,null,null,null,null,null,null,null,null,null,null,null,null,null,null,null,null,null,null,"T4","LED_18"]
[5119359,null,null,null,null,null,null,null,null,null,null,null,null,null,null,null,null,null,null,null,null,null,null,null,null,null,null,null,null,null,null,null,null,null,null,null,null,null,null,null,null,null,null,null,null,null,null,null,null,null,null,null,"T5","LED_18"]
[5119412,null,null,null,null,null,null,null,null,null,null,null,null,null,null,null,null,null,null,null,null,null,null,null,null,null,null,null,null,null,null,null,null,null,null,null,null,null,null,null,null,null,null,null,null,null,null,null,null,null,null,null,"T4","LED_18"]
[5119494,null,null,null,null,null,null,null,null,null,null,null,null,null,null,null,null,null,null,null,null,null,null,null,null,null,null,null,null,null,null,null,null,null,null,null,null,null,null,null,null,null,null,null,null,null,null,null,null,null,null,null,"T4","LED_18"]
[5119533,null,null,null,null,null,null,null,null,null,null,null,null,null,null,null,null,null,null,null,null,null,null,null,null,null,null,null,null,null,null,null,null,null,null,null,null,null,null,null,null,null,null,null,null,null,null,null,null,null,null,null,null,"MV_80_E"]
[5119596,null,null,null,null,null,null,null,null,null,null,null,null,null,null,null,null,null,null,null,null,null,null,null,null,null,null,null,null,null,null,null,null,null,null,null,null,null,null,null,null,null,null,null,null,null,null,null,null,null,null,null,null,"LED_18"]
[5119614,null,null,null,null,null,null,null,null,null,null,null,null,null,null,null,null,null,null,null,null,null,null,null,null,null,null,null,null,null,null,null,null,null,null,null,null,null,null,null,null,null,null,null,null,null,null,null,null,null,null,null,null,"LED_18"]
[5122110,null,null,null,null,null,null,null,null,null,null,null,null,null,null,null,null,null,null,null,null,null,null,null,null,null,null,null,null,null,null,null,null,null,null,null,null,null,null,null,null,null,null,null,null,null,null,null,null,null,null,null,"T4","LED_18"]
[5122204,null,null,null,null,null,null,null,null,null,null,null,null,null,null,null,null,null,null,null,null,null,null,null,null,null,null,null,null,null,null,null,null,null,null,null,null,null,null,null,null,null,null,null,null,null,null,null,null,null,null,null,"T4","LED_18"]
[5122237,null,null,null,null,null,null,null,null,null,null,null,null,null,null,null,null,null,null,null,null,null,null,null,null,null,null,null,null,null,null,null,null,null,null,null,null,null,null,null,null,null,null,null,null,null,null,null,null,null,null,null,"T4","LED_18"]
[5122286,null,null,null,null,null,null,null,null,null,null,null,null,null,null,null,null,null,null,null,null,null,null,null,null,null,null,null,null,null,null,null,null,null,null,null,null,null,null,null,null,null,null,null,null,null,null,null,null,null,null,null,"T4","LED_18"]
[5122388,null,null,null,null,null,null,null,null,null,null,null,null,null,null,null,null,null,null,null,null,null,null,null,null,null,null,null,null,null,null,null,null,null,null,null,null,null,null,null,null,null,null,null,null,null,null,null,null,null,null,null,"T4","LED_18"]
[5122406,null,null,null,null,null,null,null,null,null,null,null,null,null,null,null,null,null,null,null,null,null,null,null,null,null,null,null,null,null,null,null,null,null,null,null,null,null,null,null,null,null,null,null,null,null,null,null,null,null,null,null,"T4","LED_18"]
[5122487,null,null,null,null,null,null,null,null,null,null,null,null,null,null,null,null,null,null,null,null,null,null,null,null,null,null,null,null,null,null,null,null,null,null,null,null,null,null,null,null,null,null,null,null,null,null,null,null,null,null,null,null,"LED_18"]
[5122520,null,null,null,null,null,null,null,null,null,null,null,null,null,null,null,null,null,null,null,null,null,null,null,null,null,null,null,null,null,null,null,null,null,null,null,null,null,null,null,null,null,null,null,null,null,null,null,null,null,null,null,"T4","LED_18"]
[5122569,null,null,null,null,null,null,null,null,null,null,null,null,null,null,null,null,null,null,null,null,null,null,null,null,null,null,null,null,null,null,null,null,null,null,null,null,null,null,null,null,null,null,null,null,null,null,null,null,null,null,null,"T4","LED_18"]
[5122599,null,null,null,null,null,null,null,null,null,null,null,null,null,null,null,null,null,null,null,null,null,null,null,null,null,null,null,null,null,null,null,null,null,null,null,null,null,null,null,null,null,null,null,null,null,null,null,null,null,null,null,"T4","LED_18"]
[5122634,null,null,null,null,null,null,null,null,null,null,null,null,null,null,null,null,null,null,null,null,null,null,null,null,null,null,null,null,null,null,null,null,null,null,null,null,null,null,null,null,null,null,null,null,null,null,null,null,null,null,null,"T4","LED_18"]
[5122683,null,null,null,null,null,null,null,null,null,null,null,null,null,null,null,null,null,null,null,null,null,null,null,null,null,null,null,null,null,null,null,null,null,null,null,null,null,null,null,null,null,null,null,null,null,null,null,null,null,null,null,"TB","LED_18"]
[5122764,null,null,null,null,null,null,null,null,null,null,null,null,null,null,null,null,null,null,null,null,null,null,null,null,null,null,null,null,null,null,null,null,null,null,null,null,null,null,null,null,null,null,null,null,null,null,null,null,null,null,null,"T4","LED_18"]
[5122813,null,null,null,null,null,null,null,null,null,null,null,null,null,null,null,null,null,null,null,null,null,null,null,null,null,null,null,null,null,null,null,null,null,null,null,null,null,null,null,null,null,null,null,null,null,null,null,null,null,null,null,"T4","LED_18"]
[5122846,null,null,null,null,null,null,null,null,null,null,null,null,null,null,null,null,null,null,null,null,null,null,null,null,null,null,null,null,null,null,null,null,null,null,null,null,null,null,null,null,null,null,null,null,null,null,null,null,null,null,null,"T4","LED_18"]
[5122892,null,null,null,null,null,null,null,null,null,null,null,null,null,null,null,null,null,null,null,null,null,null,null,null,null,null,null,null,null,null,null,null,null,null,null,null,null,null,null,null,null,null,null,null,null,null,null,null,null,null,null,"T4","LED_18"]
[5122927,null,null,null,null,null,null,null,null,null,null,null,null,null,null,null,null,null,null,null,null,null,null,null,null,null,null,null,null,null,null,null,null,null,null,null,null,null,null,null,null,null,null,null,null,null,null,null,null,null,null,null,"T4","LED_18"]
[5123008,null,null,null,null,null,null,null,null,null,null,null,null,null,null,null,null,null,null,null,null,null,null,null,null,null,null,null,null,null,null,null,null,null,null,null,null,null,null,null,null,null,null,null,null,null,null,null,null,null,null,null,"T4","LED_18"]
[5123041,null,null,null,null,null,null,null,null,null,null,null,null,null,null,null,null,null,null,null,null,null,null,null,null,null,null,null,null,null,null,null,null,null,null,null,null,null,null,null,null,null,null,null,null,null,null,null,null,null,null,null,null,"LED_18"]
[5123090,null,null,null,null,null,null,null,null,null,null,null,null,null,null,null,null,null,null,null,null,null,null,null,null,null,null,null,null,null,null,null,null,null,null,null,null,null,null,null,null,null,null,null,null,null,null,null,null,null,null,null,"T4","LED_18"]
[5123123,null,null,null,null,null,null,null,null,null,null,null,null,null,null,null,null,null,null,null,null,null,null,null,null,null,null,null,null,null,null,null,null,null,null,null,null,null,null,null,null,null,null,null,null,null,null,null,null,null,null,null,null,"LED_18"]
[5127336,null,null,null,null,null,null,null,null,null,null,null,null,null,null,null,null,null,null,null,null,null,null,null,null,null,null,null,null,null,null,null,null,null,null,null,null,null,null,null,null,null,null,null,null,null,null,null,null,null,null,null,"T4","LED_18"]
[5127412,null,null,null,null,null,null,null,null,null,null,null,null,null,null,null,null,null,null,null,null,null,null,null,null,null,null,null,null,null,null,null,null,null,null,null,null,null,null,null,null,null,null,null,null,null,null,null,null,null,null,null,"T4","LED_18"]
[5127450,null,null,null,null,null,null,null,null,null,null,null,null,null,null,null,null,null,null,null,null,null,null,null,null,null,null,null,null,null,null,null,null,null,null,null,null,null,null,null,null,null,null,null,null,null,null,null,null,null,null,null,"T4","LED_18"]
[5127514,null,null,null,null,null,null,null,null,null,null,null,null,null,null,null,null,null,null,null,null,null,null,null,null,null,null,null,null,null,null,null,null,null,null,null,null,null,null,null,null,null,null,null,null,null,null,null,null,null,null,null,null,"LED_18"]
[5127547,null,null,null,null,null,null,null,null,null,null,null,null,null,null,null,null,null,null,null,null,null,null,null,null,null,null,null,null,null,null,null,null,null,null,null,null,null,null,null,null,null,null,null,null,null,null,null,null,null,null,null,"T4","LED_18"]
[5127596,null,null,null,null,null,null,null,null,null,null,null,null,null,null,null,null,null,null,null,null,null,null,null,null,null,null,null,null,null,null,null,null,null,null,null,null,null,null,null,null,null,null,null,null,null,null,null,null,null,null,null,"T4","LED_18"]
[5127670,null,null,null,null,null,null,null,null,null,null,null,null,null,null,null,null,null,null,null,null,null,null,null,null,null,null,null,null,null,null,null,null,null,null,null,null,null,null,null,null,null,null,null,null,null,null,null,null,null,null,null,null,"LED_18"]
[5127733,null,null,null,null,null,null,null,null,null,null,null,null,null,null,null,null,null,null,null,null,null,null,null,null,null,null,null,null,null,null,null,null,null,null,null,null,null,null,null,null,null,null,null,null,null,null,null,null,null,null,null,"T4","LED_18"]
[5127782,null,null,null,null,null,null,null,null,null,null,null,null,null,null,null,null,null,null,null,null,null,null,null,null,null,null,null,null,null,null,null,null,null,null,null,null,null,null,null,null,null,null,null,null,null,null,null,null,null,null,null,"T4","LED_18"]
[5127815,null,null,null,null,null,null,null,null,null,null,null,null,null,null,null,null,null,null,null,null,null,null,null,null,null,null,null,null,null,null,null,null,null,null,null,null,null,null,null,null,null,null,null,null,null,null,null,null,null,null,null,"T4","LED_18"]
[5127850,null,null,null,null,null,null,null,null,null,null,null,null,null,null,null,null,null,null,null,null,null,null,null,null,null,null,null,null,null,null,null,null,null,null,null,null,null,null,null,null,null,null,null,null,null,null,null,null,null,null,null,"T4","LED_18"]
[5127912,null,null,null,null,null,null,null,null,null,null,null,null,null,null,null,null,null,null,null,null,null,null,null,null,null,null,null,null,null,null,null,null,null,null,null,null,null,null,null,null,null,null,null,null,null,null,null,null,null,null,null,"R5","LED_18"]
[5127985,null,null,null,null,null,null,null,null,null,null,null,null,null,null,null,null,null,null,null,null,null,null,null,null,null,null,null,null,null,null,null,null,null,null,null,null,null,null,null,null,null,null,null,null,null,null,null,null,null,null,null,"T4","LED_18"]
[5128054,null,null,null,null,null,null,null,null,null,null,null,null,null,null,null,null,null,null,null,null,null,null,null,null,null,null,null,null,null,null,null,null,null,null,null,null,null,null,null,null,null,null,null,null,null,null,null,null,null,null,null,"T4","LED_18"]
[5128087,null,null,null,null,null,null,null,null,null,null,null,null,null,null,null,null,null,null,null,null,null,null,null,null,null,null,null,null,null,null,null,null,null,null,null,null,null,null,null,null,null,null,null,null,null,null,null,null,null,null,null,"T4","LED_18"]
[5128120,null,null,null,null,null,null,null,null,null,null,null,null,null,null,null,null,null,null,null,null,null,null,null,null,null,null,null,null,null,null,null,null,null,null,null,null,null,null,null,null,null,null,null,null,null,null,null,null,null,null,null,"T4","LED_18"]
[5128169,null,null,null,null,null,null,null,null,null,null,null,null,null,null,null,null,null,null,null,null,null,null,null,null,null,null,null,null,null,null,null,null,null,null,null,null,null,null,null,null,null,null,null,null,null,null,null,null,null,null,null,"T4","LED_18"]
[5128250,null,null,null,null,null,null,null,null,null,null,null,null,null,null,null,null,null,null,null,null,null,null,null,null,null,null,null,null,null,null,null,null,null,null,null,null,null,null,null,null,null,null,null,null,null,null,null,null,null,null,null,"T4","LED_18"]
[5128325,null,null,null,null,null,null,null,null,null,null,null,null,null,null,null,null,null,null,null,null,null,null,null,null,null,null,null,null,null,null,null,null,null,null,null,null,null,null,null,null,null,null,null,null,null,null,null,null,null,null,null,"T4","LED_18"]
[5128370,null,null,null,null,null,null,null,null,null,null,null,null,null,null,null,null,null,null,null,null,null,null,null,null,null,null,null,null,null,null,null,null,null,null,null,null,null,null,null,null,null,null,null,null,null,null,null,null,null,null,null,"T3","LED_18"]
[5128403,null,null,null,null,null,null,null,null,null,null,null,null,null,null,null,null,null,null,null,null,null,null,null,null,null,null,null,null,null,null,null,null,null,null,null,null,null,null,null,null,null,null,null,null,null,null,null,null,null,null,null,"T4","LED_18"]
[5128452,null,null,null,null,null,null,null,null,null,null,null,null,null,null,null,null,null,null,null,null,null,null,null,null,null,null,null,null,null,null,null,null,null,null,null,null,null,null,null,null,null,null,null,null,null,null,null,null,null,null,null,"R4","LED_18"]
[5128485,null,null,null,null,null,null,null,null,null,null,null,null,null,null,null,null,null,null,null,null,null,null,null,null,null,null,null,null,null,null,null,null,null,null,null,null,null,null,null,null,null,null,null,null,null,null,null,null,null,null,null,"T4","LED_18"]
[5128546,null,null,null,null,null,null,null,null,null,null,null,null,null,null,null,null,null,null,null,null,null,null,null,null,null,null,null,null,null,null,null,null,null,null,null,null,null,null,null,null,null,null,null,null,null,null,null,null,null,null,null,"T3","LED_18"]
[5128619,null,null,null,null,null,null,null,null,null,null,null,null,null,null,null,null,null,null,null,null,null,null,null,null,null,null,null,null,null,null,null,null,null,null,null,null,null,null,null,null,null,null,null,null,null,null,null,null,null,null,null,"T3","LED_18"]
[5128652,null,null,null,null,null,null,null,null,null,null,null,null,null,null,null,null,null,null,null,null,null,null,null,null,null,null,null,null,null,null,null,null,null,null,null,null,null,null,null,null,null,null,null,null,null,null,null,null,null,null,null,"T3","LED_18"]
[5128701,null,null,null,null,null,null,null,null,null,null,null,null,null,null,null,null,null,null,null,null,null,null,null,null,null,null,null,null,null,null,null,null,null,null,null,null,null,null,null,null,null,null,null,null,null,null,null,null,null,null,null,"T3","LED_18"]
[5132816,null,null,null,null,null,null,null,null,null,null,null,null,null,null,null,null,null,null,null,null,null,null,null,null,null,null,null,null,null,null,null,null,null,null,null,null,null,null,null,null,null,null,null,null,null,null,null,null,null,null,null,"T4","LED_18"]
[5132906,null,null,null,null,null,null,null,null,null,null,null,null,null,null,null,null,null,null,null,null,null,null,null,null,null,null,null,null,null,null,null,null,null,null,null,null,null,null,null,null,null,null,null,null,null,null,null,null,null,null,null,"T4","LED_18"]
[5132925,null,null,null,null,null,null,null,null,null,null,null,null,null,null,null,null,null,null,null,null,null,null,null,null,null,null,null,null,null,null,null,null,null,null,null,null,null,null,null,null,null,null,null,null,null,null,null,null,null,null,null,"T5","LED_18"]
[5132988,null,null,null,null,null,null,null,null,null,null,null,null,null,null,null,null,null,null,null,null,null,null,null,null,null,null,null,null,null,null,null,null,null,null,null,null,null,null,null,null,null,null,null,null,null,null,null,null,null,null,null,"T4","LED_18"]
[5133021,null,null,null,null,null,null,null,null,null,null,null,null,null,null,null,null,null,null,null,null,null,null,null,null,null,null,null,null,null,null,null,null,null,null,null,null,null,null,null,null,null,null,null,null,null,null,null,null,null,null,null,"T4","LED_18"]
[5133070,null,null,null,null,null,null,null,null,null,null,null,null,null,null,null,null,null,null,null,null,null,null,null,null,null,null,null,null,null,null,null,null,null,null,null,null,null,null,null,null,null,null,null,null,null,null,null,null,null,null,null,"T3","LED_18"]
[5133216,null,null,null,null,null,null,null,null,null,null,null,null,null,null,null,null,null,null,null,null,null,null,null,null,null,null,null,null,null,null,null,null,null,null,null,null,null,null,null,null,null,null,null,null,null,null,null,null,null,null,null,"T4","LED_18"]
[5133217,null,null,null,null,null,null,null,null,null,null,null,null,null,null,null,null,null,null,null,null,null,null,null,null,null,null,null,null,null,null,null,null,null,null,null,null,null,null,null,null,null,null,null,null,null,null,null,null,null,null,null,"T4","LED_18"]
[5133284,null,null,null,null,null,null,null,null,null,null,null,null,null,null,null,null,null,null,null,null,null,null,null,null,null,null,null,null,null,null,null,null,null,null,null,null,null,null,null,null,null,null,null,null,null,null,null,null,null,null,null,"T4","LED_18"]
[5133344,null,null,null,null,null,null,null,null,null,null,null,null,null,null,null,null,null,null,null,null,null,null,null,null,null,null,null,null,null,null,null,null,null,null,null,null,null,null,null,null,null,null,null,null,null,null,null,null,null,null,null,"T4","LED_18"]
[5133395,null,null,null,null,null,null,null,null,null,null,null,null,null,null,null,null,null,null,null,null,null,null,null,null,null,null,null,null,null,null,null,null,null,null,null,null,null,null,null,null,null,null,null,null,null,null,null,null,null,null,null,"T4","LED_18"]
[5133493,null,null,null,null,null,null,null,null,null,null,null,null,null,null,null,null,null,null,null,null,null,null,null,null,null,null,null,null,null,null,null,null,null,null,null,null,null,null,null,null,null,null,null,null,null,null,null,null,null,null,null,null,"LED_18"]
[5133542,null,null,null,null,null,null,null,null,null,null,null,null,null,null,null,null,null,null,null,null,null,null,null,null,null,null,null,null,null,null,null,null,null,null,null,null,null,null,null,null,null,null,null,null,null,null,null,null,null,null,null,"T4","LED_18"]
[5133634,null,null,null,null,null,null,null,null,null,null,null,null,null,null,null,null,null,null,null,null,null,null,null,null,null,null,null,null,null,null,null,null,null,null,null,null,null,null,null,null,null,null,null,null,null,null,null,null,null,null,null,"T4","LED_18"]
[5133669,null,null,null,null,null,null,null,null,null,null,null,null,null,null,null,null,null,null,null,null,null,null,null,null,null,null,null,null,null,null,null,null,null,null,null,null,null,null,null,null,null,null,null,null,null,null,null,null,null,null,null,"T4","MV_80_E"]
[5133716,null,null,null,null,null,null,null,null,null,null,null,null,null,null,null,null,null,null,null,null,null,null,null,null,null,null,null,null,null,null,null,null,null,null,null,null,null,null,null,null,null,null,null,null,null,null,null,null,null,null,null,"T4","LED_18"]
[5133761,null,null,null,null,null,null,null,null,null,null,null,null,null,null,null,null,null,null,null,null,null,null,null,null,null,null,null,null,null,null,null,null,null,null,null,null,null,null,null,null,null,null,null,null,null,null,null,null,null,null,null,"T4","LED_18"]
[5133854,null,null,null,null,null,null,null,null,null,null,null,null,null,null,null,null,null,null,null,null,null,null,null,null,null,null,null,null,null,null,null,null,null,null,null,null,null,null,null,null,null,null,null,null,null,null,null,null,null,null,null,"T3","LED_18"]
[5133904,null,null,null,null,null,null,null,null,null,null,null,null,null,null,null,null,null,null,null,null,null,null,null,null,null,null,null,null,null,null,null,null,null,null,null,null,null,null,null,null,null,null,null,null,null,null,null,null,null,null,null,null,"MV_80_E"]
[5133951,null,null,null,null,null,null,null,null,null,null,null,null,null,null,null,null,null,null,null,null,null,null,null,null,null,null,null,null,null,null,null,null,null,null,null,null,null,null,null,null,null,null,null,null,null,null,null,null,null,null,null,"T4","LED_18"]
[5133997,null,null,null,null,null,null,null,null,null,null,null,null,null,null,null,null,null,null,null,null,null,null,null,null,null,null,null,null,null,null,null,null,null,null,null,null,null,null,null,null,null,null,null,null,null,null,null,null,null,null,null,null,"MV_80_E"]
[5134043,null,null,null,null,null,null,null,null,null,null,null,null,null,null,null,null,null,null,null,null,null,null,null,null,null,null,null,null,null,null,null,null,null,null,null,null,null,null,null,null,null,null,null,null,null,null,null,null,null,null,null,"T4","LED_18"]
[5134130,null,null,null,null,null,null,null,null,null,null,null,null,null,null,null,null,null,null,null,null,null,null,null,null,null,null,null,null,null,null,null,null,null,null,null,null,null,null,null,null,null,null,null,null,null,null,null,null,null,null,null,"T4","LED_18"]
[5134131,null,null,null,null,null,null,null,null,null,null,null,null,null,null,null,null,null,null,null,null,null,null,null,null,null,null,null,null,null,null,null,null,null,null,null,null,null,null,null,null,null,null,null,null,null,null,null,null,null,null,null,"T4","LED_18"]
[5134216,null,null,null,null,null,null,null,null,null,null,null,null,null,null,null,null,null,null,null,null,null,null,null,null,null,null,null,null,null,null,null,null,null,null,null,null,null,null,null,null,null,null,null,null,null,null,null,null,null,null,null,"T4","LED_18"]
[5134276,null,null,null,null,null,null,null,null,null,null,null,null,null,null,null,null,null,null,null,null,null,null,null,null,null,null,null,null,null,null,null,null,null,null,null,null,null,null,null,null,null,null,null,null,null,null,null,null,null,null,null,"T4","LED_18"]
[5134298,null,null,null,null,null,null,null,null,null,null,null,null,null,null,null,null,null,null,null,null,null,null,null,null,null,null,null,null,null,null,null,null,null,null,null,null,null,null,null,null,null,null,null,null,null,null,null,null,null,null,null,"T4","LED_18"]
[5134340,null,null,null,null,null,null,null,null,null,null,null,null,null,null,null,null,null,null,null,null,null,null,null,null,null,null,null,null,null,null,null,null,null,null,null,null,null,null,null,null,null,null,null,null,null,null,null,null,null,null,null,"T4","LED_18"]
[5134390,null,null,null,null,null,null,null,null,null,null,null,null,null,null,null,null,null,null,null,null,null,null,null,null,null,null,null,null,null,null,null,null,null,null,null,null,null,null,null,null,null,null,null,null,null,null,null,null,null,null,null,"T4","LED_18"]
[5134478,null,null,null,null,null,null,null,null,null,null,null,null,null,null,null,null,null,null,null,null,null,null,null,null,null,null,null,null,null,null,null,null,null,null,null,null,null,null,null,null,null,null,null,null,null,null,null,null,null,null,null,"T3","LED_18"]
[5134511,null,null,null,null,null,null,null,null,null,null,null,null,null,null,null,null,null,null,null,null,null,null,null,null,null,null,null,null,null,null,null,null,null,null,null,null,null,null,null,null,null,null,null,null,null,null,null,null,null,null,null,"T3","LED_18"]
[5134540,null,null,null,null,null,null,null,null,null,null,null,null,null,null,null,null,null,null,null,null,null,null,null,null,null,null,null,null,null,null,null,null,null,null,null,null,null,null,null,null,null,null,null,null,null,null,null,null,null,null,null,null,"LED_18"]
[5137538,null,null,null,null,null,null,null,null,null,null,null,null,null,null,null,null,null,null,null,null,null,null,null,null,null,null,null,null,null,null,null,null,null,null,null,null,null,null,null,null,null,null,null,null,null,null,null,null,null,null,null,null,"HPS_150_T"]
[5137622,null,null,null,null,null,null,null,null,null,null,null,null,null,null,null,null,null,null,null,null,null,null,null,null,null,null,null,null,null,null,null,null,null,null,null,null,null,null,null,null,null,null,null,null,null,null,null,null,null,null,null,"T4","CFL_42"]
[5137801,null,null,null,null,null,null,null,null,null,null,null,null,null,null,null,null,null,null,null,null,null,null,null,null,null,null,null,null,null,null,null,null,null,null,null,null,null,null,null,null,null,null,null,null,null,null,null,null,null,null,null,"T4","MV_80_E"]
[5137834,null,null,null,null,null,null,null,null,null,null,null,null,null,null,null,null,null,null,null,null,null,null,null,null,null,null,null,null,null,null,null,null,null,null,null,null,null,null,null,null,null,null,null,null,null,null,null,null,null,null,null,"T4","CFL_42"]
[5137883,null,null,null,null,null,null,null,null,null,null,null,null,null,null,null,null,null,null,null,null,null,null,null,null,null,null,null,null,null,null,null,null,null,null,null,null,null,null,null,null,null,null,null,null,null,null,null,null,null,null,null,null,"MV_80_E"]
[5137912,null,null,null,null,null,null,null,null,null,null,null,null,null,null,null,null,null,null,null,null,null,null,null,null,null,null,null,null,null,null,null,null,null,null,null,null,null,null,null,null,null,null,null,null,null,null,null,null,null,null,null,null,"MV_80_E"]
[5138001,null,null,null,null,null,null,null,null,null,null,null,null,null,null,null,null,null,null,null,null,null,null,null,null,null,null,null,null,null,null,null,null,null,null,null,null,null,null,null,null,null,null,null,null,null,null,null,null,null,null,null,"T4","MV_80_E"]
[5138002,null,null,null,null,null,null,null,null,null,null,null,null,null,null,null,null,null,null,null,null,null,null,null,null,null,null,null,null,null,null,null,null,null,null,null,null,null,null,null,null,null,null,null,null,null,null,null,null,null,null,null,"T4","MV_80_E"]
[5138084,null,null,null,null,null,null,null,null,null,null,null,null,null,null,null,null,null,null,null,null,null,null,null,null,null,null,null,null,null,null,null,null,null,null,null,null,null,null,null,null,null,null,null,null,null,null,null,null,null,null,null,"T4","MV_80_E"]
[5138138,null,null,null,null,null,null,null,null,null,null,null,null,null,null,null,null,null,null,null,null,null,null,null,null,null,null,null,null,null,null,null,null,null,null,null,null,null,null,null,null,null,null,null,null,null,null,null,null,null,null,null,"OTHER","HPS_400_T"]
[5138173,null,null,null,null,null,null,null,null,null,null,null,null,null,null,null,null,null,null,null,null,null,null,null,null,null,null,null,null,null,null,null,null,null,null,null,null,null,null,null,null,null,null,null,null,null,null,null,null,null,null,null,"T1","HPS_150_T"]
[5138225,null,null,null,null,null,null,null,null,null,null,null,null,null,null,null,null,null,null,null,null,null,null,null,null,null,null,null,null,null,null,null,null,null,null,null,null,null,null,null,null,null,null,null,null,null,null,null,null,null,null,null,"R7","HPS_150_T"]
[5138274,null,null,null,null,null,null,null,null,null,null,null,null,null,null,null,null,null,null,null,null,null,null,null,null,null,null,null,null,null,null,null,null,null,null,null,null,null,null,null,null,null,null,null,null,null,null,null,null,null,null,null,null,"MV_80_E"]
[5138357,null,null,null,null,null,null,null,null,null,null,null,null,null,null,null,null,null,null,null,null,null,null,null,null,null,null,null,null,null,null,null,null,null,null,null,null,null,null,null,null,null,null,null,null,null,null,null,null,null,null,null,"R4","MV_80_E"]
[5138406,null,null,null,null,null,null,null,null,null,null,null,null,null,null,null,null,null,null,null,null,null,null,null,null,null,null,null,null,null,null,null,null,null,null,null,null,null,null,null,null,null,null,null,null,null,null,null,null,null,null,null,null,"MV_80_E"]
[5138544,null,null,null,null,null,null,null,null,null,null,null,null,null,null,null,null,null,null,null,null,null,null,null,null,null,null,null,null,null,null,null,null,null,null,null,null,null,null,null,null,null,null,null,null,null,null,null,null,null,null,null,null,"MV_80_E"]
[5138603,null,null,null,null,null,null,null,null,null,null,null,null,null,null,null,null,null,null,null,null,null,null,null,null,null,null,null,null,null,null,null,null,null,null,null,null,null,null,null,null,null,null,null,null,null,null,null,null,null,null,null,null,"CFL_42"]
[5144969,null,null,null,null,null,null,null,null,null,null,null,null,null,null,null,null,null,null,null,null,null,null,null,null,null,null,null,null,null,null,null,null,null,null,null,null,null,null,null,null,null,null,null,null,null,null,null,null,null,null,null,"T4","LED_18"]
[5145042,null,null,null,null,null,null,null,null,null,null,null,null,null,null,null,null,null,null,null,null,null,null,null,null,null,null,null,null,null,null,null,null,null,null,null,null,null,null,null,null,null,null,null,null,null,null,null,null,null,null,null,"T3","LED_18"]
[5145075,null,null,null,null,null,null,null,null,null,null,null,null,null,null,null,null,null,null,null,null,null,null,null,null,null,null,null,null,null,null,null,null,null,null,null,null,null,null,null,null,null,null,null,null,null,null,null,null,null,null,null,"T3","LED_18"]
[5145124,null,null,null,null,null,null,null,null,null,null,null,null,null,null,null,null,null,null,null,null,null,null,null,null,null,null,null,null,null,null,null,null,null,null,null,null,null,null,null,null,null,null,null,null,null,null,null,null,null,null,null,"T4","LED_18"]
[5145157,null,null,null,null,null,null,null,null,null,null,null,null,null,null,null,null,null,null,null,null,null,null,null,null,null,null,null,null,null,null,null,null,null,null,null,null,null,null,null,null,null,null,null,null,null,null,null,null,null,null,null,"T4","LED_18"]
[5145227,null,null,null,null,null,null,null,null,null,null,null,null,null,null,null,null,null,null,null,null,null,null,null,null,null,null,null,null,null,null,null,null,null,null,null,null,null,null,null,null,null,null,null,null,null,null,null,null,null,null,null,"T5","LED_18"]
[5145238,null,null,null,null,null,null,null,null,null,null,null,null,null,null,null,null,null,null,null,null,null,null,null,null,null,null,null,null,null,null,null,null,null,null,null,null,null,null,null,null,null,null,null,null,null,null,null,null,null,null,null,null,"MV_80_E"]
[5158725,null,null,null,null,null,null,null,null,null,null,null,null,null,null,null,null,null,null,null,null,null,null,null,null,null,null,null,null,null,null,null,null,null,null,null,null,null,null,null,null,null,null,null,null,null,null,null,null,null,null,null,null,"MV_80_E"]
[5158794,null,null,null,null,null,null,null,null,null,null,null,null,null,null,null,null,null,null,null,null,null,null,null,null,null,null,null,null,null,null,null,null,null,null,null,null,null,null,null,null,null,null,null,null,null,null,null,null,null,null,null,"R4","MV_80_E"]
[5158986,null,null,null,null,null,null,null,null,null,null,null,null,null,null,null,null,null,null,null,null,null,null,null,null,null,null,null,null,null,null,null,null,null,null,null,null,null,null,null,null,null,null,null,null,null,null,null,null,null,null,null,null,"MV_80_E"]
[5159062,null,null,null,null,null,null,null,null,null,null,null,null,null,null,null,null,null,null,null,null,null,null,null,null,null,null,null,null,null,null,null,null,null,null,null,null,null,null,null,null,null,null,null,null,null,null,null,null,null,null,null,null,"MV_80_E"]
[5171158,null,null,null,null,null,null,null,null,null,null,null,null,null,null,null,null,null,null,null,null,null,null,null,null,null,null,null,null,null,null,null,null,null,null,null,null,null,null,null,null,null,null,null,null,null,null,null,null,null,null,null,null,"MV_80_E"]
[5006812,null,null,null,null,null,null,null,null,null,null,null,null,null,null,null,null,null,null,null,null,null,null,null,null,null,null,null,null,null,null,null,null,null,null,null,null,null,null,null,null,null,null,null,null,null,null,null,null,null,null,null,null,"MV_80_E"]
[5010599,null,null,null,null,null,null,null,null,null,null,null,null,null,null,null,null,null,null,null,null,null,null,null,null,null,null,null,null,null,null,null,null,null,null,null,null,null,null,null,null,null,null,null,null,null,null,null,null,null,null,null,"T4","CFL_42"]
[5012804,null,null,null,null,null,null,null,null,null,null,null,null,null,null,null,null,null,null,null,null,null,null,null,null,null,null,null,null,null,null,null,null,null,null,null,null,null,null,null,null,null,null,null,null,null,null,null,null,null,null,null,null,"HPS_400_T"]
[5013419,null,null,null,null,null,null,null,null,null,null,null,null,null,null,null,null,null,null,null,null,null,null,null,null,null,null,null,null,null,null,null,null,null,null,null,null,null,null,null,null,null,null,null,null,null,null,null,null,null,null,null,"T4","CFL_42"]
[5015284,null,null,null,null,null,null,null,null,null,null,null,null,null,null,null,null,null,null,null,null,null,null,null,null,null,null,null,null,null,null,null,null,null,null,null,null,null,null,null,null,null,null,null,null,null,null,null,null,null,null,null,"NULL","HPS_150_T"]
[5017768,null,null,null,null,null,null,null,null,null,null,null,null,null,null,null,null,null,null,null,null,null,null,null,null,null,null,null,null,null,null,null,null,null,null,null,null,null,null,null,null,null,null,null,null,null,null,null,null,null,null,null,null,"HPS_250_T"]
[5022229,null,null,null,null,null,null,null,null,null,null,null,null,null,null,null,null,null,null,null,null,null,null,null,null,null,null,null,null,null,null,null,null,null,null,null,null,null,null,null,null,null,null,null,null,null,null,null,null,null,null,null,"T4","MV_80_E"]
[5023993,null,null,null,null,null,null,null,null,null,null,null,null,null,null,null,null,null,null,null,null,null,null,null,null,null,null,null,null,null,null,null,null,null,null,null,null,null,null,null,null,null,null,null,null,null,null,null,null,null,null,null,"STANGER_BROWN","T4"]
[5024774,null,null,null,null,null,null,null,null,null,null,null,null,null,null,null,null,null,null,null,null,null,null,null,null,null,null,null,null,null,null,null,null,null,null,null,null,null,null,null,null,null,null,null,null,null,null,null,null,null,null,null,null,"MV_80_E"]
[5026131,null,null,null,null,null,null,null,null,null,null,null,null,null,null,null,null,null,null,null,null,null,null,null,null,null,null,null,null,null,null,null,null,null,null,null,null,null,null,null,null,null,null,null,null,null,null,null,null,null,null,null,"T4","MV_80_E"]
[5026943,null,null,null,null,null,null,null,null,null,null,null,null,null,null,null,null,null,null,null,null,null,null,null,null,null,null,null,null,null,null,null,null,null,null,null,null,null,null,null,null,null,null,null,null,null,null,null,null,null,null,null,null,"MV_80_E"]
[5029602,null,null,null,null,null,null,null,null,null,null,null,null,null,null,null,null,null,null,null,null,null,null,null,null,null,null,null,null,null,null,null,null,null,null,null,null,null,null,null,null,null,null,null,null,null,null,null,null,null,null,null,null,"HPS_150_T"]
[5032518,null,null,null,null,null,null,null,null,null,null,null,null,null,null,null,null,null,null,null,null,null,null,null,null,null,null,null,null,null,null,null,null,null,null,null,null,null,null,null,null,null,null,null,null,null,null,null,null,null,null,null,null,"MV_80_E"]
[5033041,null,null,null,null,null,null,null,null,null,null,null,null,null,null,null,null,null,null,null,null,null,null,null,null,null,null,null,null,null,null,null,null,null,null,null,null,null,null,null,null,null,null,null,null,null,null,null,null,null,null,null,null,"MV_80_E"]
[5033518,null,null,null,null,null,null,null,null,null,null,null,null,null,null,null,null,null,null,null,null,null,null,null,null,null,null,null,null,null,null,null,null,null,null,null,null,null,null,null,null,null,null,null,null,null,null,null,null,null,null,null,"T4","CFL_42"]
[5035253,null,null,null,null,null,null,null,null,null,null,null,null,null,null,null,null,null,null,null,null,null,null,null,null,null,null,null,null,null,null,null,null,null,null,null,null,null,null,null,null,null,null,null,null,null,null,null,null,null,null,null,"NULL","HPS_400_T"]
[5039206,null,null,null,null,null,null,null,null,null,null,null,null,null,null,null,null,null,null,null,null,null,null,null,null,null,null,null,null,null,null,null,null,null,null,null,null,null,null,null,null,null,null,null,null,null,null,null,null,null,null,null,null,"CFL_42"]
[5039366,null,null,null,null,null,null,null,null,null,null,null,null,null,null,null,null,null,null,null,null,null,null,null,null,null,null,null,null,null,null,null,null,null,null,null,null,null,null,null,null,null,null,null,null,null,null,null,null,null,null,null,null,"HPS_250_T"]
[5040904,null,null,null,null,null,null,null,null,null,null,null,null,null,null,null,null,null,null,null,null,null,null,null,null,null,null,null,null,null,null,null,null,null,null,null,null,null,null,null,null,null,null,null,null,null,null,null,null,null,null,null,null,"MV_80_E"]
[5042112,null,null,null,null,null,null,null,null,null,null,null,null,null,null,null,null,null,null,null,null,null,null,null,null,null,null,null,null,null,null,null,null,null,null,null,null,null,null,null,null,null,null,null,null,null,null,null,null,null,null,null,null,"HPS_250_E"]
[5043527,null,null,null,null,null,null,null,null,null,null,null,null,null,null,null,null,null,null,null,null,null,null,null,null,null,null,null,null,null,null,null,null,null,null,null,null,null,null,null,null,null,null,null,null,null,null,null,null,null,null,null,null,"MV_80_E"]
[5045389,null,null,null,null,null,null,null,null,null,null,null,null,null,null,null,null,null,null,null,null,null,null,null,null,null,null,null,null,null,null,null,null,null,null,null,null,null,null,null,null,null,null,null,null,null,null,null,null,null,null,null,null,"HPS_400_T"]
[5047747,null,null,null,null,null,null,null,null,null,null,null,null,null,null,null,null,null,null,null,null,null,null,null,null,null,null,null,null,null,null,null,null,null,null,null,null,null,null,null,null,null,null,null,null,null,null,null,null,null,null,null,"T4","MV_80_E"]
[5048532,null,null,null,null,null,null,null,null,null,null,null,null,null,null,null,null,null,null,null,null,null,null,null,null,null,null,null,null,null,null,null,null,null,null,null,null,null,null,null,null,null,null,null,null,null,null,null,null,null,null,null,null,"MV_80_E"]
[5049407,null,null,null,null,null,null,null,null,null,null,null,null,null,null,null,null,null,null,null,null,null,null,null,null,null,null,null,null,null,null,null,null,null,null,null,null,null,null,null,null,null,null,null,null,null,null,null,null,null,null,null,null,"CFL_42"]
[5050124,null,null,null,null,null,null,null,null,null,null,null,null,null,null,null,null,null,null,null,null,null,null,null,null,null,null,null,null,null,null,null,null,null,null,null,null,null,null,null,null,null,null,null,null,null,null,null,null,null,null,null,"NULL","MV_80_E"]
[5050990,null,null,null,null,null,null,null,null,null,null,null,null,null,null,null,null,null,null,null,null,null,null,null,null,null,null,null,null,null,null,null,null,null,null,null,null,null,null,null,null,null,null,null,null,null,null,null,null,null,null,null,null,"MV_80_E"]
[5052045,null,null,null,null,null,null,null,null,null,null,null,null,null,null,null,null,null,null,null,null,null,null,null,null,null,null,null,null,null,null,null,null,null,null,null,null,null,null,null,null,null,null,null,null,null,null,null,null,null,null,null,"R4","MV_80_E"]
[5053685,null,null,null,null,null,null,null,null,null,null,null,null,null,null,null,null,null,null,null,null,null,null,null,null,null,null,null,null,null,null,null,null,null,null,null,null,null,null,null,null,null,null,null,null,null,null,null,null,null,null,null,null,"HPS_250_T"]
[5054791,null,null,null,null,null,null,null,null,null,null,null,null,null,null,null,null,null,null,null,null,null,null,null,null,null,null,null,null,null,null,null,null,null,null,null,null,null,null,null,null,null,null,null,null,null,null,null,null,null,null,null,null,"MV_250_E"]
[5055288,null,null,null,null,null,null,null,null,null,null,null,null,null,null,null,null,null,null,null,null,null,null,null,null,null,null,null,null,null,null,null,null,null,null,null,null,null,null,null,null,null,null,null,null,null,null,null,null,null,null,null,null,"MV_80_E"]
[5057879,null,null,null,null,null,null,null,null,null,null,null,null,null,null,null,null,null,null,null,null,null,null,null,null,null,null,null,null,null,null,null,null,null,null,null,null,null,null,null,null,null,null,null,null,null,null,null,null,null,null,null,null,"MV_80_E"]
[5060704,null,null,null,null,null,null,null,null,null,null,null,null,null,null,null,null,null,null,null,null,null,null,null,null,null,null,null,null,null,null,null,null,null,null,null,null,null,null,null,null,null,null,null,null,null,null,null,null,null,null,null,"R3","MV_80_E"]
[5062045,null,null,null,null,null,null,null,null,null,null,null,null,null,null,null,null,null,null,null,null,null,null,null,null,null,null,null,null,null,null,null,null,null,null,null,null,null,null,null,null,null,null,null,null,null,null,null,null,null,null,null,null,"MV_80_E"]
[5063979,null,null,null,null,null,null,null,null,null,null,null,null,null,null,null,null,null,null,null,null,null,null,null,null,null,null,null,null,null,null,null,null,null,null,null,null,null,null,null,null,null,null,null,null,null,null,null,null,null,null,null,null,"MV_80_E"]
[5064904,null,null,null,null,null,null,null,null,null,null,null,null,null,null,null,null,null,null,null,null,null,null,null,null,null,null,null,null,null,null,null,null,null,null,null,null,null,null,null,null,null,null,null,null,null,null,null,null,null,null,null,"T4","MV_80_E"]
[5065309,null,null,null,null,null,null,null,null,null,null,null,null,null,null,null,null,null,null,null,null,null,null,null,null,null,null,null,null,null,null,null,null,null,null,null,null,null,null,null,null,null,null,null,null,null,null,null,null,null,null,null,"NULL","CFL_42"]
[5066609,null,null,null,null,null,null,null,null,null,null,null,null,null,null,null,null,null,null,null,null,null,null,null,null,null,null,null,null,null,null,null,null,null,null,null,null,null,null,null,null,null,null,null,null,null,null,null,null,null,null,null,null,"HPS_70_E"]
[5067998,null,null,null,null,null,null,null,null,null,null,null,null,null,null,null,null,null,null,null,null,null,null,null,null,null,null,null,null,null,null,null,null,null,null,null,null,null,null,null,null,null,null,null,null,null,null,null,null,null,null,null,"T3","HPS_150_T"]
[5069335,null,null,null,null,null,null,null,null,null,null,null,null,null,null,null,null,null,null,null,null,null,null,null,null,null,null,null,null,null,null,null,null,null,null,null,null,null,null,null,null,null,null,null,null,null,null,null,null,null,null,null,null,"MV_80_E"]
[5075323,null,null,null,null,null,null,null,null,null,null,null,null,null,null,null,null,null,null,null,null,null,null,null,null,null,null,null,null,null,null,null,null,null,null,null,null,null,null,null,null,null,null,null,null,null,null,null,null,null,null,null,"T4","MV_80_E"]
[5077613,null,null,null,null,null,null,null,null,null,null,null,null,null,null,null,null,null,null,null,null,null,null,null,null,null,null,null,null,null,null,null,null,null,null,null,null,null,null,null,null,null,null,null,null,null,null,null,null,null,null,null,null,"HPS_250_T"]
[5080225,null,null,null,null,null,null,null,null,null,null,null,null,null,null,null,null,null,null,null,null,null,null,null,null,null,null,null,null,null,null,null,null,null,null,null,null,null,null,null,null,null,null,null,null,null,null,null,null,null,null,null,"T4","MV_80_E"]
[5083431,null,null,null,null,null,null,null,null,null,null,null,null,null,null,null,null,null,null,null,null,null,null,null,null,null,null,null,null,null,null,null,null,null,null,null,null,null,null,null,null,null,null,null,null,null,null,null,null,null,null,null,"T4","CFL_42"]
[5086505,null,null,null,null,null,null,null,null,null,null,null,null,null,null,null,null,null,null,null,null,null,null,null,null,null,null,null,null,null,null,null,null,null,null,null,null,null,null,null,null,null,null,null,null,null,null,null,null,null,null,null,null,"MV_80_E"]
[5088536,null,null,null,null,null,null,null,null,null,null,null,null,null,null,null,null,null,null,null,null,null,null,null,null,null,null,null,null,null,null,null,null,null,null,null,null,null,null,null,null,null,null,null,null,null,null,null,null,null,null,null,null,"MV_80_E"]
[5092553,null,null,null,null,null,null,null,null,null,null,null,null,null,null,null,null,null,null,null,null,null,null,null,null,null,null,null,null,null,null,null,null,null,null,null,null,null,null,null,null,null,null,null,null,null,null,null,null,null,null,null,"T3","CFL_42"]
[5092660,null,null,null,null,null,null,null,null,null,null,null,null,null,null,null,null,null,null,null,null,null,null,null,null,null,null,null,null,null,null,null,null,null,null,null,null,null,null,null,null,null,null,null,null,null,null,null,null,null,null,null,"R4","CFL_42"]
[5097241,null,null,null,null,null,null,null,null,null,null,null,null,null,null,null,null,null,null,null,null,null,null,null,null,null,null,null,null,null,null,null,null,null,null,null,null,null,null,null,null,null,null,null,null,null,null,null,null,null,null,null,null,"HPS_150_T"]
[5102909,null,null,null,null,null,null,null,null,null,null,null,null,null,null,null,null,null,null,null,null,null,null,null,null,null,null,null,null,null,null,null,null,null,null,null,null,null,null,null,null,null,null,null,null,null,null,null,null,null,null,null,null,"CFL_42"]
[5105718,null,null,null,null,null,null,null,null,null,null,null,null,null,null,null,null,null,null,null,null,null,null,null,null,null,null,null,null,null,null,null,null,null,null,null,null,null,null,null,null,null,null,null,null,null,null,null,null,null,null,null,null,"HPS_150_T"]
[5109890,null,null,null,null,null,null,null,null,null,null,null,null,null,null,null,null,null,null,null,null,null,null,null,null,null,null,null,null,null,null,null,null,null,null,null,null,null,null,null,null,null,null,null,null,null,null,null,null,null,null,null,null,"MV_50_E"]
[5111031,null,null,null,null,null,null,null,null,null,null,null,null,null,null,null,null,null,null,null,null,null,null,null,null,null,null,null,null,null,null,null,null,null,null,null,null,null,null,null,null,null,null,null,null,null,null,null,null,null,null,null,"NA","CFL_42"]
[5117727,null,null,null,null,null,null,null,null,null,null,null,null,null,null,null,null,null,null,null,null,null,null,null,null,null,null,null,null,null,null,null,null,null,null,null,null,null,null,null,null,null,null,null,null,null,null,null,null,null,null,null,"T4","MV_80_E"]
[5123141,null,null,null,null,null,null,null,null,null,null,null,null,null,null,null,null,null,null,null,null,null,null,null,null,null,null,null,null,null,null,null,null,null,null,null,null,null,null,null,null,null,null,null,null,null,null,null,null,null,null,null,null,"HPS_250_T"]
[5124532,null,null,null,null,null,null,null,null,null,null,null,null,null,null,null,null,null,null,null,null,null,null,null,null,null,null,null,null,null,null,null,null,null,null,null,null,null,null,null,null,null,null,null,null,null,null,null,null,null,null,null,null,"MV_80_E"]
[5126682,null,null,null,null,null,null,null,null,null,null,null,null,null,null,null,null,null,null,null,null,null,null,null,null,null,null,null,null,null,null,null,null,null,null,null,null,null,null,null,null,null,null,null,null,null,null,null,null,null,null,null,"T4","MV_80_E"]
[5131168,null,null,null,null,null,null,null,null,null,null,null,null,null,null,null,null,null,null,null,null,null,null,null,null,null,null,null,null,null,null,null,null,null,null,null,null,null,null,null,null,null,null,null,null,null,null,null,null,null,null,null,null,"CFL_42"]
[5132136,null,null,null,null,null,null,null,null,null,null,null,null,null,null,null,null,null,null,null,null,null,null,null,null,null,null,null,null,null,null,null,null,null,null,null,null,null,null,null,null,null,null,null,null,null,null,null,null,null,null,null,null,"CFL_42"]
[5136394,null,null,null,null,null,null,null,null,null,null,null,null,null,null,null,null,null,null,null,null,null,null,null,null,null,null,null,null,null,null,null,null,null,null,null,null,null,null,null,null,null,null,null,null,null,null,null,null,null,null,null,"T4","MV_80_E"]
[5142740,null,null,null,null,null,null,null,null,null,null,null,null,null,null,null,null,null,null,null,null,null,null,null,null,null,null,null,null,null,null,null,null,null,null,null,null,null,null,null,null,null,null,null,null,null,null,null,null,null,null,null,null,"MV_80_E"]
[5144774,null,null,null,null,null,null,null,null,null,null,null,null,null,null,null,null,null,null,null,null,null,null,null,null,null,null,null,null,null,null,null,null,null,null,null,null,null,null,null,null,null,null,null,null,null,null,null,null,null,null,null,"T3","MV_80_E"]
[5145918,null,null,null,null,null,null,null,null,null,null,null,null,null,null,null,null,null,null,null,null,null,null,null,null,null,null,null,null,null,null,null,null,null,null,null,null,null,null,null,null,null,null,null,null,null,null,null,null,null,null,null,"NULL","HPS_250_T"]
[5148238,null,null,null,null,null,null,null,null,null,null,null,null,null,null,null,null,null,null,null,null,null,null,null,null,null,null,null,null,null,null,null,null,null,null,null,null,null,null,null,null,null,null,null,null,null,null,null,null,null,null,null,null,"MV_80_E"]
[5148445,null,null,null,null,null,null,null,null,null,null,null,null,null,null,null,null,null,null,null,null,null,null,null,null,null,null,null,null,null,null,null,null,null,null,null,null,null,null,null,null,null,null,null,null,null,null,null,null,null,null,null,null,"HPS_150_T"]
[5151246,null,null,null,null,null,null,null,null,null,null,null,null,null,null,null,null,null,null,null,null,null,null,null,null,null,null,null,null,null,null,null,null,null,null,null,null,null,null,null,null,null,null,null,null,null,null,null,null,null,null,null,null,"MV_250_E"]
[5151303,null,null,null,null,null,null,null,null,null,null,null,null,null,null,null,null,null,null,null,null,null,null,null,null,null,null,null,null,null,null,null,null,null,null,null,null,null,null,null,null,null,null,null,null,null,null,null,null,null,null,null,null,"HPS_400_T"]
[5151899,null,null,null,null,null,null,null,null,null,null,null,null,null,null,null,null,null,null,null,null,null,null,null,null,null,null,null,null,null,null,null,null,null,null,null,null,null,null,null,null,null,null,null,null,null,null,null,null,null,null,null,null,"MV_80_E"]
[5152996,null,null,null,null,null,null,null,null,null,null,null,null,null,null,null,null,null,null,null,null,null,null,null,null,null,null,null,null,null,null,null,null,null,null,null,null,null,null,null,null,null,null,null,null,null,null,null,null,null,null,null,null,"HPS_150_T"]
[5154392,null,null,null,null,null,null,null,null,null,null,null,null,null,null,null,null,null,null,null,null,null,null,null,null,null,null,null,null,null,null,null,null,null,null,null,null,null,null,null,null,null,null,null,null,null,null,null,null,null,null,null,"R4","MV_80_E"]
[5155449,null,null,null,null,null,null,null,null,null,null,null,null,null,null,null,null,null,null,null,null,null,null,null,null,null,null,null,null,null,null,null,null,null,null,null,null,null,null,null,null,null,null,null,null,null,null,null,null,null,null,null,null,"HPS_150_T"]
[5156401,null,null,null,null,null,null,null,null,null,null,null,null,null,null,null,null,null,null,null,null,null,null,null,null,null,null,null,null,null,null,null,null,null,null,null,null,null,null,null,null,null,null,null,null,null,null,null,null,null,null,null,null,"MV_80_E"]
[5157203,null,null,null,null,null,null,null,null,null,null,null,null,null,null,null,null,null,null,null,null,null,null,null,null,null,null,null,null,null,null,null,null,null,null,null,null,null,null,null,null,null,null,null,null,null,null,null,null,null,null,null,null,"HPS_150_T"]
[5157295,null,null,null,null,null,null,null,null,null,null,null,null,null,null,null,null,null,null,null,null,null,null,null,null,null,null,null,null,null,null,null,null,null,null,null,null,null,null,null,null,null,null,null,null,null,null,null,null,null,null,null,null,"MV_80_E"]
[5158033,null,null,null,null,null,null,null,null,null,null,null,null,null,null,null,null,null,null,null,null,null,null,null,null,null,null,null,null,null,null,null,null,null,null,null,null,null,null,null,null,null,null,null,null,null,null,null,null,null,null,null,null,"HPS_70_E"]
[5160218,null,null,null,null,null,null,null,null,null,null,null,null,null,null,null,null,null,null,null,null,null,null,null,null,null,null,null,null,null,null,null,null,null,null,null,null,null,null,null,null,null,null,null,null,null,null,null,null,null,null,null,null,"MV_80_E"]
[5161770,null,null,null,null,null,null,null,null,null,null,null,null,null,null,null,null,null,null,null,null,null,null,null,null,null,null,null,null,null,null,null,null,null,null,null,null,null,null,null,null,null,null,null,null,null,null,null,null,null,null,null,"R5","MV_250_E"]
[5163094,null,null,null,null,null,null,null,null,null,null,null,null,null,null,null,null,null,null,null,null,null,null,null,null,null,null,null,null,null,null,null,null,null,null,null,null,null,null,null,null,null,null,null,null,null,null,null,null,null,null,null,null,"MV_80_E"]
[5163408,null,null,null,null,null,null,null,null,null,null,null,null,null,null,null,null,null,null,null,null,null,null,null,null,null,null,null,null,null,null,null,null,null,null,null,null,null,null,null,null,null,null,null,null,null,null,null,null,null,null,null,null,"HPS_150_T"]
[5163747,null,null,null,null,null,null,null,null,null,null,null,null,null,null,null,null,null,null,null,null,null,null,null,null,null,null,null,null,null,null,null,null,null,null,null,null,null,null,null,null,null,null,null,null,null,null,null,null,null,null,null,null,"MV_80_E"]
[5164697,null,null,null,null,null,null,null,null,null,null,null,null,null,null,null,null,null,null,null,null,null,null,null,null,null,null,null,null,null,null,null,null,null,null,null,null,null,null,null,null,null,null,null,null,null,null,null,null,null,null,null,"T3","HPS_250_T"]
[5167320,null,null,null,null,null,null,null,null,null,null,null,null,null,null,null,null,null,null,null,null,null,null,null,null,null,null,null,null,null,null,null,null,null,null,null,null,null,null,null,null,null,null,null,null,null,null,null,null,null,null,null,null,"CFL_42"]
[5168169,null,null,null,null,null,null,null,null,null,null,null,null,null,null,null,null,null,null,null,null,null,null,null,null,null,null,null,null,null,null,null,null,null,null,null,null,null,null,null,null,null,null,null,null,null,null,null,null,null,null,null,"T4","LED_18"]
[5169048,null,null,null,null,null,null,null,null,null,null,null,null,null,null,null,null,null,null,null,null,null,null,null,null,null,null,null,null,null,null,null,null,null,null,null,null,null,null,null,null,null,null,null,null,null,null,null,null,null,null,null,null,"MV_80_E"]
[5170202,null,null,null,null,null,null,null,null,null,null,null,null,null,null,null,null,null,null,null,null,null,null,null,null,null,null,null,null,null,null,null,null,null,null,null,null,null,null,null,null,null,null,null,null,null,null,null,null,null,null,null,"R4","MV_80_E"]
[5173577,null,null,null,null,null,null,null,null,null,null,null,null,null,null,null,null,null,null,null,null,null,null,null,null,null,null,null,null,null,null,null,null,null,null,null,null,null,null,null,null,null,null,null,null,null,null,null,null,null,null,null,null,"MV_50_E"]
[5176865,null,null,null,null,null,null,null,null,null,null,null,null,null,null,null,null,null,null,null,null,null,null,null,null,null,null,null,null,null,null,null,null,null,null,null,null,null,null,null,null,null,null,null,null,null,null,null,null,null,null,null,"T4","MV_80_E"]
[5176871,null,null,null,null,null,null,null,null,null,null,null,null,null,null,null,null,null,null,null,null,null,null,null,null,null,null,null,null,null,null,null,null,null,null,null,null,null,null,null,null,null,null,null,null,null,null,null,null,null,null,null,"T4","MV_80_E"]
[5176919,null,null,null,null,null,null,null,null,null,null,null,null,null,null,null,null,null,null,null,null,null,null,null,null,null,null,null,null,null,null,null,null,null,null,null,null,null,null,null,null,null,null,null,null,null,null,null,null,null,null,null,null,"MV_80_E"]
[5177025,null,null,null,null,null,null,null,null,null,null,null,null,null,null,null,null,null,null,null,null,null,null,null,null,null,null,null,null,null,null,null,null,null,null,null,null,null,null,null,null,null,null,null,null,null,null,null,null,null,null,null,null,"MV_80_E"]
[5177085,null,null,null,null,null,null,null,null,null,null,null,null,null,null,null,null,null,null,null,null,null,null,null,null,null,null,null,null,null,null,null,null,null,null,null,null,null,null,null,null,null,null,null,null,null,null,null,null,null,null,null,null,"HPS_400_T"]
[5177112,null,null,null,null,null,null,null,null,null,null,null,null,null,null,null,null,null,null,null,null,null,null,null,null,null,null,null,null,null,null,null,null,null,null,null,null,null,null,null,null,null,null,null,null,null,null,null,null,null,null,null,null,"HPS_400_T"]
[5177116,null,null,null,null,null,null,null,null,null,null,null,null,null,null,null,null,null,null,null,null,null,null,null,null,null,null,null,null,null,null,null,null,null,null,null,null,null,null,null,null,null,null,null,null,null,null,null,null,null,null,null,null,"HPS_70_E"]
[5177172,null,null,null,null,null,null,null,null,null,null,null,null,null,null,null,null,null,null,null,null,null,null,null,null,null,null,null,null,null,null,null,null,null,null,null,null,null,null,null,null,null,null,null,null,null,null,null,null,null,null,null,null,"MV_80_E"]
[5177180,null,null,null,null,null,null,null,null,null,null,null,null,null,null,null,null,null,null,null,null,null,null,null,null,null,null,null,null,null,null,null,null,null,null,null,null,null,null,null,null,null,null,null,null,null,null,null,null,null,null,null,"T4","CFL_42"]
[5177185,null,null,null,null,null,null,null,null,null,null,null,null,null,null,null,null,null,null,null,null,null,null,null,null,null,null,null,null,null,null,null,null,null,null,null,null,null,null,null,null,null,null,null,null,null,null,null,null,null,null,null,null,"MV_80_E"]
[5177211,null,null,null,null,null,null,null,null,null,null,null,null,null,null,null,null,null,null,null,null,null,null,null,null,null,null,null,null,null,null,null,null,null,null,null,null,null,null,null,null,null,null,null,null,null,null,null,null,null,null,null,"T4","MV_80_E"]
[5177215,null,null,null,null,null,null,null,null,null,null,null,null,null,null,null,null,null,null,null,null,null,null,null,null,null,null,null,null,null,null,null,null,null,null,null,null,null,null,null,null,null,null,null,null,null,null,null,null,null,null,null,"T4","CFL_42"]
[5177235,null,null,null,null,null,null,null,null,null,null,null,null,null,null,null,null,null,null,null,null,null,null,null,null,null,null,null,null,null,null,null,null,null,null,null,null,null,null,null,null,null,null,null,null,null,null,null,null,null,null,null,"T3","HPS_150_T"]
[5177236,null,null,null,null,null,null,null,null,null,null,null,null,null,null,null,null,null,null,null,null,null,null,null,null,null,null,null,null,null,null,null,null,null,null,null,null,null,null,null,null,null,null,null,null,null,null,null,null,null,null,null,null,"CFL_42"]
[5177237,null,null,null,null,null,null,null,null,null,null,null,null,null,null,null,null,null,null,null,null,null,null,null,null,null,null,null,null,null,null,null,null,null,null,null,null,null,null,null,null,null,null,null,null,null,null,null,null,null,null,null,"T4","CFL_42"]
[5177333,null,null,null,null,null,null,null,null,null,null,null,null,null,null,null,null,null,null,null,null,null,null,null,null,null,null,null,null,null,null,null,null,null,null,null,null,null,null,null,null,null,null,null,null,null,null,null,null,null,null,null,null,"MV_80_E"]
[5177335,null,null,null,null,null,null,null,null,null,null,null,null,null,null,null,null,null,null,null,null,null,null,null,null,null,null,null,null,null,null,null,null,null,null,null,null,null,null,null,null,null,null,null,null,null,null,null,null,null,null,null,null,"MV_80_E"]
[5177364,null,null,null,null,null,null,null,null,null,null,null,null,null,null,null,null,null,null,null,null,null,null,null,null,null,null,null,null,null,null,null,null,null,null,null,null,null,null,null,null,null,null,null,null,null,null,null,null,null,null,null,null,"HPS_150_T"]
[5177368,null,null,null,null,null,null,null,null,null,null,null,null,null,null,null,null,null,null,null,null,null,null,null,null,null,null,null,null,null,null,null,null,null,null,null,null,null,null,null,null,null,null,null,null,null,null,null,null,null,null,null,"T4","CFL_42"]
[5177380,null,null,null,null,null,null,null,null,null,null,null,null,null,null,null,null,null,null,null,null,null,null,null,null,null,null,null,null,null,null,null,null,null,null,null,null,null,null,null,null,null,null,null,null,null,null,null,null,null,null,null,"T4","LED_18"]
[5177412,null,null,null,null,null,null,null,null,null,null,null,null,null,null,null,null,null,null,null,null,null,null,null,null,null,null,null,null,null,null,null,null,null,null,null,null,null,null,null,null,null,null,null,null,null,null,null,null,null,null,null,"T4","MV_80_E"]
[5177463,null,null,null,null,null,null,null,null,null,null,null,null,null,null,null,null,null,null,null,null,null,null,null,null,null,null,null,null,null,null,null,null,null,null,null,null,null,null,null,null,null,null,null,null,null,null,null,null,null,null,null,null,"MV_80_E"]
[5177529,null,null,null,null,null,null,null,null,null,null,null,null,null,null,null,null,null,null,null,null,null,null,null,null,null,null,null,null,null,null,null,null,null,null,null,null,null,null,null,null,null,null,null,null,null,null,null,null,null,null,null,null,"MV_80_E"]
[5177568,null,null,null,null,null,null,null,null,null,null,null,null,null,null,null,null,null,null,null,null,null,null,null,null,null,null,null,null,null,null,null,null,null,null,null,null,null,null,null,null,null,null,null,null,null,null,null,null,null,null,null,"T1","HPS_250_TDA"]
[5177572,null,null,null,null,null,null,null,null,null,null,null,null,null,null,null,null,null,null,null,null,null,null,null,null,null,null,null,null,null,null,null,null,null,null,null,null,null,null,null,null,null,null,null,null,null,null,null,null,null,null,null,"T4","LED_18_1"]
[5177592,null,null,null,null,null,null,null,null,null,null,null,null,null,null,null,null,null,null,null,null,null,null,null,null,null,null,null,null,null,null,null,null,null,null,null,null,null,null,null,null,null,null,null,null,null,null,null,null,null,null,null,null,"MH_250_T"]
[5177708,null,null,null,null,null,null,null,null,null,null,null,null,null,null,null,null,null,null,null,null,null,null,null,null,null,null,null,null,null,null,null,null,null,null,null,null,null,null,null,null,null,null,null,null,null,null,null,null,null,null,null,null,"MV_80_E"]
[5177709,null,null,null,null,null,null,null,null,null,null,null,null,null,null,null,null,null,null,null,null,null,null,null,null,null,null,null,null,null,null,null,null,null,null,null,null,null,null,null,null,null,null,null,null,null,null,null,null,null,null,null,null,"MV_80_E"]
[5177711,null,null,null,null,null,null,null,null,null,null,null,null,null,null,null,null,null,null,null,null,null,null,null,null,null,null,null,null,null,null,null,null,null,null,null,null,null,null,null,null,null,null,null,null,null,null,null,null,null,null,null,"T4","MV_80_E"]
[5177733,null,null,null,null,null,null,null,null,null,null,null,null,null,null,null,null,null,null,null,null,null,null,null,null,null,null,null,null,null,null,null,null,null,null,null,null,null,null,null,null,null,null,null,null,null,null,null,null,null,null,null,"T2","MV_250_E"]
[5177734,null,null,null,null,null,null,null,null,null,null,null,null,null,null,null,null,null,null,null,null,null,null,null,null,null,null,null,null,null,null,null,null,null,null,null,null,null,null,null,null,null,null,null,null,null,null,null,null,null,null,null,null,"MV_80_E"]
[5177737,null,null,null,null,null,null,null,null,null,null,null,null,null,null,null,null,null,null,null,null,null,null,null,null,null,null,null,null,null,null,null,null,null,null,null,null,null,null,null,null,null,null,null,null,null,null,null,null,null,null,null,null,"MV_80_E"]
[5177749,null,null,null,null,null,null,null,null,null,null,null,null,null,null,null,null,null,null,null,null,null,null,null,null,null,null,null,null,null,null,null,null,null,null,null,null,null,null,null,null,null,null,null,null,null,null,null,null,null,null,null,"TA","HPS_400_T"]
[5177767,null,null,null,null,null,null,null,null,null,null,null,null,null,null,null,null,null,null,null,null,null,null,null,null,null,null,null,null,null,null,null,null,null,null,null,null,null,null,null,null,null,null,null,null,null,null,null,null,null,null,null,null,"HPS_150_T"]
[5177785,null,null,null,null,null,null,null,null,null,null,null,null,null,null,null,null,null,null,null,null,null,null,null,null,null,null,null,null,null,null,null,null,null,null,null,null,null,null,null,null,null,null,null,null,null,null,null,null,null,null,null,"T4","LED_18"]
[5177808,null,null,null,null,null,null,null,null,null,null,null,null,null,null,null,null,null,null,null,null,null,null,null,null,null,null,null,null,null,null,null,null,null,null,null,null,null,null,null,null,null,null,null,null,null,null,null,null,null,null,null,"T4","MV_80_E"]
[5177813,null,null,null,null,null,null,null,null,null,null,null,null,null,null,null,null,null,null,null,null,null,null,null,null,null,null,null,null,null,null,null,null,null,null,null,null,null,null,null,null,null,null,null,null,null,null,null,null,null,null,null,null,"CFL_42"]
[5177931,null,null,null,null,null,null,null,null,null,null,null,null,null,null,null,null,null,null,null,null,null,null,null,null,null,null,null,null,null,null,null,null,null,null,null,null,null,null,null,null,null,null,null,null,null,null,null,null,null,null,null,null,"HPS_150_T"]
[5178044,null,null,null,null,null,null,null,null,null,null,null,null,null,null,null,null,null,null,null,null,null,null,null,null,null,null,null,null,null,null,null,null,null,null,null,null,null,null,null,null,null,null,null,null,null,null,null,null,null,null,null,"T3","CFL_42"]
[5178393,null,null,null,null,null,null,null,null,null,null,null,null,null,null,null,null,null,null,null,null,null,null,null,null,null,null,null,null,null,null,null,null,null,null,null,null,null,null,null,null,null,null,null,null,null,null,null,null,null,null,null,null,"LED_30"]
[5178501,null,null,null,null,null,null,null,null,null,null,null,null,null,null,null,null,null,null,null,null,null,null,null,null,null,null,null,null,null,null,null,null,null,null,null,null,null,null,null,null,null,null,null,null,null,null,null,null,null,null,null,"T3","CFL_42"]
[5178508,null,null,null,null,null,null,null,null,null,null,null,null,null,null,null,null,null,null,null,null,null,null,null,null,null,null,null,null,null,null,null,null,null,null,null,null,null,null,null,null,null,null,null,null,null,null,null,null,null,null,null,null,"MV_80_E"]
[5178510,null,null,null,null,null,null,null,null,null,null,null,null,null,null,null,null,null,null,null,null,null,null,null,null,null,null,null,null,null,null,null,null,null,null,null,null,null,null,null,null,null,null,null,null,null,null,null,null,null,null,null,null,"MV_80_E"]
[5178512,null,null,null,null,null,null,null,null,null,null,null,null,null,null,null,null,null,null,null,null,null,null,null,null,null,null,null,null,null,null,null,null,null,null,null,null,null,null,null,null,null,null,null,null,null,null,null,null,null,null,null,null,"MV_80_E"]
[5178514,null,null,null,null,null,null,null,null,null,null,null,null,null,null,null,null,null,null,null,null,null,null,null,null,null,null,null,null,null,null,null,null,null,null,null,null,null,null,null,null,null,null,null,null,null,null,null,null,null,null,null,"OTHER","MV_80_E"]
[5178580,null,null,null,null,null,null,null,null,null,null,null,null,null,null,null,null,null,null,null,null,null,null,null,null,null,null,null,null,null,null,null,null,null,null,null,null,null,null,null,null,null,null,null,null,null,null,null,null,null,null,null,"T3","HPS_100_T"]
[5178581,null,null,null,null,null,null,null,null,null,null,null,null,null,null,null,null,null,null,null,null,null,null,null,null,null,null,null,null,null,null,null,null,null,null,null,null,null,null,null,null,null,null,null,null,null,null,null,null,null,null,null,null,"HPS_150_T"]
[5178599,null,null,null,null,null,null,null,null,null,null,null,null,null,null,null,null,null,null,null,null,null,null,null,null,null,null,null,null,null,null,null,null,null,null,null,null,null,null,null,null,null,null,null,null,null,null,null,null,null,null,null,"R1","CFL_42"]
[5178729,null,null,null,null,null,null,null,null,null,null,null,null,null,null,null,null,null,null,null,null,null,null,null,null,null,null,null,null,null,null,null,null,null,null,null,null,null,null,null,null,null,null,null,null,null,null,null,null,null,null,null,"T4","MV_80_E"]
[5178767,null,null,null,null,null,null,null,null,null,null,null,null,null,null,null,null,null,null,null,null,null,null,null,null,null,null,null,null,null,null,null,null,null,null,null,null,null,null,null,null,null,null,null,null,null,null,null,null,null,null,null,null,"CFL_42"]
[5178865,null,null,null,null,null,null,null,null,null,null,null,null,null,null,null,null,null,null,null,null,null,null,null,null,null,null,null,null,null,null,null,null,null,null,null,null,null,null,null,null,null,null,null,null,null,null,null,null,null,null,null,null,"CFL_42"]
[5178915,null,null,null,null,null,null,null,null,null,null,null,null,null,null,null,null,null,null,null,null,null,null,null,null,null,null,null,null,null,null,null,null,null,null,null,null,null,null,null,null,null,null,null,null,null,null,null,null,null,null,null,"T4","CFL_42"]
[5179083,null,null,null,null,null,null,null,null,null,null,null,null,null,null,null,null,null,null,null,null,null,null,null,null,null,null,null,null,null,null,null,null,null,null,null,null,null,null,null,null,null,null,null,null,null,null,null,null,null,null,null,null,"MV_80_E"]
[5179121,null,null,null,null,null,null,null,null,null,null,null,null,null,null,null,null,null,null,null,null,null,null,null,null,null,null,null,null,null,null,null,null,null,null,null,null,null,null,null,null,null,null,null,null,null,null,null,null,null,null,null,"T5","MV_80_E"]
[5179154,null,null,null,null,null,null,null,null,null,null,null,null,null,null,null,null,null,null,null,null,null,null,null,null,null,null,null,null,null,null,null,null,null,null,null,null,null,null,null,null,null,null,null,null,null,null,null,null,null,null,null,null,"CFL_42"]
[5179207,null,null,null,null,null,null,null,null,null,null,null,null,null,null,null,null,null,null,null,null,null,null,null,null,null,null,null,null,null,null,null,null,null,null,null,null,null,null,null,null,null,null,null,null,null,null,null,null,null,null,null,"T4","MV_80_E"]
[5179222,null,null,null,null,null,null,null,null,null,null,null,null,null,null,null,null,null,null,null,null,null,null,null,null,null,null,null,null,null,null,null,null,null,null,null,null,null,null,null,null,null,null,null,null,null,null,null,null,null,null,null,"T4","MV_80_E"]
[5179676,null,null,null,null,null,null,null,null,null,null,null,null,null,null,null,null,null,null,null,null,null,null,null,null,null,null,null,null,null,null,null,null,null,null,null,null,null,null,null,null,null,null,null,null,null,null,null,null,null,null,null,null,"MV_80_E"]
[5179677,null,null,null,null,null,null,null,null,null,null,null,null,null,null,null,null,null,null,null,null,null,null,null,null,null,null,null,null,null,null,null,null,null,null,null,null,null,null,null,null,null,null,null,null,null,null,null,null,null,null,null,"T4","MV_80_E"]
[5179680,null,null,null,null,null,null,null,null,null,null,null,null,null,null,null,null,null,null,null,null,null,null,null,null,null,null,null,null,null,null,null,null,null,null,null,null,null,null,null,null,null,null,null,null,null,null,null,null,null,null,null,"T4","MV_80_E"]
[5179681,null,null,null,null,null,null,null,null,null,null,null,null,null,null,null,null,null,null,null,null,null,null,null,null,null,null,null,null,null,null,null,null,null,null,null,null,null,null,null,null,null,null,null,null,null,null,null,null,null,null,null,"T4","MV_80_E"]
[5179688,null,null,null,null,null,null,null,null,null,null,null,null,null,null,null,null,null,null,null,null,null,null,null,null,null,null,null,null,null,null,null,null,null,null,null,null,null,null,null,null,null,null,null,null,null,null,null,null,null,null,null,"T4","CFL_42"]
[5179696,null,null,null,null,null,null,null,null,null,null,null,null,null,null,null,null,null,null,null,null,null,null,null,null,null,null,null,null,null,null,null,null,null,null,null,null,null,null,null,null,null,null,null,null,null,null,null,null,null,null,null,null,"MV_80_E"]
[5179701,null,null,null,null,null,null,null,null,null,null,null,null,null,null,null,null,null,null,null,null,null,null,null,null,null,null,null,null,null,null,null,null,null,null,null,null,null,null,null,null,null,null,null,null,null,null,null,null,null,null,null,"R4","MV_80_E"]
[5179752,null,null,null,null,null,null,null,null,null,null,null,null,null,null,null,null,null,null,null,null,null,null,null,null,null,null,null,null,null,null,null,null,null,null,null,null,null,null,null,null,null,null,null,null,null,null,null,null,null,null,null,null,"MV_80_E"]
[5179783,null,null,null,null,null,null,null,null,null,null,null,null,null,null,null,null,null,null,null,null,null,null,null,null,null,null,null,null,null,null,null,null,null,null,null,null,null,null,null,null,null,null,null,null,null,null,null,null,null,null,null,"T4","CFL_42"]
[5180233,null,null,null,null,null,null,null,null,null,null,null,null,null,null,null,null,null,null,null,null,null,null,null,null,null,null,null,null,null,null,null,null,null,null,null,null,null,null,null,null,null,null,null,null,null,null,null,null,null,null,null,"T3","CFL_42"]
[5180253,null,null,null,null,null,null,null,null,null,null,null,null,null,null,null,null,null,null,null,null,null,null,null,null,null,null,null,null,null,null,null,null,null,null,null,null,null,null,null,null,null,null,null,null,null,null,null,null,null,null,null,"T3","MV_80_E"]
[5180299,null,null,null,null,null,null,null,null,null,null,null,null,null,null,null,null,null,null,null,null,null,null,null,null,null,null,null,null,null,null,null,null,null,null,null,null,null,null,null,null,null,null,null,null,null,null,null,null,null,null,null,"T4","MV_80_E"]
[5180313,null,null,null,null,null,null,null,null,null,null,null,null,null,null,null,null,null,null,null,null,null,null,null,null,null,null,null,null,null,null,null,null,null,null,null,null,null,null,null,null,null,null,null,null,null,null,null,null,null,null,null,null,"HPS_150_T"]
[5180317,null,null,null,null,null,null,null,null,null,null,null,null,null,null,null,null,null,null,null,null,null,null,null,null,null,null,null,null,null,null,null,null,null,null,null,null,null,null,null,null,null,null,null,null,null,null,null,null,null,null,null,null,"MV_80_E"]
[5180335,null,null,null,null,null,null,null,null,null,null,null,null,null,null,null,null,null,null,null,null,null,null,null,null,null,null,null,null,null,null,null,null,null,null,null,null,null,null,null,null,null,null,null,null,null,null,null,null,null,null,null,"T4","LED_18"]
[5180352,null,null,null,null,null,null,null,null,null,null,null,null,null,null,null,null,null,null,null,null,null,null,null,null,null,null,null,null,null,null,null,null,null,null,null,null,null,null,null,null,null,null,null,null,null,null,null,null,null,null,null,null,"MV_80_E"]
[5180354,null,null,null,null,null,null,null,null,null,null,null,null,null,null,null,null,null,null,null,null,null,null,null,null,null,null,null,null,null,null,null,null,null,null,null,null,null,null,null,null,null,null,null,null,null,null,null,null,null,null,null,null,"MV_80_E"]
[5180360,null,null,null,null,null,null,null,null,null,null,null,null,null,null,null,null,null,null,null,null,null,null,null,null,null,null,null,null,null,null,null,null,null,null,null,null,null,null,null,null,null,null,null,null,null,null,null,null,null,null,null,"T4","CFL_42"]
[5180361,null,null,null,null,null,null,null,null,null,null,null,null,null,null,null,null,null,null,null,null,null,null,null,null,null,null,null,null,null,null,null,null,null,null,null,null,null,null,null,null,null,null,null,null,null,null,null,null,null,null,null,"T4","CFL_42"]
[5180365,null,null,null,null,null,null,null,null,null,null,null,null,null,null,null,null,null,null,null,null,null,null,null,null,null,null,null,null,null,null,null,null,null,null,null,null,null,null,null,null,null,null,null,null,null,null,null,null,null,null,null,null,"MV_80_E"]
[5180377,null,null,null,null,null,null,null,null,null,null,null,null,null,null,null,null,null,null,null,null,null,null,null,null,null,null,null,null,null,null,null,null,null,null,null,null,null,null,null,null,null,null,null,null,null,null,null,null,null,null,null,"T4","CFL_42"]
[5180380,null,null,null,null,null,null,null,null,null,null,null,null,null,null,null,null,null,null,null,null,null,null,null,null,null,null,null,null,null,null,null,null,null,null,null,null,null,null,null,null,null,null,null,null,null,null,null,null,null,null,null,null,"MV_80_E"]
[5180382,null,null,null,null,null,null,null,null,null,null,null,null,null,null,null,null,null,null,null,null,null,null,null,null,null,null,null,null,null,null,null,null,null,null,null,null,null,null,null,null,null,null,null,null,null,null,null,null,null,null,null,"T4","MV_80_E"]
[5180433,null,null,null,null,null,null,null,null,null,null,null,null,null,null,null,null,null,null,null,null,null,null,null,null,null,null,null,null,null,null,null,null,null,null,null,null,null,null,null,null,null,null,null,null,null,null,null,null,null,null,null,"T4","CFL_42"]
[5180467,null,null,null,null,null,null,null,null,null,null,null,null,null,null,null,null,null,null,null,null,null,null,null,null,null,null,null,null,null,null,null,null,null,null,null,null,null,null,null,null,null,null,null,null,null,null,null,null,null,null,null,"R6","HPS_250_T"]
[5180469,null,null,null,null,null,null,null,null,null,null,null,null,null,null,null,null,null,null,null,null,null,null,null,null,null,null,null,null,null,null,null,null,null,null,null,null,null,null,null,null,null,null,null,null,null,null,null,null,null,null,null,null,"HPS_250_T"]
[5180501,null,null,null,null,null,null,null,null,null,null,null,null,null,null,null,null,null,null,null,null,null,null,null,null,null,null,null,null,null,null,null,null,null,null,null,null,null,null,null,null,null,null,null,null,null,null,null,null,null,null,null,null,"MV_125_E"]
[5180537,null,null,null,null,null,null,null,null,null,null,null,null,null,null,null,null,null,null,null,null,null,null,null,null,null,null,null,null,null,null,null,null,null,null,null,null,null,null,null,null,null,null,null,null,null,null,null,null,null,null,null,null,"CFL_42"]
[5180538,null,null,null,null,null,null,null,null,null,null,null,null,null,null,null,null,null,null,null,null,null,null,null,null,null,null,null,null,null,null,null,null,null,null,null,null,null,null,null,null,null,null,null,null,null,null,null,null,null,null,null,null,"CFL_42"]
[5180653,null,null,null,null,null,null,null,null,null,null,null,null,null,null,null,null,null,null,null,null,null,null,null,null,null,null,null,null,null,null,null,null,null,null,null,null,null,null,null,null,null,null,null,null,null,null,null,null,null,null,null,"T4","CFL_42"]
[5180659,null,null,null,null,null,null,null,null,null,null,null,null,null,null,null,null,null,null,null,null,null,null,null,null,null,null,null,null,null,null,null,null,null,null,null,null,null,null,null,null,null,null,null,null,null,null,null,null,null,null,null,"T4","CFL_42"]
[5180660,null,null,null,null,null,null,null,null,null,null,null,null,null,null,null,null,null,null,null,null,null,null,null,null,null,null,null,null,null,null,null,null,null,null,null,null,null,null,null,null,null,null,null,null,null,null,null,null,null,null,null,null,"MV_80_E"]
[5180662,null,null,null,null,null,null,null,null,null,null,null,null,null,null,null,null,null,null,null,null,null,null,null,null,null,null,null,null,null,null,null,null,null,null,null,null,null,null,null,null,null,null,null,null,null,null,null,null,null,null,null,null,"MV_80_E"]
[5180664,null,null,null,null,null,null,null,null,null,null,null,null,null,null,null,null,null,null,null,null,null,null,null,null,null,null,null,null,null,null,null,null,null,null,null,null,null,null,null,null,null,null,null,null,null,null,null,null,null,null,null,null,"MV_80_E"]
[5180669,null,null,null,null,null,null,null,null,null,null,null,null,null,null,null,null,null,null,null,null,null,null,null,null,null,null,null,null,null,null,null,null,null,null,null,null,null,null,null,null,null,null,null,null,null,null,null,null,null,null,null,null,"MV_80_E"]
[5180733,null,null,null,null,null,null,null,null,null,null,null,null,null,null,null,null,null,null,null,null,null,null,null,null,null,null,null,null,null,null,null,null,null,null,null,null,null,null,null,null,null,null,null,null,null,null,null,null,null,null,null,"R4","CFL_42"]
[5180753,null,null,null,null,null,null,null,null,null,null,null,null,null,null,null,null,null,null,null,null,null,null,null,null,null,null,null,null,null,null,null,null,null,null,null,null,null,null,null,null,null,null,null,null,null,null,null,null,null,null,null,"T4","CFL_42"]
[5181420,null,null,null,null,null,null,null,null,null,null,null,null,null,null,null,null,null,null,null,null,null,null,null,null,null,null,null,null,null,null,null,null,null,null,null,null,null,null,null,null,null,null,null,null,null,null,null,null,null,null,null,"R1","MV_80_E"]
[5181425,null,null,null,null,null,null,null,null,null,null,null,null,null,null,null,null,null,null,null,null,null,null,null,null,null,null,null,null,null,null,null,null,null,null,null,null,null,null,null,null,null,null,null,null,null,null,null,null,null,null,null,null,"HPS_250_T"]
[5181473,null,null,null,null,null,null,null,null,null,null,null,null,null,null,null,null,null,null,null,null,null,null,null,null,null,null,null,null,null,null,null,null,null,null,null,null,null,null,null,null,null,null,null,null,null,null,null,null,null,null,null,null,"MV_80_E"]
[5181497,null,null,null,null,null,null,null,null,null,null,null,null,null,null,null,null,null,null,null,null,null,null,null,null,null,null,null,null,null,null,null,null,null,null,null,null,null,null,null,null,null,null,null,null,null,null,null,null,null,null,null,null,"MV_80_E"]
[5181621,null,null,null,null,null,null,null,null,null,null,null,null,null,null,null,null,null,null,null,null,null,null,null,null,null,null,null,null,null,null,null,null,null,null,null,null,null,null,null,null,null,null,null,null,null,null,null,null,null,null,null,"T4","LED_18"]
[5181741,null,null,null,null,null,null,null,null,null,null,null,null,null,null,null,null,null,null,null,null,null,null,null,null,null,null,null,null,null,null,null,null,null,null,null,null,null,null,null,null,null,null,null,null,null,null,null,null,null,null,null,null,"HPS_150_T"]
[5181773,null,null,null,null,null,null,null,null,null,null,null,null,null,null,null,null,null,null,null,null,null,null,null,null,null,null,null,null,null,null,null,null,null,null,null,null,null,null,null,null,null,null,null,null,null,null,null,null,null,null,null,null,"MV_80_E"]
[5181788,null,null,null,null,null,null,null,null,null,null,null,null,null,null,null,null,null,null,null,null,null,null,null,null,null,null,null,null,null,null,null,null,null,null,null,null,null,null,null,null,null,null,null,null,null,null,null,null,null,null,null,null,"CFL_42"]
[5181804,null,null,null,null,null,null,null,null,null,null,null,null,null,null,null,null,null,null,null,null,null,null,null,null,null,null,null,null,null,null,null,null,null,null,null,null,null,null,null,null,null,null,null,null,null,null,null,null,null,null,null,null,"MV_80_E"]
[5182348,null,null,null,null,null,null,null,null,null,null,null,null,null,null,null,null,null,null,null,null,null,null,null,null,null,null,null,null,null,null,null,null,null,null,null,null,null,null,null,null,null,null,null,null,null,null,null,null,null,null,null,"T4","LED_18"]
[5182377,null,null,null,null,null,null,null,null,null,null,null,null,null,null,null,null,null,null,null,null,null,null,null,null,null,null,null,null,null,null,null,null,null,null,null,null,null,null,null,null,null,null,null,null,null,null,null,null,null,null,null,null,"MV_80_E"]
[5182562,null,null,null,null,null,null,null,null,null,null,null,null,null,null,null,null,null,null,null,null,null,null,null,null,null,null,null,null,null,null,null,null,null,null,null,null,null,null,null,null,null,null,null,null,null,null,null,null,null,null,null,"T4","MV_80_E"]
[5182568,null,null,null,null,null,null,null,null,null,null,null,null,null,null,null,null,null,null,null,null,null,null,null,null,null,null,null,null,null,null,null,null,null,null,null,null,null,null,null,null,null,null,null,null,null,null,null,null,null,null,null,"T4","LED_18"]
[5182572,null,null,null,null,null,null,null,null,null,null,null,null,null,null,null,null,null,null,null,null,null,null,null,null,null,null,null,null,null,null,null,null,null,null,null,null,null,null,null,null,null,null,null,null,null,null,null,null,null,null,null,"T4","LED_18"]
[5182586,null,null,null,null,null,null,null,null,null,null,null,null,null,null,null,null,null,null,null,null,null,null,null,null,null,null,null,null,null,null,null,null,null,null,null,null,null,null,null,null,null,null,null,null,null,null,null,null,null,null,null,null,"MV_80_E"]
[5182589,null,null,null,null,null,null,null,null,null,null,null,null,null,null,null,null,null,null,null,null,null,null,null,null,null,null,null,null,null,null,null,null,null,null,null,null,null,null,null,null,null,null,null,null,null,null,null,null,null,null,null,null,"MV_80_E"]
[5182924,null,null,null,null,null,null,null,null,null,null,null,null,null,null,null,null,null,null,null,null,null,null,null,null,null,null,null,null,null,null,null,null,null,null,null,null,null,null,null,null,null,null,null,null,null,null,null,null,null,null,null,null,"CFL_42"]
[5182929,null,null,null,null,null,null,null,null,null,null,null,null,null,null,null,null,null,null,null,null,null,null,null,null,null,null,null,null,null,null,null,null,null,null,null,null,null,null,null,null,null,null,null,null,null,null,null,null,null,null,null,null,"HPS_250_T"]
[5183380,null,null,null,null,null,null,null,null,null,null,null,null,null,null,null,null,null,null,null,null,null,null,null,null,null,null,null,null,null,null,null,null,null,null,null,null,null,null,null,null,null,null,null,null,null,null,null,null,null,null,null,"T4","MV_80_E"]
[5183422,null,null,null,null,null,null,null,null,null,null,null,null,null,null,null,null,null,null,null,null,null,null,null,null,null,null,null,null,null,null,null,null,null,null,null,null,null,null,null,null,null,null,null,null,null,null,null,null,null,null,null,null,"MV_80_E"]
[5183444,null,null,null,null,null,null,null,null,null,null,null,null,null,null,null,null,null,null,null,null,null,null,null,null,null,null,null,null,null,null,null,null,null,null,null,null,null,null,null,null,null,null,null,null,null,null,null,null,null,null,null,"T4","LED_25"]
[5183479,null,null,null,null,null,null,null,null,null,null,null,null,null,null,null,null,null,null,null,null,null,null,null,null,null,null,null,null,null,null,null,null,null,null,null,null,null,null,null,null,null,null,null,null,null,null,null,null,null,null,null,null,"CFL_42"]
[5183530,null,null,null,null,null,null,null,null,null,null,null,null,null,null,null,null,null,null,null,null,null,null,null,null,null,null,null,null,null,null,null,null,null,null,null,null,null,null,null,null,null,null,null,null,null,null,null,null,null,null,null,null,"HPS_150_T"]
[5183555,null,null,null,null,null,null,null,null,null,null,null,null,null,null,null,null,null,null,null,null,null,null,null,null,null,null,null,null,null,null,null,null,null,null,null,null,null,null,null,null,null,null,null,null,null,null,null,null,null,null,null,null,"MV_80_E"]
[5183559,null,null,null,null,null,null,null,null,null,null,null,null,null,null,null,null,null,null,null,null,null,null,null,null,null,null,null,null,null,null,null,null,null,null,null,null,null,null,null,null,null,null,null,null,null,null,null,null,null,null,null,null,"MV_80_E"]
[5183646,null,null,null,null,null,null,null,null,null,null,null,null,null,null,null,null,null,null,null,null,null,null,null,null,null,null,null,null,null,null,null,null,null,null,null,null,null,null,null,null,null,null,null,null,null,null,null,null,null,null,null,"T4","CFL_42"]
[5183707,null,null,null,null,null,null,null,null,null,null,null,null,null,null,null,null,null,null,null,null,null,null,null,null,null,null,null,null,null,null,null,null,null,null,null,null,null,null,null,null,null,null,null,null,null,null,null,null,null,null,null,null,"HPS_250_T"]
[5183883,null,null,null,null,null,null,null,null,null,null,null,null,null,null,null,null,null,null,null,null,null,null,null,null,null,null,null,null,null,null,null,null,null,null,null,null,null,null,null,null,null,null,null,null,null,null,null,null,null,null,null,"T4","MV_80_E"]
[5183885,null,null,null,null,null,null,null,null,null,null,null,null,null,null,null,null,null,null,null,null,null,null,null,null,null,null,null,null,null,null,null,null,null,null,null,null,null,null,null,null,null,null,null,null,null,null,null,null,null,null,null,"R4","MV_80_E"]
[5184029,null,null,null,null,null,null,null,null,null,null,null,null,null,null,null,null,null,null,null,null,null,null,null,null,null,null,null,null,null,null,null,null,null,null,null,null,null,null,null,null,null,null,null,null,null,null,null,null,null,null,null,"NULL","MV_50_E"]
[5184347,null,null,null,null,null,null,null,null,null,null,null,null,null,null,null,null,null,null,null,null,null,null,null,null,null,null,null,null,null,null,null,null,null,null,null,null,null,null,null,null,null,null,null,null,null,null,null,null,null,null,null,"T4","HPS_100_T"]
[5184424,null,null,null,null,null,null,null,null,null,null,null,null,null,null,null,null,null,null,null,null,null,null,null,null,null,null,null,null,null,null,null,null,null,null,null,null,null,null,null,null,null,null,null,null,null,null,null,null,null,null,null,null,"HPS_250_T"]